{"text_format":"1","workbook":"xlsx","n_sheets":22,"sheets":["Cover Sheet","Model Structure","Model Information","TN Changes","AER Changes","Smoothed Prices","Unsmoothed Prices","Combined Annuity Prices CL","Combined Annuity Prices PL","CAPEX Annuity calcs","Corp Capex Annuity calcs","Capex Weighting","Opex Weighting","Building Block","Corporate OH","Inputs","Master Data","Volumes","Warehouse Pricing","Old PL unit prices (2012-17) ","Bracket Summary","Bracket Data"],"not_rendered":{"charts":0,"images":2,"macros":1,"external_links":0,"defined_names":78,"comments":8,"pivot_tables":0},"unopened":[],"bounds":{"document_bytes":16777216,"sheet_cells":100000,"rows_first":2000,"rows_last":500,"rows_between":2000,"halvings":0,"cell_chars":16384,"cell_head_chars":4096},"cells_cut":0,"cells_raw":0,"read":"whole","date_system":"1900"}

{"sheet":"Cover Sheet","index":0,"n_rows":29,"n_cols":4,"rows_kept":29,"cut":false,"hidden":false,"merged":[[23,1,26,5],[30,1,33,5]]}
[]
[null,null,"Model Details"]
[]
[null,null,"Model Name:","TasNetworks (Public Lighting Model)"]
[]
[null,null,"Date:","2018-04-20"]
[]
[]
[]
[]
[]
[]
[]
[]
[]
[]
[]
[]
[]
[null,"Model Description/Scope"]
[]
[null,"Model Description"]
[]
[null,"This is a street lighting pricing model which works out the pricing for indiviual contract and public lights and estimates the total revenue build up for street lighting in $Real 2019-20. "]
[]
[]
[]
[]
[null,"Scope/Disclaimer"]

{"sheet":"Model Structure","index":1,"n_rows":20,"n_cols":2,"rows_kept":20,"cut":false,"hidden":true,"merged":[]}
[]
[]
[]
[]
[]
[]
[]
[]
[null,"Model Overview"]
[]
[null,"Legend"]
[]
[]
[]
[]
[]
[]
[]
[]
[null,"Model Structure "]

{"sheet":"Model Information","index":2,"n_rows":75,"n_cols":2,"rows_kept":75,"cut":false,"hidden":false,"merged":[[2,1,3,10],[4,1,7,10],[32,1,32,10],[41,1,43,10],[33,1,35,10],[36,1,39,10],[8,1,10,10],[11,1,14,10],[15,1,17,10],[18,1,23,10],[24,1,28,10],[40,1,40,10],[44,1,44,10],[51,1,51,10],[61,1,61,10],[45,1,47,10],[48,1,50,10],[74,1,77,10],[65,1,67,10],[68,1,70,10],[71,1,73,10],[52,1,54,10],[55,1,57,10],[58,1,60,10],[62,1,64,10]]}
[]
[null,"Process information"]
[null,"Public lighting includes many parts that have different life cycles which also vary depending on the light type. The main parts in a light are as follow: "]
[]
[null," o Light Bracket - most lights have a bracket which allows the luminaire to be attached to a power pole, this is capital expenditure. There are some lights that are on private piles that do not require brackets, these poles and built in brackets are not the responsibility of TasNetworks. Brackets are assumed to have a life cycle of 40 years"]
[]
[]
[]
[null," o Luminaire - The luminaire is the light fitting that the lamp is within and is a capital expenditure. Luminaires are assumed to have a life cycle of 20 years"]
[]
[]
[null," o Lamp - Within the luminaire is a lamp that requires replacement depending on the light type. Normal lights have a life cycle of 4.5 years on average therefore the replacement program is every 4 years as opex expenditure. LED lights are the exception as they last 20 years and are replaced when the luminaire requires replacing."]
[]
[]
[]
[null," o PE Cell - Public lights are switched on and off using PE Cells which in the last 30 years have replaced overhead switch wires as a new technology. They are replaced either with the lamp on after 10 year as opex."]
[]
[]
[null," o  Installation Cost - The TasNetworks POW has inbuilt unit prices for both opex and capex installation costs of public lights. These prices have been used for luminaire /Bracket capex installation excluding the material proportion plus actual materials from the warehouse prices. The same method has been used for Opex maintenance (Lamp & PE Cell replacement), using the POW unit rate net of materials plus actual materials for the individual light type. The 2 unit rates are determined using the Major/minor allocation of the light."]
[]
[]
[]
[]
[]
[null,"Public lighting prices have previously used the annuity method rather than a RAB method. The annuity method is more accurate and produces more cost reflective prices compared to the RAB method which has some unreliable data. The opening RAB data was estimated by the business therefore its accuracy is unknown, because of this the PTRM output is used as a indicator test for the Annuity method."]
[]
[]
[]
[]
[]
[]
[null,"Assumptions"]
[null,"Brackets"]
[null,"A sample base for brackets has been sourced from the thread leader which aligns the light type with bracket type and cost. This sample base of 10,000 out of a total of 40,000+ lights is assumed to represent the whole fleet of brackets."]
[]
[]
[null,"Of the 40,000+ public lights there are a number of private poles for the public light that do not require a bracket. The public lighting asset management plan has the total number of brackets in the fleet (not down to type assigned to light type for costing). Therefore the cost of the brackets is weighted so that only the total number of brackets are recovered."]
[]
[]
[]
[null,"Lamps"]
[null,"Lamps have a assumed life cycle of 4.5 years therefore they are replaced within the POW after 4 years. LEDs do not require a lamp replacement within the 20 year life cycle of the luminaire."]
[]
[]
[null,"PE Cells"]
[null,"There are two types of PE Cells and it is assumed that major lights have the more expensive cell installed while the minor lights have the smaller and cheaper PE Cell."]
[]
[]
[null,"PE Cells have a assumed 10 year life therefore to align with the 4 year lamp replacement program they are replaced after 8 years however with LED's they are replaced after 10 years. "]
[]
[]
[null,"Installation and maintenance cost"]
[null,"The POW assumption about what lights are major and minor for work to be completed is based on lights less than or greater than 100 watts. This results in a higher cost associated with the major lights due to higher costs performing maintenance and installation."]
[]
[]
[null,"It is assumed that the cost of performing a Lamp replacement is the same doing the PE Cell at the same time or only PE cell."]
[]
[]
[null,"It is assumed that the cost of performing a luminaire installation/replacement is the same doing the Brackett at the same time "]
[]
[]
[null,"Other assumptions"]
[null,"It is assumed that contract prices for materials are to remain consistent with current prices."]
[]
[]
[null,"Where a warehouse price is not available due to the light type is obsolete the previous determination prices have been indexed."]
[]
[]
[null,"Indirect capex that is not included in the unit price build up is included in the annuity calculation and assumed to have a 40 year life given it is work on the street lights that have the same life."]
[]
[]
[null,"Private contract lights are owned by client and TasNetworks just performs maintenance on the light. Capital replacements are the responsibility of the owner."]
[]
[]
[null,"New Technology - minor lighting is assumed the same as our current latest technology (LED 14W), Major lighting for LED technology has not been trialled, the equivalent LED technology to our 150W and 250W sodium vapour is a 160W LED,  maintenance cycles are unknown so have assumed to be the same as the current 250W sodium vapour."]

{"sheet":"TN Changes","index":3,"n_rows":80,"n_cols":3,"rows_kept":80,"cut":false,"hidden":false,"merged":[]}
[]
["Item","Sheet \\ Location","Comment"]
[]
[1,"Revenue Nominal RAB","Deleted Sheet (not relevant to Annuity Calculation)"]
[]
[2,"Capex Weighting A14:Z80","Deleted hidden rows (not relevant to annuity calculation)"]
[]
[3,"Opex Weighting A13:Z78","Deleted hidden rows (not relevant to annuity calculation)"]
[]
[4,"Capex Weighting O:X","Deleted columns (duplicate information)"]
[]
[5,"Opex Weighting P:Z","Deleted columns (duplicate information)"]
[]
[6,"Mater Data A43:T46","Deleted rows (not relevant to annuity calculation)"]
[]
[7,"CAPEX Annuity Calcs E:N","Formula Changes"]
[]
[null,"Bracket UNIT Price column E","From '=VLOOKUP($B9,Inputs!$C$68:$AN$129,MATCH($B10,Inputs!$C$68:$AN$68,0),FALSE)*'Master Data'!$K$46"]
[null,null,"To '=VLOOKUP($B9,Inputs!$C$68:$AN$129,MATCH($B10,Inputs!$C$68:$AN$68,0),FALSE)"]
[]
[null,"Bracket UNIT Price column F:N","From '=E10*(1+'Master Data'!L$45)"]
[null,null,"To '=E10"]
[]
[null,"Luminaire UNIT price column E","From '=VLOOKUP($B9,Inputs!$C$68:$AN$129,MATCH($B12,Inputs!$C$68:$AN$68,0),FALSE)*'Master Data'!$K$43"]
[null,null,"To '=VLOOKUP($B9,Inputs!$C$68:$AN$129,MATCH($B12,Inputs!$C$68:$AN$68,0),FALSE)"]
[]
[null,"Luminaire UNIT price column F:N","From '=E12*(1+'Master Data'!L$43)"]
[null,null,"To '=E12"]
[]
[null,"CAPEX Instalation costs column E","From '=(VLOOKUP($B9,Inputs!$C$68:$AN$129,MATCH($B13,Inputs!$C$68:$AN$68,0),FALSE)+(VLOOKUP($B9,Inputs!$C$68:$AN$129,MATCH($A13,Inputs!$C$68:$AN$68,0),FALSE)*('Master Data'!K$42)))*'Master Data'!$K$43"]
[null,null,"To '=VLOOKUP($B9,Inputs!$C$68:$AN$129,MATCH($B13,Inputs!$C$68:$AN$68,0),FALSE)+(VLOOKUP($B9,Inputs!$C$68:$AN$129,MATCH($A13,Inputs!$C$68:$AN$68,0),FALSE)*('Master Data'!K$42))"]
[]
[null,"CAPEX Instalation costs column F:N","From '=(VLOOKUP($B9,Inputs!$C$68:$AN$129,MATCH($B13,Inputs!$C$68:$AN$68,0),FALSE)+(VLOOKUP($B9,Inputs!$C$68:$AN$129,MATCH($A13,Inputs!$C$68:$AN$68,0),FALSE)*('Master Data'!L$42)))*(1+'Master Data'!L$43)"]
[null,null,"To '=VLOOKUP($B9,Inputs!$C$68:$AN$129,MATCH($B13,Inputs!$C$68:$AN$68,0),FALSE)+(VLOOKUP($B9,Inputs!$C$68:$AN$129,MATCH($A13,Inputs!$C$68:$AN$68,0),FALSE)*('Master Data'!L$42))"]
[]
[8,"Capex Weighting  A29:M29,  A33:M33","Reallocate RLOLI and RLWBP from Indirect to direct Capital expenditure"]
[]
[null,"Capex - New Streetlight installation - RLOLI"]
[null,"Capex - Replace condemned wide based steel poles - RLWBP"]
[]
[9,"Building Block C52","Change opening regulated asset base amount from $1,660,347 to $550,413.22 to reflect the change from RLOLI and RLWBP being reallocated to direct capital expenditure"]
[]
[10,"Volumes D5: H79","Update volumes"]
[]
[11,"Corporate overheads H:I","add overhead adjustment"]
[null,"E4:E13","Adjust formula for overhead adjustment"]
[null,"D18:D27","Adjust formula for overhead adjustment"]
[]
[12,"Capex Weighting"]
[null,"B14:M17","Capex adjustment due to volume changes"]
[null,"D22: M23, D31:M32","Formula changes due to capex changes"]
[]
[13,"Add tab 'Adjustment \"A\"","Additional tab to bring prices back to Proposed price path"]
[]
[]
[14,"Smoothed Prices with Price Path"]
[null,"D12: M70","adjust formula for Adjustment"]
[null,null,"From '=IF($C12=\"NA\",\"\",'Smoothed Prices'!D12+$D$6)"]
[null,null,"To '=IF($C12=\"NA\",\"\",'Smoothed Prices'!D12+'Adjustment \"A\"'!O12)"]
[null,"D75: M133","adjust formula for Adjustment"]
[null,null,"From '=IF($C75=\"NA\",\"\",'Smoothed Prices'!D75+$D$7)"]
[null,null,"To '=IF($C75=\"NA\",\"\",'Smoothed Prices'!D75+'Adjustment \"A\"'!O75)"]
[]
[15,"Bracket Data","Removed information"]
[null,"B5:AZ24539"]
[null,"BC5:CF24539"]
[]
[]
[16,"Warehousing Pricing","Removed information"]
[null,"C9:M70"]
[null,"C85:C95"]
[null,"F85:M95"]
[]
[]
[]
[]
["August 2018 changes"]
[1,"Master Data","Update WACC "]
[null,"B45 - Nominal Vanilla WACC","Changed from 5.89% to 5.89% - as per PTRM [TN- Post Tax Revenue Model (PTRM) Distribution - Standard Control.xlsm]WACC"]
[null,"B46 - Pre-tax Real WACC Rate","Changed from 3.66% to 3.95% - as per PTRM [TN- Post Tax Revenue Model (PTRM) Distribution - Standard Control.xlsm]WACC"]

{"sheet":"AER Changes","index":4,"n_rows":35,"n_cols":3,"rows_kept":35,"cut":false,"hidden":false,"merged":[]}
[]
["Item","Sheet \\ Location","Comment"]
[]
[1,"Various","Removed all data and code beyond 2023/24"]
[]
[{"$f":"A4+1","v":2},"Sheet \"Adjustment \"A\"","Removed"]
[]
[{"$f":"A6+1","v":3},"Sheet \"Smoothed Prices with Price Path\"","Removed"]
[]
[{"$f":"A8+1","v":4},"Smoothed Prices'!C11:I133","Presentation & Formulae changes"]
[null,"Smoothed Prices'!P138:U153"]
[]
[{"$f":"A10+1","v":5},"Smoothed Prices'!Q149:R149","AER Price Path - finalised - AER Pre-tax Real WACC Rate has been finalised - refer Item 16 below"]
[]
[{"$f":"A13+1","v":6},"Unsmoothed Prices'!D10:D68","Approved prices for 2018-19"]
[null,"Unsmoothed Prices'!D73:D131"]
[]
[{"$f":"A15+1","v":7},"Unsmoothed Prices'!Q137:U137","Incorrect formulae"]
[]
[{"$f":"A18+1","v":8},"Inputs!AD68","Incorrect label"]
[]
[{"$f":"A20+1","v":9},"Inputs!AD69:AD127","Incorrect formulae"]
[]
[{"$f":"A22+1","v":10},"Inputs!Z102:Z104","Incorrect formulae"]
[null,"Inputs!Z106:Z108"]
[]
[{"$f":"A24+1","v":11},"CAPEX Annuity calcs'!A13:A356","Label changed to be consistent with \"Inputs\" sheet - refer Item 1 above"]
[]
[{"$f":"A27+1","v":12},"Building Block'!C9:G9","Replaced incorrect hard coded data with formulae"]
[]
[{"$f":"A29+1","v":13},"Master Data'!I35","Forecast CPI replaced with actual CPI for 2017-18"]
[{"$f":"A31+1","v":14},"Master Data'!K40:O40","AER Real Labour Escalator"]
[{"$f":"A32+1","v":15},"Master Data'!B44","AER Forecast CPI"]
[16,"Master Data'!A45","AER Nominal Vanilla WACC"]
[17,"Master Data'!A46","AER Pre-tax Real WACC Rate - updated : SCS PTRM run 22 / 8 /2018"]

{"sheet":"Smoothed Prices","index":5,"n_rows":149,"n_cols":83,"rows_kept":149,"cut":false,"hidden":false,"merged":[[9,78,9,82],[72,2,72,8],[72,27,72,31],[72,38,72,42],[72,49,72,53],[72,61,72,65],[72,73,72,77],[72,78,72,82],[9,16,9,20],[9,27,9,31],[9,38,9,42],[9,49,9,53],[9,61,9,65],[9,73,9,77],[7,9,7,13],[8,9,8,13],[9,9,9,13],[7,5,7,8],[9,5,9,8]]}
[null,"$2018-19 base data"]
[]
[null,null,null,null,null,null,null,null,null,null,null,null,null,null,null,null,"THIS TAKES 18/19 SMOOTHED PRICES ADDS CPI",null,null,null,null,null,null,null,null,null,null,null,null,null,null,null,null,null,null,null,null,null,"THIS TAKES 18/19 SMOOTHED PRICES  and multiplys by no.days in year/100 to convert $s into cents",null,null,null,null,null,null,null,null,null,null,"THIS TAKES nominal and multiplys by no days in year/100"]
[null,"Private Contract Lights"]
[]
[]
[]
[null,null,null,"Approved","Unsmoothed","X Factor (years 2-5)",null,null,null,"X Factor",null,null,null,null,null,"Days",{"$f":"'Master Data'!K28","v":366},{"$f":"'Master Data'!L28","v":365},{"$f":"'Master Data'!M28","v":365},{"$f":"'Master Data'!N28","v":365},{"$f":"'Master Data'!O28","v":366}]
[null,null,null,"Prices","Prices",{"$f":"R149","v":3.0889260989216571E-2},{"$f":"S149","v":3.0889260989216571E-2},3.0889260989216571E-2,3.0889260989216571E-2,null,null,null,null,null,null,"CPI",{"$f":"'Master Data'!K39","v":1.0244995114800401},{"$f":"'Master Data'!L39","v":1.049599249022841},{"$f":"'Master Data'!M39","v":1.0753139178737177},{"$f":"'Master Data'!N39","v":1.1016585835493118},{"$f":"'Master Data'!O39","v":1.128648680664063},null,null,null,null,null,null,null,null,null,null,null,null,null,null,null,null,null,{"$f":"HLOOKUP(AM11,'Master Data'!$B$25:$P$28,4,FALSE)","v":366},{"$f":"HLOOKUP(AN11,'Master Data'!$B$25:$P$28,4,FALSE)","v":365},{"$f":"HLOOKUP(AO11,'Master Data'!$B$25:$P$28,4,FALSE)","v":365},{"$f":"HLOOKUP(AP11,'Master Data'!$B$25:$P$28,4,FALSE)","v":365},{"$f":"HLOOKUP(AQ11,'Master Data'!$B$25:$P$28,4,FALSE)","v":366},null,null,null,null,null,null,{"$f":"HLOOKUP(AX11,'Master Data'!$B$25:$P$28,4,FALSE)","v":366},{"$f":"HLOOKUP(AY11,'Master Data'!$B$25:$P$28,4,FALSE)","v":365},{"$f":"HLOOKUP(AZ11,'Master Data'!$B$25:$P$28,4,FALSE)","v":365},{"$f":"HLOOKUP(BA11,'Master Data'!$B$25:$P$28,4,FALSE)","v":365},{"$f":"HLOOKUP(BB11,'Master Data'!$B$25:$P$28,4,FALSE)","v":366}]
[null,"Private Contract Lights",null,null,null,"Price (cents) per Light per day Real 2018/19 Smoothed",null,null,null,"Price (cents) per Light per day Real 2018/19 Smoothed",null,null,null,null,null,null,"Price (cents) per Light per day Nominal Smoothed",null,null,null,null,null,null,null,null,null,null,"Volumes",null,null,null,null,null,null,null,null,null,null,"Smooth Real 2018/19 Cost Dollars Per  Year",null,null,null,null,null,null,null,null,null,null,"Smooth Nominal Cost Dollars Per Year",null,null,null,null,null,null,null,null,null,null,null,"Revenue Real Real Dollars Per Year",null,null,null,null,null,null,null,null,null,null,null,"Revenue Nominal Dollars Per Year",null,null,null,null,"Revenue Nominal Dollars Per Year"]
[null,null,"Offered / No Longer Offered / NA",{"$f":"'Master Data'!J$34","v":"2018-19"},{"$f":"'Master Data'!K$34","v":"2019-20"},{"$f":"'Master Data'!L$34","v":"2020-21"},{"$f":"'Master Data'!M$34","v":"2021-22"},{"$f":"'Master Data'!N$34","v":"2022-23"},{"$f":"'Master Data'!O$34","v":"2023-24"},{"$f":"'Master Data'!P$34","v":"2024-25"},{"$f":"'Master Data'!Q$34","v":"2025-26"},{"$f":"'Master Data'!R$34","v":"2026-27"},{"$f":"'Master Data'!S$34","v":"2027-28"},{"$f":"'Master Data'!T$34","v":"2028-29"},null,null,{"$f":"'Master Data'!K$34","v":"2019-20"},{"$f":"'Master Data'!L$34","v":"2020-21"},{"$f":"'Master Data'!M$34","v":"2021-22"},{"$f":"'Master Data'!N$34","v":"2022-23"},{"$f":"'Master Data'!O$34","v":"2023-24"},{"$f":"'Master Data'!P$34","v":"2024-25"},{"$f":"'Master Data'!Q$34","v":"2025-26"},{"$f":"'Master Data'!R$34","v":"2026-27"},{"$f":"'Master Data'!S$34","v":"2027-28"},{"$f":"'Master Data'!T$34","v":"2028-29"},null,{"$f":"'Master Data'!K$34","v":"2019-20"},{"$f":"'Master Data'!L$34","v":"2020-21"},{"$f":"'Master Data'!M$34","v":"2021-22"},{"$f":"'Master Data'!N$34","v":"2022-23"},{"$f":"'Master Data'!O$34","v":"2023-24"},{"$f":"'Master Data'!P$34","v":"2024-25"},{"$f":"'Master Data'!Q$34","v":"2025-26"},{"$f":"'Master Data'!R$34","v":"2026-27"},{"$f":"'Master Data'!S$34","v":"2027-28"},{"$f":"'Master Data'!T$34","v":"2028-29"},null,{"$f":"'Master Data'!K$34","v":"2019-20"},{"$f":"'Master Data'!L$34","v":"2020-21"},{"$f":"'Master Data'!M$34","v":"2021-22"},{"$f":"'Master Data'!N$34","v":"2022-23"},{"$f":"'Master Data'!O$34","v":"2023-24"},{"$f":"'Master Data'!P$34","v":"2024-25"},{"$f":"'Master Data'!Q$34","v":"2025-26"},{"$f":"'Master Data'!R$34","v":"2026-27"},{"$f":"'Master Data'!S$34","v":"2027-28"},{"$f":"'Master Data'!T$34","v":"2028-29"},null,{"$f":"'Master Data'!K$34","v":"2019-20"},{"$f":"'Master Data'!L$34","v":"2020-21"},{"$f":"'Master Data'!M$34","v":"2021-22"},{"$f":"'Master Data'!N$34","v":"2022-23"},{"$f":"'Master Data'!O$34","v":"2023-24"},{"$f":"'Master Data'!P$34","v":"2024-25"},{"$f":"'Master Data'!Q$34","v":"2025-26"},{"$f":"'Master Data'!R$34","v":"2026-27"},{"$f":"'Master Data'!S$34","v":"2027-28"},{"$f":"'Master Data'!T$34","v":"2028-29"},null,null,{"$f":"'Master Data'!K$34","v":"2019-20"},{"$f":"'Master Data'!L$34","v":"2020-21"},{"$f":"'Master Data'!M$34","v":"2021-22"},{"$f":"'Master Data'!N$34","v":"2022-23"},{"$f":"'Master Data'!O$34","v":"2023-24"},{"$f":"'Master Data'!P$34","v":"2024-25"},{"$f":"'Master Data'!Q$34","v":"2025-26"},{"$f":"'Master Data'!R$34","v":"2026-27"},{"$f":"'Master Data'!S$34","v":"2027-28"},{"$f":"'Master Data'!T$34","v":"2028-29"},null,null,{"$f":"'Master Data'!K$34","v":"2019-20"},{"$f":"'Master Data'!L$34","v":"2020-21"},{"$f":"'Master Data'!M$34","v":"2021-22"},{"$f":"'Master Data'!N$34","v":"2022-23"},{"$f":"'Master Data'!O$34","v":"2023-24"},{"$f":"'Master Data'!P$34","v":"2024-25"},{"$f":"'Master Data'!Q$34","v":"2025-26"},{"$f":"'Master Data'!R$34","v":"2026-27"},{"$f":"'Master Data'!S$34","v":"2027-28"},{"$f":"'Master Data'!T$34","v":"2028-29"}]
[null,{"$f":"Inputs!$C69","v":"32W Compact Fluorescent"},"Old light no volumes",{"$f":"IF($C12=\"NA\",\"\",'Unsmoothed Prices'!D10)","v":18.221},{"$f":"IF($C12=\"NA\",\"\",'Unsmoothed Prices'!E10)","v":19.145926698725802},{"$f":"IF($C12=\"NA\",\"\",E12*(1-F$9))","v":18.554523172048452},17.98138766325658,17.425955886777967,16.887680987404707,null,null,null,null,null,null,null,{"$f":"IF($C12=\"NA\",\"\",E12*Q$9)","v":19.614992549677243},19.474813587358955,19.335636416982567,19.197453879220607,19.060258865909901,null,null,null,null,null,null,{"$f":"IFERROR(VLOOKUP($B12,Volumes!$B$4:$H$33,MATCH(AB$11,Volumes!$B$4:$H$4,0),FALSE),0)","v":0},{"$f":"IFERROR(VLOOKUP($B12,Volumes!$B$4:$H$33,MATCH(AC$11,Volumes!$B$4:$H$4,0),FALSE),0)","v":0},{"$f":"IFERROR(VLOOKUP($B12,Volumes!$B$4:$H$33,MATCH(AD$11,Volumes!$B$4:$H$4,0),FALSE),0)","v":0},{"$f":"IFERROR(VLOOKUP($B12,Volumes!$B$4:$H$33,MATCH(AE$11,Volumes!$B$4:$H$4,0),FALSE),0)","v":0},{"$f":"IFERROR(VLOOKUP($B12,Volumes!$B$4:$H$33,MATCH(AF$11,Volumes!$B$4:$H$4,0),FALSE),0)","v":0},null,null,null,null,null,null,{"$f":"IF($C12=\"NA\",\"\",(E12*AM$9)/100)","v":70.074091717336429},67.724009577976844,65.632064970886518,63.604738986739576,61.808912413901226,null,null,null,null,null,null,{"$f":"IF($C12=\"NA\",\"\",(Q12*AX$9)/100)","v":71.790872731818709},71.083069593860188,70.575072921986362,70.070706659155206,69.760547449230231,null,null,null,null,null,null,null,{"$f":"IFERROR(AM12*AB12,0)","v":0},0,0,0,0,null,null,null,null,null,null,null,{"$f":"IFERROR(AX12*AB12,0)","v":0},0,0,0,0,0,0,0,0,0]
[null,{"$f":"Inputs!$C70","v":"42W Compact Fluorescent"},"Old light no volumes",{"$f":"IF($C13=\"NA\",\"\",'Unsmoothed Prices'!D11)","v":18.222000000000001},{"$f":"IF($C13=\"NA\",\"\",'Unsmoothed Prices'!E11)","v":19.145926698725802},{"$f":"IF($C13=\"NA\",\"\",E13*(1-F$9))","v":18.554523172048452},17.98138766325658,17.425955886777967,16.887680987404707,null,null,null,null,null,null,null,19.614992549677243,19.474813587358955,19.335636416982567,19.197453879220607,19.060258865909901,null,null,null,null,null,null,{"$f":"IFERROR(VLOOKUP($B13,Volumes!$B$4:$H$33,MATCH(AB$11,Volumes!$B$4:$H$4,0),FALSE),0)","v":28},{"$f":"IFERROR(VLOOKUP($B13,Volumes!$B$4:$H$33,MATCH(AC$11,Volumes!$B$4:$H$4,0),FALSE),0)","v":28},{"$f":"IFERROR(VLOOKUP($B13,Volumes!$B$4:$H$33,MATCH(AD$11,Volumes!$B$4:$H$4,0),FALSE),0)","v":28},{"$f":"IFERROR(VLOOKUP($B13,Volumes!$B$4:$H$33,MATCH(AE$11,Volumes!$B$4:$H$4,0),FALSE),0)","v":28},{"$f":"IFERROR(VLOOKUP($B13,Volumes!$B$4:$H$33,MATCH(AF$11,Volumes!$B$4:$H$4,0),FALSE),0)","v":28},null,null,null,null,null,null,70.074091717336429,67.724009577976844,65.632064970886518,63.604738986739576,61.808912413901226,null,null,null,null,null,null,71.790872731818709,71.083069593860188,70.575072921986362,70.070706659155206,69.760547449230231,null,null,null,null,null,null,null,1962.07456808542,1896.2722681833516,1837.6978191848225,1780.9326916287082,1730.6495475892343,null,null,null,null,null,null,null,2010.1444364909239,1990.3259486280854,1976.1020418156181,1961.9797864563457,1953.2953285784465,0,0,0,0,0]
[null,{"$f":"Inputs!$C71","v":"42W Compact Fluorescent - Bottom Pole Entry"},"Old light no volumes",{"$f":"IF($C14=\"NA\",\"\",'Unsmoothed Prices'!D12)","v":18.222000000000001},{"$f":"IF($C14=\"NA\",\"\",'Unsmoothed Prices'!E12)","v":19.145926698725802},18.554523172048452,17.98138766325658,17.425955886777967,16.887680987404707,null,null,null,null,null,null,null,19.614992549677243,19.474813587358955,19.335636416982567,19.197453879220607,19.060258865909901,null,null,null,null,null,null,{"$f":"IFERROR(VLOOKUP($B14,Volumes!$B$4:$H$33,MATCH(AB$11,Volumes!$B$4:$H$4,0),FALSE),0)","v":0},{"$f":"IFERROR(VLOOKUP($B14,Volumes!$B$4:$H$33,MATCH(AC$11,Volumes!$B$4:$H$4,0),FALSE),0)","v":0},{"$f":"IFERROR(VLOOKUP($B14,Volumes!$B$4:$H$33,MATCH(AD$11,Volumes!$B$4:$H$4,0),FALSE),0)","v":0},{"$f":"IFERROR(VLOOKUP($B14,Volumes!$B$4:$H$33,MATCH(AE$11,Volumes!$B$4:$H$4,0),FALSE),0)","v":0},{"$f":"IFERROR(VLOOKUP($B14,Volumes!$B$4:$H$33,MATCH(AF$11,Volumes!$B$4:$H$4,0),FALSE),0)","v":0},null,null,null,null,null,null,70.074091717336429,67.724009577976844,65.632064970886518,63.604738986739576,61.808912413901226,null,null,null,null,null,null,71.790872731818709,71.083069593860188,70.575072921986362,70.070706659155206,69.760547449230231,null,null,null,null,null,null,null,0,0,0,0,0,null,null,null,null,null,null,null,0,0,0,0,0,0,0,0,0,0]
[null,{"$f":"Inputs!$C72","v":"2x24W Compact Fluorescent"},"Old light no volumes",{"$f":"IF($C15=\"NA\",\"\",'Unsmoothed Prices'!D13)","v":18.545000000000002},{"$f":"IF($C15=\"NA\",\"\",'Unsmoothed Prices'!E13)","v":19.459143953040218},18.858065376848021,18.275553673670853,17.711035326522396,17.163954533932209,null,null,null,null,null,null,null,19.935883473709481,19.793411257563321,19.651957222146418,19.511514091008486,19.37207463970055,null,null,null,null,null,null,{"$f":"IFERROR(VLOOKUP($B15,Volumes!$B$4:$H$33,MATCH(AB$11,Volumes!$B$4:$H$4,0),FALSE),0)","v":0},{"$f":"IFERROR(VLOOKUP($B15,Volumes!$B$4:$H$33,MATCH(AC$11,Volumes!$B$4:$H$4,0),FALSE),0)","v":0},{"$f":"IFERROR(VLOOKUP($B15,Volumes!$B$4:$H$33,MATCH(AD$11,Volumes!$B$4:$H$4,0),FALSE),0)","v":0},{"$f":"IFERROR(VLOOKUP($B15,Volumes!$B$4:$H$33,MATCH(AE$11,Volumes!$B$4:$H$4,0),FALSE),0)","v":0},{"$f":"IFERROR(VLOOKUP($B15,Volumes!$B$4:$H$33,MATCH(AF$11,Volumes!$B$4:$H$4,0),FALSE),0)","v":0},null,null,null,null,null,null,71.22046686812719,68.831938625495283,66.705770908898614,64.645278941806751,62.820073594191882,null,null,null,null,null,null,72.965333513776699,72.245951090106118,71.729643860834415,71.217026432180973,70.901793181304015,null,null,null,null,null,null,null,0,0,0,0,0,null,null,null,null,null,null,null,0,0,0,0,0,0,0,0,0,0]
[null,{"$f":"Inputs!$C73","v":"1x20W Fluorescent"},"Obsolete, no new Connections",{"$f":"IF($C16=\"NA\",\"\",'Unsmoothed Prices'!D14)","v":18.189},{"$f":"IF($C16=\"NA\",\"\",'Unsmoothed Prices'!E14)","v":19.119825260866268},18.529227988315153,17.95687382905539,17.402199266799265,16.864658191860748,null,null,null,null,null,null,null,19.588251639341223,19.44826378150859,19.309276349885579,19.171282194904951,19.034274218094016,null,null,null,null,null,null,{"$f":"IFERROR(VLOOKUP($B16,Volumes!$B$4:$H$33,MATCH(AB$11,Volumes!$B$4:$H$4,0),FALSE),0)","v":0},{"$f":"IFERROR(VLOOKUP($B16,Volumes!$B$4:$H$33,MATCH(AC$11,Volumes!$B$4:$H$4,0),FALSE),0)","v":0},{"$f":"IFERROR(VLOOKUP($B16,Volumes!$B$4:$H$33,MATCH(AD$11,Volumes!$B$4:$H$4,0),FALSE),0)","v":0},{"$f":"IFERROR(VLOOKUP($B16,Volumes!$B$4:$H$33,MATCH(AE$11,Volumes!$B$4:$H$4,0),FALSE),0)","v":0},{"$f":"IFERROR(VLOOKUP($B16,Volumes!$B$4:$H$33,MATCH(AF$11,Volumes!$B$4:$H$4,0),FALSE),0)","v":0},null,null,null,null,null,null,69.978560454770545,67.631682157350312,65.542589476052171,63.518027323817314,61.72464898221034,null,null,null,null,null,null,71.693000999988882,70.986162802506357,70.478858677082357,69.975180011403069,69.66544363822409,null,null,null,null,null,null,null,0,0,0,0,0,null,null,null,null,null,null,null,0,0,0,0,0,0,0,0,0,0]
[null,{"$f":"Inputs!$C74","v":"1x40W Fluorescent"},"Obsolete, no new Connections",{"$f":"IF($C17=\"NA\",\"\",'Unsmoothed Prices'!D15)","v":18.207999999999998},{"$f":"IF($C17=\"NA\",\"\",'Unsmoothed Prices'!E15)","v":19.138618296125131},18.547440520603125,17.974523789680244,17.419304033183927,16.881234604652395,null,null,null,null,null,null,null,19.607505094783154,19.46737964172085,19.328255598195408,19.190125807612219,19.05298316452145,null,null,null,null,null,null,{"$f":"IFERROR(VLOOKUP($B17,Volumes!$B$4:$H$33,MATCH(AB$11,Volumes!$B$4:$H$4,0),FALSE),0)","v":0},{"$f":"IFERROR(VLOOKUP($B17,Volumes!$B$4:$H$33,MATCH(AC$11,Volumes!$B$4:$H$4,0),FALSE),0)","v":0},{"$f":"IFERROR(VLOOKUP($B17,Volumes!$B$4:$H$33,MATCH(AD$11,Volumes!$B$4:$H$4,0),FALSE),0)","v":0},{"$f":"IFERROR(VLOOKUP($B17,Volumes!$B$4:$H$33,MATCH(AE$11,Volumes!$B$4:$H$4,0),FALSE),0)","v":0},{"$f":"IFERROR(VLOOKUP($B17,Volumes!$B$4:$H$33,MATCH(AF$11,Volumes!$B$4:$H$4,0),FALSE),0)","v":0},null,null,null,null,null,null,70.047342963817982,67.698157900201409,65.607011832332887,63.580459721121336,61.785318653027758,null,null,null,null,null,null,71.763468646906347,71.055935692281096,70.548132933413243,70.043959197784602,69.733918382148502,null,null,null,null,null,null,null,0,0,0,0,0,null,null,null,null,null,null,null,0,0,0,0,0,0,0,0,0,0]
[null,{"$f":"Inputs!$C75","v":"2x20W Fluorescent"},"Obsolete, no new Connections",{"$f":"IF($C18=\"NA\",\"\",'Unsmoothed Prices'!D16)","v":18.48},{"$f":"IF($C18=\"NA\",\"\",'Unsmoothed Prices'!E16)","v":19.407985134835528},18.808486816730756,18.22750655863652,17.66447235136414,17.11882985466605,null,null,null,null,null,null,null,19.883471289450878,19.741373638096608,19.600291490636319,19.460217589749799,19.321144729981409,null,null,null,null,null,null,{"$f":"IFERROR(VLOOKUP($B18,Volumes!$B$4:$H$33,MATCH(AB$11,Volumes!$B$4:$H$4,0),FALSE),0)","v":0},{"$f":"IFERROR(VLOOKUP($B18,Volumes!$B$4:$H$33,MATCH(AC$11,Volumes!$B$4:$H$4,0),FALSE),0)","v":0},{"$f":"IFERROR(VLOOKUP($B18,Volumes!$B$4:$H$33,MATCH(AD$11,Volumes!$B$4:$H$4,0),FALSE),0)","v":0},{"$f":"IFERROR(VLOOKUP($B18,Volumes!$B$4:$H$33,MATCH(AE$11,Volumes!$B$4:$H$4,0),FALSE),0)","v":0},{"$f":"IFERROR(VLOOKUP($B18,Volumes!$B$4:$H$33,MATCH(AF$11,Volumes!$B$4:$H$4,0),FALSE),0)","v":0},null,null,null,null,null,null,71.033225593498031,68.650976881067265,66.5303989390233,64.475324082479105,62.654917268077746,null,null,null,null,null,null,72.77350491939022,72.05601377905262,71.541063940822568,71.029794202586757,70.715389711731959,null,null,null,null,null,null,null,0,0,0,0,0,null,null,null,null,null,null,null,0,0,0,0,0,0,0,0,0,0]
[null,{"$f":"Inputs!$C76","v":"2x24W Fluorescent"},"Old light no volumes",{"$f":"IF($C19=\"NA\",\"\",'Unsmoothed Prices'!D17)","v":18.321999999999999},{"$f":"IF($C19=\"NA\",\"\",'Unsmoothed Prices'!E17)","v":19.24197999004889},18.647609448186987,18.071598573116958,17.513380248299594,16.972404875006475,null,null,null,null,null,null,null,19.713399099713794,19.572516872888297,19.432641463899483,19.293765677502225,19.155882369872369,null,null,null,null,null,null,{"$f":"IFERROR(VLOOKUP($B19,Volumes!$B$4:$H$33,MATCH(AB$11,Volumes!$B$4:$H$4,0),FALSE),0)","v":0},{"$f":"IFERROR(VLOOKUP($B19,Volumes!$B$4:$H$33,MATCH(AC$11,Volumes!$B$4:$H$4,0),FALSE),0)","v":0},{"$f":"IFERROR(VLOOKUP($B19,Volumes!$B$4:$H$33,MATCH(AD$11,Volumes!$B$4:$H$4,0),FALSE),0)","v":0},{"$f":"IFERROR(VLOOKUP($B19,Volumes!$B$4:$H$33,MATCH(AE$11,Volumes!$B$4:$H$4,0),FALSE),0)","v":0},{"$f":"IFERROR(VLOOKUP($B19,Volumes!$B$4:$H$33,MATCH(AF$11,Volumes!$B$4:$H$4,0),FALSE),0)","v":0},null,null,null,null,null,null,70.425646763578939,68.063774485882504,65.961334791876894,63.923837906293521,62.119001842523701,null,null,null,null,null,null,72.151040704952479,71.439686586042285,70.929141343233113,70.422244722883121,70.110529473732868,null,null,null,null,null,null,null,0,0,0,0,0,null,null,null,null,null,null,null,0,0,0,0,0,0,0,0,0,0]
[null,{"$f":"Inputs!$C77","v":"T5 Fluorescent 2 x 24W"},"Old light no volumes",{"$f":"IF($C20=\"NA\",\"\",'Unsmoothed Prices'!D18)","v":18.48},{"$f":"IF($C20=\"NA\",\"\",'Unsmoothed Prices'!E18)","v":19.407985134835528},18.808486816730756,18.22750655863652,17.66447235136414,17.11882985466605,null,null,null,null,null,null,null,19.883471289450878,19.741373638096608,19.600291490636319,19.460217589749799,19.321144729981409,null,null,null,null,null,null,{"$f":"IFERROR(VLOOKUP($B20,Volumes!$B$4:$H$33,MATCH(AB$11,Volumes!$B$4:$H$4,0),FALSE),0)","v":0},{"$f":"IFERROR(VLOOKUP($B20,Volumes!$B$4:$H$33,MATCH(AC$11,Volumes!$B$4:$H$4,0),FALSE),0)","v":0},{"$f":"IFERROR(VLOOKUP($B20,Volumes!$B$4:$H$33,MATCH(AD$11,Volumes!$B$4:$H$4,0),FALSE),0)","v":0},{"$f":"IFERROR(VLOOKUP($B20,Volumes!$B$4:$H$33,MATCH(AE$11,Volumes!$B$4:$H$4,0),FALSE),0)","v":0},{"$f":"IFERROR(VLOOKUP($B20,Volumes!$B$4:$H$33,MATCH(AF$11,Volumes!$B$4:$H$4,0),FALSE),0)","v":0},null,null,null,null,null,null,71.033225593498031,68.650976881067265,66.5303989390233,64.475324082479105,62.654917268077746,null,null,null,null,null,null,72.77350491939022,72.05601377905262,71.541063940822568,71.029794202586757,70.715389711731959,null,null,null,null,null,null,null,0,0,0,0,0,null,null,null,null,null,null,null,0,0,0,0,0,0,0,0,0,0]
[null,{"$f":"Inputs!$C78","v":"20 Fluorescent 1X20FL"},"Old light no volumes",{"$f":"IF($C21=\"NA\",\"\",'Unsmoothed Prices'!D19)","v":18.189},{"$f":"IF($C21=\"NA\",\"\",'Unsmoothed Prices'!E19)","v":19.119825260866268},18.529227988315153,17.95687382905539,17.402199266799265,16.864658191860748,null,null,null,null,null,null,null,19.588251639341223,19.44826378150859,19.309276349885579,19.171282194904951,19.034274218094016,null,null,null,null,null,null,{"$f":"IFERROR(VLOOKUP($B21,Volumes!$B$4:$H$33,MATCH(AB$11,Volumes!$B$4:$H$4,0),FALSE),0)","v":0},{"$f":"IFERROR(VLOOKUP($B21,Volumes!$B$4:$H$33,MATCH(AC$11,Volumes!$B$4:$H$4,0),FALSE),0)","v":0},{"$f":"IFERROR(VLOOKUP($B21,Volumes!$B$4:$H$33,MATCH(AD$11,Volumes!$B$4:$H$4,0),FALSE),0)","v":0},{"$f":"IFERROR(VLOOKUP($B21,Volumes!$B$4:$H$33,MATCH(AE$11,Volumes!$B$4:$H$4,0),FALSE),0)","v":0},{"$f":"IFERROR(VLOOKUP($B21,Volumes!$B$4:$H$33,MATCH(AF$11,Volumes!$B$4:$H$4,0),FALSE),0)","v":0},null,null,null,null,null,null,69.978560454770545,67.631682157350312,65.542589476052171,63.518027323817314,61.72464898221034,null,null,null,null,null,null,71.693000999988882,70.986162802506357,70.478858677082357,69.975180011403069,69.66544363822409,null,null,null,null,null,null,null,0,0,0,0,0,null,null,null,null,null,null,null,0,0,0,0,0,0,0,0,0,0]
[null,{"$f":"Inputs!$C79","v":"2x40W Fluorescent"},"Obsolete, no new Connections",{"$f":"IF($C22=\"NA\",\"\",'Unsmoothed Prices'!D20)","v":18.518000000000001},{"$f":"IF($C22=\"NA\",\"\",'Unsmoothed Prices'!E20)","v":19.445571205353261},18.844911881306707,18.262806479886237,17.698681884133475,17.151982680249354,null,null,null,null,null,null,null,19.921978200334753,19.779605358521135,19.638249987255989,19.497904815164347,19.358562622836292,null,null,null,null,null,null,{"$f":"IFERROR(VLOOKUP($B22,Volumes!$B$4:$H$33,MATCH(AB$11,Volumes!$B$4:$H$4,0),FALSE),0)","v":0},{"$f":"IFERROR(VLOOKUP($B22,Volumes!$B$4:$H$33,MATCH(AC$11,Volumes!$B$4:$H$4,0),FALSE),0)","v":0},{"$f":"IFERROR(VLOOKUP($B22,Volumes!$B$4:$H$33,MATCH(AD$11,Volumes!$B$4:$H$4,0),FALSE),0)","v":0},{"$f":"IFERROR(VLOOKUP($B22,Volumes!$B$4:$H$33,MATCH(AE$11,Volumes!$B$4:$H$4,0),FALSE),0)","v":0},{"$f":"IFERROR(VLOOKUP($B22,Volumes!$B$4:$H$33,MATCH(AF$11,Volumes!$B$4:$H$4,0),FALSE),0)","v":0},null,null,null,null,null,null,71.170790611592935,68.783928366769473,66.65924365158476,64.600188877087191,62.77625660971264,null,null,null,null,null,null,72.914440213225191,72.195559558602142,71.679612453484367,71.167352575349867,70.852339199580825,null,null,null,null,null,null,null,0,0,0,0,0,null,null,null,null,null,null,null,0,0,0,0,0,0,0,0,0,0]
[null,{"$f":"Inputs!$C80","v":"3x40W Fluorescent"},"Obsolete, no new Connections",{"$f":"IF($C23=\"NA\",\"\",'Unsmoothed Prices'!D21)","v":22.414000000000001},{"$f":"IF($C23=\"NA\",\"\",'Unsmoothed Prices'!E21)","v":23.148843208864026},22.433792549386972,21.740829276351015,21.069271126711808,20.41845691202624,null,null,null,null,null,null,null,23.71597855880924,23.546491812570771,23.378216306976633,23.211143385869743,23.045264454954435,null,null,null,null,null,null,{"$f":"IFERROR(VLOOKUP($B23,Volumes!$B$4:$H$33,MATCH(AB$11,Volumes!$B$4:$H$4,0),FALSE),0)","v":0},{"$f":"IFERROR(VLOOKUP($B23,Volumes!$B$4:$H$33,MATCH(AC$11,Volumes!$B$4:$H$4,0),FALSE),0)","v":0},{"$f":"IFERROR(VLOOKUP($B23,Volumes!$B$4:$H$33,MATCH(AD$11,Volumes!$B$4:$H$4,0),FALSE),0)","v":0},{"$f":"IFERROR(VLOOKUP($B23,Volumes!$B$4:$H$33,MATCH(AE$11,Volumes!$B$4:$H$4,0),FALSE),0)","v":0},{"$f":"IFERROR(VLOOKUP($B23,Volumes!$B$4:$H$33,MATCH(AF$11,Volumes!$B$4:$H$4,0),FALSE),0)","v":0},null,null,null,null,null,null,84.724766144442327,81.883342805262444,79.354026858681195,76.902839612498099,74.731552298016041,null,null,null,null,null,null,86.800481525241807,85.94469511588332,85.33048952046471,84.720673358424563,84.345667905133226,null,null,null,null,null,null,null,0,0,0,0,0,null,null,null,null,null,null,null,0,0,0,0,0,0,0,0,0,0]
[null,{"$f":"Inputs!$C81","v":"4x20 Fluorescent"},"Old light no volumes",{"$f":"IF($C24=\"NA\",\"\",'Unsmoothed Prices'!D22)","v":19.062000000000001},{"$f":"IF($C24=\"NA\",\"\",'Unsmoothed Prices'!E22)","v":19.984304882774051},19.367004473561966,18.768772017798785,18.189018520493892,17.62717318027666,null,null,null,null,null,null,null,20.473910589670197,20.32759335127264,20.182321772137811,20.0380883794395,19.894885753756206,null,null,null,null,null,null,{"$f":"IFERROR(VLOOKUP($B24,Volumes!$B$4:$H$33,MATCH(AB$11,Volumes!$B$4:$H$4,0),FALSE),0)","v":0},{"$f":"IFERROR(VLOOKUP($B24,Volumes!$B$4:$H$33,MATCH(AC$11,Volumes!$B$4:$H$4,0),FALSE),0)","v":0},{"$f":"IFERROR(VLOOKUP($B24,Volumes!$B$4:$H$33,MATCH(AD$11,Volumes!$B$4:$H$4,0),FALSE),0)","v":0},{"$f":"IFERROR(VLOOKUP($B24,Volumes!$B$4:$H$33,MATCH(AE$11,Volumes!$B$4:$H$4,0),FALSE),0)","v":0},{"$f":"IFERROR(VLOOKUP($B24,Volumes!$B$4:$H$33,MATCH(AF$11,Volumes!$B$4:$H$4,0),FALSE),0)","v":0},null,null,null,null,null,null,73.142555870953032,70.689566328501172,68.506017864965557,66.389917599802715,64.515453839812579,null,null,null,null,null,null,74.934512758192923,74.195715732145132,73.665474468303003,73.139022584954176,72.81528185874771,null,null,null,null,null,null,null,0,0,0,0,0,null,null,null,null,null,null,null,0,0,0,0,0,0,0,0,0,0]
[null,{"$f":"Inputs!$C82","v":"4x40W Fluorescent"},"Obsolete, no new Connections",{"$f":"IF($C25=\"NA\",\"\",'Unsmoothed Prices'!D23)","v":22.722000000000001},{"$f":"IF($C25=\"NA\",\"\",'Unsmoothed Prices'!E23)","v":23.454752060577771},22.730252102741218,22.028131413188955,21.347698712862201,20.688284075801437,null,null,null,null,null,null,null,24.029382027947392,23.857655537137035,23.687156293353329,23.517875526049238,23.349804527356635,null,null,null,null,null,null,{"$f":"IFERROR(VLOOKUP($B25,Volumes!$B$4:$H$33,MATCH(AB$11,Volumes!$B$4:$H$4,0),FALSE),0)","v":0},{"$f":"IFERROR(VLOOKUP($B25,Volumes!$B$4:$H$33,MATCH(AC$11,Volumes!$B$4:$H$4,0),FALSE),0)","v":0},{"$f":"IFERROR(VLOOKUP($B25,Volumes!$B$4:$H$33,MATCH(AD$11,Volumes!$B$4:$H$4,0),FALSE),0)","v":0},{"$f":"IFERROR(VLOOKUP($B25,Volumes!$B$4:$H$33,MATCH(AE$11,Volumes!$B$4:$H$4,0),FALSE),0)","v":0},{"$f":"IFERROR(VLOOKUP($B25,Volumes!$B$4:$H$33,MATCH(AF$11,Volumes!$B$4:$H$4,0),FALSE),0)","v":0},null,null,null,null,null,null,85.84439254171464,82.965420175005434,80.402679658139689,77.919100301947026,75.719119717433259,null,null,null,null,null,null,87.947538222287463,87.080442710550173,86.458120470739644,85.84024567007971,85.460284570125282,null,null,null,null,null,null,null,0,0,0,0,0,null,null,null,null,null,null,null,0,0,0,0,0,0,0,0,0,0]
[null,{"$f":"Inputs!$C83","v":"100W Sodium Vapour"},"Old light no volumes",{"$f":"IF($C26=\"NA\",\"\",'Unsmoothed Prices'!D24)","v":22.559000000000001},{"$f":"IF($C26=\"NA\",\"\",'Unsmoothed Prices'!E24)","v":23.270997938046648},22.552174009258803,21.85555402041258,21.180452108212133,20.526203595171964,null,null,null,null,null,null,null,23.841126019181811,23.670744903950471,23.501581420990533,23.333626868467015,23.166872606732785,null,null,null,null,null,null,{"$f":"IFERROR(VLOOKUP($B26,Volumes!$B$4:$H$33,MATCH(AB$11,Volumes!$B$4:$H$4,0),FALSE),0)","v":5},{"$f":"IFERROR(VLOOKUP($B26,Volumes!$B$4:$H$33,MATCH(AC$11,Volumes!$B$4:$H$4,0),FALSE),0)","v":5},{"$f":"IFERROR(VLOOKUP($B26,Volumes!$B$4:$H$33,MATCH(AD$11,Volumes!$B$4:$H$4,0),FALSE),0)","v":5},{"$f":"IFERROR(VLOOKUP($B26,Volumes!$B$4:$H$33,MATCH(AE$11,Volumes!$B$4:$H$4,0),FALSE),0)","v":5},{"$f":"IFERROR(VLOOKUP($B26,Volumes!$B$4:$H$33,MATCH(AF$11,Volumes!$B$4:$H$4,0),FALSE),0)","v":5},null,null,null,null,null,null,85.171852453250736,82.315435133794637,79.772772174505917,77.308650194974291,75.125905158329388,null,null,null,null,null,null,87.258521230205417,86.39821889941922,85.780772186615451,85.167738069904601,84.790753740641989,null,null,null,null,null,null,null,425.85926226625367,411.57717566897315,398.86386087252959,386.54325097487146,375.62952579164693,null,null,null,null,null,null,null,436.29260615102709,431.99109449709613,428.90386093307723,425.83869034952301,423.95376870320996,0,0,0,0,0]
[null,{"$f":"Inputs!$C84","v":0},"NA",{"$f":"IF($C27=\"NA\",\"\",'Unsmoothed Prices'!D25)","v":""},{"$f":"IF($C27=\"NA\",\"\",'Unsmoothed Prices'!E25)","v":""},"","","","",null,null,null,null,null,null,null,"","","","","",null,null,null,null,null,null,{"$f":"IFERROR(VLOOKUP($B27,Volumes!$B$4:$H$33,MATCH(AB$11,Volumes!$B$4:$H$4,0),FALSE),0)","v":0},{"$f":"IFERROR(VLOOKUP($B27,Volumes!$B$4:$H$33,MATCH(AC$11,Volumes!$B$4:$H$4,0),FALSE),0)","v":0},{"$f":"IFERROR(VLOOKUP($B27,Volumes!$B$4:$H$33,MATCH(AD$11,Volumes!$B$4:$H$4,0),FALSE),0)","v":0},{"$f":"IFERROR(VLOOKUP($B27,Volumes!$B$4:$H$33,MATCH(AE$11,Volumes!$B$4:$H$4,0),FALSE),0)","v":0},{"$f":"IFERROR(VLOOKUP($B27,Volumes!$B$4:$H$33,MATCH(AF$11,Volumes!$B$4:$H$4,0),FALSE),0)","v":0},null,null,null,null,null,null,"","","","","",null,null,null,null,null,null,"","","","","",null,null,null,null,null,null,null,0,0,0,0,0,null,null,null,null,null,null,null,0,0,0,0,0,0,0,0,0,0]
[null,{"$f":"Inputs!$C85","v":"150W Sodium Vapour"},"Offered",{"$f":"IF($C28=\"NA\",\"\",'Unsmoothed Prices'!D26)","v":22.555},{"$f":"IF($C28=\"NA\",\"\",'Unsmoothed Prices'!E26)","v":23.26682170798912},22.548126779861473,21.851631806940386,21.176651049015536,20.522519947884927,null,null,null,null,null,null,null,23.836847473528046,23.666496935014411,23.49736381025501,23.329439398976504,23.162715063082238,null,null,null,null,null,null,{"$f":"IFERROR(VLOOKUP($B28,Volumes!$B$4:$H$33,MATCH(AB$11,Volumes!$B$4:$H$4,0),FALSE),0)","v":163},{"$f":"IFERROR(VLOOKUP($B28,Volumes!$B$4:$H$33,MATCH(AC$11,Volumes!$B$4:$H$4,0),FALSE),0)","v":163},{"$f":"IFERROR(VLOOKUP($B28,Volumes!$B$4:$H$33,MATCH(AD$11,Volumes!$B$4:$H$4,0),FALSE),0)","v":163},{"$f":"IFERROR(VLOOKUP($B28,Volumes!$B$4:$H$33,MATCH(AE$11,Volumes!$B$4:$H$4,0),FALSE),0)","v":163},{"$f":"IFERROR(VLOOKUP($B28,Volumes!$B$4:$H$33,MATCH(AF$11,Volumes!$B$4:$H$4,0),FALSE),0)","v":163},null,null,null,null,null,null,85.156567451240164,82.300662746494382,79.758456095332406,77.294776328906707,75.112423009258833,null,null,null,null,null,null,87.242861753112649,86.382713812802592,85.765377907430789,85.152453806264234,84.775537130880991,null,null,null,null,null,null,null,13880.520494552147,13415.008027678585,13000.628343539182,12599.048541611794,12243.32495050919,null,null,null,null,null,null,null,14220.586465757362,14080.382351486822,13979.756598911219,13879.84997042107,13818.412552333602,0,0,0,0,0]
[null,{"$f":"Inputs!$C86","v":0},"NA",{"$f":"IF($C29=\"NA\",\"\",'Unsmoothed Prices'!D27)","v":""},{"$f":"IF($C29=\"NA\",\"\",'Unsmoothed Prices'!E27)","v":""},"","","","",null,null,null,null,null,null,null,"","","","","",null,null,null,null,null,null,{"$f":"IFERROR(VLOOKUP($B29,Volumes!$B$4:$H$33,MATCH(AB$11,Volumes!$B$4:$H$4,0),FALSE),0)","v":0},{"$f":"IFERROR(VLOOKUP($B29,Volumes!$B$4:$H$33,MATCH(AC$11,Volumes!$B$4:$H$4,0),FALSE),0)","v":0},{"$f":"IFERROR(VLOOKUP($B29,Volumes!$B$4:$H$33,MATCH(AD$11,Volumes!$B$4:$H$4,0),FALSE),0)","v":0},{"$f":"IFERROR(VLOOKUP($B29,Volumes!$B$4:$H$33,MATCH(AE$11,Volumes!$B$4:$H$4,0),FALSE),0)","v":0},{"$f":"IFERROR(VLOOKUP($B29,Volumes!$B$4:$H$33,MATCH(AF$11,Volumes!$B$4:$H$4,0),FALSE),0)","v":0},null,null,null,null,null,null,"","","","","",null,null,null,null,null,null,"","","","","",null,null,null,null,null,null,null,{"$f":"IFERROR(AM29*AB29,0)","v":0},0,0,0,0,null,null,null,null,null,null,null,0,0,0,0,0,0,0,0,0,0]
[null,{"$f":"Inputs!$C87","v":0},"NA",{"$f":"IF($C30=\"NA\",\"\",'Unsmoothed Prices'!D28)","v":""},{"$f":"IF($C30=\"NA\",\"\",'Unsmoothed Prices'!E28)","v":""},"","","","",null,null,null,null,null,null,null,"","","","","",null,null,null,null,null,null,{"$f":"IFERROR(VLOOKUP($B30,Volumes!$B$4:$H$33,MATCH(AB$11,Volumes!$B$4:$H$4,0),FALSE),0)","v":0},{"$f":"IFERROR(VLOOKUP($B30,Volumes!$B$4:$H$33,MATCH(AC$11,Volumes!$B$4:$H$4,0),FALSE),0)","v":0},{"$f":"IFERROR(VLOOKUP($B30,Volumes!$B$4:$H$33,MATCH(AD$11,Volumes!$B$4:$H$4,0),FALSE),0)","v":0},{"$f":"IFERROR(VLOOKUP($B30,Volumes!$B$4:$H$33,MATCH(AE$11,Volumes!$B$4:$H$4,0),FALSE),0)","v":0},{"$f":"IFERROR(VLOOKUP($B30,Volumes!$B$4:$H$33,MATCH(AF$11,Volumes!$B$4:$H$4,0),FALSE),0)","v":0},null,null,null,null,null,null,"","","","","",null,null,null,null,null,null,"","","","","",null,null,null,null,null,null,null,0,0,0,0,0,null,null,null,null,null,null,null,0,0,0,0,0,0,0,0,0,0]
[null,{"$f":"Inputs!$C88","v":0},"NA",{"$f":"IF($C31=\"NA\",\"\",'Unsmoothed Prices'!D29)","v":""},{"$f":"IF($C31=\"NA\",\"\",'Unsmoothed Prices'!E29)","v":""},"","","","",null,null,null,null,null,null,null,"","","","","",null,null,null,null,null,null,{"$f":"IFERROR(VLOOKUP($B31,Volumes!$B$4:$H$33,MATCH(AB$11,Volumes!$B$4:$H$4,0),FALSE),0)","v":0},{"$f":"IFERROR(VLOOKUP($B31,Volumes!$B$4:$H$33,MATCH(AC$11,Volumes!$B$4:$H$4,0),FALSE),0)","v":0},{"$f":"IFERROR(VLOOKUP($B31,Volumes!$B$4:$H$33,MATCH(AD$11,Volumes!$B$4:$H$4,0),FALSE),0)","v":0},{"$f":"IFERROR(VLOOKUP($B31,Volumes!$B$4:$H$33,MATCH(AE$11,Volumes!$B$4:$H$4,0),FALSE),0)","v":0},{"$f":"IFERROR(VLOOKUP($B31,Volumes!$B$4:$H$33,MATCH(AF$11,Volumes!$B$4:$H$4,0),FALSE),0)","v":0},null,null,null,null,null,null,"","","","","",null,null,null,null,null,null,"","","","","",null,null,null,null,null,null,null,0,0,0,0,0,null,null,null,null,null,null,null,0,0,0,0,0,0,0,0,0,0]
[null,{"$f":"Inputs!$C89","v":"250W Sodium Vapour"},"Offered",{"$f":"IF($C32=\"NA\",\"\",'Unsmoothed Prices'!D30)","v":22.687999999999999},{"$f":"IF($C32=\"NA\",\"\",'Unsmoothed Prices'!E30)","v":23.396284839772413},22.67359089117863,21.97322042457829,21.294483884109905,20.636713013782966,null,null,null,null,null,null,null,23.969482388794706,23.798183972032216,23.628109743056076,23.459250953182163,23.291598916249043,null,null,null,null,null,null,{"$f":"IFERROR(VLOOKUP($B32,Volumes!$B$4:$H$33,MATCH(AB$11,Volumes!$B$4:$H$4,0),FALSE),0)","v":165},{"$f":"IFERROR(VLOOKUP($B32,Volumes!$B$4:$H$33,MATCH(AC$11,Volumes!$B$4:$H$4,0),FALSE),0)","v":165},{"$f":"IFERROR(VLOOKUP($B32,Volumes!$B$4:$H$33,MATCH(AD$11,Volumes!$B$4:$H$4,0),FALSE),0)","v":165},{"$f":"IFERROR(VLOOKUP($B32,Volumes!$B$4:$H$33,MATCH(AE$11,Volumes!$B$4:$H$4,0),FALSE),0)","v":165},{"$f":"IFERROR(VLOOKUP($B32,Volumes!$B$4:$H$33,MATCH(AF$11,Volumes!$B$4:$H$4,0),FALSE),0)","v":165},null,null,null,null,null,null,85.63040251356702,82.75860675280201,80.202254549710759,77.724866177001147,75.530369630445662,null,null,null,null,null,null,87.728305542988622,86.863371497917598,86.242600562154678,85.626265979114905,85.247252033471511,null,null,null,null,null,null,null,14129.016414738559,13655.170114212331,13233.372000702275,12824.602919205188,12462.510989023534,null,null,null,null,null,null,null,14475.170414593123,14332.456297156403,14230.029092755522,14128.333886553959,14065.796585522799,0,0,0,0,0]
[null,{"$f":"Inputs!$C90","v":0},"NA",{"$f":"IF($C33=\"NA\",\"\",'Unsmoothed Prices'!D31)","v":""},{"$f":"IF($C33=\"NA\",\"\",'Unsmoothed Prices'!E31)","v":""},"","","","",null,null,null,null,null,null,null,"","","","","",null,null,null,null,null,null,{"$f":"IFERROR(VLOOKUP($B33,Volumes!$B$4:$H$33,MATCH(AB$11,Volumes!$B$4:$H$4,0),FALSE),0)","v":0},{"$f":"IFERROR(VLOOKUP($B33,Volumes!$B$4:$H$33,MATCH(AC$11,Volumes!$B$4:$H$4,0),FALSE),0)","v":0},{"$f":"IFERROR(VLOOKUP($B33,Volumes!$B$4:$H$33,MATCH(AD$11,Volumes!$B$4:$H$4,0),FALSE),0)","v":0},{"$f":"IFERROR(VLOOKUP($B33,Volumes!$B$4:$H$33,MATCH(AE$11,Volumes!$B$4:$H$4,0),FALSE),0)","v":0},{"$f":"IFERROR(VLOOKUP($B33,Volumes!$B$4:$H$33,MATCH(AF$11,Volumes!$B$4:$H$4,0),FALSE),0)","v":0},null,null,null,null,null,null,"","","","","",null,null,null,null,null,null,"","","","","",null,null,null,null,null,null,null,0,0,0,0,0,null,null,null,null,null,null,null,0,0,0,0,0,0,0,0,0,0]
[null,{"$f":"Inputs!$C91","v":0},"NA",{"$f":"IF($C34=\"NA\",\"\",'Unsmoothed Prices'!D32)","v":""},{"$f":"IF($C34=\"NA\",\"\",'Unsmoothed Prices'!E32)","v":""},"","","","",null,null,null,null,null,null,null,"","","","","",null,null,null,null,null,null,{"$f":"IFERROR(VLOOKUP($B34,Volumes!$B$4:$H$33,MATCH(AB$11,Volumes!$B$4:$H$4,0),FALSE),0)","v":0},{"$f":"IFERROR(VLOOKUP($B34,Volumes!$B$4:$H$33,MATCH(AC$11,Volumes!$B$4:$H$4,0),FALSE),0)","v":0},{"$f":"IFERROR(VLOOKUP($B34,Volumes!$B$4:$H$33,MATCH(AD$11,Volumes!$B$4:$H$4,0),FALSE),0)","v":0},{"$f":"IFERROR(VLOOKUP($B34,Volumes!$B$4:$H$33,MATCH(AE$11,Volumes!$B$4:$H$4,0),FALSE),0)","v":0},{"$f":"IFERROR(VLOOKUP($B34,Volumes!$B$4:$H$33,MATCH(AF$11,Volumes!$B$4:$H$4,0),FALSE),0)","v":0},null,null,null,null,null,null,"","","","","",null,null,null,null,null,null,"","","","","",null,null,null,null,null,null,null,0,0,0,0,0,null,null,null,null,null,null,null,0,0,0,0,0,0,0,0,0,0]
[null,{"$f":"Inputs!$C92","v":0},"NA",{"$f":"IF($C35=\"NA\",\"\",'Unsmoothed Prices'!D33)","v":""},{"$f":"IF($C35=\"NA\",\"\",'Unsmoothed Prices'!E33)","v":""},"","","","",null,null,null,null,null,null,null,"","","","","",null,null,null,null,null,null,{"$f":"IFERROR(VLOOKUP($B35,Volumes!$B$4:$H$33,MATCH(AB$11,Volumes!$B$4:$H$4,0),FALSE),0)","v":0},{"$f":"IFERROR(VLOOKUP($B35,Volumes!$B$4:$H$33,MATCH(AC$11,Volumes!$B$4:$H$4,0),FALSE),0)","v":0},{"$f":"IFERROR(VLOOKUP($B35,Volumes!$B$4:$H$33,MATCH(AD$11,Volumes!$B$4:$H$4,0),FALSE),0)","v":0},{"$f":"IFERROR(VLOOKUP($B35,Volumes!$B$4:$H$33,MATCH(AE$11,Volumes!$B$4:$H$4,0),FALSE),0)","v":0},{"$f":"IFERROR(VLOOKUP($B35,Volumes!$B$4:$H$33,MATCH(AF$11,Volumes!$B$4:$H$4,0),FALSE),0)","v":0},null,null,null,null,null,null,"","","","","",null,null,null,null,null,null,"","","","","",null,null,null,null,null,null,null,0,0,0,0,0,null,null,null,null,null,null,null,0,0,0,0,0,0,0,0,0,0]
[null,{"$f":"Inputs!$C93","v":"250W Sodium Vapour - Flood Light"},"Old light no volumes",{"$f":"IF($C36=\"NA\",\"\",'Unsmoothed Prices'!D34)","v":22.687999999999999},{"$f":"IF($C36=\"NA\",\"\",'Unsmoothed Prices'!E34)","v":23.396284839772413},22.67359089117863,21.97322042457829,21.294483884109905,20.636713013782966,null,null,null,null,null,null,null,23.969482388794706,23.798183972032216,23.628109743056076,23.459250953182163,23.291598916249043,null,null,null,null,null,null,{"$f":"IFERROR(VLOOKUP($B36,Volumes!$B$4:$H$33,MATCH(AB$11,Volumes!$B$4:$H$4,0),FALSE),0)","v":0},{"$f":"IFERROR(VLOOKUP($B36,Volumes!$B$4:$H$33,MATCH(AC$11,Volumes!$B$4:$H$4,0),FALSE),0)","v":0},{"$f":"IFERROR(VLOOKUP($B36,Volumes!$B$4:$H$33,MATCH(AD$11,Volumes!$B$4:$H$4,0),FALSE),0)","v":0},{"$f":"IFERROR(VLOOKUP($B36,Volumes!$B$4:$H$33,MATCH(AE$11,Volumes!$B$4:$H$4,0),FALSE),0)","v":0},{"$f":"IFERROR(VLOOKUP($B36,Volumes!$B$4:$H$33,MATCH(AF$11,Volumes!$B$4:$H$4,0),FALSE),0)","v":0},null,null,null,null,null,null,85.63040251356702,82.75860675280201,80.202254549710759,77.724866177001147,75.530369630445662,null,null,null,null,null,null,87.728305542988622,86.863371497917598,86.242600562154678,85.626265979114905,85.247252033471511,null,null,null,null,null,null,null,0,0,0,0,0,null,null,null,null,null,null,null,0,0,0,0,0,0,0,0,0,0]
[null,{"$f":"Inputs!$C94","v":"400W Sodium Vapour"},"Offered",{"$f":"IF($C37=\"NA\",\"\",'Unsmoothed Prices'!D35)","v":22.734000000000002},{"$f":"IF($C37=\"NA\",\"\",'Unsmoothed Prices'!E35)","v":23.440135255376433},22.716086799850572,22.014403666036291,21.334395005674128,20.675391310296821,null,null,null,null,null,null,null,24.01440711815922,23.842787645860831,23.672394655779016,23.503219382832473,23.33525312457974,null,null,null,null,null,null,{"$f":"IFERROR(VLOOKUP($B37,Volumes!$B$4:$H$33,MATCH(AB$11,Volumes!$B$4:$H$4,0),FALSE),0)","v":104},{"$f":"IFERROR(VLOOKUP($B37,Volumes!$B$4:$H$33,MATCH(AC$11,Volumes!$B$4:$H$4,0),FALSE),0)","v":104},{"$f":"IFERROR(VLOOKUP($B37,Volumes!$B$4:$H$33,MATCH(AD$11,Volumes!$B$4:$H$4,0),FALSE),0)","v":104},{"$f":"IFERROR(VLOOKUP($B37,Volumes!$B$4:$H$33,MATCH(AE$11,Volumes!$B$4:$H$4,0),FALSE),0)","v":104},{"$f":"IFERROR(VLOOKUP($B37,Volumes!$B$4:$H$33,MATCH(AF$11,Volumes!$B$4:$H$4,0),FALSE),0)","v":104},null,null,null,null,null,null,85.790895034677746,82.913716819454578,80.352573381032457,77.870541770710574,75.671932195686352,null,null,null,null,null,null,87.892730052462738,87.026174907392033,86.404240493593406,85.786750747338516,85.407026435961853,null,null,null,null,null,null,null,8922.2530836064852,8623.0265492232757,8356.6676316273752,8098.5363441538993,7869.8809483513805,null,null,null,null,null,null,null,9140.8439254561254,9050.7221903687714,8986.0410113337148,8921.8220777232054,8882.3307493400334,{"$f":"IFERROR(BC37*AG37,0)","v":0},0,0,0,0]
[null,{"$f":"Inputs!$C95","v":0},"NA",{"$f":"IF($C38=\"NA\",\"\",'Unsmoothed Prices'!D36)","v":""},{"$f":"IF($C38=\"NA\",\"\",'Unsmoothed Prices'!E36)","v":""},"","","","",null,null,null,null,null,null,null,{"$f":"IF($C38=\"NA\",\"\",E38*Q$9)","v":""},"","","","",null,null,null,null,null,null,{"$f":"IFERROR(VLOOKUP($B38,Volumes!$B$4:$H$33,MATCH(AB$11,Volumes!$B$4:$H$4,0),FALSE),0)","v":0},{"$f":"IFERROR(VLOOKUP($B38,Volumes!$B$4:$H$33,MATCH(AC$11,Volumes!$B$4:$H$4,0),FALSE),0)","v":0},{"$f":"IFERROR(VLOOKUP($B38,Volumes!$B$4:$H$33,MATCH(AD$11,Volumes!$B$4:$H$4,0),FALSE),0)","v":0},{"$f":"IFERROR(VLOOKUP($B38,Volumes!$B$4:$H$33,MATCH(AE$11,Volumes!$B$4:$H$4,0),FALSE),0)","v":0},{"$f":"IFERROR(VLOOKUP($B38,Volumes!$B$4:$H$33,MATCH(AF$11,Volumes!$B$4:$H$4,0),FALSE),0)","v":0},null,null,null,null,null,null,{"$f":"IF($C38=\"NA\",\"\",(E38*AM$9)/100)","v":""},"","","","",null,null,null,null,null,null,{"$f":"IF($C38=\"NA\",\"\",(Q38*AX$9)/100)","v":""},"","","","",null,null,null,null,null,null,null,0,0,0,0,0,null,null,null,null,null,null,null,{"$f":"IFERROR(AX38*AB38,0)","v":0},0,0,0,0,0,0,0,0,0]
[null,{"$f":"Inputs!$C96","v":"400W Sodium Vapour - Flood Light"},"Old light no volumes",{"$f":"IF($C39=\"NA\",\"\",'Unsmoothed Prices'!D37)","v":22.734000000000002},{"$f":"IF($C39=\"NA\",\"\",'Unsmoothed Prices'!E37)","v":23.440135255376433},22.716086799850572,22.014403666036291,21.334395005674128,20.675391310296821,null,null,null,null,null,null,null,24.01440711815922,23.842787645860831,23.672394655779016,23.503219382832473,23.33525312457974,null,null,null,null,null,null,{"$f":"IFERROR(VLOOKUP($B39,Volumes!$B$4:$H$33,MATCH(AB$11,Volumes!$B$4:$H$4,0),FALSE),0)","v":0},{"$f":"IFERROR(VLOOKUP($B39,Volumes!$B$4:$H$33,MATCH(AC$11,Volumes!$B$4:$H$4,0),FALSE),0)","v":0},{"$f":"IFERROR(VLOOKUP($B39,Volumes!$B$4:$H$33,MATCH(AD$11,Volumes!$B$4:$H$4,0),FALSE),0)","v":0},{"$f":"IFERROR(VLOOKUP($B39,Volumes!$B$4:$H$33,MATCH(AE$11,Volumes!$B$4:$H$4,0),FALSE),0)","v":0},{"$f":"IFERROR(VLOOKUP($B39,Volumes!$B$4:$H$33,MATCH(AF$11,Volumes!$B$4:$H$4,0),FALSE),0)","v":0},null,null,null,null,null,null,85.790895034677746,82.913716819454578,80.352573381032457,77.870541770710574,75.671932195686352,null,null,null,null,null,null,87.892730052462738,87.026174907392033,86.404240493593406,85.786750747338516,85.407026435961853,null,null,null,null,null,null,null,0,0,0,0,0,null,null,null,null,null,null,null,0,0,0,0,0,0,0,0,0,0]
[null,{"$f":"Inputs!$C97","v":"70W Sodium Vapour"},"Offered",{"$f":"IF($C40=\"NA\",\"\",'Unsmoothed Prices'!D38)","v":18.434000000000001},{"$f":"IF($C40=\"NA\",\"\",'Unsmoothed Prices'!E38)","v":19.351606029058935},18.753849219866837,18.174556676761952,17.613158052210142,17.069100616291102,null,null,null,null,null,null,null,19.825710923125079,19.684026057459825,19.543353745706828,19.40368675162798,19.265017890699099,null,null,null,null,null,null,{"$f":"IFERROR(VLOOKUP($B40,Volumes!$B$4:$H$33,MATCH(AB$11,Volumes!$B$4:$H$4,0),FALSE),0)","v":73},{"$f":"IFERROR(VLOOKUP($B40,Volumes!$B$4:$H$33,MATCH(AC$11,Volumes!$B$4:$H$4,0),FALSE),0)","v":73},{"$f":"IFERROR(VLOOKUP($B40,Volumes!$B$4:$H$33,MATCH(AD$11,Volumes!$B$4:$H$4,0),FALSE),0)","v":73},{"$f":"IFERROR(VLOOKUP($B40,Volumes!$B$4:$H$33,MATCH(AE$11,Volumes!$B$4:$H$4,0),FALSE),0)","v":73},{"$f":"IFERROR(VLOOKUP($B40,Volumes!$B$4:$H$33,MATCH(AF$11,Volumes!$B$4:$H$4,0),FALSE),0)","v":73},null,null,null,null,null,null,70.826878066355704,68.451549652513947,66.337131870181125,64.288026890567011,62.472908255625434,null,null,null,null,null,null,72.562101978637799,71.846695109728358,71.333241171829926,70.823456643442128,70.509965479958694,null,null,null,null,null,null,null,5170.3620988439661,4996.9631246335184,4842.610626523222,4693.0259630113915,4560.5223026606564,null,null,null,null,null,null,null,5297.0334444405589,5244.8087430101705,5207.3266055435843,5170.1123349712752,5147.2274800369851,0,0,0,0,0]
[null,{"$f":"Inputs!$C98","v":0},"NA",{"$f":"IF($C41=\"NA\",\"\",'Unsmoothed Prices'!D39)","v":""},{"$f":"IF($C41=\"NA\",\"\",'Unsmoothed Prices'!E39)","v":""},"","","","",null,null,null,null,null,null,null,"","","","","",null,null,null,null,null,null,{"$f":"IFERROR(VLOOKUP($B41,Volumes!$B$4:$H$33,MATCH(AB$11,Volumes!$B$4:$H$4,0),FALSE),0)","v":0},{"$f":"IFERROR(VLOOKUP($B41,Volumes!$B$4:$H$33,MATCH(AC$11,Volumes!$B$4:$H$4,0),FALSE),0)","v":0},{"$f":"IFERROR(VLOOKUP($B41,Volumes!$B$4:$H$33,MATCH(AD$11,Volumes!$B$4:$H$4,0),FALSE),0)","v":0},{"$f":"IFERROR(VLOOKUP($B41,Volumes!$B$4:$H$33,MATCH(AE$11,Volumes!$B$4:$H$4,0),FALSE),0)","v":0},{"$f":"IFERROR(VLOOKUP($B41,Volumes!$B$4:$H$33,MATCH(AF$11,Volumes!$B$4:$H$4,0),FALSE),0)","v":0},null,null,null,null,null,null,"","","","","",null,null,null,null,null,null,"","","","","",null,null,null,null,null,null,null,0,0,0,0,0,null,null,null,null,null,null,null,0,0,0,0,0,0,0,0,0,0]
[null,{"$f":"Inputs!$C99","v":"100W Incandescent"},"Obsolete, no new Connections",{"$f":"IF($C42=\"NA\",\"\",'Unsmoothed Prices'!D40)","v":21.61},{"$f":"IF($C42=\"NA\",\"\",'Unsmoothed Prices'!E40)","v":22.35118326787665},21.660771734497395,20.991686503162658,20.343268820162649,19.714880280202852,null,null,null,null,null,null,null,22.898776338940475,22.735129745783645,22.572652656492679,22.411336713183264,22.2511736177009,null,null,null,null,null,null,{"$f":"IFERROR(VLOOKUP($B42,Volumes!$B$4:$H$33,MATCH(AB$11,Volumes!$B$4:$H$4,0),FALSE),0)","v":0},{"$f":"IFERROR(VLOOKUP($B42,Volumes!$B$4:$H$33,MATCH(AC$11,Volumes!$B$4:$H$4,0),FALSE),0)","v":0},{"$f":"IFERROR(VLOOKUP($B42,Volumes!$B$4:$H$33,MATCH(AD$11,Volumes!$B$4:$H$4,0),FALSE),0)","v":0},{"$f":"IFERROR(VLOOKUP($B42,Volumes!$B$4:$H$33,MATCH(AE$11,Volumes!$B$4:$H$4,0),FALSE),0)","v":0},{"$f":"IFERROR(VLOOKUP($B42,Volumes!$B$4:$H$33,MATCH(AF$11,Volumes!$B$4:$H$4,0),FALSE),0)","v":0},null,null,null,null,null,null,81.805330760428532,79.06181683091549,76.619655736543706,74.252931193593668,72.156461825542436,null,null,null,null,null,null,83.809521400522129,82.983223572110305,82.390182196198282,81.80137900311891,81.439295440785287,null,null,null,null,null,null,null,0,0,0,0,0,null,null,null,null,null,null,null,0,0,0,0,0,0,0,0,0,0]
[null,{"$f":"Inputs!$C100","v":"60W Incandescent"},"Obsolete, no new Connections",{"$f":"IF($C43=\"NA\",\"\",'Unsmoothed Prices'!D41)","v":18.023},{"$f":"IF($C43=\"NA\",\"\",'Unsmoothed Prices'!E41)","v":18.954864173594011},18.369362427120713,17.801946396903872,17.252057428533863,16.719154124022928,null,null,null,null,null,null,null,19.419249086017579,19.28046900853429,19.142680725832616,19.005877150029999,18.870051243897606,null,null,null,null,null,null,{"$f":"IFERROR(VLOOKUP($B43,Volumes!$B$4:$H$33,MATCH(AB$11,Volumes!$B$4:$H$4,0),FALSE),0)","v":0},{"$f":"IFERROR(VLOOKUP($B43,Volumes!$B$4:$H$33,MATCH(AC$11,Volumes!$B$4:$H$4,0),FALSE),0)","v":0},{"$f":"IFERROR(VLOOKUP($B43,Volumes!$B$4:$H$33,MATCH(AD$11,Volumes!$B$4:$H$4,0),FALSE),0)","v":0},{"$f":"IFERROR(VLOOKUP($B43,Volumes!$B$4:$H$33,MATCH(AE$11,Volumes!$B$4:$H$4,0),FALSE),0)","v":0},{"$f":"IFERROR(VLOOKUP($B43,Volumes!$B$4:$H$33,MATCH(AF$11,Volumes!$B$4:$H$4,0),FALSE),0)","v":0},null,null,null,null,null,null,69.374802875354078,67.048172858990597,64.977104348699129,62.970009614148601,61.192104093923916,null,null,null,null,null,null,71.074451654824344,70.373711881150157,69.87078464928905,69.371451597609493,69.064387552665238,null,null,null,null,null,null,null,0,0,0,0,0,null,null,null,null,null,null,null,0,0,0,0,0,0,0,0,0,0]
[null,{"$f":"Inputs!$C101","v":"18W LED"},"Offered",{"$f":"IF($C44=\"NA\",\"\",'Unsmoothed Prices'!D42)","v":12.349},{"$f":"IF($C44=\"NA\",\"\",'Unsmoothed Prices'!E42)","v":13.587364492159319},13.167660844205395,12.760921531771245,12.366746096113449,11.984746448363225,null,null,null,null,null,null,null,13.920248284518467,13.820766933465451,13.72199652800802,13.623931987358324,13.526568267038469,null,null,null,null,null,null,{"$f":"IFERROR(VLOOKUP($B44,Volumes!$B$4:$H$33,MATCH(AB$11,Volumes!$B$4:$H$4,0),FALSE),0)","v":4980},{"$f":"IFERROR(VLOOKUP($B44,Volumes!$B$4:$H$33,MATCH(AC$11,Volumes!$B$4:$H$4,0),FALSE),0)","v":4980},{"$f":"IFERROR(VLOOKUP($B44,Volumes!$B$4:$H$33,MATCH(AD$11,Volumes!$B$4:$H$4,0),FALSE),0)","v":4980},{"$f":"IFERROR(VLOOKUP($B44,Volumes!$B$4:$H$33,MATCH(AE$11,Volumes!$B$4:$H$4,0),FALSE),0)","v":4980},{"$f":"IFERROR(VLOOKUP($B44,Volumes!$B$4:$H$33,MATCH(AF$11,Volumes!$B$4:$H$4,0),FALSE),0)","v":4980},null,null,null,null,null,null,49.729754041303103,48.061962081349691,46.577363590965042,45.138623250814092,43.864172001009401,null,null,null,null,null,null,50.948108721337583,50.445799307148903,50.085287327229274,49.727351753857882,49.507239857360794,null,null,null,null,null,null,null,247654.17512568945,239348.57116512145,231955.27068300592,224790.34378905417,218443.5765650268,null,null,null,null,null,null,null,253721.58143226115,251220.08054960152,249424.73088960178,247642.21173421224,246546.05448965676,0,0,0,0,0]
[null,{"$f":"Inputs!$C102","v":"18W LED Decorative - Bottom Pole Entry"},"Not Offered",{"$f":"IF($C45=\"NA\",\"\",'Unsmoothed Prices'!D43)","v":12.349},{"$f":"IF($C45=\"NA\",\"\",'Unsmoothed Prices'!E43)","v":13.587364492159319},13.167660844205395,12.760921531771245,12.366746096113449,11.984746448363225,null,null,null,null,null,null,null,13.920248284518467,13.820766933465451,13.72199652800802,13.623931987358324,13.526568267038469,null,null,null,null,null,null,{"$f":"IFERROR(VLOOKUP($B45,Volumes!$B$4:$H$33,MATCH(AB$11,Volumes!$B$4:$H$4,0),FALSE),0)","v":0},{"$f":"IFERROR(VLOOKUP($B45,Volumes!$B$4:$H$33,MATCH(AC$11,Volumes!$B$4:$H$4,0),FALSE),0)","v":0},{"$f":"IFERROR(VLOOKUP($B45,Volumes!$B$4:$H$33,MATCH(AD$11,Volumes!$B$4:$H$4,0),FALSE),0)","v":0},{"$f":"IFERROR(VLOOKUP($B45,Volumes!$B$4:$H$33,MATCH(AE$11,Volumes!$B$4:$H$4,0),FALSE),0)","v":0},{"$f":"IFERROR(VLOOKUP($B45,Volumes!$B$4:$H$33,MATCH(AF$11,Volumes!$B$4:$H$4,0),FALSE),0)","v":0},null,null,null,null,null,null,49.729754041303103,48.061962081349691,46.577363590965042,45.138623250814092,43.864172001009401,null,null,null,null,null,null,50.948108721337583,50.445799307148903,50.085287327229274,49.727351753857882,49.507239857360794,null,null,null,null,null,null,null,0,0,0,0,0,null,null,null,null,null,null,null,0,0,0,0,0,0,0,0,0,0]
[null,{"$f":"Inputs!$C103","v":"18W LED Decorative - Side Entry"},"Not Offered",{"$f":"IF($C46=\"NA\",\"\",'Unsmoothed Prices'!D44)","v":12.349},{"$f":"IF($C46=\"NA\",\"\",'Unsmoothed Prices'!E44)","v":13.587364492159319},13.167660844205395,12.760921531771245,12.366746096113449,11.984746448363225,null,null,null,null,null,null,null,13.920248284518467,13.820766933465451,13.72199652800802,13.623931987358324,13.526568267038469,null,null,null,null,null,null,{"$f":"IFERROR(VLOOKUP($B46,Volumes!$B$4:$H$33,MATCH(AB$11,Volumes!$B$4:$H$4,0),FALSE),0)","v":0},{"$f":"IFERROR(VLOOKUP($B46,Volumes!$B$4:$H$33,MATCH(AC$11,Volumes!$B$4:$H$4,0),FALSE),0)","v":0},{"$f":"IFERROR(VLOOKUP($B46,Volumes!$B$4:$H$33,MATCH(AD$11,Volumes!$B$4:$H$4,0),FALSE),0)","v":0},{"$f":"IFERROR(VLOOKUP($B46,Volumes!$B$4:$H$33,MATCH(AE$11,Volumes!$B$4:$H$4,0),FALSE),0)","v":0},{"$f":"IFERROR(VLOOKUP($B46,Volumes!$B$4:$H$33,MATCH(AF$11,Volumes!$B$4:$H$4,0),FALSE),0)","v":0},null,null,null,null,null,null,49.729754041303103,48.061962081349691,46.577363590965042,45.138623250814092,43.864172001009401,null,null,null,null,null,null,50.948108721337583,50.445799307148903,50.085287327229274,49.727351753857882,49.507239857360794,null,null,null,null,null,null,null,0,0,0,0,0,null,null,null,null,null,null,null,0,0,0,0,0,0,0,0,0,0]
[null,{"$f":"Inputs!$C104","v":"18W LED Decorative - Top Entry"},"Not Offered",{"$f":"IF($C47=\"NA\",\"\",'Unsmoothed Prices'!D45)","v":12.349},{"$f":"IF($C47=\"NA\",\"\",'Unsmoothed Prices'!E45)","v":13.587364492159319},13.167660844205395,12.760921531771245,12.366746096113449,11.984746448363225,null,null,null,null,null,null,null,13.920248284518467,13.820766933465451,13.72199652800802,13.623931987358324,13.526568267038469,null,null,null,null,null,null,{"$f":"IFERROR(VLOOKUP($B47,Volumes!$B$4:$H$33,MATCH(AB$11,Volumes!$B$4:$H$4,0),FALSE),0)","v":0},{"$f":"IFERROR(VLOOKUP($B47,Volumes!$B$4:$H$33,MATCH(AC$11,Volumes!$B$4:$H$4,0),FALSE),0)","v":0},{"$f":"IFERROR(VLOOKUP($B47,Volumes!$B$4:$H$33,MATCH(AD$11,Volumes!$B$4:$H$4,0),FALSE),0)","v":0},{"$f":"IFERROR(VLOOKUP($B47,Volumes!$B$4:$H$33,MATCH(AE$11,Volumes!$B$4:$H$4,0),FALSE),0)","v":0},{"$f":"IFERROR(VLOOKUP($B47,Volumes!$B$4:$H$33,MATCH(AF$11,Volumes!$B$4:$H$4,0),FALSE),0)","v":0},null,null,null,null,null,null,49.729754041303103,48.061962081349691,46.577363590965042,45.138623250814092,43.864172001009401,null,null,null,null,null,null,50.948108721337583,50.445799307148903,50.085287327229274,49.727351753857882,49.507239857360794,null,null,null,null,null,null,null,0,0,0,0,0,null,null,null,null,null,null,null,0,0,0,0,0,0,0,0,0,0]
[null,{"$f":"Inputs!$C105","v":"25W LED"},"Offered",{"$f":"IF($C48=\"NA\",\"\",'Unsmoothed Prices'!D46)","v":12.349},{"$f":"IF($C48=\"NA\",\"\",'Unsmoothed Prices'!E46)","v":13.587364492159319},13.167660844205395,12.760921531771245,12.366746096113449,11.984746448363225,null,null,null,null,null,null,null,13.920248284518467,13.820766933465451,13.72199652800802,13.623931987358324,13.526568267038469,null,null,null,null,null,null,{"$f":"IFERROR(VLOOKUP($B48,Volumes!$B$4:$H$33,MATCH(AB$11,Volumes!$B$4:$H$4,0),FALSE),0)","v":29},{"$f":"IFERROR(VLOOKUP($B48,Volumes!$B$4:$H$33,MATCH(AC$11,Volumes!$B$4:$H$4,0),FALSE),0)","v":29},{"$f":"IFERROR(VLOOKUP($B48,Volumes!$B$4:$H$33,MATCH(AD$11,Volumes!$B$4:$H$4,0),FALSE),0)","v":29},{"$f":"IFERROR(VLOOKUP($B48,Volumes!$B$4:$H$33,MATCH(AE$11,Volumes!$B$4:$H$4,0),FALSE),0)","v":29},{"$f":"IFERROR(VLOOKUP($B48,Volumes!$B$4:$H$33,MATCH(AF$11,Volumes!$B$4:$H$4,0),FALSE),0)","v":29},null,null,null,null,null,null,49.729754041303103,48.061962081349691,46.577363590965042,45.138623250814092,43.864172001009401,null,null,null,null,null,null,50.948108721337583,50.445799307148903,50.085287327229274,49.727351753857882,49.507239857360794,null,null,null,null,null,null,null,1442.1628671977901,1393.7969003591411,1350.7435441379862,1309.0200742736088,1272.0609880292727,null,null,null,null,null,null,null,1477.4951529187899,1462.9281799073183,1452.473332489649,1442.0932008618786,1435.7099558634629,0,0,0,0,0]
[null,{"$f":"Inputs!$C106","v":"25W LED Decorative - Bottom Pole Entry"},"Not Offered",{"$f":"IF($C49=\"NA\",\"\",'Unsmoothed Prices'!D47)","v":12.349},{"$f":"IF($C49=\"NA\",\"\",'Unsmoothed Prices'!E47)","v":13.587364492159319},13.167660844205395,12.760921531771245,12.366746096113449,11.984746448363225,null,null,null,null,null,null,null,13.920248284518467,13.820766933465451,13.72199652800802,13.623931987358324,13.526568267038469,null,null,null,null,null,null,{"$f":"IFERROR(VLOOKUP($B49,Volumes!$B$4:$H$33,MATCH(AB$11,Volumes!$B$4:$H$4,0),FALSE),0)","v":0},{"$f":"IFERROR(VLOOKUP($B49,Volumes!$B$4:$H$33,MATCH(AC$11,Volumes!$B$4:$H$4,0),FALSE),0)","v":0},{"$f":"IFERROR(VLOOKUP($B49,Volumes!$B$4:$H$33,MATCH(AD$11,Volumes!$B$4:$H$4,0),FALSE),0)","v":0},{"$f":"IFERROR(VLOOKUP($B49,Volumes!$B$4:$H$33,MATCH(AE$11,Volumes!$B$4:$H$4,0),FALSE),0)","v":0},{"$f":"IFERROR(VLOOKUP($B49,Volumes!$B$4:$H$33,MATCH(AF$11,Volumes!$B$4:$H$4,0),FALSE),0)","v":0},null,null,null,null,null,null,49.729754041303103,48.061962081349691,46.577363590965042,45.138623250814092,43.864172001009401,null,null,null,null,null,null,50.948108721337583,50.445799307148903,50.085287327229274,49.727351753857882,49.507239857360794,null,null,null,null,null,null,null,0,0,0,0,0,null,null,null,null,null,null,null,0,0,0,0,0,0,0,0,0,0]
[null,{"$f":"Inputs!$C107","v":"25W LED Decorative - Side Entry"},"Not Offered",{"$f":"IF($C50=\"NA\",\"\",'Unsmoothed Prices'!D48)","v":12.349},{"$f":"IF($C50=\"NA\",\"\",'Unsmoothed Prices'!E48)","v":13.587364492159319},13.167660844205395,12.760921531771245,12.366746096113449,11.984746448363225,null,null,null,null,null,null,null,13.920248284518467,13.820766933465451,13.72199652800802,13.623931987358324,13.526568267038469,null,null,null,null,null,null,{"$f":"IFERROR(VLOOKUP($B50,Volumes!$B$4:$H$33,MATCH(AB$11,Volumes!$B$4:$H$4,0),FALSE),0)","v":0},{"$f":"IFERROR(VLOOKUP($B50,Volumes!$B$4:$H$33,MATCH(AC$11,Volumes!$B$4:$H$4,0),FALSE),0)","v":0},{"$f":"IFERROR(VLOOKUP($B50,Volumes!$B$4:$H$33,MATCH(AD$11,Volumes!$B$4:$H$4,0),FALSE),0)","v":0},{"$f":"IFERROR(VLOOKUP($B50,Volumes!$B$4:$H$33,MATCH(AE$11,Volumes!$B$4:$H$4,0),FALSE),0)","v":0},{"$f":"IFERROR(VLOOKUP($B50,Volumes!$B$4:$H$33,MATCH(AF$11,Volumes!$B$4:$H$4,0),FALSE),0)","v":0},null,null,null,null,null,null,49.729754041303103,48.061962081349691,46.577363590965042,45.138623250814092,43.864172001009401,null,null,null,null,null,null,50.948108721337583,50.445799307148903,50.085287327229274,49.727351753857882,49.507239857360794,null,null,null,null,null,null,null,0,0,0,0,0,null,null,null,null,null,null,null,0,0,0,0,0,0,0,0,0,0]
[null,{"$f":"Inputs!$C108","v":"25W LED Decorative - Top Entry"},"Not Offered",{"$f":"IF($C51=\"NA\",\"\",'Unsmoothed Prices'!D49)","v":12.349},{"$f":"IF($C51=\"NA\",\"\",'Unsmoothed Prices'!E49)","v":13.587364492159319},13.167660844205395,12.760921531771245,12.366746096113449,11.984746448363225,null,null,null,null,null,null,null,13.920248284518467,13.820766933465451,13.72199652800802,13.623931987358324,13.526568267038469,null,null,null,null,null,null,{"$f":"IFERROR(VLOOKUP($B51,Volumes!$B$4:$H$33,MATCH(AB$11,Volumes!$B$4:$H$4,0),FALSE),0)","v":0},{"$f":"IFERROR(VLOOKUP($B51,Volumes!$B$4:$H$33,MATCH(AC$11,Volumes!$B$4:$H$4,0),FALSE),0)","v":0},{"$f":"IFERROR(VLOOKUP($B51,Volumes!$B$4:$H$33,MATCH(AD$11,Volumes!$B$4:$H$4,0),FALSE),0)","v":0},{"$f":"IFERROR(VLOOKUP($B51,Volumes!$B$4:$H$33,MATCH(AE$11,Volumes!$B$4:$H$4,0),FALSE),0)","v":0},{"$f":"IFERROR(VLOOKUP($B51,Volumes!$B$4:$H$33,MATCH(AF$11,Volumes!$B$4:$H$4,0),FALSE),0)","v":0},null,null,null,null,null,null,49.729754041303103,48.061962081349691,46.577363590965042,45.138623250814092,43.864172001009401,null,null,null,null,null,null,50.948108721337583,50.445799307148903,50.085287327229274,49.727351753857882,49.507239857360794,null,null,null,null,null,null,null,0,0,0,0,0,null,null,null,null,null,null,null,0,0,0,0,0,0,0,0,0,0]
[null,{"$f":"Inputs!$C109","v":"30W LED"},"Offered",{"$f":"IF($C52=\"NA\",\"\",'Unsmoothed Prices'!D50)","v":12.349},{"$f":"IF($C52=\"NA\",\"\",'Unsmoothed Prices'!E50)","v":13.587364492159319},13.167660844205395,12.760921531771245,12.366746096113449,11.984746448363225,null,null,null,null,null,null,null,13.920248284518467,13.820766933465451,13.72199652800802,13.623931987358324,13.526568267038469,null,null,null,null,null,null,{"$f":"IFERROR(VLOOKUP($B52,Volumes!$B$4:$H$33,MATCH(AB$11,Volumes!$B$4:$H$4,0),FALSE),0)","v":32},{"$f":"IFERROR(VLOOKUP($B52,Volumes!$B$4:$H$33,MATCH(AC$11,Volumes!$B$4:$H$4,0),FALSE),0)","v":32},{"$f":"IFERROR(VLOOKUP($B52,Volumes!$B$4:$H$33,MATCH(AD$11,Volumes!$B$4:$H$4,0),FALSE),0)","v":32},{"$f":"IFERROR(VLOOKUP($B52,Volumes!$B$4:$H$33,MATCH(AE$11,Volumes!$B$4:$H$4,0),FALSE),0)","v":32},{"$f":"IFERROR(VLOOKUP($B52,Volumes!$B$4:$H$33,MATCH(AF$11,Volumes!$B$4:$H$4,0),FALSE),0)","v":32},null,null,null,null,null,null,49.729754041303103,48.061962081349691,46.577363590965042,45.138623250814092,43.864172001009401,null,null,null,null,null,null,50.948108721337583,50.445799307148903,50.085287327229274,49.727351753857882,49.507239857360794,null,null,null,null,null,null,null,1591.3521293216993,1537.9827866031901,1490.4756349108814,1444.4359440260509,1403.6535040323008,null,null,null,null,null,null,null,1630.3394790828027,1614.2655778287649,1602.7291944713368,1591.2752561234522,1584.2316754355454,0,0,0,0,0]
[null,{"$f":"Inputs!$C110","v":"88 LED Light"},"Not Offered",{"$f":"IF($C53=\"NA\",\"\",'Unsmoothed Prices'!D51)","v":12.349},{"$f":"IF($C53=\"NA\",\"\",'Unsmoothed Prices'!E51)","v":13.587364492159319},13.167660844205395,12.760921531771245,12.366746096113449,11.984746448363225,null,null,null,null,null,null,null,13.920248284518467,13.820766933465451,13.72199652800802,13.623931987358324,13.526568267038469,null,null,null,null,null,null,{"$f":"IFERROR(VLOOKUP($B53,Volumes!$B$4:$H$33,MATCH(AB$11,Volumes!$B$4:$H$4,0),FALSE),0)","v":0},{"$f":"IFERROR(VLOOKUP($B53,Volumes!$B$4:$H$33,MATCH(AC$11,Volumes!$B$4:$H$4,0),FALSE),0)","v":0},{"$f":"IFERROR(VLOOKUP($B53,Volumes!$B$4:$H$33,MATCH(AD$11,Volumes!$B$4:$H$4,0),FALSE),0)","v":0},{"$f":"IFERROR(VLOOKUP($B53,Volumes!$B$4:$H$33,MATCH(AE$11,Volumes!$B$4:$H$4,0),FALSE),0)","v":0},{"$f":"IFERROR(VLOOKUP($B53,Volumes!$B$4:$H$33,MATCH(AF$11,Volumes!$B$4:$H$4,0),FALSE),0)","v":0},null,null,null,null,null,null,49.729754041303103,48.061962081349691,46.577363590965042,45.138623250814092,43.864172001009401,null,null,null,null,null,null,50.948108721337583,50.445799307148903,50.085287327229274,49.727351753857882,49.507239857360794,null,null,null,null,null,null,null,0,0,0,0,0,null,null,null,null,null,null,null,0,0,0,0,0,0,0,0,0,0]
[null,{"$f":"Inputs!$C111","v":"100W Metal Halide"},"Offered",{"$f":"IF($C54=\"NA\",\"\",'Unsmoothed Prices'!D52)","v":22.556000000000001},{"$f":"IF($C54=\"NA\",\"\",'Unsmoothed Prices'!E52)","v":23.267865765503505},22.549138587210809,21.852612360308438,21.177601313814691,20.523440859706692,null,null,null,null,null,null,null,23.83791710994149,23.667558927248429,23.498418212938894,23.330486266349137,23.163754448994879,null,null,null,null,null,null,{"$f":"IFERROR(VLOOKUP($B54,Volumes!$B$4:$H$33,MATCH(AB$11,Volumes!$B$4:$H$4,0),FALSE),0)","v":5},{"$f":"IFERROR(VLOOKUP($B54,Volumes!$B$4:$H$33,MATCH(AC$11,Volumes!$B$4:$H$4,0),FALSE),0)","v":5},{"$f":"IFERROR(VLOOKUP($B54,Volumes!$B$4:$H$33,MATCH(AD$11,Volumes!$B$4:$H$4,0),FALSE),0)","v":5},{"$f":"IFERROR(VLOOKUP($B54,Volumes!$B$4:$H$33,MATCH(AE$11,Volumes!$B$4:$H$4,0),FALSE),0)","v":5},{"$f":"IFERROR(VLOOKUP($B54,Volumes!$B$4:$H$33,MATCH(AF$11,Volumes!$B$4:$H$4,0),FALSE),0)","v":5},null,null,null,null,null,null,85.160388701742832,82.304355843319442,79.762035115125798,77.298244795423628,75.11579354652649,null,null,null,null,null,null,87.246776622385866,86.38659008445677,85.769226477226965,85.15627487217435,84.779341283321259,null,null,null,null,null,null,null,425.80194350871415,411.52177921659722,398.81017557562899,386.49122397711812,375.57896773263246,null,null,null,null,null,null,null,436.23388311192934,431.93295042228385,428.84613238613485,425.78137436087172,423.89670641660632]
[null,{"$f":"Inputs!$C112","v":"150W Metal Halide"},"Offered",{"$f":"IF($C55=\"NA\",\"\",'Unsmoothed Prices'!D53)","v":22.702999999999999},{"$f":"IF($C55=\"NA\",\"\",'Unsmoothed Prices'!E53)","v":23.410901644973752},22.687756194069276,21.986948171730955,21.307787591297977,20.649605779287583,null,null,null,null,null,null,null,23.984457298582878,23.81305186330842,23.642871380630385,23.473907096398932,23.306150319025942,null,null,null,null,null,null,{"$f":"IFERROR(VLOOKUP($B55,Volumes!$B$4:$H$33,MATCH(AB$11,Volumes!$B$4:$H$4,0),FALSE),0)","v":27},{"$f":"IFERROR(VLOOKUP($B55,Volumes!$B$4:$H$33,MATCH(AC$11,Volumes!$B$4:$H$4,0),FALSE),0)","v":27},{"$f":"IFERROR(VLOOKUP($B55,Volumes!$B$4:$H$33,MATCH(AD$11,Volumes!$B$4:$H$4,0),FALSE),0)","v":27},{"$f":"IFERROR(VLOOKUP($B55,Volumes!$B$4:$H$33,MATCH(AE$11,Volumes!$B$4:$H$4,0),FALSE),0)","v":27},{"$f":"IFERROR(VLOOKUP($B55,Volumes!$B$4:$H$33,MATCH(AF$11,Volumes!$B$4:$H$4,0),FALSE),0)","v":27},null,null,null,null,null,null,85.683900020603929,82.810310108352866,80.252360826817991,77.773424708237613,75.577557152192554,null,null,null,null,null,null,87.783113712813332,86.917639301075738,86.296480539300902,85.679760901856099,85.300510167634954,null,null,null,null,null,null,null,{"$f":"IFERROR(AM55*AB55,0)","v":2313.4653005563059},2235.8783729255274,2166.813742324086,2099.8824671224156,2040.594043109199,null,null,null,null,null,null,null,2370.1440702459599,2346.776261129045,2330.0049745611245,2313.3535443501146,2303.113774526144]
[null,{"$f":"Inputs!$C113","v":"250W Metal Halide"},"Offered",{"$f":"IF($C56=\"NA\",\"\",'Unsmoothed Prices'!D54)","v":22.702999999999999},{"$f":"IF($C56=\"NA\",\"\",'Unsmoothed Prices'!E54)","v":23.410901644973752},22.687756194069276,21.986948171730955,21.307787591297977,20.649605779287583,null,null,null,null,null,null,null,23.984457298582878,23.81305186330842,23.642871380630385,23.473907096398932,23.306150319025942,null,null,null,null,null,null,{"$f":"IFERROR(VLOOKUP($B56,Volumes!$B$4:$H$33,MATCH(AB$11,Volumes!$B$4:$H$4,0),FALSE),0)","v":40},{"$f":"IFERROR(VLOOKUP($B56,Volumes!$B$4:$H$33,MATCH(AC$11,Volumes!$B$4:$H$4,0),FALSE),0)","v":40},{"$f":"IFERROR(VLOOKUP($B56,Volumes!$B$4:$H$33,MATCH(AD$11,Volumes!$B$4:$H$4,0),FALSE),0)","v":40},{"$f":"IFERROR(VLOOKUP($B56,Volumes!$B$4:$H$33,MATCH(AE$11,Volumes!$B$4:$H$4,0),FALSE),0)","v":40},{"$f":"IFERROR(VLOOKUP($B56,Volumes!$B$4:$H$33,MATCH(AF$11,Volumes!$B$4:$H$4,0),FALSE),0)","v":40},null,null,null,null,null,null,85.683900020603929,82.810310108352866,80.252360826817991,77.773424708237613,75.577557152192554,null,null,null,null,null,null,87.783113712813332,86.917639301075738,86.296480539300902,85.679760901856099,85.300510167634954,null,null,null,null,null,null,null,3427.356000824157,3312.4124043341144,3210.0944330727198,3110.9369883295044,3023.1022860877019,null,null,null,null,null,null,null,3511.3245485125335,3476.7055720430294,3451.8592215720359,3427.1904360742437,3412.0204067053983]
[null,{"$f":"Inputs!$C114","v":"400W Metal Halide"},"Offered",{"$f":"IF($C57=\"NA\",\"\",'Unsmoothed Prices'!D55)","v":23.408000000000001},{"$f":"IF($C57=\"NA\",\"\",'Unsmoothed Prices'!E55)","v":24.094759316893558},23.350490007881675,22.629210627802124,21.93021103473999,21.252803022539307,null,null,null,null,null,null,null,24.685069149386596,24.508656776587959,24.333505138571471,24.159605225469146,23.986948091802198,null,null,null,null,null,null,{"$f":"IFERROR(VLOOKUP($B57,Volumes!$B$4:$H$33,MATCH(AB$11,Volumes!$B$4:$H$4,0),FALSE),0)","v":9},{"$f":"IFERROR(VLOOKUP($B57,Volumes!$B$4:$H$33,MATCH(AC$11,Volumes!$B$4:$H$4,0),FALSE),0)","v":9},{"$f":"IFERROR(VLOOKUP($B57,Volumes!$B$4:$H$33,MATCH(AD$11,Volumes!$B$4:$H$4,0),FALSE),0)","v":9},{"$f":"IFERROR(VLOOKUP($B57,Volumes!$B$4:$H$33,MATCH(AE$11,Volumes!$B$4:$H$4,0),FALSE),0)","v":9},{"$f":"IFERROR(VLOOKUP($B57,Volumes!$B$4:$H$33,MATCH(AF$11,Volumes!$B$4:$H$4,0),FALSE),0)","v":9},null,null,null,null,null,null,88.18681909983043,85.229288528768123,82.596618791477752,80.045270276800963,77.785259062493864,null,null,null,null,null,null,90.347353086754936,89.456597234546038,88.817293755785869,88.182559072962377,87.79223001599604,null,null,null,null,null,null,null,793.68137189847391,767.06359675891315,743.36956912329981,720.40743249120862,700.06733156244479,null,null,null,null,null,null,null,813.12617778079448,805.10937511091436,799.35564380207279,793.64303165666138,790.1300701439643]
[null,{"$f":"Inputs!$C115","v":"70W Metal Halide"},"Old light no volumes",{"$f":"IF($C58=\"NA\",\"\",'Unsmoothed Prices'!D56)","v":18.95},{"$f":"IF($C58=\"NA\",\"\",'Unsmoothed Prices'!E56)","v":19.852753635961999},19.239516747546151,18.645222293424794,18.069285155801236,17.511138290735115,null,null,null,null,null,null,null,20.33913640157666,20.193782329786814,20.049467033968998,19.906183090488597,19.763923128764141,null,null,null,null,null,null,{"$f":"IFERROR(VLOOKUP($B58,Volumes!$B$4:$H$33,MATCH(AB$11,Volumes!$B$4:$H$4,0),FALSE),0)","v":0},{"$f":"IFERROR(VLOOKUP($B58,Volumes!$B$4:$H$33,MATCH(AC$11,Volumes!$B$4:$H$4,0),FALSE),0)","v":0},{"$f":"IFERROR(VLOOKUP($B58,Volumes!$B$4:$H$33,MATCH(AD$11,Volumes!$B$4:$H$4,0),FALSE),0)","v":0},{"$f":"IFERROR(VLOOKUP($B58,Volumes!$B$4:$H$33,MATCH(AE$11,Volumes!$B$4:$H$4,0),FALSE),0)","v":0},{"$f":"IFERROR(VLOOKUP($B58,Volumes!$B$4:$H$33,MATCH(AF$11,Volumes!$B$4:$H$4,0),FALSE),0)","v":0},null,null,null,null,null,null,72.661078307620926,70.224236128543453,68.055061371000505,65.952890818674518,64.090766144090523,null,null,null,null,null,null,74.441239229770574,73.707305503721869,73.180554673986848,72.657568280283371,72.335958651276755,null,null,null,null,null,null,null,0,0,0,0,0,null,null,null,null,null,null,null,0,0,0,0,0]
[null,{"$f":"Inputs!$C116","v":"250W Metal Halide - Flood Light"},"Old light no volumes",{"$f":"IF($C59=\"NA\",\"\",'Unsmoothed Prices'!D57)","v":22.702999999999999},{"$f":"IF($C59=\"NA\",\"\",'Unsmoothed Prices'!E57)","v":23.410901644973752},22.687756194069276,21.986948171730955,21.307787591297977,20.649605779287583,null,null,null,null,null,null,null,23.984457298582878,23.81305186330842,23.642871380630385,23.473907096398932,23.306150319025942,null,null,null,null,null,null,{"$f":"IFERROR(VLOOKUP($B59,Volumes!$B$4:$H$33,MATCH(AB$11,Volumes!$B$4:$H$4,0),FALSE),0)","v":0},{"$f":"IFERROR(VLOOKUP($B59,Volumes!$B$4:$H$33,MATCH(AC$11,Volumes!$B$4:$H$4,0),FALSE),0)","v":0},{"$f":"IFERROR(VLOOKUP($B59,Volumes!$B$4:$H$33,MATCH(AD$11,Volumes!$B$4:$H$4,0),FALSE),0)","v":0},{"$f":"IFERROR(VLOOKUP($B59,Volumes!$B$4:$H$33,MATCH(AE$11,Volumes!$B$4:$H$4,0),FALSE),0)","v":0},{"$f":"IFERROR(VLOOKUP($B59,Volumes!$B$4:$H$33,MATCH(AF$11,Volumes!$B$4:$H$4,0),FALSE),0)","v":0},null,null,null,null,null,null,85.683900020603929,82.810310108352866,80.252360826817991,77.773424708237613,75.577557152192554,null,null,null,null,null,null,87.783113712813332,86.917639301075738,86.296480539300902,85.679760901856099,85.300510167634954,null,null,null,null,null,null,null,0,0,0,0,0,null,null,null,null,null,null,null,0,0,0,0,0]
[null,{"$f":"Inputs!$C117","v":"400W Metal Halide - Flood Light"},"Old light no volumes",{"$f":"IF($C60=\"NA\",\"\",'Unsmoothed Prices'!D58)","v":23.408000000000001},{"$f":"IF($C60=\"NA\",\"\",'Unsmoothed Prices'!E58)","v":24.094759316893558},23.350490007881675,22.629210627802124,21.93021103473999,21.252803022539307,null,null,null,null,null,null,null,24.685069149386596,24.508656776587959,24.333505138571471,24.159605225469146,23.986948091802198,null,null,null,null,null,null,{"$f":"IFERROR(VLOOKUP($B60,Volumes!$B$4:$H$33,MATCH(AB$11,Volumes!$B$4:$H$4,0),FALSE),0)","v":0},{"$f":"IFERROR(VLOOKUP($B60,Volumes!$B$4:$H$33,MATCH(AC$11,Volumes!$B$4:$H$4,0),FALSE),0)","v":0},{"$f":"IFERROR(VLOOKUP($B60,Volumes!$B$4:$H$33,MATCH(AD$11,Volumes!$B$4:$H$4,0),FALSE),0)","v":0},{"$f":"IFERROR(VLOOKUP($B60,Volumes!$B$4:$H$33,MATCH(AE$11,Volumes!$B$4:$H$4,0),FALSE),0)","v":0},{"$f":"IFERROR(VLOOKUP($B60,Volumes!$B$4:$H$33,MATCH(AF$11,Volumes!$B$4:$H$4,0),FALSE),0)","v":0},null,null,null,null,null,null,88.18681909983043,85.229288528768123,82.596618791477752,80.045270276800963,77.785259062493864,null,null,null,null,null,null,90.347353086754936,89.456597234546038,88.817293755785869,88.182559072962377,87.79223001599604,null,null,null,null,null,null,null,0,0,0,0,0,null,null,null,null,null,null,null,0,0,0,0,0]
[null,{"$f":"Inputs!$C118","v":"125W Mercury Vapour"},"Obsolete, no new Connections",{"$f":"IF($C61=\"NA\",\"\",'Unsmoothed Prices'!D59)","v":21.646000000000001},{"$f":"IF($C61=\"NA\",\"\",'Unsmoothed Prices'!E59)","v":22.384593108336855},21.693149569676017,21.023064210940181,20.37367729373539,19.744349458499123,null,null,null,null,null,null,null,22.933004704170582,22.769113497272112,22.606393542376821,22.444836469107305,22.28443396690524,null,null,null,null,null,null,{"$f":"IFERROR(VLOOKUP($B61,Volumes!$B$4:$H$33,MATCH(AB$11,Volumes!$B$4:$H$4,0),FALSE),0)","v":314},{"$f":"IFERROR(VLOOKUP($B61,Volumes!$B$4:$H$33,MATCH(AC$11,Volumes!$B$4:$H$4,0),FALSE),0)","v":307},{"$f":"IFERROR(VLOOKUP($B61,Volumes!$B$4:$H$33,MATCH(AD$11,Volumes!$B$4:$H$4,0),FALSE),0)","v":301},{"$f":"IFERROR(VLOOKUP($B61,Volumes!$B$4:$H$33,MATCH(AE$11,Volumes!$B$4:$H$4,0),FALSE),0)","v":295},{"$f":"IFERROR(VLOOKUP($B61,Volumes!$B$4:$H$33,MATCH(AF$11,Volumes!$B$4:$H$4,0),FALSE),0)","v":289},null,null,null,null,null,null,81.927610776512878,79.179995929317457,76.734184369931668,74.36392212213417,72.264319018106789,null,null,null,null,null,null,83.934797217264332,83.107264265043213,82.513336429675405,81.923653112241666,81.561028318873184,null,null,null,null,null,null,null,25725.269783825042,24308.258750300458,23096.989495349433,21937.357026029582,20884.388196232863,null,null,null,null,null,null,null,26355.526326220999,25513.930129368266,24836.514265332298,24167.477668111293,23571.137184154351]
[null,{"$f":"Inputs!$C119","v":"250W Mercury Vapour"},"Obsolete, no new Connections",{"$f":"IF($C62=\"NA\",\"\",'Unsmoothed Prices'!D60)","v":21.646000000000001},{"$f":"IF($C62=\"NA\",\"\",'Unsmoothed Prices'!E60)","v":22.384593108336855},21.693149569676017,21.023064210940181,20.37367729373539,19.744349458499123,null,null,null,null,null,null,null,22.933004704170582,22.769113497272112,22.606393542376821,22.444836469107305,22.28443396690524,null,null,null,null,null,null,{"$f":"IFERROR(VLOOKUP($B62,Volumes!$B$4:$H$33,MATCH(AB$11,Volumes!$B$4:$H$4,0),FALSE),0)","v":27},{"$f":"IFERROR(VLOOKUP($B62,Volumes!$B$4:$H$33,MATCH(AC$11,Volumes!$B$4:$H$4,0),FALSE),0)","v":27},{"$f":"IFERROR(VLOOKUP($B62,Volumes!$B$4:$H$33,MATCH(AD$11,Volumes!$B$4:$H$4,0),FALSE),0)","v":26},{"$f":"IFERROR(VLOOKUP($B62,Volumes!$B$4:$H$33,MATCH(AE$11,Volumes!$B$4:$H$4,0),FALSE),0)","v":26},{"$f":"IFERROR(VLOOKUP($B62,Volumes!$B$4:$H$33,MATCH(AF$11,Volumes!$B$4:$H$4,0),FALSE),0)","v":25},null,null,null,null,null,null,81.927610776512878,79.179995929317457,76.734184369931668,74.36392212213417,72.264319018106789,null,null,null,null,null,null,83.934797217264332,83.107264265043213,82.513336429675405,81.923653112241666,81.561028318873184,null,null,null,null,null,null,null,2212.0454909658479,2137.8598900915713,1995.0887936182235,1933.4619751754885,1806.6079754526697,null,null,null,null,null,null,null,2266.2395248661369,2243.8961351561666,2145.3467471715603,2130.0149809182835,2039.0257079718297]
[null,{"$f":"Inputs!$C120","v":0},"NA",{"$f":"IF($C63=\"NA\",\"\",'Unsmoothed Prices'!D61)","v":""},{"$f":"IF($C63=\"NA\",\"\",'Unsmoothed Prices'!E61)","v":""},{"$f":"IF($C63=\"NA\",\"\",E63*(1-F$9))","v":""},"","","",null,null,null,null,null,null,null,"","","","","",null,null,null,null,null,null,{"$f":"IFERROR(VLOOKUP($B63,Volumes!$B$4:$H$33,MATCH(AB$11,Volumes!$B$4:$H$4,0),FALSE),0)","v":0},{"$f":"IFERROR(VLOOKUP($B63,Volumes!$B$4:$H$33,MATCH(AC$11,Volumes!$B$4:$H$4,0),FALSE),0)","v":0},{"$f":"IFERROR(VLOOKUP($B63,Volumes!$B$4:$H$33,MATCH(AD$11,Volumes!$B$4:$H$4,0),FALSE),0)","v":0},{"$f":"IFERROR(VLOOKUP($B63,Volumes!$B$4:$H$33,MATCH(AE$11,Volumes!$B$4:$H$4,0),FALSE),0)","v":0},{"$f":"IFERROR(VLOOKUP($B63,Volumes!$B$4:$H$33,MATCH(AF$11,Volumes!$B$4:$H$4,0),FALSE),0)","v":0},null,null,null,null,null,null,"","","","","",null,null,null,null,null,null,"","","","","",null,null,null,null,null,null,null,0,0,0,0,0,null,null,null,null,null,null,null,0,0,0,0,0]
[null,{"$f":"Inputs!$C121","v":"400W Mercury Vapour"},"Obsolete, no new Connections",{"$f":"IF($C64=\"NA\",\"\",'Unsmoothed Prices'!D62)","v":21.798999999999999},{"$f":"IF($C64=\"NA\",\"\",'Unsmoothed Prices'!E62)","v":22.533893332893388},{"$f":"IF($C64=\"NA\",\"\",E64*(1-F$9))","v":21.837838020630475},21.163283342570981,20.509565160013565,19.87603984901056,null,null,null,null,null,null,null,23.085962711292609,22.920978386736191,22.75717312617159,22.594538503392858,22.43306615241211,null,null,null,null,null,null,{"$f":"IFERROR(VLOOKUP($B64,Volumes!$B$4:$H$33,MATCH(AB$11,Volumes!$B$4:$H$4,0),FALSE),0)","v":21},{"$f":"IFERROR(VLOOKUP($B64,Volumes!$B$4:$H$33,MATCH(AC$11,Volumes!$B$4:$H$4,0),FALSE),0)","v":20},{"$f":"IFERROR(VLOOKUP($B64,Volumes!$B$4:$H$33,MATCH(AD$11,Volumes!$B$4:$H$4,0),FALSE),0)","v":20},{"$f":"IFERROR(VLOOKUP($B64,Volumes!$B$4:$H$33,MATCH(AE$11,Volumes!$B$4:$H$4,0),FALSE),0)","v":20},{"$f":"IFERROR(VLOOKUP($B64,Volumes!$B$4:$H$33,MATCH(AF$11,Volumes!$B$4:$H$4,0),FALSE),0)","v":19},null,null,null,null,null,null,82.474049598389797,79.708108775301241,77.245984200384086,74.85991283404951,72.74630584737865,null,null,null,null,null,null,84.494623523330958,83.661571111587094,83.063681910526299,82.470065537383931,82.105022117828327,null,null,null,null,null,null,null,1731.9550415661856,1594.1621755060248,1544.9196840076818,1497.1982566809902,1382.1798111001945,null,null,null,null,null,null,null,1774.38709398995,1673.2314222317418,1661.2736382105259,1649.4013107476785,1559.9954202387382]
[null,{"$f":"Inputs!$C122","v":"50W Mercury Vapour"},"Obsolete, no new Connections",{"$f":"IF($C65=\"NA\",\"\",'Unsmoothed Prices'!D63)","v":18.088000000000001},{"$f":"IF($C65=\"NA\",\"\",'Unsmoothed Prices'!E63)","v":19.015419509428131},{"$f":"IF($C65=\"NA\",\"\",E65*(1-F$9))","v":18.428047253381965},17.858818492250634,17.307172786884458,16.772567009684916,null,null,null,null,null,null,null,19.481287997997146,19.34206455810714,19.203836081497627,19.066595457642325,18.93033562683047,null,null,null,null,null,null,{"$f":"IFERROR(VLOOKUP($B65,Volumes!$B$4:$H$33,MATCH(AB$11,Volumes!$B$4:$H$4,0),FALSE),0)","v":141},{"$f":"IFERROR(VLOOKUP($B65,Volumes!$B$4:$H$33,MATCH(AC$11,Volumes!$B$4:$H$4,0),FALSE),0)","v":130},{"$f":"IFERROR(VLOOKUP($B65,Volumes!$B$4:$H$33,MATCH(AD$11,Volumes!$B$4:$H$4,0),FALSE),0)","v":127},{"$f":"IFERROR(VLOOKUP($B65,Volumes!$B$4:$H$33,MATCH(AE$11,Volumes!$B$4:$H$4,0),FALSE),0)","v":115},{"$f":"IFERROR(VLOOKUP($B65,Volumes!$B$4:$H$33,MATCH(AF$11,Volumes!$B$4:$H$4,0),FALSE),0)","v":108},null,null,null,null,null,null,69.596435404506963,67.262372474844184,65.184687496714815,63.171180672128266,61.387595255446797,null,null,null,null,null,null,71.301514072669548,70.598535637091061,70.094001697466339,69.593073420394489,69.285028394199514,null,null,null,null,null,null,null,9813.0973920354809,8744.1084217297448,8278.4553120827823,7264.6857772947506,6629.8602875882543,null,null,null,null,null,null,null,10053.513484246407,9177.809632821838,8901.9382155782259,8003.2034433453664,7482.7830665735473]
[null,{"$f":"Inputs!$C123","v":"80W Mercury Vapour Art decorative"},"Old light no volumes",{"$f":"IF($C66=\"NA\",\"\",'Unsmoothed Prices'!D64)","v":18.056000000000001},{"$f":"IF($C66=\"NA\",\"\",'Unsmoothed Prices'!E64)","v":18.985141841511069},{"$f":"IF($C66=\"NA\",\"\",E66*(1-F$9))","v":18.398704840251337},17.83038244457725,17.279615107709155,16.745860566853917,null,null,null,null,null,null,null,19.450268542007361,19.311266783320711,19.17325840366512,19.036236303836155,18.900193435364031,null,null,null,null,null,null,{"$f":"IFERROR(VLOOKUP($B66,Volumes!$B$4:$H$33,MATCH(AB$11,Volumes!$B$4:$H$4,0),FALSE),0)","v":0},{"$f":"IFERROR(VLOOKUP($B66,Volumes!$B$4:$H$33,MATCH(AC$11,Volumes!$B$4:$H$4,0),FALSE),0)","v":0},{"$f":"IFERROR(VLOOKUP($B66,Volumes!$B$4:$H$33,MATCH(AD$11,Volumes!$B$4:$H$4,0),FALSE),0)","v":0},{"$f":"IFERROR(VLOOKUP($B66,Volumes!$B$4:$H$33,MATCH(AE$11,Volumes!$B$4:$H$4,0),FALSE),0)","v":0},{"$f":"IFERROR(VLOOKUP($B66,Volumes!$B$4:$H$33,MATCH(AF$11,Volumes!$B$4:$H$4,0),FALSE),0)","v":0},null,null,null,null,null,null,69.48561913993052,67.155272666917384,65.080895922706958,63.070595143138419,61.289849674685335,null,null,null,null,null,null,71.187982863746939,70.486123759120588,69.982393173377687,69.48226250900197,69.174707973432348,null,null,null,null,null,null,null,0,0,0,0,0,null,null,null,null,null,null,null,0,0,0,0,0]
[null,{"$f":"Inputs!$C124","v":"80W Mercury Vapour"},"Obsolete, no new Connections",{"$f":"IF($C67=\"NA\",\"\",'Unsmoothed Prices'!D65)","v":18.056000000000001},{"$f":"IF($C67=\"NA\",\"\",'Unsmoothed Prices'!E65)","v":18.985141841511069},{"$f":"IF($C67=\"NA\",\"\",E67*(1-F$9))","v":18.398704840251337},17.83038244457725,17.279615107709155,16.745860566853917,null,null,null,null,null,null,null,19.450268542007361,19.311266783320711,19.17325840366512,19.036236303836155,18.900193435364031,null,null,null,null,null,null,{"$f":"IFERROR(VLOOKUP($B67,Volumes!$B$4:$H$33,MATCH(AB$11,Volumes!$B$4:$H$4,0),FALSE),0)","v":280},{"$f":"IFERROR(VLOOKUP($B67,Volumes!$B$4:$H$33,MATCH(AC$11,Volumes!$B$4:$H$4,0),FALSE),0)","v":260},{"$f":"IFERROR(VLOOKUP($B67,Volumes!$B$4:$H$33,MATCH(AD$11,Volumes!$B$4:$H$4,0),FALSE),0)","v":240},{"$f":"IFERROR(VLOOKUP($B67,Volumes!$B$4:$H$33,MATCH(AE$11,Volumes!$B$4:$H$4,0),FALSE),0)","v":230},{"$f":"IFERROR(VLOOKUP($B67,Volumes!$B$4:$H$33,MATCH(AF$11,Volumes!$B$4:$H$4,0),FALSE),0)","v":220},null,null,null,null,null,null,69.48561913993052,67.155272666917384,65.080895922706958,63.070595143138419,61.289849674685335,null,null,null,null,null,null,71.187982863746939,70.486123759120588,69.982393173377687,69.48226250900197,69.174707973432348,null,null,null,null,null,null,null,19455.973359180545,17460.370893398518,15619.415021449669,14506.236882921836,13483.766928430774,null,null,null,null,null,null,null,19932.635201849142,18326.392177371352,16795.774361610645,15980.920377070453,15218.435754155116]
[null,{"$f":"Inputs!$C125","v":"14W LED"},"Offered",{"$f":"IF($C68=\"NA\",\"\",'Unsmoothed Prices'!D66)","v":{"$error":"#N/A"}},{"$f":"IF($C68=\"NA\",\"\",'Unsmoothed Prices'!E66)","v":13.746061234345289},{"$f":"IF($C68=\"NA\",\"\",E68*(1-F$9))","v":13.321455561303845},12.909965643714479,12.511186345583962,12.124725045270495,null,null,null,null,null,null,null,14.082833019361466,13.982189753035664,13.882265735957708,13.783055827997519,13.684554925759064,null,null,null,null,null,null,{"$f":"IFERROR(VLOOKUP($B68,Volumes!$B$4:$H$33,MATCH(AB$11,Volumes!$B$4:$H$4,0),FALSE),0)","v":13129},{"$f":"IFERROR(VLOOKUP($B68,Volumes!$B$4:$H$33,MATCH(AC$11,Volumes!$B$4:$H$4,0),FALSE),0)","v":14029},{"$f":"IFERROR(VLOOKUP($B68,Volumes!$B$4:$H$33,MATCH(AD$11,Volumes!$B$4:$H$4,0),FALSE),0)","v":14059},{"$f":"IFERROR(VLOOKUP($B68,Volumes!$B$4:$H$33,MATCH(AE$11,Volumes!$B$4:$H$4,0),FALSE),0)","v":14089},{"$f":"IFERROR(VLOOKUP($B68,Volumes!$B$4:$H$33,MATCH(AF$11,Volumes!$B$4:$H$4,0),FALSE),0)","v":14129},null,null,null,null,null,null,50.310584117703755,48.623312798759031,47.121374599557846,45.665830161381464,44.376493665690013,null,null,null,null,null,null,51.543168850862969,51.034992598580175,50.670269936245631,50.308153772190941,50.085471028278178,null,null,null,null,null,null,null,660527.65888133261,682136.45525379048,662479.40549518378,643385.88114370347,626995.47900253418,null,null,null,null,null,null,null,676710.26384297991,715969.91116548132,712373.32503367728,708791.57849639817,707657.62015854241]
[null,{"$f":"Inputs!$C126","v":"New technology - Minor"},"Offered",{"$f":"IF($C69=\"NA\",\"\",'Unsmoothed Prices'!D67)","v":{"$error":"#N/A"}},{"$f":"IF($C69=\"NA\",\"\",'Unsmoothed Prices'!E67)","v":13.746061234345289},{"$f":"IF($C69=\"NA\",\"\",E69*(1-F$9))","v":13.321455561303845},12.909965643714479,12.511186345583962,12.124725045270495,null,null,null,null,null,null,null,14.082833019361466,13.982189753035664,13.882265735957708,13.783055827997519,13.684554925759064,null,null,null,null,null,null,{"$f":"IFERROR(VLOOKUP($B69,Volumes!$B$4:$H$33,MATCH(AB$11,Volumes!$B$4:$H$4,0),FALSE),0)","v":0},{"$f":"IFERROR(VLOOKUP($B69,Volumes!$B$4:$H$33,MATCH(AC$11,Volumes!$B$4:$H$4,0),FALSE),0)","v":0},{"$f":"IFERROR(VLOOKUP($B69,Volumes!$B$4:$H$33,MATCH(AD$11,Volumes!$B$4:$H$4,0),FALSE),0)","v":0},{"$f":"IFERROR(VLOOKUP($B69,Volumes!$B$4:$H$33,MATCH(AE$11,Volumes!$B$4:$H$4,0),FALSE),0)","v":0},{"$f":"IFERROR(VLOOKUP($B69,Volumes!$B$4:$H$33,MATCH(AF$11,Volumes!$B$4:$H$4,0),FALSE),0)","v":0},null,null,null,null,null,null,50.310584117703755,48.623312798759031,47.121374599557846,45.665830161381464,44.376493665690013,null,null,null,null,null,null,51.543168850862969,51.034992598580175,50.670269936245631,50.308153772190941,50.085471028278178,null,null,null,null,null,null,null,0,0,0,0,0,null,null,null,null,null,null,null,0,0,0,0,0]
[null,{"$f":"Inputs!$C127","v":"New technology - Major"},"Offered",{"$f":"IF($C70=\"NA\",\"\",'Unsmoothed Prices'!D68)","v":{"$error":"#N/A"}},{"$f":"IF($C70=\"NA\",\"\",'Unsmoothed Prices'!E68)","v":14.515531622444369},{"$f":"IF($C70=\"NA\",\"\",E70*(1-F$9))","v":14.067157577761458},13.632633475965548,13.211531502556117,12.803437057906404,null,null,null,null,null,null,null,{"$f":"IF($C70=\"NA\",\"\",E70*Q$9)","v":14.87115505606733},14.764878029504393,14.659360513976912,14.554597081623083,14.450582343371435,null,null,null,null,null,null,{"$f":"IFERROR(VLOOKUP($B70,Volumes!$B$4:$H$33,MATCH(AB$11,Volumes!$B$4:$H$4,0),FALSE),0)","v":0},{"$f":"IFERROR(VLOOKUP($B70,Volumes!$B$4:$H$33,MATCH(AC$11,Volumes!$B$4:$H$4,0),FALSE),0)","v":0},{"$f":"IFERROR(VLOOKUP($B70,Volumes!$B$4:$H$33,MATCH(AD$11,Volumes!$B$4:$H$4,0),FALSE),0)","v":0},{"$f":"IFERROR(VLOOKUP($B70,Volumes!$B$4:$H$33,MATCH(AE$11,Volumes!$B$4:$H$4,0),FALSE),0)","v":0},{"$f":"IFERROR(VLOOKUP($B70,Volumes!$B$4:$H$33,MATCH(AF$11,Volumes!$B$4:$H$4,0),FALSE),0)","v":0},null,null,null,null,null,null,{"$f":"IF($C70=\"NA\",\"\",(E70*AM$9)/100)","v":53.126845738146393},51.345125158829326,49.759112187274248,48.22208998432982,46.860579631937433,null,null,null,null,null,null,{"$f":"IF($C70=\"NA\",\"\",(Q70*AX$9)/100)","v":54.428427505206429},53.891804807691031,53.506665876015731,53.124279347924251,52.889131376739449,null,null,null,null,null,null,null,0,0,0,0,0,null,null,null,null,null,null,null,{"$f":"IFERROR(AX70*AB70,0)","v":0},0,0,0,0]
[null,null,null,null,null,null,null,null,null,null,null,null,null,null,null,null,null,null,null,null,null,null,null,null,null,null,null,{"$f":"SUM(AB12:AB70)","v":19572},{"$f":"SUM(AC12:AC70)","v":20433},{"$f":"SUM(AD12:AD70)","v":20433},{"$f":"SUM(AE12:AE70)","v":20435},{"$f":"SUM(AF12:AF70)","v":20450},null,null,null,null,null,null,null,null,null,null,null,null,null,null,null,null,null,null,null,null,null,null,null,null,null,null,null,null,null,{"$f":"SUM(BJ12:BJ70)","v":1021604.0806099951},1028386.4596497358,995999.69186629145,964769.02869166597,937683.43415084493,null,null,null,null,null,null,null,{"$f":"SUM(BV12:BV70)","v":1046632.8815109556},1079393.6557536209,1071012.3308617575,1062846.0816007061,1058315.1708348989]
[null,null,null,null,null,null,null,null,null,null,null,null,null,null,null,null,null,null,null,null,null,null,null,null,null,null,null,{"$f":"Volumes!D34=AB71","v":true},{"$f":"Volumes!E34=AC71","v":true},{"$f":"Volumes!F34=AD71","v":true},{"$f":"Volumes!G34=AE71","v":true},{"$f":"Volumes!H34=AF71","v":true}]
[null,"Public Road Lights"]
[null,null,"Offered / No Longer Offered / NA",{"$f":"'Master Data'!J$34","v":"2018-19"},{"$f":"'Master Data'!K$34","v":"2019-20"},{"$f":"'Master Data'!L$34","v":"2020-21"},{"$f":"'Master Data'!M$34","v":"2021-22"},{"$f":"'Master Data'!N$34","v":"2022-23"},{"$f":"'Master Data'!O$34","v":"2023-24"},{"$f":"'Master Data'!P$34","v":"2024-25"},{"$f":"'Master Data'!Q$34","v":"2025-26"},{"$f":"'Master Data'!R$34","v":"2026-27"},{"$f":"'Master Data'!S$34","v":"2027-28"},{"$f":"'Master Data'!T$34","v":"2028-29"},null,null,{"$f":"Q11","v":"2019-20"},"2020-21","2021-22","2022-23","2023-24","2024-25","2025-26","2026-27","2027-28","2028-29",null,{"$f":"AB11","v":"2019-20"},{"$f":"AC11","v":"2020-21"},{"$f":"AD11","v":"2021-22"},{"$f":"AE11","v":"2022-23"},{"$f":"AF11","v":"2023-24"},{"$f":"AG11","v":"2024-25"},"2025-26","2026-27","2027-28","2028-29",null,{"$f":"'Master Data'!K$34","v":"2019-20"},{"$f":"'Master Data'!L$34","v":"2020-21"},{"$f":"'Master Data'!M$34","v":"2021-22"},{"$f":"'Master Data'!N$34","v":"2022-23"},{"$f":"'Master Data'!O$34","v":"2023-24"},{"$f":"'Master Data'!P$34","v":"2024-25"},{"$f":"'Master Data'!Q$34","v":"2025-26"},{"$f":"'Master Data'!R$34","v":"2026-27"},{"$f":"'Master Data'!S$34","v":"2027-28"},{"$f":"'Master Data'!T$34","v":"2028-29"},null,{"$f":"'Master Data'!K$34","v":"2019-20"},{"$f":"'Master Data'!L$34","v":"2020-21"},{"$f":"'Master Data'!M$34","v":"2021-22"},{"$f":"'Master Data'!N$34","v":"2022-23"},{"$f":"'Master Data'!O$34","v":"2023-24"},{"$f":"'Master Data'!P$34","v":"2024-25"},{"$f":"'Master Data'!Q$34","v":"2025-26"},{"$f":"'Master Data'!R$34","v":"2026-27"},{"$f":"'Master Data'!S$34","v":"2027-28"},{"$f":"'Master Data'!T$34","v":"2028-29"},null,null,{"$f":"'Master Data'!K$34","v":"2019-20"},{"$f":"'Master Data'!L$34","v":"2020-21"},{"$f":"'Master Data'!M$34","v":"2021-22"},{"$f":"'Master Data'!N$34","v":"2022-23"},{"$f":"'Master Data'!O$34","v":"2023-24"},{"$f":"'Master Data'!P$34","v":"2024-25"},{"$f":"'Master Data'!Q$34","v":"2025-26"},{"$f":"'Master Data'!R$34","v":"2026-27"},{"$f":"'Master Data'!S$34","v":"2027-28"},{"$f":"'Master Data'!T$34","v":"2028-29"},null,null,{"$f":"'Master Data'!K$34","v":"2019-20"},{"$f":"'Master Data'!L$34","v":"2020-21"},{"$f":"'Master Data'!M$34","v":"2021-22"},{"$f":"'Master Data'!N$34","v":"2022-23"},{"$f":"'Master Data'!O$34","v":"2023-24"},{"$f":"'Master Data'!P$34","v":"2024-25"},{"$f":"'Master Data'!Q$34","v":"2025-26"},{"$f":"'Master Data'!R$34","v":"2026-27"},{"$f":"'Master Data'!S$34","v":"2027-28"},{"$f":"'Master Data'!T$34","v":"2028-29"}]
[null,{"$f":"Inputs!$C69","v":"32W Compact Fluorescent"},"No Longer Offered",{"$f":"IF($C75=\"NA\",\"\",'Unsmoothed Prices'!D73)","v":36.021000000000001},{"$f":"IF($C75=\"NA\",\"\",'Unsmoothed Prices'!E73)","v":39.280575863570775},{"$f":"IF($C75=\"NA\",\"\",E75*(1-F$9))","v":38.067227903914215},36.891359366054218,35.751812538349185,34.647465470014566,null,null,null,null,null,null,null,{"$f":"IF($C75=\"NA\",\"\",E75*Q$9)","v":40.242930782882915},39.955333820329699,39.669792175599028,39.386291160318287,39.104816191085618,null,null,null,null,null,null,{"$f":"IFERROR(VLOOKUP($B75,Volumes!$B$39:$H$81,MATCH(AB$11,Volumes!$B$4:$H$4,0),FALSE),0)","v":0},{"$f":"IFERROR(VLOOKUP($B75,Volumes!$B$39:$H$81,MATCH(AC$11,Volumes!$B$4:$H$4,0),FALSE),0)","v":0},{"$f":"IFERROR(VLOOKUP($B75,Volumes!$B$39:$H$81,MATCH(AD$11,Volumes!$B$4:$H$4,0),FALSE),0)","v":0},{"$f":"IFERROR(VLOOKUP($B75,Volumes!$B$39:$H$81,MATCH(AE$11,Volumes!$B$4:$H$4,0),FALSE),0)","v":0},{"$f":"IFERROR(VLOOKUP($B75,Volumes!$B$39:$H$81,MATCH(AF$11,Volumes!$B$4:$H$4,0),FALSE),0)","v":0},null,null,null,null,null,null,{"$f":"IF($C75=\"NA\",\"\",(E75*AM$9)/100)","v":143.76690766066903},138.94538184928689,134.6534616860979,130.49411576497451,126.80972362025332,null,null,null,null,null,null,{"$f":"IF($C75=\"NA\",\"\",(Q75*AX$9)/100)","v":147.28912666535146},145.83696844420339,144.79474144093646,143.75996273516176,143.12362725937336,null,null,null,null,null,null,null,{"$f":"IFERROR(AM75*AB75,0)","v":0},0,0,0,0,null,null,null,null,null,null,null,{"$f":"IFERROR(AX75*AB75,0)","v":0},0,0,0,0]
[null,{"$f":"Inputs!$C70","v":"42W Compact Fluorescent"},"Offered",{"$f":"IF($C76=\"NA\",\"\",'Unsmoothed Prices'!D74)","v":36.046999999999997},{"$f":"IF($C76=\"NA\",\"\",'Unsmoothed Prices'!E74)","v":39.303545128887166},{"$f":"IF($C76=\"NA\",\"\",E76*(1-F$9))","v":38.089487665599513},36.912931540151263,35.772718363930444,34.667725530093257,null,null,null,null,null,null,null,40.266462783978611,39.978697649478015,39.692989034644377,39.409322242516069,39.127682681163606,null,null,null,null,null,null,{"$f":"IFERROR(VLOOKUP($B76,Volumes!$B$39:$H$81,MATCH(AB$11,Volumes!$B$4:$H$4,0),FALSE),0)","v":3513},{"$f":"IFERROR(VLOOKUP($B76,Volumes!$B$39:$H$81,MATCH(AC$11,Volumes!$B$4:$H$4,0),FALSE),0)","v":3470},{"$f":"IFERROR(VLOOKUP($B76,Volumes!$B$39:$H$81,MATCH(AD$11,Volumes!$B$4:$H$4,0),FALSE),0)","v":3270},{"$f":"IFERROR(VLOOKUP($B76,Volumes!$B$39:$H$81,MATCH(AE$11,Volumes!$B$4:$H$4,0),FALSE),0)","v":3110},{"$f":"IFERROR(VLOOKUP($B76,Volumes!$B$39:$H$81,MATCH(AF$11,Volumes!$B$4:$H$4,0),FALSE),0)","v":2890},null,null,null,null,null,null,143.85097517172701,139.02662997943821,134.7322001215521,130.57042202834612,126.88387544014132,null,null,null,null,null,null,147.37525378936172,145.92224642059475,144.87940997645197,143.84402618518365,143.20731861305879,null,null,null,null,null,null,null,505348.47577827703,482422.40602865058,440574.29439747537,406074.01250815642,366694.4000220084,null,null,null,null,null,null,null,517729.26656202774,506350.19507946377,473755.67062299792,447354.92143592116,413869.15079173987]
[null,{"$f":"Inputs!$C71","v":"42W Compact Fluorescent - Bottom Pole Entry"},"No Longer Offered",{"$f":"IF($C77=\"NA\",\"\",'Unsmoothed Prices'!D75)","v":36.046999999999997},{"$f":"IF($C77=\"NA\",\"\",'Unsmoothed Prices'!E75)","v":39.303545128887166},38.089487665599513,36.912931540151263,35.772718363930444,34.667725530093257,null,null,null,null,null,null,null,40.266462783978611,39.978697649478015,39.692989034644377,39.409322242516069,39.127682681163606,null,null,null,null,null,null,{"$f":"IFERROR(VLOOKUP($B77,Volumes!$B$39:$H$81,MATCH(AB$11,Volumes!$B$4:$H$4,0),FALSE),0)","v":204},{"$f":"IFERROR(VLOOKUP($B77,Volumes!$B$39:$H$81,MATCH(AC$11,Volumes!$B$4:$H$4,0),FALSE),0)","v":204},{"$f":"IFERROR(VLOOKUP($B77,Volumes!$B$39:$H$81,MATCH(AD$11,Volumes!$B$4:$H$4,0),FALSE),0)","v":204},{"$f":"IFERROR(VLOOKUP($B77,Volumes!$B$39:$H$81,MATCH(AE$11,Volumes!$B$4:$H$4,0),FALSE),0)","v":204},{"$f":"IFERROR(VLOOKUP($B77,Volumes!$B$39:$H$81,MATCH(AF$11,Volumes!$B$4:$H$4,0),FALSE),0)","v":204},null,null,null,null,null,null,143.85097517172701,139.02662997943821,134.7322001215521,130.57042202834612,126.88387544014132,null,null,null,null,null,null,147.37525378936172,145.92224642059475,144.87940997645197,143.84402618518365,143.20731861305879,null,null,null,null,null,null,null,29345.598935032311,28361.432515805394,27485.368824796627,26636.366093782606,25884.310589788831,null,null,null,null,null,null,null,30064.551773029791,29768.138269801329,29555.399635196201,29344.181341777465,29214.292997063993]
[null,{"$f":"Inputs!$C72","v":"2x24W Compact Fluorescent"},"Old light no volumes",{"$f":"IF($C78=\"NA\",\"\",'Unsmoothed Prices'!D76)","v":36.369},{"$f":"IF($C78=\"NA\",\"\",'Unsmoothed Prices'!E76)","v":39.903878199656461},38.671276891465361,37.476749726778628,36.319120623440611,35.197249827604317,null,null,null,null,null,null,null,40.88150372170707,40.589343184036387,40.299270577875106,40.011270981776178,39.725329580929028,null,null,null,null,null,null,{"$f":"IFERROR(VLOOKUP($B78,Volumes!$B$39:$H$81,MATCH(AB$11,Volumes!$B$4:$H$4,0),FALSE),0)","v":0},{"$f":"IFERROR(VLOOKUP($B78,Volumes!$B$39:$H$81,MATCH(AC$11,Volumes!$B$4:$H$4,0),FALSE),0)","v":0},{"$f":"IFERROR(VLOOKUP($B78,Volumes!$B$39:$H$81,MATCH(AD$11,Volumes!$B$4:$H$4,0),FALSE),0)","v":0},{"$f":"IFERROR(VLOOKUP($B78,Volumes!$B$39:$H$81,MATCH(AE$11,Volumes!$B$4:$H$4,0),FALSE),0)","v":0},{"$f":"IFERROR(VLOOKUP($B78,Volumes!$B$39:$H$81,MATCH(AF$11,Volumes!$B$4:$H$4,0),FALSE),0)","v":0},null,null,null,null,null,null,146.04819421074265,141.15016065384856,136.790136502742,132.56479027555824,128.82193436903179,null,null,null,null,null,null,149.62630362144787,148.1511026217328,147.09233760924414,146.04113908348305,145.39470626620025,null,null,null,null,null,null,null,0,0,0,0,0,null,null,null,null,null,null,null,0,0,0,0,0]
[null,{"$f":"Inputs!$C73","v":"1x20W Fluorescent"},"Old light no volumes",{"$f":"IF($C79=\"NA\",\"\",'Unsmoothed Prices'!D77)","v":37.741999999999997},{"$f":"IF($C79=\"NA\",\"\",'Unsmoothed Prices'!E77)","v":41.34050133944524},40.063523804146058,38.825991161212094,37.626684987068394,36.464424494343803,null,null,null,null,null,null,null,42.353323426601591,42.050644498040413,41.750128670893311,41.451760486509919,41.155524596715473,null,null,null,null,null,null,{"$f":"IFERROR(VLOOKUP($B79,Volumes!$B$39:$H$81,MATCH(AB$11,Volumes!$B$4:$H$4,0),FALSE),0)","v":0},{"$f":"IFERROR(VLOOKUP($B79,Volumes!$B$39:$H$81,MATCH(AC$11,Volumes!$B$4:$H$4,0),FALSE),0)","v":0},{"$f":"IFERROR(VLOOKUP($B79,Volumes!$B$39:$H$81,MATCH(AD$11,Volumes!$B$4:$H$4,0),FALSE),0)","v":0},{"$f":"IFERROR(VLOOKUP($B79,Volumes!$B$39:$H$81,MATCH(AE$11,Volumes!$B$4:$H$4,0),FALSE),0)","v":0},{"$f":"IFERROR(VLOOKUP($B79,Volumes!$B$39:$H$81,MATCH(AF$11,Volumes!$B$4:$H$4,0),FALSE),0)","v":0},null,null,null,null,null,null,151.30623490236957,146.2318618851331,141.71486773842415,137.33740020279964,133.45979364929832,null,null,null,null,null,null,155.01316374136184,153.48485241784749,152.38796964876059,151.29892577576121,150.62922002397863,null,null,null,null,null,null,null,0,0,0,0,0,null,null,null,null,null,null,null,0,0,0,0,0]
[null,{"$f":"Inputs!$C74","v":"1x40W Fluorescent"},"Old light no volumes",{"$f":"IF($C80=\"NA\",\"\",'Unsmoothed Prices'!D78)","v":36.579000000000001},{"$f":"IF($C80=\"NA\",\"\",'Unsmoothed Prices'!E78)","v":40.264078042118037},39.020350426984869,37.815040638755043,36.646961979146703,35.514964406110941,null,null,null,null,null,null,null,41.250528284344142,40.95573050477141,40.663039503813536,40.372440225332241,40.083917720788271,null,null,null,null,null,null,{"$f":"IFERROR(VLOOKUP($B80,Volumes!$B$39:$H$81,MATCH(AB$11,Volumes!$B$4:$H$4,0),FALSE),0)","v":0},{"$f":"IFERROR(VLOOKUP($B80,Volumes!$B$39:$H$81,MATCH(AC$11,Volumes!$B$4:$H$4,0),FALSE),0)","v":0},{"$f":"IFERROR(VLOOKUP($B80,Volumes!$B$39:$H$81,MATCH(AD$11,Volumes!$B$4:$H$4,0),FALSE),0)","v":0},{"$f":"IFERROR(VLOOKUP($B80,Volumes!$B$39:$H$81,MATCH(AE$11,Volumes!$B$4:$H$4,0),FALSE),0)","v":0},{"$f":"IFERROR(VLOOKUP($B80,Volumes!$B$39:$H$81,MATCH(AF$11,Volumes!$B$4:$H$4,0),FALSE),0)","v":0},null,null,null,null,null,null,147.36652563415203,142.42427905849479,138.02489833145592,133.76141122388546,129.98476972636604,null,null,null,null,null,null,150.97693352069956,149.48841634241563,148.42009418891942,147.35940682246269,146.70713885808507,null,null,null,null,null,null,null,0,0,0,0,0,null,null,null,null,null,null,null,0,0,0,0,0]
[null,{"$f":"Inputs!$C75","v":"2x20W Fluorescent"},"Old light no volumes",{"$f":"IF($C81=\"NA\",\"\",'Unsmoothed Prices'!D79)","v":38.030999999999999},{"$f":"IF($C81=\"NA\",\"\",'Unsmoothed Prices'!E79)","v":41.627617155900126},40.341770825212336,39.095643337425187,37.888007806834132,36.717675245327356,null,null,null,null,null,null,null,42.647473440297816,42.342692362394423,42.040089408960185,41.739649013982159,41.441355722690247,null,null,null,null,null,null,{"$f":"IFERROR(VLOOKUP($B81,Volumes!$B$39:$H$81,MATCH(AB$11,Volumes!$B$4:$H$4,0),FALSE),0)","v":0},{"$f":"IFERROR(VLOOKUP($B81,Volumes!$B$39:$H$81,MATCH(AC$11,Volumes!$B$4:$H$4,0),FALSE),0)","v":0},{"$f":"IFERROR(VLOOKUP($B81,Volumes!$B$39:$H$81,MATCH(AD$11,Volumes!$B$4:$H$4,0),FALSE),0)","v":0},{"$f":"IFERROR(VLOOKUP($B81,Volumes!$B$39:$H$81,MATCH(AE$11,Volumes!$B$4:$H$4,0),FALSE),0)","v":0},{"$f":"IFERROR(VLOOKUP($B81,Volumes!$B$39:$H$81,MATCH(AF$11,Volumes!$B$4:$H$4,0),FALSE),0)","v":0},null,null,null,null,null,null,152.35707879059447,147.24746351202504,142.69909818160193,138.29122849494459,134.38669139789812,null,null,null,null,null,null,156.08975279149001,154.55082712273963,153.44632634270468,152.34971890103489,151.67536194504629,null,null,null,null,null,null,null,0,0,0,0,0,null,null,null,null,null,null,null,0,0,0,0,0]
[null,{"$f":"Inputs!$C76","v":"2x24W Fluorescent"},"Old light no volumes",{"$f":"IF($C82=\"NA\",\"\",'Unsmoothed Prices'!D80)","v":37.981999999999999},{"$f":"IF($C82=\"NA\",\"\",'Unsmoothed Prices'!E80)","v":41.562885590008477},40.279038769553758,39.034849028606239,37.829091389286951,36.660578712378339,null,null,null,null,null,null,null,42.581155982664484,42.276848843885517,41.974716442559654,41.67474323687933,41.376913796106848,null,null,null,null,null,null,{"$f":"IFERROR(VLOOKUP($B82,Volumes!$B$39:$H$81,MATCH(AB$11,Volumes!$B$4:$H$4,0),FALSE),0)","v":0},{"$f":"IFERROR(VLOOKUP($B82,Volumes!$B$39:$H$81,MATCH(AC$11,Volumes!$B$4:$H$4,0),FALSE),0)","v":0},{"$f":"IFERROR(VLOOKUP($B82,Volumes!$B$39:$H$81,MATCH(AD$11,Volumes!$B$4:$H$4,0),FALSE),0)","v":0},{"$f":"IFERROR(VLOOKUP($B82,Volumes!$B$39:$H$81,MATCH(AE$11,Volumes!$B$4:$H$4,0),FALSE),0)","v":0},{"$f":"IFERROR(VLOOKUP($B82,Volumes!$B$39:$H$81,MATCH(AF$11,Volumes!$B$4:$H$4,0),FALSE),0)","v":0},null,null,null,null,null,null,152.12016125943103,147.01849150887122,142.47719895441278,138.07618357089737,134.1777180873047,null,null,null,null,null,null,155.84703089655201,154.31049828018214,153.20771501534273,152.11281281460955,151.43950449375106,null,null,null,null,null,null,null,0,0,0,0,0,null,null,null,null,null,null,null,0,0,0,0,0]
[null,{"$f":"Inputs!$C77","v":"T5 Fluorescent 2 x 24W"},"Obsolete, no new Connections",{"$f":"IF($C83=\"NA\",\"\",'Unsmoothed Prices'!D81)","v":38.031999999999996},{"$f":"IF($C83=\"NA\",\"\",'Unsmoothed Prices'!E81)","v":41.627617155900126},40.341770825212336,39.095643337425187,37.888007806834132,36.717675245327356,null,null,null,null,null,null,null,42.647473440297816,42.342692362394423,42.040089408960185,41.739649013982159,41.441355722690247,null,null,null,null,null,null,{"$f":"IFERROR(VLOOKUP($B83,Volumes!$B$39:$H$81,MATCH(AB$11,Volumes!$B$4:$H$4,0),FALSE),0)","v":83},{"$f":"IFERROR(VLOOKUP($B83,Volumes!$B$39:$H$81,MATCH(AC$11,Volumes!$B$4:$H$4,0),FALSE),0)","v":83},{"$f":"IFERROR(VLOOKUP($B83,Volumes!$B$39:$H$81,MATCH(AD$11,Volumes!$B$4:$H$4,0),FALSE),0)","v":83},{"$f":"IFERROR(VLOOKUP($B83,Volumes!$B$39:$H$81,MATCH(AE$11,Volumes!$B$4:$H$4,0),FALSE),0)","v":83},{"$f":"IFERROR(VLOOKUP($B83,Volumes!$B$39:$H$81,MATCH(AF$11,Volumes!$B$4:$H$4,0),FALSE),0)","v":83},null,null,null,null,null,null,152.35707879059447,147.24746351202504,142.69909818160193,138.29122849494459,134.38669139789812,null,null,null,null,null,null,156.08975279149001,154.55082712273963,153.44632634270468,152.34971890103489,151.67536194504629,null,null,null,null,null,null,null,12645.637539619342,12221.539471498078,11844.025149072961,11478.171965080401,11154.095386025543,null,null,null,null,null,null,null,12955.449481693671,12827.71865118739,12736.045086444488,12645.026668785897,12589.055041438842]
[null,{"$f":"Inputs!$C78","v":"20 Fluorescent 1X20FL"},"Old light no volumes",{"$f":"IF($C84=\"NA\",\"\",'Unsmoothed Prices'!D82)","v":37.741999999999997},{"$f":"IF($C84=\"NA\",\"\",'Unsmoothed Prices'!E82)","v":41.34050133944524},40.063523804146058,38.825991161212094,37.626684987068394,36.464424494343803,null,null,null,null,null,null,null,42.353323426601591,42.050644498040413,41.750128670893311,41.451760486509919,41.155524596715473,null,null,null,null,null,null,{"$f":"IFERROR(VLOOKUP($B84,Volumes!$B$39:$H$81,MATCH(AB$11,Volumes!$B$4:$H$4,0),FALSE),0)","v":0},{"$f":"IFERROR(VLOOKUP($B84,Volumes!$B$39:$H$81,MATCH(AC$11,Volumes!$B$4:$H$4,0),FALSE),0)","v":0},{"$f":"IFERROR(VLOOKUP($B84,Volumes!$B$39:$H$81,MATCH(AD$11,Volumes!$B$4:$H$4,0),FALSE),0)","v":0},{"$f":"IFERROR(VLOOKUP($B84,Volumes!$B$39:$H$81,MATCH(AE$11,Volumes!$B$4:$H$4,0),FALSE),0)","v":0},{"$f":"IFERROR(VLOOKUP($B84,Volumes!$B$39:$H$81,MATCH(AF$11,Volumes!$B$4:$H$4,0),FALSE),0)","v":0},null,null,null,null,null,null,151.30623490236957,146.2318618851331,141.71486773842415,137.33740020279964,133.45979364929832,null,null,null,null,null,null,155.01316374136184,153.48485241784749,152.38796964876059,151.29892577576121,150.62922002397863,null,null,null,null,null,null,null,0,0,0,0,0,null,null,null,null,null,null,null,0,0,0,0,0]
[null,{"$f":"Inputs!$C79","v":"2x40W Fluorescent"},"Old light no volumes",{"$f":"IF($C85=\"NA\",\"\",'Unsmoothed Prices'!D83)","v":36.887999999999998},{"$f":"IF($C85=\"NA\",\"\",'Unsmoothed Prices'!E83)","v":40.571030951346167},39.317821787688452,38.103323328961032,36.926339830096246,35.785712481707897,null,null,null,null,null,null,null,41.565001389895734,41.267956221571694,40.973033892874113,40.680219232884369,40.38949717910311,null,null,null,null,null,null,{"$f":"IFERROR(VLOOKUP($B85,Volumes!$B$39:$H$81,MATCH(AB$11,Volumes!$B$4:$H$4,0),FALSE),0)","v":0},{"$f":"IFERROR(VLOOKUP($B85,Volumes!$B$39:$H$81,MATCH(AC$11,Volumes!$B$4:$H$4,0),FALSE),0)","v":0},{"$f":"IFERROR(VLOOKUP($B85,Volumes!$B$39:$H$81,MATCH(AD$11,Volumes!$B$4:$H$4,0),FALSE),0)","v":0},{"$f":"IFERROR(VLOOKUP($B85,Volumes!$B$39:$H$81,MATCH(AE$11,Volumes!$B$4:$H$4,0),FALSE),0)","v":0},{"$f":"IFERROR(VLOOKUP($B85,Volumes!$B$39:$H$81,MATCH(AF$11,Volumes!$B$4:$H$4,0),FALSE),0)","v":0},null,null,null,null,null,null,148.48997328192698,143.51004952506284,139.07713015070777,134.78114037985131,130.9757076830509,null,null,null,null,null,null,152.12790508701838,150.62804020873668,149.5515737089905,148.48280020002795,147.82555967551738,null,null,null,null,null,null,null,0,0,0,0,0,null,null,null,null,null,null,null,0,0,0,0,0]
[null,{"$f":"Inputs!$C80","v":"3x40W Fluorescent"},"Old light no volumes",{"$f":"IF($C86=\"NA\",\"\",'Unsmoothed Prices'!D84)","v":46.387},{"$f":"IF($C86=\"NA\",\"\",'Unsmoothed Prices'!E84)","v":47.340699874595053},45.878380640756511,44.461231367381558,43.087856787772566,41.756904733989067,null,null,null,null,null,null,null,48.500523894645831,48.153913866922082,47.80978089514889,47.468107276993123,47.128875436631724,null,null,null,null,null,null,{"$f":"IFERROR(VLOOKUP($B86,Volumes!$B$39:$H$81,MATCH(AB$11,Volumes!$B$4:$H$4,0),FALSE),0)","v":0},{"$f":"IFERROR(VLOOKUP($B86,Volumes!$B$39:$H$81,MATCH(AC$11,Volumes!$B$4:$H$4,0),FALSE),0)","v":0},{"$f":"IFERROR(VLOOKUP($B86,Volumes!$B$39:$H$81,MATCH(AD$11,Volumes!$B$4:$H$4,0),FALSE),0)","v":0},{"$f":"IFERROR(VLOOKUP($B86,Volumes!$B$39:$H$81,MATCH(AE$11,Volumes!$B$4:$H$4,0),FALSE),0)","v":0},{"$f":"IFERROR(VLOOKUP($B86,Volumes!$B$39:$H$81,MATCH(AF$11,Volumes!$B$4:$H$4,0),FALSE),0)","v":0},null,null,null,null,null,null,173.26696154101788,167.45608933876127,162.28349449094267,157.27067727536988,152.83027132639998,null,null,null,null,null,null,177.51191745440374,175.76178561426562,174.50570026729343,173.2585915610249,172.49168409807211,null,null,null,null,null,null,null,0,0,0,0,0,null,null,null,null,null,null,null,0,0,0,0,0]
[null,{"$f":"Inputs!$C81","v":"4x20 Fluorescent"},"Old light no volumes",{"$f":"IF($C87=\"NA\",\"\",'Unsmoothed Prices'!D85)","v":38.612000000000002},{"$f":"IF($C87=\"NA\",\"\",'Unsmoothed Prices'!E85)","v":42.203936903838652},40.90028848204355,39.636908796587456,38.412553975963888,37.226018570937967,null,null,null,null,null,null,null,43.237912740517139,42.928912075570459,42.62211969046168,42.317519803671864,42.015096746465041,null,null,null,null,null,null,{"$f":"IFERROR(VLOOKUP($B87,Volumes!$B$39:$H$81,MATCH(AB$11,Volumes!$B$4:$H$4,0),FALSE),0)","v":0},{"$f":"IFERROR(VLOOKUP($B87,Volumes!$B$39:$H$81,MATCH(AC$11,Volumes!$B$4:$H$4,0),FALSE),0)","v":0},{"$f":"IFERROR(VLOOKUP($B87,Volumes!$B$39:$H$81,MATCH(AD$11,Volumes!$B$4:$H$4,0),FALSE),0)","v":0},{"$f":"IFERROR(VLOOKUP($B87,Volumes!$B$39:$H$81,MATCH(AE$11,Volumes!$B$4:$H$4,0),FALSE),0)","v":0},{"$f":"IFERROR(VLOOKUP($B87,Volumes!$B$39:$H$81,MATCH(AF$11,Volumes!$B$4:$H$4,0),FALSE),0)","v":0},null,null,null,null,null,null,154.46640906804947,149.28605295945897,144.67471710754421,140.20582201226819,136.24722796963297,null,null,null,null,null,null,158.25076063029275,156.69052907583219,155.57073687018513,154.4589472834023,153.77525409206203,null,null,null,null,null,null,null,0,0,0,0,0,null,null,null,null,null,null,null,0,0,0,0,0]
[null,{"$f":"Inputs!$C82","v":"4x40W Fluorescent"},"Old light no volumes",{"$f":"IF($C88=\"NA\",\"\",'Unsmoothed Prices'!D86)","v":47.878},{"$f":"IF($C88=\"NA\",\"\",'Unsmoothed Prices'!E86)","v":48.741825058894868},47.236226103559929,45.777133987301418,44.363112148229327,42.992768398788783,null,null,null,null,null,null,null,49.935975961483372,49.579107444969615,49.224789296915205,48.873003291057586,48.523731331388582,null,null,null,null,null,null,{"$f":"IFERROR(VLOOKUP($B88,Volumes!$B$39:$H$81,MATCH(AB$11,Volumes!$B$4:$H$4,0),FALSE),0)","v":0},{"$f":"IFERROR(VLOOKUP($B88,Volumes!$B$39:$H$81,MATCH(AC$11,Volumes!$B$4:$H$4,0),FALSE),0)","v":0},{"$f":"IFERROR(VLOOKUP($B88,Volumes!$B$39:$H$81,MATCH(AD$11,Volumes!$B$4:$H$4,0),FALSE),0)","v":0},{"$f":"IFERROR(VLOOKUP($B88,Volumes!$B$39:$H$81,MATCH(AE$11,Volumes!$B$4:$H$4,0),FALSE),0)","v":0},{"$f":"IFERROR(VLOOKUP($B88,Volumes!$B$39:$H$81,MATCH(AF$11,Volumes!$B$4:$H$4,0),FALSE),0)","v":0},null,null,null,null,null,null,178.39507971555523,172.41222527799374,167.0865390536502,161.92535934103705,157.35353233956695,null,null,null,null,null,null,182.76567201902915,180.96374217413907,179.67048093374052,178.38646201236017,177.59685667288221,null,null,null,null,null,null,null,0,0,0,0,0,null,null,null,null,null,null,null,0,0,0,0,0]
[null,{"$f":"Inputs!$C83","v":"100W Sodium Vapour"},"Offered",{"$f":"IF($C89=\"NA\",\"\",'Unsmoothed Prices'!D87)","v":45.521000000000001},{"$f":"IF($C89=\"NA\",\"\",'Unsmoothed Prices'!E87)","v":46.428193607025726},44.99406101744043,43.604227723707972,42.257325353317121,40.952027801772267,null,null,null,null,null,null,null,47.565661669298578,47.225732654393362,46.888232949438198,46.553145193317761,46.220452148988301,null,null,null,null,null,null,{"$f":"IFERROR(VLOOKUP($B89,Volumes!$B$39:$H$81,MATCH(AB$11,Volumes!$B$4:$H$4,0),FALSE),0)","v":444},{"$f":"IFERROR(VLOOKUP($B89,Volumes!$B$39:$H$81,MATCH(AC$11,Volumes!$B$4:$H$4,0),FALSE),0)","v":466},{"$f":"IFERROR(VLOOKUP($B89,Volumes!$B$39:$H$81,MATCH(AD$11,Volumes!$B$4:$H$4,0),FALSE),0)","v":490},{"$f":"IFERROR(VLOOKUP($B89,Volumes!$B$39:$H$81,MATCH(AE$11,Volumes!$B$4:$H$4,0),FALSE),0)","v":514},{"$f":"IFERROR(VLOOKUP($B89,Volumes!$B$39:$H$81,MATCH(AF$11,Volumes!$B$4:$H$4,0),FALSE),0)","v":540},null,null,null,null,null,null,169.92718860171416,164.22832271365758,159.15543119153409,154.2392375396075,149.88442175448651,null,null,null,null,null,null,174.0903217096328,172.3739241885358,171.14205026544943,169.91897995560984,169.16685486529718,null,null,null,null,null,null,null,75447.671739161087,76530.398384564425,77986.161283851703,79278.968095358257,80937.587747422716,null,null,null,null,null,null,null,77296.102839076964,80326.248671857684,83859.604630070215,87338.355697183462,91350.101627260476]
[null,{"$f":"Inputs!$C84","v":0},"NA",{"$f":"IF($C90=\"NA\",\"\",'Unsmoothed Prices'!D88)","v":""},{"$f":"IF($C90=\"NA\",\"\",'Unsmoothed Prices'!E88)","v":""},"","","","",null,null,null,null,null,null,null,"","","","","",null,null,null,null,null,null,{"$f":"IFERROR(VLOOKUP($B90,Volumes!$B$39:$H$81,MATCH(AB$11,Volumes!$B$4:$H$4,0),FALSE),0)","v":0},{"$f":"IFERROR(VLOOKUP($B90,Volumes!$B$39:$H$81,MATCH(AC$11,Volumes!$B$4:$H$4,0),FALSE),0)","v":0},{"$f":"IFERROR(VLOOKUP($B90,Volumes!$B$39:$H$81,MATCH(AD$11,Volumes!$B$4:$H$4,0),FALSE),0)","v":0},{"$f":"IFERROR(VLOOKUP($B90,Volumes!$B$39:$H$81,MATCH(AE$11,Volumes!$B$4:$H$4,0),FALSE),0)","v":0},{"$f":"IFERROR(VLOOKUP($B90,Volumes!$B$39:$H$81,MATCH(AF$11,Volumes!$B$4:$H$4,0),FALSE),0)","v":0},null,null,null,null,null,null,"","","","","",null,null,null,null,null,null,"","","","","",null,null,null,null,null,null,null,0,0,0,0,0,null,null,null,null,null,null,null,0,0,0,0,0]
[null,{"$f":"Inputs!$C85","v":"150W Sodium Vapour"},"Offered",{"$f":"IF($C91=\"NA\",\"\",'Unsmoothed Prices'!D89)","v":47.881},{"$f":"IF($C91=\"NA\",\"\",'Unsmoothed Prices'!E89)","v":48.810732854844034},47.303005388615823,45.841850509592547,44.42582962497309,43.053548579024827,null,null,null,null,null,null,null,50.006571964770458,49.649198932414564,49.294379874051245,48.942096537650912,48.592330801622516,null,null,null,null,null,null,{"$f":"IFERROR(VLOOKUP($B91,Volumes!$B$39:$H$81,MATCH(AB$11,Volumes!$B$4:$H$4,0),FALSE),0)","v":5322},{"$f":"IFERROR(VLOOKUP($B91,Volumes!$B$39:$H$81,MATCH(AC$11,Volumes!$B$4:$H$4,0),FALSE),0)","v":5588},{"$f":"IFERROR(VLOOKUP($B91,Volumes!$B$39:$H$81,MATCH(AD$11,Volumes!$B$4:$H$4,0),FALSE),0)","v":5762},{"$f":"IFERROR(VLOOKUP($B91,Volumes!$B$39:$H$81,MATCH(AE$11,Volumes!$B$4:$H$4,0),FALSE),0)","v":6008},{"$f":"IFERROR(VLOOKUP($B91,Volumes!$B$39:$H$81,MATCH(AF$11,Volumes!$B$4:$H$4,0),FALSE),0)","v":6328},null,null,null,null,null,null,178.64728224872917,172.65596966844777,167.32275436001279,162.15427813115178,157.57598779923086,null,null,null,null,null,null,183.02405339105985,181.21957610331316,179.92448654028703,178.63865236242583,177.8479307339384,null,null,null,null,null,null,null,950760.83612773661,964801.55850728613,964113.71062239376,974222.90301195998,997140.85079353291,null,null,null,null,null,null,null,974054.01214722055,1012654.9912653139,1036724.8914451338,1073261.0233934545,1125421.7056843622]
[null,{"$f":"Inputs!$C86","v":0},"NA",{"$f":"IF($C92=\"NA\",\"\",'Unsmoothed Prices'!D90)","v":""},{"$f":"IF($C92=\"NA\",\"\",'Unsmoothed Prices'!E90)","v":""},"","","","",null,null,null,null,null,null,null,"","","","","",null,null,null,null,null,null,{"$f":"IFERROR(VLOOKUP($B92,Volumes!$B$39:$H$81,MATCH(AB$11,Volumes!$B$4:$H$4,0),FALSE),0)","v":0},{"$f":"IFERROR(VLOOKUP($B92,Volumes!$B$39:$H$81,MATCH(AC$11,Volumes!$B$4:$H$4,0),FALSE),0)","v":0},{"$f":"IFERROR(VLOOKUP($B92,Volumes!$B$39:$H$81,MATCH(AD$11,Volumes!$B$4:$H$4,0),FALSE),0)","v":0},{"$f":"IFERROR(VLOOKUP($B92,Volumes!$B$39:$H$81,MATCH(AE$11,Volumes!$B$4:$H$4,0),FALSE),0)","v":0},{"$f":"IFERROR(VLOOKUP($B92,Volumes!$B$39:$H$81,MATCH(AF$11,Volumes!$B$4:$H$4,0),FALSE),0)","v":0},null,null,null,null,null,null,"","","","","",null,null,null,null,null,null,"","","","","",null,null,null,null,null,null,null,0,0,0,0,0,null,null,null,null,null,null,null,0,0,0,0,0]
[null,{"$f":"Inputs!$C87","v":0},"NA",{"$f":"IF($C93=\"NA\",\"\",'Unsmoothed Prices'!D91)","v":""},{"$f":"IF($C93=\"NA\",\"\",'Unsmoothed Prices'!E91)","v":""},"","","","",null,null,null,null,null,null,null,"","","","","",null,null,null,null,null,null,{"$f":"IFERROR(VLOOKUP($B93,Volumes!$B$39:$H$81,MATCH(AB$11,Volumes!$B$4:$H$4,0),FALSE),0)","v":0},{"$f":"IFERROR(VLOOKUP($B93,Volumes!$B$39:$H$81,MATCH(AC$11,Volumes!$B$4:$H$4,0),FALSE),0)","v":0},{"$f":"IFERROR(VLOOKUP($B93,Volumes!$B$39:$H$81,MATCH(AD$11,Volumes!$B$4:$H$4,0),FALSE),0)","v":0},{"$f":"IFERROR(VLOOKUP($B93,Volumes!$B$39:$H$81,MATCH(AE$11,Volumes!$B$4:$H$4,0),FALSE),0)","v":0},{"$f":"IFERROR(VLOOKUP($B93,Volumes!$B$39:$H$81,MATCH(AF$11,Volumes!$B$4:$H$4,0),FALSE),0)","v":0},null,null,null,null,null,null,"","","","","",null,null,null,null,null,null,"","","","","",null,null,null,null,null,null,null,0,0,0,0,0,null,null,null,null,null,null,null,0,0,0,0,0]
[null,{"$f":"Inputs!$C88","v":0},"NA",{"$f":"IF($C94=\"NA\",\"\",'Unsmoothed Prices'!D92)","v":""},{"$f":"IF($C94=\"NA\",\"\",'Unsmoothed Prices'!E92)","v":""},"","","","",null,null,null,null,null,null,null,"","","","","",null,null,null,null,null,null,{"$f":"IFERROR(VLOOKUP($B94,Volumes!$B$39:$H$81,MATCH(AB$11,Volumes!$B$4:$H$4,0),FALSE),0)","v":0},{"$f":"IFERROR(VLOOKUP($B94,Volumes!$B$39:$H$81,MATCH(AC$11,Volumes!$B$4:$H$4,0),FALSE),0)","v":0},{"$f":"IFERROR(VLOOKUP($B94,Volumes!$B$39:$H$81,MATCH(AD$11,Volumes!$B$4:$H$4,0),FALSE),0)","v":0},{"$f":"IFERROR(VLOOKUP($B94,Volumes!$B$39:$H$81,MATCH(AE$11,Volumes!$B$4:$H$4,0),FALSE),0)","v":0},{"$f":"IFERROR(VLOOKUP($B94,Volumes!$B$39:$H$81,MATCH(AF$11,Volumes!$B$4:$H$4,0),FALSE),0)","v":0},null,null,null,null,null,null,"","","","","",null,null,null,null,null,null,"","","","","",null,null,null,null,null,null,null,0,0,0,0,0,null,null,null,null,null,null,null,0,0,0,0,0]
[null,{"$f":"Inputs!$C89","v":"250W Sodium Vapour"},"Offered",{"$f":"IF($C95=\"NA\",\"\",'Unsmoothed Prices'!D93)","v":49.024000000000001},{"$f":"IF($C95=\"NA\",\"\",'Unsmoothed Prices'!E93)","v":50.01975145649768},48.474678299142177,46.977331309791658,45.526236262386604,44.119964468621006,null,null,null,null,null,null,null,51.245210931534899,50.878985939403435,50.515378181983735,50.154368955152144,49.795939688454439,null,null,null,null,null,null,{"$f":"IFERROR(VLOOKUP($B95,Volumes!$B$39:$H$81,MATCH(AB$11,Volumes!$B$4:$H$4,0),FALSE),0)","v":6615},{"$f":"IFERROR(VLOOKUP($B95,Volumes!$B$39:$H$81,MATCH(AC$11,Volumes!$B$4:$H$4,0),FALSE),0)","v":6946},{"$f":"IFERROR(VLOOKUP($B95,Volumes!$B$39:$H$81,MATCH(AD$11,Volumes!$B$4:$H$4,0),FALSE),0)","v":7293},{"$f":"IFERROR(VLOOKUP($B95,Volumes!$B$39:$H$81,MATCH(AE$11,Volumes!$B$4:$H$4,0),FALSE),0)","v":7654},{"$f":"IFERROR(VLOOKUP($B95,Volumes!$B$39:$H$81,MATCH(AF$11,Volumes!$B$4:$H$4,0),FALSE),0)","v":8040},null,null,null,null,null,null,183.0722903307815,176.93257579186894,171.46725928073957,166.17076235771111,161.47906995515288,null,null,null,null,null,null,187.55747200941772,185.70829867882253,184.38113036424065,183.06344668630533,182.25313925974325,null,null,null,null,null,null,null,1211023.2005381195,1228973.6714503216,1250510.7219344336,1271871.0150859209,1298291.7224394293,null,null,null,null,null,null,null,1240692.6773422982,1289929.8426231013,1344691.5837464069,1401167.6209369809,1465315.2396483358]
[null,{"$f":"Inputs!$C90","v":0},"NA",{"$f":"IF($C96=\"NA\",\"\",'Unsmoothed Prices'!D94)","v":""},{"$f":"IF($C96=\"NA\",\"\",'Unsmoothed Prices'!E94)","v":""},"","","","",null,null,null,null,null,null,null,"","","","","",null,null,null,null,null,null,{"$f":"IFERROR(VLOOKUP($B96,Volumes!$B$39:$H$81,MATCH(AB$11,Volumes!$B$4:$H$4,0),FALSE),0)","v":0},{"$f":"IFERROR(VLOOKUP($B96,Volumes!$B$39:$H$81,MATCH(AC$11,Volumes!$B$4:$H$4,0),FALSE),0)","v":0},{"$f":"IFERROR(VLOOKUP($B96,Volumes!$B$39:$H$81,MATCH(AD$11,Volumes!$B$4:$H$4,0),FALSE),0)","v":0},{"$f":"IFERROR(VLOOKUP($B96,Volumes!$B$39:$H$81,MATCH(AE$11,Volumes!$B$4:$H$4,0),FALSE),0)","v":0},{"$f":"IFERROR(VLOOKUP($B96,Volumes!$B$39:$H$81,MATCH(AF$11,Volumes!$B$4:$H$4,0),FALSE),0)","v":0},null,null,null,null,null,null,"","","","","",null,null,null,null,null,null,"","","","","",null,null,null,null,null,null,null,0,0,0,0,0,null,null,null,null,null,null,null,0,0,0,0,0]
[null,{"$f":"Inputs!$C91","v":0},"NA",{"$f":"IF($C97=\"NA\",\"\",'Unsmoothed Prices'!D95)","v":""},{"$f":"IF($C97=\"NA\",\"\",'Unsmoothed Prices'!E95)","v":""},"","","","",null,null,null,null,null,null,null,"","","","","",null,null,null,null,null,null,{"$f":"IFERROR(VLOOKUP($B97,Volumes!$B$39:$H$81,MATCH(AB$11,Volumes!$B$4:$H$4,0),FALSE),0)","v":0},{"$f":"IFERROR(VLOOKUP($B97,Volumes!$B$39:$H$81,MATCH(AC$11,Volumes!$B$4:$H$4,0),FALSE),0)","v":0},{"$f":"IFERROR(VLOOKUP($B97,Volumes!$B$39:$H$81,MATCH(AD$11,Volumes!$B$4:$H$4,0),FALSE),0)","v":0},{"$f":"IFERROR(VLOOKUP($B97,Volumes!$B$39:$H$81,MATCH(AE$11,Volumes!$B$4:$H$4,0),FALSE),0)","v":0},{"$f":"IFERROR(VLOOKUP($B97,Volumes!$B$39:$H$81,MATCH(AF$11,Volumes!$B$4:$H$4,0),FALSE),0)","v":0},null,null,null,null,null,null,"","","","","",null,null,null,null,null,null,"","","","","",null,null,null,null,null,null,null,0,0,0,0,0,null,null,null,null,null,null,null,0,0,0,0,0]
[null,{"$f":"Inputs!$C92","v":0},"NA",{"$f":"IF($C98=\"NA\",\"\",'Unsmoothed Prices'!D96)","v":""},{"$f":"IF($C98=\"NA\",\"\",'Unsmoothed Prices'!E96)","v":""},"","","","",null,null,null,null,null,null,null,"","","","","",null,null,null,null,null,null,{"$f":"IFERROR(VLOOKUP($B98,Volumes!$B$39:$H$81,MATCH(AB$11,Volumes!$B$4:$H$4,0),FALSE),0)","v":0},{"$f":"IFERROR(VLOOKUP($B98,Volumes!$B$39:$H$81,MATCH(AC$11,Volumes!$B$4:$H$4,0),FALSE),0)","v":0},{"$f":"IFERROR(VLOOKUP($B98,Volumes!$B$39:$H$81,MATCH(AD$11,Volumes!$B$4:$H$4,0),FALSE),0)","v":0},{"$f":"IFERROR(VLOOKUP($B98,Volumes!$B$39:$H$81,MATCH(AE$11,Volumes!$B$4:$H$4,0),FALSE),0)","v":0},{"$f":"IFERROR(VLOOKUP($B98,Volumes!$B$39:$H$81,MATCH(AF$11,Volumes!$B$4:$H$4,0),FALSE),0)","v":0},null,null,null,null,null,null,"","","","","",null,null,null,null,null,null,"","","","","",null,null,null,null,null,null,null,0,0,0,0,0,null,null,null,null,null,null,null,0,0,0,0,0]
[null,{"$f":"Inputs!$C93","v":"250W Sodium Vapour - Flood Light"},"Offered",{"$f":"IF($C99=\"NA\",\"\",'Unsmoothed Prices'!D97)","v":53.133000000000003},{"$f":"IF($C99=\"NA\",\"\",'Unsmoothed Prices'!E97)","v":53.747036782839217},52.086830536257068,50.477906833721526,48.91868159534534,47.407619672298331,null,null,null,null,null,null,null,55.063812927518526,54.670298214835398,54.279595763433598,53.891685475427934,53.506547396563192,null,null,null,null,null,null,{"$f":"IFERROR(VLOOKUP($B99,Volumes!$B$39:$H$81,MATCH(AB$11,Volumes!$B$4:$H$4,0),FALSE),0)","v":36},{"$f":"IFERROR(VLOOKUP($B99,Volumes!$B$39:$H$81,MATCH(AC$11,Volumes!$B$4:$H$4,0),FALSE),0)","v":38},{"$f":"IFERROR(VLOOKUP($B99,Volumes!$B$39:$H$81,MATCH(AD$11,Volumes!$B$4:$H$4,0),FALSE),0)","v":40},{"$f":"IFERROR(VLOOKUP($B99,Volumes!$B$39:$H$81,MATCH(AE$11,Volumes!$B$4:$H$4,0),FALSE),0)","v":42},{"$f":"IFERROR(VLOOKUP($B99,Volumes!$B$39:$H$81,MATCH(AF$11,Volumes!$B$4:$H$4,0),FALSE),0)","v":44},null,null,null,null,null,null,196.71415462519155,190.1169314573383,184.24435994308359,178.55318782301049,173.51188800061192,null,null,null,null,null,null,201.5335553147178,199.54658848414923,198.12052453653266,196.70465198531198,195.83396347142127,null,null,null,null,null,null,null,7081.7095665068955,7224.4433953788557,7369.774397723344,7499.2338885664403,7634.5230720269246,null,null,null,null,null,null,null,7255.2079913298412,7582.7703623976704,7924.8209814613065,8261.5953833831027,8616.6943927425364]
[null,{"$f":"Inputs!$C94","v":"400W Sodium Vapour"},"Offered",{"$f":"IF($C100=\"NA\",\"\",'Unsmoothed Prices'!D98)","v":49.887999999999998},{"$f":"IF($C100=\"NA\",\"\",'Unsmoothed Prices'!E98)","v":50.600247434493731},49.037243185370713,47.522518982426114,46.05458349071295,44.63199144151865,null,null,null,null,null,null,null,51.839928777407984,51.469453621515527,51.101626074220739,50.736427214332345,50.373838255879775,null,null,null,null,null,null,{"$f":"IFERROR(VLOOKUP($B100,Volumes!$B$39:$H$81,MATCH(AB$11,Volumes!$B$4:$H$4,0),FALSE),0)","v":674},{"$f":"IFERROR(VLOOKUP($B100,Volumes!$B$39:$H$81,MATCH(AC$11,Volumes!$B$4:$H$4,0),FALSE),0)","v":708},{"$f":"IFERROR(VLOOKUP($B100,Volumes!$B$39:$H$81,MATCH(AD$11,Volumes!$B$4:$H$4,0),FALSE),0)","v":733},{"$f":"IFERROR(VLOOKUP($B100,Volumes!$B$39:$H$81,MATCH(AE$11,Volumes!$B$4:$H$4,0),FALSE),0)","v":764},{"$f":"IFERROR(VLOOKUP($B100,Volumes!$B$39:$H$81,MATCH(AF$11,Volumes!$B$4:$H$4,0),FALSE),0)","v":806},null,null,null,null,null,null,185.19690561024706,178.98593762660312,173.45719428585534,168.09922974110228,163.35308867595825,null,null,null,null,null,null,189.73413932531324,187.86350571853166,186.52093517090569,185.18795933231308,184.36824801651997,null,null,null,null,null,null,null,124822.71438130652,126722.04383963501,127144.12341153197,128427.81152220214,131662.58947282235,null,null,null,null,null,null,null,127880.80990526112,133007.36204872042,136719.84548027386,141483.60092988721,148600.8079013151]
[null,{"$f":"Inputs!$C95","v":0},"NA",{"$f":"IF($C101=\"NA\",\"\",'Unsmoothed Prices'!D99)","v":""},{"$f":"IF($C101=\"NA\",\"\",'Unsmoothed Prices'!E99)","v":""},"","","","",null,null,null,null,null,null,null,{"$f":"IF($C101=\"NA\",\"\",E101*Q$9)","v":""},"","","","",null,null,null,null,null,null,{"$f":"IFERROR(VLOOKUP($B101,Volumes!$B$39:$H$81,MATCH(AB$11,Volumes!$B$4:$H$4,0),FALSE),0)","v":0},{"$f":"IFERROR(VLOOKUP($B101,Volumes!$B$39:$H$81,MATCH(AC$11,Volumes!$B$4:$H$4,0),FALSE),0)","v":0},{"$f":"IFERROR(VLOOKUP($B101,Volumes!$B$39:$H$81,MATCH(AD$11,Volumes!$B$4:$H$4,0),FALSE),0)","v":0},{"$f":"IFERROR(VLOOKUP($B101,Volumes!$B$39:$H$81,MATCH(AE$11,Volumes!$B$4:$H$4,0),FALSE),0)","v":0},{"$f":"IFERROR(VLOOKUP($B101,Volumes!$B$39:$H$81,MATCH(AF$11,Volumes!$B$4:$H$4,0),FALSE),0)","v":0},null,null,null,null,null,null,{"$f":"IF($C101=\"NA\",\"\",(E101*AM$9)/100)","v":""},"","","","",null,null,null,null,null,null,{"$f":"IF($C101=\"NA\",\"\",(Q101*AX$9)/100)","v":""},"","","","",null,null,null,null,null,null,null,{"$f":"IFERROR(AM101*AB101,0)","v":0},0,0,0,0,null,null,null,null,null,null,null,{"$f":"IFERROR(AX101*AB101,0)","v":0},0,0,0,0]
[null,{"$f":"Inputs!$C96","v":"400W Sodium Vapour - Flood Light"},"Offered",{"$f":"IF($C102=\"NA\",\"\",'Unsmoothed Prices'!D100)","v":52.598999999999997},{"$f":"IF($C102=\"NA\",\"\",'Unsmoothed Prices'!E100)","v":53.057958823347505},51.419037685698015,49.830741610810122,48.29150682790759,46.799817869937819,null,null,null,null,null,null,null,54.357852894647607,53.969383340385797,53.583689992073118,53.200753009494591,52.820552694223757,null,null,null,null,null,null,{"$f":"IFERROR(VLOOKUP($B102,Volumes!$B$39:$H$81,MATCH(AB$11,Volumes!$B$4:$H$4,0),FALSE),0)","v":36},{"$f":"IFERROR(VLOOKUP($B102,Volumes!$B$39:$H$81,MATCH(AC$11,Volumes!$B$4:$H$4,0),FALSE),0)","v":38},{"$f":"IFERROR(VLOOKUP($B102,Volumes!$B$39:$H$81,MATCH(AD$11,Volumes!$B$4:$H$4,0),FALSE),0)","v":40},{"$f":"IFERROR(VLOOKUP($B102,Volumes!$B$39:$H$81,MATCH(AE$11,Volumes!$B$4:$H$4,0),FALSE),0)","v":42},{"$f":"IFERROR(VLOOKUP($B102,Volumes!$B$39:$H$81,MATCH(AF$11,Volumes!$B$4:$H$4,0),FALSE),0)","v":44},null,null,null,null,null,null,194.19212929345187,187.67948755279775,181.88220687945693,176.26399992186271,171.28733340397241,null,null,null,null,null,null,198.94974159441023,196.98824919240815,195.58046847106689,194.18274848465524,193.32322286085895,null,null,null,null,null,null,null,6990.9166545642674,7131.8205270063145,7275.2882751782772,7403.0879967182336,7536.6426697747866,null,null,null,null,null,null,null,7162.190697398768,7485.5534693115096,7823.2187388426755,8155.6754363555201,8506.2218058777944]
[null,{"$f":"Inputs!$C97","v":"70W Sodium Vapour"},"Offered",{"$f":"IF($C103=\"NA\",\"\",'Unsmoothed Prices'!D101)","v":35.881999999999998},{"$f":"IF($C103=\"NA\",\"\",'Unsmoothed Prices'!E101)","v":39.512356631763438},38.291849135465895,37.10904221376078,35.962771323760066,34.851907894444928,null,null,null,null,null,null,null,40.480390066666764,40.191096096280923,39.90386957142028,39.618695717041319,39.335559863690712,null,null,null,null,null,null,{"$f":"IFERROR(VLOOKUP($B103,Volumes!$B$39:$H$81,MATCH(AB$11,Volumes!$B$4:$H$4,0),FALSE),0)","v":236},{"$f":"IFERROR(VLOOKUP($B103,Volumes!$B$39:$H$81,MATCH(AC$11,Volumes!$B$4:$H$4,0),FALSE),0)","v":248},{"$f":"IFERROR(VLOOKUP($B103,Volumes!$B$39:$H$81,MATCH(AD$11,Volumes!$B$4:$H$4,0),FALSE),0)","v":260},{"$f":"IFERROR(VLOOKUP($B103,Volumes!$B$39:$H$81,MATCH(AE$11,Volumes!$B$4:$H$4,0),FALSE),0)","v":272},{"$f":"IFERROR(VLOOKUP($B103,Volumes!$B$39:$H$81,MATCH(AF$11,Volumes!$B$4:$H$4,0),FALSE),0)","v":286},null,null,null,null,null,null,144.61522527225418,139.76524934445052,135.44800408022687,131.26411533172424,127.55798289366844,null,null,null,null,null,null,148.15822764400036,146.69750075142537,145.64912393568403,144.60823936720081,143.968149101108,null,null,null,null,null,null,null,34129.193164251985,34661.781837423732,35216.481060858983,35703.83937022899,36481.583107589177,null,null,null,null,null,null,null,34965.341723984086,36380.980186353489,37868.772223277847,39333.441107878622,41174.890642916886]
[null,{"$f":"Inputs!$C98","v":0},"NA",{"$f":"IF($C104=\"NA\",\"\",'Unsmoothed Prices'!D102)","v":""},{"$f":"IF($C104=\"NA\",\"\",'Unsmoothed Prices'!E102)","v":""},"","","","",null,null,null,null,null,null,null,"","","","","",null,null,null,null,null,null,{"$f":"IFERROR(VLOOKUP($B104,Volumes!$B$39:$H$81,MATCH(AB$11,Volumes!$B$4:$H$4,0),FALSE),0)","v":0},{"$f":"IFERROR(VLOOKUP($B104,Volumes!$B$39:$H$81,MATCH(AC$11,Volumes!$B$4:$H$4,0),FALSE),0)","v":0},{"$f":"IFERROR(VLOOKUP($B104,Volumes!$B$39:$H$81,MATCH(AD$11,Volumes!$B$4:$H$4,0),FALSE),0)","v":0},{"$f":"IFERROR(VLOOKUP($B104,Volumes!$B$39:$H$81,MATCH(AE$11,Volumes!$B$4:$H$4,0),FALSE),0)","v":0},{"$f":"IFERROR(VLOOKUP($B104,Volumes!$B$39:$H$81,MATCH(AF$11,Volumes!$B$4:$H$4,0),FALSE),0)","v":0},null,null,null,null,null,null,"","","","","",null,null,null,null,null,null,"","","","","",null,null,null,null,null,null,null,0,0,0,0,0,null,null,null,null,null,null,null,0,0,0,0,0]
[null,{"$f":"Inputs!$C99","v":"100W Incandescent"},"Old light no volumes",{"$f":"IF($C105=\"NA\",\"\",'Unsmoothed Prices'!D103)","v":41.975000000000001},{"$f":"IF($C105=\"NA\",\"\",'Unsmoothed Prices'!E103)","v":43.084077388462148},41.753242077530338,40.463515285851564,39.213627201645735,38.002347236680258,null,null,null,null,null,null,null,44.139616237047719,43.82417152884473,43.510981152972107,43.200028998795801,42.891299070816771,null,null,null,null,null,null,{"$f":"IFERROR(VLOOKUP($B105,Volumes!$B$39:$H$81,MATCH(AB$11,Volumes!$B$4:$H$4,0),FALSE),0)","v":0},{"$f":"IFERROR(VLOOKUP($B105,Volumes!$B$39:$H$81,MATCH(AC$11,Volumes!$B$4:$H$4,0),FALSE),0)","v":0},{"$f":"IFERROR(VLOOKUP($B105,Volumes!$B$39:$H$81,MATCH(AD$11,Volumes!$B$4:$H$4,0),FALSE),0)","v":0},{"$f":"IFERROR(VLOOKUP($B105,Volumes!$B$39:$H$81,MATCH(AE$11,Volumes!$B$4:$H$4,0),FALSE),0)","v":0},{"$f":"IFERROR(VLOOKUP($B105,Volumes!$B$39:$H$81,MATCH(AF$11,Volumes!$B$4:$H$4,0),FALSE),0)","v":0},null,null,null,null,null,null,157.68772324177147,152.39933358298572,147.69183079335821,143.12973928600692,139.08859088624976,null,null,null,null,null,null,161.55099542759464,159.95822608028325,158.81508120834818,157.68010584560466,156.98215459918939,null,null,null,null,null,null,null,0,0,0,0,0,null,null,null,null,null,null,null,0,0,0,0,0]
[null,{"$f":"Inputs!$C100","v":"60W Incandescent"},"Old light no volumes",{"$f":"IF($C106=\"NA\",\"\",'Unsmoothed Prices'!D104)","v":32.786000000000001},{"$f":"IF($C106=\"NA\",\"\",'Unsmoothed Prices'!E104)","v":36.620317316927014},35.489142777816525,34.392909384268975,33.330537830119816,32.300982148174285,null,null,null,null,null,null,null,37.517497201435781,37.249377608060605,36.983174137074023,36.718873094866545,36.456460885690355,null,null,null,null,null,null,{"$f":"IFERROR(VLOOKUP($B106,Volumes!$B$39:$H$81,MATCH(AB$11,Volumes!$B$4:$H$4,0),FALSE),0)","v":0},{"$f":"IFERROR(VLOOKUP($B106,Volumes!$B$39:$H$81,MATCH(AC$11,Volumes!$B$4:$H$4,0),FALSE),0)","v":0},{"$f":"IFERROR(VLOOKUP($B106,Volumes!$B$39:$H$81,MATCH(AD$11,Volumes!$B$4:$H$4,0),FALSE),0)","v":0},{"$f":"IFERROR(VLOOKUP($B106,Volumes!$B$39:$H$81,MATCH(AE$11,Volumes!$B$4:$H$4,0),FALSE),0)","v":0},{"$f":"IFERROR(VLOOKUP($B106,Volumes!$B$39:$H$81,MATCH(AF$11,Volumes!$B$4:$H$4,0),FALSE),0)","v":0},null,null,null,null,null,null,134.03036137995286,129.53537113903033,125.53411925258177,121.65646307993732,118.22159466231787,null,null,null,null,null,null,137.31403975725496,135.96022826942121,134.98858560032019,134.0238867962629,133.4306468416267,null,null,null,null,null,null,null,0,0,0,0,0,null,null,null,null,null,null,null,0,0,0,0,0]
[null,{"$f":"Inputs!$C101","v":"18W LED"},"Offered",{"$f":"IF($C107=\"NA\",\"\",'Unsmoothed Prices'!D105)","v":34.338999999999999},{"$f":"IF($C107=\"NA\",\"\",'Unsmoothed Prices'!E105)","v":37.601731380445514},36.440241686188514,35.314629550233704,34.223786741319032,33.166639260627136,null,null,null,null,null,null,null,38.522955430070127,38.247650308034288,37.97431265992077,37.702928425135241,37.433483643567733,null,null,null,null,null,null,{"$f":"IFERROR(VLOOKUP($B107,Volumes!$B$39:$H$81,MATCH(AB$11,Volumes!$B$4:$H$4,0),FALSE),0)","v":360},{"$f":"IFERROR(VLOOKUP($B107,Volumes!$B$39:$H$81,MATCH(AC$11,Volumes!$B$4:$H$4,0),FALSE),0)","v":360},{"$f":"IFERROR(VLOOKUP($B107,Volumes!$B$39:$H$81,MATCH(AD$11,Volumes!$B$4:$H$4,0),FALSE),0)","v":360},{"$f":"IFERROR(VLOOKUP($B107,Volumes!$B$39:$H$81,MATCH(AE$11,Volumes!$B$4:$H$4,0),FALSE),0)","v":360},{"$f":"IFERROR(VLOOKUP($B107,Volumes!$B$39:$H$81,MATCH(AF$11,Volumes!$B$4:$H$4,0),FALSE),0)","v":360},null,null,null,null,null,null,137.62233685243058,133.00688215458808,128.89839785835301,124.91682160581446,121.38989969389532,null,null,null,null,null,null,140.99401687405668,139.60392362432515,138.60624120871083,137.61568875174365,137.0065501354579,null,null,null,null,null,null,null,49544.041266875007,47882.477575651712,46403.423229007079,44970.055778093207,43700.363889802313,null,null,null,null,null,null,null,50757.846074660403,50257.412504757056,49898.246835135898,49541.64795062771,49322.358048764843]
[null,{"$f":"Inputs!$C102","v":"18W LED Decorative - Bottom Pole Entry"},"Offered",{"$f":"IF($C108=\"NA\",\"\",'Unsmoothed Prices'!D106)","v":48.088000000000001},{"$f":"IF($C108=\"NA\",\"\",'Unsmoothed Prices'!E106)","v":50.720314048647587},49.153601030543882,47.635282619751585,46.163863942614981,44.737896301020861,null,null,null,null,null,null,null,51.96293696495367,51.591582728427198,51.222882382866885,50.856816962184368,50.493367635832861,null,null,null,null,null,null,{"$f":"IFERROR(VLOOKUP($B108,Volumes!$B$39:$H$81,MATCH(AB$11,Volumes!$B$4:$H$4,0),FALSE),0)","v":36},{"$f":"IFERROR(VLOOKUP($B108,Volumes!$B$39:$H$81,MATCH(AC$11,Volumes!$B$4:$H$4,0),FALSE),0)","v":38},{"$f":"IFERROR(VLOOKUP($B108,Volumes!$B$39:$H$81,MATCH(AD$11,Volumes!$B$4:$H$4,0),FALSE),0)","v":40},{"$f":"IFERROR(VLOOKUP($B108,Volumes!$B$39:$H$81,MATCH(AE$11,Volumes!$B$4:$H$4,0),FALSE),0)","v":42},{"$f":"IFERROR(VLOOKUP($B108,Volumes!$B$39:$H$81,MATCH(AF$11,Volumes!$B$4:$H$4,0),FALSE),0)","v":44},null,null,null,null,null,null,185.63634941805014,179.41064376148515,173.86878156209329,168.49810339054468,163.74070046173634,null,null,null,null,null,null,190.18434929173043,188.30927695875928,186.96352069746411,185.62738191197295,184.80572554714828,null,null,null,null,null,null,null,6682.9085790498048,6817.604462936436,6954.7512624837318,7076.9203424028765,7204.590820316399,null,null,null,null,null,null,null,6846.6365745022958,7155.7525244328526,7478.5408278985642,7796.3500403028638,8131.4519240745249]
[null,{"$f":"Inputs!$C103","v":"18W LED Decorative - Side Entry"},"Offered",{"$f":"IF($C109=\"NA\",\"\",'Unsmoothed Prices'!D107)","v":48.088000000000001},{"$f":"IF($C109=\"NA\",\"\",'Unsmoothed Prices'!E107)","v":50.720314048647587},49.153601030543882,47.635282619751585,46.163863942614981,44.737896301020861,null,null,null,null,null,null,null,51.96293696495367,51.591582728427198,51.222882382866885,50.856816962184368,50.493367635832861,null,null,null,null,null,null,{"$f":"IFERROR(VLOOKUP($B109,Volumes!$B$39:$H$81,MATCH(AB$11,Volumes!$B$4:$H$4,0),FALSE),0)","v":36},{"$f":"IFERROR(VLOOKUP($B109,Volumes!$B$39:$H$81,MATCH(AC$11,Volumes!$B$4:$H$4,0),FALSE),0)","v":38},{"$f":"IFERROR(VLOOKUP($B109,Volumes!$B$39:$H$81,MATCH(AD$11,Volumes!$B$4:$H$4,0),FALSE),0)","v":40},{"$f":"IFERROR(VLOOKUP($B109,Volumes!$B$39:$H$81,MATCH(AE$11,Volumes!$B$4:$H$4,0),FALSE),0)","v":42},{"$f":"IFERROR(VLOOKUP($B109,Volumes!$B$39:$H$81,MATCH(AF$11,Volumes!$B$4:$H$4,0),FALSE),0)","v":44},null,null,null,null,null,null,185.63634941805014,179.41064376148515,173.86878156209329,168.49810339054468,163.74070046173634,null,null,null,null,null,null,190.18434929173043,188.30927695875928,186.96352069746411,185.62738191197295,184.80572554714828,null,null,null,null,null,null,null,6682.9085790498048,6817.604462936436,6954.7512624837318,7076.9203424028765,7204.590820316399,null,null,null,null,null,null,null,6846.6365745022958,7155.7525244328526,7478.5408278985642,7796.3500403028638,8131.4519240745249]
[null,{"$f":"Inputs!$C104","v":"18W LED Decorative - Top Entry"},"Offered",{"$f":"IF($C110=\"NA\",\"\",'Unsmoothed Prices'!D108)","v":48.088000000000001},{"$f":"IF($C110=\"NA\",\"\",'Unsmoothed Prices'!E108)","v":50.720314048647587},49.153601030543882,47.635282619751585,46.163863942614981,44.737896301020861,null,null,null,null,null,null,null,51.96293696495367,51.591582728427198,51.222882382866885,50.856816962184368,50.493367635832861,null,null,null,null,null,null,{"$f":"IFERROR(VLOOKUP($B110,Volumes!$B$39:$H$81,MATCH(AB$11,Volumes!$B$4:$H$4,0),FALSE),0)","v":36},{"$f":"IFERROR(VLOOKUP($B110,Volumes!$B$39:$H$81,MATCH(AC$11,Volumes!$B$4:$H$4,0),FALSE),0)","v":38},{"$f":"IFERROR(VLOOKUP($B110,Volumes!$B$39:$H$81,MATCH(AD$11,Volumes!$B$4:$H$4,0),FALSE),0)","v":40},{"$f":"IFERROR(VLOOKUP($B110,Volumes!$B$39:$H$81,MATCH(AE$11,Volumes!$B$4:$H$4,0),FALSE),0)","v":42},{"$f":"IFERROR(VLOOKUP($B110,Volumes!$B$39:$H$81,MATCH(AF$11,Volumes!$B$4:$H$4,0),FALSE),0)","v":44},null,null,null,null,null,null,185.63634941805014,179.41064376148515,173.86878156209329,168.49810339054468,163.74070046173634,null,null,null,null,null,null,190.18434929173043,188.30927695875928,186.96352069746411,185.62738191197295,184.80572554714828,null,null,null,null,null,null,null,6682.9085790498048,6817.604462936436,6954.7512624837318,7076.9203424028765,7204.590820316399,null,null,null,null,null,null,null,6846.6365745022958,7155.7525244328526,7478.5408278985642,7796.3500403028638,8131.4519240745249]
[null,{"$f":"Inputs!$C105","v":"25W LED"},"Offered",{"$f":"IF($C111=\"NA\",\"\",'Unsmoothed Prices'!D109)","v":34.338999999999999},{"$f":"IF($C111=\"NA\",\"\",'Unsmoothed Prices'!E109)","v":37.832468091123793},36.663851110390858,35.531331844572215,34.433795261930761,33.370160773235732,null,null,null,null,null,null,null,38.759345077440535,38.482350591751498,38.207335653058138,37.934286114485644,37.663187930260179,null,null,null,null,null,null,{"$f":"IFERROR(VLOOKUP($B111,Volumes!$B$39:$H$81,MATCH(AB$11,Volumes!$B$4:$H$4,0),FALSE),0)","v":21},{"$f":"IFERROR(VLOOKUP($B111,Volumes!$B$39:$H$81,MATCH(AC$11,Volumes!$B$4:$H$4,0),FALSE),0)","v":21},{"$f":"IFERROR(VLOOKUP($B111,Volumes!$B$39:$H$81,MATCH(AD$11,Volumes!$B$4:$H$4,0),FALSE),0)","v":21},{"$f":"IFERROR(VLOOKUP($B111,Volumes!$B$39:$H$81,MATCH(AE$11,Volumes!$B$4:$H$4,0),FALSE),0)","v":21},{"$f":"IFERROR(VLOOKUP($B111,Volumes!$B$39:$H$81,MATCH(AF$11,Volumes!$B$4:$H$4,0),FALSE),0)","v":21},null,null,null,null,null,null,138.4668332135131,133.82305655292663,129.68936123268858,125.68335270604729,122.13478843004278,null,null,null,null,null,null,141.85920298343234,140.46057965989297,139.45677513366221,138.46014431787259,137.84726782475227,null,null,null,null,null,null,null,2907.8034974837751,2810.2841876114594,2723.4765858864603,2639.3504068269931,2564.8305570308985,null,null,null,null,null,null,null,2979.0432626520792,2949.6721728577522,2928.5922778069062,2907.6630306753245,2894.7926243197976]
[null,{"$f":"Inputs!$C106","v":"25W LED Decorative - Bottom Pole Entry"},"Offered",{"$f":"IF($C112=\"NA\",\"\",'Unsmoothed Prices'!D110)","v":48.088000000000001},{"$f":"IF($C112=\"NA\",\"\",'Unsmoothed Prices'!E110)","v":50.950006701811489},49.376198647396897,47.851004360722051,46.372922198427567,44.940496901807698,null,null,null,null,null,null,null,52.198256975910645,51.825221019910401,51.454850973320376,51.087127784162149,50.722032536612666,null,null,null,null,null,null,{"$f":"IFERROR(VLOOKUP($B112,Volumes!$B$39:$H$81,MATCH(AB$11,Volumes!$B$4:$H$4,0),FALSE),0)","v":36},{"$f":"IFERROR(VLOOKUP($B112,Volumes!$B$39:$H$81,MATCH(AC$11,Volumes!$B$4:$H$4,0),FALSE),0)","v":38},{"$f":"IFERROR(VLOOKUP($B112,Volumes!$B$39:$H$81,MATCH(AD$11,Volumes!$B$4:$H$4,0),FALSE),0)","v":40},{"$f":"IFERROR(VLOOKUP($B112,Volumes!$B$39:$H$81,MATCH(AE$11,Volumes!$B$4:$H$4,0),FALSE),0)","v":42},{"$f":"IFERROR(VLOOKUP($B112,Volumes!$B$39:$H$81,MATCH(AF$11,Volumes!$B$4:$H$4,0),FALSE),0)","v":44},null,null,null,null,null,null,186.47702452863007,180.22312506299866,174.65616591663547,169.2611660242606,164.48221866061616,null,null,null,null,null,null,191.04562053183298,189.16205672267296,187.81020605261935,186.46801641219182,185.64263908400235,null,null,null,null,null,null,null,6713.172883030682,6848.4787523939494,6986.2466366654189,7108.9689730189457,7237.2176210671105,null,null,null,null,null,null,null,6877.6423391459875,7188.1581554615723,7512.4082421047742,7831.6566893120562,8168.2761196961037]
[null,{"$f":"Inputs!$C107","v":"25W LED Decorative - Side Entry"},"Offered",{"$f":"IF($C113=\"NA\",\"\",'Unsmoothed Prices'!D111)","v":48.088000000000001},{"$f":"IF($C113=\"NA\",\"\",'Unsmoothed Prices'!E111)","v":50.950006701811489},49.376198647396897,47.851004360722051,46.372922198427567,44.940496901807698,null,null,null,null,null,null,null,52.198256975910645,51.825221019910401,51.454850973320376,51.087127784162149,50.722032536612666,null,null,null,null,null,null,{"$f":"IFERROR(VLOOKUP($B113,Volumes!$B$39:$H$81,MATCH(AB$11,Volumes!$B$4:$H$4,0),FALSE),0)","v":36},{"$f":"IFERROR(VLOOKUP($B113,Volumes!$B$39:$H$81,MATCH(AC$11,Volumes!$B$4:$H$4,0),FALSE),0)","v":38},{"$f":"IFERROR(VLOOKUP($B113,Volumes!$B$39:$H$81,MATCH(AD$11,Volumes!$B$4:$H$4,0),FALSE),0)","v":40},{"$f":"IFERROR(VLOOKUP($B113,Volumes!$B$39:$H$81,MATCH(AE$11,Volumes!$B$4:$H$4,0),FALSE),0)","v":42},{"$f":"IFERROR(VLOOKUP($B113,Volumes!$B$39:$H$81,MATCH(AF$11,Volumes!$B$4:$H$4,0),FALSE),0)","v":44},null,null,null,null,null,null,186.47702452863007,180.22312506299866,174.65616591663547,169.2611660242606,164.48221866061616,null,null,null,null,null,null,191.04562053183298,189.16205672267296,187.81020605261935,186.46801641219182,185.64263908400235,null,null,null,null,null,null,null,6713.172883030682,6848.4787523939494,6986.2466366654189,7108.9689730189457,7237.2176210671105,null,null,null,null,null,null,null,6877.6423391459875,7188.1581554615723,7512.4082421047742,7831.6566893120562,8168.2761196961037]
[null,{"$f":"Inputs!$C108","v":"25W LED Decorative - Top Entry"},"Offered",{"$f":"IF($C114=\"NA\",\"\",'Unsmoothed Prices'!D112)","v":48.088000000000001},{"$f":"IF($C114=\"NA\",\"\",'Unsmoothed Prices'!E112)","v":50.950006701811489},49.376198647396897,47.851004360722051,46.372922198427567,44.940496901807698,null,null,null,null,null,null,null,52.198256975910645,51.825221019910401,51.454850973320376,51.087127784162149,50.722032536612666,null,null,null,null,null,null,{"$f":"IFERROR(VLOOKUP($B114,Volumes!$B$39:$H$81,MATCH(AB$11,Volumes!$B$4:$H$4,0),FALSE),0)","v":36},{"$f":"IFERROR(VLOOKUP($B114,Volumes!$B$39:$H$81,MATCH(AC$11,Volumes!$B$4:$H$4,0),FALSE),0)","v":38},{"$f":"IFERROR(VLOOKUP($B114,Volumes!$B$39:$H$81,MATCH(AD$11,Volumes!$B$4:$H$4,0),FALSE),0)","v":40},{"$f":"IFERROR(VLOOKUP($B114,Volumes!$B$39:$H$81,MATCH(AE$11,Volumes!$B$4:$H$4,0),FALSE),0)","v":42},{"$f":"IFERROR(VLOOKUP($B114,Volumes!$B$39:$H$81,MATCH(AF$11,Volumes!$B$4:$H$4,0),FALSE),0)","v":44},null,null,null,null,null,null,186.47702452863007,180.22312506299866,174.65616591663547,169.2611660242606,164.48221866061616,null,null,null,null,null,null,191.04562053183298,189.16205672267296,187.81020605261935,186.46801641219182,185.64263908400235,null,null,null,null,null,null,null,6713.172883030682,6848.4787523939494,6986.2466366654189,7108.9689730189457,7237.2176210671105,null,null,null,null,null,null,null,6877.6423391459875,7188.1581554615723,7512.4082421047742,7831.6566893120562,8168.2761196961037]
[null,{"$f":"Inputs!$C109","v":"30W LED"},"Not Offered",{"$f":"IF($C115=\"NA\",\"\",'Unsmoothed Prices'!D113)","v":34.338999999999999},{"$f":"IF($C115=\"NA\",\"\",'Unsmoothed Prices'!E113)","v":37.832468091123793},36.663851110390858,35.531331844572215,34.433795261930761,33.370160773235732,null,null,null,null,null,null,null,38.759345077440535,38.482350591751498,38.207335653058138,37.934286114485644,37.663187930260179,null,null,null,null,null,null,{"$f":"IFERROR(VLOOKUP($B115,Volumes!$B$39:$H$81,MATCH(AB$11,Volumes!$B$4:$H$4,0),FALSE),0)","v":0},{"$f":"IFERROR(VLOOKUP($B115,Volumes!$B$39:$H$81,MATCH(AC$11,Volumes!$B$4:$H$4,0),FALSE),0)","v":0},{"$f":"IFERROR(VLOOKUP($B115,Volumes!$B$39:$H$81,MATCH(AD$11,Volumes!$B$4:$H$4,0),FALSE),0)","v":0},{"$f":"IFERROR(VLOOKUP($B115,Volumes!$B$39:$H$81,MATCH(AE$11,Volumes!$B$4:$H$4,0),FALSE),0)","v":0},{"$f":"IFERROR(VLOOKUP($B115,Volumes!$B$39:$H$81,MATCH(AF$11,Volumes!$B$4:$H$4,0),FALSE),0)","v":0},null,null,null,null,null,null,138.4668332135131,133.82305655292663,129.68936123268858,125.68335270604729,122.13478843004278,null,null,null,null,null,null,141.85920298343234,140.46057965989297,139.45677513366221,138.46014431787259,137.84726782475227,null,null,null,null,null,null,null,0,0,0,0,0,null,null,null,null,null,null,null,0,0,0,0,0]
[null,{"$f":"Inputs!$C110","v":"88 LED Light"},"Not Offered",{"$f":"IF($C116=\"NA\",\"\",'Unsmoothed Prices'!D114)","v":34.338999999999999},{"$f":"IF($C116=\"NA\",\"\",'Unsmoothed Prices'!E114)","v":37.832468091123793},36.663851110390858,35.531331844572215,34.433795261930761,33.370160773235732,null,null,null,null,null,null,null,38.759345077440535,38.482350591751498,38.207335653058138,37.934286114485644,37.663187930260179,null,null,null,null,null,null,{"$f":"IFERROR(VLOOKUP($B116,Volumes!$B$39:$H$81,MATCH(AB$11,Volumes!$B$4:$H$4,0),FALSE),0)","v":0},{"$f":"IFERROR(VLOOKUP($B116,Volumes!$B$39:$H$81,MATCH(AC$11,Volumes!$B$4:$H$4,0),FALSE),0)","v":0},{"$f":"IFERROR(VLOOKUP($B116,Volumes!$B$39:$H$81,MATCH(AD$11,Volumes!$B$4:$H$4,0),FALSE),0)","v":0},{"$f":"IFERROR(VLOOKUP($B116,Volumes!$B$39:$H$81,MATCH(AE$11,Volumes!$B$4:$H$4,0),FALSE),0)","v":0},{"$f":"IFERROR(VLOOKUP($B116,Volumes!$B$39:$H$81,MATCH(AF$11,Volumes!$B$4:$H$4,0),FALSE),0)","v":0},null,null,null,null,null,null,138.4668332135131,133.82305655292663,129.68936123268858,125.68335270604729,122.13478843004278,null,null,null,null,null,null,141.85920298343234,140.46057965989297,139.45677513366221,138.46014431787259,137.84726782475227,null,null,null,null,null,null,null,0,0,0,0,0,null,null,null,null,null,null,null,0,0,0,0,0]
[null,{"$f":"Inputs!$C111","v":"100W Metal Halide"},"Offered",{"$f":"IF($C117=\"NA\",\"\",'Unsmoothed Prices'!D115)","v":45.676000000000002},{"$f":"IF($C117=\"NA\",\"\",'Unsmoothed Prices'!E115)","v":46.569141371467211},45.130655009600233,43.736602428394391,42.385611101202109,41.076350897709638,null,null,null,null,null,null,null,47.710062585113086,47.369101605985321,47.030577311761924,46.6944722886223,46.360769247194085,null,null,null,null,null,null,{"$f":"IFERROR(VLOOKUP($B117,Volumes!$B$39:$H$81,MATCH(AB$11,Volumes!$B$4:$H$4,0),FALSE),0)","v":18},{"$f":"IFERROR(VLOOKUP($B117,Volumes!$B$39:$H$81,MATCH(AC$11,Volumes!$B$4:$H$4,0),FALSE),0)","v":19},{"$f":"IFERROR(VLOOKUP($B117,Volumes!$B$39:$H$81,MATCH(AD$11,Volumes!$B$4:$H$4,0),FALSE),0)","v":20},{"$f":"IFERROR(VLOOKUP($B117,Volumes!$B$39:$H$81,MATCH(AE$11,Volumes!$B$4:$H$4,0),FALSE),0)","v":21},{"$f":"IFERROR(VLOOKUP($B117,Volumes!$B$39:$H$81,MATCH(AF$11,Volumes!$B$4:$H$4,0),FALSE),0)","v":22},null,null,null,null,null,null,170.44305741956998,164.72689078504084,159.63859886363952,154.7074805193877,150.33944428561728,null,null,null,null,null,null,174.61882906151391,172.89722086184645,171.66160718793105,170.43482385347139,169.68041544473036,null,null,null,null,null,null,null,3067.9750335522594,3129.810924915776,3192.7719772727905,3248.8570909071418,3307.4677742835802,null,null,null,null,null,null,null,3143.1389231072503,3285.0471963750824,3433.2321437586211,3579.1313009228993,3732.9691397840679]
[null,{"$f":"Inputs!$C112","v":"150W Metal Halide"},"Offered",{"$f":"IF($C118=\"NA\",\"\",'Unsmoothed Prices'!D116)","v":48.462000000000003},{"$f":"IF($C118=\"NA\",\"\",'Unsmoothed Prices'!E116)","v":49.347378417236072},47.823074366172435,46.345854940769016,44.914265731735227,43.526897255408628,null,null,null,null,null,null,null,50.556365081279033,50.195062940698065,49.836342853565327,49.480186367180828,49.126575160717174,null,null,null,null,null,null,{"$f":"IFERROR(VLOOKUP($B118,Volumes!$B$39:$H$81,MATCH(AB$11,Volumes!$B$4:$H$4,0),FALSE),0)","v":15},{"$f":"IFERROR(VLOOKUP($B118,Volumes!$B$39:$H$81,MATCH(AC$11,Volumes!$B$4:$H$4,0),FALSE),0)","v":15},{"$f":"IFERROR(VLOOKUP($B118,Volumes!$B$39:$H$81,MATCH(AD$11,Volumes!$B$4:$H$4,0),FALSE),0)","v":15},{"$f":"IFERROR(VLOOKUP($B118,Volumes!$B$39:$H$81,MATCH(AE$11,Volumes!$B$4:$H$4,0),FALSE),0)","v":16},{"$f":"IFERROR(VLOOKUP($B118,Volumes!$B$39:$H$81,MATCH(AF$11,Volumes!$B$4:$H$4,0),FALSE),0)","v":16},null,null,null,null,null,null,180.61140500708404,174.55422143652936,169.16237053380689,163.93706992083355,159.30844395479559,null,null,null,null,null,null,185.03629619748125,183.21197973354793,181.90265141551342,180.60268024021002,179.80326508822486,null,null,null,null,null,null,null,2709.1710751062606,2618.3133215479402,2537.4355580071033,2622.9931187333368,2548.9351032767295,null,null,null,null,null,null,null,2775.5444429622189,2748.1796960032189,2728.5397712327012,2889.6428838433603,2876.8522414115978]
[null,{"$f":"Inputs!$C113","v":"250W Metal Halide"},"Offered",{"$f":"IF($C119=\"NA\",\"\",'Unsmoothed Prices'!D117)","v":49.326999999999998},{"$f":"IF($C119=\"NA\",\"\",'Unsmoothed Prices'!E117)","v":50.29538264029437},48.741795439365802,47.236197398956222,45.777106169361709,44.363085189565219,null,null,null,null,null,null,null,51.527594944683273,51.159351889183277,50.793740490527924,50.430741941525483,50.070337569390219,null,null,null,null,null,null,{"$f":"IFERROR(VLOOKUP($B119,Volumes!$B$39:$H$81,MATCH(AB$11,Volumes!$B$4:$H$4,0),FALSE),0)","v":91},{"$f":"IFERROR(VLOOKUP($B119,Volumes!$B$39:$H$81,MATCH(AC$11,Volumes!$B$4:$H$4,0),FALSE),0)","v":93},{"$f":"IFERROR(VLOOKUP($B119,Volumes!$B$39:$H$81,MATCH(AD$11,Volumes!$B$4:$H$4,0),FALSE),0)","v":95},{"$f":"IFERROR(VLOOKUP($B119,Volumes!$B$39:$H$81,MATCH(AE$11,Volumes!$B$4:$H$4,0),FALSE),0)","v":97},{"$f":"IFERROR(VLOOKUP($B119,Volumes!$B$39:$H$81,MATCH(AF$11,Volumes!$B$4:$H$4,0),FALSE),0)","v":99},null,null,null,null,null,null,184.08110046347738,177.90755335368519,172.41212050619023,167.08643751817024,162.3688917938087,null,null,null,null,null,null,188.59099749754077,186.73163439551897,185.39715279042693,184.07220808656803,183.2574355039682,null,null,null,null,null,null,null,16751.38014217644,16545.402461892721,16379.151448088072,16207.384439262514,16074.520287587062,null,null,null,null,null,null,null,17161.780772276212,17366.041998783265,17612.729515090559,17855.004184397098,18142.48611489285]
[null,{"$f":"Inputs!$C114","v":"400W Metal Halide"},"Not Offered",{"$f":"IF($C120=\"NA\",\"\",'Unsmoothed Prices'!D118)","v":54.732999999999997},{"$f":"IF($C120=\"NA\",\"\",'Unsmoothed Prices'!E118)","v":55.037491870614609},53.337424420031304,51.689870796628341,50.093208887092402,48.545866683991662,null,null,null,null,null,null,null,56.385883534531345,55.982920616077394,55.582837480708683,55.185613547994009,54.791228384580677,null,null,null,null,null,null,{"$f":"IFERROR(VLOOKUP($B120,Volumes!$B$39:$H$81,MATCH(AB$11,Volumes!$B$4:$H$4,0),FALSE),0)","v":18},{"$f":"IFERROR(VLOOKUP($B120,Volumes!$B$39:$H$81,MATCH(AC$11,Volumes!$B$4:$H$4,0),FALSE),0)","v":19},{"$f":"IFERROR(VLOOKUP($B120,Volumes!$B$39:$H$81,MATCH(AD$11,Volumes!$B$4:$H$4,0),FALSE),0)","v":20},{"$f":"IFERROR(VLOOKUP($B120,Volumes!$B$39:$H$81,MATCH(AE$11,Volumes!$B$4:$H$4,0),FALSE),0)","v":21},{"$f":"IFERROR(VLOOKUP($B120,Volumes!$B$39:$H$81,MATCH(AF$11,Volumes!$B$4:$H$4,0),FALSE),0)","v":22},null,null,null,null,null,null,201.43722024644947,194.68159913311425,188.66802840769344,182.84021243788729,177.6778720634095,null,null,null,null,null,null,206.37233373638472,204.33766024868248,202.8773568045867,201.42748945017814,200.53589588756529,null,null,null,null,null,null,null,3625.8699644360904,3698.9503835291707,3773.3605681538688,3839.6444611956331,3908.9131853950089,null,null,null,null,null,null,null,3714.7020072549249,3882.4155447249673,4057.547136091734,4229.9772784537408,4411.7897095264361]
[null,{"$f":"Inputs!$C115","v":"70W Metal Halide"},"Old light no volumes",{"$f":"IF($C121=\"NA\",\"\",'Unsmoothed Prices'!D119)","v":34.676000000000002},{"$f":"IF($C121=\"NA\",\"\",'Unsmoothed Prices'!E119)","v":38.563308351190763},37.372116254923192,36.217719202205522,35.098980621334434,34.014799048466578,null,null,null,null,null,null,null,39.508090566849091,39.22574515556169,38.945417531773799,38.667093275324035,38.390758069105026,null,null,null,null,null,null,{"$f":"IFERROR(VLOOKUP($B121,Volumes!$B$39:$H$81,MATCH(AB$11,Volumes!$B$4:$H$4,0),FALSE),0)","v":0},{"$f":"IFERROR(VLOOKUP($B121,Volumes!$B$39:$H$81,MATCH(AC$11,Volumes!$B$4:$H$4,0),FALSE),0)","v":0},{"$f":"IFERROR(VLOOKUP($B121,Volumes!$B$39:$H$81,MATCH(AD$11,Volumes!$B$4:$H$4,0),FALSE),0)","v":0},{"$f":"IFERROR(VLOOKUP($B121,Volumes!$B$39:$H$81,MATCH(AE$11,Volumes!$B$4:$H$4,0),FALSE),0)","v":0},{"$f":"IFERROR(VLOOKUP($B121,Volumes!$B$39:$H$81,MATCH(AF$11,Volumes!$B$4:$H$4,0),FALSE),0)","v":0},null,null,null,null,null,null,141.14170856535819,136.40822433046966,132.19467508805016,128.11127926787069,124.49416451738767,null,null,null,null,null,null,144.59961147466768,143.17396981780018,142.15077399097439,141.13489045493273,140.5101745329244,null,null,null,null,null,null,null,0,0,0,0,0,null,null,null,null,null,null,null,0,0,0,0,0]
[null,{"$f":"Inputs!$C116","v":"250W Metal Halide - Flood Light"},"Obsolete, no new Connections",{"$f":"IF($C122=\"NA\",\"\",'Unsmoothed Prices'!D120)","v":54.883000000000003},{"$f":"IF($C122=\"NA\",\"\",'Unsmoothed Prices'!E120)","v":55.336092319727683},53.626801321940228,51.970309059889949,50.364984619648759,48.809247465014543,null,null,null,null,null,null,null,56.691799548775414,56.286650395005559,55.884396648298228,55.485017616565123,55.088492755594423,null,null,null,null,null,null,{"$f":"IFERROR(VLOOKUP($B122,Volumes!$B$39:$H$81,MATCH(AB$11,Volumes!$B$4:$H$4,0),FALSE),0)","v":36},{"$f":"IFERROR(VLOOKUP($B122,Volumes!$B$39:$H$81,MATCH(AC$11,Volumes!$B$4:$H$4,0),FALSE),0)","v":38},{"$f":"IFERROR(VLOOKUP($B122,Volumes!$B$39:$H$81,MATCH(AD$11,Volumes!$B$4:$H$4,0),FALSE),0)","v":40},{"$f":"IFERROR(VLOOKUP($B122,Volumes!$B$39:$H$81,MATCH(AE$11,Volumes!$B$4:$H$4,0),FALSE),0)","v":42},{"$f":"IFERROR(VLOOKUP($B122,Volumes!$B$39:$H$81,MATCH(AF$11,Volumes!$B$4:$H$4,0),FALSE),0)","v":44},null,null,null,null,null,null,202.53009789020334,195.73782482508184,189.69162806859833,183.83219386171797,178.64184572195322,null,null,null,null,null,null,207.491986348518,205.4462739417703,203.97804776628854,202.5203143004627,201.6238834854756,null,null,null,null,null,null,null,7291.0835240473198,7438.0373433531104,7587.6651227439334,7720.9521421921545,7860.2412117659414,null,null,null,null,null,null,null,7469.7115085466476,7806.9584097872712,8159.1219106515418,8505.8532006194328,8871.4508733609273]
[null,{"$f":"Inputs!$C117","v":"400W Metal Halide - Flood Light"},"Obsolete, no new Connections",{"$f":"IF($C123=\"NA\",\"\",'Unsmoothed Prices'!D121)","v":54.732999999999997},{"$f":"IF($C123=\"NA\",\"\",'Unsmoothed Prices'!E121)","v":55.037491870614609},53.337424420031304,51.689870796628341,50.093208887092402,48.545866683991662,null,null,null,null,null,null,null,56.385883534531345,55.982920616077394,55.582837480708683,55.185613547994009,54.791228384580677,null,null,null,null,null,null,{"$f":"IFERROR(VLOOKUP($B123,Volumes!$B$39:$H$81,MATCH(AB$11,Volumes!$B$4:$H$4,0),FALSE),0)","v":36},{"$f":"IFERROR(VLOOKUP($B123,Volumes!$B$39:$H$81,MATCH(AC$11,Volumes!$B$4:$H$4,0),FALSE),0)","v":38},{"$f":"IFERROR(VLOOKUP($B123,Volumes!$B$39:$H$81,MATCH(AD$11,Volumes!$B$4:$H$4,0),FALSE),0)","v":40},{"$f":"IFERROR(VLOOKUP($B123,Volumes!$B$39:$H$81,MATCH(AE$11,Volumes!$B$4:$H$4,0),FALSE),0)","v":42},{"$f":"IFERROR(VLOOKUP($B123,Volumes!$B$39:$H$81,MATCH(AF$11,Volumes!$B$4:$H$4,0),FALSE),0)","v":44},null,null,null,null,null,null,201.43722024644947,194.68159913311425,188.66802840769344,182.84021243788729,177.6778720634095,null,null,null,null,null,null,206.37233373638472,204.33766024868248,202.8773568045867,201.42748945017814,200.53589588756529,null,null,null,null,null,null,null,7251.7399288721808,7397.9007670583414,7546.7211363077377,7679.2889223912662,7817.8263707900178,null,null,null,null,null,null,null,7429.4040145098497,7764.8310894499346,8115.0942721834681,8459.9545569074817,8823.5794190528723]
[null,{"$f":"Inputs!$C118","v":"125W Mercury Vapour"},"Obsolete, no new Connections",{"$f":"IF($C124=\"NA\",\"\",'Unsmoothed Prices'!D122)","v":45.386000000000003},{"$f":"IF($C124=\"NA\",\"\",'Unsmoothed Prices'!E122)","v":46.57436165903912},45.135714046346898,43.741505195234637,42.390362425197857,41.080955456818437,null,null,null,null,null,null,null,47.715410767180288,47.374411567155398,47.035849325181331,46.69970662548544,46.365966176757269,null,null,null,null,null,null,{"$f":"IFERROR(VLOOKUP($B124,Volumes!$B$39:$H$81,MATCH(AB$11,Volumes!$B$4:$H$4,0),FALSE),0)","v":0},{"$f":"IFERROR(VLOOKUP($B124,Volumes!$B$39:$H$81,MATCH(AC$11,Volumes!$B$4:$H$4,0),FALSE),0)","v":0},{"$f":"IFERROR(VLOOKUP($B124,Volumes!$B$39:$H$81,MATCH(AD$11,Volumes!$B$4:$H$4,0),FALSE),0)","v":0},{"$f":"IFERROR(VLOOKUP($B124,Volumes!$B$39:$H$81,MATCH(AE$11,Volumes!$B$4:$H$4,0),FALSE),0)","v":0},{"$f":"IFERROR(VLOOKUP($B124,Volumes!$B$39:$H$81,MATCH(AF$11,Volumes!$B$4:$H$4,0),FALSE),0)","v":0},null,null,null,null,null,null,170.46216367208319,164.74535626916619,159.65649396260642,154.72482285197219,150.35629697195546,null,null,null,null,null,null,174.63840340787985,172.9166022201172,171.68085003691186,170.45392918302187,169.69943620693161,null,null,null,null,null,null,null,0,0,0,0,0,null,null,null,null,null,null,null,0,0,0,0,0]
[null,{"$f":"Inputs!$C119","v":"250W Mercury Vapour"},"Obsolete, no new Connections",{"$f":"IF($C125=\"NA\",\"\",'Unsmoothed Prices'!D123)","v":45.865000000000002},{"$f":"IF($C125=\"NA\",\"\",'Unsmoothed Prices'!E123)","v":47.017042045136826},45.564720362463625,44.157259823286815,42.793274700036662,41.471422069243985,null,null,null,null,null,null,null,48.168936606479186,47.824696274377573,47.482916063146249,47.143578391478989,46.806665803714729,null,null,null,null,null,null,{"$f":"IFERROR(VLOOKUP($B125,Volumes!$B$39:$H$81,MATCH(AB$11,Volumes!$B$4:$H$4,0),FALSE),0)","v":386},{"$f":"IFERROR(VLOOKUP($B125,Volumes!$B$39:$H$81,MATCH(AC$11,Volumes!$B$4:$H$4,0),FALSE),0)","v":356},{"$f":"IFERROR(VLOOKUP($B125,Volumes!$B$39:$H$81,MATCH(AD$11,Volumes!$B$4:$H$4,0),FALSE),0)","v":301},{"$f":"IFERROR(VLOOKUP($B125,Volumes!$B$39:$H$81,MATCH(AE$11,Volumes!$B$4:$H$4,0),FALSE),0)","v":248},{"$f":"IFERROR(VLOOKUP($B125,Volumes!$B$39:$H$81,MATCH(AF$11,Volumes!$B$4:$H$4,0),FALSE),0)","v":231},null,null,null,null,null,null,172.08237388520081,166.31122932299223,161.17399835499688,156.19545265513381,151.78540477343299,null,null,null,null,null,null,176.29830797971383,174.56014140147815,173.31264363048379,172.07406112889831,171.3123968415959,null,null,null,null,null,null,null,66423.796319687506,59206.797638985234,48513.373504854062,38736.472258473186,35062.428502663017,null,null,null,null,null,null,null,68051.14688016953,62143.410338926224,52167.105732775621,42674.36715996678,39573.163670408656]
[null,{"$f":"Inputs!$C120","v":0},"NA",{"$f":"IF($C126=\"NA\",\"\",'Unsmoothed Prices'!D124)","v":""},{"$f":"IF($C126=\"NA\",\"\",'Unsmoothed Prices'!E124)","v":""},{"$f":"IF($C126=\"NA\",\"\",E126*(1-F$9))","v":""},"","","",null,null,null,null,null,null,null,"","","","","",null,null,null,null,null,null,{"$f":"IFERROR(VLOOKUP($B126,Volumes!$B$39:$H$81,MATCH(AB$11,Volumes!$B$4:$H$4,0),FALSE),0)","v":0},{"$f":"IFERROR(VLOOKUP($B126,Volumes!$B$39:$H$81,MATCH(AC$11,Volumes!$B$4:$H$4,0),FALSE),0)","v":0},{"$f":"IFERROR(VLOOKUP($B126,Volumes!$B$39:$H$81,MATCH(AD$11,Volumes!$B$4:$H$4,0),FALSE),0)","v":0},{"$f":"IFERROR(VLOOKUP($B126,Volumes!$B$39:$H$81,MATCH(AE$11,Volumes!$B$4:$H$4,0),FALSE),0)","v":0},{"$f":"IFERROR(VLOOKUP($B126,Volumes!$B$39:$H$81,MATCH(AF$11,Volumes!$B$4:$H$4,0),FALSE),0)","v":0},null,null,null,null,null,null,"","","","","",null,null,null,null,null,null,"","","","","",null,null,null,null,null,null,null,0,0,0,0,0,null,null,null,null,null,null,null,0,0,0,0,0]
[null,{"$f":"Inputs!$C121","v":"400W Mercury Vapour"},"Obsolete, no new Connections",{"$f":"IF($C127=\"NA\",\"\",'Unsmoothed Prices'!D125)","v":48.033000000000001},{"$f":"IF($C127=\"NA\",\"\",'Unsmoothed Prices'!E125)","v":48.564335281450035},{"$f":"IF($C127=\"NA\",\"\",E127*(1-F$9))","v":47.064218854173504},45.610439914733327,44.201567132374144,42.836213389089863,null,null,null,null,null,null,null,49.754137771198437,49.398568765187143,49.04554084065569,48.695035837711117,48.347035726240541,null,null,null,null,null,null,{"$f":"IFERROR(VLOOKUP($B127,Volumes!$B$39:$H$81,MATCH(AB$11,Volumes!$B$4:$H$4,0),FALSE),0)","v":29},{"$f":"IFERROR(VLOOKUP($B127,Volumes!$B$39:$H$81,MATCH(AC$11,Volumes!$B$4:$H$4,0),FALSE),0)","v":27},{"$f":"IFERROR(VLOOKUP($B127,Volumes!$B$39:$H$81,MATCH(AD$11,Volumes!$B$4:$H$4,0),FALSE),0)","v":23},{"$f":"IFERROR(VLOOKUP($B127,Volumes!$B$39:$H$81,MATCH(AE$11,Volumes!$B$4:$H$4,0),FALSE),0)","v":20},{"$f":"IFERROR(VLOOKUP($B127,Volumes!$B$39:$H$81,MATCH(AF$11,Volumes!$B$4:$H$4,0),FALSE),0)","v":17},null,null,null,null,null,null,177.74546713010713,171.78439881773326,166.47810568877662,161.33572003316564,156.78054100406888,null,null,null,null,null,null,182.10014424258628,180.30477599293306,179.01622406839329,177.73688080764558,176.95015075804039,null,null,null,null,null,null,null,5154.6185467731066,4638.1787680787984,3828.9964308418621,3226.714400663313,2665.2691970691708,null,null,null,null,null,null,null,5280.9041830350025,4868.2289518091929,4117.3731535730458,3554.7376161529114,3008.1525628866866]
[null,{"$f":"Inputs!$C122","v":"50W Mercury Vapour"},"Obsolete, no new Connections",{"$f":"IF($C128=\"NA\",\"\",'Unsmoothed Prices'!D126)","v":33.518999999999998},{"$f":"IF($C128=\"NA\",\"\",'Unsmoothed Prices'!E126)","v":37.104760003599971},{"$f":"IF($C128=\"NA\",\"\",E128*(1-F$9))","v":35.958621387906526},34.847886147043056,33.771460696924535,32.72828523347016,null,null,null,null,null,null,null,38.013808497272301,37.742142004643355,37.472416982394122,37.204619555765134,36.938735949153234,null,null,null,null,null,null,{"$f":"IFERROR(VLOOKUP($B128,Volumes!$B$39:$H$81,MATCH(AB$11,Volumes!$B$4:$H$4,0),FALSE),0)","v":0},{"$f":"IFERROR(VLOOKUP($B128,Volumes!$B$39:$H$81,MATCH(AC$11,Volumes!$B$4:$H$4,0),FALSE),0)","v":0},{"$f":"IFERROR(VLOOKUP($B128,Volumes!$B$39:$H$81,MATCH(AD$11,Volumes!$B$4:$H$4,0),FALSE),0)","v":0},{"$f":"IFERROR(VLOOKUP($B128,Volumes!$B$39:$H$81,MATCH(AE$11,Volumes!$B$4:$H$4,0),FALSE),0)","v":0},{"$f":"IFERROR(VLOOKUP($B128,Volumes!$B$39:$H$81,MATCH(AF$11,Volumes!$B$4:$H$4,0),FALSE),0)","v":0},null,null,null,null,null,null,135.80342161317589,131.24896806585883,127.19478443670715,123.26583154377455,119.78552395450079,null,null,null,null,null,null,139.13053910001662,137.75881831694826,136.77432198573854,135.79686137854276,135.19577357390085,null,null,null,null,null,null,null,0,0,0,0,0,null,null,null,null,null,null,null,0,0,0,0,0]
[null,{"$f":"Inputs!$C123","v":"80W Mercury Vapour Art decorative"},"Obsolete, no new Connections",{"$f":"IF($C129=\"NA\",\"\",'Unsmoothed Prices'!D127)","v":50.566000000000003},{"$f":"IF($C129=\"NA\",\"\",'Unsmoothed Prices'!E127)","v":53.539269337477322},{"$f":"IF($C129=\"NA\",\"\",E129*(1-F$9))","v":51.885480873740022},50.282776713480061,48.72957890031487,47.224358219768419,null,null,null,null,null,null,null,54.850955281243806,54.458961760266504,54.069769629341579,53.683358868275313,53.299709599948727,null,null,null,null,null,null,{"$f":"IFERROR(VLOOKUP($B129,Volumes!$B$39:$H$81,MATCH(AB$11,Volumes!$B$4:$H$4,0),FALSE),0)","v":40},{"$f":"IFERROR(VLOOKUP($B129,Volumes!$B$39:$H$81,MATCH(AC$11,Volumes!$B$4:$H$4,0),FALSE),0)","v":40},{"$f":"IFERROR(VLOOKUP($B129,Volumes!$B$39:$H$81,MATCH(AD$11,Volumes!$B$4:$H$4,0),FALSE),0)","v":40},{"$f":"IFERROR(VLOOKUP($B129,Volumes!$B$39:$H$81,MATCH(AE$11,Volumes!$B$4:$H$4,0),FALSE),0)","v":40},{"$f":"IFERROR(VLOOKUP($B129,Volumes!$B$39:$H$81,MATCH(AF$11,Volumes!$B$4:$H$4,0),FALSE),0)","v":40},null,null,null,null,null,null,195.95372577516702,189.3820051891511,183.53213500420222,177.86296298614928,172.84115108435242,null,null,null,null,null,null,200.75449632935232,198.77521042497276,197.35465914709675,195.9442598692049,195.07693713581233,null,null,null,null,null,null,null,7838.1490310066802,7575.2802075660438,7341.2854001680889,7114.5185194459718,6913.6460433740967,null,null,null,null,null,null,null,8030.1798531740933,{"$f":"IFERROR(AY129*AC129,0)","v":7951.0084169989104},7894.1863658838702,7837.7703947681957,7803.0774854324936]
[null,{"$f":"Inputs!$C124","v":"80W Mercury Vapour"},"Obsolete, no new Connections",{"$f":"IF($C130=\"NA\",\"\",'Unsmoothed Prices'!D128)","v":33.520000000000003},{"$f":"IF($C130=\"NA\",\"\",'Unsmoothed Prices'!E128)","v":37.101627831056831},{"$f":"IF($C130=\"NA\",\"\",E130*(1-F$9))","v":35.955585965858532},34.844944486938914,33.768609902527096,32.725522498004892,null,null,null,null,null,null,null,38.010599588031987,37.738956027941313,37.469253774342484,37.201478953647268,36.935617791415332,null,null,null,null,null,null,{"$f":"IFERROR(VLOOKUP($B130,Volumes!$B$39:$H$81,MATCH(AB$11,Volumes!$B$4:$H$4,0),FALSE),0)","v":3200},{"$f":"IFERROR(VLOOKUP($B130,Volumes!$B$39:$H$81,MATCH(AC$11,Volumes!$B$4:$H$4,0),FALSE),0)","v":0},{"$f":"IFERROR(VLOOKUP($B130,Volumes!$B$39:$H$81,MATCH(AD$11,Volumes!$B$4:$H$4,0),FALSE),0)","v":0},{"$f":"IFERROR(VLOOKUP($B130,Volumes!$B$39:$H$81,MATCH(AE$11,Volumes!$B$4:$H$4,0),FALSE),0)","v":0},{"$f":"IFERROR(VLOOKUP($B130,Volumes!$B$39:$H$81,MATCH(AF$11,Volumes!$B$4:$H$4,0),FALSE),0)","v":0},null,null,null,null,null,null,135.79195786166801,131.23788877538362,127.18404737732705,123.25542614422389,119.7754123426979,null,null,null,null,null,null,139.11879449219705,137.74718950198579,136.76277627635008,135.78539818081254,135.18436111658011,null,null,null,null,null,null,null,434534.26515733765,0,0,0,0,null,null,null,null,null,null,null,445180.14237503055,0,0,0,0]
[null,{"$f":"Inputs!$C125","v":"14W LED"},"Offered",{"$f":"IF($C131=\"NA\",\"\",'Unsmoothed Prices'!D129)","v":{"$error":"#N/A"}},{"$f":"IF($C131=\"NA\",\"\",'Unsmoothed Prices'!E129)","v":35.743309004846651},{"$f":"IF($C131=\"NA\",\"\",E131*(1-F$9))","v":34.639224604377723},33.569244555109009,32.532315398835408,31.527416217897269,null,null,null,null,null,null,null,36.619002614145515,{"$f":"IF($C131=\"NA\",\"\",F131*R$9)","v":36.357304131488377},36.097475882615235,35.839504501860482,35.583376719076533,null,null,null,null,null,null,{"$f":"IFERROR(VLOOKUP($B131,Volumes!$B$39:$H$81,MATCH(AB$11,Volumes!$B$4:$H$4,0),FALSE),0)","v":10871},{"$f":"IFERROR(VLOOKUP($B131,Volumes!$B$39:$H$81,MATCH(AC$11,Volumes!$B$4:$H$4,0),FALSE),0)","v":12681},{"$f":"IFERROR(VLOOKUP($B131,Volumes!$B$39:$H$81,MATCH(AD$11,Volumes!$B$4:$H$4,0),FALSE),0)","v":12761},{"$f":"IFERROR(VLOOKUP($B131,Volumes!$B$39:$H$81,MATCH(AE$11,Volumes!$B$4:$H$4,0),FALSE),0)","v":12841},{"$f":"IFERROR(VLOOKUP($B131,Volumes!$B$39:$H$81,MATCH(AF$11,Volumes!$B$4:$H$4,0),FALSE),0)","v":12876},null,null,null,null,null,null,130.82051095773875,126.43316980597869,122.52774262614788,118.74295120574924,115.39034335750401,null,null,null,null,null,null,134.02554956777257,{"$f":"IF($C131=\"NA\",\"\",(R131*AY$9)/100)","v":132.70416007993256},131.7557869715456,130.81419143179076,130.23515879182011,null,null,null,null,null,null,null,1422149.7746215779,1603299.0263096157,1563576.5236522732,1524778.2364330259,1485766.0610712217,null,null,null,null,null,null,null,1456991.7493512556,{"$f":"IFERROR(AY131*AC131,0)","v":1682821.4539736249},1681335.5975438934,1679785.0321756252,1676907.9046034757]
[null,{"$f":"Inputs!$C126","v":"New technology - Minor"},"Offered",{"$f":"IF($C132=\"NA\",\"\",'Unsmoothed Prices'!D130)","v":{"$error":"#N/A"}},{"$f":"IF($C132=\"NA\",\"\",'Unsmoothed Prices'!E130)","v":35.743309004846651},{"$f":"IF($C132=\"NA\",\"\",E132*(1-F$9))","v":34.639224604377723},33.569244555109009,32.532315398835408,31.527416217897269,null,null,null,null,null,null,null,36.619002614145515,36.357304131488377,36.097475882615235,35.839504501860482,35.583376719076533,null,null,null,null,null,null,{"$f":"IFERROR(VLOOKUP($B132,Volumes!$B$39:$H$81,MATCH(AB$11,Volumes!$B$4:$H$4,0),FALSE),0)","v":0},{"$f":"IFERROR(VLOOKUP($B132,Volumes!$B$39:$H$81,MATCH(AC$11,Volumes!$B$4:$H$4,0),FALSE),0)","v":0},{"$f":"IFERROR(VLOOKUP($B132,Volumes!$B$39:$H$81,MATCH(AD$11,Volumes!$B$4:$H$4,0),FALSE),0)","v":0},{"$f":"IFERROR(VLOOKUP($B132,Volumes!$B$39:$H$81,MATCH(AE$11,Volumes!$B$4:$H$4,0),FALSE),0)","v":0},{"$f":"IFERROR(VLOOKUP($B132,Volumes!$B$39:$H$81,MATCH(AF$11,Volumes!$B$4:$H$4,0),FALSE),0)","v":0},null,null,null,null,null,null,130.82051095773875,126.43316980597869,122.52774262614788,118.74295120574924,115.39034335750401,null,null,null,null,null,null,134.02554956777257,132.70416007993256,131.7557869715456,130.81419143179076,130.23515879182011,null,null,null,null,null,null,null,0,0,0,0,0,null,null,null,null,null,null,null,0,0,0,0,0]
[null,{"$f":"Inputs!$C127","v":"New technology - Major"},"Offered",{"$f":"IF($C133=\"NA\",\"\",'Unsmoothed Prices'!D131)","v":{"$error":"#N/A"}},{"$f":"IF($C133=\"NA\",\"\",'Unsmoothed Prices'!E131)","v":47.711340292200447},{"$f":"IF($C133=\"NA\",\"\",E133*(1-F$9))","v":46.237572249769343},44.809327813038458,43.425200791470147,42.083828430713289,null,null,null,null,null,null,null,{"$f":"IF($C133=\"NA\",\"\",E133*Q$9)","v":48.880244821417314},48.530921109997252,48.184093847926128,47.839745194275451,47.497857435617341,null,null,null,null,null,null,{"$f":"IFERROR(VLOOKUP($B133,Volumes!$B$39:$H$81,MATCH(AB$11,Volumes!$B$4:$H$4,0),FALSE),0)","v":0},{"$f":"IFERROR(VLOOKUP($B133,Volumes!$B$39:$H$81,MATCH(AC$11,Volumes!$B$4:$H$4,0),FALSE),0)","v":0},{"$f":"IFERROR(VLOOKUP($B133,Volumes!$B$39:$H$81,MATCH(AD$11,Volumes!$B$4:$H$4,0),FALSE),0)","v":0},{"$f":"IFERROR(VLOOKUP($B133,Volumes!$B$39:$H$81,MATCH(AE$11,Volumes!$B$4:$H$4,0),FALSE),0)","v":0},{"$f":"IFERROR(VLOOKUP($B133,Volumes!$B$39:$H$81,MATCH(AF$11,Volumes!$B$4:$H$4,0),FALSE),0)","v":0},null,null,null,null,null,null,{"$f":"IF($C133=\"NA\",\"\",(E133*AM$9)/100)","v":174.62350546945362},168.76713871165811,163.55404651759036,158.50198288886605,154.02681205641065,null,null,null,null,null,null,{"$f":"IF($C133=\"NA\",\"\",(Q133*AX$9)/100)","v":178.90169604638737},177.13786205148998,175.87194254493036,174.6150699591054,173.84215821435947,null,null,null,null,null,null,null,{"$f":"IFERROR(AM133*AB133,0)","v":0},0,0,0,0,null,null,null,null,null,null,null,{"$f":"IFERROR(AX133*AB133,0)","v":0},0,0,0,0]
[null,null,null,null,null,null,null,null,null,null,null,null,null,null,null,null,null,null,null,null,null,null,null,null,null,null,null,{"$f":"SUM(AB75:AB131)","v":32500},31724,32151,32714,33321,null,null,null,null,null,null,null,null,null,null,null,null,null,null,null,null,null,null,null,null,null,null,null,null,null,null,null,null,null,{"$f":"SUM(BJ75:BJ133)","v":5027033.8669197494},4776289.8054933669,4704747.1276683677,4653937.5454554511,4624934.2338188309,null,null,null,null,null,null,null,{"$f":"SUM(BV75:BV133)","v":5150193.7408528989},5013190.1929612905,5059080.0664581927,5127050.2442534128,5219925.9211576814]
[null,null,null,null,null,null,null,null,null,null,null,null,null,null,null,null,null,null,null,null,null,null,null,null,null,null,null,{"$f":"Volumes!D82=AB134","v":true},{"$f":"Volumes!E82=AC134","v":true},{"$f":"Volumes!F82=AD134","v":true},{"$f":"Volumes!G82=AE134","v":true},{"$f":"Volumes!H82=AF134","v":true}]
[null,"Total",null,null,null,null,null,null,null,null,null,null,null,null,null,null,null,null,null,null,null,null,null,null,null,null,null,{"$f":"SUM(AB71,AB134)","v":52072},52157,52584,53149,53771,null,null,null,null,null,null,null,null,null,null,null,null,null,null,null,null,null,null,null,null,null,null,null,null,null,null,null,null,null,{"$f":"BJ134+BJ71","v":6048637.9475297444},5804676.265143103,5700746.8195346594,5618706.5741471173,5562617.6679696757,null,null,null,null,null,null,null,{"$f":"BV134+BV71","v":6196826.6223638542},6092583.8487149114,6130092.3973199502,6189896.3258541189,6278241.0919925803]
[null,null,null,null,null,null,null,null,null,null,null,null,null,null,null,null,null,null,null,null,null,null,null,null,null,null,null,{"$f":"Volumes!D86=AB136","v":true},{"$f":"Volumes!E86=AC136","v":true},{"$f":"Volumes!F86=AD136","v":true},{"$f":"Volumes!G86=AE136","v":true},{"$f":"Volumes!H86=AF136","v":true}]
[null,null,null,null,null,null,null,null,null,null,null,null,null,null,null,"Nominal Vanilla WACC",{"$f":"'Master Data'!B45","v":5.5090486958922144E-2}]
[]
[null,null,null,null,null,null,null,null,null,null,null,null,null,null,null,null,{"$f":"E11","v":"2019-20"},"2020-21","2021-22","2022-23","2023-24","2024-25","2025-26","2026-27","2027-28","2028-29"]
[null,null,null,null,null,null,null,null,null,null,null,null,null,null,null,"Unsmoothed Nominal Revenue",{"$f":"'Unsmoothed Prices'!Q137*10^6","v":6196826.6223638551},{"$f":"'Unsmoothed Prices'!R137*10^6","v":6275249.7454223773},{"$f":"'Unsmoothed Prices'!S137*10^6","v":5920120.0618994562},{"$f":"'Unsmoothed Prices'!T137*10^6","v":6128228.5701282909},{"$f":"'Unsmoothed Prices'!U137*10^6","v":6362501.6546193315}]
[null,null,null,null,null,null,null,null,null,null,null,null,null,null,null,"NPV",{"$f":"NPV($Q$138,Q141:U141)","v":26361863.290366258}]
[]
[null,null,null,null,null,null,null,null,null,null,null,null,null,null,null,"Smoothed Nominal Revenue",{"$f":"BV136","v":6196826.6223638542},{"$f":"BW136","v":6092583.8487149114},{"$f":"BX136","v":6130092.3973199502},6189896.3258541189,6278241.0919925803]
[null,null,null,null,null,null,null,null,null,null,null,null,null,null,null,null,{"$f":"NPV($Q$138,Q144:U144)","v":26361863.290372118},null,null,null,{"$f":"U144/U141-1","v":-1.3243306988466652E-2}]
[null,null,null,null,null,null,null,null,null,null,null,null,null,null,null,"Difference in NPVs",{"$f":"Q145-Q142","v":5.8598816394805908E-6}]
[]
[null,null,null,null,null,null,null,null,null,null,null,null,null,null,null,null,null,"X_02","X_03","X_04","X_05"]
[null,null,null,null,null,null,null,null,null,null,null,null,null,null,null,"X Factors",null,3.0889260989216571E-2,{"$f":"R149","v":3.0889260989216571E-2},{"$f":"S149","v":3.0889260989216571E-2},3.0889260989216571E-2]

{"sheet":"Unsmoothed Prices","index":6,"n_rows":137,"n_cols":38,"rows_kept":137,"cut":false,"hidden":false,"merged":[[7,2,7,8],[7,15,7,20],[7,27,7,32],[70,2,70,8],[70,15,70,20],[70,27,70,32]]}
[null,"$2018-19 base data"]
[]
[]
[null,"Private Contract Lights"]
[]
[null,null,null,null,null,null,null,null,null,null,null,null,null,null,"Days",null,{"$f":"'Master Data'!K28","v":366},{"$f":"'Master Data'!L28","v":365},{"$f":"'Master Data'!M28","v":365},{"$f":"'Master Data'!N28","v":365},{"$f":"'Master Data'!O28","v":366}]
[null,null,null,2,16,{"$f":"E7+1","v":17},18,19,20,{"$f":"I7+1","v":21},{"$f":"J7+1","v":22},{"$f":"K7+1","v":23},{"$f":"L7+1","v":24},25,null,null,null,null,null,null,null,null,null,null,null,null,null,"Lookup",5,{"$f":"AC7+1","v":6},7,8,9,{"$f":"AG7+1","v":10},{"$f":"AH7+1","v":11},{"$f":"AI7+1","v":12},{"$f":"AJ7+1","v":13},{"$f":"AK7+1","v":14}]
[null,null,"Price (cents) per Light per day",null,null,null,null,null,null,null,null,null,null,null,null,"Revenue ($m)  - Real",null,null,null,null,null,null,null,null,null,null,null,"Volumes"]
[null,"Private Contract Lights","Offered / No Longer Offered / NA",{"$f":"'Master Data'!J$34","v":"2018-19"},{"$f":"'Master Data'!K$34","v":"2019-20"},{"$f":"'Master Data'!L$34","v":"2020-21"},{"$f":"'Master Data'!M$34","v":"2021-22"},{"$f":"'Master Data'!N$34","v":"2022-23"},{"$f":"'Master Data'!O$34","v":"2023-24"},{"$f":"'Master Data'!P$34","v":"2024-25"},{"$f":"'Master Data'!Q$34","v":"2025-26"},{"$f":"'Master Data'!R$34","v":"2026-27"},{"$f":"'Master Data'!S$34","v":"2027-28"},{"$f":"'Master Data'!T$34","v":"2028-29"},null,null,{"$f":"E9","v":"2019-20"},{"$f":"F9","v":"2020-21"},{"$f":"G9","v":"2021-22"},{"$f":"H9","v":"2022-23"},{"$f":"I9","v":"2023-24"},{"$f":"J9","v":"2024-25"},"2025-26","2026-27","2027-28","2028-29",null,null,{"$f":"Q9","v":"2019-20"},{"$f":"R9","v":"2020-21"},{"$f":"S9","v":"2021-22"},{"$f":"T9","v":"2022-23"},{"$f":"U9","v":"2023-24"},{"$f":"V9","v":"2024-25"},"2025-26","2026-27","2027-28","2028-29"]
[null,{"$f":"Inputs!$C69","v":"32W Compact Fluorescent"},"Not Offered",18.221,{"$f":"IF($C10=\"NA\",\"\",OFFSET('Combined Annuity Prices CL'!$B$10,MATCH($B10,'Combined Annuity Prices CL'!$B$10:$B$3811,0)+12,E$7)*'Master Data'!$J$37)","v":19.145926698725802},{"$f":"IF($C10=\"NA\",\"\",OFFSET('Combined Annuity Prices CL'!$B$10,MATCH($B10,'Combined Annuity Prices CL'!$B$10:$B$3811,0)+12,F$7)*'Master Data'!$J$37)","v":19.205437977045541},{"$f":"IF($C10=\"NA\",\"\",OFFSET('Combined Annuity Prices CL'!$B$10,MATCH($B10,'Combined Annuity Prices CL'!$B$10:$B$3811,0)+12,G$7)*'Master Data'!$J$37)","v":18.898485067817415},{"$f":"IF($C10=\"NA\",\"\",OFFSET('Combined Annuity Prices CL'!$B$10,MATCH($B10,'Combined Annuity Prices CL'!$B$10:$B$3811,0)+12,H$7)*'Master Data'!$J$37)","v":18.802431776494327},{"$f":"IF($C10=\"NA\",\"\",OFFSET('Combined Annuity Prices CL'!$B$10,MATCH($B10,'Combined Annuity Prices CL'!$B$10:$B$3811,0)+12,I$7)*'Master Data'!$J$37)","v":18.644779091822738},null,null,null,null,null,null,null,{"$f":"IF($C10=\"NA\",\"\",E10*AC10*Q$6/100/10^6)","v":0},{"$f":"IF($C10=\"NA\",\"\",F10*AD10*R$6/100/10^6)","v":0},{"$f":"IF($C10=\"NA\",\"\",G10*AE10*S$6/100/10^6)","v":0},{"$f":"IF($C10=\"NA\",\"\",H10*AF10*T$6/100/10^6)","v":0},{"$f":"IF($C10=\"NA\",\"\",I10*AG10*U$6/100/10^6)","v":0},null,null,null,null,null,null,null,{"$f":"IFERROR(VLOOKUP($B10,Volumes!$B$4:$H$33,MATCH(AC$9,Volumes!$B$4:$H$4,0),FALSE),0)","v":0},{"$f":"IFERROR(VLOOKUP($B10,Volumes!$B$4:$H$33,MATCH(AD$9,Volumes!$B$4:$H$4,0),FALSE),0)","v":0},{"$f":"IFERROR(VLOOKUP($B10,Volumes!$B$4:$H$33,MATCH(AE$9,Volumes!$B$4:$H$4,0),FALSE),0)","v":0},{"$f":"IFERROR(VLOOKUP($B10,Volumes!$B$4:$H$33,MATCH(AF$9,Volumes!$B$4:$H$4,0),FALSE),0)","v":0},{"$f":"IFERROR(VLOOKUP($B10,Volumes!$B$4:$H$33,MATCH(AG$9,Volumes!$B$4:$H$4,0),FALSE),0)","v":0}]
[null,{"$f":"Inputs!$C70","v":"42W Compact Fluorescent"},"Offered",18.222000000000001,{"$f":"IF($C11=\"NA\",\"\",OFFSET('Combined Annuity Prices CL'!$B$10,MATCH($B11,'Combined Annuity Prices CL'!$B$10:$B$3811,0)+12,E$7)*'Master Data'!$J$37)","v":19.145926698725802},{"$f":"IF($C11=\"NA\",\"\",OFFSET('Combined Annuity Prices CL'!$B$10,MATCH($B11,'Combined Annuity Prices CL'!$B$10:$B$3811,0)+12,F$7)*'Master Data'!$J$37)","v":19.205437977045541},{"$f":"IF($C11=\"NA\",\"\",OFFSET('Combined Annuity Prices CL'!$B$10,MATCH($B11,'Combined Annuity Prices CL'!$B$10:$B$3811,0)+12,G$7)*'Master Data'!$J$37)","v":18.898485067817415},{"$f":"IF($C11=\"NA\",\"\",OFFSET('Combined Annuity Prices CL'!$B$10,MATCH($B11,'Combined Annuity Prices CL'!$B$10:$B$3811,0)+12,H$7)*'Master Data'!$J$37)","v":18.802431776494327},{"$f":"IF($C11=\"NA\",\"\",OFFSET('Combined Annuity Prices CL'!$B$10,MATCH($B11,'Combined Annuity Prices CL'!$B$10:$B$3811,0)+12,I$7)*'Master Data'!$J$37)","v":18.644779091822738},null,null,null,null,null,null,null,1.9620745680854201E-3,1.9627957612540544E-3,1.93142517393094E-3,1.9216085275577199E-3,1.9107169613299944E-3,null,null,null,null,null,null,null,{"$f":"IFERROR(VLOOKUP($B11,Volumes!$B$4:$H$33,MATCH(AC$9,Volumes!$B$4:$H$4,0),FALSE),0)","v":28},{"$f":"IFERROR(VLOOKUP($B11,Volumes!$B$4:$H$33,MATCH(AD$9,Volumes!$B$4:$H$4,0),FALSE),0)","v":28},{"$f":"IFERROR(VLOOKUP($B11,Volumes!$B$4:$H$33,MATCH(AE$9,Volumes!$B$4:$H$4,0),FALSE),0)","v":28},{"$f":"IFERROR(VLOOKUP($B11,Volumes!$B$4:$H$33,MATCH(AF$9,Volumes!$B$4:$H$4,0),FALSE),0)","v":28},{"$f":"IFERROR(VLOOKUP($B11,Volumes!$B$4:$H$33,MATCH(AG$9,Volumes!$B$4:$H$4,0),FALSE),0)","v":28}]
[null,{"$f":"Inputs!$C71","v":"42W Compact Fluorescent - Bottom Pole Entry"},"Offered",18.222000000000001,{"$f":"IF($C12=\"NA\",\"\",OFFSET('Combined Annuity Prices CL'!$B$10,MATCH($B12,'Combined Annuity Prices CL'!$B$10:$B$3811,0)+12,E$7)*'Master Data'!$J$37)","v":19.145926698725802},{"$f":"IF($C12=\"NA\",\"\",OFFSET('Combined Annuity Prices CL'!$B$10,MATCH($B12,'Combined Annuity Prices CL'!$B$10:$B$3811,0)+12,F$7)*'Master Data'!$J$37)","v":19.205437977045541},{"$f":"IF($C12=\"NA\",\"\",OFFSET('Combined Annuity Prices CL'!$B$10,MATCH($B12,'Combined Annuity Prices CL'!$B$10:$B$3811,0)+12,G$7)*'Master Data'!$J$37)","v":18.898485067817415},{"$f":"IF($C12=\"NA\",\"\",OFFSET('Combined Annuity Prices CL'!$B$10,MATCH($B12,'Combined Annuity Prices CL'!$B$10:$B$3811,0)+12,H$7)*'Master Data'!$J$37)","v":18.802431776494327},{"$f":"IF($C12=\"NA\",\"\",OFFSET('Combined Annuity Prices CL'!$B$10,MATCH($B12,'Combined Annuity Prices CL'!$B$10:$B$3811,0)+12,I$7)*'Master Data'!$J$37)","v":18.644779091822738},null,null,null,null,null,null,null,0,0,0,0,0,null,null,null,null,null,null,null,{"$f":"IFERROR(VLOOKUP($B12,Volumes!$B$4:$H$33,MATCH(AC$9,Volumes!$B$4:$H$4,0),FALSE),0)","v":0},{"$f":"IFERROR(VLOOKUP($B12,Volumes!$B$4:$H$33,MATCH(AD$9,Volumes!$B$4:$H$4,0),FALSE),0)","v":0},{"$f":"IFERROR(VLOOKUP($B12,Volumes!$B$4:$H$33,MATCH(AE$9,Volumes!$B$4:$H$4,0),FALSE),0)","v":0},{"$f":"IFERROR(VLOOKUP($B12,Volumes!$B$4:$H$33,MATCH(AF$9,Volumes!$B$4:$H$4,0),FALSE),0)","v":0},{"$f":"IFERROR(VLOOKUP($B12,Volumes!$B$4:$H$33,MATCH(AG$9,Volumes!$B$4:$H$4,0),FALSE),0)","v":0}]
[null,{"$f":"Inputs!$C72","v":"2x24W Compact Fluorescent"},"Not Offered",18.545000000000002,{"$f":"IF($C13=\"NA\",\"\",OFFSET('Combined Annuity Prices CL'!$B$10,MATCH($B13,'Combined Annuity Prices CL'!$B$10:$B$3811,0)+12,E$7)*'Master Data'!$J$37)","v":19.459143953040218},{"$f":"IF($C13=\"NA\",\"\",OFFSET('Combined Annuity Prices CL'!$B$10,MATCH($B13,'Combined Annuity Prices CL'!$B$10:$B$3811,0)+12,F$7)*'Master Data'!$J$37)","v":19.519699288874339},{"$f":"IF($C13=\"NA\",\"\",OFFSET('Combined Annuity Prices CL'!$B$10,MATCH($B13,'Combined Annuity Prices CL'!$B$10:$B$3811,0)+12,G$7)*'Master Data'!$J$37)","v":19.212746379646212},{"$f":"IF($C13=\"NA\",\"\",OFFSET('Combined Annuity Prices CL'!$B$10,MATCH($B13,'Combined Annuity Prices CL'!$B$10:$B$3811,0)+12,H$7)*'Master Data'!$J$37)","v":19.115649030808743},{"$f":"IF($C13=\"NA\",\"\",OFFSET('Combined Annuity Prices CL'!$B$10,MATCH($B13,'Combined Annuity Prices CL'!$B$10:$B$3811,0)+12,I$7)*'Master Data'!$J$37)","v":18.957996346137154},null,null,null,null,null,null,null,0,0,0,0,0,null,null,null,null,null,null,null,{"$f":"IFERROR(VLOOKUP($B13,Volumes!$B$4:$H$33,MATCH(AC$9,Volumes!$B$4:$H$4,0),FALSE),0)","v":0},{"$f":"IFERROR(VLOOKUP($B13,Volumes!$B$4:$H$33,MATCH(AD$9,Volumes!$B$4:$H$4,0),FALSE),0)","v":0},{"$f":"IFERROR(VLOOKUP($B13,Volumes!$B$4:$H$33,MATCH(AE$9,Volumes!$B$4:$H$4,0),FALSE),0)","v":0},{"$f":"IFERROR(VLOOKUP($B13,Volumes!$B$4:$H$33,MATCH(AF$9,Volumes!$B$4:$H$4,0),FALSE),0)","v":0},{"$f":"IFERROR(VLOOKUP($B13,Volumes!$B$4:$H$33,MATCH(AG$9,Volumes!$B$4:$H$4,0),FALSE),0)","v":0}]
[null,{"$f":"Inputs!$C73","v":"1x20W Fluorescent"},"Obsolete, no new Connections",18.189,{"$f":"IF($C14=\"NA\",\"\",OFFSET('Combined Annuity Prices CL'!$B$10,MATCH($B14,'Combined Annuity Prices CL'!$B$10:$B$3811,0)+12,E$7)*'Master Data'!$J$37)","v":19.119825260866268},{"$f":"IF($C14=\"NA\",\"\",OFFSET('Combined Annuity Prices CL'!$B$10,MATCH($B14,'Combined Annuity Prices CL'!$B$10:$B$3811,0)+12,F$7)*'Master Data'!$J$37)","v":19.179336539186007},{"$f":"IF($C14=\"NA\",\"\",OFFSET('Combined Annuity Prices CL'!$B$10,MATCH($B14,'Combined Annuity Prices CL'!$B$10:$B$3811,0)+12,G$7)*'Master Data'!$J$37)","v":18.872383629957881},{"$f":"IF($C14=\"NA\",\"\",OFFSET('Combined Annuity Prices CL'!$B$10,MATCH($B14,'Combined Annuity Prices CL'!$B$10:$B$3811,0)+12,H$7)*'Master Data'!$J$37)","v":18.776330338634796},{"$f":"IF($C14=\"NA\",\"\",OFFSET('Combined Annuity Prices CL'!$B$10,MATCH($B14,'Combined Annuity Prices CL'!$B$10:$B$3811,0)+12,I$7)*'Master Data'!$J$37)","v":18.618677653963204},null,null,null,null,null,null,null,0,0,0,0,0,null,null,null,null,null,null,null,{"$f":"IFERROR(VLOOKUP($B14,Volumes!$B$4:$H$33,MATCH(AC$9,Volumes!$B$4:$H$4,0),FALSE),0)","v":0},{"$f":"IFERROR(VLOOKUP($B14,Volumes!$B$4:$H$33,MATCH(AD$9,Volumes!$B$4:$H$4,0),FALSE),0)","v":0},{"$f":"IFERROR(VLOOKUP($B14,Volumes!$B$4:$H$33,MATCH(AE$9,Volumes!$B$4:$H$4,0),FALSE),0)","v":0},{"$f":"IFERROR(VLOOKUP($B14,Volumes!$B$4:$H$33,MATCH(AF$9,Volumes!$B$4:$H$4,0),FALSE),0)","v":0},{"$f":"IFERROR(VLOOKUP($B14,Volumes!$B$4:$H$33,MATCH(AG$9,Volumes!$B$4:$H$4,0),FALSE),0)","v":0}]
[null,{"$f":"Inputs!$C74","v":"1x40W Fluorescent"},"Obsolete, no new Connections",18.207999999999998,{"$f":"IF($C15=\"NA\",\"\",OFFSET('Combined Annuity Prices CL'!$B$10,MATCH($B15,'Combined Annuity Prices CL'!$B$10:$B$3811,0)+12,E$7)*'Master Data'!$J$37)","v":19.138618296125131},{"$f":"IF($C15=\"NA\",\"\",OFFSET('Combined Annuity Prices CL'!$B$10,MATCH($B15,'Combined Annuity Prices CL'!$B$10:$B$3811,0)+12,F$7)*'Master Data'!$J$37)","v":19.198129574444874},{"$f":"IF($C15=\"NA\",\"\",OFFSET('Combined Annuity Prices CL'!$B$10,MATCH($B15,'Combined Annuity Prices CL'!$B$10:$B$3811,0)+12,G$7)*'Master Data'!$J$37)","v":18.891176665216747},{"$f":"IF($C15=\"NA\",\"\",OFFSET('Combined Annuity Prices CL'!$B$10,MATCH($B15,'Combined Annuity Prices CL'!$B$10:$B$3811,0)+12,H$7)*'Master Data'!$J$37)","v":18.795123373893656},{"$f":"IF($C15=\"NA\",\"\",OFFSET('Combined Annuity Prices CL'!$B$10,MATCH($B15,'Combined Annuity Prices CL'!$B$10:$B$3811,0)+12,I$7)*'Master Data'!$J$37)","v":18.637470689222067},null,null,null,null,null,null,null,0,0,0,0,0,null,null,null,null,null,null,null,{"$f":"IFERROR(VLOOKUP($B15,Volumes!$B$4:$H$33,MATCH(AC$9,Volumes!$B$4:$H$4,0),FALSE),0)","v":0},{"$f":"IFERROR(VLOOKUP($B15,Volumes!$B$4:$H$33,MATCH(AD$9,Volumes!$B$4:$H$4,0),FALSE),0)","v":0},{"$f":"IFERROR(VLOOKUP($B15,Volumes!$B$4:$H$33,MATCH(AE$9,Volumes!$B$4:$H$4,0),FALSE),0)","v":0},{"$f":"IFERROR(VLOOKUP($B15,Volumes!$B$4:$H$33,MATCH(AF$9,Volumes!$B$4:$H$4,0),FALSE),0)","v":0},{"$f":"IFERROR(VLOOKUP($B15,Volumes!$B$4:$H$33,MATCH(AG$9,Volumes!$B$4:$H$4,0),FALSE),0)","v":0}]
[null,{"$f":"Inputs!$C75","v":"2x20W Fluorescent"},"Obsolete, no new Connections",18.48,{"$f":"IF($C16=\"NA\",\"\",OFFSET('Combined Annuity Prices CL'!$B$10,MATCH($B16,'Combined Annuity Prices CL'!$B$10:$B$3811,0)+12,E$7)*'Master Data'!$J$37)","v":19.407985134835528},{"$f":"IF($C16=\"NA\",\"\",OFFSET('Combined Annuity Prices CL'!$B$10,MATCH($B16,'Combined Annuity Prices CL'!$B$10:$B$3811,0)+12,F$7)*'Master Data'!$J$37)","v":19.468540470669648},{"$f":"IF($C16=\"NA\",\"\",OFFSET('Combined Annuity Prices CL'!$B$10,MATCH($B16,'Combined Annuity Prices CL'!$B$10:$B$3811,0)+12,G$7)*'Master Data'!$J$37)","v":19.161587561441525},{"$f":"IF($C16=\"NA\",\"\",OFFSET('Combined Annuity Prices CL'!$B$10,MATCH($B16,'Combined Annuity Prices CL'!$B$10:$B$3811,0)+12,H$7)*'Master Data'!$J$37)","v":19.065534270118434},{"$f":"IF($C16=\"NA\",\"\",OFFSET('Combined Annuity Prices CL'!$B$10,MATCH($B16,'Combined Annuity Prices CL'!$B$10:$B$3811,0)+12,I$7)*'Master Data'!$J$37)","v":18.906837527932467},null,null,null,null,null,null,null,0,0,0,0,0,null,null,null,null,null,null,null,{"$f":"IFERROR(VLOOKUP($B16,Volumes!$B$4:$H$33,MATCH(AC$9,Volumes!$B$4:$H$4,0),FALSE),0)","v":0},{"$f":"IFERROR(VLOOKUP($B16,Volumes!$B$4:$H$33,MATCH(AD$9,Volumes!$B$4:$H$4,0),FALSE),0)","v":0},{"$f":"IFERROR(VLOOKUP($B16,Volumes!$B$4:$H$33,MATCH(AE$9,Volumes!$B$4:$H$4,0),FALSE),0)","v":0},{"$f":"IFERROR(VLOOKUP($B16,Volumes!$B$4:$H$33,MATCH(AF$9,Volumes!$B$4:$H$4,0),FALSE),0)","v":0},{"$f":"IFERROR(VLOOKUP($B16,Volumes!$B$4:$H$33,MATCH(AG$9,Volumes!$B$4:$H$4,0),FALSE),0)","v":0}]
[null,{"$f":"Inputs!$C76","v":"2x24W Fluorescent"},"Obsolete, no new Connections",18.321999999999999,{"$f":"IF($C17=\"NA\",\"\",OFFSET('Combined Annuity Prices CL'!$B$10,MATCH($B17,'Combined Annuity Prices CL'!$B$10:$B$3811,0)+12,E$7)*'Master Data'!$J$37)","v":19.24197999004889},{"$f":"IF($C17=\"NA\",\"\",OFFSET('Combined Annuity Prices CL'!$B$10,MATCH($B17,'Combined Annuity Prices CL'!$B$10:$B$3811,0)+12,F$7)*'Master Data'!$J$37)","v":19.301491268368625},{"$f":"IF($C17=\"NA\",\"\",OFFSET('Combined Annuity Prices CL'!$B$10,MATCH($B17,'Combined Annuity Prices CL'!$B$10:$B$3811,0)+12,G$7)*'Master Data'!$J$37)","v":18.995582416654884},{"$f":"IF($C17=\"NA\",\"\",OFFSET('Combined Annuity Prices CL'!$B$10,MATCH($B17,'Combined Annuity Prices CL'!$B$10:$B$3811,0)+12,H$7)*'Master Data'!$J$37)","v":18.898485067817415},{"$f":"IF($C17=\"NA\",\"\",OFFSET('Combined Annuity Prices CL'!$B$10,MATCH($B17,'Combined Annuity Prices CL'!$B$10:$B$3811,0)+12,I$7)*'Master Data'!$J$37)","v":18.740832383145825},null,null,null,null,null,null,null,0,0,0,0,0,null,null,null,null,null,null,null,{"$f":"IFERROR(VLOOKUP($B17,Volumes!$B$4:$H$33,MATCH(AC$9,Volumes!$B$4:$H$4,0),FALSE),0)","v":0},{"$f":"IFERROR(VLOOKUP($B17,Volumes!$B$4:$H$33,MATCH(AD$9,Volumes!$B$4:$H$4,0),FALSE),0)","v":0},{"$f":"IFERROR(VLOOKUP($B17,Volumes!$B$4:$H$33,MATCH(AE$9,Volumes!$B$4:$H$4,0),FALSE),0)","v":0},{"$f":"IFERROR(VLOOKUP($B17,Volumes!$B$4:$H$33,MATCH(AF$9,Volumes!$B$4:$H$4,0),FALSE),0)","v":0},{"$f":"IFERROR(VLOOKUP($B17,Volumes!$B$4:$H$33,MATCH(AG$9,Volumes!$B$4:$H$4,0),FALSE),0)","v":0}]
[null,{"$f":"Inputs!$C77","v":"T5 Fluorescent 2 x 24W"},"Obsolete, no new Connections",18.48,{"$f":"IF($C18=\"NA\",\"\",OFFSET('Combined Annuity Prices CL'!$B$10,MATCH($B18,'Combined Annuity Prices CL'!$B$10:$B$3811,0)+12,E$7)*'Master Data'!$J$37)","v":19.407985134835528},{"$f":"IF($C18=\"NA\",\"\",OFFSET('Combined Annuity Prices CL'!$B$10,MATCH($B18,'Combined Annuity Prices CL'!$B$10:$B$3811,0)+12,F$7)*'Master Data'!$J$37)","v":19.468540470669648},{"$f":"IF($C18=\"NA\",\"\",OFFSET('Combined Annuity Prices CL'!$B$10,MATCH($B18,'Combined Annuity Prices CL'!$B$10:$B$3811,0)+12,G$7)*'Master Data'!$J$37)","v":19.161587561441525},{"$f":"IF($C18=\"NA\",\"\",OFFSET('Combined Annuity Prices CL'!$B$10,MATCH($B18,'Combined Annuity Prices CL'!$B$10:$B$3811,0)+12,H$7)*'Master Data'!$J$37)","v":19.065534270118434},{"$f":"IF($C18=\"NA\",\"\",OFFSET('Combined Annuity Prices CL'!$B$10,MATCH($B18,'Combined Annuity Prices CL'!$B$10:$B$3811,0)+12,I$7)*'Master Data'!$J$37)","v":18.906837527932467},null,null,null,null,null,null,null,0,0,0,0,0,null,null,null,null,null,null,null,{"$f":"IFERROR(VLOOKUP($B18,Volumes!$B$4:$H$33,MATCH(AC$9,Volumes!$B$4:$H$4,0),FALSE),0)","v":0},{"$f":"IFERROR(VLOOKUP($B18,Volumes!$B$4:$H$33,MATCH(AD$9,Volumes!$B$4:$H$4,0),FALSE),0)","v":0},{"$f":"IFERROR(VLOOKUP($B18,Volumes!$B$4:$H$33,MATCH(AE$9,Volumes!$B$4:$H$4,0),FALSE),0)","v":0},{"$f":"IFERROR(VLOOKUP($B18,Volumes!$B$4:$H$33,MATCH(AF$9,Volumes!$B$4:$H$4,0),FALSE),0)","v":0},{"$f":"IFERROR(VLOOKUP($B18,Volumes!$B$4:$H$33,MATCH(AG$9,Volumes!$B$4:$H$4,0),FALSE),0)","v":0}]
[null,{"$f":"Inputs!$C78","v":"20 Fluorescent 1X20FL"},"Obsolete, no new Connections",18.189,{"$f":"IF($C19=\"NA\",\"\",OFFSET('Combined Annuity Prices CL'!$B$10,MATCH($B19,'Combined Annuity Prices CL'!$B$10:$B$3811,0)+12,E$7)*'Master Data'!$J$37)","v":19.119825260866268},{"$f":"IF($C19=\"NA\",\"\",OFFSET('Combined Annuity Prices CL'!$B$10,MATCH($B19,'Combined Annuity Prices CL'!$B$10:$B$3811,0)+12,F$7)*'Master Data'!$J$37)","v":19.179336539186007},{"$f":"IF($C19=\"NA\",\"\",OFFSET('Combined Annuity Prices CL'!$B$10,MATCH($B19,'Combined Annuity Prices CL'!$B$10:$B$3811,0)+12,G$7)*'Master Data'!$J$37)","v":18.872383629957881},{"$f":"IF($C19=\"NA\",\"\",OFFSET('Combined Annuity Prices CL'!$B$10,MATCH($B19,'Combined Annuity Prices CL'!$B$10:$B$3811,0)+12,H$7)*'Master Data'!$J$37)","v":18.776330338634796},{"$f":"IF($C19=\"NA\",\"\",OFFSET('Combined Annuity Prices CL'!$B$10,MATCH($B19,'Combined Annuity Prices CL'!$B$10:$B$3811,0)+12,I$7)*'Master Data'!$J$37)","v":18.618677653963204},null,null,null,null,null,null,null,0,0,0,0,0,null,null,null,null,null,null,null,{"$f":"IFERROR(VLOOKUP($B19,Volumes!$B$4:$H$33,MATCH(AC$9,Volumes!$B$4:$H$4,0),FALSE),0)","v":0},{"$f":"IFERROR(VLOOKUP($B19,Volumes!$B$4:$H$33,MATCH(AD$9,Volumes!$B$4:$H$4,0),FALSE),0)","v":0},{"$f":"IFERROR(VLOOKUP($B19,Volumes!$B$4:$H$33,MATCH(AE$9,Volumes!$B$4:$H$4,0),FALSE),0)","v":0},{"$f":"IFERROR(VLOOKUP($B19,Volumes!$B$4:$H$33,MATCH(AF$9,Volumes!$B$4:$H$4,0),FALSE),0)","v":0},{"$f":"IFERROR(VLOOKUP($B19,Volumes!$B$4:$H$33,MATCH(AG$9,Volumes!$B$4:$H$4,0),FALSE),0)","v":0}]
[null,{"$f":"Inputs!$C79","v":"2x40W Fluorescent"},"Obsolete, no new Connections",18.518000000000001,{"$f":"IF($C20=\"NA\",\"\",OFFSET('Combined Annuity Prices CL'!$B$10,MATCH($B20,'Combined Annuity Prices CL'!$B$10:$B$3811,0)+12,E$7)*'Master Data'!$J$37)","v":19.445571205353261},{"$f":"IF($C20=\"NA\",\"\",OFFSET('Combined Annuity Prices CL'!$B$10,MATCH($B20,'Combined Annuity Prices CL'!$B$10:$B$3811,0)+12,F$7)*'Master Data'!$J$37)","v":19.506126541187381},{"$f":"IF($C20=\"NA\",\"\",OFFSET('Combined Annuity Prices CL'!$B$10,MATCH($B20,'Combined Annuity Prices CL'!$B$10:$B$3811,0)+12,G$7)*'Master Data'!$J$37)","v":19.199173631959251},{"$f":"IF($C20=\"NA\",\"\",OFFSET('Combined Annuity Prices CL'!$B$10,MATCH($B20,'Combined Annuity Prices CL'!$B$10:$B$3811,0)+12,H$7)*'Master Data'!$J$37)","v":19.102076283121782},{"$f":"IF($C20=\"NA\",\"\",OFFSET('Combined Annuity Prices CL'!$B$10,MATCH($B20,'Combined Annuity Prices CL'!$B$10:$B$3811,0)+12,I$7)*'Master Data'!$J$37)","v":18.944423598450197},null,null,null,null,null,null,null,0,0,0,0,0,null,null,null,null,null,null,null,{"$f":"IFERROR(VLOOKUP($B20,Volumes!$B$4:$H$33,MATCH(AC$9,Volumes!$B$4:$H$4,0),FALSE),0)","v":0},{"$f":"IFERROR(VLOOKUP($B20,Volumes!$B$4:$H$33,MATCH(AD$9,Volumes!$B$4:$H$4,0),FALSE),0)","v":0},{"$f":"IFERROR(VLOOKUP($B20,Volumes!$B$4:$H$33,MATCH(AE$9,Volumes!$B$4:$H$4,0),FALSE),0)","v":0},{"$f":"IFERROR(VLOOKUP($B20,Volumes!$B$4:$H$33,MATCH(AF$9,Volumes!$B$4:$H$4,0),FALSE),0)","v":0},{"$f":"IFERROR(VLOOKUP($B20,Volumes!$B$4:$H$33,MATCH(AG$9,Volumes!$B$4:$H$4,0),FALSE),0)","v":0}]
[null,{"$f":"Inputs!$C80","v":"3x40W Fluorescent"},"Obsolete, no new Connections",22.414000000000001,{"$f":"IF($C21=\"NA\",\"\",OFFSET('Combined Annuity Prices CL'!$B$10,MATCH($B21,'Combined Annuity Prices CL'!$B$10:$B$3811,0)+12,E$7)*'Master Data'!$J$37)","v":23.148843208864026},{"$f":"IF($C21=\"NA\",\"\",OFFSET('Combined Annuity Prices CL'!$B$10,MATCH($B21,'Combined Annuity Prices CL'!$B$10:$B$3811,0)+12,F$7)*'Master Data'!$J$37)","v":23.21879506232758},{"$f":"IF($C21=\"NA\",\"\",OFFSET('Combined Annuity Prices CL'!$B$10,MATCH($B21,'Combined Annuity Prices CL'!$B$10:$B$3811,0)+12,G$7)*'Master Data'!$J$37)","v":22.912886210613834},{"$f":"IF($C21=\"NA\",\"\",OFFSET('Combined Annuity Prices CL'!$B$10,MATCH($B21,'Combined Annuity Prices CL'!$B$10:$B$3811,0)+12,H$7)*'Master Data'!$J$37)","v":22.817876976805127},{"$f":"IF($C21=\"NA\",\"\",OFFSET('Combined Annuity Prices CL'!$B$10,MATCH($B21,'Combined Annuity Prices CL'!$B$10:$B$3811,0)+12,I$7)*'Master Data'!$J$37)","v":22.649783716989724},null,null,null,null,null,null,null,0,0,0,0,0,null,null,null,null,null,null,null,{"$f":"IFERROR(VLOOKUP($B21,Volumes!$B$4:$H$33,MATCH(AC$9,Volumes!$B$4:$H$4,0),FALSE),0)","v":0},{"$f":"IFERROR(VLOOKUP($B21,Volumes!$B$4:$H$33,MATCH(AD$9,Volumes!$B$4:$H$4,0),FALSE),0)","v":0},{"$f":"IFERROR(VLOOKUP($B21,Volumes!$B$4:$H$33,MATCH(AE$9,Volumes!$B$4:$H$4,0),FALSE),0)","v":0},{"$f":"IFERROR(VLOOKUP($B21,Volumes!$B$4:$H$33,MATCH(AF$9,Volumes!$B$4:$H$4,0),FALSE),0)","v":0},{"$f":"IFERROR(VLOOKUP($B21,Volumes!$B$4:$H$33,MATCH(AG$9,Volumes!$B$4:$H$4,0),FALSE),0)","v":0}]
[null,{"$f":"Inputs!$C81","v":"4x20 Fluorescent"},"Obsolete, no new Connections",19.062000000000001,{"$f":"IF($C22=\"NA\",\"\",OFFSET('Combined Annuity Prices CL'!$B$10,MATCH($B22,'Combined Annuity Prices CL'!$B$10:$B$3811,0)+12,E$7)*'Master Data'!$J$37)","v":19.984304882774051},{"$f":"IF($C22=\"NA\",\"\",OFFSET('Combined Annuity Prices CL'!$B$10,MATCH($B22,'Combined Annuity Prices CL'!$B$10:$B$3811,0)+12,F$7)*'Master Data'!$J$37)","v":20.045904276122553},{"$f":"IF($C22=\"NA\",\"\",OFFSET('Combined Annuity Prices CL'!$B$10,MATCH($B22,'Combined Annuity Prices CL'!$B$10:$B$3811,0)+12,G$7)*'Master Data'!$J$37)","v":19.738951366894426},{"$f":"IF($C22=\"NA\",\"\",OFFSET('Combined Annuity Prices CL'!$B$10,MATCH($B22,'Combined Annuity Prices CL'!$B$10:$B$3811,0)+12,H$7)*'Master Data'!$J$37)","v":19.642898075571342},{"$f":"IF($C22=\"NA\",\"\",OFFSET('Combined Annuity Prices CL'!$B$10,MATCH($B22,'Combined Annuity Prices CL'!$B$10:$B$3811,0)+12,I$7)*'Master Data'!$J$37)","v":19.48315727587099},null,null,null,null,null,null,null,0,0,0,0,0,null,null,null,null,null,null,null,{"$f":"IFERROR(VLOOKUP($B22,Volumes!$B$4:$H$33,MATCH(AC$9,Volumes!$B$4:$H$4,0),FALSE),0)","v":0},{"$f":"IFERROR(VLOOKUP($B22,Volumes!$B$4:$H$33,MATCH(AD$9,Volumes!$B$4:$H$4,0),FALSE),0)","v":0},{"$f":"IFERROR(VLOOKUP($B22,Volumes!$B$4:$H$33,MATCH(AE$9,Volumes!$B$4:$H$4,0),FALSE),0)","v":0},{"$f":"IFERROR(VLOOKUP($B22,Volumes!$B$4:$H$33,MATCH(AF$9,Volumes!$B$4:$H$4,0),FALSE),0)","v":0},{"$f":"IFERROR(VLOOKUP($B22,Volumes!$B$4:$H$33,MATCH(AG$9,Volumes!$B$4:$H$4,0),FALSE),0)","v":0}]
[null,{"$f":"Inputs!$C82","v":"4x40W Fluorescent"},"Obsolete, no new Connections",22.722000000000001,{"$f":"IF($C23=\"NA\",\"\",OFFSET('Combined Annuity Prices CL'!$B$10,MATCH($B23,'Combined Annuity Prices CL'!$B$10:$B$3811,0)+12,E$7)*'Master Data'!$J$37)","v":23.454752060577771},{"$f":"IF($C23=\"NA\",\"\",OFFSET('Combined Annuity Prices CL'!$B$10,MATCH($B23,'Combined Annuity Prices CL'!$B$10:$B$3811,0)+12,F$7)*'Master Data'!$J$37)","v":23.526792029070084},{"$f":"IF($C23=\"NA\",\"\",OFFSET('Combined Annuity Prices CL'!$B$10,MATCH($B23,'Combined Annuity Prices CL'!$B$10:$B$3811,0)+12,G$7)*'Master Data'!$J$37)","v":23.220883177356342},{"$f":"IF($C23=\"NA\",\"\",OFFSET('Combined Annuity Prices CL'!$B$10,MATCH($B23,'Combined Annuity Prices CL'!$B$10:$B$3811,0)+12,H$7)*'Master Data'!$J$37)","v":23.124829886033254},{"$f":"IF($C23=\"NA\",\"\",OFFSET('Combined Annuity Prices CL'!$B$10,MATCH($B23,'Combined Annuity Prices CL'!$B$10:$B$3811,0)+12,I$7)*'Master Data'!$J$37)","v":22.95673662621785},null,null,null,null,null,null,null,0,0,0,0,0,null,null,null,null,null,null,null,{"$f":"IFERROR(VLOOKUP($B23,Volumes!$B$4:$H$33,MATCH(AC$9,Volumes!$B$4:$H$4,0),FALSE),0)","v":0},{"$f":"IFERROR(VLOOKUP($B23,Volumes!$B$4:$H$33,MATCH(AD$9,Volumes!$B$4:$H$4,0),FALSE),0)","v":0},{"$f":"IFERROR(VLOOKUP($B23,Volumes!$B$4:$H$33,MATCH(AE$9,Volumes!$B$4:$H$4,0),FALSE),0)","v":0},{"$f":"IFERROR(VLOOKUP($B23,Volumes!$B$4:$H$33,MATCH(AF$9,Volumes!$B$4:$H$4,0),FALSE),0)","v":0},{"$f":"IFERROR(VLOOKUP($B23,Volumes!$B$4:$H$33,MATCH(AG$9,Volumes!$B$4:$H$4,0),FALSE),0)","v":0}]
[null,{"$f":"Inputs!$C83","v":"100W Sodium Vapour"},"Offered",22.559000000000001,{"$f":"IF($C24=\"NA\",\"\",OFFSET('Combined Annuity Prices CL'!$B$10,MATCH($B24,'Combined Annuity Prices CL'!$B$10:$B$3811,0)+12,E$7)*'Master Data'!$J$37)","v":23.270997938046648},{"$f":"IF($C24=\"NA\",\"\",OFFSET('Combined Annuity Prices CL'!$B$10,MATCH($B24,'Combined Annuity Prices CL'!$B$10:$B$3811,0)+12,F$7)*'Master Data'!$J$37)","v":23.341993849024579},{"$f":"IF($C24=\"NA\",\"\",OFFSET('Combined Annuity Prices CL'!$B$10,MATCH($B24,'Combined Annuity Prices CL'!$B$10:$B$3811,0)+12,G$7)*'Master Data'!$J$37)","v":23.036084997310837},{"$f":"IF($C24=\"NA\",\"\",OFFSET('Combined Annuity Prices CL'!$B$10,MATCH($B24,'Combined Annuity Prices CL'!$B$10:$B$3811,0)+12,H$7)*'Master Data'!$J$37)","v":22.940031705987749},{"$f":"IF($C24=\"NA\",\"\",OFFSET('Combined Annuity Prices CL'!$B$10,MATCH($B24,'Combined Annuity Prices CL'!$B$10:$B$3811,0)+12,I$7)*'Master Data'!$J$37)","v":22.772982503686727},null,null,null,null,null,null,null,4.2585926226625364E-4,4.2599138774469862E-4,4.2040855120092284E-4,4.1865557863427649E-4,4.1674557981746715E-4,null,null,null,null,null,null,null,{"$f":"IFERROR(VLOOKUP($B24,Volumes!$B$4:$H$33,MATCH(AC$9,Volumes!$B$4:$H$4,0),FALSE),0)","v":5},{"$f":"IFERROR(VLOOKUP($B24,Volumes!$B$4:$H$33,MATCH(AD$9,Volumes!$B$4:$H$4,0),FALSE),0)","v":5},{"$f":"IFERROR(VLOOKUP($B24,Volumes!$B$4:$H$33,MATCH(AE$9,Volumes!$B$4:$H$4,0),FALSE),0)","v":5},{"$f":"IFERROR(VLOOKUP($B24,Volumes!$B$4:$H$33,MATCH(AF$9,Volumes!$B$4:$H$4,0),FALSE),0)","v":5},{"$f":"IFERROR(VLOOKUP($B24,Volumes!$B$4:$H$33,MATCH(AG$9,Volumes!$B$4:$H$4,0),FALSE),0)","v":5}]
[null,{"$f":"Inputs!$C84","v":0},"NA","",{"$f":"IF($C25=\"NA\",\"\",OFFSET('Combined Annuity Prices CL'!$B$10,MATCH($B25,'Combined Annuity Prices CL'!$B$10:$B$3811,0)+12,E$7)*'Master Data'!$J$37)","v":""},{"$f":"IF($C25=\"NA\",\"\",OFFSET('Combined Annuity Prices CL'!$B$10,MATCH($B25,'Combined Annuity Prices CL'!$B$10:$B$3811,0)+12,F$7)*'Master Data'!$J$37)","v":""},{"$f":"IF($C25=\"NA\",\"\",OFFSET('Combined Annuity Prices CL'!$B$10,MATCH($B25,'Combined Annuity Prices CL'!$B$10:$B$3811,0)+12,G$7)*'Master Data'!$J$37)","v":""},{"$f":"IF($C25=\"NA\",\"\",OFFSET('Combined Annuity Prices CL'!$B$10,MATCH($B25,'Combined Annuity Prices CL'!$B$10:$B$3811,0)+12,H$7)*'Master Data'!$J$37)","v":""},{"$f":"IF($C25=\"NA\",\"\",OFFSET('Combined Annuity Prices CL'!$B$10,MATCH($B25,'Combined Annuity Prices CL'!$B$10:$B$3811,0)+12,I$7)*'Master Data'!$J$37)","v":""},null,null,null,null,null,null,null,"","","","","",null,null,null,null,null,null,null,{"$f":"IFERROR(VLOOKUP($B25,Volumes!$B$4:$H$33,MATCH(AC$9,Volumes!$B$4:$H$4,0),FALSE),0)","v":0},{"$f":"IFERROR(VLOOKUP($B25,Volumes!$B$4:$H$33,MATCH(AD$9,Volumes!$B$4:$H$4,0),FALSE),0)","v":0},{"$f":"IFERROR(VLOOKUP($B25,Volumes!$B$4:$H$33,MATCH(AE$9,Volumes!$B$4:$H$4,0),FALSE),0)","v":0},{"$f":"IFERROR(VLOOKUP($B25,Volumes!$B$4:$H$33,MATCH(AF$9,Volumes!$B$4:$H$4,0),FALSE),0)","v":0},{"$f":"IFERROR(VLOOKUP($B25,Volumes!$B$4:$H$33,MATCH(AG$9,Volumes!$B$4:$H$4,0),FALSE),0)","v":0}]
[null,{"$f":"Inputs!$C85","v":"150W Sodium Vapour"},"Offered",22.555,{"$f":"IF($C26=\"NA\",\"\",OFFSET('Combined Annuity Prices CL'!$B$10,MATCH($B26,'Combined Annuity Prices CL'!$B$10:$B$3811,0)+12,E$7)*'Master Data'!$J$37)","v":23.26682170798912},{"$f":"IF($C26=\"NA\",\"\",OFFSET('Combined Annuity Prices CL'!$B$10,MATCH($B26,'Combined Annuity Prices CL'!$B$10:$B$3811,0)+12,F$7)*'Master Data'!$J$37)","v":23.337817618967058},{"$f":"IF($C26=\"NA\",\"\",OFFSET('Combined Annuity Prices CL'!$B$10,MATCH($B26,'Combined Annuity Prices CL'!$B$10:$B$3811,0)+12,G$7)*'Master Data'!$J$37)","v":23.031908767253309},{"$f":"IF($C26=\"NA\",\"\",OFFSET('Combined Annuity Prices CL'!$B$10,MATCH($B26,'Combined Annuity Prices CL'!$B$10:$B$3811,0)+12,H$7)*'Master Data'!$J$37)","v":22.935855475930222},{"$f":"IF($C26=\"NA\",\"\",OFFSET('Combined Annuity Prices CL'!$B$10,MATCH($B26,'Combined Annuity Prices CL'!$B$10:$B$3811,0)+12,I$7)*'Master Data'!$J$37)","v":22.768806273629203},null,null,null,null,null,null,null,1.3880520494552148E-2,1.3884834592404452E-2,1.3702834121077355E-2,1.3645687215404686E-2,1.358341444672171E-2,null,null,null,null,null,null,null,{"$f":"IFERROR(VLOOKUP($B26,Volumes!$B$4:$H$33,MATCH(AC$9,Volumes!$B$4:$H$4,0),FALSE),0)","v":163},{"$f":"IFERROR(VLOOKUP($B26,Volumes!$B$4:$H$33,MATCH(AD$9,Volumes!$B$4:$H$4,0),FALSE),0)","v":163},{"$f":"IFERROR(VLOOKUP($B26,Volumes!$B$4:$H$33,MATCH(AE$9,Volumes!$B$4:$H$4,0),FALSE),0)","v":163},{"$f":"IFERROR(VLOOKUP($B26,Volumes!$B$4:$H$33,MATCH(AF$9,Volumes!$B$4:$H$4,0),FALSE),0)","v":163},{"$f":"IFERROR(VLOOKUP($B26,Volumes!$B$4:$H$33,MATCH(AG$9,Volumes!$B$4:$H$4,0),FALSE),0)","v":163}]
[null,{"$f":"Inputs!$C86","v":0},"NA","",{"$f":"IF($C27=\"NA\",\"\",OFFSET('Combined Annuity Prices CL'!$B$10,MATCH($B27,'Combined Annuity Prices CL'!$B$10:$B$3811,0)+12,E$7)*'Master Data'!$J$37)","v":""},{"$f":"IF($C27=\"NA\",\"\",OFFSET('Combined Annuity Prices CL'!$B$10,MATCH($B27,'Combined Annuity Prices CL'!$B$10:$B$3811,0)+12,F$7)*'Master Data'!$J$37)","v":""},{"$f":"IF($C27=\"NA\",\"\",OFFSET('Combined Annuity Prices CL'!$B$10,MATCH($B27,'Combined Annuity Prices CL'!$B$10:$B$3811,0)+12,G$7)*'Master Data'!$J$37)","v":""},{"$f":"IF($C27=\"NA\",\"\",OFFSET('Combined Annuity Prices CL'!$B$10,MATCH($B27,'Combined Annuity Prices CL'!$B$10:$B$3811,0)+12,H$7)*'Master Data'!$J$37)","v":""},{"$f":"IF($C27=\"NA\",\"\",OFFSET('Combined Annuity Prices CL'!$B$10,MATCH($B27,'Combined Annuity Prices CL'!$B$10:$B$3811,0)+12,I$7)*'Master Data'!$J$37)","v":""},null,null,null,null,null,null,null,"","","","","",null,null,null,null,null,null,null,{"$f":"IFERROR(VLOOKUP($B27,Volumes!$B$4:$H$33,MATCH(AC$9,Volumes!$B$4:$H$4,0),FALSE),0)","v":0},{"$f":"IFERROR(VLOOKUP($B27,Volumes!$B$4:$H$33,MATCH(AD$9,Volumes!$B$4:$H$4,0),FALSE),0)","v":0},{"$f":"IFERROR(VLOOKUP($B27,Volumes!$B$4:$H$33,MATCH(AE$9,Volumes!$B$4:$H$4,0),FALSE),0)","v":0},{"$f":"IFERROR(VLOOKUP($B27,Volumes!$B$4:$H$33,MATCH(AF$9,Volumes!$B$4:$H$4,0),FALSE),0)","v":0},{"$f":"IFERROR(VLOOKUP($B27,Volumes!$B$4:$H$33,MATCH(AG$9,Volumes!$B$4:$H$4,0),FALSE),0)","v":0}]
[null,{"$f":"Inputs!$C87","v":0},"NA","",{"$f":"IF($C28=\"NA\",\"\",OFFSET('Combined Annuity Prices CL'!$B$10,MATCH($B28,'Combined Annuity Prices CL'!$B$10:$B$3811,0)+12,E$7)*'Master Data'!$J$37)","v":""},{"$f":"IF($C28=\"NA\",\"\",OFFSET('Combined Annuity Prices CL'!$B$10,MATCH($B28,'Combined Annuity Prices CL'!$B$10:$B$3811,0)+12,F$7)*'Master Data'!$J$37)","v":""},{"$f":"IF($C28=\"NA\",\"\",OFFSET('Combined Annuity Prices CL'!$B$10,MATCH($B28,'Combined Annuity Prices CL'!$B$10:$B$3811,0)+12,G$7)*'Master Data'!$J$37)","v":""},{"$f":"IF($C28=\"NA\",\"\",OFFSET('Combined Annuity Prices CL'!$B$10,MATCH($B28,'Combined Annuity Prices CL'!$B$10:$B$3811,0)+12,H$7)*'Master Data'!$J$37)","v":""},{"$f":"IF($C28=\"NA\",\"\",OFFSET('Combined Annuity Prices CL'!$B$10,MATCH($B28,'Combined Annuity Prices CL'!$B$10:$B$3811,0)+12,I$7)*'Master Data'!$J$37)","v":""},null,null,null,null,null,null,null,"","","","","",null,null,null,null,null,null,null,{"$f":"IFERROR(VLOOKUP($B28,Volumes!$B$4:$H$33,MATCH(AC$9,Volumes!$B$4:$H$4,0),FALSE),0)","v":0},{"$f":"IFERROR(VLOOKUP($B28,Volumes!$B$4:$H$33,MATCH(AD$9,Volumes!$B$4:$H$4,0),FALSE),0)","v":0},{"$f":"IFERROR(VLOOKUP($B28,Volumes!$B$4:$H$33,MATCH(AE$9,Volumes!$B$4:$H$4,0),FALSE),0)","v":0},{"$f":"IFERROR(VLOOKUP($B28,Volumes!$B$4:$H$33,MATCH(AF$9,Volumes!$B$4:$H$4,0),FALSE),0)","v":0},{"$f":"IFERROR(VLOOKUP($B28,Volumes!$B$4:$H$33,MATCH(AG$9,Volumes!$B$4:$H$4,0),FALSE),0)","v":0}]
[null,{"$f":"Inputs!$C88","v":0},"NA","",{"$f":"IF($C29=\"NA\",\"\",OFFSET('Combined Annuity Prices CL'!$B$10,MATCH($B29,'Combined Annuity Prices CL'!$B$10:$B$3811,0)+12,E$7)*'Master Data'!$J$37)","v":""},{"$f":"IF($C29=\"NA\",\"\",OFFSET('Combined Annuity Prices CL'!$B$10,MATCH($B29,'Combined Annuity Prices CL'!$B$10:$B$3811,0)+12,F$7)*'Master Data'!$J$37)","v":""},{"$f":"IF($C29=\"NA\",\"\",OFFSET('Combined Annuity Prices CL'!$B$10,MATCH($B29,'Combined Annuity Prices CL'!$B$10:$B$3811,0)+12,G$7)*'Master Data'!$J$37)","v":""},{"$f":"IF($C29=\"NA\",\"\",OFFSET('Combined Annuity Prices CL'!$B$10,MATCH($B29,'Combined Annuity Prices CL'!$B$10:$B$3811,0)+12,H$7)*'Master Data'!$J$37)","v":""},{"$f":"IF($C29=\"NA\",\"\",OFFSET('Combined Annuity Prices CL'!$B$10,MATCH($B29,'Combined Annuity Prices CL'!$B$10:$B$3811,0)+12,I$7)*'Master Data'!$J$37)","v":""},null,null,null,null,null,null,null,"","","","","",null,null,null,null,null,null,null,{"$f":"IFERROR(VLOOKUP($B29,Volumes!$B$4:$H$33,MATCH(AC$9,Volumes!$B$4:$H$4,0),FALSE),0)","v":0},{"$f":"IFERROR(VLOOKUP($B29,Volumes!$B$4:$H$33,MATCH(AD$9,Volumes!$B$4:$H$4,0),FALSE),0)","v":0},{"$f":"IFERROR(VLOOKUP($B29,Volumes!$B$4:$H$33,MATCH(AE$9,Volumes!$B$4:$H$4,0),FALSE),0)","v":0},{"$f":"IFERROR(VLOOKUP($B29,Volumes!$B$4:$H$33,MATCH(AF$9,Volumes!$B$4:$H$4,0),FALSE),0)","v":0},{"$f":"IFERROR(VLOOKUP($B29,Volumes!$B$4:$H$33,MATCH(AG$9,Volumes!$B$4:$H$4,0),FALSE),0)","v":0}]
[null,{"$f":"Inputs!$C89","v":"250W Sodium Vapour"},"Offered",22.687999999999999,{"$f":"IF($C30=\"NA\",\"\",OFFSET('Combined Annuity Prices CL'!$B$10,MATCH($B30,'Combined Annuity Prices CL'!$B$10:$B$3811,0)+12,E$7)*'Master Data'!$J$37)","v":23.396284839772413},{"$f":"IF($C30=\"NA\",\"\",OFFSET('Combined Annuity Prices CL'!$B$10,MATCH($B30,'Combined Annuity Prices CL'!$B$10:$B$3811,0)+12,F$7)*'Master Data'!$J$37)","v":23.467280750750348},{"$f":"IF($C30=\"NA\",\"\",OFFSET('Combined Annuity Prices CL'!$B$10,MATCH($B30,'Combined Annuity Prices CL'!$B$10:$B$3811,0)+12,G$7)*'Master Data'!$J$37)","v":23.161371899036602},{"$f":"IF($C30=\"NA\",\"\",OFFSET('Combined Annuity Prices CL'!$B$10,MATCH($B30,'Combined Annuity Prices CL'!$B$10:$B$3811,0)+12,H$7)*'Master Data'!$J$37)","v":23.066362665227896},{"$f":"IF($C30=\"NA\",\"\",OFFSET('Combined Annuity Prices CL'!$B$10,MATCH($B30,'Combined Annuity Prices CL'!$B$10:$B$3811,0)+12,I$7)*'Master Data'!$J$37)","v":22.898269405412492},null,null,null,null,null,null,null,1.4129016414738561E-2,1.4133169832139398E-2,1.3948936226194794E-2,1.38917169151335E-2,1.3828264893928606E-2,null,null,null,null,null,null,null,{"$f":"IFERROR(VLOOKUP($B30,Volumes!$B$4:$H$33,MATCH(AC$9,Volumes!$B$4:$H$4,0),FALSE),0)","v":165},{"$f":"IFERROR(VLOOKUP($B30,Volumes!$B$4:$H$33,MATCH(AD$9,Volumes!$B$4:$H$4,0),FALSE),0)","v":165},{"$f":"IFERROR(VLOOKUP($B30,Volumes!$B$4:$H$33,MATCH(AE$9,Volumes!$B$4:$H$4,0),FALSE),0)","v":165},{"$f":"IFERROR(VLOOKUP($B30,Volumes!$B$4:$H$33,MATCH(AF$9,Volumes!$B$4:$H$4,0),FALSE),0)","v":165},{"$f":"IFERROR(VLOOKUP($B30,Volumes!$B$4:$H$33,MATCH(AG$9,Volumes!$B$4:$H$4,0),FALSE),0)","v":165}]
[null,{"$f":"Inputs!$C90","v":0},"NA","",{"$f":"IF($C31=\"NA\",\"\",OFFSET('Combined Annuity Prices CL'!$B$10,MATCH($B31,'Combined Annuity Prices CL'!$B$10:$B$3811,0)+12,E$7)*'Master Data'!$J$37)","v":""},{"$f":"IF($C31=\"NA\",\"\",OFFSET('Combined Annuity Prices CL'!$B$10,MATCH($B31,'Combined Annuity Prices CL'!$B$10:$B$3811,0)+12,F$7)*'Master Data'!$J$37)","v":""},{"$f":"IF($C31=\"NA\",\"\",OFFSET('Combined Annuity Prices CL'!$B$10,MATCH($B31,'Combined Annuity Prices CL'!$B$10:$B$3811,0)+12,G$7)*'Master Data'!$J$37)","v":""},{"$f":"IF($C31=\"NA\",\"\",OFFSET('Combined Annuity Prices CL'!$B$10,MATCH($B31,'Combined Annuity Prices CL'!$B$10:$B$3811,0)+12,H$7)*'Master Data'!$J$37)","v":""},{"$f":"IF($C31=\"NA\",\"\",OFFSET('Combined Annuity Prices CL'!$B$10,MATCH($B31,'Combined Annuity Prices CL'!$B$10:$B$3811,0)+12,I$7)*'Master Data'!$J$37)","v":""},null,null,null,null,null,null,null,"","","","","",null,null,null,null,null,null,null,{"$f":"IFERROR(VLOOKUP($B31,Volumes!$B$4:$H$33,MATCH(AC$9,Volumes!$B$4:$H$4,0),FALSE),0)","v":0},{"$f":"IFERROR(VLOOKUP($B31,Volumes!$B$4:$H$33,MATCH(AD$9,Volumes!$B$4:$H$4,0),FALSE),0)","v":0},{"$f":"IFERROR(VLOOKUP($B31,Volumes!$B$4:$H$33,MATCH(AE$9,Volumes!$B$4:$H$4,0),FALSE),0)","v":0},{"$f":"IFERROR(VLOOKUP($B31,Volumes!$B$4:$H$33,MATCH(AF$9,Volumes!$B$4:$H$4,0),FALSE),0)","v":0},{"$f":"IFERROR(VLOOKUP($B31,Volumes!$B$4:$H$33,MATCH(AG$9,Volumes!$B$4:$H$4,0),FALSE),0)","v":0}]
[null,{"$f":"Inputs!$C91","v":0},"NA","",{"$f":"IF($C32=\"NA\",\"\",OFFSET('Combined Annuity Prices CL'!$B$10,MATCH($B32,'Combined Annuity Prices CL'!$B$10:$B$3811,0)+12,E$7)*'Master Data'!$J$37)","v":""},{"$f":"IF($C32=\"NA\",\"\",OFFSET('Combined Annuity Prices CL'!$B$10,MATCH($B32,'Combined Annuity Prices CL'!$B$10:$B$3811,0)+12,F$7)*'Master Data'!$J$37)","v":""},{"$f":"IF($C32=\"NA\",\"\",OFFSET('Combined Annuity Prices CL'!$B$10,MATCH($B32,'Combined Annuity Prices CL'!$B$10:$B$3811,0)+12,G$7)*'Master Data'!$J$37)","v":""},{"$f":"IF($C32=\"NA\",\"\",OFFSET('Combined Annuity Prices CL'!$B$10,MATCH($B32,'Combined Annuity Prices CL'!$B$10:$B$3811,0)+12,H$7)*'Master Data'!$J$37)","v":""},{"$f":"IF($C32=\"NA\",\"\",OFFSET('Combined Annuity Prices CL'!$B$10,MATCH($B32,'Combined Annuity Prices CL'!$B$10:$B$3811,0)+12,I$7)*'Master Data'!$J$37)","v":""},null,null,null,null,null,null,null,"","","","","",null,null,null,null,null,null,null,{"$f":"IFERROR(VLOOKUP($B32,Volumes!$B$4:$H$33,MATCH(AC$9,Volumes!$B$4:$H$4,0),FALSE),0)","v":0},{"$f":"IFERROR(VLOOKUP($B32,Volumes!$B$4:$H$33,MATCH(AD$9,Volumes!$B$4:$H$4,0),FALSE),0)","v":0},{"$f":"IFERROR(VLOOKUP($B32,Volumes!$B$4:$H$33,MATCH(AE$9,Volumes!$B$4:$H$4,0),FALSE),0)","v":0},{"$f":"IFERROR(VLOOKUP($B32,Volumes!$B$4:$H$33,MATCH(AF$9,Volumes!$B$4:$H$4,0),FALSE),0)","v":0},{"$f":"IFERROR(VLOOKUP($B32,Volumes!$B$4:$H$33,MATCH(AG$9,Volumes!$B$4:$H$4,0),FALSE),0)","v":0}]
[null,{"$f":"Inputs!$C92","v":0},"NA","",{"$f":"IF($C33=\"NA\",\"\",OFFSET('Combined Annuity Prices CL'!$B$10,MATCH($B33,'Combined Annuity Prices CL'!$B$10:$B$3811,0)+12,E$7)*'Master Data'!$J$37)","v":""},{"$f":"IF($C33=\"NA\",\"\",OFFSET('Combined Annuity Prices CL'!$B$10,MATCH($B33,'Combined Annuity Prices CL'!$B$10:$B$3811,0)+12,F$7)*'Master Data'!$J$37)","v":""},{"$f":"IF($C33=\"NA\",\"\",OFFSET('Combined Annuity Prices CL'!$B$10,MATCH($B33,'Combined Annuity Prices CL'!$B$10:$B$3811,0)+12,G$7)*'Master Data'!$J$37)","v":""},{"$f":"IF($C33=\"NA\",\"\",OFFSET('Combined Annuity Prices CL'!$B$10,MATCH($B33,'Combined Annuity Prices CL'!$B$10:$B$3811,0)+12,H$7)*'Master Data'!$J$37)","v":""},{"$f":"IF($C33=\"NA\",\"\",OFFSET('Combined Annuity Prices CL'!$B$10,MATCH($B33,'Combined Annuity Prices CL'!$B$10:$B$3811,0)+12,I$7)*'Master Data'!$J$37)","v":""},null,null,null,null,null,null,null,"","","","","",null,null,null,null,null,null,null,{"$f":"IFERROR(VLOOKUP($B33,Volumes!$B$4:$H$33,MATCH(AC$9,Volumes!$B$4:$H$4,0),FALSE),0)","v":0},{"$f":"IFERROR(VLOOKUP($B33,Volumes!$B$4:$H$33,MATCH(AD$9,Volumes!$B$4:$H$4,0),FALSE),0)","v":0},{"$f":"IFERROR(VLOOKUP($B33,Volumes!$B$4:$H$33,MATCH(AE$9,Volumes!$B$4:$H$4,0),FALSE),0)","v":0},{"$f":"IFERROR(VLOOKUP($B33,Volumes!$B$4:$H$33,MATCH(AF$9,Volumes!$B$4:$H$4,0),FALSE),0)","v":0},{"$f":"IFERROR(VLOOKUP($B33,Volumes!$B$4:$H$33,MATCH(AG$9,Volumes!$B$4:$H$4,0),FALSE),0)","v":0}]
[null,{"$f":"Inputs!$C93","v":"250W Sodium Vapour - Flood Light"},"Old light no volumes",22.687999999999999,{"$f":"IF($C34=\"NA\",\"\",OFFSET('Combined Annuity Prices CL'!$B$10,MATCH($B34,'Combined Annuity Prices CL'!$B$10:$B$3811,0)+12,E$7)*'Master Data'!$J$37)","v":23.396284839772413},{"$f":"IF($C34=\"NA\",\"\",OFFSET('Combined Annuity Prices CL'!$B$10,MATCH($B34,'Combined Annuity Prices CL'!$B$10:$B$3811,0)+12,F$7)*'Master Data'!$J$37)","v":23.467280750750348},{"$f":"IF($C34=\"NA\",\"\",OFFSET('Combined Annuity Prices CL'!$B$10,MATCH($B34,'Combined Annuity Prices CL'!$B$10:$B$3811,0)+12,G$7)*'Master Data'!$J$37)","v":23.161371899036602},{"$f":"IF($C34=\"NA\",\"\",OFFSET('Combined Annuity Prices CL'!$B$10,MATCH($B34,'Combined Annuity Prices CL'!$B$10:$B$3811,0)+12,H$7)*'Master Data'!$J$37)","v":23.066362665227896},{"$f":"IF($C34=\"NA\",\"\",OFFSET('Combined Annuity Prices CL'!$B$10,MATCH($B34,'Combined Annuity Prices CL'!$B$10:$B$3811,0)+12,I$7)*'Master Data'!$J$37)","v":22.898269405412492},null,null,null,null,null,null,null,0,0,0,0,0,null,null,null,null,null,null,null,{"$f":"IFERROR(VLOOKUP($B34,Volumes!$B$4:$H$33,MATCH(AC$9,Volumes!$B$4:$H$4,0),FALSE),0)","v":0},{"$f":"IFERROR(VLOOKUP($B34,Volumes!$B$4:$H$33,MATCH(AD$9,Volumes!$B$4:$H$4,0),FALSE),0)","v":0},{"$f":"IFERROR(VLOOKUP($B34,Volumes!$B$4:$H$33,MATCH(AE$9,Volumes!$B$4:$H$4,0),FALSE),0)","v":0},{"$f":"IFERROR(VLOOKUP($B34,Volumes!$B$4:$H$33,MATCH(AF$9,Volumes!$B$4:$H$4,0),FALSE),0)","v":0},{"$f":"IFERROR(VLOOKUP($B34,Volumes!$B$4:$H$33,MATCH(AG$9,Volumes!$B$4:$H$4,0),FALSE),0)","v":0}]
[null,{"$f":"Inputs!$C94","v":"400W Sodium Vapour"},"Offered",22.734000000000002,{"$f":"IF($C35=\"NA\",\"\",OFFSET('Combined Annuity Prices CL'!$B$10,MATCH($B35,'Combined Annuity Prices CL'!$B$10:$B$3811,0)+12,E$7)*'Master Data'!$J$37)","v":23.440135255376433},{"$f":"IF($C35=\"NA\",\"\",OFFSET('Combined Annuity Prices CL'!$B$10,MATCH($B35,'Combined Annuity Prices CL'!$B$10:$B$3811,0)+12,F$7)*'Master Data'!$J$37)","v":23.511131166354364},{"$f":"IF($C35=\"NA\",\"\",OFFSET('Combined Annuity Prices CL'!$B$10,MATCH($B35,'Combined Annuity Prices CL'!$B$10:$B$3811,0)+12,G$7)*'Master Data'!$J$37)","v":23.205222314640618},{"$f":"IF($C35=\"NA\",\"\",OFFSET('Combined Annuity Prices CL'!$B$10,MATCH($B35,'Combined Annuity Prices CL'!$B$10:$B$3811,0)+12,H$7)*'Master Data'!$J$37)","v":23.110213080831915},{"$f":"IF($C35=\"NA\",\"\",OFFSET('Combined Annuity Prices CL'!$B$10,MATCH($B35,'Combined Annuity Prices CL'!$B$10:$B$3811,0)+12,I$7)*'Master Data'!$J$37)","v":22.942119821016512},null,null,null,null,null,null,null,8.9222530836064861E-3,8.9248253907481152E-3,8.8087023906375794E-3,8.7726368854837943E-3,8.7326884886717252E-3,null,null,null,null,null,null,null,{"$f":"IFERROR(VLOOKUP($B35,Volumes!$B$4:$H$33,MATCH(AC$9,Volumes!$B$4:$H$4,0),FALSE),0)","v":104},{"$f":"IFERROR(VLOOKUP($B35,Volumes!$B$4:$H$33,MATCH(AD$9,Volumes!$B$4:$H$4,0),FALSE),0)","v":104},{"$f":"IFERROR(VLOOKUP($B35,Volumes!$B$4:$H$33,MATCH(AE$9,Volumes!$B$4:$H$4,0),FALSE),0)","v":104},{"$f":"IFERROR(VLOOKUP($B35,Volumes!$B$4:$H$33,MATCH(AF$9,Volumes!$B$4:$H$4,0),FALSE),0)","v":104},{"$f":"IFERROR(VLOOKUP($B35,Volumes!$B$4:$H$33,MATCH(AG$9,Volumes!$B$4:$H$4,0),FALSE),0)","v":104}]
[null,{"$f":"Inputs!$C95","v":0},"NA","",{"$f":"IF($C36=\"NA\",\"\",OFFSET('Combined Annuity Prices CL'!$B$10,MATCH($B36,'Combined Annuity Prices CL'!$B$10:$B$3811,0)+12,E$7)*'Master Data'!$J$37)","v":""},{"$f":"IF($C36=\"NA\",\"\",OFFSET('Combined Annuity Prices CL'!$B$10,MATCH($B36,'Combined Annuity Prices CL'!$B$10:$B$3811,0)+12,F$7)*'Master Data'!$J$37)","v":""},{"$f":"IF($C36=\"NA\",\"\",OFFSET('Combined Annuity Prices CL'!$B$10,MATCH($B36,'Combined Annuity Prices CL'!$B$10:$B$3811,0)+12,G$7)*'Master Data'!$J$37)","v":""},{"$f":"IF($C36=\"NA\",\"\",OFFSET('Combined Annuity Prices CL'!$B$10,MATCH($B36,'Combined Annuity Prices CL'!$B$10:$B$3811,0)+12,H$7)*'Master Data'!$J$37)","v":""},{"$f":"IF($C36=\"NA\",\"\",OFFSET('Combined Annuity Prices CL'!$B$10,MATCH($B36,'Combined Annuity Prices CL'!$B$10:$B$3811,0)+12,I$7)*'Master Data'!$J$37)","v":""},null,null,null,null,null,null,null,"","","","","",null,null,null,null,null,null,null,{"$f":"IFERROR(VLOOKUP($B36,Volumes!$B$4:$H$33,MATCH(AC$9,Volumes!$B$4:$H$4,0),FALSE),0)","v":0},{"$f":"IFERROR(VLOOKUP($B36,Volumes!$B$4:$H$33,MATCH(AD$9,Volumes!$B$4:$H$4,0),FALSE),0)","v":0},{"$f":"IFERROR(VLOOKUP($B36,Volumes!$B$4:$H$33,MATCH(AE$9,Volumes!$B$4:$H$4,0),FALSE),0)","v":0},{"$f":"IFERROR(VLOOKUP($B36,Volumes!$B$4:$H$33,MATCH(AF$9,Volumes!$B$4:$H$4,0),FALSE),0)","v":0},{"$f":"IFERROR(VLOOKUP($B36,Volumes!$B$4:$H$33,MATCH(AG$9,Volumes!$B$4:$H$4,0),FALSE),0)","v":0}]
[null,{"$f":"Inputs!$C96","v":"400W Sodium Vapour - Flood Light"},"Old light no volumes",22.734000000000002,{"$f":"IF($C37=\"NA\",\"\",OFFSET('Combined Annuity Prices CL'!$B$10,MATCH($B37,'Combined Annuity Prices CL'!$B$10:$B$3811,0)+12,E$7)*'Master Data'!$J$37)","v":23.440135255376433},{"$f":"IF($C37=\"NA\",\"\",OFFSET('Combined Annuity Prices CL'!$B$10,MATCH($B37,'Combined Annuity Prices CL'!$B$10:$B$3811,0)+12,F$7)*'Master Data'!$J$37)","v":23.511131166354364},{"$f":"IF($C37=\"NA\",\"\",OFFSET('Combined Annuity Prices CL'!$B$10,MATCH($B37,'Combined Annuity Prices CL'!$B$10:$B$3811,0)+12,G$7)*'Master Data'!$J$37)","v":23.205222314640618},{"$f":"IF($C37=\"NA\",\"\",OFFSET('Combined Annuity Prices CL'!$B$10,MATCH($B37,'Combined Annuity Prices CL'!$B$10:$B$3811,0)+12,H$7)*'Master Data'!$J$37)","v":23.110213080831915},{"$f":"IF($C37=\"NA\",\"\",OFFSET('Combined Annuity Prices CL'!$B$10,MATCH($B37,'Combined Annuity Prices CL'!$B$10:$B$3811,0)+12,I$7)*'Master Data'!$J$37)","v":22.942119821016512},null,null,null,null,null,null,null,0,0,0,0,0,null,null,null,null,null,null,null,{"$f":"IFERROR(VLOOKUP($B37,Volumes!$B$4:$H$33,MATCH(AC$9,Volumes!$B$4:$H$4,0),FALSE),0)","v":0},{"$f":"IFERROR(VLOOKUP($B37,Volumes!$B$4:$H$33,MATCH(AD$9,Volumes!$B$4:$H$4,0),FALSE),0)","v":0},{"$f":"IFERROR(VLOOKUP($B37,Volumes!$B$4:$H$33,MATCH(AE$9,Volumes!$B$4:$H$4,0),FALSE),0)","v":0},{"$f":"IFERROR(VLOOKUP($B37,Volumes!$B$4:$H$33,MATCH(AF$9,Volumes!$B$4:$H$4,0),FALSE),0)","v":0},{"$f":"IFERROR(VLOOKUP($B37,Volumes!$B$4:$H$33,MATCH(AG$9,Volumes!$B$4:$H$4,0),FALSE),0)","v":0}]
[null,{"$f":"Inputs!$C97","v":"70W Sodium Vapour"},"Offered",18.434000000000001,{"$f":"IF($C38=\"NA\",\"\",OFFSET('Combined Annuity Prices CL'!$B$10,MATCH($B38,'Combined Annuity Prices CL'!$B$10:$B$3811,0)+12,E$7)*'Master Data'!$J$37)","v":19.351606029058935},{"$f":"IF($C38=\"NA\",\"\",OFFSET('Combined Annuity Prices CL'!$B$10,MATCH($B38,'Combined Annuity Prices CL'!$B$10:$B$3811,0)+12,F$7)*'Master Data'!$J$37)","v":19.412161364893056},{"$f":"IF($C38=\"NA\",\"\",OFFSET('Combined Annuity Prices CL'!$B$10,MATCH($B38,'Combined Annuity Prices CL'!$B$10:$B$3811,0)+12,G$7)*'Master Data'!$J$37)","v":19.105208455664929},{"$f":"IF($C38=\"NA\",\"\",OFFSET('Combined Annuity Prices CL'!$B$10,MATCH($B38,'Combined Annuity Prices CL'!$B$10:$B$3811,0)+12,H$7)*'Master Data'!$J$37)","v":19.00811110682746},{"$f":"IF($C38=\"NA\",\"\",OFFSET('Combined Annuity Prices CL'!$B$10,MATCH($B38,'Combined Annuity Prices CL'!$B$10:$B$3811,0)+12,I$7)*'Master Data'!$J$37)","v":18.850458422155871},null,null,null,null,null,null,null,5.1703620988439664E-3,5.1723703956757551E-3,5.0905827930119206E-3,5.0647112044141769E-3,5.0364654812316062E-3,null,null,null,null,null,null,null,{"$f":"IFERROR(VLOOKUP($B38,Volumes!$B$4:$H$33,MATCH(AC$9,Volumes!$B$4:$H$4,0),FALSE),0)","v":73},{"$f":"IFERROR(VLOOKUP($B38,Volumes!$B$4:$H$33,MATCH(AD$9,Volumes!$B$4:$H$4,0),FALSE),0)","v":73},{"$f":"IFERROR(VLOOKUP($B38,Volumes!$B$4:$H$33,MATCH(AE$9,Volumes!$B$4:$H$4,0),FALSE),0)","v":73},{"$f":"IFERROR(VLOOKUP($B38,Volumes!$B$4:$H$33,MATCH(AF$9,Volumes!$B$4:$H$4,0),FALSE),0)","v":73},{"$f":"IFERROR(VLOOKUP($B38,Volumes!$B$4:$H$33,MATCH(AG$9,Volumes!$B$4:$H$4,0),FALSE),0)","v":73}]
[null,{"$f":"Inputs!$C98","v":0},"NA","",{"$f":"IF($C39=\"NA\",\"\",OFFSET('Combined Annuity Prices CL'!$B$10,MATCH($B39,'Combined Annuity Prices CL'!$B$10:$B$3811,0)+12,E$7)*'Master Data'!$J$37)","v":""},{"$f":"IF($C39=\"NA\",\"\",OFFSET('Combined Annuity Prices CL'!$B$10,MATCH($B39,'Combined Annuity Prices CL'!$B$10:$B$3811,0)+12,F$7)*'Master Data'!$J$37)","v":""},{"$f":"IF($C39=\"NA\",\"\",OFFSET('Combined Annuity Prices CL'!$B$10,MATCH($B39,'Combined Annuity Prices CL'!$B$10:$B$3811,0)+12,G$7)*'Master Data'!$J$37)","v":""},{"$f":"IF($C39=\"NA\",\"\",OFFSET('Combined Annuity Prices CL'!$B$10,MATCH($B39,'Combined Annuity Prices CL'!$B$10:$B$3811,0)+12,H$7)*'Master Data'!$J$37)","v":""},{"$f":"IF($C39=\"NA\",\"\",OFFSET('Combined Annuity Prices CL'!$B$10,MATCH($B39,'Combined Annuity Prices CL'!$B$10:$B$3811,0)+12,I$7)*'Master Data'!$J$37)","v":""},null,null,null,null,null,null,null,"","","","","",null,null,null,null,null,null,null,{"$f":"IFERROR(VLOOKUP($B39,Volumes!$B$4:$H$33,MATCH(AC$9,Volumes!$B$4:$H$4,0),FALSE),0)","v":0},{"$f":"IFERROR(VLOOKUP($B39,Volumes!$B$4:$H$33,MATCH(AD$9,Volumes!$B$4:$H$4,0),FALSE),0)","v":0},{"$f":"IFERROR(VLOOKUP($B39,Volumes!$B$4:$H$33,MATCH(AE$9,Volumes!$B$4:$H$4,0),FALSE),0)","v":0},{"$f":"IFERROR(VLOOKUP($B39,Volumes!$B$4:$H$33,MATCH(AF$9,Volumes!$B$4:$H$4,0),FALSE),0)","v":0},{"$f":"IFERROR(VLOOKUP($B39,Volumes!$B$4:$H$33,MATCH(AG$9,Volumes!$B$4:$H$4,0),FALSE),0)","v":0}]
[null,{"$f":"Inputs!$C99","v":"100W Incandescent"},"Obsolete, no new Connections",21.61,{"$f":"IF($C40=\"NA\",\"\",OFFSET('Combined Annuity Prices CL'!$B$10,MATCH($B40,'Combined Annuity Prices CL'!$B$10:$B$3811,0)+12,E$7)*'Master Data'!$J$37)","v":22.35118326787665},{"$f":"IF($C40=\"NA\",\"\",OFFSET('Combined Annuity Prices CL'!$B$10,MATCH($B40,'Combined Annuity Prices CL'!$B$10:$B$3811,0)+12,F$7)*'Master Data'!$J$37)","v":22.420091063825819},{"$f":"IF($C40=\"NA\",\"\",OFFSET('Combined Annuity Prices CL'!$B$10,MATCH($B40,'Combined Annuity Prices CL'!$B$10:$B$3811,0)+12,G$7)*'Master Data'!$J$37)","v":22.114182212112077},{"$f":"IF($C40=\"NA\",\"\",OFFSET('Combined Annuity Prices CL'!$B$10,MATCH($B40,'Combined Annuity Prices CL'!$B$10:$B$3811,0)+12,H$7)*'Master Data'!$J$37)","v":22.018128920788985},{"$f":"IF($C40=\"NA\",\"\",OFFSET('Combined Annuity Prices CL'!$B$10,MATCH($B40,'Combined Annuity Prices CL'!$B$10:$B$3811,0)+12,I$7)*'Master Data'!$J$37)","v":21.853167833516729},null,null,null,null,null,null,null,0,0,0,0,0,null,null,null,null,null,null,null,{"$f":"IFERROR(VLOOKUP($B40,Volumes!$B$4:$H$33,MATCH(AC$9,Volumes!$B$4:$H$4,0),FALSE),0)","v":0},{"$f":"IFERROR(VLOOKUP($B40,Volumes!$B$4:$H$33,MATCH(AD$9,Volumes!$B$4:$H$4,0),FALSE),0)","v":0},{"$f":"IFERROR(VLOOKUP($B40,Volumes!$B$4:$H$33,MATCH(AE$9,Volumes!$B$4:$H$4,0),FALSE),0)","v":0},{"$f":"IFERROR(VLOOKUP($B40,Volumes!$B$4:$H$33,MATCH(AF$9,Volumes!$B$4:$H$4,0),FALSE),0)","v":0},{"$f":"IFERROR(VLOOKUP($B40,Volumes!$B$4:$H$33,MATCH(AG$9,Volumes!$B$4:$H$4,0),FALSE),0)","v":0}]
[null,{"$f":"Inputs!$C100","v":"60W Incandescent"},"Obsolete, no new Connections",18.023,{"$f":"IF($C41=\"NA\",\"\",OFFSET('Combined Annuity Prices CL'!$B$10,MATCH($B41,'Combined Annuity Prices CL'!$B$10:$B$3811,0)+12,E$7)*'Master Data'!$J$37)","v":18.954864173594011},{"$f":"IF($C41=\"NA\",\"\",OFFSET('Combined Annuity Prices CL'!$B$10,MATCH($B41,'Combined Annuity Prices CL'!$B$10:$B$3811,0)+12,F$7)*'Master Data'!$J$37)","v":19.014375451913747},{"$f":"IF($C41=\"NA\",\"\",OFFSET('Combined Annuity Prices CL'!$B$10,MATCH($B41,'Combined Annuity Prices CL'!$B$10:$B$3811,0)+12,G$7)*'Master Data'!$J$37)","v":18.70742254268562},{"$f":"IF($C41=\"NA\",\"\",OFFSET('Combined Annuity Prices CL'!$B$10,MATCH($B41,'Combined Annuity Prices CL'!$B$10:$B$3811,0)+12,H$7)*'Master Data'!$J$37)","v":18.611369251362536},{"$f":"IF($C41=\"NA\",\"\",OFFSET('Combined Annuity Prices CL'!$B$10,MATCH($B41,'Combined Annuity Prices CL'!$B$10:$B$3811,0)+12,I$7)*'Master Data'!$J$37)","v":18.453716566690947},null,null,null,null,null,null,null,0,0,0,0,0,null,null,null,null,null,null,null,{"$f":"IFERROR(VLOOKUP($B41,Volumes!$B$4:$H$33,MATCH(AC$9,Volumes!$B$4:$H$4,0),FALSE),0)","v":0},{"$f":"IFERROR(VLOOKUP($B41,Volumes!$B$4:$H$33,MATCH(AD$9,Volumes!$B$4:$H$4,0),FALSE),0)","v":0},{"$f":"IFERROR(VLOOKUP($B41,Volumes!$B$4:$H$33,MATCH(AE$9,Volumes!$B$4:$H$4,0),FALSE),0)","v":0},{"$f":"IFERROR(VLOOKUP($B41,Volumes!$B$4:$H$33,MATCH(AF$9,Volumes!$B$4:$H$4,0),FALSE),0)","v":0},{"$f":"IFERROR(VLOOKUP($B41,Volumes!$B$4:$H$33,MATCH(AG$9,Volumes!$B$4:$H$4,0),FALSE),0)","v":0}]
[null,{"$f":"Inputs!$C101","v":"18W LED"},"Offered",12.349,{"$f":"IF($C42=\"NA\",\"\",OFFSET('Combined Annuity Prices CL'!$B$10,MATCH($B42,'Combined Annuity Prices CL'!$B$10:$B$3811,0)+12,E$7)*'Master Data'!$J$37)","v":13.587364492159319},{"$f":"IF($C42=\"NA\",\"\",OFFSET('Combined Annuity Prices CL'!$B$10,MATCH($B42,'Combined Annuity Prices CL'!$B$10:$B$3811,0)+12,F$7)*'Master Data'!$J$37)","v":13.631214907763336},{"$f":"IF($C42=\"NA\",\"\",OFFSET('Combined Annuity Prices CL'!$B$10,MATCH($B42,'Combined Annuity Prices CL'!$B$10:$B$3811,0)+12,G$7)*'Master Data'!$J$37)","v":13.323217941020829},{"$f":"IF($C42=\"NA\",\"\",OFFSET('Combined Annuity Prices CL'!$B$10,MATCH($B42,'Combined Annuity Prices CL'!$B$10:$B$3811,0)+12,H$7)*'Master Data'!$J$37)","v":13.225076534668979},{"$f":"IF($C42=\"NA\",\"\",OFFSET('Combined Annuity Prices CL'!$B$10,MATCH($B42,'Combined Annuity Prices CL'!$B$10:$B$3811,0)+12,I$7)*'Master Data'!$J$37)","v":13.080996597684349},null,null,null,null,null,null,null,{"$f":"IF($C42=\"NA\",\"\",E42*AC42*Q$6/100/10^6)","v":0.24765417512568949},{"$f":"IF($C42=\"NA\",\"\",F42*AD42*R$6/100/10^6)","v":0.24777459337841418},{"$f":"IF($C42=\"NA\",\"\",G42*AE42*S$6/100/10^6)","v":0.24217613251393566},{"$f":"IF($C42=\"NA\",\"\",H42*AF42*T$6/100/10^6)","v":0.24039221617067802},{"$f":"IF($C42=\"NA\",\"\",I42*AG42*U$6/100/10^6)","v":0.2384247087866731},null,null,null,null,null,null,null,{"$f":"IFERROR(VLOOKUP($B42,Volumes!$B$4:$H$33,MATCH(AC$9,Volumes!$B$4:$H$4,0),FALSE),0)","v":4980},{"$f":"IFERROR(VLOOKUP($B42,Volumes!$B$4:$H$33,MATCH(AD$9,Volumes!$B$4:$H$4,0),FALSE),0)","v":4980},{"$f":"IFERROR(VLOOKUP($B42,Volumes!$B$4:$H$33,MATCH(AE$9,Volumes!$B$4:$H$4,0),FALSE),0)","v":4980},{"$f":"IFERROR(VLOOKUP($B42,Volumes!$B$4:$H$33,MATCH(AF$9,Volumes!$B$4:$H$4,0),FALSE),0)","v":4980},{"$f":"IFERROR(VLOOKUP($B42,Volumes!$B$4:$H$33,MATCH(AG$9,Volumes!$B$4:$H$4,0),FALSE),0)","v":4980}]
[null,{"$f":"Inputs!$C102","v":"18W LED Decorative - Bottom Pole Entry"},"Not Offered",12.349,{"$f":"IF($C43=\"NA\",\"\",OFFSET('Combined Annuity Prices CL'!$B$10,MATCH($B43,'Combined Annuity Prices CL'!$B$10:$B$3811,0)+12,E$7)*'Master Data'!$J$37)","v":13.587364492159319},{"$f":"IF($C43=\"NA\",\"\",OFFSET('Combined Annuity Prices CL'!$B$10,MATCH($B43,'Combined Annuity Prices CL'!$B$10:$B$3811,0)+12,F$7)*'Master Data'!$J$37)","v":13.631214907763336},{"$f":"IF($C43=\"NA\",\"\",OFFSET('Combined Annuity Prices CL'!$B$10,MATCH($B43,'Combined Annuity Prices CL'!$B$10:$B$3811,0)+12,G$7)*'Master Data'!$J$37)","v":13.323217941020829},{"$f":"IF($C43=\"NA\",\"\",OFFSET('Combined Annuity Prices CL'!$B$10,MATCH($B43,'Combined Annuity Prices CL'!$B$10:$B$3811,0)+12,H$7)*'Master Data'!$J$37)","v":13.225076534668979},{"$f":"IF($C43=\"NA\",\"\",OFFSET('Combined Annuity Prices CL'!$B$10,MATCH($B43,'Combined Annuity Prices CL'!$B$10:$B$3811,0)+12,I$7)*'Master Data'!$J$37)","v":13.080996597684349},null,null,null,null,null,null,null,0,0,0,0,0,null,null,null,null,null,null,null,{"$f":"IFERROR(VLOOKUP($B43,Volumes!$B$4:$H$33,MATCH(AC$9,Volumes!$B$4:$H$4,0),FALSE),0)","v":0},{"$f":"IFERROR(VLOOKUP($B43,Volumes!$B$4:$H$33,MATCH(AD$9,Volumes!$B$4:$H$4,0),FALSE),0)","v":0},{"$f":"IFERROR(VLOOKUP($B43,Volumes!$B$4:$H$33,MATCH(AE$9,Volumes!$B$4:$H$4,0),FALSE),0)","v":0},{"$f":"IFERROR(VLOOKUP($B43,Volumes!$B$4:$H$33,MATCH(AF$9,Volumes!$B$4:$H$4,0),FALSE),0)","v":0},{"$f":"IFERROR(VLOOKUP($B43,Volumes!$B$4:$H$33,MATCH(AG$9,Volumes!$B$4:$H$4,0),FALSE),0)","v":0}]
[null,{"$f":"Inputs!$C103","v":"18W LED Decorative - Side Entry"},"Not Offered",12.349,{"$f":"IF($C44=\"NA\",\"\",OFFSET('Combined Annuity Prices CL'!$B$10,MATCH($B44,'Combined Annuity Prices CL'!$B$10:$B$3811,0)+12,E$7)*'Master Data'!$J$37)","v":13.587364492159319},{"$f":"IF($C44=\"NA\",\"\",OFFSET('Combined Annuity Prices CL'!$B$10,MATCH($B44,'Combined Annuity Prices CL'!$B$10:$B$3811,0)+12,F$7)*'Master Data'!$J$37)","v":13.631214907763336},{"$f":"IF($C44=\"NA\",\"\",OFFSET('Combined Annuity Prices CL'!$B$10,MATCH($B44,'Combined Annuity Prices CL'!$B$10:$B$3811,0)+12,G$7)*'Master Data'!$J$37)","v":13.323217941020829},{"$f":"IF($C44=\"NA\",\"\",OFFSET('Combined Annuity Prices CL'!$B$10,MATCH($B44,'Combined Annuity Prices CL'!$B$10:$B$3811,0)+12,H$7)*'Master Data'!$J$37)","v":13.225076534668979},{"$f":"IF($C44=\"NA\",\"\",OFFSET('Combined Annuity Prices CL'!$B$10,MATCH($B44,'Combined Annuity Prices CL'!$B$10:$B$3811,0)+12,I$7)*'Master Data'!$J$37)","v":13.080996597684349},null,null,null,null,null,null,null,0,0,0,0,0,null,null,null,null,null,null,null,{"$f":"IFERROR(VLOOKUP($B44,Volumes!$B$4:$H$33,MATCH(AC$9,Volumes!$B$4:$H$4,0),FALSE),0)","v":0},{"$f":"IFERROR(VLOOKUP($B44,Volumes!$B$4:$H$33,MATCH(AD$9,Volumes!$B$4:$H$4,0),FALSE),0)","v":0},{"$f":"IFERROR(VLOOKUP($B44,Volumes!$B$4:$H$33,MATCH(AE$9,Volumes!$B$4:$H$4,0),FALSE),0)","v":0},{"$f":"IFERROR(VLOOKUP($B44,Volumes!$B$4:$H$33,MATCH(AF$9,Volumes!$B$4:$H$4,0),FALSE),0)","v":0},{"$f":"IFERROR(VLOOKUP($B44,Volumes!$B$4:$H$33,MATCH(AG$9,Volumes!$B$4:$H$4,0),FALSE),0)","v":0}]
[null,{"$f":"Inputs!$C104","v":"18W LED Decorative - Top Entry"},"Not Offered",12.349,{"$f":"IF($C45=\"NA\",\"\",OFFSET('Combined Annuity Prices CL'!$B$10,MATCH($B45,'Combined Annuity Prices CL'!$B$10:$B$3811,0)+12,E$7)*'Master Data'!$J$37)","v":13.587364492159319},{"$f":"IF($C45=\"NA\",\"\",OFFSET('Combined Annuity Prices CL'!$B$10,MATCH($B45,'Combined Annuity Prices CL'!$B$10:$B$3811,0)+12,F$7)*'Master Data'!$J$37)","v":13.631214907763336},{"$f":"IF($C45=\"NA\",\"\",OFFSET('Combined Annuity Prices CL'!$B$10,MATCH($B45,'Combined Annuity Prices CL'!$B$10:$B$3811,0)+12,G$7)*'Master Data'!$J$37)","v":13.323217941020829},{"$f":"IF($C45=\"NA\",\"\",OFFSET('Combined Annuity Prices CL'!$B$10,MATCH($B45,'Combined Annuity Prices CL'!$B$10:$B$3811,0)+12,H$7)*'Master Data'!$J$37)","v":13.225076534668979},{"$f":"IF($C45=\"NA\",\"\",OFFSET('Combined Annuity Prices CL'!$B$10,MATCH($B45,'Combined Annuity Prices CL'!$B$10:$B$3811,0)+12,I$7)*'Master Data'!$J$37)","v":13.080996597684349},null,null,null,null,null,null,null,0,0,0,0,0,null,null,null,null,null,null,null,{"$f":"IFERROR(VLOOKUP($B45,Volumes!$B$4:$H$33,MATCH(AC$9,Volumes!$B$4:$H$4,0),FALSE),0)","v":0},{"$f":"IFERROR(VLOOKUP($B45,Volumes!$B$4:$H$33,MATCH(AD$9,Volumes!$B$4:$H$4,0),FALSE),0)","v":0},{"$f":"IFERROR(VLOOKUP($B45,Volumes!$B$4:$H$33,MATCH(AE$9,Volumes!$B$4:$H$4,0),FALSE),0)","v":0},{"$f":"IFERROR(VLOOKUP($B45,Volumes!$B$4:$H$33,MATCH(AF$9,Volumes!$B$4:$H$4,0),FALSE),0)","v":0},{"$f":"IFERROR(VLOOKUP($B45,Volumes!$B$4:$H$33,MATCH(AG$9,Volumes!$B$4:$H$4,0),FALSE),0)","v":0}]
[null,{"$f":"Inputs!$C105","v":"25W LED"},"Offered",12.349,{"$f":"IF($C46=\"NA\",\"\",OFFSET('Combined Annuity Prices CL'!$B$10,MATCH($B46,'Combined Annuity Prices CL'!$B$10:$B$3811,0)+12,E$7)*'Master Data'!$J$37)","v":13.587364492159319},{"$f":"IF($C46=\"NA\",\"\",OFFSET('Combined Annuity Prices CL'!$B$10,MATCH($B46,'Combined Annuity Prices CL'!$B$10:$B$3811,0)+12,F$7)*'Master Data'!$J$37)","v":13.631214907763336},{"$f":"IF($C46=\"NA\",\"\",OFFSET('Combined Annuity Prices CL'!$B$10,MATCH($B46,'Combined Annuity Prices CL'!$B$10:$B$3811,0)+12,G$7)*'Master Data'!$J$37)","v":13.323217941020829},{"$f":"IF($C46=\"NA\",\"\",OFFSET('Combined Annuity Prices CL'!$B$10,MATCH($B46,'Combined Annuity Prices CL'!$B$10:$B$3811,0)+12,H$7)*'Master Data'!$J$37)","v":13.225076534668979},{"$f":"IF($C46=\"NA\",\"\",OFFSET('Combined Annuity Prices CL'!$B$10,MATCH($B46,'Combined Annuity Prices CL'!$B$10:$B$3811,0)+12,I$7)*'Master Data'!$J$37)","v":13.080996597684349},null,null,null,null,null,null,null,1.44216286719779E-3,1.4428640979867494E-3,1.410262619057055E-3,1.3998743511947115E-3,1.3884169788782167E-3,null,null,null,null,null,null,null,{"$f":"IFERROR(VLOOKUP($B46,Volumes!$B$4:$H$33,MATCH(AC$9,Volumes!$B$4:$H$4,0),FALSE),0)","v":29},{"$f":"IFERROR(VLOOKUP($B46,Volumes!$B$4:$H$33,MATCH(AD$9,Volumes!$B$4:$H$4,0),FALSE),0)","v":29},{"$f":"IFERROR(VLOOKUP($B46,Volumes!$B$4:$H$33,MATCH(AE$9,Volumes!$B$4:$H$4,0),FALSE),0)","v":29},{"$f":"IFERROR(VLOOKUP($B46,Volumes!$B$4:$H$33,MATCH(AF$9,Volumes!$B$4:$H$4,0),FALSE),0)","v":29},{"$f":"IFERROR(VLOOKUP($B46,Volumes!$B$4:$H$33,MATCH(AG$9,Volumes!$B$4:$H$4,0),FALSE),0)","v":29}]
[null,{"$f":"Inputs!$C106","v":"25W LED Decorative - Bottom Pole Entry"},"Not Offered",12.349,{"$f":"IF($C47=\"NA\",\"\",OFFSET('Combined Annuity Prices CL'!$B$10,MATCH($B47,'Combined Annuity Prices CL'!$B$10:$B$3811,0)+12,E$7)*'Master Data'!$J$37)","v":13.587364492159319},{"$f":"IF($C47=\"NA\",\"\",OFFSET('Combined Annuity Prices CL'!$B$10,MATCH($B47,'Combined Annuity Prices CL'!$B$10:$B$3811,0)+12,F$7)*'Master Data'!$J$37)","v":13.631214907763336},{"$f":"IF($C47=\"NA\",\"\",OFFSET('Combined Annuity Prices CL'!$B$10,MATCH($B47,'Combined Annuity Prices CL'!$B$10:$B$3811,0)+12,G$7)*'Master Data'!$J$37)","v":13.323217941020829},{"$f":"IF($C47=\"NA\",\"\",OFFSET('Combined Annuity Prices CL'!$B$10,MATCH($B47,'Combined Annuity Prices CL'!$B$10:$B$3811,0)+12,H$7)*'Master Data'!$J$37)","v":13.225076534668979},{"$f":"IF($C47=\"NA\",\"\",OFFSET('Combined Annuity Prices CL'!$B$10,MATCH($B47,'Combined Annuity Prices CL'!$B$10:$B$3811,0)+12,I$7)*'Master Data'!$J$37)","v":13.080996597684349},null,null,null,null,null,null,null,0,0,0,0,0,null,null,null,null,null,null,null,{"$f":"IFERROR(VLOOKUP($B47,Volumes!$B$4:$H$33,MATCH(AC$9,Volumes!$B$4:$H$4,0),FALSE),0)","v":0},{"$f":"IFERROR(VLOOKUP($B47,Volumes!$B$4:$H$33,MATCH(AD$9,Volumes!$B$4:$H$4,0),FALSE),0)","v":0},{"$f":"IFERROR(VLOOKUP($B47,Volumes!$B$4:$H$33,MATCH(AE$9,Volumes!$B$4:$H$4,0),FALSE),0)","v":0},{"$f":"IFERROR(VLOOKUP($B47,Volumes!$B$4:$H$33,MATCH(AF$9,Volumes!$B$4:$H$4,0),FALSE),0)","v":0},{"$f":"IFERROR(VLOOKUP($B47,Volumes!$B$4:$H$33,MATCH(AG$9,Volumes!$B$4:$H$4,0),FALSE),0)","v":0}]
[null,{"$f":"Inputs!$C107","v":"25W LED Decorative - Side Entry"},"Not Offered",12.349,{"$f":"IF($C48=\"NA\",\"\",OFFSET('Combined Annuity Prices CL'!$B$10,MATCH($B48,'Combined Annuity Prices CL'!$B$10:$B$3811,0)+12,E$7)*'Master Data'!$J$37)","v":13.587364492159319},{"$f":"IF($C48=\"NA\",\"\",OFFSET('Combined Annuity Prices CL'!$B$10,MATCH($B48,'Combined Annuity Prices CL'!$B$10:$B$3811,0)+12,F$7)*'Master Data'!$J$37)","v":13.631214907763336},{"$f":"IF($C48=\"NA\",\"\",OFFSET('Combined Annuity Prices CL'!$B$10,MATCH($B48,'Combined Annuity Prices CL'!$B$10:$B$3811,0)+12,G$7)*'Master Data'!$J$37)","v":13.323217941020829},{"$f":"IF($C48=\"NA\",\"\",OFFSET('Combined Annuity Prices CL'!$B$10,MATCH($B48,'Combined Annuity Prices CL'!$B$10:$B$3811,0)+12,H$7)*'Master Data'!$J$37)","v":13.225076534668979},{"$f":"IF($C48=\"NA\",\"\",OFFSET('Combined Annuity Prices CL'!$B$10,MATCH($B48,'Combined Annuity Prices CL'!$B$10:$B$3811,0)+12,I$7)*'Master Data'!$J$37)","v":13.080996597684349},null,null,null,null,null,null,null,0,0,0,0,0,null,null,null,null,null,null,null,{"$f":"IFERROR(VLOOKUP($B48,Volumes!$B$4:$H$33,MATCH(AC$9,Volumes!$B$4:$H$4,0),FALSE),0)","v":0},{"$f":"IFERROR(VLOOKUP($B48,Volumes!$B$4:$H$33,MATCH(AD$9,Volumes!$B$4:$H$4,0),FALSE),0)","v":0},{"$f":"IFERROR(VLOOKUP($B48,Volumes!$B$4:$H$33,MATCH(AE$9,Volumes!$B$4:$H$4,0),FALSE),0)","v":0},{"$f":"IFERROR(VLOOKUP($B48,Volumes!$B$4:$H$33,MATCH(AF$9,Volumes!$B$4:$H$4,0),FALSE),0)","v":0},{"$f":"IFERROR(VLOOKUP($B48,Volumes!$B$4:$H$33,MATCH(AG$9,Volumes!$B$4:$H$4,0),FALSE),0)","v":0}]
[null,{"$f":"Inputs!$C108","v":"25W LED Decorative - Top Entry"},"Not Offered",12.349,{"$f":"IF($C49=\"NA\",\"\",OFFSET('Combined Annuity Prices CL'!$B$10,MATCH($B49,'Combined Annuity Prices CL'!$B$10:$B$3811,0)+12,E$7)*'Master Data'!$J$37)","v":13.587364492159319},{"$f":"IF($C49=\"NA\",\"\",OFFSET('Combined Annuity Prices CL'!$B$10,MATCH($B49,'Combined Annuity Prices CL'!$B$10:$B$3811,0)+12,F$7)*'Master Data'!$J$37)","v":13.631214907763336},{"$f":"IF($C49=\"NA\",\"\",OFFSET('Combined Annuity Prices CL'!$B$10,MATCH($B49,'Combined Annuity Prices CL'!$B$10:$B$3811,0)+12,G$7)*'Master Data'!$J$37)","v":13.323217941020829},{"$f":"IF($C49=\"NA\",\"\",OFFSET('Combined Annuity Prices CL'!$B$10,MATCH($B49,'Combined Annuity Prices CL'!$B$10:$B$3811,0)+12,H$7)*'Master Data'!$J$37)","v":13.225076534668979},{"$f":"IF($C49=\"NA\",\"\",OFFSET('Combined Annuity Prices CL'!$B$10,MATCH($B49,'Combined Annuity Prices CL'!$B$10:$B$3811,0)+12,I$7)*'Master Data'!$J$37)","v":13.080996597684349},null,null,null,null,null,null,null,0,0,0,0,0,null,null,null,null,null,null,null,{"$f":"IFERROR(VLOOKUP($B49,Volumes!$B$4:$H$33,MATCH(AC$9,Volumes!$B$4:$H$4,0),FALSE),0)","v":0},{"$f":"IFERROR(VLOOKUP($B49,Volumes!$B$4:$H$33,MATCH(AD$9,Volumes!$B$4:$H$4,0),FALSE),0)","v":0},{"$f":"IFERROR(VLOOKUP($B49,Volumes!$B$4:$H$33,MATCH(AE$9,Volumes!$B$4:$H$4,0),FALSE),0)","v":0},{"$f":"IFERROR(VLOOKUP($B49,Volumes!$B$4:$H$33,MATCH(AF$9,Volumes!$B$4:$H$4,0),FALSE),0)","v":0},{"$f":"IFERROR(VLOOKUP($B49,Volumes!$B$4:$H$33,MATCH(AG$9,Volumes!$B$4:$H$4,0),FALSE),0)","v":0}]
[null,{"$f":"Inputs!$C109","v":"30W LED"},"Offered",12.349,{"$f":"IF($C50=\"NA\",\"\",OFFSET('Combined Annuity Prices CL'!$B$10,MATCH($B50,'Combined Annuity Prices CL'!$B$10:$B$3811,0)+12,E$7)*'Master Data'!$J$37)","v":13.587364492159319},{"$f":"IF($C50=\"NA\",\"\",OFFSET('Combined Annuity Prices CL'!$B$10,MATCH($B50,'Combined Annuity Prices CL'!$B$10:$B$3811,0)+12,F$7)*'Master Data'!$J$37)","v":13.631214907763336},{"$f":"IF($C50=\"NA\",\"\",OFFSET('Combined Annuity Prices CL'!$B$10,MATCH($B50,'Combined Annuity Prices CL'!$B$10:$B$3811,0)+12,G$7)*'Master Data'!$J$37)","v":13.323217941020829},{"$f":"IF($C50=\"NA\",\"\",OFFSET('Combined Annuity Prices CL'!$B$10,MATCH($B50,'Combined Annuity Prices CL'!$B$10:$B$3811,0)+12,H$7)*'Master Data'!$J$37)","v":13.225076534668979},{"$f":"IF($C50=\"NA\",\"\",OFFSET('Combined Annuity Prices CL'!$B$10,MATCH($B50,'Combined Annuity Prices CL'!$B$10:$B$3811,0)+12,I$7)*'Master Data'!$J$37)","v":13.080996597684349},null,null,null,null,null,null,null,1.5913521293216993E-3,1.5921259012267575E-3,1.556151855511233E-3,1.5446889392493367E-3,1.5320463215207907E-3,null,null,null,null,null,null,null,{"$f":"IFERROR(VLOOKUP($B50,Volumes!$B$4:$H$33,MATCH(AC$9,Volumes!$B$4:$H$4,0),FALSE),0)","v":32},{"$f":"IFERROR(VLOOKUP($B50,Volumes!$B$4:$H$33,MATCH(AD$9,Volumes!$B$4:$H$4,0),FALSE),0)","v":32},{"$f":"IFERROR(VLOOKUP($B50,Volumes!$B$4:$H$33,MATCH(AE$9,Volumes!$B$4:$H$4,0),FALSE),0)","v":32},{"$f":"IFERROR(VLOOKUP($B50,Volumes!$B$4:$H$33,MATCH(AF$9,Volumes!$B$4:$H$4,0),FALSE),0)","v":32},{"$f":"IFERROR(VLOOKUP($B50,Volumes!$B$4:$H$33,MATCH(AG$9,Volumes!$B$4:$H$4,0),FALSE),0)","v":32}]
[null,{"$f":"Inputs!$C110","v":"88 LED Light"},"Not Offered",12.349,{"$f":"IF($C51=\"NA\",\"\",OFFSET('Combined Annuity Prices CL'!$B$10,MATCH($B51,'Combined Annuity Prices CL'!$B$10:$B$3811,0)+12,E$7)*'Master Data'!$J$37)","v":13.587364492159319},{"$f":"IF($C51=\"NA\",\"\",OFFSET('Combined Annuity Prices CL'!$B$10,MATCH($B51,'Combined Annuity Prices CL'!$B$10:$B$3811,0)+12,F$7)*'Master Data'!$J$37)","v":13.631214907763336},{"$f":"IF($C51=\"NA\",\"\",OFFSET('Combined Annuity Prices CL'!$B$10,MATCH($B51,'Combined Annuity Prices CL'!$B$10:$B$3811,0)+12,G$7)*'Master Data'!$J$37)","v":13.323217941020829},{"$f":"IF($C51=\"NA\",\"\",OFFSET('Combined Annuity Prices CL'!$B$10,MATCH($B51,'Combined Annuity Prices CL'!$B$10:$B$3811,0)+12,H$7)*'Master Data'!$J$37)","v":13.225076534668979},{"$f":"IF($C51=\"NA\",\"\",OFFSET('Combined Annuity Prices CL'!$B$10,MATCH($B51,'Combined Annuity Prices CL'!$B$10:$B$3811,0)+12,I$7)*'Master Data'!$J$37)","v":13.080996597684349},null,null,null,null,null,null,null,0,0,0,0,0,null,null,null,null,null,null,null,{"$f":"IFERROR(VLOOKUP($B51,Volumes!$B$4:$H$33,MATCH(AC$9,Volumes!$B$4:$H$4,0),FALSE),0)","v":0},{"$f":"IFERROR(VLOOKUP($B51,Volumes!$B$4:$H$33,MATCH(AD$9,Volumes!$B$4:$H$4,0),FALSE),0)","v":0},{"$f":"IFERROR(VLOOKUP($B51,Volumes!$B$4:$H$33,MATCH(AE$9,Volumes!$B$4:$H$4,0),FALSE),0)","v":0},{"$f":"IFERROR(VLOOKUP($B51,Volumes!$B$4:$H$33,MATCH(AF$9,Volumes!$B$4:$H$4,0),FALSE),0)","v":0},{"$f":"IFERROR(VLOOKUP($B51,Volumes!$B$4:$H$33,MATCH(AG$9,Volumes!$B$4:$H$4,0),FALSE),0)","v":0}]
[null,{"$f":"Inputs!$C111","v":"100W Metal Halide"},"Offered",22.556000000000001,{"$f":"IF($C52=\"NA\",\"\",OFFSET('Combined Annuity Prices CL'!$B$10,MATCH($B52,'Combined Annuity Prices CL'!$B$10:$B$3811,0)+12,E$7)*'Master Data'!$J$37)","v":23.267865765503505},{"$f":"IF($C52=\"NA\",\"\",OFFSET('Combined Annuity Prices CL'!$B$10,MATCH($B52,'Combined Annuity Prices CL'!$B$10:$B$3811,0)+12,F$7)*'Master Data'!$J$37)","v":23.338861676481436},{"$f":"IF($C52=\"NA\",\"\",OFFSET('Combined Annuity Prices CL'!$B$10,MATCH($B52,'Combined Annuity Prices CL'!$B$10:$B$3811,0)+12,G$7)*'Master Data'!$J$37)","v":23.03295282476769},{"$f":"IF($C52=\"NA\",\"\",OFFSET('Combined Annuity Prices CL'!$B$10,MATCH($B52,'Combined Annuity Prices CL'!$B$10:$B$3811,0)+12,H$7)*'Master Data'!$J$37)","v":22.936899533444606},{"$f":"IF($C52=\"NA\",\"\",OFFSET('Combined Annuity Prices CL'!$B$10,MATCH($B52,'Combined Annuity Prices CL'!$B$10:$B$3811,0)+12,I$7)*'Master Data'!$J$37)","v":22.768806273629203},null,null,null,null,null,null,null,4.2580194350871409E-4,4.2593422559578618E-4,4.2035138905201035E-4,4.1859841648536405E-4,4.1666915480741438E-4,null,null,null,null,null,null,null,{"$f":"IFERROR(VLOOKUP($B52,Volumes!$B$4:$H$33,MATCH(AC$9,Volumes!$B$4:$H$4,0),FALSE),0)","v":5},{"$f":"IFERROR(VLOOKUP($B52,Volumes!$B$4:$H$33,MATCH(AD$9,Volumes!$B$4:$H$4,0),FALSE),0)","v":5},{"$f":"IFERROR(VLOOKUP($B52,Volumes!$B$4:$H$33,MATCH(AE$9,Volumes!$B$4:$H$4,0),FALSE),0)","v":5},{"$f":"IFERROR(VLOOKUP($B52,Volumes!$B$4:$H$33,MATCH(AF$9,Volumes!$B$4:$H$4,0),FALSE),0)","v":5},{"$f":"IFERROR(VLOOKUP($B52,Volumes!$B$4:$H$33,MATCH(AG$9,Volumes!$B$4:$H$4,0),FALSE),0)","v":5}]
[null,{"$f":"Inputs!$C112","v":"150W Metal Halide"},"Offered",22.702999999999999,{"$f":"IF($C53=\"NA\",\"\",OFFSET('Combined Annuity Prices CL'!$B$10,MATCH($B53,'Combined Annuity Prices CL'!$B$10:$B$3811,0)+12,E$7)*'Master Data'!$J$37)","v":23.410901644973752},{"$f":"IF($C53=\"NA\",\"\",OFFSET('Combined Annuity Prices CL'!$B$10,MATCH($B53,'Combined Annuity Prices CL'!$B$10:$B$3811,0)+12,F$7)*'Master Data'!$J$37)","v":23.481897555951686},{"$f":"IF($C53=\"NA\",\"\",OFFSET('Combined Annuity Prices CL'!$B$10,MATCH($B53,'Combined Annuity Prices CL'!$B$10:$B$3811,0)+12,G$7)*'Master Data'!$J$37)","v":23.175988704237941},{"$f":"IF($C53=\"NA\",\"\",OFFSET('Combined Annuity Prices CL'!$B$10,MATCH($B53,'Combined Annuity Prices CL'!$B$10:$B$3811,0)+12,H$7)*'Master Data'!$J$37)","v":23.080979470429234},{"$f":"IF($C53=\"NA\",\"\",OFFSET('Combined Annuity Prices CL'!$B$10,MATCH($B53,'Combined Annuity Prices CL'!$B$10:$B$3811,0)+12,I$7)*'Master Data'!$J$37)","v":22.912886210613834},null,null,null,null,null,null,null,2.3134653005563058E-3,2.3141410041390385E-3,2.2839936868026493E-3,2.2746305268108013E-3,2.2642514153328594E-3,null,null,null,null,null,null,null,{"$f":"IFERROR(VLOOKUP($B53,Volumes!$B$4:$H$33,MATCH(AC$9,Volumes!$B$4:$H$4,0),FALSE),0)","v":27},{"$f":"IFERROR(VLOOKUP($B53,Volumes!$B$4:$H$33,MATCH(AD$9,Volumes!$B$4:$H$4,0),FALSE),0)","v":27},{"$f":"IFERROR(VLOOKUP($B53,Volumes!$B$4:$H$33,MATCH(AE$9,Volumes!$B$4:$H$4,0),FALSE),0)","v":27},{"$f":"IFERROR(VLOOKUP($B53,Volumes!$B$4:$H$33,MATCH(AF$9,Volumes!$B$4:$H$4,0),FALSE),0)","v":27},{"$f":"IFERROR(VLOOKUP($B53,Volumes!$B$4:$H$33,MATCH(AG$9,Volumes!$B$4:$H$4,0),FALSE),0)","v":27}]
[null,{"$f":"Inputs!$C113","v":"250W Metal Halide"},"Offered",22.702999999999999,{"$f":"IF($C54=\"NA\",\"\",OFFSET('Combined Annuity Prices CL'!$B$10,MATCH($B54,'Combined Annuity Prices CL'!$B$10:$B$3811,0)+12,E$7)*'Master Data'!$J$37)","v":23.410901644973752},{"$f":"IF($C54=\"NA\",\"\",OFFSET('Combined Annuity Prices CL'!$B$10,MATCH($B54,'Combined Annuity Prices CL'!$B$10:$B$3811,0)+12,F$7)*'Master Data'!$J$37)","v":23.481897555951686},{"$f":"IF($C54=\"NA\",\"\",OFFSET('Combined Annuity Prices CL'!$B$10,MATCH($B54,'Combined Annuity Prices CL'!$B$10:$B$3811,0)+12,G$7)*'Master Data'!$J$37)","v":23.175988704237941},{"$f":"IF($C54=\"NA\",\"\",OFFSET('Combined Annuity Prices CL'!$B$10,MATCH($B54,'Combined Annuity Prices CL'!$B$10:$B$3811,0)+12,H$7)*'Master Data'!$J$37)","v":23.080979470429234},{"$f":"IF($C54=\"NA\",\"\",OFFSET('Combined Annuity Prices CL'!$B$10,MATCH($B54,'Combined Annuity Prices CL'!$B$10:$B$3811,0)+12,I$7)*'Master Data'!$J$37)","v":22.912886210613834},null,null,null,null,null,null,null,3.4273560008241575E-3,3.4283570431689462E-3,3.3836943508187391E-3,3.369823002682668E-3,3.3544465412338655E-3,null,null,null,null,null,null,null,{"$f":"IFERROR(VLOOKUP($B54,Volumes!$B$4:$H$33,MATCH(AC$9,Volumes!$B$4:$H$4,0),FALSE),0)","v":40},{"$f":"IFERROR(VLOOKUP($B54,Volumes!$B$4:$H$33,MATCH(AD$9,Volumes!$B$4:$H$4,0),FALSE),0)","v":40},{"$f":"IFERROR(VLOOKUP($B54,Volumes!$B$4:$H$33,MATCH(AE$9,Volumes!$B$4:$H$4,0),FALSE),0)","v":40},{"$f":"IFERROR(VLOOKUP($B54,Volumes!$B$4:$H$33,MATCH(AF$9,Volumes!$B$4:$H$4,0),FALSE),0)","v":40},{"$f":"IFERROR(VLOOKUP($B54,Volumes!$B$4:$H$33,MATCH(AG$9,Volumes!$B$4:$H$4,0),FALSE),0)","v":40}]
[null,{"$f":"Inputs!$C114","v":"400W Metal Halide"},"Offered",23.408000000000001,{"$f":"IF($C55=\"NA\",\"\",OFFSET('Combined Annuity Prices CL'!$B$10,MATCH($B55,'Combined Annuity Prices CL'!$B$10:$B$3811,0)+12,E$7)*'Master Data'!$J$37)","v":24.094759316893558},{"$f":"IF($C55=\"NA\",\"\",OFFSET('Combined Annuity Prices CL'!$B$10,MATCH($B55,'Combined Annuity Prices CL'!$B$10:$B$3811,0)+12,F$7)*'Master Data'!$J$37)","v":24.168887400414636},{"$f":"IF($C55=\"NA\",\"\",OFFSET('Combined Annuity Prices CL'!$B$10,MATCH($B55,'Combined Annuity Prices CL'!$B$10:$B$3811,0)+12,G$7)*'Master Data'!$J$37)","v":23.86193449118651},{"$f":"IF($C55=\"NA\",\"\",OFFSET('Combined Annuity Prices CL'!$B$10,MATCH($B55,'Combined Annuity Prices CL'!$B$10:$B$3811,0)+12,H$7)*'Master Data'!$J$37)","v":23.766925257377803},{"$f":"IF($C55=\"NA\",\"\",OFFSET('Combined Annuity Prices CL'!$B$10,MATCH($B55,'Combined Annuity Prices CL'!$B$10:$B$3811,0)+12,I$7)*'Master Data'!$J$37)","v":23.596743882533637},null,null,null,null,null,null,null,7.9368137189847368E-4,7.9394795110362081E-4,7.8386454803547681E-4,7.8074349470486082E-4,7.7727674349065796E-4,null,null,null,null,null,null,null,{"$f":"IFERROR(VLOOKUP($B55,Volumes!$B$4:$H$33,MATCH(AC$9,Volumes!$B$4:$H$4,0),FALSE),0)","v":9},{"$f":"IFERROR(VLOOKUP($B55,Volumes!$B$4:$H$33,MATCH(AD$9,Volumes!$B$4:$H$4,0),FALSE),0)","v":9},{"$f":"IFERROR(VLOOKUP($B55,Volumes!$B$4:$H$33,MATCH(AE$9,Volumes!$B$4:$H$4,0),FALSE),0)","v":9},{"$f":"IFERROR(VLOOKUP($B55,Volumes!$B$4:$H$33,MATCH(AF$9,Volumes!$B$4:$H$4,0),FALSE),0)","v":9},{"$f":"IFERROR(VLOOKUP($B55,Volumes!$B$4:$H$33,MATCH(AG$9,Volumes!$B$4:$H$4,0),FALSE),0)","v":9}]
[null,{"$f":"Inputs!$C115","v":"70W Metal Halide"},"Old light no volumes",18.95,{"$f":"IF($C56=\"NA\",\"\",OFFSET('Combined Annuity Prices CL'!$B$10,MATCH($B56,'Combined Annuity Prices CL'!$B$10:$B$3811,0)+12,E$7)*'Master Data'!$J$37)","v":19.852753635961999},{"$f":"IF($C56=\"NA\",\"\",OFFSET('Combined Annuity Prices CL'!$B$10,MATCH($B56,'Combined Annuity Prices CL'!$B$10:$B$3811,0)+12,F$7)*'Master Data'!$J$37)","v":19.914353029310501},{"$f":"IF($C56=\"NA\",\"\",OFFSET('Combined Annuity Prices CL'!$B$10,MATCH($B56,'Combined Annuity Prices CL'!$B$10:$B$3811,0)+12,G$7)*'Master Data'!$J$37)","v":19.607400120082374},{"$f":"IF($C56=\"NA\",\"\",OFFSET('Combined Annuity Prices CL'!$B$10,MATCH($B56,'Combined Annuity Prices CL'!$B$10:$B$3811,0)+12,H$7)*'Master Data'!$J$37)","v":19.510302771244906},{"$f":"IF($C56=\"NA\",\"\",OFFSET('Combined Annuity Prices CL'!$B$10,MATCH($B56,'Combined Annuity Prices CL'!$B$10:$B$3811,0)+12,I$7)*'Master Data'!$J$37)","v":19.351606029058935},null,null,null,null,null,null,null,0,0,0,0,0,null,null,null,null,null,null,null,{"$f":"IFERROR(VLOOKUP($B56,Volumes!$B$4:$H$33,MATCH(AC$9,Volumes!$B$4:$H$4,0),FALSE),0)","v":0},{"$f":"IFERROR(VLOOKUP($B56,Volumes!$B$4:$H$33,MATCH(AD$9,Volumes!$B$4:$H$4,0),FALSE),0)","v":0},{"$f":"IFERROR(VLOOKUP($B56,Volumes!$B$4:$H$33,MATCH(AE$9,Volumes!$B$4:$H$4,0),FALSE),0)","v":0},{"$f":"IFERROR(VLOOKUP($B56,Volumes!$B$4:$H$33,MATCH(AF$9,Volumes!$B$4:$H$4,0),FALSE),0)","v":0},{"$f":"IFERROR(VLOOKUP($B56,Volumes!$B$4:$H$33,MATCH(AG$9,Volumes!$B$4:$H$4,0),FALSE),0)","v":0}]
[null,{"$f":"Inputs!$C116","v":"250W Metal Halide - Flood Light"},"Old light no volumes",22.702999999999999,{"$f":"IF($C57=\"NA\",\"\",OFFSET('Combined Annuity Prices CL'!$B$10,MATCH($B57,'Combined Annuity Prices CL'!$B$10:$B$3811,0)+12,E$7)*'Master Data'!$J$37)","v":23.410901644973752},{"$f":"IF($C57=\"NA\",\"\",OFFSET('Combined Annuity Prices CL'!$B$10,MATCH($B57,'Combined Annuity Prices CL'!$B$10:$B$3811,0)+12,F$7)*'Master Data'!$J$37)","v":23.481897555951686},{"$f":"IF($C57=\"NA\",\"\",OFFSET('Combined Annuity Prices CL'!$B$10,MATCH($B57,'Combined Annuity Prices CL'!$B$10:$B$3811,0)+12,G$7)*'Master Data'!$J$37)","v":23.175988704237941},{"$f":"IF($C57=\"NA\",\"\",OFFSET('Combined Annuity Prices CL'!$B$10,MATCH($B57,'Combined Annuity Prices CL'!$B$10:$B$3811,0)+12,H$7)*'Master Data'!$J$37)","v":23.080979470429234},{"$f":"IF($C57=\"NA\",\"\",OFFSET('Combined Annuity Prices CL'!$B$10,MATCH($B57,'Combined Annuity Prices CL'!$B$10:$B$3811,0)+12,I$7)*'Master Data'!$J$37)","v":22.912886210613834},null,null,null,null,null,null,null,0,0,0,0,0,null,null,null,null,null,null,null,{"$f":"IFERROR(VLOOKUP($B57,Volumes!$B$4:$H$33,MATCH(AC$9,Volumes!$B$4:$H$4,0),FALSE),0)","v":0},{"$f":"IFERROR(VLOOKUP($B57,Volumes!$B$4:$H$33,MATCH(AD$9,Volumes!$B$4:$H$4,0),FALSE),0)","v":0},{"$f":"IFERROR(VLOOKUP($B57,Volumes!$B$4:$H$33,MATCH(AE$9,Volumes!$B$4:$H$4,0),FALSE),0)","v":0},{"$f":"IFERROR(VLOOKUP($B57,Volumes!$B$4:$H$33,MATCH(AF$9,Volumes!$B$4:$H$4,0),FALSE),0)","v":0},{"$f":"IFERROR(VLOOKUP($B57,Volumes!$B$4:$H$33,MATCH(AG$9,Volumes!$B$4:$H$4,0),FALSE),0)","v":0}]
[null,{"$f":"Inputs!$C117","v":"400W Metal Halide - Flood Light"},"Old light no volumes",23.408000000000001,{"$f":"IF($C58=\"NA\",\"\",OFFSET('Combined Annuity Prices CL'!$B$10,MATCH($B58,'Combined Annuity Prices CL'!$B$10:$B$3811,0)+12,E$7)*'Master Data'!$J$37)","v":24.094759316893558},{"$f":"IF($C58=\"NA\",\"\",OFFSET('Combined Annuity Prices CL'!$B$10,MATCH($B58,'Combined Annuity Prices CL'!$B$10:$B$3811,0)+12,F$7)*'Master Data'!$J$37)","v":24.168887400414636},{"$f":"IF($C58=\"NA\",\"\",OFFSET('Combined Annuity Prices CL'!$B$10,MATCH($B58,'Combined Annuity Prices CL'!$B$10:$B$3811,0)+12,G$7)*'Master Data'!$J$37)","v":23.86193449118651},{"$f":"IF($C58=\"NA\",\"\",OFFSET('Combined Annuity Prices CL'!$B$10,MATCH($B58,'Combined Annuity Prices CL'!$B$10:$B$3811,0)+12,H$7)*'Master Data'!$J$37)","v":23.766925257377803},{"$f":"IF($C58=\"NA\",\"\",OFFSET('Combined Annuity Prices CL'!$B$10,MATCH($B58,'Combined Annuity Prices CL'!$B$10:$B$3811,0)+12,I$7)*'Master Data'!$J$37)","v":23.596743882533637},null,null,null,null,null,null,null,0,0,0,0,0,null,null,null,null,null,null,null,{"$f":"IFERROR(VLOOKUP($B58,Volumes!$B$4:$H$33,MATCH(AC$9,Volumes!$B$4:$H$4,0),FALSE),0)","v":0},{"$f":"IFERROR(VLOOKUP($B58,Volumes!$B$4:$H$33,MATCH(AD$9,Volumes!$B$4:$H$4,0),FALSE),0)","v":0},{"$f":"IFERROR(VLOOKUP($B58,Volumes!$B$4:$H$33,MATCH(AE$9,Volumes!$B$4:$H$4,0),FALSE),0)","v":0},{"$f":"IFERROR(VLOOKUP($B58,Volumes!$B$4:$H$33,MATCH(AF$9,Volumes!$B$4:$H$4,0),FALSE),0)","v":0},{"$f":"IFERROR(VLOOKUP($B58,Volumes!$B$4:$H$33,MATCH(AG$9,Volumes!$B$4:$H$4,0),FALSE),0)","v":0}]
[null,{"$f":"Inputs!$C118","v":"125W Mercury Vapour"},"Obsolete, no new Connections",21.646000000000001,{"$f":"IF($C59=\"NA\",\"\",OFFSET('Combined Annuity Prices CL'!$B$10,MATCH($B59,'Combined Annuity Prices CL'!$B$10:$B$3811,0)+12,E$7)*'Master Data'!$J$37)","v":22.384593108336855},{"$f":"IF($C59=\"NA\",\"\",OFFSET('Combined Annuity Prices CL'!$B$10,MATCH($B59,'Combined Annuity Prices CL'!$B$10:$B$3811,0)+12,F$7)*'Master Data'!$J$37)","v":22.452456846771643},{"$f":"IF($C59=\"NA\",\"\",OFFSET('Combined Annuity Prices CL'!$B$10,MATCH($B59,'Combined Annuity Prices CL'!$B$10:$B$3811,0)+12,G$7)*'Master Data'!$J$37)","v":22.146547995057897},{"$f":"IF($C59=\"NA\",\"\",OFFSET('Combined Annuity Prices CL'!$B$10,MATCH($B59,'Combined Annuity Prices CL'!$B$10:$B$3811,0)+12,H$7)*'Master Data'!$J$37)","v":22.051538761249191},{"$f":"IF($C59=\"NA\",\"\",OFFSET('Combined Annuity Prices CL'!$B$10,MATCH($B59,'Combined Annuity Prices CL'!$B$10:$B$3811,0)+12,I$7)*'Master Data'!$J$37)","v":21.885533616462553},null,null,null,null,null,null,null,2.5725269783825045E-2,2.5159100519649966E-2,2.4331304954770358E-2,2.3743994361175063E-2,2.3149204327477097E-2,null,null,null,null,null,null,null,{"$f":"IFERROR(VLOOKUP($B59,Volumes!$B$4:$H$33,MATCH(AC$9,Volumes!$B$4:$H$4,0),FALSE),0)","v":314},{"$f":"IFERROR(VLOOKUP($B59,Volumes!$B$4:$H$33,MATCH(AD$9,Volumes!$B$4:$H$4,0),FALSE),0)","v":307},{"$f":"IFERROR(VLOOKUP($B59,Volumes!$B$4:$H$33,MATCH(AE$9,Volumes!$B$4:$H$4,0),FALSE),0)","v":301},{"$f":"IFERROR(VLOOKUP($B59,Volumes!$B$4:$H$33,MATCH(AF$9,Volumes!$B$4:$H$4,0),FALSE),0)","v":295},{"$f":"IFERROR(VLOOKUP($B59,Volumes!$B$4:$H$33,MATCH(AG$9,Volumes!$B$4:$H$4,0),FALSE),0)","v":289}]
[null,{"$f":"Inputs!$C119","v":"250W Mercury Vapour"},"Obsolete, no new Connections",21.646000000000001,{"$f":"IF($C60=\"NA\",\"\",OFFSET('Combined Annuity Prices CL'!$B$10,MATCH($B60,'Combined Annuity Prices CL'!$B$10:$B$3811,0)+12,E$7)*'Master Data'!$J$37)","v":22.384593108336855},{"$f":"IF($C60=\"NA\",\"\",OFFSET('Combined Annuity Prices CL'!$B$10,MATCH($B60,'Combined Annuity Prices CL'!$B$10:$B$3811,0)+12,F$7)*'Master Data'!$J$37)","v":22.452456846771643},{"$f":"IF($C60=\"NA\",\"\",OFFSET('Combined Annuity Prices CL'!$B$10,MATCH($B60,'Combined Annuity Prices CL'!$B$10:$B$3811,0)+12,G$7)*'Master Data'!$J$37)","v":22.146547995057897},{"$f":"IF($C60=\"NA\",\"\",OFFSET('Combined Annuity Prices CL'!$B$10,MATCH($B60,'Combined Annuity Prices CL'!$B$10:$B$3811,0)+12,H$7)*'Master Data'!$J$37)","v":22.051538761249191},{"$f":"IF($C60=\"NA\",\"\",OFFSET('Combined Annuity Prices CL'!$B$10,MATCH($B60,'Combined Annuity Prices CL'!$B$10:$B$3811,0)+12,I$7)*'Master Data'!$J$37)","v":21.885533616462553},null,null,null,null,null,null,null,2.2120454909658484E-3,2.2126896222493457E-3,2.1017074047309948E-3,2.0926910284425481E-3,2.0025263259063238E-3,null,null,null,null,null,null,null,{"$f":"IFERROR(VLOOKUP($B60,Volumes!$B$4:$H$33,MATCH(AC$9,Volumes!$B$4:$H$4,0),FALSE),0)","v":27},{"$f":"IFERROR(VLOOKUP($B60,Volumes!$B$4:$H$33,MATCH(AD$9,Volumes!$B$4:$H$4,0),FALSE),0)","v":27},{"$f":"IFERROR(VLOOKUP($B60,Volumes!$B$4:$H$33,MATCH(AE$9,Volumes!$B$4:$H$4,0),FALSE),0)","v":26},{"$f":"IFERROR(VLOOKUP($B60,Volumes!$B$4:$H$33,MATCH(AF$9,Volumes!$B$4:$H$4,0),FALSE),0)","v":26},{"$f":"IFERROR(VLOOKUP($B60,Volumes!$B$4:$H$33,MATCH(AG$9,Volumes!$B$4:$H$4,0),FALSE),0)","v":25}]
[null,{"$f":"Inputs!$C120","v":0},"NA","",{"$f":"IF($C61=\"NA\",\"\",OFFSET('Combined Annuity Prices CL'!$B$10,MATCH($B61,'Combined Annuity Prices CL'!$B$10:$B$3811,0)+12,E$7)*'Master Data'!$J$37)","v":""},{"$f":"IF($C61=\"NA\",\"\",OFFSET('Combined Annuity Prices CL'!$B$10,MATCH($B61,'Combined Annuity Prices CL'!$B$10:$B$3811,0)+12,F$7)*'Master Data'!$J$37)","v":""},{"$f":"IF($C61=\"NA\",\"\",OFFSET('Combined Annuity Prices CL'!$B$10,MATCH($B61,'Combined Annuity Prices CL'!$B$10:$B$3811,0)+12,G$7)*'Master Data'!$J$37)","v":""},{"$f":"IF($C61=\"NA\",\"\",OFFSET('Combined Annuity Prices CL'!$B$10,MATCH($B61,'Combined Annuity Prices CL'!$B$10:$B$3811,0)+12,H$7)*'Master Data'!$J$37)","v":""},{"$f":"IF($C61=\"NA\",\"\",OFFSET('Combined Annuity Prices CL'!$B$10,MATCH($B61,'Combined Annuity Prices CL'!$B$10:$B$3811,0)+12,I$7)*'Master Data'!$J$37)","v":""},null,null,null,null,null,null,null,"","","","","",null,null,null,null,null,null,null,{"$f":"IFERROR(VLOOKUP($B61,Volumes!$B$4:$H$33,MATCH(AC$9,Volumes!$B$4:$H$4,0),FALSE),0)","v":0},{"$f":"IFERROR(VLOOKUP($B61,Volumes!$B$4:$H$33,MATCH(AD$9,Volumes!$B$4:$H$4,0),FALSE),0)","v":0},{"$f":"IFERROR(VLOOKUP($B61,Volumes!$B$4:$H$33,MATCH(AE$9,Volumes!$B$4:$H$4,0),FALSE),0)","v":0},{"$f":"IFERROR(VLOOKUP($B61,Volumes!$B$4:$H$33,MATCH(AF$9,Volumes!$B$4:$H$4,0),FALSE),0)","v":0},{"$f":"IFERROR(VLOOKUP($B61,Volumes!$B$4:$H$33,MATCH(AG$9,Volumes!$B$4:$H$4,0),FALSE),0)","v":0}]
[null,{"$f":"Inputs!$C121","v":"400W Mercury Vapour"},"Obsolete, no new Connections",21.798999999999999,{"$f":"IF($C62=\"NA\",\"\",OFFSET('Combined Annuity Prices CL'!$B$10,MATCH($B62,'Combined Annuity Prices CL'!$B$10:$B$3811,0)+12,E$7)*'Master Data'!$J$37)","v":22.533893332893388},{"$f":"IF($C62=\"NA\",\"\",OFFSET('Combined Annuity Prices CL'!$B$10,MATCH($B62,'Combined Annuity Prices CL'!$B$10:$B$3811,0)+12,F$7)*'Master Data'!$J$37)","v":22.602801128842561},{"$f":"IF($C62=\"NA\",\"\",OFFSET('Combined Annuity Prices CL'!$B$10,MATCH($B62,'Combined Annuity Prices CL'!$B$10:$B$3811,0)+12,G$7)*'Master Data'!$J$37)","v":22.296892277128819},{"$f":"IF($C62=\"NA\",\"\",OFFSET('Combined Annuity Prices CL'!$B$10,MATCH($B62,'Combined Annuity Prices CL'!$B$10:$B$3811,0)+12,H$7)*'Master Data'!$J$37)","v":22.200838985805728},{"$f":"IF($C62=\"NA\",\"\",OFFSET('Combined Annuity Prices CL'!$B$10,MATCH($B62,'Combined Annuity Prices CL'!$B$10:$B$3811,0)+12,I$7)*'Master Data'!$J$37)","v":22.03483384101909},null,null,null,null,null,null,null,1.7319550415661859E-3,1.6500044824055069E-3,1.627673136230404E-3,1.6206612459638181E-3,1.5323023453044672E-3,null,null,null,null,null,null,null,{"$f":"IFERROR(VLOOKUP($B62,Volumes!$B$4:$H$33,MATCH(AC$9,Volumes!$B$4:$H$4,0),FALSE),0)","v":21},{"$f":"IFERROR(VLOOKUP($B62,Volumes!$B$4:$H$33,MATCH(AD$9,Volumes!$B$4:$H$4,0),FALSE),0)","v":20},{"$f":"IFERROR(VLOOKUP($B62,Volumes!$B$4:$H$33,MATCH(AE$9,Volumes!$B$4:$H$4,0),FALSE),0)","v":20},{"$f":"IFERROR(VLOOKUP($B62,Volumes!$B$4:$H$33,MATCH(AF$9,Volumes!$B$4:$H$4,0),FALSE),0)","v":20},{"$f":"IFERROR(VLOOKUP($B62,Volumes!$B$4:$H$33,MATCH(AG$9,Volumes!$B$4:$H$4,0),FALSE),0)","v":19}]
[null,{"$f":"Inputs!$C122","v":"50W Mercury Vapour"},"Obsolete, no new Connections",18.088000000000001,{"$f":"IF($C63=\"NA\",\"\",OFFSET('Combined Annuity Prices CL'!$B$10,MATCH($B63,'Combined Annuity Prices CL'!$B$10:$B$3811,0)+12,E$7)*'Master Data'!$J$37)","v":19.015419509428131},{"$f":"IF($C63=\"NA\",\"\",OFFSET('Combined Annuity Prices CL'!$B$10,MATCH($B63,'Combined Annuity Prices CL'!$B$10:$B$3811,0)+12,F$7)*'Master Data'!$J$37)","v":19.074930787747867},{"$f":"IF($C63=\"NA\",\"\",OFFSET('Combined Annuity Prices CL'!$B$10,MATCH($B63,'Combined Annuity Prices CL'!$B$10:$B$3811,0)+12,G$7)*'Master Data'!$J$37)","v":18.767977878519741},{"$f":"IF($C63=\"NA\",\"\",OFFSET('Combined Annuity Prices CL'!$B$10,MATCH($B63,'Combined Annuity Prices CL'!$B$10:$B$3811,0)+12,H$7)*'Master Data'!$J$37)","v":18.670880529682272},{"$f":"IF($C63=\"NA\",\"\",OFFSET('Combined Annuity Prices CL'!$B$10,MATCH($B63,'Combined Annuity Prices CL'!$B$10:$B$3811,0)+12,I$7)*'Master Data'!$J$37)","v":18.514271902525067},null,null,null,null,null,null,null,9.8130973920354803E-3,9.0510546587863634E-3,8.6998961455878269E-3,7.8371021023341328E-3,7.3183213976301077E-3,null,null,null,null,null,null,null,{"$f":"IFERROR(VLOOKUP($B63,Volumes!$B$4:$H$33,MATCH(AC$9,Volumes!$B$4:$H$4,0),FALSE),0)","v":141},{"$f":"IFERROR(VLOOKUP($B63,Volumes!$B$4:$H$33,MATCH(AD$9,Volumes!$B$4:$H$4,0),FALSE),0)","v":130},{"$f":"IFERROR(VLOOKUP($B63,Volumes!$B$4:$H$33,MATCH(AE$9,Volumes!$B$4:$H$4,0),FALSE),0)","v":127},{"$f":"IFERROR(VLOOKUP($B63,Volumes!$B$4:$H$33,MATCH(AF$9,Volumes!$B$4:$H$4,0),FALSE),0)","v":115},{"$f":"IFERROR(VLOOKUP($B63,Volumes!$B$4:$H$33,MATCH(AG$9,Volumes!$B$4:$H$4,0),FALSE),0)","v":108}]
[null,{"$f":"Inputs!$C123","v":"80W Mercury Vapour Art decorative"},"Old light no volumes",18.056000000000001,{"$f":"IF($C64=\"NA\",\"\",OFFSET('Combined Annuity Prices CL'!$B$10,MATCH($B64,'Combined Annuity Prices CL'!$B$10:$B$3811,0)+12,E$7)*'Master Data'!$J$37)","v":18.985141841511069},{"$f":"IF($C64=\"NA\",\"\",OFFSET('Combined Annuity Prices CL'!$B$10,MATCH($B64,'Combined Annuity Prices CL'!$B$10:$B$3811,0)+12,F$7)*'Master Data'!$J$37)","v":19.043609062316424},{"$f":"IF($C64=\"NA\",\"\",OFFSET('Combined Annuity Prices CL'!$B$10,MATCH($B64,'Combined Annuity Prices CL'!$B$10:$B$3811,0)+12,G$7)*'Master Data'!$J$37)","v":18.736656153088301},{"$f":"IF($C64=\"NA\",\"\",OFFSET('Combined Annuity Prices CL'!$B$10,MATCH($B64,'Combined Annuity Prices CL'!$B$10:$B$3811,0)+12,H$7)*'Master Data'!$J$37)","v":18.640602861765213},{"$f":"IF($C64=\"NA\",\"\",OFFSET('Combined Annuity Prices CL'!$B$10,MATCH($B64,'Combined Annuity Prices CL'!$B$10:$B$3811,0)+12,I$7)*'Master Data'!$J$37)","v":18.483994234608005},null,null,null,null,null,null,null,0,0,0,0,0,null,null,null,null,null,null,null,{"$f":"IFERROR(VLOOKUP($B64,Volumes!$B$4:$H$33,MATCH(AC$9,Volumes!$B$4:$H$4,0),FALSE),0)","v":0},{"$f":"IFERROR(VLOOKUP($B64,Volumes!$B$4:$H$33,MATCH(AD$9,Volumes!$B$4:$H$4,0),FALSE),0)","v":0},{"$f":"IFERROR(VLOOKUP($B64,Volumes!$B$4:$H$33,MATCH(AE$9,Volumes!$B$4:$H$4,0),FALSE),0)","v":0},{"$f":"IFERROR(VLOOKUP($B64,Volumes!$B$4:$H$33,MATCH(AF$9,Volumes!$B$4:$H$4,0),FALSE),0)","v":0},{"$f":"IFERROR(VLOOKUP($B64,Volumes!$B$4:$H$33,MATCH(AG$9,Volumes!$B$4:$H$4,0),FALSE),0)","v":0}]
[null,{"$f":"Inputs!$C124","v":"80W Mercury Vapour"},"Obsolete, no new Connections",18.056000000000001,{"$f":"IF($C65=\"NA\",\"\",OFFSET('Combined Annuity Prices CL'!$B$10,MATCH($B65,'Combined Annuity Prices CL'!$B$10:$B$3811,0)+12,E$7)*'Master Data'!$J$37)","v":18.985141841511069},{"$f":"IF($C65=\"NA\",\"\",OFFSET('Combined Annuity Prices CL'!$B$10,MATCH($B65,'Combined Annuity Prices CL'!$B$10:$B$3811,0)+12,F$7)*'Master Data'!$J$37)","v":19.043609062316424},{"$f":"IF($C65=\"NA\",\"\",OFFSET('Combined Annuity Prices CL'!$B$10,MATCH($B65,'Combined Annuity Prices CL'!$B$10:$B$3811,0)+12,G$7)*'Master Data'!$J$37)","v":18.736656153088301},{"$f":"IF($C65=\"NA\",\"\",OFFSET('Combined Annuity Prices CL'!$B$10,MATCH($B65,'Combined Annuity Prices CL'!$B$10:$B$3811,0)+12,H$7)*'Master Data'!$J$37)","v":18.640602861765213},{"$f":"IF($C65=\"NA\",\"\",OFFSET('Combined Annuity Prices CL'!$B$10,MATCH($B65,'Combined Annuity Prices CL'!$B$10:$B$3811,0)+12,I$7)*'Master Data'!$J$37)","v":18.483994234608005},null,null,null,null,null,null,null,1.9455973359180544E-2,1.8072385000138285E-2,1.6413310790105353E-2,1.5648786102451899E-2,1.4883312157706366E-2,null,null,null,null,null,null,null,{"$f":"IFERROR(VLOOKUP($B65,Volumes!$B$4:$H$33,MATCH(AC$9,Volumes!$B$4:$H$4,0),FALSE),0)","v":280},{"$f":"IFERROR(VLOOKUP($B65,Volumes!$B$4:$H$33,MATCH(AD$9,Volumes!$B$4:$H$4,0),FALSE),0)","v":260},{"$f":"IFERROR(VLOOKUP($B65,Volumes!$B$4:$H$33,MATCH(AE$9,Volumes!$B$4:$H$4,0),FALSE),0)","v":240},{"$f":"IFERROR(VLOOKUP($B65,Volumes!$B$4:$H$33,MATCH(AF$9,Volumes!$B$4:$H$4,0),FALSE),0)","v":230},{"$f":"IFERROR(VLOOKUP($B65,Volumes!$B$4:$H$33,MATCH(AG$9,Volumes!$B$4:$H$4,0),FALSE),0)","v":220}]
[null,{"$f":"Inputs!$C125","v":"14W LED"},"Obsolete, no new Connections",{"$error":"#N/A"},{"$f":"IF($C66=\"NA\",\"\",OFFSET('Combined Annuity Prices CL'!$B$10,MATCH($B66,'Combined Annuity Prices CL'!$B$10:$B$3811,0)+12,E$7)*'Master Data'!$J$37)","v":13.746061234345289},{"$f":"IF($C66=\"NA\",\"\",OFFSET('Combined Annuity Prices CL'!$B$10,MATCH($B66,'Combined Annuity Prices CL'!$B$10:$B$3811,0)+12,F$7)*'Master Data'!$J$37)","v":13.789911649949307},{"$f":"IF($C66=\"NA\",\"\",OFFSET('Combined Annuity Prices CL'!$B$10,MATCH($B66,'Combined Annuity Prices CL'!$B$10:$B$3811,0)+12,G$7)*'Master Data'!$J$37)","v":13.481914683206799},{"$f":"IF($C66=\"NA\",\"\",OFFSET('Combined Annuity Prices CL'!$B$10,MATCH($B66,'Combined Annuity Prices CL'!$B$10:$B$3811,0)+12,H$7)*'Master Data'!$J$37)","v":13.383773276854951},{"$f":"IF($C66=\"NA\",\"\",OFFSET('Combined Annuity Prices CL'!$B$10,MATCH($B66,'Combined Annuity Prices CL'!$B$10:$B$3811,0)+12,I$7)*'Master Data'!$J$37)","v":13.239693339870318},null,null,null,null,null,null,null,0.66052765888133258,0.70612414746055685,0.69182917063889593,0.68825853319627428,0.68465287554844145,null,null,null,null,null,null,null,{"$f":"IFERROR(VLOOKUP($B66,Volumes!$B$4:$H$33,MATCH(AC$9,Volumes!$B$4:$H$4,0),FALSE),0)","v":13129},{"$f":"IFERROR(VLOOKUP($B66,Volumes!$B$4:$H$33,MATCH(AD$9,Volumes!$B$4:$H$4,0),FALSE),0)","v":14029},{"$f":"IFERROR(VLOOKUP($B66,Volumes!$B$4:$H$33,MATCH(AE$9,Volumes!$B$4:$H$4,0),FALSE),0)","v":14059},{"$f":"IFERROR(VLOOKUP($B66,Volumes!$B$4:$H$33,MATCH(AF$9,Volumes!$B$4:$H$4,0),FALSE),0)","v":14089},{"$f":"IFERROR(VLOOKUP($B66,Volumes!$B$4:$H$33,MATCH(AG$9,Volumes!$B$4:$H$4,0),FALSE),0)","v":14129}]
[null,{"$f":"Inputs!$C126","v":"New technology - Minor"},"Offered",{"$error":"#N/A"},{"$f":"IF($C67=\"NA\",\"\",OFFSET('Combined Annuity Prices CL'!$B$10,MATCH($B67,'Combined Annuity Prices CL'!$B$10:$B$3811,0)+12,E$7)*'Master Data'!$J$37)","v":13.746061234345289},{"$f":"IF($C67=\"NA\",\"\",OFFSET('Combined Annuity Prices CL'!$B$10,MATCH($B67,'Combined Annuity Prices CL'!$B$10:$B$3811,0)+12,F$7)*'Master Data'!$J$37)","v":13.789911649949307},{"$f":"IF($C67=\"NA\",\"\",OFFSET('Combined Annuity Prices CL'!$B$10,MATCH($B67,'Combined Annuity Prices CL'!$B$10:$B$3811,0)+12,G$7)*'Master Data'!$J$37)","v":13.481914683206799},{"$f":"IF($C67=\"NA\",\"\",OFFSET('Combined Annuity Prices CL'!$B$10,MATCH($B67,'Combined Annuity Prices CL'!$B$10:$B$3811,0)+12,H$7)*'Master Data'!$J$37)","v":13.383773276854951},{"$f":"IF($C67=\"NA\",\"\",OFFSET('Combined Annuity Prices CL'!$B$10,MATCH($B67,'Combined Annuity Prices CL'!$B$10:$B$3811,0)+12,I$7)*'Master Data'!$J$37)","v":13.239693339870318},null,null,null,null,null,null,null,0,0,0,0,0,null,null,null,null,null,null,null,{"$f":"IFERROR(VLOOKUP($B67,Volumes!$B$4:$H$33,MATCH(AC$9,Volumes!$B$4:$H$4,0),FALSE),0)","v":0},{"$f":"IFERROR(VLOOKUP($B67,Volumes!$B$4:$H$33,MATCH(AD$9,Volumes!$B$4:$H$4,0),FALSE),0)","v":0},{"$f":"IFERROR(VLOOKUP($B67,Volumes!$B$4:$H$33,MATCH(AE$9,Volumes!$B$4:$H$4,0),FALSE),0)","v":0},{"$f":"IFERROR(VLOOKUP($B67,Volumes!$B$4:$H$33,MATCH(AF$9,Volumes!$B$4:$H$4,0),FALSE),0)","v":0},{"$f":"IFERROR(VLOOKUP($B67,Volumes!$B$4:$H$33,MATCH(AG$9,Volumes!$B$4:$H$4,0),FALSE),0)","v":0}]
[null,{"$f":"Inputs!$C127","v":"New technology - Major"},"Offered",{"$error":"#N/A"},{"$f":"IF($C68=\"NA\",\"\",OFFSET('Combined Annuity Prices CL'!$B$10,MATCH($B68,'Combined Annuity Prices CL'!$B$10:$B$3811,0)+12,E$7)*'Master Data'!$J$37)","v":14.515531622444369},{"$f":"IF($C68=\"NA\",\"\",OFFSET('Combined Annuity Prices CL'!$B$10,MATCH($B68,'Combined Annuity Prices CL'!$B$10:$B$3811,0)+12,F$7)*'Master Data'!$J$37)","v":14.561470153077149},{"$f":"IF($C68=\"NA\",\"\",OFFSET('Combined Annuity Prices CL'!$B$10,MATCH($B68,'Combined Annuity Prices CL'!$B$10:$B$3811,0)+12,G$7)*'Master Data'!$J$37)","v":14.254517243849023},{"$f":"IF($C68=\"NA\",\"\",OFFSET('Combined Annuity Prices CL'!$B$10,MATCH($B68,'Combined Annuity Prices CL'!$B$10:$B$3811,0)+12,H$7)*'Master Data'!$J$37)","v":14.156375837497173},{"$f":"IF($C68=\"NA\",\"\",OFFSET('Combined Annuity Prices CL'!$B$10,MATCH($B68,'Combined Annuity Prices CL'!$B$10:$B$3811,0)+12,I$7)*'Master Data'!$J$37)","v":14.010207785483781},null,null,null,null,null,null,null,0,0,0,0,0,null,null,null,null,null,null,null,{"$f":"IFERROR(VLOOKUP($B68,Volumes!$B$4:$H$33,MATCH(AC$9,Volumes!$B$4:$H$4,0),FALSE),0)","v":0},{"$f":"IFERROR(VLOOKUP($B68,Volumes!$B$4:$H$33,MATCH(AD$9,Volumes!$B$4:$H$4,0),FALSE),0)","v":0},{"$f":"IFERROR(VLOOKUP($B68,Volumes!$B$4:$H$33,MATCH(AE$9,Volumes!$B$4:$H$4,0),FALSE),0)","v":0},{"$f":"IFERROR(VLOOKUP($B68,Volumes!$B$4:$H$33,MATCH(AF$9,Volumes!$B$4:$H$4,0),FALSE),0)","v":0},{"$f":"IFERROR(VLOOKUP($B68,Volumes!$B$4:$H$33,MATCH(AG$9,Volumes!$B$4:$H$4,0),FALSE),0)","v":0}]
[null,null,null,null,null,null,null,null,null,null,null,null,null,null,null,null,{"$f":"SUM(Q10:Q68)","v":1.0216040806099953},{"$f":"SUM(R10:R68)","v":1.064545332705388},{"$f":"SUM(S10:S68)","v":1.0409204032895871},{"$f":"SUM(T10:T68)","v":1.0330973592650756},{"$f":"SUM(U10:U68)","v":1.0252046538961039},null,null,null,null,null,null,null,{"$f":"SUM(AC10:AC68)","v":19572},{"$f":"SUM(AD10:AD68)","v":20433},{"$f":"SUM(AE10:AE68)","v":20433},{"$f":"SUM(AF10:AF68)","v":20435},{"$f":"SUM(AG10:AG68)","v":20450}]
[null,null,null,null,null,null,null,null,null,null,null,null,null,null,null,null,null,null,null,null,null,null,null,null,null,null,null,null,{"$f":"Volumes!D34=AC69","v":true},{"$f":"Volumes!E34=AD69","v":true},{"$f":"Volumes!F34=AE69","v":true},{"$f":"Volumes!G34=AF69","v":true},{"$f":"Volumes!H34=AG69","v":true}]
[]
[null,"Public Road Lights","Offered / No Longer Offered / NA",{"$f":"'Master Data'!J$34","v":"2018-19"},{"$f":"'Master Data'!K$34","v":"2019-20"},{"$f":"'Master Data'!L$34","v":"2020-21"},{"$f":"'Master Data'!M$34","v":"2021-22"},{"$f":"'Master Data'!N$34","v":"2022-23"},{"$f":"'Master Data'!O$34","v":"2023-24"},{"$f":"'Master Data'!P$34","v":"2024-25"},{"$f":"'Master Data'!Q$34","v":"2025-26"},{"$f":"'Master Data'!R$34","v":"2026-27"},{"$f":"'Master Data'!S$34","v":"2027-28"},{"$f":"'Master Data'!T$34","v":"2028-29"},null,null,{"$f":"Q9","v":"2019-20"},"2020-21","2021-22","2022-23","2023-24","2024-25","2025-26","2026-27","2027-28","2028-29",null,null,{"$f":"AC9","v":"2019-20"},"2020-21","2021-22","2022-23","2023-24","2024-25","2025-26","2026-27","2027-28","2028-29"]
[null,{"$f":"Inputs!$C69","v":"32W Compact Fluorescent"},"No Longer Offered",36.021000000000001,{"$f":"IF($C73=\"NA\",\"\",IF($B73=0,\"\",OFFSET('Combined Annuity Prices PL'!$B$10,MATCH($B73,'Combined Annuity Prices PL'!$B$10:$B$3811,0)+12,E$7)*'Master Data'!$J$37))","v":39.280575863570775},{"$f":"IF($C73=\"NA\",\"\",IF($B73=0,\"\",OFFSET('Combined Annuity Prices PL'!$B$10,MATCH($B73,'Combined Annuity Prices PL'!$B$10:$B$3811,0)+12,F$7)*'Master Data'!$J$37))","v":39.146936501729954},{"$f":"IF($C73=\"NA\",\"\",IF($B73=0,\"\",OFFSET('Combined Annuity Prices PL'!$B$10,MATCH($B73,'Combined Annuity Prices PL'!$B$10:$B$3811,0)+12,G$7)*'Master Data'!$J$37))","v":34.627211521972946},{"$f":"IF($C73=\"NA\",\"\",IF($B73=0,\"\",OFFSET('Combined Annuity Prices PL'!$B$10,MATCH($B73,'Combined Annuity Prices PL'!$B$10:$B$3811,0)+12,H$7)*'Master Data'!$J$37))","v":34.380813948578947},{"$f":"IF($C73=\"NA\",\"\",IF($B73=0,\"\",OFFSET('Combined Annuity Prices PL'!$B$10,MATCH($B73,'Combined Annuity Prices PL'!$B$10:$B$3811,0)+12,I$7)*'Master Data'!$J$37))","v":34.09891841969597},{"$f":"IF($C73=\"NA\",\"\",IF($B73=0,\"\",OFFSET('Combined Annuity Prices PL'!$B$10,MATCH($B73,'Combined Annuity Prices PL'!$B$10:$B$3811,0)+12,J$7)*'Master Data'!$J$37))","v":0},{"$f":"IF($C73=\"NA\",\"\",IF($B73=0,\"\",OFFSET('Combined Annuity Prices PL'!$B$10,MATCH($B73,'Combined Annuity Prices PL'!$B$10:$B$3811,0)+12,K$7)*'Master Data'!$J$37))","v":0},{"$f":"IF($C73=\"NA\",\"\",IF($B73=0,\"\",OFFSET('Combined Annuity Prices PL'!$B$10,MATCH($B73,'Combined Annuity Prices PL'!$B$10:$B$3811,0)+12,L$7)*'Master Data'!$J$37))","v":0},{"$f":"IF($C73=\"NA\",\"\",IF($B73=0,\"\",OFFSET('Combined Annuity Prices PL'!$B$10,MATCH($B73,'Combined Annuity Prices PL'!$B$10:$B$3811,0)+12,M$7)*'Master Data'!$J$37))","v":0},{"$f":"IF($C73=\"NA\",\"\",IF($B73=0,\"\",OFFSET('Combined Annuity Prices PL'!$B$10,MATCH($B73,'Combined Annuity Prices PL'!$B$10:$B$3811,0)+12,N$7)*'Master Data'!$J$37))","v":0},null,null,{"$f":"IF($C73=\"NA\",\"\",E73*AC73*Q$6/100/10^6)","v":0},{"$f":"IF($C73=\"NA\",\"\",F73*AD73*R$6/100/10^6)","v":0},{"$f":"IF($C73=\"NA\",\"\",G73*AE73*S$6/100/10^6)","v":0},{"$f":"IF($C73=\"NA\",\"\",H73*AF73*T$6/100/10^6)","v":0},{"$f":"IF($C73=\"NA\",\"\",I73*AG73*U$6/100/10^6)","v":0},null,null,null,null,null,null,null,{"$f":"IFERROR(VLOOKUP($B73,Volumes!$B$39:$H$81,MATCH(AC$9,Volumes!$B$4:$H$4,0),FALSE),0)","v":0},{"$f":"IFERROR(VLOOKUP($B73,Volumes!$B$39:$H$81,MATCH(AD$9,Volumes!$B$4:$H$4,0),FALSE),0)","v":0},{"$f":"IFERROR(VLOOKUP($B73,Volumes!$B$39:$H$81,MATCH(AE$9,Volumes!$B$4:$H$4,0),FALSE),0)","v":0},{"$f":"IFERROR(VLOOKUP($B73,Volumes!$B$39:$H$81,MATCH(AF$9,Volumes!$B$4:$H$4,0),FALSE),0)","v":0},{"$f":"IFERROR(VLOOKUP($B73,Volumes!$B$39:$H$81,MATCH(AG$9,Volumes!$B$4:$H$4,0),FALSE),0)","v":0}]
[null,{"$f":"Inputs!$C70","v":"42W Compact Fluorescent"},"Offered",36.046999999999997,{"$f":"IF($C74=\"NA\",\"\",IF($B74=0,\"\",OFFSET('Combined Annuity Prices PL'!$B$10,MATCH($B74,'Combined Annuity Prices PL'!$B$10:$B$3811,0)+12,E$7)*'Master Data'!$J$37))","v":39.303545128887166},{"$f":"IF($C74=\"NA\",\"\",IF($B74=0,\"\",OFFSET('Combined Annuity Prices PL'!$B$10,MATCH($B74,'Combined Annuity Prices PL'!$B$10:$B$3811,0)+12,F$7)*'Master Data'!$J$37))","v":39.169905767046352},{"$f":"IF($C74=\"NA\",\"\",IF($B74=0,\"\",OFFSET('Combined Annuity Prices PL'!$B$10,MATCH($B74,'Combined Annuity Prices PL'!$B$10:$B$3811,0)+12,G$7)*'Master Data'!$J$37))","v":34.649136729774959},{"$f":"IF($C74=\"NA\",\"\",IF($B74=0,\"\",OFFSET('Combined Annuity Prices PL'!$B$10,MATCH($B74,'Combined Annuity Prices PL'!$B$10:$B$3811,0)+12,H$7)*'Master Data'!$J$37))","v":34.402739156380953},{"$f":"IF($C74=\"NA\",\"\",IF($B74=0,\"\",OFFSET('Combined Annuity Prices PL'!$B$10,MATCH($B74,'Combined Annuity Prices PL'!$B$10:$B$3811,0)+12,I$7)*'Master Data'!$J$37))","v":34.121887685012361},{"$f":"IF($C74=\"NA\",\"\",IF($B74=0,\"\",OFFSET('Combined Annuity Prices PL'!$B$10,MATCH($B74,'Combined Annuity Prices PL'!$B$10:$B$3811,0)+12,J$7)*'Master Data'!$J$37))","v":0},{"$f":"IF($C74=\"NA\",\"\",IF($B74=0,\"\",OFFSET('Combined Annuity Prices PL'!$B$10,MATCH($B74,'Combined Annuity Prices PL'!$B$10:$B$3811,0)+12,K$7)*'Master Data'!$J$37))","v":0},{"$f":"IF($C74=\"NA\",\"\",IF($B74=0,\"\",OFFSET('Combined Annuity Prices PL'!$B$10,MATCH($B74,'Combined Annuity Prices PL'!$B$10:$B$3811,0)+12,L$7)*'Master Data'!$J$37))","v":0},{"$f":"IF($C74=\"NA\",\"\",IF($B74=0,\"\",OFFSET('Combined Annuity Prices PL'!$B$10,MATCH($B74,'Combined Annuity Prices PL'!$B$10:$B$3811,0)+12,M$7)*'Master Data'!$J$37))","v":0},{"$f":"IF($C74=\"NA\",\"\",IF($B74=0,\"\",OFFSET('Combined Annuity Prices PL'!$B$10,MATCH($B74,'Combined Annuity Prices PL'!$B$10:$B$3811,0)+12,N$7)*'Master Data'!$J$37))","v":0},null,null,0.50534847577827702,0.49610644149252564,0.413554771438229,0.39052269353365837,0.36092085479944974,null,null,null,null,null,null,null,{"$f":"IFERROR(VLOOKUP($B74,Volumes!$B$39:$H$81,MATCH(AC$9,Volumes!$B$4:$H$4,0),FALSE),0)","v":3513},{"$f":"IFERROR(VLOOKUP($B74,Volumes!$B$39:$H$81,MATCH(AD$9,Volumes!$B$4:$H$4,0),FALSE),0)","v":3470},{"$f":"IFERROR(VLOOKUP($B74,Volumes!$B$39:$H$81,MATCH(AE$9,Volumes!$B$4:$H$4,0),FALSE),0)","v":3270},{"$f":"IFERROR(VLOOKUP($B74,Volumes!$B$39:$H$81,MATCH(AF$9,Volumes!$B$4:$H$4,0),FALSE),0)","v":3110},{"$f":"IFERROR(VLOOKUP($B74,Volumes!$B$39:$H$81,MATCH(AG$9,Volumes!$B$4:$H$4,0),FALSE),0)","v":2890}]
[null,{"$f":"Inputs!$C71","v":"42W Compact Fluorescent - Bottom Pole Entry"},"No Longer Offered",36.046999999999997,{"$f":"IF($C75=\"NA\",\"\",IF($B75=0,\"\",OFFSET('Combined Annuity Prices PL'!$B$10,MATCH($B75,'Combined Annuity Prices PL'!$B$10:$B$3811,0)+12,E$7)*'Master Data'!$J$37))","v":39.303545128887166},{"$f":"IF($C75=\"NA\",\"\",IF($B75=0,\"\",OFFSET('Combined Annuity Prices PL'!$B$10,MATCH($B75,'Combined Annuity Prices PL'!$B$10:$B$3811,0)+12,F$7)*'Master Data'!$J$37))","v":39.169905767046352},{"$f":"IF($C75=\"NA\",\"\",IF($B75=0,\"\",OFFSET('Combined Annuity Prices PL'!$B$10,MATCH($B75,'Combined Annuity Prices PL'!$B$10:$B$3811,0)+12,G$7)*'Master Data'!$J$37))","v":34.649136729774959},{"$f":"IF($C75=\"NA\",\"\",IF($B75=0,\"\",OFFSET('Combined Annuity Prices PL'!$B$10,MATCH($B75,'Combined Annuity Prices PL'!$B$10:$B$3811,0)+12,H$7)*'Master Data'!$J$37))","v":34.402739156380953},{"$f":"IF($C75=\"NA\",\"\",IF($B75=0,\"\",OFFSET('Combined Annuity Prices PL'!$B$10,MATCH($B75,'Combined Annuity Prices PL'!$B$10:$B$3811,0)+12,I$7)*'Master Data'!$J$37))","v":34.121887685012361},{"$f":"IF($C75=\"NA\",\"\",IF($B75=0,\"\",OFFSET('Combined Annuity Prices PL'!$B$10,MATCH($B75,'Combined Annuity Prices PL'!$B$10:$B$3811,0)+12,J$7)*'Master Data'!$J$37))","v":0},{"$f":"IF($C75=\"NA\",\"\",IF($B75=0,\"\",OFFSET('Combined Annuity Prices PL'!$B$10,MATCH($B75,'Combined Annuity Prices PL'!$B$10:$B$3811,0)+12,K$7)*'Master Data'!$J$37))","v":0},{"$f":"IF($C75=\"NA\",\"\",IF($B75=0,\"\",OFFSET('Combined Annuity Prices PL'!$B$10,MATCH($B75,'Combined Annuity Prices PL'!$B$10:$B$3811,0)+12,L$7)*'Master Data'!$J$37))","v":0},{"$f":"IF($C75=\"NA\",\"\",IF($B75=0,\"\",OFFSET('Combined Annuity Prices PL'!$B$10,MATCH($B75,'Combined Annuity Prices PL'!$B$10:$B$3811,0)+12,M$7)*'Master Data'!$J$37))","v":0},{"$f":"IF($C75=\"NA\",\"\",IF($B75=0,\"\",OFFSET('Combined Annuity Prices PL'!$B$10,MATCH($B75,'Combined Annuity Prices PL'!$B$10:$B$3811,0)+12,N$7)*'Master Data'!$J$37))","v":0},null,null,2.9345598935032309E-2,2.9165911834142709E-2,2.5799747208990437E-2,2.5616279575841259E-2,2.547676622113763E-2,null,null,null,null,null,null,null,{"$f":"IFERROR(VLOOKUP($B75,Volumes!$B$39:$H$81,MATCH(AC$9,Volumes!$B$4:$H$4,0),FALSE),0)","v":204},{"$f":"IFERROR(VLOOKUP($B75,Volumes!$B$39:$H$81,MATCH(AD$9,Volumes!$B$4:$H$4,0),FALSE),0)","v":204},{"$f":"IFERROR(VLOOKUP($B75,Volumes!$B$39:$H$81,MATCH(AE$9,Volumes!$B$4:$H$4,0),FALSE),0)","v":204},{"$f":"IFERROR(VLOOKUP($B75,Volumes!$B$39:$H$81,MATCH(AF$9,Volumes!$B$4:$H$4,0),FALSE),0)","v":204},{"$f":"IFERROR(VLOOKUP($B75,Volumes!$B$39:$H$81,MATCH(AG$9,Volumes!$B$4:$H$4,0),FALSE),0)","v":204}]
[null,{"$f":"Inputs!$C72","v":"2x24W Compact Fluorescent"},"Old light no volumes",36.369,{"$f":"IF($C76=\"NA\",\"\",IF($B76=0,\"\",OFFSET('Combined Annuity Prices PL'!$B$10,MATCH($B76,'Combined Annuity Prices PL'!$B$10:$B$3811,0)+12,E$7)*'Master Data'!$J$37))","v":39.903878199656461},{"$f":"IF($C76=\"NA\",\"\",IF($B76=0,\"\",OFFSET('Combined Annuity Prices PL'!$B$10,MATCH($B76,'Combined Annuity Prices PL'!$B$10:$B$3811,0)+12,F$7)*'Master Data'!$J$37))","v":39.772326952844409},{"$f":"IF($C76=\"NA\",\"\",IF($B76=0,\"\",OFFSET('Combined Annuity Prices PL'!$B$10,MATCH($B76,'Combined Annuity Prices PL'!$B$10:$B$3811,0)+12,G$7)*'Master Data'!$J$37))","v":35.251557915573024},{"$f":"IF($C76=\"NA\",\"\",IF($B76=0,\"\",OFFSET('Combined Annuity Prices PL'!$B$10,MATCH($B76,'Combined Annuity Prices PL'!$B$10:$B$3811,0)+12,H$7)*'Master Data'!$J$37))","v":35.005160342179011},{"$f":"IF($C76=\"NA\",\"\",IF($B76=0,\"\",OFFSET('Combined Annuity Prices PL'!$B$10,MATCH($B76,'Combined Annuity Prices PL'!$B$10:$B$3811,0)+12,I$7)*'Master Data'!$J$37))","v":34.722220755781656},{"$f":"IF($C76=\"NA\",\"\",IF($B76=0,\"\",OFFSET('Combined Annuity Prices PL'!$B$10,MATCH($B76,'Combined Annuity Prices PL'!$B$10:$B$3811,0)+12,J$7)*'Master Data'!$J$37))","v":0},{"$f":"IF($C76=\"NA\",\"\",IF($B76=0,\"\",OFFSET('Combined Annuity Prices PL'!$B$10,MATCH($B76,'Combined Annuity Prices PL'!$B$10:$B$3811,0)+12,K$7)*'Master Data'!$J$37))","v":0},{"$f":"IF($C76=\"NA\",\"\",IF($B76=0,\"\",OFFSET('Combined Annuity Prices PL'!$B$10,MATCH($B76,'Combined Annuity Prices PL'!$B$10:$B$3811,0)+12,L$7)*'Master Data'!$J$37))","v":0},{"$f":"IF($C76=\"NA\",\"\",IF($B76=0,\"\",OFFSET('Combined Annuity Prices PL'!$B$10,MATCH($B76,'Combined Annuity Prices PL'!$B$10:$B$3811,0)+12,M$7)*'Master Data'!$J$37))","v":0},{"$f":"IF($C76=\"NA\",\"\",IF($B76=0,\"\",OFFSET('Combined Annuity Prices PL'!$B$10,MATCH($B76,'Combined Annuity Prices PL'!$B$10:$B$3811,0)+12,N$7)*'Master Data'!$J$37))","v":0},null,null,0,0,0,0,0,null,null,null,null,null,null,null,{"$f":"IFERROR(VLOOKUP($B76,Volumes!$B$39:$H$81,MATCH(AC$9,Volumes!$B$4:$H$4,0),FALSE),0)","v":0},{"$f":"IFERROR(VLOOKUP($B76,Volumes!$B$39:$H$81,MATCH(AD$9,Volumes!$B$4:$H$4,0),FALSE),0)","v":0},{"$f":"IFERROR(VLOOKUP($B76,Volumes!$B$39:$H$81,MATCH(AE$9,Volumes!$B$4:$H$4,0),FALSE),0)","v":0},{"$f":"IFERROR(VLOOKUP($B76,Volumes!$B$39:$H$81,MATCH(AF$9,Volumes!$B$4:$H$4,0),FALSE),0)","v":0},{"$f":"IFERROR(VLOOKUP($B76,Volumes!$B$39:$H$81,MATCH(AG$9,Volumes!$B$4:$H$4,0),FALSE),0)","v":0}]
[null,{"$f":"Inputs!$C73","v":"1x20W Fluorescent"},"Old light no volumes",37.741999999999997,{"$f":"IF($C77=\"NA\",\"\",IF($B77=0,\"\",OFFSET('Combined Annuity Prices PL'!$B$10,MATCH($B77,'Combined Annuity Prices PL'!$B$10:$B$3811,0)+12,E$7)*'Master Data'!$J$37))","v":41.34050133944524},{"$f":"IF($C77=\"NA\",\"\",IF($B77=0,\"\",OFFSET('Combined Annuity Prices PL'!$B$10,MATCH($B77,'Combined Annuity Prices PL'!$B$10:$B$3811,0)+12,F$7)*'Master Data'!$J$37))","v":41.212082265176335},{"$f":"IF($C77=\"NA\",\"\",IF($B77=0,\"\",OFFSET('Combined Annuity Prices PL'!$B$10,MATCH($B77,'Combined Annuity Prices PL'!$B$10:$B$3811,0)+12,G$7)*'Master Data'!$J$37))","v":36.691313227904942},{"$f":"IF($C77=\"NA\",\"\",IF($B77=0,\"\",OFFSET('Combined Annuity Prices PL'!$B$10,MATCH($B77,'Combined Annuity Prices PL'!$B$10:$B$3811,0)+12,H$7)*'Master Data'!$J$37))","v":36.444915654510936},{"$f":"IF($C77=\"NA\",\"\",IF($B77=0,\"\",OFFSET('Combined Annuity Prices PL'!$B$10,MATCH($B77,'Combined Annuity Prices PL'!$B$10:$B$3811,0)+12,I$7)*'Master Data'!$J$37))","v":36.157799838056057},{"$f":"IF($C77=\"NA\",\"\",IF($B77=0,\"\",OFFSET('Combined Annuity Prices PL'!$B$10,MATCH($B77,'Combined Annuity Prices PL'!$B$10:$B$3811,0)+12,J$7)*'Master Data'!$J$37))","v":0},{"$f":"IF($C77=\"NA\",\"\",IF($B77=0,\"\",OFFSET('Combined Annuity Prices PL'!$B$10,MATCH($B77,'Combined Annuity Prices PL'!$B$10:$B$3811,0)+12,K$7)*'Master Data'!$J$37))","v":0},{"$f":"IF($C77=\"NA\",\"\",IF($B77=0,\"\",OFFSET('Combined Annuity Prices PL'!$B$10,MATCH($B77,'Combined Annuity Prices PL'!$B$10:$B$3811,0)+12,L$7)*'Master Data'!$J$37))","v":0},{"$f":"IF($C77=\"NA\",\"\",IF($B77=0,\"\",OFFSET('Combined Annuity Prices PL'!$B$10,MATCH($B77,'Combined Annuity Prices PL'!$B$10:$B$3811,0)+12,M$7)*'Master Data'!$J$37))","v":0},{"$f":"IF($C77=\"NA\",\"\",IF($B77=0,\"\",OFFSET('Combined Annuity Prices PL'!$B$10,MATCH($B77,'Combined Annuity Prices PL'!$B$10:$B$3811,0)+12,N$7)*'Master Data'!$J$37))","v":0},null,null,0,0,0,0,0,null,null,null,null,null,null,null,{"$f":"IFERROR(VLOOKUP($B77,Volumes!$B$39:$H$81,MATCH(AC$9,Volumes!$B$4:$H$4,0),FALSE),0)","v":0},{"$f":"IFERROR(VLOOKUP($B77,Volumes!$B$39:$H$81,MATCH(AD$9,Volumes!$B$4:$H$4,0),FALSE),0)","v":0},{"$f":"IFERROR(VLOOKUP($B77,Volumes!$B$39:$H$81,MATCH(AE$9,Volumes!$B$4:$H$4,0),FALSE),0)","v":0},{"$f":"IFERROR(VLOOKUP($B77,Volumes!$B$39:$H$81,MATCH(AF$9,Volumes!$B$4:$H$4,0),FALSE),0)","v":0},{"$f":"IFERROR(VLOOKUP($B77,Volumes!$B$39:$H$81,MATCH(AG$9,Volumes!$B$4:$H$4,0),FALSE),0)","v":0}]
[null,{"$f":"Inputs!$C74","v":"1x40W Fluorescent"},"Old light no volumes",36.579000000000001,{"$f":"IF($C78=\"NA\",\"\",IF($B78=0,\"\",OFFSET('Combined Annuity Prices PL'!$B$10,MATCH($B78,'Combined Annuity Prices PL'!$B$10:$B$3811,0)+12,E$7)*'Master Data'!$J$37))","v":40.264078042118037},{"$f":"IF($C78=\"NA\",\"\",IF($B78=0,\"\",OFFSET('Combined Annuity Prices PL'!$B$10,MATCH($B78,'Combined Annuity Prices PL'!$B$10:$B$3811,0)+12,F$7)*'Master Data'!$J$37))","v":40.133570852820363},{"$f":"IF($C78=\"NA\",\"\",IF($B78=0,\"\",OFFSET('Combined Annuity Prices PL'!$B$10,MATCH($B78,'Combined Annuity Prices PL'!$B$10:$B$3811,0)+12,G$7)*'Master Data'!$J$37))","v":35.612801815548977},{"$f":"IF($C78=\"NA\",\"\",IF($B78=0,\"\",OFFSET('Combined Annuity Prices PL'!$B$10,MATCH($B78,'Combined Annuity Prices PL'!$B$10:$B$3811,0)+12,H$7)*'Master Data'!$J$37))","v":35.366404242154971},{"$f":"IF($C78=\"NA\",\"\",IF($B78=0,\"\",OFFSET('Combined Annuity Prices PL'!$B$10,MATCH($B78,'Combined Annuity Prices PL'!$B$10:$B$3811,0)+12,I$7)*'Master Data'!$J$37))","v":35.082420598243232},{"$f":"IF($C78=\"NA\",\"\",IF($B78=0,\"\",OFFSET('Combined Annuity Prices PL'!$B$10,MATCH($B78,'Combined Annuity Prices PL'!$B$10:$B$3811,0)+12,J$7)*'Master Data'!$J$37))","v":0},{"$f":"IF($C78=\"NA\",\"\",IF($B78=0,\"\",OFFSET('Combined Annuity Prices PL'!$B$10,MATCH($B78,'Combined Annuity Prices PL'!$B$10:$B$3811,0)+12,K$7)*'Master Data'!$J$37))","v":0},{"$f":"IF($C78=\"NA\",\"\",IF($B78=0,\"\",OFFSET('Combined Annuity Prices PL'!$B$10,MATCH($B78,'Combined Annuity Prices PL'!$B$10:$B$3811,0)+12,L$7)*'Master Data'!$J$37))","v":0},{"$f":"IF($C78=\"NA\",\"\",IF($B78=0,\"\",OFFSET('Combined Annuity Prices PL'!$B$10,MATCH($B78,'Combined Annuity Prices PL'!$B$10:$B$3811,0)+12,M$7)*'Master Data'!$J$37))","v":0},{"$f":"IF($C78=\"NA\",\"\",IF($B78=0,\"\",OFFSET('Combined Annuity Prices PL'!$B$10,MATCH($B78,'Combined Annuity Prices PL'!$B$10:$B$3811,0)+12,N$7)*'Master Data'!$J$37))","v":0},null,null,0,0,0,0,0,null,null,null,null,null,null,null,{"$f":"IFERROR(VLOOKUP($B78,Volumes!$B$39:$H$81,MATCH(AC$9,Volumes!$B$4:$H$4,0),FALSE),0)","v":0},{"$f":"IFERROR(VLOOKUP($B78,Volumes!$B$39:$H$81,MATCH(AD$9,Volumes!$B$4:$H$4,0),FALSE),0)","v":0},{"$f":"IFERROR(VLOOKUP($B78,Volumes!$B$39:$H$81,MATCH(AE$9,Volumes!$B$4:$H$4,0),FALSE),0)","v":0},{"$f":"IFERROR(VLOOKUP($B78,Volumes!$B$39:$H$81,MATCH(AF$9,Volumes!$B$4:$H$4,0),FALSE),0)","v":0},{"$f":"IFERROR(VLOOKUP($B78,Volumes!$B$39:$H$81,MATCH(AG$9,Volumes!$B$4:$H$4,0),FALSE),0)","v":0}]
[null,{"$f":"Inputs!$C75","v":"2x20W Fluorescent"},"Old light no volumes",38.030999999999999,{"$f":"IF($C79=\"NA\",\"\",IF($B79=0,\"\",OFFSET('Combined Annuity Prices PL'!$B$10,MATCH($B79,'Combined Annuity Prices PL'!$B$10:$B$3811,0)+12,E$7)*'Master Data'!$J$37))","v":41.627617155900126},{"$f":"IF($C79=\"NA\",\"\",IF($B79=0,\"\",OFFSET('Combined Annuity Prices PL'!$B$10,MATCH($B79,'Combined Annuity Prices PL'!$B$10:$B$3811,0)+12,F$7)*'Master Data'!$J$37))","v":41.501286196659976},{"$f":"IF($C79=\"NA\",\"\",IF($B79=0,\"\",OFFSET('Combined Annuity Prices PL'!$B$10,MATCH($B79,'Combined Annuity Prices PL'!$B$10:$B$3811,0)+12,G$7)*'Master Data'!$J$37))","v":36.98051715938859},{"$f":"IF($C79=\"NA\",\"\",IF($B79=0,\"\",OFFSET('Combined Annuity Prices PL'!$B$10,MATCH($B79,'Combined Annuity Prices PL'!$B$10:$B$3811,0)+12,H$7)*'Master Data'!$J$37))","v":36.734119585994577},{"$f":"IF($C79=\"NA\",\"\",IF($B79=0,\"\",OFFSET('Combined Annuity Prices PL'!$B$10,MATCH($B79,'Combined Annuity Prices PL'!$B$10:$B$3811,0)+12,I$7)*'Master Data'!$J$37))","v":36.445959712025321},{"$f":"IF($C79=\"NA\",\"\",IF($B79=0,\"\",OFFSET('Combined Annuity Prices PL'!$B$10,MATCH($B79,'Combined Annuity Prices PL'!$B$10:$B$3811,0)+12,J$7)*'Master Data'!$J$37))","v":0},{"$f":"IF($C79=\"NA\",\"\",IF($B79=0,\"\",OFFSET('Combined Annuity Prices PL'!$B$10,MATCH($B79,'Combined Annuity Prices PL'!$B$10:$B$3811,0)+12,K$7)*'Master Data'!$J$37))","v":0},{"$f":"IF($C79=\"NA\",\"\",IF($B79=0,\"\",OFFSET('Combined Annuity Prices PL'!$B$10,MATCH($B79,'Combined Annuity Prices PL'!$B$10:$B$3811,0)+12,L$7)*'Master Data'!$J$37))","v":0},{"$f":"IF($C79=\"NA\",\"\",IF($B79=0,\"\",OFFSET('Combined Annuity Prices PL'!$B$10,MATCH($B79,'Combined Annuity Prices PL'!$B$10:$B$3811,0)+12,M$7)*'Master Data'!$J$37))","v":0},{"$f":"IF($C79=\"NA\",\"\",IF($B79=0,\"\",OFFSET('Combined Annuity Prices PL'!$B$10,MATCH($B79,'Combined Annuity Prices PL'!$B$10:$B$3811,0)+12,N$7)*'Master Data'!$J$37))","v":0},null,null,0,0,0,0,0,null,null,null,null,null,null,null,{"$f":"IFERROR(VLOOKUP($B79,Volumes!$B$39:$H$81,MATCH(AC$9,Volumes!$B$4:$H$4,0),FALSE),0)","v":0},{"$f":"IFERROR(VLOOKUP($B79,Volumes!$B$39:$H$81,MATCH(AD$9,Volumes!$B$4:$H$4,0),FALSE),0)","v":0},{"$f":"IFERROR(VLOOKUP($B79,Volumes!$B$39:$H$81,MATCH(AE$9,Volumes!$B$4:$H$4,0),FALSE),0)","v":0},{"$f":"IFERROR(VLOOKUP($B79,Volumes!$B$39:$H$81,MATCH(AF$9,Volumes!$B$4:$H$4,0),FALSE),0)","v":0},{"$f":"IFERROR(VLOOKUP($B79,Volumes!$B$39:$H$81,MATCH(AG$9,Volumes!$B$4:$H$4,0),FALSE),0)","v":0}]
[null,{"$f":"Inputs!$C76","v":"2x24W Fluorescent"},"Old light no volumes",37.981999999999999,{"$f":"IF($C80=\"NA\",\"\",IF($B80=0,\"\",OFFSET('Combined Annuity Prices PL'!$B$10,MATCH($B80,'Combined Annuity Prices PL'!$B$10:$B$3811,0)+12,E$7)*'Master Data'!$J$37))","v":41.562885590008477},{"$f":"IF($C80=\"NA\",\"\",IF($B80=0,\"\",OFFSET('Combined Annuity Prices PL'!$B$10,MATCH($B80,'Combined Annuity Prices PL'!$B$10:$B$3811,0)+12,F$7)*'Master Data'!$J$37))","v":41.43551057325395},{"$f":"IF($C80=\"NA\",\"\",IF($B80=0,\"\",OFFSET('Combined Annuity Prices PL'!$B$10,MATCH($B80,'Combined Annuity Prices PL'!$B$10:$B$3811,0)+12,G$7)*'Master Data'!$J$37))","v":36.914741535982557},{"$f":"IF($C80=\"NA\",\"\",IF($B80=0,\"\",OFFSET('Combined Annuity Prices PL'!$B$10,MATCH($B80,'Combined Annuity Prices PL'!$B$10:$B$3811,0)+12,H$7)*'Master Data'!$J$37))","v":36.668343962588558},{"$f":"IF($C80=\"NA\",\"\",IF($B80=0,\"\",OFFSET('Combined Annuity Prices PL'!$B$10,MATCH($B80,'Combined Annuity Prices PL'!$B$10:$B$3811,0)+12,I$7)*'Master Data'!$J$37))","v":36.381228146133672},{"$f":"IF($C80=\"NA\",\"\",IF($B80=0,\"\",OFFSET('Combined Annuity Prices PL'!$B$10,MATCH($B80,'Combined Annuity Prices PL'!$B$10:$B$3811,0)+12,J$7)*'Master Data'!$J$37))","v":0},{"$f":"IF($C80=\"NA\",\"\",IF($B80=0,\"\",OFFSET('Combined Annuity Prices PL'!$B$10,MATCH($B80,'Combined Annuity Prices PL'!$B$10:$B$3811,0)+12,K$7)*'Master Data'!$J$37))","v":0},{"$f":"IF($C80=\"NA\",\"\",IF($B80=0,\"\",OFFSET('Combined Annuity Prices PL'!$B$10,MATCH($B80,'Combined Annuity Prices PL'!$B$10:$B$3811,0)+12,L$7)*'Master Data'!$J$37))","v":0},{"$f":"IF($C80=\"NA\",\"\",IF($B80=0,\"\",OFFSET('Combined Annuity Prices PL'!$B$10,MATCH($B80,'Combined Annuity Prices PL'!$B$10:$B$3811,0)+12,M$7)*'Master Data'!$J$37))","v":0},{"$f":"IF($C80=\"NA\",\"\",IF($B80=0,\"\",OFFSET('Combined Annuity Prices PL'!$B$10,MATCH($B80,'Combined Annuity Prices PL'!$B$10:$B$3811,0)+12,N$7)*'Master Data'!$J$37))","v":0},null,null,0,0,0,0,0,null,null,null,null,null,null,null,{"$f":"IFERROR(VLOOKUP($B80,Volumes!$B$39:$H$81,MATCH(AC$9,Volumes!$B$4:$H$4,0),FALSE),0)","v":0},{"$f":"IFERROR(VLOOKUP($B80,Volumes!$B$39:$H$81,MATCH(AD$9,Volumes!$B$4:$H$4,0),FALSE),0)","v":0},{"$f":"IFERROR(VLOOKUP($B80,Volumes!$B$39:$H$81,MATCH(AE$9,Volumes!$B$4:$H$4,0),FALSE),0)","v":0},{"$f":"IFERROR(VLOOKUP($B80,Volumes!$B$39:$H$81,MATCH(AF$9,Volumes!$B$4:$H$4,0),FALSE),0)","v":0},{"$f":"IFERROR(VLOOKUP($B80,Volumes!$B$39:$H$81,MATCH(AG$9,Volumes!$B$4:$H$4,0),FALSE),0)","v":0}]
[null,{"$f":"Inputs!$C77","v":"T5 Fluorescent 2 x 24W"},"Obsolete, no new Connections",38.031999999999996,{"$f":"IF($C81=\"NA\",\"\",IF($B81=0,\"\",OFFSET('Combined Annuity Prices PL'!$B$10,MATCH($B81,'Combined Annuity Prices PL'!$B$10:$B$3811,0)+12,E$7)*'Master Data'!$J$37))","v":41.627617155900126},{"$f":"IF($C81=\"NA\",\"\",IF($B81=0,\"\",OFFSET('Combined Annuity Prices PL'!$B$10,MATCH($B81,'Combined Annuity Prices PL'!$B$10:$B$3811,0)+12,F$7)*'Master Data'!$J$37))","v":41.501286196659976},{"$f":"IF($C81=\"NA\",\"\",IF($B81=0,\"\",OFFSET('Combined Annuity Prices PL'!$B$10,MATCH($B81,'Combined Annuity Prices PL'!$B$10:$B$3811,0)+12,G$7)*'Master Data'!$J$37))","v":36.98051715938859},{"$f":"IF($C81=\"NA\",\"\",IF($B81=0,\"\",OFFSET('Combined Annuity Prices PL'!$B$10,MATCH($B81,'Combined Annuity Prices PL'!$B$10:$B$3811,0)+12,H$7)*'Master Data'!$J$37))","v":36.734119585994577},{"$f":"IF($C81=\"NA\",\"\",IF($B81=0,\"\",OFFSET('Combined Annuity Prices PL'!$B$10,MATCH($B81,'Combined Annuity Prices PL'!$B$10:$B$3811,0)+12,I$7)*'Master Data'!$J$37))","v":36.445959712025321},{"$f":"IF($C81=\"NA\",\"\",IF($B81=0,\"\",OFFSET('Combined Annuity Prices PL'!$B$10,MATCH($B81,'Combined Annuity Prices PL'!$B$10:$B$3811,0)+12,J$7)*'Master Data'!$J$37))","v":0},{"$f":"IF($C81=\"NA\",\"\",IF($B81=0,\"\",OFFSET('Combined Annuity Prices PL'!$B$10,MATCH($B81,'Combined Annuity Prices PL'!$B$10:$B$3811,0)+12,K$7)*'Master Data'!$J$37))","v":0},{"$f":"IF($C81=\"NA\",\"\",IF($B81=0,\"\",OFFSET('Combined Annuity Prices PL'!$B$10,MATCH($B81,'Combined Annuity Prices PL'!$B$10:$B$3811,0)+12,L$7)*'Master Data'!$J$37))","v":0},{"$f":"IF($C81=\"NA\",\"\",IF($B81=0,\"\",OFFSET('Combined Annuity Prices PL'!$B$10,MATCH($B81,'Combined Annuity Prices PL'!$B$10:$B$3811,0)+12,M$7)*'Master Data'!$J$37))","v":0},{"$f":"IF($C81=\"NA\",\"\",IF($B81=0,\"\",OFFSET('Combined Annuity Prices PL'!$B$10,MATCH($B81,'Combined Annuity Prices PL'!$B$10:$B$3811,0)+12,N$7)*'Master Data'!$J$37))","v":0},null,null,1.264563753961934E-2,1.257281465327814E-2,1.1203247673436775E-2,1.1128601528577057E-2,1.1071553641319051E-2,null,null,null,null,null,null,null,{"$f":"IFERROR(VLOOKUP($B81,Volumes!$B$39:$H$81,MATCH(AC$9,Volumes!$B$4:$H$4,0),FALSE),0)","v":83},{"$f":"IFERROR(VLOOKUP($B81,Volumes!$B$39:$H$81,MATCH(AD$9,Volumes!$B$4:$H$4,0),FALSE),0)","v":83},{"$f":"IFERROR(VLOOKUP($B81,Volumes!$B$39:$H$81,MATCH(AE$9,Volumes!$B$4:$H$4,0),FALSE),0)","v":83},{"$f":"IFERROR(VLOOKUP($B81,Volumes!$B$39:$H$81,MATCH(AF$9,Volumes!$B$4:$H$4,0),FALSE),0)","v":83},{"$f":"IFERROR(VLOOKUP($B81,Volumes!$B$39:$H$81,MATCH(AG$9,Volumes!$B$4:$H$4,0),FALSE),0)","v":83}]
[null,{"$f":"Inputs!$C78","v":"20 Fluorescent 1X20FL"},"Old light no volumes",37.741999999999997,{"$f":"IF($C82=\"NA\",\"\",IF($B82=0,\"\",OFFSET('Combined Annuity Prices PL'!$B$10,MATCH($B82,'Combined Annuity Prices PL'!$B$10:$B$3811,0)+12,E$7)*'Master Data'!$J$37))","v":41.34050133944524},{"$f":"IF($C82=\"NA\",\"\",IF($B82=0,\"\",OFFSET('Combined Annuity Prices PL'!$B$10,MATCH($B82,'Combined Annuity Prices PL'!$B$10:$B$3811,0)+12,F$7)*'Master Data'!$J$37))","v":41.212082265176335},{"$f":"IF($C82=\"NA\",\"\",IF($B82=0,\"\",OFFSET('Combined Annuity Prices PL'!$B$10,MATCH($B82,'Combined Annuity Prices PL'!$B$10:$B$3811,0)+12,G$7)*'Master Data'!$J$37))","v":36.691313227904942},{"$f":"IF($C82=\"NA\",\"\",IF($B82=0,\"\",OFFSET('Combined Annuity Prices PL'!$B$10,MATCH($B82,'Combined Annuity Prices PL'!$B$10:$B$3811,0)+12,H$7)*'Master Data'!$J$37))","v":36.444915654510936},{"$f":"IF($C82=\"NA\",\"\",IF($B82=0,\"\",OFFSET('Combined Annuity Prices PL'!$B$10,MATCH($B82,'Combined Annuity Prices PL'!$B$10:$B$3811,0)+12,I$7)*'Master Data'!$J$37))","v":36.157799838056057},{"$f":"IF($C82=\"NA\",\"\",IF($B82=0,\"\",OFFSET('Combined Annuity Prices PL'!$B$10,MATCH($B82,'Combined Annuity Prices PL'!$B$10:$B$3811,0)+12,J$7)*'Master Data'!$J$37))","v":0},{"$f":"IF($C82=\"NA\",\"\",IF($B82=0,\"\",OFFSET('Combined Annuity Prices PL'!$B$10,MATCH($B82,'Combined Annuity Prices PL'!$B$10:$B$3811,0)+12,K$7)*'Master Data'!$J$37))","v":0},{"$f":"IF($C82=\"NA\",\"\",IF($B82=0,\"\",OFFSET('Combined Annuity Prices PL'!$B$10,MATCH($B82,'Combined Annuity Prices PL'!$B$10:$B$3811,0)+12,L$7)*'Master Data'!$J$37))","v":0},{"$f":"IF($C82=\"NA\",\"\",IF($B82=0,\"\",OFFSET('Combined Annuity Prices PL'!$B$10,MATCH($B82,'Combined Annuity Prices PL'!$B$10:$B$3811,0)+12,M$7)*'Master Data'!$J$37))","v":0},{"$f":"IF($C82=\"NA\",\"\",IF($B82=0,\"\",OFFSET('Combined Annuity Prices PL'!$B$10,MATCH($B82,'Combined Annuity Prices PL'!$B$10:$B$3811,0)+12,N$7)*'Master Data'!$J$37))","v":0},null,null,0,0,0,0,0,null,null,null,null,null,null,null,{"$f":"IFERROR(VLOOKUP($B82,Volumes!$B$39:$H$81,MATCH(AC$9,Volumes!$B$4:$H$4,0),FALSE),0)","v":0},{"$f":"IFERROR(VLOOKUP($B82,Volumes!$B$39:$H$81,MATCH(AD$9,Volumes!$B$4:$H$4,0),FALSE),0)","v":0},{"$f":"IFERROR(VLOOKUP($B82,Volumes!$B$39:$H$81,MATCH(AE$9,Volumes!$B$4:$H$4,0),FALSE),0)","v":0},{"$f":"IFERROR(VLOOKUP($B82,Volumes!$B$39:$H$81,MATCH(AF$9,Volumes!$B$4:$H$4,0),FALSE),0)","v":0},{"$f":"IFERROR(VLOOKUP($B82,Volumes!$B$39:$H$81,MATCH(AG$9,Volumes!$B$4:$H$4,0),FALSE),0)","v":0}]
[null,{"$f":"Inputs!$C79","v":"2x40W Fluorescent"},"Old light no volumes",36.887999999999998,{"$f":"IF($C83=\"NA\",\"\",IF($B83=0,\"\",OFFSET('Combined Annuity Prices PL'!$B$10,MATCH($B83,'Combined Annuity Prices PL'!$B$10:$B$3811,0)+12,E$7)*'Master Data'!$J$37))","v":40.571030951346167},{"$f":"IF($C83=\"NA\",\"\",IF($B83=0,\"\",OFFSET('Combined Annuity Prices PL'!$B$10,MATCH($B83,'Combined Annuity Prices PL'!$B$10:$B$3811,0)+12,F$7)*'Master Data'!$J$37))","v":40.440523762048493},{"$f":"IF($C83=\"NA\",\"\",IF($B83=0,\"\",OFFSET('Combined Annuity Prices PL'!$B$10,MATCH($B83,'Combined Annuity Prices PL'!$B$10:$B$3811,0)+12,G$7)*'Master Data'!$J$37))","v":35.919754724777107},{"$f":"IF($C83=\"NA\",\"\",IF($B83=0,\"\",OFFSET('Combined Annuity Prices PL'!$B$10,MATCH($B83,'Combined Annuity Prices PL'!$B$10:$B$3811,0)+12,H$7)*'Master Data'!$J$37))","v":35.673357151383094},{"$f":"IF($C83=\"NA\",\"\",IF($B83=0,\"\",OFFSET('Combined Annuity Prices PL'!$B$10,MATCH($B83,'Combined Annuity Prices PL'!$B$10:$B$3811,0)+12,I$7)*'Master Data'!$J$37))","v":35.388329449956984},{"$f":"IF($C83=\"NA\",\"\",IF($B83=0,\"\",OFFSET('Combined Annuity Prices PL'!$B$10,MATCH($B83,'Combined Annuity Prices PL'!$B$10:$B$3811,0)+12,J$7)*'Master Data'!$J$37))","v":0},{"$f":"IF($C83=\"NA\",\"\",IF($B83=0,\"\",OFFSET('Combined Annuity Prices PL'!$B$10,MATCH($B83,'Combined Annuity Prices PL'!$B$10:$B$3811,0)+12,K$7)*'Master Data'!$J$37))","v":0},{"$f":"IF($C83=\"NA\",\"\",IF($B83=0,\"\",OFFSET('Combined Annuity Prices PL'!$B$10,MATCH($B83,'Combined Annuity Prices PL'!$B$10:$B$3811,0)+12,L$7)*'Master Data'!$J$37))","v":0},{"$f":"IF($C83=\"NA\",\"\",IF($B83=0,\"\",OFFSET('Combined Annuity Prices PL'!$B$10,MATCH($B83,'Combined Annuity Prices PL'!$B$10:$B$3811,0)+12,M$7)*'Master Data'!$J$37))","v":0},{"$f":"IF($C83=\"NA\",\"\",IF($B83=0,\"\",OFFSET('Combined Annuity Prices PL'!$B$10,MATCH($B83,'Combined Annuity Prices PL'!$B$10:$B$3811,0)+12,N$7)*'Master Data'!$J$37))","v":0},null,null,0,0,0,0,0,null,null,null,null,null,null,null,{"$f":"IFERROR(VLOOKUP($B83,Volumes!$B$39:$H$81,MATCH(AC$9,Volumes!$B$4:$H$4,0),FALSE),0)","v":0},{"$f":"IFERROR(VLOOKUP($B83,Volumes!$B$39:$H$81,MATCH(AD$9,Volumes!$B$4:$H$4,0),FALSE),0)","v":0},{"$f":"IFERROR(VLOOKUP($B83,Volumes!$B$39:$H$81,MATCH(AE$9,Volumes!$B$4:$H$4,0),FALSE),0)","v":0},{"$f":"IFERROR(VLOOKUP($B83,Volumes!$B$39:$H$81,MATCH(AF$9,Volumes!$B$4:$H$4,0),FALSE),0)","v":0},{"$f":"IFERROR(VLOOKUP($B83,Volumes!$B$39:$H$81,MATCH(AG$9,Volumes!$B$4:$H$4,0),FALSE),0)","v":0}]
[null,{"$f":"Inputs!$C80","v":"3x40W Fluorescent"},"Old light no volumes",46.387,{"$f":"IF($C84=\"NA\",\"\",IF($B84=0,\"\",OFFSET('Combined Annuity Prices PL'!$B$10,MATCH($B84,'Combined Annuity Prices PL'!$B$10:$B$3811,0)+12,E$7)*'Master Data'!$J$37))","v":47.340699874595053},{"$f":"IF($C84=\"NA\",\"\",IF($B84=0,\"\",OFFSET('Combined Annuity Prices PL'!$B$10,MATCH($B84,'Combined Annuity Prices PL'!$B$10:$B$3811,0)+12,F$7)*'Master Data'!$J$37))","v":47.232117893099385},{"$f":"IF($C84=\"NA\",\"\",IF($B84=0,\"\",OFFSET('Combined Annuity Prices PL'!$B$10,MATCH($B84,'Combined Annuity Prices PL'!$B$10:$B$3811,0)+12,G$7)*'Master Data'!$J$37))","v":42.714481028371139},{"$f":"IF($C84=\"NA\",\"\",IF($B84=0,\"\",OFFSET('Combined Annuity Prices PL'!$B$10,MATCH($B84,'Combined Annuity Prices PL'!$B$10:$B$3811,0)+12,H$7)*'Master Data'!$J$37))","v":42.472259685034665},{"$f":"IF($C84=\"NA\",\"\",IF($B84=0,\"\",OFFSET('Combined Annuity Prices PL'!$B$10,MATCH($B84,'Combined Annuity Prices PL'!$B$10:$B$3811,0)+12,I$7)*'Master Data'!$J$37))","v":42.173659235921583},{"$f":"IF($C84=\"NA\",\"\",IF($B84=0,\"\",OFFSET('Combined Annuity Prices PL'!$B$10,MATCH($B84,'Combined Annuity Prices PL'!$B$10:$B$3811,0)+12,J$7)*'Master Data'!$J$37))","v":0},{"$f":"IF($C84=\"NA\",\"\",IF($B84=0,\"\",OFFSET('Combined Annuity Prices PL'!$B$10,MATCH($B84,'Combined Annuity Prices PL'!$B$10:$B$3811,0)+12,K$7)*'Master Data'!$J$37))","v":0},{"$f":"IF($C84=\"NA\",\"\",IF($B84=0,\"\",OFFSET('Combined Annuity Prices PL'!$B$10,MATCH($B84,'Combined Annuity Prices PL'!$B$10:$B$3811,0)+12,L$7)*'Master Data'!$J$37))","v":0},{"$f":"IF($C84=\"NA\",\"\",IF($B84=0,\"\",OFFSET('Combined Annuity Prices PL'!$B$10,MATCH($B84,'Combined Annuity Prices PL'!$B$10:$B$3811,0)+12,M$7)*'Master Data'!$J$37))","v":0},{"$f":"IF($C84=\"NA\",\"\",IF($B84=0,\"\",OFFSET('Combined Annuity Prices PL'!$B$10,MATCH($B84,'Combined Annuity Prices PL'!$B$10:$B$3811,0)+12,N$7)*'Master Data'!$J$37))","v":0},null,null,0,0,0,0,0,null,null,null,null,null,null,null,{"$f":"IFERROR(VLOOKUP($B84,Volumes!$B$39:$H$81,MATCH(AC$9,Volumes!$B$4:$H$4,0),FALSE),0)","v":0},{"$f":"IFERROR(VLOOKUP($B84,Volumes!$B$39:$H$81,MATCH(AD$9,Volumes!$B$4:$H$4,0),FALSE),0)","v":0},{"$f":"IFERROR(VLOOKUP($B84,Volumes!$B$39:$H$81,MATCH(AE$9,Volumes!$B$4:$H$4,0),FALSE),0)","v":0},{"$f":"IFERROR(VLOOKUP($B84,Volumes!$B$39:$H$81,MATCH(AF$9,Volumes!$B$4:$H$4,0),FALSE),0)","v":0},{"$f":"IFERROR(VLOOKUP($B84,Volumes!$B$39:$H$81,MATCH(AG$9,Volumes!$B$4:$H$4,0),FALSE),0)","v":0}]
[null,{"$f":"Inputs!$C81","v":"4x20 Fluorescent"},"Old light no volumes",38.612000000000002,{"$f":"IF($C85=\"NA\",\"\",IF($B85=0,\"\",OFFSET('Combined Annuity Prices PL'!$B$10,MATCH($B85,'Combined Annuity Prices PL'!$B$10:$B$3811,0)+12,E$7)*'Master Data'!$J$37))","v":42.203936903838652},{"$f":"IF($C85=\"NA\",\"\",IF($B85=0,\"\",OFFSET('Combined Annuity Prices PL'!$B$10,MATCH($B85,'Combined Annuity Prices PL'!$B$10:$B$3811,0)+12,F$7)*'Master Data'!$J$37))","v":42.07865000211288},{"$f":"IF($C85=\"NA\",\"\",IF($B85=0,\"\",OFFSET('Combined Annuity Prices PL'!$B$10,MATCH($B85,'Combined Annuity Prices PL'!$B$10:$B$3811,0)+12,G$7)*'Master Data'!$J$37))","v":37.557880964841495},{"$f":"IF($C85=\"NA\",\"\",IF($B85=0,\"\",OFFSET('Combined Annuity Prices PL'!$B$10,MATCH($B85,'Combined Annuity Prices PL'!$B$10:$B$3811,0)+12,H$7)*'Master Data'!$J$37))","v":37.311483391447489},{"$f":"IF($C85=\"NA\",\"\",IF($B85=0,\"\",OFFSET('Combined Annuity Prices PL'!$B$10,MATCH($B85,'Combined Annuity Prices PL'!$B$10:$B$3811,0)+12,I$7)*'Master Data'!$J$37))","v":37.022279459963841},{"$f":"IF($C85=\"NA\",\"\",IF($B85=0,\"\",OFFSET('Combined Annuity Prices PL'!$B$10,MATCH($B85,'Combined Annuity Prices PL'!$B$10:$B$3811,0)+12,J$7)*'Master Data'!$J$37))","v":0},{"$f":"IF($C85=\"NA\",\"\",IF($B85=0,\"\",OFFSET('Combined Annuity Prices PL'!$B$10,MATCH($B85,'Combined Annuity Prices PL'!$B$10:$B$3811,0)+12,K$7)*'Master Data'!$J$37))","v":0},{"$f":"IF($C85=\"NA\",\"\",IF($B85=0,\"\",OFFSET('Combined Annuity Prices PL'!$B$10,MATCH($B85,'Combined Annuity Prices PL'!$B$10:$B$3811,0)+12,L$7)*'Master Data'!$J$37))","v":0},{"$f":"IF($C85=\"NA\",\"\",IF($B85=0,\"\",OFFSET('Combined Annuity Prices PL'!$B$10,MATCH($B85,'Combined Annuity Prices PL'!$B$10:$B$3811,0)+12,M$7)*'Master Data'!$J$37))","v":0},{"$f":"IF($C85=\"NA\",\"\",IF($B85=0,\"\",OFFSET('Combined Annuity Prices PL'!$B$10,MATCH($B85,'Combined Annuity Prices PL'!$B$10:$B$3811,0)+12,N$7)*'Master Data'!$J$37))","v":0},null,null,0,0,0,0,0,null,null,null,null,null,null,null,{"$f":"IFERROR(VLOOKUP($B85,Volumes!$B$39:$H$81,MATCH(AC$9,Volumes!$B$4:$H$4,0),FALSE),0)","v":0},{"$f":"IFERROR(VLOOKUP($B85,Volumes!$B$39:$H$81,MATCH(AD$9,Volumes!$B$4:$H$4,0),FALSE),0)","v":0},{"$f":"IFERROR(VLOOKUP($B85,Volumes!$B$39:$H$81,MATCH(AE$9,Volumes!$B$4:$H$4,0),FALSE),0)","v":0},{"$f":"IFERROR(VLOOKUP($B85,Volumes!$B$39:$H$81,MATCH(AF$9,Volumes!$B$4:$H$4,0),FALSE),0)","v":0},{"$f":"IFERROR(VLOOKUP($B85,Volumes!$B$39:$H$81,MATCH(AG$9,Volumes!$B$4:$H$4,0),FALSE),0)","v":0}]
[null,{"$f":"Inputs!$C82","v":"4x40W Fluorescent"},"Old light no volumes",47.878,{"$f":"IF($C86=\"NA\",\"\",IF($B86=0,\"\",OFFSET('Combined Annuity Prices PL'!$B$10,MATCH($B86,'Combined Annuity Prices PL'!$B$10:$B$3811,0)+12,E$7)*'Master Data'!$J$37))","v":48.741825058894868},{"$f":"IF($C86=\"NA\",\"\",IF($B86=0,\"\",OFFSET('Combined Annuity Prices PL'!$B$10,MATCH($B86,'Combined Annuity Prices PL'!$B$10:$B$3811,0)+12,F$7)*'Master Data'!$J$37))","v":48.637419307456732},{"$f":"IF($C86=\"NA\",\"\",IF($B86=0,\"\",OFFSET('Combined Annuity Prices PL'!$B$10,MATCH($B86,'Combined Annuity Prices PL'!$B$10:$B$3811,0)+12,G$7)*'Master Data'!$J$37))","v":44.119782442728486},{"$f":"IF($C86=\"NA\",\"\",IF($B86=0,\"\",OFFSET('Combined Annuity Prices PL'!$B$10,MATCH($B86,'Combined Annuity Prices PL'!$B$10:$B$3811,0)+12,H$7)*'Master Data'!$J$37))","v":43.877561099392011},{"$f":"IF($C86=\"NA\",\"\",IF($B86=0,\"\",OFFSET('Combined Annuity Prices PL'!$B$10,MATCH($B86,'Combined Annuity Prices PL'!$B$10:$B$3811,0)+12,I$7)*'Master Data'!$J$37))","v":43.574784420221398},{"$f":"IF($C86=\"NA\",\"\",IF($B86=0,\"\",OFFSET('Combined Annuity Prices PL'!$B$10,MATCH($B86,'Combined Annuity Prices PL'!$B$10:$B$3811,0)+12,J$7)*'Master Data'!$J$37))","v":0},{"$f":"IF($C86=\"NA\",\"\",IF($B86=0,\"\",OFFSET('Combined Annuity Prices PL'!$B$10,MATCH($B86,'Combined Annuity Prices PL'!$B$10:$B$3811,0)+12,K$7)*'Master Data'!$J$37))","v":0},{"$f":"IF($C86=\"NA\",\"\",IF($B86=0,\"\",OFFSET('Combined Annuity Prices PL'!$B$10,MATCH($B86,'Combined Annuity Prices PL'!$B$10:$B$3811,0)+12,L$7)*'Master Data'!$J$37))","v":0},{"$f":"IF($C86=\"NA\",\"\",IF($B86=0,\"\",OFFSET('Combined Annuity Prices PL'!$B$10,MATCH($B86,'Combined Annuity Prices PL'!$B$10:$B$3811,0)+12,M$7)*'Master Data'!$J$37))","v":0},{"$f":"IF($C86=\"NA\",\"\",IF($B86=0,\"\",OFFSET('Combined Annuity Prices PL'!$B$10,MATCH($B86,'Combined Annuity Prices PL'!$B$10:$B$3811,0)+12,N$7)*'Master Data'!$J$37))","v":0},null,null,0,0,0,0,0,null,null,null,null,null,null,null,{"$f":"IFERROR(VLOOKUP($B86,Volumes!$B$39:$H$81,MATCH(AC$9,Volumes!$B$4:$H$4,0),FALSE),0)","v":0},{"$f":"IFERROR(VLOOKUP($B86,Volumes!$B$39:$H$81,MATCH(AD$9,Volumes!$B$4:$H$4,0),FALSE),0)","v":0},{"$f":"IFERROR(VLOOKUP($B86,Volumes!$B$39:$H$81,MATCH(AE$9,Volumes!$B$4:$H$4,0),FALSE),0)","v":0},{"$f":"IFERROR(VLOOKUP($B86,Volumes!$B$39:$H$81,MATCH(AF$9,Volumes!$B$4:$H$4,0),FALSE),0)","v":0},{"$f":"IFERROR(VLOOKUP($B86,Volumes!$B$39:$H$81,MATCH(AG$9,Volumes!$B$4:$H$4,0),FALSE),0)","v":0}]
[null,{"$f":"Inputs!$C83","v":"100W Sodium Vapour"},"Offered",45.521000000000001,{"$f":"IF($C87=\"NA\",\"\",IF($B87=0,\"\",OFFSET('Combined Annuity Prices PL'!$B$10,MATCH($B87,'Combined Annuity Prices PL'!$B$10:$B$3811,0)+12,E$7)*'Master Data'!$J$37))","v":46.428193607025726},{"$f":"IF($C87=\"NA\",\"\",IF($B87=0,\"\",OFFSET('Combined Annuity Prices PL'!$B$10,MATCH($B87,'Combined Annuity Prices PL'!$B$10:$B$3811,0)+12,F$7)*'Master Data'!$J$37))","v":46.316479452986918},{"$f":"IF($C87=\"NA\",\"\",IF($B87=0,\"\",OFFSET('Combined Annuity Prices PL'!$B$10,MATCH($B87,'Combined Annuity Prices PL'!$B$10:$B$3811,0)+12,G$7)*'Master Data'!$J$37))","v":41.798842588258665},{"$f":"IF($C87=\"NA\",\"\",IF($B87=0,\"\",OFFSET('Combined Annuity Prices PL'!$B$10,MATCH($B87,'Combined Annuity Prices PL'!$B$10:$B$3811,0)+12,H$7)*'Master Data'!$J$37))","v":41.556621244922184},{"$f":"IF($C87=\"NA\",\"\",IF($B87=0,\"\",OFFSET('Combined Annuity Prices PL'!$B$10,MATCH($B87,'Combined Annuity Prices PL'!$B$10:$B$3811,0)+12,I$7)*'Master Data'!$J$37))","v":41.261152968352263},{"$f":"IF($C87=\"NA\",\"\",IF($B87=0,\"\",OFFSET('Combined Annuity Prices PL'!$B$10,MATCH($B87,'Combined Annuity Prices PL'!$B$10:$B$3811,0)+12,J$7)*'Master Data'!$J$37))","v":0},{"$f":"IF($C87=\"NA\",\"\",IF($B87=0,\"\",OFFSET('Combined Annuity Prices PL'!$B$10,MATCH($B87,'Combined Annuity Prices PL'!$B$10:$B$3811,0)+12,K$7)*'Master Data'!$J$37))","v":0},{"$f":"IF($C87=\"NA\",\"\",IF($B87=0,\"\",OFFSET('Combined Annuity Prices PL'!$B$10,MATCH($B87,'Combined Annuity Prices PL'!$B$10:$B$3811,0)+12,L$7)*'Master Data'!$J$37))","v":0},{"$f":"IF($C87=\"NA\",\"\",IF($B87=0,\"\",OFFSET('Combined Annuity Prices PL'!$B$10,MATCH($B87,'Combined Annuity Prices PL'!$B$10:$B$3811,0)+12,M$7)*'Master Data'!$J$37))","v":0},{"$f":"IF($C87=\"NA\",\"\",IF($B87=0,\"\",OFFSET('Combined Annuity Prices PL'!$B$10,MATCH($B87,'Combined Annuity Prices PL'!$B$10:$B$3811,0)+12,N$7)*'Master Data'!$J$37))","v":0},null,null,7.5447671739161087E-2,7.8779699901585454E-2,7.4757229969100614E-2,7.7964377117598516E-2,8.1548542726651421E-2,null,null,null,null,null,null,null,{"$f":"IFERROR(VLOOKUP($B87,Volumes!$B$39:$H$81,MATCH(AC$9,Volumes!$B$4:$H$4,0),FALSE),0)","v":444},{"$f":"IFERROR(VLOOKUP($B87,Volumes!$B$39:$H$81,MATCH(AD$9,Volumes!$B$4:$H$4,0),FALSE),0)","v":466},{"$f":"IFERROR(VLOOKUP($B87,Volumes!$B$39:$H$81,MATCH(AE$9,Volumes!$B$4:$H$4,0),FALSE),0)","v":490},{"$f":"IFERROR(VLOOKUP($B87,Volumes!$B$39:$H$81,MATCH(AF$9,Volumes!$B$4:$H$4,0),FALSE),0)","v":514},{"$f":"IFERROR(VLOOKUP($B87,Volumes!$B$39:$H$81,MATCH(AG$9,Volumes!$B$4:$H$4,0),FALSE),0)","v":540}]
[null,{"$f":"Inputs!$C84","v":0},"NA","",{"$f":"IF($C88=\"NA\",\"\",IF($B88=0,\"\",OFFSET('Combined Annuity Prices PL'!$B$10,MATCH($B88,'Combined Annuity Prices PL'!$B$10:$B$3811,0)+12,E$7)*'Master Data'!$J$37))","v":""},{"$f":"IF($C88=\"NA\",\"\",IF($B88=0,\"\",OFFSET('Combined Annuity Prices PL'!$B$10,MATCH($B88,'Combined Annuity Prices PL'!$B$10:$B$3811,0)+12,F$7)*'Master Data'!$J$37))","v":""},{"$f":"IF($C88=\"NA\",\"\",IF($B88=0,\"\",OFFSET('Combined Annuity Prices PL'!$B$10,MATCH($B88,'Combined Annuity Prices PL'!$B$10:$B$3811,0)+12,G$7)*'Master Data'!$J$37))","v":""},{"$f":"IF($C88=\"NA\",\"\",IF($B88=0,\"\",OFFSET('Combined Annuity Prices PL'!$B$10,MATCH($B88,'Combined Annuity Prices PL'!$B$10:$B$3811,0)+12,H$7)*'Master Data'!$J$37))","v":""},{"$f":"IF($C88=\"NA\",\"\",IF($B88=0,\"\",OFFSET('Combined Annuity Prices PL'!$B$10,MATCH($B88,'Combined Annuity Prices PL'!$B$10:$B$3811,0)+12,I$7)*'Master Data'!$J$37))","v":""},{"$f":"IF($C88=\"NA\",\"\",IF($B88=0,\"\",OFFSET('Combined Annuity Prices PL'!$B$10,MATCH($B88,'Combined Annuity Prices PL'!$B$10:$B$3811,0)+12,J$7)*'Master Data'!$J$37))","v":""},{"$f":"IF($C88=\"NA\",\"\",IF($B88=0,\"\",OFFSET('Combined Annuity Prices PL'!$B$10,MATCH($B88,'Combined Annuity Prices PL'!$B$10:$B$3811,0)+12,K$7)*'Master Data'!$J$37))","v":""},{"$f":"IF($C88=\"NA\",\"\",IF($B88=0,\"\",OFFSET('Combined Annuity Prices PL'!$B$10,MATCH($B88,'Combined Annuity Prices PL'!$B$10:$B$3811,0)+12,L$7)*'Master Data'!$J$37))","v":""},{"$f":"IF($C88=\"NA\",\"\",IF($B88=0,\"\",OFFSET('Combined Annuity Prices PL'!$B$10,MATCH($B88,'Combined Annuity Prices PL'!$B$10:$B$3811,0)+12,M$7)*'Master Data'!$J$37))","v":""},{"$f":"IF($C88=\"NA\",\"\",IF($B88=0,\"\",OFFSET('Combined Annuity Prices PL'!$B$10,MATCH($B88,'Combined Annuity Prices PL'!$B$10:$B$3811,0)+12,N$7)*'Master Data'!$J$37))","v":""},null,null,"","","","","",null,null,null,null,null,null,null,{"$f":"IFERROR(VLOOKUP($B88,Volumes!$B$39:$H$81,MATCH(AC$9,Volumes!$B$4:$H$4,0),FALSE),0)","v":0},{"$f":"IFERROR(VLOOKUP($B88,Volumes!$B$39:$H$81,MATCH(AD$9,Volumes!$B$4:$H$4,0),FALSE),0)","v":0},{"$f":"IFERROR(VLOOKUP($B88,Volumes!$B$39:$H$81,MATCH(AE$9,Volumes!$B$4:$H$4,0),FALSE),0)","v":0},{"$f":"IFERROR(VLOOKUP($B88,Volumes!$B$39:$H$81,MATCH(AF$9,Volumes!$B$4:$H$4,0),FALSE),0)","v":0},{"$f":"IFERROR(VLOOKUP($B88,Volumes!$B$39:$H$81,MATCH(AG$9,Volumes!$B$4:$H$4,0),FALSE),0)","v":0}]
[null,{"$f":"Inputs!$C85","v":"150W Sodium Vapour"},"Offered",47.881,{"$f":"IF($C89=\"NA\",\"\",IF($B89=0,\"\",OFFSET('Combined Annuity Prices PL'!$B$10,MATCH($B89,'Combined Annuity Prices PL'!$B$10:$B$3811,0)+12,E$7)*'Master Data'!$J$37))","v":48.810732854844034},{"$f":"IF($C89=\"NA\",\"\",IF($B89=0,\"\",OFFSET('Combined Annuity Prices PL'!$B$10,MATCH($B89,'Combined Annuity Prices PL'!$B$10:$B$3811,0)+12,F$7)*'Master Data'!$J$37))","v":48.70528304589152},{"$f":"IF($C89=\"NA\",\"\",IF($B89=0,\"\",OFFSET('Combined Annuity Prices PL'!$B$10,MATCH($B89,'Combined Annuity Prices PL'!$B$10:$B$3811,0)+12,G$7)*'Master Data'!$J$37))","v":44.187646181163274},{"$f":"IF($C89=\"NA\",\"\",IF($B89=0,\"\",OFFSET('Combined Annuity Prices PL'!$B$10,MATCH($B89,'Combined Annuity Prices PL'!$B$10:$B$3811,0)+12,H$7)*'Master Data'!$J$37))","v":43.945424837826792},{"$f":"IF($C89=\"NA\",\"\",IF($B89=0,\"\",OFFSET('Combined Annuity Prices PL'!$B$10,MATCH($B89,'Combined Annuity Prices PL'!$B$10:$B$3811,0)+12,I$7)*'Master Data'!$J$37))","v":43.643692216170571},{"$f":"IF($C89=\"NA\",\"\",IF($B89=0,\"\",OFFSET('Combined Annuity Prices PL'!$B$10,MATCH($B89,'Combined Annuity Prices PL'!$B$10:$B$3811,0)+12,J$7)*'Master Data'!$J$37))","v":0},{"$f":"IF($C89=\"NA\",\"\",IF($B89=0,\"\",OFFSET('Combined Annuity Prices PL'!$B$10,MATCH($B89,'Combined Annuity Prices PL'!$B$10:$B$3811,0)+12,K$7)*'Master Data'!$J$37))","v":0},{"$f":"IF($C89=\"NA\",\"\",IF($B89=0,\"\",OFFSET('Combined Annuity Prices PL'!$B$10,MATCH($B89,'Combined Annuity Prices PL'!$B$10:$B$3811,0)+12,L$7)*'Master Data'!$J$37))","v":0},{"$f":"IF($C89=\"NA\",\"\",IF($B89=0,\"\",OFFSET('Combined Annuity Prices PL'!$B$10,MATCH($B89,'Combined Annuity Prices PL'!$B$10:$B$3811,0)+12,M$7)*'Master Data'!$J$37))","v":0},{"$f":"IF($C89=\"NA\",\"\",IF($B89=0,\"\",OFFSET('Combined Annuity Prices PL'!$B$10,MATCH($B89,'Combined Annuity Prices PL'!$B$10:$B$3811,0)+12,N$7)*'Master Data'!$J$37))","v":0},null,null,0.95076083612773676,0.99340269406061255,0.92932364312989912,0.96368801035367124,1.0108088606987744,null,null,null,null,null,null,null,{"$f":"IFERROR(VLOOKUP($B89,Volumes!$B$39:$H$81,MATCH(AC$9,Volumes!$B$4:$H$4,0),FALSE),0)","v":5322},{"$f":"IFERROR(VLOOKUP($B89,Volumes!$B$39:$H$81,MATCH(AD$9,Volumes!$B$4:$H$4,0),FALSE),0)","v":5588},{"$f":"IFERROR(VLOOKUP($B89,Volumes!$B$39:$H$81,MATCH(AE$9,Volumes!$B$4:$H$4,0),FALSE),0)","v":5762},{"$f":"IFERROR(VLOOKUP($B89,Volumes!$B$39:$H$81,MATCH(AF$9,Volumes!$B$4:$H$4,0),FALSE),0)","v":6008},{"$f":"IFERROR(VLOOKUP($B89,Volumes!$B$39:$H$81,MATCH(AG$9,Volumes!$B$4:$H$4,0),FALSE),0)","v":6328}]
[null,{"$f":"Inputs!$C86","v":0},"NA","",{"$f":"IF($C90=\"NA\",\"\",IF($B90=0,\"\",OFFSET('Combined Annuity Prices PL'!$B$10,MATCH($B90,'Combined Annuity Prices PL'!$B$10:$B$3811,0)+12,E$7)*'Master Data'!$J$37))","v":""},{"$f":"IF($C90=\"NA\",\"\",IF($B90=0,\"\",OFFSET('Combined Annuity Prices PL'!$B$10,MATCH($B90,'Combined Annuity Prices PL'!$B$10:$B$3811,0)+12,F$7)*'Master Data'!$J$37))","v":""},{"$f":"IF($C90=\"NA\",\"\",IF($B90=0,\"\",OFFSET('Combined Annuity Prices PL'!$B$10,MATCH($B90,'Combined Annuity Prices PL'!$B$10:$B$3811,0)+12,G$7)*'Master Data'!$J$37))","v":""},{"$f":"IF($C90=\"NA\",\"\",IF($B90=0,\"\",OFFSET('Combined Annuity Prices PL'!$B$10,MATCH($B90,'Combined Annuity Prices PL'!$B$10:$B$3811,0)+12,H$7)*'Master Data'!$J$37))","v":""},{"$f":"IF($C90=\"NA\",\"\",IF($B90=0,\"\",OFFSET('Combined Annuity Prices PL'!$B$10,MATCH($B90,'Combined Annuity Prices PL'!$B$10:$B$3811,0)+12,I$7)*'Master Data'!$J$37))","v":""},{"$f":"IF($C90=\"NA\",\"\",IF($B90=0,\"\",OFFSET('Combined Annuity Prices PL'!$B$10,MATCH($B90,'Combined Annuity Prices PL'!$B$10:$B$3811,0)+12,J$7)*'Master Data'!$J$37))","v":""},{"$f":"IF($C90=\"NA\",\"\",IF($B90=0,\"\",OFFSET('Combined Annuity Prices PL'!$B$10,MATCH($B90,'Combined Annuity Prices PL'!$B$10:$B$3811,0)+12,K$7)*'Master Data'!$J$37))","v":""},{"$f":"IF($C90=\"NA\",\"\",IF($B90=0,\"\",OFFSET('Combined Annuity Prices PL'!$B$10,MATCH($B90,'Combined Annuity Prices PL'!$B$10:$B$3811,0)+12,L$7)*'Master Data'!$J$37))","v":""},{"$f":"IF($C90=\"NA\",\"\",IF($B90=0,\"\",OFFSET('Combined Annuity Prices PL'!$B$10,MATCH($B90,'Combined Annuity Prices PL'!$B$10:$B$3811,0)+12,M$7)*'Master Data'!$J$37))","v":""},{"$f":"IF($C90=\"NA\",\"\",IF($B90=0,\"\",OFFSET('Combined Annuity Prices PL'!$B$10,MATCH($B90,'Combined Annuity Prices PL'!$B$10:$B$3811,0)+12,N$7)*'Master Data'!$J$37))","v":""},null,null,"","","","","",null,null,null,null,null,null,null,{"$f":"IFERROR(VLOOKUP($B90,Volumes!$B$39:$H$81,MATCH(AC$9,Volumes!$B$4:$H$4,0),FALSE),0)","v":0},{"$f":"IFERROR(VLOOKUP($B90,Volumes!$B$39:$H$81,MATCH(AD$9,Volumes!$B$4:$H$4,0),FALSE),0)","v":0},{"$f":"IFERROR(VLOOKUP($B90,Volumes!$B$39:$H$81,MATCH(AE$9,Volumes!$B$4:$H$4,0),FALSE),0)","v":0},{"$f":"IFERROR(VLOOKUP($B90,Volumes!$B$39:$H$81,MATCH(AF$9,Volumes!$B$4:$H$4,0),FALSE),0)","v":0},{"$f":"IFERROR(VLOOKUP($B90,Volumes!$B$39:$H$81,MATCH(AG$9,Volumes!$B$4:$H$4,0),FALSE),0)","v":0}]
[null,{"$f":"Inputs!$C87","v":0},"NA","",{"$f":"IF($C91=\"NA\",\"\",IF($B91=0,\"\",OFFSET('Combined Annuity Prices PL'!$B$10,MATCH($B91,'Combined Annuity Prices PL'!$B$10:$B$3811,0)+12,E$7)*'Master Data'!$J$37))","v":""},{"$f":"IF($C91=\"NA\",\"\",IF($B91=0,\"\",OFFSET('Combined Annuity Prices PL'!$B$10,MATCH($B91,'Combined Annuity Prices PL'!$B$10:$B$3811,0)+12,F$7)*'Master Data'!$J$37))","v":""},{"$f":"IF($C91=\"NA\",\"\",IF($B91=0,\"\",OFFSET('Combined Annuity Prices PL'!$B$10,MATCH($B91,'Combined Annuity Prices PL'!$B$10:$B$3811,0)+12,G$7)*'Master Data'!$J$37))","v":""},{"$f":"IF($C91=\"NA\",\"\",IF($B91=0,\"\",OFFSET('Combined Annuity Prices PL'!$B$10,MATCH($B91,'Combined Annuity Prices PL'!$B$10:$B$3811,0)+12,H$7)*'Master Data'!$J$37))","v":""},{"$f":"IF($C91=\"NA\",\"\",IF($B91=0,\"\",OFFSET('Combined Annuity Prices PL'!$B$10,MATCH($B91,'Combined Annuity Prices PL'!$B$10:$B$3811,0)+12,I$7)*'Master Data'!$J$37))","v":""},{"$f":"IF($C91=\"NA\",\"\",IF($B91=0,\"\",OFFSET('Combined Annuity Prices PL'!$B$10,MATCH($B91,'Combined Annuity Prices PL'!$B$10:$B$3811,0)+12,J$7)*'Master Data'!$J$37))","v":""},{"$f":"IF($C91=\"NA\",\"\",IF($B91=0,\"\",OFFSET('Combined Annuity Prices PL'!$B$10,MATCH($B91,'Combined Annuity Prices PL'!$B$10:$B$3811,0)+12,K$7)*'Master Data'!$J$37))","v":""},{"$f":"IF($C91=\"NA\",\"\",IF($B91=0,\"\",OFFSET('Combined Annuity Prices PL'!$B$10,MATCH($B91,'Combined Annuity Prices PL'!$B$10:$B$3811,0)+12,L$7)*'Master Data'!$J$37))","v":""},{"$f":"IF($C91=\"NA\",\"\",IF($B91=0,\"\",OFFSET('Combined Annuity Prices PL'!$B$10,MATCH($B91,'Combined Annuity Prices PL'!$B$10:$B$3811,0)+12,M$7)*'Master Data'!$J$37))","v":""},{"$f":"IF($C91=\"NA\",\"\",IF($B91=0,\"\",OFFSET('Combined Annuity Prices PL'!$B$10,MATCH($B91,'Combined Annuity Prices PL'!$B$10:$B$3811,0)+12,N$7)*'Master Data'!$J$37))","v":""},null,null,"","","","","",null,null,null,null,null,null,null,{"$f":"IFERROR(VLOOKUP($B91,Volumes!$B$39:$H$81,MATCH(AC$9,Volumes!$B$4:$H$4,0),FALSE),0)","v":0},{"$f":"IFERROR(VLOOKUP($B91,Volumes!$B$39:$H$81,MATCH(AD$9,Volumes!$B$4:$H$4,0),FALSE),0)","v":0},{"$f":"IFERROR(VLOOKUP($B91,Volumes!$B$39:$H$81,MATCH(AE$9,Volumes!$B$4:$H$4,0),FALSE),0)","v":0},{"$f":"IFERROR(VLOOKUP($B91,Volumes!$B$39:$H$81,MATCH(AF$9,Volumes!$B$4:$H$4,0),FALSE),0)","v":0},{"$f":"IFERROR(VLOOKUP($B91,Volumes!$B$39:$H$81,MATCH(AG$9,Volumes!$B$4:$H$4,0),FALSE),0)","v":0}]
[null,{"$f":"Inputs!$C88","v":0},"NA","",{"$f":"IF($C92=\"NA\",\"\",IF($B92=0,\"\",OFFSET('Combined Annuity Prices PL'!$B$10,MATCH($B92,'Combined Annuity Prices PL'!$B$10:$B$3811,0)+12,E$7)*'Master Data'!$J$37))","v":""},{"$f":"IF($C92=\"NA\",\"\",IF($B92=0,\"\",OFFSET('Combined Annuity Prices PL'!$B$10,MATCH($B92,'Combined Annuity Prices PL'!$B$10:$B$3811,0)+12,F$7)*'Master Data'!$J$37))","v":""},{"$f":"IF($C92=\"NA\",\"\",IF($B92=0,\"\",OFFSET('Combined Annuity Prices PL'!$B$10,MATCH($B92,'Combined Annuity Prices PL'!$B$10:$B$3811,0)+12,G$7)*'Master Data'!$J$37))","v":""},{"$f":"IF($C92=\"NA\",\"\",IF($B92=0,\"\",OFFSET('Combined Annuity Prices PL'!$B$10,MATCH($B92,'Combined Annuity Prices PL'!$B$10:$B$3811,0)+12,H$7)*'Master Data'!$J$37))","v":""},{"$f":"IF($C92=\"NA\",\"\",IF($B92=0,\"\",OFFSET('Combined Annuity Prices PL'!$B$10,MATCH($B92,'Combined Annuity Prices PL'!$B$10:$B$3811,0)+12,I$7)*'Master Data'!$J$37))","v":""},{"$f":"IF($C92=\"NA\",\"\",IF($B92=0,\"\",OFFSET('Combined Annuity Prices PL'!$B$10,MATCH($B92,'Combined Annuity Prices PL'!$B$10:$B$3811,0)+12,J$7)*'Master Data'!$J$37))","v":""},{"$f":"IF($C92=\"NA\",\"\",IF($B92=0,\"\",OFFSET('Combined Annuity Prices PL'!$B$10,MATCH($B92,'Combined Annuity Prices PL'!$B$10:$B$3811,0)+12,K$7)*'Master Data'!$J$37))","v":""},{"$f":"IF($C92=\"NA\",\"\",IF($B92=0,\"\",OFFSET('Combined Annuity Prices PL'!$B$10,MATCH($B92,'Combined Annuity Prices PL'!$B$10:$B$3811,0)+12,L$7)*'Master Data'!$J$37))","v":""},{"$f":"IF($C92=\"NA\",\"\",IF($B92=0,\"\",OFFSET('Combined Annuity Prices PL'!$B$10,MATCH($B92,'Combined Annuity Prices PL'!$B$10:$B$3811,0)+12,M$7)*'Master Data'!$J$37))","v":""},{"$f":"IF($C92=\"NA\",\"\",IF($B92=0,\"\",OFFSET('Combined Annuity Prices PL'!$B$10,MATCH($B92,'Combined Annuity Prices PL'!$B$10:$B$3811,0)+12,N$7)*'Master Data'!$J$37))","v":""},null,null,"","","","","",null,null,null,null,null,null,null,{"$f":"IFERROR(VLOOKUP($B92,Volumes!$B$39:$H$81,MATCH(AC$9,Volumes!$B$4:$H$4,0),FALSE),0)","v":0},{"$f":"IFERROR(VLOOKUP($B92,Volumes!$B$39:$H$81,MATCH(AD$9,Volumes!$B$4:$H$4,0),FALSE),0)","v":0},{"$f":"IFERROR(VLOOKUP($B92,Volumes!$B$39:$H$81,MATCH(AE$9,Volumes!$B$4:$H$4,0),FALSE),0)","v":0},{"$f":"IFERROR(VLOOKUP($B92,Volumes!$B$39:$H$81,MATCH(AF$9,Volumes!$B$4:$H$4,0),FALSE),0)","v":0},{"$f":"IFERROR(VLOOKUP($B92,Volumes!$B$39:$H$81,MATCH(AG$9,Volumes!$B$4:$H$4,0),FALSE),0)","v":0}]
[null,{"$f":"Inputs!$C89","v":"250W Sodium Vapour"},"Offered",49.024000000000001,{"$f":"IF($C93=\"NA\",\"\",IF($B93=0,\"\",OFFSET('Combined Annuity Prices PL'!$B$10,MATCH($B93,'Combined Annuity Prices PL'!$B$10:$B$3811,0)+12,E$7)*'Master Data'!$J$37))","v":50.01975145649768},{"$f":"IF($C93=\"NA\",\"\",IF($B93=0,\"\",OFFSET('Combined Annuity Prices PL'!$B$10,MATCH($B93,'Combined Annuity Prices PL'!$B$10:$B$3811,0)+12,F$7)*'Master Data'!$J$37))","v":49.917433820088306},{"$f":"IF($C93=\"NA\",\"\",IF($B93=0,\"\",OFFSET('Combined Annuity Prices PL'!$B$10,MATCH($B93,'Combined Annuity Prices PL'!$B$10:$B$3811,0)+12,G$7)*'Master Data'!$J$37))","v":45.400841012874444},{"$f":"IF($C93=\"NA\",\"\",IF($B93=0,\"\",OFFSET('Combined Annuity Prices PL'!$B$10,MATCH($B93,'Combined Annuity Prices PL'!$B$10:$B$3811,0)+12,H$7)*'Master Data'!$J$37))","v":45.158619669537963},{"$f":"IF($C93=\"NA\",\"\",IF($B93=0,\"\",OFFSET('Combined Annuity Prices PL'!$B$10,MATCH($B93,'Combined Annuity Prices PL'!$B$10:$B$3811,0)+12,I$7)*'Master Data'!$J$37))","v":44.852710817824217},{"$f":"IF($C93=\"NA\",\"\",IF($B93=0,\"\",OFFSET('Combined Annuity Prices PL'!$B$10,MATCH($B93,'Combined Annuity Prices PL'!$B$10:$B$3811,0)+12,J$7)*'Master Data'!$J$37))","v":0},{"$f":"IF($C93=\"NA\",\"\",IF($B93=0,\"\",OFFSET('Combined Annuity Prices PL'!$B$10,MATCH($B93,'Combined Annuity Prices PL'!$B$10:$B$3811,0)+12,K$7)*'Master Data'!$J$37))","v":0},{"$f":"IF($C93=\"NA\",\"\",IF($B93=0,\"\",OFFSET('Combined Annuity Prices PL'!$B$10,MATCH($B93,'Combined Annuity Prices PL'!$B$10:$B$3811,0)+12,L$7)*'Master Data'!$J$37))","v":0},{"$f":"IF($C93=\"NA\",\"\",IF($B93=0,\"\",OFFSET('Combined Annuity Prices PL'!$B$10,MATCH($B93,'Combined Annuity Prices PL'!$B$10:$B$3811,0)+12,M$7)*'Master Data'!$J$37))","v":0},{"$f":"IF($C93=\"NA\",\"\",IF($B93=0,\"\",OFFSET('Combined Annuity Prices PL'!$B$10,MATCH($B93,'Combined Annuity Prices PL'!$B$10:$B$3811,0)+12,N$7)*'Master Data'!$J$37))","v":0},null,null,1.2110232005381198,1.2655517078973169,1.2085454173001604,1.2616008735698492,1.3198538096096226,null,null,null,null,null,null,null,{"$f":"IFERROR(VLOOKUP($B93,Volumes!$B$39:$H$81,MATCH(AC$9,Volumes!$B$4:$H$4,0),FALSE),0)","v":6615},{"$f":"IFERROR(VLOOKUP($B93,Volumes!$B$39:$H$81,MATCH(AD$9,Volumes!$B$4:$H$4,0),FALSE),0)","v":6946},{"$f":"IFERROR(VLOOKUP($B93,Volumes!$B$39:$H$81,MATCH(AE$9,Volumes!$B$4:$H$4,0),FALSE),0)","v":7293},{"$f":"IFERROR(VLOOKUP($B93,Volumes!$B$39:$H$81,MATCH(AF$9,Volumes!$B$4:$H$4,0),FALSE),0)","v":7654},{"$f":"IFERROR(VLOOKUP($B93,Volumes!$B$39:$H$81,MATCH(AG$9,Volumes!$B$4:$H$4,0),FALSE),0)","v":8040}]
[null,{"$f":"Inputs!$C90","v":0},"NA","",{"$f":"IF($C94=\"NA\",\"\",IF($B94=0,\"\",OFFSET('Combined Annuity Prices PL'!$B$10,MATCH($B94,'Combined Annuity Prices PL'!$B$10:$B$3811,0)+12,E$7)*'Master Data'!$J$37))","v":""},{"$f":"IF($C94=\"NA\",\"\",IF($B94=0,\"\",OFFSET('Combined Annuity Prices PL'!$B$10,MATCH($B94,'Combined Annuity Prices PL'!$B$10:$B$3811,0)+12,F$7)*'Master Data'!$J$37))","v":""},{"$f":"IF($C94=\"NA\",\"\",IF($B94=0,\"\",OFFSET('Combined Annuity Prices PL'!$B$10,MATCH($B94,'Combined Annuity Prices PL'!$B$10:$B$3811,0)+12,G$7)*'Master Data'!$J$37))","v":""},{"$f":"IF($C94=\"NA\",\"\",IF($B94=0,\"\",OFFSET('Combined Annuity Prices PL'!$B$10,MATCH($B94,'Combined Annuity Prices PL'!$B$10:$B$3811,0)+12,H$7)*'Master Data'!$J$37))","v":""},{"$f":"IF($C94=\"NA\",\"\",IF($B94=0,\"\",OFFSET('Combined Annuity Prices PL'!$B$10,MATCH($B94,'Combined Annuity Prices PL'!$B$10:$B$3811,0)+12,I$7)*'Master Data'!$J$37))","v":""},{"$f":"IF($C94=\"NA\",\"\",IF($B94=0,\"\",OFFSET('Combined Annuity Prices PL'!$B$10,MATCH($B94,'Combined Annuity Prices PL'!$B$10:$B$3811,0)+12,J$7)*'Master Data'!$J$37))","v":""},{"$f":"IF($C94=\"NA\",\"\",IF($B94=0,\"\",OFFSET('Combined Annuity Prices PL'!$B$10,MATCH($B94,'Combined Annuity Prices PL'!$B$10:$B$3811,0)+12,K$7)*'Master Data'!$J$37))","v":""},{"$f":"IF($C94=\"NA\",\"\",IF($B94=0,\"\",OFFSET('Combined Annuity Prices PL'!$B$10,MATCH($B94,'Combined Annuity Prices PL'!$B$10:$B$3811,0)+12,L$7)*'Master Data'!$J$37))","v":""},{"$f":"IF($C94=\"NA\",\"\",IF($B94=0,\"\",OFFSET('Combined Annuity Prices PL'!$B$10,MATCH($B94,'Combined Annuity Prices PL'!$B$10:$B$3811,0)+12,M$7)*'Master Data'!$J$37))","v":""},{"$f":"IF($C94=\"NA\",\"\",IF($B94=0,\"\",OFFSET('Combined Annuity Prices PL'!$B$10,MATCH($B94,'Combined Annuity Prices PL'!$B$10:$B$3811,0)+12,N$7)*'Master Data'!$J$37))","v":""},null,null,"","","","","",null,null,null,null,null,null,null,{"$f":"IFERROR(VLOOKUP($B94,Volumes!$B$39:$H$81,MATCH(AC$9,Volumes!$B$4:$H$4,0),FALSE),0)","v":0},{"$f":"IFERROR(VLOOKUP($B94,Volumes!$B$39:$H$81,MATCH(AD$9,Volumes!$B$4:$H$4,0),FALSE),0)","v":0},{"$f":"IFERROR(VLOOKUP($B94,Volumes!$B$39:$H$81,MATCH(AE$9,Volumes!$B$4:$H$4,0),FALSE),0)","v":0},{"$f":"IFERROR(VLOOKUP($B94,Volumes!$B$39:$H$81,MATCH(AF$9,Volumes!$B$4:$H$4,0),FALSE),0)","v":0},{"$f":"IFERROR(VLOOKUP($B94,Volumes!$B$39:$H$81,MATCH(AG$9,Volumes!$B$4:$H$4,0),FALSE),0)","v":0}]
[null,{"$f":"Inputs!$C91","v":0},"NA","",{"$f":"IF($C95=\"NA\",\"\",IF($B95=0,\"\",OFFSET('Combined Annuity Prices PL'!$B$10,MATCH($B95,'Combined Annuity Prices PL'!$B$10:$B$3811,0)+12,E$7)*'Master Data'!$J$37))","v":""},{"$f":"IF($C95=\"NA\",\"\",IF($B95=0,\"\",OFFSET('Combined Annuity Prices PL'!$B$10,MATCH($B95,'Combined Annuity Prices PL'!$B$10:$B$3811,0)+12,F$7)*'Master Data'!$J$37))","v":""},{"$f":"IF($C95=\"NA\",\"\",IF($B95=0,\"\",OFFSET('Combined Annuity Prices PL'!$B$10,MATCH($B95,'Combined Annuity Prices PL'!$B$10:$B$3811,0)+12,G$7)*'Master Data'!$J$37))","v":""},{"$f":"IF($C95=\"NA\",\"\",IF($B95=0,\"\",OFFSET('Combined Annuity Prices PL'!$B$10,MATCH($B95,'Combined Annuity Prices PL'!$B$10:$B$3811,0)+12,H$7)*'Master Data'!$J$37))","v":""},{"$f":"IF($C95=\"NA\",\"\",IF($B95=0,\"\",OFFSET('Combined Annuity Prices PL'!$B$10,MATCH($B95,'Combined Annuity Prices PL'!$B$10:$B$3811,0)+12,I$7)*'Master Data'!$J$37))","v":""},null,null,null,null,null,null,null,"","","","","",null,null,null,null,null,null,null,{"$f":"IFERROR(VLOOKUP($B95,Volumes!$B$39:$H$81,MATCH(AC$9,Volumes!$B$4:$H$4,0),FALSE),0)","v":0},{"$f":"IFERROR(VLOOKUP($B95,Volumes!$B$39:$H$81,MATCH(AD$9,Volumes!$B$4:$H$4,0),FALSE),0)","v":0},{"$f":"IFERROR(VLOOKUP($B95,Volumes!$B$39:$H$81,MATCH(AE$9,Volumes!$B$4:$H$4,0),FALSE),0)","v":0},{"$f":"IFERROR(VLOOKUP($B95,Volumes!$B$39:$H$81,MATCH(AF$9,Volumes!$B$4:$H$4,0),FALSE),0)","v":0},{"$f":"IFERROR(VLOOKUP($B95,Volumes!$B$39:$H$81,MATCH(AG$9,Volumes!$B$4:$H$4,0),FALSE),0)","v":0}]
[null,{"$f":"Inputs!$C92","v":0},"NA","",{"$f":"IF($C96=\"NA\",\"\",IF($B96=0,\"\",OFFSET('Combined Annuity Prices PL'!$B$10,MATCH($B96,'Combined Annuity Prices PL'!$B$10:$B$3811,0)+12,E$7)*'Master Data'!$J$37))","v":""},{"$f":"IF($C96=\"NA\",\"\",IF($B96=0,\"\",OFFSET('Combined Annuity Prices PL'!$B$10,MATCH($B96,'Combined Annuity Prices PL'!$B$10:$B$3811,0)+12,F$7)*'Master Data'!$J$37))","v":""},{"$f":"IF($C96=\"NA\",\"\",IF($B96=0,\"\",OFFSET('Combined Annuity Prices PL'!$B$10,MATCH($B96,'Combined Annuity Prices PL'!$B$10:$B$3811,0)+12,G$7)*'Master Data'!$J$37))","v":""},{"$f":"IF($C96=\"NA\",\"\",IF($B96=0,\"\",OFFSET('Combined Annuity Prices PL'!$B$10,MATCH($B96,'Combined Annuity Prices PL'!$B$10:$B$3811,0)+12,H$7)*'Master Data'!$J$37))","v":""},{"$f":"IF($C96=\"NA\",\"\",IF($B96=0,\"\",OFFSET('Combined Annuity Prices PL'!$B$10,MATCH($B96,'Combined Annuity Prices PL'!$B$10:$B$3811,0)+12,I$7)*'Master Data'!$J$37))","v":""},null,null,null,null,null,null,null,"","","","","",null,null,null,null,null,null,null,{"$f":"IFERROR(VLOOKUP($B96,Volumes!$B$39:$H$81,MATCH(AC$9,Volumes!$B$4:$H$4,0),FALSE),0)","v":0},{"$f":"IFERROR(VLOOKUP($B96,Volumes!$B$39:$H$81,MATCH(AD$9,Volumes!$B$4:$H$4,0),FALSE),0)","v":0},{"$f":"IFERROR(VLOOKUP($B96,Volumes!$B$39:$H$81,MATCH(AE$9,Volumes!$B$4:$H$4,0),FALSE),0)","v":0},{"$f":"IFERROR(VLOOKUP($B96,Volumes!$B$39:$H$81,MATCH(AF$9,Volumes!$B$4:$H$4,0),FALSE),0)","v":0},{"$f":"IFERROR(VLOOKUP($B96,Volumes!$B$39:$H$81,MATCH(AG$9,Volumes!$B$4:$H$4,0),FALSE),0)","v":0}]
[null,{"$f":"Inputs!$C93","v":"250W Sodium Vapour - Flood Light"},"Offered",53.133000000000003,{"$f":"IF($C97=\"NA\",\"\",IF($B97=0,\"\",OFFSET('Combined Annuity Prices PL'!$B$10,MATCH($B97,'Combined Annuity Prices PL'!$B$10:$B$3811,0)+12,E$7)*'Master Data'!$J$37))","v":53.747036782839217},{"$f":"IF($C97=\"NA\",\"\",IF($B97=0,\"\",OFFSET('Combined Annuity Prices PL'!$B$10,MATCH($B97,'Combined Annuity Prices PL'!$B$10:$B$3811,0)+12,F$7)*'Master Data'!$J$37))","v":53.655159721573654},{"$f":"IF($C97=\"NA\",\"\",IF($B97=0,\"\",OFFSET('Combined Annuity Prices PL'!$B$10,MATCH($B97,'Combined Annuity Prices PL'!$B$10:$B$3811,0)+12,G$7)*'Master Data'!$J$37))","v":49.138566914359792},{"$f":"IF($C97=\"NA\",\"\",IF($B97=0,\"\",OFFSET('Combined Annuity Prices PL'!$B$10,MATCH($B97,'Combined Annuity Prices PL'!$B$10:$B$3811,0)+12,H$7)*'Master Data'!$J$37))","v":48.896345571023311},{"$f":"IF($C97=\"NA\",\"\",IF($B97=0,\"\",OFFSET('Combined Annuity Prices PL'!$B$10,MATCH($B97,'Combined Annuity Prices PL'!$B$10:$B$3811,0)+12,I$7)*'Master Data'!$J$37))","v":48.579996144165754},null,null,null,null,null,null,null,7.0817095665068955E-3,7.441970653382265E-3,7.1742307694965301E-3,7.4958097760378728E-3,7.8233225790564527E-3,null,null,null,null,null,null,null,{"$f":"IFERROR(VLOOKUP($B97,Volumes!$B$39:$H$81,MATCH(AC$9,Volumes!$B$4:$H$4,0),FALSE),0)","v":36},{"$f":"IFERROR(VLOOKUP($B97,Volumes!$B$39:$H$81,MATCH(AD$9,Volumes!$B$4:$H$4,0),FALSE),0)","v":38},{"$f":"IFERROR(VLOOKUP($B97,Volumes!$B$39:$H$81,MATCH(AE$9,Volumes!$B$4:$H$4,0),FALSE),0)","v":40},{"$f":"IFERROR(VLOOKUP($B97,Volumes!$B$39:$H$81,MATCH(AF$9,Volumes!$B$4:$H$4,0),FALSE),0)","v":42},{"$f":"IFERROR(VLOOKUP($B97,Volumes!$B$39:$H$81,MATCH(AG$9,Volumes!$B$4:$H$4,0),FALSE),0)","v":44}]
[null,{"$f":"Inputs!$C94","v":"400W Sodium Vapour"},"Offered",49.887999999999998,{"$f":"IF($C98=\"NA\",\"\",IF($B98=0,\"\",OFFSET('Combined Annuity Prices PL'!$B$10,MATCH($B98,'Combined Annuity Prices PL'!$B$10:$B$3811,0)+12,E$7)*'Master Data'!$J$37))","v":50.600247434493731},{"$f":"IF($C98=\"NA\",\"\",IF($B98=0,\"\",OFFSET('Combined Annuity Prices PL'!$B$10,MATCH($B98,'Combined Annuity Prices PL'!$B$10:$B$3811,0)+12,F$7)*'Master Data'!$J$37))","v":50.500017913113119},{"$f":"IF($C98=\"NA\",\"\",IF($B98=0,\"\",OFFSET('Combined Annuity Prices PL'!$B$10,MATCH($B98,'Combined Annuity Prices PL'!$B$10:$B$3811,0)+12,G$7)*'Master Data'!$J$37))","v":45.982381048384873},{"$f":"IF($C98=\"NA\",\"\",IF($B98=0,\"\",OFFSET('Combined Annuity Prices PL'!$B$10,MATCH($B98,'Combined Annuity Prices PL'!$B$10:$B$3811,0)+12,H$7)*'Master Data'!$J$37))","v":45.740159705048391},{"$f":"IF($C98=\"NA\",\"\",IF($B98=0,\"\",OFFSET('Combined Annuity Prices PL'!$B$10,MATCH($B98,'Combined Annuity Prices PL'!$B$10:$B$3811,0)+12,I$7)*'Master Data'!$J$37))","v":45.432162738305884},null,null,null,null,null,null,null,0.1248227143813065,0.13050214629106693,0.12302356137590131,0.12755100935349795,0.13402306279149281,null,null,null,null,null,null,null,{"$f":"IFERROR(VLOOKUP($B98,Volumes!$B$39:$H$81,MATCH(AC$9,Volumes!$B$4:$H$4,0),FALSE),0)","v":674},{"$f":"IFERROR(VLOOKUP($B98,Volumes!$B$39:$H$81,MATCH(AD$9,Volumes!$B$4:$H$4,0),FALSE),0)","v":708},{"$f":"IFERROR(VLOOKUP($B98,Volumes!$B$39:$H$81,MATCH(AE$9,Volumes!$B$4:$H$4,0),FALSE),0)","v":733},{"$f":"IFERROR(VLOOKUP($B98,Volumes!$B$39:$H$81,MATCH(AF$9,Volumes!$B$4:$H$4,0),FALSE),0)","v":764},{"$f":"IFERROR(VLOOKUP($B98,Volumes!$B$39:$H$81,MATCH(AG$9,Volumes!$B$4:$H$4,0),FALSE),0)","v":806}]
[null,{"$f":"Inputs!$C95","v":0},"NA","",{"$f":"IF($C99=\"NA\",\"\",IF($B99=0,\"\",OFFSET('Combined Annuity Prices PL'!$B$10,MATCH($B99,'Combined Annuity Prices PL'!$B$10:$B$3811,0)+12,E$7)*'Master Data'!$J$37))","v":""},{"$f":"IF($C99=\"NA\",\"\",IF($B99=0,\"\",OFFSET('Combined Annuity Prices PL'!$B$10,MATCH($B99,'Combined Annuity Prices PL'!$B$10:$B$3811,0)+12,F$7)*'Master Data'!$J$37))","v":""},{"$f":"IF($C99=\"NA\",\"\",IF($B99=0,\"\",OFFSET('Combined Annuity Prices PL'!$B$10,MATCH($B99,'Combined Annuity Prices PL'!$B$10:$B$3811,0)+12,G$7)*'Master Data'!$J$37))","v":""},{"$f":"IF($C99=\"NA\",\"\",IF($B99=0,\"\",OFFSET('Combined Annuity Prices PL'!$B$10,MATCH($B99,'Combined Annuity Prices PL'!$B$10:$B$3811,0)+12,H$7)*'Master Data'!$J$37))","v":""},{"$f":"IF($C99=\"NA\",\"\",IF($B99=0,\"\",OFFSET('Combined Annuity Prices PL'!$B$10,MATCH($B99,'Combined Annuity Prices PL'!$B$10:$B$3811,0)+12,I$7)*'Master Data'!$J$37))","v":""},null,null,null,null,null,null,null,"","","","","",null,null,null,null,null,null,null,{"$f":"IFERROR(VLOOKUP($B99,Volumes!$B$39:$H$81,MATCH(AC$9,Volumes!$B$4:$H$4,0),FALSE),0)","v":0},{"$f":"IFERROR(VLOOKUP($B99,Volumes!$B$39:$H$81,MATCH(AD$9,Volumes!$B$4:$H$4,0),FALSE),0)","v":0},{"$f":"IFERROR(VLOOKUP($B99,Volumes!$B$39:$H$81,MATCH(AE$9,Volumes!$B$4:$H$4,0),FALSE),0)","v":0},{"$f":"IFERROR(VLOOKUP($B99,Volumes!$B$39:$H$81,MATCH(AF$9,Volumes!$B$4:$H$4,0),FALSE),0)","v":0},{"$f":"IFERROR(VLOOKUP($B99,Volumes!$B$39:$H$81,MATCH(AG$9,Volumes!$B$4:$H$4,0),FALSE),0)","v":0}]
[null,{"$f":"Inputs!$C96","v":"400W Sodium Vapour - Flood Light"},"Offered",52.598999999999997,{"$f":"IF($C100=\"NA\",\"\",IF($B100=0,\"\",OFFSET('Combined Annuity Prices PL'!$B$10,MATCH($B100,'Combined Annuity Prices PL'!$B$10:$B$3811,0)+12,E$7)*'Master Data'!$J$37))","v":53.057958823347505},{"$f":"IF($C100=\"NA\",\"\",IF($B100=0,\"\",OFFSET('Combined Annuity Prices PL'!$B$10,MATCH($B100,'Combined Annuity Prices PL'!$B$10:$B$3811,0)+12,F$7)*'Master Data'!$J$37))","v":52.965037704567557},{"$f":"IF($C100=\"NA\",\"\",IF($B100=0,\"\",OFFSET('Combined Annuity Prices PL'!$B$10,MATCH($B100,'Combined Annuity Prices PL'!$B$10:$B$3811,0)+12,G$7)*'Master Data'!$J$37))","v":48.447400839839318},{"$f":"IF($C100=\"NA\",\"\",IF($B100=0,\"\",OFFSET('Combined Annuity Prices PL'!$B$10,MATCH($B100,'Combined Annuity Prices PL'!$B$10:$B$3811,0)+12,H$7)*'Master Data'!$J$37))","v":48.205179496502836},{"$f":"IF($C100=\"NA\",\"\",IF($B100=0,\"\",OFFSET('Combined Annuity Prices PL'!$B$10,MATCH($B100,'Combined Annuity Prices PL'!$B$10:$B$3811,0)+12,I$7)*'Master Data'!$J$37))","v":47.890918184674035},null,null,null,null,null,null,null,6.990916654564268E-3,7.3462507296235208E-3,7.0733205226165413E-3,7.3898540168138849E-3,7.7123534644599062E-3,null,null,null,null,null,null,null,{"$f":"IFERROR(VLOOKUP($B100,Volumes!$B$39:$H$81,MATCH(AC$9,Volumes!$B$4:$H$4,0),FALSE),0)","v":36},{"$f":"IFERROR(VLOOKUP($B100,Volumes!$B$39:$H$81,MATCH(AD$9,Volumes!$B$4:$H$4,0),FALSE),0)","v":38},{"$f":"IFERROR(VLOOKUP($B100,Volumes!$B$39:$H$81,MATCH(AE$9,Volumes!$B$4:$H$4,0),FALSE),0)","v":40},{"$f":"IFERROR(VLOOKUP($B100,Volumes!$B$39:$H$81,MATCH(AF$9,Volumes!$B$4:$H$4,0),FALSE),0)","v":42},{"$f":"IFERROR(VLOOKUP($B100,Volumes!$B$39:$H$81,MATCH(AG$9,Volumes!$B$4:$H$4,0),FALSE),0)","v":44}]
[null,{"$f":"Inputs!$C97","v":"70W Sodium Vapour"},"Offered",35.881999999999998,{"$f":"IF($C101=\"NA\",\"\",IF($B101=0,\"\",OFFSET('Combined Annuity Prices PL'!$B$10,MATCH($B101,'Combined Annuity Prices PL'!$B$10:$B$3811,0)+12,E$7)*'Master Data'!$J$37))","v":39.512356631763438},{"$f":"IF($C101=\"NA\",\"\",IF($B101=0,\"\",OFFSET('Combined Annuity Prices PL'!$B$10,MATCH($B101,'Combined Annuity Prices PL'!$B$10:$B$3811,0)+12,F$7)*'Master Data'!$J$37))","v":39.379761327437009},{"$f":"IF($C101=\"NA\",\"\",IF($B101=0,\"\",OFFSET('Combined Annuity Prices PL'!$B$10,MATCH($B101,'Combined Annuity Prices PL'!$B$10:$B$3811,0)+12,G$7)*'Master Data'!$J$37))","v":34.858992290165617},{"$f":"IF($C101=\"NA\",\"\",IF($B101=0,\"\",OFFSET('Combined Annuity Prices PL'!$B$10,MATCH($B101,'Combined Annuity Prices PL'!$B$10:$B$3811,0)+12,H$7)*'Master Data'!$J$37))","v":34.612594716771611},{"$f":"IF($C101=\"NA\",\"\",IF($B101=0,\"\",OFFSET('Combined Annuity Prices PL'!$B$10,MATCH($B101,'Combined Annuity Prices PL'!$B$10:$B$3811,0)+12,I$7)*'Master Data'!$J$37))","v":34.330699187888634},null,null,null,null,null,null,null,3.4129193164251989E-2,3.5646559953595974E-2,3.3081183683367169E-2,3.4363384034810852E-2,3.5936002681914304E-2,null,null,null,null,null,null,null,{"$f":"IFERROR(VLOOKUP($B101,Volumes!$B$39:$H$81,MATCH(AC$9,Volumes!$B$4:$H$4,0),FALSE),0)","v":236},{"$f":"IFERROR(VLOOKUP($B101,Volumes!$B$39:$H$81,MATCH(AD$9,Volumes!$B$4:$H$4,0),FALSE),0)","v":248},{"$f":"IFERROR(VLOOKUP($B101,Volumes!$B$39:$H$81,MATCH(AE$9,Volumes!$B$4:$H$4,0),FALSE),0)","v":260},{"$f":"IFERROR(VLOOKUP($B101,Volumes!$B$39:$H$81,MATCH(AF$9,Volumes!$B$4:$H$4,0),FALSE),0)","v":272},{"$f":"IFERROR(VLOOKUP($B101,Volumes!$B$39:$H$81,MATCH(AG$9,Volumes!$B$4:$H$4,0),FALSE),0)","v":286}]
[null,{"$f":"Inputs!$C98","v":0},"NA","",{"$f":"IF($C102=\"NA\",\"\",IF($B102=0,\"\",OFFSET('Combined Annuity Prices PL'!$B$10,MATCH($B102,'Combined Annuity Prices PL'!$B$10:$B$3811,0)+12,E$7)*'Master Data'!$J$37))","v":""},{"$f":"IF($C102=\"NA\",\"\",IF($B102=0,\"\",OFFSET('Combined Annuity Prices PL'!$B$10,MATCH($B102,'Combined Annuity Prices PL'!$B$10:$B$3811,0)+12,F$7)*'Master Data'!$J$37))","v":""},{"$f":"IF($C102=\"NA\",\"\",IF($B102=0,\"\",OFFSET('Combined Annuity Prices PL'!$B$10,MATCH($B102,'Combined Annuity Prices PL'!$B$10:$B$3811,0)+12,G$7)*'Master Data'!$J$37))","v":""},{"$f":"IF($C102=\"NA\",\"\",IF($B102=0,\"\",OFFSET('Combined Annuity Prices PL'!$B$10,MATCH($B102,'Combined Annuity Prices PL'!$B$10:$B$3811,0)+12,H$7)*'Master Data'!$J$37))","v":""},{"$f":"IF($C102=\"NA\",\"\",IF($B102=0,\"\",OFFSET('Combined Annuity Prices PL'!$B$10,MATCH($B102,'Combined Annuity Prices PL'!$B$10:$B$3811,0)+12,I$7)*'Master Data'!$J$37))","v":""},null,null,null,null,null,null,null,"","","","","",null,null,null,null,null,null,null,{"$f":"IFERROR(VLOOKUP($B102,Volumes!$B$39:$H$81,MATCH(AC$9,Volumes!$B$4:$H$4,0),FALSE),0)","v":0},{"$f":"IFERROR(VLOOKUP($B102,Volumes!$B$39:$H$81,MATCH(AD$9,Volumes!$B$4:$H$4,0),FALSE),0)","v":0},{"$f":"IFERROR(VLOOKUP($B102,Volumes!$B$39:$H$81,MATCH(AE$9,Volumes!$B$4:$H$4,0),FALSE),0)","v":0},{"$f":"IFERROR(VLOOKUP($B102,Volumes!$B$39:$H$81,MATCH(AF$9,Volumes!$B$4:$H$4,0),FALSE),0)","v":0},{"$f":"IFERROR(VLOOKUP($B102,Volumes!$B$39:$H$81,MATCH(AG$9,Volumes!$B$4:$H$4,0),FALSE),0)","v":0}]
[null,{"$f":"Inputs!$C99","v":"100W Incandescent"},"Old light no volumes",41.975000000000001,{"$f":"IF($C103=\"NA\",\"\",IF($B103=0,\"\",OFFSET('Combined Annuity Prices PL'!$B$10,MATCH($B103,'Combined Annuity Prices PL'!$B$10:$B$3811,0)+12,E$7)*'Master Data'!$J$37))","v":43.084077388462148},{"$f":"IF($C103=\"NA\",\"\",IF($B103=0,\"\",OFFSET('Combined Annuity Prices PL'!$B$10,MATCH($B103,'Combined Annuity Prices PL'!$B$10:$B$3811,0)+12,F$7)*'Master Data'!$J$37))","v":42.962966716793915},{"$f":"IF($C103=\"NA\",\"\",IF($B103=0,\"\",OFFSET('Combined Annuity Prices PL'!$B$10,MATCH($B103,'Combined Annuity Prices PL'!$B$10:$B$3811,0)+12,G$7)*'Master Data'!$J$37))","v":38.445329852065669},{"$f":"IF($C103=\"NA\",\"\",IF($B103=0,\"\",OFFSET('Combined Annuity Prices PL'!$B$10,MATCH($B103,'Combined Annuity Prices PL'!$B$10:$B$3811,0)+12,H$7)*'Master Data'!$J$37))","v":38.203108508729187},{"$f":"IF($C103=\"NA\",\"\",IF($B103=0,\"\",OFFSET('Combined Annuity Prices PL'!$B$10,MATCH($B103,'Combined Annuity Prices PL'!$B$10:$B$3811,0)+12,I$7)*'Master Data'!$J$37))","v":37.915992692274308},null,null,null,null,null,null,null,0,0,0,0,0,null,null,null,null,null,null,null,{"$f":"IFERROR(VLOOKUP($B103,Volumes!$B$39:$H$81,MATCH(AC$9,Volumes!$B$4:$H$4,0),FALSE),0)","v":0},{"$f":"IFERROR(VLOOKUP($B103,Volumes!$B$39:$H$81,MATCH(AD$9,Volumes!$B$4:$H$4,0),FALSE),0)","v":0},{"$f":"IFERROR(VLOOKUP($B103,Volumes!$B$39:$H$81,MATCH(AE$9,Volumes!$B$4:$H$4,0),FALSE),0)","v":0},{"$f":"IFERROR(VLOOKUP($B103,Volumes!$B$39:$H$81,MATCH(AF$9,Volumes!$B$4:$H$4,0),FALSE),0)","v":0},{"$f":"IFERROR(VLOOKUP($B103,Volumes!$B$39:$H$81,MATCH(AG$9,Volumes!$B$4:$H$4,0),FALSE),0)","v":0}]
[null,{"$f":"Inputs!$C100","v":"60W Incandescent"},"Old light no volumes",32.786000000000001,{"$f":"IF($C104=\"NA\",\"\",IF($B104=0,\"\",OFFSET('Combined Annuity Prices PL'!$B$10,MATCH($B104,'Combined Annuity Prices PL'!$B$10:$B$3811,0)+12,E$7)*'Master Data'!$J$37))","v":36.620317316927014},{"$f":"IF($C104=\"NA\",\"\",IF($B104=0,\"\",OFFSET('Combined Annuity Prices PL'!$B$10,MATCH($B104,'Combined Annuity Prices PL'!$B$10:$B$3811,0)+12,F$7)*'Master Data'!$J$37))","v":36.479369552485522},{"$f":"IF($C104=\"NA\",\"\",IF($B104=0,\"\",OFFSET('Combined Annuity Prices PL'!$B$10,MATCH($B104,'Combined Annuity Prices PL'!$B$10:$B$3811,0)+12,G$7)*'Master Data'!$J$37))","v":31.958600515214133},{"$f":"IF($C104=\"NA\",\"\",IF($B104=0,\"\",OFFSET('Combined Annuity Prices PL'!$B$10,MATCH($B104,'Combined Annuity Prices PL'!$B$10:$B$3811,0)+12,H$7)*'Master Data'!$J$37))","v":31.712202941820127},{"$f":"IF($C104=\"NA\",\"\",IF($B104=0,\"\",OFFSET('Combined Annuity Prices PL'!$B$10,MATCH($B104,'Combined Annuity Prices PL'!$B$10:$B$3811,0)+12,I$7)*'Master Data'!$J$37))","v":31.437615815537825},null,null,null,null,null,null,null,0,0,0,0,0,null,null,null,null,null,null,null,{"$f":"IFERROR(VLOOKUP($B104,Volumes!$B$39:$H$81,MATCH(AC$9,Volumes!$B$4:$H$4,0),FALSE),0)","v":0},{"$f":"IFERROR(VLOOKUP($B104,Volumes!$B$39:$H$81,MATCH(AD$9,Volumes!$B$4:$H$4,0),FALSE),0)","v":0},{"$f":"IFERROR(VLOOKUP($B104,Volumes!$B$39:$H$81,MATCH(AE$9,Volumes!$B$4:$H$4,0),FALSE),0)","v":0},{"$f":"IFERROR(VLOOKUP($B104,Volumes!$B$39:$H$81,MATCH(AF$9,Volumes!$B$4:$H$4,0),FALSE),0)","v":0},{"$f":"IFERROR(VLOOKUP($B104,Volumes!$B$39:$H$81,MATCH(AG$9,Volumes!$B$4:$H$4,0),FALSE),0)","v":0}]
[null,{"$f":"Inputs!$C101","v":"18W LED"},"Offered",34.338999999999999,{"$f":"IF($C105=\"NA\",\"\",IF($B105=0,\"\",OFFSET('Combined Annuity Prices PL'!$B$10,MATCH($B105,'Combined Annuity Prices PL'!$B$10:$B$3811,0)+12,E$7)*'Master Data'!$J$37))","v":37.601731380445514},{"$f":"IF($C105=\"NA\",\"\",IF($B105=0,\"\",OFFSET('Combined Annuity Prices PL'!$B$10,MATCH($B105,'Combined Annuity Prices PL'!$B$10:$B$3811,0)+12,F$7)*'Master Data'!$J$37))","v":37.462871731032784},{"$f":"IF($C105=\"NA\",\"\",IF($B105=0,\"\",OFFSET('Combined Annuity Prices PL'!$B$10,MATCH($B105,'Combined Annuity Prices PL'!$B$10:$B$3811,0)+12,G$7)*'Master Data'!$J$37))","v":32.941058636247014},{"$f":"IF($C105=\"NA\",\"\",IF($B105=0,\"\",OFFSET('Combined Annuity Prices PL'!$B$10,MATCH($B105,'Combined Annuity Prices PL'!$B$10:$B$3811,0)+12,H$7)*'Master Data'!$J$37))","v":32.693617005338631},{"$f":"IF($C105=\"NA\",\"\",IF($B105=0,\"\",OFFSET('Combined Annuity Prices PL'!$B$10,MATCH($B105,'Combined Annuity Prices PL'!$B$10:$B$3811,0)+12,I$7)*'Master Data'!$J$37))","v":32.4148536489988},null,null,null,null,null,null,null,{"$f":"IF($C105=\"NA\",\"\",E105*AC105*Q$6/100/10^6)","v":4.9544041266875005E-2},{"$f":"IF($C105=\"NA\",\"\",F105*AD105*R$6/100/10^6)","v":4.9226213454577075E-2},{"$f":"IF($C105=\"NA\",\"\",G105*AE105*S$6/100/10^6)","v":4.3284551048028572E-2},{"$f":"IF($C105=\"NA\",\"\",H105*AF105*T$6/100/10^6)","v":4.2959412745014962E-2},{"$f":"IF($C105=\"NA\",\"\",I105*AG105*U$6/100/10^6)","v":4.2709811167920816E-2},null,null,null,null,null,null,null,{"$f":"IFERROR(VLOOKUP($B105,Volumes!$B$39:$H$81,MATCH(AC$9,Volumes!$B$4:$H$4,0),FALSE),0)","v":360},{"$f":"IFERROR(VLOOKUP($B105,Volumes!$B$39:$H$81,MATCH(AD$9,Volumes!$B$4:$H$4,0),FALSE),0)","v":360},{"$f":"IFERROR(VLOOKUP($B105,Volumes!$B$39:$H$81,MATCH(AE$9,Volumes!$B$4:$H$4,0),FALSE),0)","v":360},{"$f":"IFERROR(VLOOKUP($B105,Volumes!$B$39:$H$81,MATCH(AF$9,Volumes!$B$4:$H$4,0),FALSE),0)","v":360},{"$f":"IFERROR(VLOOKUP($B105,Volumes!$B$39:$H$81,MATCH(AG$9,Volumes!$B$4:$H$4,0),FALSE),0)","v":360}]
[null,{"$f":"Inputs!$C102","v":"18W LED Decorative - Bottom Pole Entry"},"Offered",48.088000000000001,{"$f":"IF($C106=\"NA\",\"\",IF($B106=0,\"\",OFFSET('Combined Annuity Prices PL'!$B$10,MATCH($B106,'Combined Annuity Prices PL'!$B$10:$B$3811,0)+12,E$7)*'Master Data'!$J$37))","v":50.720314048647587},{"$f":"IF($C106=\"NA\",\"\",IF($B106=0,\"\",OFFSET('Combined Annuity Prices PL'!$B$10,MATCH($B106,'Combined Annuity Prices PL'!$B$10:$B$3811,0)+12,F$7)*'Master Data'!$J$37))","v":50.616952354723836},{"$f":"IF($C106=\"NA\",\"\",IF($B106=0,\"\",OFFSET('Combined Annuity Prices PL'!$B$10,MATCH($B106,'Combined Annuity Prices PL'!$B$10:$B$3811,0)+12,G$7)*'Master Data'!$J$37))","v":46.095139259938058},{"$f":"IF($C106=\"NA\",\"\",IF($B106=0,\"\",OFFSET('Combined Annuity Prices PL'!$B$10,MATCH($B106,'Combined Annuity Prices PL'!$B$10:$B$3811,0)+12,H$7)*'Master Data'!$J$37))","v":45.847697629029668},{"$f":"IF($C106=\"NA\",\"\",IF($B106=0,\"\",OFFSET('Combined Annuity Prices PL'!$B$10,MATCH($B106,'Combined Annuity Prices PL'!$B$10:$B$3811,0)+12,I$7)*'Master Data'!$J$37))","v":45.533436317200881},null,null,null,null,null,null,null,6.6829085790498068E-3,7.020571291600196E-3,6.7298903319509568E-3,7.0284520465302477E-3,7.3327045845220304E-3,null,null,null,null,null,null,null,{"$f":"IFERROR(VLOOKUP($B106,Volumes!$B$39:$H$81,MATCH(AC$9,Volumes!$B$4:$H$4,0),FALSE),0)","v":36},{"$f":"IFERROR(VLOOKUP($B106,Volumes!$B$39:$H$81,MATCH(AD$9,Volumes!$B$4:$H$4,0),FALSE),0)","v":38},{"$f":"IFERROR(VLOOKUP($B106,Volumes!$B$39:$H$81,MATCH(AE$9,Volumes!$B$4:$H$4,0),FALSE),0)","v":40},{"$f":"IFERROR(VLOOKUP($B106,Volumes!$B$39:$H$81,MATCH(AF$9,Volumes!$B$4:$H$4,0),FALSE),0)","v":42},{"$f":"IFERROR(VLOOKUP($B106,Volumes!$B$39:$H$81,MATCH(AG$9,Volumes!$B$4:$H$4,0),FALSE),0)","v":44}]
[null,{"$f":"Inputs!$C103","v":"18W LED Decorative - Side Entry"},"Offered",48.088000000000001,{"$f":"IF($C107=\"NA\",\"\",IF($B107=0,\"\",OFFSET('Combined Annuity Prices PL'!$B$10,MATCH($B107,'Combined Annuity Prices PL'!$B$10:$B$3811,0)+12,E$7)*'Master Data'!$J$37))","v":50.720314048647587},{"$f":"IF($C107=\"NA\",\"\",IF($B107=0,\"\",OFFSET('Combined Annuity Prices PL'!$B$10,MATCH($B107,'Combined Annuity Prices PL'!$B$10:$B$3811,0)+12,F$7)*'Master Data'!$J$37))","v":50.616952354723836},{"$f":"IF($C107=\"NA\",\"\",IF($B107=0,\"\",OFFSET('Combined Annuity Prices PL'!$B$10,MATCH($B107,'Combined Annuity Prices PL'!$B$10:$B$3811,0)+12,G$7)*'Master Data'!$J$37))","v":46.095139259938058},{"$f":"IF($C107=\"NA\",\"\",IF($B107=0,\"\",OFFSET('Combined Annuity Prices PL'!$B$10,MATCH($B107,'Combined Annuity Prices PL'!$B$10:$B$3811,0)+12,H$7)*'Master Data'!$J$37))","v":45.847697629029668},{"$f":"IF($C107=\"NA\",\"\",IF($B107=0,\"\",OFFSET('Combined Annuity Prices PL'!$B$10,MATCH($B107,'Combined Annuity Prices PL'!$B$10:$B$3811,0)+12,I$7)*'Master Data'!$J$37))","v":45.533436317200881},null,null,null,null,null,null,null,6.6829085790498068E-3,7.020571291600196E-3,6.7298903319509568E-3,7.0284520465302477E-3,7.3327045845220304E-3,null,null,null,null,null,null,null,{"$f":"IFERROR(VLOOKUP($B107,Volumes!$B$39:$H$81,MATCH(AC$9,Volumes!$B$4:$H$4,0),FALSE),0)","v":36},{"$f":"IFERROR(VLOOKUP($B107,Volumes!$B$39:$H$81,MATCH(AD$9,Volumes!$B$4:$H$4,0),FALSE),0)","v":38},{"$f":"IFERROR(VLOOKUP($B107,Volumes!$B$39:$H$81,MATCH(AE$9,Volumes!$B$4:$H$4,0),FALSE),0)","v":40},{"$f":"IFERROR(VLOOKUP($B107,Volumes!$B$39:$H$81,MATCH(AF$9,Volumes!$B$4:$H$4,0),FALSE),0)","v":42},{"$f":"IFERROR(VLOOKUP($B107,Volumes!$B$39:$H$81,MATCH(AG$9,Volumes!$B$4:$H$4,0),FALSE),0)","v":44}]
[null,{"$f":"Inputs!$C104","v":"18W LED Decorative - Top Entry"},"Offered",48.088000000000001,{"$f":"IF($C108=\"NA\",\"\",IF($B108=0,\"\",OFFSET('Combined Annuity Prices PL'!$B$10,MATCH($B108,'Combined Annuity Prices PL'!$B$10:$B$3811,0)+12,E$7)*'Master Data'!$J$37))","v":50.720314048647587},{"$f":"IF($C108=\"NA\",\"\",IF($B108=0,\"\",OFFSET('Combined Annuity Prices PL'!$B$10,MATCH($B108,'Combined Annuity Prices PL'!$B$10:$B$3811,0)+12,F$7)*'Master Data'!$J$37))","v":50.616952354723836},{"$f":"IF($C108=\"NA\",\"\",IF($B108=0,\"\",OFFSET('Combined Annuity Prices PL'!$B$10,MATCH($B108,'Combined Annuity Prices PL'!$B$10:$B$3811,0)+12,G$7)*'Master Data'!$J$37))","v":46.095139259938058},{"$f":"IF($C108=\"NA\",\"\",IF($B108=0,\"\",OFFSET('Combined Annuity Prices PL'!$B$10,MATCH($B108,'Combined Annuity Prices PL'!$B$10:$B$3811,0)+12,H$7)*'Master Data'!$J$37))","v":45.847697629029668},{"$f":"IF($C108=\"NA\",\"\",IF($B108=0,\"\",OFFSET('Combined Annuity Prices PL'!$B$10,MATCH($B108,'Combined Annuity Prices PL'!$B$10:$B$3811,0)+12,I$7)*'Master Data'!$J$37))","v":45.533436317200881},null,null,null,null,null,null,null,6.6829085790498068E-3,7.020571291600196E-3,6.7298903319509568E-3,7.0284520465302477E-3,7.3327045845220304E-3,null,null,null,null,null,null,null,{"$f":"IFERROR(VLOOKUP($B108,Volumes!$B$39:$H$81,MATCH(AC$9,Volumes!$B$4:$H$4,0),FALSE),0)","v":36},{"$f":"IFERROR(VLOOKUP($B108,Volumes!$B$39:$H$81,MATCH(AD$9,Volumes!$B$4:$H$4,0),FALSE),0)","v":38},{"$f":"IFERROR(VLOOKUP($B108,Volumes!$B$39:$H$81,MATCH(AE$9,Volumes!$B$4:$H$4,0),FALSE),0)","v":40},{"$f":"IFERROR(VLOOKUP($B108,Volumes!$B$39:$H$81,MATCH(AF$9,Volumes!$B$4:$H$4,0),FALSE),0)","v":42},{"$f":"IFERROR(VLOOKUP($B108,Volumes!$B$39:$H$81,MATCH(AG$9,Volumes!$B$4:$H$4,0),FALSE),0)","v":44}]
[null,{"$f":"Inputs!$C105","v":"25W LED"},"Offered",34.338999999999999,{"$f":"IF($C109=\"NA\",\"\",IF($B109=0,\"\",OFFSET('Combined Annuity Prices PL'!$B$10,MATCH($B109,'Combined Annuity Prices PL'!$B$10:$B$3811,0)+12,E$7)*'Master Data'!$J$37))","v":37.832468091123793},{"$f":"IF($C109=\"NA\",\"\",IF($B109=0,\"\",OFFSET('Combined Annuity Prices PL'!$B$10,MATCH($B109,'Combined Annuity Prices PL'!$B$10:$B$3811,0)+12,F$7)*'Master Data'!$J$37))","v":37.693608441711071},{"$f":"IF($C109=\"NA\",\"\",IF($B109=0,\"\",OFFSET('Combined Annuity Prices PL'!$B$10,MATCH($B109,'Combined Annuity Prices PL'!$B$10:$B$3811,0)+12,G$7)*'Master Data'!$J$37))","v":33.1717953469253},{"$f":"IF($C109=\"NA\",\"\",IF($B109=0,\"\",OFFSET('Combined Annuity Prices PL'!$B$10,MATCH($B109,'Combined Annuity Prices PL'!$B$10:$B$3811,0)+12,H$7)*'Master Data'!$J$37))","v":32.924353716016917},{"$f":"IF($C109=\"NA\",\"\",IF($B109=0,\"\",OFFSET('Combined Annuity Prices PL'!$B$10,MATCH($B109,'Combined Annuity Prices PL'!$B$10:$B$3811,0)+12,I$7)*'Master Data'!$J$37))","v":32.645590359677087},null,null,null,null,null,null,null,2.9078034974837747E-3,2.8892150870571537E-3,2.5426181133418242E-3,2.5236517123326968E-3,2.5091400750447811E-3,null,null,null,null,null,null,null,{"$f":"IFERROR(VLOOKUP($B109,Volumes!$B$39:$H$81,MATCH(AC$9,Volumes!$B$4:$H$4,0),FALSE),0)","v":21},{"$f":"IFERROR(VLOOKUP($B109,Volumes!$B$39:$H$81,MATCH(AD$9,Volumes!$B$4:$H$4,0),FALSE),0)","v":21},{"$f":"IFERROR(VLOOKUP($B109,Volumes!$B$39:$H$81,MATCH(AE$9,Volumes!$B$4:$H$4,0),FALSE),0)","v":21},{"$f":"IFERROR(VLOOKUP($B109,Volumes!$B$39:$H$81,MATCH(AF$9,Volumes!$B$4:$H$4,0),FALSE),0)","v":21},{"$f":"IFERROR(VLOOKUP($B109,Volumes!$B$39:$H$81,MATCH(AG$9,Volumes!$B$4:$H$4,0),FALSE),0)","v":21}]
[null,{"$f":"Inputs!$C106","v":"25W LED Decorative - Bottom Pole Entry"},"Offered",48.088000000000001,{"$f":"IF($C110=\"NA\",\"\",IF($B110=0,\"\",OFFSET('Combined Annuity Prices PL'!$B$10,MATCH($B110,'Combined Annuity Prices PL'!$B$10:$B$3811,0)+12,E$7)*'Master Data'!$J$37))","v":50.950006701811489},{"$f":"IF($C110=\"NA\",\"\",IF($B110=0,\"\",OFFSET('Combined Annuity Prices PL'!$B$10,MATCH($B110,'Combined Annuity Prices PL'!$B$10:$B$3811,0)+12,F$7)*'Master Data'!$J$37))","v":50.847689065402115},{"$f":"IF($C110=\"NA\",\"\",IF($B110=0,\"\",OFFSET('Combined Annuity Prices PL'!$B$10,MATCH($B110,'Combined Annuity Prices PL'!$B$10:$B$3811,0)+12,G$7)*'Master Data'!$J$37))","v":46.325875970616352},{"$f":"IF($C110=\"NA\",\"\",IF($B110=0,\"\",OFFSET('Combined Annuity Prices PL'!$B$10,MATCH($B110,'Combined Annuity Prices PL'!$B$10:$B$3811,0)+12,H$7)*'Master Data'!$J$37))","v":46.078434339707961},{"$f":"IF($C110=\"NA\",\"\",IF($B110=0,\"\",OFFSET('Combined Annuity Prices PL'!$B$10,MATCH($B110,'Combined Annuity Prices PL'!$B$10:$B$3811,0)+12,I$7)*'Master Data'!$J$37))","v":45.763128970364782},null,null,null,null,null,null,null,6.7131728830306832E-3,7.0525744733712743E-3,6.7635778917099869E-3,7.0638239842772304E-3,7.3696942893875447E-3,null,null,null,null,null,null,null,{"$f":"IFERROR(VLOOKUP($B110,Volumes!$B$39:$H$81,MATCH(AC$9,Volumes!$B$4:$H$4,0),FALSE),0)","v":36},{"$f":"IFERROR(VLOOKUP($B110,Volumes!$B$39:$H$81,MATCH(AD$9,Volumes!$B$4:$H$4,0),FALSE),0)","v":38},{"$f":"IFERROR(VLOOKUP($B110,Volumes!$B$39:$H$81,MATCH(AE$9,Volumes!$B$4:$H$4,0),FALSE),0)","v":40},{"$f":"IFERROR(VLOOKUP($B110,Volumes!$B$39:$H$81,MATCH(AF$9,Volumes!$B$4:$H$4,0),FALSE),0)","v":42},{"$f":"IFERROR(VLOOKUP($B110,Volumes!$B$39:$H$81,MATCH(AG$9,Volumes!$B$4:$H$4,0),FALSE),0)","v":44}]
[null,{"$f":"Inputs!$C107","v":"25W LED Decorative - Side Entry"},"Offered",48.088000000000001,{"$f":"IF($C111=\"NA\",\"\",IF($B111=0,\"\",OFFSET('Combined Annuity Prices PL'!$B$10,MATCH($B111,'Combined Annuity Prices PL'!$B$10:$B$3811,0)+12,E$7)*'Master Data'!$J$37))","v":50.950006701811489},{"$f":"IF($C111=\"NA\",\"\",IF($B111=0,\"\",OFFSET('Combined Annuity Prices PL'!$B$10,MATCH($B111,'Combined Annuity Prices PL'!$B$10:$B$3811,0)+12,F$7)*'Master Data'!$J$37))","v":50.847689065402115},{"$f":"IF($C111=\"NA\",\"\",IF($B111=0,\"\",OFFSET('Combined Annuity Prices PL'!$B$10,MATCH($B111,'Combined Annuity Prices PL'!$B$10:$B$3811,0)+12,G$7)*'Master Data'!$J$37))","v":46.325875970616352},{"$f":"IF($C111=\"NA\",\"\",IF($B111=0,\"\",OFFSET('Combined Annuity Prices PL'!$B$10,MATCH($B111,'Combined Annuity Prices PL'!$B$10:$B$3811,0)+12,H$7)*'Master Data'!$J$37))","v":46.078434339707961},{"$f":"IF($C111=\"NA\",\"\",IF($B111=0,\"\",OFFSET('Combined Annuity Prices PL'!$B$10,MATCH($B111,'Combined Annuity Prices PL'!$B$10:$B$3811,0)+12,I$7)*'Master Data'!$J$37))","v":45.763128970364782},null,null,null,null,null,null,null,6.7131728830306832E-3,7.0525744733712743E-3,6.7635778917099869E-3,7.0638239842772304E-3,7.3696942893875447E-3,null,null,null,null,null,null,null,{"$f":"IFERROR(VLOOKUP($B111,Volumes!$B$39:$H$81,MATCH(AC$9,Volumes!$B$4:$H$4,0),FALSE),0)","v":36},{"$f":"IFERROR(VLOOKUP($B111,Volumes!$B$39:$H$81,MATCH(AD$9,Volumes!$B$4:$H$4,0),FALSE),0)","v":38},{"$f":"IFERROR(VLOOKUP($B111,Volumes!$B$39:$H$81,MATCH(AE$9,Volumes!$B$4:$H$4,0),FALSE),0)","v":40},{"$f":"IFERROR(VLOOKUP($B111,Volumes!$B$39:$H$81,MATCH(AF$9,Volumes!$B$4:$H$4,0),FALSE),0)","v":42},{"$f":"IFERROR(VLOOKUP($B111,Volumes!$B$39:$H$81,MATCH(AG$9,Volumes!$B$4:$H$4,0),FALSE),0)","v":44}]
[null,{"$f":"Inputs!$C108","v":"25W LED Decorative - Top Entry"},"Offered",48.088000000000001,{"$f":"IF($C112=\"NA\",\"\",IF($B112=0,\"\",OFFSET('Combined Annuity Prices PL'!$B$10,MATCH($B112,'Combined Annuity Prices PL'!$B$10:$B$3811,0)+12,E$7)*'Master Data'!$J$37))","v":50.950006701811489},{"$f":"IF($C112=\"NA\",\"\",IF($B112=0,\"\",OFFSET('Combined Annuity Prices PL'!$B$10,MATCH($B112,'Combined Annuity Prices PL'!$B$10:$B$3811,0)+12,F$7)*'Master Data'!$J$37))","v":50.847689065402115},{"$f":"IF($C112=\"NA\",\"\",IF($B112=0,\"\",OFFSET('Combined Annuity Prices PL'!$B$10,MATCH($B112,'Combined Annuity Prices PL'!$B$10:$B$3811,0)+12,G$7)*'Master Data'!$J$37))","v":46.325875970616352},{"$f":"IF($C112=\"NA\",\"\",IF($B112=0,\"\",OFFSET('Combined Annuity Prices PL'!$B$10,MATCH($B112,'Combined Annuity Prices PL'!$B$10:$B$3811,0)+12,H$7)*'Master Data'!$J$37))","v":46.078434339707961},{"$f":"IF($C112=\"NA\",\"\",IF($B112=0,\"\",OFFSET('Combined Annuity Prices PL'!$B$10,MATCH($B112,'Combined Annuity Prices PL'!$B$10:$B$3811,0)+12,I$7)*'Master Data'!$J$37))","v":45.763128970364782},null,null,null,null,null,null,null,6.7131728830306832E-3,7.0525744733712743E-3,6.7635778917099869E-3,7.0638239842772304E-3,7.3696942893875447E-3,null,null,null,null,null,null,null,{"$f":"IFERROR(VLOOKUP($B112,Volumes!$B$39:$H$81,MATCH(AC$9,Volumes!$B$4:$H$4,0),FALSE),0)","v":36},{"$f":"IFERROR(VLOOKUP($B112,Volumes!$B$39:$H$81,MATCH(AD$9,Volumes!$B$4:$H$4,0),FALSE),0)","v":38},{"$f":"IFERROR(VLOOKUP($B112,Volumes!$B$39:$H$81,MATCH(AE$9,Volumes!$B$4:$H$4,0),FALSE),0)","v":40},{"$f":"IFERROR(VLOOKUP($B112,Volumes!$B$39:$H$81,MATCH(AF$9,Volumes!$B$4:$H$4,0),FALSE),0)","v":42},{"$f":"IFERROR(VLOOKUP($B112,Volumes!$B$39:$H$81,MATCH(AG$9,Volumes!$B$4:$H$4,0),FALSE),0)","v":44}]
[null,{"$f":"Inputs!$C109","v":"30W LED"},"Not Offered",34.338999999999999,{"$f":"IF($C113=\"NA\",\"\",IF($B113=0,\"\",OFFSET('Combined Annuity Prices PL'!$B$10,MATCH($B113,'Combined Annuity Prices PL'!$B$10:$B$3811,0)+12,E$7)*'Master Data'!$J$37))","v":37.832468091123793},{"$f":"IF($C113=\"NA\",\"\",IF($B113=0,\"\",OFFSET('Combined Annuity Prices PL'!$B$10,MATCH($B113,'Combined Annuity Prices PL'!$B$10:$B$3811,0)+12,F$7)*'Master Data'!$J$37))","v":37.693608441711071},{"$f":"IF($C113=\"NA\",\"\",IF($B113=0,\"\",OFFSET('Combined Annuity Prices PL'!$B$10,MATCH($B113,'Combined Annuity Prices PL'!$B$10:$B$3811,0)+12,G$7)*'Master Data'!$J$37))","v":33.1717953469253},{"$f":"IF($C113=\"NA\",\"\",IF($B113=0,\"\",OFFSET('Combined Annuity Prices PL'!$B$10,MATCH($B113,'Combined Annuity Prices PL'!$B$10:$B$3811,0)+12,H$7)*'Master Data'!$J$37))","v":32.924353716016917},{"$f":"IF($C113=\"NA\",\"\",IF($B113=0,\"\",OFFSET('Combined Annuity Prices PL'!$B$10,MATCH($B113,'Combined Annuity Prices PL'!$B$10:$B$3811,0)+12,I$7)*'Master Data'!$J$37))","v":32.645590359677087},null,null,null,null,null,null,null,0,0,0,0,0,null,null,null,null,null,null,null,{"$f":"IFERROR(VLOOKUP($B113,Volumes!$B$39:$H$81,MATCH(AC$9,Volumes!$B$4:$H$4,0),FALSE),0)","v":0},{"$f":"IFERROR(VLOOKUP($B113,Volumes!$B$39:$H$81,MATCH(AD$9,Volumes!$B$4:$H$4,0),FALSE),0)","v":0},{"$f":"IFERROR(VLOOKUP($B113,Volumes!$B$39:$H$81,MATCH(AE$9,Volumes!$B$4:$H$4,0),FALSE),0)","v":0},{"$f":"IFERROR(VLOOKUP($B113,Volumes!$B$39:$H$81,MATCH(AF$9,Volumes!$B$4:$H$4,0),FALSE),0)","v":0},{"$f":"IFERROR(VLOOKUP($B113,Volumes!$B$39:$H$81,MATCH(AG$9,Volumes!$B$4:$H$4,0),FALSE),0)","v":0}]
[null,{"$f":"Inputs!$C110","v":"88 LED Light"},"Not Offered",34.338999999999999,{"$f":"IF($C114=\"NA\",\"\",IF($B114=0,\"\",OFFSET('Combined Annuity Prices PL'!$B$10,MATCH($B114,'Combined Annuity Prices PL'!$B$10:$B$3811,0)+12,E$7)*'Master Data'!$J$37))","v":37.832468091123793},{"$f":"IF($C114=\"NA\",\"\",IF($B114=0,\"\",OFFSET('Combined Annuity Prices PL'!$B$10,MATCH($B114,'Combined Annuity Prices PL'!$B$10:$B$3811,0)+12,F$7)*'Master Data'!$J$37))","v":37.693608441711071},{"$f":"IF($C114=\"NA\",\"\",IF($B114=0,\"\",OFFSET('Combined Annuity Prices PL'!$B$10,MATCH($B114,'Combined Annuity Prices PL'!$B$10:$B$3811,0)+12,G$7)*'Master Data'!$J$37))","v":33.1717953469253},{"$f":"IF($C114=\"NA\",\"\",IF($B114=0,\"\",OFFSET('Combined Annuity Prices PL'!$B$10,MATCH($B114,'Combined Annuity Prices PL'!$B$10:$B$3811,0)+12,H$7)*'Master Data'!$J$37))","v":32.924353716016917},{"$f":"IF($C114=\"NA\",\"\",IF($B114=0,\"\",OFFSET('Combined Annuity Prices PL'!$B$10,MATCH($B114,'Combined Annuity Prices PL'!$B$10:$B$3811,0)+12,I$7)*'Master Data'!$J$37))","v":32.645590359677087},null,null,null,null,null,null,null,0,0,0,0,0,null,null,null,null,null,null,null,{"$f":"IFERROR(VLOOKUP($B114,Volumes!$B$39:$H$81,MATCH(AC$9,Volumes!$B$4:$H$4,0),FALSE),0)","v":0},{"$f":"IFERROR(VLOOKUP($B114,Volumes!$B$39:$H$81,MATCH(AD$9,Volumes!$B$4:$H$4,0),FALSE),0)","v":0},{"$f":"IFERROR(VLOOKUP($B114,Volumes!$B$39:$H$81,MATCH(AE$9,Volumes!$B$4:$H$4,0),FALSE),0)","v":0},{"$f":"IFERROR(VLOOKUP($B114,Volumes!$B$39:$H$81,MATCH(AF$9,Volumes!$B$4:$H$4,0),FALSE),0)","v":0},{"$f":"IFERROR(VLOOKUP($B114,Volumes!$B$39:$H$81,MATCH(AG$9,Volumes!$B$4:$H$4,0),FALSE),0)","v":0}]
[null,{"$f":"Inputs!$C111","v":"100W Metal Halide"},"Offered",45.676000000000002,{"$f":"IF($C115=\"NA\",\"\",IF($B115=0,\"\",OFFSET('Combined Annuity Prices PL'!$B$10,MATCH($B115,'Combined Annuity Prices PL'!$B$10:$B$3811,0)+12,E$7)*'Master Data'!$J$37))","v":46.569141371467211},{"$f":"IF($C115=\"NA\",\"\",IF($B115=0,\"\",OFFSET('Combined Annuity Prices PL'!$B$10,MATCH($B115,'Combined Annuity Prices PL'!$B$10:$B$3811,0)+12,F$7)*'Master Data'!$J$37))","v":46.457427217428403},{"$f":"IF($C115=\"NA\",\"\",IF($B115=0,\"\",OFFSET('Combined Annuity Prices PL'!$B$10,MATCH($B115,'Combined Annuity Prices PL'!$B$10:$B$3811,0)+12,G$7)*'Master Data'!$J$37))","v":41.939790352700157},{"$f":"IF($C115=\"NA\",\"\",IF($B115=0,\"\",OFFSET('Combined Annuity Prices PL'!$B$10,MATCH($B115,'Combined Annuity Prices PL'!$B$10:$B$3811,0)+12,H$7)*'Master Data'!$J$37))","v":41.697569009363676},{"$f":"IF($C115=\"NA\",\"\",IF($B115=0,\"\",OFFSET('Combined Annuity Prices PL'!$B$10,MATCH($B115,'Combined Annuity Prices PL'!$B$10:$B$3811,0)+12,I$7)*'Master Data'!$J$37))","v":41.401056675279371},null,null,null,null,null,null,null,3.0679750335522596E-3,3.2218225775286595E-3,3.0616046957471117E-3,3.1961186645677263E-3,3.3336130834934947E-3,null,null,null,null,null,null,null,{"$f":"IFERROR(VLOOKUP($B115,Volumes!$B$39:$H$81,MATCH(AC$9,Volumes!$B$4:$H$4,0),FALSE),0)","v":18},{"$f":"IFERROR(VLOOKUP($B115,Volumes!$B$39:$H$81,MATCH(AD$9,Volumes!$B$4:$H$4,0),FALSE),0)","v":19},{"$f":"IFERROR(VLOOKUP($B115,Volumes!$B$39:$H$81,MATCH(AE$9,Volumes!$B$4:$H$4,0),FALSE),0)","v":20},{"$f":"IFERROR(VLOOKUP($B115,Volumes!$B$39:$H$81,MATCH(AF$9,Volumes!$B$4:$H$4,0),FALSE),0)","v":21},{"$f":"IFERROR(VLOOKUP($B115,Volumes!$B$39:$H$81,MATCH(AG$9,Volumes!$B$4:$H$4,0),FALSE),0)","v":22}]
[null,{"$f":"Inputs!$C112","v":"150W Metal Halide"},"Offered",48.462000000000003,{"$f":"IF($C116=\"NA\",\"\",IF($B116=0,\"\",OFFSET('Combined Annuity Prices PL'!$B$10,MATCH($B116,'Combined Annuity Prices PL'!$B$10:$B$3811,0)+12,E$7)*'Master Data'!$J$37))","v":49.347378417236072},{"$f":"IF($C116=\"NA\",\"\",IF($B116=0,\"\",OFFSET('Combined Annuity Prices PL'!$B$10,MATCH($B116,'Combined Annuity Prices PL'!$B$10:$B$3811,0)+12,F$7)*'Master Data'!$J$37))","v":49.244016723312313},{"$f":"IF($C116=\"NA\",\"\",IF($B116=0,\"\",OFFSET('Combined Annuity Prices PL'!$B$10,MATCH($B116,'Combined Annuity Prices PL'!$B$10:$B$3811,0)+12,G$7)*'Master Data'!$J$37))","v":44.726379858584068},{"$f":"IF($C116=\"NA\",\"\",IF($B116=0,\"\",OFFSET('Combined Annuity Prices PL'!$B$10,MATCH($B116,'Combined Annuity Prices PL'!$B$10:$B$3811,0)+12,H$7)*'Master Data'!$J$37))","v":44.484158515247586},{"$f":"IF($C116=\"NA\",\"\",IF($B116=0,\"\",OFFSET('Combined Annuity Prices PL'!$B$10,MATCH($B116,'Combined Annuity Prices PL'!$B$10:$B$3811,0)+12,I$7)*'Master Data'!$J$37))","v":44.18033777856261},null,null,null,null,null,null,null,2.70917107510626E-3,2.6961099156013494E-3,2.4487692972574777E-3,2.5978748572904591E-3,2.5872005803126265E-3,null,null,null,null,null,null,null,{"$f":"IFERROR(VLOOKUP($B116,Volumes!$B$39:$H$81,MATCH(AC$9,Volumes!$B$4:$H$4,0),FALSE),0)","v":15},{"$f":"IFERROR(VLOOKUP($B116,Volumes!$B$39:$H$81,MATCH(AD$9,Volumes!$B$4:$H$4,0),FALSE),0)","v":15},{"$f":"IFERROR(VLOOKUP($B116,Volumes!$B$39:$H$81,MATCH(AE$9,Volumes!$B$4:$H$4,0),FALSE),0)","v":15},{"$f":"IFERROR(VLOOKUP($B116,Volumes!$B$39:$H$81,MATCH(AF$9,Volumes!$B$4:$H$4,0),FALSE),0)","v":16},{"$f":"IFERROR(VLOOKUP($B116,Volumes!$B$39:$H$81,MATCH(AG$9,Volumes!$B$4:$H$4,0),FALSE),0)","v":16}]
[null,{"$f":"Inputs!$C113","v":"250W Metal Halide"},"Offered",49.326999999999998,{"$f":"IF($C117=\"NA\",\"\",IF($B117=0,\"\",OFFSET('Combined Annuity Prices PL'!$B$10,MATCH($B117,'Combined Annuity Prices PL'!$B$10:$B$3811,0)+12,E$7)*'Master Data'!$J$37))","v":50.29538264029437},{"$f":"IF($C117=\"NA\",\"\",IF($B117=0,\"\",OFFSET('Combined Annuity Prices PL'!$B$10,MATCH($B117,'Combined Annuity Prices PL'!$B$10:$B$3811,0)+12,F$7)*'Master Data'!$J$37))","v":50.194109061399374},{"$f":"IF($C117=\"NA\",\"\",IF($B117=0,\"\",OFFSET('Combined Annuity Prices PL'!$B$10,MATCH($B117,'Combined Annuity Prices PL'!$B$10:$B$3811,0)+12,G$7)*'Master Data'!$J$37))","v":45.676472196671128},{"$f":"IF($C117=\"NA\",\"\",IF($B117=0,\"\",OFFSET('Combined Annuity Prices PL'!$B$10,MATCH($B117,'Combined Annuity Prices PL'!$B$10:$B$3811,0)+12,H$7)*'Master Data'!$J$37))","v":45.434250853334646},{"$f":"IF($C117=\"NA\",\"\",IF($B117=0,\"\",OFFSET('Combined Annuity Prices PL'!$B$10,MATCH($B117,'Combined Annuity Prices PL'!$B$10:$B$3811,0)+12,I$7)*'Master Data'!$J$37))","v":45.128342001620901},null,null,null,null,null,null,null,1.6751380142176444E-2,1.7038390320892022E-2,1.5838316734195713E-2,1.6085996514623131E-2,1.6351803440867316E-2,null,null,null,null,null,null,null,{"$f":"IFERROR(VLOOKUP($B117,Volumes!$B$39:$H$81,MATCH(AC$9,Volumes!$B$4:$H$4,0),FALSE),0)","v":91},{"$f":"IFERROR(VLOOKUP($B117,Volumes!$B$39:$H$81,MATCH(AD$9,Volumes!$B$4:$H$4,0),FALSE),0)","v":93},{"$f":"IFERROR(VLOOKUP($B117,Volumes!$B$39:$H$81,MATCH(AE$9,Volumes!$B$4:$H$4,0),FALSE),0)","v":95},{"$f":"IFERROR(VLOOKUP($B117,Volumes!$B$39:$H$81,MATCH(AF$9,Volumes!$B$4:$H$4,0),FALSE),0)","v":97},{"$f":"IFERROR(VLOOKUP($B117,Volumes!$B$39:$H$81,MATCH(AG$9,Volumes!$B$4:$H$4,0),FALSE),0)","v":99}]
[null,{"$f":"Inputs!$C114","v":"400W Metal Halide"},"Not Offered",54.732999999999997,{"$f":"IF($C118=\"NA\",\"\",IF($B118=0,\"\",OFFSET('Combined Annuity Prices PL'!$B$10,MATCH($B118,'Combined Annuity Prices PL'!$B$10:$B$3811,0)+12,E$7)*'Master Data'!$J$37))","v":55.037491870614609},{"$f":"IF($C118=\"NA\",\"\",IF($B118=0,\"\",OFFSET('Combined Annuity Prices PL'!$B$10,MATCH($B118,'Combined Annuity Prices PL'!$B$10:$B$3811,0)+12,F$7)*'Master Data'!$J$37))","v":54.94979103940657},{"$f":"IF($C118=\"NA\",\"\",IF($B118=0,\"\",OFFSET('Combined Annuity Prices PL'!$B$10,MATCH($B118,'Combined Annuity Prices PL'!$B$10:$B$3811,0)+12,G$7)*'Master Data'!$J$37))","v":50.432154174678331},{"$f":"IF($C118=\"NA\",\"\",IF($B118=0,\"\",OFFSET('Combined Annuity Prices PL'!$B$10,MATCH($B118,'Combined Annuity Prices PL'!$B$10:$B$3811,0)+12,H$7)*'Master Data'!$J$37))","v":50.189932831341849},{"$f":"IF($C118=\"NA\",\"\",IF($B118=0,\"\",OFFSET('Combined Annuity Prices PL'!$B$10,MATCH($B118,'Combined Annuity Prices PL'!$B$10:$B$3811,0)+12,I$7)*'Master Data'!$J$37))","v":49.870451231941139},null,null,null,null,null,null,null,3.6258699644360899E-3,3.8107680085828453E-3,3.6815472547515179E-3,3.8470583515223529E-3,4.0155687331959004E-3,null,null,null,null,null,null,null,{"$f":"IFERROR(VLOOKUP($B118,Volumes!$B$39:$H$81,MATCH(AC$9,Volumes!$B$4:$H$4,0),FALSE),0)","v":18},{"$f":"IFERROR(VLOOKUP($B118,Volumes!$B$39:$H$81,MATCH(AD$9,Volumes!$B$4:$H$4,0),FALSE),0)","v":19},{"$f":"IFERROR(VLOOKUP($B118,Volumes!$B$39:$H$81,MATCH(AE$9,Volumes!$B$4:$H$4,0),FALSE),0)","v":20},{"$f":"IFERROR(VLOOKUP($B118,Volumes!$B$39:$H$81,MATCH(AF$9,Volumes!$B$4:$H$4,0),FALSE),0)","v":21},{"$f":"IFERROR(VLOOKUP($B118,Volumes!$B$39:$H$81,MATCH(AG$9,Volumes!$B$4:$H$4,0),FALSE),0)","v":22}]
[null,{"$f":"Inputs!$C115","v":"70W Metal Halide"},"Old light no volumes",34.676000000000002,{"$f":"IF($C119=\"NA\",\"\",IF($B119=0,\"\",OFFSET('Combined Annuity Prices PL'!$B$10,MATCH($B119,'Combined Annuity Prices PL'!$B$10:$B$3811,0)+12,E$7)*'Master Data'!$J$37))","v":38.563308351190763},{"$f":"IF($C119=\"NA\",\"\",IF($B119=0,\"\",OFFSET('Combined Annuity Prices PL'!$B$10,MATCH($B119,'Combined Annuity Prices PL'!$B$10:$B$3811,0)+12,F$7)*'Master Data'!$J$37))","v":38.42758087432118},{"$f":"IF($C119=\"NA\",\"\",IF($B119=0,\"\",OFFSET('Combined Annuity Prices PL'!$B$10,MATCH($B119,'Combined Annuity Prices PL'!$B$10:$B$3811,0)+12,G$7)*'Master Data'!$J$37))","v":33.906811837049794},{"$f":"IF($C119=\"NA\",\"\",IF($B119=0,\"\",OFFSET('Combined Annuity Prices PL'!$B$10,MATCH($B119,'Combined Annuity Prices PL'!$B$10:$B$3811,0)+12,H$7)*'Master Data'!$J$37))","v":33.660414263655795},{"$f":"IF($C119=\"NA\",\"\",IF($B119=0,\"\",OFFSET('Combined Annuity Prices PL'!$B$10,MATCH($B119,'Combined Annuity Prices PL'!$B$10:$B$3811,0)+12,I$7)*'Master Data'!$J$37))","v":33.38060684980158},null,null,null,null,null,null,null,0,0,0,0,0,null,null,null,null,null,null,null,{"$f":"IFERROR(VLOOKUP($B119,Volumes!$B$39:$H$81,MATCH(AC$9,Volumes!$B$4:$H$4,0),FALSE),0)","v":0},{"$f":"IFERROR(VLOOKUP($B119,Volumes!$B$39:$H$81,MATCH(AD$9,Volumes!$B$4:$H$4,0),FALSE),0)","v":0},{"$f":"IFERROR(VLOOKUP($B119,Volumes!$B$39:$H$81,MATCH(AE$9,Volumes!$B$4:$H$4,0),FALSE),0)","v":0},{"$f":"IFERROR(VLOOKUP($B119,Volumes!$B$39:$H$81,MATCH(AF$9,Volumes!$B$4:$H$4,0),FALSE),0)","v":0},{"$f":"IFERROR(VLOOKUP($B119,Volumes!$B$39:$H$81,MATCH(AG$9,Volumes!$B$4:$H$4,0),FALSE),0)","v":0}]
[null,{"$f":"Inputs!$C116","v":"250W Metal Halide - Flood Light"},"Obsolete, no new Connections",54.883000000000003,{"$f":"IF($C120=\"NA\",\"\",IF($B120=0,\"\",OFFSET('Combined Annuity Prices PL'!$B$10,MATCH($B120,'Combined Annuity Prices PL'!$B$10:$B$3811,0)+12,E$7)*'Master Data'!$J$37))","v":55.336092319727683},{"$f":"IF($C120=\"NA\",\"\",IF($B120=0,\"\",OFFSET('Combined Annuity Prices PL'!$B$10,MATCH($B120,'Combined Annuity Prices PL'!$B$10:$B$3811,0)+12,F$7)*'Master Data'!$J$37))","v":55.248391488519651},{"$f":"IF($C120=\"NA\",\"\",IF($B120=0,\"\",OFFSET('Combined Annuity Prices PL'!$B$10,MATCH($B120,'Combined Annuity Prices PL'!$B$10:$B$3811,0)+12,G$7)*'Master Data'!$J$37))","v":50.730754623791405},{"$f":"IF($C120=\"NA\",\"\",IF($B120=0,\"\",OFFSET('Combined Annuity Prices PL'!$B$10,MATCH($B120,'Combined Annuity Prices PL'!$B$10:$B$3811,0)+12,H$7)*'Master Data'!$J$37))","v":50.488533280454917},{"$f":"IF($C120=\"NA\",\"\",IF($B120=0,\"\",OFFSET('Combined Annuity Prices PL'!$B$10,MATCH($B120,'Combined Annuity Prices PL'!$B$10:$B$3811,0)+12,I$7)*'Master Data'!$J$37))","v":50.168007623539836},null,null,null,null,null,null,null,7.2910835240473206E-3,7.6629518994576762E-3,7.4066901750735447E-3,7.7398921518937397E-3,8.0790559476948565E-3,null,null,null,null,null,null,null,{"$f":"IFERROR(VLOOKUP($B120,Volumes!$B$39:$H$81,MATCH(AC$9,Volumes!$B$4:$H$4,0),FALSE),0)","v":36},{"$f":"IFERROR(VLOOKUP($B120,Volumes!$B$39:$H$81,MATCH(AD$9,Volumes!$B$4:$H$4,0),FALSE),0)","v":38},{"$f":"IFERROR(VLOOKUP($B120,Volumes!$B$39:$H$81,MATCH(AE$9,Volumes!$B$4:$H$4,0),FALSE),0)","v":40},{"$f":"IFERROR(VLOOKUP($B120,Volumes!$B$39:$H$81,MATCH(AF$9,Volumes!$B$4:$H$4,0),FALSE),0)","v":42},{"$f":"IFERROR(VLOOKUP($B120,Volumes!$B$39:$H$81,MATCH(AG$9,Volumes!$B$4:$H$4,0),FALSE),0)","v":44}]
[null,{"$f":"Inputs!$C117","v":"400W Metal Halide - Flood Light"},"Obsolete, no new Connections",54.732999999999997,{"$f":"IF($C121=\"NA\",\"\",IF($B121=0,\"\",OFFSET('Combined Annuity Prices PL'!$B$10,MATCH($B121,'Combined Annuity Prices PL'!$B$10:$B$3811,0)+12,E$7)*'Master Data'!$J$37))","v":55.037491870614609},{"$f":"IF($C121=\"NA\",\"\",IF($B121=0,\"\",OFFSET('Combined Annuity Prices PL'!$B$10,MATCH($B121,'Combined Annuity Prices PL'!$B$10:$B$3811,0)+12,F$7)*'Master Data'!$J$37))","v":54.94979103940657},{"$f":"IF($C121=\"NA\",\"\",IF($B121=0,\"\",OFFSET('Combined Annuity Prices PL'!$B$10,MATCH($B121,'Combined Annuity Prices PL'!$B$10:$B$3811,0)+12,G$7)*'Master Data'!$J$37))","v":50.432154174678331},{"$f":"IF($C121=\"NA\",\"\",IF($B121=0,\"\",OFFSET('Combined Annuity Prices PL'!$B$10,MATCH($B121,'Combined Annuity Prices PL'!$B$10:$B$3811,0)+12,H$7)*'Master Data'!$J$37))","v":50.189932831341849},{"$f":"IF($C121=\"NA\",\"\",IF($B121=0,\"\",OFFSET('Combined Annuity Prices PL'!$B$10,MATCH($B121,'Combined Annuity Prices PL'!$B$10:$B$3811,0)+12,I$7)*'Master Data'!$J$37))","v":49.870451231941139},null,null,null,null,null,null,null,7.2517399288721798E-3,7.6215360171656907E-3,7.3630945095030358E-3,7.6941167030447058E-3,8.0311374663918009E-3,null,null,null,null,null,null,null,{"$f":"IFERROR(VLOOKUP($B121,Volumes!$B$39:$H$81,MATCH(AC$9,Volumes!$B$4:$H$4,0),FALSE),0)","v":36},{"$f":"IFERROR(VLOOKUP($B121,Volumes!$B$39:$H$81,MATCH(AD$9,Volumes!$B$4:$H$4,0),FALSE),0)","v":38},{"$f":"IFERROR(VLOOKUP($B121,Volumes!$B$39:$H$81,MATCH(AE$9,Volumes!$B$4:$H$4,0),FALSE),0)","v":40},{"$f":"IFERROR(VLOOKUP($B121,Volumes!$B$39:$H$81,MATCH(AF$9,Volumes!$B$4:$H$4,0),FALSE),0)","v":42},{"$f":"IFERROR(VLOOKUP($B121,Volumes!$B$39:$H$81,MATCH(AG$9,Volumes!$B$4:$H$4,0),FALSE),0)","v":44}]
[null,{"$f":"Inputs!$C118","v":"125W Mercury Vapour"},"Obsolete, no new Connections",45.386000000000003,{"$f":"IF($C122=\"NA\",\"\",IF($B122=0,\"\",OFFSET('Combined Annuity Prices PL'!$B$10,MATCH($B122,'Combined Annuity Prices PL'!$B$10:$B$3811,0)+12,E$7)*'Master Data'!$J$37))","v":46.57436165903912},{"$f":"IF($C122=\"NA\",\"\",IF($B122=0,\"\",OFFSET('Combined Annuity Prices PL'!$B$10,MATCH($B122,'Combined Annuity Prices PL'!$B$10:$B$3811,0)+12,F$7)*'Master Data'!$J$37))","v":46.462647505000312},{"$f":"IF($C122=\"NA\",\"\",IF($B122=0,\"\",OFFSET('Combined Annuity Prices PL'!$B$10,MATCH($B122,'Combined Annuity Prices PL'!$B$10:$B$3811,0)+12,G$7)*'Master Data'!$J$37))","v":41.946054697786451},{"$f":"IF($C122=\"NA\",\"\",IF($B122=0,\"\",OFFSET('Combined Annuity Prices PL'!$B$10,MATCH($B122,'Combined Annuity Prices PL'!$B$10:$B$3811,0)+12,H$7)*'Master Data'!$J$37))","v":41.703833354449969},{"$f":"IF($C122=\"NA\",\"\",IF($B122=0,\"\",OFFSET('Combined Annuity Prices PL'!$B$10,MATCH($B122,'Combined Annuity Prices PL'!$B$10:$B$3811,0)+12,I$7)*'Master Data'!$J$37))","v":41.40732102036565},null,null,null,null,null,null,null,0,0,0,0,0,null,null,null,null,null,null,null,{"$f":"IFERROR(VLOOKUP($B122,Volumes!$B$39:$H$81,MATCH(AC$9,Volumes!$B$4:$H$4,0),FALSE),0)","v":0},{"$f":"IFERROR(VLOOKUP($B122,Volumes!$B$39:$H$81,MATCH(AD$9,Volumes!$B$4:$H$4,0),FALSE),0)","v":0},{"$f":"IFERROR(VLOOKUP($B122,Volumes!$B$39:$H$81,MATCH(AE$9,Volumes!$B$4:$H$4,0),FALSE),0)","v":0},{"$f":"IFERROR(VLOOKUP($B122,Volumes!$B$39:$H$81,MATCH(AF$9,Volumes!$B$4:$H$4,0),FALSE),0)","v":0},{"$f":"IFERROR(VLOOKUP($B122,Volumes!$B$39:$H$81,MATCH(AG$9,Volumes!$B$4:$H$4,0),FALSE),0)","v":0}]
[null,{"$f":"Inputs!$C119","v":"250W Mercury Vapour"},"Obsolete, no new Connections",45.865000000000002,{"$f":"IF($C123=\"NA\",\"\",IF($B123=0,\"\",OFFSET('Combined Annuity Prices PL'!$B$10,MATCH($B123,'Combined Annuity Prices PL'!$B$10:$B$3811,0)+12,E$7)*'Master Data'!$J$37))","v":47.017042045136826},{"$f":"IF($C123=\"NA\",\"\",IF($B123=0,\"\",OFFSET('Combined Annuity Prices PL'!$B$10,MATCH($B123,'Combined Annuity Prices PL'!$B$10:$B$3811,0)+12,F$7)*'Master Data'!$J$37))","v":46.906371948612396},{"$f":"IF($C123=\"NA\",\"\",IF($B123=0,\"\",OFFSET('Combined Annuity Prices PL'!$B$10,MATCH($B123,'Combined Annuity Prices PL'!$B$10:$B$3811,0)+12,G$7)*'Master Data'!$J$37))","v":42.389779141398535},{"$f":"IF($C123=\"NA\",\"\",IF($B123=0,\"\",OFFSET('Combined Annuity Prices PL'!$B$10,MATCH($B123,'Combined Annuity Prices PL'!$B$10:$B$3811,0)+12,H$7)*'Master Data'!$J$37))","v":42.147557798062053},{"$f":"IF($C123=\"NA\",\"\",IF($B123=0,\"\",OFFSET('Combined Annuity Prices PL'!$B$10,MATCH($B123,'Combined Annuity Prices PL'!$B$10:$B$3811,0)+12,I$7)*'Master Data'!$J$37))","v":41.850001406463363},null,null,null,null,null,null,null,6.6423796319687506E-2,6.0950139710026954E-2,4.6571530853697501E-2,3.8151969318805774E-2,3.538250218910851E-2,null,null,null,null,null,null,null,{"$f":"IFERROR(VLOOKUP($B123,Volumes!$B$39:$H$81,MATCH(AC$9,Volumes!$B$4:$H$4,0),FALSE),0)","v":386},{"$f":"IFERROR(VLOOKUP($B123,Volumes!$B$39:$H$81,MATCH(AD$9,Volumes!$B$4:$H$4,0),FALSE),0)","v":356},{"$f":"IFERROR(VLOOKUP($B123,Volumes!$B$39:$H$81,MATCH(AE$9,Volumes!$B$4:$H$4,0),FALSE),0)","v":301},{"$f":"IFERROR(VLOOKUP($B123,Volumes!$B$39:$H$81,MATCH(AF$9,Volumes!$B$4:$H$4,0),FALSE),0)","v":248},{"$f":"IFERROR(VLOOKUP($B123,Volumes!$B$39:$H$81,MATCH(AG$9,Volumes!$B$4:$H$4,0),FALSE),0)","v":231}]
[null,{"$f":"Inputs!$C120","v":0},"NA","",{"$f":"IF($C124=\"NA\",\"\",IF($B124=0,\"\",OFFSET('Combined Annuity Prices PL'!$B$10,MATCH($B124,'Combined Annuity Prices PL'!$B$10:$B$3811,0)+12,E$7)*'Master Data'!$J$37))","v":""},{"$f":"IF($C124=\"NA\",\"\",IF($B124=0,\"\",OFFSET('Combined Annuity Prices PL'!$B$10,MATCH($B124,'Combined Annuity Prices PL'!$B$10:$B$3811,0)+12,F$7)*'Master Data'!$J$37))","v":""},{"$f":"IF($C124=\"NA\",\"\",IF($B124=0,\"\",OFFSET('Combined Annuity Prices PL'!$B$10,MATCH($B124,'Combined Annuity Prices PL'!$B$10:$B$3811,0)+12,G$7)*'Master Data'!$J$37))","v":""},{"$f":"IF($C124=\"NA\",\"\",IF($B124=0,\"\",OFFSET('Combined Annuity Prices PL'!$B$10,MATCH($B124,'Combined Annuity Prices PL'!$B$10:$B$3811,0)+12,H$7)*'Master Data'!$J$37))","v":""},{"$f":"IF($C124=\"NA\",\"\",IF($B124=0,\"\",OFFSET('Combined Annuity Prices PL'!$B$10,MATCH($B124,'Combined Annuity Prices PL'!$B$10:$B$3811,0)+12,I$7)*'Master Data'!$J$37))","v":""},null,null,null,null,null,null,null,"","","","","",null,null,null,null,null,null,null,{"$f":"IFERROR(VLOOKUP($B124,Volumes!$B$39:$H$81,MATCH(AC$9,Volumes!$B$4:$H$4,0),FALSE),0)","v":0},{"$f":"IFERROR(VLOOKUP($B124,Volumes!$B$39:$H$81,MATCH(AD$9,Volumes!$B$4:$H$4,0),FALSE),0)","v":0},{"$f":"IFERROR(VLOOKUP($B124,Volumes!$B$39:$H$81,MATCH(AE$9,Volumes!$B$4:$H$4,0),FALSE),0)","v":0},{"$f":"IFERROR(VLOOKUP($B124,Volumes!$B$39:$H$81,MATCH(AF$9,Volumes!$B$4:$H$4,0),FALSE),0)","v":0},{"$f":"IFERROR(VLOOKUP($B124,Volumes!$B$39:$H$81,MATCH(AG$9,Volumes!$B$4:$H$4,0),FALSE),0)","v":0}]
[null,{"$f":"Inputs!$C121","v":"400W Mercury Vapour"},"Obsolete, no new Connections",48.033000000000001,{"$f":"IF($C125=\"NA\",\"\",IF($B125=0,\"\",OFFSET('Combined Annuity Prices PL'!$B$10,MATCH($B125,'Combined Annuity Prices PL'!$B$10:$B$3811,0)+12,E$7)*'Master Data'!$J$37))","v":48.564335281450035},{"$f":"IF($C125=\"NA\",\"\",IF($B125=0,\"\",OFFSET('Combined Annuity Prices PL'!$B$10,MATCH($B125,'Combined Annuity Prices PL'!$B$10:$B$3811,0)+12,F$7)*'Master Data'!$J$37))","v":48.458885472497514},{"$f":"IF($C125=\"NA\",\"\",IF($B125=0,\"\",OFFSET('Combined Annuity Prices PL'!$B$10,MATCH($B125,'Combined Annuity Prices PL'!$B$10:$B$3811,0)+12,G$7)*'Master Data'!$J$37))","v":43.941248607769275},{"$f":"IF($C125=\"NA\",\"\",IF($B125=0,\"\",OFFSET('Combined Annuity Prices PL'!$B$10,MATCH($B125,'Combined Annuity Prices PL'!$B$10:$B$3811,0)+12,H$7)*'Master Data'!$J$37))","v":43.699027264432786},{"$f":"IF($C125=\"NA\",\"\",IF($B125=0,\"\",OFFSET('Combined Annuity Prices PL'!$B$10,MATCH($B125,'Combined Annuity Prices PL'!$B$10:$B$3811,0)+12,I$7)*'Master Data'!$J$37))","v":43.397294642776572},null,null,null,null,null,null,null,5.1546185467731065E-3,4.7756231633146297E-3,3.6888678206222309E-3,3.1900289903035936E-3,2.7001796726735584E-3,null,null,null,null,null,null,null,{"$f":"IFERROR(VLOOKUP($B125,Volumes!$B$39:$H$81,MATCH(AC$9,Volumes!$B$4:$H$4,0),FALSE),0)","v":29},{"$f":"IFERROR(VLOOKUP($B125,Volumes!$B$39:$H$81,MATCH(AD$9,Volumes!$B$4:$H$4,0),FALSE),0)","v":27},{"$f":"IFERROR(VLOOKUP($B125,Volumes!$B$39:$H$81,MATCH(AE$9,Volumes!$B$4:$H$4,0),FALSE),0)","v":23},{"$f":"IFERROR(VLOOKUP($B125,Volumes!$B$39:$H$81,MATCH(AF$9,Volumes!$B$4:$H$4,0),FALSE),0)","v":20},{"$f":"IFERROR(VLOOKUP($B125,Volumes!$B$39:$H$81,MATCH(AG$9,Volumes!$B$4:$H$4,0),FALSE),0)","v":17}]
[null,{"$f":"Inputs!$C122","v":"50W Mercury Vapour"},"Obsolete, no new Connections",33.518999999999998,{"$f":"IF($C126=\"NA\",\"\",IF($B126=0,\"\",OFFSET('Combined Annuity Prices PL'!$B$10,MATCH($B126,'Combined Annuity Prices PL'!$B$10:$B$3811,0)+12,E$7)*'Master Data'!$J$37))","v":37.104760003599971},{"$f":"IF($C126=\"NA\",\"\",IF($B126=0,\"\",OFFSET('Combined Annuity Prices PL'!$B$10,MATCH($B126,'Combined Annuity Prices PL'!$B$10:$B$3811,0)+12,F$7)*'Master Data'!$J$37))","v":36.96485629667287},{"$f":"IF($C126=\"NA\",\"\",IF($B126=0,\"\",OFFSET('Combined Annuity Prices PL'!$B$10,MATCH($B126,'Combined Annuity Prices PL'!$B$10:$B$3811,0)+12,G$7)*'Master Data'!$J$37))","v":32.444087259401478},{"$f":"IF($C126=\"NA\",\"\",IF($B126=0,\"\",OFFSET('Combined Annuity Prices PL'!$B$10,MATCH($B126,'Combined Annuity Prices PL'!$B$10:$B$3811,0)+12,H$7)*'Master Data'!$J$37))","v":32.197689686007472},{"$f":"IF($C126=\"NA\",\"\",IF($B126=0,\"\",OFFSET('Combined Annuity Prices PL'!$B$10,MATCH($B126,'Combined Annuity Prices PL'!$B$10:$B$3811,0)+12,I$7)*'Master Data'!$J$37))","v":31.922058502210785},null,null,null,null,null,null,null,0,0,0,0,0,null,null,null,null,null,null,null,{"$f":"IFERROR(VLOOKUP($B126,Volumes!$B$39:$H$81,MATCH(AC$9,Volumes!$B$4:$H$4,0),FALSE),0)","v":0},{"$f":"IFERROR(VLOOKUP($B126,Volumes!$B$39:$H$81,MATCH(AD$9,Volumes!$B$4:$H$4,0),FALSE),0)","v":0},{"$f":"IFERROR(VLOOKUP($B126,Volumes!$B$39:$H$81,MATCH(AE$9,Volumes!$B$4:$H$4,0),FALSE),0)","v":0},{"$f":"IFERROR(VLOOKUP($B126,Volumes!$B$39:$H$81,MATCH(AF$9,Volumes!$B$4:$H$4,0),FALSE),0)","v":0},{"$f":"IFERROR(VLOOKUP($B126,Volumes!$B$39:$H$81,MATCH(AG$9,Volumes!$B$4:$H$4,0),FALSE),0)","v":0}]
[null,{"$f":"Inputs!$C123","v":"80W Mercury Vapour Art decorative"},"Obsolete, no new Connections",50.566000000000003,{"$f":"IF($C127=\"NA\",\"\",IF($B127=0,\"\",OFFSET('Combined Annuity Prices PL'!$B$10,MATCH($B127,'Combined Annuity Prices PL'!$B$10:$B$3811,0)+12,E$7)*'Master Data'!$J$37))","v":53.539269337477322},{"$f":"IF($C127=\"NA\",\"\",IF($B127=0,\"\",OFFSET('Combined Annuity Prices PL'!$B$10,MATCH($B127,'Combined Annuity Prices PL'!$B$10:$B$3811,0)+12,F$7)*'Master Data'!$J$37))","v":53.445304161182996},{"$f":"IF($C127=\"NA\",\"\",IF($B127=0,\"\",OFFSET('Combined Annuity Prices PL'!$B$10,MATCH($B127,'Combined Annuity Prices PL'!$B$10:$B$3811,0)+12,G$7)*'Master Data'!$J$37))","v":48.92453512391161},{"$f":"IF($C127=\"NA\",\"\",IF($B127=0,\"\",OFFSET('Combined Annuity Prices PL'!$B$10,MATCH($B127,'Combined Annuity Prices PL'!$B$10:$B$3811,0)+12,H$7)*'Master Data'!$J$37))","v":48.678137550517604},{"$f":"IF($C127=\"NA\",\"\",IF($B127=0,\"\",OFFSET('Combined Annuity Prices PL'!$B$10,MATCH($B127,'Combined Annuity Prices PL'!$B$10:$B$3811,0)+12,I$7)*'Master Data'!$J$37))","v":48.357611893602517},null,null,null,null,null,null,null,7.8381490310066807E-3,7.8030144075327173E-3,7.142982128091095E-3,7.1070080823755696E-3,7.0795543812234079E-3,null,null,null,null,null,null,null,{"$f":"IFERROR(VLOOKUP($B127,Volumes!$B$39:$H$81,MATCH(AC$9,Volumes!$B$4:$H$4,0),FALSE),0)","v":40},{"$f":"IFERROR(VLOOKUP($B127,Volumes!$B$39:$H$81,MATCH(AD$9,Volumes!$B$4:$H$4,0),FALSE),0)","v":40},{"$f":"IFERROR(VLOOKUP($B127,Volumes!$B$39:$H$81,MATCH(AE$9,Volumes!$B$4:$H$4,0),FALSE),0)","v":40},{"$f":"IFERROR(VLOOKUP($B127,Volumes!$B$39:$H$81,MATCH(AF$9,Volumes!$B$4:$H$4,0),FALSE),0)","v":40},{"$f":"IFERROR(VLOOKUP($B127,Volumes!$B$39:$H$81,MATCH(AG$9,Volumes!$B$4:$H$4,0),FALSE),0)","v":40}]
[null,{"$f":"Inputs!$C124","v":"80W Mercury Vapour"},"Obsolete, no new Connections",33.520000000000003,{"$f":"IF($C128=\"NA\",\"\",IF($B128=0,\"\",OFFSET('Combined Annuity Prices PL'!$B$10,MATCH($B128,'Combined Annuity Prices PL'!$B$10:$B$3811,0)+12,E$7)*'Master Data'!$J$37))","v":37.101627831056831},{"$f":"IF($C128=\"NA\",\"\",IF($B128=0,\"\",OFFSET('Combined Annuity Prices PL'!$B$10,MATCH($B128,'Combined Annuity Prices PL'!$B$10:$B$3811,0)+12,F$7)*'Master Data'!$J$37))","v":36.961724124129724},{"$f":"IF($C128=\"NA\",\"\",IF($B128=0,\"\",OFFSET('Combined Annuity Prices PL'!$B$10,MATCH($B128,'Combined Annuity Prices PL'!$B$10:$B$3811,0)+12,G$7)*'Master Data'!$J$37))","v":32.440955086858331},{"$f":"IF($C128=\"NA\",\"\",IF($B128=0,\"\",OFFSET('Combined Annuity Prices PL'!$B$10,MATCH($B128,'Combined Annuity Prices PL'!$B$10:$B$3811,0)+12,H$7)*'Master Data'!$J$37))","v":32.194557513464325},{"$f":"IF($C128=\"NA\",\"\",IF($B128=0,\"\",OFFSET('Combined Annuity Prices PL'!$B$10,MATCH($B128,'Combined Annuity Prices PL'!$B$10:$B$3811,0)+12,I$7)*'Master Data'!$J$37))","v":31.919970387182026},null,null,null,null,null,null,null,0.43453426515733767,0,0,0,0,null,null,null,null,null,null,null,{"$f":"IFERROR(VLOOKUP($B128,Volumes!$B$39:$H$81,MATCH(AC$9,Volumes!$B$4:$H$4,0),FALSE),0)","v":3200},{"$f":"IFERROR(VLOOKUP($B128,Volumes!$B$39:$H$81,MATCH(AD$9,Volumes!$B$4:$H$4,0),FALSE),0)","v":0},{"$f":"IFERROR(VLOOKUP($B128,Volumes!$B$39:$H$81,MATCH(AE$9,Volumes!$B$4:$H$4,0),FALSE),0)","v":0},{"$f":"IFERROR(VLOOKUP($B128,Volumes!$B$39:$H$81,MATCH(AF$9,Volumes!$B$4:$H$4,0),FALSE),0)","v":0},{"$f":"IFERROR(VLOOKUP($B128,Volumes!$B$39:$H$81,MATCH(AG$9,Volumes!$B$4:$H$4,0),FALSE),0)","v":0}]
[null,{"$f":"Inputs!$C125","v":"14W LED"},"Offered",{"$error":"#N/A"},{"$f":"IF($C129=\"NA\",\"\",IF($B129=0,\"\",OFFSET('Combined Annuity Prices PL'!$B$10,MATCH($B129,'Combined Annuity Prices PL'!$B$10:$B$3811,0)+12,E$7)*'Master Data'!$J$37))","v":35.743309004846651},{"$f":"IF($C129=\"NA\",\"\",IF($B129=0,\"\",OFFSET('Combined Annuity Prices PL'!$B$10,MATCH($B129,'Combined Annuity Prices PL'!$B$10:$B$3811,0)+12,F$7)*'Master Data'!$J$37))","v":35.599229067862019},{"$f":"IF($C129=\"NA\",\"\",IF($B129=0,\"\",OFFSET('Combined Annuity Prices PL'!$B$10,MATCH($B129,'Combined Annuity Prices PL'!$B$10:$B$3811,0)+12,G$7)*'Master Data'!$J$37))","v":31.077415973076246},{"$f":"IF($C129=\"NA\",\"\",IF($B129=0,\"\",OFFSET('Combined Annuity Prices PL'!$B$10,MATCH($B129,'Combined Annuity Prices PL'!$B$10:$B$3811,0)+12,H$7)*'Master Data'!$J$37))","v":30.828930284653477},{"$f":"IF($C129=\"NA\",\"\",IF($B129=0,\"\",OFFSET('Combined Annuity Prices PL'!$B$10,MATCH($B129,'Combined Annuity Prices PL'!$B$10:$B$3811,0)+12,I$7)*'Master Data'!$J$37))","v":30.556431273399937},null,null,null,null,null,null,null,1.4221497746215779,1.6477334569048878,1.4475130040983548,1.4449411723161087,1.4400072692192492,null,null,null,null,null,null,null,{"$f":"IFERROR(VLOOKUP($B129,Volumes!$B$39:$H$81,MATCH(AC$9,Volumes!$B$4:$H$4,0),FALSE),0)","v":10871},{"$f":"IFERROR(VLOOKUP($B129,Volumes!$B$39:$H$81,MATCH(AD$9,Volumes!$B$4:$H$4,0),FALSE),0)","v":12681},{"$f":"IFERROR(VLOOKUP($B129,Volumes!$B$39:$H$81,MATCH(AE$9,Volumes!$B$4:$H$4,0),FALSE),0)","v":12761},{"$f":"IFERROR(VLOOKUP($B129,Volumes!$B$39:$H$81,MATCH(AF$9,Volumes!$B$4:$H$4,0),FALSE),0)","v":12841},{"$f":"IFERROR(VLOOKUP($B129,Volumes!$B$39:$H$81,MATCH(AG$9,Volumes!$B$4:$H$4,0),FALSE),0)","v":12876}]
[null,{"$f":"Inputs!$C126","v":"New technology - Minor"},"Offered",{"$error":"#N/A"},{"$f":"IF($C130=\"NA\",\"\",IF($B130=0,\"\",OFFSET('Combined Annuity Prices PL'!$B$10,MATCH($B130,'Combined Annuity Prices PL'!$B$10:$B$3811,0)+12,E$7)*'Master Data'!$J$37))","v":35.743309004846651},{"$f":"IF($C130=\"NA\",\"\",IF($B130=0,\"\",OFFSET('Combined Annuity Prices PL'!$B$10,MATCH($B130,'Combined Annuity Prices PL'!$B$10:$B$3811,0)+12,F$7)*'Master Data'!$J$37))","v":35.599229067862019},{"$f":"IF($C130=\"NA\",\"\",IF($B130=0,\"\",OFFSET('Combined Annuity Prices PL'!$B$10,MATCH($B130,'Combined Annuity Prices PL'!$B$10:$B$3811,0)+12,G$7)*'Master Data'!$J$37))","v":31.077415973076246},{"$f":"IF($C130=\"NA\",\"\",IF($B130=0,\"\",OFFSET('Combined Annuity Prices PL'!$B$10,MATCH($B130,'Combined Annuity Prices PL'!$B$10:$B$3811,0)+12,H$7)*'Master Data'!$J$37))","v":30.828930284653477},{"$f":"IF($C130=\"NA\",\"\",IF($B130=0,\"\",OFFSET('Combined Annuity Prices PL'!$B$10,MATCH($B130,'Combined Annuity Prices PL'!$B$10:$B$3811,0)+12,I$7)*'Master Data'!$J$37))","v":30.556431273399937},null,null,null,null,null,null,null,0,0,0,0,0,null,null,null,null,null,null,null,{"$f":"IFERROR(VLOOKUP($B130,Volumes!$B$39:$H$81,MATCH(AC$9,Volumes!$B$4:$H$4,0),FALSE),0)","v":0},{"$f":"IFERROR(VLOOKUP($B130,Volumes!$B$39:$H$81,MATCH(AD$9,Volumes!$B$4:$H$4,0),FALSE),0)","v":0},{"$f":"IFERROR(VLOOKUP($B130,Volumes!$B$39:$H$81,MATCH(AE$9,Volumes!$B$4:$H$4,0),FALSE),0)","v":0},{"$f":"IFERROR(VLOOKUP($B130,Volumes!$B$39:$H$81,MATCH(AF$9,Volumes!$B$4:$H$4,0),FALSE),0)","v":0},{"$f":"IFERROR(VLOOKUP($B130,Volumes!$B$39:$H$81,MATCH(AG$9,Volumes!$B$4:$H$4,0),FALSE),0)","v":0}]
[null,{"$f":"Inputs!$C127","v":"New technology - Major"},"Offered",{"$error":"#N/A"},{"$f":"IF($C131=\"NA\",\"\",IF($B131=0,\"\",OFFSET('Combined Annuity Prices PL'!$B$10,MATCH($B131,'Combined Annuity Prices PL'!$B$10:$B$3811,0)+12,E$7)*'Master Data'!$J$37))","v":47.711340292200447},{"$f":"IF($C131=\"NA\",\"\",IF($B131=0,\"\",OFFSET('Combined Annuity Prices PL'!$B$10,MATCH($B131,'Combined Annuity Prices PL'!$B$10:$B$3811,0)+12,F$7)*'Master Data'!$J$37))","v":47.602758310704779},{"$f":"IF($C131=\"NA\",\"\",IF($B131=0,\"\",OFFSET('Combined Annuity Prices PL'!$B$10,MATCH($B131,'Combined Annuity Prices PL'!$B$10:$B$3811,0)+12,G$7)*'Master Data'!$J$37))","v":43.083033330947771},{"$f":"IF($C131=\"NA\",\"\",IF($B131=0,\"\",OFFSET('Combined Annuity Prices PL'!$B$10,MATCH($B131,'Combined Annuity Prices PL'!$B$10:$B$3811,0)+12,H$7)*'Master Data'!$J$37))","v":42.838723872582527},{"$f":"IF($C131=\"NA\",\"\",IF($B131=0,\"\",OFFSET('Combined Annuity Prices PL'!$B$10,MATCH($B131,'Combined Annuity Prices PL'!$B$10:$B$3811,0)+12,I$7)*'Master Data'!$J$37))","v":42.536991250926306},null,null,null,null,null,null,null,0,0,0,0,0,null,null,null,null,null,null,null,{"$f":"IFERROR(VLOOKUP($B131,Volumes!$B$39:$H$81,MATCH(AC$9,Volumes!$B$4:$H$4,0),FALSE),0)","v":0},{"$f":"IFERROR(VLOOKUP($B131,Volumes!$B$39:$H$81,MATCH(AD$9,Volumes!$B$4:$H$4,0),FALSE),0)","v":0},{"$f":"IFERROR(VLOOKUP($B131,Volumes!$B$39:$H$81,MATCH(AE$9,Volumes!$B$4:$H$4,0),FALSE),0)","v":0},{"$f":"IFERROR(VLOOKUP($B131,Volumes!$B$39:$H$81,MATCH(AF$9,Volumes!$B$4:$H$4,0),FALSE),0)","v":0},{"$f":"IFERROR(VLOOKUP($B131,Volumes!$B$39:$H$81,MATCH(AG$9,Volumes!$B$4:$H$4,0),FALSE),0)","v":0}]
[null,null,null,null,null,null,null,null,null,null,null,null,null,null,null,null,{"$f":"SUM(Q73:Q131)","v":5.0270338669197487},{"$f":"SUM(R73:R131)","v":4.9141648762286678},{"$f":"SUM(S73:S131)","v":4.4645603344708453},{"$f":"SUM(T73:T131)","v":4.5296320213606629},{"$f":"SUM(U73:U131)","v":4.6120691617927836},null,null,null,null,null,null,null,{"$f":"SUM(AC73:AC131)","v":32500},{"$f":"SUM(AD73:AD131)","v":31724},{"$f":"SUM(AE73:AE131)","v":32151},{"$f":"SUM(AF73:AF131)","v":32714},{"$f":"SUM(AG73:AG131)","v":33321}]
[null,null,null,null,null,null,null,null,null,null,null,null,null,null,null,null,null,null,null,null,null,null,null,null,null,null,null,null,{"$f":"Volumes!D82=AC132","v":true},{"$f":"Volumes!E82=AD132","v":true},{"$f":"Volumes!F82=AE132","v":true},{"$f":"Volumes!G82=AF132","v":true},{"$f":"Volumes!H82=AG132","v":true}]
[null,"Total",null,null,null,null,null,null,null,null,null,null,null,{"$f":"P8","v":"Revenue ($m)  - Real"},null,null,{"$f":"SUM(Q69,Q132)","v":6.0486379475297438},{"$f":"SUM(R69,R132)","v":5.9787102089340554},5.5054807377604327,5.5627293806257381,5.6372738156888875,null,null,null,null,null,null,null,{"$f":"SUM(AC69,AC132)","v":52072},{"$f":"SUM(AD69,AD132)","v":52157},52584,53149,53771]
[null,null,null,null,null,null,null,null,null,null,null,null,null,null,null,null,null,null,null,null,null,null,null,null,null,null,null,null,{"$f":"Volumes!D86=AC134","v":true},{"$f":"Volumes!E86=AD134","v":true},{"$f":"Volumes!F86=AE134","v":true},{"$f":"Volumes!G86=AF134","v":true},{"$f":"Volumes!H86=AG134","v":true}]
[null,null,null,null,null,null,null,null,null,null,null,null,null,"Compare Annuity and PTRM"]
[null,null,null,null,null,null,null,null,null,null,null,null,null,"Nominal ($m Nominal)",null,"Nominal Revenue",{"$f":"Q134*'Master Data'!K39","v":6.1968266223638553},{"$f":"R134*'Master Data'!L39","v":6.2752497454223768},{"$f":"S134*'Master Data'!M39","v":5.9201200618994561},{"$f":"T134*'Master Data'!N39","v":6.1282285701282913},{"$f":"U134*'Master Data'!O39","v":6.3625016546193311}]

{"sheet":"Combined Annuity Prices CL","index":7,"n_rows":758,"n_cols":27,"rows_kept":758,"cut":false,"hidden":false,"merged":[[3,4,3,8],[3,17,3,21]]}
[null,"$2016-17 base data",null,null,null,null,null,null,null,null,null,null,null,null,null,null,"2019-06-30",{"$f":"EOMONTH(Q1,12)","v":"2020-06-30"},{"$f":"EOMONTH(R1,12)","v":"2021-06-30"},{"$f":"EOMONTH(S1,12)","v":"2022-06-30"},{"$f":"EOMONTH(T1,12)","v":"2023-06-30"},{"$f":"EOMONTH(U1,12)","v":"2024-06-30"},{"$f":"EOMONTH(V1,12)","v":"2025-06-30"},"2026-06-30","2027-06-30","2028-06-30","2029-06-30"]
[null,null,null,null,null,null,null,null,null,null,null,null,null,null,null,null,null,{"$f":"R1-Q1","v":366},{"$f":"S1-R1","v":365},{"$f":"T1-S1","v":365},{"$f":"U1-T1","v":365},{"$f":"V1-U1","v":366},{"$f":"W1-V1","v":365},365,365,366,365]
[null,null,null,null,{"$f":"'Master Data'!K34","v":"2019-20"},{"$f":"'Master Data'!L34","v":"2020-21"},{"$f":"'Master Data'!M34","v":"2021-22"},{"$f":"'Master Data'!N34","v":"2022-23"},{"$f":"'Master Data'!O34","v":"2023-24"},{"$f":"'Master Data'!P34","v":"2024-25"},{"$f":"'Master Data'!Q34","v":"2025-26"},{"$f":"'Master Data'!R34","v":"2026-27"},{"$f":"'Master Data'!S34","v":"2027-28"},{"$f":"'Master Data'!T34","v":"2028-29"},null,null,null,{"$f":"'Master Data'!K34","v":"2019-20"},{"$f":"'Master Data'!L34","v":"2020-21"},{"$f":"'Master Data'!M34","v":"2021-22"},{"$f":"'Master Data'!N34","v":"2022-23"},{"$f":"'Master Data'!O34","v":"2023-24"},{"$f":"'Master Data'!P34","v":"2024-25"},{"$f":"'Master Data'!Q34","v":"2025-26"},{"$f":"'Master Data'!R34","v":"2026-27"},{"$f":"'Master Data'!S34","v":"2027-28"},{"$f":"'Master Data'!T34","v":"2028-29"}]
[null,null,null,null,"Cost $ Per year",null,null,null,null,null,null,null,null,null,null,null,null,"Cost Cents per Day"]
[]
[null,"Lookup/Offset",null,null,16,{"$f":"E6+1","v":17},{"$f":"F6+1","v":18},19,20,null,null,null,null,null,null,null,"Lookup/Offset Value",1,{"$f":"R6+1","v":2},3,4,5]
[null,{"$f":"Inputs!$C$68","v":"Light Description"},null,"Useful Life"]
[null,"Private Contract Lighting",null,null,null,null,null,null,null,null,null,null,null,null,null,null,"Private Contract Lighting"]
[]
[1,{"$f":"IFERROR(VLOOKUP($A10,Inputs!$B$68:$AN$129,MATCH($B$7,Inputs!$B$68:$AN$68,0),FALSE),\"Blank\")","v":"32W Compact Fluorescent"},null,null,null,null,null,null,null,null,null,null,null,null,null,null,{"$f":"IFERROR(VLOOKUP($A10,Inputs!$B$68:$AN$129,MATCH($B$7,Inputs!$B$68:$AN$68,0),FALSE),\"Blank\")","v":"32W Compact Fluorescent"}]
[null,{"$f":"Inputs!$S$68","v":"Lamp UNIT price Annualised Cost"},{"$f":"Inputs!$Q$68","v":"Lamp Maintenance cycle"},null,{"$f":"IF($B10=\"Blank\",0,VLOOKUP($B10,Inputs!$C$68:$AN$129,MATCH($B11,Inputs!$C$68:$AN$68,0),FALSE))","v":1.0984639624469332},{"$f":"IF($B10=\"Blank\",0,VLOOKUP($B10,Inputs!$C$68:$AN$129,MATCH($B11,Inputs!$C$68:$AN$68,0),FALSE))","v":1.0984639624469332},{"$f":"IF($B10=\"Blank\",0,VLOOKUP($B10,Inputs!$C$68:$AN$129,MATCH($B11,Inputs!$C$68:$AN$68,0),FALSE))","v":1.0984639624469332},{"$f":"IF($B10=\"Blank\",0,VLOOKUP($B10,Inputs!$C$68:$AN$129,MATCH($B11,Inputs!$C$68:$AN$68,0),FALSE))","v":1.0984639624469332},{"$f":"IF($B10=\"Blank\",0,VLOOKUP($B10,Inputs!$C$68:$AN$129,MATCH($B11,Inputs!$C$68:$AN$68,0),FALSE))","v":1.0984639624469332},null,null,null,null,null,null,null,{"$f":"B11","v":"Lamp UNIT price Annualised Cost"},{"$f":"IF(E11=\"NA\",\"\",E11/R$2*100)","v":0.30012676569588337},{"$f":"IF(F11=\"NA\",\"\",F11/S$2*100)","v":0.30094903080737895},{"$f":"IF(G11=\"NA\",\"\",G11/T$2*100)","v":0.30094903080737895},{"$f":"IF(H11=\"NA\",\"\",H11/U$2*100)","v":0.30094903080737895},{"$f":"IF(I11=\"NA\",\"\",I11/V$2*100)","v":0.30012676569588337}]
[null,{"$f":"Inputs!$K$68","v":"PE Cell UNIT price Annualised Cost"},{"$f":"Inputs!$I$68","v":"PE Cell Maintenance Cycle"},null,{"$f":"IF($B10=\"Blank\",0,VLOOKUP($B10,Inputs!$C$68:$AN$129,MATCH($B12,Inputs!$C$68:$AN$68,0),FALSE))","v":0.58131255188333353},{"$f":"IF($B10=\"Blank\",0,VLOOKUP($B10,Inputs!$C$68:$AN$129,MATCH($B12,Inputs!$C$68:$AN$68,0),FALSE))","v":0.58131255188333353},{"$f":"IF($B10=\"Blank\",0,VLOOKUP($B10,Inputs!$C$68:$AN$129,MATCH($B12,Inputs!$C$68:$AN$68,0),FALSE))","v":0.58131255188333353},{"$f":"IF($B10=\"Blank\",0,VLOOKUP($B10,Inputs!$C$68:$AN$129,MATCH($B12,Inputs!$C$68:$AN$68,0),FALSE))","v":0.58131255188333353},{"$f":"IF($B10=\"Blank\",0,VLOOKUP($B10,Inputs!$C$68:$AN$129,MATCH($B12,Inputs!$C$68:$AN$68,0),FALSE))","v":0.58131255188333353},null,null,null,null,null,null,null,"PE Cell UNIT price Annualised Cost",0.15882856608834248,{"$f":"IF(F12=\"NA\",\"\",F12/S$2*100)","v":0.15926371284474891},0.15926371284474891,0.15926371284474891,0.15882856608834248]
[null,"Corp capex annuity per light",null,null,{"$f":"IF($B10=\"Blank\",0,'Corp Capex Annuity calcs'!F$142)","v":18.582309905017571},{"$f":"IF($B10=\"Blank\",0,'Corp Capex Annuity calcs'!G$142)","v":18.552026408230436},{"$f":"IF($B10=\"Blank\",0,'Corp Capex Annuity calcs'!H$142)","v":18.401377631486287},{"$f":"IF($B10=\"Blank\",0,'Corp Capex Annuity calcs'!I$142)","v":18.205761940470655},{"$f":"IF($B10=\"Blank\",0,'Corp Capex Annuity calcs'!J$142)","v":17.995165449295623},null,null,null,null,null,null,null,"Corp capex annuity per light",5.0771338538299373,5.0827469611590237,5.0414733236948734,4.9878799836905907,4.9167118713922466]
[null,{"$f":"Inputs!$U$68","v":"Lamp Service costs Annualised"},"Labour Portion of Lamp Service costs annualised",null,{"$f":"IF($B10=\"Blank\",0,VLOOKUP($B10,Inputs!$C$68:$AN$129,MATCH($B14,Inputs!$C$68:$AN$68,0),FALSE))+IFERROR(IF($B10=\"Blank\",0,VLOOKUP($B10,Inputs!$C$68:$AN$129,MATCH($C14,Inputs!$C$68:$AN$68,0),FALSE))*('Master Data'!K$42),0)","v":24.127490039840644},{"$f":"IF($B10=\"Blank\",0,VLOOKUP($B10,Inputs!$C$68:$AN$129,MATCH($B14,Inputs!$C$68:$AN$68,0),FALSE))+IFERROR(IF($B10=\"Blank\",0,VLOOKUP($B10,Inputs!$C$68:$AN$129,MATCH($C14,Inputs!$C$68:$AN$68,0),FALSE))*('Master Data'!L$42),0)","v":24.131023426294828},{"$f":"IF($B10=\"Blank\",0,VLOOKUP($B10,Inputs!$C$68:$AN$129,MATCH($B14,Inputs!$C$68:$AN$68,0),FALSE))+IFERROR(IF($B10=\"Blank\",0,VLOOKUP($B10,Inputs!$C$68:$AN$129,MATCH($C14,Inputs!$C$68:$AN$68,0),FALSE))*('Master Data'!M$42),0)","v":24.136412685577696},{"$f":"IF($B10=\"Blank\",0,VLOOKUP($B10,Inputs!$C$68:$AN$129,MATCH($B14,Inputs!$C$68:$AN$68,0),FALSE))+IFERROR(IF($B10=\"Blank\",0,VLOOKUP($B10,Inputs!$C$68:$AN$129,MATCH($C14,Inputs!$C$68:$AN$68,0),FALSE))*('Master Data'!N$42),0)","v":24.143056949368709},{"$f":"IF($B10=\"Blank\",0,VLOOKUP($B10,Inputs!$C$68:$AN$129,MATCH($B14,Inputs!$C$68:$AN$68,0),FALSE))+IFERROR(IF($B10=\"Blank\",0,VLOOKUP($B10,Inputs!$C$68:$AN$129,MATCH($C14,Inputs!$C$68:$AN$68,0),FALSE))*('Master Data'!O$42),0)","v":24.150816058816748},null,null,null,null,null,null,null,"Lamp Service costs Annualised",6.5922103933990828,6.611239294875296,6.6127158042678618,6.6145361505119755,6.598583622627527]
[null,{"$f":"Inputs!$M$68","v":"PE Cell Service costs Annualised"},"Labour Portion of PE Cell Service costs Annualised",null,{"$f":"IF($B10=\"Blank\",0,VLOOKUP($B10,Inputs!$C$68:$AN$129,MATCH($B15,Inputs!$C$68:$AN$68,0),FALSE))+IFERROR(IF($B10=\"Blank\",0,VLOOKUP($B10,Inputs!$C$68:$AN$129,MATCH($C15,Inputs!$C$68:$AN$68,0),FALSE))*('Master Data'!K$42),0)","v":0},{"$f":"IF($B10=\"Blank\",0,VLOOKUP($B10,Inputs!$C$68:$AN$129,MATCH($B15,Inputs!$C$68:$AN$68,0),FALSE))+IFERROR(IF($B10=\"Blank\",0,VLOOKUP($B10,Inputs!$C$68:$AN$129,MATCH($C15,Inputs!$C$68:$AN$68,0),FALSE))*('Master Data'!L$42),0)","v":0},{"$f":"IF($B10=\"Blank\",0,VLOOKUP($B10,Inputs!$C$68:$AN$129,MATCH($B15,Inputs!$C$68:$AN$68,0),FALSE))+IFERROR(IF($B10=\"Blank\",0,VLOOKUP($B10,Inputs!$C$68:$AN$129,MATCH($C15,Inputs!$C$68:$AN$68,0),FALSE))*('Master Data'!M$42),0)","v":0},{"$f":"IF($B10=\"Blank\",0,VLOOKUP($B10,Inputs!$C$68:$AN$129,MATCH($B15,Inputs!$C$68:$AN$68,0),FALSE))+IFERROR(IF($B10=\"Blank\",0,VLOOKUP($B10,Inputs!$C$68:$AN$129,MATCH($C15,Inputs!$C$68:$AN$68,0),FALSE))*('Master Data'!N$42),0)","v":0},{"$f":"IF($B10=\"Blank\",0,VLOOKUP($B10,Inputs!$C$68:$AN$129,MATCH($B15,Inputs!$C$68:$AN$68,0),FALSE))+IFERROR(IF($B10=\"Blank\",0,VLOOKUP($B10,Inputs!$C$68:$AN$129,MATCH($C15,Inputs!$C$68:$AN$68,0),FALSE))*('Master Data'!O$42),0)","v":0},null,null,null,null,null,null,null,"PE Cell Service costs Annualised",0,0,0,0,0]
[null,"Indirect Opex",null,null,{"$f":"IF($B10=\"Blank\",0,IF($B$8=\"Private Contract Lighting\",'Opex Weighting'!D$48,'Opex Weighting'!D$46))","v":12.159436933476723},{"$f":"IF($B10=\"Blank\",0,IF($B$8=\"Private Contract Lighting\",'Opex Weighting'!E$48,'Opex Weighting'!E$46))","v":12.139620760396495},{"$f":"IF($B10=\"Blank\",0,IF($B$8=\"Private Contract Lighting\",'Opex Weighting'!F$48,'Opex Weighting'!F$46))","v":12.041042902784117},{"$f":"IF($B10=\"Blank\",0,IF($B$8=\"Private Contract Lighting\",'Opex Weighting'!G$48,'Opex Weighting'!G$46))","v":11.913040696908689},{"$f":"IF($B10=\"Blank\",0,IF($B$8=\"Private Contract Lighting\",'Opex Weighting'!H$48,'Opex Weighting'!H$46))","v":11.775235721857506},null,null,null,null,null,null,null,"Indirect Opex",3.3222505282723289,3.32592349599904,3.2989158637764708,3.2638467662763535,3.2172775196331984]
[null,"Indirect Capex",null,null,{"$f":"IF($B11=\"Blank\",0,IF($B$8=\"Private Contract Lighting\",'Capex Weighting'!D$60,'Capex Weighting'!D$62))","v":0},{"$f":"IF($B11=\"Blank\",0,IF($B$8=\"Private Contract Lighting\",'Capex Weighting'!E$60,'Capex Weighting'!E$62))","v":0},{"$f":"IF($B11=\"Blank\",0,IF($B$8=\"Private Contract Lighting\",'Capex Weighting'!F$60,'Capex Weighting'!F$62))","v":0},{"$f":"IF($B11=\"Blank\",0,IF($B$8=\"Private Contract Lighting\",'Capex Weighting'!G$60,'Capex Weighting'!G$62))","v":0},{"$f":"IF($B11=\"Blank\",0,IF($B$8=\"Private Contract Lighting\",'Capex Weighting'!H$60,'Capex Weighting'!H$62))","v":0},null,null,null,null,null,null,null,"Indirect Capex",0,0,0,0,0]
[null,"Opex Overheads Costs per light",null,null,{"$f":"IF($B10=\"Blank\",0,IF($B$8=\"Private Contract Lighting\",'Building Block'!C$40,'Building Block'!C$39))","v":10.567257211169151},{"$f":"IF($B10=\"Blank\",0,IF($B$8=\"Private Contract Lighting\",'Building Block'!D$40,'Building Block'!D$39))","v":10.638037296614067},{"$f":"IF($B10=\"Blank\",0,IF($B$8=\"Private Contract Lighting\",'Building Block'!E$40,'Building Block'!E$39))","v":9.8094883699069495},{"$f":"IF($B10=\"Blank\",0,IF($B$8=\"Private Contract Lighting\",'Building Block'!F$40,'Building Block'!F$39))","v":9.7894714768092079},{"$f":"IF($B10=\"Blank\",0,IF($B$8=\"Private Contract Lighting\",'Building Block'!G$40,'Building Block'!G$39))","v":9.7584857493224391},null,null,null,null,null,null,null,"Opex Overheads Costs per light",2.8872287462210795,2.914530766195635,2.6875310602484794,2.6820469799477284,2.6662529369733439]
[null,{"$f":"Inputs!$AK$68","v":"Bracket UNIT price"},0,null,"NA","NA","NA","NA","NA",null,null,null,null,null,null,null,"Bracket UNIT price","","","","",""]
[null,{"$f":"Inputs!$AA$68","v":"CAPEX Instalation costs"},{"$f":"C19+1","v":1},null,"NA","NA","NA","NA","NA",null,null,null,null,null,null,null,"CAPEX Instalation costs","","","","",""]
[null,{"$f":"Inputs!$Z$68","v":"Luminaire UNIT price"},{"$f":"C20+1","v":2},null,"NA","NA","NA","NA","NA",null,null,null,null,null,null,null,"Luminaire UNIT price","","","","",""]
[null,{"$f":"Inputs!$AA$68","v":"CAPEX Instalation costs"},3,null,"NA","NA","NA","NA","NA",null,null,null,null,null,null,null,"CAPEX Instalation costs","","","","",""]
[null,null,null,null,{"$f":"SUM(E11:E22)","v":67.116270603834352},{"$f":"SUM(F11:F22)","v":67.140484405866104},66.068098104085308,{"$f":"SUM(H11:H22)","v":65.731107577887528},65.359479493622587,null,null,null,null,null,null,null,null,{"$f":"ROUND(E23/R$2*100,3)","v":18.338000000000001},{"$f":"ROUND(F23/S$2*100,3)","v":18.395},{"$f":"ROUND(G23/T$2*100,3)","v":18.100999999999999},{"$f":"ROUND(H23/U$2*100,3)","v":18.009},{"$f":"ROUND(I23/V$2*100,3)","v":17.858000000000001}]
[]
[{"$f":"A10+1","v":2},{"$f":"IFERROR(VLOOKUP($A25,Inputs!$B$68:$AN$129,MATCH($B$7,Inputs!$B$68:$AN$68,0),FALSE),\"Blank\")","v":"42W Compact Fluorescent"},null,null,null,null,null,null,null,null,null,null,null,null,null,null,{"$f":"IFERROR(VLOOKUP($A25,Inputs!$B$68:$AN$129,MATCH($B$7,Inputs!$B$68:$AN$68,0),FALSE),\"Blank\")","v":"42W Compact Fluorescent"}]
[null,{"$f":"Inputs!$S$68","v":"Lamp UNIT price Annualised Cost"},{"$f":"Inputs!$Q$68","v":"Lamp Maintenance cycle"},null,{"$f":"IF($B25=\"Blank\",0,VLOOKUP($B25,Inputs!$C$68:$AN$129,MATCH($B26,Inputs!$C$68:$AN$68,0),FALSE))","v":1.0984639624469332},{"$f":"IF($B25=\"Blank\",0,VLOOKUP($B25,Inputs!$C$68:$AN$129,MATCH($B26,Inputs!$C$68:$AN$68,0),FALSE))","v":1.0984639624469332},{"$f":"IF($B25=\"Blank\",0,VLOOKUP($B25,Inputs!$C$68:$AN$129,MATCH($B26,Inputs!$C$68:$AN$68,0),FALSE))","v":1.0984639624469332},{"$f":"IF($B25=\"Blank\",0,VLOOKUP($B25,Inputs!$C$68:$AN$129,MATCH($B26,Inputs!$C$68:$AN$68,0),FALSE))","v":1.0984639624469332},{"$f":"IF($B25=\"Blank\",0,VLOOKUP($B25,Inputs!$C$68:$AN$129,MATCH($B26,Inputs!$C$68:$AN$68,0),FALSE))","v":1.0984639624469332},null,null,null,null,null,null,null,{"$f":"B26","v":"Lamp UNIT price Annualised Cost"},{"$f":"IF(E26=\"NA\",\"\",E26/R$2*100)","v":0.30012676569588337},{"$f":"IF(F26=\"NA\",\"\",F26/S$2*100)","v":0.30094903080737895},{"$f":"IF(G26=\"NA\",\"\",G26/T$2*100)","v":0.30094903080737895},{"$f":"IF(H26=\"NA\",\"\",H26/U$2*100)","v":0.30094903080737895},{"$f":"IF(I26=\"NA\",\"\",I26/V$2*100)","v":0.30012676569588337}]
[null,{"$f":"Inputs!$K$68","v":"PE Cell UNIT price Annualised Cost"},{"$f":"Inputs!$I$68","v":"PE Cell Maintenance Cycle"},null,{"$f":"IF($B25=\"Blank\",0,VLOOKUP($B25,Inputs!$C$68:$AN$129,MATCH($B27,Inputs!$C$68:$AN$68,0),FALSE))","v":0.58131255188333353},{"$f":"IF($B25=\"Blank\",0,VLOOKUP($B25,Inputs!$C$68:$AN$129,MATCH($B27,Inputs!$C$68:$AN$68,0),FALSE))","v":0.58131255188333353},{"$f":"IF($B25=\"Blank\",0,VLOOKUP($B25,Inputs!$C$68:$AN$129,MATCH($B27,Inputs!$C$68:$AN$68,0),FALSE))","v":0.58131255188333353},{"$f":"IF($B25=\"Blank\",0,VLOOKUP($B25,Inputs!$C$68:$AN$129,MATCH($B27,Inputs!$C$68:$AN$68,0),FALSE))","v":0.58131255188333353},{"$f":"IF($B25=\"Blank\",0,VLOOKUP($B25,Inputs!$C$68:$AN$129,MATCH($B27,Inputs!$C$68:$AN$68,0),FALSE))","v":0.58131255188333353},null,null,null,null,null,null,null,"PE Cell UNIT price Annualised Cost",0.15882856608834248,0.15926371284474891,0.15926371284474891,0.15926371284474891,0.15882856608834248]
[null,"Corp capex annuity per light",null,null,{"$f":"IF($B25=\"Blank\",0,'Corp Capex Annuity calcs'!F$142)","v":18.582309905017571},{"$f":"IF($B25=\"Blank\",0,'Corp Capex Annuity calcs'!G$142)","v":18.552026408230436},{"$f":"IF($B25=\"Blank\",0,'Corp Capex Annuity calcs'!H$142)","v":18.401377631486287},{"$f":"IF($B25=\"Blank\",0,'Corp Capex Annuity calcs'!I$142)","v":18.205761940470655},{"$f":"IF($B25=\"Blank\",0,'Corp Capex Annuity calcs'!J$142)","v":17.995165449295623},null,null,null,null,null,null,null,"Corp capex annuity per light",5.0771338538299373,5.0827469611590237,5.0414733236948734,4.9878799836905907,4.9167118713922466]
[null,{"$f":"Inputs!$U$68","v":"Lamp Service costs Annualised"},"Labour Portion of Lamp Service costs annualised",null,{"$f":"IF($B25=\"Blank\",0,VLOOKUP($B25,Inputs!$C$68:$AN$129,MATCH($B29,Inputs!$C$68:$AN$68,0),FALSE))+IFERROR(IF($B25=\"Blank\",0,VLOOKUP($B25,Inputs!$C$68:$AN$129,MATCH($C29,Inputs!$C$68:$AN$68,0),FALSE))*('Master Data'!K$42),0)","v":24.127490039840644},{"$f":"IF($B25=\"Blank\",0,VLOOKUP($B25,Inputs!$C$68:$AN$129,MATCH($B29,Inputs!$C$68:$AN$68,0),FALSE))+IFERROR(IF($B25=\"Blank\",0,VLOOKUP($B25,Inputs!$C$68:$AN$129,MATCH($C29,Inputs!$C$68:$AN$68,0),FALSE))*('Master Data'!L$42),0)","v":24.131023426294828},{"$f":"IF($B25=\"Blank\",0,VLOOKUP($B25,Inputs!$C$68:$AN$129,MATCH($B29,Inputs!$C$68:$AN$68,0),FALSE))+IFERROR(IF($B25=\"Blank\",0,VLOOKUP($B25,Inputs!$C$68:$AN$129,MATCH($C29,Inputs!$C$68:$AN$68,0),FALSE))*('Master Data'!M$42),0)","v":24.136412685577696},{"$f":"IF($B25=\"Blank\",0,VLOOKUP($B25,Inputs!$C$68:$AN$129,MATCH($B29,Inputs!$C$68:$AN$68,0),FALSE))+IFERROR(IF($B25=\"Blank\",0,VLOOKUP($B25,Inputs!$C$68:$AN$129,MATCH($C29,Inputs!$C$68:$AN$68,0),FALSE))*('Master Data'!N$42),0)","v":24.143056949368709},{"$f":"IF($B25=\"Blank\",0,VLOOKUP($B25,Inputs!$C$68:$AN$129,MATCH($B29,Inputs!$C$68:$AN$68,0),FALSE))+IFERROR(IF($B25=\"Blank\",0,VLOOKUP($B25,Inputs!$C$68:$AN$129,MATCH($C29,Inputs!$C$68:$AN$68,0),FALSE))*('Master Data'!O$42),0)","v":24.150816058816748},null,null,null,null,null,null,null,"Lamp Service costs Annualised",6.5922103933990828,6.611239294875296,6.6127158042678618,6.6145361505119755,6.598583622627527]
[null,{"$f":"Inputs!$M$68","v":"PE Cell Service costs Annualised"},"Labour Portion of PE Cell Service costs Annualised",null,{"$f":"IF($B25=\"Blank\",0,VLOOKUP($B25,Inputs!$C$68:$AN$129,MATCH($B30,Inputs!$C$68:$AN$68,0),FALSE))+IFERROR(IF($B25=\"Blank\",0,VLOOKUP($B25,Inputs!$C$68:$AN$129,MATCH($C30,Inputs!$C$68:$AN$68,0),FALSE))*('Master Data'!K$42),0)","v":0},{"$f":"IF($B25=\"Blank\",0,VLOOKUP($B25,Inputs!$C$68:$AN$129,MATCH($B30,Inputs!$C$68:$AN$68,0),FALSE))+IFERROR(IF($B25=\"Blank\",0,VLOOKUP($B25,Inputs!$C$68:$AN$129,MATCH($C30,Inputs!$C$68:$AN$68,0),FALSE))*('Master Data'!L$42),0)","v":0},{"$f":"IF($B25=\"Blank\",0,VLOOKUP($B25,Inputs!$C$68:$AN$129,MATCH($B30,Inputs!$C$68:$AN$68,0),FALSE))+IFERROR(IF($B25=\"Blank\",0,VLOOKUP($B25,Inputs!$C$68:$AN$129,MATCH($C30,Inputs!$C$68:$AN$68,0),FALSE))*('Master Data'!M$42),0)","v":0},{"$f":"IF($B25=\"Blank\",0,VLOOKUP($B25,Inputs!$C$68:$AN$129,MATCH($B30,Inputs!$C$68:$AN$68,0),FALSE))+IFERROR(IF($B25=\"Blank\",0,VLOOKUP($B25,Inputs!$C$68:$AN$129,MATCH($C30,Inputs!$C$68:$AN$68,0),FALSE))*('Master Data'!N$42),0)","v":0},{"$f":"IF($B25=\"Blank\",0,VLOOKUP($B25,Inputs!$C$68:$AN$129,MATCH($B30,Inputs!$C$68:$AN$68,0),FALSE))+IFERROR(IF($B25=\"Blank\",0,VLOOKUP($B25,Inputs!$C$68:$AN$129,MATCH($C30,Inputs!$C$68:$AN$68,0),FALSE))*('Master Data'!O$42),0)","v":0},null,null,null,null,null,null,null,"PE Cell Service costs Annualised",0,0,0,0,0]
[null,"Indirect Opex",null,null,{"$f":"IF($B25=\"Blank\",0,IF($B$8=\"Private Contract Lighting\",'Opex Weighting'!D$48,'Opex Weighting'!D$46))","v":12.159436933476723},{"$f":"IF($B25=\"Blank\",0,IF($B$8=\"Private Contract Lighting\",'Opex Weighting'!E$48,'Opex Weighting'!E$46))","v":12.139620760396495},{"$f":"IF($B25=\"Blank\",0,IF($B$8=\"Private Contract Lighting\",'Opex Weighting'!F$48,'Opex Weighting'!F$46))","v":12.041042902784117},{"$f":"IF($B25=\"Blank\",0,IF($B$8=\"Private Contract Lighting\",'Opex Weighting'!G$48,'Opex Weighting'!G$46))","v":11.913040696908689},{"$f":"IF($B25=\"Blank\",0,IF($B$8=\"Private Contract Lighting\",'Opex Weighting'!H$48,'Opex Weighting'!H$46))","v":11.775235721857506},null,null,null,null,null,null,null,"Indirect Opex",3.3222505282723289,3.32592349599904,3.2989158637764708,3.2638467662763535,3.2172775196331984]
[null,"Indirect Capex",null,null,{"$f":"IF($B26=\"Blank\",0,IF($B$8=\"Private Contract Lighting\",'Capex Weighting'!D$60,'Capex Weighting'!D$62))","v":0},{"$f":"IF($B26=\"Blank\",0,IF($B$8=\"Private Contract Lighting\",'Capex Weighting'!E$60,'Capex Weighting'!E$62))","v":0},{"$f":"IF($B26=\"Blank\",0,IF($B$8=\"Private Contract Lighting\",'Capex Weighting'!F$60,'Capex Weighting'!F$62))","v":0},{"$f":"IF($B26=\"Blank\",0,IF($B$8=\"Private Contract Lighting\",'Capex Weighting'!G$60,'Capex Weighting'!G$62))","v":0},{"$f":"IF($B26=\"Blank\",0,IF($B$8=\"Private Contract Lighting\",'Capex Weighting'!H$60,'Capex Weighting'!H$62))","v":0},null,null,null,null,null,null,null,"Indirect Capex",0,0,0,0,0]
[null,"Opex Overheads Costs per light",null,null,{"$f":"IF($B25=\"Blank\",0,IF($B$8=\"Private Contract Lighting\",'Building Block'!C$40,'Building Block'!C$39))","v":10.567257211169151},{"$f":"IF($B25=\"Blank\",0,IF($B$8=\"Private Contract Lighting\",'Building Block'!D$40,'Building Block'!D$39))","v":10.638037296614067},{"$f":"IF($B25=\"Blank\",0,IF($B$8=\"Private Contract Lighting\",'Building Block'!E$40,'Building Block'!E$39))","v":9.8094883699069495},{"$f":"IF($B25=\"Blank\",0,IF($B$8=\"Private Contract Lighting\",'Building Block'!F$40,'Building Block'!F$39))","v":9.7894714768092079},{"$f":"IF($B25=\"Blank\",0,IF($B$8=\"Private Contract Lighting\",'Building Block'!G$40,'Building Block'!G$39))","v":9.7584857493224391},null,null,null,null,null,null,null,"Opex Overheads Costs per light",2.8872287462210795,2.914530766195635,2.6875310602484794,2.6820469799477284,2.6662529369733439]
[null,{"$f":"Inputs!$AK$68","v":"Bracket UNIT price"},0,null,"NA","NA","NA","NA","NA",null,null,null,null,null,null,null,"Bracket UNIT price","","","","",""]
[null,{"$f":"Inputs!$AA$68","v":"CAPEX Instalation costs"},{"$f":"C34+1","v":1},null,"NA","NA","NA","NA","NA",null,null,null,null,null,null,null,"CAPEX Instalation costs","","","","",""]
[null,{"$f":"Inputs!$Z$68","v":"Luminaire UNIT price"},{"$f":"C35+1","v":2},null,"NA","NA","NA","NA","NA",null,null,null,null,null,null,null,"Luminaire UNIT price","","","","",""]
[null,{"$f":"Inputs!$AA$68","v":"CAPEX Instalation costs"},3,null,"NA","NA","NA","NA","NA",null,null,null,null,null,null,null,"CAPEX Instalation costs","","","","",""]
[null,null,null,null,{"$f":"SUM(E26:E37)","v":67.116270603834352},{"$f":"SUM(F26:F37)","v":67.140484405866104},{"$f":"SUM(G26:G37)","v":66.068098104085308},{"$f":"SUM(H26:H37)","v":65.731107577887528},65.359479493622587,null,null,null,null,null,null,null,null,{"$f":"ROUND(E38/R$2*100,3)","v":18.338000000000001},{"$f":"ROUND(F38/S$2*100,3)","v":18.395},{"$f":"ROUND(G38/T$2*100,3)","v":18.100999999999999},{"$f":"ROUND(H38/U$2*100,3)","v":18.009},{"$f":"ROUND(I38/V$2*100,3)","v":17.858000000000001}]
[]
[{"$f":"A25+1","v":3},{"$f":"IFERROR(VLOOKUP($A40,Inputs!$B$68:$AN$129,MATCH($B$7,Inputs!$B$68:$AN$68,0),FALSE),\"Blank\")","v":"42W Compact Fluorescent - Bottom Pole Entry"},null,null,null,null,null,null,null,null,null,null,null,null,null,null,{"$f":"IFERROR(VLOOKUP($A40,Inputs!$B$68:$AN$129,MATCH($B$7,Inputs!$B$68:$AN$68,0),FALSE),\"Blank\")","v":"42W Compact Fluorescent - Bottom Pole Entry"}]
[null,{"$f":"Inputs!$S$68","v":"Lamp UNIT price Annualised Cost"},{"$f":"Inputs!$Q$68","v":"Lamp Maintenance cycle"},null,{"$f":"IF($B40=\"Blank\",0,VLOOKUP($B40,Inputs!$C$68:$AN$129,MATCH($B41,Inputs!$C$68:$AN$68,0),FALSE))","v":1.0984639624469332},{"$f":"IF($B40=\"Blank\",0,VLOOKUP($B40,Inputs!$C$68:$AN$129,MATCH($B41,Inputs!$C$68:$AN$68,0),FALSE))","v":1.0984639624469332},{"$f":"IF($B40=\"Blank\",0,VLOOKUP($B40,Inputs!$C$68:$AN$129,MATCH($B41,Inputs!$C$68:$AN$68,0),FALSE))","v":1.0984639624469332},{"$f":"IF($B40=\"Blank\",0,VLOOKUP($B40,Inputs!$C$68:$AN$129,MATCH($B41,Inputs!$C$68:$AN$68,0),FALSE))","v":1.0984639624469332},{"$f":"IF($B40=\"Blank\",0,VLOOKUP($B40,Inputs!$C$68:$AN$129,MATCH($B41,Inputs!$C$68:$AN$68,0),FALSE))","v":1.0984639624469332},null,null,null,null,null,null,null,{"$f":"B41","v":"Lamp UNIT price Annualised Cost"},{"$f":"IF(E41=\"NA\",\"\",E41/R$2*100)","v":0.30012676569588337},{"$f":"IF(F41=\"NA\",\"\",F41/S$2*100)","v":0.30094903080737895},{"$f":"IF(G41=\"NA\",\"\",G41/T$2*100)","v":0.30094903080737895},{"$f":"IF(H41=\"NA\",\"\",H41/U$2*100)","v":0.30094903080737895},{"$f":"IF(I41=\"NA\",\"\",I41/V$2*100)","v":0.30012676569588337}]
[null,{"$f":"Inputs!$K$68","v":"PE Cell UNIT price Annualised Cost"},{"$f":"Inputs!$I$68","v":"PE Cell Maintenance Cycle"},null,{"$f":"IF($B40=\"Blank\",0,VLOOKUP($B40,Inputs!$C$68:$AN$129,MATCH($B42,Inputs!$C$68:$AN$68,0),FALSE))","v":0.58131255188333353},{"$f":"IF($B40=\"Blank\",0,VLOOKUP($B40,Inputs!$C$68:$AN$129,MATCH($B42,Inputs!$C$68:$AN$68,0),FALSE))","v":0.58131255188333353},{"$f":"IF($B40=\"Blank\",0,VLOOKUP($B40,Inputs!$C$68:$AN$129,MATCH($B42,Inputs!$C$68:$AN$68,0),FALSE))","v":0.58131255188333353},{"$f":"IF($B40=\"Blank\",0,VLOOKUP($B40,Inputs!$C$68:$AN$129,MATCH($B42,Inputs!$C$68:$AN$68,0),FALSE))","v":0.58131255188333353},{"$f":"IF($B40=\"Blank\",0,VLOOKUP($B40,Inputs!$C$68:$AN$129,MATCH($B42,Inputs!$C$68:$AN$68,0),FALSE))","v":0.58131255188333353},null,null,null,null,null,null,null,"PE Cell UNIT price Annualised Cost",0.15882856608834248,0.15926371284474891,0.15926371284474891,0.15926371284474891,0.15882856608834248]
[null,"Corp capex annuity per light",null,null,{"$f":"IF($B40=\"Blank\",0,'Corp Capex Annuity calcs'!F$142)","v":18.582309905017571},{"$f":"IF($B40=\"Blank\",0,'Corp Capex Annuity calcs'!G$142)","v":18.552026408230436},{"$f":"IF($B40=\"Blank\",0,'Corp Capex Annuity calcs'!H$142)","v":18.401377631486287},{"$f":"IF($B40=\"Blank\",0,'Corp Capex Annuity calcs'!I$142)","v":18.205761940470655},{"$f":"IF($B40=\"Blank\",0,'Corp Capex Annuity calcs'!J$142)","v":17.995165449295623},null,null,null,null,null,null,null,"Corp capex annuity per light",5.0771338538299373,5.0827469611590237,5.0414733236948734,4.9878799836905907,4.9167118713922466]
[null,{"$f":"Inputs!$U$68","v":"Lamp Service costs Annualised"},"Labour Portion of Lamp Service costs annualised",null,{"$f":"IF($B40=\"Blank\",0,VLOOKUP($B40,Inputs!$C$68:$AN$129,MATCH($B44,Inputs!$C$68:$AN$68,0),FALSE))+IFERROR(IF($B40=\"Blank\",0,VLOOKUP($B40,Inputs!$C$68:$AN$129,MATCH($C44,Inputs!$C$68:$AN$68,0),FALSE))*('Master Data'!K$42),0)","v":24.127490039840644},{"$f":"IF($B40=\"Blank\",0,VLOOKUP($B40,Inputs!$C$68:$AN$129,MATCH($B44,Inputs!$C$68:$AN$68,0),FALSE))+IFERROR(IF($B40=\"Blank\",0,VLOOKUP($B40,Inputs!$C$68:$AN$129,MATCH($C44,Inputs!$C$68:$AN$68,0),FALSE))*('Master Data'!L$42),0)","v":24.131023426294828},{"$f":"IF($B40=\"Blank\",0,VLOOKUP($B40,Inputs!$C$68:$AN$129,MATCH($B44,Inputs!$C$68:$AN$68,0),FALSE))+IFERROR(IF($B40=\"Blank\",0,VLOOKUP($B40,Inputs!$C$68:$AN$129,MATCH($C44,Inputs!$C$68:$AN$68,0),FALSE))*('Master Data'!M$42),0)","v":24.136412685577696},{"$f":"IF($B40=\"Blank\",0,VLOOKUP($B40,Inputs!$C$68:$AN$129,MATCH($B44,Inputs!$C$68:$AN$68,0),FALSE))+IFERROR(IF($B40=\"Blank\",0,VLOOKUP($B40,Inputs!$C$68:$AN$129,MATCH($C44,Inputs!$C$68:$AN$68,0),FALSE))*('Master Data'!N$42),0)","v":24.143056949368709},{"$f":"IF($B40=\"Blank\",0,VLOOKUP($B40,Inputs!$C$68:$AN$129,MATCH($B44,Inputs!$C$68:$AN$68,0),FALSE))+IFERROR(IF($B40=\"Blank\",0,VLOOKUP($B40,Inputs!$C$68:$AN$129,MATCH($C44,Inputs!$C$68:$AN$68,0),FALSE))*('Master Data'!O$42),0)","v":24.150816058816748},null,null,null,null,null,null,null,"Lamp Service costs Annualised",6.5922103933990828,6.611239294875296,6.6127158042678618,6.6145361505119755,6.598583622627527]
[null,{"$f":"Inputs!$M$68","v":"PE Cell Service costs Annualised"},"Labour Portion of PE Cell Service costs Annualised",null,{"$f":"IF($B40=\"Blank\",0,VLOOKUP($B40,Inputs!$C$68:$AN$129,MATCH($B45,Inputs!$C$68:$AN$68,0),FALSE))+IFERROR(IF($B40=\"Blank\",0,VLOOKUP($B40,Inputs!$C$68:$AN$129,MATCH($C45,Inputs!$C$68:$AN$68,0),FALSE))*('Master Data'!K$42),0)","v":0},{"$f":"IF($B40=\"Blank\",0,VLOOKUP($B40,Inputs!$C$68:$AN$129,MATCH($B45,Inputs!$C$68:$AN$68,0),FALSE))+IFERROR(IF($B40=\"Blank\",0,VLOOKUP($B40,Inputs!$C$68:$AN$129,MATCH($C45,Inputs!$C$68:$AN$68,0),FALSE))*('Master Data'!L$42),0)","v":0},{"$f":"IF($B40=\"Blank\",0,VLOOKUP($B40,Inputs!$C$68:$AN$129,MATCH($B45,Inputs!$C$68:$AN$68,0),FALSE))+IFERROR(IF($B40=\"Blank\",0,VLOOKUP($B40,Inputs!$C$68:$AN$129,MATCH($C45,Inputs!$C$68:$AN$68,0),FALSE))*('Master Data'!M$42),0)","v":0},{"$f":"IF($B40=\"Blank\",0,VLOOKUP($B40,Inputs!$C$68:$AN$129,MATCH($B45,Inputs!$C$68:$AN$68,0),FALSE))+IFERROR(IF($B40=\"Blank\",0,VLOOKUP($B40,Inputs!$C$68:$AN$129,MATCH($C45,Inputs!$C$68:$AN$68,0),FALSE))*('Master Data'!N$42),0)","v":0},{"$f":"IF($B40=\"Blank\",0,VLOOKUP($B40,Inputs!$C$68:$AN$129,MATCH($B45,Inputs!$C$68:$AN$68,0),FALSE))+IFERROR(IF($B40=\"Blank\",0,VLOOKUP($B40,Inputs!$C$68:$AN$129,MATCH($C45,Inputs!$C$68:$AN$68,0),FALSE))*('Master Data'!O$42),0)","v":0},null,null,null,null,null,null,null,"PE Cell Service costs Annualised",0,0,0,0,0]
[null,"Indirect Opex",null,null,{"$f":"IF($B40=\"Blank\",0,IF($B$8=\"Private Contract Lighting\",'Opex Weighting'!D$48,'Opex Weighting'!D$46))","v":12.159436933476723},{"$f":"IF($B40=\"Blank\",0,IF($B$8=\"Private Contract Lighting\",'Opex Weighting'!E$48,'Opex Weighting'!E$46))","v":12.139620760396495},{"$f":"IF($B40=\"Blank\",0,IF($B$8=\"Private Contract Lighting\",'Opex Weighting'!F$48,'Opex Weighting'!F$46))","v":12.041042902784117},{"$f":"IF($B40=\"Blank\",0,IF($B$8=\"Private Contract Lighting\",'Opex Weighting'!G$48,'Opex Weighting'!G$46))","v":11.913040696908689},{"$f":"IF($B40=\"Blank\",0,IF($B$8=\"Private Contract Lighting\",'Opex Weighting'!H$48,'Opex Weighting'!H$46))","v":11.775235721857506},null,null,null,null,null,null,null,"Indirect Opex",3.3222505282723289,3.32592349599904,3.2989158637764708,3.2638467662763535,3.2172775196331984]
[null,"Indirect Capex",null,null,{"$f":"IF($B41=\"Blank\",0,IF($B$8=\"Private Contract Lighting\",'Capex Weighting'!D$60,'Capex Weighting'!D$62))","v":0},{"$f":"IF($B41=\"Blank\",0,IF($B$8=\"Private Contract Lighting\",'Capex Weighting'!E$60,'Capex Weighting'!E$62))","v":0},{"$f":"IF($B41=\"Blank\",0,IF($B$8=\"Private Contract Lighting\",'Capex Weighting'!F$60,'Capex Weighting'!F$62))","v":0},{"$f":"IF($B41=\"Blank\",0,IF($B$8=\"Private Contract Lighting\",'Capex Weighting'!G$60,'Capex Weighting'!G$62))","v":0},{"$f":"IF($B41=\"Blank\",0,IF($B$8=\"Private Contract Lighting\",'Capex Weighting'!H$60,'Capex Weighting'!H$62))","v":0},null,null,null,null,null,null,null,"Indirect Capex",0,0,0,0,0]
[null,"Opex Overheads Costs per light",null,null,{"$f":"IF($B40=\"Blank\",0,IF($B$8=\"Private Contract Lighting\",'Building Block'!C$40,'Building Block'!C$39))","v":10.567257211169151},{"$f":"IF($B40=\"Blank\",0,IF($B$8=\"Private Contract Lighting\",'Building Block'!D$40,'Building Block'!D$39))","v":10.638037296614067},{"$f":"IF($B40=\"Blank\",0,IF($B$8=\"Private Contract Lighting\",'Building Block'!E$40,'Building Block'!E$39))","v":9.8094883699069495},{"$f":"IF($B40=\"Blank\",0,IF($B$8=\"Private Contract Lighting\",'Building Block'!F$40,'Building Block'!F$39))","v":9.7894714768092079},{"$f":"IF($B40=\"Blank\",0,IF($B$8=\"Private Contract Lighting\",'Building Block'!G$40,'Building Block'!G$39))","v":9.7584857493224391},null,null,null,null,null,null,null,"Opex Overheads Costs per light",2.8872287462210795,2.914530766195635,2.6875310602484794,2.6820469799477284,2.6662529369733439]
[null,{"$f":"Inputs!$AK$68","v":"Bracket UNIT price"},0,null,"NA","NA","NA","NA","NA",null,null,null,null,null,null,null,"Bracket UNIT price","","","","",""]
[null,{"$f":"Inputs!$AA$68","v":"CAPEX Instalation costs"},{"$f":"C49+1","v":1},null,"NA","NA","NA","NA","NA",null,null,null,null,null,null,null,"CAPEX Instalation costs","","","","",""]
[null,{"$f":"Inputs!$Z$68","v":"Luminaire UNIT price"},{"$f":"C50+1","v":2},null,"NA","NA","NA","NA","NA",null,null,null,null,null,null,null,"Luminaire UNIT price","","","","",""]
[null,{"$f":"Inputs!$AA$68","v":"CAPEX Instalation costs"},3,null,"NA","NA","NA","NA","NA",null,null,null,null,null,null,null,"CAPEX Instalation costs","","","","",""]
[null,null,null,null,{"$f":"SUM(E41:E52)","v":67.116270603834352},{"$f":"SUM(F41:F52)","v":67.140484405866104},66.068098104085308,65.731107577887528,65.359479493622587,null,null,null,null,null,null,null,null,{"$f":"ROUND(E53/R$2*100,3)","v":18.338000000000001},{"$f":"ROUND(F53/S$2*100,3)","v":18.395},{"$f":"ROUND(G53/T$2*100,3)","v":18.100999999999999},{"$f":"ROUND(H53/U$2*100,3)","v":18.009},{"$f":"ROUND(I53/V$2*100,3)","v":17.858000000000001}]
[]
[{"$f":"A40+1","v":4},{"$f":"IFERROR(VLOOKUP($A55,Inputs!$B$68:$AN$129,MATCH($B$7,Inputs!$B$68:$AN$68,0),FALSE),\"Blank\")","v":"2x24W Compact Fluorescent"},null,null,null,null,null,null,null,null,null,null,null,null,null,null,{"$f":"IFERROR(VLOOKUP($A55,Inputs!$B$68:$AN$129,MATCH($B$7,Inputs!$B$68:$AN$68,0),FALSE),\"Blank\")","v":"2x24W Compact Fluorescent"}]
[null,{"$f":"Inputs!$S$68","v":"Lamp UNIT price Annualised Cost"},{"$f":"Inputs!$Q$68","v":"Lamp Maintenance cycle"},null,{"$f":"IF($B55=\"Blank\",0,VLOOKUP($B55,Inputs!$C$68:$AN$129,MATCH($B56,Inputs!$C$68:$AN$68,0),FALSE))","v":2.1969279248938665},{"$f":"IF($B55=\"Blank\",0,VLOOKUP($B55,Inputs!$C$68:$AN$129,MATCH($B56,Inputs!$C$68:$AN$68,0),FALSE))","v":2.1969279248938665},{"$f":"IF($B55=\"Blank\",0,VLOOKUP($B55,Inputs!$C$68:$AN$129,MATCH($B56,Inputs!$C$68:$AN$68,0),FALSE))","v":2.1969279248938665},{"$f":"IF($B55=\"Blank\",0,VLOOKUP($B55,Inputs!$C$68:$AN$129,MATCH($B56,Inputs!$C$68:$AN$68,0),FALSE))","v":2.1969279248938665},{"$f":"IF($B55=\"Blank\",0,VLOOKUP($B55,Inputs!$C$68:$AN$129,MATCH($B56,Inputs!$C$68:$AN$68,0),FALSE))","v":2.1969279248938665},null,null,null,null,null,null,null,{"$f":"B56","v":"Lamp UNIT price Annualised Cost"},{"$f":"IF(E56=\"NA\",\"\",E56/R$2*100)","v":0.60025353139176674},{"$f":"IF(F56=\"NA\",\"\",F56/S$2*100)","v":0.6018980616147579},{"$f":"IF(G56=\"NA\",\"\",G56/T$2*100)","v":0.6018980616147579},{"$f":"IF(H56=\"NA\",\"\",H56/U$2*100)","v":0.6018980616147579},{"$f":"IF(I56=\"NA\",\"\",I56/V$2*100)","v":0.60025353139176674}]
[null,{"$f":"Inputs!$K$68","v":"PE Cell UNIT price Annualised Cost"},{"$f":"Inputs!$I$68","v":"PE Cell Maintenance Cycle"},null,{"$f":"IF($B55=\"Blank\",0,VLOOKUP($B55,Inputs!$C$68:$AN$129,MATCH($B57,Inputs!$C$68:$AN$68,0),FALSE))","v":0.58131255188333353},{"$f":"IF($B55=\"Blank\",0,VLOOKUP($B55,Inputs!$C$68:$AN$129,MATCH($B57,Inputs!$C$68:$AN$68,0),FALSE))","v":0.58131255188333353},{"$f":"IF($B55=\"Blank\",0,VLOOKUP($B55,Inputs!$C$68:$AN$129,MATCH($B57,Inputs!$C$68:$AN$68,0),FALSE))","v":0.58131255188333353},{"$f":"IF($B55=\"Blank\",0,VLOOKUP($B55,Inputs!$C$68:$AN$129,MATCH($B57,Inputs!$C$68:$AN$68,0),FALSE))","v":0.58131255188333353},{"$f":"IF($B55=\"Blank\",0,VLOOKUP($B55,Inputs!$C$68:$AN$129,MATCH($B57,Inputs!$C$68:$AN$68,0),FALSE))","v":0.58131255188333353},null,null,null,null,null,null,null,"PE Cell UNIT price Annualised Cost",0.15882856608834248,0.15926371284474891,0.15926371284474891,0.15926371284474891,0.15882856608834248]
[null,"Corp capex annuity per light",null,null,{"$f":"IF($B55=\"Blank\",0,'Corp Capex Annuity calcs'!F$142)","v":18.582309905017571},{"$f":"IF($B55=\"Blank\",0,'Corp Capex Annuity calcs'!G$142)","v":18.552026408230436},{"$f":"IF($B55=\"Blank\",0,'Corp Capex Annuity calcs'!H$142)","v":18.401377631486287},{"$f":"IF($B55=\"Blank\",0,'Corp Capex Annuity calcs'!I$142)","v":18.205761940470655},{"$f":"IF($B55=\"Blank\",0,'Corp Capex Annuity calcs'!J$142)","v":17.995165449295623},null,null,null,null,null,null,null,"Corp capex annuity per light",5.0771338538299373,5.0827469611590237,5.0414733236948734,4.9878799836905907,4.9167118713922466]
[null,{"$f":"Inputs!$U$68","v":"Lamp Service costs Annualised"},"Labour Portion of Lamp Service costs annualised",null,{"$f":"IF($B55=\"Blank\",0,VLOOKUP($B55,Inputs!$C$68:$AN$129,MATCH($B59,Inputs!$C$68:$AN$68,0),FALSE))+IFERROR(IF($B55=\"Blank\",0,VLOOKUP($B55,Inputs!$C$68:$AN$129,MATCH($C59,Inputs!$C$68:$AN$68,0),FALSE))*('Master Data'!K$42),0)","v":24.127490039840644},{"$f":"IF($B55=\"Blank\",0,VLOOKUP($B55,Inputs!$C$68:$AN$129,MATCH($B59,Inputs!$C$68:$AN$68,0),FALSE))+IFERROR(IF($B55=\"Blank\",0,VLOOKUP($B55,Inputs!$C$68:$AN$129,MATCH($C59,Inputs!$C$68:$AN$68,0),FALSE))*('Master Data'!L$42),0)","v":24.131023426294828},{"$f":"IF($B55=\"Blank\",0,VLOOKUP($B55,Inputs!$C$68:$AN$129,MATCH($B59,Inputs!$C$68:$AN$68,0),FALSE))+IFERROR(IF($B55=\"Blank\",0,VLOOKUP($B55,Inputs!$C$68:$AN$129,MATCH($C59,Inputs!$C$68:$AN$68,0),FALSE))*('Master Data'!M$42),0)","v":24.136412685577696},{"$f":"IF($B55=\"Blank\",0,VLOOKUP($B55,Inputs!$C$68:$AN$129,MATCH($B59,Inputs!$C$68:$AN$68,0),FALSE))+IFERROR(IF($B55=\"Blank\",0,VLOOKUP($B55,Inputs!$C$68:$AN$129,MATCH($C59,Inputs!$C$68:$AN$68,0),FALSE))*('Master Data'!N$42),0)","v":24.143056949368709},{"$f":"IF($B55=\"Blank\",0,VLOOKUP($B55,Inputs!$C$68:$AN$129,MATCH($B59,Inputs!$C$68:$AN$68,0),FALSE))+IFERROR(IF($B55=\"Blank\",0,VLOOKUP($B55,Inputs!$C$68:$AN$129,MATCH($C59,Inputs!$C$68:$AN$68,0),FALSE))*('Master Data'!O$42),0)","v":24.150816058816748},null,null,null,null,null,null,null,"Lamp Service costs Annualised",6.5922103933990828,6.611239294875296,6.6127158042678618,6.6145361505119755,6.598583622627527]
[null,{"$f":"Inputs!$M$68","v":"PE Cell Service costs Annualised"},"Labour Portion of PE Cell Service costs Annualised",null,{"$f":"IF($B55=\"Blank\",0,VLOOKUP($B55,Inputs!$C$68:$AN$129,MATCH($B60,Inputs!$C$68:$AN$68,0),FALSE))+IFERROR(IF($B55=\"Blank\",0,VLOOKUP($B55,Inputs!$C$68:$AN$129,MATCH($C60,Inputs!$C$68:$AN$68,0),FALSE))*('Master Data'!K$42),0)","v":0},{"$f":"IF($B55=\"Blank\",0,VLOOKUP($B55,Inputs!$C$68:$AN$129,MATCH($B60,Inputs!$C$68:$AN$68,0),FALSE))+IFERROR(IF($B55=\"Blank\",0,VLOOKUP($B55,Inputs!$C$68:$AN$129,MATCH($C60,Inputs!$C$68:$AN$68,0),FALSE))*('Master Data'!L$42),0)","v":0},{"$f":"IF($B55=\"Blank\",0,VLOOKUP($B55,Inputs!$C$68:$AN$129,MATCH($B60,Inputs!$C$68:$AN$68,0),FALSE))+IFERROR(IF($B55=\"Blank\",0,VLOOKUP($B55,Inputs!$C$68:$AN$129,MATCH($C60,Inputs!$C$68:$AN$68,0),FALSE))*('Master Data'!M$42),0)","v":0},{"$f":"IF($B55=\"Blank\",0,VLOOKUP($B55,Inputs!$C$68:$AN$129,MATCH($B60,Inputs!$C$68:$AN$68,0),FALSE))+IFERROR(IF($B55=\"Blank\",0,VLOOKUP($B55,Inputs!$C$68:$AN$129,MATCH($C60,Inputs!$C$68:$AN$68,0),FALSE))*('Master Data'!N$42),0)","v":0},{"$f":"IF($B55=\"Blank\",0,VLOOKUP($B55,Inputs!$C$68:$AN$129,MATCH($B60,Inputs!$C$68:$AN$68,0),FALSE))+IFERROR(IF($B55=\"Blank\",0,VLOOKUP($B55,Inputs!$C$68:$AN$129,MATCH($C60,Inputs!$C$68:$AN$68,0),FALSE))*('Master Data'!O$42),0)","v":0},null,null,null,null,null,null,null,"PE Cell Service costs Annualised",0,0,0,0,0]
[null,"Indirect Opex",null,null,{"$f":"IF($B55=\"Blank\",0,IF($B$8=\"Private Contract Lighting\",'Opex Weighting'!D$48,'Opex Weighting'!D$46))","v":12.159436933476723},{"$f":"IF($B55=\"Blank\",0,IF($B$8=\"Private Contract Lighting\",'Opex Weighting'!E$48,'Opex Weighting'!E$46))","v":12.139620760396495},{"$f":"IF($B55=\"Blank\",0,IF($B$8=\"Private Contract Lighting\",'Opex Weighting'!F$48,'Opex Weighting'!F$46))","v":12.041042902784117},{"$f":"IF($B55=\"Blank\",0,IF($B$8=\"Private Contract Lighting\",'Opex Weighting'!G$48,'Opex Weighting'!G$46))","v":11.913040696908689},{"$f":"IF($B55=\"Blank\",0,IF($B$8=\"Private Contract Lighting\",'Opex Weighting'!H$48,'Opex Weighting'!H$46))","v":11.775235721857506},null,null,null,null,null,null,null,"Indirect Opex",3.3222505282723289,3.32592349599904,3.2989158637764708,3.2638467662763535,3.2172775196331984]
[null,"Indirect Capex",null,null,{"$f":"IF($B56=\"Blank\",0,IF($B$8=\"Private Contract Lighting\",'Capex Weighting'!D$60,'Capex Weighting'!D$62))","v":0},{"$f":"IF($B56=\"Blank\",0,IF($B$8=\"Private Contract Lighting\",'Capex Weighting'!E$60,'Capex Weighting'!E$62))","v":0},{"$f":"IF($B56=\"Blank\",0,IF($B$8=\"Private Contract Lighting\",'Capex Weighting'!F$60,'Capex Weighting'!F$62))","v":0},{"$f":"IF($B56=\"Blank\",0,IF($B$8=\"Private Contract Lighting\",'Capex Weighting'!G$60,'Capex Weighting'!G$62))","v":0},{"$f":"IF($B56=\"Blank\",0,IF($B$8=\"Private Contract Lighting\",'Capex Weighting'!H$60,'Capex Weighting'!H$62))","v":0},null,null,null,null,null,null,null,"Indirect Capex",0,0,0,0,0]
[null,"Opex Overheads Costs per light",null,null,{"$f":"IF($B55=\"Blank\",0,IF($B$8=\"Private Contract Lighting\",'Building Block'!C$40,'Building Block'!C$39))","v":10.567257211169151},{"$f":"IF($B55=\"Blank\",0,IF($B$8=\"Private Contract Lighting\",'Building Block'!D$40,'Building Block'!D$39))","v":10.638037296614067},{"$f":"IF($B55=\"Blank\",0,IF($B$8=\"Private Contract Lighting\",'Building Block'!E$40,'Building Block'!E$39))","v":9.8094883699069495},{"$f":"IF($B55=\"Blank\",0,IF($B$8=\"Private Contract Lighting\",'Building Block'!F$40,'Building Block'!F$39))","v":9.7894714768092079},{"$f":"IF($B55=\"Blank\",0,IF($B$8=\"Private Contract Lighting\",'Building Block'!G$40,'Building Block'!G$39))","v":9.7584857493224391},null,null,null,null,null,null,null,"Opex Overheads Costs per light",2.8872287462210795,2.914530766195635,2.6875310602484794,2.6820469799477284,2.6662529369733439]
[null,{"$f":"Inputs!$AK$68","v":"Bracket UNIT price"},0,null,"NA","NA","NA","NA","NA",null,null,null,null,null,null,null,"Bracket UNIT price","","","","",""]
[null,{"$f":"Inputs!$AA$68","v":"CAPEX Instalation costs"},{"$f":"C64+1","v":1},null,"NA","NA","NA","NA","NA",null,null,null,null,null,null,null,"CAPEX Instalation costs","","","","",""]
[null,{"$f":"Inputs!$Z$68","v":"Luminaire UNIT price"},{"$f":"C65+1","v":2},null,"NA","NA","NA","NA","NA",null,null,null,null,null,null,null,"Luminaire UNIT price","","","","",""]
[null,{"$f":"Inputs!$AA$68","v":"CAPEX Instalation costs"},3,null,"NA","NA","NA","NA","NA",null,null,null,null,null,null,null,"CAPEX Instalation costs","","","","",""]
[null,null,null,null,{"$f":"SUM(E56:E67)","v":68.214734566281294},{"$f":"SUM(F56:F67)","v":68.238948368313032},67.166562066532236,66.829571540334456,66.457943456069515,null,null,null,null,null,null,null,null,{"$f":"ROUND(E68/R$2*100,3)","v":18.638000000000002},{"$f":"ROUND(F68/S$2*100,3)","v":18.696000000000002},{"$f":"ROUND(G68/T$2*100,3)","v":18.402000000000001},{"$f":"ROUND(H68/U$2*100,3)","v":18.309000000000001},{"$f":"ROUND(I68/V$2*100,3)","v":18.158000000000001}]
[]
[{"$f":"A55+1","v":5},{"$f":"IFERROR(VLOOKUP($A70,Inputs!$B$68:$AN$129,MATCH($B$7,Inputs!$B$68:$AN$68,0),FALSE),\"Blank\")","v":"1x20W Fluorescent"},null,null,null,null,null,null,null,null,null,null,null,null,null,null,{"$f":"IFERROR(VLOOKUP($A70,Inputs!$B$68:$AN$129,MATCH($B$7,Inputs!$B$68:$AN$68,0),FALSE),\"Blank\")","v":"1x20W Fluorescent"}]
[null,{"$f":"Inputs!$S$68","v":"Lamp UNIT price Annualised Cost"},{"$f":"Inputs!$Q$68","v":"Lamp Maintenance cycle"},null,{"$f":"IF($B70=\"Blank\",0,VLOOKUP($B70,Inputs!$C$68:$AN$129,MATCH($B71,Inputs!$C$68:$AN$68,0),FALSE))","v":1.0091820797879187},{"$f":"IF($B70=\"Blank\",0,VLOOKUP($B70,Inputs!$C$68:$AN$129,MATCH($B71,Inputs!$C$68:$AN$68,0),FALSE))","v":1.0091820797879187},{"$f":"IF($B70=\"Blank\",0,VLOOKUP($B70,Inputs!$C$68:$AN$129,MATCH($B71,Inputs!$C$68:$AN$68,0),FALSE))","v":1.0091820797879187},{"$f":"IF($B70=\"Blank\",0,VLOOKUP($B70,Inputs!$C$68:$AN$129,MATCH($B71,Inputs!$C$68:$AN$68,0),FALSE))","v":1.0091820797879187},{"$f":"IF($B70=\"Blank\",0,VLOOKUP($B70,Inputs!$C$68:$AN$129,MATCH($B71,Inputs!$C$68:$AN$68,0),FALSE))","v":1.0091820797879187},null,null,null,null,null,null,null,{"$f":"B71","v":"Lamp UNIT price Annualised Cost"},{"$f":"IF(E71=\"NA\",\"\",E71/R$2*100)","v":0.27573280868522371},{"$f":"IF(F71=\"NA\",\"\",F71/S$2*100)","v":0.27648824103778596},{"$f":"IF(G71=\"NA\",\"\",G71/T$2*100)","v":0.27648824103778596},{"$f":"IF(H71=\"NA\",\"\",H71/U$2*100)","v":0.27648824103778596},{"$f":"IF(I71=\"NA\",\"\",I71/V$2*100)","v":0.27573280868522371}]
[null,{"$f":"Inputs!$K$68","v":"PE Cell UNIT price Annualised Cost"},{"$f":"Inputs!$I$68","v":"PE Cell Maintenance Cycle"},null,{"$f":"IF($B70=\"Blank\",0,VLOOKUP($B70,Inputs!$C$68:$AN$129,MATCH($B72,Inputs!$C$68:$AN$68,0),FALSE))","v":0.58131255188333353},{"$f":"IF($B70=\"Blank\",0,VLOOKUP($B70,Inputs!$C$68:$AN$129,MATCH($B72,Inputs!$C$68:$AN$68,0),FALSE))","v":0.58131255188333353},{"$f":"IF($B70=\"Blank\",0,VLOOKUP($B70,Inputs!$C$68:$AN$129,MATCH($B72,Inputs!$C$68:$AN$68,0),FALSE))","v":0.58131255188333353},{"$f":"IF($B70=\"Blank\",0,VLOOKUP($B70,Inputs!$C$68:$AN$129,MATCH($B72,Inputs!$C$68:$AN$68,0),FALSE))","v":0.58131255188333353},{"$f":"IF($B70=\"Blank\",0,VLOOKUP($B70,Inputs!$C$68:$AN$129,MATCH($B72,Inputs!$C$68:$AN$68,0),FALSE))","v":0.58131255188333353},null,null,null,null,null,null,null,"PE Cell UNIT price Annualised Cost",0.15882856608834248,0.15926371284474891,0.15926371284474891,0.15926371284474891,0.15882856608834248]
[null,"Corp capex annuity per light",null,null,{"$f":"IF($B70=\"Blank\",0,'Corp Capex Annuity calcs'!F$142)","v":18.582309905017571},{"$f":"IF($B70=\"Blank\",0,'Corp Capex Annuity calcs'!G$142)","v":18.552026408230436},{"$f":"IF($B70=\"Blank\",0,'Corp Capex Annuity calcs'!H$142)","v":18.401377631486287},{"$f":"IF($B70=\"Blank\",0,'Corp Capex Annuity calcs'!I$142)","v":18.205761940470655},{"$f":"IF($B70=\"Blank\",0,'Corp Capex Annuity calcs'!J$142)","v":17.995165449295623},null,null,null,null,null,null,null,"Corp capex annuity per light",5.0771338538299373,5.0827469611590237,5.0414733236948734,4.9878799836905907,4.9167118713922466]
[null,{"$f":"Inputs!$U$68","v":"Lamp Service costs Annualised"},"Labour Portion of Lamp Service costs annualised",null,{"$f":"IF($B70=\"Blank\",0,VLOOKUP($B70,Inputs!$C$68:$AN$129,MATCH($B74,Inputs!$C$68:$AN$68,0),FALSE))+IFERROR(IF($B70=\"Blank\",0,VLOOKUP($B70,Inputs!$C$68:$AN$129,MATCH($C74,Inputs!$C$68:$AN$68,0),FALSE))*('Master Data'!K$42),0)","v":24.127490039840644},{"$f":"IF($B70=\"Blank\",0,VLOOKUP($B70,Inputs!$C$68:$AN$129,MATCH($B74,Inputs!$C$68:$AN$68,0),FALSE))+IFERROR(IF($B70=\"Blank\",0,VLOOKUP($B70,Inputs!$C$68:$AN$129,MATCH($C74,Inputs!$C$68:$AN$68,0),FALSE))*('Master Data'!L$42),0)","v":24.131023426294828},{"$f":"IF($B70=\"Blank\",0,VLOOKUP($B70,Inputs!$C$68:$AN$129,MATCH($B74,Inputs!$C$68:$AN$68,0),FALSE))+IFERROR(IF($B70=\"Blank\",0,VLOOKUP($B70,Inputs!$C$68:$AN$129,MATCH($C74,Inputs!$C$68:$AN$68,0),FALSE))*('Master Data'!M$42),0)","v":24.136412685577696},{"$f":"IF($B70=\"Blank\",0,VLOOKUP($B70,Inputs!$C$68:$AN$129,MATCH($B74,Inputs!$C$68:$AN$68,0),FALSE))+IFERROR(IF($B70=\"Blank\",0,VLOOKUP($B70,Inputs!$C$68:$AN$129,MATCH($C74,Inputs!$C$68:$AN$68,0),FALSE))*('Master Data'!N$42),0)","v":24.143056949368709},{"$f":"IF($B70=\"Blank\",0,VLOOKUP($B70,Inputs!$C$68:$AN$129,MATCH($B74,Inputs!$C$68:$AN$68,0),FALSE))+IFERROR(IF($B70=\"Blank\",0,VLOOKUP($B70,Inputs!$C$68:$AN$129,MATCH($C74,Inputs!$C$68:$AN$68,0),FALSE))*('Master Data'!O$42),0)","v":24.150816058816748},null,null,null,null,null,null,null,"Lamp Service costs Annualised",6.5922103933990828,6.611239294875296,6.6127158042678618,6.6145361505119755,6.598583622627527]
[null,{"$f":"Inputs!$M$68","v":"PE Cell Service costs Annualised"},"Labour Portion of PE Cell Service costs Annualised",null,{"$f":"IF($B70=\"Blank\",0,VLOOKUP($B70,Inputs!$C$68:$AN$129,MATCH($B75,Inputs!$C$68:$AN$68,0),FALSE))+IFERROR(IF($B70=\"Blank\",0,VLOOKUP($B70,Inputs!$C$68:$AN$129,MATCH($C75,Inputs!$C$68:$AN$68,0),FALSE))*('Master Data'!K$42),0)","v":0},{"$f":"IF($B70=\"Blank\",0,VLOOKUP($B70,Inputs!$C$68:$AN$129,MATCH($B75,Inputs!$C$68:$AN$68,0),FALSE))+IFERROR(IF($B70=\"Blank\",0,VLOOKUP($B70,Inputs!$C$68:$AN$129,MATCH($C75,Inputs!$C$68:$AN$68,0),FALSE))*('Master Data'!L$42),0)","v":0},{"$f":"IF($B70=\"Blank\",0,VLOOKUP($B70,Inputs!$C$68:$AN$129,MATCH($B75,Inputs!$C$68:$AN$68,0),FALSE))+IFERROR(IF($B70=\"Blank\",0,VLOOKUP($B70,Inputs!$C$68:$AN$129,MATCH($C75,Inputs!$C$68:$AN$68,0),FALSE))*('Master Data'!M$42),0)","v":0},{"$f":"IF($B70=\"Blank\",0,VLOOKUP($B70,Inputs!$C$68:$AN$129,MATCH($B75,Inputs!$C$68:$AN$68,0),FALSE))+IFERROR(IF($B70=\"Blank\",0,VLOOKUP($B70,Inputs!$C$68:$AN$129,MATCH($C75,Inputs!$C$68:$AN$68,0),FALSE))*('Master Data'!N$42),0)","v":0},{"$f":"IF($B70=\"Blank\",0,VLOOKUP($B70,Inputs!$C$68:$AN$129,MATCH($B75,Inputs!$C$68:$AN$68,0),FALSE))+IFERROR(IF($B70=\"Blank\",0,VLOOKUP($B70,Inputs!$C$68:$AN$129,MATCH($C75,Inputs!$C$68:$AN$68,0),FALSE))*('Master Data'!O$42),0)","v":0},null,null,null,null,null,null,null,"PE Cell Service costs Annualised",0,0,0,0,0]
[null,"Indirect Opex",null,null,{"$f":"IF($B70=\"Blank\",0,IF($B$8=\"Private Contract Lighting\",'Opex Weighting'!D$48,'Opex Weighting'!D$46))","v":12.159436933476723},{"$f":"IF($B70=\"Blank\",0,IF($B$8=\"Private Contract Lighting\",'Opex Weighting'!E$48,'Opex Weighting'!E$46))","v":12.139620760396495},{"$f":"IF($B70=\"Blank\",0,IF($B$8=\"Private Contract Lighting\",'Opex Weighting'!F$48,'Opex Weighting'!F$46))","v":12.041042902784117},{"$f":"IF($B70=\"Blank\",0,IF($B$8=\"Private Contract Lighting\",'Opex Weighting'!G$48,'Opex Weighting'!G$46))","v":11.913040696908689},{"$f":"IF($B70=\"Blank\",0,IF($B$8=\"Private Contract Lighting\",'Opex Weighting'!H$48,'Opex Weighting'!H$46))","v":11.775235721857506},null,null,null,null,null,null,null,"Indirect Opex",3.3222505282723289,3.32592349599904,3.2989158637764708,3.2638467662763535,3.2172775196331984]
[null,"Indirect Capex",null,null,{"$f":"IF($B71=\"Blank\",0,IF($B$8=\"Private Contract Lighting\",'Capex Weighting'!D$60,'Capex Weighting'!D$62))","v":0},{"$f":"IF($B71=\"Blank\",0,IF($B$8=\"Private Contract Lighting\",'Capex Weighting'!E$60,'Capex Weighting'!E$62))","v":0},{"$f":"IF($B71=\"Blank\",0,IF($B$8=\"Private Contract Lighting\",'Capex Weighting'!F$60,'Capex Weighting'!F$62))","v":0},{"$f":"IF($B71=\"Blank\",0,IF($B$8=\"Private Contract Lighting\",'Capex Weighting'!G$60,'Capex Weighting'!G$62))","v":0},{"$f":"IF($B71=\"Blank\",0,IF($B$8=\"Private Contract Lighting\",'Capex Weighting'!H$60,'Capex Weighting'!H$62))","v":0},null,null,null,null,null,null,null,"Indirect Capex",0,0,0,0,0]
[null,"Opex Overheads Costs per light",null,null,{"$f":"IF($B70=\"Blank\",0,IF($B$8=\"Private Contract Lighting\",'Building Block'!C$40,'Building Block'!C$39))","v":10.567257211169151},{"$f":"IF($B70=\"Blank\",0,IF($B$8=\"Private Contract Lighting\",'Building Block'!D$40,'Building Block'!D$39))","v":10.638037296614067},{"$f":"IF($B70=\"Blank\",0,IF($B$8=\"Private Contract Lighting\",'Building Block'!E$40,'Building Block'!E$39))","v":9.8094883699069495},{"$f":"IF($B70=\"Blank\",0,IF($B$8=\"Private Contract Lighting\",'Building Block'!F$40,'Building Block'!F$39))","v":9.7894714768092079},{"$f":"IF($B70=\"Blank\",0,IF($B$8=\"Private Contract Lighting\",'Building Block'!G$40,'Building Block'!G$39))","v":9.7584857493224391},null,null,null,null,null,null,null,"Opex Overheads Costs per light",2.8872287462210795,2.914530766195635,2.6875310602484794,2.6820469799477284,2.6662529369733439]
[null,{"$f":"Inputs!$AK$68","v":"Bracket UNIT price"},0,null,"NA","NA","NA","NA","NA",null,null,null,null,null,null,null,"Bracket UNIT price","","","","",""]
[null,{"$f":"Inputs!$AA$68","v":"CAPEX Instalation costs"},{"$f":"C79+1","v":1},null,"NA","NA","NA","NA","NA",null,null,null,null,null,null,null,"CAPEX Instalation costs","","","","",""]
[null,{"$f":"Inputs!$Z$68","v":"Luminaire UNIT price"},{"$f":"C80+1","v":2},null,"NA","NA","NA","NA","NA",null,null,null,null,null,null,null,"Luminaire UNIT price","","","","",""]
[null,{"$f":"Inputs!$AA$68","v":"CAPEX Instalation costs"},3,null,"NA","NA","NA","NA","NA",null,null,null,null,null,null,null,"CAPEX Instalation costs","","","","",""]
[null,null,null,null,{"$f":"SUM(E71:E82)","v":67.026988721175343},{"$f":"SUM(F71:F82)","v":67.051202523207081},65.9788162214263,65.641825695228505,65.270197610963564,null,null,null,null,null,null,null,null,{"$f":"ROUND(E83/R$2*100,3)","v":18.312999999999999},{"$f":"ROUND(F83/S$2*100,3)","v":18.37},{"$f":"ROUND(G83/T$2*100,3)","v":18.076000000000001},{"$f":"ROUND(H83/U$2*100,3)","v":17.984000000000002},{"$f":"ROUND(I83/V$2*100,3)","v":17.832999999999998}]
[]
[{"$f":"A70+1","v":6},{"$f":"IFERROR(VLOOKUP($A85,Inputs!$B$68:$AN$129,MATCH($B$7,Inputs!$B$68:$AN$68,0),FALSE),\"Blank\")","v":"1x40W Fluorescent"},null,null,null,null,null,null,null,null,null,null,null,null,null,null,{"$f":"IFERROR(VLOOKUP($A85,Inputs!$B$68:$AN$129,MATCH($B$7,Inputs!$B$68:$AN$68,0),FALSE),\"Blank\")","v":"1x40W Fluorescent"}]
[null,{"$f":"Inputs!$S$68","v":"Lamp UNIT price Annualised Cost"},{"$f":"Inputs!$Q$68","v":"Lamp Maintenance cycle"},null,{"$f":"IF($B85=\"Blank\",0,VLOOKUP($B85,Inputs!$C$68:$AN$129,MATCH($B86,Inputs!$C$68:$AN$68,0),FALSE))","v":1.074743792627969},{"$f":"IF($B85=\"Blank\",0,VLOOKUP($B85,Inputs!$C$68:$AN$129,MATCH($B86,Inputs!$C$68:$AN$68,0),FALSE))","v":1.074743792627969},{"$f":"IF($B85=\"Blank\",0,VLOOKUP($B85,Inputs!$C$68:$AN$129,MATCH($B86,Inputs!$C$68:$AN$68,0),FALSE))","v":1.074743792627969},{"$f":"IF($B85=\"Blank\",0,VLOOKUP($B85,Inputs!$C$68:$AN$129,MATCH($B86,Inputs!$C$68:$AN$68,0),FALSE))","v":1.074743792627969},{"$f":"IF($B85=\"Blank\",0,VLOOKUP($B85,Inputs!$C$68:$AN$129,MATCH($B86,Inputs!$C$68:$AN$68,0),FALSE))","v":1.074743792627969},null,null,null,null,null,null,null,{"$f":"B86","v":"Lamp UNIT price Annualised Cost"},{"$f":"IF(E86=\"NA\",\"\",E86/R$2*100)","v":0.29364584498031943},{"$f":"IF(F86=\"NA\",\"\",F86/S$2*100)","v":0.2944503541446491},{"$f":"IF(G86=\"NA\",\"\",G86/T$2*100)","v":0.2944503541446491},{"$f":"IF(H86=\"NA\",\"\",H86/U$2*100)","v":0.2944503541446491},{"$f":"IF(I86=\"NA\",\"\",I86/V$2*100)","v":0.29364584498031943}]
[null,{"$f":"Inputs!$K$68","v":"PE Cell UNIT price Annualised Cost"},{"$f":"Inputs!$I$68","v":"PE Cell Maintenance Cycle"},null,{"$f":"IF($B85=\"Blank\",0,VLOOKUP($B85,Inputs!$C$68:$AN$129,MATCH($B87,Inputs!$C$68:$AN$68,0),FALSE))","v":0.58131255188333353},{"$f":"IF($B85=\"Blank\",0,VLOOKUP($B85,Inputs!$C$68:$AN$129,MATCH($B87,Inputs!$C$68:$AN$68,0),FALSE))","v":0.58131255188333353},{"$f":"IF($B85=\"Blank\",0,VLOOKUP($B85,Inputs!$C$68:$AN$129,MATCH($B87,Inputs!$C$68:$AN$68,0),FALSE))","v":0.58131255188333353},{"$f":"IF($B85=\"Blank\",0,VLOOKUP($B85,Inputs!$C$68:$AN$129,MATCH($B87,Inputs!$C$68:$AN$68,0),FALSE))","v":0.58131255188333353},{"$f":"IF($B85=\"Blank\",0,VLOOKUP($B85,Inputs!$C$68:$AN$129,MATCH($B87,Inputs!$C$68:$AN$68,0),FALSE))","v":0.58131255188333353},null,null,null,null,null,null,null,"PE Cell UNIT price Annualised Cost",0.15882856608834248,0.15926371284474891,0.15926371284474891,0.15926371284474891,0.15882856608834248]
[null,"Corp capex annuity per light",null,null,{"$f":"IF($B85=\"Blank\",0,'Corp Capex Annuity calcs'!F$142)","v":18.582309905017571},{"$f":"IF($B85=\"Blank\",0,'Corp Capex Annuity calcs'!G$142)","v":18.552026408230436},{"$f":"IF($B85=\"Blank\",0,'Corp Capex Annuity calcs'!H$142)","v":18.401377631486287},{"$f":"IF($B85=\"Blank\",0,'Corp Capex Annuity calcs'!I$142)","v":18.205761940470655},{"$f":"IF($B85=\"Blank\",0,'Corp Capex Annuity calcs'!J$142)","v":17.995165449295623},null,null,null,null,null,null,null,"Corp capex annuity per light",5.0771338538299373,5.0827469611590237,5.0414733236948734,4.9878799836905907,4.9167118713922466]
[null,{"$f":"Inputs!$U$68","v":"Lamp Service costs Annualised"},"Labour Portion of Lamp Service costs annualised",null,{"$f":"IF($B85=\"Blank\",0,VLOOKUP($B85,Inputs!$C$68:$AN$129,MATCH($B89,Inputs!$C$68:$AN$68,0),FALSE))+IFERROR(IF($B85=\"Blank\",0,VLOOKUP($B85,Inputs!$C$68:$AN$129,MATCH($C89,Inputs!$C$68:$AN$68,0),FALSE))*('Master Data'!K$42),0)","v":24.127490039840644},{"$f":"IF($B85=\"Blank\",0,VLOOKUP($B85,Inputs!$C$68:$AN$129,MATCH($B89,Inputs!$C$68:$AN$68,0),FALSE))+IFERROR(IF($B85=\"Blank\",0,VLOOKUP($B85,Inputs!$C$68:$AN$129,MATCH($C89,Inputs!$C$68:$AN$68,0),FALSE))*('Master Data'!L$42),0)","v":24.131023426294828},{"$f":"IF($B85=\"Blank\",0,VLOOKUP($B85,Inputs!$C$68:$AN$129,MATCH($B89,Inputs!$C$68:$AN$68,0),FALSE))+IFERROR(IF($B85=\"Blank\",0,VLOOKUP($B85,Inputs!$C$68:$AN$129,MATCH($C89,Inputs!$C$68:$AN$68,0),FALSE))*('Master Data'!M$42),0)","v":24.136412685577696},{"$f":"IF($B85=\"Blank\",0,VLOOKUP($B85,Inputs!$C$68:$AN$129,MATCH($B89,Inputs!$C$68:$AN$68,0),FALSE))+IFERROR(IF($B85=\"Blank\",0,VLOOKUP($B85,Inputs!$C$68:$AN$129,MATCH($C89,Inputs!$C$68:$AN$68,0),FALSE))*('Master Data'!N$42),0)","v":24.143056949368709},{"$f":"IF($B85=\"Blank\",0,VLOOKUP($B85,Inputs!$C$68:$AN$129,MATCH($B89,Inputs!$C$68:$AN$68,0),FALSE))+IFERROR(IF($B85=\"Blank\",0,VLOOKUP($B85,Inputs!$C$68:$AN$129,MATCH($C89,Inputs!$C$68:$AN$68,0),FALSE))*('Master Data'!O$42),0)","v":24.150816058816748},null,null,null,null,null,null,null,"Lamp Service costs Annualised",6.5922103933990828,6.611239294875296,6.6127158042678618,6.6145361505119755,6.598583622627527]
[null,{"$f":"Inputs!$M$68","v":"PE Cell Service costs Annualised"},"Labour Portion of PE Cell Service costs Annualised",null,{"$f":"IF($B85=\"Blank\",0,VLOOKUP($B85,Inputs!$C$68:$AN$129,MATCH($B90,Inputs!$C$68:$AN$68,0),FALSE))+IFERROR(IF($B85=\"Blank\",0,VLOOKUP($B85,Inputs!$C$68:$AN$129,MATCH($C90,Inputs!$C$68:$AN$68,0),FALSE))*('Master Data'!K$42),0)","v":0},{"$f":"IF($B85=\"Blank\",0,VLOOKUP($B85,Inputs!$C$68:$AN$129,MATCH($B90,Inputs!$C$68:$AN$68,0),FALSE))+IFERROR(IF($B85=\"Blank\",0,VLOOKUP($B85,Inputs!$C$68:$AN$129,MATCH($C90,Inputs!$C$68:$AN$68,0),FALSE))*('Master Data'!L$42),0)","v":0},{"$f":"IF($B85=\"Blank\",0,VLOOKUP($B85,Inputs!$C$68:$AN$129,MATCH($B90,Inputs!$C$68:$AN$68,0),FALSE))+IFERROR(IF($B85=\"Blank\",0,VLOOKUP($B85,Inputs!$C$68:$AN$129,MATCH($C90,Inputs!$C$68:$AN$68,0),FALSE))*('Master Data'!M$42),0)","v":0},{"$f":"IF($B85=\"Blank\",0,VLOOKUP($B85,Inputs!$C$68:$AN$129,MATCH($B90,Inputs!$C$68:$AN$68,0),FALSE))+IFERROR(IF($B85=\"Blank\",0,VLOOKUP($B85,Inputs!$C$68:$AN$129,MATCH($C90,Inputs!$C$68:$AN$68,0),FALSE))*('Master Data'!N$42),0)","v":0},{"$f":"IF($B85=\"Blank\",0,VLOOKUP($B85,Inputs!$C$68:$AN$129,MATCH($B90,Inputs!$C$68:$AN$68,0),FALSE))+IFERROR(IF($B85=\"Blank\",0,VLOOKUP($B85,Inputs!$C$68:$AN$129,MATCH($C90,Inputs!$C$68:$AN$68,0),FALSE))*('Master Data'!O$42),0)","v":0},null,null,null,null,null,null,null,"PE Cell Service costs Annualised",0,0,0,0,0]
[null,"Indirect Opex",null,null,{"$f":"IF($B85=\"Blank\",0,IF($B$8=\"Private Contract Lighting\",'Opex Weighting'!D$48,'Opex Weighting'!D$46))","v":12.159436933476723},{"$f":"IF($B85=\"Blank\",0,IF($B$8=\"Private Contract Lighting\",'Opex Weighting'!E$48,'Opex Weighting'!E$46))","v":12.139620760396495},{"$f":"IF($B85=\"Blank\",0,IF($B$8=\"Private Contract Lighting\",'Opex Weighting'!F$48,'Opex Weighting'!F$46))","v":12.041042902784117},{"$f":"IF($B85=\"Blank\",0,IF($B$8=\"Private Contract Lighting\",'Opex Weighting'!G$48,'Opex Weighting'!G$46))","v":11.913040696908689},{"$f":"IF($B85=\"Blank\",0,IF($B$8=\"Private Contract Lighting\",'Opex Weighting'!H$48,'Opex Weighting'!H$46))","v":11.775235721857506},null,null,null,null,null,null,null,"Indirect Opex",3.3222505282723289,3.32592349599904,3.2989158637764708,3.2638467662763535,3.2172775196331984]
[null,"Indirect Capex",null,null,{"$f":"IF($B86=\"Blank\",0,IF($B$8=\"Private Contract Lighting\",'Capex Weighting'!D$60,'Capex Weighting'!D$62))","v":0},{"$f":"IF($B86=\"Blank\",0,IF($B$8=\"Private Contract Lighting\",'Capex Weighting'!E$60,'Capex Weighting'!E$62))","v":0},{"$f":"IF($B86=\"Blank\",0,IF($B$8=\"Private Contract Lighting\",'Capex Weighting'!F$60,'Capex Weighting'!F$62))","v":0},{"$f":"IF($B86=\"Blank\",0,IF($B$8=\"Private Contract Lighting\",'Capex Weighting'!G$60,'Capex Weighting'!G$62))","v":0},{"$f":"IF($B86=\"Blank\",0,IF($B$8=\"Private Contract Lighting\",'Capex Weighting'!H$60,'Capex Weighting'!H$62))","v":0},null,null,null,null,null,null,null,"Indirect Capex",0,0,0,0,0]
[null,"Opex Overheads Costs per light",null,null,{"$f":"IF($B85=\"Blank\",0,IF($B$8=\"Private Contract Lighting\",'Building Block'!C$40,'Building Block'!C$39))","v":10.567257211169151},{"$f":"IF($B85=\"Blank\",0,IF($B$8=\"Private Contract Lighting\",'Building Block'!D$40,'Building Block'!D$39))","v":10.638037296614067},{"$f":"IF($B85=\"Blank\",0,IF($B$8=\"Private Contract Lighting\",'Building Block'!E$40,'Building Block'!E$39))","v":9.8094883699069495},{"$f":"IF($B85=\"Blank\",0,IF($B$8=\"Private Contract Lighting\",'Building Block'!F$40,'Building Block'!F$39))","v":9.7894714768092079},{"$f":"IF($B85=\"Blank\",0,IF($B$8=\"Private Contract Lighting\",'Building Block'!G$40,'Building Block'!G$39))","v":9.7584857493224391},null,null,null,null,null,null,null,"Opex Overheads Costs per light",2.8872287462210795,2.914530766195635,2.6875310602484794,2.6820469799477284,2.6662529369733439]
[null,{"$f":"Inputs!$AK$68","v":"Bracket UNIT price"},0,null,"NA","NA","NA","NA","NA",null,null,null,null,null,null,null,"Bracket UNIT price","","","","",""]
[null,{"$f":"Inputs!$AA$68","v":"CAPEX Instalation costs"},{"$f":"C94+1","v":1},null,"NA","NA","NA","NA","NA",null,null,null,null,null,null,null,"CAPEX Instalation costs","","","","",""]
[null,{"$f":"Inputs!$Z$68","v":"Luminaire UNIT price"},{"$f":"C95+1","v":2},null,"NA","NA","NA","NA","NA",null,null,null,null,null,null,null,"Luminaire UNIT price","","","","",""]
[null,{"$f":"Inputs!$AA$68","v":"CAPEX Instalation costs"},3,null,"NA","NA","NA","NA","NA",null,null,null,null,null,null,null,"CAPEX Instalation costs","","","","",""]
[null,null,null,null,{"$f":"SUM(E86:E97)","v":67.092550434015394},{"$f":"SUM(F86:F97)","v":67.116764236047132},66.04437793426635,65.707387408068556,65.335759323803615,null,null,null,null,null,null,null,null,{"$f":"ROUND(E98/R$2*100,3)","v":18.331},{"$f":"ROUND(F98/S$2*100,3)","v":18.388000000000002},{"$f":"ROUND(G98/T$2*100,3)","v":18.094000000000001},{"$f":"ROUND(H98/U$2*100,3)","v":18.001999999999999},{"$f":"ROUND(I98/V$2*100,3)","v":17.850999999999999}]
[]
[{"$f":"A85+1","v":7},{"$f":"IFERROR(VLOOKUP($A100,Inputs!$B$68:$AN$129,MATCH($B$7,Inputs!$B$68:$AN$68,0),FALSE),\"Blank\")","v":"2x20W Fluorescent"},null,null,null,null,null,null,null,null,null,null,null,null,null,null,{"$f":"IFERROR(VLOOKUP($A100,Inputs!$B$68:$AN$129,MATCH($B$7,Inputs!$B$68:$AN$68,0),FALSE),\"Blank\")","v":"2x20W Fluorescent"}]
[null,{"$f":"Inputs!$S$68","v":"Lamp UNIT price Annualised Cost"},{"$f":"Inputs!$Q$68","v":"Lamp Maintenance cycle"},null,{"$f":"IF($B100=\"Blank\",0,VLOOKUP($B100,Inputs!$C$68:$AN$129,MATCH($B101,Inputs!$C$68:$AN$68,0),FALSE))","v":2.0183641595758375},{"$f":"IF($B100=\"Blank\",0,VLOOKUP($B100,Inputs!$C$68:$AN$129,MATCH($B101,Inputs!$C$68:$AN$68,0),FALSE))","v":2.0183641595758375},{"$f":"IF($B100=\"Blank\",0,VLOOKUP($B100,Inputs!$C$68:$AN$129,MATCH($B101,Inputs!$C$68:$AN$68,0),FALSE))","v":2.0183641595758375},{"$f":"IF($B100=\"Blank\",0,VLOOKUP($B100,Inputs!$C$68:$AN$129,MATCH($B101,Inputs!$C$68:$AN$68,0),FALSE))","v":2.0183641595758375},{"$f":"IF($B100=\"Blank\",0,VLOOKUP($B100,Inputs!$C$68:$AN$129,MATCH($B101,Inputs!$C$68:$AN$68,0),FALSE))","v":2.0183641595758375},null,null,null,null,null,null,null,{"$f":"B101","v":"Lamp UNIT price Annualised Cost"},{"$f":"IF(E101=\"NA\",\"\",E101/R$2*100)","v":0.55146561737044741},{"$f":"IF(F101=\"NA\",\"\",F101/S$2*100)","v":0.55297648207557193},{"$f":"IF(G101=\"NA\",\"\",G101/T$2*100)","v":0.55297648207557193},{"$f":"IF(H101=\"NA\",\"\",H101/U$2*100)","v":0.55297648207557193},{"$f":"IF(I101=\"NA\",\"\",I101/V$2*100)","v":0.55146561737044741}]
[null,{"$f":"Inputs!$K$68","v":"PE Cell UNIT price Annualised Cost"},{"$f":"Inputs!$I$68","v":"PE Cell Maintenance Cycle"},null,{"$f":"IF($B100=\"Blank\",0,VLOOKUP($B100,Inputs!$C$68:$AN$129,MATCH($B102,Inputs!$C$68:$AN$68,0),FALSE))","v":0.58131255188333353},{"$f":"IF($B100=\"Blank\",0,VLOOKUP($B100,Inputs!$C$68:$AN$129,MATCH($B102,Inputs!$C$68:$AN$68,0),FALSE))","v":0.58131255188333353},{"$f":"IF($B100=\"Blank\",0,VLOOKUP($B100,Inputs!$C$68:$AN$129,MATCH($B102,Inputs!$C$68:$AN$68,0),FALSE))","v":0.58131255188333353},{"$f":"IF($B100=\"Blank\",0,VLOOKUP($B100,Inputs!$C$68:$AN$129,MATCH($B102,Inputs!$C$68:$AN$68,0),FALSE))","v":0.58131255188333353},{"$f":"IF($B100=\"Blank\",0,VLOOKUP($B100,Inputs!$C$68:$AN$129,MATCH($B102,Inputs!$C$68:$AN$68,0),FALSE))","v":0.58131255188333353},null,null,null,null,null,null,null,"PE Cell UNIT price Annualised Cost",0.15882856608834248,0.15926371284474891,0.15926371284474891,0.15926371284474891,0.15882856608834248]
[null,"Corp capex annuity per light",null,null,{"$f":"IF($B100=\"Blank\",0,'Corp Capex Annuity calcs'!F$142)","v":18.582309905017571},{"$f":"IF($B100=\"Blank\",0,'Corp Capex Annuity calcs'!G$142)","v":18.552026408230436},{"$f":"IF($B100=\"Blank\",0,'Corp Capex Annuity calcs'!H$142)","v":18.401377631486287},{"$f":"IF($B100=\"Blank\",0,'Corp Capex Annuity calcs'!I$142)","v":18.205761940470655},{"$f":"IF($B100=\"Blank\",0,'Corp Capex Annuity calcs'!J$142)","v":17.995165449295623},null,null,null,null,null,null,null,"Corp capex annuity per light",5.0771338538299373,5.0827469611590237,5.0414733236948734,4.9878799836905907,4.9167118713922466]
[null,{"$f":"Inputs!$U$68","v":"Lamp Service costs Annualised"},"Labour Portion of Lamp Service costs annualised",null,{"$f":"IF($B100=\"Blank\",0,VLOOKUP($B100,Inputs!$C$68:$AN$129,MATCH($B104,Inputs!$C$68:$AN$68,0),FALSE))+IFERROR(IF($B100=\"Blank\",0,VLOOKUP($B100,Inputs!$C$68:$AN$129,MATCH($C104,Inputs!$C$68:$AN$68,0),FALSE))*('Master Data'!K$42),0)","v":24.127490039840644},{"$f":"IF($B100=\"Blank\",0,VLOOKUP($B100,Inputs!$C$68:$AN$129,MATCH($B104,Inputs!$C$68:$AN$68,0),FALSE))+IFERROR(IF($B100=\"Blank\",0,VLOOKUP($B100,Inputs!$C$68:$AN$129,MATCH($C104,Inputs!$C$68:$AN$68,0),FALSE))*('Master Data'!L$42),0)","v":24.131023426294828},{"$f":"IF($B100=\"Blank\",0,VLOOKUP($B100,Inputs!$C$68:$AN$129,MATCH($B104,Inputs!$C$68:$AN$68,0),FALSE))+IFERROR(IF($B100=\"Blank\",0,VLOOKUP($B100,Inputs!$C$68:$AN$129,MATCH($C104,Inputs!$C$68:$AN$68,0),FALSE))*('Master Data'!M$42),0)","v":24.136412685577696},{"$f":"IF($B100=\"Blank\",0,VLOOKUP($B100,Inputs!$C$68:$AN$129,MATCH($B104,Inputs!$C$68:$AN$68,0),FALSE))+IFERROR(IF($B100=\"Blank\",0,VLOOKUP($B100,Inputs!$C$68:$AN$129,MATCH($C104,Inputs!$C$68:$AN$68,0),FALSE))*('Master Data'!N$42),0)","v":24.143056949368709},{"$f":"IF($B100=\"Blank\",0,VLOOKUP($B100,Inputs!$C$68:$AN$129,MATCH($B104,Inputs!$C$68:$AN$68,0),FALSE))+IFERROR(IF($B100=\"Blank\",0,VLOOKUP($B100,Inputs!$C$68:$AN$129,MATCH($C104,Inputs!$C$68:$AN$68,0),FALSE))*('Master Data'!O$42),0)","v":24.150816058816748},null,null,null,null,null,null,null,"Lamp Service costs Annualised",6.5922103933990828,6.611239294875296,6.6127158042678618,6.6145361505119755,6.598583622627527]
[null,{"$f":"Inputs!$M$68","v":"PE Cell Service costs Annualised"},"Labour Portion of PE Cell Service costs Annualised",null,{"$f":"IF($B100=\"Blank\",0,VLOOKUP($B100,Inputs!$C$68:$AN$129,MATCH($B105,Inputs!$C$68:$AN$68,0),FALSE))+IFERROR(IF($B100=\"Blank\",0,VLOOKUP($B100,Inputs!$C$68:$AN$129,MATCH($C105,Inputs!$C$68:$AN$68,0),FALSE))*('Master Data'!K$42),0)","v":0},{"$f":"IF($B100=\"Blank\",0,VLOOKUP($B100,Inputs!$C$68:$AN$129,MATCH($B105,Inputs!$C$68:$AN$68,0),FALSE))+IFERROR(IF($B100=\"Blank\",0,VLOOKUP($B100,Inputs!$C$68:$AN$129,MATCH($C105,Inputs!$C$68:$AN$68,0),FALSE))*('Master Data'!L$42),0)","v":0},{"$f":"IF($B100=\"Blank\",0,VLOOKUP($B100,Inputs!$C$68:$AN$129,MATCH($B105,Inputs!$C$68:$AN$68,0),FALSE))+IFERROR(IF($B100=\"Blank\",0,VLOOKUP($B100,Inputs!$C$68:$AN$129,MATCH($C105,Inputs!$C$68:$AN$68,0),FALSE))*('Master Data'!M$42),0)","v":0},{"$f":"IF($B100=\"Blank\",0,VLOOKUP($B100,Inputs!$C$68:$AN$129,MATCH($B105,Inputs!$C$68:$AN$68,0),FALSE))+IFERROR(IF($B100=\"Blank\",0,VLOOKUP($B100,Inputs!$C$68:$AN$129,MATCH($C105,Inputs!$C$68:$AN$68,0),FALSE))*('Master Data'!N$42),0)","v":0},{"$f":"IF($B100=\"Blank\",0,VLOOKUP($B100,Inputs!$C$68:$AN$129,MATCH($B105,Inputs!$C$68:$AN$68,0),FALSE))+IFERROR(IF($B100=\"Blank\",0,VLOOKUP($B100,Inputs!$C$68:$AN$129,MATCH($C105,Inputs!$C$68:$AN$68,0),FALSE))*('Master Data'!O$42),0)","v":0},null,null,null,null,null,null,null,"PE Cell Service costs Annualised",0,0,0,0,0]
[null,"Indirect Opex",null,null,{"$f":"IF($B100=\"Blank\",0,IF($B$8=\"Private Contract Lighting\",'Opex Weighting'!D$48,'Opex Weighting'!D$46))","v":12.159436933476723},{"$f":"IF($B100=\"Blank\",0,IF($B$8=\"Private Contract Lighting\",'Opex Weighting'!E$48,'Opex Weighting'!E$46))","v":12.139620760396495},{"$f":"IF($B100=\"Blank\",0,IF($B$8=\"Private Contract Lighting\",'Opex Weighting'!F$48,'Opex Weighting'!F$46))","v":12.041042902784117},{"$f":"IF($B100=\"Blank\",0,IF($B$8=\"Private Contract Lighting\",'Opex Weighting'!G$48,'Opex Weighting'!G$46))","v":11.913040696908689},{"$f":"IF($B100=\"Blank\",0,IF($B$8=\"Private Contract Lighting\",'Opex Weighting'!H$48,'Opex Weighting'!H$46))","v":11.775235721857506},null,null,null,null,null,null,null,"Indirect Opex",3.3222505282723289,3.32592349599904,3.2989158637764708,3.2638467662763535,3.2172775196331984]
[null,"Indirect Capex",null,null,{"$f":"IF($B101=\"Blank\",0,IF($B$8=\"Private Contract Lighting\",'Capex Weighting'!D$60,'Capex Weighting'!D$62))","v":0},{"$f":"IF($B101=\"Blank\",0,IF($B$8=\"Private Contract Lighting\",'Capex Weighting'!E$60,'Capex Weighting'!E$62))","v":0},{"$f":"IF($B101=\"Blank\",0,IF($B$8=\"Private Contract Lighting\",'Capex Weighting'!F$60,'Capex Weighting'!F$62))","v":0},{"$f":"IF($B101=\"Blank\",0,IF($B$8=\"Private Contract Lighting\",'Capex Weighting'!G$60,'Capex Weighting'!G$62))","v":0},{"$f":"IF($B101=\"Blank\",0,IF($B$8=\"Private Contract Lighting\",'Capex Weighting'!H$60,'Capex Weighting'!H$62))","v":0},null,null,null,null,null,null,null,"Indirect Capex",0,0,0,0,0]
[null,"Opex Overheads Costs per light",null,null,{"$f":"IF($B100=\"Blank\",0,IF($B$8=\"Private Contract Lighting\",'Building Block'!C$40,'Building Block'!C$39))","v":10.567257211169151},{"$f":"IF($B100=\"Blank\",0,IF($B$8=\"Private Contract Lighting\",'Building Block'!D$40,'Building Block'!D$39))","v":10.638037296614067},{"$f":"IF($B100=\"Blank\",0,IF($B$8=\"Private Contract Lighting\",'Building Block'!E$40,'Building Block'!E$39))","v":9.8094883699069495},{"$f":"IF($B100=\"Blank\",0,IF($B$8=\"Private Contract Lighting\",'Building Block'!F$40,'Building Block'!F$39))","v":9.7894714768092079},{"$f":"IF($B100=\"Blank\",0,IF($B$8=\"Private Contract Lighting\",'Building Block'!G$40,'Building Block'!G$39))","v":9.7584857493224391},null,null,null,null,null,null,null,"Opex Overheads Costs per light",2.8872287462210795,2.914530766195635,2.6875310602484794,2.6820469799477284,2.6662529369733439]
[null,{"$f":"Inputs!$AK$68","v":"Bracket UNIT price"},0,null,"NA","NA","NA","NA","NA",null,null,null,null,null,null,null,"Bracket UNIT price","","","","",""]
[null,{"$f":"Inputs!$AA$68","v":"CAPEX Instalation costs"},{"$f":"C109+1","v":1},null,"NA","NA","NA","NA","NA",null,null,null,null,null,null,null,"CAPEX Instalation costs","","","","",""]
[null,{"$f":"Inputs!$Z$68","v":"Luminaire UNIT price"},{"$f":"C110+1","v":2},null,"NA","NA","NA","NA","NA",null,null,null,null,null,null,null,"Luminaire UNIT price","","","","",""]
[null,{"$f":"Inputs!$AA$68","v":"CAPEX Instalation costs"},3,null,"NA","NA","NA","NA","NA",null,null,null,null,null,null,null,"CAPEX Instalation costs","","","","",""]
[null,null,null,null,{"$f":"SUM(E101:E112)","v":68.036170800963262},{"$f":"SUM(F101:F112)","v":68.060384602995001},66.987998301214219,66.651007775016424,66.279379690751483,null,null,null,null,null,null,null,null,{"$f":"ROUND(E113/R$2*100,3)","v":18.588999999999999},{"$f":"ROUND(F113/S$2*100,3)","v":18.646999999999998},{"$f":"ROUND(G113/T$2*100,3)","v":18.353000000000002},{"$f":"ROUND(H113/U$2*100,3)","v":18.260999999999999},{"$f":"ROUND(I113/V$2*100,3)","v":18.109000000000002}]
[]
[{"$f":"A100+1","v":8},{"$f":"IFERROR(VLOOKUP($A115,Inputs!$B$68:$AN$129,MATCH($B$7,Inputs!$B$68:$AN$68,0),FALSE),\"Blank\")","v":"2x24W Fluorescent"},null,null,null,null,null,null,null,null,null,null,null,null,null,null,{"$f":"IFERROR(VLOOKUP($A115,Inputs!$B$68:$AN$129,MATCH($B$7,Inputs!$B$68:$AN$68,0),FALSE),\"Blank\")","v":"2x24W Fluorescent"}]
[null,{"$f":"Inputs!$S$68","v":"Lamp UNIT price Annualised Cost"},{"$f":"Inputs!$Q$68","v":"Lamp Maintenance cycle"},null,{"$f":"IF($B115=\"Blank\",0,VLOOKUP($B115,Inputs!$C$68:$AN$129,MATCH($B116,Inputs!$C$68:$AN$68,0),FALSE))","v":1.4370046282556002},{"$f":"IF($B115=\"Blank\",0,VLOOKUP($B115,Inputs!$C$68:$AN$129,MATCH($B116,Inputs!$C$68:$AN$68,0),FALSE))","v":1.4370046282556002},{"$f":"IF($B115=\"Blank\",0,VLOOKUP($B115,Inputs!$C$68:$AN$129,MATCH($B116,Inputs!$C$68:$AN$68,0),FALSE))","v":1.4370046282556002},{"$f":"IF($B115=\"Blank\",0,VLOOKUP($B115,Inputs!$C$68:$AN$129,MATCH($B116,Inputs!$C$68:$AN$68,0),FALSE))","v":1.4370046282556002},{"$f":"IF($B115=\"Blank\",0,VLOOKUP($B115,Inputs!$C$68:$AN$129,MATCH($B116,Inputs!$C$68:$AN$68,0),FALSE))","v":1.4370046282556002},null,null,null,null,null,null,null,{"$f":"B116","v":"Lamp UNIT price Annualised Cost"},{"$f":"IF(E116=\"NA\",\"\",E116/R$2*100)","v":0.39262421537038256},{"$f":"IF(F116=\"NA\",\"\",F116/S$2*100)","v":0.39369989815221923},{"$f":"IF(G116=\"NA\",\"\",G116/T$2*100)","v":0.39369989815221923},{"$f":"IF(H116=\"NA\",\"\",H116/U$2*100)","v":0.39369989815221923},{"$f":"IF(I116=\"NA\",\"\",I116/V$2*100)","v":0.39262421537038256}]
[null,{"$f":"Inputs!$K$68","v":"PE Cell UNIT price Annualised Cost"},{"$f":"Inputs!$I$68","v":"PE Cell Maintenance Cycle"},null,{"$f":"IF($B115=\"Blank\",0,VLOOKUP($B115,Inputs!$C$68:$AN$129,MATCH($B117,Inputs!$C$68:$AN$68,0),FALSE))","v":0.58131255188333353},{"$f":"IF($B115=\"Blank\",0,VLOOKUP($B115,Inputs!$C$68:$AN$129,MATCH($B117,Inputs!$C$68:$AN$68,0),FALSE))","v":0.58131255188333353},{"$f":"IF($B115=\"Blank\",0,VLOOKUP($B115,Inputs!$C$68:$AN$129,MATCH($B117,Inputs!$C$68:$AN$68,0),FALSE))","v":0.58131255188333353},{"$f":"IF($B115=\"Blank\",0,VLOOKUP($B115,Inputs!$C$68:$AN$129,MATCH($B117,Inputs!$C$68:$AN$68,0),FALSE))","v":0.58131255188333353},{"$f":"IF($B115=\"Blank\",0,VLOOKUP($B115,Inputs!$C$68:$AN$129,MATCH($B117,Inputs!$C$68:$AN$68,0),FALSE))","v":0.58131255188333353},null,null,null,null,null,null,null,"PE Cell UNIT price Annualised Cost",0.15882856608834248,0.15926371284474891,0.15926371284474891,0.15926371284474891,0.15882856608834248]
[null,"Corp capex annuity per light",null,null,{"$f":"IF($B115=\"Blank\",0,'Corp Capex Annuity calcs'!F$142)","v":18.582309905017571},{"$f":"IF($B115=\"Blank\",0,'Corp Capex Annuity calcs'!G$142)","v":18.552026408230436},{"$f":"IF($B115=\"Blank\",0,'Corp Capex Annuity calcs'!H$142)","v":18.401377631486287},{"$f":"IF($B115=\"Blank\",0,'Corp Capex Annuity calcs'!I$142)","v":18.205761940470655},{"$f":"IF($B115=\"Blank\",0,'Corp Capex Annuity calcs'!J$142)","v":17.995165449295623},null,null,null,null,null,null,null,"Corp capex annuity per light",5.0771338538299373,5.0827469611590237,5.0414733236948734,4.9878799836905907,4.9167118713922466]
[null,{"$f":"Inputs!$U$68","v":"Lamp Service costs Annualised"},"Labour Portion of Lamp Service costs annualised",null,{"$f":"IF($B115=\"Blank\",0,VLOOKUP($B115,Inputs!$C$68:$AN$129,MATCH($B119,Inputs!$C$68:$AN$68,0),FALSE))+IFERROR(IF($B115=\"Blank\",0,VLOOKUP($B115,Inputs!$C$68:$AN$129,MATCH($C119,Inputs!$C$68:$AN$68,0),FALSE))*('Master Data'!K$42),0)","v":24.127490039840644},{"$f":"IF($B115=\"Blank\",0,VLOOKUP($B115,Inputs!$C$68:$AN$129,MATCH($B119,Inputs!$C$68:$AN$68,0),FALSE))+IFERROR(IF($B115=\"Blank\",0,VLOOKUP($B115,Inputs!$C$68:$AN$129,MATCH($C119,Inputs!$C$68:$AN$68,0),FALSE))*('Master Data'!L$42),0)","v":24.131023426294828},{"$f":"IF($B115=\"Blank\",0,VLOOKUP($B115,Inputs!$C$68:$AN$129,MATCH($B119,Inputs!$C$68:$AN$68,0),FALSE))+IFERROR(IF($B115=\"Blank\",0,VLOOKUP($B115,Inputs!$C$68:$AN$129,MATCH($C119,Inputs!$C$68:$AN$68,0),FALSE))*('Master Data'!M$42),0)","v":24.136412685577696},{"$f":"IF($B115=\"Blank\",0,VLOOKUP($B115,Inputs!$C$68:$AN$129,MATCH($B119,Inputs!$C$68:$AN$68,0),FALSE))+IFERROR(IF($B115=\"Blank\",0,VLOOKUP($B115,Inputs!$C$68:$AN$129,MATCH($C119,Inputs!$C$68:$AN$68,0),FALSE))*('Master Data'!N$42),0)","v":24.143056949368709},{"$f":"IF($B115=\"Blank\",0,VLOOKUP($B115,Inputs!$C$68:$AN$129,MATCH($B119,Inputs!$C$68:$AN$68,0),FALSE))+IFERROR(IF($B115=\"Blank\",0,VLOOKUP($B115,Inputs!$C$68:$AN$129,MATCH($C119,Inputs!$C$68:$AN$68,0),FALSE))*('Master Data'!O$42),0)","v":24.150816058816748},null,null,null,null,null,null,null,"Lamp Service costs Annualised",6.5922103933990828,6.611239294875296,6.6127158042678618,6.6145361505119755,6.598583622627527]
[null,{"$f":"Inputs!$M$68","v":"PE Cell Service costs Annualised"},"Labour Portion of PE Cell Service costs Annualised",null,{"$f":"IF($B115=\"Blank\",0,VLOOKUP($B115,Inputs!$C$68:$AN$129,MATCH($B120,Inputs!$C$68:$AN$68,0),FALSE))+IFERROR(IF($B115=\"Blank\",0,VLOOKUP($B115,Inputs!$C$68:$AN$129,MATCH($C120,Inputs!$C$68:$AN$68,0),FALSE))*('Master Data'!K$42),0)","v":0},{"$f":"IF($B115=\"Blank\",0,VLOOKUP($B115,Inputs!$C$68:$AN$129,MATCH($B120,Inputs!$C$68:$AN$68,0),FALSE))+IFERROR(IF($B115=\"Blank\",0,VLOOKUP($B115,Inputs!$C$68:$AN$129,MATCH($C120,Inputs!$C$68:$AN$68,0),FALSE))*('Master Data'!L$42),0)","v":0},{"$f":"IF($B115=\"Blank\",0,VLOOKUP($B115,Inputs!$C$68:$AN$129,MATCH($B120,Inputs!$C$68:$AN$68,0),FALSE))+IFERROR(IF($B115=\"Blank\",0,VLOOKUP($B115,Inputs!$C$68:$AN$129,MATCH($C120,Inputs!$C$68:$AN$68,0),FALSE))*('Master Data'!M$42),0)","v":0},{"$f":"IF($B115=\"Blank\",0,VLOOKUP($B115,Inputs!$C$68:$AN$129,MATCH($B120,Inputs!$C$68:$AN$68,0),FALSE))+IFERROR(IF($B115=\"Blank\",0,VLOOKUP($B115,Inputs!$C$68:$AN$129,MATCH($C120,Inputs!$C$68:$AN$68,0),FALSE))*('Master Data'!N$42),0)","v":0},{"$f":"IF($B115=\"Blank\",0,VLOOKUP($B115,Inputs!$C$68:$AN$129,MATCH($B120,Inputs!$C$68:$AN$68,0),FALSE))+IFERROR(IF($B115=\"Blank\",0,VLOOKUP($B115,Inputs!$C$68:$AN$129,MATCH($C120,Inputs!$C$68:$AN$68,0),FALSE))*('Master Data'!O$42),0)","v":0},null,null,null,null,null,null,null,"PE Cell Service costs Annualised",0,0,0,0,0]
[null,"Indirect Opex",null,null,{"$f":"IF($B115=\"Blank\",0,IF($B$8=\"Private Contract Lighting\",'Opex Weighting'!D$48,'Opex Weighting'!D$46))","v":12.159436933476723},{"$f":"IF($B115=\"Blank\",0,IF($B$8=\"Private Contract Lighting\",'Opex Weighting'!E$48,'Opex Weighting'!E$46))","v":12.139620760396495},{"$f":"IF($B115=\"Blank\",0,IF($B$8=\"Private Contract Lighting\",'Opex Weighting'!F$48,'Opex Weighting'!F$46))","v":12.041042902784117},{"$f":"IF($B115=\"Blank\",0,IF($B$8=\"Private Contract Lighting\",'Opex Weighting'!G$48,'Opex Weighting'!G$46))","v":11.913040696908689},{"$f":"IF($B115=\"Blank\",0,IF($B$8=\"Private Contract Lighting\",'Opex Weighting'!H$48,'Opex Weighting'!H$46))","v":11.775235721857506},null,null,null,null,null,null,null,"Indirect Opex",3.3222505282723289,3.32592349599904,3.2989158637764708,3.2638467662763535,3.2172775196331984]
[null,"Indirect Capex",null,null,{"$f":"IF($B116=\"Blank\",0,IF($B$8=\"Private Contract Lighting\",'Capex Weighting'!D$60,'Capex Weighting'!D$62))","v":0},{"$f":"IF($B116=\"Blank\",0,IF($B$8=\"Private Contract Lighting\",'Capex Weighting'!E$60,'Capex Weighting'!E$62))","v":0},{"$f":"IF($B116=\"Blank\",0,IF($B$8=\"Private Contract Lighting\",'Capex Weighting'!F$60,'Capex Weighting'!F$62))","v":0},{"$f":"IF($B116=\"Blank\",0,IF($B$8=\"Private Contract Lighting\",'Capex Weighting'!G$60,'Capex Weighting'!G$62))","v":0},{"$f":"IF($B116=\"Blank\",0,IF($B$8=\"Private Contract Lighting\",'Capex Weighting'!H$60,'Capex Weighting'!H$62))","v":0},null,null,null,null,null,null,null,"Indirect Capex",0,0,0,0,0]
[null,"Opex Overheads Costs per light",null,null,{"$f":"IF($B115=\"Blank\",0,IF($B$8=\"Private Contract Lighting\",'Building Block'!C$40,'Building Block'!C$39))","v":10.567257211169151},{"$f":"IF($B115=\"Blank\",0,IF($B$8=\"Private Contract Lighting\",'Building Block'!D$40,'Building Block'!D$39))","v":10.638037296614067},{"$f":"IF($B115=\"Blank\",0,IF($B$8=\"Private Contract Lighting\",'Building Block'!E$40,'Building Block'!E$39))","v":9.8094883699069495},{"$f":"IF($B115=\"Blank\",0,IF($B$8=\"Private Contract Lighting\",'Building Block'!F$40,'Building Block'!F$39))","v":9.7894714768092079},{"$f":"IF($B115=\"Blank\",0,IF($B$8=\"Private Contract Lighting\",'Building Block'!G$40,'Building Block'!G$39))","v":9.7584857493224391},null,null,null,null,null,null,null,"Opex Overheads Costs per light",2.8872287462210795,2.914530766195635,2.6875310602484794,2.6820469799477284,2.6662529369733439]
[null,{"$f":"Inputs!$AK$68","v":"Bracket UNIT price"},0,null,"NA","NA","NA","NA","NA",null,null,null,null,null,null,null,"Bracket UNIT price","","","","",""]
[null,{"$f":"Inputs!$AA$68","v":"CAPEX Instalation costs"},{"$f":"C124+1","v":1},null,"NA","NA","NA","NA","NA",null,null,null,null,null,null,null,"CAPEX Instalation costs","","","","",""]
[null,{"$f":"Inputs!$Z$68","v":"Luminaire UNIT price"},{"$f":"C125+1","v":2},null,"NA","NA","NA","NA","NA",null,null,null,null,null,null,null,"Luminaire UNIT price","","","","",""]
[null,{"$f":"Inputs!$AA$68","v":"CAPEX Instalation costs"},3,null,"NA","NA","NA","NA","NA",null,null,null,null,null,null,null,"CAPEX Instalation costs","","","","",""]
[null,null,null,null,{"$f":"SUM(E116:E127)","v":67.454811269643017},{"$f":"SUM(F116:F127)","v":67.479025071674769},66.406638769893974,66.069648243696193,65.698020159431252,null,null,null,null,null,null,null,null,{"$f":"ROUND(E128/R$2*100,3)","v":18.43},{"$f":"ROUND(F128/S$2*100,3)","v":18.486999999999998},{"$f":"ROUND(G128/T$2*100,3)","v":18.193999999999999},{"$f":"ROUND(H128/U$2*100,3)","v":18.100999999999999},{"$f":"ROUND(I128/V$2*100,3)","v":17.95}]
[]
[{"$f":"A115+1","v":9},{"$f":"IFERROR(VLOOKUP($A130,Inputs!$B$68:$AN$129,MATCH($B$7,Inputs!$B$68:$AN$68,0),FALSE),\"Blank\")","v":"T5 Fluorescent 2 x 24W"},null,null,null,null,null,null,null,null,null,null,null,null,null,null,{"$f":"IFERROR(VLOOKUP($A130,Inputs!$B$68:$AN$129,MATCH($B$7,Inputs!$B$68:$AN$68,0),FALSE),\"Blank\")","v":"T5 Fluorescent 2 x 24W"}]
[null,{"$f":"Inputs!$S$68","v":"Lamp UNIT price Annualised Cost"},{"$f":"Inputs!$Q$68","v":"Lamp Maintenance cycle"},null,{"$f":"IF($B130=\"Blank\",0,VLOOKUP($B130,Inputs!$C$68:$AN$129,MATCH($B131,Inputs!$C$68:$AN$68,0),FALSE))","v":2.0183641595758375},{"$f":"IF($B130=\"Blank\",0,VLOOKUP($B130,Inputs!$C$68:$AN$129,MATCH($B131,Inputs!$C$68:$AN$68,0),FALSE))","v":2.0183641595758375},{"$f":"IF($B130=\"Blank\",0,VLOOKUP($B130,Inputs!$C$68:$AN$129,MATCH($B131,Inputs!$C$68:$AN$68,0),FALSE))","v":2.0183641595758375},{"$f":"IF($B130=\"Blank\",0,VLOOKUP($B130,Inputs!$C$68:$AN$129,MATCH($B131,Inputs!$C$68:$AN$68,0),FALSE))","v":2.0183641595758375},{"$f":"IF($B130=\"Blank\",0,VLOOKUP($B130,Inputs!$C$68:$AN$129,MATCH($B131,Inputs!$C$68:$AN$68,0),FALSE))","v":2.0183641595758375},null,null,null,null,null,null,null,{"$f":"B131","v":"Lamp UNIT price Annualised Cost"},{"$f":"IF(E131=\"NA\",\"\",E131/R$2*100)","v":0.55146561737044741},{"$f":"IF(F131=\"NA\",\"\",F131/S$2*100)","v":0.55297648207557193},{"$f":"IF(G131=\"NA\",\"\",G131/T$2*100)","v":0.55297648207557193},{"$f":"IF(H131=\"NA\",\"\",H131/U$2*100)","v":0.55297648207557193},{"$f":"IF(I131=\"NA\",\"\",I131/V$2*100)","v":0.55146561737044741}]
[null,{"$f":"Inputs!$K$68","v":"PE Cell UNIT price Annualised Cost"},{"$f":"Inputs!$I$68","v":"PE Cell Maintenance Cycle"},null,{"$f":"IF($B130=\"Blank\",0,VLOOKUP($B130,Inputs!$C$68:$AN$129,MATCH($B132,Inputs!$C$68:$AN$68,0),FALSE))","v":0.58131255188333353},{"$f":"IF($B130=\"Blank\",0,VLOOKUP($B130,Inputs!$C$68:$AN$129,MATCH($B132,Inputs!$C$68:$AN$68,0),FALSE))","v":0.58131255188333353},{"$f":"IF($B130=\"Blank\",0,VLOOKUP($B130,Inputs!$C$68:$AN$129,MATCH($B132,Inputs!$C$68:$AN$68,0),FALSE))","v":0.58131255188333353},{"$f":"IF($B130=\"Blank\",0,VLOOKUP($B130,Inputs!$C$68:$AN$129,MATCH($B132,Inputs!$C$68:$AN$68,0),FALSE))","v":0.58131255188333353},{"$f":"IF($B130=\"Blank\",0,VLOOKUP($B130,Inputs!$C$68:$AN$129,MATCH($B132,Inputs!$C$68:$AN$68,0),FALSE))","v":0.58131255188333353},null,null,null,null,null,null,null,"PE Cell UNIT price Annualised Cost",0.15882856608834248,0.15926371284474891,0.15926371284474891,0.15926371284474891,0.15882856608834248]
[null,"Corp capex annuity per light",null,null,{"$f":"IF($B130=\"Blank\",0,'Corp Capex Annuity calcs'!F$142)","v":18.582309905017571},{"$f":"IF($B130=\"Blank\",0,'Corp Capex Annuity calcs'!G$142)","v":18.552026408230436},{"$f":"IF($B130=\"Blank\",0,'Corp Capex Annuity calcs'!H$142)","v":18.401377631486287},{"$f":"IF($B130=\"Blank\",0,'Corp Capex Annuity calcs'!I$142)","v":18.205761940470655},{"$f":"IF($B130=\"Blank\",0,'Corp Capex Annuity calcs'!J$142)","v":17.995165449295623},null,null,null,null,null,null,null,"Corp capex annuity per light",5.0771338538299373,5.0827469611590237,5.0414733236948734,4.9878799836905907,4.9167118713922466]
[null,{"$f":"Inputs!$U$68","v":"Lamp Service costs Annualised"},"Labour Portion of Lamp Service costs annualised",null,{"$f":"IF($B130=\"Blank\",0,VLOOKUP($B130,Inputs!$C$68:$AN$129,MATCH($B134,Inputs!$C$68:$AN$68,0),FALSE))+IFERROR(IF($B130=\"Blank\",0,VLOOKUP($B130,Inputs!$C$68:$AN$129,MATCH($C134,Inputs!$C$68:$AN$68,0),FALSE))*('Master Data'!K$42),0)","v":24.127490039840644},{"$f":"IF($B130=\"Blank\",0,VLOOKUP($B130,Inputs!$C$68:$AN$129,MATCH($B134,Inputs!$C$68:$AN$68,0),FALSE))+IFERROR(IF($B130=\"Blank\",0,VLOOKUP($B130,Inputs!$C$68:$AN$129,MATCH($C134,Inputs!$C$68:$AN$68,0),FALSE))*('Master Data'!L$42),0)","v":24.131023426294828},{"$f":"IF($B130=\"Blank\",0,VLOOKUP($B130,Inputs!$C$68:$AN$129,MATCH($B134,Inputs!$C$68:$AN$68,0),FALSE))+IFERROR(IF($B130=\"Blank\",0,VLOOKUP($B130,Inputs!$C$68:$AN$129,MATCH($C134,Inputs!$C$68:$AN$68,0),FALSE))*('Master Data'!M$42),0)","v":24.136412685577696},{"$f":"IF($B130=\"Blank\",0,VLOOKUP($B130,Inputs!$C$68:$AN$129,MATCH($B134,Inputs!$C$68:$AN$68,0),FALSE))+IFERROR(IF($B130=\"Blank\",0,VLOOKUP($B130,Inputs!$C$68:$AN$129,MATCH($C134,Inputs!$C$68:$AN$68,0),FALSE))*('Master Data'!N$42),0)","v":24.143056949368709},{"$f":"IF($B130=\"Blank\",0,VLOOKUP($B130,Inputs!$C$68:$AN$129,MATCH($B134,Inputs!$C$68:$AN$68,0),FALSE))+IFERROR(IF($B130=\"Blank\",0,VLOOKUP($B130,Inputs!$C$68:$AN$129,MATCH($C134,Inputs!$C$68:$AN$68,0),FALSE))*('Master Data'!O$42),0)","v":24.150816058816748},null,null,null,null,null,null,null,"Lamp Service costs Annualised",6.5922103933990828,6.611239294875296,6.6127158042678618,6.6145361505119755,6.598583622627527]
[null,{"$f":"Inputs!$M$68","v":"PE Cell Service costs Annualised"},"Labour Portion of PE Cell Service costs Annualised",null,{"$f":"IF($B130=\"Blank\",0,VLOOKUP($B130,Inputs!$C$68:$AN$129,MATCH($B135,Inputs!$C$68:$AN$68,0),FALSE))+IFERROR(IF($B130=\"Blank\",0,VLOOKUP($B130,Inputs!$C$68:$AN$129,MATCH($C135,Inputs!$C$68:$AN$68,0),FALSE))*('Master Data'!K$42),0)","v":0},{"$f":"IF($B130=\"Blank\",0,VLOOKUP($B130,Inputs!$C$68:$AN$129,MATCH($B135,Inputs!$C$68:$AN$68,0),FALSE))+IFERROR(IF($B130=\"Blank\",0,VLOOKUP($B130,Inputs!$C$68:$AN$129,MATCH($C135,Inputs!$C$68:$AN$68,0),FALSE))*('Master Data'!L$42),0)","v":0},{"$f":"IF($B130=\"Blank\",0,VLOOKUP($B130,Inputs!$C$68:$AN$129,MATCH($B135,Inputs!$C$68:$AN$68,0),FALSE))+IFERROR(IF($B130=\"Blank\",0,VLOOKUP($B130,Inputs!$C$68:$AN$129,MATCH($C135,Inputs!$C$68:$AN$68,0),FALSE))*('Master Data'!M$42),0)","v":0},{"$f":"IF($B130=\"Blank\",0,VLOOKUP($B130,Inputs!$C$68:$AN$129,MATCH($B135,Inputs!$C$68:$AN$68,0),FALSE))+IFERROR(IF($B130=\"Blank\",0,VLOOKUP($B130,Inputs!$C$68:$AN$129,MATCH($C135,Inputs!$C$68:$AN$68,0),FALSE))*('Master Data'!N$42),0)","v":0},{"$f":"IF($B130=\"Blank\",0,VLOOKUP($B130,Inputs!$C$68:$AN$129,MATCH($B135,Inputs!$C$68:$AN$68,0),FALSE))+IFERROR(IF($B130=\"Blank\",0,VLOOKUP($B130,Inputs!$C$68:$AN$129,MATCH($C135,Inputs!$C$68:$AN$68,0),FALSE))*('Master Data'!O$42),0)","v":0},null,null,null,null,null,null,null,"PE Cell Service costs Annualised",0,0,0,0,0]
[null,"Indirect Opex",null,null,{"$f":"IF($B130=\"Blank\",0,IF($B$8=\"Private Contract Lighting\",'Opex Weighting'!D$48,'Opex Weighting'!D$46))","v":12.159436933476723},{"$f":"IF($B130=\"Blank\",0,IF($B$8=\"Private Contract Lighting\",'Opex Weighting'!E$48,'Opex Weighting'!E$46))","v":12.139620760396495},{"$f":"IF($B130=\"Blank\",0,IF($B$8=\"Private Contract Lighting\",'Opex Weighting'!F$48,'Opex Weighting'!F$46))","v":12.041042902784117},{"$f":"IF($B130=\"Blank\",0,IF($B$8=\"Private Contract Lighting\",'Opex Weighting'!G$48,'Opex Weighting'!G$46))","v":11.913040696908689},{"$f":"IF($B130=\"Blank\",0,IF($B$8=\"Private Contract Lighting\",'Opex Weighting'!H$48,'Opex Weighting'!H$46))","v":11.775235721857506},null,null,null,null,null,null,null,"Indirect Opex",3.3222505282723289,3.32592349599904,3.2989158637764708,3.2638467662763535,3.2172775196331984]
[null,"Indirect Capex",null,null,{"$f":"IF($B131=\"Blank\",0,IF($B$8=\"Private Contract Lighting\",'Capex Weighting'!D$60,'Capex Weighting'!D$62))","v":0},{"$f":"IF($B131=\"Blank\",0,IF($B$8=\"Private Contract Lighting\",'Capex Weighting'!E$60,'Capex Weighting'!E$62))","v":0},{"$f":"IF($B131=\"Blank\",0,IF($B$8=\"Private Contract Lighting\",'Capex Weighting'!F$60,'Capex Weighting'!F$62))","v":0},{"$f":"IF($B131=\"Blank\",0,IF($B$8=\"Private Contract Lighting\",'Capex Weighting'!G$60,'Capex Weighting'!G$62))","v":0},{"$f":"IF($B131=\"Blank\",0,IF($B$8=\"Private Contract Lighting\",'Capex Weighting'!H$60,'Capex Weighting'!H$62))","v":0},null,null,null,null,null,null,null,"Indirect Capex",0,0,0,0,0]
[null,"Opex Overheads Costs per light",null,null,{"$f":"IF($B130=\"Blank\",0,IF($B$8=\"Private Contract Lighting\",'Building Block'!C$40,'Building Block'!C$39))","v":10.567257211169151},{"$f":"IF($B130=\"Blank\",0,IF($B$8=\"Private Contract Lighting\",'Building Block'!D$40,'Building Block'!D$39))","v":10.638037296614067},{"$f":"IF($B130=\"Blank\",0,IF($B$8=\"Private Contract Lighting\",'Building Block'!E$40,'Building Block'!E$39))","v":9.8094883699069495},{"$f":"IF($B130=\"Blank\",0,IF($B$8=\"Private Contract Lighting\",'Building Block'!F$40,'Building Block'!F$39))","v":9.7894714768092079},{"$f":"IF($B130=\"Blank\",0,IF($B$8=\"Private Contract Lighting\",'Building Block'!G$40,'Building Block'!G$39))","v":9.7584857493224391},null,null,null,null,null,null,null,"Opex Overheads Costs per light",2.8872287462210795,2.914530766195635,2.6875310602484794,2.6820469799477284,2.6662529369733439]
[null,{"$f":"Inputs!$AK$68","v":"Bracket UNIT price"},0,null,"NA","NA","NA","NA","NA",null,null,null,null,null,null,null,"Bracket UNIT price","","","","",""]
[null,{"$f":"Inputs!$AA$68","v":"CAPEX Instalation costs"},{"$f":"C139+1","v":1},null,"NA","NA","NA","NA","NA",null,null,null,null,null,null,null,"CAPEX Instalation costs","","","","",""]
[null,{"$f":"Inputs!$Z$68","v":"Luminaire UNIT price"},{"$f":"C140+1","v":2},null,"NA","NA","NA","NA","NA",null,null,null,null,null,null,null,"Luminaire UNIT price","","","","",""]
[null,{"$f":"Inputs!$AA$68","v":"CAPEX Instalation costs"},3,null,"NA","NA","NA","NA","NA",null,null,null,null,null,null,null,"CAPEX Instalation costs","","","","",""]
[null,null,null,null,{"$f":"SUM(E131:E142)","v":68.036170800963262},{"$f":"SUM(F131:F142)","v":68.060384602995001},66.987998301214219,66.651007775016424,66.279379690751483,null,null,null,null,null,null,null,null,{"$f":"ROUND(E143/R$2*100,3)","v":18.588999999999999},{"$f":"ROUND(F143/S$2*100,3)","v":18.646999999999998},{"$f":"ROUND(G143/T$2*100,3)","v":18.353000000000002},{"$f":"ROUND(H143/U$2*100,3)","v":18.260999999999999},{"$f":"ROUND(I143/V$2*100,3)","v":18.109000000000002}]
[]
[{"$f":"A130+1","v":10},{"$f":"IFERROR(VLOOKUP($A145,Inputs!$B$68:$AN$129,MATCH($B$7,Inputs!$B$68:$AN$68,0),FALSE),\"Blank\")","v":"20 Fluorescent 1X20FL"},null,null,null,null,null,null,null,null,null,null,null,null,null,null,{"$f":"IFERROR(VLOOKUP($A145,Inputs!$B$68:$AN$129,MATCH($B$7,Inputs!$B$68:$AN$68,0),FALSE),\"Blank\")","v":"20 Fluorescent 1X20FL"}]
[null,{"$f":"Inputs!$S$68","v":"Lamp UNIT price Annualised Cost"},{"$f":"Inputs!$Q$68","v":"Lamp Maintenance cycle"},null,{"$f":"IF($B145=\"Blank\",0,VLOOKUP($B145,Inputs!$C$68:$AN$129,MATCH($B146,Inputs!$C$68:$AN$68,0),FALSE))","v":1.0091820797879187},{"$f":"IF($B145=\"Blank\",0,VLOOKUP($B145,Inputs!$C$68:$AN$129,MATCH($B146,Inputs!$C$68:$AN$68,0),FALSE))","v":1.0091820797879187},{"$f":"IF($B145=\"Blank\",0,VLOOKUP($B145,Inputs!$C$68:$AN$129,MATCH($B146,Inputs!$C$68:$AN$68,0),FALSE))","v":1.0091820797879187},{"$f":"IF($B145=\"Blank\",0,VLOOKUP($B145,Inputs!$C$68:$AN$129,MATCH($B146,Inputs!$C$68:$AN$68,0),FALSE))","v":1.0091820797879187},{"$f":"IF($B145=\"Blank\",0,VLOOKUP($B145,Inputs!$C$68:$AN$129,MATCH($B146,Inputs!$C$68:$AN$68,0),FALSE))","v":1.0091820797879187},null,null,null,null,null,null,null,{"$f":"B146","v":"Lamp UNIT price Annualised Cost"},{"$f":"IF(E146=\"NA\",\"\",E146/R$2*100)","v":0.27573280868522371},{"$f":"IF(F146=\"NA\",\"\",F146/S$2*100)","v":0.27648824103778596},{"$f":"IF(G146=\"NA\",\"\",G146/T$2*100)","v":0.27648824103778596},{"$f":"IF(H146=\"NA\",\"\",H146/U$2*100)","v":0.27648824103778596},{"$f":"IF(I146=\"NA\",\"\",I146/V$2*100)","v":0.27573280868522371}]
[null,{"$f":"Inputs!$K$68","v":"PE Cell UNIT price Annualised Cost"},{"$f":"Inputs!$I$68","v":"PE Cell Maintenance Cycle"},null,{"$f":"IF($B145=\"Blank\",0,VLOOKUP($B145,Inputs!$C$68:$AN$129,MATCH($B147,Inputs!$C$68:$AN$68,0),FALSE))","v":0.58131255188333353},{"$f":"IF($B145=\"Blank\",0,VLOOKUP($B145,Inputs!$C$68:$AN$129,MATCH($B147,Inputs!$C$68:$AN$68,0),FALSE))","v":0.58131255188333353},{"$f":"IF($B145=\"Blank\",0,VLOOKUP($B145,Inputs!$C$68:$AN$129,MATCH($B147,Inputs!$C$68:$AN$68,0),FALSE))","v":0.58131255188333353},{"$f":"IF($B145=\"Blank\",0,VLOOKUP($B145,Inputs!$C$68:$AN$129,MATCH($B147,Inputs!$C$68:$AN$68,0),FALSE))","v":0.58131255188333353},{"$f":"IF($B145=\"Blank\",0,VLOOKUP($B145,Inputs!$C$68:$AN$129,MATCH($B147,Inputs!$C$68:$AN$68,0),FALSE))","v":0.58131255188333353},null,null,null,null,null,null,null,"PE Cell UNIT price Annualised Cost",0.15882856608834248,0.15926371284474891,0.15926371284474891,0.15926371284474891,0.15882856608834248]
[null,"Corp capex annuity per light",null,null,{"$f":"IF($B145=\"Blank\",0,'Corp Capex Annuity calcs'!F$142)","v":18.582309905017571},{"$f":"IF($B145=\"Blank\",0,'Corp Capex Annuity calcs'!G$142)","v":18.552026408230436},{"$f":"IF($B145=\"Blank\",0,'Corp Capex Annuity calcs'!H$142)","v":18.401377631486287},{"$f":"IF($B145=\"Blank\",0,'Corp Capex Annuity calcs'!I$142)","v":18.205761940470655},{"$f":"IF($B145=\"Blank\",0,'Corp Capex Annuity calcs'!J$142)","v":17.995165449295623},null,null,null,null,null,null,null,"Corp capex annuity per light",5.0771338538299373,5.0827469611590237,5.0414733236948734,4.9878799836905907,4.9167118713922466]
[null,{"$f":"Inputs!$U$68","v":"Lamp Service costs Annualised"},"Labour Portion of Lamp Service costs annualised",null,{"$f":"IF($B145=\"Blank\",0,VLOOKUP($B145,Inputs!$C$68:$AN$129,MATCH($B149,Inputs!$C$68:$AN$68,0),FALSE))+IFERROR(IF($B145=\"Blank\",0,VLOOKUP($B145,Inputs!$C$68:$AN$129,MATCH($C149,Inputs!$C$68:$AN$68,0),FALSE))*('Master Data'!K$42),0)","v":24.127490039840644},{"$f":"IF($B145=\"Blank\",0,VLOOKUP($B145,Inputs!$C$68:$AN$129,MATCH($B149,Inputs!$C$68:$AN$68,0),FALSE))+IFERROR(IF($B145=\"Blank\",0,VLOOKUP($B145,Inputs!$C$68:$AN$129,MATCH($C149,Inputs!$C$68:$AN$68,0),FALSE))*('Master Data'!L$42),0)","v":24.131023426294828},{"$f":"IF($B145=\"Blank\",0,VLOOKUP($B145,Inputs!$C$68:$AN$129,MATCH($B149,Inputs!$C$68:$AN$68,0),FALSE))+IFERROR(IF($B145=\"Blank\",0,VLOOKUP($B145,Inputs!$C$68:$AN$129,MATCH($C149,Inputs!$C$68:$AN$68,0),FALSE))*('Master Data'!M$42),0)","v":24.136412685577696},{"$f":"IF($B145=\"Blank\",0,VLOOKUP($B145,Inputs!$C$68:$AN$129,MATCH($B149,Inputs!$C$68:$AN$68,0),FALSE))+IFERROR(IF($B145=\"Blank\",0,VLOOKUP($B145,Inputs!$C$68:$AN$129,MATCH($C149,Inputs!$C$68:$AN$68,0),FALSE))*('Master Data'!N$42),0)","v":24.143056949368709},{"$f":"IF($B145=\"Blank\",0,VLOOKUP($B145,Inputs!$C$68:$AN$129,MATCH($B149,Inputs!$C$68:$AN$68,0),FALSE))+IFERROR(IF($B145=\"Blank\",0,VLOOKUP($B145,Inputs!$C$68:$AN$129,MATCH($C149,Inputs!$C$68:$AN$68,0),FALSE))*('Master Data'!O$42),0)","v":24.150816058816748},null,null,null,null,null,null,null,"Lamp Service costs Annualised",6.5922103933990828,6.611239294875296,6.6127158042678618,6.6145361505119755,6.598583622627527]
[null,{"$f":"Inputs!$M$68","v":"PE Cell Service costs Annualised"},"Labour Portion of PE Cell Service costs Annualised",null,{"$f":"IF($B145=\"Blank\",0,VLOOKUP($B145,Inputs!$C$68:$AN$129,MATCH($B150,Inputs!$C$68:$AN$68,0),FALSE))+IFERROR(IF($B145=\"Blank\",0,VLOOKUP($B145,Inputs!$C$68:$AN$129,MATCH($C150,Inputs!$C$68:$AN$68,0),FALSE))*('Master Data'!K$42),0)","v":0},{"$f":"IF($B145=\"Blank\",0,VLOOKUP($B145,Inputs!$C$68:$AN$129,MATCH($B150,Inputs!$C$68:$AN$68,0),FALSE))+IFERROR(IF($B145=\"Blank\",0,VLOOKUP($B145,Inputs!$C$68:$AN$129,MATCH($C150,Inputs!$C$68:$AN$68,0),FALSE))*('Master Data'!L$42),0)","v":0},{"$f":"IF($B145=\"Blank\",0,VLOOKUP($B145,Inputs!$C$68:$AN$129,MATCH($B150,Inputs!$C$68:$AN$68,0),FALSE))+IFERROR(IF($B145=\"Blank\",0,VLOOKUP($B145,Inputs!$C$68:$AN$129,MATCH($C150,Inputs!$C$68:$AN$68,0),FALSE))*('Master Data'!M$42),0)","v":0},{"$f":"IF($B145=\"Blank\",0,VLOOKUP($B145,Inputs!$C$68:$AN$129,MATCH($B150,Inputs!$C$68:$AN$68,0),FALSE))+IFERROR(IF($B145=\"Blank\",0,VLOOKUP($B145,Inputs!$C$68:$AN$129,MATCH($C150,Inputs!$C$68:$AN$68,0),FALSE))*('Master Data'!N$42),0)","v":0},{"$f":"IF($B145=\"Blank\",0,VLOOKUP($B145,Inputs!$C$68:$AN$129,MATCH($B150,Inputs!$C$68:$AN$68,0),FALSE))+IFERROR(IF($B145=\"Blank\",0,VLOOKUP($B145,Inputs!$C$68:$AN$129,MATCH($C150,Inputs!$C$68:$AN$68,0),FALSE))*('Master Data'!O$42),0)","v":0},null,null,null,null,null,null,null,"PE Cell Service costs Annualised",0,0,0,0,0]
[null,"Indirect Opex",null,null,{"$f":"IF($B145=\"Blank\",0,IF($B$8=\"Private Contract Lighting\",'Opex Weighting'!D$48,'Opex Weighting'!D$46))","v":12.159436933476723},{"$f":"IF($B145=\"Blank\",0,IF($B$8=\"Private Contract Lighting\",'Opex Weighting'!E$48,'Opex Weighting'!E$46))","v":12.139620760396495},{"$f":"IF($B145=\"Blank\",0,IF($B$8=\"Private Contract Lighting\",'Opex Weighting'!F$48,'Opex Weighting'!F$46))","v":12.041042902784117},{"$f":"IF($B145=\"Blank\",0,IF($B$8=\"Private Contract Lighting\",'Opex Weighting'!G$48,'Opex Weighting'!G$46))","v":11.913040696908689},{"$f":"IF($B145=\"Blank\",0,IF($B$8=\"Private Contract Lighting\",'Opex Weighting'!H$48,'Opex Weighting'!H$46))","v":11.775235721857506},null,null,null,null,null,null,null,"Indirect Opex",3.3222505282723289,3.32592349599904,3.2989158637764708,3.2638467662763535,3.2172775196331984]
[null,"Indirect Capex",null,null,{"$f":"IF($B146=\"Blank\",0,IF($B$8=\"Private Contract Lighting\",'Capex Weighting'!D$60,'Capex Weighting'!D$62))","v":0},{"$f":"IF($B146=\"Blank\",0,IF($B$8=\"Private Contract Lighting\",'Capex Weighting'!E$60,'Capex Weighting'!E$62))","v":0},{"$f":"IF($B146=\"Blank\",0,IF($B$8=\"Private Contract Lighting\",'Capex Weighting'!F$60,'Capex Weighting'!F$62))","v":0},{"$f":"IF($B146=\"Blank\",0,IF($B$8=\"Private Contract Lighting\",'Capex Weighting'!G$60,'Capex Weighting'!G$62))","v":0},{"$f":"IF($B146=\"Blank\",0,IF($B$8=\"Private Contract Lighting\",'Capex Weighting'!H$60,'Capex Weighting'!H$62))","v":0},null,null,null,null,null,null,null,"Indirect Capex",0,0,0,0,0]
[null,"Opex Overheads Costs per light",null,null,{"$f":"IF($B145=\"Blank\",0,IF($B$8=\"Private Contract Lighting\",'Building Block'!C$40,'Building Block'!C$39))","v":10.567257211169151},{"$f":"IF($B145=\"Blank\",0,IF($B$8=\"Private Contract Lighting\",'Building Block'!D$40,'Building Block'!D$39))","v":10.638037296614067},{"$f":"IF($B145=\"Blank\",0,IF($B$8=\"Private Contract Lighting\",'Building Block'!E$40,'Building Block'!E$39))","v":9.8094883699069495},{"$f":"IF($B145=\"Blank\",0,IF($B$8=\"Private Contract Lighting\",'Building Block'!F$40,'Building Block'!F$39))","v":9.7894714768092079},{"$f":"IF($B145=\"Blank\",0,IF($B$8=\"Private Contract Lighting\",'Building Block'!G$40,'Building Block'!G$39))","v":9.7584857493224391},null,null,null,null,null,null,null,"Opex Overheads Costs per light",2.8872287462210795,2.914530766195635,2.6875310602484794,2.6820469799477284,2.6662529369733439]
[null,{"$f":"Inputs!$AK$68","v":"Bracket UNIT price"},0,null,"NA","NA","NA","NA","NA",null,null,null,null,null,null,null,"Bracket UNIT price","","","","",""]
[null,{"$f":"Inputs!$AA$68","v":"CAPEX Instalation costs"},{"$f":"C154+1","v":1},null,"NA","NA","NA","NA","NA",null,null,null,null,null,null,null,"CAPEX Instalation costs","","","","",""]
[null,{"$f":"Inputs!$Z$68","v":"Luminaire UNIT price"},{"$f":"C155+1","v":2},null,"NA","NA","NA","NA","NA",null,null,null,null,null,null,null,"Luminaire UNIT price","","","","",""]
[null,{"$f":"Inputs!$AA$68","v":"CAPEX Instalation costs"},3,null,"NA","NA","NA","NA","NA",null,null,null,null,null,null,null,"CAPEX Instalation costs","","","","",""]
[null,null,null,null,{"$f":"SUM(E146:E157)","v":67.026988721175343},{"$f":"SUM(F146:F157)","v":67.051202523207081},65.9788162214263,65.641825695228505,65.270197610963564,null,null,null,null,null,null,null,null,{"$f":"ROUND(E158/R$2*100,3)","v":18.312999999999999},{"$f":"ROUND(F158/S$2*100,3)","v":18.37},{"$f":"ROUND(G158/T$2*100,3)","v":18.076000000000001},{"$f":"ROUND(H158/U$2*100,3)","v":17.984000000000002},{"$f":"ROUND(I158/V$2*100,3)","v":17.832999999999998}]
[]
[{"$f":"A145+1","v":11},{"$f":"IFERROR(VLOOKUP($A160,Inputs!$B$68:$AN$129,MATCH($B$7,Inputs!$B$68:$AN$68,0),FALSE),\"Blank\")","v":"2x40W Fluorescent"},null,null,null,null,null,null,null,null,null,null,null,null,null,null,{"$f":"IFERROR(VLOOKUP($A160,Inputs!$B$68:$AN$129,MATCH($B$7,Inputs!$B$68:$AN$68,0),FALSE),\"Blank\")","v":"2x40W Fluorescent"}]
[null,{"$f":"Inputs!$S$68","v":"Lamp UNIT price Annualised Cost"},{"$f":"Inputs!$Q$68","v":"Lamp Maintenance cycle"},null,{"$f":"IF($B160=\"Blank\",0,VLOOKUP($B160,Inputs!$C$68:$AN$129,MATCH($B161,Inputs!$C$68:$AN$68,0),FALSE))","v":2.1494875852559381},{"$f":"IF($B160=\"Blank\",0,VLOOKUP($B160,Inputs!$C$68:$AN$129,MATCH($B161,Inputs!$C$68:$AN$68,0),FALSE))","v":2.1494875852559381},{"$f":"IF($B160=\"Blank\",0,VLOOKUP($B160,Inputs!$C$68:$AN$129,MATCH($B161,Inputs!$C$68:$AN$68,0),FALSE))","v":2.1494875852559381},{"$f":"IF($B160=\"Blank\",0,VLOOKUP($B160,Inputs!$C$68:$AN$129,MATCH($B161,Inputs!$C$68:$AN$68,0),FALSE))","v":2.1494875852559381},{"$f":"IF($B160=\"Blank\",0,VLOOKUP($B160,Inputs!$C$68:$AN$129,MATCH($B161,Inputs!$C$68:$AN$68,0),FALSE))","v":2.1494875852559381},null,null,null,null,null,null,null,{"$f":"B161","v":"Lamp UNIT price Annualised Cost"},{"$f":"IF(E161=\"NA\",\"\",E161/R$2*100)","v":0.58729168996063885},{"$f":"IF(F161=\"NA\",\"\",F161/S$2*100)","v":0.58890070828929819},{"$f":"IF(G161=\"NA\",\"\",G161/T$2*100)","v":0.58890070828929819},{"$f":"IF(H161=\"NA\",\"\",H161/U$2*100)","v":0.58890070828929819},{"$f":"IF(I161=\"NA\",\"\",I161/V$2*100)","v":0.58729168996063885}]
[null,{"$f":"Inputs!$K$68","v":"PE Cell UNIT price Annualised Cost"},{"$f":"Inputs!$I$68","v":"PE Cell Maintenance Cycle"},null,{"$f":"IF($B160=\"Blank\",0,VLOOKUP($B160,Inputs!$C$68:$AN$129,MATCH($B162,Inputs!$C$68:$AN$68,0),FALSE))","v":0.58131255188333353},{"$f":"IF($B160=\"Blank\",0,VLOOKUP($B160,Inputs!$C$68:$AN$129,MATCH($B162,Inputs!$C$68:$AN$68,0),FALSE))","v":0.58131255188333353},{"$f":"IF($B160=\"Blank\",0,VLOOKUP($B160,Inputs!$C$68:$AN$129,MATCH($B162,Inputs!$C$68:$AN$68,0),FALSE))","v":0.58131255188333353},{"$f":"IF($B160=\"Blank\",0,VLOOKUP($B160,Inputs!$C$68:$AN$129,MATCH($B162,Inputs!$C$68:$AN$68,0),FALSE))","v":0.58131255188333353},{"$f":"IF($B160=\"Blank\",0,VLOOKUP($B160,Inputs!$C$68:$AN$129,MATCH($B162,Inputs!$C$68:$AN$68,0),FALSE))","v":0.58131255188333353},null,null,null,null,null,null,null,"PE Cell UNIT price Annualised Cost",0.15882856608834248,0.15926371284474891,0.15926371284474891,0.15926371284474891,0.15882856608834248]
[null,"Corp capex annuity per light",null,null,{"$f":"IF($B160=\"Blank\",0,'Corp Capex Annuity calcs'!F$142)","v":18.582309905017571},{"$f":"IF($B160=\"Blank\",0,'Corp Capex Annuity calcs'!G$142)","v":18.552026408230436},{"$f":"IF($B160=\"Blank\",0,'Corp Capex Annuity calcs'!H$142)","v":18.401377631486287},{"$f":"IF($B160=\"Blank\",0,'Corp Capex Annuity calcs'!I$142)","v":18.205761940470655},{"$f":"IF($B160=\"Blank\",0,'Corp Capex Annuity calcs'!J$142)","v":17.995165449295623},null,null,null,null,null,null,null,"Corp capex annuity per light",5.0771338538299373,5.0827469611590237,5.0414733236948734,4.9878799836905907,4.9167118713922466]
[null,{"$f":"Inputs!$U$68","v":"Lamp Service costs Annualised"},"Labour Portion of Lamp Service costs annualised",null,{"$f":"IF($B160=\"Blank\",0,VLOOKUP($B160,Inputs!$C$68:$AN$129,MATCH($B164,Inputs!$C$68:$AN$68,0),FALSE))+IFERROR(IF($B160=\"Blank\",0,VLOOKUP($B160,Inputs!$C$68:$AN$129,MATCH($C164,Inputs!$C$68:$AN$68,0),FALSE))*('Master Data'!K$42),0)","v":24.127490039840644},{"$f":"IF($B160=\"Blank\",0,VLOOKUP($B160,Inputs!$C$68:$AN$129,MATCH($B164,Inputs!$C$68:$AN$68,0),FALSE))+IFERROR(IF($B160=\"Blank\",0,VLOOKUP($B160,Inputs!$C$68:$AN$129,MATCH($C164,Inputs!$C$68:$AN$68,0),FALSE))*('Master Data'!L$42),0)","v":24.131023426294828},{"$f":"IF($B160=\"Blank\",0,VLOOKUP($B160,Inputs!$C$68:$AN$129,MATCH($B164,Inputs!$C$68:$AN$68,0),FALSE))+IFERROR(IF($B160=\"Blank\",0,VLOOKUP($B160,Inputs!$C$68:$AN$129,MATCH($C164,Inputs!$C$68:$AN$68,0),FALSE))*('Master Data'!M$42),0)","v":24.136412685577696},{"$f":"IF($B160=\"Blank\",0,VLOOKUP($B160,Inputs!$C$68:$AN$129,MATCH($B164,Inputs!$C$68:$AN$68,0),FALSE))+IFERROR(IF($B160=\"Blank\",0,VLOOKUP($B160,Inputs!$C$68:$AN$129,MATCH($C164,Inputs!$C$68:$AN$68,0),FALSE))*('Master Data'!N$42),0)","v":24.143056949368709},{"$f":"IF($B160=\"Blank\",0,VLOOKUP($B160,Inputs!$C$68:$AN$129,MATCH($B164,Inputs!$C$68:$AN$68,0),FALSE))+IFERROR(IF($B160=\"Blank\",0,VLOOKUP($B160,Inputs!$C$68:$AN$129,MATCH($C164,Inputs!$C$68:$AN$68,0),FALSE))*('Master Data'!O$42),0)","v":24.150816058816748},null,null,null,null,null,null,null,"Lamp Service costs Annualised",6.5922103933990828,6.611239294875296,6.6127158042678618,6.6145361505119755,6.598583622627527]
[null,{"$f":"Inputs!$M$68","v":"PE Cell Service costs Annualised"},"Labour Portion of PE Cell Service costs Annualised",null,{"$f":"IF($B160=\"Blank\",0,VLOOKUP($B160,Inputs!$C$68:$AN$129,MATCH($B165,Inputs!$C$68:$AN$68,0),FALSE))+IFERROR(IF($B160=\"Blank\",0,VLOOKUP($B160,Inputs!$C$68:$AN$129,MATCH($C165,Inputs!$C$68:$AN$68,0),FALSE))*('Master Data'!K$42),0)","v":0},{"$f":"IF($B160=\"Blank\",0,VLOOKUP($B160,Inputs!$C$68:$AN$129,MATCH($B165,Inputs!$C$68:$AN$68,0),FALSE))+IFERROR(IF($B160=\"Blank\",0,VLOOKUP($B160,Inputs!$C$68:$AN$129,MATCH($C165,Inputs!$C$68:$AN$68,0),FALSE))*('Master Data'!L$42),0)","v":0},{"$f":"IF($B160=\"Blank\",0,VLOOKUP($B160,Inputs!$C$68:$AN$129,MATCH($B165,Inputs!$C$68:$AN$68,0),FALSE))+IFERROR(IF($B160=\"Blank\",0,VLOOKUP($B160,Inputs!$C$68:$AN$129,MATCH($C165,Inputs!$C$68:$AN$68,0),FALSE))*('Master Data'!M$42),0)","v":0},{"$f":"IF($B160=\"Blank\",0,VLOOKUP($B160,Inputs!$C$68:$AN$129,MATCH($B165,Inputs!$C$68:$AN$68,0),FALSE))+IFERROR(IF($B160=\"Blank\",0,VLOOKUP($B160,Inputs!$C$68:$AN$129,MATCH($C165,Inputs!$C$68:$AN$68,0),FALSE))*('Master Data'!N$42),0)","v":0},{"$f":"IF($B160=\"Blank\",0,VLOOKUP($B160,Inputs!$C$68:$AN$129,MATCH($B165,Inputs!$C$68:$AN$68,0),FALSE))+IFERROR(IF($B160=\"Blank\",0,VLOOKUP($B160,Inputs!$C$68:$AN$129,MATCH($C165,Inputs!$C$68:$AN$68,0),FALSE))*('Master Data'!O$42),0)","v":0},null,null,null,null,null,null,null,"PE Cell Service costs Annualised",0,0,0,0,0]
[null,"Indirect Opex",null,null,{"$f":"IF($B160=\"Blank\",0,IF($B$8=\"Private Contract Lighting\",'Opex Weighting'!D$48,'Opex Weighting'!D$46))","v":12.159436933476723},{"$f":"IF($B160=\"Blank\",0,IF($B$8=\"Private Contract Lighting\",'Opex Weighting'!E$48,'Opex Weighting'!E$46))","v":12.139620760396495},{"$f":"IF($B160=\"Blank\",0,IF($B$8=\"Private Contract Lighting\",'Opex Weighting'!F$48,'Opex Weighting'!F$46))","v":12.041042902784117},{"$f":"IF($B160=\"Blank\",0,IF($B$8=\"Private Contract Lighting\",'Opex Weighting'!G$48,'Opex Weighting'!G$46))","v":11.913040696908689},{"$f":"IF($B160=\"Blank\",0,IF($B$8=\"Private Contract Lighting\",'Opex Weighting'!H$48,'Opex Weighting'!H$46))","v":11.775235721857506},null,null,null,null,null,null,null,"Indirect Opex",3.3222505282723289,3.32592349599904,3.2989158637764708,3.2638467662763535,3.2172775196331984]
[null,"Indirect Capex",null,null,{"$f":"IF($B161=\"Blank\",0,IF($B$8=\"Private Contract Lighting\",'Capex Weighting'!D$60,'Capex Weighting'!D$62))","v":0},{"$f":"IF($B161=\"Blank\",0,IF($B$8=\"Private Contract Lighting\",'Capex Weighting'!E$60,'Capex Weighting'!E$62))","v":0},{"$f":"IF($B161=\"Blank\",0,IF($B$8=\"Private Contract Lighting\",'Capex Weighting'!F$60,'Capex Weighting'!F$62))","v":0},{"$f":"IF($B161=\"Blank\",0,IF($B$8=\"Private Contract Lighting\",'Capex Weighting'!G$60,'Capex Weighting'!G$62))","v":0},{"$f":"IF($B161=\"Blank\",0,IF($B$8=\"Private Contract Lighting\",'Capex Weighting'!H$60,'Capex Weighting'!H$62))","v":0},null,null,null,null,null,null,null,"Indirect Capex",0,0,0,0,0]
[null,"Opex Overheads Costs per light",null,null,{"$f":"IF($B160=\"Blank\",0,IF($B$8=\"Private Contract Lighting\",'Building Block'!C$40,'Building Block'!C$39))","v":10.567257211169151},{"$f":"IF($B160=\"Blank\",0,IF($B$8=\"Private Contract Lighting\",'Building Block'!D$40,'Building Block'!D$39))","v":10.638037296614067},{"$f":"IF($B160=\"Blank\",0,IF($B$8=\"Private Contract Lighting\",'Building Block'!E$40,'Building Block'!E$39))","v":9.8094883699069495},{"$f":"IF($B160=\"Blank\",0,IF($B$8=\"Private Contract Lighting\",'Building Block'!F$40,'Building Block'!F$39))","v":9.7894714768092079},{"$f":"IF($B160=\"Blank\",0,IF($B$8=\"Private Contract Lighting\",'Building Block'!G$40,'Building Block'!G$39))","v":9.7584857493224391},null,null,null,null,null,null,null,"Opex Overheads Costs per light",2.8872287462210795,2.914530766195635,2.6875310602484794,2.6820469799477284,2.6662529369733439]
[null,{"$f":"Inputs!$AK$68","v":"Bracket UNIT price"},0,null,"NA","NA","NA","NA","NA",null,null,null,null,null,null,null,"Bracket UNIT price","","","","",""]
[null,{"$f":"Inputs!$AA$68","v":"CAPEX Instalation costs"},{"$f":"C169+1","v":1},null,"NA","NA","NA","NA","NA",null,null,null,null,null,null,null,"CAPEX Instalation costs","","","","",""]
[null,{"$f":"Inputs!$Z$68","v":"Luminaire UNIT price"},{"$f":"C170+1","v":2},null,"NA","NA","NA","NA","NA",null,null,null,null,null,null,null,"Luminaire UNIT price","","","","",""]
[null,{"$f":"Inputs!$AA$68","v":"CAPEX Instalation costs"},3,null,"NA","NA","NA","NA","NA",null,null,null,null,null,null,null,"CAPEX Instalation costs","","","","",""]
[null,null,null,null,{"$f":"SUM(E161:E172)","v":68.167294226643364},{"$f":"SUM(F161:F172)","v":68.191508028675102},67.119121726894321,66.782131200696526,66.410503116431585,null,null,null,null,null,null,null,null,{"$f":"ROUND(E173/R$2*100,3)","v":18.625},{"$f":"ROUND(F173/S$2*100,3)","v":18.683},{"$f":"ROUND(G173/T$2*100,3)","v":18.388999999999999},{"$f":"ROUND(H173/U$2*100,3)","v":18.295999999999999},{"$f":"ROUND(I173/V$2*100,3)","v":18.145}]
[]
[{"$f":"A160+1","v":12},{"$f":"IFERROR(VLOOKUP($A175,Inputs!$B$68:$AN$129,MATCH($B$7,Inputs!$B$68:$AN$68,0),FALSE),\"Blank\")","v":"3x40W Fluorescent"},null,null,null,null,null,null,null,null,null,null,null,null,null,null,{"$f":"IFERROR(VLOOKUP($A175,Inputs!$B$68:$AN$129,MATCH($B$7,Inputs!$B$68:$AN$68,0),FALSE),\"Blank\")","v":"3x40W Fluorescent"}]
[null,{"$f":"Inputs!$S$68","v":"Lamp UNIT price Annualised Cost"},{"$f":"Inputs!$Q$68","v":"Lamp Maintenance cycle"},null,{"$f":"IF($B175=\"Blank\",0,VLOOKUP($B175,Inputs!$C$68:$AN$129,MATCH($B176,Inputs!$C$68:$AN$68,0),FALSE))","v":3.2242313778839078},{"$f":"IF($B175=\"Blank\",0,VLOOKUP($B175,Inputs!$C$68:$AN$129,MATCH($B176,Inputs!$C$68:$AN$68,0),FALSE))","v":3.2242313778839078},{"$f":"IF($B175=\"Blank\",0,VLOOKUP($B175,Inputs!$C$68:$AN$129,MATCH($B176,Inputs!$C$68:$AN$68,0),FALSE))","v":3.2242313778839078},{"$f":"IF($B175=\"Blank\",0,VLOOKUP($B175,Inputs!$C$68:$AN$129,MATCH($B176,Inputs!$C$68:$AN$68,0),FALSE))","v":3.2242313778839078},{"$f":"IF($B175=\"Blank\",0,VLOOKUP($B175,Inputs!$C$68:$AN$129,MATCH($B176,Inputs!$C$68:$AN$68,0),FALSE))","v":3.2242313778839078},null,null,null,null,null,null,null,{"$f":"B176","v":"Lamp UNIT price Annualised Cost"},{"$f":"IF(E176=\"NA\",\"\",E176/R$2*100)","v":0.88093753494095839},{"$f":"IF(F176=\"NA\",\"\",F176/S$2*100)","v":0.88335106243394734},{"$f":"IF(G176=\"NA\",\"\",G176/T$2*100)","v":0.88335106243394734},{"$f":"IF(H176=\"NA\",\"\",H176/U$2*100)","v":0.88335106243394734},{"$f":"IF(I176=\"NA\",\"\",I176/V$2*100)","v":0.88093753494095839}]
[null,{"$f":"Inputs!$K$68","v":"PE Cell UNIT price Annualised Cost"},{"$f":"Inputs!$I$68","v":"PE Cell Maintenance Cycle"},null,{"$f":"IF($B175=\"Blank\",0,VLOOKUP($B175,Inputs!$C$68:$AN$129,MATCH($B177,Inputs!$C$68:$AN$68,0),FALSE))","v":1.6930974392480003},{"$f":"IF($B175=\"Blank\",0,VLOOKUP($B175,Inputs!$C$68:$AN$129,MATCH($B177,Inputs!$C$68:$AN$68,0),FALSE))","v":1.6930974392480003},{"$f":"IF($B175=\"Blank\",0,VLOOKUP($B175,Inputs!$C$68:$AN$129,MATCH($B177,Inputs!$C$68:$AN$68,0),FALSE))","v":1.6930974392480003},{"$f":"IF($B175=\"Blank\",0,VLOOKUP($B175,Inputs!$C$68:$AN$129,MATCH($B177,Inputs!$C$68:$AN$68,0),FALSE))","v":1.6930974392480003},{"$f":"IF($B175=\"Blank\",0,VLOOKUP($B175,Inputs!$C$68:$AN$129,MATCH($B177,Inputs!$C$68:$AN$68,0),FALSE))","v":1.6930974392480003},null,null,null,null,null,null,null,"PE Cell UNIT price Annualised Cost",0.46259492875628422,0.46386231212273976,0.46386231212273976,0.46386231212273976,0.46259492875628422]
[null,"Corp capex annuity per light",null,null,{"$f":"IF($B175=\"Blank\",0,'Corp Capex Annuity calcs'!F$142)","v":18.582309905017571},{"$f":"IF($B175=\"Blank\",0,'Corp Capex Annuity calcs'!G$142)","v":18.552026408230436},{"$f":"IF($B175=\"Blank\",0,'Corp Capex Annuity calcs'!H$142)","v":18.401377631486287},{"$f":"IF($B175=\"Blank\",0,'Corp Capex Annuity calcs'!I$142)","v":18.205761940470655},{"$f":"IF($B175=\"Blank\",0,'Corp Capex Annuity calcs'!J$142)","v":17.995165449295623},null,null,null,null,null,null,null,"Corp capex annuity per light",5.0771338538299373,5.0827469611590237,5.0414733236948734,4.9878799836905907,4.9167118713922466]
[null,{"$f":"Inputs!$U$68","v":"Lamp Service costs Annualised"},"Labour Portion of Lamp Service costs annualised",null,{"$f":"IF($B175=\"Blank\",0,VLOOKUP($B175,Inputs!$C$68:$AN$129,MATCH($B179,Inputs!$C$68:$AN$68,0),FALSE))+IFERROR(IF($B175=\"Blank\",0,VLOOKUP($B175,Inputs!$C$68:$AN$129,MATCH($C179,Inputs!$C$68:$AN$68,0),FALSE))*('Master Data'!K$42),0)","v":34.921367162927247},{"$f":"IF($B175=\"Blank\",0,VLOOKUP($B175,Inputs!$C$68:$AN$129,MATCH($B179,Inputs!$C$68:$AN$68,0),FALSE))+IFERROR(IF($B175=\"Blank\",0,VLOOKUP($B175,Inputs!$C$68:$AN$129,MATCH($C179,Inputs!$C$68:$AN$68,0),FALSE))*('Master Data'!L$42),0)","v":34.926481274900404},{"$f":"IF($B175=\"Blank\",0,VLOOKUP($B175,Inputs!$C$68:$AN$129,MATCH($B179,Inputs!$C$68:$AN$68,0),FALSE))+IFERROR(IF($B175=\"Blank\",0,VLOOKUP($B175,Inputs!$C$68:$AN$129,MATCH($C179,Inputs!$C$68:$AN$68,0),FALSE))*('Master Data'!M$42),0)","v":34.934281518599292},{"$f":"IF($B175=\"Blank\",0,VLOOKUP($B175,Inputs!$C$68:$AN$129,MATCH($B179,Inputs!$C$68:$AN$68,0),FALSE))+IFERROR(IF($B175=\"Blank\",0,VLOOKUP($B175,Inputs!$C$68:$AN$129,MATCH($C179,Inputs!$C$68:$AN$68,0),FALSE))*('Master Data'!N$42),0)","v":34.943898216191549},{"$f":"IF($B175=\"Blank\",0,VLOOKUP($B175,Inputs!$C$68:$AN$129,MATCH($B179,Inputs!$C$68:$AN$68,0),FALSE))+IFERROR(IF($B175=\"Blank\",0,VLOOKUP($B175,Inputs!$C$68:$AN$129,MATCH($C179,Inputs!$C$68:$AN$68,0),FALSE))*('Master Data'!O$42),0)","v":34.955128506182135},null,null,null,null,null,null,null,"Lamp Service costs Annualised",9.5413571483407775,9.5688989794247679,9.5710360324929571,9.5736707441620688,9.5505815590661562]
[null,{"$f":"Inputs!$M$68","v":"PE Cell Service costs Annualised"},"Labour Portion of PE Cell Service costs Annualised",null,{"$f":"IF($B175=\"Blank\",0,VLOOKUP($B175,Inputs!$C$68:$AN$129,MATCH($B180,Inputs!$C$68:$AN$68,0),FALSE))+IFERROR(IF($B175=\"Blank\",0,VLOOKUP($B175,Inputs!$C$68:$AN$129,MATCH($C180,Inputs!$C$68:$AN$68,0),FALSE))*('Master Data'!K$42),0)","v":0},{"$f":"IF($B175=\"Blank\",0,VLOOKUP($B175,Inputs!$C$68:$AN$129,MATCH($B180,Inputs!$C$68:$AN$68,0),FALSE))+IFERROR(IF($B175=\"Blank\",0,VLOOKUP($B175,Inputs!$C$68:$AN$129,MATCH($C180,Inputs!$C$68:$AN$68,0),FALSE))*('Master Data'!L$42),0)","v":0},{"$f":"IF($B175=\"Blank\",0,VLOOKUP($B175,Inputs!$C$68:$AN$129,MATCH($B180,Inputs!$C$68:$AN$68,0),FALSE))+IFERROR(IF($B175=\"Blank\",0,VLOOKUP($B175,Inputs!$C$68:$AN$129,MATCH($C180,Inputs!$C$68:$AN$68,0),FALSE))*('Master Data'!M$42),0)","v":0},{"$f":"IF($B175=\"Blank\",0,VLOOKUP($B175,Inputs!$C$68:$AN$129,MATCH($B180,Inputs!$C$68:$AN$68,0),FALSE))+IFERROR(IF($B175=\"Blank\",0,VLOOKUP($B175,Inputs!$C$68:$AN$129,MATCH($C180,Inputs!$C$68:$AN$68,0),FALSE))*('Master Data'!N$42),0)","v":0},{"$f":"IF($B175=\"Blank\",0,VLOOKUP($B175,Inputs!$C$68:$AN$129,MATCH($B180,Inputs!$C$68:$AN$68,0),FALSE))+IFERROR(IF($B175=\"Blank\",0,VLOOKUP($B175,Inputs!$C$68:$AN$129,MATCH($C180,Inputs!$C$68:$AN$68,0),FALSE))*('Master Data'!O$42),0)","v":0},null,null,null,null,null,null,null,"PE Cell Service costs Annualised",0,0,0,0,0]
[null,"Indirect Opex",null,null,{"$f":"IF($B175=\"Blank\",0,IF($B$8=\"Private Contract Lighting\",'Opex Weighting'!D$48,'Opex Weighting'!D$46))","v":12.159436933476723},{"$f":"IF($B175=\"Blank\",0,IF($B$8=\"Private Contract Lighting\",'Opex Weighting'!E$48,'Opex Weighting'!E$46))","v":12.139620760396495},{"$f":"IF($B175=\"Blank\",0,IF($B$8=\"Private Contract Lighting\",'Opex Weighting'!F$48,'Opex Weighting'!F$46))","v":12.041042902784117},{"$f":"IF($B175=\"Blank\",0,IF($B$8=\"Private Contract Lighting\",'Opex Weighting'!G$48,'Opex Weighting'!G$46))","v":11.913040696908689},{"$f":"IF($B175=\"Blank\",0,IF($B$8=\"Private Contract Lighting\",'Opex Weighting'!H$48,'Opex Weighting'!H$46))","v":11.775235721857506},null,null,null,null,null,null,null,"Indirect Opex",3.3222505282723289,3.32592349599904,3.2989158637764708,3.2638467662763535,3.2172775196331984]
[null,"Indirect Capex",null,null,{"$f":"IF($B176=\"Blank\",0,IF($B$8=\"Private Contract Lighting\",'Capex Weighting'!D$60,'Capex Weighting'!D$62))","v":0},{"$f":"IF($B176=\"Blank\",0,IF($B$8=\"Private Contract Lighting\",'Capex Weighting'!E$60,'Capex Weighting'!E$62))","v":0},{"$f":"IF($B176=\"Blank\",0,IF($B$8=\"Private Contract Lighting\",'Capex Weighting'!F$60,'Capex Weighting'!F$62))","v":0},{"$f":"IF($B176=\"Blank\",0,IF($B$8=\"Private Contract Lighting\",'Capex Weighting'!G$60,'Capex Weighting'!G$62))","v":0},{"$f":"IF($B176=\"Blank\",0,IF($B$8=\"Private Contract Lighting\",'Capex Weighting'!H$60,'Capex Weighting'!H$62))","v":0},null,null,null,null,null,null,null,"Indirect Capex",0,0,0,0,0]
[null,"Opex Overheads Costs per light",null,null,{"$f":"IF($B175=\"Blank\",0,IF($B$8=\"Private Contract Lighting\",'Building Block'!C$40,'Building Block'!C$39))","v":10.567257211169151},{"$f":"IF($B175=\"Blank\",0,IF($B$8=\"Private Contract Lighting\",'Building Block'!D$40,'Building Block'!D$39))","v":10.638037296614067},{"$f":"IF($B175=\"Blank\",0,IF($B$8=\"Private Contract Lighting\",'Building Block'!E$40,'Building Block'!E$39))","v":9.8094883699069495},{"$f":"IF($B175=\"Blank\",0,IF($B$8=\"Private Contract Lighting\",'Building Block'!F$40,'Building Block'!F$39))","v":9.7894714768092079},{"$f":"IF($B175=\"Blank\",0,IF($B$8=\"Private Contract Lighting\",'Building Block'!G$40,'Building Block'!G$39))","v":9.7584857493224391},null,null,null,null,null,null,null,"Opex Overheads Costs per light",2.8872287462210795,2.914530766195635,2.6875310602484794,2.6820469799477284,2.6662529369733439]
[null,{"$f":"Inputs!$AK$68","v":"Bracket UNIT price"},0,null,"NA","NA","NA","NA","NA",null,null,null,null,null,null,null,"Bracket UNIT price","","","","",""]
[null,{"$f":"Inputs!$AA$68","v":"CAPEX Instalation costs"},{"$f":"C184+1","v":1},null,"NA","NA","NA","NA","NA",null,null,null,null,null,null,null,"CAPEX Instalation costs","","","","",""]
[null,{"$f":"Inputs!$Z$68","v":"Luminaire UNIT price"},{"$f":"C185+1","v":2},null,"NA","NA","NA","NA","NA",null,null,null,null,null,null,null,"Luminaire UNIT price","","","","",""]
[null,{"$f":"Inputs!$AA$68","v":"CAPEX Instalation costs"},3,null,"NA","NA","NA","NA","NA",null,null,null,null,null,null,null,"CAPEX Instalation costs","","","","",""]
[null,null,null,null,{"$f":"SUM(E176:E187)","v":81.1477000297226},{"$f":"SUM(F176:F187)","v":81.173494557273315},80.10351923990855,79.769501147512017,79.401344243789595,null,null,null,null,null,null,null,null,{"$f":"ROUND(E188/R$2*100,3)","v":22.172000000000001},{"$f":"ROUND(F188/S$2*100,3)","v":22.239000000000001},{"$f":"ROUND(G188/T$2*100,3)","v":21.946000000000002},{"$f":"ROUND(H188/U$2*100,3)","v":21.855},{"$f":"ROUND(I188/V$2*100,3)","v":21.693999999999999}]
[]
[{"$f":"A175+1","v":13},{"$f":"IFERROR(VLOOKUP($A190,Inputs!$B$68:$AN$129,MATCH($B$7,Inputs!$B$68:$AN$68,0),FALSE),\"Blank\")","v":"4x20 Fluorescent"},null,null,null,null,null,null,null,null,null,null,null,null,null,null,{"$f":"IFERROR(VLOOKUP($A190,Inputs!$B$68:$AN$129,MATCH($B$7,Inputs!$B$68:$AN$68,0),FALSE),\"Blank\")","v":"4x20 Fluorescent"}]
[null,{"$f":"Inputs!$S$68","v":"Lamp UNIT price Annualised Cost"},{"$f":"Inputs!$Q$68","v":"Lamp Maintenance cycle"},null,{"$f":"IF($B190=\"Blank\",0,VLOOKUP($B190,Inputs!$C$68:$AN$129,MATCH($B191,Inputs!$C$68:$AN$68,0),FALSE))","v":4.036728319151675},{"$f":"IF($B190=\"Blank\",0,VLOOKUP($B190,Inputs!$C$68:$AN$129,MATCH($B191,Inputs!$C$68:$AN$68,0),FALSE))","v":4.036728319151675},{"$f":"IF($B190=\"Blank\",0,VLOOKUP($B190,Inputs!$C$68:$AN$129,MATCH($B191,Inputs!$C$68:$AN$68,0),FALSE))","v":4.036728319151675},{"$f":"IF($B190=\"Blank\",0,VLOOKUP($B190,Inputs!$C$68:$AN$129,MATCH($B191,Inputs!$C$68:$AN$68,0),FALSE))","v":4.036728319151675},{"$f":"IF($B190=\"Blank\",0,VLOOKUP($B190,Inputs!$C$68:$AN$129,MATCH($B191,Inputs!$C$68:$AN$68,0),FALSE))","v":4.036728319151675},null,null,null,null,null,null,null,{"$f":"B191","v":"Lamp UNIT price Annualised Cost"},{"$f":"IF(E191=\"NA\",\"\",E191/R$2*100)","v":1.1029312347408948},{"$f":"IF(F191=\"NA\",\"\",F191/S$2*100)","v":1.1059529641511439},{"$f":"IF(G191=\"NA\",\"\",G191/T$2*100)","v":1.1059529641511439},{"$f":"IF(H191=\"NA\",\"\",H191/U$2*100)","v":1.1059529641511439},{"$f":"IF(I191=\"NA\",\"\",I191/V$2*100)","v":1.1029312347408948}]
[null,{"$f":"Inputs!$K$68","v":"PE Cell UNIT price Annualised Cost"},{"$f":"Inputs!$I$68","v":"PE Cell Maintenance Cycle"},null,{"$f":"IF($B190=\"Blank\",0,VLOOKUP($B190,Inputs!$C$68:$AN$129,MATCH($B192,Inputs!$C$68:$AN$68,0),FALSE))","v":0.58131255188333353},{"$f":"IF($B190=\"Blank\",0,VLOOKUP($B190,Inputs!$C$68:$AN$129,MATCH($B192,Inputs!$C$68:$AN$68,0),FALSE))","v":0.58131255188333353},{"$f":"IF($B190=\"Blank\",0,VLOOKUP($B190,Inputs!$C$68:$AN$129,MATCH($B192,Inputs!$C$68:$AN$68,0),FALSE))","v":0.58131255188333353},{"$f":"IF($B190=\"Blank\",0,VLOOKUP($B190,Inputs!$C$68:$AN$129,MATCH($B192,Inputs!$C$68:$AN$68,0),FALSE))","v":0.58131255188333353},{"$f":"IF($B190=\"Blank\",0,VLOOKUP($B190,Inputs!$C$68:$AN$129,MATCH($B192,Inputs!$C$68:$AN$68,0),FALSE))","v":0.58131255188333353},null,null,null,null,null,null,null,"PE Cell UNIT price Annualised Cost",0.15882856608834248,0.15926371284474891,0.15926371284474891,0.15926371284474891,0.15882856608834248]
[null,"Corp capex annuity per light",null,null,{"$f":"IF($B190=\"Blank\",0,'Corp Capex Annuity calcs'!F$142)","v":18.582309905017571},{"$f":"IF($B190=\"Blank\",0,'Corp Capex Annuity calcs'!G$142)","v":18.552026408230436},{"$f":"IF($B190=\"Blank\",0,'Corp Capex Annuity calcs'!H$142)","v":18.401377631486287},{"$f":"IF($B190=\"Blank\",0,'Corp Capex Annuity calcs'!I$142)","v":18.205761940470655},{"$f":"IF($B190=\"Blank\",0,'Corp Capex Annuity calcs'!J$142)","v":17.995165449295623},null,null,null,null,null,null,null,"Corp capex annuity per light",5.0771338538299373,5.0827469611590237,5.0414733236948734,4.9878799836905907,4.9167118713922466]
[null,{"$f":"Inputs!$U$68","v":"Lamp Service costs Annualised"},"Labour Portion of Lamp Service costs annualised",null,{"$f":"IF($B190=\"Blank\",0,VLOOKUP($B190,Inputs!$C$68:$AN$129,MATCH($B194,Inputs!$C$68:$AN$68,0),FALSE))+IFERROR(IF($B190=\"Blank\",0,VLOOKUP($B190,Inputs!$C$68:$AN$129,MATCH($C194,Inputs!$C$68:$AN$68,0),FALSE))*('Master Data'!K$42),0)","v":24.127490039840644},{"$f":"IF($B190=\"Blank\",0,VLOOKUP($B190,Inputs!$C$68:$AN$129,MATCH($B194,Inputs!$C$68:$AN$68,0),FALSE))+IFERROR(IF($B190=\"Blank\",0,VLOOKUP($B190,Inputs!$C$68:$AN$129,MATCH($C194,Inputs!$C$68:$AN$68,0),FALSE))*('Master Data'!L$42),0)","v":24.131023426294828},{"$f":"IF($B190=\"Blank\",0,VLOOKUP($B190,Inputs!$C$68:$AN$129,MATCH($B194,Inputs!$C$68:$AN$68,0),FALSE))+IFERROR(IF($B190=\"Blank\",0,VLOOKUP($B190,Inputs!$C$68:$AN$129,MATCH($C194,Inputs!$C$68:$AN$68,0),FALSE))*('Master Data'!M$42),0)","v":24.136412685577696},{"$f":"IF($B190=\"Blank\",0,VLOOKUP($B190,Inputs!$C$68:$AN$129,MATCH($B194,Inputs!$C$68:$AN$68,0),FALSE))+IFERROR(IF($B190=\"Blank\",0,VLOOKUP($B190,Inputs!$C$68:$AN$129,MATCH($C194,Inputs!$C$68:$AN$68,0),FALSE))*('Master Data'!N$42),0)","v":24.143056949368709},{"$f":"IF($B190=\"Blank\",0,VLOOKUP($B190,Inputs!$C$68:$AN$129,MATCH($B194,Inputs!$C$68:$AN$68,0),FALSE))+IFERROR(IF($B190=\"Blank\",0,VLOOKUP($B190,Inputs!$C$68:$AN$129,MATCH($C194,Inputs!$C$68:$AN$68,0),FALSE))*('Master Data'!O$42),0)","v":24.150816058816748},null,null,null,null,null,null,null,"Lamp Service costs Annualised",6.5922103933990828,6.611239294875296,6.6127158042678618,6.6145361505119755,6.598583622627527]
[null,{"$f":"Inputs!$M$68","v":"PE Cell Service costs Annualised"},"Labour Portion of PE Cell Service costs Annualised",null,{"$f":"IF($B190=\"Blank\",0,VLOOKUP($B190,Inputs!$C$68:$AN$129,MATCH($B195,Inputs!$C$68:$AN$68,0),FALSE))+IFERROR(IF($B190=\"Blank\",0,VLOOKUP($B190,Inputs!$C$68:$AN$129,MATCH($C195,Inputs!$C$68:$AN$68,0),FALSE))*('Master Data'!K$42),0)","v":0},{"$f":"IF($B190=\"Blank\",0,VLOOKUP($B190,Inputs!$C$68:$AN$129,MATCH($B195,Inputs!$C$68:$AN$68,0),FALSE))+IFERROR(IF($B190=\"Blank\",0,VLOOKUP($B190,Inputs!$C$68:$AN$129,MATCH($C195,Inputs!$C$68:$AN$68,0),FALSE))*('Master Data'!L$42),0)","v":0},{"$f":"IF($B190=\"Blank\",0,VLOOKUP($B190,Inputs!$C$68:$AN$129,MATCH($B195,Inputs!$C$68:$AN$68,0),FALSE))+IFERROR(IF($B190=\"Blank\",0,VLOOKUP($B190,Inputs!$C$68:$AN$129,MATCH($C195,Inputs!$C$68:$AN$68,0),FALSE))*('Master Data'!M$42),0)","v":0},{"$f":"IF($B190=\"Blank\",0,VLOOKUP($B190,Inputs!$C$68:$AN$129,MATCH($B195,Inputs!$C$68:$AN$68,0),FALSE))+IFERROR(IF($B190=\"Blank\",0,VLOOKUP($B190,Inputs!$C$68:$AN$129,MATCH($C195,Inputs!$C$68:$AN$68,0),FALSE))*('Master Data'!N$42),0)","v":0},{"$f":"IF($B190=\"Blank\",0,VLOOKUP($B190,Inputs!$C$68:$AN$129,MATCH($B195,Inputs!$C$68:$AN$68,0),FALSE))+IFERROR(IF($B190=\"Blank\",0,VLOOKUP($B190,Inputs!$C$68:$AN$129,MATCH($C195,Inputs!$C$68:$AN$68,0),FALSE))*('Master Data'!O$42),0)","v":0},null,null,null,null,null,null,null,"PE Cell Service costs Annualised",0,0,0,0,0]
[null,"Indirect Opex",null,null,{"$f":"IF($B190=\"Blank\",0,IF($B$8=\"Private Contract Lighting\",'Opex Weighting'!D$48,'Opex Weighting'!D$46))","v":12.159436933476723},{"$f":"IF($B190=\"Blank\",0,IF($B$8=\"Private Contract Lighting\",'Opex Weighting'!E$48,'Opex Weighting'!E$46))","v":12.139620760396495},{"$f":"IF($B190=\"Blank\",0,IF($B$8=\"Private Contract Lighting\",'Opex Weighting'!F$48,'Opex Weighting'!F$46))","v":12.041042902784117},{"$f":"IF($B190=\"Blank\",0,IF($B$8=\"Private Contract Lighting\",'Opex Weighting'!G$48,'Opex Weighting'!G$46))","v":11.913040696908689},{"$f":"IF($B190=\"Blank\",0,IF($B$8=\"Private Contract Lighting\",'Opex Weighting'!H$48,'Opex Weighting'!H$46))","v":11.775235721857506},null,null,null,null,null,null,null,"Indirect Opex",3.3222505282723289,3.32592349599904,3.2989158637764708,3.2638467662763535,3.2172775196331984]
[null,"Indirect Capex",null,null,{"$f":"IF($B191=\"Blank\",0,IF($B$8=\"Private Contract Lighting\",'Capex Weighting'!D$60,'Capex Weighting'!D$62))","v":0},{"$f":"IF($B191=\"Blank\",0,IF($B$8=\"Private Contract Lighting\",'Capex Weighting'!E$60,'Capex Weighting'!E$62))","v":0},{"$f":"IF($B191=\"Blank\",0,IF($B$8=\"Private Contract Lighting\",'Capex Weighting'!F$60,'Capex Weighting'!F$62))","v":0},{"$f":"IF($B191=\"Blank\",0,IF($B$8=\"Private Contract Lighting\",'Capex Weighting'!G$60,'Capex Weighting'!G$62))","v":0},{"$f":"IF($B191=\"Blank\",0,IF($B$8=\"Private Contract Lighting\",'Capex Weighting'!H$60,'Capex Weighting'!H$62))","v":0},null,null,null,null,null,null,null,"Indirect Capex",0,0,0,0,0]
[null,"Opex Overheads Costs per light",null,null,{"$f":"IF($B190=\"Blank\",0,IF($B$8=\"Private Contract Lighting\",'Building Block'!C$40,'Building Block'!C$39))","v":10.567257211169151},{"$f":"IF($B190=\"Blank\",0,IF($B$8=\"Private Contract Lighting\",'Building Block'!D$40,'Building Block'!D$39))","v":10.638037296614067},{"$f":"IF($B190=\"Blank\",0,IF($B$8=\"Private Contract Lighting\",'Building Block'!E$40,'Building Block'!E$39))","v":9.8094883699069495},{"$f":"IF($B190=\"Blank\",0,IF($B$8=\"Private Contract Lighting\",'Building Block'!F$40,'Building Block'!F$39))","v":9.7894714768092079},{"$f":"IF($B190=\"Blank\",0,IF($B$8=\"Private Contract Lighting\",'Building Block'!G$40,'Building Block'!G$39))","v":9.7584857493224391},null,null,null,null,null,null,null,"Opex Overheads Costs per light",2.8872287462210795,2.914530766195635,2.6875310602484794,2.6820469799477284,2.6662529369733439]
[null,{"$f":"Inputs!$AK$68","v":"Bracket UNIT price"},0,null,"NA","NA","NA","NA","NA",null,null,null,null,null,null,null,"Bracket UNIT price","","","","",""]
[null,{"$f":"Inputs!$AA$68","v":"CAPEX Instalation costs"},{"$f":"C199+1","v":1},null,"NA","NA","NA","NA","NA",null,null,null,null,null,null,null,"CAPEX Instalation costs","","","","",""]
[null,{"$f":"Inputs!$Z$68","v":"Luminaire UNIT price"},{"$f":"C200+1","v":2},null,"NA","NA","NA","NA","NA",null,null,null,null,null,null,null,"Luminaire UNIT price","","","","",""]
[null,{"$f":"Inputs!$AA$68","v":"CAPEX Instalation costs"},3,null,"NA","NA","NA","NA","NA",null,null,null,null,null,null,null,"CAPEX Instalation costs","","","","",""]
[null,null,null,null,{"$f":"SUM(E191:E202)","v":70.054534960539101},{"$f":"SUM(F191:F202)","v":70.078748762570839},69.006362460790058,68.669371934592263,68.297743850327322,null,null,null,null,null,null,null,null,{"$f":"ROUND(E203/R$2*100,3)","v":19.140999999999998},{"$f":"ROUND(F203/S$2*100,3)","v":19.2},{"$f":"ROUND(G203/T$2*100,3)","v":18.905999999999999},{"$f":"ROUND(H203/U$2*100,3)","v":18.814},{"$f":"ROUND(I203/V$2*100,3)","v":18.661000000000001}]
[]
[{"$f":"A190+1","v":14},{"$f":"IFERROR(VLOOKUP($A205,Inputs!$B$68:$AN$129,MATCH($B$7,Inputs!$B$68:$AN$68,0),FALSE),\"Blank\")","v":"4x40W Fluorescent"},null,null,null,null,null,null,null,null,null,null,null,null,null,null,{"$f":"IFERROR(VLOOKUP($A205,Inputs!$B$68:$AN$129,MATCH($B$7,Inputs!$B$68:$AN$68,0),FALSE),\"Blank\")","v":"4x40W Fluorescent"}]
[null,{"$f":"Inputs!$S$68","v":"Lamp UNIT price Annualised Cost"},{"$f":"Inputs!$Q$68","v":"Lamp Maintenance cycle"},null,{"$f":"IF($B205=\"Blank\",0,VLOOKUP($B205,Inputs!$C$68:$AN$129,MATCH($B206,Inputs!$C$68:$AN$68,0),FALSE))","v":4.2989751705118762},{"$f":"IF($B205=\"Blank\",0,VLOOKUP($B205,Inputs!$C$68:$AN$129,MATCH($B206,Inputs!$C$68:$AN$68,0),FALSE))","v":4.2989751705118762},{"$f":"IF($B205=\"Blank\",0,VLOOKUP($B205,Inputs!$C$68:$AN$129,MATCH($B206,Inputs!$C$68:$AN$68,0),FALSE))","v":4.2989751705118762},{"$f":"IF($B205=\"Blank\",0,VLOOKUP($B205,Inputs!$C$68:$AN$129,MATCH($B206,Inputs!$C$68:$AN$68,0),FALSE))","v":4.2989751705118762},{"$f":"IF($B205=\"Blank\",0,VLOOKUP($B205,Inputs!$C$68:$AN$129,MATCH($B206,Inputs!$C$68:$AN$68,0),FALSE))","v":4.2989751705118762},null,null,null,null,null,null,null,{"$f":"B206","v":"Lamp UNIT price Annualised Cost"},{"$f":"IF(E206=\"NA\",\"\",E206/R$2*100)","v":1.1745833799212777},{"$f":"IF(F206=\"NA\",\"\",F206/S$2*100)","v":1.1778014165785964},{"$f":"IF(G206=\"NA\",\"\",G206/T$2*100)","v":1.1778014165785964},{"$f":"IF(H206=\"NA\",\"\",H206/U$2*100)","v":1.1778014165785964},{"$f":"IF(I206=\"NA\",\"\",I206/V$2*100)","v":1.1745833799212777}]
[null,{"$f":"Inputs!$K$68","v":"PE Cell UNIT price Annualised Cost"},{"$f":"Inputs!$I$68","v":"PE Cell Maintenance Cycle"},null,{"$f":"IF($B205=\"Blank\",0,VLOOKUP($B205,Inputs!$C$68:$AN$129,MATCH($B207,Inputs!$C$68:$AN$68,0),FALSE))","v":1.6930974392480003},{"$f":"IF($B205=\"Blank\",0,VLOOKUP($B205,Inputs!$C$68:$AN$129,MATCH($B207,Inputs!$C$68:$AN$68,0),FALSE))","v":1.6930974392480003},{"$f":"IF($B205=\"Blank\",0,VLOOKUP($B205,Inputs!$C$68:$AN$129,MATCH($B207,Inputs!$C$68:$AN$68,0),FALSE))","v":1.6930974392480003},{"$f":"IF($B205=\"Blank\",0,VLOOKUP($B205,Inputs!$C$68:$AN$129,MATCH($B207,Inputs!$C$68:$AN$68,0),FALSE))","v":1.6930974392480003},{"$f":"IF($B205=\"Blank\",0,VLOOKUP($B205,Inputs!$C$68:$AN$129,MATCH($B207,Inputs!$C$68:$AN$68,0),FALSE))","v":1.6930974392480003},null,null,null,null,null,null,null,"PE Cell UNIT price Annualised Cost",0.46259492875628422,0.46386231212273976,0.46386231212273976,0.46386231212273976,0.46259492875628422]
[null,"Corp capex annuity per light",null,null,{"$f":"IF($B205=\"Blank\",0,'Corp Capex Annuity calcs'!F$142)","v":18.582309905017571},{"$f":"IF($B205=\"Blank\",0,'Corp Capex Annuity calcs'!G$142)","v":18.552026408230436},{"$f":"IF($B205=\"Blank\",0,'Corp Capex Annuity calcs'!H$142)","v":18.401377631486287},{"$f":"IF($B205=\"Blank\",0,'Corp Capex Annuity calcs'!I$142)","v":18.205761940470655},{"$f":"IF($B205=\"Blank\",0,'Corp Capex Annuity calcs'!J$142)","v":17.995165449295623},null,null,null,null,null,null,null,"Corp capex annuity per light",5.0771338538299373,5.0827469611590237,5.0414733236948734,4.9878799836905907,4.9167118713922466]
[null,{"$f":"Inputs!$U$68","v":"Lamp Service costs Annualised"},"Labour Portion of Lamp Service costs annualised",null,{"$f":"IF($B205=\"Blank\",0,VLOOKUP($B205,Inputs!$C$68:$AN$129,MATCH($B209,Inputs!$C$68:$AN$68,0),FALSE))+IFERROR(IF($B205=\"Blank\",0,VLOOKUP($B205,Inputs!$C$68:$AN$129,MATCH($C209,Inputs!$C$68:$AN$68,0),FALSE))*('Master Data'!K$42),0)","v":34.921367162927247},{"$f":"IF($B205=\"Blank\",0,VLOOKUP($B205,Inputs!$C$68:$AN$129,MATCH($B209,Inputs!$C$68:$AN$68,0),FALSE))+IFERROR(IF($B205=\"Blank\",0,VLOOKUP($B205,Inputs!$C$68:$AN$129,MATCH($C209,Inputs!$C$68:$AN$68,0),FALSE))*('Master Data'!L$42),0)","v":34.926481274900404},{"$f":"IF($B205=\"Blank\",0,VLOOKUP($B205,Inputs!$C$68:$AN$129,MATCH($B209,Inputs!$C$68:$AN$68,0),FALSE))+IFERROR(IF($B205=\"Blank\",0,VLOOKUP($B205,Inputs!$C$68:$AN$129,MATCH($C209,Inputs!$C$68:$AN$68,0),FALSE))*('Master Data'!M$42),0)","v":34.934281518599292},{"$f":"IF($B205=\"Blank\",0,VLOOKUP($B205,Inputs!$C$68:$AN$129,MATCH($B209,Inputs!$C$68:$AN$68,0),FALSE))+IFERROR(IF($B205=\"Blank\",0,VLOOKUP($B205,Inputs!$C$68:$AN$129,MATCH($C209,Inputs!$C$68:$AN$68,0),FALSE))*('Master Data'!N$42),0)","v":34.943898216191549},{"$f":"IF($B205=\"Blank\",0,VLOOKUP($B205,Inputs!$C$68:$AN$129,MATCH($B209,Inputs!$C$68:$AN$68,0),FALSE))+IFERROR(IF($B205=\"Blank\",0,VLOOKUP($B205,Inputs!$C$68:$AN$129,MATCH($C209,Inputs!$C$68:$AN$68,0),FALSE))*('Master Data'!O$42),0)","v":34.955128506182135},null,null,null,null,null,null,null,"Lamp Service costs Annualised",9.5413571483407775,9.5688989794247679,9.5710360324929571,9.5736707441620688,9.5505815590661562]
[null,{"$f":"Inputs!$M$68","v":"PE Cell Service costs Annualised"},"Labour Portion of PE Cell Service costs Annualised",null,{"$f":"IF($B205=\"Blank\",0,VLOOKUP($B205,Inputs!$C$68:$AN$129,MATCH($B210,Inputs!$C$68:$AN$68,0),FALSE))+IFERROR(IF($B205=\"Blank\",0,VLOOKUP($B205,Inputs!$C$68:$AN$129,MATCH($C210,Inputs!$C$68:$AN$68,0),FALSE))*('Master Data'!K$42),0)","v":0},{"$f":"IF($B205=\"Blank\",0,VLOOKUP($B205,Inputs!$C$68:$AN$129,MATCH($B210,Inputs!$C$68:$AN$68,0),FALSE))+IFERROR(IF($B205=\"Blank\",0,VLOOKUP($B205,Inputs!$C$68:$AN$129,MATCH($C210,Inputs!$C$68:$AN$68,0),FALSE))*('Master Data'!L$42),0)","v":0},{"$f":"IF($B205=\"Blank\",0,VLOOKUP($B205,Inputs!$C$68:$AN$129,MATCH($B210,Inputs!$C$68:$AN$68,0),FALSE))+IFERROR(IF($B205=\"Blank\",0,VLOOKUP($B205,Inputs!$C$68:$AN$129,MATCH($C210,Inputs!$C$68:$AN$68,0),FALSE))*('Master Data'!M$42),0)","v":0},{"$f":"IF($B205=\"Blank\",0,VLOOKUP($B205,Inputs!$C$68:$AN$129,MATCH($B210,Inputs!$C$68:$AN$68,0),FALSE))+IFERROR(IF($B205=\"Blank\",0,VLOOKUP($B205,Inputs!$C$68:$AN$129,MATCH($C210,Inputs!$C$68:$AN$68,0),FALSE))*('Master Data'!N$42),0)","v":0},{"$f":"IF($B205=\"Blank\",0,VLOOKUP($B205,Inputs!$C$68:$AN$129,MATCH($B210,Inputs!$C$68:$AN$68,0),FALSE))+IFERROR(IF($B205=\"Blank\",0,VLOOKUP($B205,Inputs!$C$68:$AN$129,MATCH($C210,Inputs!$C$68:$AN$68,0),FALSE))*('Master Data'!O$42),0)","v":0},null,null,null,null,null,null,null,"PE Cell Service costs Annualised",0,0,0,0,0]
[null,"Indirect Opex",null,null,{"$f":"IF($B205=\"Blank\",0,IF($B$8=\"Private Contract Lighting\",'Opex Weighting'!D$48,'Opex Weighting'!D$46))","v":12.159436933476723},{"$f":"IF($B205=\"Blank\",0,IF($B$8=\"Private Contract Lighting\",'Opex Weighting'!E$48,'Opex Weighting'!E$46))","v":12.139620760396495},{"$f":"IF($B205=\"Blank\",0,IF($B$8=\"Private Contract Lighting\",'Opex Weighting'!F$48,'Opex Weighting'!F$46))","v":12.041042902784117},{"$f":"IF($B205=\"Blank\",0,IF($B$8=\"Private Contract Lighting\",'Opex Weighting'!G$48,'Opex Weighting'!G$46))","v":11.913040696908689},{"$f":"IF($B205=\"Blank\",0,IF($B$8=\"Private Contract Lighting\",'Opex Weighting'!H$48,'Opex Weighting'!H$46))","v":11.775235721857506},null,null,null,null,null,null,null,"Indirect Opex",3.3222505282723289,3.32592349599904,3.2989158637764708,3.2638467662763535,3.2172775196331984]
[null,"Indirect Capex",null,null,{"$f":"IF($B206=\"Blank\",0,IF($B$8=\"Private Contract Lighting\",'Capex Weighting'!D$60,'Capex Weighting'!D$62))","v":0},{"$f":"IF($B206=\"Blank\",0,IF($B$8=\"Private Contract Lighting\",'Capex Weighting'!E$60,'Capex Weighting'!E$62))","v":0},{"$f":"IF($B206=\"Blank\",0,IF($B$8=\"Private Contract Lighting\",'Capex Weighting'!F$60,'Capex Weighting'!F$62))","v":0},{"$f":"IF($B206=\"Blank\",0,IF($B$8=\"Private Contract Lighting\",'Capex Weighting'!G$60,'Capex Weighting'!G$62))","v":0},{"$f":"IF($B206=\"Blank\",0,IF($B$8=\"Private Contract Lighting\",'Capex Weighting'!H$60,'Capex Weighting'!H$62))","v":0},null,null,null,null,null,null,null,"Indirect Capex",0,0,0,0,0]
[null,"Opex Overheads Costs per light",null,null,{"$f":"IF($B205=\"Blank\",0,IF($B$8=\"Private Contract Lighting\",'Building Block'!C$40,'Building Block'!C$39))","v":10.567257211169151},{"$f":"IF($B205=\"Blank\",0,IF($B$8=\"Private Contract Lighting\",'Building Block'!D$40,'Building Block'!D$39))","v":10.638037296614067},{"$f":"IF($B205=\"Blank\",0,IF($B$8=\"Private Contract Lighting\",'Building Block'!E$40,'Building Block'!E$39))","v":9.8094883699069495},{"$f":"IF($B205=\"Blank\",0,IF($B$8=\"Private Contract Lighting\",'Building Block'!F$40,'Building Block'!F$39))","v":9.7894714768092079},{"$f":"IF($B205=\"Blank\",0,IF($B$8=\"Private Contract Lighting\",'Building Block'!G$40,'Building Block'!G$39))","v":9.7584857493224391},null,null,null,null,null,null,null,"Opex Overheads Costs per light",2.8872287462210795,2.914530766195635,2.6875310602484794,2.6820469799477284,2.6662529369733439]
[null,{"$f":"Inputs!$AK$68","v":"Bracket UNIT price"},0,null,"NA","NA","NA","NA","NA",null,null,null,null,null,null,null,"Bracket UNIT price","","","","",""]
[null,{"$f":"Inputs!$AA$68","v":"CAPEX Instalation costs"},{"$f":"C214+1","v":1},null,"NA","NA","NA","NA","NA",null,null,null,null,null,null,null,"CAPEX Instalation costs","","","","",""]
[null,{"$f":"Inputs!$Z$68","v":"Luminaire UNIT price"},{"$f":"C215+1","v":2},null,"NA","NA","NA","NA","NA",null,null,null,null,null,null,null,"Luminaire UNIT price","","","","",""]
[null,{"$f":"Inputs!$AA$68","v":"CAPEX Instalation costs"},3,null,"NA","NA","NA","NA","NA",null,null,null,null,null,null,null,"CAPEX Instalation costs","","","","",""]
[null,null,null,null,{"$f":"SUM(E206:E217)","v":82.22244382235057},{"$f":"SUM(F206:F217)","v":82.248238349901285},81.17826303253652,80.844244940139987,80.476088036417565,null,null,null,null,null,null,null,null,{"$f":"ROUND(E218/R$2*100,3)","v":22.465},{"$f":"ROUND(F218/S$2*100,3)","v":22.533999999999999},{"$f":"ROUND(G218/T$2*100,3)","v":22.241},{"$f":"ROUND(H218/U$2*100,3)","v":22.149000000000001},{"$f":"ROUND(I218/V$2*100,3)","v":21.988}]
[]
[{"$f":"A205+1","v":15},{"$f":"IFERROR(VLOOKUP($A220,Inputs!$B$68:$AN$129,MATCH($B$7,Inputs!$B$68:$AN$68,0),FALSE),\"Blank\")","v":"100W Sodium Vapour"},null,null,null,null,null,null,null,null,null,null,null,null,null,null,{"$f":"IFERROR(VLOOKUP($A220,Inputs!$B$68:$AN$129,MATCH($B$7,Inputs!$B$68:$AN$68,0),FALSE),\"Blank\")","v":"100W Sodium Vapour"}]
[null,{"$f":"Inputs!$S$68","v":"Lamp UNIT price Annualised Cost"},{"$f":"Inputs!$Q$68","v":"Lamp Maintenance cycle"},null,{"$f":"IF($B220=\"Blank\",0,VLOOKUP($B220,Inputs!$C$68:$AN$129,MATCH($B221,Inputs!$C$68:$AN$68,0),FALSE))","v":3.6534015972599994},{"$f":"IF($B220=\"Blank\",0,VLOOKUP($B220,Inputs!$C$68:$AN$129,MATCH($B221,Inputs!$C$68:$AN$68,0),FALSE))","v":3.6534015972599994},{"$f":"IF($B220=\"Blank\",0,VLOOKUP($B220,Inputs!$C$68:$AN$129,MATCH($B221,Inputs!$C$68:$AN$68,0),FALSE))","v":3.6534015972599994},{"$f":"IF($B220=\"Blank\",0,VLOOKUP($B220,Inputs!$C$68:$AN$129,MATCH($B221,Inputs!$C$68:$AN$68,0),FALSE))","v":3.6534015972599994},{"$f":"IF($B220=\"Blank\",0,VLOOKUP($B220,Inputs!$C$68:$AN$129,MATCH($B221,Inputs!$C$68:$AN$68,0),FALSE))","v":3.6534015972599994},null,null,null,null,null,null,null,{"$f":"B221","v":"Lamp UNIT price Annualised Cost"},{"$f":"IF(E221=\"NA\",\"\",E221/R$2*100)","v":0.99819715772131135},{"$f":"IF(F221=\"NA\",\"\",F221/S$2*100)","v":1.0009319444547944},{"$f":"IF(G221=\"NA\",\"\",G221/T$2*100)","v":1.0009319444547944},{"$f":"IF(H221=\"NA\",\"\",H221/U$2*100)","v":1.0009319444547944},{"$f":"IF(I221=\"NA\",\"\",I221/V$2*100)","v":0.99819715772131135}]
[null,{"$f":"Inputs!$K$68","v":"PE Cell UNIT price Annualised Cost"},{"$f":"Inputs!$I$68","v":"PE Cell Maintenance Cycle"},null,{"$f":"IF($B220=\"Blank\",0,VLOOKUP($B220,Inputs!$C$68:$AN$129,MATCH($B222,Inputs!$C$68:$AN$68,0),FALSE))","v":1.6930974392480003},{"$f":"IF($B220=\"Blank\",0,VLOOKUP($B220,Inputs!$C$68:$AN$129,MATCH($B222,Inputs!$C$68:$AN$68,0),FALSE))","v":1.6930974392480003},{"$f":"IF($B220=\"Blank\",0,VLOOKUP($B220,Inputs!$C$68:$AN$129,MATCH($B222,Inputs!$C$68:$AN$68,0),FALSE))","v":1.6930974392480003},{"$f":"IF($B220=\"Blank\",0,VLOOKUP($B220,Inputs!$C$68:$AN$129,MATCH($B222,Inputs!$C$68:$AN$68,0),FALSE))","v":1.6930974392480003},{"$f":"IF($B220=\"Blank\",0,VLOOKUP($B220,Inputs!$C$68:$AN$129,MATCH($B222,Inputs!$C$68:$AN$68,0),FALSE))","v":1.6930974392480003},null,null,null,null,null,null,null,"PE Cell UNIT price Annualised Cost",0.46259492875628422,0.46386231212273976,0.46386231212273976,0.46386231212273976,0.46259492875628422]
[null,"Corp capex annuity per light",null,null,{"$f":"IF($B220=\"Blank\",0,'Corp Capex Annuity calcs'!F$142)","v":18.582309905017571},{"$f":"IF($B220=\"Blank\",0,'Corp Capex Annuity calcs'!G$142)","v":18.552026408230436},{"$f":"IF($B220=\"Blank\",0,'Corp Capex Annuity calcs'!H$142)","v":18.401377631486287},{"$f":"IF($B220=\"Blank\",0,'Corp Capex Annuity calcs'!I$142)","v":18.205761940470655},{"$f":"IF($B220=\"Blank\",0,'Corp Capex Annuity calcs'!J$142)","v":17.995165449295623},null,null,null,null,null,null,null,"Corp capex annuity per light",5.0771338538299373,5.0827469611590237,5.0414733236948734,4.9878799836905907,4.9167118713922466]
[null,{"$f":"Inputs!$U$68","v":"Lamp Service costs Annualised"},"Labour Portion of Lamp Service costs annualised",null,{"$f":"IF($B220=\"Blank\",0,VLOOKUP($B220,Inputs!$C$68:$AN$129,MATCH($B224,Inputs!$C$68:$AN$68,0),FALSE))+IFERROR(IF($B220=\"Blank\",0,VLOOKUP($B220,Inputs!$C$68:$AN$129,MATCH($C224,Inputs!$C$68:$AN$68,0),FALSE))*('Master Data'!K$42),0)","v":34.921367162927247},{"$f":"IF($B220=\"Blank\",0,VLOOKUP($B220,Inputs!$C$68:$AN$129,MATCH($B224,Inputs!$C$68:$AN$68,0),FALSE))+IFERROR(IF($B220=\"Blank\",0,VLOOKUP($B220,Inputs!$C$68:$AN$129,MATCH($C224,Inputs!$C$68:$AN$68,0),FALSE))*('Master Data'!L$42),0)","v":34.926481274900404},{"$f":"IF($B220=\"Blank\",0,VLOOKUP($B220,Inputs!$C$68:$AN$129,MATCH($B224,Inputs!$C$68:$AN$68,0),FALSE))+IFERROR(IF($B220=\"Blank\",0,VLOOKUP($B220,Inputs!$C$68:$AN$129,MATCH($C224,Inputs!$C$68:$AN$68,0),FALSE))*('Master Data'!M$42),0)","v":34.934281518599292},{"$f":"IF($B220=\"Blank\",0,VLOOKUP($B220,Inputs!$C$68:$AN$129,MATCH($B224,Inputs!$C$68:$AN$68,0),FALSE))+IFERROR(IF($B220=\"Blank\",0,VLOOKUP($B220,Inputs!$C$68:$AN$129,MATCH($C224,Inputs!$C$68:$AN$68,0),FALSE))*('Master Data'!N$42),0)","v":34.943898216191549},{"$f":"IF($B220=\"Blank\",0,VLOOKUP($B220,Inputs!$C$68:$AN$129,MATCH($B224,Inputs!$C$68:$AN$68,0),FALSE))+IFERROR(IF($B220=\"Blank\",0,VLOOKUP($B220,Inputs!$C$68:$AN$129,MATCH($C224,Inputs!$C$68:$AN$68,0),FALSE))*('Master Data'!O$42),0)","v":34.955128506182135},null,null,null,null,null,null,null,"Lamp Service costs Annualised",9.5413571483407775,9.5688989794247679,9.5710360324929571,9.5736707441620688,9.5505815590661562]
[null,{"$f":"Inputs!$M$68","v":"PE Cell Service costs Annualised"},"Labour Portion of PE Cell Service costs Annualised",null,{"$f":"IF($B220=\"Blank\",0,VLOOKUP($B220,Inputs!$C$68:$AN$129,MATCH($B225,Inputs!$C$68:$AN$68,0),FALSE))+IFERROR(IF($B220=\"Blank\",0,VLOOKUP($B220,Inputs!$C$68:$AN$129,MATCH($C225,Inputs!$C$68:$AN$68,0),FALSE))*('Master Data'!K$42),0)","v":0},{"$f":"IF($B220=\"Blank\",0,VLOOKUP($B220,Inputs!$C$68:$AN$129,MATCH($B225,Inputs!$C$68:$AN$68,0),FALSE))+IFERROR(IF($B220=\"Blank\",0,VLOOKUP($B220,Inputs!$C$68:$AN$129,MATCH($C225,Inputs!$C$68:$AN$68,0),FALSE))*('Master Data'!L$42),0)","v":0},{"$f":"IF($B220=\"Blank\",0,VLOOKUP($B220,Inputs!$C$68:$AN$129,MATCH($B225,Inputs!$C$68:$AN$68,0),FALSE))+IFERROR(IF($B220=\"Blank\",0,VLOOKUP($B220,Inputs!$C$68:$AN$129,MATCH($C225,Inputs!$C$68:$AN$68,0),FALSE))*('Master Data'!M$42),0)","v":0},{"$f":"IF($B220=\"Blank\",0,VLOOKUP($B220,Inputs!$C$68:$AN$129,MATCH($B225,Inputs!$C$68:$AN$68,0),FALSE))+IFERROR(IF($B220=\"Blank\",0,VLOOKUP($B220,Inputs!$C$68:$AN$129,MATCH($C225,Inputs!$C$68:$AN$68,0),FALSE))*('Master Data'!N$42),0)","v":0},{"$f":"IF($B220=\"Blank\",0,VLOOKUP($B220,Inputs!$C$68:$AN$129,MATCH($B225,Inputs!$C$68:$AN$68,0),FALSE))+IFERROR(IF($B220=\"Blank\",0,VLOOKUP($B220,Inputs!$C$68:$AN$129,MATCH($C225,Inputs!$C$68:$AN$68,0),FALSE))*('Master Data'!O$42),0)","v":0},null,null,null,null,null,null,null,"PE Cell Service costs Annualised",0,0,0,0,0]
[null,"Indirect Opex",null,null,{"$f":"IF($B220=\"Blank\",0,IF($B$8=\"Private Contract Lighting\",'Opex Weighting'!D$48,'Opex Weighting'!D$46))","v":12.159436933476723},{"$f":"IF($B220=\"Blank\",0,IF($B$8=\"Private Contract Lighting\",'Opex Weighting'!E$48,'Opex Weighting'!E$46))","v":12.139620760396495},{"$f":"IF($B220=\"Blank\",0,IF($B$8=\"Private Contract Lighting\",'Opex Weighting'!F$48,'Opex Weighting'!F$46))","v":12.041042902784117},{"$f":"IF($B220=\"Blank\",0,IF($B$8=\"Private Contract Lighting\",'Opex Weighting'!G$48,'Opex Weighting'!G$46))","v":11.913040696908689},{"$f":"IF($B220=\"Blank\",0,IF($B$8=\"Private Contract Lighting\",'Opex Weighting'!H$48,'Opex Weighting'!H$46))","v":11.775235721857506},null,null,null,null,null,null,null,"Indirect Opex",3.3222505282723289,3.32592349599904,3.2989158637764708,3.2638467662763535,3.2172775196331984]
[null,"Indirect Capex",null,null,{"$f":"IF($B221=\"Blank\",0,IF($B$8=\"Private Contract Lighting\",'Capex Weighting'!D$60,'Capex Weighting'!D$62))","v":0},{"$f":"IF($B221=\"Blank\",0,IF($B$8=\"Private Contract Lighting\",'Capex Weighting'!E$60,'Capex Weighting'!E$62))","v":0},{"$f":"IF($B221=\"Blank\",0,IF($B$8=\"Private Contract Lighting\",'Capex Weighting'!F$60,'Capex Weighting'!F$62))","v":0},{"$f":"IF($B221=\"Blank\",0,IF($B$8=\"Private Contract Lighting\",'Capex Weighting'!G$60,'Capex Weighting'!G$62))","v":0},{"$f":"IF($B221=\"Blank\",0,IF($B$8=\"Private Contract Lighting\",'Capex Weighting'!H$60,'Capex Weighting'!H$62))","v":0},null,null,null,null,null,null,null,"Indirect Capex",0,0,0,0,0]
[null,"Opex Overheads Costs per light",null,null,{"$f":"IF($B220=\"Blank\",0,IF($B$8=\"Private Contract Lighting\",'Building Block'!C$40,'Building Block'!C$39))","v":10.567257211169151},{"$f":"IF($B220=\"Blank\",0,IF($B$8=\"Private Contract Lighting\",'Building Block'!D$40,'Building Block'!D$39))","v":10.638037296614067},{"$f":"IF($B220=\"Blank\",0,IF($B$8=\"Private Contract Lighting\",'Building Block'!E$40,'Building Block'!E$39))","v":9.8094883699069495},{"$f":"IF($B220=\"Blank\",0,IF($B$8=\"Private Contract Lighting\",'Building Block'!F$40,'Building Block'!F$39))","v":9.7894714768092079},{"$f":"IF($B220=\"Blank\",0,IF($B$8=\"Private Contract Lighting\",'Building Block'!G$40,'Building Block'!G$39))","v":9.7584857493224391},null,null,null,null,null,null,null,"Opex Overheads Costs per light",2.8872287462210795,2.914530766195635,2.6875310602484794,2.6820469799477284,2.6662529369733439]
[null,{"$f":"Inputs!$AK$68","v":"Bracket UNIT price"},0,null,"NA","NA","NA","NA","NA",null,null,null,null,null,null,null,"Bracket UNIT price","","","","",""]
[null,{"$f":"Inputs!$AA$68","v":"CAPEX Instalation costs"},{"$f":"C229+1","v":1},null,"NA","NA","NA","NA","NA",null,null,null,null,null,null,null,"CAPEX Instalation costs","","","","",""]
[null,{"$f":"Inputs!$Z$68","v":"Luminaire UNIT price"},{"$f":"C230+1","v":2},null,"NA","NA","NA","NA","NA",null,null,null,null,null,null,null,"Luminaire UNIT price","","","","",""]
[null,{"$f":"Inputs!$AA$68","v":"CAPEX Instalation costs"},3,null,"NA","NA","NA","NA","NA",null,null,null,null,null,null,null,"CAPEX Instalation costs","","","","",""]
[null,null,null,null,{"$f":"SUM(E221:E232)","v":81.57687024909869},{"$f":"SUM(F221:F232)","v":81.602664776649405},80.53268945928464,80.198671366888107,79.830514463165684,null,null,null,null,null,null,null,null,{"$f":"ROUND(E233/R$2*100,3)","v":22.289000000000001},{"$f":"ROUND(F233/S$2*100,3)","v":22.356999999999999},{"$f":"ROUND(G233/T$2*100,3)","v":22.064},{"$f":"ROUND(H233/U$2*100,3)","v":21.972000000000001},{"$f":"ROUND(I233/V$2*100,3)","v":21.812000000000001}]
[]
[{"$f":"A220+1","v":16},{"$f":"IFERROR(VLOOKUP($A235,Inputs!$B$68:$AN$129,MATCH($B$7,Inputs!$B$68:$AN$68,0),FALSE),\"Blank\")","v":"150W Sodium Vapour"},null,null,null,null,null,null,null,null,null,null,null,null,null,null,{"$f":"IFERROR(VLOOKUP($A235,Inputs!$B$68:$AN$129,MATCH($B$7,Inputs!$B$68:$AN$68,0),FALSE),\"Blank\")","v":"150W Sodium Vapour"}]
[null,{"$f":"Inputs!$S$68","v":"Lamp UNIT price Annualised Cost"},{"$f":"Inputs!$Q$68","v":"Lamp Maintenance cycle"},null,{"$f":"IF($B235=\"Blank\",0,VLOOKUP($B235,Inputs!$C$68:$AN$129,MATCH($B236,Inputs!$C$68:$AN$68,0),FALSE))","v":3.6395683290762002},{"$f":"IF($B235=\"Blank\",0,VLOOKUP($B235,Inputs!$C$68:$AN$129,MATCH($B236,Inputs!$C$68:$AN$68,0),FALSE))","v":3.6395683290762002},{"$f":"IF($B235=\"Blank\",0,VLOOKUP($B235,Inputs!$C$68:$AN$129,MATCH($B236,Inputs!$C$68:$AN$68,0),FALSE))","v":3.6395683290762002},{"$f":"IF($B235=\"Blank\",0,VLOOKUP($B235,Inputs!$C$68:$AN$129,MATCH($B236,Inputs!$C$68:$AN$68,0),FALSE))","v":3.6395683290762002},{"$f":"IF($B235=\"Blank\",0,VLOOKUP($B235,Inputs!$C$68:$AN$129,MATCH($B236,Inputs!$C$68:$AN$68,0),FALSE))","v":3.6395683290762002},null,null,null,null,null,null,null,{"$f":"B236","v":"Lamp UNIT price Annualised Cost"},{"$f":"IF(E236=\"NA\",\"\",E236/R$2*100)","v":0.99441757625032789},{"$f":"IF(F236=\"NA\",\"\",F236/S$2*100)","v":0.99714200796608232},{"$f":"IF(G236=\"NA\",\"\",G236/T$2*100)","v":0.99714200796608232},{"$f":"IF(H236=\"NA\",\"\",H236/U$2*100)","v":0.99714200796608232},{"$f":"IF(I236=\"NA\",\"\",I236/V$2*100)","v":0.99441757625032789}]
[null,{"$f":"Inputs!$K$68","v":"PE Cell UNIT price Annualised Cost"},{"$f":"Inputs!$I$68","v":"PE Cell Maintenance Cycle"},null,{"$f":"IF($B235=\"Blank\",0,VLOOKUP($B235,Inputs!$C$68:$AN$129,MATCH($B237,Inputs!$C$68:$AN$68,0),FALSE))","v":1.6930974392480003},{"$f":"IF($B235=\"Blank\",0,VLOOKUP($B235,Inputs!$C$68:$AN$129,MATCH($B237,Inputs!$C$68:$AN$68,0),FALSE))","v":1.6930974392480003},{"$f":"IF($B235=\"Blank\",0,VLOOKUP($B235,Inputs!$C$68:$AN$129,MATCH($B237,Inputs!$C$68:$AN$68,0),FALSE))","v":1.6930974392480003},{"$f":"IF($B235=\"Blank\",0,VLOOKUP($B235,Inputs!$C$68:$AN$129,MATCH($B237,Inputs!$C$68:$AN$68,0),FALSE))","v":1.6930974392480003},{"$f":"IF($B235=\"Blank\",0,VLOOKUP($B235,Inputs!$C$68:$AN$129,MATCH($B237,Inputs!$C$68:$AN$68,0),FALSE))","v":1.6930974392480003},null,null,null,null,null,null,null,"PE Cell UNIT price Annualised Cost",0.46259492875628422,0.46386231212273976,0.46386231212273976,0.46386231212273976,0.46259492875628422]
[null,"Corp capex annuity per light",null,null,{"$f":"IF($B235=\"Blank\",0,'Corp Capex Annuity calcs'!F$142)","v":18.582309905017571},{"$f":"IF($B235=\"Blank\",0,'Corp Capex Annuity calcs'!G$142)","v":18.552026408230436},{"$f":"IF($B235=\"Blank\",0,'Corp Capex Annuity calcs'!H$142)","v":18.401377631486287},{"$f":"IF($B235=\"Blank\",0,'Corp Capex Annuity calcs'!I$142)","v":18.205761940470655},{"$f":"IF($B235=\"Blank\",0,'Corp Capex Annuity calcs'!J$142)","v":17.995165449295623},null,null,null,null,null,null,null,"Corp capex annuity per light",5.0771338538299373,5.0827469611590237,5.0414733236948734,4.9878799836905907,4.9167118713922466]
[null,{"$f":"Inputs!$U$68","v":"Lamp Service costs Annualised"},"Labour Portion of Lamp Service costs annualised",null,{"$f":"IF($B235=\"Blank\",0,VLOOKUP($B235,Inputs!$C$68:$AN$129,MATCH($B239,Inputs!$C$68:$AN$68,0),FALSE))+IFERROR(IF($B235=\"Blank\",0,VLOOKUP($B235,Inputs!$C$68:$AN$129,MATCH($C239,Inputs!$C$68:$AN$68,0),FALSE))*('Master Data'!K$42),0)","v":34.921367162927247},{"$f":"IF($B235=\"Blank\",0,VLOOKUP($B235,Inputs!$C$68:$AN$129,MATCH($B239,Inputs!$C$68:$AN$68,0),FALSE))+IFERROR(IF($B235=\"Blank\",0,VLOOKUP($B235,Inputs!$C$68:$AN$129,MATCH($C239,Inputs!$C$68:$AN$68,0),FALSE))*('Master Data'!L$42),0)","v":34.926481274900404},{"$f":"IF($B235=\"Blank\",0,VLOOKUP($B235,Inputs!$C$68:$AN$129,MATCH($B239,Inputs!$C$68:$AN$68,0),FALSE))+IFERROR(IF($B235=\"Blank\",0,VLOOKUP($B235,Inputs!$C$68:$AN$129,MATCH($C239,Inputs!$C$68:$AN$68,0),FALSE))*('Master Data'!M$42),0)","v":34.934281518599292},{"$f":"IF($B235=\"Blank\",0,VLOOKUP($B235,Inputs!$C$68:$AN$129,MATCH($B239,Inputs!$C$68:$AN$68,0),FALSE))+IFERROR(IF($B235=\"Blank\",0,VLOOKUP($B235,Inputs!$C$68:$AN$129,MATCH($C239,Inputs!$C$68:$AN$68,0),FALSE))*('Master Data'!N$42),0)","v":34.943898216191549},{"$f":"IF($B235=\"Blank\",0,VLOOKUP($B235,Inputs!$C$68:$AN$129,MATCH($B239,Inputs!$C$68:$AN$68,0),FALSE))+IFERROR(IF($B235=\"Blank\",0,VLOOKUP($B235,Inputs!$C$68:$AN$129,MATCH($C239,Inputs!$C$68:$AN$68,0),FALSE))*('Master Data'!O$42),0)","v":34.955128506182135},null,null,null,null,null,null,null,"Lamp Service costs Annualised",9.5413571483407775,9.5688989794247679,9.5710360324929571,9.5736707441620688,9.5505815590661562]
[null,{"$f":"Inputs!$M$68","v":"PE Cell Service costs Annualised"},"Labour Portion of PE Cell Service costs Annualised",null,{"$f":"IF($B235=\"Blank\",0,VLOOKUP($B235,Inputs!$C$68:$AN$129,MATCH($B240,Inputs!$C$68:$AN$68,0),FALSE))+IFERROR(IF($B235=\"Blank\",0,VLOOKUP($B235,Inputs!$C$68:$AN$129,MATCH($C240,Inputs!$C$68:$AN$68,0),FALSE))*('Master Data'!K$42),0)","v":0},{"$f":"IF($B235=\"Blank\",0,VLOOKUP($B235,Inputs!$C$68:$AN$129,MATCH($B240,Inputs!$C$68:$AN$68,0),FALSE))+IFERROR(IF($B235=\"Blank\",0,VLOOKUP($B235,Inputs!$C$68:$AN$129,MATCH($C240,Inputs!$C$68:$AN$68,0),FALSE))*('Master Data'!L$42),0)","v":0},{"$f":"IF($B235=\"Blank\",0,VLOOKUP($B235,Inputs!$C$68:$AN$129,MATCH($B240,Inputs!$C$68:$AN$68,0),FALSE))+IFERROR(IF($B235=\"Blank\",0,VLOOKUP($B235,Inputs!$C$68:$AN$129,MATCH($C240,Inputs!$C$68:$AN$68,0),FALSE))*('Master Data'!M$42),0)","v":0},{"$f":"IF($B235=\"Blank\",0,VLOOKUP($B235,Inputs!$C$68:$AN$129,MATCH($B240,Inputs!$C$68:$AN$68,0),FALSE))+IFERROR(IF($B235=\"Blank\",0,VLOOKUP($B235,Inputs!$C$68:$AN$129,MATCH($C240,Inputs!$C$68:$AN$68,0),FALSE))*('Master Data'!N$42),0)","v":0},{"$f":"IF($B235=\"Blank\",0,VLOOKUP($B235,Inputs!$C$68:$AN$129,MATCH($B240,Inputs!$C$68:$AN$68,0),FALSE))+IFERROR(IF($B235=\"Blank\",0,VLOOKUP($B235,Inputs!$C$68:$AN$129,MATCH($C240,Inputs!$C$68:$AN$68,0),FALSE))*('Master Data'!O$42),0)","v":0},null,null,null,null,null,null,null,"PE Cell Service costs Annualised",0,0,0,0,0]
[null,"Indirect Opex",null,null,{"$f":"IF($B235=\"Blank\",0,IF($B$8=\"Private Contract Lighting\",'Opex Weighting'!D$48,'Opex Weighting'!D$46))","v":12.159436933476723},{"$f":"IF($B235=\"Blank\",0,IF($B$8=\"Private Contract Lighting\",'Opex Weighting'!E$48,'Opex Weighting'!E$46))","v":12.139620760396495},{"$f":"IF($B235=\"Blank\",0,IF($B$8=\"Private Contract Lighting\",'Opex Weighting'!F$48,'Opex Weighting'!F$46))","v":12.041042902784117},{"$f":"IF($B235=\"Blank\",0,IF($B$8=\"Private Contract Lighting\",'Opex Weighting'!G$48,'Opex Weighting'!G$46))","v":11.913040696908689},{"$f":"IF($B235=\"Blank\",0,IF($B$8=\"Private Contract Lighting\",'Opex Weighting'!H$48,'Opex Weighting'!H$46))","v":11.775235721857506},null,null,null,null,null,null,null,"Indirect Opex",3.3222505282723289,3.32592349599904,3.2989158637764708,3.2638467662763535,3.2172775196331984]
[null,"Indirect Capex",null,null,{"$f":"IF($B236=\"Blank\",0,IF($B$8=\"Private Contract Lighting\",'Capex Weighting'!D$60,'Capex Weighting'!D$62))","v":0},{"$f":"IF($B236=\"Blank\",0,IF($B$8=\"Private Contract Lighting\",'Capex Weighting'!E$60,'Capex Weighting'!E$62))","v":0},{"$f":"IF($B236=\"Blank\",0,IF($B$8=\"Private Contract Lighting\",'Capex Weighting'!F$60,'Capex Weighting'!F$62))","v":0},{"$f":"IF($B236=\"Blank\",0,IF($B$8=\"Private Contract Lighting\",'Capex Weighting'!G$60,'Capex Weighting'!G$62))","v":0},{"$f":"IF($B236=\"Blank\",0,IF($B$8=\"Private Contract Lighting\",'Capex Weighting'!H$60,'Capex Weighting'!H$62))","v":0},null,null,null,null,null,null,null,"Indirect Capex",0,0,0,0,0]
[null,"Opex Overheads Costs per light",null,null,{"$f":"IF($B235=\"Blank\",0,IF($B$8=\"Private Contract Lighting\",'Building Block'!C$40,'Building Block'!C$39))","v":10.567257211169151},{"$f":"IF($B235=\"Blank\",0,IF($B$8=\"Private Contract Lighting\",'Building Block'!D$40,'Building Block'!D$39))","v":10.638037296614067},{"$f":"IF($B235=\"Blank\",0,IF($B$8=\"Private Contract Lighting\",'Building Block'!E$40,'Building Block'!E$39))","v":9.8094883699069495},{"$f":"IF($B235=\"Blank\",0,IF($B$8=\"Private Contract Lighting\",'Building Block'!F$40,'Building Block'!F$39))","v":9.7894714768092079},{"$f":"IF($B235=\"Blank\",0,IF($B$8=\"Private Contract Lighting\",'Building Block'!G$40,'Building Block'!G$39))","v":9.7584857493224391},null,null,null,null,null,null,null,"Opex Overheads Costs per light",2.8872287462210795,2.914530766195635,2.6875310602484794,2.6820469799477284,2.6662529369733439]
[null,{"$f":"Inputs!$AK$68","v":"Bracket UNIT price"},0,null,"NA","NA","NA","NA","NA",null,null,null,null,null,null,null,"Bracket UNIT price","","","","",""]
[null,{"$f":"Inputs!$AA$68","v":"CAPEX Instalation costs"},{"$f":"C244+1","v":1},null,"NA","NA","NA","NA","NA",null,null,null,null,null,null,null,"CAPEX Instalation costs","","","","",""]
[null,{"$f":"Inputs!$Z$68","v":"Luminaire UNIT price"},{"$f":"C245+1","v":2},null,"NA","NA","NA","NA","NA",null,null,null,null,null,null,null,"Luminaire UNIT price","","","","",""]
[null,{"$f":"Inputs!$AA$68","v":"CAPEX Instalation costs"},3,null,"NA","NA","NA","NA","NA",null,null,null,null,null,null,null,"CAPEX Instalation costs","","","","",""]
[null,null,null,null,{"$f":"SUM(E236:E247)","v":81.563036980914887},{"$f":"SUM(F236:F247)","v":81.588831508465603},80.518856191100838,80.184838098704304,79.816681194981896,null,null,null,null,null,null,null,null,{"$f":"ROUND(E248/R$2*100,3)","v":22.285},{"$f":"ROUND(F248/S$2*100,3)","v":22.353000000000002},{"$f":"ROUND(G248/T$2*100,3)","v":22.06},{"$f":"ROUND(H248/U$2*100,3)","v":21.968},{"$f":"ROUND(I248/V$2*100,3)","v":21.808}]
[]
[{"$f":"A235+1","v":17},{"$f":"IFERROR(VLOOKUP($A250,Inputs!$B$68:$AN$129,MATCH($B$7,Inputs!$B$68:$AN$68,0),FALSE),\"Blank\")","v":"250W Sodium Vapour"},null,null,null,null,null,null,null,null,null,null,null,null,null,null,{"$f":"IFERROR(VLOOKUP($A250,Inputs!$B$68:$AN$129,MATCH($B$7,Inputs!$B$68:$AN$68,0),FALSE),\"Blank\")","v":"250W Sodium Vapour"}]
[null,{"$f":"Inputs!$S$68","v":"Lamp UNIT price Annualised Cost"},{"$f":"Inputs!$Q$68","v":"Lamp Maintenance cycle"},null,{"$f":"IF($B250=\"Blank\",0,VLOOKUP($B250,Inputs!$C$68:$AN$129,MATCH($B251,Inputs!$C$68:$AN$68,0),FALSE))","v":4.0928443282184501},{"$f":"IF($B250=\"Blank\",0,VLOOKUP($B250,Inputs!$C$68:$AN$129,MATCH($B251,Inputs!$C$68:$AN$68,0),FALSE))","v":4.0928443282184501},{"$f":"IF($B250=\"Blank\",0,VLOOKUP($B250,Inputs!$C$68:$AN$129,MATCH($B251,Inputs!$C$68:$AN$68,0),FALSE))","v":4.0928443282184501},{"$f":"IF($B250=\"Blank\",0,VLOOKUP($B250,Inputs!$C$68:$AN$129,MATCH($B251,Inputs!$C$68:$AN$68,0),FALSE))","v":4.0928443282184501},{"$f":"IF($B250=\"Blank\",0,VLOOKUP($B250,Inputs!$C$68:$AN$129,MATCH($B251,Inputs!$C$68:$AN$68,0),FALSE))","v":4.0928443282184501},null,null,null,null,null,null,null,{"$f":"B251","v":"Lamp UNIT price Annualised Cost"},{"$f":"IF(E251=\"NA\",\"\",E251/R$2*100)","v":1.1182634776553142},{"$f":"IF(F251=\"NA\",\"\",F251/S$2*100)","v":1.1213272132105343},{"$f":"IF(G251=\"NA\",\"\",G251/T$2*100)","v":1.1213272132105343},{"$f":"IF(H251=\"NA\",\"\",H251/U$2*100)","v":1.1213272132105343},{"$f":"IF(I251=\"NA\",\"\",I251/V$2*100)","v":1.1182634776553142}]
[null,{"$f":"Inputs!$K$68","v":"PE Cell UNIT price Annualised Cost"},{"$f":"Inputs!$I$68","v":"PE Cell Maintenance Cycle"},null,{"$f":"IF($B250=\"Blank\",0,VLOOKUP($B250,Inputs!$C$68:$AN$129,MATCH($B252,Inputs!$C$68:$AN$68,0),FALSE))","v":1.6930974392480003},{"$f":"IF($B250=\"Blank\",0,VLOOKUP($B250,Inputs!$C$68:$AN$129,MATCH($B252,Inputs!$C$68:$AN$68,0),FALSE))","v":1.6930974392480003},{"$f":"IF($B250=\"Blank\",0,VLOOKUP($B250,Inputs!$C$68:$AN$129,MATCH($B252,Inputs!$C$68:$AN$68,0),FALSE))","v":1.6930974392480003},{"$f":"IF($B250=\"Blank\",0,VLOOKUP($B250,Inputs!$C$68:$AN$129,MATCH($B252,Inputs!$C$68:$AN$68,0),FALSE))","v":1.6930974392480003},{"$f":"IF($B250=\"Blank\",0,VLOOKUP($B250,Inputs!$C$68:$AN$129,MATCH($B252,Inputs!$C$68:$AN$68,0),FALSE))","v":1.6930974392480003},null,null,null,null,null,null,null,"PE Cell UNIT price Annualised Cost",0.46259492875628422,0.46386231212273976,0.46386231212273976,0.46386231212273976,0.46259492875628422]
[null,"Corp capex annuity per light",null,null,{"$f":"IF($B250=\"Blank\",0,'Corp Capex Annuity calcs'!F$142)","v":18.582309905017571},{"$f":"IF($B250=\"Blank\",0,'Corp Capex Annuity calcs'!G$142)","v":18.552026408230436},{"$f":"IF($B250=\"Blank\",0,'Corp Capex Annuity calcs'!H$142)","v":18.401377631486287},{"$f":"IF($B250=\"Blank\",0,'Corp Capex Annuity calcs'!I$142)","v":18.205761940470655},{"$f":"IF($B250=\"Blank\",0,'Corp Capex Annuity calcs'!J$142)","v":17.995165449295623},null,null,null,null,null,null,null,"Corp capex annuity per light",5.0771338538299373,5.0827469611590237,5.0414733236948734,4.9878799836905907,4.9167118713922466]
[null,{"$f":"Inputs!$U$68","v":"Lamp Service costs Annualised"},"Labour Portion of Lamp Service costs annualised",null,{"$f":"IF($B250=\"Blank\",0,VLOOKUP($B250,Inputs!$C$68:$AN$129,MATCH($B254,Inputs!$C$68:$AN$68,0),FALSE))+IFERROR(IF($B250=\"Blank\",0,VLOOKUP($B250,Inputs!$C$68:$AN$129,MATCH($C254,Inputs!$C$68:$AN$68,0),FALSE))*('Master Data'!K$42),0)","v":34.921367162927247},{"$f":"IF($B250=\"Blank\",0,VLOOKUP($B250,Inputs!$C$68:$AN$129,MATCH($B254,Inputs!$C$68:$AN$68,0),FALSE))+IFERROR(IF($B250=\"Blank\",0,VLOOKUP($B250,Inputs!$C$68:$AN$129,MATCH($C254,Inputs!$C$68:$AN$68,0),FALSE))*('Master Data'!L$42),0)","v":34.926481274900404},{"$f":"IF($B250=\"Blank\",0,VLOOKUP($B250,Inputs!$C$68:$AN$129,MATCH($B254,Inputs!$C$68:$AN$68,0),FALSE))+IFERROR(IF($B250=\"Blank\",0,VLOOKUP($B250,Inputs!$C$68:$AN$129,MATCH($C254,Inputs!$C$68:$AN$68,0),FALSE))*('Master Data'!M$42),0)","v":34.934281518599292},{"$f":"IF($B250=\"Blank\",0,VLOOKUP($B250,Inputs!$C$68:$AN$129,MATCH($B254,Inputs!$C$68:$AN$68,0),FALSE))+IFERROR(IF($B250=\"Blank\",0,VLOOKUP($B250,Inputs!$C$68:$AN$129,MATCH($C254,Inputs!$C$68:$AN$68,0),FALSE))*('Master Data'!N$42),0)","v":34.943898216191549},{"$f":"IF($B250=\"Blank\",0,VLOOKUP($B250,Inputs!$C$68:$AN$129,MATCH($B254,Inputs!$C$68:$AN$68,0),FALSE))+IFERROR(IF($B250=\"Blank\",0,VLOOKUP($B250,Inputs!$C$68:$AN$129,MATCH($C254,Inputs!$C$68:$AN$68,0),FALSE))*('Master Data'!O$42),0)","v":34.955128506182135},null,null,null,null,null,null,null,"Lamp Service costs Annualised",9.5413571483407775,9.5688989794247679,9.5710360324929571,9.5736707441620688,9.5505815590661562]
[null,{"$f":"Inputs!$M$68","v":"PE Cell Service costs Annualised"},"Labour Portion of PE Cell Service costs Annualised",null,{"$f":"IF($B250=\"Blank\",0,VLOOKUP($B250,Inputs!$C$68:$AN$129,MATCH($B255,Inputs!$C$68:$AN$68,0),FALSE))+IFERROR(IF($B250=\"Blank\",0,VLOOKUP($B250,Inputs!$C$68:$AN$129,MATCH($C255,Inputs!$C$68:$AN$68,0),FALSE))*('Master Data'!K$42),0)","v":0},{"$f":"IF($B250=\"Blank\",0,VLOOKUP($B250,Inputs!$C$68:$AN$129,MATCH($B255,Inputs!$C$68:$AN$68,0),FALSE))+IFERROR(IF($B250=\"Blank\",0,VLOOKUP($B250,Inputs!$C$68:$AN$129,MATCH($C255,Inputs!$C$68:$AN$68,0),FALSE))*('Master Data'!L$42),0)","v":0},{"$f":"IF($B250=\"Blank\",0,VLOOKUP($B250,Inputs!$C$68:$AN$129,MATCH($B255,Inputs!$C$68:$AN$68,0),FALSE))+IFERROR(IF($B250=\"Blank\",0,VLOOKUP($B250,Inputs!$C$68:$AN$129,MATCH($C255,Inputs!$C$68:$AN$68,0),FALSE))*('Master Data'!M$42),0)","v":0},{"$f":"IF($B250=\"Blank\",0,VLOOKUP($B250,Inputs!$C$68:$AN$129,MATCH($B255,Inputs!$C$68:$AN$68,0),FALSE))+IFERROR(IF($B250=\"Blank\",0,VLOOKUP($B250,Inputs!$C$68:$AN$129,MATCH($C255,Inputs!$C$68:$AN$68,0),FALSE))*('Master Data'!N$42),0)","v":0},{"$f":"IF($B250=\"Blank\",0,VLOOKUP($B250,Inputs!$C$68:$AN$129,MATCH($B255,Inputs!$C$68:$AN$68,0),FALSE))+IFERROR(IF($B250=\"Blank\",0,VLOOKUP($B250,Inputs!$C$68:$AN$129,MATCH($C255,Inputs!$C$68:$AN$68,0),FALSE))*('Master Data'!O$42),0)","v":0},null,null,null,null,null,null,null,"PE Cell Service costs Annualised",0,0,0,0,0]
[null,"Indirect Opex",null,null,{"$f":"IF($B250=\"Blank\",0,IF($B$8=\"Private Contract Lighting\",'Opex Weighting'!D$48,'Opex Weighting'!D$46))","v":12.159436933476723},{"$f":"IF($B250=\"Blank\",0,IF($B$8=\"Private Contract Lighting\",'Opex Weighting'!E$48,'Opex Weighting'!E$46))","v":12.139620760396495},{"$f":"IF($B250=\"Blank\",0,IF($B$8=\"Private Contract Lighting\",'Opex Weighting'!F$48,'Opex Weighting'!F$46))","v":12.041042902784117},{"$f":"IF($B250=\"Blank\",0,IF($B$8=\"Private Contract Lighting\",'Opex Weighting'!G$48,'Opex Weighting'!G$46))","v":11.913040696908689},{"$f":"IF($B250=\"Blank\",0,IF($B$8=\"Private Contract Lighting\",'Opex Weighting'!H$48,'Opex Weighting'!H$46))","v":11.775235721857506},null,null,null,null,null,null,null,"Indirect Opex",3.3222505282723289,3.32592349599904,3.2989158637764708,3.2638467662763535,3.2172775196331984]
[null,"Indirect Capex",null,null,{"$f":"IF($B251=\"Blank\",0,IF($B$8=\"Private Contract Lighting\",'Capex Weighting'!D$60,'Capex Weighting'!D$62))","v":0},{"$f":"IF($B251=\"Blank\",0,IF($B$8=\"Private Contract Lighting\",'Capex Weighting'!E$60,'Capex Weighting'!E$62))","v":0},{"$f":"IF($B251=\"Blank\",0,IF($B$8=\"Private Contract Lighting\",'Capex Weighting'!F$60,'Capex Weighting'!F$62))","v":0},{"$f":"IF($B251=\"Blank\",0,IF($B$8=\"Private Contract Lighting\",'Capex Weighting'!G$60,'Capex Weighting'!G$62))","v":0},{"$f":"IF($B251=\"Blank\",0,IF($B$8=\"Private Contract Lighting\",'Capex Weighting'!H$60,'Capex Weighting'!H$62))","v":0},null,null,null,null,null,null,null,"Indirect Capex",0,0,0,0,0]
[null,"Opex Overheads Costs per light",null,null,{"$f":"IF($B250=\"Blank\",0,IF($B$8=\"Private Contract Lighting\",'Building Block'!C$40,'Building Block'!C$39))","v":10.567257211169151},{"$f":"IF($B250=\"Blank\",0,IF($B$8=\"Private Contract Lighting\",'Building Block'!D$40,'Building Block'!D$39))","v":10.638037296614067},{"$f":"IF($B250=\"Blank\",0,IF($B$8=\"Private Contract Lighting\",'Building Block'!E$40,'Building Block'!E$39))","v":9.8094883699069495},{"$f":"IF($B250=\"Blank\",0,IF($B$8=\"Private Contract Lighting\",'Building Block'!F$40,'Building Block'!F$39))","v":9.7894714768092079},{"$f":"IF($B250=\"Blank\",0,IF($B$8=\"Private Contract Lighting\",'Building Block'!G$40,'Building Block'!G$39))","v":9.7584857493224391},null,null,null,null,null,null,null,"Opex Overheads Costs per light",2.8872287462210795,2.914530766195635,2.6875310602484794,2.6820469799477284,2.6662529369733439]
[null,{"$f":"Inputs!$AK$68","v":"Bracket UNIT price"},0,null,"NA","NA","NA","NA","NA",null,null,null,null,null,null,null,"Bracket UNIT price","","","","",""]
[null,{"$f":"Inputs!$AA$68","v":"CAPEX Instalation costs"},{"$f":"C259+1","v":1},null,"NA","NA","NA","NA","NA",null,null,null,null,null,null,null,"CAPEX Instalation costs","","","","",""]
[null,{"$f":"Inputs!$Z$68","v":"Luminaire UNIT price"},{"$f":"C260+1","v":2},null,"NA","NA","NA","NA","NA",null,null,null,null,null,null,null,"Luminaire UNIT price","","","","",""]
[null,{"$f":"Inputs!$AA$68","v":"CAPEX Instalation costs"},3,null,"NA","NA","NA","NA","NA",null,null,null,null,null,null,null,"CAPEX Instalation costs","","","","",""]
[null,null,null,null,{"$f":"SUM(E251:E262)","v":82.016312980057137},{"$f":"SUM(F251:F262)","v":82.042107507607852},80.972132190243087,80.638114097846554,80.269957194124146,null,null,null,null,null,null,null,null,{"$f":"ROUND(E263/R$2*100,3)","v":22.408999999999999},{"$f":"ROUND(F263/S$2*100,3)","v":22.477},{"$f":"ROUND(G263/T$2*100,3)","v":22.184000000000001},{"$f":"ROUND(H263/U$2*100,3)","v":22.093},{"$f":"ROUND(I263/V$2*100,3)","v":21.931999999999999}]
[]
[{"$f":"A250+1","v":18},{"$f":"IFERROR(VLOOKUP($A265,Inputs!$B$68:$AN$129,MATCH($B$7,Inputs!$B$68:$AN$68,0),FALSE),\"Blank\")","v":"250W Sodium Vapour - Flood Light"},null,null,null,null,null,null,null,null,null,null,null,null,null,null,{"$f":"IFERROR(VLOOKUP($A265,Inputs!$B$68:$AN$129,MATCH($B$7,Inputs!$B$68:$AN$68,0),FALSE),\"Blank\")","v":"250W Sodium Vapour - Flood Light"}]
[null,{"$f":"Inputs!$S$68","v":"Lamp UNIT price Annualised Cost"},{"$f":"Inputs!$Q$68","v":"Lamp Maintenance cycle"},null,{"$f":"IF($B265=\"Blank\",0,VLOOKUP($B265,Inputs!$C$68:$AN$129,MATCH($B266,Inputs!$C$68:$AN$68,0),FALSE))","v":4.0928443282184501},{"$f":"IF($B265=\"Blank\",0,VLOOKUP($B265,Inputs!$C$68:$AN$129,MATCH($B266,Inputs!$C$68:$AN$68,0),FALSE))","v":4.0928443282184501},{"$f":"IF($B265=\"Blank\",0,VLOOKUP($B265,Inputs!$C$68:$AN$129,MATCH($B266,Inputs!$C$68:$AN$68,0),FALSE))","v":4.0928443282184501},{"$f":"IF($B265=\"Blank\",0,VLOOKUP($B265,Inputs!$C$68:$AN$129,MATCH($B266,Inputs!$C$68:$AN$68,0),FALSE))","v":4.0928443282184501},{"$f":"IF($B265=\"Blank\",0,VLOOKUP($B265,Inputs!$C$68:$AN$129,MATCH($B266,Inputs!$C$68:$AN$68,0),FALSE))","v":4.0928443282184501},null,null,null,null,null,null,null,{"$f":"B266","v":"Lamp UNIT price Annualised Cost"},{"$f":"IF(E266=\"NA\",\"\",E266/R$2*100)","v":1.1182634776553142},{"$f":"IF(F266=\"NA\",\"\",F266/S$2*100)","v":1.1213272132105343},{"$f":"IF(G266=\"NA\",\"\",G266/T$2*100)","v":1.1213272132105343},{"$f":"IF(H266=\"NA\",\"\",H266/U$2*100)","v":1.1213272132105343},{"$f":"IF(I266=\"NA\",\"\",I266/V$2*100)","v":1.1182634776553142}]
[null,{"$f":"Inputs!$K$68","v":"PE Cell UNIT price Annualised Cost"},{"$f":"Inputs!$I$68","v":"PE Cell Maintenance Cycle"},null,{"$f":"IF($B265=\"Blank\",0,VLOOKUP($B265,Inputs!$C$68:$AN$129,MATCH($B267,Inputs!$C$68:$AN$68,0),FALSE))","v":1.6930974392480003},{"$f":"IF($B265=\"Blank\",0,VLOOKUP($B265,Inputs!$C$68:$AN$129,MATCH($B267,Inputs!$C$68:$AN$68,0),FALSE))","v":1.6930974392480003},{"$f":"IF($B265=\"Blank\",0,VLOOKUP($B265,Inputs!$C$68:$AN$129,MATCH($B267,Inputs!$C$68:$AN$68,0),FALSE))","v":1.6930974392480003},{"$f":"IF($B265=\"Blank\",0,VLOOKUP($B265,Inputs!$C$68:$AN$129,MATCH($B267,Inputs!$C$68:$AN$68,0),FALSE))","v":1.6930974392480003},{"$f":"IF($B265=\"Blank\",0,VLOOKUP($B265,Inputs!$C$68:$AN$129,MATCH($B267,Inputs!$C$68:$AN$68,0),FALSE))","v":1.6930974392480003},null,null,null,null,null,null,null,"PE Cell UNIT price Annualised Cost",0.46259492875628422,0.46386231212273976,0.46386231212273976,0.46386231212273976,0.46259492875628422]
[null,"Corp capex annuity per light",null,null,{"$f":"IF($B265=\"Blank\",0,'Corp Capex Annuity calcs'!F$142)","v":18.582309905017571},{"$f":"IF($B265=\"Blank\",0,'Corp Capex Annuity calcs'!G$142)","v":18.552026408230436},{"$f":"IF($B265=\"Blank\",0,'Corp Capex Annuity calcs'!H$142)","v":18.401377631486287},{"$f":"IF($B265=\"Blank\",0,'Corp Capex Annuity calcs'!I$142)","v":18.205761940470655},{"$f":"IF($B265=\"Blank\",0,'Corp Capex Annuity calcs'!J$142)","v":17.995165449295623},null,null,null,null,null,null,null,"Corp capex annuity per light",5.0771338538299373,5.0827469611590237,5.0414733236948734,4.9878799836905907,4.9167118713922466]
[null,{"$f":"Inputs!$U$68","v":"Lamp Service costs Annualised"},"Labour Portion of Lamp Service costs annualised",null,{"$f":"IF($B265=\"Blank\",0,VLOOKUP($B265,Inputs!$C$68:$AN$129,MATCH($B269,Inputs!$C$68:$AN$68,0),FALSE))+IFERROR(IF($B265=\"Blank\",0,VLOOKUP($B265,Inputs!$C$68:$AN$129,MATCH($C269,Inputs!$C$68:$AN$68,0),FALSE))*('Master Data'!K$42),0)","v":34.921367162927247},{"$f":"IF($B265=\"Blank\",0,VLOOKUP($B265,Inputs!$C$68:$AN$129,MATCH($B269,Inputs!$C$68:$AN$68,0),FALSE))+IFERROR(IF($B265=\"Blank\",0,VLOOKUP($B265,Inputs!$C$68:$AN$129,MATCH($C269,Inputs!$C$68:$AN$68,0),FALSE))*('Master Data'!L$42),0)","v":34.926481274900404},{"$f":"IF($B265=\"Blank\",0,VLOOKUP($B265,Inputs!$C$68:$AN$129,MATCH($B269,Inputs!$C$68:$AN$68,0),FALSE))+IFERROR(IF($B265=\"Blank\",0,VLOOKUP($B265,Inputs!$C$68:$AN$129,MATCH($C269,Inputs!$C$68:$AN$68,0),FALSE))*('Master Data'!M$42),0)","v":34.934281518599292},{"$f":"IF($B265=\"Blank\",0,VLOOKUP($B265,Inputs!$C$68:$AN$129,MATCH($B269,Inputs!$C$68:$AN$68,0),FALSE))+IFERROR(IF($B265=\"Blank\",0,VLOOKUP($B265,Inputs!$C$68:$AN$129,MATCH($C269,Inputs!$C$68:$AN$68,0),FALSE))*('Master Data'!N$42),0)","v":34.943898216191549},{"$f":"IF($B265=\"Blank\",0,VLOOKUP($B265,Inputs!$C$68:$AN$129,MATCH($B269,Inputs!$C$68:$AN$68,0),FALSE))+IFERROR(IF($B265=\"Blank\",0,VLOOKUP($B265,Inputs!$C$68:$AN$129,MATCH($C269,Inputs!$C$68:$AN$68,0),FALSE))*('Master Data'!O$42),0)","v":34.955128506182135},null,null,null,null,null,null,null,"Lamp Service costs Annualised",9.5413571483407775,9.5688989794247679,9.5710360324929571,9.5736707441620688,9.5505815590661562]
[null,{"$f":"Inputs!$M$68","v":"PE Cell Service costs Annualised"},"Labour Portion of PE Cell Service costs Annualised",null,{"$f":"IF($B265=\"Blank\",0,VLOOKUP($B265,Inputs!$C$68:$AN$129,MATCH($B270,Inputs!$C$68:$AN$68,0),FALSE))+IFERROR(IF($B265=\"Blank\",0,VLOOKUP($B265,Inputs!$C$68:$AN$129,MATCH($C270,Inputs!$C$68:$AN$68,0),FALSE))*('Master Data'!K$42),0)","v":0},{"$f":"IF($B265=\"Blank\",0,VLOOKUP($B265,Inputs!$C$68:$AN$129,MATCH($B270,Inputs!$C$68:$AN$68,0),FALSE))+IFERROR(IF($B265=\"Blank\",0,VLOOKUP($B265,Inputs!$C$68:$AN$129,MATCH($C270,Inputs!$C$68:$AN$68,0),FALSE))*('Master Data'!L$42),0)","v":0},{"$f":"IF($B265=\"Blank\",0,VLOOKUP($B265,Inputs!$C$68:$AN$129,MATCH($B270,Inputs!$C$68:$AN$68,0),FALSE))+IFERROR(IF($B265=\"Blank\",0,VLOOKUP($B265,Inputs!$C$68:$AN$129,MATCH($C270,Inputs!$C$68:$AN$68,0),FALSE))*('Master Data'!M$42),0)","v":0},{"$f":"IF($B265=\"Blank\",0,VLOOKUP($B265,Inputs!$C$68:$AN$129,MATCH($B270,Inputs!$C$68:$AN$68,0),FALSE))+IFERROR(IF($B265=\"Blank\",0,VLOOKUP($B265,Inputs!$C$68:$AN$129,MATCH($C270,Inputs!$C$68:$AN$68,0),FALSE))*('Master Data'!N$42),0)","v":0},{"$f":"IF($B265=\"Blank\",0,VLOOKUP($B265,Inputs!$C$68:$AN$129,MATCH($B270,Inputs!$C$68:$AN$68,0),FALSE))+IFERROR(IF($B265=\"Blank\",0,VLOOKUP($B265,Inputs!$C$68:$AN$129,MATCH($C270,Inputs!$C$68:$AN$68,0),FALSE))*('Master Data'!O$42),0)","v":0},null,null,null,null,null,null,null,"PE Cell Service costs Annualised",0,0,0,0,0]
[null,"Indirect Opex",null,null,{"$f":"IF($B265=\"Blank\",0,IF($B$8=\"Private Contract Lighting\",'Opex Weighting'!D$48,'Opex Weighting'!D$46))","v":12.159436933476723},{"$f":"IF($B265=\"Blank\",0,IF($B$8=\"Private Contract Lighting\",'Opex Weighting'!E$48,'Opex Weighting'!E$46))","v":12.139620760396495},{"$f":"IF($B265=\"Blank\",0,IF($B$8=\"Private Contract Lighting\",'Opex Weighting'!F$48,'Opex Weighting'!F$46))","v":12.041042902784117},{"$f":"IF($B265=\"Blank\",0,IF($B$8=\"Private Contract Lighting\",'Opex Weighting'!G$48,'Opex Weighting'!G$46))","v":11.913040696908689},{"$f":"IF($B265=\"Blank\",0,IF($B$8=\"Private Contract Lighting\",'Opex Weighting'!H$48,'Opex Weighting'!H$46))","v":11.775235721857506},null,null,null,null,null,null,null,"Indirect Opex",3.3222505282723289,3.32592349599904,3.2989158637764708,3.2638467662763535,3.2172775196331984]
[null,"Indirect Capex",null,null,{"$f":"IF($B266=\"Blank\",0,IF($B$8=\"Private Contract Lighting\",'Capex Weighting'!D$60,'Capex Weighting'!D$62))","v":0},{"$f":"IF($B266=\"Blank\",0,IF($B$8=\"Private Contract Lighting\",'Capex Weighting'!E$60,'Capex Weighting'!E$62))","v":0},{"$f":"IF($B266=\"Blank\",0,IF($B$8=\"Private Contract Lighting\",'Capex Weighting'!F$60,'Capex Weighting'!F$62))","v":0},{"$f":"IF($B266=\"Blank\",0,IF($B$8=\"Private Contract Lighting\",'Capex Weighting'!G$60,'Capex Weighting'!G$62))","v":0},{"$f":"IF($B266=\"Blank\",0,IF($B$8=\"Private Contract Lighting\",'Capex Weighting'!H$60,'Capex Weighting'!H$62))","v":0},null,null,null,null,null,null,null,"Indirect Capex",0,0,0,0,0]
[null,"Opex Overheads Costs per light",null,null,{"$f":"IF($B265=\"Blank\",0,IF($B$8=\"Private Contract Lighting\",'Building Block'!C$40,'Building Block'!C$39))","v":10.567257211169151},{"$f":"IF($B265=\"Blank\",0,IF($B$8=\"Private Contract Lighting\",'Building Block'!D$40,'Building Block'!D$39))","v":10.638037296614067},{"$f":"IF($B265=\"Blank\",0,IF($B$8=\"Private Contract Lighting\",'Building Block'!E$40,'Building Block'!E$39))","v":9.8094883699069495},{"$f":"IF($B265=\"Blank\",0,IF($B$8=\"Private Contract Lighting\",'Building Block'!F$40,'Building Block'!F$39))","v":9.7894714768092079},{"$f":"IF($B265=\"Blank\",0,IF($B$8=\"Private Contract Lighting\",'Building Block'!G$40,'Building Block'!G$39))","v":9.7584857493224391},null,null,null,null,null,null,null,"Opex Overheads Costs per light",2.8872287462210795,2.914530766195635,2.6875310602484794,2.6820469799477284,2.6662529369733439]
[null,{"$f":"Inputs!$AK$68","v":"Bracket UNIT price"},0,null,"NA","NA","NA","NA","NA",null,null,null,null,null,null,null,"Bracket UNIT price","","","","",""]
[null,{"$f":"Inputs!$AA$68","v":"CAPEX Instalation costs"},{"$f":"C274+1","v":1},null,"NA","NA","NA","NA","NA",null,null,null,null,null,null,null,"CAPEX Instalation costs","","","","",""]
[null,{"$f":"Inputs!$Z$68","v":"Luminaire UNIT price"},{"$f":"C275+1","v":2},null,"NA","NA","NA","NA","NA",null,null,null,null,null,null,null,"Luminaire UNIT price","","","","",""]
[null,{"$f":"Inputs!$AA$68","v":"CAPEX Instalation costs"},3,null,"NA","NA","NA","NA","NA",null,null,null,null,null,null,null,"CAPEX Instalation costs","","","","",""]
[null,null,null,null,{"$f":"SUM(E266:E277)","v":82.016312980057137},{"$f":"SUM(F266:F277)","v":82.042107507607852},80.972132190243087,80.638114097846554,80.269957194124146,null,null,null,null,null,null,null,null,{"$f":"ROUND(E278/R$2*100,3)","v":22.408999999999999},{"$f":"ROUND(F278/S$2*100,3)","v":22.477},{"$f":"ROUND(G278/T$2*100,3)","v":22.184000000000001},{"$f":"ROUND(H278/U$2*100,3)","v":22.093},{"$f":"ROUND(I278/V$2*100,3)","v":21.931999999999999}]
[]
[{"$f":"A265+1","v":19},{"$f":"IFERROR(VLOOKUP($A280,Inputs!$B$68:$AN$129,MATCH($B$7,Inputs!$B$68:$AN$68,0),FALSE),\"Blank\")","v":"400W Sodium Vapour"},null,null,null,null,null,null,null,null,null,null,null,null,null,null,{"$f":"IFERROR(VLOOKUP($A280,Inputs!$B$68:$AN$129,MATCH($B$7,Inputs!$B$68:$AN$68,0),FALSE),\"Blank\")","v":"400W Sodium Vapour"}]
[null,{"$f":"Inputs!$S$68","v":"Lamp UNIT price Annualised Cost"},{"$f":"Inputs!$Q$68","v":"Lamp Maintenance cycle"},null,{"$f":"IF($B280=\"Blank\",0,VLOOKUP($B280,Inputs!$C$68:$AN$129,MATCH($B281,Inputs!$C$68:$AN$68,0),FALSE))","v":4.2464881915077495},{"$f":"IF($B280=\"Blank\",0,VLOOKUP($B280,Inputs!$C$68:$AN$129,MATCH($B281,Inputs!$C$68:$AN$68,0),FALSE))","v":4.2464881915077495},{"$f":"IF($B280=\"Blank\",0,VLOOKUP($B280,Inputs!$C$68:$AN$129,MATCH($B281,Inputs!$C$68:$AN$68,0),FALSE))","v":4.2464881915077495},{"$f":"IF($B280=\"Blank\",0,VLOOKUP($B280,Inputs!$C$68:$AN$129,MATCH($B281,Inputs!$C$68:$AN$68,0),FALSE))","v":4.2464881915077495},{"$f":"IF($B280=\"Blank\",0,VLOOKUP($B280,Inputs!$C$68:$AN$129,MATCH($B281,Inputs!$C$68:$AN$68,0),FALSE))","v":4.2464881915077495},null,null,null,null,null,null,null,{"$f":"B281","v":"Lamp UNIT price Annualised Cost"},{"$f":"IF(E281=\"NA\",\"\",E281/R$2*100)","v":1.1602426752753414},{"$f":"IF(F281=\"NA\",\"\",F281/S$2*100)","v":1.1634214223308903},{"$f":"IF(G281=\"NA\",\"\",G281/T$2*100)","v":1.1634214223308903},{"$f":"IF(H281=\"NA\",\"\",H281/U$2*100)","v":1.1634214223308903},{"$f":"IF(I281=\"NA\",\"\",I281/V$2*100)","v":1.1602426752753414}]
[null,{"$f":"Inputs!$K$68","v":"PE Cell UNIT price Annualised Cost"},{"$f":"Inputs!$I$68","v":"PE Cell Maintenance Cycle"},null,{"$f":"IF($B280=\"Blank\",0,VLOOKUP($B280,Inputs!$C$68:$AN$129,MATCH($B282,Inputs!$C$68:$AN$68,0),FALSE))","v":1.6930974392480003},{"$f":"IF($B280=\"Blank\",0,VLOOKUP($B280,Inputs!$C$68:$AN$129,MATCH($B282,Inputs!$C$68:$AN$68,0),FALSE))","v":1.6930974392480003},{"$f":"IF($B280=\"Blank\",0,VLOOKUP($B280,Inputs!$C$68:$AN$129,MATCH($B282,Inputs!$C$68:$AN$68,0),FALSE))","v":1.6930974392480003},{"$f":"IF($B280=\"Blank\",0,VLOOKUP($B280,Inputs!$C$68:$AN$129,MATCH($B282,Inputs!$C$68:$AN$68,0),FALSE))","v":1.6930974392480003},{"$f":"IF($B280=\"Blank\",0,VLOOKUP($B280,Inputs!$C$68:$AN$129,MATCH($B282,Inputs!$C$68:$AN$68,0),FALSE))","v":1.6930974392480003},null,null,null,null,null,null,null,"PE Cell UNIT price Annualised Cost",0.46259492875628422,0.46386231212273976,0.46386231212273976,0.46386231212273976,0.46259492875628422]
[null,"Corp capex annuity per light",null,null,{"$f":"IF($B280=\"Blank\",0,'Corp Capex Annuity calcs'!F$142)","v":18.582309905017571},{"$f":"IF($B280=\"Blank\",0,'Corp Capex Annuity calcs'!G$142)","v":18.552026408230436},{"$f":"IF($B280=\"Blank\",0,'Corp Capex Annuity calcs'!H$142)","v":18.401377631486287},{"$f":"IF($B280=\"Blank\",0,'Corp Capex Annuity calcs'!I$142)","v":18.205761940470655},{"$f":"IF($B280=\"Blank\",0,'Corp Capex Annuity calcs'!J$142)","v":17.995165449295623},null,null,null,null,null,null,null,"Corp capex annuity per light",5.0771338538299373,5.0827469611590237,5.0414733236948734,4.9878799836905907,4.9167118713922466]
[null,{"$f":"Inputs!$U$68","v":"Lamp Service costs Annualised"},"Labour Portion of Lamp Service costs annualised",null,{"$f":"IF($B280=\"Blank\",0,VLOOKUP($B280,Inputs!$C$68:$AN$129,MATCH($B284,Inputs!$C$68:$AN$68,0),FALSE))+IFERROR(IF($B280=\"Blank\",0,VLOOKUP($B280,Inputs!$C$68:$AN$129,MATCH($C284,Inputs!$C$68:$AN$68,0),FALSE))*('Master Data'!K$42),0)","v":34.921367162927247},{"$f":"IF($B280=\"Blank\",0,VLOOKUP($B280,Inputs!$C$68:$AN$129,MATCH($B284,Inputs!$C$68:$AN$68,0),FALSE))+IFERROR(IF($B280=\"Blank\",0,VLOOKUP($B280,Inputs!$C$68:$AN$129,MATCH($C284,Inputs!$C$68:$AN$68,0),FALSE))*('Master Data'!L$42),0)","v":34.926481274900404},{"$f":"IF($B280=\"Blank\",0,VLOOKUP($B280,Inputs!$C$68:$AN$129,MATCH($B284,Inputs!$C$68:$AN$68,0),FALSE))+IFERROR(IF($B280=\"Blank\",0,VLOOKUP($B280,Inputs!$C$68:$AN$129,MATCH($C284,Inputs!$C$68:$AN$68,0),FALSE))*('Master Data'!M$42),0)","v":34.934281518599292},{"$f":"IF($B280=\"Blank\",0,VLOOKUP($B280,Inputs!$C$68:$AN$129,MATCH($B284,Inputs!$C$68:$AN$68,0),FALSE))+IFERROR(IF($B280=\"Blank\",0,VLOOKUP($B280,Inputs!$C$68:$AN$129,MATCH($C284,Inputs!$C$68:$AN$68,0),FALSE))*('Master Data'!N$42),0)","v":34.943898216191549},{"$f":"IF($B280=\"Blank\",0,VLOOKUP($B280,Inputs!$C$68:$AN$129,MATCH($B284,Inputs!$C$68:$AN$68,0),FALSE))+IFERROR(IF($B280=\"Blank\",0,VLOOKUP($B280,Inputs!$C$68:$AN$129,MATCH($C284,Inputs!$C$68:$AN$68,0),FALSE))*('Master Data'!O$42),0)","v":34.955128506182135},null,null,null,null,null,null,null,"Lamp Service costs Annualised",9.5413571483407775,9.5688989794247679,9.5710360324929571,9.5736707441620688,9.5505815590661562]
[null,{"$f":"Inputs!$M$68","v":"PE Cell Service costs Annualised"},"Labour Portion of PE Cell Service costs Annualised",null,{"$f":"IF($B280=\"Blank\",0,VLOOKUP($B280,Inputs!$C$68:$AN$129,MATCH($B285,Inputs!$C$68:$AN$68,0),FALSE))+IFERROR(IF($B280=\"Blank\",0,VLOOKUP($B280,Inputs!$C$68:$AN$129,MATCH($C285,Inputs!$C$68:$AN$68,0),FALSE))*('Master Data'!K$42),0)","v":0},{"$f":"IF($B280=\"Blank\",0,VLOOKUP($B280,Inputs!$C$68:$AN$129,MATCH($B285,Inputs!$C$68:$AN$68,0),FALSE))+IFERROR(IF($B280=\"Blank\",0,VLOOKUP($B280,Inputs!$C$68:$AN$129,MATCH($C285,Inputs!$C$68:$AN$68,0),FALSE))*('Master Data'!L$42),0)","v":0},{"$f":"IF($B280=\"Blank\",0,VLOOKUP($B280,Inputs!$C$68:$AN$129,MATCH($B285,Inputs!$C$68:$AN$68,0),FALSE))+IFERROR(IF($B280=\"Blank\",0,VLOOKUP($B280,Inputs!$C$68:$AN$129,MATCH($C285,Inputs!$C$68:$AN$68,0),FALSE))*('Master Data'!M$42),0)","v":0},{"$f":"IF($B280=\"Blank\",0,VLOOKUP($B280,Inputs!$C$68:$AN$129,MATCH($B285,Inputs!$C$68:$AN$68,0),FALSE))+IFERROR(IF($B280=\"Blank\",0,VLOOKUP($B280,Inputs!$C$68:$AN$129,MATCH($C285,Inputs!$C$68:$AN$68,0),FALSE))*('Master Data'!N$42),0)","v":0},{"$f":"IF($B280=\"Blank\",0,VLOOKUP($B280,Inputs!$C$68:$AN$129,MATCH($B285,Inputs!$C$68:$AN$68,0),FALSE))+IFERROR(IF($B280=\"Blank\",0,VLOOKUP($B280,Inputs!$C$68:$AN$129,MATCH($C285,Inputs!$C$68:$AN$68,0),FALSE))*('Master Data'!O$42),0)","v":0},null,null,null,null,null,null,null,"PE Cell Service costs Annualised",0,0,0,0,0]
[null,"Indirect Opex",null,null,{"$f":"IF($B280=\"Blank\",0,IF($B$8=\"Private Contract Lighting\",'Opex Weighting'!D$48,'Opex Weighting'!D$46))","v":12.159436933476723},{"$f":"IF($B280=\"Blank\",0,IF($B$8=\"Private Contract Lighting\",'Opex Weighting'!E$48,'Opex Weighting'!E$46))","v":12.139620760396495},{"$f":"IF($B280=\"Blank\",0,IF($B$8=\"Private Contract Lighting\",'Opex Weighting'!F$48,'Opex Weighting'!F$46))","v":12.041042902784117},{"$f":"IF($B280=\"Blank\",0,IF($B$8=\"Private Contract Lighting\",'Opex Weighting'!G$48,'Opex Weighting'!G$46))","v":11.913040696908689},{"$f":"IF($B280=\"Blank\",0,IF($B$8=\"Private Contract Lighting\",'Opex Weighting'!H$48,'Opex Weighting'!H$46))","v":11.775235721857506},null,null,null,null,null,null,null,"Indirect Opex",3.3222505282723289,3.32592349599904,3.2989158637764708,3.2638467662763535,3.2172775196331984]
[null,"Indirect Capex",null,null,{"$f":"IF($B281=\"Blank\",0,IF($B$8=\"Private Contract Lighting\",'Capex Weighting'!D$60,'Capex Weighting'!D$62))","v":0},{"$f":"IF($B281=\"Blank\",0,IF($B$8=\"Private Contract Lighting\",'Capex Weighting'!E$60,'Capex Weighting'!E$62))","v":0},{"$f":"IF($B281=\"Blank\",0,IF($B$8=\"Private Contract Lighting\",'Capex Weighting'!F$60,'Capex Weighting'!F$62))","v":0},{"$f":"IF($B281=\"Blank\",0,IF($B$8=\"Private Contract Lighting\",'Capex Weighting'!G$60,'Capex Weighting'!G$62))","v":0},{"$f":"IF($B281=\"Blank\",0,IF($B$8=\"Private Contract Lighting\",'Capex Weighting'!H$60,'Capex Weighting'!H$62))","v":0},null,null,null,null,null,null,null,"Indirect Capex",0,0,0,0,0]
[null,"Opex Overheads Costs per light",null,null,{"$f":"IF($B280=\"Blank\",0,IF($B$8=\"Private Contract Lighting\",'Building Block'!C$40,'Building Block'!C$39))","v":10.567257211169151},{"$f":"IF($B280=\"Blank\",0,IF($B$8=\"Private Contract Lighting\",'Building Block'!D$40,'Building Block'!D$39))","v":10.638037296614067},{"$f":"IF($B280=\"Blank\",0,IF($B$8=\"Private Contract Lighting\",'Building Block'!E$40,'Building Block'!E$39))","v":9.8094883699069495},{"$f":"IF($B280=\"Blank\",0,IF($B$8=\"Private Contract Lighting\",'Building Block'!F$40,'Building Block'!F$39))","v":9.7894714768092079},{"$f":"IF($B280=\"Blank\",0,IF($B$8=\"Private Contract Lighting\",'Building Block'!G$40,'Building Block'!G$39))","v":9.7584857493224391},null,null,null,null,null,null,null,"Opex Overheads Costs per light",2.8872287462210795,2.914530766195635,2.6875310602484794,2.6820469799477284,2.6662529369733439]
[null,{"$f":"Inputs!$AK$68","v":"Bracket UNIT price"},0,null,"NA","NA","NA","NA","NA",null,null,null,null,null,null,null,"Bracket UNIT price","","","","",""]
[null,{"$f":"Inputs!$AA$68","v":"CAPEX Instalation costs"},{"$f":"C289+1","v":1},null,"NA","NA","NA","NA","NA",null,null,null,null,null,null,null,"CAPEX Instalation costs","","","","",""]
[null,{"$f":"Inputs!$Z$68","v":"Luminaire UNIT price"},{"$f":"C290+1","v":2},null,"NA","NA","NA","NA","NA",null,null,null,null,null,null,null,"Luminaire UNIT price","","","","",""]
[null,{"$f":"Inputs!$AA$68","v":"CAPEX Instalation costs"},3,null,"NA","NA","NA","NA","NA",null,null,null,null,null,null,null,"CAPEX Instalation costs","","","","",""]
[null,null,null,null,{"$f":"SUM(E281:E292)","v":82.169956843346441},{"$f":"SUM(F281:F292)","v":82.195751370897156},81.125776053532391,80.791757961135858,80.423601057413435,null,null,null,null,null,null,null,null,{"$f":"ROUND(E293/R$2*100,3)","v":22.451000000000001},{"$f":"ROUND(F293/S$2*100,3)","v":22.518999999999998},{"$f":"ROUND(G293/T$2*100,3)","v":22.225999999999999},{"$f":"ROUND(H293/U$2*100,3)","v":22.135000000000002},{"$f":"ROUND(I293/V$2*100,3)","v":21.974}]
[]
[{"$f":"A280+1","v":20},{"$f":"IFERROR(VLOOKUP($A295,Inputs!$B$68:$AN$129,MATCH($B$7,Inputs!$B$68:$AN$68,0),FALSE),\"Blank\")","v":"400W Sodium Vapour - Flood Light"},null,null,null,null,null,null,null,null,null,null,null,null,null,null,{"$f":"IFERROR(VLOOKUP($A295,Inputs!$B$68:$AN$129,MATCH($B$7,Inputs!$B$68:$AN$68,0),FALSE),\"Blank\")","v":"400W Sodium Vapour - Flood Light"}]
[null,{"$f":"Inputs!$S$68","v":"Lamp UNIT price Annualised Cost"},{"$f":"Inputs!$Q$68","v":"Lamp Maintenance cycle"},null,{"$f":"IF($B295=\"Blank\",0,VLOOKUP($B295,Inputs!$C$68:$AN$129,MATCH($B296,Inputs!$C$68:$AN$68,0),FALSE))","v":4.2464881915077495},{"$f":"IF($B295=\"Blank\",0,VLOOKUP($B295,Inputs!$C$68:$AN$129,MATCH($B296,Inputs!$C$68:$AN$68,0),FALSE))","v":4.2464881915077495},{"$f":"IF($B295=\"Blank\",0,VLOOKUP($B295,Inputs!$C$68:$AN$129,MATCH($B296,Inputs!$C$68:$AN$68,0),FALSE))","v":4.2464881915077495},{"$f":"IF($B295=\"Blank\",0,VLOOKUP($B295,Inputs!$C$68:$AN$129,MATCH($B296,Inputs!$C$68:$AN$68,0),FALSE))","v":4.2464881915077495},{"$f":"IF($B295=\"Blank\",0,VLOOKUP($B295,Inputs!$C$68:$AN$129,MATCH($B296,Inputs!$C$68:$AN$68,0),FALSE))","v":4.2464881915077495},null,null,null,null,null,null,null,{"$f":"B296","v":"Lamp UNIT price Annualised Cost"},{"$f":"IF(E296=\"NA\",\"\",E296/R$2*100)","v":1.1602426752753414},{"$f":"IF(F296=\"NA\",\"\",F296/S$2*100)","v":1.1634214223308903},{"$f":"IF(G296=\"NA\",\"\",G296/T$2*100)","v":1.1634214223308903},{"$f":"IF(H296=\"NA\",\"\",H296/U$2*100)","v":1.1634214223308903},{"$f":"IF(I296=\"NA\",\"\",I296/V$2*100)","v":1.1602426752753414}]
[null,{"$f":"Inputs!$K$68","v":"PE Cell UNIT price Annualised Cost"},{"$f":"Inputs!$I$68","v":"PE Cell Maintenance Cycle"},null,{"$f":"IF($B295=\"Blank\",0,VLOOKUP($B295,Inputs!$C$68:$AN$129,MATCH($B297,Inputs!$C$68:$AN$68,0),FALSE))","v":1.6930974392480003},{"$f":"IF($B295=\"Blank\",0,VLOOKUP($B295,Inputs!$C$68:$AN$129,MATCH($B297,Inputs!$C$68:$AN$68,0),FALSE))","v":1.6930974392480003},{"$f":"IF($B295=\"Blank\",0,VLOOKUP($B295,Inputs!$C$68:$AN$129,MATCH($B297,Inputs!$C$68:$AN$68,0),FALSE))","v":1.6930974392480003},{"$f":"IF($B295=\"Blank\",0,VLOOKUP($B295,Inputs!$C$68:$AN$129,MATCH($B297,Inputs!$C$68:$AN$68,0),FALSE))","v":1.6930974392480003},{"$f":"IF($B295=\"Blank\",0,VLOOKUP($B295,Inputs!$C$68:$AN$129,MATCH($B297,Inputs!$C$68:$AN$68,0),FALSE))","v":1.6930974392480003},null,null,null,null,null,null,null,"PE Cell UNIT price Annualised Cost",0.46259492875628422,0.46386231212273976,0.46386231212273976,0.46386231212273976,0.46259492875628422]
[null,"Corp capex annuity per light",null,null,{"$f":"IF($B295=\"Blank\",0,'Corp Capex Annuity calcs'!F$142)","v":18.582309905017571},{"$f":"IF($B295=\"Blank\",0,'Corp Capex Annuity calcs'!G$142)","v":18.552026408230436},{"$f":"IF($B295=\"Blank\",0,'Corp Capex Annuity calcs'!H$142)","v":18.401377631486287},{"$f":"IF($B295=\"Blank\",0,'Corp Capex Annuity calcs'!I$142)","v":18.205761940470655},{"$f":"IF($B295=\"Blank\",0,'Corp Capex Annuity calcs'!J$142)","v":17.995165449295623},null,null,null,null,null,null,null,"Corp capex annuity per light",5.0771338538299373,5.0827469611590237,5.0414733236948734,4.9878799836905907,4.9167118713922466]
[null,{"$f":"Inputs!$U$68","v":"Lamp Service costs Annualised"},"Labour Portion of Lamp Service costs annualised",null,{"$f":"IF($B295=\"Blank\",0,VLOOKUP($B295,Inputs!$C$68:$AN$129,MATCH($B299,Inputs!$C$68:$AN$68,0),FALSE))+IFERROR(IF($B295=\"Blank\",0,VLOOKUP($B295,Inputs!$C$68:$AN$129,MATCH($C299,Inputs!$C$68:$AN$68,0),FALSE))*('Master Data'!K$42),0)","v":34.921367162927247},{"$f":"IF($B295=\"Blank\",0,VLOOKUP($B295,Inputs!$C$68:$AN$129,MATCH($B299,Inputs!$C$68:$AN$68,0),FALSE))+IFERROR(IF($B295=\"Blank\",0,VLOOKUP($B295,Inputs!$C$68:$AN$129,MATCH($C299,Inputs!$C$68:$AN$68,0),FALSE))*('Master Data'!L$42),0)","v":34.926481274900404},{"$f":"IF($B295=\"Blank\",0,VLOOKUP($B295,Inputs!$C$68:$AN$129,MATCH($B299,Inputs!$C$68:$AN$68,0),FALSE))+IFERROR(IF($B295=\"Blank\",0,VLOOKUP($B295,Inputs!$C$68:$AN$129,MATCH($C299,Inputs!$C$68:$AN$68,0),FALSE))*('Master Data'!M$42),0)","v":34.934281518599292},{"$f":"IF($B295=\"Blank\",0,VLOOKUP($B295,Inputs!$C$68:$AN$129,MATCH($B299,Inputs!$C$68:$AN$68,0),FALSE))+IFERROR(IF($B295=\"Blank\",0,VLOOKUP($B295,Inputs!$C$68:$AN$129,MATCH($C299,Inputs!$C$68:$AN$68,0),FALSE))*('Master Data'!N$42),0)","v":34.943898216191549},{"$f":"IF($B295=\"Blank\",0,VLOOKUP($B295,Inputs!$C$68:$AN$129,MATCH($B299,Inputs!$C$68:$AN$68,0),FALSE))+IFERROR(IF($B295=\"Blank\",0,VLOOKUP($B295,Inputs!$C$68:$AN$129,MATCH($C299,Inputs!$C$68:$AN$68,0),FALSE))*('Master Data'!O$42),0)","v":34.955128506182135},null,null,null,null,null,null,null,"Lamp Service costs Annualised",9.5413571483407775,9.5688989794247679,9.5710360324929571,9.5736707441620688,9.5505815590661562]
[null,{"$f":"Inputs!$M$68","v":"PE Cell Service costs Annualised"},"Labour Portion of PE Cell Service costs Annualised",null,{"$f":"IF($B295=\"Blank\",0,VLOOKUP($B295,Inputs!$C$68:$AN$129,MATCH($B300,Inputs!$C$68:$AN$68,0),FALSE))+IFERROR(IF($B295=\"Blank\",0,VLOOKUP($B295,Inputs!$C$68:$AN$129,MATCH($C300,Inputs!$C$68:$AN$68,0),FALSE))*('Master Data'!K$42),0)","v":0},{"$f":"IF($B295=\"Blank\",0,VLOOKUP($B295,Inputs!$C$68:$AN$129,MATCH($B300,Inputs!$C$68:$AN$68,0),FALSE))+IFERROR(IF($B295=\"Blank\",0,VLOOKUP($B295,Inputs!$C$68:$AN$129,MATCH($C300,Inputs!$C$68:$AN$68,0),FALSE))*('Master Data'!L$42),0)","v":0},{"$f":"IF($B295=\"Blank\",0,VLOOKUP($B295,Inputs!$C$68:$AN$129,MATCH($B300,Inputs!$C$68:$AN$68,0),FALSE))+IFERROR(IF($B295=\"Blank\",0,VLOOKUP($B295,Inputs!$C$68:$AN$129,MATCH($C300,Inputs!$C$68:$AN$68,0),FALSE))*('Master Data'!M$42),0)","v":0},{"$f":"IF($B295=\"Blank\",0,VLOOKUP($B295,Inputs!$C$68:$AN$129,MATCH($B300,Inputs!$C$68:$AN$68,0),FALSE))+IFERROR(IF($B295=\"Blank\",0,VLOOKUP($B295,Inputs!$C$68:$AN$129,MATCH($C300,Inputs!$C$68:$AN$68,0),FALSE))*('Master Data'!N$42),0)","v":0},{"$f":"IF($B295=\"Blank\",0,VLOOKUP($B295,Inputs!$C$68:$AN$129,MATCH($B300,Inputs!$C$68:$AN$68,0),FALSE))+IFERROR(IF($B295=\"Blank\",0,VLOOKUP($B295,Inputs!$C$68:$AN$129,MATCH($C300,Inputs!$C$68:$AN$68,0),FALSE))*('Master Data'!O$42),0)","v":0},null,null,null,null,null,null,null,"PE Cell Service costs Annualised",0,0,0,0,0]
[null,"Indirect Opex",null,null,{"$f":"IF($B295=\"Blank\",0,IF($B$8=\"Private Contract Lighting\",'Opex Weighting'!D$48,'Opex Weighting'!D$46))","v":12.159436933476723},{"$f":"IF($B295=\"Blank\",0,IF($B$8=\"Private Contract Lighting\",'Opex Weighting'!E$48,'Opex Weighting'!E$46))","v":12.139620760396495},{"$f":"IF($B295=\"Blank\",0,IF($B$8=\"Private Contract Lighting\",'Opex Weighting'!F$48,'Opex Weighting'!F$46))","v":12.041042902784117},{"$f":"IF($B295=\"Blank\",0,IF($B$8=\"Private Contract Lighting\",'Opex Weighting'!G$48,'Opex Weighting'!G$46))","v":11.913040696908689},{"$f":"IF($B295=\"Blank\",0,IF($B$8=\"Private Contract Lighting\",'Opex Weighting'!H$48,'Opex Weighting'!H$46))","v":11.775235721857506},null,null,null,null,null,null,null,"Indirect Opex",3.3222505282723289,3.32592349599904,3.2989158637764708,3.2638467662763535,3.2172775196331984]
[null,"Indirect Capex",null,null,{"$f":"IF($B296=\"Blank\",0,IF($B$8=\"Private Contract Lighting\",'Capex Weighting'!D$60,'Capex Weighting'!D$62))","v":0},{"$f":"IF($B296=\"Blank\",0,IF($B$8=\"Private Contract Lighting\",'Capex Weighting'!E$60,'Capex Weighting'!E$62))","v":0},{"$f":"IF($B296=\"Blank\",0,IF($B$8=\"Private Contract Lighting\",'Capex Weighting'!F$60,'Capex Weighting'!F$62))","v":0},{"$f":"IF($B296=\"Blank\",0,IF($B$8=\"Private Contract Lighting\",'Capex Weighting'!G$60,'Capex Weighting'!G$62))","v":0},{"$f":"IF($B296=\"Blank\",0,IF($B$8=\"Private Contract Lighting\",'Capex Weighting'!H$60,'Capex Weighting'!H$62))","v":0},null,null,null,null,null,null,null,"Indirect Capex",0,0,0,0,0]
[null,"Opex Overheads Costs per light",null,null,{"$f":"IF($B295=\"Blank\",0,IF($B$8=\"Private Contract Lighting\",'Building Block'!C$40,'Building Block'!C$39))","v":10.567257211169151},{"$f":"IF($B295=\"Blank\",0,IF($B$8=\"Private Contract Lighting\",'Building Block'!D$40,'Building Block'!D$39))","v":10.638037296614067},{"$f":"IF($B295=\"Blank\",0,IF($B$8=\"Private Contract Lighting\",'Building Block'!E$40,'Building Block'!E$39))","v":9.8094883699069495},{"$f":"IF($B295=\"Blank\",0,IF($B$8=\"Private Contract Lighting\",'Building Block'!F$40,'Building Block'!F$39))","v":9.7894714768092079},{"$f":"IF($B295=\"Blank\",0,IF($B$8=\"Private Contract Lighting\",'Building Block'!G$40,'Building Block'!G$39))","v":9.7584857493224391},null,null,null,null,null,null,null,"Opex Overheads Costs per light",2.8872287462210795,2.914530766195635,2.6875310602484794,2.6820469799477284,2.6662529369733439]
[null,{"$f":"Inputs!$AK$68","v":"Bracket UNIT price"},0,null,"NA","NA","NA","NA","NA",null,null,null,null,null,null,null,"Bracket UNIT price","","","","",""]
[null,{"$f":"Inputs!$AA$68","v":"CAPEX Instalation costs"},{"$f":"C304+1","v":1},null,"NA","NA","NA","NA","NA",null,null,null,null,null,null,null,"CAPEX Instalation costs","","","","",""]
[null,{"$f":"Inputs!$Z$68","v":"Luminaire UNIT price"},{"$f":"C305+1","v":2},null,"NA","NA","NA","NA","NA",null,null,null,null,null,null,null,"Luminaire UNIT price","","","","",""]
[null,{"$f":"Inputs!$AA$68","v":"CAPEX Instalation costs"},3,null,"NA","NA","NA","NA","NA",null,null,null,null,null,null,null,"CAPEX Instalation costs","","","","",""]
[null,null,null,null,{"$f":"SUM(E296:E307)","v":82.169956843346441},{"$f":"SUM(F296:F307)","v":82.195751370897156},81.125776053532391,80.791757961135858,80.423601057413435,null,null,null,null,null,null,null,null,{"$f":"ROUND(E308/R$2*100,3)","v":22.451000000000001},{"$f":"ROUND(F308/S$2*100,3)","v":22.518999999999998},{"$f":"ROUND(G308/T$2*100,3)","v":22.225999999999999},{"$f":"ROUND(H308/U$2*100,3)","v":22.135000000000002},{"$f":"ROUND(I308/V$2*100,3)","v":21.974}]
[]
[{"$f":"A295+1","v":21},{"$f":"IFERROR(VLOOKUP($A310,Inputs!$B$68:$AN$129,MATCH($B$7,Inputs!$B$68:$AN$68,0),FALSE),\"Blank\")","v":"70W Sodium Vapour"},null,null,null,null,null,null,null,null,null,null,null,null,null,null,{"$f":"IFERROR(VLOOKUP($A310,Inputs!$B$68:$AN$129,MATCH($B$7,Inputs!$B$68:$AN$68,0),FALSE),\"Blank\")","v":"70W Sodium Vapour"}]
[null,{"$f":"Inputs!$S$68","v":"Lamp UNIT price Annualised Cost"},{"$f":"Inputs!$Q$68","v":"Lamp Maintenance cycle"},null,{"$f":"IF($B310=\"Blank\",0,VLOOKUP($B310,Inputs!$C$68:$AN$129,MATCH($B311,Inputs!$C$68:$AN$68,0),FALSE))","v":1.8209369368867503},{"$f":"IF($B310=\"Blank\",0,VLOOKUP($B310,Inputs!$C$68:$AN$129,MATCH($B311,Inputs!$C$68:$AN$68,0),FALSE))","v":1.8209369368867503},{"$f":"IF($B310=\"Blank\",0,VLOOKUP($B310,Inputs!$C$68:$AN$129,MATCH($B311,Inputs!$C$68:$AN$68,0),FALSE))","v":1.8209369368867503},{"$f":"IF($B310=\"Blank\",0,VLOOKUP($B310,Inputs!$C$68:$AN$129,MATCH($B311,Inputs!$C$68:$AN$68,0),FALSE))","v":1.8209369368867503},{"$f":"IF($B310=\"Blank\",0,VLOOKUP($B310,Inputs!$C$68:$AN$129,MATCH($B311,Inputs!$C$68:$AN$68,0),FALSE))","v":1.8209369368867503},null,null,null,null,null,null,null,{"$f":"B311","v":"Lamp UNIT price Annualised Cost"},{"$f":"IF(E311=\"NA\",\"\",E311/R$2*100)","v":0.497523753247746},{"$f":"IF(F311=\"NA\",\"\",F311/S$2*100)","v":0.49888683202376721},{"$f":"IF(G311=\"NA\",\"\",G311/T$2*100)","v":0.49888683202376721},{"$f":"IF(H311=\"NA\",\"\",H311/U$2*100)","v":0.49888683202376721},{"$f":"IF(I311=\"NA\",\"\",I311/V$2*100)","v":0.497523753247746}]
[null,{"$f":"Inputs!$K$68","v":"PE Cell UNIT price Annualised Cost"},{"$f":"Inputs!$I$68","v":"PE Cell Maintenance Cycle"},null,{"$f":"IF($B310=\"Blank\",0,VLOOKUP($B310,Inputs!$C$68:$AN$129,MATCH($B312,Inputs!$C$68:$AN$68,0),FALSE))","v":0.58131255188333353},{"$f":"IF($B310=\"Blank\",0,VLOOKUP($B310,Inputs!$C$68:$AN$129,MATCH($B312,Inputs!$C$68:$AN$68,0),FALSE))","v":0.58131255188333353},{"$f":"IF($B310=\"Blank\",0,VLOOKUP($B310,Inputs!$C$68:$AN$129,MATCH($B312,Inputs!$C$68:$AN$68,0),FALSE))","v":0.58131255188333353},{"$f":"IF($B310=\"Blank\",0,VLOOKUP($B310,Inputs!$C$68:$AN$129,MATCH($B312,Inputs!$C$68:$AN$68,0),FALSE))","v":0.58131255188333353},{"$f":"IF($B310=\"Blank\",0,VLOOKUP($B310,Inputs!$C$68:$AN$129,MATCH($B312,Inputs!$C$68:$AN$68,0),FALSE))","v":0.58131255188333353},null,null,null,null,null,null,null,"PE Cell UNIT price Annualised Cost",0.15882856608834248,0.15926371284474891,0.15926371284474891,0.15926371284474891,0.15882856608834248]
[null,"Corp capex annuity per light",null,null,{"$f":"IF($B310=\"Blank\",0,'Corp Capex Annuity calcs'!F$142)","v":18.582309905017571},{"$f":"IF($B310=\"Blank\",0,'Corp Capex Annuity calcs'!G$142)","v":18.552026408230436},{"$f":"IF($B310=\"Blank\",0,'Corp Capex Annuity calcs'!H$142)","v":18.401377631486287},{"$f":"IF($B310=\"Blank\",0,'Corp Capex Annuity calcs'!I$142)","v":18.205761940470655},{"$f":"IF($B310=\"Blank\",0,'Corp Capex Annuity calcs'!J$142)","v":17.995165449295623},null,null,null,null,null,null,null,"Corp capex annuity per light",5.0771338538299373,5.0827469611590237,5.0414733236948734,4.9878799836905907,4.9167118713922466]
[null,{"$f":"Inputs!$U$68","v":"Lamp Service costs Annualised"},"Labour Portion of Lamp Service costs annualised",null,{"$f":"IF($B310=\"Blank\",0,VLOOKUP($B310,Inputs!$C$68:$AN$129,MATCH($B314,Inputs!$C$68:$AN$68,0),FALSE))+IFERROR(IF($B310=\"Blank\",0,VLOOKUP($B310,Inputs!$C$68:$AN$129,MATCH($C314,Inputs!$C$68:$AN$68,0),FALSE))*('Master Data'!K$42),0)","v":24.127490039840644},{"$f":"IF($B310=\"Blank\",0,VLOOKUP($B310,Inputs!$C$68:$AN$129,MATCH($B314,Inputs!$C$68:$AN$68,0),FALSE))+IFERROR(IF($B310=\"Blank\",0,VLOOKUP($B310,Inputs!$C$68:$AN$129,MATCH($C314,Inputs!$C$68:$AN$68,0),FALSE))*('Master Data'!L$42),0)","v":24.131023426294828},{"$f":"IF($B310=\"Blank\",0,VLOOKUP($B310,Inputs!$C$68:$AN$129,MATCH($B314,Inputs!$C$68:$AN$68,0),FALSE))+IFERROR(IF($B310=\"Blank\",0,VLOOKUP($B310,Inputs!$C$68:$AN$129,MATCH($C314,Inputs!$C$68:$AN$68,0),FALSE))*('Master Data'!M$42),0)","v":24.136412685577696},{"$f":"IF($B310=\"Blank\",0,VLOOKUP($B310,Inputs!$C$68:$AN$129,MATCH($B314,Inputs!$C$68:$AN$68,0),FALSE))+IFERROR(IF($B310=\"Blank\",0,VLOOKUP($B310,Inputs!$C$68:$AN$129,MATCH($C314,Inputs!$C$68:$AN$68,0),FALSE))*('Master Data'!N$42),0)","v":24.143056949368709},{"$f":"IF($B310=\"Blank\",0,VLOOKUP($B310,Inputs!$C$68:$AN$129,MATCH($B314,Inputs!$C$68:$AN$68,0),FALSE))+IFERROR(IF($B310=\"Blank\",0,VLOOKUP($B310,Inputs!$C$68:$AN$129,MATCH($C314,Inputs!$C$68:$AN$68,0),FALSE))*('Master Data'!O$42),0)","v":24.150816058816748},null,null,null,null,null,null,null,"Lamp Service costs Annualised",6.5922103933990828,6.611239294875296,6.6127158042678618,6.6145361505119755,6.598583622627527]
[null,{"$f":"Inputs!$M$68","v":"PE Cell Service costs Annualised"},"Labour Portion of PE Cell Service costs Annualised",null,{"$f":"IF($B310=\"Blank\",0,VLOOKUP($B310,Inputs!$C$68:$AN$129,MATCH($B315,Inputs!$C$68:$AN$68,0),FALSE))+IFERROR(IF($B310=\"Blank\",0,VLOOKUP($B310,Inputs!$C$68:$AN$129,MATCH($C315,Inputs!$C$68:$AN$68,0),FALSE))*('Master Data'!K$42),0)","v":0},{"$f":"IF($B310=\"Blank\",0,VLOOKUP($B310,Inputs!$C$68:$AN$129,MATCH($B315,Inputs!$C$68:$AN$68,0),FALSE))+IFERROR(IF($B310=\"Blank\",0,VLOOKUP($B310,Inputs!$C$68:$AN$129,MATCH($C315,Inputs!$C$68:$AN$68,0),FALSE))*('Master Data'!L$42),0)","v":0},{"$f":"IF($B310=\"Blank\",0,VLOOKUP($B310,Inputs!$C$68:$AN$129,MATCH($B315,Inputs!$C$68:$AN$68,0),FALSE))+IFERROR(IF($B310=\"Blank\",0,VLOOKUP($B310,Inputs!$C$68:$AN$129,MATCH($C315,Inputs!$C$68:$AN$68,0),FALSE))*('Master Data'!M$42),0)","v":0},{"$f":"IF($B310=\"Blank\",0,VLOOKUP($B310,Inputs!$C$68:$AN$129,MATCH($B315,Inputs!$C$68:$AN$68,0),FALSE))+IFERROR(IF($B310=\"Blank\",0,VLOOKUP($B310,Inputs!$C$68:$AN$129,MATCH($C315,Inputs!$C$68:$AN$68,0),FALSE))*('Master Data'!N$42),0)","v":0},{"$f":"IF($B310=\"Blank\",0,VLOOKUP($B310,Inputs!$C$68:$AN$129,MATCH($B315,Inputs!$C$68:$AN$68,0),FALSE))+IFERROR(IF($B310=\"Blank\",0,VLOOKUP($B310,Inputs!$C$68:$AN$129,MATCH($C315,Inputs!$C$68:$AN$68,0),FALSE))*('Master Data'!O$42),0)","v":0},null,null,null,null,null,null,null,"PE Cell Service costs Annualised",0,0,0,0,0]
[null,"Indirect Opex",null,null,{"$f":"IF($B310=\"Blank\",0,IF($B$8=\"Private Contract Lighting\",'Opex Weighting'!D$48,'Opex Weighting'!D$46))","v":12.159436933476723},{"$f":"IF($B310=\"Blank\",0,IF($B$8=\"Private Contract Lighting\",'Opex Weighting'!E$48,'Opex Weighting'!E$46))","v":12.139620760396495},{"$f":"IF($B310=\"Blank\",0,IF($B$8=\"Private Contract Lighting\",'Opex Weighting'!F$48,'Opex Weighting'!F$46))","v":12.041042902784117},{"$f":"IF($B310=\"Blank\",0,IF($B$8=\"Private Contract Lighting\",'Opex Weighting'!G$48,'Opex Weighting'!G$46))","v":11.913040696908689},{"$f":"IF($B310=\"Blank\",0,IF($B$8=\"Private Contract Lighting\",'Opex Weighting'!H$48,'Opex Weighting'!H$46))","v":11.775235721857506},null,null,null,null,null,null,null,"Indirect Opex",3.3222505282723289,3.32592349599904,3.2989158637764708,3.2638467662763535,3.2172775196331984]
[null,"Indirect Capex",null,null,{"$f":"IF($B311=\"Blank\",0,IF($B$8=\"Private Contract Lighting\",'Capex Weighting'!D$60,'Capex Weighting'!D$62))","v":0},{"$f":"IF($B311=\"Blank\",0,IF($B$8=\"Private Contract Lighting\",'Capex Weighting'!E$60,'Capex Weighting'!E$62))","v":0},{"$f":"IF($B311=\"Blank\",0,IF($B$8=\"Private Contract Lighting\",'Capex Weighting'!F$60,'Capex Weighting'!F$62))","v":0},{"$f":"IF($B311=\"Blank\",0,IF($B$8=\"Private Contract Lighting\",'Capex Weighting'!G$60,'Capex Weighting'!G$62))","v":0},{"$f":"IF($B311=\"Blank\",0,IF($B$8=\"Private Contract Lighting\",'Capex Weighting'!H$60,'Capex Weighting'!H$62))","v":0},null,null,null,null,null,null,null,"Indirect Capex",0,0,0,0,0]
[null,"Opex Overheads Costs per light",null,null,{"$f":"IF($B310=\"Blank\",0,IF($B$8=\"Private Contract Lighting\",'Building Block'!C$40,'Building Block'!C$39))","v":10.567257211169151},{"$f":"IF($B310=\"Blank\",0,IF($B$8=\"Private Contract Lighting\",'Building Block'!D$40,'Building Block'!D$39))","v":10.638037296614067},{"$f":"IF($B310=\"Blank\",0,IF($B$8=\"Private Contract Lighting\",'Building Block'!E$40,'Building Block'!E$39))","v":9.8094883699069495},{"$f":"IF($B310=\"Blank\",0,IF($B$8=\"Private Contract Lighting\",'Building Block'!F$40,'Building Block'!F$39))","v":9.7894714768092079},{"$f":"IF($B310=\"Blank\",0,IF($B$8=\"Private Contract Lighting\",'Building Block'!G$40,'Building Block'!G$39))","v":9.7584857493224391},null,null,null,null,null,null,null,"Opex Overheads Costs per light",2.8872287462210795,2.914530766195635,2.6875310602484794,2.6820469799477284,2.6662529369733439]
[null,{"$f":"Inputs!$AK$68","v":"Bracket UNIT price"},0,null,"NA","NA","NA","NA","NA",null,null,null,null,null,null,null,"Bracket UNIT price","","","","",""]
[null,{"$f":"Inputs!$AA$68","v":"CAPEX Instalation costs"},{"$f":"C319+1","v":1},null,"NA","NA","NA","NA","NA",null,null,null,null,null,null,null,"CAPEX Instalation costs","","","","",""]
[null,{"$f":"Inputs!$Z$68","v":"Luminaire UNIT price"},{"$f":"C320+1","v":2},null,"NA","NA","NA","NA","NA",null,null,null,null,null,null,null,"Luminaire UNIT price","","","","",""]
[null,{"$f":"Inputs!$AA$68","v":"CAPEX Instalation costs"},3,null,"NA","NA","NA","NA","NA",null,null,null,null,null,null,null,"CAPEX Instalation costs","","","","",""]
[null,null,null,null,{"$f":"SUM(E311:E322)","v":67.838743578274176},{"$f":"SUM(F311:F322)","v":67.862957380305915},66.790571078525133,66.453580552327338,66.081952468062397,null,null,null,null,null,null,null,null,{"$f":"ROUND(E323/R$2*100,3)","v":18.535},{"$f":"ROUND(F323/S$2*100,3)","v":18.593},{"$f":"ROUND(G323/T$2*100,3)","v":18.298999999999999},{"$f":"ROUND(H323/U$2*100,3)","v":18.206},{"$f":"ROUND(I323/V$2*100,3)","v":18.055}]
[]
[{"$f":"A310+1","v":22},{"$f":"IFERROR(VLOOKUP($A325,Inputs!$B$68:$AN$129,MATCH($B$7,Inputs!$B$68:$AN$68,0),FALSE),\"Blank\")","v":"100W Incandescent"},null,null,null,null,null,null,null,null,null,null,null,null,null,null,{"$f":"IFERROR(VLOOKUP($A325,Inputs!$B$68:$AN$129,MATCH($B$7,Inputs!$B$68:$AN$68,0),FALSE),\"Blank\")","v":"100W Incandescent"}]
[null,{"$f":"Inputs!$S$68","v":"Lamp UNIT price Annualised Cost"},{"$f":"Inputs!$Q$68","v":"Lamp Maintenance cycle"},null,{"$f":"IF($B325=\"Blank\",0,VLOOKUP($B325,Inputs!$C$68:$AN$129,MATCH($B326,Inputs!$C$68:$AN$68,0),FALSE))","v":0.43083411294890273},{"$f":"IF($B325=\"Blank\",0,VLOOKUP($B325,Inputs!$C$68:$AN$129,MATCH($B326,Inputs!$C$68:$AN$68,0),FALSE))","v":0.43083411294890273},{"$f":"IF($B325=\"Blank\",0,VLOOKUP($B325,Inputs!$C$68:$AN$129,MATCH($B326,Inputs!$C$68:$AN$68,0),FALSE))","v":0.43083411294890273},{"$f":"IF($B325=\"Blank\",0,VLOOKUP($B325,Inputs!$C$68:$AN$129,MATCH($B326,Inputs!$C$68:$AN$68,0),FALSE))","v":0.43083411294890273},{"$f":"IF($B325=\"Blank\",0,VLOOKUP($B325,Inputs!$C$68:$AN$129,MATCH($B326,Inputs!$C$68:$AN$68,0),FALSE))","v":0.43083411294890273},null,null,null,null,null,null,null,{"$f":"B326","v":"Lamp UNIT price Annualised Cost"},{"$f":"IF(E326=\"NA\",\"\",E326/R$2*100)","v":0.11771423851062916},{"$f":"IF(F326=\"NA\",\"\",F326/S$2*100)","v":0.11803674327367199},{"$f":"IF(G326=\"NA\",\"\",G326/T$2*100)","v":0.11803674327367199},{"$f":"IF(H326=\"NA\",\"\",H326/U$2*100)","v":0.11803674327367199},{"$f":"IF(I326=\"NA\",\"\",I326/V$2*100)","v":0.11771423851062916}]
[null,{"$f":"Inputs!$K$68","v":"PE Cell UNIT price Annualised Cost"},{"$f":"Inputs!$I$68","v":"PE Cell Maintenance Cycle"},null,{"$f":"IF($B325=\"Blank\",0,VLOOKUP($B325,Inputs!$C$68:$AN$129,MATCH($B327,Inputs!$C$68:$AN$68,0),FALSE))","v":1.6930974392480003},{"$f":"IF($B325=\"Blank\",0,VLOOKUP($B325,Inputs!$C$68:$AN$129,MATCH($B327,Inputs!$C$68:$AN$68,0),FALSE))","v":1.6930974392480003},{"$f":"IF($B325=\"Blank\",0,VLOOKUP($B325,Inputs!$C$68:$AN$129,MATCH($B327,Inputs!$C$68:$AN$68,0),FALSE))","v":1.6930974392480003},{"$f":"IF($B325=\"Blank\",0,VLOOKUP($B325,Inputs!$C$68:$AN$129,MATCH($B327,Inputs!$C$68:$AN$68,0),FALSE))","v":1.6930974392480003},{"$f":"IF($B325=\"Blank\",0,VLOOKUP($B325,Inputs!$C$68:$AN$129,MATCH($B327,Inputs!$C$68:$AN$68,0),FALSE))","v":1.6930974392480003},null,null,null,null,null,null,null,"PE Cell UNIT price Annualised Cost",0.46259492875628422,0.46386231212273976,0.46386231212273976,0.46386231212273976,0.46259492875628422]
[null,"Corp capex annuity per light",null,null,{"$f":"IF($B325=\"Blank\",0,'Corp Capex Annuity calcs'!F$142)","v":18.582309905017571},{"$f":"IF($B325=\"Blank\",0,'Corp Capex Annuity calcs'!G$142)","v":18.552026408230436},{"$f":"IF($B325=\"Blank\",0,'Corp Capex Annuity calcs'!H$142)","v":18.401377631486287},{"$f":"IF($B325=\"Blank\",0,'Corp Capex Annuity calcs'!I$142)","v":18.205761940470655},{"$f":"IF($B325=\"Blank\",0,'Corp Capex Annuity calcs'!J$142)","v":17.995165449295623},null,null,null,null,null,null,null,"Corp capex annuity per light",5.0771338538299373,5.0827469611590237,5.0414733236948734,4.9878799836905907,4.9167118713922466]
[null,{"$f":"Inputs!$U$68","v":"Lamp Service costs Annualised"},"Labour Portion of Lamp Service costs annualised",null,{"$f":"IF($B325=\"Blank\",0,VLOOKUP($B325,Inputs!$C$68:$AN$129,MATCH($B329,Inputs!$C$68:$AN$68,0),FALSE))+IFERROR(IF($B325=\"Blank\",0,VLOOKUP($B325,Inputs!$C$68:$AN$129,MATCH($C329,Inputs!$C$68:$AN$68,0),FALSE))*('Master Data'!K$42),0)","v":34.921367162927247},{"$f":"IF($B325=\"Blank\",0,VLOOKUP($B325,Inputs!$C$68:$AN$129,MATCH($B329,Inputs!$C$68:$AN$68,0),FALSE))+IFERROR(IF($B325=\"Blank\",0,VLOOKUP($B325,Inputs!$C$68:$AN$129,MATCH($C329,Inputs!$C$68:$AN$68,0),FALSE))*('Master Data'!L$42),0)","v":34.926481274900404},{"$f":"IF($B325=\"Blank\",0,VLOOKUP($B325,Inputs!$C$68:$AN$129,MATCH($B329,Inputs!$C$68:$AN$68,0),FALSE))+IFERROR(IF($B325=\"Blank\",0,VLOOKUP($B325,Inputs!$C$68:$AN$129,MATCH($C329,Inputs!$C$68:$AN$68,0),FALSE))*('Master Data'!M$42),0)","v":34.934281518599292},{"$f":"IF($B325=\"Blank\",0,VLOOKUP($B325,Inputs!$C$68:$AN$129,MATCH($B329,Inputs!$C$68:$AN$68,0),FALSE))+IFERROR(IF($B325=\"Blank\",0,VLOOKUP($B325,Inputs!$C$68:$AN$129,MATCH($C329,Inputs!$C$68:$AN$68,0),FALSE))*('Master Data'!N$42),0)","v":34.943898216191549},{"$f":"IF($B325=\"Blank\",0,VLOOKUP($B325,Inputs!$C$68:$AN$129,MATCH($B329,Inputs!$C$68:$AN$68,0),FALSE))+IFERROR(IF($B325=\"Blank\",0,VLOOKUP($B325,Inputs!$C$68:$AN$129,MATCH($C329,Inputs!$C$68:$AN$68,0),FALSE))*('Master Data'!O$42),0)","v":34.955128506182135},null,null,null,null,null,null,null,"Lamp Service costs Annualised",9.5413571483407775,9.5688989794247679,9.5710360324929571,9.5736707441620688,9.5505815590661562]
[null,{"$f":"Inputs!$M$68","v":"PE Cell Service costs Annualised"},"Labour Portion of PE Cell Service costs Annualised",null,{"$f":"IF($B325=\"Blank\",0,VLOOKUP($B325,Inputs!$C$68:$AN$129,MATCH($B330,Inputs!$C$68:$AN$68,0),FALSE))+IFERROR(IF($B325=\"Blank\",0,VLOOKUP($B325,Inputs!$C$68:$AN$129,MATCH($C330,Inputs!$C$68:$AN$68,0),FALSE))*('Master Data'!K$42),0)","v":0},{"$f":"IF($B325=\"Blank\",0,VLOOKUP($B325,Inputs!$C$68:$AN$129,MATCH($B330,Inputs!$C$68:$AN$68,0),FALSE))+IFERROR(IF($B325=\"Blank\",0,VLOOKUP($B325,Inputs!$C$68:$AN$129,MATCH($C330,Inputs!$C$68:$AN$68,0),FALSE))*('Master Data'!L$42),0)","v":0},{"$f":"IF($B325=\"Blank\",0,VLOOKUP($B325,Inputs!$C$68:$AN$129,MATCH($B330,Inputs!$C$68:$AN$68,0),FALSE))+IFERROR(IF($B325=\"Blank\",0,VLOOKUP($B325,Inputs!$C$68:$AN$129,MATCH($C330,Inputs!$C$68:$AN$68,0),FALSE))*('Master Data'!M$42),0)","v":0},{"$f":"IF($B325=\"Blank\",0,VLOOKUP($B325,Inputs!$C$68:$AN$129,MATCH($B330,Inputs!$C$68:$AN$68,0),FALSE))+IFERROR(IF($B325=\"Blank\",0,VLOOKUP($B325,Inputs!$C$68:$AN$129,MATCH($C330,Inputs!$C$68:$AN$68,0),FALSE))*('Master Data'!N$42),0)","v":0},{"$f":"IF($B325=\"Blank\",0,VLOOKUP($B325,Inputs!$C$68:$AN$129,MATCH($B330,Inputs!$C$68:$AN$68,0),FALSE))+IFERROR(IF($B325=\"Blank\",0,VLOOKUP($B325,Inputs!$C$68:$AN$129,MATCH($C330,Inputs!$C$68:$AN$68,0),FALSE))*('Master Data'!O$42),0)","v":0},null,null,null,null,null,null,null,"PE Cell Service costs Annualised",0,0,0,0,0]
[null,"Indirect Opex",null,null,{"$f":"IF($B325=\"Blank\",0,IF($B$8=\"Private Contract Lighting\",'Opex Weighting'!D$48,'Opex Weighting'!D$46))","v":12.159436933476723},{"$f":"IF($B325=\"Blank\",0,IF($B$8=\"Private Contract Lighting\",'Opex Weighting'!E$48,'Opex Weighting'!E$46))","v":12.139620760396495},{"$f":"IF($B325=\"Blank\",0,IF($B$8=\"Private Contract Lighting\",'Opex Weighting'!F$48,'Opex Weighting'!F$46))","v":12.041042902784117},{"$f":"IF($B325=\"Blank\",0,IF($B$8=\"Private Contract Lighting\",'Opex Weighting'!G$48,'Opex Weighting'!G$46))","v":11.913040696908689},{"$f":"IF($B325=\"Blank\",0,IF($B$8=\"Private Contract Lighting\",'Opex Weighting'!H$48,'Opex Weighting'!H$46))","v":11.775235721857506},null,null,null,null,null,null,null,"Indirect Opex",3.3222505282723289,3.32592349599904,3.2989158637764708,3.2638467662763535,3.2172775196331984]
[null,"Indirect Capex",null,null,{"$f":"IF($B326=\"Blank\",0,IF($B$8=\"Private Contract Lighting\",'Capex Weighting'!D$60,'Capex Weighting'!D$62))","v":0},{"$f":"IF($B326=\"Blank\",0,IF($B$8=\"Private Contract Lighting\",'Capex Weighting'!E$60,'Capex Weighting'!E$62))","v":0},{"$f":"IF($B326=\"Blank\",0,IF($B$8=\"Private Contract Lighting\",'Capex Weighting'!F$60,'Capex Weighting'!F$62))","v":0},{"$f":"IF($B326=\"Blank\",0,IF($B$8=\"Private Contract Lighting\",'Capex Weighting'!G$60,'Capex Weighting'!G$62))","v":0},{"$f":"IF($B326=\"Blank\",0,IF($B$8=\"Private Contract Lighting\",'Capex Weighting'!H$60,'Capex Weighting'!H$62))","v":0},null,null,null,null,null,null,null,"Indirect Capex",0,0,0,0,0]
[null,"Opex Overheads Costs per light",null,null,{"$f":"IF($B325=\"Blank\",0,IF($B$8=\"Private Contract Lighting\",'Building Block'!C$40,'Building Block'!C$39))","v":10.567257211169151},{"$f":"IF($B325=\"Blank\",0,IF($B$8=\"Private Contract Lighting\",'Building Block'!D$40,'Building Block'!D$39))","v":10.638037296614067},{"$f":"IF($B325=\"Blank\",0,IF($B$8=\"Private Contract Lighting\",'Building Block'!E$40,'Building Block'!E$39))","v":9.8094883699069495},{"$f":"IF($B325=\"Blank\",0,IF($B$8=\"Private Contract Lighting\",'Building Block'!F$40,'Building Block'!F$39))","v":9.7894714768092079},{"$f":"IF($B325=\"Blank\",0,IF($B$8=\"Private Contract Lighting\",'Building Block'!G$40,'Building Block'!G$39))","v":9.7584857493224391},null,null,null,null,null,null,null,"Opex Overheads Costs per light",2.8872287462210795,2.914530766195635,2.6875310602484794,2.6820469799477284,2.6662529369733439]
[null,{"$f":"Inputs!$AK$68","v":"Bracket UNIT price"},0,null,"NA","NA","NA","NA","NA",null,null,null,null,null,null,null,"Bracket UNIT price","","","","",""]
[null,{"$f":"Inputs!$AA$68","v":"CAPEX Instalation costs"},{"$f":"C334+1","v":1},null,"NA","NA","NA","NA","NA",null,null,null,null,null,null,null,"CAPEX Instalation costs","","","","",""]
[null,{"$f":"Inputs!$Z$68","v":"Luminaire UNIT price"},{"$f":"C335+1","v":2},null,"NA","NA","NA","NA","NA",null,null,null,null,null,null,null,"Luminaire UNIT price","","","","",""]
[null,{"$f":"Inputs!$AA$68","v":"CAPEX Instalation costs"},3,null,"NA","NA","NA","NA","NA",null,null,null,null,null,null,null,"CAPEX Instalation costs","","","","",""]
[null,null,null,null,{"$f":"SUM(E326:E337)","v":78.35430276478759},{"$f":"SUM(F326:F337)","v":78.380097292338306},77.310121974973541,76.976103882577007,76.607946978854613,null,null,null,null,null,null,null,null,{"$f":"ROUND(E338/R$2*100,3)","v":21.408000000000001},{"$f":"ROUND(F338/S$2*100,3)","v":21.474},{"$f":"ROUND(G338/T$2*100,3)","v":21.181000000000001},{"$f":"ROUND(H338/U$2*100,3)","v":21.088999999999999},{"$f":"ROUND(I338/V$2*100,3)","v":20.931000000000001}]
[]
[{"$f":"A325+1","v":23},{"$f":"IFERROR(VLOOKUP($A340,Inputs!$B$68:$AN$129,MATCH($B$7,Inputs!$B$68:$AN$68,0),FALSE),\"Blank\")","v":"60W Incandescent"},null,null,null,null,null,null,null,null,null,null,null,null,null,null,{"$f":"IFERROR(VLOOKUP($A340,Inputs!$B$68:$AN$129,MATCH($B$7,Inputs!$B$68:$AN$68,0),FALSE),\"Blank\")","v":"60W Incandescent"}]
[null,{"$f":"Inputs!$S$68","v":"Lamp UNIT price Annualised Cost"},{"$f":"Inputs!$Q$68","v":"Lamp Maintenance cycle"},null,{"$f":"IF($B340=\"Blank\",0,VLOOKUP($B340,Inputs!$C$68:$AN$129,MATCH($B341,Inputs!$C$68:$AN$68,0),FALSE))","v":0.43083411294890273},{"$f":"IF($B340=\"Blank\",0,VLOOKUP($B340,Inputs!$C$68:$AN$129,MATCH($B341,Inputs!$C$68:$AN$68,0),FALSE))","v":0.43083411294890273},{"$f":"IF($B340=\"Blank\",0,VLOOKUP($B340,Inputs!$C$68:$AN$129,MATCH($B341,Inputs!$C$68:$AN$68,0),FALSE))","v":0.43083411294890273},{"$f":"IF($B340=\"Blank\",0,VLOOKUP($B340,Inputs!$C$68:$AN$129,MATCH($B341,Inputs!$C$68:$AN$68,0),FALSE))","v":0.43083411294890273},{"$f":"IF($B340=\"Blank\",0,VLOOKUP($B340,Inputs!$C$68:$AN$129,MATCH($B341,Inputs!$C$68:$AN$68,0),FALSE))","v":0.43083411294890273},null,null,null,null,null,null,null,{"$f":"B341","v":"Lamp UNIT price Annualised Cost"},{"$f":"IF(E341=\"NA\",\"\",E341/R$2*100)","v":0.11771423851062916},{"$f":"IF(F341=\"NA\",\"\",F341/S$2*100)","v":0.11803674327367199},{"$f":"IF(G341=\"NA\",\"\",G341/T$2*100)","v":0.11803674327367199},{"$f":"IF(H341=\"NA\",\"\",H341/U$2*100)","v":0.11803674327367199},{"$f":"IF(I341=\"NA\",\"\",I341/V$2*100)","v":0.11771423851062916}]
[null,{"$f":"Inputs!$K$68","v":"PE Cell UNIT price Annualised Cost"},{"$f":"Inputs!$I$68","v":"PE Cell Maintenance Cycle"},null,{"$f":"IF($B340=\"Blank\",0,VLOOKUP($B340,Inputs!$C$68:$AN$129,MATCH($B342,Inputs!$C$68:$AN$68,0),FALSE))","v":0.58131255188333353},{"$f":"IF($B340=\"Blank\",0,VLOOKUP($B340,Inputs!$C$68:$AN$129,MATCH($B342,Inputs!$C$68:$AN$68,0),FALSE))","v":0.58131255188333353},{"$f":"IF($B340=\"Blank\",0,VLOOKUP($B340,Inputs!$C$68:$AN$129,MATCH($B342,Inputs!$C$68:$AN$68,0),FALSE))","v":0.58131255188333353},{"$f":"IF($B340=\"Blank\",0,VLOOKUP($B340,Inputs!$C$68:$AN$129,MATCH($B342,Inputs!$C$68:$AN$68,0),FALSE))","v":0.58131255188333353},{"$f":"IF($B340=\"Blank\",0,VLOOKUP($B340,Inputs!$C$68:$AN$129,MATCH($B342,Inputs!$C$68:$AN$68,0),FALSE))","v":0.58131255188333353},null,null,null,null,null,null,null,"PE Cell UNIT price Annualised Cost",0.15882856608834248,0.15926371284474891,0.15926371284474891,0.15926371284474891,0.15882856608834248]
[null,"Corp capex annuity per light",null,null,{"$f":"IF($B340=\"Blank\",0,'Corp Capex Annuity calcs'!F$142)","v":18.582309905017571},{"$f":"IF($B340=\"Blank\",0,'Corp Capex Annuity calcs'!G$142)","v":18.552026408230436},{"$f":"IF($B340=\"Blank\",0,'Corp Capex Annuity calcs'!H$142)","v":18.401377631486287},{"$f":"IF($B340=\"Blank\",0,'Corp Capex Annuity calcs'!I$142)","v":18.205761940470655},{"$f":"IF($B340=\"Blank\",0,'Corp Capex Annuity calcs'!J$142)","v":17.995165449295623},null,null,null,null,null,null,null,"Corp capex annuity per light",5.0771338538299373,5.0827469611590237,5.0414733236948734,4.9878799836905907,4.9167118713922466]
[null,{"$f":"Inputs!$U$68","v":"Lamp Service costs Annualised"},"Labour Portion of Lamp Service costs annualised",null,{"$f":"IF($B340=\"Blank\",0,VLOOKUP($B340,Inputs!$C$68:$AN$129,MATCH($B344,Inputs!$C$68:$AN$68,0),FALSE))+IFERROR(IF($B340=\"Blank\",0,VLOOKUP($B340,Inputs!$C$68:$AN$129,MATCH($C344,Inputs!$C$68:$AN$68,0),FALSE))*('Master Data'!K$42),0)","v":24.127490039840644},{"$f":"IF($B340=\"Blank\",0,VLOOKUP($B340,Inputs!$C$68:$AN$129,MATCH($B344,Inputs!$C$68:$AN$68,0),FALSE))+IFERROR(IF($B340=\"Blank\",0,VLOOKUP($B340,Inputs!$C$68:$AN$129,MATCH($C344,Inputs!$C$68:$AN$68,0),FALSE))*('Master Data'!L$42),0)","v":24.131023426294828},{"$f":"IF($B340=\"Blank\",0,VLOOKUP($B340,Inputs!$C$68:$AN$129,MATCH($B344,Inputs!$C$68:$AN$68,0),FALSE))+IFERROR(IF($B340=\"Blank\",0,VLOOKUP($B340,Inputs!$C$68:$AN$129,MATCH($C344,Inputs!$C$68:$AN$68,0),FALSE))*('Master Data'!M$42),0)","v":24.136412685577696},{"$f":"IF($B340=\"Blank\",0,VLOOKUP($B340,Inputs!$C$68:$AN$129,MATCH($B344,Inputs!$C$68:$AN$68,0),FALSE))+IFERROR(IF($B340=\"Blank\",0,VLOOKUP($B340,Inputs!$C$68:$AN$129,MATCH($C344,Inputs!$C$68:$AN$68,0),FALSE))*('Master Data'!N$42),0)","v":24.143056949368709},{"$f":"IF($B340=\"Blank\",0,VLOOKUP($B340,Inputs!$C$68:$AN$129,MATCH($B344,Inputs!$C$68:$AN$68,0),FALSE))+IFERROR(IF($B340=\"Blank\",0,VLOOKUP($B340,Inputs!$C$68:$AN$129,MATCH($C344,Inputs!$C$68:$AN$68,0),FALSE))*('Master Data'!O$42),0)","v":24.150816058816748},null,null,null,null,null,null,null,"Lamp Service costs Annualised",6.5922103933990828,6.611239294875296,6.6127158042678618,6.6145361505119755,6.598583622627527]
[null,{"$f":"Inputs!$M$68","v":"PE Cell Service costs Annualised"},"Labour Portion of PE Cell Service costs Annualised",null,{"$f":"IF($B340=\"Blank\",0,VLOOKUP($B340,Inputs!$C$68:$AN$129,MATCH($B345,Inputs!$C$68:$AN$68,0),FALSE))+IFERROR(IF($B340=\"Blank\",0,VLOOKUP($B340,Inputs!$C$68:$AN$129,MATCH($C345,Inputs!$C$68:$AN$68,0),FALSE))*('Master Data'!K$42),0)","v":0},{"$f":"IF($B340=\"Blank\",0,VLOOKUP($B340,Inputs!$C$68:$AN$129,MATCH($B345,Inputs!$C$68:$AN$68,0),FALSE))+IFERROR(IF($B340=\"Blank\",0,VLOOKUP($B340,Inputs!$C$68:$AN$129,MATCH($C345,Inputs!$C$68:$AN$68,0),FALSE))*('Master Data'!L$42),0)","v":0},{"$f":"IF($B340=\"Blank\",0,VLOOKUP($B340,Inputs!$C$68:$AN$129,MATCH($B345,Inputs!$C$68:$AN$68,0),FALSE))+IFERROR(IF($B340=\"Blank\",0,VLOOKUP($B340,Inputs!$C$68:$AN$129,MATCH($C345,Inputs!$C$68:$AN$68,0),FALSE))*('Master Data'!M$42),0)","v":0},{"$f":"IF($B340=\"Blank\",0,VLOOKUP($B340,Inputs!$C$68:$AN$129,MATCH($B345,Inputs!$C$68:$AN$68,0),FALSE))+IFERROR(IF($B340=\"Blank\",0,VLOOKUP($B340,Inputs!$C$68:$AN$129,MATCH($C345,Inputs!$C$68:$AN$68,0),FALSE))*('Master Data'!N$42),0)","v":0},{"$f":"IF($B340=\"Blank\",0,VLOOKUP($B340,Inputs!$C$68:$AN$129,MATCH($B345,Inputs!$C$68:$AN$68,0),FALSE))+IFERROR(IF($B340=\"Blank\",0,VLOOKUP($B340,Inputs!$C$68:$AN$129,MATCH($C345,Inputs!$C$68:$AN$68,0),FALSE))*('Master Data'!O$42),0)","v":0},null,null,null,null,null,null,null,"PE Cell Service costs Annualised",0,0,0,0,0]
[null,"Indirect Opex",null,null,{"$f":"IF($B340=\"Blank\",0,IF($B$8=\"Private Contract Lighting\",'Opex Weighting'!D$48,'Opex Weighting'!D$46))","v":12.159436933476723},{"$f":"IF($B340=\"Blank\",0,IF($B$8=\"Private Contract Lighting\",'Opex Weighting'!E$48,'Opex Weighting'!E$46))","v":12.139620760396495},{"$f":"IF($B340=\"Blank\",0,IF($B$8=\"Private Contract Lighting\",'Opex Weighting'!F$48,'Opex Weighting'!F$46))","v":12.041042902784117},{"$f":"IF($B340=\"Blank\",0,IF($B$8=\"Private Contract Lighting\",'Opex Weighting'!G$48,'Opex Weighting'!G$46))","v":11.913040696908689},{"$f":"IF($B340=\"Blank\",0,IF($B$8=\"Private Contract Lighting\",'Opex Weighting'!H$48,'Opex Weighting'!H$46))","v":11.775235721857506},null,null,null,null,null,null,null,"Indirect Opex",3.3222505282723289,3.32592349599904,3.2989158637764708,3.2638467662763535,3.2172775196331984]
[null,"Indirect Capex",null,null,{"$f":"IF($B341=\"Blank\",0,IF($B$8=\"Private Contract Lighting\",'Capex Weighting'!D$60,'Capex Weighting'!D$62))","v":0},{"$f":"IF($B341=\"Blank\",0,IF($B$8=\"Private Contract Lighting\",'Capex Weighting'!E$60,'Capex Weighting'!E$62))","v":0},{"$f":"IF($B341=\"Blank\",0,IF($B$8=\"Private Contract Lighting\",'Capex Weighting'!F$60,'Capex Weighting'!F$62))","v":0},{"$f":"IF($B341=\"Blank\",0,IF($B$8=\"Private Contract Lighting\",'Capex Weighting'!G$60,'Capex Weighting'!G$62))","v":0},{"$f":"IF($B341=\"Blank\",0,IF($B$8=\"Private Contract Lighting\",'Capex Weighting'!H$60,'Capex Weighting'!H$62))","v":0},null,null,null,null,null,null,null,"Indirect Capex",0,0,0,0,0]
[null,"Opex Overheads Costs per light",null,null,{"$f":"IF($B340=\"Blank\",0,IF($B$8=\"Private Contract Lighting\",'Building Block'!C$40,'Building Block'!C$39))","v":10.567257211169151},{"$f":"IF($B340=\"Blank\",0,IF($B$8=\"Private Contract Lighting\",'Building Block'!D$40,'Building Block'!D$39))","v":10.638037296614067},{"$f":"IF($B340=\"Blank\",0,IF($B$8=\"Private Contract Lighting\",'Building Block'!E$40,'Building Block'!E$39))","v":9.8094883699069495},{"$f":"IF($B340=\"Blank\",0,IF($B$8=\"Private Contract Lighting\",'Building Block'!F$40,'Building Block'!F$39))","v":9.7894714768092079},{"$f":"IF($B340=\"Blank\",0,IF($B$8=\"Private Contract Lighting\",'Building Block'!G$40,'Building Block'!G$39))","v":9.7584857493224391},null,null,null,null,null,null,null,"Opex Overheads Costs per light",2.8872287462210795,2.914530766195635,2.6875310602484794,2.6820469799477284,2.6662529369733439]
[null,{"$f":"Inputs!$AK$68","v":"Bracket UNIT price"},0,null,"NA","NA","NA","NA","NA",null,null,null,null,null,null,null,"Bracket UNIT price","","","","",""]
[null,{"$f":"Inputs!$AA$68","v":"CAPEX Instalation costs"},{"$f":"C349+1","v":1},null,"NA","NA","NA","NA","NA",null,null,null,null,null,null,null,"CAPEX Instalation costs","","","","",""]
[null,{"$f":"Inputs!$Z$68","v":"Luminaire UNIT price"},{"$f":"C350+1","v":2},null,"NA","NA","NA","NA","NA",null,null,null,null,null,null,null,"Luminaire UNIT price","","","","",""]
[null,{"$f":"Inputs!$AA$68","v":"CAPEX Instalation costs"},3,null,"NA","NA","NA","NA","NA",null,null,null,null,null,null,null,"CAPEX Instalation costs","","","","",""]
[null,null,null,null,{"$f":"SUM(E341:E352)","v":66.448640754336324},{"$f":"SUM(F341:F352)","v":66.472854556368063},65.400468254587281,65.0634777283895,64.691849644124545,null,null,null,null,null,null,null,null,{"$f":"ROUND(E353/R$2*100,3)","v":18.155000000000001},{"$f":"ROUND(F353/S$2*100,3)","v":18.212},{"$f":"ROUND(G353/T$2*100,3)","v":17.917999999999999},{"$f":"ROUND(H353/U$2*100,3)","v":17.826000000000001},{"$f":"ROUND(I353/V$2*100,3)","v":17.675000000000001}]
[]
[{"$f":"A340+1","v":24},{"$f":"IFERROR(VLOOKUP($A355,Inputs!$B$68:$AN$129,MATCH($B$7,Inputs!$B$68:$AN$68,0),FALSE),\"Blank\")","v":"18W LED"},null,null,null,null,null,null,null,null,null,null,null,null,null,null,{"$f":"IFERROR(VLOOKUP($A355,Inputs!$B$68:$AN$129,MATCH($B$7,Inputs!$B$68:$AN$68,0),FALSE),\"Blank\")","v":"18W LED"}]
[null,{"$f":"Inputs!$S$68","v":"Lamp UNIT price Annualised Cost"},{"$f":"Inputs!$Q$68","v":"Lamp Maintenance cycle"},null,{"$f":"IF($B355=\"Blank\",0,VLOOKUP($B355,Inputs!$C$68:$AN$129,MATCH($B356,Inputs!$C$68:$AN$68,0),FALSE))","v":0},{"$f":"IF($B355=\"Blank\",0,VLOOKUP($B355,Inputs!$C$68:$AN$129,MATCH($B356,Inputs!$C$68:$AN$68,0),FALSE))","v":0},{"$f":"IF($B355=\"Blank\",0,VLOOKUP($B355,Inputs!$C$68:$AN$129,MATCH($B356,Inputs!$C$68:$AN$68,0),FALSE))","v":0},{"$f":"IF($B355=\"Blank\",0,VLOOKUP($B355,Inputs!$C$68:$AN$129,MATCH($B356,Inputs!$C$68:$AN$68,0),FALSE))","v":0},{"$f":"IF($B355=\"Blank\",0,VLOOKUP($B355,Inputs!$C$68:$AN$129,MATCH($B356,Inputs!$C$68:$AN$68,0),FALSE))","v":0},null,null,null,null,null,null,null,{"$f":"B356","v":"Lamp UNIT price Annualised Cost"},{"$f":"IF(E356=\"NA\",\"\",E356/R$2*100)","v":0},{"$f":"IF(F356=\"NA\",\"\",F356/S$2*100)","v":0},{"$f":"IF(G356=\"NA\",\"\",G356/T$2*100)","v":0},{"$f":"IF(H356=\"NA\",\"\",H356/U$2*100)","v":0},{"$f":"IF(I356=\"NA\",\"\",I356/V$2*100)","v":0}]
[null,{"$f":"Inputs!$K$68","v":"PE Cell UNIT price Annualised Cost"},{"$f":"Inputs!$I$68","v":"PE Cell Maintenance Cycle"},null,{"$f":"IF($B355=\"Blank\",0,VLOOKUP($B355,Inputs!$C$68:$AN$129,MATCH($B357,Inputs!$C$68:$AN$68,0),FALSE))","v":0.29065627594166676},{"$f":"IF($B355=\"Blank\",0,VLOOKUP($B355,Inputs!$C$68:$AN$129,MATCH($B357,Inputs!$C$68:$AN$68,0),FALSE))","v":0.29065627594166676},{"$f":"IF($B355=\"Blank\",0,VLOOKUP($B355,Inputs!$C$68:$AN$129,MATCH($B357,Inputs!$C$68:$AN$68,0),FALSE))","v":0.29065627594166676},{"$f":"IF($B355=\"Blank\",0,VLOOKUP($B355,Inputs!$C$68:$AN$129,MATCH($B357,Inputs!$C$68:$AN$68,0),FALSE))","v":0.29065627594166676},{"$f":"IF($B355=\"Blank\",0,VLOOKUP($B355,Inputs!$C$68:$AN$129,MATCH($B357,Inputs!$C$68:$AN$68,0),FALSE))","v":0.29065627594166676},null,null,null,null,null,null,null,"PE Cell UNIT price Annualised Cost",7.9414283044171238E-2,7.9631856422374456E-2,7.9631856422374456E-2,7.9631856422374456E-2,7.9414283044171238E-2]
[null,"Corp capex annuity per light",null,null,{"$f":"IF($B355=\"Blank\",0,'Corp Capex Annuity calcs'!F$142)","v":18.582309905017571},{"$f":"IF($B355=\"Blank\",0,'Corp Capex Annuity calcs'!G$142)","v":18.552026408230436},{"$f":"IF($B355=\"Blank\",0,'Corp Capex Annuity calcs'!H$142)","v":18.401377631486287},{"$f":"IF($B355=\"Blank\",0,'Corp Capex Annuity calcs'!I$142)","v":18.205761940470655},{"$f":"IF($B355=\"Blank\",0,'Corp Capex Annuity calcs'!J$142)","v":17.995165449295623},null,null,null,null,null,null,null,"Corp capex annuity per light",5.0771338538299373,5.0827469611590237,5.0414733236948734,4.9878799836905907,4.9167118713922466]
[null,{"$f":"Inputs!$U$68","v":"Lamp Service costs Annualised"},"Labour Portion of Lamp Service costs annualised",null,{"$f":"IF($B355=\"Blank\",0,VLOOKUP($B355,Inputs!$C$68:$AN$129,MATCH($B359,Inputs!$C$68:$AN$68,0),FALSE))+IFERROR(IF($B355=\"Blank\",0,VLOOKUP($B355,Inputs!$C$68:$AN$129,MATCH($C359,Inputs!$C$68:$AN$68,0),FALSE))*('Master Data'!K$42),0)","v":0},{"$f":"IF($B355=\"Blank\",0,VLOOKUP($B355,Inputs!$C$68:$AN$129,MATCH($B359,Inputs!$C$68:$AN$68,0),FALSE))+IFERROR(IF($B355=\"Blank\",0,VLOOKUP($B355,Inputs!$C$68:$AN$129,MATCH($C359,Inputs!$C$68:$AN$68,0),FALSE))*('Master Data'!L$42),0)","v":0},{"$f":"IF($B355=\"Blank\",0,VLOOKUP($B355,Inputs!$C$68:$AN$129,MATCH($B359,Inputs!$C$68:$AN$68,0),FALSE))+IFERROR(IF($B355=\"Blank\",0,VLOOKUP($B355,Inputs!$C$68:$AN$129,MATCH($C359,Inputs!$C$68:$AN$68,0),FALSE))*('Master Data'!M$42),0)","v":0},{"$f":"IF($B355=\"Blank\",0,VLOOKUP($B355,Inputs!$C$68:$AN$129,MATCH($B359,Inputs!$C$68:$AN$68,0),FALSE))+IFERROR(IF($B355=\"Blank\",0,VLOOKUP($B355,Inputs!$C$68:$AN$129,MATCH($C359,Inputs!$C$68:$AN$68,0),FALSE))*('Master Data'!N$42),0)","v":0},{"$f":"IF($B355=\"Blank\",0,VLOOKUP($B355,Inputs!$C$68:$AN$129,MATCH($B359,Inputs!$C$68:$AN$68,0),FALSE))+IFERROR(IF($B355=\"Blank\",0,VLOOKUP($B355,Inputs!$C$68:$AN$129,MATCH($C359,Inputs!$C$68:$AN$68,0),FALSE))*('Master Data'!O$42),0)","v":0},null,null,null,null,null,null,null,"Lamp Service costs Annualised",0,0,0,0,0]
[null,{"$f":"Inputs!$M$68","v":"PE Cell Service costs Annualised"},"Labour Portion of PE Cell Service costs Annualised",null,{"$f":"IF($B355=\"Blank\",0,VLOOKUP($B355,Inputs!$C$68:$AN$129,MATCH($B360,Inputs!$C$68:$AN$68,0),FALSE))+IFERROR(IF($B355=\"Blank\",0,VLOOKUP($B355,Inputs!$C$68:$AN$129,MATCH($C360,Inputs!$C$68:$AN$68,0),FALSE))*('Master Data'!K$42),0)","v":6.0318725099601611},{"$f":"IF($B355=\"Blank\",0,VLOOKUP($B355,Inputs!$C$68:$AN$129,MATCH($B360,Inputs!$C$68:$AN$68,0),FALSE))+IFERROR(IF($B355=\"Blank\",0,VLOOKUP($B355,Inputs!$C$68:$AN$129,MATCH($C360,Inputs!$C$68:$AN$68,0),FALSE))*('Master Data'!L$42),0)","v":6.0327558565737069},{"$f":"IF($B355=\"Blank\",0,VLOOKUP($B355,Inputs!$C$68:$AN$129,MATCH($B360,Inputs!$C$68:$AN$68,0),FALSE))+IFERROR(IF($B355=\"Blank\",0,VLOOKUP($B355,Inputs!$C$68:$AN$129,MATCH($C360,Inputs!$C$68:$AN$68,0),FALSE))*('Master Data'!M$42),0)","v":6.034103171394424},{"$f":"IF($B355=\"Blank\",0,VLOOKUP($B355,Inputs!$C$68:$AN$129,MATCH($B360,Inputs!$C$68:$AN$68,0),FALSE))+IFERROR(IF($B355=\"Blank\",0,VLOOKUP($B355,Inputs!$C$68:$AN$129,MATCH($C360,Inputs!$C$68:$AN$68,0),FALSE))*('Master Data'!N$42),0)","v":6.0357642373421774},{"$f":"IF($B355=\"Blank\",0,VLOOKUP($B355,Inputs!$C$68:$AN$129,MATCH($B360,Inputs!$C$68:$AN$68,0),FALSE))+IFERROR(IF($B355=\"Blank\",0,VLOOKUP($B355,Inputs!$C$68:$AN$129,MATCH($C360,Inputs!$C$68:$AN$68,0),FALSE))*('Master Data'!O$42),0)","v":6.0377040147041869},null,null,null,null,null,null,null,"PE Cell Service costs Annualised",1.6480525983497707,1.652809823718824,1.6531789510669654,1.6536340376279939,1.6496459056568817]
[null,"Indirect Opex",null,null,{"$f":"IF($B355=\"Blank\",0,IF($B$8=\"Private Contract Lighting\",'Opex Weighting'!D$48,'Opex Weighting'!D$46))","v":12.159436933476723},{"$f":"IF($B355=\"Blank\",0,IF($B$8=\"Private Contract Lighting\",'Opex Weighting'!E$48,'Opex Weighting'!E$46))","v":12.139620760396495},{"$f":"IF($B355=\"Blank\",0,IF($B$8=\"Private Contract Lighting\",'Opex Weighting'!F$48,'Opex Weighting'!F$46))","v":12.041042902784117},{"$f":"IF($B355=\"Blank\",0,IF($B$8=\"Private Contract Lighting\",'Opex Weighting'!G$48,'Opex Weighting'!G$46))","v":11.913040696908689},{"$f":"IF($B355=\"Blank\",0,IF($B$8=\"Private Contract Lighting\",'Opex Weighting'!H$48,'Opex Weighting'!H$46))","v":11.775235721857506},null,null,null,null,null,null,null,"Indirect Opex",3.3222505282723289,3.32592349599904,3.2989158637764708,3.2638467662763535,3.2172775196331984]
[null,"Indirect Capex",null,null,{"$f":"IF($B356=\"Blank\",0,IF($B$8=\"Private Contract Lighting\",'Capex Weighting'!D$60,'Capex Weighting'!D$62))","v":0},{"$f":"IF($B356=\"Blank\",0,IF($B$8=\"Private Contract Lighting\",'Capex Weighting'!E$60,'Capex Weighting'!E$62))","v":0},{"$f":"IF($B356=\"Blank\",0,IF($B$8=\"Private Contract Lighting\",'Capex Weighting'!F$60,'Capex Weighting'!F$62))","v":0},{"$f":"IF($B356=\"Blank\",0,IF($B$8=\"Private Contract Lighting\",'Capex Weighting'!G$60,'Capex Weighting'!G$62))","v":0},{"$f":"IF($B356=\"Blank\",0,IF($B$8=\"Private Contract Lighting\",'Capex Weighting'!H$60,'Capex Weighting'!H$62))","v":0},null,null,null,null,null,null,null,"Indirect Capex",0,0,0,0,0]
[null,"Opex Overheads Costs per light",null,null,{"$f":"IF($B355=\"Blank\",0,IF($B$8=\"Private Contract Lighting\",'Building Block'!C$40,'Building Block'!C$39))","v":10.567257211169151},{"$f":"IF($B355=\"Blank\",0,IF($B$8=\"Private Contract Lighting\",'Building Block'!D$40,'Building Block'!D$39))","v":10.638037296614067},{"$f":"IF($B355=\"Blank\",0,IF($B$8=\"Private Contract Lighting\",'Building Block'!E$40,'Building Block'!E$39))","v":9.8094883699069495},{"$f":"IF($B355=\"Blank\",0,IF($B$8=\"Private Contract Lighting\",'Building Block'!F$40,'Building Block'!F$39))","v":9.7894714768092079},{"$f":"IF($B355=\"Blank\",0,IF($B$8=\"Private Contract Lighting\",'Building Block'!G$40,'Building Block'!G$39))","v":9.7584857493224391},null,null,null,null,null,null,null,"Opex Overheads Costs per light",2.8872287462210795,2.914530766195635,2.6875310602484794,2.6820469799477284,2.6662529369733439]
[null,{"$f":"Inputs!$AK$68","v":"Bracket UNIT price"},0,null,"NA","NA","NA","NA","NA",null,null,null,null,null,null,null,"Bracket UNIT price","","","","",""]
[null,{"$f":"Inputs!$AA$68","v":"CAPEX Instalation costs"},{"$f":"C364+1","v":1},null,"NA","NA","NA","NA","NA",null,null,null,null,null,null,null,"CAPEX Instalation costs","","","","",""]
[null,{"$f":"Inputs!$Z$68","v":"Luminaire UNIT price"},{"$f":"C365+1","v":2},null,"NA","NA","NA","NA","NA",null,null,null,null,null,null,null,"Luminaire UNIT price","","","","",""]
[null,{"$f":"Inputs!$AA$68","v":"CAPEX Instalation costs"},3,null,"NA","NA","NA","NA","NA",null,null,null,null,null,null,null,"CAPEX Instalation costs","","","","",""]
[null,null,null,null,{"$f":"SUM(E356:E367)","v":47.631532835565267},{"$f":"SUM(F356:F367)","v":47.653096597756374},46.576668351513447,46.234694627472393,45.857247211121425,null,null,null,null,null,null,null,null,{"$f":"ROUND(E368/R$2*100,3)","v":13.013999999999999},{"$f":"ROUND(F368/S$2*100,3)","v":13.055999999999999},{"$f":"ROUND(G368/T$2*100,3)","v":12.760999999999999},{"$f":"ROUND(H368/U$2*100,3)","v":12.667},{"$f":"ROUND(I368/V$2*100,3)","v":12.529}]
[]
[{"$f":"A355+1","v":25},{"$f":"IFERROR(VLOOKUP($A370,Inputs!$B$68:$AN$129,MATCH($B$7,Inputs!$B$68:$AN$68,0),FALSE),\"Blank\")","v":"18W LED Decorative - Bottom Pole Entry"},null,null,null,null,null,null,null,null,null,null,null,null,null,null,{"$f":"IFERROR(VLOOKUP($A370,Inputs!$B$68:$AN$129,MATCH($B$7,Inputs!$B$68:$AN$68,0),FALSE),\"Blank\")","v":"18W LED Decorative - Bottom Pole Entry"}]
[null,{"$f":"Inputs!$S$68","v":"Lamp UNIT price Annualised Cost"},{"$f":"Inputs!$Q$68","v":"Lamp Maintenance cycle"},null,{"$f":"IF($B370=\"Blank\",0,VLOOKUP($B370,Inputs!$C$68:$AN$129,MATCH($B371,Inputs!$C$68:$AN$68,0),FALSE))","v":0},{"$f":"IF($B370=\"Blank\",0,VLOOKUP($B370,Inputs!$C$68:$AN$129,MATCH($B371,Inputs!$C$68:$AN$68,0),FALSE))","v":0},{"$f":"IF($B370=\"Blank\",0,VLOOKUP($B370,Inputs!$C$68:$AN$129,MATCH($B371,Inputs!$C$68:$AN$68,0),FALSE))","v":0},{"$f":"IF($B370=\"Blank\",0,VLOOKUP($B370,Inputs!$C$68:$AN$129,MATCH($B371,Inputs!$C$68:$AN$68,0),FALSE))","v":0},{"$f":"IF($B370=\"Blank\",0,VLOOKUP($B370,Inputs!$C$68:$AN$129,MATCH($B371,Inputs!$C$68:$AN$68,0),FALSE))","v":0},null,null,null,null,null,null,null,{"$f":"B371","v":"Lamp UNIT price Annualised Cost"},{"$f":"IF(E371=\"NA\",\"\",E371/R$2*100)","v":0},{"$f":"IF(F371=\"NA\",\"\",F371/S$2*100)","v":0},{"$f":"IF(G371=\"NA\",\"\",G371/T$2*100)","v":0},{"$f":"IF(H371=\"NA\",\"\",H371/U$2*100)","v":0},{"$f":"IF(I371=\"NA\",\"\",I371/V$2*100)","v":0}]
[null,{"$f":"Inputs!$K$68","v":"PE Cell UNIT price Annualised Cost"},{"$f":"Inputs!$I$68","v":"PE Cell Maintenance Cycle"},null,{"$f":"IF($B370=\"Blank\",0,VLOOKUP($B370,Inputs!$C$68:$AN$129,MATCH($B372,Inputs!$C$68:$AN$68,0),FALSE))","v":0.29065627594166676},{"$f":"IF($B370=\"Blank\",0,VLOOKUP($B370,Inputs!$C$68:$AN$129,MATCH($B372,Inputs!$C$68:$AN$68,0),FALSE))","v":0.29065627594166676},{"$f":"IF($B370=\"Blank\",0,VLOOKUP($B370,Inputs!$C$68:$AN$129,MATCH($B372,Inputs!$C$68:$AN$68,0),FALSE))","v":0.29065627594166676},{"$f":"IF($B370=\"Blank\",0,VLOOKUP($B370,Inputs!$C$68:$AN$129,MATCH($B372,Inputs!$C$68:$AN$68,0),FALSE))","v":0.29065627594166676},{"$f":"IF($B370=\"Blank\",0,VLOOKUP($B370,Inputs!$C$68:$AN$129,MATCH($B372,Inputs!$C$68:$AN$68,0),FALSE))","v":0.29065627594166676},null,null,null,null,null,null,null,"PE Cell UNIT price Annualised Cost",7.9414283044171238E-2,7.9631856422374456E-2,7.9631856422374456E-2,7.9631856422374456E-2,7.9414283044171238E-2]
[null,"Corp capex annuity per light",null,null,{"$f":"IF($B370=\"Blank\",0,'Corp Capex Annuity calcs'!F$142)","v":18.582309905017571},{"$f":"IF($B370=\"Blank\",0,'Corp Capex Annuity calcs'!G$142)","v":18.552026408230436},{"$f":"IF($B370=\"Blank\",0,'Corp Capex Annuity calcs'!H$142)","v":18.401377631486287},{"$f":"IF($B370=\"Blank\",0,'Corp Capex Annuity calcs'!I$142)","v":18.205761940470655},{"$f":"IF($B370=\"Blank\",0,'Corp Capex Annuity calcs'!J$142)","v":17.995165449295623},null,null,null,null,null,null,null,"Corp capex annuity per light",5.0771338538299373,5.0827469611590237,5.0414733236948734,4.9878799836905907,4.9167118713922466]
[null,{"$f":"Inputs!$U$68","v":"Lamp Service costs Annualised"},"Labour Portion of Lamp Service costs annualised",null,{"$f":"IF($B370=\"Blank\",0,VLOOKUP($B370,Inputs!$C$68:$AN$129,MATCH($B374,Inputs!$C$68:$AN$68,0),FALSE))+IFERROR(IF($B370=\"Blank\",0,VLOOKUP($B370,Inputs!$C$68:$AN$129,MATCH($C374,Inputs!$C$68:$AN$68,0),FALSE))*('Master Data'!K$42),0)","v":0},{"$f":"IF($B370=\"Blank\",0,VLOOKUP($B370,Inputs!$C$68:$AN$129,MATCH($B374,Inputs!$C$68:$AN$68,0),FALSE))+IFERROR(IF($B370=\"Blank\",0,VLOOKUP($B370,Inputs!$C$68:$AN$129,MATCH($C374,Inputs!$C$68:$AN$68,0),FALSE))*('Master Data'!L$42),0)","v":0},{"$f":"IF($B370=\"Blank\",0,VLOOKUP($B370,Inputs!$C$68:$AN$129,MATCH($B374,Inputs!$C$68:$AN$68,0),FALSE))+IFERROR(IF($B370=\"Blank\",0,VLOOKUP($B370,Inputs!$C$68:$AN$129,MATCH($C374,Inputs!$C$68:$AN$68,0),FALSE))*('Master Data'!M$42),0)","v":0},{"$f":"IF($B370=\"Blank\",0,VLOOKUP($B370,Inputs!$C$68:$AN$129,MATCH($B374,Inputs!$C$68:$AN$68,0),FALSE))+IFERROR(IF($B370=\"Blank\",0,VLOOKUP($B370,Inputs!$C$68:$AN$129,MATCH($C374,Inputs!$C$68:$AN$68,0),FALSE))*('Master Data'!N$42),0)","v":0},{"$f":"IF($B370=\"Blank\",0,VLOOKUP($B370,Inputs!$C$68:$AN$129,MATCH($B374,Inputs!$C$68:$AN$68,0),FALSE))+IFERROR(IF($B370=\"Blank\",0,VLOOKUP($B370,Inputs!$C$68:$AN$129,MATCH($C374,Inputs!$C$68:$AN$68,0),FALSE))*('Master Data'!O$42),0)","v":0},null,null,null,null,null,null,null,"Lamp Service costs Annualised",0,0,0,0,0]
[null,{"$f":"Inputs!$M$68","v":"PE Cell Service costs Annualised"},"Labour Portion of PE Cell Service costs Annualised",null,{"$f":"IF($B370=\"Blank\",0,VLOOKUP($B370,Inputs!$C$68:$AN$129,MATCH($B375,Inputs!$C$68:$AN$68,0),FALSE))+IFERROR(IF($B370=\"Blank\",0,VLOOKUP($B370,Inputs!$C$68:$AN$129,MATCH($C375,Inputs!$C$68:$AN$68,0),FALSE))*('Master Data'!K$42),0)","v":6.0318725099601611},{"$f":"IF($B370=\"Blank\",0,VLOOKUP($B370,Inputs!$C$68:$AN$129,MATCH($B375,Inputs!$C$68:$AN$68,0),FALSE))+IFERROR(IF($B370=\"Blank\",0,VLOOKUP($B370,Inputs!$C$68:$AN$129,MATCH($C375,Inputs!$C$68:$AN$68,0),FALSE))*('Master Data'!L$42),0)","v":6.0327558565737069},{"$f":"IF($B370=\"Blank\",0,VLOOKUP($B370,Inputs!$C$68:$AN$129,MATCH($B375,Inputs!$C$68:$AN$68,0),FALSE))+IFERROR(IF($B370=\"Blank\",0,VLOOKUP($B370,Inputs!$C$68:$AN$129,MATCH($C375,Inputs!$C$68:$AN$68,0),FALSE))*('Master Data'!M$42),0)","v":6.034103171394424},{"$f":"IF($B370=\"Blank\",0,VLOOKUP($B370,Inputs!$C$68:$AN$129,MATCH($B375,Inputs!$C$68:$AN$68,0),FALSE))+IFERROR(IF($B370=\"Blank\",0,VLOOKUP($B370,Inputs!$C$68:$AN$129,MATCH($C375,Inputs!$C$68:$AN$68,0),FALSE))*('Master Data'!N$42),0)","v":6.0357642373421774},{"$f":"IF($B370=\"Blank\",0,VLOOKUP($B370,Inputs!$C$68:$AN$129,MATCH($B375,Inputs!$C$68:$AN$68,0),FALSE))+IFERROR(IF($B370=\"Blank\",0,VLOOKUP($B370,Inputs!$C$68:$AN$129,MATCH($C375,Inputs!$C$68:$AN$68,0),FALSE))*('Master Data'!O$42),0)","v":6.0377040147041869},null,null,null,null,null,null,null,"PE Cell Service costs Annualised",1.6480525983497707,1.652809823718824,1.6531789510669654,1.6536340376279939,1.6496459056568817]
[null,"Indirect Opex",null,null,{"$f":"IF($B370=\"Blank\",0,IF($B$8=\"Private Contract Lighting\",'Opex Weighting'!D$48,'Opex Weighting'!D$46))","v":12.159436933476723},{"$f":"IF($B370=\"Blank\",0,IF($B$8=\"Private Contract Lighting\",'Opex Weighting'!E$48,'Opex Weighting'!E$46))","v":12.139620760396495},{"$f":"IF($B370=\"Blank\",0,IF($B$8=\"Private Contract Lighting\",'Opex Weighting'!F$48,'Opex Weighting'!F$46))","v":12.041042902784117},{"$f":"IF($B370=\"Blank\",0,IF($B$8=\"Private Contract Lighting\",'Opex Weighting'!G$48,'Opex Weighting'!G$46))","v":11.913040696908689},{"$f":"IF($B370=\"Blank\",0,IF($B$8=\"Private Contract Lighting\",'Opex Weighting'!H$48,'Opex Weighting'!H$46))","v":11.775235721857506},null,null,null,null,null,null,null,"Indirect Opex",3.3222505282723289,3.32592349599904,3.2989158637764708,3.2638467662763535,3.2172775196331984]
[null,"Indirect Capex",null,null,{"$f":"IF($B371=\"Blank\",0,IF($B$8=\"Private Contract Lighting\",'Capex Weighting'!D$60,'Capex Weighting'!D$62))","v":0},{"$f":"IF($B371=\"Blank\",0,IF($B$8=\"Private Contract Lighting\",'Capex Weighting'!E$60,'Capex Weighting'!E$62))","v":0},{"$f":"IF($B371=\"Blank\",0,IF($B$8=\"Private Contract Lighting\",'Capex Weighting'!F$60,'Capex Weighting'!F$62))","v":0},{"$f":"IF($B371=\"Blank\",0,IF($B$8=\"Private Contract Lighting\",'Capex Weighting'!G$60,'Capex Weighting'!G$62))","v":0},{"$f":"IF($B371=\"Blank\",0,IF($B$8=\"Private Contract Lighting\",'Capex Weighting'!H$60,'Capex Weighting'!H$62))","v":0},null,null,null,null,null,null,null,"Indirect Capex",0,0,0,0,0]
[null,"Opex Overheads Costs per light",null,null,{"$f":"IF($B370=\"Blank\",0,IF($B$8=\"Private Contract Lighting\",'Building Block'!C$40,'Building Block'!C$39))","v":10.567257211169151},{"$f":"IF($B370=\"Blank\",0,IF($B$8=\"Private Contract Lighting\",'Building Block'!D$40,'Building Block'!D$39))","v":10.638037296614067},{"$f":"IF($B370=\"Blank\",0,IF($B$8=\"Private Contract Lighting\",'Building Block'!E$40,'Building Block'!E$39))","v":9.8094883699069495},{"$f":"IF($B370=\"Blank\",0,IF($B$8=\"Private Contract Lighting\",'Building Block'!F$40,'Building Block'!F$39))","v":9.7894714768092079},{"$f":"IF($B370=\"Blank\",0,IF($B$8=\"Private Contract Lighting\",'Building Block'!G$40,'Building Block'!G$39))","v":9.7584857493224391},null,null,null,null,null,null,null,"Opex Overheads Costs per light",2.8872287462210795,2.914530766195635,2.6875310602484794,2.6820469799477284,2.6662529369733439]
[null,{"$f":"Inputs!$AK$68","v":"Bracket UNIT price"},0,null,"NA","NA","NA","NA","NA",null,null,null,null,null,null,null,"Bracket UNIT price","","","","",""]
[null,{"$f":"Inputs!$AA$68","v":"CAPEX Instalation costs"},{"$f":"C379+1","v":1},null,"NA","NA","NA","NA","NA",null,null,null,null,null,null,null,"CAPEX Instalation costs","","","","",""]
[null,{"$f":"Inputs!$Z$68","v":"Luminaire UNIT price"},{"$f":"C380+1","v":2},null,"NA","NA","NA","NA","NA",null,null,null,null,null,null,null,"Luminaire UNIT price","","","","",""]
[null,{"$f":"Inputs!$AA$68","v":"CAPEX Instalation costs"},3,null,"NA","NA","NA","NA","NA",null,null,null,null,null,null,null,"CAPEX Instalation costs","","","","",""]
[null,null,null,null,{"$f":"SUM(E371:E382)","v":47.631532835565267},{"$f":"SUM(F371:F382)","v":47.653096597756374},46.576668351513447,46.234694627472393,45.857247211121425,null,null,null,null,null,null,null,null,{"$f":"ROUND(E383/R$2*100,3)","v":13.013999999999999},{"$f":"ROUND(F383/S$2*100,3)","v":13.055999999999999},{"$f":"ROUND(G383/T$2*100,3)","v":12.760999999999999},{"$f":"ROUND(H383/U$2*100,3)","v":12.667},{"$f":"ROUND(I383/V$2*100,3)","v":12.529}]
[]
[{"$f":"A370+1","v":26},{"$f":"IFERROR(VLOOKUP($A385,Inputs!$B$68:$AN$129,MATCH($B$7,Inputs!$B$68:$AN$68,0),FALSE),\"Blank\")","v":"18W LED Decorative - Side Entry"},null,null,null,null,null,null,null,null,null,null,null,null,null,null,{"$f":"IFERROR(VLOOKUP($A385,Inputs!$B$68:$AN$129,MATCH($B$7,Inputs!$B$68:$AN$68,0),FALSE),\"Blank\")","v":"18W LED Decorative - Side Entry"}]
[null,{"$f":"Inputs!$S$68","v":"Lamp UNIT price Annualised Cost"},{"$f":"Inputs!$Q$68","v":"Lamp Maintenance cycle"},null,{"$f":"IF($B385=\"Blank\",0,VLOOKUP($B385,Inputs!$C$68:$AN$129,MATCH($B386,Inputs!$C$68:$AN$68,0),FALSE))","v":0},{"$f":"IF($B385=\"Blank\",0,VLOOKUP($B385,Inputs!$C$68:$AN$129,MATCH($B386,Inputs!$C$68:$AN$68,0),FALSE))","v":0},{"$f":"IF($B385=\"Blank\",0,VLOOKUP($B385,Inputs!$C$68:$AN$129,MATCH($B386,Inputs!$C$68:$AN$68,0),FALSE))","v":0},{"$f":"IF($B385=\"Blank\",0,VLOOKUP($B385,Inputs!$C$68:$AN$129,MATCH($B386,Inputs!$C$68:$AN$68,0),FALSE))","v":0},{"$f":"IF($B385=\"Blank\",0,VLOOKUP($B385,Inputs!$C$68:$AN$129,MATCH($B386,Inputs!$C$68:$AN$68,0),FALSE))","v":0},null,null,null,null,null,null,null,{"$f":"B386","v":"Lamp UNIT price Annualised Cost"},{"$f":"IF(E386=\"NA\",\"\",E386/R$2*100)","v":0},{"$f":"IF(F386=\"NA\",\"\",F386/S$2*100)","v":0},{"$f":"IF(G386=\"NA\",\"\",G386/T$2*100)","v":0},{"$f":"IF(H386=\"NA\",\"\",H386/U$2*100)","v":0},{"$f":"IF(I386=\"NA\",\"\",I386/V$2*100)","v":0}]
[null,{"$f":"Inputs!$K$68","v":"PE Cell UNIT price Annualised Cost"},{"$f":"Inputs!$I$68","v":"PE Cell Maintenance Cycle"},null,{"$f":"IF($B385=\"Blank\",0,VLOOKUP($B385,Inputs!$C$68:$AN$129,MATCH($B387,Inputs!$C$68:$AN$68,0),FALSE))","v":0.29065627594166676},{"$f":"IF($B385=\"Blank\",0,VLOOKUP($B385,Inputs!$C$68:$AN$129,MATCH($B387,Inputs!$C$68:$AN$68,0),FALSE))","v":0.29065627594166676},{"$f":"IF($B385=\"Blank\",0,VLOOKUP($B385,Inputs!$C$68:$AN$129,MATCH($B387,Inputs!$C$68:$AN$68,0),FALSE))","v":0.29065627594166676},{"$f":"IF($B385=\"Blank\",0,VLOOKUP($B385,Inputs!$C$68:$AN$129,MATCH($B387,Inputs!$C$68:$AN$68,0),FALSE))","v":0.29065627594166676},{"$f":"IF($B385=\"Blank\",0,VLOOKUP($B385,Inputs!$C$68:$AN$129,MATCH($B387,Inputs!$C$68:$AN$68,0),FALSE))","v":0.29065627594166676},null,null,null,null,null,null,null,"PE Cell UNIT price Annualised Cost",7.9414283044171238E-2,7.9631856422374456E-2,7.9631856422374456E-2,7.9631856422374456E-2,7.9414283044171238E-2]
[null,"Corp capex annuity per light",null,null,{"$f":"IF($B385=\"Blank\",0,'Corp Capex Annuity calcs'!F$142)","v":18.582309905017571},{"$f":"IF($B385=\"Blank\",0,'Corp Capex Annuity calcs'!G$142)","v":18.552026408230436},{"$f":"IF($B385=\"Blank\",0,'Corp Capex Annuity calcs'!H$142)","v":18.401377631486287},{"$f":"IF($B385=\"Blank\",0,'Corp Capex Annuity calcs'!I$142)","v":18.205761940470655},{"$f":"IF($B385=\"Blank\",0,'Corp Capex Annuity calcs'!J$142)","v":17.995165449295623},null,null,null,null,null,null,null,"Corp capex annuity per light",5.0771338538299373,5.0827469611590237,5.0414733236948734,4.9878799836905907,4.9167118713922466]
[null,{"$f":"Inputs!$U$68","v":"Lamp Service costs Annualised"},"Labour Portion of Lamp Service costs annualised",null,{"$f":"IF($B385=\"Blank\",0,VLOOKUP($B385,Inputs!$C$68:$AN$129,MATCH($B389,Inputs!$C$68:$AN$68,0),FALSE))+IFERROR(IF($B385=\"Blank\",0,VLOOKUP($B385,Inputs!$C$68:$AN$129,MATCH($C389,Inputs!$C$68:$AN$68,0),FALSE))*('Master Data'!K$42),0)","v":0},{"$f":"IF($B385=\"Blank\",0,VLOOKUP($B385,Inputs!$C$68:$AN$129,MATCH($B389,Inputs!$C$68:$AN$68,0),FALSE))+IFERROR(IF($B385=\"Blank\",0,VLOOKUP($B385,Inputs!$C$68:$AN$129,MATCH($C389,Inputs!$C$68:$AN$68,0),FALSE))*('Master Data'!L$42),0)","v":0},{"$f":"IF($B385=\"Blank\",0,VLOOKUP($B385,Inputs!$C$68:$AN$129,MATCH($B389,Inputs!$C$68:$AN$68,0),FALSE))+IFERROR(IF($B385=\"Blank\",0,VLOOKUP($B385,Inputs!$C$68:$AN$129,MATCH($C389,Inputs!$C$68:$AN$68,0),FALSE))*('Master Data'!M$42),0)","v":0},{"$f":"IF($B385=\"Blank\",0,VLOOKUP($B385,Inputs!$C$68:$AN$129,MATCH($B389,Inputs!$C$68:$AN$68,0),FALSE))+IFERROR(IF($B385=\"Blank\",0,VLOOKUP($B385,Inputs!$C$68:$AN$129,MATCH($C389,Inputs!$C$68:$AN$68,0),FALSE))*('Master Data'!N$42),0)","v":0},{"$f":"IF($B385=\"Blank\",0,VLOOKUP($B385,Inputs!$C$68:$AN$129,MATCH($B389,Inputs!$C$68:$AN$68,0),FALSE))+IFERROR(IF($B385=\"Blank\",0,VLOOKUP($B385,Inputs!$C$68:$AN$129,MATCH($C389,Inputs!$C$68:$AN$68,0),FALSE))*('Master Data'!O$42),0)","v":0},null,null,null,null,null,null,null,"Lamp Service costs Annualised",0,0,0,0,0]
[null,{"$f":"Inputs!$M$68","v":"PE Cell Service costs Annualised"},"Labour Portion of PE Cell Service costs Annualised",null,{"$f":"IF($B385=\"Blank\",0,VLOOKUP($B385,Inputs!$C$68:$AN$129,MATCH($B390,Inputs!$C$68:$AN$68,0),FALSE))+IFERROR(IF($B385=\"Blank\",0,VLOOKUP($B385,Inputs!$C$68:$AN$129,MATCH($C390,Inputs!$C$68:$AN$68,0),FALSE))*('Master Data'!K$42),0)","v":6.0318725099601611},{"$f":"IF($B385=\"Blank\",0,VLOOKUP($B385,Inputs!$C$68:$AN$129,MATCH($B390,Inputs!$C$68:$AN$68,0),FALSE))+IFERROR(IF($B385=\"Blank\",0,VLOOKUP($B385,Inputs!$C$68:$AN$129,MATCH($C390,Inputs!$C$68:$AN$68,0),FALSE))*('Master Data'!L$42),0)","v":6.0327558565737069},{"$f":"IF($B385=\"Blank\",0,VLOOKUP($B385,Inputs!$C$68:$AN$129,MATCH($B390,Inputs!$C$68:$AN$68,0),FALSE))+IFERROR(IF($B385=\"Blank\",0,VLOOKUP($B385,Inputs!$C$68:$AN$129,MATCH($C390,Inputs!$C$68:$AN$68,0),FALSE))*('Master Data'!M$42),0)","v":6.034103171394424},{"$f":"IF($B385=\"Blank\",0,VLOOKUP($B385,Inputs!$C$68:$AN$129,MATCH($B390,Inputs!$C$68:$AN$68,0),FALSE))+IFERROR(IF($B385=\"Blank\",0,VLOOKUP($B385,Inputs!$C$68:$AN$129,MATCH($C390,Inputs!$C$68:$AN$68,0),FALSE))*('Master Data'!N$42),0)","v":6.0357642373421774},{"$f":"IF($B385=\"Blank\",0,VLOOKUP($B385,Inputs!$C$68:$AN$129,MATCH($B390,Inputs!$C$68:$AN$68,0),FALSE))+IFERROR(IF($B385=\"Blank\",0,VLOOKUP($B385,Inputs!$C$68:$AN$129,MATCH($C390,Inputs!$C$68:$AN$68,0),FALSE))*('Master Data'!O$42),0)","v":6.0377040147041869},null,null,null,null,null,null,null,"PE Cell Service costs Annualised",1.6480525983497707,1.652809823718824,1.6531789510669654,1.6536340376279939,1.6496459056568817]
[null,"Indirect Opex",null,null,{"$f":"IF($B385=\"Blank\",0,IF($B$8=\"Private Contract Lighting\",'Opex Weighting'!D$48,'Opex Weighting'!D$46))","v":12.159436933476723},{"$f":"IF($B385=\"Blank\",0,IF($B$8=\"Private Contract Lighting\",'Opex Weighting'!E$48,'Opex Weighting'!E$46))","v":12.139620760396495},{"$f":"IF($B385=\"Blank\",0,IF($B$8=\"Private Contract Lighting\",'Opex Weighting'!F$48,'Opex Weighting'!F$46))","v":12.041042902784117},{"$f":"IF($B385=\"Blank\",0,IF($B$8=\"Private Contract Lighting\",'Opex Weighting'!G$48,'Opex Weighting'!G$46))","v":11.913040696908689},{"$f":"IF($B385=\"Blank\",0,IF($B$8=\"Private Contract Lighting\",'Opex Weighting'!H$48,'Opex Weighting'!H$46))","v":11.775235721857506},null,null,null,null,null,null,null,"Indirect Opex",3.3222505282723289,3.32592349599904,3.2989158637764708,3.2638467662763535,3.2172775196331984]
[null,"Indirect Capex",null,null,{"$f":"IF($B386=\"Blank\",0,IF($B$8=\"Private Contract Lighting\",'Capex Weighting'!D$60,'Capex Weighting'!D$62))","v":0},{"$f":"IF($B386=\"Blank\",0,IF($B$8=\"Private Contract Lighting\",'Capex Weighting'!E$60,'Capex Weighting'!E$62))","v":0},{"$f":"IF($B386=\"Blank\",0,IF($B$8=\"Private Contract Lighting\",'Capex Weighting'!F$60,'Capex Weighting'!F$62))","v":0},{"$f":"IF($B386=\"Blank\",0,IF($B$8=\"Private Contract Lighting\",'Capex Weighting'!G$60,'Capex Weighting'!G$62))","v":0},{"$f":"IF($B386=\"Blank\",0,IF($B$8=\"Private Contract Lighting\",'Capex Weighting'!H$60,'Capex Weighting'!H$62))","v":0},null,null,null,null,null,null,null,"Indirect Capex",0,0,0,0,0]
[null,"Opex Overheads Costs per light",null,null,{"$f":"IF($B385=\"Blank\",0,IF($B$8=\"Private Contract Lighting\",'Building Block'!C$40,'Building Block'!C$39))","v":10.567257211169151},{"$f":"IF($B385=\"Blank\",0,IF($B$8=\"Private Contract Lighting\",'Building Block'!D$40,'Building Block'!D$39))","v":10.638037296614067},{"$f":"IF($B385=\"Blank\",0,IF($B$8=\"Private Contract Lighting\",'Building Block'!E$40,'Building Block'!E$39))","v":9.8094883699069495},{"$f":"IF($B385=\"Blank\",0,IF($B$8=\"Private Contract Lighting\",'Building Block'!F$40,'Building Block'!F$39))","v":9.7894714768092079},{"$f":"IF($B385=\"Blank\",0,IF($B$8=\"Private Contract Lighting\",'Building Block'!G$40,'Building Block'!G$39))","v":9.7584857493224391},null,null,null,null,null,null,null,"Opex Overheads Costs per light",2.8872287462210795,2.914530766195635,2.6875310602484794,2.6820469799477284,2.6662529369733439]
[null,{"$f":"Inputs!$AK$68","v":"Bracket UNIT price"},0,null,"NA","NA","NA","NA","NA",null,null,null,null,null,null,null,"Bracket UNIT price","","","","",""]
[null,{"$f":"Inputs!$AA$68","v":"CAPEX Instalation costs"},{"$f":"C394+1","v":1},null,"NA","NA","NA","NA","NA",null,null,null,null,null,null,null,"CAPEX Instalation costs","","","","",""]
[null,{"$f":"Inputs!$Z$68","v":"Luminaire UNIT price"},{"$f":"C395+1","v":2},null,"NA","NA","NA","NA","NA",null,null,null,null,null,null,null,"Luminaire UNIT price","","","","",""]
[null,{"$f":"Inputs!$AA$68","v":"CAPEX Instalation costs"},3,null,"NA","NA","NA","NA","NA",null,null,null,null,null,null,null,"CAPEX Instalation costs","","","","",""]
[null,null,null,null,{"$f":"SUM(E386:E397)","v":47.631532835565267},{"$f":"SUM(F386:F397)","v":47.653096597756374},46.576668351513447,46.234694627472393,45.857247211121425,null,null,null,null,null,null,null,null,{"$f":"ROUND(E398/R$2*100,3)","v":13.013999999999999},{"$f":"ROUND(F398/S$2*100,3)","v":13.055999999999999},{"$f":"ROUND(G398/T$2*100,3)","v":12.760999999999999},{"$f":"ROUND(H398/U$2*100,3)","v":12.667},{"$f":"ROUND(I398/V$2*100,3)","v":12.529}]
[]
[{"$f":"A385+1","v":27},{"$f":"IFERROR(VLOOKUP($A400,Inputs!$B$68:$AN$129,MATCH($B$7,Inputs!$B$68:$AN$68,0),FALSE),\"Blank\")","v":"18W LED Decorative - Top Entry"},null,null,null,null,null,null,null,null,null,null,null,null,null,null,{"$f":"IFERROR(VLOOKUP($A400,Inputs!$B$68:$AN$129,MATCH($B$7,Inputs!$B$68:$AN$68,0),FALSE),\"Blank\")","v":"18W LED Decorative - Top Entry"}]
[null,{"$f":"Inputs!$S$68","v":"Lamp UNIT price Annualised Cost"},{"$f":"Inputs!$Q$68","v":"Lamp Maintenance cycle"},null,{"$f":"IF($B400=\"Blank\",0,VLOOKUP($B400,Inputs!$C$68:$AN$129,MATCH($B401,Inputs!$C$68:$AN$68,0),FALSE))","v":0},{"$f":"IF($B400=\"Blank\",0,VLOOKUP($B400,Inputs!$C$68:$AN$129,MATCH($B401,Inputs!$C$68:$AN$68,0),FALSE))","v":0},{"$f":"IF($B400=\"Blank\",0,VLOOKUP($B400,Inputs!$C$68:$AN$129,MATCH($B401,Inputs!$C$68:$AN$68,0),FALSE))","v":0},{"$f":"IF($B400=\"Blank\",0,VLOOKUP($B400,Inputs!$C$68:$AN$129,MATCH($B401,Inputs!$C$68:$AN$68,0),FALSE))","v":0},{"$f":"IF($B400=\"Blank\",0,VLOOKUP($B400,Inputs!$C$68:$AN$129,MATCH($B401,Inputs!$C$68:$AN$68,0),FALSE))","v":0},null,null,null,null,null,null,null,{"$f":"B401","v":"Lamp UNIT price Annualised Cost"},{"$f":"IF(E401=\"NA\",\"\",E401/R$2*100)","v":0},{"$f":"IF(F401=\"NA\",\"\",F401/S$2*100)","v":0},{"$f":"IF(G401=\"NA\",\"\",G401/T$2*100)","v":0},{"$f":"IF(H401=\"NA\",\"\",H401/U$2*100)","v":0},{"$f":"IF(I401=\"NA\",\"\",I401/V$2*100)","v":0}]
[null,{"$f":"Inputs!$K$68","v":"PE Cell UNIT price Annualised Cost"},{"$f":"Inputs!$I$68","v":"PE Cell Maintenance Cycle"},null,{"$f":"IF($B400=\"Blank\",0,VLOOKUP($B400,Inputs!$C$68:$AN$129,MATCH($B402,Inputs!$C$68:$AN$68,0),FALSE))","v":0.29065627594166676},{"$f":"IF($B400=\"Blank\",0,VLOOKUP($B400,Inputs!$C$68:$AN$129,MATCH($B402,Inputs!$C$68:$AN$68,0),FALSE))","v":0.29065627594166676},{"$f":"IF($B400=\"Blank\",0,VLOOKUP($B400,Inputs!$C$68:$AN$129,MATCH($B402,Inputs!$C$68:$AN$68,0),FALSE))","v":0.29065627594166676},{"$f":"IF($B400=\"Blank\",0,VLOOKUP($B400,Inputs!$C$68:$AN$129,MATCH($B402,Inputs!$C$68:$AN$68,0),FALSE))","v":0.29065627594166676},{"$f":"IF($B400=\"Blank\",0,VLOOKUP($B400,Inputs!$C$68:$AN$129,MATCH($B402,Inputs!$C$68:$AN$68,0),FALSE))","v":0.29065627594166676},null,null,null,null,null,null,null,"PE Cell UNIT price Annualised Cost",7.9414283044171238E-2,7.9631856422374456E-2,7.9631856422374456E-2,7.9631856422374456E-2,7.9414283044171238E-2]
[null,"Corp capex annuity per light",null,null,{"$f":"IF($B400=\"Blank\",0,'Corp Capex Annuity calcs'!F$142)","v":18.582309905017571},{"$f":"IF($B400=\"Blank\",0,'Corp Capex Annuity calcs'!G$142)","v":18.552026408230436},{"$f":"IF($B400=\"Blank\",0,'Corp Capex Annuity calcs'!H$142)","v":18.401377631486287},{"$f":"IF($B400=\"Blank\",0,'Corp Capex Annuity calcs'!I$142)","v":18.205761940470655},{"$f":"IF($B400=\"Blank\",0,'Corp Capex Annuity calcs'!J$142)","v":17.995165449295623},null,null,null,null,null,null,null,"Corp capex annuity per light",5.0771338538299373,5.0827469611590237,5.0414733236948734,4.9878799836905907,4.9167118713922466]
[null,{"$f":"Inputs!$U$68","v":"Lamp Service costs Annualised"},"Labour Portion of Lamp Service costs annualised",null,{"$f":"IF($B400=\"Blank\",0,VLOOKUP($B400,Inputs!$C$68:$AN$129,MATCH($B404,Inputs!$C$68:$AN$68,0),FALSE))+IFERROR(IF($B400=\"Blank\",0,VLOOKUP($B400,Inputs!$C$68:$AN$129,MATCH($C404,Inputs!$C$68:$AN$68,0),FALSE))*('Master Data'!K$42),0)","v":0},{"$f":"IF($B400=\"Blank\",0,VLOOKUP($B400,Inputs!$C$68:$AN$129,MATCH($B404,Inputs!$C$68:$AN$68,0),FALSE))+IFERROR(IF($B400=\"Blank\",0,VLOOKUP($B400,Inputs!$C$68:$AN$129,MATCH($C404,Inputs!$C$68:$AN$68,0),FALSE))*('Master Data'!L$42),0)","v":0},{"$f":"IF($B400=\"Blank\",0,VLOOKUP($B400,Inputs!$C$68:$AN$129,MATCH($B404,Inputs!$C$68:$AN$68,0),FALSE))+IFERROR(IF($B400=\"Blank\",0,VLOOKUP($B400,Inputs!$C$68:$AN$129,MATCH($C404,Inputs!$C$68:$AN$68,0),FALSE))*('Master Data'!M$42),0)","v":0},{"$f":"IF($B400=\"Blank\",0,VLOOKUP($B400,Inputs!$C$68:$AN$129,MATCH($B404,Inputs!$C$68:$AN$68,0),FALSE))+IFERROR(IF($B400=\"Blank\",0,VLOOKUP($B400,Inputs!$C$68:$AN$129,MATCH($C404,Inputs!$C$68:$AN$68,0),FALSE))*('Master Data'!N$42),0)","v":0},{"$f":"IF($B400=\"Blank\",0,VLOOKUP($B400,Inputs!$C$68:$AN$129,MATCH($B404,Inputs!$C$68:$AN$68,0),FALSE))+IFERROR(IF($B400=\"Blank\",0,VLOOKUP($B400,Inputs!$C$68:$AN$129,MATCH($C404,Inputs!$C$68:$AN$68,0),FALSE))*('Master Data'!O$42),0)","v":0},null,null,null,null,null,null,null,"Lamp Service costs Annualised",0,0,0,0,0]
[null,{"$f":"Inputs!$M$68","v":"PE Cell Service costs Annualised"},"Labour Portion of PE Cell Service costs Annualised",null,{"$f":"IF($B400=\"Blank\",0,VLOOKUP($B400,Inputs!$C$68:$AN$129,MATCH($B405,Inputs!$C$68:$AN$68,0),FALSE))+IFERROR(IF($B400=\"Blank\",0,VLOOKUP($B400,Inputs!$C$68:$AN$129,MATCH($C405,Inputs!$C$68:$AN$68,0),FALSE))*('Master Data'!K$42),0)","v":6.0318725099601611},{"$f":"IF($B400=\"Blank\",0,VLOOKUP($B400,Inputs!$C$68:$AN$129,MATCH($B405,Inputs!$C$68:$AN$68,0),FALSE))+IFERROR(IF($B400=\"Blank\",0,VLOOKUP($B400,Inputs!$C$68:$AN$129,MATCH($C405,Inputs!$C$68:$AN$68,0),FALSE))*('Master Data'!L$42),0)","v":6.0327558565737069},{"$f":"IF($B400=\"Blank\",0,VLOOKUP($B400,Inputs!$C$68:$AN$129,MATCH($B405,Inputs!$C$68:$AN$68,0),FALSE))+IFERROR(IF($B400=\"Blank\",0,VLOOKUP($B400,Inputs!$C$68:$AN$129,MATCH($C405,Inputs!$C$68:$AN$68,0),FALSE))*('Master Data'!M$42),0)","v":6.034103171394424},{"$f":"IF($B400=\"Blank\",0,VLOOKUP($B400,Inputs!$C$68:$AN$129,MATCH($B405,Inputs!$C$68:$AN$68,0),FALSE))+IFERROR(IF($B400=\"Blank\",0,VLOOKUP($B400,Inputs!$C$68:$AN$129,MATCH($C405,Inputs!$C$68:$AN$68,0),FALSE))*('Master Data'!N$42),0)","v":6.0357642373421774},{"$f":"IF($B400=\"Blank\",0,VLOOKUP($B400,Inputs!$C$68:$AN$129,MATCH($B405,Inputs!$C$68:$AN$68,0),FALSE))+IFERROR(IF($B400=\"Blank\",0,VLOOKUP($B400,Inputs!$C$68:$AN$129,MATCH($C405,Inputs!$C$68:$AN$68,0),FALSE))*('Master Data'!O$42),0)","v":6.0377040147041869},null,null,null,null,null,null,null,"PE Cell Service costs Annualised",1.6480525983497707,1.652809823718824,1.6531789510669654,1.6536340376279939,1.6496459056568817]
[null,"Indirect Opex",null,null,{"$f":"IF($B400=\"Blank\",0,IF($B$8=\"Private Contract Lighting\",'Opex Weighting'!D$48,'Opex Weighting'!D$46))","v":12.159436933476723},{"$f":"IF($B400=\"Blank\",0,IF($B$8=\"Private Contract Lighting\",'Opex Weighting'!E$48,'Opex Weighting'!E$46))","v":12.139620760396495},{"$f":"IF($B400=\"Blank\",0,IF($B$8=\"Private Contract Lighting\",'Opex Weighting'!F$48,'Opex Weighting'!F$46))","v":12.041042902784117},{"$f":"IF($B400=\"Blank\",0,IF($B$8=\"Private Contract Lighting\",'Opex Weighting'!G$48,'Opex Weighting'!G$46))","v":11.913040696908689},{"$f":"IF($B400=\"Blank\",0,IF($B$8=\"Private Contract Lighting\",'Opex Weighting'!H$48,'Opex Weighting'!H$46))","v":11.775235721857506},null,null,null,null,null,null,null,"Indirect Opex",3.3222505282723289,3.32592349599904,3.2989158637764708,3.2638467662763535,3.2172775196331984]
[null,"Indirect Capex",null,null,{"$f":"IF($B401=\"Blank\",0,IF($B$8=\"Private Contract Lighting\",'Capex Weighting'!D$60,'Capex Weighting'!D$62))","v":0},{"$f":"IF($B401=\"Blank\",0,IF($B$8=\"Private Contract Lighting\",'Capex Weighting'!E$60,'Capex Weighting'!E$62))","v":0},{"$f":"IF($B401=\"Blank\",0,IF($B$8=\"Private Contract Lighting\",'Capex Weighting'!F$60,'Capex Weighting'!F$62))","v":0},{"$f":"IF($B401=\"Blank\",0,IF($B$8=\"Private Contract Lighting\",'Capex Weighting'!G$60,'Capex Weighting'!G$62))","v":0},{"$f":"IF($B401=\"Blank\",0,IF($B$8=\"Private Contract Lighting\",'Capex Weighting'!H$60,'Capex Weighting'!H$62))","v":0},null,null,null,null,null,null,null,"Indirect Capex",0,0,0,0,0]
[null,"Opex Overheads Costs per light",null,null,{"$f":"IF($B400=\"Blank\",0,IF($B$8=\"Private Contract Lighting\",'Building Block'!C$40,'Building Block'!C$39))","v":10.567257211169151},{"$f":"IF($B400=\"Blank\",0,IF($B$8=\"Private Contract Lighting\",'Building Block'!D$40,'Building Block'!D$39))","v":10.638037296614067},{"$f":"IF($B400=\"Blank\",0,IF($B$8=\"Private Contract Lighting\",'Building Block'!E$40,'Building Block'!E$39))","v":9.8094883699069495},{"$f":"IF($B400=\"Blank\",0,IF($B$8=\"Private Contract Lighting\",'Building Block'!F$40,'Building Block'!F$39))","v":9.7894714768092079},{"$f":"IF($B400=\"Blank\",0,IF($B$8=\"Private Contract Lighting\",'Building Block'!G$40,'Building Block'!G$39))","v":9.7584857493224391},null,null,null,null,null,null,null,"Opex Overheads Costs per light",2.8872287462210795,2.914530766195635,2.6875310602484794,2.6820469799477284,2.6662529369733439]
[null,{"$f":"Inputs!$AK$68","v":"Bracket UNIT price"},0,null,"NA","NA","NA","NA","NA",null,null,null,null,null,null,null,"Bracket UNIT price","","","","",""]
[null,{"$f":"Inputs!$AA$68","v":"CAPEX Instalation costs"},{"$f":"C409+1","v":1},null,"NA","NA","NA","NA","NA",null,null,null,null,null,null,null,"CAPEX Instalation costs","","","","",""]
[null,{"$f":"Inputs!$Z$68","v":"Luminaire UNIT price"},{"$f":"C410+1","v":2},null,"NA","NA","NA","NA","NA",null,null,null,null,null,null,null,"Luminaire UNIT price","","","","",""]
[null,{"$f":"Inputs!$AA$68","v":"CAPEX Instalation costs"},3,null,"NA","NA","NA","NA","NA",null,null,null,null,null,null,null,"CAPEX Instalation costs","","","","",""]
[null,null,null,null,{"$f":"SUM(E401:E412)","v":47.631532835565267},{"$f":"SUM(F401:F412)","v":47.653096597756374},46.576668351513447,46.234694627472393,45.857247211121425,null,null,null,null,null,null,null,null,{"$f":"ROUND(E413/R$2*100,3)","v":13.013999999999999},{"$f":"ROUND(F413/S$2*100,3)","v":13.055999999999999},{"$f":"ROUND(G413/T$2*100,3)","v":12.760999999999999},{"$f":"ROUND(H413/U$2*100,3)","v":12.667},{"$f":"ROUND(I413/V$2*100,3)","v":12.529}]
[]
[{"$f":"A400+1","v":28},{"$f":"IFERROR(VLOOKUP($A415,Inputs!$B$68:$AN$129,MATCH($B$7,Inputs!$B$68:$AN$68,0),FALSE),\"Blank\")","v":"25W LED"},null,null,null,null,null,null,null,null,null,null,null,null,null,null,{"$f":"IFERROR(VLOOKUP($A415,Inputs!$B$68:$AN$129,MATCH($B$7,Inputs!$B$68:$AN$68,0),FALSE),\"Blank\")","v":"25W LED"}]
[null,{"$f":"Inputs!$S$68","v":"Lamp UNIT price Annualised Cost"},{"$f":"Inputs!$Q$68","v":"Lamp Maintenance cycle"},null,{"$f":"IF($B415=\"Blank\",0,VLOOKUP($B415,Inputs!$C$68:$AN$129,MATCH($B416,Inputs!$C$68:$AN$68,0),FALSE))","v":0},{"$f":"IF($B415=\"Blank\",0,VLOOKUP($B415,Inputs!$C$68:$AN$129,MATCH($B416,Inputs!$C$68:$AN$68,0),FALSE))","v":0},{"$f":"IF($B415=\"Blank\",0,VLOOKUP($B415,Inputs!$C$68:$AN$129,MATCH($B416,Inputs!$C$68:$AN$68,0),FALSE))","v":0},{"$f":"IF($B415=\"Blank\",0,VLOOKUP($B415,Inputs!$C$68:$AN$129,MATCH($B416,Inputs!$C$68:$AN$68,0),FALSE))","v":0},{"$f":"IF($B415=\"Blank\",0,VLOOKUP($B415,Inputs!$C$68:$AN$129,MATCH($B416,Inputs!$C$68:$AN$68,0),FALSE))","v":0},null,null,null,null,null,null,null,{"$f":"B416","v":"Lamp UNIT price Annualised Cost"},{"$f":"IF(E416=\"NA\",\"\",E416/R$2*100)","v":0},{"$f":"IF(F416=\"NA\",\"\",F416/S$2*100)","v":0},{"$f":"IF(G416=\"NA\",\"\",G416/T$2*100)","v":0},{"$f":"IF(H416=\"NA\",\"\",H416/U$2*100)","v":0},{"$f":"IF(I416=\"NA\",\"\",I416/V$2*100)","v":0}]
[null,{"$f":"Inputs!$K$68","v":"PE Cell UNIT price Annualised Cost"},{"$f":"Inputs!$I$68","v":"PE Cell Maintenance Cycle"},null,{"$f":"IF($B415=\"Blank\",0,VLOOKUP($B415,Inputs!$C$68:$AN$129,MATCH($B417,Inputs!$C$68:$AN$68,0),FALSE))","v":0.29065627594166676},{"$f":"IF($B415=\"Blank\",0,VLOOKUP($B415,Inputs!$C$68:$AN$129,MATCH($B417,Inputs!$C$68:$AN$68,0),FALSE))","v":0.29065627594166676},{"$f":"IF($B415=\"Blank\",0,VLOOKUP($B415,Inputs!$C$68:$AN$129,MATCH($B417,Inputs!$C$68:$AN$68,0),FALSE))","v":0.29065627594166676},{"$f":"IF($B415=\"Blank\",0,VLOOKUP($B415,Inputs!$C$68:$AN$129,MATCH($B417,Inputs!$C$68:$AN$68,0),FALSE))","v":0.29065627594166676},{"$f":"IF($B415=\"Blank\",0,VLOOKUP($B415,Inputs!$C$68:$AN$129,MATCH($B417,Inputs!$C$68:$AN$68,0),FALSE))","v":0.29065627594166676},null,null,null,null,null,null,null,"PE Cell UNIT price Annualised Cost",7.9414283044171238E-2,7.9631856422374456E-2,7.9631856422374456E-2,7.9631856422374456E-2,7.9414283044171238E-2]
[null,"Corp capex annuity per light",null,null,{"$f":"IF($B415=\"Blank\",0,'Corp Capex Annuity calcs'!F$142)","v":18.582309905017571},{"$f":"IF($B415=\"Blank\",0,'Corp Capex Annuity calcs'!G$142)","v":18.552026408230436},{"$f":"IF($B415=\"Blank\",0,'Corp Capex Annuity calcs'!H$142)","v":18.401377631486287},{"$f":"IF($B415=\"Blank\",0,'Corp Capex Annuity calcs'!I$142)","v":18.205761940470655},{"$f":"IF($B415=\"Blank\",0,'Corp Capex Annuity calcs'!J$142)","v":17.995165449295623},null,null,null,null,null,null,null,"Corp capex annuity per light",5.0771338538299373,5.0827469611590237,5.0414733236948734,4.9878799836905907,4.9167118713922466]
[null,{"$f":"Inputs!$U$68","v":"Lamp Service costs Annualised"},"Labour Portion of Lamp Service costs annualised",null,{"$f":"IF($B415=\"Blank\",0,VLOOKUP($B415,Inputs!$C$68:$AN$129,MATCH($B419,Inputs!$C$68:$AN$68,0),FALSE))+IFERROR(IF($B415=\"Blank\",0,VLOOKUP($B415,Inputs!$C$68:$AN$129,MATCH($C419,Inputs!$C$68:$AN$68,0),FALSE))*('Master Data'!K$42),0)","v":0},{"$f":"IF($B415=\"Blank\",0,VLOOKUP($B415,Inputs!$C$68:$AN$129,MATCH($B419,Inputs!$C$68:$AN$68,0),FALSE))+IFERROR(IF($B415=\"Blank\",0,VLOOKUP($B415,Inputs!$C$68:$AN$129,MATCH($C419,Inputs!$C$68:$AN$68,0),FALSE))*('Master Data'!L$42),0)","v":0},{"$f":"IF($B415=\"Blank\",0,VLOOKUP($B415,Inputs!$C$68:$AN$129,MATCH($B419,Inputs!$C$68:$AN$68,0),FALSE))+IFERROR(IF($B415=\"Blank\",0,VLOOKUP($B415,Inputs!$C$68:$AN$129,MATCH($C419,Inputs!$C$68:$AN$68,0),FALSE))*('Master Data'!M$42),0)","v":0},{"$f":"IF($B415=\"Blank\",0,VLOOKUP($B415,Inputs!$C$68:$AN$129,MATCH($B419,Inputs!$C$68:$AN$68,0),FALSE))+IFERROR(IF($B415=\"Blank\",0,VLOOKUP($B415,Inputs!$C$68:$AN$129,MATCH($C419,Inputs!$C$68:$AN$68,0),FALSE))*('Master Data'!N$42),0)","v":0},{"$f":"IF($B415=\"Blank\",0,VLOOKUP($B415,Inputs!$C$68:$AN$129,MATCH($B419,Inputs!$C$68:$AN$68,0),FALSE))+IFERROR(IF($B415=\"Blank\",0,VLOOKUP($B415,Inputs!$C$68:$AN$129,MATCH($C419,Inputs!$C$68:$AN$68,0),FALSE))*('Master Data'!O$42),0)","v":0},null,null,null,null,null,null,null,"Lamp Service costs Annualised",0,0,0,0,0]
[null,{"$f":"Inputs!$M$68","v":"PE Cell Service costs Annualised"},"Labour Portion of PE Cell Service costs Annualised",null,{"$f":"IF($B415=\"Blank\",0,VLOOKUP($B415,Inputs!$C$68:$AN$129,MATCH($B420,Inputs!$C$68:$AN$68,0),FALSE))+IFERROR(IF($B415=\"Blank\",0,VLOOKUP($B415,Inputs!$C$68:$AN$129,MATCH($C420,Inputs!$C$68:$AN$68,0),FALSE))*('Master Data'!K$42),0)","v":6.0318725099601611},{"$f":"IF($B415=\"Blank\",0,VLOOKUP($B415,Inputs!$C$68:$AN$129,MATCH($B420,Inputs!$C$68:$AN$68,0),FALSE))+IFERROR(IF($B415=\"Blank\",0,VLOOKUP($B415,Inputs!$C$68:$AN$129,MATCH($C420,Inputs!$C$68:$AN$68,0),FALSE))*('Master Data'!L$42),0)","v":6.0327558565737069},{"$f":"IF($B415=\"Blank\",0,VLOOKUP($B415,Inputs!$C$68:$AN$129,MATCH($B420,Inputs!$C$68:$AN$68,0),FALSE))+IFERROR(IF($B415=\"Blank\",0,VLOOKUP($B415,Inputs!$C$68:$AN$129,MATCH($C420,Inputs!$C$68:$AN$68,0),FALSE))*('Master Data'!M$42),0)","v":6.034103171394424},{"$f":"IF($B415=\"Blank\",0,VLOOKUP($B415,Inputs!$C$68:$AN$129,MATCH($B420,Inputs!$C$68:$AN$68,0),FALSE))+IFERROR(IF($B415=\"Blank\",0,VLOOKUP($B415,Inputs!$C$68:$AN$129,MATCH($C420,Inputs!$C$68:$AN$68,0),FALSE))*('Master Data'!N$42),0)","v":6.0357642373421774},{"$f":"IF($B415=\"Blank\",0,VLOOKUP($B415,Inputs!$C$68:$AN$129,MATCH($B420,Inputs!$C$68:$AN$68,0),FALSE))+IFERROR(IF($B415=\"Blank\",0,VLOOKUP($B415,Inputs!$C$68:$AN$129,MATCH($C420,Inputs!$C$68:$AN$68,0),FALSE))*('Master Data'!O$42),0)","v":6.0377040147041869},null,null,null,null,null,null,null,"PE Cell Service costs Annualised",1.6480525983497707,1.652809823718824,1.6531789510669654,1.6536340376279939,1.6496459056568817]
[null,"Indirect Opex",null,null,{"$f":"IF($B415=\"Blank\",0,IF($B$8=\"Private Contract Lighting\",'Opex Weighting'!D$48,'Opex Weighting'!D$46))","v":12.159436933476723},{"$f":"IF($B415=\"Blank\",0,IF($B$8=\"Private Contract Lighting\",'Opex Weighting'!E$48,'Opex Weighting'!E$46))","v":12.139620760396495},{"$f":"IF($B415=\"Blank\",0,IF($B$8=\"Private Contract Lighting\",'Opex Weighting'!F$48,'Opex Weighting'!F$46))","v":12.041042902784117},{"$f":"IF($B415=\"Blank\",0,IF($B$8=\"Private Contract Lighting\",'Opex Weighting'!G$48,'Opex Weighting'!G$46))","v":11.913040696908689},{"$f":"IF($B415=\"Blank\",0,IF($B$8=\"Private Contract Lighting\",'Opex Weighting'!H$48,'Opex Weighting'!H$46))","v":11.775235721857506},null,null,null,null,null,null,null,"Indirect Opex",3.3222505282723289,3.32592349599904,3.2989158637764708,3.2638467662763535,3.2172775196331984]
[null,"Indirect Capex",null,null,{"$f":"IF($B416=\"Blank\",0,IF($B$8=\"Private Contract Lighting\",'Capex Weighting'!D$60,'Capex Weighting'!D$62))","v":0},{"$f":"IF($B416=\"Blank\",0,IF($B$8=\"Private Contract Lighting\",'Capex Weighting'!E$60,'Capex Weighting'!E$62))","v":0},{"$f":"IF($B416=\"Blank\",0,IF($B$8=\"Private Contract Lighting\",'Capex Weighting'!F$60,'Capex Weighting'!F$62))","v":0},{"$f":"IF($B416=\"Blank\",0,IF($B$8=\"Private Contract Lighting\",'Capex Weighting'!G$60,'Capex Weighting'!G$62))","v":0},{"$f":"IF($B416=\"Blank\",0,IF($B$8=\"Private Contract Lighting\",'Capex Weighting'!H$60,'Capex Weighting'!H$62))","v":0},null,null,null,null,null,null,null,"Indirect Capex",0,0,0,0,0]
[null,"Opex Overheads Costs per light",null,null,{"$f":"IF($B415=\"Blank\",0,IF($B$8=\"Private Contract Lighting\",'Building Block'!C$40,'Building Block'!C$39))","v":10.567257211169151},{"$f":"IF($B415=\"Blank\",0,IF($B$8=\"Private Contract Lighting\",'Building Block'!D$40,'Building Block'!D$39))","v":10.638037296614067},{"$f":"IF($B415=\"Blank\",0,IF($B$8=\"Private Contract Lighting\",'Building Block'!E$40,'Building Block'!E$39))","v":9.8094883699069495},{"$f":"IF($B415=\"Blank\",0,IF($B$8=\"Private Contract Lighting\",'Building Block'!F$40,'Building Block'!F$39))","v":9.7894714768092079},{"$f":"IF($B415=\"Blank\",0,IF($B$8=\"Private Contract Lighting\",'Building Block'!G$40,'Building Block'!G$39))","v":9.7584857493224391},null,null,null,null,null,null,null,"Opex Overheads Costs per light",2.8872287462210795,2.914530766195635,2.6875310602484794,2.6820469799477284,2.6662529369733439]
[null,{"$f":"Inputs!$AK$68","v":"Bracket UNIT price"},0,null,"NA","NA","NA","NA","NA",null,null,null,null,null,null,null,"Bracket UNIT price","","","","",""]
[null,{"$f":"Inputs!$AA$68","v":"CAPEX Instalation costs"},{"$f":"C424+1","v":1},null,"NA","NA","NA","NA","NA",null,null,null,null,null,null,null,"CAPEX Instalation costs","","","","",""]
[null,{"$f":"Inputs!$Z$68","v":"Luminaire UNIT price"},{"$f":"C425+1","v":2},null,"NA","NA","NA","NA","NA",null,null,null,null,null,null,null,"Luminaire UNIT price","","","","",""]
[null,{"$f":"Inputs!$AA$68","v":"CAPEX Instalation costs"},3,null,"NA","NA","NA","NA","NA",null,null,null,null,null,null,null,"CAPEX Instalation costs","","","","",""]
[null,null,null,null,{"$f":"SUM(E416:E427)","v":47.631532835565267},{"$f":"SUM(F416:F427)","v":47.653096597756374},46.576668351513447,46.234694627472393,45.857247211121425,null,null,null,null,null,null,null,null,{"$f":"ROUND(E428/R$2*100,3)","v":13.013999999999999},{"$f":"ROUND(F428/S$2*100,3)","v":13.055999999999999},{"$f":"ROUND(G428/T$2*100,3)","v":12.760999999999999},{"$f":"ROUND(H428/U$2*100,3)","v":12.667},{"$f":"ROUND(I428/V$2*100,3)","v":12.529}]
[]
[{"$f":"A415+1","v":29},{"$f":"IFERROR(VLOOKUP($A430,Inputs!$B$68:$AN$129,MATCH($B$7,Inputs!$B$68:$AN$68,0),FALSE),\"Blank\")","v":"25W LED Decorative - Bottom Pole Entry"},null,null,null,null,null,null,null,null,null,null,null,null,null,null,{"$f":"IFERROR(VLOOKUP($A430,Inputs!$B$68:$AN$129,MATCH($B$7,Inputs!$B$68:$AN$68,0),FALSE),\"Blank\")","v":"25W LED Decorative - Bottom Pole Entry"}]
[null,{"$f":"Inputs!$S$68","v":"Lamp UNIT price Annualised Cost"},{"$f":"Inputs!$Q$68","v":"Lamp Maintenance cycle"},null,{"$f":"IF($B430=\"Blank\",0,VLOOKUP($B430,Inputs!$C$68:$AN$129,MATCH($B431,Inputs!$C$68:$AN$68,0),FALSE))","v":0},{"$f":"IF($B430=\"Blank\",0,VLOOKUP($B430,Inputs!$C$68:$AN$129,MATCH($B431,Inputs!$C$68:$AN$68,0),FALSE))","v":0},{"$f":"IF($B430=\"Blank\",0,VLOOKUP($B430,Inputs!$C$68:$AN$129,MATCH($B431,Inputs!$C$68:$AN$68,0),FALSE))","v":0},{"$f":"IF($B430=\"Blank\",0,VLOOKUP($B430,Inputs!$C$68:$AN$129,MATCH($B431,Inputs!$C$68:$AN$68,0),FALSE))","v":0},{"$f":"IF($B430=\"Blank\",0,VLOOKUP($B430,Inputs!$C$68:$AN$129,MATCH($B431,Inputs!$C$68:$AN$68,0),FALSE))","v":0},null,null,null,null,null,null,null,{"$f":"B431","v":"Lamp UNIT price Annualised Cost"},{"$f":"IF(E431=\"NA\",\"\",E431/R$2*100)","v":0},{"$f":"IF(F431=\"NA\",\"\",F431/S$2*100)","v":0},{"$f":"IF(G431=\"NA\",\"\",G431/T$2*100)","v":0},{"$f":"IF(H431=\"NA\",\"\",H431/U$2*100)","v":0},{"$f":"IF(I431=\"NA\",\"\",I431/V$2*100)","v":0}]
[null,{"$f":"Inputs!$K$68","v":"PE Cell UNIT price Annualised Cost"},{"$f":"Inputs!$I$68","v":"PE Cell Maintenance Cycle"},null,{"$f":"IF($B430=\"Blank\",0,VLOOKUP($B430,Inputs!$C$68:$AN$129,MATCH($B432,Inputs!$C$68:$AN$68,0),FALSE))","v":0.29065627594166676},{"$f":"IF($B430=\"Blank\",0,VLOOKUP($B430,Inputs!$C$68:$AN$129,MATCH($B432,Inputs!$C$68:$AN$68,0),FALSE))","v":0.29065627594166676},{"$f":"IF($B430=\"Blank\",0,VLOOKUP($B430,Inputs!$C$68:$AN$129,MATCH($B432,Inputs!$C$68:$AN$68,0),FALSE))","v":0.29065627594166676},{"$f":"IF($B430=\"Blank\",0,VLOOKUP($B430,Inputs!$C$68:$AN$129,MATCH($B432,Inputs!$C$68:$AN$68,0),FALSE))","v":0.29065627594166676},{"$f":"IF($B430=\"Blank\",0,VLOOKUP($B430,Inputs!$C$68:$AN$129,MATCH($B432,Inputs!$C$68:$AN$68,0),FALSE))","v":0.29065627594166676},null,null,null,null,null,null,null,"PE Cell UNIT price Annualised Cost",7.9414283044171238E-2,7.9631856422374456E-2,7.9631856422374456E-2,7.9631856422374456E-2,7.9414283044171238E-2]
[null,"Corp capex annuity per light",null,null,{"$f":"IF($B430=\"Blank\",0,'Corp Capex Annuity calcs'!F$142)","v":18.582309905017571},{"$f":"IF($B430=\"Blank\",0,'Corp Capex Annuity calcs'!G$142)","v":18.552026408230436},{"$f":"IF($B430=\"Blank\",0,'Corp Capex Annuity calcs'!H$142)","v":18.401377631486287},{"$f":"IF($B430=\"Blank\",0,'Corp Capex Annuity calcs'!I$142)","v":18.205761940470655},{"$f":"IF($B430=\"Blank\",0,'Corp Capex Annuity calcs'!J$142)","v":17.995165449295623},null,null,null,null,null,null,null,"Corp capex annuity per light",5.0771338538299373,5.0827469611590237,5.0414733236948734,4.9878799836905907,4.9167118713922466]
[null,{"$f":"Inputs!$U$68","v":"Lamp Service costs Annualised"},"Labour Portion of Lamp Service costs annualised",null,{"$f":"IF($B430=\"Blank\",0,VLOOKUP($B430,Inputs!$C$68:$AN$129,MATCH($B434,Inputs!$C$68:$AN$68,0),FALSE))+IFERROR(IF($B430=\"Blank\",0,VLOOKUP($B430,Inputs!$C$68:$AN$129,MATCH($C434,Inputs!$C$68:$AN$68,0),FALSE))*('Master Data'!K$42),0)","v":0},{"$f":"IF($B430=\"Blank\",0,VLOOKUP($B430,Inputs!$C$68:$AN$129,MATCH($B434,Inputs!$C$68:$AN$68,0),FALSE))+IFERROR(IF($B430=\"Blank\",0,VLOOKUP($B430,Inputs!$C$68:$AN$129,MATCH($C434,Inputs!$C$68:$AN$68,0),FALSE))*('Master Data'!L$42),0)","v":0},{"$f":"IF($B430=\"Blank\",0,VLOOKUP($B430,Inputs!$C$68:$AN$129,MATCH($B434,Inputs!$C$68:$AN$68,0),FALSE))+IFERROR(IF($B430=\"Blank\",0,VLOOKUP($B430,Inputs!$C$68:$AN$129,MATCH($C434,Inputs!$C$68:$AN$68,0),FALSE))*('Master Data'!M$42),0)","v":0},{"$f":"IF($B430=\"Blank\",0,VLOOKUP($B430,Inputs!$C$68:$AN$129,MATCH($B434,Inputs!$C$68:$AN$68,0),FALSE))+IFERROR(IF($B430=\"Blank\",0,VLOOKUP($B430,Inputs!$C$68:$AN$129,MATCH($C434,Inputs!$C$68:$AN$68,0),FALSE))*('Master Data'!N$42),0)","v":0},{"$f":"IF($B430=\"Blank\",0,VLOOKUP($B430,Inputs!$C$68:$AN$129,MATCH($B434,Inputs!$C$68:$AN$68,0),FALSE))+IFERROR(IF($B430=\"Blank\",0,VLOOKUP($B430,Inputs!$C$68:$AN$129,MATCH($C434,Inputs!$C$68:$AN$68,0),FALSE))*('Master Data'!O$42),0)","v":0},null,null,null,null,null,null,null,"Lamp Service costs Annualised",0,0,0,0,0]
[null,{"$f":"Inputs!$M$68","v":"PE Cell Service costs Annualised"},"Labour Portion of PE Cell Service costs Annualised",null,{"$f":"IF($B430=\"Blank\",0,VLOOKUP($B430,Inputs!$C$68:$AN$129,MATCH($B435,Inputs!$C$68:$AN$68,0),FALSE))+IFERROR(IF($B430=\"Blank\",0,VLOOKUP($B430,Inputs!$C$68:$AN$129,MATCH($C435,Inputs!$C$68:$AN$68,0),FALSE))*('Master Data'!K$42),0)","v":6.0318725099601611},{"$f":"IF($B430=\"Blank\",0,VLOOKUP($B430,Inputs!$C$68:$AN$129,MATCH($B435,Inputs!$C$68:$AN$68,0),FALSE))+IFERROR(IF($B430=\"Blank\",0,VLOOKUP($B430,Inputs!$C$68:$AN$129,MATCH($C435,Inputs!$C$68:$AN$68,0),FALSE))*('Master Data'!L$42),0)","v":6.0327558565737069},{"$f":"IF($B430=\"Blank\",0,VLOOKUP($B430,Inputs!$C$68:$AN$129,MATCH($B435,Inputs!$C$68:$AN$68,0),FALSE))+IFERROR(IF($B430=\"Blank\",0,VLOOKUP($B430,Inputs!$C$68:$AN$129,MATCH($C435,Inputs!$C$68:$AN$68,0),FALSE))*('Master Data'!M$42),0)","v":6.034103171394424},{"$f":"IF($B430=\"Blank\",0,VLOOKUP($B430,Inputs!$C$68:$AN$129,MATCH($B435,Inputs!$C$68:$AN$68,0),FALSE))+IFERROR(IF($B430=\"Blank\",0,VLOOKUP($B430,Inputs!$C$68:$AN$129,MATCH($C435,Inputs!$C$68:$AN$68,0),FALSE))*('Master Data'!N$42),0)","v":6.0357642373421774},{"$f":"IF($B430=\"Blank\",0,VLOOKUP($B430,Inputs!$C$68:$AN$129,MATCH($B435,Inputs!$C$68:$AN$68,0),FALSE))+IFERROR(IF($B430=\"Blank\",0,VLOOKUP($B430,Inputs!$C$68:$AN$129,MATCH($C435,Inputs!$C$68:$AN$68,0),FALSE))*('Master Data'!O$42),0)","v":6.0377040147041869},null,null,null,null,null,null,null,"PE Cell Service costs Annualised",1.6480525983497707,1.652809823718824,1.6531789510669654,1.6536340376279939,1.6496459056568817]
[null,"Indirect Opex",null,null,{"$f":"IF($B430=\"Blank\",0,IF($B$8=\"Private Contract Lighting\",'Opex Weighting'!D$48,'Opex Weighting'!D$46))","v":12.159436933476723},{"$f":"IF($B430=\"Blank\",0,IF($B$8=\"Private Contract Lighting\",'Opex Weighting'!E$48,'Opex Weighting'!E$46))","v":12.139620760396495},{"$f":"IF($B430=\"Blank\",0,IF($B$8=\"Private Contract Lighting\",'Opex Weighting'!F$48,'Opex Weighting'!F$46))","v":12.041042902784117},{"$f":"IF($B430=\"Blank\",0,IF($B$8=\"Private Contract Lighting\",'Opex Weighting'!G$48,'Opex Weighting'!G$46))","v":11.913040696908689},{"$f":"IF($B430=\"Blank\",0,IF($B$8=\"Private Contract Lighting\",'Opex Weighting'!H$48,'Opex Weighting'!H$46))","v":11.775235721857506},null,null,null,null,null,null,null,"Indirect Opex",3.3222505282723289,3.32592349599904,3.2989158637764708,3.2638467662763535,3.2172775196331984]
[null,"Indirect Capex",null,null,{"$f":"IF($B431=\"Blank\",0,IF($B$8=\"Private Contract Lighting\",'Capex Weighting'!D$60,'Capex Weighting'!D$62))","v":0},{"$f":"IF($B431=\"Blank\",0,IF($B$8=\"Private Contract Lighting\",'Capex Weighting'!E$60,'Capex Weighting'!E$62))","v":0},{"$f":"IF($B431=\"Blank\",0,IF($B$8=\"Private Contract Lighting\",'Capex Weighting'!F$60,'Capex Weighting'!F$62))","v":0},{"$f":"IF($B431=\"Blank\",0,IF($B$8=\"Private Contract Lighting\",'Capex Weighting'!G$60,'Capex Weighting'!G$62))","v":0},{"$f":"IF($B431=\"Blank\",0,IF($B$8=\"Private Contract Lighting\",'Capex Weighting'!H$60,'Capex Weighting'!H$62))","v":0},null,null,null,null,null,null,null,"Indirect Capex",0,0,0,0,0]
[null,"Opex Overheads Costs per light",null,null,{"$f":"IF($B430=\"Blank\",0,IF($B$8=\"Private Contract Lighting\",'Building Block'!C$40,'Building Block'!C$39))","v":10.567257211169151},{"$f":"IF($B430=\"Blank\",0,IF($B$8=\"Private Contract Lighting\",'Building Block'!D$40,'Building Block'!D$39))","v":10.638037296614067},{"$f":"IF($B430=\"Blank\",0,IF($B$8=\"Private Contract Lighting\",'Building Block'!E$40,'Building Block'!E$39))","v":9.8094883699069495},{"$f":"IF($B430=\"Blank\",0,IF($B$8=\"Private Contract Lighting\",'Building Block'!F$40,'Building Block'!F$39))","v":9.7894714768092079},{"$f":"IF($B430=\"Blank\",0,IF($B$8=\"Private Contract Lighting\",'Building Block'!G$40,'Building Block'!G$39))","v":9.7584857493224391},null,null,null,null,null,null,null,"Opex Overheads Costs per light",2.8872287462210795,2.914530766195635,2.6875310602484794,2.6820469799477284,2.6662529369733439]
[null,{"$f":"Inputs!$AK$68","v":"Bracket UNIT price"},0,null,"NA","NA","NA","NA","NA",null,null,null,null,null,null,null,"Bracket UNIT price","","","","",""]
[null,{"$f":"Inputs!$AA$68","v":"CAPEX Instalation costs"},{"$f":"C439+1","v":1},null,"NA","NA","NA","NA","NA",null,null,null,null,null,null,null,"CAPEX Instalation costs","","","","",""]
[null,{"$f":"Inputs!$Z$68","v":"Luminaire UNIT price"},{"$f":"C440+1","v":2},null,"NA","NA","NA","NA","NA",null,null,null,null,null,null,null,"Luminaire UNIT price","","","","",""]
[null,{"$f":"Inputs!$AA$68","v":"CAPEX Instalation costs"},3,null,"NA","NA","NA","NA","NA",null,null,null,null,null,null,null,"CAPEX Instalation costs","","","","",""]
[null,null,null,null,{"$f":"SUM(E431:E442)","v":47.631532835565267},{"$f":"SUM(F431:F442)","v":47.653096597756374},46.576668351513447,46.234694627472393,45.857247211121425,null,null,null,null,null,null,null,null,{"$f":"ROUND(E443/R$2*100,3)","v":13.013999999999999},{"$f":"ROUND(F443/S$2*100,3)","v":13.055999999999999},{"$f":"ROUND(G443/T$2*100,3)","v":12.760999999999999},{"$f":"ROUND(H443/U$2*100,3)","v":12.667},{"$f":"ROUND(I443/V$2*100,3)","v":12.529}]
[]
[{"$f":"A430+1","v":30},{"$f":"IFERROR(VLOOKUP($A445,Inputs!$B$68:$AN$129,MATCH($B$7,Inputs!$B$68:$AN$68,0),FALSE),\"Blank\")","v":"25W LED Decorative - Side Entry"},null,null,null,null,null,null,null,null,null,null,null,null,null,null,{"$f":"IFERROR(VLOOKUP($A445,Inputs!$B$68:$AN$129,MATCH($B$7,Inputs!$B$68:$AN$68,0),FALSE),\"Blank\")","v":"25W LED Decorative - Side Entry"}]
[null,{"$f":"Inputs!$S$68","v":"Lamp UNIT price Annualised Cost"},{"$f":"Inputs!$Q$68","v":"Lamp Maintenance cycle"},null,{"$f":"IF($B445=\"Blank\",0,VLOOKUP($B445,Inputs!$C$68:$AN$129,MATCH($B446,Inputs!$C$68:$AN$68,0),FALSE))","v":0},{"$f":"IF($B445=\"Blank\",0,VLOOKUP($B445,Inputs!$C$68:$AN$129,MATCH($B446,Inputs!$C$68:$AN$68,0),FALSE))","v":0},{"$f":"IF($B445=\"Blank\",0,VLOOKUP($B445,Inputs!$C$68:$AN$129,MATCH($B446,Inputs!$C$68:$AN$68,0),FALSE))","v":0},{"$f":"IF($B445=\"Blank\",0,VLOOKUP($B445,Inputs!$C$68:$AN$129,MATCH($B446,Inputs!$C$68:$AN$68,0),FALSE))","v":0},{"$f":"IF($B445=\"Blank\",0,VLOOKUP($B445,Inputs!$C$68:$AN$129,MATCH($B446,Inputs!$C$68:$AN$68,0),FALSE))","v":0},null,null,null,null,null,null,null,{"$f":"B446","v":"Lamp UNIT price Annualised Cost"},{"$f":"IF(E446=\"NA\",\"\",E446/R$2*100)","v":0},{"$f":"IF(F446=\"NA\",\"\",F446/S$2*100)","v":0},{"$f":"IF(G446=\"NA\",\"\",G446/T$2*100)","v":0},{"$f":"IF(H446=\"NA\",\"\",H446/U$2*100)","v":0},{"$f":"IF(I446=\"NA\",\"\",I446/V$2*100)","v":0}]
[null,{"$f":"Inputs!$K$68","v":"PE Cell UNIT price Annualised Cost"},{"$f":"Inputs!$I$68","v":"PE Cell Maintenance Cycle"},null,{"$f":"IF($B445=\"Blank\",0,VLOOKUP($B445,Inputs!$C$68:$AN$129,MATCH($B447,Inputs!$C$68:$AN$68,0),FALSE))","v":0.29065627594166676},{"$f":"IF($B445=\"Blank\",0,VLOOKUP($B445,Inputs!$C$68:$AN$129,MATCH($B447,Inputs!$C$68:$AN$68,0),FALSE))","v":0.29065627594166676},{"$f":"IF($B445=\"Blank\",0,VLOOKUP($B445,Inputs!$C$68:$AN$129,MATCH($B447,Inputs!$C$68:$AN$68,0),FALSE))","v":0.29065627594166676},{"$f":"IF($B445=\"Blank\",0,VLOOKUP($B445,Inputs!$C$68:$AN$129,MATCH($B447,Inputs!$C$68:$AN$68,0),FALSE))","v":0.29065627594166676},{"$f":"IF($B445=\"Blank\",0,VLOOKUP($B445,Inputs!$C$68:$AN$129,MATCH($B447,Inputs!$C$68:$AN$68,0),FALSE))","v":0.29065627594166676},null,null,null,null,null,null,null,"PE Cell UNIT price Annualised Cost",7.9414283044171238E-2,7.9631856422374456E-2,7.9631856422374456E-2,7.9631856422374456E-2,7.9414283044171238E-2]
[null,"Corp capex annuity per light",null,null,{"$f":"IF($B445=\"Blank\",0,'Corp Capex Annuity calcs'!F$142)","v":18.582309905017571},{"$f":"IF($B445=\"Blank\",0,'Corp Capex Annuity calcs'!G$142)","v":18.552026408230436},{"$f":"IF($B445=\"Blank\",0,'Corp Capex Annuity calcs'!H$142)","v":18.401377631486287},{"$f":"IF($B445=\"Blank\",0,'Corp Capex Annuity calcs'!I$142)","v":18.205761940470655},{"$f":"IF($B445=\"Blank\",0,'Corp Capex Annuity calcs'!J$142)","v":17.995165449295623},null,null,null,null,null,null,null,"Corp capex annuity per light",5.0771338538299373,5.0827469611590237,5.0414733236948734,4.9878799836905907,4.9167118713922466]
[null,{"$f":"Inputs!$U$68","v":"Lamp Service costs Annualised"},"Labour Portion of Lamp Service costs annualised",null,{"$f":"IF($B445=\"Blank\",0,VLOOKUP($B445,Inputs!$C$68:$AN$129,MATCH($B449,Inputs!$C$68:$AN$68,0),FALSE))+IFERROR(IF($B445=\"Blank\",0,VLOOKUP($B445,Inputs!$C$68:$AN$129,MATCH($C449,Inputs!$C$68:$AN$68,0),FALSE))*('Master Data'!K$42),0)","v":0},{"$f":"IF($B445=\"Blank\",0,VLOOKUP($B445,Inputs!$C$68:$AN$129,MATCH($B449,Inputs!$C$68:$AN$68,0),FALSE))+IFERROR(IF($B445=\"Blank\",0,VLOOKUP($B445,Inputs!$C$68:$AN$129,MATCH($C449,Inputs!$C$68:$AN$68,0),FALSE))*('Master Data'!L$42),0)","v":0},{"$f":"IF($B445=\"Blank\",0,VLOOKUP($B445,Inputs!$C$68:$AN$129,MATCH($B449,Inputs!$C$68:$AN$68,0),FALSE))+IFERROR(IF($B445=\"Blank\",0,VLOOKUP($B445,Inputs!$C$68:$AN$129,MATCH($C449,Inputs!$C$68:$AN$68,0),FALSE))*('Master Data'!M$42),0)","v":0},{"$f":"IF($B445=\"Blank\",0,VLOOKUP($B445,Inputs!$C$68:$AN$129,MATCH($B449,Inputs!$C$68:$AN$68,0),FALSE))+IFERROR(IF($B445=\"Blank\",0,VLOOKUP($B445,Inputs!$C$68:$AN$129,MATCH($C449,Inputs!$C$68:$AN$68,0),FALSE))*('Master Data'!N$42),0)","v":0},{"$f":"IF($B445=\"Blank\",0,VLOOKUP($B445,Inputs!$C$68:$AN$129,MATCH($B449,Inputs!$C$68:$AN$68,0),FALSE))+IFERROR(IF($B445=\"Blank\",0,VLOOKUP($B445,Inputs!$C$68:$AN$129,MATCH($C449,Inputs!$C$68:$AN$68,0),FALSE))*('Master Data'!O$42),0)","v":0},null,null,null,null,null,null,null,"Lamp Service costs Annualised",0,0,0,0,0]
[null,{"$f":"Inputs!$M$68","v":"PE Cell Service costs Annualised"},"Labour Portion of PE Cell Service costs Annualised",null,{"$f":"IF($B445=\"Blank\",0,VLOOKUP($B445,Inputs!$C$68:$AN$129,MATCH($B450,Inputs!$C$68:$AN$68,0),FALSE))+IFERROR(IF($B445=\"Blank\",0,VLOOKUP($B445,Inputs!$C$68:$AN$129,MATCH($C450,Inputs!$C$68:$AN$68,0),FALSE))*('Master Data'!K$42),0)","v":6.0318725099601611},{"$f":"IF($B445=\"Blank\",0,VLOOKUP($B445,Inputs!$C$68:$AN$129,MATCH($B450,Inputs!$C$68:$AN$68,0),FALSE))+IFERROR(IF($B445=\"Blank\",0,VLOOKUP($B445,Inputs!$C$68:$AN$129,MATCH($C450,Inputs!$C$68:$AN$68,0),FALSE))*('Master Data'!L$42),0)","v":6.0327558565737069},{"$f":"IF($B445=\"Blank\",0,VLOOKUP($B445,Inputs!$C$68:$AN$129,MATCH($B450,Inputs!$C$68:$AN$68,0),FALSE))+IFERROR(IF($B445=\"Blank\",0,VLOOKUP($B445,Inputs!$C$68:$AN$129,MATCH($C450,Inputs!$C$68:$AN$68,0),FALSE))*('Master Data'!M$42),0)","v":6.034103171394424},{"$f":"IF($B445=\"Blank\",0,VLOOKUP($B445,Inputs!$C$68:$AN$129,MATCH($B450,Inputs!$C$68:$AN$68,0),FALSE))+IFERROR(IF($B445=\"Blank\",0,VLOOKUP($B445,Inputs!$C$68:$AN$129,MATCH($C450,Inputs!$C$68:$AN$68,0),FALSE))*('Master Data'!N$42),0)","v":6.0357642373421774},{"$f":"IF($B445=\"Blank\",0,VLOOKUP($B445,Inputs!$C$68:$AN$129,MATCH($B450,Inputs!$C$68:$AN$68,0),FALSE))+IFERROR(IF($B445=\"Blank\",0,VLOOKUP($B445,Inputs!$C$68:$AN$129,MATCH($C450,Inputs!$C$68:$AN$68,0),FALSE))*('Master Data'!O$42),0)","v":6.0377040147041869},null,null,null,null,null,null,null,"PE Cell Service costs Annualised",1.6480525983497707,1.652809823718824,1.6531789510669654,1.6536340376279939,1.6496459056568817]
[null,"Indirect Opex",null,null,{"$f":"IF($B445=\"Blank\",0,IF($B$8=\"Private Contract Lighting\",'Opex Weighting'!D$48,'Opex Weighting'!D$46))","v":12.159436933476723},{"$f":"IF($B445=\"Blank\",0,IF($B$8=\"Private Contract Lighting\",'Opex Weighting'!E$48,'Opex Weighting'!E$46))","v":12.139620760396495},{"$f":"IF($B445=\"Blank\",0,IF($B$8=\"Private Contract Lighting\",'Opex Weighting'!F$48,'Opex Weighting'!F$46))","v":12.041042902784117},{"$f":"IF($B445=\"Blank\",0,IF($B$8=\"Private Contract Lighting\",'Opex Weighting'!G$48,'Opex Weighting'!G$46))","v":11.913040696908689},{"$f":"IF($B445=\"Blank\",0,IF($B$8=\"Private Contract Lighting\",'Opex Weighting'!H$48,'Opex Weighting'!H$46))","v":11.775235721857506},null,null,null,null,null,null,null,"Indirect Opex",3.3222505282723289,3.32592349599904,3.2989158637764708,3.2638467662763535,3.2172775196331984]
[null,"Indirect Capex",null,null,{"$f":"IF($B446=\"Blank\",0,IF($B$8=\"Private Contract Lighting\",'Capex Weighting'!D$60,'Capex Weighting'!D$62))","v":0},{"$f":"IF($B446=\"Blank\",0,IF($B$8=\"Private Contract Lighting\",'Capex Weighting'!E$60,'Capex Weighting'!E$62))","v":0},{"$f":"IF($B446=\"Blank\",0,IF($B$8=\"Private Contract Lighting\",'Capex Weighting'!F$60,'Capex Weighting'!F$62))","v":0},{"$f":"IF($B446=\"Blank\",0,IF($B$8=\"Private Contract Lighting\",'Capex Weighting'!G$60,'Capex Weighting'!G$62))","v":0},{"$f":"IF($B446=\"Blank\",0,IF($B$8=\"Private Contract Lighting\",'Capex Weighting'!H$60,'Capex Weighting'!H$62))","v":0},null,null,null,null,null,null,null,"Indirect Capex",0,0,0,0,0]
[null,"Opex Overheads Costs per light",null,null,{"$f":"IF($B445=\"Blank\",0,IF($B$8=\"Private Contract Lighting\",'Building Block'!C$40,'Building Block'!C$39))","v":10.567257211169151},{"$f":"IF($B445=\"Blank\",0,IF($B$8=\"Private Contract Lighting\",'Building Block'!D$40,'Building Block'!D$39))","v":10.638037296614067},{"$f":"IF($B445=\"Blank\",0,IF($B$8=\"Private Contract Lighting\",'Building Block'!E$40,'Building Block'!E$39))","v":9.8094883699069495},{"$f":"IF($B445=\"Blank\",0,IF($B$8=\"Private Contract Lighting\",'Building Block'!F$40,'Building Block'!F$39))","v":9.7894714768092079},{"$f":"IF($B445=\"Blank\",0,IF($B$8=\"Private Contract Lighting\",'Building Block'!G$40,'Building Block'!G$39))","v":9.7584857493224391},null,null,null,null,null,null,null,"Opex Overheads Costs per light",2.8872287462210795,2.914530766195635,2.6875310602484794,2.6820469799477284,2.6662529369733439]
[null,{"$f":"Inputs!$AK$68","v":"Bracket UNIT price"},0,null,"NA","NA","NA","NA","NA",null,null,null,null,null,null,null,"Bracket UNIT price","","","","",""]
[null,{"$f":"Inputs!$AA$68","v":"CAPEX Instalation costs"},{"$f":"C454+1","v":1},null,"NA","NA","NA","NA","NA",null,null,null,null,null,null,null,"CAPEX Instalation costs","","","","",""]
[null,{"$f":"Inputs!$Z$68","v":"Luminaire UNIT price"},{"$f":"C455+1","v":2},null,"NA","NA","NA","NA","NA",null,null,null,null,null,null,null,"Luminaire UNIT price","","","","",""]
[null,{"$f":"Inputs!$AA$68","v":"CAPEX Instalation costs"},3,null,"NA","NA","NA","NA","NA",null,null,null,null,null,null,null,"CAPEX Instalation costs","","","","",""]
[null,null,null,null,{"$f":"SUM(E446:E457)","v":47.631532835565267},{"$f":"SUM(F446:F457)","v":47.653096597756374},46.576668351513447,46.234694627472393,45.857247211121425,null,null,null,null,null,null,null,null,{"$f":"ROUND(E458/R$2*100,3)","v":13.013999999999999},{"$f":"ROUND(F458/S$2*100,3)","v":13.055999999999999},{"$f":"ROUND(G458/T$2*100,3)","v":12.760999999999999},{"$f":"ROUND(H458/U$2*100,3)","v":12.667},{"$f":"ROUND(I458/V$2*100,3)","v":12.529}]
[]
[{"$f":"A445+1","v":31},{"$f":"IFERROR(VLOOKUP($A460,Inputs!$B$68:$AN$129,MATCH($B$7,Inputs!$B$68:$AN$68,0),FALSE),\"Blank\")","v":"25W LED Decorative - Top Entry"},null,null,null,null,null,null,null,null,null,null,null,null,null,null,{"$f":"IFERROR(VLOOKUP($A460,Inputs!$B$68:$AN$129,MATCH($B$7,Inputs!$B$68:$AN$68,0),FALSE),\"Blank\")","v":"25W LED Decorative - Top Entry"}]
[null,{"$f":"Inputs!$S$68","v":"Lamp UNIT price Annualised Cost"},{"$f":"Inputs!$Q$68","v":"Lamp Maintenance cycle"},null,{"$f":"IF($B460=\"Blank\",0,VLOOKUP($B460,Inputs!$C$68:$AN$129,MATCH($B461,Inputs!$C$68:$AN$68,0),FALSE))","v":0},{"$f":"IF($B460=\"Blank\",0,VLOOKUP($B460,Inputs!$C$68:$AN$129,MATCH($B461,Inputs!$C$68:$AN$68,0),FALSE))","v":0},{"$f":"IF($B460=\"Blank\",0,VLOOKUP($B460,Inputs!$C$68:$AN$129,MATCH($B461,Inputs!$C$68:$AN$68,0),FALSE))","v":0},{"$f":"IF($B460=\"Blank\",0,VLOOKUP($B460,Inputs!$C$68:$AN$129,MATCH($B461,Inputs!$C$68:$AN$68,0),FALSE))","v":0},{"$f":"IF($B460=\"Blank\",0,VLOOKUP($B460,Inputs!$C$68:$AN$129,MATCH($B461,Inputs!$C$68:$AN$68,0),FALSE))","v":0},null,null,null,null,null,null,null,{"$f":"B461","v":"Lamp UNIT price Annualised Cost"},{"$f":"IF(E461=\"NA\",\"\",E461/R$2*100)","v":0},{"$f":"IF(F461=\"NA\",\"\",F461/S$2*100)","v":0},{"$f":"IF(G461=\"NA\",\"\",G461/T$2*100)","v":0},{"$f":"IF(H461=\"NA\",\"\",H461/U$2*100)","v":0},{"$f":"IF(I461=\"NA\",\"\",I461/V$2*100)","v":0}]
[null,{"$f":"Inputs!$K$68","v":"PE Cell UNIT price Annualised Cost"},{"$f":"Inputs!$I$68","v":"PE Cell Maintenance Cycle"},null,{"$f":"IF($B460=\"Blank\",0,VLOOKUP($B460,Inputs!$C$68:$AN$129,MATCH($B462,Inputs!$C$68:$AN$68,0),FALSE))","v":0.29065627594166676},{"$f":"IF($B460=\"Blank\",0,VLOOKUP($B460,Inputs!$C$68:$AN$129,MATCH($B462,Inputs!$C$68:$AN$68,0),FALSE))","v":0.29065627594166676},{"$f":"IF($B460=\"Blank\",0,VLOOKUP($B460,Inputs!$C$68:$AN$129,MATCH($B462,Inputs!$C$68:$AN$68,0),FALSE))","v":0.29065627594166676},{"$f":"IF($B460=\"Blank\",0,VLOOKUP($B460,Inputs!$C$68:$AN$129,MATCH($B462,Inputs!$C$68:$AN$68,0),FALSE))","v":0.29065627594166676},{"$f":"IF($B460=\"Blank\",0,VLOOKUP($B460,Inputs!$C$68:$AN$129,MATCH($B462,Inputs!$C$68:$AN$68,0),FALSE))","v":0.29065627594166676},null,null,null,null,null,null,null,"PE Cell UNIT price Annualised Cost",7.9414283044171238E-2,7.9631856422374456E-2,7.9631856422374456E-2,7.9631856422374456E-2,7.9414283044171238E-2]
[null,"Corp capex annuity per light",null,null,{"$f":"IF($B460=\"Blank\",0,'Corp Capex Annuity calcs'!F$142)","v":18.582309905017571},{"$f":"IF($B460=\"Blank\",0,'Corp Capex Annuity calcs'!G$142)","v":18.552026408230436},{"$f":"IF($B460=\"Blank\",0,'Corp Capex Annuity calcs'!H$142)","v":18.401377631486287},{"$f":"IF($B460=\"Blank\",0,'Corp Capex Annuity calcs'!I$142)","v":18.205761940470655},{"$f":"IF($B460=\"Blank\",0,'Corp Capex Annuity calcs'!J$142)","v":17.995165449295623},null,null,null,null,null,null,null,"Corp capex annuity per light",5.0771338538299373,5.0827469611590237,5.0414733236948734,4.9878799836905907,4.9167118713922466]
[null,{"$f":"Inputs!$U$68","v":"Lamp Service costs Annualised"},"Labour Portion of Lamp Service costs annualised",null,{"$f":"IF($B460=\"Blank\",0,VLOOKUP($B460,Inputs!$C$68:$AN$129,MATCH($B464,Inputs!$C$68:$AN$68,0),FALSE))+IFERROR(IF($B460=\"Blank\",0,VLOOKUP($B460,Inputs!$C$68:$AN$129,MATCH($C464,Inputs!$C$68:$AN$68,0),FALSE))*('Master Data'!K$42),0)","v":0},{"$f":"IF($B460=\"Blank\",0,VLOOKUP($B460,Inputs!$C$68:$AN$129,MATCH($B464,Inputs!$C$68:$AN$68,0),FALSE))+IFERROR(IF($B460=\"Blank\",0,VLOOKUP($B460,Inputs!$C$68:$AN$129,MATCH($C464,Inputs!$C$68:$AN$68,0),FALSE))*('Master Data'!L$42),0)","v":0},{"$f":"IF($B460=\"Blank\",0,VLOOKUP($B460,Inputs!$C$68:$AN$129,MATCH($B464,Inputs!$C$68:$AN$68,0),FALSE))+IFERROR(IF($B460=\"Blank\",0,VLOOKUP($B460,Inputs!$C$68:$AN$129,MATCH($C464,Inputs!$C$68:$AN$68,0),FALSE))*('Master Data'!M$42),0)","v":0},{"$f":"IF($B460=\"Blank\",0,VLOOKUP($B460,Inputs!$C$68:$AN$129,MATCH($B464,Inputs!$C$68:$AN$68,0),FALSE))+IFERROR(IF($B460=\"Blank\",0,VLOOKUP($B460,Inputs!$C$68:$AN$129,MATCH($C464,Inputs!$C$68:$AN$68,0),FALSE))*('Master Data'!N$42),0)","v":0},{"$f":"IF($B460=\"Blank\",0,VLOOKUP($B460,Inputs!$C$68:$AN$129,MATCH($B464,Inputs!$C$68:$AN$68,0),FALSE))+IFERROR(IF($B460=\"Blank\",0,VLOOKUP($B460,Inputs!$C$68:$AN$129,MATCH($C464,Inputs!$C$68:$AN$68,0),FALSE))*('Master Data'!O$42),0)","v":0},null,null,null,null,null,null,null,"Lamp Service costs Annualised",0,0,0,0,0]
[null,{"$f":"Inputs!$M$68","v":"PE Cell Service costs Annualised"},"Labour Portion of PE Cell Service costs Annualised",null,{"$f":"IF($B460=\"Blank\",0,VLOOKUP($B460,Inputs!$C$68:$AN$129,MATCH($B465,Inputs!$C$68:$AN$68,0),FALSE))+IFERROR(IF($B460=\"Blank\",0,VLOOKUP($B460,Inputs!$C$68:$AN$129,MATCH($C465,Inputs!$C$68:$AN$68,0),FALSE))*('Master Data'!K$42),0)","v":6.0318725099601611},{"$f":"IF($B460=\"Blank\",0,VLOOKUP($B460,Inputs!$C$68:$AN$129,MATCH($B465,Inputs!$C$68:$AN$68,0),FALSE))+IFERROR(IF($B460=\"Blank\",0,VLOOKUP($B460,Inputs!$C$68:$AN$129,MATCH($C465,Inputs!$C$68:$AN$68,0),FALSE))*('Master Data'!L$42),0)","v":6.0327558565737069},{"$f":"IF($B460=\"Blank\",0,VLOOKUP($B460,Inputs!$C$68:$AN$129,MATCH($B465,Inputs!$C$68:$AN$68,0),FALSE))+IFERROR(IF($B460=\"Blank\",0,VLOOKUP($B460,Inputs!$C$68:$AN$129,MATCH($C465,Inputs!$C$68:$AN$68,0),FALSE))*('Master Data'!M$42),0)","v":6.034103171394424},{"$f":"IF($B460=\"Blank\",0,VLOOKUP($B460,Inputs!$C$68:$AN$129,MATCH($B465,Inputs!$C$68:$AN$68,0),FALSE))+IFERROR(IF($B460=\"Blank\",0,VLOOKUP($B460,Inputs!$C$68:$AN$129,MATCH($C465,Inputs!$C$68:$AN$68,0),FALSE))*('Master Data'!N$42),0)","v":6.0357642373421774},{"$f":"IF($B460=\"Blank\",0,VLOOKUP($B460,Inputs!$C$68:$AN$129,MATCH($B465,Inputs!$C$68:$AN$68,0),FALSE))+IFERROR(IF($B460=\"Blank\",0,VLOOKUP($B460,Inputs!$C$68:$AN$129,MATCH($C465,Inputs!$C$68:$AN$68,0),FALSE))*('Master Data'!O$42),0)","v":6.0377040147041869},null,null,null,null,null,null,null,"PE Cell Service costs Annualised",1.6480525983497707,1.652809823718824,1.6531789510669654,1.6536340376279939,1.6496459056568817]
[null,"Indirect Opex",null,null,{"$f":"IF($B460=\"Blank\",0,IF($B$8=\"Private Contract Lighting\",'Opex Weighting'!D$48,'Opex Weighting'!D$46))","v":12.159436933476723},{"$f":"IF($B460=\"Blank\",0,IF($B$8=\"Private Contract Lighting\",'Opex Weighting'!E$48,'Opex Weighting'!E$46))","v":12.139620760396495},{"$f":"IF($B460=\"Blank\",0,IF($B$8=\"Private Contract Lighting\",'Opex Weighting'!F$48,'Opex Weighting'!F$46))","v":12.041042902784117},{"$f":"IF($B460=\"Blank\",0,IF($B$8=\"Private Contract Lighting\",'Opex Weighting'!G$48,'Opex Weighting'!G$46))","v":11.913040696908689},{"$f":"IF($B460=\"Blank\",0,IF($B$8=\"Private Contract Lighting\",'Opex Weighting'!H$48,'Opex Weighting'!H$46))","v":11.775235721857506},null,null,null,null,null,null,null,"Indirect Opex",3.3222505282723289,3.32592349599904,3.2989158637764708,3.2638467662763535,3.2172775196331984]
[null,"Indirect Capex",null,null,{"$f":"IF($B461=\"Blank\",0,IF($B$8=\"Private Contract Lighting\",'Capex Weighting'!D$60,'Capex Weighting'!D$62))","v":0},{"$f":"IF($B461=\"Blank\",0,IF($B$8=\"Private Contract Lighting\",'Capex Weighting'!E$60,'Capex Weighting'!E$62))","v":0},{"$f":"IF($B461=\"Blank\",0,IF($B$8=\"Private Contract Lighting\",'Capex Weighting'!F$60,'Capex Weighting'!F$62))","v":0},{"$f":"IF($B461=\"Blank\",0,IF($B$8=\"Private Contract Lighting\",'Capex Weighting'!G$60,'Capex Weighting'!G$62))","v":0},{"$f":"IF($B461=\"Blank\",0,IF($B$8=\"Private Contract Lighting\",'Capex Weighting'!H$60,'Capex Weighting'!H$62))","v":0},null,null,null,null,null,null,null,"Indirect Capex",0,0,0,0,0]
[null,"Opex Overheads Costs per light",null,null,{"$f":"IF($B460=\"Blank\",0,IF($B$8=\"Private Contract Lighting\",'Building Block'!C$40,'Building Block'!C$39))","v":10.567257211169151},{"$f":"IF($B460=\"Blank\",0,IF($B$8=\"Private Contract Lighting\",'Building Block'!D$40,'Building Block'!D$39))","v":10.638037296614067},{"$f":"IF($B460=\"Blank\",0,IF($B$8=\"Private Contract Lighting\",'Building Block'!E$40,'Building Block'!E$39))","v":9.8094883699069495},{"$f":"IF($B460=\"Blank\",0,IF($B$8=\"Private Contract Lighting\",'Building Block'!F$40,'Building Block'!F$39))","v":9.7894714768092079},{"$f":"IF($B460=\"Blank\",0,IF($B$8=\"Private Contract Lighting\",'Building Block'!G$40,'Building Block'!G$39))","v":9.7584857493224391},null,null,null,null,null,null,null,"Opex Overheads Costs per light",2.8872287462210795,2.914530766195635,2.6875310602484794,2.6820469799477284,2.6662529369733439]
[null,{"$f":"Inputs!$AK$68","v":"Bracket UNIT price"},0,null,"NA","NA","NA","NA","NA",null,null,null,null,null,null,null,"Bracket UNIT price","","","","",""]
[null,{"$f":"Inputs!$AA$68","v":"CAPEX Instalation costs"},{"$f":"C469+1","v":1},null,"NA","NA","NA","NA","NA",null,null,null,null,null,null,null,"CAPEX Instalation costs","","","","",""]
[null,{"$f":"Inputs!$Z$68","v":"Luminaire UNIT price"},{"$f":"C470+1","v":2},null,"NA","NA","NA","NA","NA",null,null,null,null,null,null,null,"Luminaire UNIT price","","","","",""]
[null,{"$f":"Inputs!$AA$68","v":"CAPEX Instalation costs"},3,null,"NA","NA","NA","NA","NA",null,null,null,null,null,null,null,"CAPEX Instalation costs","","","","",""]
[null,null,null,null,{"$f":"SUM(E461:E472)","v":47.631532835565267},{"$f":"SUM(F461:F472)","v":47.653096597756374},46.576668351513447,46.234694627472393,45.857247211121425,null,null,null,null,null,null,null,null,{"$f":"ROUND(E473/R$2*100,3)","v":13.013999999999999},{"$f":"ROUND(F473/S$2*100,3)","v":13.055999999999999},{"$f":"ROUND(G473/T$2*100,3)","v":12.760999999999999},{"$f":"ROUND(H473/U$2*100,3)","v":12.667},{"$f":"ROUND(I473/V$2*100,3)","v":12.529}]
[]
[{"$f":"A460+1","v":32},{"$f":"IFERROR(VLOOKUP($A475,Inputs!$B$68:$AN$129,MATCH($B$7,Inputs!$B$68:$AN$68,0),FALSE),\"Blank\")","v":"30W LED"},null,null,null,null,null,null,null,null,null,null,null,null,null,null,{"$f":"IFERROR(VLOOKUP($A475,Inputs!$B$68:$AN$129,MATCH($B$7,Inputs!$B$68:$AN$68,0),FALSE),\"Blank\")","v":"30W LED"}]
[null,{"$f":"Inputs!$S$68","v":"Lamp UNIT price Annualised Cost"},{"$f":"Inputs!$Q$68","v":"Lamp Maintenance cycle"},null,{"$f":"IF($B475=\"Blank\",0,VLOOKUP($B475,Inputs!$C$68:$AN$129,MATCH($B476,Inputs!$C$68:$AN$68,0),FALSE))","v":0},{"$f":"IF($B475=\"Blank\",0,VLOOKUP($B475,Inputs!$C$68:$AN$129,MATCH($B476,Inputs!$C$68:$AN$68,0),FALSE))","v":0},{"$f":"IF($B475=\"Blank\",0,VLOOKUP($B475,Inputs!$C$68:$AN$129,MATCH($B476,Inputs!$C$68:$AN$68,0),FALSE))","v":0},{"$f":"IF($B475=\"Blank\",0,VLOOKUP($B475,Inputs!$C$68:$AN$129,MATCH($B476,Inputs!$C$68:$AN$68,0),FALSE))","v":0},{"$f":"IF($B475=\"Blank\",0,VLOOKUP($B475,Inputs!$C$68:$AN$129,MATCH($B476,Inputs!$C$68:$AN$68,0),FALSE))","v":0},null,null,null,null,null,null,null,{"$f":"B476","v":"Lamp UNIT price Annualised Cost"},{"$f":"IF(E476=\"NA\",\"\",E476/R$2*100)","v":0},{"$f":"IF(F476=\"NA\",\"\",F476/S$2*100)","v":0},{"$f":"IF(G476=\"NA\",\"\",G476/T$2*100)","v":0},{"$f":"IF(H476=\"NA\",\"\",H476/U$2*100)","v":0},{"$f":"IF(I476=\"NA\",\"\",I476/V$2*100)","v":0}]
[null,{"$f":"Inputs!$K$68","v":"PE Cell UNIT price Annualised Cost"},{"$f":"Inputs!$I$68","v":"PE Cell Maintenance Cycle"},null,{"$f":"IF($B475=\"Blank\",0,VLOOKUP($B475,Inputs!$C$68:$AN$129,MATCH($B477,Inputs!$C$68:$AN$68,0),FALSE))","v":0.29065627594166676},{"$f":"IF($B475=\"Blank\",0,VLOOKUP($B475,Inputs!$C$68:$AN$129,MATCH($B477,Inputs!$C$68:$AN$68,0),FALSE))","v":0.29065627594166676},{"$f":"IF($B475=\"Blank\",0,VLOOKUP($B475,Inputs!$C$68:$AN$129,MATCH($B477,Inputs!$C$68:$AN$68,0),FALSE))","v":0.29065627594166676},{"$f":"IF($B475=\"Blank\",0,VLOOKUP($B475,Inputs!$C$68:$AN$129,MATCH($B477,Inputs!$C$68:$AN$68,0),FALSE))","v":0.29065627594166676},{"$f":"IF($B475=\"Blank\",0,VLOOKUP($B475,Inputs!$C$68:$AN$129,MATCH($B477,Inputs!$C$68:$AN$68,0),FALSE))","v":0.29065627594166676},null,null,null,null,null,null,null,"PE Cell UNIT price Annualised Cost",7.9414283044171238E-2,7.9631856422374456E-2,7.9631856422374456E-2,7.9631856422374456E-2,7.9414283044171238E-2]
[null,"Corp capex annuity per light",null,null,{"$f":"IF($B475=\"Blank\",0,'Corp Capex Annuity calcs'!F$142)","v":18.582309905017571},{"$f":"IF($B475=\"Blank\",0,'Corp Capex Annuity calcs'!G$142)","v":18.552026408230436},{"$f":"IF($B475=\"Blank\",0,'Corp Capex Annuity calcs'!H$142)","v":18.401377631486287},{"$f":"IF($B475=\"Blank\",0,'Corp Capex Annuity calcs'!I$142)","v":18.205761940470655},{"$f":"IF($B475=\"Blank\",0,'Corp Capex Annuity calcs'!J$142)","v":17.995165449295623},null,null,null,null,null,null,null,"Corp capex annuity per light",5.0771338538299373,5.0827469611590237,5.0414733236948734,4.9878799836905907,4.9167118713922466]
[null,{"$f":"Inputs!$U$68","v":"Lamp Service costs Annualised"},"Labour Portion of Lamp Service costs annualised",null,{"$f":"IF($B475=\"Blank\",0,VLOOKUP($B475,Inputs!$C$68:$AN$129,MATCH($B479,Inputs!$C$68:$AN$68,0),FALSE))+IFERROR(IF($B475=\"Blank\",0,VLOOKUP($B475,Inputs!$C$68:$AN$129,MATCH($C479,Inputs!$C$68:$AN$68,0),FALSE))*('Master Data'!K$42),0)","v":0},{"$f":"IF($B475=\"Blank\",0,VLOOKUP($B475,Inputs!$C$68:$AN$129,MATCH($B479,Inputs!$C$68:$AN$68,0),FALSE))+IFERROR(IF($B475=\"Blank\",0,VLOOKUP($B475,Inputs!$C$68:$AN$129,MATCH($C479,Inputs!$C$68:$AN$68,0),FALSE))*('Master Data'!L$42),0)","v":0},{"$f":"IF($B475=\"Blank\",0,VLOOKUP($B475,Inputs!$C$68:$AN$129,MATCH($B479,Inputs!$C$68:$AN$68,0),FALSE))+IFERROR(IF($B475=\"Blank\",0,VLOOKUP($B475,Inputs!$C$68:$AN$129,MATCH($C479,Inputs!$C$68:$AN$68,0),FALSE))*('Master Data'!M$42),0)","v":0},{"$f":"IF($B475=\"Blank\",0,VLOOKUP($B475,Inputs!$C$68:$AN$129,MATCH($B479,Inputs!$C$68:$AN$68,0),FALSE))+IFERROR(IF($B475=\"Blank\",0,VLOOKUP($B475,Inputs!$C$68:$AN$129,MATCH($C479,Inputs!$C$68:$AN$68,0),FALSE))*('Master Data'!N$42),0)","v":0},{"$f":"IF($B475=\"Blank\",0,VLOOKUP($B475,Inputs!$C$68:$AN$129,MATCH($B479,Inputs!$C$68:$AN$68,0),FALSE))+IFERROR(IF($B475=\"Blank\",0,VLOOKUP($B475,Inputs!$C$68:$AN$129,MATCH($C479,Inputs!$C$68:$AN$68,0),FALSE))*('Master Data'!O$42),0)","v":0},null,null,null,null,null,null,null,"Lamp Service costs Annualised",0,0,0,0,0]
[null,{"$f":"Inputs!$M$68","v":"PE Cell Service costs Annualised"},"Labour Portion of PE Cell Service costs Annualised",null,{"$f":"IF($B475=\"Blank\",0,VLOOKUP($B475,Inputs!$C$68:$AN$129,MATCH($B480,Inputs!$C$68:$AN$68,0),FALSE))+IFERROR(IF($B475=\"Blank\",0,VLOOKUP($B475,Inputs!$C$68:$AN$129,MATCH($C480,Inputs!$C$68:$AN$68,0),FALSE))*('Master Data'!K$42),0)","v":6.0318725099601611},{"$f":"IF($B475=\"Blank\",0,VLOOKUP($B475,Inputs!$C$68:$AN$129,MATCH($B480,Inputs!$C$68:$AN$68,0),FALSE))+IFERROR(IF($B475=\"Blank\",0,VLOOKUP($B475,Inputs!$C$68:$AN$129,MATCH($C480,Inputs!$C$68:$AN$68,0),FALSE))*('Master Data'!L$42),0)","v":6.0327558565737069},{"$f":"IF($B475=\"Blank\",0,VLOOKUP($B475,Inputs!$C$68:$AN$129,MATCH($B480,Inputs!$C$68:$AN$68,0),FALSE))+IFERROR(IF($B475=\"Blank\",0,VLOOKUP($B475,Inputs!$C$68:$AN$129,MATCH($C480,Inputs!$C$68:$AN$68,0),FALSE))*('Master Data'!M$42),0)","v":6.034103171394424},{"$f":"IF($B475=\"Blank\",0,VLOOKUP($B475,Inputs!$C$68:$AN$129,MATCH($B480,Inputs!$C$68:$AN$68,0),FALSE))+IFERROR(IF($B475=\"Blank\",0,VLOOKUP($B475,Inputs!$C$68:$AN$129,MATCH($C480,Inputs!$C$68:$AN$68,0),FALSE))*('Master Data'!N$42),0)","v":6.0357642373421774},{"$f":"IF($B475=\"Blank\",0,VLOOKUP($B475,Inputs!$C$68:$AN$129,MATCH($B480,Inputs!$C$68:$AN$68,0),FALSE))+IFERROR(IF($B475=\"Blank\",0,VLOOKUP($B475,Inputs!$C$68:$AN$129,MATCH($C480,Inputs!$C$68:$AN$68,0),FALSE))*('Master Data'!O$42),0)","v":6.0377040147041869},null,null,null,null,null,null,null,"PE Cell Service costs Annualised",1.6480525983497707,1.652809823718824,1.6531789510669654,1.6536340376279939,1.6496459056568817]
[null,"Indirect Opex",null,null,{"$f":"IF($B475=\"Blank\",0,IF($B$8=\"Private Contract Lighting\",'Opex Weighting'!D$48,'Opex Weighting'!D$46))","v":12.159436933476723},{"$f":"IF($B475=\"Blank\",0,IF($B$8=\"Private Contract Lighting\",'Opex Weighting'!E$48,'Opex Weighting'!E$46))","v":12.139620760396495},{"$f":"IF($B475=\"Blank\",0,IF($B$8=\"Private Contract Lighting\",'Opex Weighting'!F$48,'Opex Weighting'!F$46))","v":12.041042902784117},{"$f":"IF($B475=\"Blank\",0,IF($B$8=\"Private Contract Lighting\",'Opex Weighting'!G$48,'Opex Weighting'!G$46))","v":11.913040696908689},{"$f":"IF($B475=\"Blank\",0,IF($B$8=\"Private Contract Lighting\",'Opex Weighting'!H$48,'Opex Weighting'!H$46))","v":11.775235721857506},null,null,null,null,null,null,null,"Indirect Opex",3.3222505282723289,3.32592349599904,3.2989158637764708,3.2638467662763535,3.2172775196331984]
[null,"Indirect Capex",null,null,{"$f":"IF($B476=\"Blank\",0,IF($B$8=\"Private Contract Lighting\",'Capex Weighting'!D$60,'Capex Weighting'!D$62))","v":0},{"$f":"IF($B476=\"Blank\",0,IF($B$8=\"Private Contract Lighting\",'Capex Weighting'!E$60,'Capex Weighting'!E$62))","v":0},{"$f":"IF($B476=\"Blank\",0,IF($B$8=\"Private Contract Lighting\",'Capex Weighting'!F$60,'Capex Weighting'!F$62))","v":0},{"$f":"IF($B476=\"Blank\",0,IF($B$8=\"Private Contract Lighting\",'Capex Weighting'!G$60,'Capex Weighting'!G$62))","v":0},{"$f":"IF($B476=\"Blank\",0,IF($B$8=\"Private Contract Lighting\",'Capex Weighting'!H$60,'Capex Weighting'!H$62))","v":0},null,null,null,null,null,null,null,"Indirect Capex",0,0,0,0,0]
[null,"Opex Overheads Costs per light",null,null,{"$f":"IF($B475=\"Blank\",0,IF($B$8=\"Private Contract Lighting\",'Building Block'!C$40,'Building Block'!C$39))","v":10.567257211169151},{"$f":"IF($B475=\"Blank\",0,IF($B$8=\"Private Contract Lighting\",'Building Block'!D$40,'Building Block'!D$39))","v":10.638037296614067},{"$f":"IF($B475=\"Blank\",0,IF($B$8=\"Private Contract Lighting\",'Building Block'!E$40,'Building Block'!E$39))","v":9.8094883699069495},{"$f":"IF($B475=\"Blank\",0,IF($B$8=\"Private Contract Lighting\",'Building Block'!F$40,'Building Block'!F$39))","v":9.7894714768092079},{"$f":"IF($B475=\"Blank\",0,IF($B$8=\"Private Contract Lighting\",'Building Block'!G$40,'Building Block'!G$39))","v":9.7584857493224391},null,null,null,null,null,null,null,"Opex Overheads Costs per light",2.8872287462210795,2.914530766195635,2.6875310602484794,2.6820469799477284,2.6662529369733439]
[null,{"$f":"Inputs!$AK$68","v":"Bracket UNIT price"},0,null,"NA","NA","NA","NA","NA",null,null,null,null,null,null,null,"Bracket UNIT price","","","","",""]
[null,{"$f":"Inputs!$AA$68","v":"CAPEX Instalation costs"},{"$f":"C484+1","v":1},null,"NA","NA","NA","NA","NA",null,null,null,null,null,null,null,"CAPEX Instalation costs","","","","",""]
[null,{"$f":"Inputs!$Z$68","v":"Luminaire UNIT price"},{"$f":"C485+1","v":2},null,"NA","NA","NA","NA","NA",null,null,null,null,null,null,null,"Luminaire UNIT price","","","","",""]
[null,{"$f":"Inputs!$AA$68","v":"CAPEX Instalation costs"},3,null,"NA","NA","NA","NA","NA",null,null,null,null,null,null,null,"CAPEX Instalation costs","","","","",""]
[null,null,null,null,{"$f":"SUM(E476:E487)","v":47.631532835565267},{"$f":"SUM(F476:F487)","v":47.653096597756374},46.576668351513447,46.234694627472393,45.857247211121425,null,null,null,null,null,null,null,null,{"$f":"ROUND(E488/R$2*100,3)","v":13.013999999999999},{"$f":"ROUND(F488/S$2*100,3)","v":13.055999999999999},{"$f":"ROUND(G488/T$2*100,3)","v":12.760999999999999},{"$f":"ROUND(H488/U$2*100,3)","v":12.667},{"$f":"ROUND(I488/V$2*100,3)","v":12.529}]
[]
[{"$f":"A475+1","v":33},{"$f":"IFERROR(VLOOKUP($A490,Inputs!$B$68:$AN$129,MATCH($B$7,Inputs!$B$68:$AN$68,0),FALSE),\"Blank\")","v":"88 LED Light"},null,null,null,null,null,null,null,null,null,null,null,null,null,null,{"$f":"IFERROR(VLOOKUP($A490,Inputs!$B$68:$AN$129,MATCH($B$7,Inputs!$B$68:$AN$68,0),FALSE),\"Blank\")","v":"88 LED Light"}]
[null,{"$f":"Inputs!$S$68","v":"Lamp UNIT price Annualised Cost"},{"$f":"Inputs!$Q$68","v":"Lamp Maintenance cycle"},null,{"$f":"IF($B490=\"Blank\",0,VLOOKUP($B490,Inputs!$C$68:$AN$129,MATCH($B491,Inputs!$C$68:$AN$68,0),FALSE))","v":0},{"$f":"IF($B490=\"Blank\",0,VLOOKUP($B490,Inputs!$C$68:$AN$129,MATCH($B491,Inputs!$C$68:$AN$68,0),FALSE))","v":0},{"$f":"IF($B490=\"Blank\",0,VLOOKUP($B490,Inputs!$C$68:$AN$129,MATCH($B491,Inputs!$C$68:$AN$68,0),FALSE))","v":0},{"$f":"IF($B490=\"Blank\",0,VLOOKUP($B490,Inputs!$C$68:$AN$129,MATCH($B491,Inputs!$C$68:$AN$68,0),FALSE))","v":0},{"$f":"IF($B490=\"Blank\",0,VLOOKUP($B490,Inputs!$C$68:$AN$129,MATCH($B491,Inputs!$C$68:$AN$68,0),FALSE))","v":0},null,null,null,null,null,null,null,{"$f":"B491","v":"Lamp UNIT price Annualised Cost"},{"$f":"IF(E491=\"NA\",\"\",E491/R$2*100)","v":0},{"$f":"IF(F491=\"NA\",\"\",F491/S$2*100)","v":0},{"$f":"IF(G491=\"NA\",\"\",G491/T$2*100)","v":0},{"$f":"IF(H491=\"NA\",\"\",H491/U$2*100)","v":0},{"$f":"IF(I491=\"NA\",\"\",I491/V$2*100)","v":0}]
[null,{"$f":"Inputs!$K$68","v":"PE Cell UNIT price Annualised Cost"},{"$f":"Inputs!$I$68","v":"PE Cell Maintenance Cycle"},null,{"$f":"IF($B490=\"Blank\",0,VLOOKUP($B490,Inputs!$C$68:$AN$129,MATCH($B492,Inputs!$C$68:$AN$68,0),FALSE))","v":0.29065627594166676},{"$f":"IF($B490=\"Blank\",0,VLOOKUP($B490,Inputs!$C$68:$AN$129,MATCH($B492,Inputs!$C$68:$AN$68,0),FALSE))","v":0.29065627594166676},{"$f":"IF($B490=\"Blank\",0,VLOOKUP($B490,Inputs!$C$68:$AN$129,MATCH($B492,Inputs!$C$68:$AN$68,0),FALSE))","v":0.29065627594166676},{"$f":"IF($B490=\"Blank\",0,VLOOKUP($B490,Inputs!$C$68:$AN$129,MATCH($B492,Inputs!$C$68:$AN$68,0),FALSE))","v":0.29065627594166676},{"$f":"IF($B490=\"Blank\",0,VLOOKUP($B490,Inputs!$C$68:$AN$129,MATCH($B492,Inputs!$C$68:$AN$68,0),FALSE))","v":0.29065627594166676},null,null,null,null,null,null,null,"PE Cell UNIT price Annualised Cost",7.9414283044171238E-2,7.9631856422374456E-2,7.9631856422374456E-2,7.9631856422374456E-2,7.9414283044171238E-2]
[null,"Corp capex annuity per light",null,null,{"$f":"IF($B490=\"Blank\",0,'Corp Capex Annuity calcs'!F$142)","v":18.582309905017571},{"$f":"IF($B490=\"Blank\",0,'Corp Capex Annuity calcs'!G$142)","v":18.552026408230436},{"$f":"IF($B490=\"Blank\",0,'Corp Capex Annuity calcs'!H$142)","v":18.401377631486287},{"$f":"IF($B490=\"Blank\",0,'Corp Capex Annuity calcs'!I$142)","v":18.205761940470655},{"$f":"IF($B490=\"Blank\",0,'Corp Capex Annuity calcs'!J$142)","v":17.995165449295623},null,null,null,null,null,null,null,"Corp capex annuity per light",5.0771338538299373,5.0827469611590237,5.0414733236948734,4.9878799836905907,4.9167118713922466]
[null,{"$f":"Inputs!$U$68","v":"Lamp Service costs Annualised"},"Labour Portion of Lamp Service costs annualised",null,{"$f":"IF($B490=\"Blank\",0,VLOOKUP($B490,Inputs!$C$68:$AN$129,MATCH($B494,Inputs!$C$68:$AN$68,0),FALSE))+IFERROR(IF($B490=\"Blank\",0,VLOOKUP($B490,Inputs!$C$68:$AN$129,MATCH($C494,Inputs!$C$68:$AN$68,0),FALSE))*('Master Data'!K$42),0)","v":0},{"$f":"IF($B490=\"Blank\",0,VLOOKUP($B490,Inputs!$C$68:$AN$129,MATCH($B494,Inputs!$C$68:$AN$68,0),FALSE))+IFERROR(IF($B490=\"Blank\",0,VLOOKUP($B490,Inputs!$C$68:$AN$129,MATCH($C494,Inputs!$C$68:$AN$68,0),FALSE))*('Master Data'!L$42),0)","v":0},{"$f":"IF($B490=\"Blank\",0,VLOOKUP($B490,Inputs!$C$68:$AN$129,MATCH($B494,Inputs!$C$68:$AN$68,0),FALSE))+IFERROR(IF($B490=\"Blank\",0,VLOOKUP($B490,Inputs!$C$68:$AN$129,MATCH($C494,Inputs!$C$68:$AN$68,0),FALSE))*('Master Data'!M$42),0)","v":0},{"$f":"IF($B490=\"Blank\",0,VLOOKUP($B490,Inputs!$C$68:$AN$129,MATCH($B494,Inputs!$C$68:$AN$68,0),FALSE))+IFERROR(IF($B490=\"Blank\",0,VLOOKUP($B490,Inputs!$C$68:$AN$129,MATCH($C494,Inputs!$C$68:$AN$68,0),FALSE))*('Master Data'!N$42),0)","v":0},{"$f":"IF($B490=\"Blank\",0,VLOOKUP($B490,Inputs!$C$68:$AN$129,MATCH($B494,Inputs!$C$68:$AN$68,0),FALSE))+IFERROR(IF($B490=\"Blank\",0,VLOOKUP($B490,Inputs!$C$68:$AN$129,MATCH($C494,Inputs!$C$68:$AN$68,0),FALSE))*('Master Data'!O$42),0)","v":0},null,null,null,null,null,null,null,"Lamp Service costs Annualised",0,0,0,0,0]
[null,{"$f":"Inputs!$M$68","v":"PE Cell Service costs Annualised"},"Labour Portion of PE Cell Service costs Annualised",null,{"$f":"IF($B490=\"Blank\",0,VLOOKUP($B490,Inputs!$C$68:$AN$129,MATCH($B495,Inputs!$C$68:$AN$68,0),FALSE))+IFERROR(IF($B490=\"Blank\",0,VLOOKUP($B490,Inputs!$C$68:$AN$129,MATCH($C495,Inputs!$C$68:$AN$68,0),FALSE))*('Master Data'!K$42),0)","v":6.0318725099601611},{"$f":"IF($B490=\"Blank\",0,VLOOKUP($B490,Inputs!$C$68:$AN$129,MATCH($B495,Inputs!$C$68:$AN$68,0),FALSE))+IFERROR(IF($B490=\"Blank\",0,VLOOKUP($B490,Inputs!$C$68:$AN$129,MATCH($C495,Inputs!$C$68:$AN$68,0),FALSE))*('Master Data'!L$42),0)","v":6.0327558565737069},{"$f":"IF($B490=\"Blank\",0,VLOOKUP($B490,Inputs!$C$68:$AN$129,MATCH($B495,Inputs!$C$68:$AN$68,0),FALSE))+IFERROR(IF($B490=\"Blank\",0,VLOOKUP($B490,Inputs!$C$68:$AN$129,MATCH($C495,Inputs!$C$68:$AN$68,0),FALSE))*('Master Data'!M$42),0)","v":6.034103171394424},{"$f":"IF($B490=\"Blank\",0,VLOOKUP($B490,Inputs!$C$68:$AN$129,MATCH($B495,Inputs!$C$68:$AN$68,0),FALSE))+IFERROR(IF($B490=\"Blank\",0,VLOOKUP($B490,Inputs!$C$68:$AN$129,MATCH($C495,Inputs!$C$68:$AN$68,0),FALSE))*('Master Data'!N$42),0)","v":6.0357642373421774},{"$f":"IF($B490=\"Blank\",0,VLOOKUP($B490,Inputs!$C$68:$AN$129,MATCH($B495,Inputs!$C$68:$AN$68,0),FALSE))+IFERROR(IF($B490=\"Blank\",0,VLOOKUP($B490,Inputs!$C$68:$AN$129,MATCH($C495,Inputs!$C$68:$AN$68,0),FALSE))*('Master Data'!O$42),0)","v":6.0377040147041869},null,null,null,null,null,null,null,"PE Cell Service costs Annualised",1.6480525983497707,1.652809823718824,1.6531789510669654,1.6536340376279939,1.6496459056568817]
[null,"Indirect Opex",null,null,{"$f":"IF($B490=\"Blank\",0,IF($B$8=\"Private Contract Lighting\",'Opex Weighting'!D$48,'Opex Weighting'!D$46))","v":12.159436933476723},{"$f":"IF($B490=\"Blank\",0,IF($B$8=\"Private Contract Lighting\",'Opex Weighting'!E$48,'Opex Weighting'!E$46))","v":12.139620760396495},{"$f":"IF($B490=\"Blank\",0,IF($B$8=\"Private Contract Lighting\",'Opex Weighting'!F$48,'Opex Weighting'!F$46))","v":12.041042902784117},{"$f":"IF($B490=\"Blank\",0,IF($B$8=\"Private Contract Lighting\",'Opex Weighting'!G$48,'Opex Weighting'!G$46))","v":11.913040696908689},{"$f":"IF($B490=\"Blank\",0,IF($B$8=\"Private Contract Lighting\",'Opex Weighting'!H$48,'Opex Weighting'!H$46))","v":11.775235721857506},null,null,null,null,null,null,null,"Indirect Opex",3.3222505282723289,3.32592349599904,3.2989158637764708,3.2638467662763535,3.2172775196331984]
[null,"Indirect Capex",null,null,{"$f":"IF($B491=\"Blank\",0,IF($B$8=\"Private Contract Lighting\",'Capex Weighting'!D$60,'Capex Weighting'!D$62))","v":0},{"$f":"IF($B491=\"Blank\",0,IF($B$8=\"Private Contract Lighting\",'Capex Weighting'!E$60,'Capex Weighting'!E$62))","v":0},{"$f":"IF($B491=\"Blank\",0,IF($B$8=\"Private Contract Lighting\",'Capex Weighting'!F$60,'Capex Weighting'!F$62))","v":0},{"$f":"IF($B491=\"Blank\",0,IF($B$8=\"Private Contract Lighting\",'Capex Weighting'!G$60,'Capex Weighting'!G$62))","v":0},{"$f":"IF($B491=\"Blank\",0,IF($B$8=\"Private Contract Lighting\",'Capex Weighting'!H$60,'Capex Weighting'!H$62))","v":0},null,null,null,null,null,null,null,"Indirect Capex",0,0,0,0,0]
[null,"Opex Overheads Costs per light",null,null,{"$f":"IF($B490=\"Blank\",0,IF($B$8=\"Private Contract Lighting\",'Building Block'!C$40,'Building Block'!C$39))","v":10.567257211169151},{"$f":"IF($B490=\"Blank\",0,IF($B$8=\"Private Contract Lighting\",'Building Block'!D$40,'Building Block'!D$39))","v":10.638037296614067},{"$f":"IF($B490=\"Blank\",0,IF($B$8=\"Private Contract Lighting\",'Building Block'!E$40,'Building Block'!E$39))","v":9.8094883699069495},{"$f":"IF($B490=\"Blank\",0,IF($B$8=\"Private Contract Lighting\",'Building Block'!F$40,'Building Block'!F$39))","v":9.7894714768092079},{"$f":"IF($B490=\"Blank\",0,IF($B$8=\"Private Contract Lighting\",'Building Block'!G$40,'Building Block'!G$39))","v":9.7584857493224391},null,null,null,null,null,null,null,"Opex Overheads Costs per light",2.8872287462210795,2.914530766195635,2.6875310602484794,2.6820469799477284,2.6662529369733439]
[null,{"$f":"Inputs!$AK$68","v":"Bracket UNIT price"},0,null,"NA","NA","NA","NA","NA",null,null,null,null,null,null,null,"Bracket UNIT price","","","","",""]
[null,{"$f":"Inputs!$AA$68","v":"CAPEX Instalation costs"},{"$f":"C499+1","v":1},null,"NA","NA","NA","NA","NA",null,null,null,null,null,null,null,"CAPEX Instalation costs","","","","",""]
[null,{"$f":"Inputs!$Z$68","v":"Luminaire UNIT price"},{"$f":"C500+1","v":2},null,"NA","NA","NA","NA","NA",null,null,null,null,null,null,null,"Luminaire UNIT price","","","","",""]
[null,{"$f":"Inputs!$AA$68","v":"CAPEX Instalation costs"},3,null,"NA","NA","NA","NA","NA",null,null,null,null,null,null,null,"CAPEX Instalation costs","","","","",""]
[null,null,null,null,{"$f":"SUM(E491:E502)","v":47.631532835565267},{"$f":"SUM(F491:F502)","v":47.653096597756374},46.576668351513447,46.234694627472393,45.857247211121425,null,null,null,null,null,null,null,null,{"$f":"ROUND(E503/R$2*100,3)","v":13.013999999999999},{"$f":"ROUND(F503/S$2*100,3)","v":13.055999999999999},{"$f":"ROUND(G503/T$2*100,3)","v":12.760999999999999},{"$f":"ROUND(H503/U$2*100,3)","v":12.667},{"$f":"ROUND(I503/V$2*100,3)","v":12.529}]
[]
[{"$f":"A490+1","v":34},{"$f":"IFERROR(VLOOKUP($A505,Inputs!$B$68:$AN$129,MATCH($B$7,Inputs!$B$68:$AN$68,0),FALSE),\"Blank\")","v":"100W Metal Halide"},null,null,null,null,null,null,null,null,null,null,null,null,null,null,{"$f":"IFERROR(VLOOKUP($A505,Inputs!$B$68:$AN$129,MATCH($B$7,Inputs!$B$68:$AN$68,0),FALSE),\"Blank\")","v":"100W Metal Halide"}]
[null,{"$f":"Inputs!$S$68","v":"Lamp UNIT price Annualised Cost"},{"$f":"Inputs!$Q$68","v":"Lamp Maintenance cycle"},null,{"$f":"IF($B505=\"Blank\",0,VLOOKUP($B505,Inputs!$C$68:$AN$129,MATCH($B506,Inputs!$C$68:$AN$68,0),FALSE))","v":3.6415782911199996},{"$f":"IF($B505=\"Blank\",0,VLOOKUP($B505,Inputs!$C$68:$AN$129,MATCH($B506,Inputs!$C$68:$AN$68,0),FALSE))","v":3.6415782911199996},{"$f":"IF($B505=\"Blank\",0,VLOOKUP($B505,Inputs!$C$68:$AN$129,MATCH($B506,Inputs!$C$68:$AN$68,0),FALSE))","v":3.6415782911199996},{"$f":"IF($B505=\"Blank\",0,VLOOKUP($B505,Inputs!$C$68:$AN$129,MATCH($B506,Inputs!$C$68:$AN$68,0),FALSE))","v":3.6415782911199996},{"$f":"IF($B505=\"Blank\",0,VLOOKUP($B505,Inputs!$C$68:$AN$129,MATCH($B506,Inputs!$C$68:$AN$68,0),FALSE))","v":3.6415782911199996},null,null,null,null,null,null,null,{"$f":"B506","v":"Lamp UNIT price Annualised Cost"},{"$f":"IF(E506=\"NA\",\"\",E506/R$2*100)","v":0.99496674620765013},{"$f":"IF(F506=\"NA\",\"\",F506/S$2*100)","v":0.99769268249863008},{"$f":"IF(G506=\"NA\",\"\",G506/T$2*100)","v":0.99769268249863008},{"$f":"IF(H506=\"NA\",\"\",H506/U$2*100)","v":0.99769268249863008},{"$f":"IF(I506=\"NA\",\"\",I506/V$2*100)","v":0.99496674620765013}]
[null,{"$f":"Inputs!$K$68","v":"PE Cell UNIT price Annualised Cost"},{"$f":"Inputs!$I$68","v":"PE Cell Maintenance Cycle"},null,{"$f":"IF($B505=\"Blank\",0,VLOOKUP($B505,Inputs!$C$68:$AN$129,MATCH($B507,Inputs!$C$68:$AN$68,0),FALSE))","v":1.6930974392480003},{"$f":"IF($B505=\"Blank\",0,VLOOKUP($B505,Inputs!$C$68:$AN$129,MATCH($B507,Inputs!$C$68:$AN$68,0),FALSE))","v":1.6930974392480003},{"$f":"IF($B505=\"Blank\",0,VLOOKUP($B505,Inputs!$C$68:$AN$129,MATCH($B507,Inputs!$C$68:$AN$68,0),FALSE))","v":1.6930974392480003},{"$f":"IF($B505=\"Blank\",0,VLOOKUP($B505,Inputs!$C$68:$AN$129,MATCH($B507,Inputs!$C$68:$AN$68,0),FALSE))","v":1.6930974392480003},{"$f":"IF($B505=\"Blank\",0,VLOOKUP($B505,Inputs!$C$68:$AN$129,MATCH($B507,Inputs!$C$68:$AN$68,0),FALSE))","v":1.6930974392480003},null,null,null,null,null,null,null,"PE Cell UNIT price Annualised Cost",0.46259492875628422,0.46386231212273976,0.46386231212273976,0.46386231212273976,0.46259492875628422]
[null,"Corp capex annuity per light",null,null,{"$f":"IF($B505=\"Blank\",0,'Corp Capex Annuity calcs'!F$142)","v":18.582309905017571},{"$f":"IF($B505=\"Blank\",0,'Corp Capex Annuity calcs'!G$142)","v":18.552026408230436},{"$f":"IF($B505=\"Blank\",0,'Corp Capex Annuity calcs'!H$142)","v":18.401377631486287},{"$f":"IF($B505=\"Blank\",0,'Corp Capex Annuity calcs'!I$142)","v":18.205761940470655},{"$f":"IF($B505=\"Blank\",0,'Corp Capex Annuity calcs'!J$142)","v":17.995165449295623},null,null,null,null,null,null,null,"Corp capex annuity per light",5.0771338538299373,5.0827469611590237,5.0414733236948734,4.9878799836905907,4.9167118713922466]
[null,{"$f":"Inputs!$U$68","v":"Lamp Service costs Annualised"},"Labour Portion of Lamp Service costs annualised",null,{"$f":"IF($B505=\"Blank\",0,VLOOKUP($B505,Inputs!$C$68:$AN$129,MATCH($B509,Inputs!$C$68:$AN$68,0),FALSE))+IFERROR(IF($B505=\"Blank\",0,VLOOKUP($B505,Inputs!$C$68:$AN$129,MATCH($C509,Inputs!$C$68:$AN$68,0),FALSE))*('Master Data'!K$42),0)","v":34.921367162927247},{"$f":"IF($B505=\"Blank\",0,VLOOKUP($B505,Inputs!$C$68:$AN$129,MATCH($B509,Inputs!$C$68:$AN$68,0),FALSE))+IFERROR(IF($B505=\"Blank\",0,VLOOKUP($B505,Inputs!$C$68:$AN$129,MATCH($C509,Inputs!$C$68:$AN$68,0),FALSE))*('Master Data'!L$42),0)","v":34.926481274900404},{"$f":"IF($B505=\"Blank\",0,VLOOKUP($B505,Inputs!$C$68:$AN$129,MATCH($B509,Inputs!$C$68:$AN$68,0),FALSE))+IFERROR(IF($B505=\"Blank\",0,VLOOKUP($B505,Inputs!$C$68:$AN$129,MATCH($C509,Inputs!$C$68:$AN$68,0),FALSE))*('Master Data'!M$42),0)","v":34.934281518599292},{"$f":"IF($B505=\"Blank\",0,VLOOKUP($B505,Inputs!$C$68:$AN$129,MATCH($B509,Inputs!$C$68:$AN$68,0),FALSE))+IFERROR(IF($B505=\"Blank\",0,VLOOKUP($B505,Inputs!$C$68:$AN$129,MATCH($C509,Inputs!$C$68:$AN$68,0),FALSE))*('Master Data'!N$42),0)","v":34.943898216191549},{"$f":"IF($B505=\"Blank\",0,VLOOKUP($B505,Inputs!$C$68:$AN$129,MATCH($B509,Inputs!$C$68:$AN$68,0),FALSE))+IFERROR(IF($B505=\"Blank\",0,VLOOKUP($B505,Inputs!$C$68:$AN$129,MATCH($C509,Inputs!$C$68:$AN$68,0),FALSE))*('Master Data'!O$42),0)","v":34.955128506182135},null,null,null,null,null,null,null,"Lamp Service costs Annualised",9.5413571483407775,9.5688989794247679,9.5710360324929571,9.5736707441620688,9.5505815590661562]
[null,{"$f":"Inputs!$M$68","v":"PE Cell Service costs Annualised"},"Labour Portion of PE Cell Service costs Annualised",null,{"$f":"IF($B505=\"Blank\",0,VLOOKUP($B505,Inputs!$C$68:$AN$129,MATCH($B510,Inputs!$C$68:$AN$68,0),FALSE))+IFERROR(IF($B505=\"Blank\",0,VLOOKUP($B505,Inputs!$C$68:$AN$129,MATCH($C510,Inputs!$C$68:$AN$68,0),FALSE))*('Master Data'!K$42),0)","v":0},{"$f":"IF($B505=\"Blank\",0,VLOOKUP($B505,Inputs!$C$68:$AN$129,MATCH($B510,Inputs!$C$68:$AN$68,0),FALSE))+IFERROR(IF($B505=\"Blank\",0,VLOOKUP($B505,Inputs!$C$68:$AN$129,MATCH($C510,Inputs!$C$68:$AN$68,0),FALSE))*('Master Data'!L$42),0)","v":0},{"$f":"IF($B505=\"Blank\",0,VLOOKUP($B505,Inputs!$C$68:$AN$129,MATCH($B510,Inputs!$C$68:$AN$68,0),FALSE))+IFERROR(IF($B505=\"Blank\",0,VLOOKUP($B505,Inputs!$C$68:$AN$129,MATCH($C510,Inputs!$C$68:$AN$68,0),FALSE))*('Master Data'!M$42),0)","v":0},{"$f":"IF($B505=\"Blank\",0,VLOOKUP($B505,Inputs!$C$68:$AN$129,MATCH($B510,Inputs!$C$68:$AN$68,0),FALSE))+IFERROR(IF($B505=\"Blank\",0,VLOOKUP($B505,Inputs!$C$68:$AN$129,MATCH($C510,Inputs!$C$68:$AN$68,0),FALSE))*('Master Data'!N$42),0)","v":0},{"$f":"IF($B505=\"Blank\",0,VLOOKUP($B505,Inputs!$C$68:$AN$129,MATCH($B510,Inputs!$C$68:$AN$68,0),FALSE))+IFERROR(IF($B505=\"Blank\",0,VLOOKUP($B505,Inputs!$C$68:$AN$129,MATCH($C510,Inputs!$C$68:$AN$68,0),FALSE))*('Master Data'!O$42),0)","v":0},null,null,null,null,null,null,null,"PE Cell Service costs Annualised",0,0,0,0,0]
[null,"Indirect Opex",null,null,{"$f":"IF($B505=\"Blank\",0,IF($B$8=\"Private Contract Lighting\",'Opex Weighting'!D$48,'Opex Weighting'!D$46))","v":12.159436933476723},{"$f":"IF($B505=\"Blank\",0,IF($B$8=\"Private Contract Lighting\",'Opex Weighting'!E$48,'Opex Weighting'!E$46))","v":12.139620760396495},{"$f":"IF($B505=\"Blank\",0,IF($B$8=\"Private Contract Lighting\",'Opex Weighting'!F$48,'Opex Weighting'!F$46))","v":12.041042902784117},{"$f":"IF($B505=\"Blank\",0,IF($B$8=\"Private Contract Lighting\",'Opex Weighting'!G$48,'Opex Weighting'!G$46))","v":11.913040696908689},{"$f":"IF($B505=\"Blank\",0,IF($B$8=\"Private Contract Lighting\",'Opex Weighting'!H$48,'Opex Weighting'!H$46))","v":11.775235721857506},null,null,null,null,null,null,null,"Indirect Opex",3.3222505282723289,3.32592349599904,3.2989158637764708,3.2638467662763535,3.2172775196331984]
[null,"Indirect Capex",null,null,{"$f":"IF($B506=\"Blank\",0,IF($B$8=\"Private Contract Lighting\",'Capex Weighting'!D$60,'Capex Weighting'!D$62))","v":0},{"$f":"IF($B506=\"Blank\",0,IF($B$8=\"Private Contract Lighting\",'Capex Weighting'!E$60,'Capex Weighting'!E$62))","v":0},{"$f":"IF($B506=\"Blank\",0,IF($B$8=\"Private Contract Lighting\",'Capex Weighting'!F$60,'Capex Weighting'!F$62))","v":0},{"$f":"IF($B506=\"Blank\",0,IF($B$8=\"Private Contract Lighting\",'Capex Weighting'!G$60,'Capex Weighting'!G$62))","v":0},{"$f":"IF($B506=\"Blank\",0,IF($B$8=\"Private Contract Lighting\",'Capex Weighting'!H$60,'Capex Weighting'!H$62))","v":0},null,null,null,null,null,null,null,"Indirect Capex",0,0,0,0,0]
[null,"Opex Overheads Costs per light",null,null,{"$f":"IF($B505=\"Blank\",0,IF($B$8=\"Private Contract Lighting\",'Building Block'!C$40,'Building Block'!C$39))","v":10.567257211169151},{"$f":"IF($B505=\"Blank\",0,IF($B$8=\"Private Contract Lighting\",'Building Block'!D$40,'Building Block'!D$39))","v":10.638037296614067},{"$f":"IF($B505=\"Blank\",0,IF($B$8=\"Private Contract Lighting\",'Building Block'!E$40,'Building Block'!E$39))","v":9.8094883699069495},{"$f":"IF($B505=\"Blank\",0,IF($B$8=\"Private Contract Lighting\",'Building Block'!F$40,'Building Block'!F$39))","v":9.7894714768092079},{"$f":"IF($B505=\"Blank\",0,IF($B$8=\"Private Contract Lighting\",'Building Block'!G$40,'Building Block'!G$39))","v":9.7584857493224391},null,null,null,null,null,null,null,"Opex Overheads Costs per light",2.8872287462210795,2.914530766195635,2.6875310602484794,2.6820469799477284,2.6662529369733439]
[null,{"$f":"Inputs!$AK$68","v":"Bracket UNIT price"},0,null,"NA","NA","NA","NA","NA",null,null,null,null,null,null,null,"Bracket UNIT price","","","","",""]
[null,{"$f":"Inputs!$AA$68","v":"CAPEX Instalation costs"},{"$f":"C514+1","v":1},null,"NA","NA","NA","NA","NA",null,null,null,null,null,null,null,"CAPEX Instalation costs","","","","",""]
[null,{"$f":"Inputs!$Z$68","v":"Luminaire UNIT price"},{"$f":"C515+1","v":2},null,"NA","NA","NA","NA","NA",null,null,null,null,null,null,null,"Luminaire UNIT price","","","","",""]
[null,{"$f":"Inputs!$AA$68","v":"CAPEX Instalation costs"},3,null,"NA","NA","NA","NA","NA",null,null,null,null,null,null,null,"CAPEX Instalation costs","","","","",""]
[null,null,null,null,{"$f":"SUM(E506:E517)","v":81.565046942958688},{"$f":"SUM(F506:F517)","v":81.590841470509403},80.520866153144638,80.186848060748105,79.818691157025711,null,null,null,null,null,null,null,null,{"$f":"ROUND(E518/R$2*100,3)","v":22.286000000000001},{"$f":"ROUND(F518/S$2*100,3)","v":22.353999999999999},{"$f":"ROUND(G518/T$2*100,3)","v":22.061},{"$f":"ROUND(H518/U$2*100,3)","v":21.969000000000001},{"$f":"ROUND(I518/V$2*100,3)","v":21.808}]
[]
[{"$f":"A505+1","v":35},{"$f":"IFERROR(VLOOKUP($A520,Inputs!$B$68:$AN$129,MATCH($B$7,Inputs!$B$68:$AN$68,0),FALSE),\"Blank\")","v":"150W Metal Halide"},null,null,null,null,null,null,null,null,null,null,null,null,null,null,{"$f":"IFERROR(VLOOKUP($A520,Inputs!$B$68:$AN$129,MATCH($B$7,Inputs!$B$68:$AN$68,0),FALSE),\"Blank\")","v":"150W Metal Halide"}]
[null,{"$f":"Inputs!$S$68","v":"Lamp UNIT price Annualised Cost"},{"$f":"Inputs!$Q$68","v":"Lamp Maintenance cycle"},null,{"$f":"IF($B520=\"Blank\",0,VLOOKUP($B520,Inputs!$C$68:$AN$129,MATCH($B521,Inputs!$C$68:$AN$68,0),FALSE))","v":4.1438966180000003},{"$f":"IF($B520=\"Blank\",0,VLOOKUP($B520,Inputs!$C$68:$AN$129,MATCH($B521,Inputs!$C$68:$AN$68,0),FALSE))","v":4.1438966180000003},{"$f":"IF($B520=\"Blank\",0,VLOOKUP($B520,Inputs!$C$68:$AN$129,MATCH($B521,Inputs!$C$68:$AN$68,0),FALSE))","v":4.1438966180000003},{"$f":"IF($B520=\"Blank\",0,VLOOKUP($B520,Inputs!$C$68:$AN$129,MATCH($B521,Inputs!$C$68:$AN$68,0),FALSE))","v":4.1438966180000003},{"$f":"IF($B520=\"Blank\",0,VLOOKUP($B520,Inputs!$C$68:$AN$129,MATCH($B521,Inputs!$C$68:$AN$68,0),FALSE))","v":4.1438966180000003},null,null,null,null,null,null,null,{"$f":"B521","v":"Lamp UNIT price Annualised Cost"},{"$f":"IF(E521=\"NA\",\"\",E521/R$2*100)","v":1.1322121907103826},{"$f":"IF(F521=\"NA\",\"\",F521/S$2*100)","v":1.1353141419178083},{"$f":"IF(G521=\"NA\",\"\",G521/T$2*100)","v":1.1353141419178083},{"$f":"IF(H521=\"NA\",\"\",H521/U$2*100)","v":1.1353141419178083},{"$f":"IF(I521=\"NA\",\"\",I521/V$2*100)","v":1.1322121907103826}]
[null,{"$f":"Inputs!$K$68","v":"PE Cell UNIT price Annualised Cost"},{"$f":"Inputs!$I$68","v":"PE Cell Maintenance Cycle"},null,{"$f":"IF($B520=\"Blank\",0,VLOOKUP($B520,Inputs!$C$68:$AN$129,MATCH($B522,Inputs!$C$68:$AN$68,0),FALSE))","v":1.6930974392480003},{"$f":"IF($B520=\"Blank\",0,VLOOKUP($B520,Inputs!$C$68:$AN$129,MATCH($B522,Inputs!$C$68:$AN$68,0),FALSE))","v":1.6930974392480003},{"$f":"IF($B520=\"Blank\",0,VLOOKUP($B520,Inputs!$C$68:$AN$129,MATCH($B522,Inputs!$C$68:$AN$68,0),FALSE))","v":1.6930974392480003},{"$f":"IF($B520=\"Blank\",0,VLOOKUP($B520,Inputs!$C$68:$AN$129,MATCH($B522,Inputs!$C$68:$AN$68,0),FALSE))","v":1.6930974392480003},{"$f":"IF($B520=\"Blank\",0,VLOOKUP($B520,Inputs!$C$68:$AN$129,MATCH($B522,Inputs!$C$68:$AN$68,0),FALSE))","v":1.6930974392480003},null,null,null,null,null,null,null,"PE Cell UNIT price Annualised Cost",0.46259492875628422,0.46386231212273976,0.46386231212273976,0.46386231212273976,0.46259492875628422]
[null,"Corp capex annuity per light",null,null,{"$f":"IF($B520=\"Blank\",0,'Corp Capex Annuity calcs'!F$142)","v":18.582309905017571},{"$f":"IF($B520=\"Blank\",0,'Corp Capex Annuity calcs'!G$142)","v":18.552026408230436},{"$f":"IF($B520=\"Blank\",0,'Corp Capex Annuity calcs'!H$142)","v":18.401377631486287},{"$f":"IF($B520=\"Blank\",0,'Corp Capex Annuity calcs'!I$142)","v":18.205761940470655},{"$f":"IF($B520=\"Blank\",0,'Corp Capex Annuity calcs'!J$142)","v":17.995165449295623},null,null,null,null,null,null,null,"Corp capex annuity per light",5.0771338538299373,5.0827469611590237,5.0414733236948734,4.9878799836905907,4.9167118713922466]
[null,{"$f":"Inputs!$U$68","v":"Lamp Service costs Annualised"},"Labour Portion of Lamp Service costs annualised",null,{"$f":"IF($B520=\"Blank\",0,VLOOKUP($B520,Inputs!$C$68:$AN$129,MATCH($B524,Inputs!$C$68:$AN$68,0),FALSE))+IFERROR(IF($B520=\"Blank\",0,VLOOKUP($B520,Inputs!$C$68:$AN$129,MATCH($C524,Inputs!$C$68:$AN$68,0),FALSE))*('Master Data'!K$42),0)","v":34.921367162927247},{"$f":"IF($B520=\"Blank\",0,VLOOKUP($B520,Inputs!$C$68:$AN$129,MATCH($B524,Inputs!$C$68:$AN$68,0),FALSE))+IFERROR(IF($B520=\"Blank\",0,VLOOKUP($B520,Inputs!$C$68:$AN$129,MATCH($C524,Inputs!$C$68:$AN$68,0),FALSE))*('Master Data'!L$42),0)","v":34.926481274900404},{"$f":"IF($B520=\"Blank\",0,VLOOKUP($B520,Inputs!$C$68:$AN$129,MATCH($B524,Inputs!$C$68:$AN$68,0),FALSE))+IFERROR(IF($B520=\"Blank\",0,VLOOKUP($B520,Inputs!$C$68:$AN$129,MATCH($C524,Inputs!$C$68:$AN$68,0),FALSE))*('Master Data'!M$42),0)","v":34.934281518599292},{"$f":"IF($B520=\"Blank\",0,VLOOKUP($B520,Inputs!$C$68:$AN$129,MATCH($B524,Inputs!$C$68:$AN$68,0),FALSE))+IFERROR(IF($B520=\"Blank\",0,VLOOKUP($B520,Inputs!$C$68:$AN$129,MATCH($C524,Inputs!$C$68:$AN$68,0),FALSE))*('Master Data'!N$42),0)","v":34.943898216191549},{"$f":"IF($B520=\"Blank\",0,VLOOKUP($B520,Inputs!$C$68:$AN$129,MATCH($B524,Inputs!$C$68:$AN$68,0),FALSE))+IFERROR(IF($B520=\"Blank\",0,VLOOKUP($B520,Inputs!$C$68:$AN$129,MATCH($C524,Inputs!$C$68:$AN$68,0),FALSE))*('Master Data'!O$42),0)","v":34.955128506182135},null,null,null,null,null,null,null,"Lamp Service costs Annualised",9.5413571483407775,9.5688989794247679,9.5710360324929571,9.5736707441620688,9.5505815590661562]
[null,{"$f":"Inputs!$M$68","v":"PE Cell Service costs Annualised"},"Labour Portion of PE Cell Service costs Annualised",null,{"$f":"IF($B520=\"Blank\",0,VLOOKUP($B520,Inputs!$C$68:$AN$129,MATCH($B525,Inputs!$C$68:$AN$68,0),FALSE))+IFERROR(IF($B520=\"Blank\",0,VLOOKUP($B520,Inputs!$C$68:$AN$129,MATCH($C525,Inputs!$C$68:$AN$68,0),FALSE))*('Master Data'!K$42),0)","v":0},{"$f":"IF($B520=\"Blank\",0,VLOOKUP($B520,Inputs!$C$68:$AN$129,MATCH($B525,Inputs!$C$68:$AN$68,0),FALSE))+IFERROR(IF($B520=\"Blank\",0,VLOOKUP($B520,Inputs!$C$68:$AN$129,MATCH($C525,Inputs!$C$68:$AN$68,0),FALSE))*('Master Data'!L$42),0)","v":0},{"$f":"IF($B520=\"Blank\",0,VLOOKUP($B520,Inputs!$C$68:$AN$129,MATCH($B525,Inputs!$C$68:$AN$68,0),FALSE))+IFERROR(IF($B520=\"Blank\",0,VLOOKUP($B520,Inputs!$C$68:$AN$129,MATCH($C525,Inputs!$C$68:$AN$68,0),FALSE))*('Master Data'!M$42),0)","v":0},{"$f":"IF($B520=\"Blank\",0,VLOOKUP($B520,Inputs!$C$68:$AN$129,MATCH($B525,Inputs!$C$68:$AN$68,0),FALSE))+IFERROR(IF($B520=\"Blank\",0,VLOOKUP($B520,Inputs!$C$68:$AN$129,MATCH($C525,Inputs!$C$68:$AN$68,0),FALSE))*('Master Data'!N$42),0)","v":0},{"$f":"IF($B520=\"Blank\",0,VLOOKUP($B520,Inputs!$C$68:$AN$129,MATCH($B525,Inputs!$C$68:$AN$68,0),FALSE))+IFERROR(IF($B520=\"Blank\",0,VLOOKUP($B520,Inputs!$C$68:$AN$129,MATCH($C525,Inputs!$C$68:$AN$68,0),FALSE))*('Master Data'!O$42),0)","v":0},null,null,null,null,null,null,null,"PE Cell Service costs Annualised",0,0,0,0,0]
[null,"Indirect Opex",null,null,{"$f":"IF($B520=\"Blank\",0,IF($B$8=\"Private Contract Lighting\",'Opex Weighting'!D$48,'Opex Weighting'!D$46))","v":12.159436933476723},{"$f":"IF($B520=\"Blank\",0,IF($B$8=\"Private Contract Lighting\",'Opex Weighting'!E$48,'Opex Weighting'!E$46))","v":12.139620760396495},{"$f":"IF($B520=\"Blank\",0,IF($B$8=\"Private Contract Lighting\",'Opex Weighting'!F$48,'Opex Weighting'!F$46))","v":12.041042902784117},{"$f":"IF($B520=\"Blank\",0,IF($B$8=\"Private Contract Lighting\",'Opex Weighting'!G$48,'Opex Weighting'!G$46))","v":11.913040696908689},{"$f":"IF($B520=\"Blank\",0,IF($B$8=\"Private Contract Lighting\",'Opex Weighting'!H$48,'Opex Weighting'!H$46))","v":11.775235721857506},null,null,null,null,null,null,null,"Indirect Opex",3.3222505282723289,3.32592349599904,3.2989158637764708,3.2638467662763535,3.2172775196331984]
[null,"Indirect Capex",null,null,{"$f":"IF($B521=\"Blank\",0,IF($B$8=\"Private Contract Lighting\",'Capex Weighting'!D$60,'Capex Weighting'!D$62))","v":0},{"$f":"IF($B521=\"Blank\",0,IF($B$8=\"Private Contract Lighting\",'Capex Weighting'!E$60,'Capex Weighting'!E$62))","v":0},{"$f":"IF($B521=\"Blank\",0,IF($B$8=\"Private Contract Lighting\",'Capex Weighting'!F$60,'Capex Weighting'!F$62))","v":0},{"$f":"IF($B521=\"Blank\",0,IF($B$8=\"Private Contract Lighting\",'Capex Weighting'!G$60,'Capex Weighting'!G$62))","v":0},{"$f":"IF($B521=\"Blank\",0,IF($B$8=\"Private Contract Lighting\",'Capex Weighting'!H$60,'Capex Weighting'!H$62))","v":0},null,null,null,null,null,null,null,"Indirect Capex",0,0,0,0,0]
[null,"Opex Overheads Costs per light",null,null,{"$f":"IF($B520=\"Blank\",0,IF($B$8=\"Private Contract Lighting\",'Building Block'!C$40,'Building Block'!C$39))","v":10.567257211169151},{"$f":"IF($B520=\"Blank\",0,IF($B$8=\"Private Contract Lighting\",'Building Block'!D$40,'Building Block'!D$39))","v":10.638037296614067},{"$f":"IF($B520=\"Blank\",0,IF($B$8=\"Private Contract Lighting\",'Building Block'!E$40,'Building Block'!E$39))","v":9.8094883699069495},{"$f":"IF($B520=\"Blank\",0,IF($B$8=\"Private Contract Lighting\",'Building Block'!F$40,'Building Block'!F$39))","v":9.7894714768092079},{"$f":"IF($B520=\"Blank\",0,IF($B$8=\"Private Contract Lighting\",'Building Block'!G$40,'Building Block'!G$39))","v":9.7584857493224391},null,null,null,null,null,null,null,"Opex Overheads Costs per light",2.8872287462210795,2.914530766195635,2.6875310602484794,2.6820469799477284,2.6662529369733439]
[null,{"$f":"Inputs!$AK$68","v":"Bracket UNIT price"},0,null,"NA","NA","NA","NA","NA",null,null,null,null,null,null,null,"Bracket UNIT price","","","","",""]
[null,{"$f":"Inputs!$AA$68","v":"CAPEX Instalation costs"},{"$f":"C529+1","v":1},null,"NA","NA","NA","NA","NA",null,null,null,null,null,null,null,"CAPEX Instalation costs","","","","",""]
[null,{"$f":"Inputs!$Z$68","v":"Luminaire UNIT price"},{"$f":"C530+1","v":2},null,"NA","NA","NA","NA","NA",null,null,null,null,null,null,null,"Luminaire UNIT price","","","","",""]
[null,{"$f":"Inputs!$AA$68","v":"CAPEX Instalation costs"},3,null,"NA","NA","NA","NA","NA",null,null,null,null,null,null,null,"CAPEX Instalation costs","","","","",""]
[null,null,null,null,{"$f":"SUM(E521:E532)","v":82.067365269838689},{"$f":"SUM(F521:F532)","v":82.093159797389404},81.023184480024639,80.689166387628106,80.321009483905698,null,null,null,null,null,null,null,null,{"$f":"ROUND(E533/R$2*100,3)","v":22.422999999999998},{"$f":"ROUND(F533/S$2*100,3)","v":22.491},{"$f":"ROUND(G533/T$2*100,3)","v":22.198},{"$f":"ROUND(H533/U$2*100,3)","v":22.106999999999999},{"$f":"ROUND(I533/V$2*100,3)","v":21.946000000000002}]
[]
[{"$f":"A520+1","v":36},{"$f":"IFERROR(VLOOKUP($A535,Inputs!$B$68:$AN$129,MATCH($B$7,Inputs!$B$68:$AN$68,0),FALSE),\"Blank\")","v":"250W Metal Halide"},null,null,null,null,null,null,null,null,null,null,null,null,null,null,{"$f":"IFERROR(VLOOKUP($A535,Inputs!$B$68:$AN$129,MATCH($B$7,Inputs!$B$68:$AN$68,0),FALSE),\"Blank\")","v":"250W Metal Halide"}]
[null,{"$f":"Inputs!$S$68","v":"Lamp UNIT price Annualised Cost"},{"$f":"Inputs!$Q$68","v":"Lamp Maintenance cycle"},null,{"$f":"IF($B535=\"Blank\",0,VLOOKUP($B535,Inputs!$C$68:$AN$129,MATCH($B536,Inputs!$C$68:$AN$68,0),FALSE))","v":4.1438966180000003},{"$f":"IF($B535=\"Blank\",0,VLOOKUP($B535,Inputs!$C$68:$AN$129,MATCH($B536,Inputs!$C$68:$AN$68,0),FALSE))","v":4.1438966180000003},{"$f":"IF($B535=\"Blank\",0,VLOOKUP($B535,Inputs!$C$68:$AN$129,MATCH($B536,Inputs!$C$68:$AN$68,0),FALSE))","v":4.1438966180000003},{"$f":"IF($B535=\"Blank\",0,VLOOKUP($B535,Inputs!$C$68:$AN$129,MATCH($B536,Inputs!$C$68:$AN$68,0),FALSE))","v":4.1438966180000003},{"$f":"IF($B535=\"Blank\",0,VLOOKUP($B535,Inputs!$C$68:$AN$129,MATCH($B536,Inputs!$C$68:$AN$68,0),FALSE))","v":4.1438966180000003},null,null,null,null,null,null,null,{"$f":"B536","v":"Lamp UNIT price Annualised Cost"},{"$f":"IF(E536=\"NA\",\"\",E536/R$2*100)","v":1.1322121907103826},{"$f":"IF(F536=\"NA\",\"\",F536/S$2*100)","v":1.1353141419178083},{"$f":"IF(G536=\"NA\",\"\",G536/T$2*100)","v":1.1353141419178083},{"$f":"IF(H536=\"NA\",\"\",H536/U$2*100)","v":1.1353141419178083},{"$f":"IF(I536=\"NA\",\"\",I536/V$2*100)","v":1.1322121907103826}]
[null,{"$f":"Inputs!$K$68","v":"PE Cell UNIT price Annualised Cost"},{"$f":"Inputs!$I$68","v":"PE Cell Maintenance Cycle"},null,{"$f":"IF($B535=\"Blank\",0,VLOOKUP($B535,Inputs!$C$68:$AN$129,MATCH($B537,Inputs!$C$68:$AN$68,0),FALSE))","v":1.6930974392480003},{"$f":"IF($B535=\"Blank\",0,VLOOKUP($B535,Inputs!$C$68:$AN$129,MATCH($B537,Inputs!$C$68:$AN$68,0),FALSE))","v":1.6930974392480003},{"$f":"IF($B535=\"Blank\",0,VLOOKUP($B535,Inputs!$C$68:$AN$129,MATCH($B537,Inputs!$C$68:$AN$68,0),FALSE))","v":1.6930974392480003},{"$f":"IF($B535=\"Blank\",0,VLOOKUP($B535,Inputs!$C$68:$AN$129,MATCH($B537,Inputs!$C$68:$AN$68,0),FALSE))","v":1.6930974392480003},{"$f":"IF($B535=\"Blank\",0,VLOOKUP($B535,Inputs!$C$68:$AN$129,MATCH($B537,Inputs!$C$68:$AN$68,0),FALSE))","v":1.6930974392480003},null,null,null,null,null,null,null,"PE Cell UNIT price Annualised Cost",0.46259492875628422,0.46386231212273976,0.46386231212273976,0.46386231212273976,0.46259492875628422]
[null,"Corp capex annuity per light",null,null,{"$f":"IF($B535=\"Blank\",0,'Corp Capex Annuity calcs'!F$142)","v":18.582309905017571},{"$f":"IF($B535=\"Blank\",0,'Corp Capex Annuity calcs'!G$142)","v":18.552026408230436},{"$f":"IF($B535=\"Blank\",0,'Corp Capex Annuity calcs'!H$142)","v":18.401377631486287},{"$f":"IF($B535=\"Blank\",0,'Corp Capex Annuity calcs'!I$142)","v":18.205761940470655},{"$f":"IF($B535=\"Blank\",0,'Corp Capex Annuity calcs'!J$142)","v":17.995165449295623},null,null,null,null,null,null,null,"Corp capex annuity per light",5.0771338538299373,5.0827469611590237,5.0414733236948734,4.9878799836905907,4.9167118713922466]
[null,{"$f":"Inputs!$U$68","v":"Lamp Service costs Annualised"},"Labour Portion of Lamp Service costs annualised",null,{"$f":"IF($B535=\"Blank\",0,VLOOKUP($B535,Inputs!$C$68:$AN$129,MATCH($B539,Inputs!$C$68:$AN$68,0),FALSE))+IFERROR(IF($B535=\"Blank\",0,VLOOKUP($B535,Inputs!$C$68:$AN$129,MATCH($C539,Inputs!$C$68:$AN$68,0),FALSE))*('Master Data'!K$42),0)","v":34.921367162927247},{"$f":"IF($B535=\"Blank\",0,VLOOKUP($B535,Inputs!$C$68:$AN$129,MATCH($B539,Inputs!$C$68:$AN$68,0),FALSE))+IFERROR(IF($B535=\"Blank\",0,VLOOKUP($B535,Inputs!$C$68:$AN$129,MATCH($C539,Inputs!$C$68:$AN$68,0),FALSE))*('Master Data'!L$42),0)","v":34.926481274900404},{"$f":"IF($B535=\"Blank\",0,VLOOKUP($B535,Inputs!$C$68:$AN$129,MATCH($B539,Inputs!$C$68:$AN$68,0),FALSE))+IFERROR(IF($B535=\"Blank\",0,VLOOKUP($B535,Inputs!$C$68:$AN$129,MATCH($C539,Inputs!$C$68:$AN$68,0),FALSE))*('Master Data'!M$42),0)","v":34.934281518599292},{"$f":"IF($B535=\"Blank\",0,VLOOKUP($B535,Inputs!$C$68:$AN$129,MATCH($B539,Inputs!$C$68:$AN$68,0),FALSE))+IFERROR(IF($B535=\"Blank\",0,VLOOKUP($B535,Inputs!$C$68:$AN$129,MATCH($C539,Inputs!$C$68:$AN$68,0),FALSE))*('Master Data'!N$42),0)","v":34.943898216191549},{"$f":"IF($B535=\"Blank\",0,VLOOKUP($B535,Inputs!$C$68:$AN$129,MATCH($B539,Inputs!$C$68:$AN$68,0),FALSE))+IFERROR(IF($B535=\"Blank\",0,VLOOKUP($B535,Inputs!$C$68:$AN$129,MATCH($C539,Inputs!$C$68:$AN$68,0),FALSE))*('Master Data'!O$42),0)","v":34.955128506182135},null,null,null,null,null,null,null,"Lamp Service costs Annualised",9.5413571483407775,9.5688989794247679,9.5710360324929571,9.5736707441620688,9.5505815590661562]
[null,{"$f":"Inputs!$M$68","v":"PE Cell Service costs Annualised"},"Labour Portion of PE Cell Service costs Annualised",null,{"$f":"IF($B535=\"Blank\",0,VLOOKUP($B535,Inputs!$C$68:$AN$129,MATCH($B540,Inputs!$C$68:$AN$68,0),FALSE))+IFERROR(IF($B535=\"Blank\",0,VLOOKUP($B535,Inputs!$C$68:$AN$129,MATCH($C540,Inputs!$C$68:$AN$68,0),FALSE))*('Master Data'!K$42),0)","v":0},{"$f":"IF($B535=\"Blank\",0,VLOOKUP($B535,Inputs!$C$68:$AN$129,MATCH($B540,Inputs!$C$68:$AN$68,0),FALSE))+IFERROR(IF($B535=\"Blank\",0,VLOOKUP($B535,Inputs!$C$68:$AN$129,MATCH($C540,Inputs!$C$68:$AN$68,0),FALSE))*('Master Data'!L$42),0)","v":0},{"$f":"IF($B535=\"Blank\",0,VLOOKUP($B535,Inputs!$C$68:$AN$129,MATCH($B540,Inputs!$C$68:$AN$68,0),FALSE))+IFERROR(IF($B535=\"Blank\",0,VLOOKUP($B535,Inputs!$C$68:$AN$129,MATCH($C540,Inputs!$C$68:$AN$68,0),FALSE))*('Master Data'!M$42),0)","v":0},{"$f":"IF($B535=\"Blank\",0,VLOOKUP($B535,Inputs!$C$68:$AN$129,MATCH($B540,Inputs!$C$68:$AN$68,0),FALSE))+IFERROR(IF($B535=\"Blank\",0,VLOOKUP($B535,Inputs!$C$68:$AN$129,MATCH($C540,Inputs!$C$68:$AN$68,0),FALSE))*('Master Data'!N$42),0)","v":0},{"$f":"IF($B535=\"Blank\",0,VLOOKUP($B535,Inputs!$C$68:$AN$129,MATCH($B540,Inputs!$C$68:$AN$68,0),FALSE))+IFERROR(IF($B535=\"Blank\",0,VLOOKUP($B535,Inputs!$C$68:$AN$129,MATCH($C540,Inputs!$C$68:$AN$68,0),FALSE))*('Master Data'!O$42),0)","v":0},null,null,null,null,null,null,null,"PE Cell Service costs Annualised",0,0,0,0,0]
[null,"Indirect Opex",null,null,{"$f":"IF($B535=\"Blank\",0,IF($B$8=\"Private Contract Lighting\",'Opex Weighting'!D$48,'Opex Weighting'!D$46))","v":12.159436933476723},{"$f":"IF($B535=\"Blank\",0,IF($B$8=\"Private Contract Lighting\",'Opex Weighting'!E$48,'Opex Weighting'!E$46))","v":12.139620760396495},{"$f":"IF($B535=\"Blank\",0,IF($B$8=\"Private Contract Lighting\",'Opex Weighting'!F$48,'Opex Weighting'!F$46))","v":12.041042902784117},{"$f":"IF($B535=\"Blank\",0,IF($B$8=\"Private Contract Lighting\",'Opex Weighting'!G$48,'Opex Weighting'!G$46))","v":11.913040696908689},{"$f":"IF($B535=\"Blank\",0,IF($B$8=\"Private Contract Lighting\",'Opex Weighting'!H$48,'Opex Weighting'!H$46))","v":11.775235721857506},null,null,null,null,null,null,null,"Indirect Opex",3.3222505282723289,3.32592349599904,3.2989158637764708,3.2638467662763535,3.2172775196331984]
[null,"Indirect Capex",null,null,{"$f":"IF($B536=\"Blank\",0,IF($B$8=\"Private Contract Lighting\",'Capex Weighting'!D$60,'Capex Weighting'!D$62))","v":0},{"$f":"IF($B536=\"Blank\",0,IF($B$8=\"Private Contract Lighting\",'Capex Weighting'!E$60,'Capex Weighting'!E$62))","v":0},{"$f":"IF($B536=\"Blank\",0,IF($B$8=\"Private Contract Lighting\",'Capex Weighting'!F$60,'Capex Weighting'!F$62))","v":0},{"$f":"IF($B536=\"Blank\",0,IF($B$8=\"Private Contract Lighting\",'Capex Weighting'!G$60,'Capex Weighting'!G$62))","v":0},{"$f":"IF($B536=\"Blank\",0,IF($B$8=\"Private Contract Lighting\",'Capex Weighting'!H$60,'Capex Weighting'!H$62))","v":0},null,null,null,null,null,null,null,"Indirect Capex",0,0,0,0,0]
[null,"Opex Overheads Costs per light",null,null,{"$f":"IF($B535=\"Blank\",0,IF($B$8=\"Private Contract Lighting\",'Building Block'!C$40,'Building Block'!C$39))","v":10.567257211169151},{"$f":"IF($B535=\"Blank\",0,IF($B$8=\"Private Contract Lighting\",'Building Block'!D$40,'Building Block'!D$39))","v":10.638037296614067},{"$f":"IF($B535=\"Blank\",0,IF($B$8=\"Private Contract Lighting\",'Building Block'!E$40,'Building Block'!E$39))","v":9.8094883699069495},{"$f":"IF($B535=\"Blank\",0,IF($B$8=\"Private Contract Lighting\",'Building Block'!F$40,'Building Block'!F$39))","v":9.7894714768092079},{"$f":"IF($B535=\"Blank\",0,IF($B$8=\"Private Contract Lighting\",'Building Block'!G$40,'Building Block'!G$39))","v":9.7584857493224391},null,null,null,null,null,null,null,"Opex Overheads Costs per light",2.8872287462210795,2.914530766195635,2.6875310602484794,2.6820469799477284,2.6662529369733439]
[null,{"$f":"Inputs!$AK$68","v":"Bracket UNIT price"},0,null,"NA","NA","NA","NA","NA",null,null,null,null,null,null,null,"Bracket UNIT price","","","","",""]
[null,{"$f":"Inputs!$AA$68","v":"CAPEX Instalation costs"},{"$f":"C544+1","v":1},null,"NA","NA","NA","NA","NA",null,null,null,null,null,null,null,"CAPEX Instalation costs","","","","",""]
[null,{"$f":"Inputs!$Z$68","v":"Luminaire UNIT price"},{"$f":"C545+1","v":2},null,"NA","NA","NA","NA","NA",null,null,null,null,null,null,null,"Luminaire UNIT price","","","","",""]
[null,{"$f":"Inputs!$AA$68","v":"CAPEX Instalation costs"},3,null,"NA","NA","NA","NA","NA",null,null,null,null,null,null,null,"CAPEX Instalation costs","","","","",""]
[null,null,null,null,{"$f":"SUM(E536:E547)","v":82.067365269838689},{"$f":"SUM(F536:F547)","v":82.093159797389404},81.023184480024639,80.689166387628106,80.321009483905698,null,null,null,null,null,null,null,null,{"$f":"ROUND(E548/R$2*100,3)","v":22.422999999999998},{"$f":"ROUND(F548/S$2*100,3)","v":22.491},{"$f":"ROUND(G548/T$2*100,3)","v":22.198},{"$f":"ROUND(H548/U$2*100,3)","v":22.106999999999999},{"$f":"ROUND(I548/V$2*100,3)","v":21.946000000000002}]
[]
[{"$f":"A535+1","v":37},{"$f":"IFERROR(VLOOKUP($A550,Inputs!$B$68:$AN$129,MATCH($B$7,Inputs!$B$68:$AN$68,0),FALSE),\"Blank\")","v":"400W Metal Halide"},null,null,null,null,null,null,null,null,null,null,null,null,null,null,{"$f":"IFERROR(VLOOKUP($A550,Inputs!$B$68:$AN$129,MATCH($B$7,Inputs!$B$68:$AN$68,0),FALSE),\"Blank\")","v":"400W Metal Halide"}]
[null,{"$f":"Inputs!$S$68","v":"Lamp UNIT price Annualised Cost"},{"$f":"Inputs!$Q$68","v":"Lamp Maintenance cycle"},null,{"$f":"IF($B550=\"Blank\",0,VLOOKUP($B550,Inputs!$C$68:$AN$129,MATCH($B551,Inputs!$C$68:$AN$68,0),FALSE))","v":6.5429946599999997},{"$f":"IF($B550=\"Blank\",0,VLOOKUP($B550,Inputs!$C$68:$AN$129,MATCH($B551,Inputs!$C$68:$AN$68,0),FALSE))","v":6.5429946599999997},{"$f":"IF($B550=\"Blank\",0,VLOOKUP($B550,Inputs!$C$68:$AN$129,MATCH($B551,Inputs!$C$68:$AN$68,0),FALSE))","v":6.5429946599999997},{"$f":"IF($B550=\"Blank\",0,VLOOKUP($B550,Inputs!$C$68:$AN$129,MATCH($B551,Inputs!$C$68:$AN$68,0),FALSE))","v":6.5429946599999997},{"$f":"IF($B550=\"Blank\",0,VLOOKUP($B550,Inputs!$C$68:$AN$129,MATCH($B551,Inputs!$C$68:$AN$68,0),FALSE))","v":6.5429946599999997},null,null,null,null,null,null,null,{"$f":"B551","v":"Lamp UNIT price Annualised Cost"},{"$f":"IF(E551=\"NA\",\"\",E551/R$2*100)","v":1.7877034590163936},{"$f":"IF(F551=\"NA\",\"\",F551/S$2*100)","v":1.7926012767123287},{"$f":"IF(G551=\"NA\",\"\",G551/T$2*100)","v":1.7926012767123287},{"$f":"IF(H551=\"NA\",\"\",H551/U$2*100)","v":1.7926012767123287},{"$f":"IF(I551=\"NA\",\"\",I551/V$2*100)","v":1.7877034590163936}]
[null,{"$f":"Inputs!$K$68","v":"PE Cell UNIT price Annualised Cost"},{"$f":"Inputs!$I$68","v":"PE Cell Maintenance Cycle"},null,{"$f":"IF($B550=\"Blank\",0,VLOOKUP($B550,Inputs!$C$68:$AN$129,MATCH($B552,Inputs!$C$68:$AN$68,0),FALSE))","v":1.6930974392480003},{"$f":"IF($B550=\"Blank\",0,VLOOKUP($B550,Inputs!$C$68:$AN$129,MATCH($B552,Inputs!$C$68:$AN$68,0),FALSE))","v":1.6930974392480003},{"$f":"IF($B550=\"Blank\",0,VLOOKUP($B550,Inputs!$C$68:$AN$129,MATCH($B552,Inputs!$C$68:$AN$68,0),FALSE))","v":1.6930974392480003},{"$f":"IF($B550=\"Blank\",0,VLOOKUP($B550,Inputs!$C$68:$AN$129,MATCH($B552,Inputs!$C$68:$AN$68,0),FALSE))","v":1.6930974392480003},{"$f":"IF($B550=\"Blank\",0,VLOOKUP($B550,Inputs!$C$68:$AN$129,MATCH($B552,Inputs!$C$68:$AN$68,0),FALSE))","v":1.6930974392480003},null,null,null,null,null,null,null,"PE Cell UNIT price Annualised Cost",0.46259492875628422,0.46386231212273976,0.46386231212273976,0.46386231212273976,0.46259492875628422]
[null,"Corp capex annuity per light",null,null,{"$f":"IF($B550=\"Blank\",0,'Corp Capex Annuity calcs'!F$142)","v":18.582309905017571},{"$f":"IF($B550=\"Blank\",0,'Corp Capex Annuity calcs'!G$142)","v":18.552026408230436},{"$f":"IF($B550=\"Blank\",0,'Corp Capex Annuity calcs'!H$142)","v":18.401377631486287},{"$f":"IF($B550=\"Blank\",0,'Corp Capex Annuity calcs'!I$142)","v":18.205761940470655},{"$f":"IF($B550=\"Blank\",0,'Corp Capex Annuity calcs'!J$142)","v":17.995165449295623},null,null,null,null,null,null,null,"Corp capex annuity per light",5.0771338538299373,5.0827469611590237,5.0414733236948734,4.9878799836905907,4.9167118713922466]
[null,{"$f":"Inputs!$U$68","v":"Lamp Service costs Annualised"},"Labour Portion of Lamp Service costs annualised",null,{"$f":"IF($B550=\"Blank\",0,VLOOKUP($B550,Inputs!$C$68:$AN$129,MATCH($B554,Inputs!$C$68:$AN$68,0),FALSE))+IFERROR(IF($B550=\"Blank\",0,VLOOKUP($B550,Inputs!$C$68:$AN$129,MATCH($C554,Inputs!$C$68:$AN$68,0),FALSE))*('Master Data'!K$42),0)","v":34.921367162927247},{"$f":"IF($B550=\"Blank\",0,VLOOKUP($B550,Inputs!$C$68:$AN$129,MATCH($B554,Inputs!$C$68:$AN$68,0),FALSE))+IFERROR(IF($B550=\"Blank\",0,VLOOKUP($B550,Inputs!$C$68:$AN$129,MATCH($C554,Inputs!$C$68:$AN$68,0),FALSE))*('Master Data'!L$42),0)","v":34.926481274900404},{"$f":"IF($B550=\"Blank\",0,VLOOKUP($B550,Inputs!$C$68:$AN$129,MATCH($B554,Inputs!$C$68:$AN$68,0),FALSE))+IFERROR(IF($B550=\"Blank\",0,VLOOKUP($B550,Inputs!$C$68:$AN$129,MATCH($C554,Inputs!$C$68:$AN$68,0),FALSE))*('Master Data'!M$42),0)","v":34.934281518599292},{"$f":"IF($B550=\"Blank\",0,VLOOKUP($B550,Inputs!$C$68:$AN$129,MATCH($B554,Inputs!$C$68:$AN$68,0),FALSE))+IFERROR(IF($B550=\"Blank\",0,VLOOKUP($B550,Inputs!$C$68:$AN$129,MATCH($C554,Inputs!$C$68:$AN$68,0),FALSE))*('Master Data'!N$42),0)","v":34.943898216191549},{"$f":"IF($B550=\"Blank\",0,VLOOKUP($B550,Inputs!$C$68:$AN$129,MATCH($B554,Inputs!$C$68:$AN$68,0),FALSE))+IFERROR(IF($B550=\"Blank\",0,VLOOKUP($B550,Inputs!$C$68:$AN$129,MATCH($C554,Inputs!$C$68:$AN$68,0),FALSE))*('Master Data'!O$42),0)","v":34.955128506182135},null,null,null,null,null,null,null,"Lamp Service costs Annualised",9.5413571483407775,9.5688989794247679,9.5710360324929571,9.5736707441620688,9.5505815590661562]
[null,{"$f":"Inputs!$M$68","v":"PE Cell Service costs Annualised"},"Labour Portion of PE Cell Service costs Annualised",null,{"$f":"IF($B550=\"Blank\",0,VLOOKUP($B550,Inputs!$C$68:$AN$129,MATCH($B555,Inputs!$C$68:$AN$68,0),FALSE))+IFERROR(IF($B550=\"Blank\",0,VLOOKUP($B550,Inputs!$C$68:$AN$129,MATCH($C555,Inputs!$C$68:$AN$68,0),FALSE))*('Master Data'!K$42),0)","v":0},{"$f":"IF($B550=\"Blank\",0,VLOOKUP($B550,Inputs!$C$68:$AN$129,MATCH($B555,Inputs!$C$68:$AN$68,0),FALSE))+IFERROR(IF($B550=\"Blank\",0,VLOOKUP($B550,Inputs!$C$68:$AN$129,MATCH($C555,Inputs!$C$68:$AN$68,0),FALSE))*('Master Data'!L$42),0)","v":0},{"$f":"IF($B550=\"Blank\",0,VLOOKUP($B550,Inputs!$C$68:$AN$129,MATCH($B555,Inputs!$C$68:$AN$68,0),FALSE))+IFERROR(IF($B550=\"Blank\",0,VLOOKUP($B550,Inputs!$C$68:$AN$129,MATCH($C555,Inputs!$C$68:$AN$68,0),FALSE))*('Master Data'!M$42),0)","v":0},{"$f":"IF($B550=\"Blank\",0,VLOOKUP($B550,Inputs!$C$68:$AN$129,MATCH($B555,Inputs!$C$68:$AN$68,0),FALSE))+IFERROR(IF($B550=\"Blank\",0,VLOOKUP($B550,Inputs!$C$68:$AN$129,MATCH($C555,Inputs!$C$68:$AN$68,0),FALSE))*('Master Data'!N$42),0)","v":0},{"$f":"IF($B550=\"Blank\",0,VLOOKUP($B550,Inputs!$C$68:$AN$129,MATCH($B555,Inputs!$C$68:$AN$68,0),FALSE))+IFERROR(IF($B550=\"Blank\",0,VLOOKUP($B550,Inputs!$C$68:$AN$129,MATCH($C555,Inputs!$C$68:$AN$68,0),FALSE))*('Master Data'!O$42),0)","v":0},null,null,null,null,null,null,null,"PE Cell Service costs Annualised",0,0,0,0,0]
[null,"Indirect Opex",null,null,{"$f":"IF($B550=\"Blank\",0,IF($B$8=\"Private Contract Lighting\",'Opex Weighting'!D$48,'Opex Weighting'!D$46))","v":12.159436933476723},{"$f":"IF($B550=\"Blank\",0,IF($B$8=\"Private Contract Lighting\",'Opex Weighting'!E$48,'Opex Weighting'!E$46))","v":12.139620760396495},{"$f":"IF($B550=\"Blank\",0,IF($B$8=\"Private Contract Lighting\",'Opex Weighting'!F$48,'Opex Weighting'!F$46))","v":12.041042902784117},{"$f":"IF($B550=\"Blank\",0,IF($B$8=\"Private Contract Lighting\",'Opex Weighting'!G$48,'Opex Weighting'!G$46))","v":11.913040696908689},{"$f":"IF($B550=\"Blank\",0,IF($B$8=\"Private Contract Lighting\",'Opex Weighting'!H$48,'Opex Weighting'!H$46))","v":11.775235721857506},null,null,null,null,null,null,null,"Indirect Opex",3.3222505282723289,3.32592349599904,3.2989158637764708,3.2638467662763535,3.2172775196331984]
[null,"Indirect Capex",null,null,{"$f":"IF($B551=\"Blank\",0,IF($B$8=\"Private Contract Lighting\",'Capex Weighting'!D$60,'Capex Weighting'!D$62))","v":0},{"$f":"IF($B551=\"Blank\",0,IF($B$8=\"Private Contract Lighting\",'Capex Weighting'!E$60,'Capex Weighting'!E$62))","v":0},{"$f":"IF($B551=\"Blank\",0,IF($B$8=\"Private Contract Lighting\",'Capex Weighting'!F$60,'Capex Weighting'!F$62))","v":0},{"$f":"IF($B551=\"Blank\",0,IF($B$8=\"Private Contract Lighting\",'Capex Weighting'!G$60,'Capex Weighting'!G$62))","v":0},{"$f":"IF($B551=\"Blank\",0,IF($B$8=\"Private Contract Lighting\",'Capex Weighting'!H$60,'Capex Weighting'!H$62))","v":0},null,null,null,null,null,null,null,"Indirect Capex",0,0,0,0,0]
[null,"Opex Overheads Costs per light",null,null,{"$f":"IF($B550=\"Blank\",0,IF($B$8=\"Private Contract Lighting\",'Building Block'!C$40,'Building Block'!C$39))","v":10.567257211169151},{"$f":"IF($B550=\"Blank\",0,IF($B$8=\"Private Contract Lighting\",'Building Block'!D$40,'Building Block'!D$39))","v":10.638037296614067},{"$f":"IF($B550=\"Blank\",0,IF($B$8=\"Private Contract Lighting\",'Building Block'!E$40,'Building Block'!E$39))","v":9.8094883699069495},{"$f":"IF($B550=\"Blank\",0,IF($B$8=\"Private Contract Lighting\",'Building Block'!F$40,'Building Block'!F$39))","v":9.7894714768092079},{"$f":"IF($B550=\"Blank\",0,IF($B$8=\"Private Contract Lighting\",'Building Block'!G$40,'Building Block'!G$39))","v":9.7584857493224391},null,null,null,null,null,null,null,"Opex Overheads Costs per light",2.8872287462210795,2.914530766195635,2.6875310602484794,2.6820469799477284,2.6662529369733439]
[null,{"$f":"Inputs!$AK$68","v":"Bracket UNIT price"},0,null,"NA","NA","NA","NA","NA",null,null,null,null,null,null,null,"Bracket UNIT price","","","","",""]
[null,{"$f":"Inputs!$AA$68","v":"CAPEX Instalation costs"},{"$f":"C559+1","v":1},null,"NA","NA","NA","NA","NA",null,null,null,null,null,null,null,"CAPEX Instalation costs","","","","",""]
[null,{"$f":"Inputs!$Z$68","v":"Luminaire UNIT price"},{"$f":"C560+1","v":2},null,"NA","NA","NA","NA","NA",null,null,null,null,null,null,null,"Luminaire UNIT price","","","","",""]
[null,{"$f":"Inputs!$AA$68","v":"CAPEX Instalation costs"},3,null,"NA","NA","NA","NA","NA",null,null,null,null,null,null,null,"CAPEX Instalation costs","","","","",""]
[null,null,null,null,{"$f":"SUM(E551:E562)","v":84.466463311838694},{"$f":"SUM(F551:F562)","v":84.49225783938941},83.422282522024645,83.088264429628111,82.720107525905689,null,null,null,null,null,null,null,null,{"$f":"ROUND(E563/R$2*100,3)","v":23.077999999999999},{"$f":"ROUND(F563/S$2*100,3)","v":23.149000000000001},{"$f":"ROUND(G563/T$2*100,3)","v":22.855},{"$f":"ROUND(H563/U$2*100,3)","v":22.763999999999999},{"$f":"ROUND(I563/V$2*100,3)","v":22.600999999999999}]
[]
[{"$f":"A550+1","v":38},{"$f":"IFERROR(VLOOKUP($A565,Inputs!$B$68:$AN$129,MATCH($B$7,Inputs!$B$68:$AN$68,0),FALSE),\"Blank\")","v":"70W Metal Halide"},null,null,null,null,null,null,null,null,null,null,null,null,null,null,{"$f":"IFERROR(VLOOKUP($A565,Inputs!$B$68:$AN$129,MATCH($B$7,Inputs!$B$68:$AN$68,0),FALSE),\"Blank\")","v":"70W Metal Halide"}]
[null,{"$f":"Inputs!$S$68","v":"Lamp UNIT price Annualised Cost"},{"$f":"Inputs!$Q$68","v":"Lamp Maintenance cycle"},null,{"$f":"IF($B565=\"Blank\",0,VLOOKUP($B565,Inputs!$C$68:$AN$129,MATCH($B566,Inputs!$C$68:$AN$68,0),FALSE))","v":3.5765501073499997},{"$f":"IF($B565=\"Blank\",0,VLOOKUP($B565,Inputs!$C$68:$AN$129,MATCH($B566,Inputs!$C$68:$AN$68,0),FALSE))","v":3.5765501073499997},{"$f":"IF($B565=\"Blank\",0,VLOOKUP($B565,Inputs!$C$68:$AN$129,MATCH($B566,Inputs!$C$68:$AN$68,0),FALSE))","v":3.5765501073499997},{"$f":"IF($B565=\"Blank\",0,VLOOKUP($B565,Inputs!$C$68:$AN$129,MATCH($B566,Inputs!$C$68:$AN$68,0),FALSE))","v":3.5765501073499997},{"$f":"IF($B565=\"Blank\",0,VLOOKUP($B565,Inputs!$C$68:$AN$129,MATCH($B566,Inputs!$C$68:$AN$68,0),FALSE))","v":3.5765501073499997},null,null,null,null,null,null,null,{"$f":"B566","v":"Lamp UNIT price Annualised Cost"},{"$f":"IF(E566=\"NA\",\"\",E566/R$2*100)","v":0.97719948288251357},{"$f":"IF(F566=\"NA\",\"\",F566/S$2*100)","v":0.97987674173972594},{"$f":"IF(G566=\"NA\",\"\",G566/T$2*100)","v":0.97987674173972594},{"$f":"IF(H566=\"NA\",\"\",H566/U$2*100)","v":0.97987674173972594},{"$f":"IF(I566=\"NA\",\"\",I566/V$2*100)","v":0.97719948288251357}]
[null,{"$f":"Inputs!$K$68","v":"PE Cell UNIT price Annualised Cost"},{"$f":"Inputs!$I$68","v":"PE Cell Maintenance Cycle"},null,{"$f":"IF($B565=\"Blank\",0,VLOOKUP($B565,Inputs!$C$68:$AN$129,MATCH($B567,Inputs!$C$68:$AN$68,0),FALSE))","v":0.58131255188333353},{"$f":"IF($B565=\"Blank\",0,VLOOKUP($B565,Inputs!$C$68:$AN$129,MATCH($B567,Inputs!$C$68:$AN$68,0),FALSE))","v":0.58131255188333353},{"$f":"IF($B565=\"Blank\",0,VLOOKUP($B565,Inputs!$C$68:$AN$129,MATCH($B567,Inputs!$C$68:$AN$68,0),FALSE))","v":0.58131255188333353},{"$f":"IF($B565=\"Blank\",0,VLOOKUP($B565,Inputs!$C$68:$AN$129,MATCH($B567,Inputs!$C$68:$AN$68,0),FALSE))","v":0.58131255188333353},{"$f":"IF($B565=\"Blank\",0,VLOOKUP($B565,Inputs!$C$68:$AN$129,MATCH($B567,Inputs!$C$68:$AN$68,0),FALSE))","v":0.58131255188333353},null,null,null,null,null,null,null,"PE Cell UNIT price Annualised Cost",0.15882856608834248,0.15926371284474891,0.15926371284474891,0.15926371284474891,0.15882856608834248]
[null,"Corp capex annuity per light",null,null,{"$f":"IF($B565=\"Blank\",0,'Corp Capex Annuity calcs'!F$142)","v":18.582309905017571},{"$f":"IF($B565=\"Blank\",0,'Corp Capex Annuity calcs'!G$142)","v":18.552026408230436},{"$f":"IF($B565=\"Blank\",0,'Corp Capex Annuity calcs'!H$142)","v":18.401377631486287},{"$f":"IF($B565=\"Blank\",0,'Corp Capex Annuity calcs'!I$142)","v":18.205761940470655},{"$f":"IF($B565=\"Blank\",0,'Corp Capex Annuity calcs'!J$142)","v":17.995165449295623},null,null,null,null,null,null,null,"Corp capex annuity per light",5.0771338538299373,5.0827469611590237,5.0414733236948734,4.9878799836905907,4.9167118713922466]
[null,{"$f":"Inputs!$U$68","v":"Lamp Service costs Annualised"},"Labour Portion of Lamp Service costs annualised",null,{"$f":"IF($B565=\"Blank\",0,VLOOKUP($B565,Inputs!$C$68:$AN$129,MATCH($B569,Inputs!$C$68:$AN$68,0),FALSE))+IFERROR(IF($B565=\"Blank\",0,VLOOKUP($B565,Inputs!$C$68:$AN$129,MATCH($C569,Inputs!$C$68:$AN$68,0),FALSE))*('Master Data'!K$42),0)","v":24.127490039840644},{"$f":"IF($B565=\"Blank\",0,VLOOKUP($B565,Inputs!$C$68:$AN$129,MATCH($B569,Inputs!$C$68:$AN$68,0),FALSE))+IFERROR(IF($B565=\"Blank\",0,VLOOKUP($B565,Inputs!$C$68:$AN$129,MATCH($C569,Inputs!$C$68:$AN$68,0),FALSE))*('Master Data'!L$42),0)","v":24.131023426294828},{"$f":"IF($B565=\"Blank\",0,VLOOKUP($B565,Inputs!$C$68:$AN$129,MATCH($B569,Inputs!$C$68:$AN$68,0),FALSE))+IFERROR(IF($B565=\"Blank\",0,VLOOKUP($B565,Inputs!$C$68:$AN$129,MATCH($C569,Inputs!$C$68:$AN$68,0),FALSE))*('Master Data'!M$42),0)","v":24.136412685577696},{"$f":"IF($B565=\"Blank\",0,VLOOKUP($B565,Inputs!$C$68:$AN$129,MATCH($B569,Inputs!$C$68:$AN$68,0),FALSE))+IFERROR(IF($B565=\"Blank\",0,VLOOKUP($B565,Inputs!$C$68:$AN$129,MATCH($C569,Inputs!$C$68:$AN$68,0),FALSE))*('Master Data'!N$42),0)","v":24.143056949368709},{"$f":"IF($B565=\"Blank\",0,VLOOKUP($B565,Inputs!$C$68:$AN$129,MATCH($B569,Inputs!$C$68:$AN$68,0),FALSE))+IFERROR(IF($B565=\"Blank\",0,VLOOKUP($B565,Inputs!$C$68:$AN$129,MATCH($C569,Inputs!$C$68:$AN$68,0),FALSE))*('Master Data'!O$42),0)","v":24.150816058816748},null,null,null,null,null,null,null,"Lamp Service costs Annualised",6.5922103933990828,6.611239294875296,6.6127158042678618,6.6145361505119755,6.598583622627527]
[null,{"$f":"Inputs!$M$68","v":"PE Cell Service costs Annualised"},"Labour Portion of PE Cell Service costs Annualised",null,{"$f":"IF($B565=\"Blank\",0,VLOOKUP($B565,Inputs!$C$68:$AN$129,MATCH($B570,Inputs!$C$68:$AN$68,0),FALSE))+IFERROR(IF($B565=\"Blank\",0,VLOOKUP($B565,Inputs!$C$68:$AN$129,MATCH($C570,Inputs!$C$68:$AN$68,0),FALSE))*('Master Data'!K$42),0)","v":0},{"$f":"IF($B565=\"Blank\",0,VLOOKUP($B565,Inputs!$C$68:$AN$129,MATCH($B570,Inputs!$C$68:$AN$68,0),FALSE))+IFERROR(IF($B565=\"Blank\",0,VLOOKUP($B565,Inputs!$C$68:$AN$129,MATCH($C570,Inputs!$C$68:$AN$68,0),FALSE))*('Master Data'!L$42),0)","v":0},{"$f":"IF($B565=\"Blank\",0,VLOOKUP($B565,Inputs!$C$68:$AN$129,MATCH($B570,Inputs!$C$68:$AN$68,0),FALSE))+IFERROR(IF($B565=\"Blank\",0,VLOOKUP($B565,Inputs!$C$68:$AN$129,MATCH($C570,Inputs!$C$68:$AN$68,0),FALSE))*('Master Data'!M$42),0)","v":0},{"$f":"IF($B565=\"Blank\",0,VLOOKUP($B565,Inputs!$C$68:$AN$129,MATCH($B570,Inputs!$C$68:$AN$68,0),FALSE))+IFERROR(IF($B565=\"Blank\",0,VLOOKUP($B565,Inputs!$C$68:$AN$129,MATCH($C570,Inputs!$C$68:$AN$68,0),FALSE))*('Master Data'!N$42),0)","v":0},{"$f":"IF($B565=\"Blank\",0,VLOOKUP($B565,Inputs!$C$68:$AN$129,MATCH($B570,Inputs!$C$68:$AN$68,0),FALSE))+IFERROR(IF($B565=\"Blank\",0,VLOOKUP($B565,Inputs!$C$68:$AN$129,MATCH($C570,Inputs!$C$68:$AN$68,0),FALSE))*('Master Data'!O$42),0)","v":0},null,null,null,null,null,null,null,"PE Cell Service costs Annualised",0,0,0,0,0]
[null,"Indirect Opex",null,null,{"$f":"IF($B565=\"Blank\",0,IF($B$8=\"Private Contract Lighting\",'Opex Weighting'!D$48,'Opex Weighting'!D$46))","v":12.159436933476723},{"$f":"IF($B565=\"Blank\",0,IF($B$8=\"Private Contract Lighting\",'Opex Weighting'!E$48,'Opex Weighting'!E$46))","v":12.139620760396495},{"$f":"IF($B565=\"Blank\",0,IF($B$8=\"Private Contract Lighting\",'Opex Weighting'!F$48,'Opex Weighting'!F$46))","v":12.041042902784117},{"$f":"IF($B565=\"Blank\",0,IF($B$8=\"Private Contract Lighting\",'Opex Weighting'!G$48,'Opex Weighting'!G$46))","v":11.913040696908689},{"$f":"IF($B565=\"Blank\",0,IF($B$8=\"Private Contract Lighting\",'Opex Weighting'!H$48,'Opex Weighting'!H$46))","v":11.775235721857506},null,null,null,null,null,null,null,"Indirect Opex",3.3222505282723289,3.32592349599904,3.2989158637764708,3.2638467662763535,3.2172775196331984]
[null,"Indirect Capex",null,null,{"$f":"IF($B566=\"Blank\",0,IF($B$8=\"Private Contract Lighting\",'Capex Weighting'!D$60,'Capex Weighting'!D$62))","v":0},{"$f":"IF($B566=\"Blank\",0,IF($B$8=\"Private Contract Lighting\",'Capex Weighting'!E$60,'Capex Weighting'!E$62))","v":0},{"$f":"IF($B566=\"Blank\",0,IF($B$8=\"Private Contract Lighting\",'Capex Weighting'!F$60,'Capex Weighting'!F$62))","v":0},{"$f":"IF($B566=\"Blank\",0,IF($B$8=\"Private Contract Lighting\",'Capex Weighting'!G$60,'Capex Weighting'!G$62))","v":0},{"$f":"IF($B566=\"Blank\",0,IF($B$8=\"Private Contract Lighting\",'Capex Weighting'!H$60,'Capex Weighting'!H$62))","v":0},null,null,null,null,null,null,null,"Indirect Capex",0,0,0,0,0]
[null,"Opex Overheads Costs per light",null,null,{"$f":"IF($B565=\"Blank\",0,IF($B$8=\"Private Contract Lighting\",'Building Block'!C$40,'Building Block'!C$39))","v":10.567257211169151},{"$f":"IF($B565=\"Blank\",0,IF($B$8=\"Private Contract Lighting\",'Building Block'!D$40,'Building Block'!D$39))","v":10.638037296614067},{"$f":"IF($B565=\"Blank\",0,IF($B$8=\"Private Contract Lighting\",'Building Block'!E$40,'Building Block'!E$39))","v":9.8094883699069495},{"$f":"IF($B565=\"Blank\",0,IF($B$8=\"Private Contract Lighting\",'Building Block'!F$40,'Building Block'!F$39))","v":9.7894714768092079},{"$f":"IF($B565=\"Blank\",0,IF($B$8=\"Private Contract Lighting\",'Building Block'!G$40,'Building Block'!G$39))","v":9.7584857493224391},null,null,null,null,null,null,null,"Opex Overheads Costs per light",2.8872287462210795,2.914530766195635,2.6875310602484794,2.6820469799477284,2.6662529369733439]
[null,{"$f":"Inputs!$AK$68","v":"Bracket UNIT price"},0,null,"NA","NA","NA","NA","NA",null,null,null,null,null,null,null,"Bracket UNIT price","","","","",""]
[null,{"$f":"Inputs!$AA$68","v":"CAPEX Instalation costs"},{"$f":"C574+1","v":1},null,"NA","NA","NA","NA","NA",null,null,null,null,null,null,null,"CAPEX Instalation costs","","","","",""]
[null,{"$f":"Inputs!$Z$68","v":"Luminaire UNIT price"},{"$f":"C575+1","v":2},null,"NA","NA","NA","NA","NA",null,null,null,null,null,null,null,"Luminaire UNIT price","","","","",""]
[null,{"$f":"Inputs!$AA$68","v":"CAPEX Instalation costs"},3,null,"NA","NA","NA","NA","NA",null,null,null,null,null,null,null,"CAPEX Instalation costs","","","","",""]
[null,null,null,null,{"$f":"SUM(E566:E577)","v":69.594356748737425},{"$f":"SUM(F566:F577)","v":69.618570550769164},68.546184248988382,68.209193722790587,67.837565638525646,null,null,null,null,null,null,null,null,{"$f":"ROUND(E578/R$2*100,3)","v":19.015000000000001},{"$f":"ROUND(F578/S$2*100,3)","v":19.074000000000002},{"$f":"ROUND(G578/T$2*100,3)","v":18.78},{"$f":"ROUND(H578/U$2*100,3)","v":18.687000000000001},{"$f":"ROUND(I578/V$2*100,3)","v":18.535}]
[]
[{"$f":"A565+1","v":39},{"$f":"IFERROR(VLOOKUP($A580,Inputs!$B$68:$AN$129,MATCH($B$7,Inputs!$B$68:$AN$68,0),FALSE),\"Blank\")","v":"250W Metal Halide - Flood Light"},null,null,null,null,null,null,null,null,null,null,null,null,null,null,{"$f":"IFERROR(VLOOKUP($A580,Inputs!$B$68:$AN$129,MATCH($B$7,Inputs!$B$68:$AN$68,0),FALSE),\"Blank\")","v":"250W Metal Halide - Flood Light"}]
[null,{"$f":"Inputs!$S$68","v":"Lamp UNIT price Annualised Cost"},{"$f":"Inputs!$Q$68","v":"Lamp Maintenance cycle"},null,{"$f":"IF($B580=\"Blank\",0,VLOOKUP($B580,Inputs!$C$68:$AN$129,MATCH($B581,Inputs!$C$68:$AN$68,0),FALSE))","v":4.1438966180000003},{"$f":"IF($B580=\"Blank\",0,VLOOKUP($B580,Inputs!$C$68:$AN$129,MATCH($B581,Inputs!$C$68:$AN$68,0),FALSE))","v":4.1438966180000003},{"$f":"IF($B580=\"Blank\",0,VLOOKUP($B580,Inputs!$C$68:$AN$129,MATCH($B581,Inputs!$C$68:$AN$68,0),FALSE))","v":4.1438966180000003},{"$f":"IF($B580=\"Blank\",0,VLOOKUP($B580,Inputs!$C$68:$AN$129,MATCH($B581,Inputs!$C$68:$AN$68,0),FALSE))","v":4.1438966180000003},{"$f":"IF($B580=\"Blank\",0,VLOOKUP($B580,Inputs!$C$68:$AN$129,MATCH($B581,Inputs!$C$68:$AN$68,0),FALSE))","v":4.1438966180000003},null,null,null,null,null,null,null,{"$f":"B581","v":"Lamp UNIT price Annualised Cost"},{"$f":"IF(E581=\"NA\",\"\",E581/R$2*100)","v":1.1322121907103826},{"$f":"IF(F581=\"NA\",\"\",F581/S$2*100)","v":1.1353141419178083},{"$f":"IF(G581=\"NA\",\"\",G581/T$2*100)","v":1.1353141419178083},{"$f":"IF(H581=\"NA\",\"\",H581/U$2*100)","v":1.1353141419178083},{"$f":"IF(I581=\"NA\",\"\",I581/V$2*100)","v":1.1322121907103826}]
[null,{"$f":"Inputs!$K$68","v":"PE Cell UNIT price Annualised Cost"},{"$f":"Inputs!$I$68","v":"PE Cell Maintenance Cycle"},null,{"$f":"IF($B580=\"Blank\",0,VLOOKUP($B580,Inputs!$C$68:$AN$129,MATCH($B582,Inputs!$C$68:$AN$68,0),FALSE))","v":1.6930974392480003},{"$f":"IF($B580=\"Blank\",0,VLOOKUP($B580,Inputs!$C$68:$AN$129,MATCH($B582,Inputs!$C$68:$AN$68,0),FALSE))","v":1.6930974392480003},{"$f":"IF($B580=\"Blank\",0,VLOOKUP($B580,Inputs!$C$68:$AN$129,MATCH($B582,Inputs!$C$68:$AN$68,0),FALSE))","v":1.6930974392480003},{"$f":"IF($B580=\"Blank\",0,VLOOKUP($B580,Inputs!$C$68:$AN$129,MATCH($B582,Inputs!$C$68:$AN$68,0),FALSE))","v":1.6930974392480003},{"$f":"IF($B580=\"Blank\",0,VLOOKUP($B580,Inputs!$C$68:$AN$129,MATCH($B582,Inputs!$C$68:$AN$68,0),FALSE))","v":1.6930974392480003},null,null,null,null,null,null,null,"PE Cell UNIT price Annualised Cost",0.46259492875628422,0.46386231212273976,0.46386231212273976,0.46386231212273976,0.46259492875628422]
[null,"Corp capex annuity per light",null,null,{"$f":"IF($B580=\"Blank\",0,'Corp Capex Annuity calcs'!F$142)","v":18.582309905017571},{"$f":"IF($B580=\"Blank\",0,'Corp Capex Annuity calcs'!G$142)","v":18.552026408230436},{"$f":"IF($B580=\"Blank\",0,'Corp Capex Annuity calcs'!H$142)","v":18.401377631486287},{"$f":"IF($B580=\"Blank\",0,'Corp Capex Annuity calcs'!I$142)","v":18.205761940470655},{"$f":"IF($B580=\"Blank\",0,'Corp Capex Annuity calcs'!J$142)","v":17.995165449295623},null,null,null,null,null,null,null,"Corp capex annuity per light",5.0771338538299373,5.0827469611590237,5.0414733236948734,4.9878799836905907,4.9167118713922466]
[null,{"$f":"Inputs!$U$68","v":"Lamp Service costs Annualised"},"Labour Portion of Lamp Service costs annualised",null,{"$f":"IF($B580=\"Blank\",0,VLOOKUP($B580,Inputs!$C$68:$AN$129,MATCH($B584,Inputs!$C$68:$AN$68,0),FALSE))+IFERROR(IF($B580=\"Blank\",0,VLOOKUP($B580,Inputs!$C$68:$AN$129,MATCH($C584,Inputs!$C$68:$AN$68,0),FALSE))*('Master Data'!K$42),0)","v":34.921367162927247},{"$f":"IF($B580=\"Blank\",0,VLOOKUP($B580,Inputs!$C$68:$AN$129,MATCH($B584,Inputs!$C$68:$AN$68,0),FALSE))+IFERROR(IF($B580=\"Blank\",0,VLOOKUP($B580,Inputs!$C$68:$AN$129,MATCH($C584,Inputs!$C$68:$AN$68,0),FALSE))*('Master Data'!L$42),0)","v":34.926481274900404},{"$f":"IF($B580=\"Blank\",0,VLOOKUP($B580,Inputs!$C$68:$AN$129,MATCH($B584,Inputs!$C$68:$AN$68,0),FALSE))+IFERROR(IF($B580=\"Blank\",0,VLOOKUP($B580,Inputs!$C$68:$AN$129,MATCH($C584,Inputs!$C$68:$AN$68,0),FALSE))*('Master Data'!M$42),0)","v":34.934281518599292},{"$f":"IF($B580=\"Blank\",0,VLOOKUP($B580,Inputs!$C$68:$AN$129,MATCH($B584,Inputs!$C$68:$AN$68,0),FALSE))+IFERROR(IF($B580=\"Blank\",0,VLOOKUP($B580,Inputs!$C$68:$AN$129,MATCH($C584,Inputs!$C$68:$AN$68,0),FALSE))*('Master Data'!N$42),0)","v":34.943898216191549},{"$f":"IF($B580=\"Blank\",0,VLOOKUP($B580,Inputs!$C$68:$AN$129,MATCH($B584,Inputs!$C$68:$AN$68,0),FALSE))+IFERROR(IF($B580=\"Blank\",0,VLOOKUP($B580,Inputs!$C$68:$AN$129,MATCH($C584,Inputs!$C$68:$AN$68,0),FALSE))*('Master Data'!O$42),0)","v":34.955128506182135},null,null,null,null,null,null,null,"Lamp Service costs Annualised",9.5413571483407775,9.5688989794247679,9.5710360324929571,9.5736707441620688,9.5505815590661562]
[null,{"$f":"Inputs!$M$68","v":"PE Cell Service costs Annualised"},"Labour Portion of PE Cell Service costs Annualised",null,{"$f":"IF($B580=\"Blank\",0,VLOOKUP($B580,Inputs!$C$68:$AN$129,MATCH($B585,Inputs!$C$68:$AN$68,0),FALSE))+IFERROR(IF($B580=\"Blank\",0,VLOOKUP($B580,Inputs!$C$68:$AN$129,MATCH($C585,Inputs!$C$68:$AN$68,0),FALSE))*('Master Data'!K$42),0)","v":0},{"$f":"IF($B580=\"Blank\",0,VLOOKUP($B580,Inputs!$C$68:$AN$129,MATCH($B585,Inputs!$C$68:$AN$68,0),FALSE))+IFERROR(IF($B580=\"Blank\",0,VLOOKUP($B580,Inputs!$C$68:$AN$129,MATCH($C585,Inputs!$C$68:$AN$68,0),FALSE))*('Master Data'!L$42),0)","v":0},{"$f":"IF($B580=\"Blank\",0,VLOOKUP($B580,Inputs!$C$68:$AN$129,MATCH($B585,Inputs!$C$68:$AN$68,0),FALSE))+IFERROR(IF($B580=\"Blank\",0,VLOOKUP($B580,Inputs!$C$68:$AN$129,MATCH($C585,Inputs!$C$68:$AN$68,0),FALSE))*('Master Data'!M$42),0)","v":0},{"$f":"IF($B580=\"Blank\",0,VLOOKUP($B580,Inputs!$C$68:$AN$129,MATCH($B585,Inputs!$C$68:$AN$68,0),FALSE))+IFERROR(IF($B580=\"Blank\",0,VLOOKUP($B580,Inputs!$C$68:$AN$129,MATCH($C585,Inputs!$C$68:$AN$68,0),FALSE))*('Master Data'!N$42),0)","v":0},{"$f":"IF($B580=\"Blank\",0,VLOOKUP($B580,Inputs!$C$68:$AN$129,MATCH($B585,Inputs!$C$68:$AN$68,0),FALSE))+IFERROR(IF($B580=\"Blank\",0,VLOOKUP($B580,Inputs!$C$68:$AN$129,MATCH($C585,Inputs!$C$68:$AN$68,0),FALSE))*('Master Data'!O$42),0)","v":0},null,null,null,null,null,null,null,"PE Cell Service costs Annualised",0,0,0,0,0]
[null,"Indirect Opex",null,null,{"$f":"IF($B580=\"Blank\",0,IF($B$8=\"Private Contract Lighting\",'Opex Weighting'!D$48,'Opex Weighting'!D$46))","v":12.159436933476723},{"$f":"IF($B580=\"Blank\",0,IF($B$8=\"Private Contract Lighting\",'Opex Weighting'!E$48,'Opex Weighting'!E$46))","v":12.139620760396495},{"$f":"IF($B580=\"Blank\",0,IF($B$8=\"Private Contract Lighting\",'Opex Weighting'!F$48,'Opex Weighting'!F$46))","v":12.041042902784117},{"$f":"IF($B580=\"Blank\",0,IF($B$8=\"Private Contract Lighting\",'Opex Weighting'!G$48,'Opex Weighting'!G$46))","v":11.913040696908689},{"$f":"IF($B580=\"Blank\",0,IF($B$8=\"Private Contract Lighting\",'Opex Weighting'!H$48,'Opex Weighting'!H$46))","v":11.775235721857506},null,null,null,null,null,null,null,"Indirect Opex",3.3222505282723289,3.32592349599904,3.2989158637764708,3.2638467662763535,3.2172775196331984]
[null,"Indirect Capex",null,null,{"$f":"IF($B581=\"Blank\",0,IF($B$8=\"Private Contract Lighting\",'Capex Weighting'!D$60,'Capex Weighting'!D$62))","v":0},{"$f":"IF($B581=\"Blank\",0,IF($B$8=\"Private Contract Lighting\",'Capex Weighting'!E$60,'Capex Weighting'!E$62))","v":0},{"$f":"IF($B581=\"Blank\",0,IF($B$8=\"Private Contract Lighting\",'Capex Weighting'!F$60,'Capex Weighting'!F$62))","v":0},{"$f":"IF($B581=\"Blank\",0,IF($B$8=\"Private Contract Lighting\",'Capex Weighting'!G$60,'Capex Weighting'!G$62))","v":0},{"$f":"IF($B581=\"Blank\",0,IF($B$8=\"Private Contract Lighting\",'Capex Weighting'!H$60,'Capex Weighting'!H$62))","v":0},null,null,null,null,null,null,null,"Indirect Capex",0,0,0,0,0]
[null,"Opex Overheads Costs per light",null,null,{"$f":"IF($B580=\"Blank\",0,IF($B$8=\"Private Contract Lighting\",'Building Block'!C$40,'Building Block'!C$39))","v":10.567257211169151},{"$f":"IF($B580=\"Blank\",0,IF($B$8=\"Private Contract Lighting\",'Building Block'!D$40,'Building Block'!D$39))","v":10.638037296614067},{"$f":"IF($B580=\"Blank\",0,IF($B$8=\"Private Contract Lighting\",'Building Block'!E$40,'Building Block'!E$39))","v":9.8094883699069495},{"$f":"IF($B580=\"Blank\",0,IF($B$8=\"Private Contract Lighting\",'Building Block'!F$40,'Building Block'!F$39))","v":9.7894714768092079},{"$f":"IF($B580=\"Blank\",0,IF($B$8=\"Private Contract Lighting\",'Building Block'!G$40,'Building Block'!G$39))","v":9.7584857493224391},null,null,null,null,null,null,null,"Opex Overheads Costs per light",2.8872287462210795,2.914530766195635,2.6875310602484794,2.6820469799477284,2.6662529369733439]
[null,{"$f":"Inputs!$AK$68","v":"Bracket UNIT price"},0,null,"NA","NA","NA","NA","NA",null,null,null,null,null,null,null,"Bracket UNIT price","","","","",""]
[null,{"$f":"Inputs!$AA$68","v":"CAPEX Instalation costs"},{"$f":"C589+1","v":1},null,"NA","NA","NA","NA","NA",null,null,null,null,null,null,null,"CAPEX Instalation costs","","","","",""]
[null,{"$f":"Inputs!$Z$68","v":"Luminaire UNIT price"},{"$f":"C590+1","v":2},null,"NA","NA","NA","NA","NA",null,null,null,null,null,null,null,"Luminaire UNIT price","","","","",""]
[null,{"$f":"Inputs!$AA$68","v":"CAPEX Instalation costs"},3,null,"NA","NA","NA","NA","NA",null,null,null,null,null,null,null,"CAPEX Instalation costs","","","","",""]
[null,null,null,null,{"$f":"SUM(E581:E592)","v":82.067365269838689},{"$f":"SUM(F581:F592)","v":82.093159797389404},81.023184480024639,80.689166387628106,80.321009483905698,null,null,null,null,null,null,null,null,{"$f":"ROUND(E593/R$2*100,3)","v":22.422999999999998},{"$f":"ROUND(F593/S$2*100,3)","v":22.491},{"$f":"ROUND(G593/T$2*100,3)","v":22.198},{"$f":"ROUND(H593/U$2*100,3)","v":22.106999999999999},{"$f":"ROUND(I593/V$2*100,3)","v":21.946000000000002}]
[]
[{"$f":"A580+1","v":40},{"$f":"IFERROR(VLOOKUP($A595,Inputs!$B$68:$AN$129,MATCH($B$7,Inputs!$B$68:$AN$68,0),FALSE),\"Blank\")","v":"400W Metal Halide - Flood Light"},null,null,null,null,null,null,null,null,null,null,null,null,null,null,{"$f":"IFERROR(VLOOKUP($A595,Inputs!$B$68:$AN$129,MATCH($B$7,Inputs!$B$68:$AN$68,0),FALSE),\"Blank\")","v":"400W Metal Halide - Flood Light"}]
[null,{"$f":"Inputs!$S$68","v":"Lamp UNIT price Annualised Cost"},{"$f":"Inputs!$Q$68","v":"Lamp Maintenance cycle"},null,{"$f":"IF($B595=\"Blank\",0,VLOOKUP($B595,Inputs!$C$68:$AN$129,MATCH($B596,Inputs!$C$68:$AN$68,0),FALSE))","v":6.5429946599999997},{"$f":"IF($B595=\"Blank\",0,VLOOKUP($B595,Inputs!$C$68:$AN$129,MATCH($B596,Inputs!$C$68:$AN$68,0),FALSE))","v":6.5429946599999997},{"$f":"IF($B595=\"Blank\",0,VLOOKUP($B595,Inputs!$C$68:$AN$129,MATCH($B596,Inputs!$C$68:$AN$68,0),FALSE))","v":6.5429946599999997},{"$f":"IF($B595=\"Blank\",0,VLOOKUP($B595,Inputs!$C$68:$AN$129,MATCH($B596,Inputs!$C$68:$AN$68,0),FALSE))","v":6.5429946599999997},{"$f":"IF($B595=\"Blank\",0,VLOOKUP($B595,Inputs!$C$68:$AN$129,MATCH($B596,Inputs!$C$68:$AN$68,0),FALSE))","v":6.5429946599999997},null,null,null,null,null,null,null,{"$f":"B596","v":"Lamp UNIT price Annualised Cost"},{"$f":"IF(E596=\"NA\",\"\",E596/R$2*100)","v":1.7877034590163936},{"$f":"IF(F596=\"NA\",\"\",F596/S$2*100)","v":1.7926012767123287},{"$f":"IF(G596=\"NA\",\"\",G596/T$2*100)","v":1.7926012767123287},{"$f":"IF(H596=\"NA\",\"\",H596/U$2*100)","v":1.7926012767123287},{"$f":"IF(I596=\"NA\",\"\",I596/V$2*100)","v":1.7877034590163936}]
[null,{"$f":"Inputs!$K$68","v":"PE Cell UNIT price Annualised Cost"},{"$f":"Inputs!$I$68","v":"PE Cell Maintenance Cycle"},null,{"$f":"IF($B595=\"Blank\",0,VLOOKUP($B595,Inputs!$C$68:$AN$129,MATCH($B597,Inputs!$C$68:$AN$68,0),FALSE))","v":1.6930974392480003},{"$f":"IF($B595=\"Blank\",0,VLOOKUP($B595,Inputs!$C$68:$AN$129,MATCH($B597,Inputs!$C$68:$AN$68,0),FALSE))","v":1.6930974392480003},{"$f":"IF($B595=\"Blank\",0,VLOOKUP($B595,Inputs!$C$68:$AN$129,MATCH($B597,Inputs!$C$68:$AN$68,0),FALSE))","v":1.6930974392480003},{"$f":"IF($B595=\"Blank\",0,VLOOKUP($B595,Inputs!$C$68:$AN$129,MATCH($B597,Inputs!$C$68:$AN$68,0),FALSE))","v":1.6930974392480003},{"$f":"IF($B595=\"Blank\",0,VLOOKUP($B595,Inputs!$C$68:$AN$129,MATCH($B597,Inputs!$C$68:$AN$68,0),FALSE))","v":1.6930974392480003},null,null,null,null,null,null,null,"PE Cell UNIT price Annualised Cost",0.46259492875628422,0.46386231212273976,0.46386231212273976,0.46386231212273976,0.46259492875628422]
[null,"Corp capex annuity per light",null,null,{"$f":"IF($B595=\"Blank\",0,'Corp Capex Annuity calcs'!F$142)","v":18.582309905017571},{"$f":"IF($B595=\"Blank\",0,'Corp Capex Annuity calcs'!G$142)","v":18.552026408230436},{"$f":"IF($B595=\"Blank\",0,'Corp Capex Annuity calcs'!H$142)","v":18.401377631486287},{"$f":"IF($B595=\"Blank\",0,'Corp Capex Annuity calcs'!I$142)","v":18.205761940470655},{"$f":"IF($B595=\"Blank\",0,'Corp Capex Annuity calcs'!J$142)","v":17.995165449295623},null,null,null,null,null,null,null,"Corp capex annuity per light",5.0771338538299373,5.0827469611590237,5.0414733236948734,4.9878799836905907,4.9167118713922466]
[null,{"$f":"Inputs!$U$68","v":"Lamp Service costs Annualised"},"Labour Portion of Lamp Service costs annualised",null,{"$f":"IF($B595=\"Blank\",0,VLOOKUP($B595,Inputs!$C$68:$AN$129,MATCH($B599,Inputs!$C$68:$AN$68,0),FALSE))+IFERROR(IF($B595=\"Blank\",0,VLOOKUP($B595,Inputs!$C$68:$AN$129,MATCH($C599,Inputs!$C$68:$AN$68,0),FALSE))*('Master Data'!K$42),0)","v":34.921367162927247},{"$f":"IF($B595=\"Blank\",0,VLOOKUP($B595,Inputs!$C$68:$AN$129,MATCH($B599,Inputs!$C$68:$AN$68,0),FALSE))+IFERROR(IF($B595=\"Blank\",0,VLOOKUP($B595,Inputs!$C$68:$AN$129,MATCH($C599,Inputs!$C$68:$AN$68,0),FALSE))*('Master Data'!L$42),0)","v":34.926481274900404},{"$f":"IF($B595=\"Blank\",0,VLOOKUP($B595,Inputs!$C$68:$AN$129,MATCH($B599,Inputs!$C$68:$AN$68,0),FALSE))+IFERROR(IF($B595=\"Blank\",0,VLOOKUP($B595,Inputs!$C$68:$AN$129,MATCH($C599,Inputs!$C$68:$AN$68,0),FALSE))*('Master Data'!M$42),0)","v":34.934281518599292},{"$f":"IF($B595=\"Blank\",0,VLOOKUP($B595,Inputs!$C$68:$AN$129,MATCH($B599,Inputs!$C$68:$AN$68,0),FALSE))+IFERROR(IF($B595=\"Blank\",0,VLOOKUP($B595,Inputs!$C$68:$AN$129,MATCH($C599,Inputs!$C$68:$AN$68,0),FALSE))*('Master Data'!N$42),0)","v":34.943898216191549},{"$f":"IF($B595=\"Blank\",0,VLOOKUP($B595,Inputs!$C$68:$AN$129,MATCH($B599,Inputs!$C$68:$AN$68,0),FALSE))+IFERROR(IF($B595=\"Blank\",0,VLOOKUP($B595,Inputs!$C$68:$AN$129,MATCH($C599,Inputs!$C$68:$AN$68,0),FALSE))*('Master Data'!O$42),0)","v":34.955128506182135},null,null,null,null,null,null,null,"Lamp Service costs Annualised",9.5413571483407775,9.5688989794247679,9.5710360324929571,9.5736707441620688,9.5505815590661562]
[null,{"$f":"Inputs!$M$68","v":"PE Cell Service costs Annualised"},"Labour Portion of PE Cell Service costs Annualised",null,{"$f":"IF($B595=\"Blank\",0,VLOOKUP($B595,Inputs!$C$68:$AN$129,MATCH($B600,Inputs!$C$68:$AN$68,0),FALSE))+IFERROR(IF($B595=\"Blank\",0,VLOOKUP($B595,Inputs!$C$68:$AN$129,MATCH($C600,Inputs!$C$68:$AN$68,0),FALSE))*('Master Data'!K$42),0)","v":0},{"$f":"IF($B595=\"Blank\",0,VLOOKUP($B595,Inputs!$C$68:$AN$129,MATCH($B600,Inputs!$C$68:$AN$68,0),FALSE))+IFERROR(IF($B595=\"Blank\",0,VLOOKUP($B595,Inputs!$C$68:$AN$129,MATCH($C600,Inputs!$C$68:$AN$68,0),FALSE))*('Master Data'!L$42),0)","v":0},{"$f":"IF($B595=\"Blank\",0,VLOOKUP($B595,Inputs!$C$68:$AN$129,MATCH($B600,Inputs!$C$68:$AN$68,0),FALSE))+IFERROR(IF($B595=\"Blank\",0,VLOOKUP($B595,Inputs!$C$68:$AN$129,MATCH($C600,Inputs!$C$68:$AN$68,0),FALSE))*('Master Data'!M$42),0)","v":0},{"$f":"IF($B595=\"Blank\",0,VLOOKUP($B595,Inputs!$C$68:$AN$129,MATCH($B600,Inputs!$C$68:$AN$68,0),FALSE))+IFERROR(IF($B595=\"Blank\",0,VLOOKUP($B595,Inputs!$C$68:$AN$129,MATCH($C600,Inputs!$C$68:$AN$68,0),FALSE))*('Master Data'!N$42),0)","v":0},{"$f":"IF($B595=\"Blank\",0,VLOOKUP($B595,Inputs!$C$68:$AN$129,MATCH($B600,Inputs!$C$68:$AN$68,0),FALSE))+IFERROR(IF($B595=\"Blank\",0,VLOOKUP($B595,Inputs!$C$68:$AN$129,MATCH($C600,Inputs!$C$68:$AN$68,0),FALSE))*('Master Data'!O$42),0)","v":0},null,null,null,null,null,null,null,"PE Cell Service costs Annualised",0,0,0,0,0]
[null,"Indirect Opex",null,null,{"$f":"IF($B595=\"Blank\",0,IF($B$8=\"Private Contract Lighting\",'Opex Weighting'!D$48,'Opex Weighting'!D$46))","v":12.159436933476723},{"$f":"IF($B595=\"Blank\",0,IF($B$8=\"Private Contract Lighting\",'Opex Weighting'!E$48,'Opex Weighting'!E$46))","v":12.139620760396495},{"$f":"IF($B595=\"Blank\",0,IF($B$8=\"Private Contract Lighting\",'Opex Weighting'!F$48,'Opex Weighting'!F$46))","v":12.041042902784117},{"$f":"IF($B595=\"Blank\",0,IF($B$8=\"Private Contract Lighting\",'Opex Weighting'!G$48,'Opex Weighting'!G$46))","v":11.913040696908689},{"$f":"IF($B595=\"Blank\",0,IF($B$8=\"Private Contract Lighting\",'Opex Weighting'!H$48,'Opex Weighting'!H$46))","v":11.775235721857506},null,null,null,null,null,null,null,"Indirect Opex",3.3222505282723289,3.32592349599904,3.2989158637764708,3.2638467662763535,3.2172775196331984]
[null,"Indirect Capex",null,null,{"$f":"IF($B596=\"Blank\",0,IF($B$8=\"Private Contract Lighting\",'Capex Weighting'!D$60,'Capex Weighting'!D$62))","v":0},{"$f":"IF($B596=\"Blank\",0,IF($B$8=\"Private Contract Lighting\",'Capex Weighting'!E$60,'Capex Weighting'!E$62))","v":0},{"$f":"IF($B596=\"Blank\",0,IF($B$8=\"Private Contract Lighting\",'Capex Weighting'!F$60,'Capex Weighting'!F$62))","v":0},{"$f":"IF($B596=\"Blank\",0,IF($B$8=\"Private Contract Lighting\",'Capex Weighting'!G$60,'Capex Weighting'!G$62))","v":0},{"$f":"IF($B596=\"Blank\",0,IF($B$8=\"Private Contract Lighting\",'Capex Weighting'!H$60,'Capex Weighting'!H$62))","v":0},null,null,null,null,null,null,null,"Indirect Capex",0,0,0,0,0]
[null,"Opex Overheads Costs per light",null,null,{"$f":"IF($B595=\"Blank\",0,IF($B$8=\"Private Contract Lighting\",'Building Block'!C$40,'Building Block'!C$39))","v":10.567257211169151},{"$f":"IF($B595=\"Blank\",0,IF($B$8=\"Private Contract Lighting\",'Building Block'!D$40,'Building Block'!D$39))","v":10.638037296614067},{"$f":"IF($B595=\"Blank\",0,IF($B$8=\"Private Contract Lighting\",'Building Block'!E$40,'Building Block'!E$39))","v":9.8094883699069495},{"$f":"IF($B595=\"Blank\",0,IF($B$8=\"Private Contract Lighting\",'Building Block'!F$40,'Building Block'!F$39))","v":9.7894714768092079},{"$f":"IF($B595=\"Blank\",0,IF($B$8=\"Private Contract Lighting\",'Building Block'!G$40,'Building Block'!G$39))","v":9.7584857493224391},null,null,null,null,null,null,null,"Opex Overheads Costs per light",2.8872287462210795,2.914530766195635,2.6875310602484794,2.6820469799477284,2.6662529369733439]
[null,{"$f":"Inputs!$AK$68","v":"Bracket UNIT price"},0,null,"NA","NA","NA","NA","NA",null,null,null,null,null,null,null,"Bracket UNIT price","","","","",""]
[null,{"$f":"Inputs!$AA$68","v":"CAPEX Instalation costs"},{"$f":"C604+1","v":1},null,"NA","NA","NA","NA","NA",null,null,null,null,null,null,null,"CAPEX Instalation costs","","","","",""]
[null,{"$f":"Inputs!$Z$68","v":"Luminaire UNIT price"},{"$f":"C605+1","v":2},null,"NA","NA","NA","NA","NA",null,null,null,null,null,null,null,"Luminaire UNIT price","","","","",""]
[null,{"$f":"Inputs!$AA$68","v":"CAPEX Instalation costs"},3,null,"NA","NA","NA","NA","NA",null,null,null,null,null,null,null,"CAPEX Instalation costs","","","","",""]
[null,null,null,null,{"$f":"SUM(E596:E607)","v":84.466463311838694},{"$f":"SUM(F596:F607)","v":84.49225783938941},83.422282522024645,83.088264429628111,82.720107525905689,null,null,null,null,null,null,null,null,{"$f":"ROUND(E608/R$2*100,3)","v":23.077999999999999},{"$f":"ROUND(F608/S$2*100,3)","v":23.149000000000001},{"$f":"ROUND(G608/T$2*100,3)","v":22.855},{"$f":"ROUND(H608/U$2*100,3)","v":22.763999999999999},{"$f":"ROUND(I608/V$2*100,3)","v":22.600999999999999}]
[]
[{"$f":"A595+1","v":41},{"$f":"IFERROR(VLOOKUP($A610,Inputs!$B$68:$AN$129,MATCH($B$7,Inputs!$B$68:$AN$68,0),FALSE),\"Blank\")","v":"125W Mercury Vapour"},null,null,null,null,null,null,null,null,null,null,null,null,null,null,{"$f":"IFERROR(VLOOKUP($A610,Inputs!$B$68:$AN$129,MATCH($B$7,Inputs!$B$68:$AN$68,0),FALSE),\"Blank\")","v":"125W Mercury Vapour"}]
[null,{"$f":"Inputs!$S$68","v":"Lamp UNIT price Annualised Cost"},{"$f":"Inputs!$Q$68","v":"Lamp Maintenance cycle"},null,{"$f":"IF($B610=\"Blank\",0,VLOOKUP($B610,Inputs!$C$68:$AN$129,MATCH($B611,Inputs!$C$68:$AN$68,0),FALSE))","v":0.54524955500000005},{"$f":"IF($B610=\"Blank\",0,VLOOKUP($B610,Inputs!$C$68:$AN$129,MATCH($B611,Inputs!$C$68:$AN$68,0),FALSE))","v":0.54524955500000005},{"$f":"IF($B610=\"Blank\",0,VLOOKUP($B610,Inputs!$C$68:$AN$129,MATCH($B611,Inputs!$C$68:$AN$68,0),FALSE))","v":0.54524955500000005},{"$f":"IF($B610=\"Blank\",0,VLOOKUP($B610,Inputs!$C$68:$AN$129,MATCH($B611,Inputs!$C$68:$AN$68,0),FALSE))","v":0.54524955500000005},{"$f":"IF($B610=\"Blank\",0,VLOOKUP($B610,Inputs!$C$68:$AN$129,MATCH($B611,Inputs!$C$68:$AN$68,0),FALSE))","v":0.54524955500000005},null,null,null,null,null,null,null,{"$f":"B611","v":"Lamp UNIT price Annualised Cost"},{"$f":"IF(E611=\"NA\",\"\",E611/R$2*100)","v":0.14897528825136613},{"$f":"IF(F611=\"NA\",\"\",F611/S$2*100)","v":0.14938343972602741},{"$f":"IF(G611=\"NA\",\"\",G611/T$2*100)","v":0.14938343972602741},{"$f":"IF(H611=\"NA\",\"\",H611/U$2*100)","v":0.14938343972602741},{"$f":"IF(I611=\"NA\",\"\",I611/V$2*100)","v":0.14897528825136613}]
[null,{"$f":"Inputs!$K$68","v":"PE Cell UNIT price Annualised Cost"},{"$f":"Inputs!$I$68","v":"PE Cell Maintenance Cycle"},null,{"$f":"IF($B610=\"Blank\",0,VLOOKUP($B610,Inputs!$C$68:$AN$129,MATCH($B612,Inputs!$C$68:$AN$68,0),FALSE))","v":1.6930974392480003},{"$f":"IF($B610=\"Blank\",0,VLOOKUP($B610,Inputs!$C$68:$AN$129,MATCH($B612,Inputs!$C$68:$AN$68,0),FALSE))","v":1.6930974392480003},{"$f":"IF($B610=\"Blank\",0,VLOOKUP($B610,Inputs!$C$68:$AN$129,MATCH($B612,Inputs!$C$68:$AN$68,0),FALSE))","v":1.6930974392480003},{"$f":"IF($B610=\"Blank\",0,VLOOKUP($B610,Inputs!$C$68:$AN$129,MATCH($B612,Inputs!$C$68:$AN$68,0),FALSE))","v":1.6930974392480003},{"$f":"IF($B610=\"Blank\",0,VLOOKUP($B610,Inputs!$C$68:$AN$129,MATCH($B612,Inputs!$C$68:$AN$68,0),FALSE))","v":1.6930974392480003},null,null,null,null,null,null,null,"PE Cell UNIT price Annualised Cost",0.46259492875628422,0.46386231212273976,0.46386231212273976,0.46386231212273976,0.46259492875628422]
[null,"Corp capex annuity per light",null,null,{"$f":"IF($B610=\"Blank\",0,'Corp Capex Annuity calcs'!F$142)","v":18.582309905017571},{"$f":"IF($B610=\"Blank\",0,'Corp Capex Annuity calcs'!G$142)","v":18.552026408230436},{"$f":"IF($B610=\"Blank\",0,'Corp Capex Annuity calcs'!H$142)","v":18.401377631486287},{"$f":"IF($B610=\"Blank\",0,'Corp Capex Annuity calcs'!I$142)","v":18.205761940470655},{"$f":"IF($B610=\"Blank\",0,'Corp Capex Annuity calcs'!J$142)","v":17.995165449295623},null,null,null,null,null,null,null,"Corp capex annuity per light",5.0771338538299373,5.0827469611590237,5.0414733236948734,4.9878799836905907,4.9167118713922466]
[null,{"$f":"Inputs!$U$68","v":"Lamp Service costs Annualised"},"Labour Portion of Lamp Service costs annualised",null,{"$f":"IF($B610=\"Blank\",0,VLOOKUP($B610,Inputs!$C$68:$AN$129,MATCH($B614,Inputs!$C$68:$AN$68,0),FALSE))+IFERROR(IF($B610=\"Blank\",0,VLOOKUP($B610,Inputs!$C$68:$AN$129,MATCH($C614,Inputs!$C$68:$AN$68,0),FALSE))*('Master Data'!K$42),0)","v":34.921367162927247},{"$f":"IF($B610=\"Blank\",0,VLOOKUP($B610,Inputs!$C$68:$AN$129,MATCH($B614,Inputs!$C$68:$AN$68,0),FALSE))+IFERROR(IF($B610=\"Blank\",0,VLOOKUP($B610,Inputs!$C$68:$AN$129,MATCH($C614,Inputs!$C$68:$AN$68,0),FALSE))*('Master Data'!L$42),0)","v":34.926481274900404},{"$f":"IF($B610=\"Blank\",0,VLOOKUP($B610,Inputs!$C$68:$AN$129,MATCH($B614,Inputs!$C$68:$AN$68,0),FALSE))+IFERROR(IF($B610=\"Blank\",0,VLOOKUP($B610,Inputs!$C$68:$AN$129,MATCH($C614,Inputs!$C$68:$AN$68,0),FALSE))*('Master Data'!M$42),0)","v":34.934281518599292},{"$f":"IF($B610=\"Blank\",0,VLOOKUP($B610,Inputs!$C$68:$AN$129,MATCH($B614,Inputs!$C$68:$AN$68,0),FALSE))+IFERROR(IF($B610=\"Blank\",0,VLOOKUP($B610,Inputs!$C$68:$AN$129,MATCH($C614,Inputs!$C$68:$AN$68,0),FALSE))*('Master Data'!N$42),0)","v":34.943898216191549},{"$f":"IF($B610=\"Blank\",0,VLOOKUP($B610,Inputs!$C$68:$AN$129,MATCH($B614,Inputs!$C$68:$AN$68,0),FALSE))+IFERROR(IF($B610=\"Blank\",0,VLOOKUP($B610,Inputs!$C$68:$AN$129,MATCH($C614,Inputs!$C$68:$AN$68,0),FALSE))*('Master Data'!O$42),0)","v":34.955128506182135},null,null,null,null,null,null,null,"Lamp Service costs Annualised",9.5413571483407775,9.5688989794247679,9.5710360324929571,9.5736707441620688,9.5505815590661562]
[null,{"$f":"Inputs!$M$68","v":"PE Cell Service costs Annualised"},"Labour Portion of PE Cell Service costs Annualised",null,{"$f":"IF($B610=\"Blank\",0,VLOOKUP($B610,Inputs!$C$68:$AN$129,MATCH($B615,Inputs!$C$68:$AN$68,0),FALSE))+IFERROR(IF($B610=\"Blank\",0,VLOOKUP($B610,Inputs!$C$68:$AN$129,MATCH($C615,Inputs!$C$68:$AN$68,0),FALSE))*('Master Data'!K$42),0)","v":0},{"$f":"IF($B610=\"Blank\",0,VLOOKUP($B610,Inputs!$C$68:$AN$129,MATCH($B615,Inputs!$C$68:$AN$68,0),FALSE))+IFERROR(IF($B610=\"Blank\",0,VLOOKUP($B610,Inputs!$C$68:$AN$129,MATCH($C615,Inputs!$C$68:$AN$68,0),FALSE))*('Master Data'!L$42),0)","v":0},{"$f":"IF($B610=\"Blank\",0,VLOOKUP($B610,Inputs!$C$68:$AN$129,MATCH($B615,Inputs!$C$68:$AN$68,0),FALSE))+IFERROR(IF($B610=\"Blank\",0,VLOOKUP($B610,Inputs!$C$68:$AN$129,MATCH($C615,Inputs!$C$68:$AN$68,0),FALSE))*('Master Data'!M$42),0)","v":0},{"$f":"IF($B610=\"Blank\",0,VLOOKUP($B610,Inputs!$C$68:$AN$129,MATCH($B615,Inputs!$C$68:$AN$68,0),FALSE))+IFERROR(IF($B610=\"Blank\",0,VLOOKUP($B610,Inputs!$C$68:$AN$129,MATCH($C615,Inputs!$C$68:$AN$68,0),FALSE))*('Master Data'!N$42),0)","v":0},{"$f":"IF($B610=\"Blank\",0,VLOOKUP($B610,Inputs!$C$68:$AN$129,MATCH($B615,Inputs!$C$68:$AN$68,0),FALSE))+IFERROR(IF($B610=\"Blank\",0,VLOOKUP($B610,Inputs!$C$68:$AN$129,MATCH($C615,Inputs!$C$68:$AN$68,0),FALSE))*('Master Data'!O$42),0)","v":0},null,null,null,null,null,null,null,"PE Cell Service costs Annualised",0,0,0,0,0]
[null,"Indirect Opex",null,null,{"$f":"IF($B610=\"Blank\",0,IF($B$8=\"Private Contract Lighting\",'Opex Weighting'!D$48,'Opex Weighting'!D$46))","v":12.159436933476723},{"$f":"IF($B610=\"Blank\",0,IF($B$8=\"Private Contract Lighting\",'Opex Weighting'!E$48,'Opex Weighting'!E$46))","v":12.139620760396495},{"$f":"IF($B610=\"Blank\",0,IF($B$8=\"Private Contract Lighting\",'Opex Weighting'!F$48,'Opex Weighting'!F$46))","v":12.041042902784117},{"$f":"IF($B610=\"Blank\",0,IF($B$8=\"Private Contract Lighting\",'Opex Weighting'!G$48,'Opex Weighting'!G$46))","v":11.913040696908689},{"$f":"IF($B610=\"Blank\",0,IF($B$8=\"Private Contract Lighting\",'Opex Weighting'!H$48,'Opex Weighting'!H$46))","v":11.775235721857506},null,null,null,null,null,null,null,"Indirect Opex",3.3222505282723289,3.32592349599904,3.2989158637764708,3.2638467662763535,3.2172775196331984]
[null,"Indirect Capex",null,null,{"$f":"IF($B611=\"Blank\",0,IF($B$8=\"Private Contract Lighting\",'Capex Weighting'!D$60,'Capex Weighting'!D$62))","v":0},{"$f":"IF($B611=\"Blank\",0,IF($B$8=\"Private Contract Lighting\",'Capex Weighting'!E$60,'Capex Weighting'!E$62))","v":0},{"$f":"IF($B611=\"Blank\",0,IF($B$8=\"Private Contract Lighting\",'Capex Weighting'!F$60,'Capex Weighting'!F$62))","v":0},{"$f":"IF($B611=\"Blank\",0,IF($B$8=\"Private Contract Lighting\",'Capex Weighting'!G$60,'Capex Weighting'!G$62))","v":0},{"$f":"IF($B611=\"Blank\",0,IF($B$8=\"Private Contract Lighting\",'Capex Weighting'!H$60,'Capex Weighting'!H$62))","v":0},null,null,null,null,null,null,null,"Indirect Capex",0,0,0,0,0]
[null,"Opex Overheads Costs per light",null,null,{"$f":"IF($B610=\"Blank\",0,IF($B$8=\"Private Contract Lighting\",'Building Block'!C$40,'Building Block'!C$39))","v":10.567257211169151},{"$f":"IF($B610=\"Blank\",0,IF($B$8=\"Private Contract Lighting\",'Building Block'!D$40,'Building Block'!D$39))","v":10.638037296614067},{"$f":"IF($B610=\"Blank\",0,IF($B$8=\"Private Contract Lighting\",'Building Block'!E$40,'Building Block'!E$39))","v":9.8094883699069495},{"$f":"IF($B610=\"Blank\",0,IF($B$8=\"Private Contract Lighting\",'Building Block'!F$40,'Building Block'!F$39))","v":9.7894714768092079},{"$f":"IF($B610=\"Blank\",0,IF($B$8=\"Private Contract Lighting\",'Building Block'!G$40,'Building Block'!G$39))","v":9.7584857493224391},null,null,null,null,null,null,null,"Opex Overheads Costs per light",2.8872287462210795,2.914530766195635,2.6875310602484794,2.6820469799477284,2.6662529369733439]
[null,{"$f":"Inputs!$AK$68","v":"Bracket UNIT price"},0,null,"NA","NA","NA","NA","NA",null,null,null,null,null,null,null,"Bracket UNIT price","","","","",""]
[null,{"$f":"Inputs!$AA$68","v":"CAPEX Instalation costs"},{"$f":"C619+1","v":1},null,"NA","NA","NA","NA","NA",null,null,null,null,null,null,null,"CAPEX Instalation costs","","","","",""]
[null,{"$f":"Inputs!$Z$68","v":"Luminaire UNIT price"},{"$f":"C620+1","v":2},null,"NA","NA","NA","NA","NA",null,null,null,null,null,null,null,"Luminaire UNIT price","","","","",""]
[null,{"$f":"Inputs!$AA$68","v":"CAPEX Instalation costs"},3,null,"NA","NA","NA","NA","NA",null,null,null,null,null,null,null,"CAPEX Instalation costs","","","","",""]
[null,null,null,null,{"$f":"SUM(E611:E622)","v":78.468718206838687},{"$f":"SUM(F611:F622)","v":78.494512734389403},77.424537417024638,77.090519324628104,76.722362420905711,null,null,null,null,null,null,null,null,{"$f":"ROUND(E623/R$2*100,3)","v":21.44},{"$f":"ROUND(F623/S$2*100,3)","v":21.504999999999999},{"$f":"ROUND(G623/T$2*100,3)","v":21.212},{"$f":"ROUND(H623/U$2*100,3)","v":21.120999999999999},{"$f":"ROUND(I623/V$2*100,3)","v":20.962}]
[]
[{"$f":"A610+1","v":42},{"$f":"IFERROR(VLOOKUP($A625,Inputs!$B$68:$AN$129,MATCH($B$7,Inputs!$B$68:$AN$68,0),FALSE),\"Blank\")","v":"250W Mercury Vapour"},null,null,null,null,null,null,null,null,null,null,null,null,null,null,{"$f":"IFERROR(VLOOKUP($A625,Inputs!$B$68:$AN$129,MATCH($B$7,Inputs!$B$68:$AN$68,0),FALSE),\"Blank\")","v":"250W Mercury Vapour"}]
[null,{"$f":"Inputs!$S$68","v":"Lamp UNIT price Annualised Cost"},{"$f":"Inputs!$Q$68","v":"Lamp Maintenance cycle"},null,{"$f":"IF($B625=\"Blank\",0,VLOOKUP($B625,Inputs!$C$68:$AN$129,MATCH($B626,Inputs!$C$68:$AN$68,0),FALSE))","v":0.54524955500000005},{"$f":"IF($B625=\"Blank\",0,VLOOKUP($B625,Inputs!$C$68:$AN$129,MATCH($B626,Inputs!$C$68:$AN$68,0),FALSE))","v":0.54524955500000005},{"$f":"IF($B625=\"Blank\",0,VLOOKUP($B625,Inputs!$C$68:$AN$129,MATCH($B626,Inputs!$C$68:$AN$68,0),FALSE))","v":0.54524955500000005},{"$f":"IF($B625=\"Blank\",0,VLOOKUP($B625,Inputs!$C$68:$AN$129,MATCH($B626,Inputs!$C$68:$AN$68,0),FALSE))","v":0.54524955500000005},{"$f":"IF($B625=\"Blank\",0,VLOOKUP($B625,Inputs!$C$68:$AN$129,MATCH($B626,Inputs!$C$68:$AN$68,0),FALSE))","v":0.54524955500000005},null,null,null,null,null,null,null,{"$f":"B626","v":"Lamp UNIT price Annualised Cost"},{"$f":"IF(E626=\"NA\",\"\",E626/R$2*100)","v":0.14897528825136613},{"$f":"IF(F626=\"NA\",\"\",F626/S$2*100)","v":0.14938343972602741},{"$f":"IF(G626=\"NA\",\"\",G626/T$2*100)","v":0.14938343972602741},{"$f":"IF(H626=\"NA\",\"\",H626/U$2*100)","v":0.14938343972602741},{"$f":"IF(I626=\"NA\",\"\",I626/V$2*100)","v":0.14897528825136613}]
[null,{"$f":"Inputs!$K$68","v":"PE Cell UNIT price Annualised Cost"},{"$f":"Inputs!$I$68","v":"PE Cell Maintenance Cycle"},null,{"$f":"IF($B625=\"Blank\",0,VLOOKUP($B625,Inputs!$C$68:$AN$129,MATCH($B627,Inputs!$C$68:$AN$68,0),FALSE))","v":1.6930974392480003},{"$f":"IF($B625=\"Blank\",0,VLOOKUP($B625,Inputs!$C$68:$AN$129,MATCH($B627,Inputs!$C$68:$AN$68,0),FALSE))","v":1.6930974392480003},{"$f":"IF($B625=\"Blank\",0,VLOOKUP($B625,Inputs!$C$68:$AN$129,MATCH($B627,Inputs!$C$68:$AN$68,0),FALSE))","v":1.6930974392480003},{"$f":"IF($B625=\"Blank\",0,VLOOKUP($B625,Inputs!$C$68:$AN$129,MATCH($B627,Inputs!$C$68:$AN$68,0),FALSE))","v":1.6930974392480003},{"$f":"IF($B625=\"Blank\",0,VLOOKUP($B625,Inputs!$C$68:$AN$129,MATCH($B627,Inputs!$C$68:$AN$68,0),FALSE))","v":1.6930974392480003},null,null,null,null,null,null,null,"PE Cell UNIT price Annualised Cost",0.46259492875628422,0.46386231212273976,0.46386231212273976,0.46386231212273976,0.46259492875628422]
[null,"Corp capex annuity per light",null,null,{"$f":"IF($B625=\"Blank\",0,'Corp Capex Annuity calcs'!F$142)","v":18.582309905017571},{"$f":"IF($B625=\"Blank\",0,'Corp Capex Annuity calcs'!G$142)","v":18.552026408230436},{"$f":"IF($B625=\"Blank\",0,'Corp Capex Annuity calcs'!H$142)","v":18.401377631486287},{"$f":"IF($B625=\"Blank\",0,'Corp Capex Annuity calcs'!I$142)","v":18.205761940470655},{"$f":"IF($B625=\"Blank\",0,'Corp Capex Annuity calcs'!J$142)","v":17.995165449295623},null,null,null,null,null,null,null,"Corp capex annuity per light",5.0771338538299373,5.0827469611590237,5.0414733236948734,4.9878799836905907,4.9167118713922466]
[null,{"$f":"Inputs!$U$68","v":"Lamp Service costs Annualised"},"Labour Portion of Lamp Service costs annualised",null,{"$f":"IF($B625=\"Blank\",0,VLOOKUP($B625,Inputs!$C$68:$AN$129,MATCH($B629,Inputs!$C$68:$AN$68,0),FALSE))+IFERROR(IF($B625=\"Blank\",0,VLOOKUP($B625,Inputs!$C$68:$AN$129,MATCH($C629,Inputs!$C$68:$AN$68,0),FALSE))*('Master Data'!K$42),0)","v":34.921367162927247},{"$f":"IF($B625=\"Blank\",0,VLOOKUP($B625,Inputs!$C$68:$AN$129,MATCH($B629,Inputs!$C$68:$AN$68,0),FALSE))+IFERROR(IF($B625=\"Blank\",0,VLOOKUP($B625,Inputs!$C$68:$AN$129,MATCH($C629,Inputs!$C$68:$AN$68,0),FALSE))*('Master Data'!L$42),0)","v":34.926481274900404},{"$f":"IF($B625=\"Blank\",0,VLOOKUP($B625,Inputs!$C$68:$AN$129,MATCH($B629,Inputs!$C$68:$AN$68,0),FALSE))+IFERROR(IF($B625=\"Blank\",0,VLOOKUP($B625,Inputs!$C$68:$AN$129,MATCH($C629,Inputs!$C$68:$AN$68,0),FALSE))*('Master Data'!M$42),0)","v":34.934281518599292},{"$f":"IF($B625=\"Blank\",0,VLOOKUP($B625,Inputs!$C$68:$AN$129,MATCH($B629,Inputs!$C$68:$AN$68,0),FALSE))+IFERROR(IF($B625=\"Blank\",0,VLOOKUP($B625,Inputs!$C$68:$AN$129,MATCH($C629,Inputs!$C$68:$AN$68,0),FALSE))*('Master Data'!N$42),0)","v":34.943898216191549},{"$f":"IF($B625=\"Blank\",0,VLOOKUP($B625,Inputs!$C$68:$AN$129,MATCH($B629,Inputs!$C$68:$AN$68,0),FALSE))+IFERROR(IF($B625=\"Blank\",0,VLOOKUP($B625,Inputs!$C$68:$AN$129,MATCH($C629,Inputs!$C$68:$AN$68,0),FALSE))*('Master Data'!O$42),0)","v":34.955128506182135},null,null,null,null,null,null,null,"Lamp Service costs Annualised",9.5413571483407775,9.5688989794247679,9.5710360324929571,9.5736707441620688,9.5505815590661562]
[null,{"$f":"Inputs!$M$68","v":"PE Cell Service costs Annualised"},"Labour Portion of PE Cell Service costs Annualised",null,{"$f":"IF($B625=\"Blank\",0,VLOOKUP($B625,Inputs!$C$68:$AN$129,MATCH($B630,Inputs!$C$68:$AN$68,0),FALSE))+IFERROR(IF($B625=\"Blank\",0,VLOOKUP($B625,Inputs!$C$68:$AN$129,MATCH($C630,Inputs!$C$68:$AN$68,0),FALSE))*('Master Data'!K$42),0)","v":0},{"$f":"IF($B625=\"Blank\",0,VLOOKUP($B625,Inputs!$C$68:$AN$129,MATCH($B630,Inputs!$C$68:$AN$68,0),FALSE))+IFERROR(IF($B625=\"Blank\",0,VLOOKUP($B625,Inputs!$C$68:$AN$129,MATCH($C630,Inputs!$C$68:$AN$68,0),FALSE))*('Master Data'!L$42),0)","v":0},{"$f":"IF($B625=\"Blank\",0,VLOOKUP($B625,Inputs!$C$68:$AN$129,MATCH($B630,Inputs!$C$68:$AN$68,0),FALSE))+IFERROR(IF($B625=\"Blank\",0,VLOOKUP($B625,Inputs!$C$68:$AN$129,MATCH($C630,Inputs!$C$68:$AN$68,0),FALSE))*('Master Data'!M$42),0)","v":0},{"$f":"IF($B625=\"Blank\",0,VLOOKUP($B625,Inputs!$C$68:$AN$129,MATCH($B630,Inputs!$C$68:$AN$68,0),FALSE))+IFERROR(IF($B625=\"Blank\",0,VLOOKUP($B625,Inputs!$C$68:$AN$129,MATCH($C630,Inputs!$C$68:$AN$68,0),FALSE))*('Master Data'!N$42),0)","v":0},{"$f":"IF($B625=\"Blank\",0,VLOOKUP($B625,Inputs!$C$68:$AN$129,MATCH($B630,Inputs!$C$68:$AN$68,0),FALSE))+IFERROR(IF($B625=\"Blank\",0,VLOOKUP($B625,Inputs!$C$68:$AN$129,MATCH($C630,Inputs!$C$68:$AN$68,0),FALSE))*('Master Data'!O$42),0)","v":0},null,null,null,null,null,null,null,"PE Cell Service costs Annualised",0,0,0,0,0]
[null,"Indirect Opex",null,null,{"$f":"IF($B625=\"Blank\",0,IF($B$8=\"Private Contract Lighting\",'Opex Weighting'!D$48,'Opex Weighting'!D$46))","v":12.159436933476723},{"$f":"IF($B625=\"Blank\",0,IF($B$8=\"Private Contract Lighting\",'Opex Weighting'!E$48,'Opex Weighting'!E$46))","v":12.139620760396495},{"$f":"IF($B625=\"Blank\",0,IF($B$8=\"Private Contract Lighting\",'Opex Weighting'!F$48,'Opex Weighting'!F$46))","v":12.041042902784117},{"$f":"IF($B625=\"Blank\",0,IF($B$8=\"Private Contract Lighting\",'Opex Weighting'!G$48,'Opex Weighting'!G$46))","v":11.913040696908689},{"$f":"IF($B625=\"Blank\",0,IF($B$8=\"Private Contract Lighting\",'Opex Weighting'!H$48,'Opex Weighting'!H$46))","v":11.775235721857506},null,null,null,null,null,null,null,"Indirect Opex",3.3222505282723289,3.32592349599904,3.2989158637764708,3.2638467662763535,3.2172775196331984]
[null,"Indirect Capex",null,null,{"$f":"IF($B626=\"Blank\",0,IF($B$8=\"Private Contract Lighting\",'Capex Weighting'!D$60,'Capex Weighting'!D$62))","v":0},{"$f":"IF($B626=\"Blank\",0,IF($B$8=\"Private Contract Lighting\",'Capex Weighting'!E$60,'Capex Weighting'!E$62))","v":0},{"$f":"IF($B626=\"Blank\",0,IF($B$8=\"Private Contract Lighting\",'Capex Weighting'!F$60,'Capex Weighting'!F$62))","v":0},{"$f":"IF($B626=\"Blank\",0,IF($B$8=\"Private Contract Lighting\",'Capex Weighting'!G$60,'Capex Weighting'!G$62))","v":0},{"$f":"IF($B626=\"Blank\",0,IF($B$8=\"Private Contract Lighting\",'Capex Weighting'!H$60,'Capex Weighting'!H$62))","v":0},null,null,null,null,null,null,null,"Indirect Capex",0,0,0,0,0]
[null,"Opex Overheads Costs per light",null,null,{"$f":"IF($B625=\"Blank\",0,IF($B$8=\"Private Contract Lighting\",'Building Block'!C$40,'Building Block'!C$39))","v":10.567257211169151},{"$f":"IF($B625=\"Blank\",0,IF($B$8=\"Private Contract Lighting\",'Building Block'!D$40,'Building Block'!D$39))","v":10.638037296614067},{"$f":"IF($B625=\"Blank\",0,IF($B$8=\"Private Contract Lighting\",'Building Block'!E$40,'Building Block'!E$39))","v":9.8094883699069495},{"$f":"IF($B625=\"Blank\",0,IF($B$8=\"Private Contract Lighting\",'Building Block'!F$40,'Building Block'!F$39))","v":9.7894714768092079},{"$f":"IF($B625=\"Blank\",0,IF($B$8=\"Private Contract Lighting\",'Building Block'!G$40,'Building Block'!G$39))","v":9.7584857493224391},null,null,null,null,null,null,null,"Opex Overheads Costs per light",2.8872287462210795,2.914530766195635,2.6875310602484794,2.6820469799477284,2.6662529369733439]
[null,{"$f":"Inputs!$AK$68","v":"Bracket UNIT price"},0,null,"NA","NA","NA","NA","NA",null,null,null,null,null,null,null,"Bracket UNIT price","","","","",""]
[null,{"$f":"Inputs!$AA$68","v":"CAPEX Instalation costs"},{"$f":"C634+1","v":1},null,"NA","NA","NA","NA","NA",null,null,null,null,null,null,null,"CAPEX Instalation costs","","","","",""]
[null,{"$f":"Inputs!$Z$68","v":"Luminaire UNIT price"},{"$f":"C635+1","v":2},null,"NA","NA","NA","NA","NA",null,null,null,null,null,null,null,"Luminaire UNIT price","","","","",""]
[null,{"$f":"Inputs!$AA$68","v":"CAPEX Instalation costs"},3,null,"NA","NA","NA","NA","NA",null,null,null,null,null,null,null,"CAPEX Instalation costs","","","","",""]
[null,null,null,null,{"$f":"SUM(E626:E637)","v":78.468718206838687},{"$f":"SUM(F626:F637)","v":78.494512734389403},77.424537417024638,77.090519324628104,76.722362420905711,null,null,null,null,null,null,null,null,{"$f":"ROUND(E638/R$2*100,3)","v":21.44},{"$f":"ROUND(F638/S$2*100,3)","v":21.504999999999999},{"$f":"ROUND(G638/T$2*100,3)","v":21.212},{"$f":"ROUND(H638/U$2*100,3)","v":21.120999999999999},{"$f":"ROUND(I638/V$2*100,3)","v":20.962}]
[]
[{"$f":"A625+1","v":43},{"$f":"IFERROR(VLOOKUP($A640,Inputs!$B$68:$AN$129,MATCH($B$7,Inputs!$B$68:$AN$68,0),FALSE),\"Blank\")","v":"400W Mercury Vapour"},null,null,null,null,null,null,null,null,null,null,null,null,null,null,{"$f":"IFERROR(VLOOKUP($A640,Inputs!$B$68:$AN$129,MATCH($B$7,Inputs!$B$68:$AN$68,0),FALSE),\"Blank\")","v":"400W Mercury Vapour"}]
[null,{"$f":"Inputs!$S$68","v":"Lamp UNIT price Annualised Cost"},{"$f":"Inputs!$Q$68","v":"Lamp Maintenance cycle"},null,{"$f":"IF($B640=\"Blank\",0,VLOOKUP($B640,Inputs!$C$68:$AN$129,MATCH($B641,Inputs!$C$68:$AN$68,0),FALSE))","v":1.0686891278000004},{"$f":"IF($B640=\"Blank\",0,VLOOKUP($B640,Inputs!$C$68:$AN$129,MATCH($B641,Inputs!$C$68:$AN$68,0),FALSE))","v":1.0686891278000004},{"$f":"IF($B640=\"Blank\",0,VLOOKUP($B640,Inputs!$C$68:$AN$129,MATCH($B641,Inputs!$C$68:$AN$68,0),FALSE))","v":1.0686891278000004},{"$f":"IF($B640=\"Blank\",0,VLOOKUP($B640,Inputs!$C$68:$AN$129,MATCH($B641,Inputs!$C$68:$AN$68,0),FALSE))","v":1.0686891278000004},{"$f":"IF($B640=\"Blank\",0,VLOOKUP($B640,Inputs!$C$68:$AN$129,MATCH($B641,Inputs!$C$68:$AN$68,0),FALSE))","v":1.0686891278000004},null,null,null,null,null,null,null,{"$f":"B641","v":"Lamp UNIT price Annualised Cost"},{"$f":"IF(E641=\"NA\",\"\",E641/R$2*100)","v":0.2919915649726777},{"$f":"IF(F641=\"NA\",\"\",F641/S$2*100)","v":0.29279154186301382},{"$f":"IF(G641=\"NA\",\"\",G641/T$2*100)","v":0.29279154186301382},{"$f":"IF(H641=\"NA\",\"\",H641/U$2*100)","v":0.29279154186301382},{"$f":"IF(I641=\"NA\",\"\",I641/V$2*100)","v":0.2919915649726777}]
[null,{"$f":"Inputs!$K$68","v":"PE Cell UNIT price Annualised Cost"},{"$f":"Inputs!$I$68","v":"PE Cell Maintenance Cycle"},null,{"$f":"IF($B640=\"Blank\",0,VLOOKUP($B640,Inputs!$C$68:$AN$129,MATCH($B642,Inputs!$C$68:$AN$68,0),FALSE))","v":1.6930974392480003},{"$f":"IF($B640=\"Blank\",0,VLOOKUP($B640,Inputs!$C$68:$AN$129,MATCH($B642,Inputs!$C$68:$AN$68,0),FALSE))","v":1.6930974392480003},{"$f":"IF($B640=\"Blank\",0,VLOOKUP($B640,Inputs!$C$68:$AN$129,MATCH($B642,Inputs!$C$68:$AN$68,0),FALSE))","v":1.6930974392480003},{"$f":"IF($B640=\"Blank\",0,VLOOKUP($B640,Inputs!$C$68:$AN$129,MATCH($B642,Inputs!$C$68:$AN$68,0),FALSE))","v":1.6930974392480003},{"$f":"IF($B640=\"Blank\",0,VLOOKUP($B640,Inputs!$C$68:$AN$129,MATCH($B642,Inputs!$C$68:$AN$68,0),FALSE))","v":1.6930974392480003},null,null,null,null,null,null,null,"PE Cell UNIT price Annualised Cost",0.46259492875628422,0.46386231212273976,0.46386231212273976,0.46386231212273976,0.46259492875628422]
[null,"Corp capex annuity per light",null,null,{"$f":"IF($B640=\"Blank\",0,'Corp Capex Annuity calcs'!F$142)","v":18.582309905017571},{"$f":"IF($B640=\"Blank\",0,'Corp Capex Annuity calcs'!G$142)","v":18.552026408230436},{"$f":"IF($B640=\"Blank\",0,'Corp Capex Annuity calcs'!H$142)","v":18.401377631486287},{"$f":"IF($B640=\"Blank\",0,'Corp Capex Annuity calcs'!I$142)","v":18.205761940470655},{"$f":"IF($B640=\"Blank\",0,'Corp Capex Annuity calcs'!J$142)","v":17.995165449295623},null,null,null,null,null,null,null,"Corp capex annuity per light",5.0771338538299373,5.0827469611590237,5.0414733236948734,4.9878799836905907,4.9167118713922466]
[null,{"$f":"Inputs!$U$68","v":"Lamp Service costs Annualised"},"Labour Portion of Lamp Service costs annualised",null,{"$f":"IF($B640=\"Blank\",0,VLOOKUP($B640,Inputs!$C$68:$AN$129,MATCH($B644,Inputs!$C$68:$AN$68,0),FALSE))+IFERROR(IF($B640=\"Blank\",0,VLOOKUP($B640,Inputs!$C$68:$AN$129,MATCH($C644,Inputs!$C$68:$AN$68,0),FALSE))*('Master Data'!K$42),0)","v":34.921367162927247},{"$f":"IF($B640=\"Blank\",0,VLOOKUP($B640,Inputs!$C$68:$AN$129,MATCH($B644,Inputs!$C$68:$AN$68,0),FALSE))+IFERROR(IF($B640=\"Blank\",0,VLOOKUP($B640,Inputs!$C$68:$AN$129,MATCH($C644,Inputs!$C$68:$AN$68,0),FALSE))*('Master Data'!L$42),0)","v":34.926481274900404},{"$f":"IF($B640=\"Blank\",0,VLOOKUP($B640,Inputs!$C$68:$AN$129,MATCH($B644,Inputs!$C$68:$AN$68,0),FALSE))+IFERROR(IF($B640=\"Blank\",0,VLOOKUP($B640,Inputs!$C$68:$AN$129,MATCH($C644,Inputs!$C$68:$AN$68,0),FALSE))*('Master Data'!M$42),0)","v":34.934281518599292},{"$f":"IF($B640=\"Blank\",0,VLOOKUP($B640,Inputs!$C$68:$AN$129,MATCH($B644,Inputs!$C$68:$AN$68,0),FALSE))+IFERROR(IF($B640=\"Blank\",0,VLOOKUP($B640,Inputs!$C$68:$AN$129,MATCH($C644,Inputs!$C$68:$AN$68,0),FALSE))*('Master Data'!N$42),0)","v":34.943898216191549},{"$f":"IF($B640=\"Blank\",0,VLOOKUP($B640,Inputs!$C$68:$AN$129,MATCH($B644,Inputs!$C$68:$AN$68,0),FALSE))+IFERROR(IF($B640=\"Blank\",0,VLOOKUP($B640,Inputs!$C$68:$AN$129,MATCH($C644,Inputs!$C$68:$AN$68,0),FALSE))*('Master Data'!O$42),0)","v":34.955128506182135},null,null,null,null,null,null,null,"Lamp Service costs Annualised",9.5413571483407775,9.5688989794247679,9.5710360324929571,9.5736707441620688,9.5505815590661562]
[null,{"$f":"Inputs!$M$68","v":"PE Cell Service costs Annualised"},"Labour Portion of PE Cell Service costs Annualised",null,{"$f":"IF($B640=\"Blank\",0,VLOOKUP($B640,Inputs!$C$68:$AN$129,MATCH($B645,Inputs!$C$68:$AN$68,0),FALSE))+IFERROR(IF($B640=\"Blank\",0,VLOOKUP($B640,Inputs!$C$68:$AN$129,MATCH($C645,Inputs!$C$68:$AN$68,0),FALSE))*('Master Data'!K$42),0)","v":0},{"$f":"IF($B640=\"Blank\",0,VLOOKUP($B640,Inputs!$C$68:$AN$129,MATCH($B645,Inputs!$C$68:$AN$68,0),FALSE))+IFERROR(IF($B640=\"Blank\",0,VLOOKUP($B640,Inputs!$C$68:$AN$129,MATCH($C645,Inputs!$C$68:$AN$68,0),FALSE))*('Master Data'!L$42),0)","v":0},{"$f":"IF($B640=\"Blank\",0,VLOOKUP($B640,Inputs!$C$68:$AN$129,MATCH($B645,Inputs!$C$68:$AN$68,0),FALSE))+IFERROR(IF($B640=\"Blank\",0,VLOOKUP($B640,Inputs!$C$68:$AN$129,MATCH($C645,Inputs!$C$68:$AN$68,0),FALSE))*('Master Data'!M$42),0)","v":0},{"$f":"IF($B640=\"Blank\",0,VLOOKUP($B640,Inputs!$C$68:$AN$129,MATCH($B645,Inputs!$C$68:$AN$68,0),FALSE))+IFERROR(IF($B640=\"Blank\",0,VLOOKUP($B640,Inputs!$C$68:$AN$129,MATCH($C645,Inputs!$C$68:$AN$68,0),FALSE))*('Master Data'!N$42),0)","v":0},{"$f":"IF($B640=\"Blank\",0,VLOOKUP($B640,Inputs!$C$68:$AN$129,MATCH($B645,Inputs!$C$68:$AN$68,0),FALSE))+IFERROR(IF($B640=\"Blank\",0,VLOOKUP($B640,Inputs!$C$68:$AN$129,MATCH($C645,Inputs!$C$68:$AN$68,0),FALSE))*('Master Data'!O$42),0)","v":0},null,null,null,null,null,null,null,"PE Cell Service costs Annualised",0,0,0,0,0]
[null,"Indirect Opex",null,null,{"$f":"IF($B640=\"Blank\",0,IF($B$8=\"Private Contract Lighting\",'Opex Weighting'!D$48,'Opex Weighting'!D$46))","v":12.159436933476723},{"$f":"IF($B640=\"Blank\",0,IF($B$8=\"Private Contract Lighting\",'Opex Weighting'!E$48,'Opex Weighting'!E$46))","v":12.139620760396495},{"$f":"IF($B640=\"Blank\",0,IF($B$8=\"Private Contract Lighting\",'Opex Weighting'!F$48,'Opex Weighting'!F$46))","v":12.041042902784117},{"$f":"IF($B640=\"Blank\",0,IF($B$8=\"Private Contract Lighting\",'Opex Weighting'!G$48,'Opex Weighting'!G$46))","v":11.913040696908689},{"$f":"IF($B640=\"Blank\",0,IF($B$8=\"Private Contract Lighting\",'Opex Weighting'!H$48,'Opex Weighting'!H$46))","v":11.775235721857506},null,null,null,null,null,null,null,"Indirect Opex",3.3222505282723289,3.32592349599904,3.2989158637764708,3.2638467662763535,3.2172775196331984]
[null,"Indirect Capex",null,null,{"$f":"IF($B641=\"Blank\",0,IF($B$8=\"Private Contract Lighting\",'Capex Weighting'!D$60,'Capex Weighting'!D$62))","v":0},{"$f":"IF($B641=\"Blank\",0,IF($B$8=\"Private Contract Lighting\",'Capex Weighting'!E$60,'Capex Weighting'!E$62))","v":0},{"$f":"IF($B641=\"Blank\",0,IF($B$8=\"Private Contract Lighting\",'Capex Weighting'!F$60,'Capex Weighting'!F$62))","v":0},{"$f":"IF($B641=\"Blank\",0,IF($B$8=\"Private Contract Lighting\",'Capex Weighting'!G$60,'Capex Weighting'!G$62))","v":0},{"$f":"IF($B641=\"Blank\",0,IF($B$8=\"Private Contract Lighting\",'Capex Weighting'!H$60,'Capex Weighting'!H$62))","v":0},null,null,null,null,null,null,null,"Indirect Capex",0,0,0,0,0]
[null,"Opex Overheads Costs per light",null,null,{"$f":"IF($B640=\"Blank\",0,IF($B$8=\"Private Contract Lighting\",'Building Block'!C$40,'Building Block'!C$39))","v":10.567257211169151},{"$f":"IF($B640=\"Blank\",0,IF($B$8=\"Private Contract Lighting\",'Building Block'!D$40,'Building Block'!D$39))","v":10.638037296614067},{"$f":"IF($B640=\"Blank\",0,IF($B$8=\"Private Contract Lighting\",'Building Block'!E$40,'Building Block'!E$39))","v":9.8094883699069495},{"$f":"IF($B640=\"Blank\",0,IF($B$8=\"Private Contract Lighting\",'Building Block'!F$40,'Building Block'!F$39))","v":9.7894714768092079},{"$f":"IF($B640=\"Blank\",0,IF($B$8=\"Private Contract Lighting\",'Building Block'!G$40,'Building Block'!G$39))","v":9.7584857493224391},null,null,null,null,null,null,null,"Opex Overheads Costs per light",2.8872287462210795,2.914530766195635,2.6875310602484794,2.6820469799477284,2.6662529369733439]
[null,{"$f":"Inputs!$AK$68","v":"Bracket UNIT price"},0,null,"NA","NA","NA","NA","NA",null,null,null,null,null,null,null,"Bracket UNIT price","","","","",""]
[null,{"$f":"Inputs!$AA$68","v":"CAPEX Instalation costs"},{"$f":"C649+1","v":1},null,"NA","NA","NA","NA","NA",null,null,null,null,null,null,null,"CAPEX Instalation costs","","","","",""]
[null,{"$f":"Inputs!$Z$68","v":"Luminaire UNIT price"},{"$f":"C650+1","v":2},null,"NA","NA","NA","NA","NA",null,null,null,null,null,null,null,"Luminaire UNIT price","","","","",""]
[null,{"$f":"Inputs!$AA$68","v":"CAPEX Instalation costs"},3,null,"NA","NA","NA","NA","NA",null,null,null,null,null,null,null,"CAPEX Instalation costs","","","","",""]
[null,null,null,null,{"$f":"SUM(E641:E652)","v":78.992157779638688},{"$f":"SUM(F641:F652)","v":79.017952307189404},77.947976989824639,77.613958897428105,77.245801993705697,null,null,null,null,null,null,null,null,{"$f":"ROUND(E653/R$2*100,3)","v":21.582999999999998},{"$f":"ROUND(F653/S$2*100,3)","v":21.649000000000001},{"$f":"ROUND(G653/T$2*100,3)","v":21.356000000000002},{"$f":"ROUND(H653/U$2*100,3)","v":21.263999999999999},{"$f":"ROUND(I653/V$2*100,3)","v":21.105}]
[]
[{"$f":"A640+1","v":44},{"$f":"IFERROR(VLOOKUP($A655,Inputs!$B$68:$AN$129,MATCH($B$7,Inputs!$B$68:$AN$68,0),FALSE),\"Blank\")","v":"50W Mercury Vapour"},null,null,null,null,null,null,null,null,null,null,null,null,null,null,{"$f":"IFERROR(VLOOKUP($A655,Inputs!$B$68:$AN$129,MATCH($B$7,Inputs!$B$68:$AN$68,0),FALSE),\"Blank\")","v":"50W Mercury Vapour"}]
[null,{"$f":"Inputs!$S$68","v":"Lamp UNIT price Annualised Cost"},{"$f":"Inputs!$Q$68","v":"Lamp Maintenance cycle"},null,{"$f":"IF($B655=\"Blank\",0,VLOOKUP($B655,Inputs!$C$68:$AN$129,MATCH($B656,Inputs!$C$68:$AN$68,0),FALSE))","v":0.64212375646340014},{"$f":"IF($B655=\"Blank\",0,VLOOKUP($B655,Inputs!$C$68:$AN$129,MATCH($B656,Inputs!$C$68:$AN$68,0),FALSE))","v":0.64212375646340014},{"$f":"IF($B655=\"Blank\",0,VLOOKUP($B655,Inputs!$C$68:$AN$129,MATCH($B656,Inputs!$C$68:$AN$68,0),FALSE))","v":0.64212375646340014},{"$f":"IF($B655=\"Blank\",0,VLOOKUP($B655,Inputs!$C$68:$AN$129,MATCH($B656,Inputs!$C$68:$AN$68,0),FALSE))","v":0.64212375646340014},{"$f":"IF($B655=\"Blank\",0,VLOOKUP($B655,Inputs!$C$68:$AN$129,MATCH($B656,Inputs!$C$68:$AN$68,0),FALSE))","v":0.64212375646340014},null,null,null,null,null,null,null,{"$f":"B656","v":"Lamp UNIT price Annualised Cost"},{"$f":"IF(E656=\"NA\",\"\",E656/R$2*100)","v":0.17544364930693995},{"$f":"IF(F656=\"NA\",\"\",F656/S$2*100)","v":0.17592431683928772},{"$f":"IF(G656=\"NA\",\"\",G656/T$2*100)","v":0.17592431683928772},{"$f":"IF(H656=\"NA\",\"\",H656/U$2*100)","v":0.17592431683928772},{"$f":"IF(I656=\"NA\",\"\",I656/V$2*100)","v":0.17544364930693995}]
[null,{"$f":"Inputs!$K$68","v":"PE Cell UNIT price Annualised Cost"},{"$f":"Inputs!$I$68","v":"PE Cell Maintenance Cycle"},null,{"$f":"IF($B655=\"Blank\",0,VLOOKUP($B655,Inputs!$C$68:$AN$129,MATCH($B657,Inputs!$C$68:$AN$68,0),FALSE))","v":0.58131255188333353},{"$f":"IF($B655=\"Blank\",0,VLOOKUP($B655,Inputs!$C$68:$AN$129,MATCH($B657,Inputs!$C$68:$AN$68,0),FALSE))","v":0.58131255188333353},{"$f":"IF($B655=\"Blank\",0,VLOOKUP($B655,Inputs!$C$68:$AN$129,MATCH($B657,Inputs!$C$68:$AN$68,0),FALSE))","v":0.58131255188333353},{"$f":"IF($B655=\"Blank\",0,VLOOKUP($B655,Inputs!$C$68:$AN$129,MATCH($B657,Inputs!$C$68:$AN$68,0),FALSE))","v":0.58131255188333353},{"$f":"IF($B655=\"Blank\",0,VLOOKUP($B655,Inputs!$C$68:$AN$129,MATCH($B657,Inputs!$C$68:$AN$68,0),FALSE))","v":0.58131255188333353},null,null,null,null,null,null,null,"PE Cell UNIT price Annualised Cost",0.15882856608834248,0.15926371284474891,0.15926371284474891,0.15926371284474891,0.15882856608834248]
[null,"Corp capex annuity per light",null,null,{"$f":"IF($B655=\"Blank\",0,'Corp Capex Annuity calcs'!F$142)","v":18.582309905017571},{"$f":"IF($B655=\"Blank\",0,'Corp Capex Annuity calcs'!G$142)","v":18.552026408230436},{"$f":"IF($B655=\"Blank\",0,'Corp Capex Annuity calcs'!H$142)","v":18.401377631486287},{"$f":"IF($B655=\"Blank\",0,'Corp Capex Annuity calcs'!I$142)","v":18.205761940470655},{"$f":"IF($B655=\"Blank\",0,'Corp Capex Annuity calcs'!J$142)","v":17.995165449295623},null,null,null,null,null,null,null,"Corp capex annuity per light",5.0771338538299373,5.0827469611590237,5.0414733236948734,4.9878799836905907,4.9167118713922466]
[null,{"$f":"Inputs!$U$68","v":"Lamp Service costs Annualised"},"Labour Portion of Lamp Service costs annualised",null,{"$f":"IF($B655=\"Blank\",0,VLOOKUP($B655,Inputs!$C$68:$AN$129,MATCH($B659,Inputs!$C$68:$AN$68,0),FALSE))+IFERROR(IF($B655=\"Blank\",0,VLOOKUP($B655,Inputs!$C$68:$AN$129,MATCH($C659,Inputs!$C$68:$AN$68,0),FALSE))*('Master Data'!K$42),0)","v":24.127490039840644},{"$f":"IF($B655=\"Blank\",0,VLOOKUP($B655,Inputs!$C$68:$AN$129,MATCH($B659,Inputs!$C$68:$AN$68,0),FALSE))+IFERROR(IF($B655=\"Blank\",0,VLOOKUP($B655,Inputs!$C$68:$AN$129,MATCH($C659,Inputs!$C$68:$AN$68,0),FALSE))*('Master Data'!L$42),0)","v":24.131023426294828},{"$f":"IF($B655=\"Blank\",0,VLOOKUP($B655,Inputs!$C$68:$AN$129,MATCH($B659,Inputs!$C$68:$AN$68,0),FALSE))+IFERROR(IF($B655=\"Blank\",0,VLOOKUP($B655,Inputs!$C$68:$AN$129,MATCH($C659,Inputs!$C$68:$AN$68,0),FALSE))*('Master Data'!M$42),0)","v":24.136412685577696},{"$f":"IF($B655=\"Blank\",0,VLOOKUP($B655,Inputs!$C$68:$AN$129,MATCH($B659,Inputs!$C$68:$AN$68,0),FALSE))+IFERROR(IF($B655=\"Blank\",0,VLOOKUP($B655,Inputs!$C$68:$AN$129,MATCH($C659,Inputs!$C$68:$AN$68,0),FALSE))*('Master Data'!N$42),0)","v":24.143056949368709},{"$f":"IF($B655=\"Blank\",0,VLOOKUP($B655,Inputs!$C$68:$AN$129,MATCH($B659,Inputs!$C$68:$AN$68,0),FALSE))+IFERROR(IF($B655=\"Blank\",0,VLOOKUP($B655,Inputs!$C$68:$AN$129,MATCH($C659,Inputs!$C$68:$AN$68,0),FALSE))*('Master Data'!O$42),0)","v":24.150816058816748},null,null,null,null,null,null,null,"Lamp Service costs Annualised",6.5922103933990828,6.611239294875296,6.6127158042678618,6.6145361505119755,6.598583622627527]
[null,{"$f":"Inputs!$M$68","v":"PE Cell Service costs Annualised"},"Labour Portion of PE Cell Service costs Annualised",null,{"$f":"IF($B655=\"Blank\",0,VLOOKUP($B655,Inputs!$C$68:$AN$129,MATCH($B660,Inputs!$C$68:$AN$68,0),FALSE))+IFERROR(IF($B655=\"Blank\",0,VLOOKUP($B655,Inputs!$C$68:$AN$129,MATCH($C660,Inputs!$C$68:$AN$68,0),FALSE))*('Master Data'!K$42),0)","v":0},{"$f":"IF($B655=\"Blank\",0,VLOOKUP($B655,Inputs!$C$68:$AN$129,MATCH($B660,Inputs!$C$68:$AN$68,0),FALSE))+IFERROR(IF($B655=\"Blank\",0,VLOOKUP($B655,Inputs!$C$68:$AN$129,MATCH($C660,Inputs!$C$68:$AN$68,0),FALSE))*('Master Data'!L$42),0)","v":0},{"$f":"IF($B655=\"Blank\",0,VLOOKUP($B655,Inputs!$C$68:$AN$129,MATCH($B660,Inputs!$C$68:$AN$68,0),FALSE))+IFERROR(IF($B655=\"Blank\",0,VLOOKUP($B655,Inputs!$C$68:$AN$129,MATCH($C660,Inputs!$C$68:$AN$68,0),FALSE))*('Master Data'!M$42),0)","v":0},{"$f":"IF($B655=\"Blank\",0,VLOOKUP($B655,Inputs!$C$68:$AN$129,MATCH($B660,Inputs!$C$68:$AN$68,0),FALSE))+IFERROR(IF($B655=\"Blank\",0,VLOOKUP($B655,Inputs!$C$68:$AN$129,MATCH($C660,Inputs!$C$68:$AN$68,0),FALSE))*('Master Data'!N$42),0)","v":0},{"$f":"IF($B655=\"Blank\",0,VLOOKUP($B655,Inputs!$C$68:$AN$129,MATCH($B660,Inputs!$C$68:$AN$68,0),FALSE))+IFERROR(IF($B655=\"Blank\",0,VLOOKUP($B655,Inputs!$C$68:$AN$129,MATCH($C660,Inputs!$C$68:$AN$68,0),FALSE))*('Master Data'!O$42),0)","v":0},null,null,null,null,null,null,null,"PE Cell Service costs Annualised",0,0,0,0,0]
[null,"Indirect Opex",null,null,{"$f":"IF($B655=\"Blank\",0,IF($B$8=\"Private Contract Lighting\",'Opex Weighting'!D$48,'Opex Weighting'!D$46))","v":12.159436933476723},{"$f":"IF($B655=\"Blank\",0,IF($B$8=\"Private Contract Lighting\",'Opex Weighting'!E$48,'Opex Weighting'!E$46))","v":12.139620760396495},{"$f":"IF($B655=\"Blank\",0,IF($B$8=\"Private Contract Lighting\",'Opex Weighting'!F$48,'Opex Weighting'!F$46))","v":12.041042902784117},{"$f":"IF($B655=\"Blank\",0,IF($B$8=\"Private Contract Lighting\",'Opex Weighting'!G$48,'Opex Weighting'!G$46))","v":11.913040696908689},{"$f":"IF($B655=\"Blank\",0,IF($B$8=\"Private Contract Lighting\",'Opex Weighting'!H$48,'Opex Weighting'!H$46))","v":11.775235721857506},null,null,null,null,null,null,null,"Indirect Opex",3.3222505282723289,3.32592349599904,3.2989158637764708,3.2638467662763535,3.2172775196331984]
[null,"Indirect Capex",null,null,{"$f":"IF($B656=\"Blank\",0,IF($B$8=\"Private Contract Lighting\",'Capex Weighting'!D$60,'Capex Weighting'!D$62))","v":0},{"$f":"IF($B656=\"Blank\",0,IF($B$8=\"Private Contract Lighting\",'Capex Weighting'!E$60,'Capex Weighting'!E$62))","v":0},{"$f":"IF($B656=\"Blank\",0,IF($B$8=\"Private Contract Lighting\",'Capex Weighting'!F$60,'Capex Weighting'!F$62))","v":0},{"$f":"IF($B656=\"Blank\",0,IF($B$8=\"Private Contract Lighting\",'Capex Weighting'!G$60,'Capex Weighting'!G$62))","v":0},{"$f":"IF($B656=\"Blank\",0,IF($B$8=\"Private Contract Lighting\",'Capex Weighting'!H$60,'Capex Weighting'!H$62))","v":0},null,null,null,null,null,null,null,"Indirect Capex",0,0,0,0,0]
[null,"Opex Overheads Costs per light",null,null,{"$f":"IF($B655=\"Blank\",0,IF($B$8=\"Private Contract Lighting\",'Building Block'!C$40,'Building Block'!C$39))","v":10.567257211169151},{"$f":"IF($B655=\"Blank\",0,IF($B$8=\"Private Contract Lighting\",'Building Block'!D$40,'Building Block'!D$39))","v":10.638037296614067},{"$f":"IF($B655=\"Blank\",0,IF($B$8=\"Private Contract Lighting\",'Building Block'!E$40,'Building Block'!E$39))","v":9.8094883699069495},{"$f":"IF($B655=\"Blank\",0,IF($B$8=\"Private Contract Lighting\",'Building Block'!F$40,'Building Block'!F$39))","v":9.7894714768092079},{"$f":"IF($B655=\"Blank\",0,IF($B$8=\"Private Contract Lighting\",'Building Block'!G$40,'Building Block'!G$39))","v":9.7584857493224391},null,null,null,null,null,null,null,"Opex Overheads Costs per light",2.8872287462210795,2.914530766195635,2.6875310602484794,2.6820469799477284,2.6662529369733439]
[null,{"$f":"Inputs!$AK$68","v":"Bracket UNIT price"},0,null,"NA","NA","NA","NA","NA",null,null,null,null,null,null,null,"Bracket UNIT price","","","","",""]
[null,{"$f":"Inputs!$AA$68","v":"CAPEX Instalation costs"},{"$f":"C664+1","v":1},null,"NA","NA","NA","NA","NA",null,null,null,null,null,null,null,"CAPEX Instalation costs","","","","",""]
[null,{"$f":"Inputs!$Z$68","v":"Luminaire UNIT price"},{"$f":"C665+1","v":2},null,"NA","NA","NA","NA","NA",null,null,null,null,null,null,null,"Luminaire UNIT price","","","","",""]
[null,{"$f":"Inputs!$AA$68","v":"CAPEX Instalation costs"},3,null,"NA","NA","NA","NA","NA",null,null,null,null,null,null,null,"CAPEX Instalation costs","","","","",""]
[null,null,null,null,{"$f":"SUM(E656:E667)","v":66.659930397850829},{"$f":"SUM(F656:F667)","v":66.684144199882567},65.611757898101772,65.274767371903991,64.90313928763905,null,null,null,null,null,null,null,null,{"$f":"ROUND(E668/R$2*100,3)","v":18.213000000000001},{"$f":"ROUND(F668/S$2*100,3)","v":18.27},{"$f":"ROUND(G668/T$2*100,3)","v":17.975999999999999},{"$f":"ROUND(H668/U$2*100,3)","v":17.882999999999999},{"$f":"ROUND(I668/V$2*100,3)","v":17.733000000000001}]
[]
[{"$f":"A655+1","v":45},{"$f":"IFERROR(VLOOKUP($A670,Inputs!$B$68:$AN$129,MATCH($B$7,Inputs!$B$68:$AN$68,0),FALSE),\"Blank\")","v":"80W Mercury Vapour Art decorative"},null,null,null,null,null,null,null,null,null,null,null,null,null,null,{"$f":"IFERROR(VLOOKUP($A670,Inputs!$B$68:$AN$129,MATCH($B$7,Inputs!$B$68:$AN$68,0),FALSE),\"Blank\")","v":"80W Mercury Vapour Art decorative"}]
[null,{"$f":"Inputs!$S$68","v":"Lamp UNIT price Annualised Cost"},{"$f":"Inputs!$Q$68","v":"Lamp Maintenance cycle"},null,{"$f":"IF($B670=\"Blank\",0,VLOOKUP($B670,Inputs!$C$68:$AN$129,MATCH($B671,Inputs!$C$68:$AN$68,0),FALSE))","v":0.53408829660915003},{"$f":"IF($B670=\"Blank\",0,VLOOKUP($B670,Inputs!$C$68:$AN$129,MATCH($B671,Inputs!$C$68:$AN$68,0),FALSE))","v":0.53408829660915003},{"$f":"IF($B670=\"Blank\",0,VLOOKUP($B670,Inputs!$C$68:$AN$129,MATCH($B671,Inputs!$C$68:$AN$68,0),FALSE))","v":0.53408829660915003},{"$f":"IF($B670=\"Blank\",0,VLOOKUP($B670,Inputs!$C$68:$AN$129,MATCH($B671,Inputs!$C$68:$AN$68,0),FALSE))","v":0.53408829660915003},{"$f":"IF($B670=\"Blank\",0,VLOOKUP($B670,Inputs!$C$68:$AN$129,MATCH($B671,Inputs!$C$68:$AN$68,0),FALSE))","v":0.53408829660915003},null,null,null,null,null,null,null,{"$f":"B671","v":"Lamp UNIT price Annualised Cost"},{"$f":"IF(E671=\"NA\",\"\",E671/R$2*100)","v":0.14592576410086067},{"$f":"IF(F671=\"NA\",\"\",F671/S$2*100)","v":0.14632556071483563},{"$f":"IF(G671=\"NA\",\"\",G671/T$2*100)","v":0.14632556071483563},{"$f":"IF(H671=\"NA\",\"\",H671/U$2*100)","v":0.14632556071483563},{"$f":"IF(I671=\"NA\",\"\",I671/V$2*100)","v":0.14592576410086067}]
[null,{"$f":"Inputs!$K$68","v":"PE Cell UNIT price Annualised Cost"},{"$f":"Inputs!$I$68","v":"PE Cell Maintenance Cycle"},null,{"$f":"IF($B670=\"Blank\",0,VLOOKUP($B670,Inputs!$C$68:$AN$129,MATCH($B672,Inputs!$C$68:$AN$68,0),FALSE))","v":0.58131255188333353},{"$f":"IF($B670=\"Blank\",0,VLOOKUP($B670,Inputs!$C$68:$AN$129,MATCH($B672,Inputs!$C$68:$AN$68,0),FALSE))","v":0.58131255188333353},{"$f":"IF($B670=\"Blank\",0,VLOOKUP($B670,Inputs!$C$68:$AN$129,MATCH($B672,Inputs!$C$68:$AN$68,0),FALSE))","v":0.58131255188333353},{"$f":"IF($B670=\"Blank\",0,VLOOKUP($B670,Inputs!$C$68:$AN$129,MATCH($B672,Inputs!$C$68:$AN$68,0),FALSE))","v":0.58131255188333353},{"$f":"IF($B670=\"Blank\",0,VLOOKUP($B670,Inputs!$C$68:$AN$129,MATCH($B672,Inputs!$C$68:$AN$68,0),FALSE))","v":0.58131255188333353},null,null,null,null,null,null,null,"PE Cell UNIT price Annualised Cost",0.15882856608834248,0.15926371284474891,0.15926371284474891,0.15926371284474891,0.15882856608834248]
[null,"Corp capex annuity per light",null,null,{"$f":"IF($B670=\"Blank\",0,'Corp Capex Annuity calcs'!F$142)","v":18.582309905017571},{"$f":"IF($B670=\"Blank\",0,'Corp Capex Annuity calcs'!G$142)","v":18.552026408230436},{"$f":"IF($B670=\"Blank\",0,'Corp Capex Annuity calcs'!H$142)","v":18.401377631486287},{"$f":"IF($B670=\"Blank\",0,'Corp Capex Annuity calcs'!I$142)","v":18.205761940470655},{"$f":"IF($B670=\"Blank\",0,'Corp Capex Annuity calcs'!J$142)","v":17.995165449295623},null,null,null,null,null,null,null,"Corp capex annuity per light",5.0771338538299373,5.0827469611590237,5.0414733236948734,4.9878799836905907,4.9167118713922466]
[null,{"$f":"Inputs!$U$68","v":"Lamp Service costs Annualised"},"Labour Portion of Lamp Service costs annualised",null,{"$f":"IF($B670=\"Blank\",0,VLOOKUP($B670,Inputs!$C$68:$AN$129,MATCH($B674,Inputs!$C$68:$AN$68,0),FALSE))+IFERROR(IF($B670=\"Blank\",0,VLOOKUP($B670,Inputs!$C$68:$AN$129,MATCH($C674,Inputs!$C$68:$AN$68,0),FALSE))*('Master Data'!K$42),0)","v":24.127490039840644},{"$f":"IF($B670=\"Blank\",0,VLOOKUP($B670,Inputs!$C$68:$AN$129,MATCH($B674,Inputs!$C$68:$AN$68,0),FALSE))+IFERROR(IF($B670=\"Blank\",0,VLOOKUP($B670,Inputs!$C$68:$AN$129,MATCH($C674,Inputs!$C$68:$AN$68,0),FALSE))*('Master Data'!L$42),0)","v":24.131023426294828},{"$f":"IF($B670=\"Blank\",0,VLOOKUP($B670,Inputs!$C$68:$AN$129,MATCH($B674,Inputs!$C$68:$AN$68,0),FALSE))+IFERROR(IF($B670=\"Blank\",0,VLOOKUP($B670,Inputs!$C$68:$AN$129,MATCH($C674,Inputs!$C$68:$AN$68,0),FALSE))*('Master Data'!M$42),0)","v":24.136412685577696},{"$f":"IF($B670=\"Blank\",0,VLOOKUP($B670,Inputs!$C$68:$AN$129,MATCH($B674,Inputs!$C$68:$AN$68,0),FALSE))+IFERROR(IF($B670=\"Blank\",0,VLOOKUP($B670,Inputs!$C$68:$AN$129,MATCH($C674,Inputs!$C$68:$AN$68,0),FALSE))*('Master Data'!N$42),0)","v":24.143056949368709},{"$f":"IF($B670=\"Blank\",0,VLOOKUP($B670,Inputs!$C$68:$AN$129,MATCH($B674,Inputs!$C$68:$AN$68,0),FALSE))+IFERROR(IF($B670=\"Blank\",0,VLOOKUP($B670,Inputs!$C$68:$AN$129,MATCH($C674,Inputs!$C$68:$AN$68,0),FALSE))*('Master Data'!O$42),0)","v":24.150816058816748},null,null,null,null,null,null,null,"Lamp Service costs Annualised",6.5922103933990828,6.611239294875296,6.6127158042678618,6.6145361505119755,6.598583622627527]
[null,{"$f":"Inputs!$M$68","v":"PE Cell Service costs Annualised"},"Labour Portion of PE Cell Service costs Annualised",null,{"$f":"IF($B670=\"Blank\",0,VLOOKUP($B670,Inputs!$C$68:$AN$129,MATCH($B675,Inputs!$C$68:$AN$68,0),FALSE))+IFERROR(IF($B670=\"Blank\",0,VLOOKUP($B670,Inputs!$C$68:$AN$129,MATCH($C675,Inputs!$C$68:$AN$68,0),FALSE))*('Master Data'!K$42),0)","v":0},{"$f":"IF($B670=\"Blank\",0,VLOOKUP($B670,Inputs!$C$68:$AN$129,MATCH($B675,Inputs!$C$68:$AN$68,0),FALSE))+IFERROR(IF($B670=\"Blank\",0,VLOOKUP($B670,Inputs!$C$68:$AN$129,MATCH($C675,Inputs!$C$68:$AN$68,0),FALSE))*('Master Data'!L$42),0)","v":0},{"$f":"IF($B670=\"Blank\",0,VLOOKUP($B670,Inputs!$C$68:$AN$129,MATCH($B675,Inputs!$C$68:$AN$68,0),FALSE))+IFERROR(IF($B670=\"Blank\",0,VLOOKUP($B670,Inputs!$C$68:$AN$129,MATCH($C675,Inputs!$C$68:$AN$68,0),FALSE))*('Master Data'!M$42),0)","v":0},{"$f":"IF($B670=\"Blank\",0,VLOOKUP($B670,Inputs!$C$68:$AN$129,MATCH($B675,Inputs!$C$68:$AN$68,0),FALSE))+IFERROR(IF($B670=\"Blank\",0,VLOOKUP($B670,Inputs!$C$68:$AN$129,MATCH($C675,Inputs!$C$68:$AN$68,0),FALSE))*('Master Data'!N$42),0)","v":0},{"$f":"IF($B670=\"Blank\",0,VLOOKUP($B670,Inputs!$C$68:$AN$129,MATCH($B675,Inputs!$C$68:$AN$68,0),FALSE))+IFERROR(IF($B670=\"Blank\",0,VLOOKUP($B670,Inputs!$C$68:$AN$129,MATCH($C675,Inputs!$C$68:$AN$68,0),FALSE))*('Master Data'!O$42),0)","v":0},null,null,null,null,null,null,null,"PE Cell Service costs Annualised",0,0,0,0,0]
[null,"Indirect Opex",null,null,{"$f":"IF($B670=\"Blank\",0,IF($B$8=\"Private Contract Lighting\",'Opex Weighting'!D$48,'Opex Weighting'!D$46))","v":12.159436933476723},{"$f":"IF($B670=\"Blank\",0,IF($B$8=\"Private Contract Lighting\",'Opex Weighting'!E$48,'Opex Weighting'!E$46))","v":12.139620760396495},{"$f":"IF($B670=\"Blank\",0,IF($B$8=\"Private Contract Lighting\",'Opex Weighting'!F$48,'Opex Weighting'!F$46))","v":12.041042902784117},{"$f":"IF($B670=\"Blank\",0,IF($B$8=\"Private Contract Lighting\",'Opex Weighting'!G$48,'Opex Weighting'!G$46))","v":11.913040696908689},{"$f":"IF($B670=\"Blank\",0,IF($B$8=\"Private Contract Lighting\",'Opex Weighting'!H$48,'Opex Weighting'!H$46))","v":11.775235721857506},null,null,null,null,null,null,null,"Indirect Opex",3.3222505282723289,3.32592349599904,3.2989158637764708,3.2638467662763535,3.2172775196331984]
[null,"Indirect Capex",null,null,{"$f":"IF($B671=\"Blank\",0,IF($B$8=\"Private Contract Lighting\",'Capex Weighting'!D$60,'Capex Weighting'!D$62))","v":0},{"$f":"IF($B671=\"Blank\",0,IF($B$8=\"Private Contract Lighting\",'Capex Weighting'!E$60,'Capex Weighting'!E$62))","v":0},{"$f":"IF($B671=\"Blank\",0,IF($B$8=\"Private Contract Lighting\",'Capex Weighting'!F$60,'Capex Weighting'!F$62))","v":0},{"$f":"IF($B671=\"Blank\",0,IF($B$8=\"Private Contract Lighting\",'Capex Weighting'!G$60,'Capex Weighting'!G$62))","v":0},{"$f":"IF($B671=\"Blank\",0,IF($B$8=\"Private Contract Lighting\",'Capex Weighting'!H$60,'Capex Weighting'!H$62))","v":0},null,null,null,null,null,null,null,"Indirect Capex",0,0,0,0,0]
[null,"Opex Overheads Costs per light",null,null,{"$f":"IF($B670=\"Blank\",0,IF($B$8=\"Private Contract Lighting\",'Building Block'!C$40,'Building Block'!C$39))","v":10.567257211169151},{"$f":"IF($B670=\"Blank\",0,IF($B$8=\"Private Contract Lighting\",'Building Block'!D$40,'Building Block'!D$39))","v":10.638037296614067},{"$f":"IF($B670=\"Blank\",0,IF($B$8=\"Private Contract Lighting\",'Building Block'!E$40,'Building Block'!E$39))","v":9.8094883699069495},{"$f":"IF($B670=\"Blank\",0,IF($B$8=\"Private Contract Lighting\",'Building Block'!F$40,'Building Block'!F$39))","v":9.7894714768092079},{"$f":"IF($B670=\"Blank\",0,IF($B$8=\"Private Contract Lighting\",'Building Block'!G$40,'Building Block'!G$39))","v":9.7584857493224391},null,null,null,null,null,null,null,"Opex Overheads Costs per light",2.8872287462210795,2.914530766195635,2.6875310602484794,2.6820469799477284,2.6662529369733439]
[null,{"$f":"Inputs!$AK$68","v":"Bracket UNIT price"},0,null,"NA","NA","NA","NA","NA",null,null,null,null,null,null,null,"Bracket UNIT price","","","","",""]
[null,{"$f":"Inputs!$AA$68","v":"CAPEX Instalation costs"},{"$f":"C679+1","v":1},null,"NA","NA","NA","NA","NA",null,null,null,null,null,null,null,"CAPEX Instalation costs","","","","",""]
[null,{"$f":"Inputs!$Z$68","v":"Luminaire UNIT price"},{"$f":"C680+1","v":2},null,"NA","NA","NA","NA","NA",null,null,null,null,null,null,null,"Luminaire UNIT price","","","","",""]
[null,{"$f":"Inputs!$AA$68","v":"CAPEX Instalation costs"},3,null,"NA","NA","NA","NA","NA",null,null,null,null,null,null,null,"CAPEX Instalation costs","","","","",""]
[null,null,null,null,{"$f":"SUM(E671:E682)","v":66.551894937996579},{"$f":"SUM(F671:F682)","v":66.576108740028317},65.503722438247522,65.166731912049741,64.7951038277848,null,null,null,null,null,null,null,null,{"$f":"ROUND(E683/R$2*100,3)","v":18.184000000000001},{"$f":"ROUND(F683/S$2*100,3)","v":18.239999999999998},{"$f":"ROUND(G683/T$2*100,3)","v":17.946000000000002},{"$f":"ROUND(H683/U$2*100,3)","v":17.853999999999999},{"$f":"ROUND(I683/V$2*100,3)","v":17.704000000000001}]
[]
[{"$f":"A670+1","v":46},{"$f":"IFERROR(VLOOKUP($A685,Inputs!$B$68:$AN$129,MATCH($B$7,Inputs!$B$68:$AN$68,0),FALSE),\"Blank\")","v":"80W Mercury Vapour"},null,null,null,null,null,null,null,null,null,null,null,null,null,null,{"$f":"IFERROR(VLOOKUP($A685,Inputs!$B$68:$AN$129,MATCH($B$7,Inputs!$B$68:$AN$68,0),FALSE),\"Blank\")","v":"80W Mercury Vapour"}]
[null,{"$f":"Inputs!$S$68","v":"Lamp UNIT price Annualised Cost"},{"$f":"Inputs!$Q$68","v":"Lamp Maintenance cycle"},null,{"$f":"IF($B685=\"Blank\",0,VLOOKUP($B685,Inputs!$C$68:$AN$129,MATCH($B686,Inputs!$C$68:$AN$68,0),FALSE))","v":0.53408829660915003},{"$f":"IF($B685=\"Blank\",0,VLOOKUP($B685,Inputs!$C$68:$AN$129,MATCH($B686,Inputs!$C$68:$AN$68,0),FALSE))","v":0.53408829660915003},{"$f":"IF($B685=\"Blank\",0,VLOOKUP($B685,Inputs!$C$68:$AN$129,MATCH($B686,Inputs!$C$68:$AN$68,0),FALSE))","v":0.53408829660915003},{"$f":"IF($B685=\"Blank\",0,VLOOKUP($B685,Inputs!$C$68:$AN$129,MATCH($B686,Inputs!$C$68:$AN$68,0),FALSE))","v":0.53408829660915003},{"$f":"IF($B685=\"Blank\",0,VLOOKUP($B685,Inputs!$C$68:$AN$129,MATCH($B686,Inputs!$C$68:$AN$68,0),FALSE))","v":0.53408829660915003},null,null,null,null,null,null,null,{"$f":"B686","v":"Lamp UNIT price Annualised Cost"},{"$f":"IF(E686=\"NA\",\"\",E686/R$2*100)","v":0.14592576410086067},{"$f":"IF(F686=\"NA\",\"\",F686/S$2*100)","v":0.14632556071483563},{"$f":"IF(G686=\"NA\",\"\",G686/T$2*100)","v":0.14632556071483563},{"$f":"IF(H686=\"NA\",\"\",H686/U$2*100)","v":0.14632556071483563},{"$f":"IF(I686=\"NA\",\"\",I686/V$2*100)","v":0.14592576410086067}]
[null,{"$f":"Inputs!$K$68","v":"PE Cell UNIT price Annualised Cost"},{"$f":"Inputs!$I$68","v":"PE Cell Maintenance Cycle"},null,{"$f":"IF($B685=\"Blank\",0,VLOOKUP($B685,Inputs!$C$68:$AN$129,MATCH($B687,Inputs!$C$68:$AN$68,0),FALSE))","v":0.58131255188333353},{"$f":"IF($B685=\"Blank\",0,VLOOKUP($B685,Inputs!$C$68:$AN$129,MATCH($B687,Inputs!$C$68:$AN$68,0),FALSE))","v":0.58131255188333353},{"$f":"IF($B685=\"Blank\",0,VLOOKUP($B685,Inputs!$C$68:$AN$129,MATCH($B687,Inputs!$C$68:$AN$68,0),FALSE))","v":0.58131255188333353},{"$f":"IF($B685=\"Blank\",0,VLOOKUP($B685,Inputs!$C$68:$AN$129,MATCH($B687,Inputs!$C$68:$AN$68,0),FALSE))","v":0.58131255188333353},{"$f":"IF($B685=\"Blank\",0,VLOOKUP($B685,Inputs!$C$68:$AN$129,MATCH($B687,Inputs!$C$68:$AN$68,0),FALSE))","v":0.58131255188333353},null,null,null,null,null,null,null,"PE Cell UNIT price Annualised Cost",0.15882856608834248,0.15926371284474891,0.15926371284474891,0.15926371284474891,0.15882856608834248]
[null,"Corp capex annuity per light",null,null,{"$f":"IF($B685=\"Blank\",0,'Corp Capex Annuity calcs'!F$142)","v":18.582309905017571},{"$f":"IF($B685=\"Blank\",0,'Corp Capex Annuity calcs'!G$142)","v":18.552026408230436},{"$f":"IF($B685=\"Blank\",0,'Corp Capex Annuity calcs'!H$142)","v":18.401377631486287},{"$f":"IF($B685=\"Blank\",0,'Corp Capex Annuity calcs'!I$142)","v":18.205761940470655},{"$f":"IF($B685=\"Blank\",0,'Corp Capex Annuity calcs'!J$142)","v":17.995165449295623},null,null,null,null,null,null,null,"Corp capex annuity per light",5.0771338538299373,5.0827469611590237,5.0414733236948734,4.9878799836905907,4.9167118713922466]
[null,{"$f":"Inputs!$U$68","v":"Lamp Service costs Annualised"},"Labour Portion of Lamp Service costs annualised",null,{"$f":"IF($B685=\"Blank\",0,VLOOKUP($B685,Inputs!$C$68:$AN$129,MATCH($B689,Inputs!$C$68:$AN$68,0),FALSE))+IFERROR(IF($B685=\"Blank\",0,VLOOKUP($B685,Inputs!$C$68:$AN$129,MATCH($C689,Inputs!$C$68:$AN$68,0),FALSE))*('Master Data'!K$42),0)","v":24.127490039840644},{"$f":"IF($B685=\"Blank\",0,VLOOKUP($B685,Inputs!$C$68:$AN$129,MATCH($B689,Inputs!$C$68:$AN$68,0),FALSE))+IFERROR(IF($B685=\"Blank\",0,VLOOKUP($B685,Inputs!$C$68:$AN$129,MATCH($C689,Inputs!$C$68:$AN$68,0),FALSE))*('Master Data'!L$42),0)","v":24.131023426294828},{"$f":"IF($B685=\"Blank\",0,VLOOKUP($B685,Inputs!$C$68:$AN$129,MATCH($B689,Inputs!$C$68:$AN$68,0),FALSE))+IFERROR(IF($B685=\"Blank\",0,VLOOKUP($B685,Inputs!$C$68:$AN$129,MATCH($C689,Inputs!$C$68:$AN$68,0),FALSE))*('Master Data'!M$42),0)","v":24.136412685577696},{"$f":"IF($B685=\"Blank\",0,VLOOKUP($B685,Inputs!$C$68:$AN$129,MATCH($B689,Inputs!$C$68:$AN$68,0),FALSE))+IFERROR(IF($B685=\"Blank\",0,VLOOKUP($B685,Inputs!$C$68:$AN$129,MATCH($C689,Inputs!$C$68:$AN$68,0),FALSE))*('Master Data'!N$42),0)","v":24.143056949368709},{"$f":"IF($B685=\"Blank\",0,VLOOKUP($B685,Inputs!$C$68:$AN$129,MATCH($B689,Inputs!$C$68:$AN$68,0),FALSE))+IFERROR(IF($B685=\"Blank\",0,VLOOKUP($B685,Inputs!$C$68:$AN$129,MATCH($C689,Inputs!$C$68:$AN$68,0),FALSE))*('Master Data'!O$42),0)","v":24.150816058816748},null,null,null,null,null,null,null,"Lamp Service costs Annualised",6.5922103933990828,6.611239294875296,6.6127158042678618,6.6145361505119755,6.598583622627527]
[null,{"$f":"Inputs!$M$68","v":"PE Cell Service costs Annualised"},"Labour Portion of PE Cell Service costs Annualised",null,{"$f":"IF($B685=\"Blank\",0,VLOOKUP($B685,Inputs!$C$68:$AN$129,MATCH($B690,Inputs!$C$68:$AN$68,0),FALSE))+IFERROR(IF($B685=\"Blank\",0,VLOOKUP($B685,Inputs!$C$68:$AN$129,MATCH($C690,Inputs!$C$68:$AN$68,0),FALSE))*('Master Data'!K$42),0)","v":0},{"$f":"IF($B685=\"Blank\",0,VLOOKUP($B685,Inputs!$C$68:$AN$129,MATCH($B690,Inputs!$C$68:$AN$68,0),FALSE))+IFERROR(IF($B685=\"Blank\",0,VLOOKUP($B685,Inputs!$C$68:$AN$129,MATCH($C690,Inputs!$C$68:$AN$68,0),FALSE))*('Master Data'!L$42),0)","v":0},{"$f":"IF($B685=\"Blank\",0,VLOOKUP($B685,Inputs!$C$68:$AN$129,MATCH($B690,Inputs!$C$68:$AN$68,0),FALSE))+IFERROR(IF($B685=\"Blank\",0,VLOOKUP($B685,Inputs!$C$68:$AN$129,MATCH($C690,Inputs!$C$68:$AN$68,0),FALSE))*('Master Data'!M$42),0)","v":0},{"$f":"IF($B685=\"Blank\",0,VLOOKUP($B685,Inputs!$C$68:$AN$129,MATCH($B690,Inputs!$C$68:$AN$68,0),FALSE))+IFERROR(IF($B685=\"Blank\",0,VLOOKUP($B685,Inputs!$C$68:$AN$129,MATCH($C690,Inputs!$C$68:$AN$68,0),FALSE))*('Master Data'!N$42),0)","v":0},{"$f":"IF($B685=\"Blank\",0,VLOOKUP($B685,Inputs!$C$68:$AN$129,MATCH($B690,Inputs!$C$68:$AN$68,0),FALSE))+IFERROR(IF($B685=\"Blank\",0,VLOOKUP($B685,Inputs!$C$68:$AN$129,MATCH($C690,Inputs!$C$68:$AN$68,0),FALSE))*('Master Data'!O$42),0)","v":0},null,null,null,null,null,null,null,"PE Cell Service costs Annualised",0,0,0,0,0]
[null,"Indirect Opex",null,null,{"$f":"IF($B685=\"Blank\",0,IF($B$8=\"Private Contract Lighting\",'Opex Weighting'!D$48,'Opex Weighting'!D$46))","v":12.159436933476723},{"$f":"IF($B685=\"Blank\",0,IF($B$8=\"Private Contract Lighting\",'Opex Weighting'!E$48,'Opex Weighting'!E$46))","v":12.139620760396495},{"$f":"IF($B685=\"Blank\",0,IF($B$8=\"Private Contract Lighting\",'Opex Weighting'!F$48,'Opex Weighting'!F$46))","v":12.041042902784117},{"$f":"IF($B685=\"Blank\",0,IF($B$8=\"Private Contract Lighting\",'Opex Weighting'!G$48,'Opex Weighting'!G$46))","v":11.913040696908689},{"$f":"IF($B685=\"Blank\",0,IF($B$8=\"Private Contract Lighting\",'Opex Weighting'!H$48,'Opex Weighting'!H$46))","v":11.775235721857506},null,null,null,null,null,null,null,"Indirect Opex",3.3222505282723289,3.32592349599904,3.2989158637764708,3.2638467662763535,3.2172775196331984]
[null,"Indirect Capex",null,null,{"$f":"IF($B686=\"Blank\",0,IF($B$8=\"Private Contract Lighting\",'Capex Weighting'!D$60,'Capex Weighting'!D$62))","v":0},{"$f":"IF($B686=\"Blank\",0,IF($B$8=\"Private Contract Lighting\",'Capex Weighting'!E$60,'Capex Weighting'!E$62))","v":0},{"$f":"IF($B686=\"Blank\",0,IF($B$8=\"Private Contract Lighting\",'Capex Weighting'!F$60,'Capex Weighting'!F$62))","v":0},{"$f":"IF($B686=\"Blank\",0,IF($B$8=\"Private Contract Lighting\",'Capex Weighting'!G$60,'Capex Weighting'!G$62))","v":0},{"$f":"IF($B686=\"Blank\",0,IF($B$8=\"Private Contract Lighting\",'Capex Weighting'!H$60,'Capex Weighting'!H$62))","v":0},null,null,null,null,null,null,null,"Indirect Capex",0,0,0,0,0]
[null,"Opex Overheads Costs per light",null,null,{"$f":"IF($B685=\"Blank\",0,IF($B$8=\"Private Contract Lighting\",'Building Block'!C$40,'Building Block'!C$39))","v":10.567257211169151},{"$f":"IF($B685=\"Blank\",0,IF($B$8=\"Private Contract Lighting\",'Building Block'!D$40,'Building Block'!D$39))","v":10.638037296614067},{"$f":"IF($B685=\"Blank\",0,IF($B$8=\"Private Contract Lighting\",'Building Block'!E$40,'Building Block'!E$39))","v":9.8094883699069495},{"$f":"IF($B685=\"Blank\",0,IF($B$8=\"Private Contract Lighting\",'Building Block'!F$40,'Building Block'!F$39))","v":9.7894714768092079},{"$f":"IF($B685=\"Blank\",0,IF($B$8=\"Private Contract Lighting\",'Building Block'!G$40,'Building Block'!G$39))","v":9.7584857493224391},null,null,null,null,null,null,null,"Opex Overheads Costs per light",2.8872287462210795,2.914530766195635,2.6875310602484794,2.6820469799477284,2.6662529369733439]
[null,{"$f":"Inputs!$AK$68","v":"Bracket UNIT price"},0,null,"NA","NA","NA","NA","NA",null,null,null,null,null,null,null,"Bracket UNIT price","","","","",""]
[null,{"$f":"Inputs!$AA$68","v":"CAPEX Instalation costs"},{"$f":"C694+1","v":1},null,"NA","NA","NA","NA","NA",null,null,null,null,null,null,null,"CAPEX Instalation costs","","","","",""]
[null,{"$f":"Inputs!$Z$68","v":"Luminaire UNIT price"},{"$f":"C695+1","v":2},null,"NA","NA","NA","NA","NA",null,null,null,null,null,null,null,"Luminaire UNIT price","","","","",""]
[null,{"$f":"Inputs!$AA$68","v":"CAPEX Instalation costs"},3,null,"NA","NA","NA","NA","NA",null,null,null,null,null,null,null,"CAPEX Instalation costs","","","","",""]
[null,null,null,null,{"$f":"SUM(E686:E697)","v":66.551894937996579},{"$f":"SUM(F686:F697)","v":66.576108740028317},65.503722438247522,65.166731912049741,64.7951038277848,null,null,null,null,null,null,null,null,{"$f":"ROUND(E698/R$2*100,3)","v":18.184000000000001},{"$f":"ROUND(F698/S$2*100,3)","v":18.239999999999998},{"$f":"ROUND(G698/T$2*100,3)","v":17.946000000000002},{"$f":"ROUND(H698/U$2*100,3)","v":17.853999999999999},{"$f":"ROUND(I698/V$2*100,3)","v":17.704000000000001}]
[]
[{"$f":"A685+1","v":47},{"$f":"IFERROR(VLOOKUP($A700,Inputs!$B$68:$AN$129,MATCH($B$7,Inputs!$B$68:$AN$68,0),FALSE),\"Blank\")","v":"14W LED"},null,null,null,null,null,null,null,null,null,null,null,null,null,null,{"$f":"IFERROR(VLOOKUP($A700,Inputs!$B$68:$AN$129,MATCH($B$7,Inputs!$B$68:$AN$68,0),FALSE),\"Blank\")","v":"14W LED"}]
[null,{"$f":"Inputs!$S$68","v":"Lamp UNIT price Annualised Cost"},{"$f":"Inputs!$Q$68","v":"Lamp Maintenance cycle"},null,{"$f":"IF($B700=\"Blank\",0,VLOOKUP($B700,Inputs!$C$68:$AN$129,MATCH($B701,Inputs!$C$68:$AN$68,0),FALSE))","v":0},{"$f":"IF($B700=\"Blank\",0,VLOOKUP($B700,Inputs!$C$68:$AN$129,MATCH($B701,Inputs!$C$68:$AN$68,0),FALSE))","v":0},{"$f":"IF($B700=\"Blank\",0,VLOOKUP($B700,Inputs!$C$68:$AN$129,MATCH($B701,Inputs!$C$68:$AN$68,0),FALSE))","v":0},{"$f":"IF($B700=\"Blank\",0,VLOOKUP($B700,Inputs!$C$68:$AN$129,MATCH($B701,Inputs!$C$68:$AN$68,0),FALSE))","v":0},{"$f":"IF($B700=\"Blank\",0,VLOOKUP($B700,Inputs!$C$68:$AN$129,MATCH($B701,Inputs!$C$68:$AN$68,0),FALSE))","v":0},null,null,null,null,null,null,null,{"$f":"B701","v":"Lamp UNIT price Annualised Cost"},{"$f":"IF(E701=\"NA\",\"\",E701/R$2*100)","v":0},{"$f":"IF(F701=\"NA\",\"\",F701/S$2*100)","v":0},{"$f":"IF(G701=\"NA\",\"\",G701/T$2*100)","v":0},{"$f":"IF(H701=\"NA\",\"\",H701/U$2*100)","v":0},{"$f":"IF(I701=\"NA\",\"\",I701/V$2*100)","v":0}]
[null,{"$f":"Inputs!$K$68","v":"PE Cell UNIT price Annualised Cost"},{"$f":"Inputs!$I$68","v":"PE Cell Maintenance Cycle"},null,{"$f":"IF($B700=\"Blank\",0,VLOOKUP($B700,Inputs!$C$68:$AN$129,MATCH($B702,Inputs!$C$68:$AN$68,0),FALSE))","v":0.84654871962400013},{"$f":"IF($B700=\"Blank\",0,VLOOKUP($B700,Inputs!$C$68:$AN$129,MATCH($B702,Inputs!$C$68:$AN$68,0),FALSE))","v":0.84654871962400013},{"$f":"IF($B700=\"Blank\",0,VLOOKUP($B700,Inputs!$C$68:$AN$129,MATCH($B702,Inputs!$C$68:$AN$68,0),FALSE))","v":0.84654871962400013},{"$f":"IF($B700=\"Blank\",0,VLOOKUP($B700,Inputs!$C$68:$AN$129,MATCH($B702,Inputs!$C$68:$AN$68,0),FALSE))","v":0.84654871962400013},{"$f":"IF($B700=\"Blank\",0,VLOOKUP($B700,Inputs!$C$68:$AN$129,MATCH($B702,Inputs!$C$68:$AN$68,0),FALSE))","v":0.84654871962400013},null,null,null,null,null,null,null,"PE Cell UNIT price Annualised Cost",0.23129746437814211,0.23193115606136988,0.23193115606136988,0.23193115606136988,0.23129746437814211]
[null,"Corp capex annuity per light",null,null,{"$f":"IF($B700=\"Blank\",0,'Corp Capex Annuity calcs'!F$142)","v":18.582309905017571},{"$f":"IF($B700=\"Blank\",0,'Corp Capex Annuity calcs'!G$142)","v":18.552026408230436},{"$f":"IF($B700=\"Blank\",0,'Corp Capex Annuity calcs'!H$142)","v":18.401377631486287},{"$f":"IF($B700=\"Blank\",0,'Corp Capex Annuity calcs'!I$142)","v":18.205761940470655},{"$f":"IF($B700=\"Blank\",0,'Corp Capex Annuity calcs'!J$142)","v":17.995165449295623},null,null,null,null,null,null,null,"Corp capex annuity per light",5.0771338538299373,5.0827469611590237,5.0414733236948734,4.9878799836905907,4.9167118713922466]
[null,{"$f":"Inputs!$U$68","v":"Lamp Service costs Annualised"},"Labour Portion of Lamp Service costs annualised",null,{"$f":"IF($B700=\"Blank\",0,VLOOKUP($B700,Inputs!$C$68:$AN$129,MATCH($B704,Inputs!$C$68:$AN$68,0),FALSE))+IFERROR(IF($B700=\"Blank\",0,VLOOKUP($B700,Inputs!$C$68:$AN$129,MATCH($C704,Inputs!$C$68:$AN$68,0),FALSE))*('Master Data'!K$42),0)","v":0},{"$f":"IF($B700=\"Blank\",0,VLOOKUP($B700,Inputs!$C$68:$AN$129,MATCH($B704,Inputs!$C$68:$AN$68,0),FALSE))+IFERROR(IF($B700=\"Blank\",0,VLOOKUP($B700,Inputs!$C$68:$AN$129,MATCH($C704,Inputs!$C$68:$AN$68,0),FALSE))*('Master Data'!L$42),0)","v":0},{"$f":"IF($B700=\"Blank\",0,VLOOKUP($B700,Inputs!$C$68:$AN$129,MATCH($B704,Inputs!$C$68:$AN$68,0),FALSE))+IFERROR(IF($B700=\"Blank\",0,VLOOKUP($B700,Inputs!$C$68:$AN$129,MATCH($C704,Inputs!$C$68:$AN$68,0),FALSE))*('Master Data'!M$42),0)","v":0},{"$f":"IF($B700=\"Blank\",0,VLOOKUP($B700,Inputs!$C$68:$AN$129,MATCH($B704,Inputs!$C$68:$AN$68,0),FALSE))+IFERROR(IF($B700=\"Blank\",0,VLOOKUP($B700,Inputs!$C$68:$AN$129,MATCH($C704,Inputs!$C$68:$AN$68,0),FALSE))*('Master Data'!N$42),0)","v":0},{"$f":"IF($B700=\"Blank\",0,VLOOKUP($B700,Inputs!$C$68:$AN$129,MATCH($B704,Inputs!$C$68:$AN$68,0),FALSE))+IFERROR(IF($B700=\"Blank\",0,VLOOKUP($B700,Inputs!$C$68:$AN$129,MATCH($C704,Inputs!$C$68:$AN$68,0),FALSE))*('Master Data'!O$42),0)","v":0},null,null,null,null,null,null,null,"Lamp Service costs Annualised",0,0,0,0,0]
[null,{"$f":"Inputs!$M$68","v":"PE Cell Service costs Annualised"},"Labour Portion of PE Cell Service costs Annualised",null,{"$f":"IF($B700=\"Blank\",0,VLOOKUP($B700,Inputs!$C$68:$AN$129,MATCH($B705,Inputs!$C$68:$AN$68,0),FALSE))+IFERROR(IF($B700=\"Blank\",0,VLOOKUP($B700,Inputs!$C$68:$AN$129,MATCH($C705,Inputs!$C$68:$AN$68,0),FALSE))*('Master Data'!K$42),0)","v":6.0318725099601611},{"$f":"IF($B700=\"Blank\",0,VLOOKUP($B700,Inputs!$C$68:$AN$129,MATCH($B705,Inputs!$C$68:$AN$68,0),FALSE))+IFERROR(IF($B700=\"Blank\",0,VLOOKUP($B700,Inputs!$C$68:$AN$129,MATCH($C705,Inputs!$C$68:$AN$68,0),FALSE))*('Master Data'!L$42),0)","v":6.0327558565737069},{"$f":"IF($B700=\"Blank\",0,VLOOKUP($B700,Inputs!$C$68:$AN$129,MATCH($B705,Inputs!$C$68:$AN$68,0),FALSE))+IFERROR(IF($B700=\"Blank\",0,VLOOKUP($B700,Inputs!$C$68:$AN$129,MATCH($C705,Inputs!$C$68:$AN$68,0),FALSE))*('Master Data'!M$42),0)","v":6.034103171394424},{"$f":"IF($B700=\"Blank\",0,VLOOKUP($B700,Inputs!$C$68:$AN$129,MATCH($B705,Inputs!$C$68:$AN$68,0),FALSE))+IFERROR(IF($B700=\"Blank\",0,VLOOKUP($B700,Inputs!$C$68:$AN$129,MATCH($C705,Inputs!$C$68:$AN$68,0),FALSE))*('Master Data'!N$42),0)","v":6.0357642373421774},{"$f":"IF($B700=\"Blank\",0,VLOOKUP($B700,Inputs!$C$68:$AN$129,MATCH($B705,Inputs!$C$68:$AN$68,0),FALSE))+IFERROR(IF($B700=\"Blank\",0,VLOOKUP($B700,Inputs!$C$68:$AN$129,MATCH($C705,Inputs!$C$68:$AN$68,0),FALSE))*('Master Data'!O$42),0)","v":6.0377040147041869},null,null,null,null,null,null,null,"PE Cell Service costs Annualised",1.6480525983497707,1.652809823718824,1.6531789510669654,1.6536340376279939,1.6496459056568817]
[null,"Indirect Opex",null,null,{"$f":"IF($B700=\"Blank\",0,IF($B$8=\"Private Contract Lighting\",'Opex Weighting'!D$48,'Opex Weighting'!D$46))","v":12.159436933476723},{"$f":"IF($B700=\"Blank\",0,IF($B$8=\"Private Contract Lighting\",'Opex Weighting'!E$48,'Opex Weighting'!E$46))","v":12.139620760396495},{"$f":"IF($B700=\"Blank\",0,IF($B$8=\"Private Contract Lighting\",'Opex Weighting'!F$48,'Opex Weighting'!F$46))","v":12.041042902784117},{"$f":"IF($B700=\"Blank\",0,IF($B$8=\"Private Contract Lighting\",'Opex Weighting'!G$48,'Opex Weighting'!G$46))","v":11.913040696908689},{"$f":"IF($B700=\"Blank\",0,IF($B$8=\"Private Contract Lighting\",'Opex Weighting'!H$48,'Opex Weighting'!H$46))","v":11.775235721857506},null,null,null,null,null,null,null,"Indirect Opex",3.3222505282723289,3.32592349599904,3.2989158637764708,3.2638467662763535,3.2172775196331984]
[null,"Indirect Capex",null,null,{"$f":"IF($B701=\"Blank\",0,IF($B$8=\"Private Contract Lighting\",'Capex Weighting'!D$60,'Capex Weighting'!D$62))","v":0},{"$f":"IF($B701=\"Blank\",0,IF($B$8=\"Private Contract Lighting\",'Capex Weighting'!E$60,'Capex Weighting'!E$62))","v":0},{"$f":"IF($B701=\"Blank\",0,IF($B$8=\"Private Contract Lighting\",'Capex Weighting'!F$60,'Capex Weighting'!F$62))","v":0},{"$f":"IF($B701=\"Blank\",0,IF($B$8=\"Private Contract Lighting\",'Capex Weighting'!G$60,'Capex Weighting'!G$62))","v":0},{"$f":"IF($B701=\"Blank\",0,IF($B$8=\"Private Contract Lighting\",'Capex Weighting'!H$60,'Capex Weighting'!H$62))","v":0},null,null,null,null,null,null,null,"Indirect Capex",0,0,0,0,0]
[null,"Opex Overheads Costs per light",null,null,{"$f":"IF($B700=\"Blank\",0,IF($B$8=\"Private Contract Lighting\",'Building Block'!C$40,'Building Block'!C$39))","v":10.567257211169151},{"$f":"IF($B700=\"Blank\",0,IF($B$8=\"Private Contract Lighting\",'Building Block'!D$40,'Building Block'!D$39))","v":10.638037296614067},{"$f":"IF($B700=\"Blank\",0,IF($B$8=\"Private Contract Lighting\",'Building Block'!E$40,'Building Block'!E$39))","v":9.8094883699069495},{"$f":"IF($B700=\"Blank\",0,IF($B$8=\"Private Contract Lighting\",'Building Block'!F$40,'Building Block'!F$39))","v":9.7894714768092079},{"$f":"IF($B700=\"Blank\",0,IF($B$8=\"Private Contract Lighting\",'Building Block'!G$40,'Building Block'!G$39))","v":9.7584857493224391},null,null,null,null,null,null,null,"Opex Overheads Costs per light",2.8872287462210795,2.914530766195635,2.6875310602484794,2.6820469799477284,2.6662529369733439]
[null,{"$f":"Inputs!$AK$68","v":"Bracket UNIT price"},0,null,"NA","NA","NA","NA","NA",null,null,null,null,null,null,null,"Bracket UNIT price","","","","",""]
[null,{"$f":"Inputs!$AA$68","v":"CAPEX Instalation costs"},{"$f":"C709+1","v":1},null,"NA","NA","NA","NA","NA",null,null,null,null,null,null,null,"CAPEX Instalation costs","","","","",""]
[null,{"$f":"Inputs!$Z$68","v":"Luminaire UNIT price"},{"$f":"C710+1","v":2},null,"NA","NA","NA","NA","NA",null,null,null,null,null,null,null,"Luminaire UNIT price","","","","",""]
[null,{"$f":"Inputs!$AA$68","v":"CAPEX Instalation costs"},3,null,"NA","NA","NA","NA","NA",null,null,null,null,null,null,null,"CAPEX Instalation costs","","","","",""]
[null,null,null,null,{"$f":"SUM(E701:E712)","v":48.187425279247606},{"$f":"SUM(F701:F712)","v":48.208989041438706},47.132560795195779,46.790587071154732,46.41313965480375,null,null,null,null,null,null,null,null,{"$f":"ROUND(E713/R$2*100,3)","v":13.166},{"$f":"ROUND(F713/S$2*100,3)","v":13.208},{"$f":"ROUND(G713/T$2*100,3)","v":12.913},{"$f":"ROUND(H713/U$2*100,3)","v":12.819000000000001},{"$f":"ROUND(I713/V$2*100,3)","v":12.680999999999999}]
[]
[{"$f":"A700+1","v":48},{"$f":"IFERROR(VLOOKUP($A715,Inputs!$B$68:$AN$129,MATCH($B$7,Inputs!$B$68:$AN$68,0),FALSE),\"Blank\")","v":"New technology - Minor"},null,null,null,null,null,null,null,null,null,null,null,null,null,null,{"$f":"IFERROR(VLOOKUP($A715,Inputs!$B$68:$AN$129,MATCH($B$7,Inputs!$B$68:$AN$68,0),FALSE),\"Blank\")","v":"New technology - Minor"}]
[null,{"$f":"Inputs!$S$68","v":"Lamp UNIT price Annualised Cost"},{"$f":"Inputs!$Q$68","v":"Lamp Maintenance cycle"},null,{"$f":"IF($B715=\"Blank\",0,VLOOKUP($B715,Inputs!$C$68:$AN$129,MATCH($B716,Inputs!$C$68:$AN$68,0),FALSE))","v":0},{"$f":"IF($B715=\"Blank\",0,VLOOKUP($B715,Inputs!$C$68:$AN$129,MATCH($B716,Inputs!$C$68:$AN$68,0),FALSE))","v":0},{"$f":"IF($B715=\"Blank\",0,VLOOKUP($B715,Inputs!$C$68:$AN$129,MATCH($B716,Inputs!$C$68:$AN$68,0),FALSE))","v":0},{"$f":"IF($B715=\"Blank\",0,VLOOKUP($B715,Inputs!$C$68:$AN$129,MATCH($B716,Inputs!$C$68:$AN$68,0),FALSE))","v":0},{"$f":"IF($B715=\"Blank\",0,VLOOKUP($B715,Inputs!$C$68:$AN$129,MATCH($B716,Inputs!$C$68:$AN$68,0),FALSE))","v":0},null,null,null,null,null,null,null,{"$f":"B716","v":"Lamp UNIT price Annualised Cost"},{"$f":"IF(E716=\"NA\",\"\",E716/R$2*100)","v":0},{"$f":"IF(F716=\"NA\",\"\",F716/S$2*100)","v":0},{"$f":"IF(G716=\"NA\",\"\",G716/T$2*100)","v":0},{"$f":"IF(H716=\"NA\",\"\",H716/U$2*100)","v":0},{"$f":"IF(I716=\"NA\",\"\",I716/V$2*100)","v":0}]
[null,{"$f":"Inputs!$K$68","v":"PE Cell UNIT price Annualised Cost"},{"$f":"Inputs!$I$68","v":"PE Cell Maintenance Cycle"},null,{"$f":"IF($B715=\"Blank\",0,VLOOKUP($B715,Inputs!$C$68:$AN$129,MATCH($B717,Inputs!$C$68:$AN$68,0),FALSE))","v":0.84654871962400013},{"$f":"IF($B715=\"Blank\",0,VLOOKUP($B715,Inputs!$C$68:$AN$129,MATCH($B717,Inputs!$C$68:$AN$68,0),FALSE))","v":0.84654871962400013},{"$f":"IF($B715=\"Blank\",0,VLOOKUP($B715,Inputs!$C$68:$AN$129,MATCH($B717,Inputs!$C$68:$AN$68,0),FALSE))","v":0.84654871962400013},{"$f":"IF($B715=\"Blank\",0,VLOOKUP($B715,Inputs!$C$68:$AN$129,MATCH($B717,Inputs!$C$68:$AN$68,0),FALSE))","v":0.84654871962400013},{"$f":"IF($B715=\"Blank\",0,VLOOKUP($B715,Inputs!$C$68:$AN$129,MATCH($B717,Inputs!$C$68:$AN$68,0),FALSE))","v":0.84654871962400013},null,null,null,null,null,null,null,"PE Cell UNIT price Annualised Cost",0.23129746437814211,0.23193115606136988,0.23193115606136988,0.23193115606136988,0.23129746437814211]
[null,"Corp capex annuity per light",null,null,{"$f":"IF($B715=\"Blank\",0,'Corp Capex Annuity calcs'!F$142)","v":18.582309905017571},{"$f":"IF($B715=\"Blank\",0,'Corp Capex Annuity calcs'!G$142)","v":18.552026408230436},{"$f":"IF($B715=\"Blank\",0,'Corp Capex Annuity calcs'!H$142)","v":18.401377631486287},{"$f":"IF($B715=\"Blank\",0,'Corp Capex Annuity calcs'!I$142)","v":18.205761940470655},{"$f":"IF($B715=\"Blank\",0,'Corp Capex Annuity calcs'!J$142)","v":17.995165449295623},null,null,null,null,null,null,null,"Corp capex annuity per light",5.0771338538299373,5.0827469611590237,5.0414733236948734,4.9878799836905907,4.9167118713922466]
[null,{"$f":"Inputs!$U$68","v":"Lamp Service costs Annualised"},"Labour Portion of Lamp Service costs annualised",null,{"$f":"IF($B715=\"Blank\",0,VLOOKUP($B715,Inputs!$C$68:$AN$129,MATCH($B719,Inputs!$C$68:$AN$68,0),FALSE))+IFERROR(IF($B715=\"Blank\",0,VLOOKUP($B715,Inputs!$C$68:$AN$129,MATCH($C719,Inputs!$C$68:$AN$68,0),FALSE))*('Master Data'!K$42),0)","v":0},{"$f":"IF($B715=\"Blank\",0,VLOOKUP($B715,Inputs!$C$68:$AN$129,MATCH($B719,Inputs!$C$68:$AN$68,0),FALSE))+IFERROR(IF($B715=\"Blank\",0,VLOOKUP($B715,Inputs!$C$68:$AN$129,MATCH($C719,Inputs!$C$68:$AN$68,0),FALSE))*('Master Data'!L$42),0)","v":0},{"$f":"IF($B715=\"Blank\",0,VLOOKUP($B715,Inputs!$C$68:$AN$129,MATCH($B719,Inputs!$C$68:$AN$68,0),FALSE))+IFERROR(IF($B715=\"Blank\",0,VLOOKUP($B715,Inputs!$C$68:$AN$129,MATCH($C719,Inputs!$C$68:$AN$68,0),FALSE))*('Master Data'!M$42),0)","v":0},{"$f":"IF($B715=\"Blank\",0,VLOOKUP($B715,Inputs!$C$68:$AN$129,MATCH($B719,Inputs!$C$68:$AN$68,0),FALSE))+IFERROR(IF($B715=\"Blank\",0,VLOOKUP($B715,Inputs!$C$68:$AN$129,MATCH($C719,Inputs!$C$68:$AN$68,0),FALSE))*('Master Data'!N$42),0)","v":0},{"$f":"IF($B715=\"Blank\",0,VLOOKUP($B715,Inputs!$C$68:$AN$129,MATCH($B719,Inputs!$C$68:$AN$68,0),FALSE))+IFERROR(IF($B715=\"Blank\",0,VLOOKUP($B715,Inputs!$C$68:$AN$129,MATCH($C719,Inputs!$C$68:$AN$68,0),FALSE))*('Master Data'!O$42),0)","v":0},null,null,null,null,null,null,null,"Lamp Service costs Annualised",0,0,0,0,0]
[null,{"$f":"Inputs!$M$68","v":"PE Cell Service costs Annualised"},"Labour Portion of PE Cell Service costs Annualised",null,{"$f":"IF($B715=\"Blank\",0,VLOOKUP($B715,Inputs!$C$68:$AN$129,MATCH($B720,Inputs!$C$68:$AN$68,0),FALSE))+IFERROR(IF($B715=\"Blank\",0,VLOOKUP($B715,Inputs!$C$68:$AN$129,MATCH($C720,Inputs!$C$68:$AN$68,0),FALSE))*('Master Data'!K$42),0)","v":6.0318725099601611},{"$f":"IF($B715=\"Blank\",0,VLOOKUP($B715,Inputs!$C$68:$AN$129,MATCH($B720,Inputs!$C$68:$AN$68,0),FALSE))+IFERROR(IF($B715=\"Blank\",0,VLOOKUP($B715,Inputs!$C$68:$AN$129,MATCH($C720,Inputs!$C$68:$AN$68,0),FALSE))*('Master Data'!L$42),0)","v":6.0327558565737069},{"$f":"IF($B715=\"Blank\",0,VLOOKUP($B715,Inputs!$C$68:$AN$129,MATCH($B720,Inputs!$C$68:$AN$68,0),FALSE))+IFERROR(IF($B715=\"Blank\",0,VLOOKUP($B715,Inputs!$C$68:$AN$129,MATCH($C720,Inputs!$C$68:$AN$68,0),FALSE))*('Master Data'!M$42),0)","v":6.034103171394424},{"$f":"IF($B715=\"Blank\",0,VLOOKUP($B715,Inputs!$C$68:$AN$129,MATCH($B720,Inputs!$C$68:$AN$68,0),FALSE))+IFERROR(IF($B715=\"Blank\",0,VLOOKUP($B715,Inputs!$C$68:$AN$129,MATCH($C720,Inputs!$C$68:$AN$68,0),FALSE))*('Master Data'!N$42),0)","v":6.0357642373421774},{"$f":"IF($B715=\"Blank\",0,VLOOKUP($B715,Inputs!$C$68:$AN$129,MATCH($B720,Inputs!$C$68:$AN$68,0),FALSE))+IFERROR(IF($B715=\"Blank\",0,VLOOKUP($B715,Inputs!$C$68:$AN$129,MATCH($C720,Inputs!$C$68:$AN$68,0),FALSE))*('Master Data'!O$42),0)","v":6.0377040147041869},null,null,null,null,null,null,null,"PE Cell Service costs Annualised",1.6480525983497707,1.652809823718824,1.6531789510669654,1.6536340376279939,1.6496459056568817]
[null,"Indirect Opex",null,null,{"$f":"IF($B715=\"Blank\",0,IF($B$8=\"Private Contract Lighting\",'Opex Weighting'!D$48,'Opex Weighting'!D$46))","v":12.159436933476723},{"$f":"IF($B715=\"Blank\",0,IF($B$8=\"Private Contract Lighting\",'Opex Weighting'!E$48,'Opex Weighting'!E$46))","v":12.139620760396495},{"$f":"IF($B715=\"Blank\",0,IF($B$8=\"Private Contract Lighting\",'Opex Weighting'!F$48,'Opex Weighting'!F$46))","v":12.041042902784117},{"$f":"IF($B715=\"Blank\",0,IF($B$8=\"Private Contract Lighting\",'Opex Weighting'!G$48,'Opex Weighting'!G$46))","v":11.913040696908689},{"$f":"IF($B715=\"Blank\",0,IF($B$8=\"Private Contract Lighting\",'Opex Weighting'!H$48,'Opex Weighting'!H$46))","v":11.775235721857506},null,null,null,null,null,null,null,"Indirect Opex",3.3222505282723289,3.32592349599904,3.2989158637764708,3.2638467662763535,3.2172775196331984]
[null,"Indirect Capex",null,null,{"$f":"IF($B716=\"Blank\",0,IF($B$8=\"Private Contract Lighting\",'Capex Weighting'!D$60,'Capex Weighting'!D$62))","v":0},{"$f":"IF($B716=\"Blank\",0,IF($B$8=\"Private Contract Lighting\",'Capex Weighting'!E$60,'Capex Weighting'!E$62))","v":0},{"$f":"IF($B716=\"Blank\",0,IF($B$8=\"Private Contract Lighting\",'Capex Weighting'!F$60,'Capex Weighting'!F$62))","v":0},{"$f":"IF($B716=\"Blank\",0,IF($B$8=\"Private Contract Lighting\",'Capex Weighting'!G$60,'Capex Weighting'!G$62))","v":0},{"$f":"IF($B716=\"Blank\",0,IF($B$8=\"Private Contract Lighting\",'Capex Weighting'!H$60,'Capex Weighting'!H$62))","v":0},null,null,null,null,null,null,null,"Indirect Capex",0,0,0,0,0]
[null,"Opex Overheads Costs per light",null,null,{"$f":"IF($B715=\"Blank\",0,IF($B$8=\"Private Contract Lighting\",'Building Block'!C$40,'Building Block'!C$39))","v":10.567257211169151},{"$f":"IF($B715=\"Blank\",0,IF($B$8=\"Private Contract Lighting\",'Building Block'!D$40,'Building Block'!D$39))","v":10.638037296614067},{"$f":"IF($B715=\"Blank\",0,IF($B$8=\"Private Contract Lighting\",'Building Block'!E$40,'Building Block'!E$39))","v":9.8094883699069495},{"$f":"IF($B715=\"Blank\",0,IF($B$8=\"Private Contract Lighting\",'Building Block'!F$40,'Building Block'!F$39))","v":9.7894714768092079},{"$f":"IF($B715=\"Blank\",0,IF($B$8=\"Private Contract Lighting\",'Building Block'!G$40,'Building Block'!G$39))","v":9.7584857493224391},null,null,null,null,null,null,null,"Opex Overheads Costs per light",2.8872287462210795,2.914530766195635,2.6875310602484794,2.6820469799477284,2.6662529369733439]
[null,{"$f":"Inputs!$AK$68","v":"Bracket UNIT price"},0,null,"NA","NA","NA","NA","NA",null,null,null,null,null,null,null,"Bracket UNIT price","","","","",""]
[null,{"$f":"Inputs!$AA$68","v":"CAPEX Instalation costs"},{"$f":"C724+1","v":1},null,"NA","NA","NA","NA","NA",null,null,null,null,null,null,null,"CAPEX Instalation costs","","","","",""]
[null,{"$f":"Inputs!$Z$68","v":"Luminaire UNIT price"},{"$f":"C725+1","v":2},null,"NA","NA","NA","NA","NA",null,null,null,null,null,null,null,"Luminaire UNIT price","","","","",""]
[null,{"$f":"Inputs!$AA$68","v":"CAPEX Instalation costs"},3,null,"NA","NA","NA","NA","NA",null,null,null,null,null,null,null,"CAPEX Instalation costs","","","","",""]
[null,null,null,null,{"$f":"SUM(E716:E727)","v":48.187425279247606},{"$f":"SUM(F716:F727)","v":48.208989041438706},47.132560795195779,46.790587071154732,46.41313965480375,null,null,null,null,null,null,null,null,{"$f":"ROUND(E728/R$2*100,3)","v":13.166},{"$f":"ROUND(F728/S$2*100,3)","v":13.208},{"$f":"ROUND(G728/T$2*100,3)","v":12.913},{"$f":"ROUND(H728/U$2*100,3)","v":12.819000000000001},{"$f":"ROUND(I728/V$2*100,3)","v":12.680999999999999}]
[]
[{"$f":"A715+1","v":49},{"$f":"IFERROR(VLOOKUP($A730,Inputs!$B$68:$AN$129,MATCH($B$7,Inputs!$B$68:$AN$68,0),FALSE),\"Blank\")","v":"New technology - Major"},null,null,null,null,null,null,null,null,null,null,null,null,null,null,{"$f":"IFERROR(VLOOKUP($A730,Inputs!$B$68:$AN$129,MATCH($B$7,Inputs!$B$68:$AN$68,0),FALSE),\"Blank\")","v":"New technology - Major"}]
[null,{"$f":"Inputs!$S$68","v":"Lamp UNIT price Annualised Cost"},{"$f":"Inputs!$Q$68","v":"Lamp Maintenance cycle"},null,{"$f":"IF($B730=\"Blank\",0,VLOOKUP($B730,Inputs!$C$68:$AN$129,MATCH($B731,Inputs!$C$68:$AN$68,0),FALSE))","v":0},{"$f":"IF($B730=\"Blank\",0,VLOOKUP($B730,Inputs!$C$68:$AN$129,MATCH($B731,Inputs!$C$68:$AN$68,0),FALSE))","v":0},{"$f":"IF($B730=\"Blank\",0,VLOOKUP($B730,Inputs!$C$68:$AN$129,MATCH($B731,Inputs!$C$68:$AN$68,0),FALSE))","v":0},{"$f":"IF($B730=\"Blank\",0,VLOOKUP($B730,Inputs!$C$68:$AN$129,MATCH($B731,Inputs!$C$68:$AN$68,0),FALSE))","v":0},{"$f":"IF($B730=\"Blank\",0,VLOOKUP($B730,Inputs!$C$68:$AN$129,MATCH($B731,Inputs!$C$68:$AN$68,0),FALSE))","v":0},null,null,null,null,null,null,null,{"$f":"B731","v":"Lamp UNIT price Annualised Cost"},{"$f":"IF(E731=\"NA\",\"\",E731/R$2*100)","v":0},{"$f":"IF(F731=\"NA\",\"\",F731/S$2*100)","v":0},{"$f":"IF(G731=\"NA\",\"\",G731/T$2*100)","v":0},{"$f":"IF(H731=\"NA\",\"\",H731/U$2*100)","v":0},{"$f":"IF(I731=\"NA\",\"\",I731/V$2*100)","v":0}]
[null,{"$f":"Inputs!$K$68","v":"PE Cell UNIT price Annualised Cost"},{"$f":"Inputs!$I$68","v":"PE Cell Maintenance Cycle"},null,{"$f":"IF($B730=\"Blank\",0,VLOOKUP($B730,Inputs!$C$68:$AN$129,MATCH($B732,Inputs!$C$68:$AN$68,0),FALSE))","v":0.84654871962400013},{"$f":"IF($B730=\"Blank\",0,VLOOKUP($B730,Inputs!$C$68:$AN$129,MATCH($B732,Inputs!$C$68:$AN$68,0),FALSE))","v":0.84654871962400013},{"$f":"IF($B730=\"Blank\",0,VLOOKUP($B730,Inputs!$C$68:$AN$129,MATCH($B732,Inputs!$C$68:$AN$68,0),FALSE))","v":0.84654871962400013},{"$f":"IF($B730=\"Blank\",0,VLOOKUP($B730,Inputs!$C$68:$AN$129,MATCH($B732,Inputs!$C$68:$AN$68,0),FALSE))","v":0.84654871962400013},{"$f":"IF($B730=\"Blank\",0,VLOOKUP($B730,Inputs!$C$68:$AN$129,MATCH($B732,Inputs!$C$68:$AN$68,0),FALSE))","v":0.84654871962400013},null,null,null,null,null,null,null,"PE Cell UNIT price Annualised Cost",0.23129746437814211,0.23193115606136988,0.23193115606136988,0.23193115606136988,0.23129746437814211]
[null,"Corp capex annuity per light",null,null,{"$f":"IF($B730=\"Blank\",0,'Corp Capex Annuity calcs'!F$142)","v":18.582309905017571},{"$f":"IF($B730=\"Blank\",0,'Corp Capex Annuity calcs'!G$142)","v":18.552026408230436},{"$f":"IF($B730=\"Blank\",0,'Corp Capex Annuity calcs'!H$142)","v":18.401377631486287},{"$f":"IF($B730=\"Blank\",0,'Corp Capex Annuity calcs'!I$142)","v":18.205761940470655},{"$f":"IF($B730=\"Blank\",0,'Corp Capex Annuity calcs'!J$142)","v":17.995165449295623},null,null,null,null,null,null,null,"Corp capex annuity per light",5.0771338538299373,5.0827469611590237,5.0414733236948734,4.9878799836905907,4.9167118713922466]
[null,{"$f":"Inputs!$U$68","v":"Lamp Service costs Annualised"},"Labour Portion of Lamp Service costs annualised",null,{"$f":"IF($B730=\"Blank\",0,VLOOKUP($B730,Inputs!$C$68:$AN$129,MATCH($B734,Inputs!$C$68:$AN$68,0),FALSE))+IFERROR(IF($B730=\"Blank\",0,VLOOKUP($B730,Inputs!$C$68:$AN$129,MATCH($C734,Inputs!$C$68:$AN$68,0),FALSE))*('Master Data'!K$42),0)","v":0},{"$f":"IF($B730=\"Blank\",0,VLOOKUP($B730,Inputs!$C$68:$AN$129,MATCH($B734,Inputs!$C$68:$AN$68,0),FALSE))+IFERROR(IF($B730=\"Blank\",0,VLOOKUP($B730,Inputs!$C$68:$AN$129,MATCH($C734,Inputs!$C$68:$AN$68,0),FALSE))*('Master Data'!L$42),0)","v":0},{"$f":"IF($B730=\"Blank\",0,VLOOKUP($B730,Inputs!$C$68:$AN$129,MATCH($B734,Inputs!$C$68:$AN$68,0),FALSE))+IFERROR(IF($B730=\"Blank\",0,VLOOKUP($B730,Inputs!$C$68:$AN$129,MATCH($C734,Inputs!$C$68:$AN$68,0),FALSE))*('Master Data'!M$42),0)","v":0},{"$f":"IF($B730=\"Blank\",0,VLOOKUP($B730,Inputs!$C$68:$AN$129,MATCH($B734,Inputs!$C$68:$AN$68,0),FALSE))+IFERROR(IF($B730=\"Blank\",0,VLOOKUP($B730,Inputs!$C$68:$AN$129,MATCH($C734,Inputs!$C$68:$AN$68,0),FALSE))*('Master Data'!N$42),0)","v":0},{"$f":"IF($B730=\"Blank\",0,VLOOKUP($B730,Inputs!$C$68:$AN$129,MATCH($B734,Inputs!$C$68:$AN$68,0),FALSE))+IFERROR(IF($B730=\"Blank\",0,VLOOKUP($B730,Inputs!$C$68:$AN$129,MATCH($C734,Inputs!$C$68:$AN$68,0),FALSE))*('Master Data'!O$42),0)","v":0},null,null,null,null,null,null,null,"Lamp Service costs Annualised",0,0,0,0,0]
[null,{"$f":"Inputs!$M$68","v":"PE Cell Service costs Annualised"},"Labour Portion of PE Cell Service costs Annualised",null,{"$f":"IF($B730=\"Blank\",0,VLOOKUP($B730,Inputs!$C$68:$AN$129,MATCH($B735,Inputs!$C$68:$AN$68,0),FALSE))+IFERROR(IF($B730=\"Blank\",0,VLOOKUP($B730,Inputs!$C$68:$AN$129,MATCH($C735,Inputs!$C$68:$AN$68,0),FALSE))*('Master Data'!K$42),0)","v":8.7303417907318117},{"$f":"IF($B730=\"Blank\",0,VLOOKUP($B730,Inputs!$C$68:$AN$129,MATCH($B735,Inputs!$C$68:$AN$68,0),FALSE))+IFERROR(IF($B730=\"Blank\",0,VLOOKUP($B730,Inputs!$C$68:$AN$129,MATCH($C735,Inputs!$C$68:$AN$68,0),FALSE))*('Master Data'!L$42),0)","v":8.7316203187251009},{"$f":"IF($B730=\"Blank\",0,VLOOKUP($B730,Inputs!$C$68:$AN$129,MATCH($B735,Inputs!$C$68:$AN$68,0),FALSE))+IFERROR(IF($B730=\"Blank\",0,VLOOKUP($B730,Inputs!$C$68:$AN$129,MATCH($C735,Inputs!$C$68:$AN$68,0),FALSE))*('Master Data'!M$42),0)","v":8.733570379649823},{"$f":"IF($B730=\"Blank\",0,VLOOKUP($B730,Inputs!$C$68:$AN$129,MATCH($B735,Inputs!$C$68:$AN$68,0),FALSE))+IFERROR(IF($B730=\"Blank\",0,VLOOKUP($B730,Inputs!$C$68:$AN$129,MATCH($C735,Inputs!$C$68:$AN$68,0),FALSE))*('Master Data'!N$42),0)","v":8.7359745540478873},{"$f":"IF($B730=\"Blank\",0,VLOOKUP($B730,Inputs!$C$68:$AN$129,MATCH($B735,Inputs!$C$68:$AN$68,0),FALSE))+IFERROR(IF($B730=\"Blank\",0,VLOOKUP($B730,Inputs!$C$68:$AN$129,MATCH($C735,Inputs!$C$68:$AN$68,0),FALSE))*('Master Data'!O$42),0)","v":8.7387821265455337},null,null,null,null,null,null,null,"PE Cell Service costs Annualised",2.3853392870851944,2.392224744856192,2.3927590081232393,2.3934176860405172,2.3876453897665391]
[null,"Indirect Opex",null,null,{"$f":"IF($B730=\"Blank\",0,IF($B$8=\"Private Contract Lighting\",'Opex Weighting'!D$48,'Opex Weighting'!D$46))","v":12.159436933476723},{"$f":"IF($B730=\"Blank\",0,IF($B$8=\"Private Contract Lighting\",'Opex Weighting'!E$48,'Opex Weighting'!E$46))","v":12.139620760396495},{"$f":"IF($B730=\"Blank\",0,IF($B$8=\"Private Contract Lighting\",'Opex Weighting'!F$48,'Opex Weighting'!F$46))","v":12.041042902784117},{"$f":"IF($B730=\"Blank\",0,IF($B$8=\"Private Contract Lighting\",'Opex Weighting'!G$48,'Opex Weighting'!G$46))","v":11.913040696908689},{"$f":"IF($B730=\"Blank\",0,IF($B$8=\"Private Contract Lighting\",'Opex Weighting'!H$48,'Opex Weighting'!H$46))","v":11.775235721857506},null,null,null,null,null,null,null,"Indirect Opex",3.3222505282723289,3.32592349599904,3.2989158637764708,3.2638467662763535,3.2172775196331984]
[null,"Indirect Capex",null,null,{"$f":"IF($B731=\"Blank\",0,IF($B$8=\"Private Contract Lighting\",'Capex Weighting'!D$60,'Capex Weighting'!D$62))","v":0},{"$f":"IF($B731=\"Blank\",0,IF($B$8=\"Private Contract Lighting\",'Capex Weighting'!E$60,'Capex Weighting'!E$62))","v":0},{"$f":"IF($B731=\"Blank\",0,IF($B$8=\"Private Contract Lighting\",'Capex Weighting'!F$60,'Capex Weighting'!F$62))","v":0},{"$f":"IF($B731=\"Blank\",0,IF($B$8=\"Private Contract Lighting\",'Capex Weighting'!G$60,'Capex Weighting'!G$62))","v":0},{"$f":"IF($B731=\"Blank\",0,IF($B$8=\"Private Contract Lighting\",'Capex Weighting'!H$60,'Capex Weighting'!H$62))","v":0},null,null,null,null,null,null,null,"Indirect Capex",0,0,0,0,0]
[null,"Opex Overheads Costs per light",null,null,{"$f":"IF($B730=\"Blank\",0,IF($B$8=\"Private Contract Lighting\",'Building Block'!C$40,'Building Block'!C$39))","v":10.567257211169151},{"$f":"IF($B730=\"Blank\",0,IF($B$8=\"Private Contract Lighting\",'Building Block'!D$40,'Building Block'!D$39))","v":10.638037296614067},{"$f":"IF($B730=\"Blank\",0,IF($B$8=\"Private Contract Lighting\",'Building Block'!E$40,'Building Block'!E$39))","v":9.8094883699069495},{"$f":"IF($B730=\"Blank\",0,IF($B$8=\"Private Contract Lighting\",'Building Block'!F$40,'Building Block'!F$39))","v":9.7894714768092079},{"$f":"IF($B730=\"Blank\",0,IF($B$8=\"Private Contract Lighting\",'Building Block'!G$40,'Building Block'!G$39))","v":9.7584857493224391},null,null,null,null,null,null,null,"Opex Overheads Costs per light",2.8872287462210795,2.914530766195635,2.6875310602484794,2.6820469799477284,2.6662529369733439]
[null,{"$f":"Inputs!$AK$68","v":"Bracket UNIT price"},0,null,"NA","NA","NA","NA","NA",null,null,null,null,null,null,null,"Bracket UNIT price","","","","",""]
[null,{"$f":"Inputs!$AA$68","v":"CAPEX Instalation costs"},{"$f":"C739+1","v":1},null,"NA","NA","NA","NA","NA",null,null,null,null,null,null,null,"CAPEX Instalation costs","","","","",""]
[null,{"$f":"Inputs!$Z$68","v":"Luminaire UNIT price"},{"$f":"C740+1","v":2},null,"NA","NA","NA","NA","NA",null,null,null,null,null,null,null,"Luminaire UNIT price","","","","",""]
[null,{"$f":"Inputs!$AA$68","v":"CAPEX Instalation costs"},3,null,"NA","NA","NA","NA","NA",null,null,null,null,null,null,null,"CAPEX Instalation costs","","","","",""]
[null,null,null,null,{"$f":"SUM(E731:E742)","v":50.885894560019253},{"$f":"SUM(F731:F742)","v":50.907853503590097},49.832028003451178,49.490797387860439,49.114217766645105,null,null,null,null,null,null,null,null,{"$f":"ROUND(E743/R$2*100,3)","v":13.903},{"$f":"ROUND(F743/S$2*100,3)","v":13.946999999999999},{"$f":"ROUND(G743/T$2*100,3)","v":13.653},{"$f":"ROUND(H743/U$2*100,3)","v":13.558999999999999},{"$f":"ROUND(I743/V$2*100,3)","v":13.419}]
[]
[{"$f":"A730+1","v":50},{"$f":"IFERROR(VLOOKUP($A745,Inputs!$B$68:$AN$129,MATCH($B$7,Inputs!$B$68:$AN$68,0),FALSE),\"Blank\")","v":"Blank"},null,null,null,null,null,null,null,null,null,null,null,null,null,null,{"$f":"IFERROR(VLOOKUP($A745,Inputs!$B$68:$AN$129,MATCH($B$7,Inputs!$B$68:$AN$68,0),FALSE),\"Blank\")","v":"Blank"}]
[null,{"$f":"Inputs!$S$68","v":"Lamp UNIT price Annualised Cost"},{"$f":"Inputs!$Q$68","v":"Lamp Maintenance cycle"},null,{"$f":"IF($B745=\"Blank\",0,VLOOKUP($B745,Inputs!$C$68:$AN$129,MATCH($B746,Inputs!$C$68:$AN$68,0),FALSE))","v":0},{"$f":"IF($B745=\"Blank\",0,VLOOKUP($B745,Inputs!$C$68:$AN$129,MATCH($B746,Inputs!$C$68:$AN$68,0),FALSE))","v":0},{"$f":"IF($B745=\"Blank\",0,VLOOKUP($B745,Inputs!$C$68:$AN$129,MATCH($B746,Inputs!$C$68:$AN$68,0),FALSE))","v":0},{"$f":"IF($B745=\"Blank\",0,VLOOKUP($B745,Inputs!$C$68:$AN$129,MATCH($B746,Inputs!$C$68:$AN$68,0),FALSE))","v":0},{"$f":"IF($B745=\"Blank\",0,VLOOKUP($B745,Inputs!$C$68:$AN$129,MATCH($B746,Inputs!$C$68:$AN$68,0),FALSE))","v":0},null,null,null,null,null,null,null,{"$f":"B746","v":"Lamp UNIT price Annualised Cost"},{"$f":"IF(E746=\"NA\",\"\",E746/R$2*100)","v":0},{"$f":"IF(F746=\"NA\",\"\",F746/S$2*100)","v":0},{"$f":"IF(G746=\"NA\",\"\",G746/T$2*100)","v":0},{"$f":"IF(H746=\"NA\",\"\",H746/U$2*100)","v":0},{"$f":"IF(I746=\"NA\",\"\",I746/V$2*100)","v":0}]
[null,{"$f":"Inputs!$K$68","v":"PE Cell UNIT price Annualised Cost"},{"$f":"Inputs!$I$68","v":"PE Cell Maintenance Cycle"},null,{"$f":"IF($B745=\"Blank\",0,VLOOKUP($B745,Inputs!$C$68:$AN$129,MATCH($B747,Inputs!$C$68:$AN$68,0),FALSE))","v":0},{"$f":"IF($B745=\"Blank\",0,VLOOKUP($B745,Inputs!$C$68:$AN$129,MATCH($B747,Inputs!$C$68:$AN$68,0),FALSE))","v":0},{"$f":"IF($B745=\"Blank\",0,VLOOKUP($B745,Inputs!$C$68:$AN$129,MATCH($B747,Inputs!$C$68:$AN$68,0),FALSE))","v":0},{"$f":"IF($B745=\"Blank\",0,VLOOKUP($B745,Inputs!$C$68:$AN$129,MATCH($B747,Inputs!$C$68:$AN$68,0),FALSE))","v":0},{"$f":"IF($B745=\"Blank\",0,VLOOKUP($B745,Inputs!$C$68:$AN$129,MATCH($B747,Inputs!$C$68:$AN$68,0),FALSE))","v":0},null,null,null,null,null,null,null,"PE Cell UNIT price Annualised Cost",0,0,0,0,0]
[null,"Corp capex annuity per light",null,null,{"$f":"IF($B745=\"Blank\",0,'Corp Capex Annuity calcs'!F$142)","v":0},{"$f":"IF($B745=\"Blank\",0,'Corp Capex Annuity calcs'!G$142)","v":0},{"$f":"IF($B745=\"Blank\",0,'Corp Capex Annuity calcs'!H$142)","v":0},{"$f":"IF($B745=\"Blank\",0,'Corp Capex Annuity calcs'!I$142)","v":0},{"$f":"IF($B745=\"Blank\",0,'Corp Capex Annuity calcs'!J$142)","v":0},null,null,null,null,null,null,null,"Corp capex annuity per light",0,0,0,0,0]
[null,{"$f":"Inputs!$U$68","v":"Lamp Service costs Annualised"},"Labour Portion of Lamp Service costs annualised",null,{"$f":"IF($B745=\"Blank\",0,VLOOKUP($B745,Inputs!$C$68:$AN$129,MATCH($B749,Inputs!$C$68:$AN$68,0),FALSE))+IFERROR(IF($B745=\"Blank\",0,VLOOKUP($B745,Inputs!$C$68:$AN$129,MATCH($C749,Inputs!$C$68:$AN$68,0),FALSE))*('Master Data'!K$42),0)","v":0},{"$f":"IF($B745=\"Blank\",0,VLOOKUP($B745,Inputs!$C$68:$AN$129,MATCH($B749,Inputs!$C$68:$AN$68,0),FALSE))+IFERROR(IF($B745=\"Blank\",0,VLOOKUP($B745,Inputs!$C$68:$AN$129,MATCH($C749,Inputs!$C$68:$AN$68,0),FALSE))*('Master Data'!L$42),0)","v":0},{"$f":"IF($B745=\"Blank\",0,VLOOKUP($B745,Inputs!$C$68:$AN$129,MATCH($B749,Inputs!$C$68:$AN$68,0),FALSE))+IFERROR(IF($B745=\"Blank\",0,VLOOKUP($B745,Inputs!$C$68:$AN$129,MATCH($C749,Inputs!$C$68:$AN$68,0),FALSE))*('Master Data'!M$42),0)","v":0},{"$f":"IF($B745=\"Blank\",0,VLOOKUP($B745,Inputs!$C$68:$AN$129,MATCH($B749,Inputs!$C$68:$AN$68,0),FALSE))+IFERROR(IF($B745=\"Blank\",0,VLOOKUP($B745,Inputs!$C$68:$AN$129,MATCH($C749,Inputs!$C$68:$AN$68,0),FALSE))*('Master Data'!N$42),0)","v":0},{"$f":"IF($B745=\"Blank\",0,VLOOKUP($B745,Inputs!$C$68:$AN$129,MATCH($B749,Inputs!$C$68:$AN$68,0),FALSE))+IFERROR(IF($B745=\"Blank\",0,VLOOKUP($B745,Inputs!$C$68:$AN$129,MATCH($C749,Inputs!$C$68:$AN$68,0),FALSE))*('Master Data'!O$42),0)","v":0},null,null,null,null,null,null,null,"Lamp Service costs Annualised",0,0,0,0,0]
[null,{"$f":"Inputs!$M$68","v":"PE Cell Service costs Annualised"},"Labour Portion of PE Cell Service costs Annualised",null,{"$f":"IF($B745=\"Blank\",0,VLOOKUP($B745,Inputs!$C$68:$AN$129,MATCH($B750,Inputs!$C$68:$AN$68,0),FALSE))+IFERROR(IF($B745=\"Blank\",0,VLOOKUP($B745,Inputs!$C$68:$AN$129,MATCH($C750,Inputs!$C$68:$AN$68,0),FALSE))*('Master Data'!K$42),0)","v":0},{"$f":"IF($B745=\"Blank\",0,VLOOKUP($B745,Inputs!$C$68:$AN$129,MATCH($B750,Inputs!$C$68:$AN$68,0),FALSE))+IFERROR(IF($B745=\"Blank\",0,VLOOKUP($B745,Inputs!$C$68:$AN$129,MATCH($C750,Inputs!$C$68:$AN$68,0),FALSE))*('Master Data'!L$42),0)","v":0},{"$f":"IF($B745=\"Blank\",0,VLOOKUP($B745,Inputs!$C$68:$AN$129,MATCH($B750,Inputs!$C$68:$AN$68,0),FALSE))+IFERROR(IF($B745=\"Blank\",0,VLOOKUP($B745,Inputs!$C$68:$AN$129,MATCH($C750,Inputs!$C$68:$AN$68,0),FALSE))*('Master Data'!M$42),0)","v":0},{"$f":"IF($B745=\"Blank\",0,VLOOKUP($B745,Inputs!$C$68:$AN$129,MATCH($B750,Inputs!$C$68:$AN$68,0),FALSE))+IFERROR(IF($B745=\"Blank\",0,VLOOKUP($B745,Inputs!$C$68:$AN$129,MATCH($C750,Inputs!$C$68:$AN$68,0),FALSE))*('Master Data'!N$42),0)","v":0},{"$f":"IF($B745=\"Blank\",0,VLOOKUP($B745,Inputs!$C$68:$AN$129,MATCH($B750,Inputs!$C$68:$AN$68,0),FALSE))+IFERROR(IF($B745=\"Blank\",0,VLOOKUP($B745,Inputs!$C$68:$AN$129,MATCH($C750,Inputs!$C$68:$AN$68,0),FALSE))*('Master Data'!O$42),0)","v":0},null,null,null,null,null,null,null,"PE Cell Service costs Annualised",0,0,0,0,0]
[null,"Indirect Opex",null,null,{"$f":"IF($B745=\"Blank\",0,IF($B$8=\"Private Contract Lighting\",'Opex Weighting'!D$48,'Opex Weighting'!D$46))","v":0},{"$f":"IF($B745=\"Blank\",0,IF($B$8=\"Private Contract Lighting\",'Opex Weighting'!E$48,'Opex Weighting'!E$46))","v":0},{"$f":"IF($B745=\"Blank\",0,IF($B$8=\"Private Contract Lighting\",'Opex Weighting'!F$48,'Opex Weighting'!F$46))","v":0},{"$f":"IF($B745=\"Blank\",0,IF($B$8=\"Private Contract Lighting\",'Opex Weighting'!G$48,'Opex Weighting'!G$46))","v":0},{"$f":"IF($B745=\"Blank\",0,IF($B$8=\"Private Contract Lighting\",'Opex Weighting'!H$48,'Opex Weighting'!H$46))","v":0},null,null,null,null,null,null,null,"Indirect Opex",0,0,0,0,0]
[null,"Indirect Capex",null,null,{"$f":"IF($B746=\"Blank\",0,IF($B$8=\"Private Contract Lighting\",'Capex Weighting'!D$60,'Capex Weighting'!D$62))","v":0},{"$f":"IF($B746=\"Blank\",0,IF($B$8=\"Private Contract Lighting\",'Capex Weighting'!E$60,'Capex Weighting'!E$62))","v":0},{"$f":"IF($B746=\"Blank\",0,IF($B$8=\"Private Contract Lighting\",'Capex Weighting'!F$60,'Capex Weighting'!F$62))","v":0},{"$f":"IF($B746=\"Blank\",0,IF($B$8=\"Private Contract Lighting\",'Capex Weighting'!G$60,'Capex Weighting'!G$62))","v":0},{"$f":"IF($B746=\"Blank\",0,IF($B$8=\"Private Contract Lighting\",'Capex Weighting'!H$60,'Capex Weighting'!H$62))","v":0},null,null,null,null,null,null,null,"Indirect Capex",0,0,0,0,0]
[null,"Opex Overheads Costs per light",null,null,{"$f":"IF($B745=\"Blank\",0,IF($B$8=\"Private Contract Lighting\",'Building Block'!C$40,'Building Block'!C$39))","v":0},{"$f":"IF($B745=\"Blank\",0,IF($B$8=\"Private Contract Lighting\",'Building Block'!D$40,'Building Block'!D$39))","v":0},{"$f":"IF($B745=\"Blank\",0,IF($B$8=\"Private Contract Lighting\",'Building Block'!E$40,'Building Block'!E$39))","v":0},{"$f":"IF($B745=\"Blank\",0,IF($B$8=\"Private Contract Lighting\",'Building Block'!F$40,'Building Block'!F$39))","v":0},{"$f":"IF($B745=\"Blank\",0,IF($B$8=\"Private Contract Lighting\",'Building Block'!G$40,'Building Block'!G$39))","v":0},null,null,null,null,null,null,null,"Opex Overheads Costs per light",0,0,0,0,0]
[null,{"$f":"Inputs!$AK$68","v":"Bracket UNIT price"},0,null,"NA","NA","NA","NA","NA",null,null,null,null,null,null,null,"Bracket UNIT price","","","","",""]
[null,{"$f":"Inputs!$AA$68","v":"CAPEX Instalation costs"},{"$f":"C754+1","v":1},null,"NA","NA","NA","NA","NA",null,null,null,null,null,null,null,"CAPEX Instalation costs","","","","",""]
[null,{"$f":"Inputs!$Z$68","v":"Luminaire UNIT price"},{"$f":"C755+1","v":2},null,"NA","NA","NA","NA","NA",null,null,null,null,null,null,null,"Luminaire UNIT price","","","","",""]
[null,{"$f":"Inputs!$AA$68","v":"CAPEX Instalation costs"},3,null,"NA","NA","NA","NA","NA",null,null,null,null,null,null,null,"CAPEX Instalation costs","","","","",""]
[null,null,null,null,{"$f":"SUM(E746:E757)","v":0},{"$f":"SUM(F746:F757)","v":0},0,0,0]

{"sheet":"Combined Annuity Prices PL","index":8,"n_rows":758,"n_cols":27,"rows_kept":758,"cut":false,"hidden":false,"merged":[[3,4,3,8],[3,17,3,21]]}
[null,"$2016-17 base data",null,null,null,null,null,null,null,null,null,null,null,null,null,null,"2019-06-30",{"$f":"EOMONTH(Q1,12)","v":"2020-06-30"},{"$f":"EOMONTH(R1,12)","v":"2021-06-30"},"2022-06-30","2023-06-30","2024-06-30",{"$f":"EOMONTH(V1,12)","v":"2025-06-30"},{"$f":"EOMONTH(W1,12)","v":"2026-06-30"},{"$f":"EOMONTH(X1,12)","v":"2027-06-30"},{"$f":"EOMONTH(Y1,12)","v":"2028-06-30"},{"$f":"EOMONTH(Z1,12)","v":"2029-06-30"}]
[null,null,null,null,null,null,null,null,null,null,null,null,null,null,null,null,null,{"$f":"R1-Q1","v":366},{"$f":"S1-R1","v":365},365,365,366,{"$f":"W1-V1","v":365},{"$f":"X1-W1","v":365},{"$f":"Y1-X1","v":365},{"$f":"Z1-Y1","v":366},{"$f":"AA1-Z1","v":365}]
[null,null,null,null,{"$f":"'Master Data'!K34","v":"2019-20"},{"$f":"'Master Data'!L34","v":"2020-21"},{"$f":"'Master Data'!M34","v":"2021-22"},{"$f":"'Master Data'!N34","v":"2022-23"},{"$f":"'Master Data'!O34","v":"2023-24"},{"$f":"'Master Data'!P34","v":"2024-25"},{"$f":"'Master Data'!Q34","v":"2025-26"},{"$f":"'Master Data'!R34","v":"2026-27"},{"$f":"'Master Data'!S34","v":"2027-28"},{"$f":"'Master Data'!T34","v":"2028-29"},null,null,null,{"$f":"'Master Data'!K34","v":"2019-20"},{"$f":"'Master Data'!L34","v":"2020-21"},{"$f":"'Master Data'!M34","v":"2021-22"},{"$f":"'Master Data'!N34","v":"2022-23"},{"$f":"'Master Data'!O34","v":"2023-24"},{"$f":"'Master Data'!P34","v":"2024-25"},{"$f":"'Master Data'!Q34","v":"2025-26"},{"$f":"'Master Data'!R34","v":"2026-27"},{"$f":"'Master Data'!S34","v":"2027-28"},{"$f":"'Master Data'!T34","v":"2028-29"}]
[null,null,null,null,"Cost $ Per year",null,null,null,null,null,null,null,null,null,null,null,null,"Cost Cents per Day"]
[]
[null,"Lookup/Offset",1,null,16,{"$f":"E6+1","v":17},{"$f":"F6+1","v":18},19,20,null,null,null,null,null,null,null,"Lookup/Offset Value",1,{"$f":"R6+1","v":2},3,4,5]
[null,{"$f":"Inputs!$C$68","v":"Light Description"},null,"Useful Life"]
[null,"Public Lighting",null,null,null,null,null,null,null,null,null,null,null,null,null,null,"Public Lighting"]
[]
[1,{"$f":"IFERROR(VLOOKUP($A10,Inputs!$B$68:$AN$129,MATCH($B$7,Inputs!$B$68:$AN$68,0),FALSE),\"Blank\")","v":"32W Compact Fluorescent"},null,null,null,null,null,null,null,null,null,null,null,null,null,null,{"$f":"IFERROR(VLOOKUP($A10,Inputs!$B$68:$AN$129,MATCH($B$7,Inputs!$B$68:$AN$68,0),FALSE),\"Blank\")","v":"32W Compact Fluorescent"}]
[null,{"$f":"Inputs!$S$68","v":"Lamp UNIT price Annualised Cost"},{"$f":"Inputs!$Q$68","v":"Lamp Maintenance cycle"},null,{"$f":"IF($B10=\"Blank\",0,VLOOKUP($B10,Inputs!$C$68:$AN$129,MATCH($B11,Inputs!$C$68:$AN$68,0),FALSE))","v":1.0984639624469332},{"$f":"IF($B10=\"Blank\",0,VLOOKUP($B10,Inputs!$C$68:$AN$129,MATCH($B11,Inputs!$C$68:$AN$68,0),FALSE))","v":1.0984639624469332},{"$f":"IF($B10=\"Blank\",0,VLOOKUP($B10,Inputs!$C$68:$AN$129,MATCH($B11,Inputs!$C$68:$AN$68,0),FALSE))","v":1.0984639624469332},{"$f":"IF($B10=\"Blank\",0,VLOOKUP($B10,Inputs!$C$68:$AN$129,MATCH($B11,Inputs!$C$68:$AN$68,0),FALSE))","v":1.0984639624469332},{"$f":"IF($B10=\"Blank\",0,VLOOKUP($B10,Inputs!$C$68:$AN$129,MATCH($B11,Inputs!$C$68:$AN$68,0),FALSE))","v":1.0984639624469332},null,null,null,null,null,null,null,{"$f":"B11","v":"Lamp UNIT price Annualised Cost"},{"$f":"IF(E11=\"NA\",\"\",E11/R$2*100)","v":0.30012676569588337},{"$f":"IF(F11=\"NA\",\"\",F11/S$2*100)","v":0.30094903080737895},{"$f":"IF(G11=\"NA\",\"\",G11/T$2*100)","v":0.30094903080737895},{"$f":"IF(H11=\"NA\",\"\",H11/U$2*100)","v":0.30094903080737895},{"$f":"IF(I11=\"NA\",\"\",I11/V$2*100)","v":0.30012676569588337}]
[null,{"$f":"Inputs!$K$68","v":"PE Cell UNIT price Annualised Cost"},{"$f":"Inputs!$I$68","v":"PE Cell Maintenance Cycle"},null,{"$f":"IF($B10=\"Blank\",0,VLOOKUP($B10,Inputs!$C$68:$AN$129,MATCH($B12,Inputs!$C$68:$AN$68,0),FALSE))","v":0.58131255188333353},{"$f":"IF($B10=\"Blank\",0,VLOOKUP($B10,Inputs!$C$68:$AN$129,MATCH($B12,Inputs!$C$68:$AN$68,0),FALSE))","v":0.58131255188333353},{"$f":"IF($B10=\"Blank\",0,VLOOKUP($B10,Inputs!$C$68:$AN$129,MATCH($B12,Inputs!$C$68:$AN$68,0),FALSE))","v":0.58131255188333353},{"$f":"IF($B10=\"Blank\",0,VLOOKUP($B10,Inputs!$C$68:$AN$129,MATCH($B12,Inputs!$C$68:$AN$68,0),FALSE))","v":0.58131255188333353},{"$f":"IF($B10=\"Blank\",0,VLOOKUP($B10,Inputs!$C$68:$AN$129,MATCH($B12,Inputs!$C$68:$AN$68,0),FALSE))","v":0.58131255188333353},null,null,null,null,null,null,null,"PE Cell UNIT price Annualised Cost",0.15882856608834248,0.15926371284474891,0.15926371284474891,0.15926371284474891,0.15882856608834248]
[null,"Corp capex annuity per light",null,null,{"$f":"IF($B10=\"Blank\",0,'Corp Capex Annuity calcs'!F$142)","v":18.582309905017571},{"$f":"IF($B10=\"Blank\",0,'Corp Capex Annuity calcs'!G$142)","v":18.552026408230436},{"$f":"IF($B10=\"Blank\",0,'Corp Capex Annuity calcs'!H$142)","v":18.401377631486287},{"$f":"IF($B10=\"Blank\",0,'Corp Capex Annuity calcs'!I$142)","v":18.205761940470655},{"$f":"IF($B10=\"Blank\",0,'Corp Capex Annuity calcs'!J$142)","v":17.995165449295623},null,null,null,null,null,null,null,"Corp capex annuity per light",5.0771338538299373,5.0827469611590237,5.0414733236948734,4.9878799836905907,4.9167118713922466]
[null,{"$f":"Inputs!$U$68","v":"Lamp Service costs Annualised"},"Labour Portion of Lamp Service costs annualised",null,{"$f":"IF($B10=\"Blank\",0,VLOOKUP($B10,Inputs!$C$68:$AN$129,MATCH($B14,Inputs!$C$68:$AN$68,0),FALSE))+IFERROR(IF($B10=\"Blank\",0,VLOOKUP($B10,Inputs!$C$68:$AN$129,MATCH($C14,Inputs!$C$68:$AN$68,0),FALSE))*('Master Data'!K$42),0)","v":24.127490039840644},{"$f":"IF($B10=\"Blank\",0,VLOOKUP($B10,Inputs!$C$68:$AN$129,MATCH($B14,Inputs!$C$68:$AN$68,0),FALSE))+IFERROR(IF($B10=\"Blank\",0,VLOOKUP($B10,Inputs!$C$68:$AN$129,MATCH($C14,Inputs!$C$68:$AN$68,0),FALSE))*('Master Data'!L$42),0)","v":24.131023426294828},{"$f":"IF($B10=\"Blank\",0,VLOOKUP($B10,Inputs!$C$68:$AN$129,MATCH($B14,Inputs!$C$68:$AN$68,0),FALSE))+IFERROR(IF($B10=\"Blank\",0,VLOOKUP($B10,Inputs!$C$68:$AN$129,MATCH($C14,Inputs!$C$68:$AN$68,0),FALSE))*('Master Data'!M$42),0)","v":24.136412685577696},{"$f":"IF($B10=\"Blank\",0,VLOOKUP($B10,Inputs!$C$68:$AN$129,MATCH($B14,Inputs!$C$68:$AN$68,0),FALSE))+IFERROR(IF($B10=\"Blank\",0,VLOOKUP($B10,Inputs!$C$68:$AN$129,MATCH($C14,Inputs!$C$68:$AN$68,0),FALSE))*('Master Data'!N$42),0)","v":24.143056949368709},{"$f":"IF($B10=\"Blank\",0,VLOOKUP($B10,Inputs!$C$68:$AN$129,MATCH($B14,Inputs!$C$68:$AN$68,0),FALSE))+IFERROR(IF($B10=\"Blank\",0,VLOOKUP($B10,Inputs!$C$68:$AN$129,MATCH($C14,Inputs!$C$68:$AN$68,0),FALSE))*('Master Data'!O$42),0)","v":24.150816058816748},null,null,null,null,null,null,null,"Lamp Service costs Annualised",6.5922103933990828,6.611239294875296,6.6127158042678618,6.6145361505119755,6.598583622627527]
[null,{"$f":"Inputs!$M$68","v":"PE Cell Service costs Annualised"},"Labour Portion of PE Cell Service costs Annualised",null,{"$f":"IF($B10=\"Blank\",0,VLOOKUP($B10,Inputs!$C$68:$AN$129,MATCH($B15,Inputs!$C$68:$AN$68,0),FALSE))+IFERROR(IF($B10=\"Blank\",0,VLOOKUP($B10,Inputs!$C$68:$AN$129,MATCH($C15,Inputs!$C$68:$AN$68,0),FALSE))*('Master Data'!K$42),0)","v":0},{"$f":"IF($B10=\"Blank\",0,VLOOKUP($B10,Inputs!$C$68:$AN$129,MATCH($B15,Inputs!$C$68:$AN$68,0),FALSE))+IFERROR(IF($B10=\"Blank\",0,VLOOKUP($B10,Inputs!$C$68:$AN$129,MATCH($C15,Inputs!$C$68:$AN$68,0),FALSE))*('Master Data'!L$42),0)","v":0},{"$f":"IF($B10=\"Blank\",0,VLOOKUP($B10,Inputs!$C$68:$AN$129,MATCH($B15,Inputs!$C$68:$AN$68,0),FALSE))+IFERROR(IF($B10=\"Blank\",0,VLOOKUP($B10,Inputs!$C$68:$AN$129,MATCH($C15,Inputs!$C$68:$AN$68,0),FALSE))*('Master Data'!M$42),0)","v":0},{"$f":"IF($B10=\"Blank\",0,VLOOKUP($B10,Inputs!$C$68:$AN$129,MATCH($B15,Inputs!$C$68:$AN$68,0),FALSE))+IFERROR(IF($B10=\"Blank\",0,VLOOKUP($B10,Inputs!$C$68:$AN$129,MATCH($C15,Inputs!$C$68:$AN$68,0),FALSE))*('Master Data'!N$42),0)","v":0},{"$f":"IF($B10=\"Blank\",0,VLOOKUP($B10,Inputs!$C$68:$AN$129,MATCH($B15,Inputs!$C$68:$AN$68,0),FALSE))+IFERROR(IF($B10=\"Blank\",0,VLOOKUP($B10,Inputs!$C$68:$AN$129,MATCH($C15,Inputs!$C$68:$AN$68,0),FALSE))*('Master Data'!O$42),0)","v":0},null,null,null,null,null,null,null,"PE Cell Service costs Annualised",0,0,0,0,0]
[null,"Indirect Opex",null,null,{"$f":"IF($B10=\"Blank\",0,IF($B$8=\"Private Contract Lighting\",'Opex Weighting'!D$48,'Opex Weighting'!D$46))","v":25.762407087322877},{"$f":"IF($B10=\"Blank\",0,IF($B$8=\"Private Contract Lighting\",'Opex Weighting'!E$48,'Opex Weighting'!E$46))","v":25.880403763800857},{"$f":"IF($B10=\"Blank\",0,IF($B$8=\"Private Contract Lighting\",'Opex Weighting'!F$48,'Opex Weighting'!F$46))","v":20.013740175030701},{"$f":"IF($B10=\"Blank\",0,IF($B$8=\"Private Contract Lighting\",'Opex Weighting'!G$48,'Opex Weighting'!G$46))","v":19.55949970528431},{"$f":"IF($B10=\"Blank\",0,IF($B$8=\"Private Contract Lighting\",'Opex Weighting'!H$48,'Opex Weighting'!H$46))","v":19.096814305933613},null,null,null,null,null,null,null,"Indirect Opex",7.0389090402521521,7.0905215791235223,5.4832164863097814,5.3587670425436471,5.2177088267578178]
[null,"Indirect Capex",null,null,{"$f":"'Capex Weighting'!D$59","v":0},{"$f":"'Capex Weighting'!E$59","v":0},{"$f":"'Capex Weighting'!F$59","v":0},{"$f":"'Capex Weighting'!G$59","v":0},{"$f":"'Capex Weighting'!H$59","v":0},null,null,null,null,null,null,null,"Indirect Capex",0,0,0,0,0]
[null,"Opex Overheads Costs per light",null,null,{"$f":"IF($B10=\"Blank\",0,IF($B$8=\"Private Contract Lighting\",'Building Block'!C$40,'Building Block'!C$39))","v":32.224036557323004},{"$f":"IF($B10=\"Blank\",0,IF($B$8=\"Private Contract Lighting\",'Building Block'!D$40,'Building Block'!D$39))","v":31.278075996100256},{"$f":"IF($B10=\"Blank\",0,IF($B$8=\"Private Contract Lighting\",'Building Block'!E$40,'Building Block'!E$39))","v":21.467987799581408},{"$f":"IF($B10=\"Blank\",0,IF($B$8=\"Private Contract Lighting\",'Building Block'!F$40,'Building Block'!F$39))","v":21.22771925228782},{"$f":"IF($B10=\"Blank\",0,IF($B$8=\"Private Contract Lighting\",'Building Block'!G$40,'Building Block'!G$39))","v":21.210892633443169},null,null,null,null,null,null,null,"Opex Overheads Costs per light",{"$f":"IF(E18=\"NA\",\"\",E18/R$2*100)","v":8.8043815730390715},{"$f":"IF(F18=\"NA\",\"\",F18/S$2*100)","v":8.5693358893425362},{"$f":"IF(G18=\"NA\",\"\",G18/T$2*100)","v":5.8816404930360022},{"$f":"IF(H18=\"NA\",\"\",H18/U$2*100)","v":5.815813493777485},{"$f":"IF(I18=\"NA\",\"\",I18/V$2*100)","v":5.7953258561320133}]
[null,{"$f":"Inputs!$AK$68","v":"Bracket UNIT price"},0,null,{"$f":"IF($B10=\"Blank\",0,OFFSET('CAPEX Annuity calcs'!$B$9,MATCH($B10,'CAPEX Annuity calcs'!$B$9:$B$500,0)+$C19,E$6))","v":3.380534877380811},{"$f":"IF($B10=\"Blank\",0,OFFSET('CAPEX Annuity calcs'!$B$9,MATCH($B10,'CAPEX Annuity calcs'!$B$9:$B$500,0)+$C19,F$6))","v":3.380534877380811},{"$f":"IF($B10=\"Blank\",0,OFFSET('CAPEX Annuity calcs'!$B$9,MATCH($B10,'CAPEX Annuity calcs'!$B$9:$B$500,0)+$C19,G$6))","v":3.380534877380811},{"$f":"IF($B10=\"Blank\",0,OFFSET('CAPEX Annuity calcs'!$B$9,MATCH($B10,'CAPEX Annuity calcs'!$B$9:$B$500,0)+$C19,H$6))","v":3.380534877380811},{"$f":"IF($B10=\"Blank\",0,OFFSET('CAPEX Annuity calcs'!$B$9,MATCH($B10,'CAPEX Annuity calcs'!$B$9:$B$500,0)+$C19,I$6))","v":3.380534877380811},null,null,null,null,null,null,null,"Bracket UNIT price",0.92364340912044018,0.92617393900844136,0.92617393900844136,0.92617393900844136,0.92364340912044018]
[null,{"$f":"Inputs!$AA$68","v":"CAPEX Instalation costs"},{"$f":"C19+1","v":1},null,{"$f":"IF($B10=\"Blank\",0,OFFSET('CAPEX Annuity calcs'!$B$9,MATCH($B10,'CAPEX Annuity calcs'!$B$9:$B$500,0)+$C20,E$6))","v":0},{"$f":"IF($B10=\"Blank\",0,OFFSET('CAPEX Annuity calcs'!$B$9,MATCH($B10,'CAPEX Annuity calcs'!$B$9:$B$500,0)+$C20,F$6))","v":0},{"$f":"IF($B10=\"Blank\",0,OFFSET('CAPEX Annuity calcs'!$B$9,MATCH($B10,'CAPEX Annuity calcs'!$B$9:$B$500,0)+$C20,G$6))","v":0},{"$f":"IF($B10=\"Blank\",0,OFFSET('CAPEX Annuity calcs'!$B$9,MATCH($B10,'CAPEX Annuity calcs'!$B$9:$B$500,0)+$C20,H$6))","v":0},{"$f":"IF($B10=\"Blank\",0,OFFSET('CAPEX Annuity calcs'!$B$9,MATCH($B10,'CAPEX Annuity calcs'!$B$9:$B$500,0)+$C20,I$6))","v":0},null,null,null,null,null,null,null,"CAPEX Instalation costs",0,0,0,0,0]
[null,{"$f":"Inputs!$Z$68","v":"Luminaire UNIT price"},{"$f":"C20+1","v":2},null,{"$f":"IF($B10=\"Blank\",0,OFFSET('CAPEX Annuity calcs'!$B$9,MATCH($B10,'CAPEX Annuity calcs'!$B$9:$B$500,0)+$C21,E$6))","v":13.208916292020449},{"$f":"IF($B10=\"Blank\",0,OFFSET('CAPEX Annuity calcs'!$B$9,MATCH($B10,'CAPEX Annuity calcs'!$B$9:$B$500,0)+$C21,F$6))","v":13.208916292020449},{"$f":"IF($B10=\"Blank\",0,OFFSET('CAPEX Annuity calcs'!$B$9,MATCH($B10,'CAPEX Annuity calcs'!$B$9:$B$500,0)+$C21,G$6))","v":13.208916292020449},{"$f":"IF($B10=\"Blank\",0,OFFSET('CAPEX Annuity calcs'!$B$9,MATCH($B10,'CAPEX Annuity calcs'!$B$9:$B$500,0)+$C21,H$6))","v":13.208916292020449},{"$f":"IF($B10=\"Blank\",0,OFFSET('CAPEX Annuity calcs'!$B$9,MATCH($B10,'CAPEX Annuity calcs'!$B$9:$B$500,0)+$C21,I$6))","v":13.208916292020449},null,null,null,null,null,null,null,"Luminaire UNIT price",3.6089935224099587,3.6188811758960133,3.6188811758960133,3.6188811758960133,3.6089935224099587]
[null,{"$f":"Inputs!$AA$68","v":"CAPEX Instalation costs"},3,null,{"$f":"IF($B10=\"Blank\",0,OFFSET('CAPEX Annuity calcs'!$B$9,MATCH($B10,'CAPEX Annuity calcs'!$B$9:$B$500,0)+$C22,E$6))","v":18.736141709912243},{"$f":"IF($B10=\"Blank\",0,OFFSET('CAPEX Annuity calcs'!$B$9,MATCH($B10,'CAPEX Annuity calcs'!$B$9:$B$500,0)+$C22,F$6))","v":18.74779128716041},{"$f":"IF($B10=\"Blank\",0,OFFSET('CAPEX Annuity calcs'!$B$9,MATCH($B10,'CAPEX Annuity calcs'!$B$9:$B$500,0)+$C22,G$6))","v":18.765559678232343},{"$f":"IF($B10=\"Blank\",0,OFFSET('CAPEX Annuity calcs'!$B$9,MATCH($B10,'CAPEX Annuity calcs'!$B$9:$B$500,0)+$C22,H$6))","v":18.787465819916616},{"$f":"IF($B10=\"Blank\",0,OFFSET('CAPEX Annuity calcs'!$B$9,MATCH($B10,'CAPEX Annuity calcs'!$B$9:$B$500,0)+$C22,I$6))","v":18.813047608397444},null,null,null,null,null,null,null,"CAPEX Instalation costs",5.1191644016153672,5.1363811745644954,5.1412492269129713,5.1472509095661954,{"$f":"IF(I22=\"NA\",\"\",I22/V$2*100)","v":5.1401769421850938}]
[null,null,null,null,{"$f":"SUM(E11:E22)","v":137.70161298314787},{"$f":"SUM(F11:F22)","v":136.8585485653183},121.05430565363997,120.19273135105963,119.53596373961813,null,null,null,null,null,null,null,null,{"$f":"ROUND(E23/R$2*100,3)","v":37.622999999999998},{"$f":"ROUND(F23/S$2*100,3)","v":37.494999999999997},{"$f":"ROUND(G23/T$2*100,3)","v":33.165999999999997},{"$f":"ROUND(H23/U$2*100,3)","v":32.93},{"$f":"ROUND(I23/V$2*100,3)","v":32.659999999999997}]
[]
[{"$f":"A10+1","v":2},{"$f":"IFERROR(VLOOKUP($A25,Inputs!$B$68:$AN$129,MATCH($B$7,Inputs!$B$68:$AN$68,0),FALSE),\"Blank\")","v":"42W Compact Fluorescent"},null,null,null,null,null,null,null,null,null,null,null,null,null,null,{"$f":"IFERROR(VLOOKUP($A25,Inputs!$B$68:$AN$129,MATCH($B$7,Inputs!$B$68:$AN$68,0),FALSE),\"Blank\")","v":"42W Compact Fluorescent"}]
[null,{"$f":"Inputs!$S$68","v":"Lamp UNIT price Annualised Cost"},{"$f":"Inputs!$Q$68","v":"Lamp Maintenance cycle"},null,{"$f":"IF($B25=\"Blank\",0,VLOOKUP($B25,Inputs!$C$68:$AN$129,MATCH($B26,Inputs!$C$68:$AN$68,0),FALSE))","v":1.0984639624469332},{"$f":"IF($B25=\"Blank\",0,VLOOKUP($B25,Inputs!$C$68:$AN$129,MATCH($B26,Inputs!$C$68:$AN$68,0),FALSE))","v":1.0984639624469332},{"$f":"IF($B25=\"Blank\",0,VLOOKUP($B25,Inputs!$C$68:$AN$129,MATCH($B26,Inputs!$C$68:$AN$68,0),FALSE))","v":1.0984639624469332},{"$f":"IF($B25=\"Blank\",0,VLOOKUP($B25,Inputs!$C$68:$AN$129,MATCH($B26,Inputs!$C$68:$AN$68,0),FALSE))","v":1.0984639624469332},{"$f":"IF($B25=\"Blank\",0,VLOOKUP($B25,Inputs!$C$68:$AN$129,MATCH($B26,Inputs!$C$68:$AN$68,0),FALSE))","v":1.0984639624469332},null,null,null,null,null,null,null,{"$f":"B26","v":"Lamp UNIT price Annualised Cost"},{"$f":"IF(E26=\"NA\",\"\",E26/R$2*100)","v":0.30012676569588337},{"$f":"IF(F26=\"NA\",\"\",F26/S$2*100)","v":0.30094903080737895},{"$f":"IF(G26=\"NA\",\"\",G26/T$2*100)","v":0.30094903080737895},{"$f":"IF(H26=\"NA\",\"\",H26/U$2*100)","v":0.30094903080737895},{"$f":"IF(I26=\"NA\",\"\",I26/V$2*100)","v":0.30012676569588337}]
[null,{"$f":"Inputs!$K$68","v":"PE Cell UNIT price Annualised Cost"},{"$f":"Inputs!$I$68","v":"PE Cell Maintenance Cycle"},null,{"$f":"IF($B25=\"Blank\",0,VLOOKUP($B25,Inputs!$C$68:$AN$129,MATCH($B27,Inputs!$C$68:$AN$68,0),FALSE))","v":0.58131255188333353},{"$f":"IF($B25=\"Blank\",0,VLOOKUP($B25,Inputs!$C$68:$AN$129,MATCH($B27,Inputs!$C$68:$AN$68,0),FALSE))","v":0.58131255188333353},{"$f":"IF($B25=\"Blank\",0,VLOOKUP($B25,Inputs!$C$68:$AN$129,MATCH($B27,Inputs!$C$68:$AN$68,0),FALSE))","v":0.58131255188333353},{"$f":"IF($B25=\"Blank\",0,VLOOKUP($B25,Inputs!$C$68:$AN$129,MATCH($B27,Inputs!$C$68:$AN$68,0),FALSE))","v":0.58131255188333353},{"$f":"IF($B25=\"Blank\",0,VLOOKUP($B25,Inputs!$C$68:$AN$129,MATCH($B27,Inputs!$C$68:$AN$68,0),FALSE))","v":0.58131255188333353},null,null,null,null,null,null,null,"PE Cell UNIT price Annualised Cost",0.15882856608834248,0.15926371284474891,0.15926371284474891,0.15926371284474891,0.15882856608834248]
[null,"Corp capex annuity per light",null,null,{"$f":"IF($B25=\"Blank\",0,'Corp Capex Annuity calcs'!F$142)","v":18.582309905017571},{"$f":"IF($B25=\"Blank\",0,'Corp Capex Annuity calcs'!G$142)","v":18.552026408230436},{"$f":"IF($B25=\"Blank\",0,'Corp Capex Annuity calcs'!H$142)","v":18.401377631486287},{"$f":"IF($B25=\"Blank\",0,'Corp Capex Annuity calcs'!I$142)","v":18.205761940470655},{"$f":"IF($B25=\"Blank\",0,'Corp Capex Annuity calcs'!J$142)","v":17.995165449295623},null,null,null,null,null,null,null,"Corp capex annuity per light",5.0771338538299373,5.0827469611590237,5.0414733236948734,4.9878799836905907,4.9167118713922466]
[null,{"$f":"Inputs!$U$68","v":"Lamp Service costs Annualised"},"Labour Portion of Lamp Service costs annualised",null,{"$f":"IF($B25=\"Blank\",0,VLOOKUP($B25,Inputs!$C$68:$AN$129,MATCH($B29,Inputs!$C$68:$AN$68,0),FALSE))+IFERROR(IF($B25=\"Blank\",0,VLOOKUP($B25,Inputs!$C$68:$AN$129,MATCH($C29,Inputs!$C$68:$AN$68,0),FALSE))*('Master Data'!K$42),0)","v":24.127490039840644},{"$f":"IF($B25=\"Blank\",0,VLOOKUP($B25,Inputs!$C$68:$AN$129,MATCH($B29,Inputs!$C$68:$AN$68,0),FALSE))+IFERROR(IF($B25=\"Blank\",0,VLOOKUP($B25,Inputs!$C$68:$AN$129,MATCH($C29,Inputs!$C$68:$AN$68,0),FALSE))*('Master Data'!L$42),0)","v":24.131023426294828},{"$f":"IF($B25=\"Blank\",0,VLOOKUP($B25,Inputs!$C$68:$AN$129,MATCH($B29,Inputs!$C$68:$AN$68,0),FALSE))+IFERROR(IF($B25=\"Blank\",0,VLOOKUP($B25,Inputs!$C$68:$AN$129,MATCH($C29,Inputs!$C$68:$AN$68,0),FALSE))*('Master Data'!M$42),0)","v":24.136412685577696},{"$f":"IF($B25=\"Blank\",0,VLOOKUP($B25,Inputs!$C$68:$AN$129,MATCH($B29,Inputs!$C$68:$AN$68,0),FALSE))+IFERROR(IF($B25=\"Blank\",0,VLOOKUP($B25,Inputs!$C$68:$AN$129,MATCH($C29,Inputs!$C$68:$AN$68,0),FALSE))*('Master Data'!N$42),0)","v":24.143056949368709},{"$f":"IF($B25=\"Blank\",0,VLOOKUP($B25,Inputs!$C$68:$AN$129,MATCH($B29,Inputs!$C$68:$AN$68,0),FALSE))+IFERROR(IF($B25=\"Blank\",0,VLOOKUP($B25,Inputs!$C$68:$AN$129,MATCH($C29,Inputs!$C$68:$AN$68,0),FALSE))*('Master Data'!O$42),0)","v":24.150816058816748},null,null,null,null,null,null,null,"Lamp Service costs Annualised",6.5922103933990828,6.611239294875296,6.6127158042678618,6.6145361505119755,6.598583622627527]
[null,{"$f":"Inputs!$M$68","v":"PE Cell Service costs Annualised"},"Labour Portion of PE Cell Service costs Annualised",null,{"$f":"IF($B25=\"Blank\",0,VLOOKUP($B25,Inputs!$C$68:$AN$129,MATCH($B30,Inputs!$C$68:$AN$68,0),FALSE))+IFERROR(IF($B25=\"Blank\",0,VLOOKUP($B25,Inputs!$C$68:$AN$129,MATCH($C30,Inputs!$C$68:$AN$68,0),FALSE))*('Master Data'!K$42),0)","v":0},{"$f":"IF($B25=\"Blank\",0,VLOOKUP($B25,Inputs!$C$68:$AN$129,MATCH($B30,Inputs!$C$68:$AN$68,0),FALSE))+IFERROR(IF($B25=\"Blank\",0,VLOOKUP($B25,Inputs!$C$68:$AN$129,MATCH($C30,Inputs!$C$68:$AN$68,0),FALSE))*('Master Data'!L$42),0)","v":0},{"$f":"IF($B25=\"Blank\",0,VLOOKUP($B25,Inputs!$C$68:$AN$129,MATCH($B30,Inputs!$C$68:$AN$68,0),FALSE))+IFERROR(IF($B25=\"Blank\",0,VLOOKUP($B25,Inputs!$C$68:$AN$129,MATCH($C30,Inputs!$C$68:$AN$68,0),FALSE))*('Master Data'!M$42),0)","v":0},{"$f":"IF($B25=\"Blank\",0,VLOOKUP($B25,Inputs!$C$68:$AN$129,MATCH($B30,Inputs!$C$68:$AN$68,0),FALSE))+IFERROR(IF($B25=\"Blank\",0,VLOOKUP($B25,Inputs!$C$68:$AN$129,MATCH($C30,Inputs!$C$68:$AN$68,0),FALSE))*('Master Data'!N$42),0)","v":0},{"$f":"IF($B25=\"Blank\",0,VLOOKUP($B25,Inputs!$C$68:$AN$129,MATCH($B30,Inputs!$C$68:$AN$68,0),FALSE))+IFERROR(IF($B25=\"Blank\",0,VLOOKUP($B25,Inputs!$C$68:$AN$129,MATCH($C30,Inputs!$C$68:$AN$68,0),FALSE))*('Master Data'!O$42),0)","v":0},null,null,null,null,null,null,null,"PE Cell Service costs Annualised",0,0,0,0,0]
[null,"Indirect Opex",null,null,{"$f":"IF($B25=\"Blank\",0,IF($B$8=\"Private Contract Lighting\",'Opex Weighting'!D$48,'Opex Weighting'!D$46))","v":25.762407087322877},{"$f":"IF($B25=\"Blank\",0,IF($B$8=\"Private Contract Lighting\",'Opex Weighting'!E$48,'Opex Weighting'!E$46))","v":25.880403763800857},{"$f":"IF($B25=\"Blank\",0,IF($B$8=\"Private Contract Lighting\",'Opex Weighting'!F$48,'Opex Weighting'!F$46))","v":20.013740175030701},{"$f":"IF($B25=\"Blank\",0,IF($B$8=\"Private Contract Lighting\",'Opex Weighting'!G$48,'Opex Weighting'!G$46))","v":19.55949970528431},{"$f":"IF($B25=\"Blank\",0,IF($B$8=\"Private Contract Lighting\",'Opex Weighting'!H$48,'Opex Weighting'!H$46))","v":19.096814305933613},null,null,null,null,null,null,null,"Indirect Opex",7.0389090402521521,7.0905215791235223,5.4832164863097814,5.3587670425436471,5.2177088267578178]
[null,"Indirect Capex",null,null,{"$f":"'Capex Weighting'!D$59","v":0},{"$f":"'Capex Weighting'!E$59","v":0},{"$f":"'Capex Weighting'!F$59","v":0},{"$f":"'Capex Weighting'!G$59","v":0},{"$f":"'Capex Weighting'!H$59","v":0},null,null,null,null,null,null,null,"Indirect Capex",0,0,0,0,0]
[null,"Opex Overheads Costs per light",null,null,{"$f":"IF($B25=\"Blank\",0,IF($B$8=\"Private Contract Lighting\",'Building Block'!C$40,'Building Block'!C$39))","v":32.224036557323004},{"$f":"IF($B25=\"Blank\",0,IF($B$8=\"Private Contract Lighting\",'Building Block'!D$40,'Building Block'!D$39))","v":31.278075996100256},{"$f":"IF($B25=\"Blank\",0,IF($B$8=\"Private Contract Lighting\",'Building Block'!E$40,'Building Block'!E$39))","v":21.467987799581408},{"$f":"IF($B25=\"Blank\",0,IF($B$8=\"Private Contract Lighting\",'Building Block'!F$40,'Building Block'!F$39))","v":21.22771925228782},{"$f":"IF($B25=\"Blank\",0,IF($B$8=\"Private Contract Lighting\",'Building Block'!G$40,'Building Block'!G$39))","v":21.210892633443169},null,null,null,null,null,null,null,"Opex Overheads Costs per light",8.8043815730390715,8.5693358893425362,5.8816404930360022,5.815813493777485,5.7953258561320133]
[null,{"$f":"Inputs!$AK$68","v":"Bracket UNIT price"},0,null,{"$f":"IF($B25=\"Blank\",0,OFFSET('CAPEX Annuity calcs'!$B$9,MATCH($B25,'CAPEX Annuity calcs'!$B$9:$B$500,0)+$C34,E$6))","v":3.4600335723376956},{"$f":"IF($B25=\"Blank\",0,OFFSET('CAPEX Annuity calcs'!$B$9,MATCH($B25,'CAPEX Annuity calcs'!$B$9:$B$500,0)+$C34,F$6))","v":3.4600335723376956},{"$f":"IF($B25=\"Blank\",0,OFFSET('CAPEX Annuity calcs'!$B$9,MATCH($B25,'CAPEX Annuity calcs'!$B$9:$B$500,0)+$C34,G$6))","v":3.4600335723376956},{"$f":"IF($B25=\"Blank\",0,OFFSET('CAPEX Annuity calcs'!$B$9,MATCH($B25,'CAPEX Annuity calcs'!$B$9:$B$500,0)+$C34,H$6))","v":3.4600335723376956},{"$f":"IF($B25=\"Blank\",0,OFFSET('CAPEX Annuity calcs'!$B$9,MATCH($B25,'CAPEX Annuity calcs'!$B$9:$B$500,0)+$C34,I$6))","v":3.4600335723376956},null,null,null,null,null,null,null,"Bracket UNIT price",0.94536436402669277,0.94795440338019055,0.94795440338019055,0.94795440338019055,0.94536436402669277]
[null,{"$f":"Inputs!$AA$68","v":"CAPEX Instalation costs"},{"$f":"C34+1","v":1},null,{"$f":"IF($B25=\"Blank\",0,OFFSET('CAPEX Annuity calcs'!$B$9,MATCH($B25,'CAPEX Annuity calcs'!$B$9:$B$500,0)+$C35,E$6))","v":0},{"$f":"IF($B25=\"Blank\",0,OFFSET('CAPEX Annuity calcs'!$B$9,MATCH($B25,'CAPEX Annuity calcs'!$B$9:$B$500,0)+$C35,F$6))","v":0},{"$f":"IF($B25=\"Blank\",0,OFFSET('CAPEX Annuity calcs'!$B$9,MATCH($B25,'CAPEX Annuity calcs'!$B$9:$B$500,0)+$C35,G$6))","v":0},{"$f":"IF($B25=\"Blank\",0,OFFSET('CAPEX Annuity calcs'!$B$9,MATCH($B25,'CAPEX Annuity calcs'!$B$9:$B$500,0)+$C35,H$6))","v":0},{"$f":"IF($B25=\"Blank\",0,OFFSET('CAPEX Annuity calcs'!$B$9,MATCH($B25,'CAPEX Annuity calcs'!$B$9:$B$500,0)+$C35,I$6))","v":0},null,null,null,null,null,null,null,"CAPEX Instalation costs",0,0,0,0,0]
[null,{"$f":"Inputs!$Z$68","v":"Luminaire UNIT price"},{"$f":"C35+1","v":2},null,{"$f":"IF($B25=\"Blank\",0,OFFSET('CAPEX Annuity calcs'!$B$9,MATCH($B25,'CAPEX Annuity calcs'!$B$9:$B$500,0)+$C36,E$6))","v":13.208916292020449},{"$f":"IF($B25=\"Blank\",0,OFFSET('CAPEX Annuity calcs'!$B$9,MATCH($B25,'CAPEX Annuity calcs'!$B$9:$B$500,0)+$C36,F$6))","v":13.208916292020449},{"$f":"IF($B25=\"Blank\",0,OFFSET('CAPEX Annuity calcs'!$B$9,MATCH($B25,'CAPEX Annuity calcs'!$B$9:$B$500,0)+$C36,G$6))","v":13.208916292020449},{"$f":"IF($B25=\"Blank\",0,OFFSET('CAPEX Annuity calcs'!$B$9,MATCH($B25,'CAPEX Annuity calcs'!$B$9:$B$500,0)+$C36,H$6))","v":13.208916292020449},{"$f":"IF($B25=\"Blank\",0,OFFSET('CAPEX Annuity calcs'!$B$9,MATCH($B25,'CAPEX Annuity calcs'!$B$9:$B$500,0)+$C36,I$6))","v":13.208916292020449},null,null,null,null,null,null,null,"Luminaire UNIT price",3.6089935224099587,3.6188811758960133,3.6188811758960133,3.6188811758960133,3.6089935224099587]
[null,{"$f":"Inputs!$AA$68","v":"CAPEX Instalation costs"},3,null,{"$f":"IF($B25=\"Blank\",0,OFFSET('CAPEX Annuity calcs'!$B$9,MATCH($B25,'CAPEX Annuity calcs'!$B$9:$B$500,0)+$C37,E$6))","v":18.736141709912243},{"$f":"IF($B25=\"Blank\",0,OFFSET('CAPEX Annuity calcs'!$B$9,MATCH($B25,'CAPEX Annuity calcs'!$B$9:$B$500,0)+$C37,F$6))","v":18.74779128716041},{"$f":"IF($B25=\"Blank\",0,OFFSET('CAPEX Annuity calcs'!$B$9,MATCH($B25,'CAPEX Annuity calcs'!$B$9:$B$500,0)+$C37,G$6))","v":18.765559678232343},{"$f":"IF($B25=\"Blank\",0,OFFSET('CAPEX Annuity calcs'!$B$9,MATCH($B25,'CAPEX Annuity calcs'!$B$9:$B$500,0)+$C37,H$6))","v":18.787465819916616},{"$f":"IF($B25=\"Blank\",0,OFFSET('CAPEX Annuity calcs'!$B$9,MATCH($B25,'CAPEX Annuity calcs'!$B$9:$B$500,0)+$C37,I$6))","v":18.813047608397444},null,null,null,null,null,null,null,"CAPEX Instalation costs",5.1191644016153672,5.1363811745644954,5.1412492269129713,5.1472509095661954,5.1401769421850938]
[null,null,null,null,{"$f":"SUM(E26:E37)","v":137.78111167810474},{"$f":"SUM(F26:F37)","v":136.9380472602752},121.13380434859684,120.27223004601652,119.61546243457501,null,null,null,null,null,null,null,null,{"$f":"ROUND(E38/R$2*100,3)","v":37.645000000000003},{"$f":"ROUND(F38/S$2*100,3)","v":37.517000000000003},{"$f":"ROUND(G38/T$2*100,3)","v":33.186999999999998},{"$f":"ROUND(H38/U$2*100,3)","v":32.951000000000001},{"$f":"ROUND(I38/V$2*100,3)","v":32.682000000000002}]
[]
[{"$f":"A25+1","v":3},{"$f":"IFERROR(VLOOKUP($A40,Inputs!$B$68:$AN$129,MATCH($B$7,Inputs!$B$68:$AN$68,0),FALSE),\"Blank\")","v":"42W Compact Fluorescent - Bottom Pole Entry"},null,null,null,null,null,null,null,null,null,null,null,null,null,null,{"$f":"IFERROR(VLOOKUP($A40,Inputs!$B$68:$AN$129,MATCH($B$7,Inputs!$B$68:$AN$68,0),FALSE),\"Blank\")","v":"42W Compact Fluorescent - Bottom Pole Entry"}]
[null,{"$f":"Inputs!$S$68","v":"Lamp UNIT price Annualised Cost"},{"$f":"Inputs!$Q$68","v":"Lamp Maintenance cycle"},null,{"$f":"IF($B40=\"Blank\",0,VLOOKUP($B40,Inputs!$C$68:$AN$129,MATCH($B41,Inputs!$C$68:$AN$68,0),FALSE))","v":1.0984639624469332},{"$f":"IF($B40=\"Blank\",0,VLOOKUP($B40,Inputs!$C$68:$AN$129,MATCH($B41,Inputs!$C$68:$AN$68,0),FALSE))","v":1.0984639624469332},{"$f":"IF($B40=\"Blank\",0,VLOOKUP($B40,Inputs!$C$68:$AN$129,MATCH($B41,Inputs!$C$68:$AN$68,0),FALSE))","v":1.0984639624469332},{"$f":"IF($B40=\"Blank\",0,VLOOKUP($B40,Inputs!$C$68:$AN$129,MATCH($B41,Inputs!$C$68:$AN$68,0),FALSE))","v":1.0984639624469332},{"$f":"IF($B40=\"Blank\",0,VLOOKUP($B40,Inputs!$C$68:$AN$129,MATCH($B41,Inputs!$C$68:$AN$68,0),FALSE))","v":1.0984639624469332},null,null,null,null,null,null,null,{"$f":"B41","v":"Lamp UNIT price Annualised Cost"},{"$f":"IF(E41=\"NA\",\"\",E41/R$2*100)","v":0.30012676569588337},{"$f":"IF(F41=\"NA\",\"\",F41/S$2*100)","v":0.30094903080737895},{"$f":"IF(G41=\"NA\",\"\",G41/T$2*100)","v":0.30094903080737895},{"$f":"IF(H41=\"NA\",\"\",H41/U$2*100)","v":0.30094903080737895},{"$f":"IF(I41=\"NA\",\"\",I41/V$2*100)","v":0.30012676569588337}]
[null,{"$f":"Inputs!$K$68","v":"PE Cell UNIT price Annualised Cost"},{"$f":"Inputs!$I$68","v":"PE Cell Maintenance Cycle"},null,{"$f":"IF($B40=\"Blank\",0,VLOOKUP($B40,Inputs!$C$68:$AN$129,MATCH($B42,Inputs!$C$68:$AN$68,0),FALSE))","v":0.58131255188333353},{"$f":"IF($B40=\"Blank\",0,VLOOKUP($B40,Inputs!$C$68:$AN$129,MATCH($B42,Inputs!$C$68:$AN$68,0),FALSE))","v":0.58131255188333353},{"$f":"IF($B40=\"Blank\",0,VLOOKUP($B40,Inputs!$C$68:$AN$129,MATCH($B42,Inputs!$C$68:$AN$68,0),FALSE))","v":0.58131255188333353},{"$f":"IF($B40=\"Blank\",0,VLOOKUP($B40,Inputs!$C$68:$AN$129,MATCH($B42,Inputs!$C$68:$AN$68,0),FALSE))","v":0.58131255188333353},{"$f":"IF($B40=\"Blank\",0,VLOOKUP($B40,Inputs!$C$68:$AN$129,MATCH($B42,Inputs!$C$68:$AN$68,0),FALSE))","v":0.58131255188333353},null,null,null,null,null,null,null,"PE Cell UNIT price Annualised Cost",0.15882856608834248,0.15926371284474891,0.15926371284474891,0.15926371284474891,0.15882856608834248]
[null,"Corp capex annuity per light",null,null,{"$f":"IF($B40=\"Blank\",0,'Corp Capex Annuity calcs'!F$142)","v":18.582309905017571},{"$f":"IF($B40=\"Blank\",0,'Corp Capex Annuity calcs'!G$142)","v":18.552026408230436},{"$f":"IF($B40=\"Blank\",0,'Corp Capex Annuity calcs'!H$142)","v":18.401377631486287},{"$f":"IF($B40=\"Blank\",0,'Corp Capex Annuity calcs'!I$142)","v":18.205761940470655},{"$f":"IF($B40=\"Blank\",0,'Corp Capex Annuity calcs'!J$142)","v":17.995165449295623},null,null,null,null,null,null,null,"Corp capex annuity per light",5.0771338538299373,5.0827469611590237,5.0414733236948734,4.9878799836905907,4.9167118713922466]
[null,{"$f":"Inputs!$U$68","v":"Lamp Service costs Annualised"},"Labour Portion of Lamp Service costs annualised",null,{"$f":"IF($B40=\"Blank\",0,VLOOKUP($B40,Inputs!$C$68:$AN$129,MATCH($B44,Inputs!$C$68:$AN$68,0),FALSE))+IFERROR(IF($B40=\"Blank\",0,VLOOKUP($B40,Inputs!$C$68:$AN$129,MATCH($C44,Inputs!$C$68:$AN$68,0),FALSE))*('Master Data'!K$42),0)","v":24.127490039840644},{"$f":"IF($B40=\"Blank\",0,VLOOKUP($B40,Inputs!$C$68:$AN$129,MATCH($B44,Inputs!$C$68:$AN$68,0),FALSE))+IFERROR(IF($B40=\"Blank\",0,VLOOKUP($B40,Inputs!$C$68:$AN$129,MATCH($C44,Inputs!$C$68:$AN$68,0),FALSE))*('Master Data'!L$42),0)","v":24.131023426294828},{"$f":"IF($B40=\"Blank\",0,VLOOKUP($B40,Inputs!$C$68:$AN$129,MATCH($B44,Inputs!$C$68:$AN$68,0),FALSE))+IFERROR(IF($B40=\"Blank\",0,VLOOKUP($B40,Inputs!$C$68:$AN$129,MATCH($C44,Inputs!$C$68:$AN$68,0),FALSE))*('Master Data'!M$42),0)","v":24.136412685577696},{"$f":"IF($B40=\"Blank\",0,VLOOKUP($B40,Inputs!$C$68:$AN$129,MATCH($B44,Inputs!$C$68:$AN$68,0),FALSE))+IFERROR(IF($B40=\"Blank\",0,VLOOKUP($B40,Inputs!$C$68:$AN$129,MATCH($C44,Inputs!$C$68:$AN$68,0),FALSE))*('Master Data'!N$42),0)","v":24.143056949368709},{"$f":"IF($B40=\"Blank\",0,VLOOKUP($B40,Inputs!$C$68:$AN$129,MATCH($B44,Inputs!$C$68:$AN$68,0),FALSE))+IFERROR(IF($B40=\"Blank\",0,VLOOKUP($B40,Inputs!$C$68:$AN$129,MATCH($C44,Inputs!$C$68:$AN$68,0),FALSE))*('Master Data'!O$42),0)","v":24.150816058816748},null,null,null,null,null,null,null,"Lamp Service costs Annualised",6.5922103933990828,6.611239294875296,6.6127158042678618,6.6145361505119755,6.598583622627527]
[null,{"$f":"Inputs!$M$68","v":"PE Cell Service costs Annualised"},"Labour Portion of PE Cell Service costs Annualised",null,{"$f":"IF($B40=\"Blank\",0,VLOOKUP($B40,Inputs!$C$68:$AN$129,MATCH($B45,Inputs!$C$68:$AN$68,0),FALSE))+IFERROR(IF($B40=\"Blank\",0,VLOOKUP($B40,Inputs!$C$68:$AN$129,MATCH($C45,Inputs!$C$68:$AN$68,0),FALSE))*('Master Data'!K$42),0)","v":0},{"$f":"IF($B40=\"Blank\",0,VLOOKUP($B40,Inputs!$C$68:$AN$129,MATCH($B45,Inputs!$C$68:$AN$68,0),FALSE))+IFERROR(IF($B40=\"Blank\",0,VLOOKUP($B40,Inputs!$C$68:$AN$129,MATCH($C45,Inputs!$C$68:$AN$68,0),FALSE))*('Master Data'!L$42),0)","v":0},{"$f":"IF($B40=\"Blank\",0,VLOOKUP($B40,Inputs!$C$68:$AN$129,MATCH($B45,Inputs!$C$68:$AN$68,0),FALSE))+IFERROR(IF($B40=\"Blank\",0,VLOOKUP($B40,Inputs!$C$68:$AN$129,MATCH($C45,Inputs!$C$68:$AN$68,0),FALSE))*('Master Data'!M$42),0)","v":0},{"$f":"IF($B40=\"Blank\",0,VLOOKUP($B40,Inputs!$C$68:$AN$129,MATCH($B45,Inputs!$C$68:$AN$68,0),FALSE))+IFERROR(IF($B40=\"Blank\",0,VLOOKUP($B40,Inputs!$C$68:$AN$129,MATCH($C45,Inputs!$C$68:$AN$68,0),FALSE))*('Master Data'!N$42),0)","v":0},{"$f":"IF($B40=\"Blank\",0,VLOOKUP($B40,Inputs!$C$68:$AN$129,MATCH($B45,Inputs!$C$68:$AN$68,0),FALSE))+IFERROR(IF($B40=\"Blank\",0,VLOOKUP($B40,Inputs!$C$68:$AN$129,MATCH($C45,Inputs!$C$68:$AN$68,0),FALSE))*('Master Data'!O$42),0)","v":0},null,null,null,null,null,null,null,"PE Cell Service costs Annualised",0,0,0,0,0]
[null,"Indirect Opex",null,null,{"$f":"IF($B40=\"Blank\",0,IF($B$8=\"Private Contract Lighting\",'Opex Weighting'!D$48,'Opex Weighting'!D$46))","v":25.762407087322877},{"$f":"IF($B40=\"Blank\",0,IF($B$8=\"Private Contract Lighting\",'Opex Weighting'!E$48,'Opex Weighting'!E$46))","v":25.880403763800857},{"$f":"IF($B40=\"Blank\",0,IF($B$8=\"Private Contract Lighting\",'Opex Weighting'!F$48,'Opex Weighting'!F$46))","v":20.013740175030701},{"$f":"IF($B40=\"Blank\",0,IF($B$8=\"Private Contract Lighting\",'Opex Weighting'!G$48,'Opex Weighting'!G$46))","v":19.55949970528431},{"$f":"IF($B40=\"Blank\",0,IF($B$8=\"Private Contract Lighting\",'Opex Weighting'!H$48,'Opex Weighting'!H$46))","v":19.096814305933613},null,null,null,null,null,null,null,"Indirect Opex",7.0389090402521521,7.0905215791235223,5.4832164863097814,5.3587670425436471,5.2177088267578178]
[null,"Indirect Capex",null,null,{"$f":"'Capex Weighting'!D$59","v":0},{"$f":"'Capex Weighting'!E$59","v":0},{"$f":"'Capex Weighting'!F$59","v":0},{"$f":"'Capex Weighting'!G$59","v":0},{"$f":"'Capex Weighting'!H$59","v":0},null,null,null,null,null,null,null,"Indirect Capex",0,0,0,0,0]
[null,"Opex Overheads Costs per light",null,null,{"$f":"IF($B40=\"Blank\",0,IF($B$8=\"Private Contract Lighting\",'Building Block'!C$40,'Building Block'!C$39))","v":32.224036557323004},{"$f":"IF($B40=\"Blank\",0,IF($B$8=\"Private Contract Lighting\",'Building Block'!D$40,'Building Block'!D$39))","v":31.278075996100256},{"$f":"IF($B40=\"Blank\",0,IF($B$8=\"Private Contract Lighting\",'Building Block'!E$40,'Building Block'!E$39))","v":21.467987799581408},{"$f":"IF($B40=\"Blank\",0,IF($B$8=\"Private Contract Lighting\",'Building Block'!F$40,'Building Block'!F$39))","v":21.22771925228782},{"$f":"IF($B40=\"Blank\",0,IF($B$8=\"Private Contract Lighting\",'Building Block'!G$40,'Building Block'!G$39))","v":21.210892633443169},null,null,null,null,null,null,null,"Opex Overheads Costs per light",8.8043815730390715,8.5693358893425362,5.8816404930360022,5.815813493777485,5.7953258561320133]
[null,{"$f":"Inputs!$AK$68","v":"Bracket UNIT price"},0,null,{"$f":"IF($B40=\"Blank\",0,OFFSET('CAPEX Annuity calcs'!$B$9,MATCH($B40,'CAPEX Annuity calcs'!$B$9:$B$500,0)+$C49,E$6))","v":3.4600335723376956},{"$f":"IF($B40=\"Blank\",0,OFFSET('CAPEX Annuity calcs'!$B$9,MATCH($B40,'CAPEX Annuity calcs'!$B$9:$B$500,0)+$C49,F$6))","v":3.4600335723376956},{"$f":"IF($B40=\"Blank\",0,OFFSET('CAPEX Annuity calcs'!$B$9,MATCH($B40,'CAPEX Annuity calcs'!$B$9:$B$500,0)+$C49,G$6))","v":3.4600335723376956},{"$f":"IF($B40=\"Blank\",0,OFFSET('CAPEX Annuity calcs'!$B$9,MATCH($B40,'CAPEX Annuity calcs'!$B$9:$B$500,0)+$C49,H$6))","v":3.4600335723376956},{"$f":"IF($B40=\"Blank\",0,OFFSET('CAPEX Annuity calcs'!$B$9,MATCH($B40,'CAPEX Annuity calcs'!$B$9:$B$500,0)+$C49,I$6))","v":3.4600335723376956},null,null,null,null,null,null,null,"Bracket UNIT price",0.94536436402669277,0.94795440338019055,0.94795440338019055,0.94795440338019055,0.94536436402669277]
[null,{"$f":"Inputs!$AA$68","v":"CAPEX Instalation costs"},{"$f":"C49+1","v":1},null,{"$f":"IF($B40=\"Blank\",0,OFFSET('CAPEX Annuity calcs'!$B$9,MATCH($B40,'CAPEX Annuity calcs'!$B$9:$B$500,0)+$C50,E$6))","v":0},{"$f":"IF($B40=\"Blank\",0,OFFSET('CAPEX Annuity calcs'!$B$9,MATCH($B40,'CAPEX Annuity calcs'!$B$9:$B$500,0)+$C50,F$6))","v":0},{"$f":"IF($B40=\"Blank\",0,OFFSET('CAPEX Annuity calcs'!$B$9,MATCH($B40,'CAPEX Annuity calcs'!$B$9:$B$500,0)+$C50,G$6))","v":0},{"$f":"IF($B40=\"Blank\",0,OFFSET('CAPEX Annuity calcs'!$B$9,MATCH($B40,'CAPEX Annuity calcs'!$B$9:$B$500,0)+$C50,H$6))","v":0},{"$f":"IF($B40=\"Blank\",0,OFFSET('CAPEX Annuity calcs'!$B$9,MATCH($B40,'CAPEX Annuity calcs'!$B$9:$B$500,0)+$C50,I$6))","v":0},null,null,null,null,null,null,null,"CAPEX Instalation costs",0,0,0,0,0]
[null,{"$f":"Inputs!$Z$68","v":"Luminaire UNIT price"},{"$f":"C50+1","v":2},null,{"$f":"IF($B40=\"Blank\",0,OFFSET('CAPEX Annuity calcs'!$B$9,MATCH($B40,'CAPEX Annuity calcs'!$B$9:$B$500,0)+$C51,E$6))","v":13.208916292020449},{"$f":"IF($B40=\"Blank\",0,OFFSET('CAPEX Annuity calcs'!$B$9,MATCH($B40,'CAPEX Annuity calcs'!$B$9:$B$500,0)+$C51,F$6))","v":13.208916292020449},{"$f":"IF($B40=\"Blank\",0,OFFSET('CAPEX Annuity calcs'!$B$9,MATCH($B40,'CAPEX Annuity calcs'!$B$9:$B$500,0)+$C51,G$6))","v":13.208916292020449},{"$f":"IF($B40=\"Blank\",0,OFFSET('CAPEX Annuity calcs'!$B$9,MATCH($B40,'CAPEX Annuity calcs'!$B$9:$B$500,0)+$C51,H$6))","v":13.208916292020449},{"$f":"IF($B40=\"Blank\",0,OFFSET('CAPEX Annuity calcs'!$B$9,MATCH($B40,'CAPEX Annuity calcs'!$B$9:$B$500,0)+$C51,I$6))","v":13.208916292020449},null,null,null,null,null,null,null,"Luminaire UNIT price",3.6089935224099587,3.6188811758960133,3.6188811758960133,3.6188811758960133,3.6089935224099587]
[null,{"$f":"Inputs!$AA$68","v":"CAPEX Instalation costs"},3,null,{"$f":"IF($B40=\"Blank\",0,OFFSET('CAPEX Annuity calcs'!$B$9,MATCH($B40,'CAPEX Annuity calcs'!$B$9:$B$500,0)+$C52,E$6))","v":18.736141709912243},{"$f":"IF($B40=\"Blank\",0,OFFSET('CAPEX Annuity calcs'!$B$9,MATCH($B40,'CAPEX Annuity calcs'!$B$9:$B$500,0)+$C52,F$6))","v":18.74779128716041},{"$f":"IF($B40=\"Blank\",0,OFFSET('CAPEX Annuity calcs'!$B$9,MATCH($B40,'CAPEX Annuity calcs'!$B$9:$B$500,0)+$C52,G$6))","v":18.765559678232343},{"$f":"IF($B40=\"Blank\",0,OFFSET('CAPEX Annuity calcs'!$B$9,MATCH($B40,'CAPEX Annuity calcs'!$B$9:$B$500,0)+$C52,H$6))","v":18.787465819916616},{"$f":"IF($B40=\"Blank\",0,OFFSET('CAPEX Annuity calcs'!$B$9,MATCH($B40,'CAPEX Annuity calcs'!$B$9:$B$500,0)+$C52,I$6))","v":18.813047608397444},null,null,null,null,null,null,null,"CAPEX Instalation costs",5.1191644016153672,5.1363811745644954,5.1412492269129713,5.1472509095661954,5.1401769421850938]
[null,null,null,null,{"$f":"SUM(E41:E52)","v":137.78111167810474},{"$f":"SUM(F41:F52)","v":136.9380472602752},121.13380434859684,120.27223004601652,119.61546243457501,null,null,null,null,null,null,null,null,{"$f":"ROUND(E53/R$2*100,3)","v":37.645000000000003},{"$f":"ROUND(F53/S$2*100,3)","v":37.517000000000003},{"$f":"ROUND(G53/T$2*100,3)","v":33.186999999999998},{"$f":"ROUND(H53/U$2*100,3)","v":32.951000000000001},{"$f":"ROUND(I53/V$2*100,3)","v":32.682000000000002}]
[]
[{"$f":"A40+1","v":4},{"$f":"IFERROR(VLOOKUP($A55,Inputs!$B$68:$AN$129,MATCH($B$7,Inputs!$B$68:$AN$68,0),FALSE),\"Blank\")","v":"2x24W Compact Fluorescent"},null,null,null,null,null,null,null,null,null,null,null,null,null,null,{"$f":"IFERROR(VLOOKUP($A55,Inputs!$B$68:$AN$129,MATCH($B$7,Inputs!$B$68:$AN$68,0),FALSE),\"Blank\")","v":"2x24W Compact Fluorescent"}]
[null,{"$f":"Inputs!$S$68","v":"Lamp UNIT price Annualised Cost"},{"$f":"Inputs!$Q$68","v":"Lamp Maintenance cycle"},null,{"$f":"IF($B55=\"Blank\",0,VLOOKUP($B55,Inputs!$C$68:$AN$129,MATCH($B56,Inputs!$C$68:$AN$68,0),FALSE))","v":2.1969279248938665},{"$f":"IF($B55=\"Blank\",0,VLOOKUP($B55,Inputs!$C$68:$AN$129,MATCH($B56,Inputs!$C$68:$AN$68,0),FALSE))","v":2.1969279248938665},{"$f":"IF($B55=\"Blank\",0,VLOOKUP($B55,Inputs!$C$68:$AN$129,MATCH($B56,Inputs!$C$68:$AN$68,0),FALSE))","v":2.1969279248938665},{"$f":"IF($B55=\"Blank\",0,VLOOKUP($B55,Inputs!$C$68:$AN$129,MATCH($B56,Inputs!$C$68:$AN$68,0),FALSE))","v":2.1969279248938665},{"$f":"IF($B55=\"Blank\",0,VLOOKUP($B55,Inputs!$C$68:$AN$129,MATCH($B56,Inputs!$C$68:$AN$68,0),FALSE))","v":2.1969279248938665},null,null,null,null,null,null,null,{"$f":"B56","v":"Lamp UNIT price Annualised Cost"},{"$f":"IF(E56=\"NA\",\"\",E56/R$2*100)","v":0.60025353139176674},{"$f":"IF(F56=\"NA\",\"\",F56/S$2*100)","v":0.6018980616147579},{"$f":"IF(G56=\"NA\",\"\",G56/T$2*100)","v":0.6018980616147579},{"$f":"IF(H56=\"NA\",\"\",H56/U$2*100)","v":0.6018980616147579},{"$f":"IF(I56=\"NA\",\"\",I56/V$2*100)","v":0.60025353139176674}]
[null,{"$f":"Inputs!$K$68","v":"PE Cell UNIT price Annualised Cost"},{"$f":"Inputs!$I$68","v":"PE Cell Maintenance Cycle"},null,{"$f":"IF($B55=\"Blank\",0,VLOOKUP($B55,Inputs!$C$68:$AN$129,MATCH($B57,Inputs!$C$68:$AN$68,0),FALSE))","v":0.58131255188333353},{"$f":"IF($B55=\"Blank\",0,VLOOKUP($B55,Inputs!$C$68:$AN$129,MATCH($B57,Inputs!$C$68:$AN$68,0),FALSE))","v":0.58131255188333353},{"$f":"IF($B55=\"Blank\",0,VLOOKUP($B55,Inputs!$C$68:$AN$129,MATCH($B57,Inputs!$C$68:$AN$68,0),FALSE))","v":0.58131255188333353},{"$f":"IF($B55=\"Blank\",0,VLOOKUP($B55,Inputs!$C$68:$AN$129,MATCH($B57,Inputs!$C$68:$AN$68,0),FALSE))","v":0.58131255188333353},{"$f":"IF($B55=\"Blank\",0,VLOOKUP($B55,Inputs!$C$68:$AN$129,MATCH($B57,Inputs!$C$68:$AN$68,0),FALSE))","v":0.58131255188333353},null,null,null,null,null,null,null,"PE Cell UNIT price Annualised Cost",0.15882856608834248,0.15926371284474891,0.15926371284474891,0.15926371284474891,0.15882856608834248]
[null,"Corp capex annuity per light",null,null,{"$f":"IF($B55=\"Blank\",0,'Corp Capex Annuity calcs'!F$142)","v":18.582309905017571},{"$f":"IF($B55=\"Blank\",0,'Corp Capex Annuity calcs'!G$142)","v":18.552026408230436},{"$f":"IF($B55=\"Blank\",0,'Corp Capex Annuity calcs'!H$142)","v":18.401377631486287},{"$f":"IF($B55=\"Blank\",0,'Corp Capex Annuity calcs'!I$142)","v":18.205761940470655},{"$f":"IF($B55=\"Blank\",0,'Corp Capex Annuity calcs'!J$142)","v":17.995165449295623},null,null,null,null,null,null,null,"Corp capex annuity per light",5.0771338538299373,5.0827469611590237,5.0414733236948734,4.9878799836905907,4.9167118713922466]
[null,{"$f":"Inputs!$U$68","v":"Lamp Service costs Annualised"},"Labour Portion of Lamp Service costs annualised",null,{"$f":"IF($B55=\"Blank\",0,VLOOKUP($B55,Inputs!$C$68:$AN$129,MATCH($B59,Inputs!$C$68:$AN$68,0),FALSE))+IFERROR(IF($B55=\"Blank\",0,VLOOKUP($B55,Inputs!$C$68:$AN$129,MATCH($C59,Inputs!$C$68:$AN$68,0),FALSE))*('Master Data'!K$42),0)","v":24.127490039840644},{"$f":"IF($B55=\"Blank\",0,VLOOKUP($B55,Inputs!$C$68:$AN$129,MATCH($B59,Inputs!$C$68:$AN$68,0),FALSE))+IFERROR(IF($B55=\"Blank\",0,VLOOKUP($B55,Inputs!$C$68:$AN$129,MATCH($C59,Inputs!$C$68:$AN$68,0),FALSE))*('Master Data'!L$42),0)","v":24.131023426294828},{"$f":"IF($B55=\"Blank\",0,VLOOKUP($B55,Inputs!$C$68:$AN$129,MATCH($B59,Inputs!$C$68:$AN$68,0),FALSE))+IFERROR(IF($B55=\"Blank\",0,VLOOKUP($B55,Inputs!$C$68:$AN$129,MATCH($C59,Inputs!$C$68:$AN$68,0),FALSE))*('Master Data'!M$42),0)","v":24.136412685577696},{"$f":"IF($B55=\"Blank\",0,VLOOKUP($B55,Inputs!$C$68:$AN$129,MATCH($B59,Inputs!$C$68:$AN$68,0),FALSE))+IFERROR(IF($B55=\"Blank\",0,VLOOKUP($B55,Inputs!$C$68:$AN$129,MATCH($C59,Inputs!$C$68:$AN$68,0),FALSE))*('Master Data'!N$42),0)","v":24.143056949368709},{"$f":"IF($B55=\"Blank\",0,VLOOKUP($B55,Inputs!$C$68:$AN$129,MATCH($B59,Inputs!$C$68:$AN$68,0),FALSE))+IFERROR(IF($B55=\"Blank\",0,VLOOKUP($B55,Inputs!$C$68:$AN$129,MATCH($C59,Inputs!$C$68:$AN$68,0),FALSE))*('Master Data'!O$42),0)","v":24.150816058816748},null,null,null,null,null,null,null,"Lamp Service costs Annualised",6.5922103933990828,6.611239294875296,6.6127158042678618,6.6145361505119755,6.598583622627527]
[null,{"$f":"Inputs!$M$68","v":"PE Cell Service costs Annualised"},"Labour Portion of PE Cell Service costs Annualised",null,{"$f":"IF($B55=\"Blank\",0,VLOOKUP($B55,Inputs!$C$68:$AN$129,MATCH($B60,Inputs!$C$68:$AN$68,0),FALSE))+IFERROR(IF($B55=\"Blank\",0,VLOOKUP($B55,Inputs!$C$68:$AN$129,MATCH($C60,Inputs!$C$68:$AN$68,0),FALSE))*('Master Data'!K$42),0)","v":0},{"$f":"IF($B55=\"Blank\",0,VLOOKUP($B55,Inputs!$C$68:$AN$129,MATCH($B60,Inputs!$C$68:$AN$68,0),FALSE))+IFERROR(IF($B55=\"Blank\",0,VLOOKUP($B55,Inputs!$C$68:$AN$129,MATCH($C60,Inputs!$C$68:$AN$68,0),FALSE))*('Master Data'!L$42),0)","v":0},{"$f":"IF($B55=\"Blank\",0,VLOOKUP($B55,Inputs!$C$68:$AN$129,MATCH($B60,Inputs!$C$68:$AN$68,0),FALSE))+IFERROR(IF($B55=\"Blank\",0,VLOOKUP($B55,Inputs!$C$68:$AN$129,MATCH($C60,Inputs!$C$68:$AN$68,0),FALSE))*('Master Data'!M$42),0)","v":0},{"$f":"IF($B55=\"Blank\",0,VLOOKUP($B55,Inputs!$C$68:$AN$129,MATCH($B60,Inputs!$C$68:$AN$68,0),FALSE))+IFERROR(IF($B55=\"Blank\",0,VLOOKUP($B55,Inputs!$C$68:$AN$129,MATCH($C60,Inputs!$C$68:$AN$68,0),FALSE))*('Master Data'!N$42),0)","v":0},{"$f":"IF($B55=\"Blank\",0,VLOOKUP($B55,Inputs!$C$68:$AN$129,MATCH($B60,Inputs!$C$68:$AN$68,0),FALSE))+IFERROR(IF($B55=\"Blank\",0,VLOOKUP($B55,Inputs!$C$68:$AN$129,MATCH($C60,Inputs!$C$68:$AN$68,0),FALSE))*('Master Data'!O$42),0)","v":0},null,null,null,null,null,null,null,"PE Cell Service costs Annualised",0,0,0,0,0]
[null,"Indirect Opex",null,null,{"$f":"IF($B55=\"Blank\",0,IF($B$8=\"Private Contract Lighting\",'Opex Weighting'!D$48,'Opex Weighting'!D$46))","v":25.762407087322877},{"$f":"IF($B55=\"Blank\",0,IF($B$8=\"Private Contract Lighting\",'Opex Weighting'!E$48,'Opex Weighting'!E$46))","v":25.880403763800857},{"$f":"IF($B55=\"Blank\",0,IF($B$8=\"Private Contract Lighting\",'Opex Weighting'!F$48,'Opex Weighting'!F$46))","v":20.013740175030701},{"$f":"IF($B55=\"Blank\",0,IF($B$8=\"Private Contract Lighting\",'Opex Weighting'!G$48,'Opex Weighting'!G$46))","v":19.55949970528431},{"$f":"IF($B55=\"Blank\",0,IF($B$8=\"Private Contract Lighting\",'Opex Weighting'!H$48,'Opex Weighting'!H$46))","v":19.096814305933613},null,null,null,null,null,null,null,"Indirect Opex",7.0389090402521521,7.0905215791235223,5.4832164863097814,5.3587670425436471,5.2177088267578178]
[null,"Indirect Capex",null,null,{"$f":"'Capex Weighting'!D$59","v":0},{"$f":"'Capex Weighting'!E$59","v":0},{"$f":"'Capex Weighting'!F$59","v":0},{"$f":"'Capex Weighting'!G$59","v":0},{"$f":"'Capex Weighting'!H$59","v":0},null,null,null,null,null,null,null,"Indirect Capex",0,0,0,0,0]
[null,"Opex Overheads Costs per light",null,null,{"$f":"IF($B55=\"Blank\",0,IF($B$8=\"Private Contract Lighting\",'Building Block'!C$40,'Building Block'!C$39))","v":32.224036557323004},{"$f":"IF($B55=\"Blank\",0,IF($B$8=\"Private Contract Lighting\",'Building Block'!D$40,'Building Block'!D$39))","v":31.278075996100256},{"$f":"IF($B55=\"Blank\",0,IF($B$8=\"Private Contract Lighting\",'Building Block'!E$40,'Building Block'!E$39))","v":21.467987799581408},{"$f":"IF($B55=\"Blank\",0,IF($B$8=\"Private Contract Lighting\",'Building Block'!F$40,'Building Block'!F$39))","v":21.22771925228782},{"$f":"IF($B55=\"Blank\",0,IF($B$8=\"Private Contract Lighting\",'Building Block'!G$40,'Building Block'!G$39))","v":21.210892633443169},null,null,null,null,null,null,null,"Opex Overheads Costs per light",8.8043815730390715,8.5693358893425362,5.8816404930360022,5.815813493777485,5.7953258561320133]
[null,{"$f":"Inputs!$AK$68","v":"Bracket UNIT price"},0,null,{"$f":"IF($B55=\"Blank\",0,OFFSET('CAPEX Annuity calcs'!$B$9,MATCH($B55,'CAPEX Annuity calcs'!$B$9:$B$500,0)+$C64,E$6))","v":4.4663770297759422},{"$f":"IF($B55=\"Blank\",0,OFFSET('CAPEX Annuity calcs'!$B$9,MATCH($B55,'CAPEX Annuity calcs'!$B$9:$B$500,0)+$C64,F$6))","v":4.4663770297759422},{"$f":"IF($B55=\"Blank\",0,OFFSET('CAPEX Annuity calcs'!$B$9,MATCH($B55,'CAPEX Annuity calcs'!$B$9:$B$500,0)+$C64,G$6))","v":4.4663770297759422},{"$f":"IF($B55=\"Blank\",0,OFFSET('CAPEX Annuity calcs'!$B$9,MATCH($B55,'CAPEX Annuity calcs'!$B$9:$B$500,0)+$C64,H$6))","v":4.4663770297759422},{"$f":"IF($B55=\"Blank\",0,OFFSET('CAPEX Annuity calcs'!$B$9,MATCH($B55,'CAPEX Annuity calcs'!$B$9:$B$500,0)+$C64,I$6))","v":4.4663770297759422},null,null,null,null,null,null,null,"Bracket UNIT price",1.2203215928349569,1.2236649396646417,1.2236649396646417,1.2236649396646417,1.2203215928349569]
[null,{"$f":"Inputs!$AA$68","v":"CAPEX Instalation costs"},{"$f":"C64+1","v":1},null,{"$f":"IF($B55=\"Blank\",0,OFFSET('CAPEX Annuity calcs'!$B$9,MATCH($B55,'CAPEX Annuity calcs'!$B$9:$B$500,0)+$C65,E$6))","v":0},{"$f":"IF($B55=\"Blank\",0,OFFSET('CAPEX Annuity calcs'!$B$9,MATCH($B55,'CAPEX Annuity calcs'!$B$9:$B$500,0)+$C65,F$6))","v":0},{"$f":"IF($B55=\"Blank\",0,OFFSET('CAPEX Annuity calcs'!$B$9,MATCH($B55,'CAPEX Annuity calcs'!$B$9:$B$500,0)+$C65,G$6))","v":0},{"$f":"IF($B55=\"Blank\",0,OFFSET('CAPEX Annuity calcs'!$B$9,MATCH($B55,'CAPEX Annuity calcs'!$B$9:$B$500,0)+$C65,H$6))","v":0},{"$f":"IF($B55=\"Blank\",0,OFFSET('CAPEX Annuity calcs'!$B$9,MATCH($B55,'CAPEX Annuity calcs'!$B$9:$B$500,0)+$C65,I$6))","v":0},null,null,null,null,null,null,null,"CAPEX Instalation costs",0,0,0,0,0]
[null,{"$f":"Inputs!$Z$68","v":"Luminaire UNIT price"},{"$f":"C65+1","v":2},null,{"$f":"IF($B55=\"Blank\",0,OFFSET('CAPEX Annuity calcs'!$B$9,MATCH($B55,'CAPEX Annuity calcs'!$B$9:$B$500,0)+$C66,E$6))","v":13.208916292020449},{"$f":"IF($B55=\"Blank\",0,OFFSET('CAPEX Annuity calcs'!$B$9,MATCH($B55,'CAPEX Annuity calcs'!$B$9:$B$500,0)+$C66,F$6))","v":13.208916292020449},{"$f":"IF($B55=\"Blank\",0,OFFSET('CAPEX Annuity calcs'!$B$9,MATCH($B55,'CAPEX Annuity calcs'!$B$9:$B$500,0)+$C66,G$6))","v":13.208916292020449},{"$f":"IF($B55=\"Blank\",0,OFFSET('CAPEX Annuity calcs'!$B$9,MATCH($B55,'CAPEX Annuity calcs'!$B$9:$B$500,0)+$C66,H$6))","v":13.208916292020449},{"$f":"IF($B55=\"Blank\",0,OFFSET('CAPEX Annuity calcs'!$B$9,MATCH($B55,'CAPEX Annuity calcs'!$B$9:$B$500,0)+$C66,I$6))","v":13.208916292020449},null,null,null,null,null,null,null,"Luminaire UNIT price",3.6089935224099587,3.6188811758960133,3.6188811758960133,3.6188811758960133,3.6089935224099587]
[null,{"$f":"Inputs!$AA$68","v":"CAPEX Instalation costs"},3,null,{"$f":"IF($B55=\"Blank\",0,OFFSET('CAPEX Annuity calcs'!$B$9,MATCH($B55,'CAPEX Annuity calcs'!$B$9:$B$500,0)+$C67,E$6))","v":18.736141709912243},{"$f":"IF($B55=\"Blank\",0,OFFSET('CAPEX Annuity calcs'!$B$9,MATCH($B55,'CAPEX Annuity calcs'!$B$9:$B$500,0)+$C67,F$6))","v":18.74779128716041},{"$f":"IF($B55=\"Blank\",0,OFFSET('CAPEX Annuity calcs'!$B$9,MATCH($B55,'CAPEX Annuity calcs'!$B$9:$B$500,0)+$C67,G$6))","v":18.765559678232343},{"$f":"IF($B55=\"Blank\",0,OFFSET('CAPEX Annuity calcs'!$B$9,MATCH($B55,'CAPEX Annuity calcs'!$B$9:$B$500,0)+$C67,H$6))","v":18.787465819916616},{"$f":"IF($B55=\"Blank\",0,OFFSET('CAPEX Annuity calcs'!$B$9,MATCH($B55,'CAPEX Annuity calcs'!$B$9:$B$500,0)+$C67,I$6))","v":18.813047608397444},null,null,null,null,null,null,null,"CAPEX Instalation costs",5.1191644016153672,5.1363811745644954,5.1412492269129713,5.1472509095661954,5.1401769421850938]
[null,null,null,null,{"$f":"SUM(E56:E67)","v":139.88591909798993},{"$f":"SUM(F56:F67)","v":139.04285468016036},123.23861176848203,122.37703746590171,121.72026985446018,null,null,null,null,null,null,null,null,{"$f":"ROUND(E68/R$2*100,3)","v":38.22},{"$f":"ROUND(F68/S$2*100,3)","v":38.094000000000001},{"$f":"ROUND(G68/T$2*100,3)","v":33.764000000000003},{"$f":"ROUND(H68/U$2*100,3)","v":33.527999999999999},{"$f":"ROUND(I68/V$2*100,3)","v":33.256999999999998}]
[]
[{"$f":"A55+1","v":5},{"$f":"IFERROR(VLOOKUP($A70,Inputs!$B$68:$AN$129,MATCH($B$7,Inputs!$B$68:$AN$68,0),FALSE),\"Blank\")","v":"1x20W Fluorescent"},null,null,null,null,null,null,null,null,null,null,null,null,null,null,{"$f":"IFERROR(VLOOKUP($A70,Inputs!$B$68:$AN$129,MATCH($B$7,Inputs!$B$68:$AN$68,0),FALSE),\"Blank\")","v":"1x20W Fluorescent"}]
[null,{"$f":"Inputs!$S$68","v":"Lamp UNIT price Annualised Cost"},{"$f":"Inputs!$Q$68","v":"Lamp Maintenance cycle"},null,{"$f":"IF($B70=\"Blank\",0,VLOOKUP($B70,Inputs!$C$68:$AN$129,MATCH($B71,Inputs!$C$68:$AN$68,0),FALSE))","v":1.0091820797879187},{"$f":"IF($B70=\"Blank\",0,VLOOKUP($B70,Inputs!$C$68:$AN$129,MATCH($B71,Inputs!$C$68:$AN$68,0),FALSE))","v":1.0091820797879187},{"$f":"IF($B70=\"Blank\",0,VLOOKUP($B70,Inputs!$C$68:$AN$129,MATCH($B71,Inputs!$C$68:$AN$68,0),FALSE))","v":1.0091820797879187},{"$f":"IF($B70=\"Blank\",0,VLOOKUP($B70,Inputs!$C$68:$AN$129,MATCH($B71,Inputs!$C$68:$AN$68,0),FALSE))","v":1.0091820797879187},{"$f":"IF($B70=\"Blank\",0,VLOOKUP($B70,Inputs!$C$68:$AN$129,MATCH($B71,Inputs!$C$68:$AN$68,0),FALSE))","v":1.0091820797879187},null,null,null,null,null,null,null,{"$f":"B71","v":"Lamp UNIT price Annualised Cost"},{"$f":"IF(E71=\"NA\",\"\",E71/R$2*100)","v":0.27573280868522371},{"$f":"IF(F71=\"NA\",\"\",F71/S$2*100)","v":0.27648824103778596},{"$f":"IF(G71=\"NA\",\"\",G71/T$2*100)","v":0.27648824103778596},{"$f":"IF(H71=\"NA\",\"\",H71/U$2*100)","v":0.27648824103778596},{"$f":"IF(I71=\"NA\",\"\",I71/V$2*100)","v":0.27573280868522371}]
[null,{"$f":"Inputs!$K$68","v":"PE Cell UNIT price Annualised Cost"},{"$f":"Inputs!$I$68","v":"PE Cell Maintenance Cycle"},null,{"$f":"IF($B70=\"Blank\",0,VLOOKUP($B70,Inputs!$C$68:$AN$129,MATCH($B72,Inputs!$C$68:$AN$68,0),FALSE))","v":0.58131255188333353},{"$f":"IF($B70=\"Blank\",0,VLOOKUP($B70,Inputs!$C$68:$AN$129,MATCH($B72,Inputs!$C$68:$AN$68,0),FALSE))","v":0.58131255188333353},{"$f":"IF($B70=\"Blank\",0,VLOOKUP($B70,Inputs!$C$68:$AN$129,MATCH($B72,Inputs!$C$68:$AN$68,0),FALSE))","v":0.58131255188333353},{"$f":"IF($B70=\"Blank\",0,VLOOKUP($B70,Inputs!$C$68:$AN$129,MATCH($B72,Inputs!$C$68:$AN$68,0),FALSE))","v":0.58131255188333353},{"$f":"IF($B70=\"Blank\",0,VLOOKUP($B70,Inputs!$C$68:$AN$129,MATCH($B72,Inputs!$C$68:$AN$68,0),FALSE))","v":0.58131255188333353},null,null,null,null,null,null,null,"PE Cell UNIT price Annualised Cost",0.15882856608834248,0.15926371284474891,0.15926371284474891,0.15926371284474891,0.15882856608834248]
[null,"Corp capex annuity per light",null,null,{"$f":"IF($B70=\"Blank\",0,'Corp Capex Annuity calcs'!F$142)","v":18.582309905017571},{"$f":"IF($B70=\"Blank\",0,'Corp Capex Annuity calcs'!G$142)","v":18.552026408230436},{"$f":"IF($B70=\"Blank\",0,'Corp Capex Annuity calcs'!H$142)","v":18.401377631486287},{"$f":"IF($B70=\"Blank\",0,'Corp Capex Annuity calcs'!I$142)","v":18.205761940470655},{"$f":"IF($B70=\"Blank\",0,'Corp Capex Annuity calcs'!J$142)","v":17.995165449295623},null,null,null,null,null,null,null,"Corp capex annuity per light",5.0771338538299373,5.0827469611590237,5.0414733236948734,4.9878799836905907,4.9167118713922466]
[null,{"$f":"Inputs!$U$68","v":"Lamp Service costs Annualised"},"Labour Portion of Lamp Service costs annualised",null,{"$f":"IF($B70=\"Blank\",0,VLOOKUP($B70,Inputs!$C$68:$AN$129,MATCH($B74,Inputs!$C$68:$AN$68,0),FALSE))+IFERROR(IF($B70=\"Blank\",0,VLOOKUP($B70,Inputs!$C$68:$AN$129,MATCH($C74,Inputs!$C$68:$AN$68,0),FALSE))*('Master Data'!K$42),0)","v":24.127490039840644},{"$f":"IF($B70=\"Blank\",0,VLOOKUP($B70,Inputs!$C$68:$AN$129,MATCH($B74,Inputs!$C$68:$AN$68,0),FALSE))+IFERROR(IF($B70=\"Blank\",0,VLOOKUP($B70,Inputs!$C$68:$AN$129,MATCH($C74,Inputs!$C$68:$AN$68,0),FALSE))*('Master Data'!L$42),0)","v":24.131023426294828},{"$f":"IF($B70=\"Blank\",0,VLOOKUP($B70,Inputs!$C$68:$AN$129,MATCH($B74,Inputs!$C$68:$AN$68,0),FALSE))+IFERROR(IF($B70=\"Blank\",0,VLOOKUP($B70,Inputs!$C$68:$AN$129,MATCH($C74,Inputs!$C$68:$AN$68,0),FALSE))*('Master Data'!M$42),0)","v":24.136412685577696},{"$f":"IF($B70=\"Blank\",0,VLOOKUP($B70,Inputs!$C$68:$AN$129,MATCH($B74,Inputs!$C$68:$AN$68,0),FALSE))+IFERROR(IF($B70=\"Blank\",0,VLOOKUP($B70,Inputs!$C$68:$AN$129,MATCH($C74,Inputs!$C$68:$AN$68,0),FALSE))*('Master Data'!N$42),0)","v":24.143056949368709},{"$f":"IF($B70=\"Blank\",0,VLOOKUP($B70,Inputs!$C$68:$AN$129,MATCH($B74,Inputs!$C$68:$AN$68,0),FALSE))+IFERROR(IF($B70=\"Blank\",0,VLOOKUP($B70,Inputs!$C$68:$AN$129,MATCH($C74,Inputs!$C$68:$AN$68,0),FALSE))*('Master Data'!O$42),0)","v":24.150816058816748},null,null,null,null,null,null,null,"Lamp Service costs Annualised",6.5922103933990828,6.611239294875296,6.6127158042678618,6.6145361505119755,6.598583622627527]
[null,{"$f":"Inputs!$M$68","v":"PE Cell Service costs Annualised"},"Labour Portion of PE Cell Service costs Annualised",null,{"$f":"IF($B70=\"Blank\",0,VLOOKUP($B70,Inputs!$C$68:$AN$129,MATCH($B75,Inputs!$C$68:$AN$68,0),FALSE))+IFERROR(IF($B70=\"Blank\",0,VLOOKUP($B70,Inputs!$C$68:$AN$129,MATCH($C75,Inputs!$C$68:$AN$68,0),FALSE))*('Master Data'!K$42),0)","v":0},{"$f":"IF($B70=\"Blank\",0,VLOOKUP($B70,Inputs!$C$68:$AN$129,MATCH($B75,Inputs!$C$68:$AN$68,0),FALSE))+IFERROR(IF($B70=\"Blank\",0,VLOOKUP($B70,Inputs!$C$68:$AN$129,MATCH($C75,Inputs!$C$68:$AN$68,0),FALSE))*('Master Data'!L$42),0)","v":0},{"$f":"IF($B70=\"Blank\",0,VLOOKUP($B70,Inputs!$C$68:$AN$129,MATCH($B75,Inputs!$C$68:$AN$68,0),FALSE))+IFERROR(IF($B70=\"Blank\",0,VLOOKUP($B70,Inputs!$C$68:$AN$129,MATCH($C75,Inputs!$C$68:$AN$68,0),FALSE))*('Master Data'!M$42),0)","v":0},{"$f":"IF($B70=\"Blank\",0,VLOOKUP($B70,Inputs!$C$68:$AN$129,MATCH($B75,Inputs!$C$68:$AN$68,0),FALSE))+IFERROR(IF($B70=\"Blank\",0,VLOOKUP($B70,Inputs!$C$68:$AN$129,MATCH($C75,Inputs!$C$68:$AN$68,0),FALSE))*('Master Data'!N$42),0)","v":0},{"$f":"IF($B70=\"Blank\",0,VLOOKUP($B70,Inputs!$C$68:$AN$129,MATCH($B75,Inputs!$C$68:$AN$68,0),FALSE))+IFERROR(IF($B70=\"Blank\",0,VLOOKUP($B70,Inputs!$C$68:$AN$129,MATCH($C75,Inputs!$C$68:$AN$68,0),FALSE))*('Master Data'!O$42),0)","v":0},null,null,null,null,null,null,null,"PE Cell Service costs Annualised",0,0,0,0,0]
[null,"Indirect Opex",null,null,{"$f":"IF($B70=\"Blank\",0,IF($B$8=\"Private Contract Lighting\",'Opex Weighting'!D$48,'Opex Weighting'!D$46))","v":25.762407087322877},{"$f":"IF($B70=\"Blank\",0,IF($B$8=\"Private Contract Lighting\",'Opex Weighting'!E$48,'Opex Weighting'!E$46))","v":25.880403763800857},{"$f":"IF($B70=\"Blank\",0,IF($B$8=\"Private Contract Lighting\",'Opex Weighting'!F$48,'Opex Weighting'!F$46))","v":20.013740175030701},{"$f":"IF($B70=\"Blank\",0,IF($B$8=\"Private Contract Lighting\",'Opex Weighting'!G$48,'Opex Weighting'!G$46))","v":19.55949970528431},{"$f":"IF($B70=\"Blank\",0,IF($B$8=\"Private Contract Lighting\",'Opex Weighting'!H$48,'Opex Weighting'!H$46))","v":19.096814305933613},null,null,null,null,null,null,null,"Indirect Opex",7.0389090402521521,7.0905215791235223,5.4832164863097814,5.3587670425436471,5.2177088267578178]
[null,"Indirect Capex",null,null,{"$f":"'Capex Weighting'!D$59","v":0},{"$f":"'Capex Weighting'!E$59","v":0},{"$f":"'Capex Weighting'!F$59","v":0},{"$f":"'Capex Weighting'!G$59","v":0},{"$f":"'Capex Weighting'!H$59","v":0},null,null,null,null,null,null,null,"Indirect Capex",0,0,0,0,0]
[null,"Opex Overheads Costs per light",null,null,{"$f":"IF($B70=\"Blank\",0,IF($B$8=\"Private Contract Lighting\",'Building Block'!C$40,'Building Block'!C$39))","v":32.224036557323004},{"$f":"IF($B70=\"Blank\",0,IF($B$8=\"Private Contract Lighting\",'Building Block'!D$40,'Building Block'!D$39))","v":31.278075996100256},{"$f":"IF($B70=\"Blank\",0,IF($B$8=\"Private Contract Lighting\",'Building Block'!E$40,'Building Block'!E$39))","v":21.467987799581408},{"$f":"IF($B70=\"Blank\",0,IF($B$8=\"Private Contract Lighting\",'Building Block'!F$40,'Building Block'!F$39))","v":21.22771925228782},{"$f":"IF($B70=\"Blank\",0,IF($B$8=\"Private Contract Lighting\",'Building Block'!G$40,'Building Block'!G$39))","v":21.210892633443169},null,null,null,null,null,null,null,"Opex Overheads Costs per light",8.8043815730390715,8.5693358893425362,5.8816404930360022,5.815813493777485,5.7953258561320133]
[null,{"$f":"Inputs!$AK$68","v":"Bracket UNIT price"},0,null,{"$f":"IF($B70=\"Blank\",0,OFFSET('CAPEX Annuity calcs'!$B$9,MATCH($B70,'CAPEX Annuity calcs'!$B$9:$B$500,0)+$C79,E$6))","v":6.1673796159250225},{"$f":"IF($B70=\"Blank\",0,OFFSET('CAPEX Annuity calcs'!$B$9,MATCH($B70,'CAPEX Annuity calcs'!$B$9:$B$500,0)+$C79,F$6))","v":6.1673796159250225},{"$f":"IF($B70=\"Blank\",0,OFFSET('CAPEX Annuity calcs'!$B$9,MATCH($B70,'CAPEX Annuity calcs'!$B$9:$B$500,0)+$C79,G$6))","v":6.1673796159250225},{"$f":"IF($B70=\"Blank\",0,OFFSET('CAPEX Annuity calcs'!$B$9,MATCH($B70,'CAPEX Annuity calcs'!$B$9:$B$500,0)+$C79,H$6))","v":6.1673796159250225},{"$f":"IF($B70=\"Blank\",0,OFFSET('CAPEX Annuity calcs'!$B$9,MATCH($B70,'CAPEX Annuity calcs'!$B$9:$B$500,0)+$C79,I$6))","v":6.1673796159250225},null,null,null,null,null,null,null,"Bracket UNIT price",1.6850763977937218,1.6896930454589103,1.6896930454589103,1.6896930454589103,1.6850763977937218]
[null,{"$f":"Inputs!$AA$68","v":"CAPEX Instalation costs"},{"$f":"C79+1","v":1},null,{"$f":"IF($B70=\"Blank\",0,OFFSET('CAPEX Annuity calcs'!$B$9,MATCH($B70,'CAPEX Annuity calcs'!$B$9:$B$500,0)+$C80,E$6))","v":0},{"$f":"IF($B70=\"Blank\",0,OFFSET('CAPEX Annuity calcs'!$B$9,MATCH($B70,'CAPEX Annuity calcs'!$B$9:$B$500,0)+$C80,F$6))","v":0},{"$f":"IF($B70=\"Blank\",0,OFFSET('CAPEX Annuity calcs'!$B$9,MATCH($B70,'CAPEX Annuity calcs'!$B$9:$B$500,0)+$C80,G$6))","v":0},{"$f":"IF($B70=\"Blank\",0,OFFSET('CAPEX Annuity calcs'!$B$9,MATCH($B70,'CAPEX Annuity calcs'!$B$9:$B$500,0)+$C80,H$6))","v":0},{"$f":"IF($B70=\"Blank\",0,OFFSET('CAPEX Annuity calcs'!$B$9,MATCH($B70,'CAPEX Annuity calcs'!$B$9:$B$500,0)+$C80,I$6))","v":0},null,null,null,null,null,null,null,"CAPEX Instalation costs",0,0,0,0,0]
[null,{"$f":"Inputs!$Z$68","v":"Luminaire UNIT price"},{"$f":"C80+1","v":2},null,{"$f":"IF($B70=\"Blank\",0,OFFSET('CAPEX Annuity calcs'!$B$9,MATCH($B70,'CAPEX Annuity calcs'!$B$9:$B$500,0)+$C81,E$6))","v":17.729617151402259},{"$f":"IF($B70=\"Blank\",0,OFFSET('CAPEX Annuity calcs'!$B$9,MATCH($B70,'CAPEX Annuity calcs'!$B$9:$B$500,0)+$C81,F$6))","v":17.729617151402259},{"$f":"IF($B70=\"Blank\",0,OFFSET('CAPEX Annuity calcs'!$B$9,MATCH($B70,'CAPEX Annuity calcs'!$B$9:$B$500,0)+$C81,G$6))","v":17.729617151402259},{"$f":"IF($B70=\"Blank\",0,OFFSET('CAPEX Annuity calcs'!$B$9,MATCH($B70,'CAPEX Annuity calcs'!$B$9:$B$500,0)+$C81,H$6))","v":17.729617151402259},{"$f":"IF($B70=\"Blank\",0,OFFSET('CAPEX Annuity calcs'!$B$9,MATCH($B70,'CAPEX Annuity calcs'!$B$9:$B$500,0)+$C81,I$6))","v":17.729617151402259},null,null,null,null,null,null,null,"Luminaire UNIT price",4.8441576916399613,4.8574293565485638,4.8574293565485638,4.8574293565485638,4.8441576916399613]
[null,{"$f":"Inputs!$AA$68","v":"CAPEX Instalation costs"},3,null,{"$f":"IF($B70=\"Blank\",0,OFFSET('CAPEX Annuity calcs'!$B$9,MATCH($B70,'CAPEX Annuity calcs'!$B$9:$B$500,0)+$C82,E$6))","v":18.736141709912243},{"$f":"IF($B70=\"Blank\",0,OFFSET('CAPEX Annuity calcs'!$B$9,MATCH($B70,'CAPEX Annuity calcs'!$B$9:$B$500,0)+$C82,F$6))","v":18.74779128716041},{"$f":"IF($B70=\"Blank\",0,OFFSET('CAPEX Annuity calcs'!$B$9,MATCH($B70,'CAPEX Annuity calcs'!$B$9:$B$500,0)+$C82,G$6))","v":18.765559678232343},{"$f":"IF($B70=\"Blank\",0,OFFSET('CAPEX Annuity calcs'!$B$9,MATCH($B70,'CAPEX Annuity calcs'!$B$9:$B$500,0)+$C82,H$6))","v":18.787465819916616},{"$f":"IF($B70=\"Blank\",0,OFFSET('CAPEX Annuity calcs'!$B$9,MATCH($B70,'CAPEX Annuity calcs'!$B$9:$B$500,0)+$C82,I$6))","v":18.813047608397444},null,null,null,null,null,null,null,"CAPEX Instalation costs",5.1191644016153672,5.1363811745644954,5.1412492269129713,5.1472509095661954,5.1401769421850938]
[null,null,null,null,{"$f":"SUM(E71:E82)","v":144.91987669841487},{"$f":"SUM(F71:F82)","v":144.07681228058533},128.27256936890697,127.41099506632666,126.75422745488514,null,null,null,null,null,null,null,null,{"$f":"ROUND(E83/R$2*100,3)","v":39.595999999999997},{"$f":"ROUND(F83/S$2*100,3)","v":39.472999999999999},{"$f":"ROUND(G83/T$2*100,3)","v":35.143000000000001},{"$f":"ROUND(H83/U$2*100,3)","v":34.906999999999996},{"$f":"ROUND(I83/V$2*100,3)","v":34.631999999999998}]
[]
[{"$f":"A70+1","v":6},{"$f":"IFERROR(VLOOKUP($A85,Inputs!$B$68:$AN$129,MATCH($B$7,Inputs!$B$68:$AN$68,0),FALSE),\"Blank\")","v":"1x40W Fluorescent"},null,null,null,null,null,null,null,null,null,null,null,null,null,null,{"$f":"IFERROR(VLOOKUP($A85,Inputs!$B$68:$AN$129,MATCH($B$7,Inputs!$B$68:$AN$68,0),FALSE),\"Blank\")","v":"1x40W Fluorescent"}]
[null,{"$f":"Inputs!$S$68","v":"Lamp UNIT price Annualised Cost"},{"$f":"Inputs!$Q$68","v":"Lamp Maintenance cycle"},null,{"$f":"IF($B85=\"Blank\",0,VLOOKUP($B85,Inputs!$C$68:$AN$129,MATCH($B86,Inputs!$C$68:$AN$68,0),FALSE))","v":1.074743792627969},{"$f":"IF($B85=\"Blank\",0,VLOOKUP($B85,Inputs!$C$68:$AN$129,MATCH($B86,Inputs!$C$68:$AN$68,0),FALSE))","v":1.074743792627969},{"$f":"IF($B85=\"Blank\",0,VLOOKUP($B85,Inputs!$C$68:$AN$129,MATCH($B86,Inputs!$C$68:$AN$68,0),FALSE))","v":1.074743792627969},{"$f":"IF($B85=\"Blank\",0,VLOOKUP($B85,Inputs!$C$68:$AN$129,MATCH($B86,Inputs!$C$68:$AN$68,0),FALSE))","v":1.074743792627969},{"$f":"IF($B85=\"Blank\",0,VLOOKUP($B85,Inputs!$C$68:$AN$129,MATCH($B86,Inputs!$C$68:$AN$68,0),FALSE))","v":1.074743792627969},null,null,null,null,null,null,null,{"$f":"B86","v":"Lamp UNIT price Annualised Cost"},{"$f":"IF(E86=\"NA\",\"\",E86/R$2*100)","v":0.29364584498031943},{"$f":"IF(F86=\"NA\",\"\",F86/S$2*100)","v":0.2944503541446491},{"$f":"IF(G86=\"NA\",\"\",G86/T$2*100)","v":0.2944503541446491},{"$f":"IF(H86=\"NA\",\"\",H86/U$2*100)","v":0.2944503541446491},{"$f":"IF(I86=\"NA\",\"\",I86/V$2*100)","v":0.29364584498031943}]
[null,{"$f":"Inputs!$K$68","v":"PE Cell UNIT price Annualised Cost"},{"$f":"Inputs!$I$68","v":"PE Cell Maintenance Cycle"},null,{"$f":"IF($B85=\"Blank\",0,VLOOKUP($B85,Inputs!$C$68:$AN$129,MATCH($B87,Inputs!$C$68:$AN$68,0),FALSE))","v":0.58131255188333353},{"$f":"IF($B85=\"Blank\",0,VLOOKUP($B85,Inputs!$C$68:$AN$129,MATCH($B87,Inputs!$C$68:$AN$68,0),FALSE))","v":0.58131255188333353},{"$f":"IF($B85=\"Blank\",0,VLOOKUP($B85,Inputs!$C$68:$AN$129,MATCH($B87,Inputs!$C$68:$AN$68,0),FALSE))","v":0.58131255188333353},{"$f":"IF($B85=\"Blank\",0,VLOOKUP($B85,Inputs!$C$68:$AN$129,MATCH($B87,Inputs!$C$68:$AN$68,0),FALSE))","v":0.58131255188333353},{"$f":"IF($B85=\"Blank\",0,VLOOKUP($B85,Inputs!$C$68:$AN$129,MATCH($B87,Inputs!$C$68:$AN$68,0),FALSE))","v":0.58131255188333353},null,null,null,null,null,null,null,"PE Cell UNIT price Annualised Cost",0.15882856608834248,0.15926371284474891,0.15926371284474891,0.15926371284474891,0.15882856608834248]
[null,"Corp capex annuity per light",null,null,{"$f":"IF($B85=\"Blank\",0,'Corp Capex Annuity calcs'!F$142)","v":18.582309905017571},{"$f":"IF($B85=\"Blank\",0,'Corp Capex Annuity calcs'!G$142)","v":18.552026408230436},{"$f":"IF($B85=\"Blank\",0,'Corp Capex Annuity calcs'!H$142)","v":18.401377631486287},{"$f":"IF($B85=\"Blank\",0,'Corp Capex Annuity calcs'!I$142)","v":18.205761940470655},{"$f":"IF($B85=\"Blank\",0,'Corp Capex Annuity calcs'!J$142)","v":17.995165449295623},null,null,null,null,null,null,null,"Corp capex annuity per light",5.0771338538299373,5.0827469611590237,5.0414733236948734,4.9878799836905907,4.9167118713922466]
[null,{"$f":"Inputs!$U$68","v":"Lamp Service costs Annualised"},"Labour Portion of Lamp Service costs annualised",null,{"$f":"IF($B85=\"Blank\",0,VLOOKUP($B85,Inputs!$C$68:$AN$129,MATCH($B89,Inputs!$C$68:$AN$68,0),FALSE))+IFERROR(IF($B85=\"Blank\",0,VLOOKUP($B85,Inputs!$C$68:$AN$129,MATCH($C89,Inputs!$C$68:$AN$68,0),FALSE))*('Master Data'!K$42),0)","v":24.127490039840644},{"$f":"IF($B85=\"Blank\",0,VLOOKUP($B85,Inputs!$C$68:$AN$129,MATCH($B89,Inputs!$C$68:$AN$68,0),FALSE))+IFERROR(IF($B85=\"Blank\",0,VLOOKUP($B85,Inputs!$C$68:$AN$129,MATCH($C89,Inputs!$C$68:$AN$68,0),FALSE))*('Master Data'!L$42),0)","v":24.131023426294828},{"$f":"IF($B85=\"Blank\",0,VLOOKUP($B85,Inputs!$C$68:$AN$129,MATCH($B89,Inputs!$C$68:$AN$68,0),FALSE))+IFERROR(IF($B85=\"Blank\",0,VLOOKUP($B85,Inputs!$C$68:$AN$129,MATCH($C89,Inputs!$C$68:$AN$68,0),FALSE))*('Master Data'!M$42),0)","v":24.136412685577696},{"$f":"IF($B85=\"Blank\",0,VLOOKUP($B85,Inputs!$C$68:$AN$129,MATCH($B89,Inputs!$C$68:$AN$68,0),FALSE))+IFERROR(IF($B85=\"Blank\",0,VLOOKUP($B85,Inputs!$C$68:$AN$129,MATCH($C89,Inputs!$C$68:$AN$68,0),FALSE))*('Master Data'!N$42),0)","v":24.143056949368709},{"$f":"IF($B85=\"Blank\",0,VLOOKUP($B85,Inputs!$C$68:$AN$129,MATCH($B89,Inputs!$C$68:$AN$68,0),FALSE))+IFERROR(IF($B85=\"Blank\",0,VLOOKUP($B85,Inputs!$C$68:$AN$129,MATCH($C89,Inputs!$C$68:$AN$68,0),FALSE))*('Master Data'!O$42),0)","v":24.150816058816748},null,null,null,null,null,null,null,"Lamp Service costs Annualised",6.5922103933990828,6.611239294875296,6.6127158042678618,6.6145361505119755,6.598583622627527]
[null,{"$f":"Inputs!$M$68","v":"PE Cell Service costs Annualised"},"Labour Portion of PE Cell Service costs Annualised",null,{"$f":"IF($B85=\"Blank\",0,VLOOKUP($B85,Inputs!$C$68:$AN$129,MATCH($B90,Inputs!$C$68:$AN$68,0),FALSE))+IFERROR(IF($B85=\"Blank\",0,VLOOKUP($B85,Inputs!$C$68:$AN$129,MATCH($C90,Inputs!$C$68:$AN$68,0),FALSE))*('Master Data'!K$42),0)","v":0},{"$f":"IF($B85=\"Blank\",0,VLOOKUP($B85,Inputs!$C$68:$AN$129,MATCH($B90,Inputs!$C$68:$AN$68,0),FALSE))+IFERROR(IF($B85=\"Blank\",0,VLOOKUP($B85,Inputs!$C$68:$AN$129,MATCH($C90,Inputs!$C$68:$AN$68,0),FALSE))*('Master Data'!L$42),0)","v":0},{"$f":"IF($B85=\"Blank\",0,VLOOKUP($B85,Inputs!$C$68:$AN$129,MATCH($B90,Inputs!$C$68:$AN$68,0),FALSE))+IFERROR(IF($B85=\"Blank\",0,VLOOKUP($B85,Inputs!$C$68:$AN$129,MATCH($C90,Inputs!$C$68:$AN$68,0),FALSE))*('Master Data'!M$42),0)","v":0},{"$f":"IF($B85=\"Blank\",0,VLOOKUP($B85,Inputs!$C$68:$AN$129,MATCH($B90,Inputs!$C$68:$AN$68,0),FALSE))+IFERROR(IF($B85=\"Blank\",0,VLOOKUP($B85,Inputs!$C$68:$AN$129,MATCH($C90,Inputs!$C$68:$AN$68,0),FALSE))*('Master Data'!N$42),0)","v":0},{"$f":"IF($B85=\"Blank\",0,VLOOKUP($B85,Inputs!$C$68:$AN$129,MATCH($B90,Inputs!$C$68:$AN$68,0),FALSE))+IFERROR(IF($B85=\"Blank\",0,VLOOKUP($B85,Inputs!$C$68:$AN$129,MATCH($C90,Inputs!$C$68:$AN$68,0),FALSE))*('Master Data'!O$42),0)","v":0},null,null,null,null,null,null,null,"PE Cell Service costs Annualised",0,0,0,0,0]
[null,"Indirect Opex",null,null,{"$f":"IF($B85=\"Blank\",0,IF($B$8=\"Private Contract Lighting\",'Opex Weighting'!D$48,'Opex Weighting'!D$46))","v":25.762407087322877},{"$f":"IF($B85=\"Blank\",0,IF($B$8=\"Private Contract Lighting\",'Opex Weighting'!E$48,'Opex Weighting'!E$46))","v":25.880403763800857},{"$f":"IF($B85=\"Blank\",0,IF($B$8=\"Private Contract Lighting\",'Opex Weighting'!F$48,'Opex Weighting'!F$46))","v":20.013740175030701},{"$f":"IF($B85=\"Blank\",0,IF($B$8=\"Private Contract Lighting\",'Opex Weighting'!G$48,'Opex Weighting'!G$46))","v":19.55949970528431},{"$f":"IF($B85=\"Blank\",0,IF($B$8=\"Private Contract Lighting\",'Opex Weighting'!H$48,'Opex Weighting'!H$46))","v":19.096814305933613},null,null,null,null,null,null,null,"Indirect Opex",7.0389090402521521,7.0905215791235223,5.4832164863097814,5.3587670425436471,5.2177088267578178]
[null,"Indirect Capex",null,null,{"$f":"'Capex Weighting'!D$59","v":0},{"$f":"'Capex Weighting'!E$59","v":0},{"$f":"'Capex Weighting'!F$59","v":0},{"$f":"'Capex Weighting'!G$59","v":0},{"$f":"'Capex Weighting'!H$59","v":0},null,null,null,null,null,null,null,"Indirect Capex",0,0,0,0,0]
[null,"Opex Overheads Costs per light",null,null,{"$f":"IF($B85=\"Blank\",0,IF($B$8=\"Private Contract Lighting\",'Building Block'!C$40,'Building Block'!C$39))","v":32.224036557323004},{"$f":"IF($B85=\"Blank\",0,IF($B$8=\"Private Contract Lighting\",'Building Block'!D$40,'Building Block'!D$39))","v":31.278075996100256},{"$f":"IF($B85=\"Blank\",0,IF($B$8=\"Private Contract Lighting\",'Building Block'!E$40,'Building Block'!E$39))","v":21.467987799581408},{"$f":"IF($B85=\"Blank\",0,IF($B$8=\"Private Contract Lighting\",'Building Block'!F$40,'Building Block'!F$39))","v":21.22771925228782},{"$f":"IF($B85=\"Blank\",0,IF($B$8=\"Private Contract Lighting\",'Building Block'!G$40,'Building Block'!G$39))","v":21.210892633443169},null,null,null,null,null,null,null,"Opex Overheads Costs per light",8.8043815730390715,8.5693358893425362,5.8816404930360022,5.815813493777485,5.7953258561320133]
[null,{"$f":"Inputs!$AK$68","v":"Bracket UNIT price"},0,null,{"$f":"IF($B85=\"Blank\",0,OFFSET('CAPEX Annuity calcs'!$B$9,MATCH($B85,'CAPEX Annuity calcs'!$B$9:$B$500,0)+$C94,E$6))","v":6.1673796159250225},{"$f":"IF($B85=\"Blank\",0,OFFSET('CAPEX Annuity calcs'!$B$9,MATCH($B85,'CAPEX Annuity calcs'!$B$9:$B$500,0)+$C94,F$6))","v":6.1673796159250225},{"$f":"IF($B85=\"Blank\",0,OFFSET('CAPEX Annuity calcs'!$B$9,MATCH($B85,'CAPEX Annuity calcs'!$B$9:$B$500,0)+$C94,G$6))","v":6.1673796159250225},{"$f":"IF($B85=\"Blank\",0,OFFSET('CAPEX Annuity calcs'!$B$9,MATCH($B85,'CAPEX Annuity calcs'!$B$9:$B$500,0)+$C94,H$6))","v":6.1673796159250225},{"$f":"IF($B85=\"Blank\",0,OFFSET('CAPEX Annuity calcs'!$B$9,MATCH($B85,'CAPEX Annuity calcs'!$B$9:$B$500,0)+$C94,I$6))","v":6.1673796159250225},null,null,null,null,null,null,null,"Bracket UNIT price",1.6850763977937218,1.6896930454589103,1.6896930454589103,1.6896930454589103,1.6850763977937218]
[null,{"$f":"Inputs!$AA$68","v":"CAPEX Instalation costs"},{"$f":"C94+1","v":1},null,{"$f":"IF($B85=\"Blank\",0,OFFSET('CAPEX Annuity calcs'!$B$9,MATCH($B85,'CAPEX Annuity calcs'!$B$9:$B$500,0)+$C95,E$6))","v":0},{"$f":"IF($B85=\"Blank\",0,OFFSET('CAPEX Annuity calcs'!$B$9,MATCH($B85,'CAPEX Annuity calcs'!$B$9:$B$500,0)+$C95,F$6))","v":0},{"$f":"IF($B85=\"Blank\",0,OFFSET('CAPEX Annuity calcs'!$B$9,MATCH($B85,'CAPEX Annuity calcs'!$B$9:$B$500,0)+$C95,G$6))","v":0},{"$f":"IF($B85=\"Blank\",0,OFFSET('CAPEX Annuity calcs'!$B$9,MATCH($B85,'CAPEX Annuity calcs'!$B$9:$B$500,0)+$C95,H$6))","v":0},{"$f":"IF($B85=\"Blank\",0,OFFSET('CAPEX Annuity calcs'!$B$9,MATCH($B85,'CAPEX Annuity calcs'!$B$9:$B$500,0)+$C95,I$6))","v":0},null,null,null,null,null,null,null,"CAPEX Instalation costs",0,0,0,0,0]
[null,{"$f":"Inputs!$Z$68","v":"Luminaire UNIT price"},{"$f":"C95+1","v":2},null,{"$f":"IF($B85=\"Blank\",0,OFFSET('CAPEX Annuity calcs'!$B$9,MATCH($B85,'CAPEX Annuity calcs'!$B$9:$B$500,0)+$C96,E$6))","v":13.891938455041847},{"$f":"IF($B85=\"Blank\",0,OFFSET('CAPEX Annuity calcs'!$B$9,MATCH($B85,'CAPEX Annuity calcs'!$B$9:$B$500,0)+$C96,F$6))","v":13.891938455041847},{"$f":"IF($B85=\"Blank\",0,OFFSET('CAPEX Annuity calcs'!$B$9,MATCH($B85,'CAPEX Annuity calcs'!$B$9:$B$500,0)+$C96,G$6))","v":13.891938455041847},{"$f":"IF($B85=\"Blank\",0,OFFSET('CAPEX Annuity calcs'!$B$9,MATCH($B85,'CAPEX Annuity calcs'!$B$9:$B$500,0)+$C96,H$6))","v":13.891938455041847},{"$f":"IF($B85=\"Blank\",0,OFFSET('CAPEX Annuity calcs'!$B$9,MATCH($B85,'CAPEX Annuity calcs'!$B$9:$B$500,0)+$C96,I$6))","v":13.891938455041847},null,null,null,null,null,null,null,"Luminaire UNIT price",3.7956115997382098,3.806010535627903,3.806010535627903,3.806010535627903,3.7956115997382098]
[null,{"$f":"Inputs!$AA$68","v":"CAPEX Instalation costs"},3,null,{"$f":"IF($B85=\"Blank\",0,OFFSET('CAPEX Annuity calcs'!$B$9,MATCH($B85,'CAPEX Annuity calcs'!$B$9:$B$500,0)+$C97,E$6))","v":18.736141709912243},{"$f":"IF($B85=\"Blank\",0,OFFSET('CAPEX Annuity calcs'!$B$9,MATCH($B85,'CAPEX Annuity calcs'!$B$9:$B$500,0)+$C97,F$6))","v":18.74779128716041},{"$f":"IF($B85=\"Blank\",0,OFFSET('CAPEX Annuity calcs'!$B$9,MATCH($B85,'CAPEX Annuity calcs'!$B$9:$B$500,0)+$C97,G$6))","v":18.765559678232343},{"$f":"IF($B85=\"Blank\",0,OFFSET('CAPEX Annuity calcs'!$B$9,MATCH($B85,'CAPEX Annuity calcs'!$B$9:$B$500,0)+$C97,H$6))","v":18.787465819916616},{"$f":"IF($B85=\"Blank\",0,OFFSET('CAPEX Annuity calcs'!$B$9,MATCH($B85,'CAPEX Annuity calcs'!$B$9:$B$500,0)+$C97,I$6))","v":18.813047608397444},null,null,null,null,null,null,null,"CAPEX Instalation costs",5.1191644016153672,5.1363811745644954,5.1412492269129713,5.1472509095661954,5.1401769421850938]
[null,null,null,null,{"$f":"SUM(E86:E97)","v":141.14775971489451},{"$f":"SUM(F86:F97)","v":140.30469529706497},124.50045238538661,123.63887808280629,122.98211047136478,null,null,null,null,null,null,null,null,{"$f":"ROUND(E98/R$2*100,3)","v":38.564999999999998},{"$f":"ROUND(F98/S$2*100,3)","v":38.44},{"$f":"ROUND(G98/T$2*100,3)","v":34.11},{"$f":"ROUND(H98/U$2*100,3)","v":33.874000000000002},{"$f":"ROUND(I98/V$2*100,3)","v":33.601999999999997}]
[]
[{"$f":"A85+1","v":7},{"$f":"IFERROR(VLOOKUP($A100,Inputs!$B$68:$AN$129,MATCH($B$7,Inputs!$B$68:$AN$68,0),FALSE),\"Blank\")","v":"2x20W Fluorescent"},null,null,null,null,null,null,null,null,null,null,null,null,null,null,{"$f":"IFERROR(VLOOKUP($A100,Inputs!$B$68:$AN$129,MATCH($B$7,Inputs!$B$68:$AN$68,0),FALSE),\"Blank\")","v":"2x20W Fluorescent"}]
[null,{"$f":"Inputs!$S$68","v":"Lamp UNIT price Annualised Cost"},{"$f":"Inputs!$Q$68","v":"Lamp Maintenance cycle"},null,{"$f":"IF($B100=\"Blank\",0,VLOOKUP($B100,Inputs!$C$68:$AN$129,MATCH($B101,Inputs!$C$68:$AN$68,0),FALSE))","v":2.0183641595758375},{"$f":"IF($B100=\"Blank\",0,VLOOKUP($B100,Inputs!$C$68:$AN$129,MATCH($B101,Inputs!$C$68:$AN$68,0),FALSE))","v":2.0183641595758375},{"$f":"IF($B100=\"Blank\",0,VLOOKUP($B100,Inputs!$C$68:$AN$129,MATCH($B101,Inputs!$C$68:$AN$68,0),FALSE))","v":2.0183641595758375},{"$f":"IF($B100=\"Blank\",0,VLOOKUP($B100,Inputs!$C$68:$AN$129,MATCH($B101,Inputs!$C$68:$AN$68,0),FALSE))","v":2.0183641595758375},{"$f":"IF($B100=\"Blank\",0,VLOOKUP($B100,Inputs!$C$68:$AN$129,MATCH($B101,Inputs!$C$68:$AN$68,0),FALSE))","v":2.0183641595758375},null,null,null,null,null,null,null,{"$f":"B101","v":"Lamp UNIT price Annualised Cost"},{"$f":"IF(E101=\"NA\",\"\",E101/R$2*100)","v":0.55146561737044741},{"$f":"IF(F101=\"NA\",\"\",F101/S$2*100)","v":0.55297648207557193},{"$f":"IF(G101=\"NA\",\"\",G101/T$2*100)","v":0.55297648207557193},{"$f":"IF(H101=\"NA\",\"\",H101/U$2*100)","v":0.55297648207557193},{"$f":"IF(I101=\"NA\",\"\",I101/V$2*100)","v":0.55146561737044741}]
[null,{"$f":"Inputs!$K$68","v":"PE Cell UNIT price Annualised Cost"},{"$f":"Inputs!$I$68","v":"PE Cell Maintenance Cycle"},null,{"$f":"IF($B100=\"Blank\",0,VLOOKUP($B100,Inputs!$C$68:$AN$129,MATCH($B102,Inputs!$C$68:$AN$68,0),FALSE))","v":0.58131255188333353},{"$f":"IF($B100=\"Blank\",0,VLOOKUP($B100,Inputs!$C$68:$AN$129,MATCH($B102,Inputs!$C$68:$AN$68,0),FALSE))","v":0.58131255188333353},{"$f":"IF($B100=\"Blank\",0,VLOOKUP($B100,Inputs!$C$68:$AN$129,MATCH($B102,Inputs!$C$68:$AN$68,0),FALSE))","v":0.58131255188333353},{"$f":"IF($B100=\"Blank\",0,VLOOKUP($B100,Inputs!$C$68:$AN$129,MATCH($B102,Inputs!$C$68:$AN$68,0),FALSE))","v":0.58131255188333353},{"$f":"IF($B100=\"Blank\",0,VLOOKUP($B100,Inputs!$C$68:$AN$129,MATCH($B102,Inputs!$C$68:$AN$68,0),FALSE))","v":0.58131255188333353},null,null,null,null,null,null,null,"PE Cell UNIT price Annualised Cost",0.15882856608834248,0.15926371284474891,0.15926371284474891,0.15926371284474891,0.15882856608834248]
[null,"Corp capex annuity per light",null,null,{"$f":"IF($B100=\"Blank\",0,'Corp Capex Annuity calcs'!F$142)","v":18.582309905017571},{"$f":"IF($B100=\"Blank\",0,'Corp Capex Annuity calcs'!G$142)","v":18.552026408230436},{"$f":"IF($B100=\"Blank\",0,'Corp Capex Annuity calcs'!H$142)","v":18.401377631486287},{"$f":"IF($B100=\"Blank\",0,'Corp Capex Annuity calcs'!I$142)","v":18.205761940470655},{"$f":"IF($B100=\"Blank\",0,'Corp Capex Annuity calcs'!J$142)","v":17.995165449295623},null,null,null,null,null,null,null,"Corp capex annuity per light",5.0771338538299373,5.0827469611590237,5.0414733236948734,4.9878799836905907,4.9167118713922466]
[null,{"$f":"Inputs!$U$68","v":"Lamp Service costs Annualised"},"Labour Portion of Lamp Service costs annualised",null,{"$f":"IF($B100=\"Blank\",0,VLOOKUP($B100,Inputs!$C$68:$AN$129,MATCH($B104,Inputs!$C$68:$AN$68,0),FALSE))+IFERROR(IF($B100=\"Blank\",0,VLOOKUP($B100,Inputs!$C$68:$AN$129,MATCH($C104,Inputs!$C$68:$AN$68,0),FALSE))*('Master Data'!K$42),0)","v":24.127490039840644},{"$f":"IF($B100=\"Blank\",0,VLOOKUP($B100,Inputs!$C$68:$AN$129,MATCH($B104,Inputs!$C$68:$AN$68,0),FALSE))+IFERROR(IF($B100=\"Blank\",0,VLOOKUP($B100,Inputs!$C$68:$AN$129,MATCH($C104,Inputs!$C$68:$AN$68,0),FALSE))*('Master Data'!L$42),0)","v":24.131023426294828},{"$f":"IF($B100=\"Blank\",0,VLOOKUP($B100,Inputs!$C$68:$AN$129,MATCH($B104,Inputs!$C$68:$AN$68,0),FALSE))+IFERROR(IF($B100=\"Blank\",0,VLOOKUP($B100,Inputs!$C$68:$AN$129,MATCH($C104,Inputs!$C$68:$AN$68,0),FALSE))*('Master Data'!M$42),0)","v":24.136412685577696},{"$f":"IF($B100=\"Blank\",0,VLOOKUP($B100,Inputs!$C$68:$AN$129,MATCH($B104,Inputs!$C$68:$AN$68,0),FALSE))+IFERROR(IF($B100=\"Blank\",0,VLOOKUP($B100,Inputs!$C$68:$AN$129,MATCH($C104,Inputs!$C$68:$AN$68,0),FALSE))*('Master Data'!N$42),0)","v":24.143056949368709},{"$f":"IF($B100=\"Blank\",0,VLOOKUP($B100,Inputs!$C$68:$AN$129,MATCH($B104,Inputs!$C$68:$AN$68,0),FALSE))+IFERROR(IF($B100=\"Blank\",0,VLOOKUP($B100,Inputs!$C$68:$AN$129,MATCH($C104,Inputs!$C$68:$AN$68,0),FALSE))*('Master Data'!O$42),0)","v":24.150816058816748},null,null,null,null,null,null,null,"Lamp Service costs Annualised",6.5922103933990828,6.611239294875296,6.6127158042678618,6.6145361505119755,6.598583622627527]
[null,{"$f":"Inputs!$M$68","v":"PE Cell Service costs Annualised"},"Labour Portion of PE Cell Service costs Annualised",null,{"$f":"IF($B100=\"Blank\",0,VLOOKUP($B100,Inputs!$C$68:$AN$129,MATCH($B105,Inputs!$C$68:$AN$68,0),FALSE))+IFERROR(IF($B100=\"Blank\",0,VLOOKUP($B100,Inputs!$C$68:$AN$129,MATCH($C105,Inputs!$C$68:$AN$68,0),FALSE))*('Master Data'!K$42),0)","v":0},{"$f":"IF($B100=\"Blank\",0,VLOOKUP($B100,Inputs!$C$68:$AN$129,MATCH($B105,Inputs!$C$68:$AN$68,0),FALSE))+IFERROR(IF($B100=\"Blank\",0,VLOOKUP($B100,Inputs!$C$68:$AN$129,MATCH($C105,Inputs!$C$68:$AN$68,0),FALSE))*('Master Data'!L$42),0)","v":0},{"$f":"IF($B100=\"Blank\",0,VLOOKUP($B100,Inputs!$C$68:$AN$129,MATCH($B105,Inputs!$C$68:$AN$68,0),FALSE))+IFERROR(IF($B100=\"Blank\",0,VLOOKUP($B100,Inputs!$C$68:$AN$129,MATCH($C105,Inputs!$C$68:$AN$68,0),FALSE))*('Master Data'!M$42),0)","v":0},{"$f":"IF($B100=\"Blank\",0,VLOOKUP($B100,Inputs!$C$68:$AN$129,MATCH($B105,Inputs!$C$68:$AN$68,0),FALSE))+IFERROR(IF($B100=\"Blank\",0,VLOOKUP($B100,Inputs!$C$68:$AN$129,MATCH($C105,Inputs!$C$68:$AN$68,0),FALSE))*('Master Data'!N$42),0)","v":0},{"$f":"IF($B100=\"Blank\",0,VLOOKUP($B100,Inputs!$C$68:$AN$129,MATCH($B105,Inputs!$C$68:$AN$68,0),FALSE))+IFERROR(IF($B100=\"Blank\",0,VLOOKUP($B100,Inputs!$C$68:$AN$129,MATCH($C105,Inputs!$C$68:$AN$68,0),FALSE))*('Master Data'!O$42),0)","v":0},null,null,null,null,null,null,null,"PE Cell Service costs Annualised",0,0,0,0,0]
[null,"Indirect Opex",null,null,{"$f":"IF($B100=\"Blank\",0,IF($B$8=\"Private Contract Lighting\",'Opex Weighting'!D$48,'Opex Weighting'!D$46))","v":25.762407087322877},{"$f":"IF($B100=\"Blank\",0,IF($B$8=\"Private Contract Lighting\",'Opex Weighting'!E$48,'Opex Weighting'!E$46))","v":25.880403763800857},{"$f":"IF($B100=\"Blank\",0,IF($B$8=\"Private Contract Lighting\",'Opex Weighting'!F$48,'Opex Weighting'!F$46))","v":20.013740175030701},{"$f":"IF($B100=\"Blank\",0,IF($B$8=\"Private Contract Lighting\",'Opex Weighting'!G$48,'Opex Weighting'!G$46))","v":19.55949970528431},{"$f":"IF($B100=\"Blank\",0,IF($B$8=\"Private Contract Lighting\",'Opex Weighting'!H$48,'Opex Weighting'!H$46))","v":19.096814305933613},null,null,null,null,null,null,null,"Indirect Opex",7.0389090402521521,7.0905215791235223,5.4832164863097814,5.3587670425436471,5.2177088267578178]
[null,"Indirect Capex",null,null,{"$f":"'Capex Weighting'!D$59","v":0},{"$f":"'Capex Weighting'!E$59","v":0},{"$f":"'Capex Weighting'!F$59","v":0},{"$f":"'Capex Weighting'!G$59","v":0},{"$f":"'Capex Weighting'!H$59","v":0},null,null,null,null,null,null,null,"Indirect Capex",0,0,0,0,0]
[null,"Opex Overheads Costs per light",null,null,{"$f":"IF($B100=\"Blank\",0,IF($B$8=\"Private Contract Lighting\",'Building Block'!C$40,'Building Block'!C$39))","v":32.224036557323004},{"$f":"IF($B100=\"Blank\",0,IF($B$8=\"Private Contract Lighting\",'Building Block'!D$40,'Building Block'!D$39))","v":31.278075996100256},{"$f":"IF($B100=\"Blank\",0,IF($B$8=\"Private Contract Lighting\",'Building Block'!E$40,'Building Block'!E$39))","v":21.467987799581408},{"$f":"IF($B100=\"Blank\",0,IF($B$8=\"Private Contract Lighting\",'Building Block'!F$40,'Building Block'!F$39))","v":21.22771925228782},{"$f":"IF($B100=\"Blank\",0,IF($B$8=\"Private Contract Lighting\",'Building Block'!G$40,'Building Block'!G$39))","v":21.210892633443169},null,null,null,null,null,null,null,"Opex Overheads Costs per light",8.8043815730390715,8.5693358893425362,5.8816404930360022,5.815813493777485,5.7953258561320133]
[null,{"$f":"Inputs!$AK$68","v":"Bracket UNIT price"},0,null,{"$f":"IF($B100=\"Blank\",0,OFFSET('CAPEX Annuity calcs'!$B$9,MATCH($B100,'CAPEX Annuity calcs'!$B$9:$B$500,0)+$C109,E$6))","v":6.1673796159250225},{"$f":"IF($B100=\"Blank\",0,OFFSET('CAPEX Annuity calcs'!$B$9,MATCH($B100,'CAPEX Annuity calcs'!$B$9:$B$500,0)+$C109,F$6))","v":6.1673796159250225},{"$f":"IF($B100=\"Blank\",0,OFFSET('CAPEX Annuity calcs'!$B$9,MATCH($B100,'CAPEX Annuity calcs'!$B$9:$B$500,0)+$C109,G$6))","v":6.1673796159250225},{"$f":"IF($B100=\"Blank\",0,OFFSET('CAPEX Annuity calcs'!$B$9,MATCH($B100,'CAPEX Annuity calcs'!$B$9:$B$500,0)+$C109,H$6))","v":6.1673796159250225},{"$f":"IF($B100=\"Blank\",0,OFFSET('CAPEX Annuity calcs'!$B$9,MATCH($B100,'CAPEX Annuity calcs'!$B$9:$B$500,0)+$C109,I$6))","v":6.1673796159250225},null,null,null,null,null,null,null,"Bracket UNIT price",1.6850763977937218,1.6896930454589103,1.6896930454589103,1.6896930454589103,1.6850763977937218]
[null,{"$f":"Inputs!$AA$68","v":"CAPEX Instalation costs"},{"$f":"C109+1","v":1},null,{"$f":"IF($B100=\"Blank\",0,OFFSET('CAPEX Annuity calcs'!$B$9,MATCH($B100,'CAPEX Annuity calcs'!$B$9:$B$500,0)+$C110,E$6))","v":0},{"$f":"IF($B100=\"Blank\",0,OFFSET('CAPEX Annuity calcs'!$B$9,MATCH($B100,'CAPEX Annuity calcs'!$B$9:$B$500,0)+$C110,F$6))","v":0},{"$f":"IF($B100=\"Blank\",0,OFFSET('CAPEX Annuity calcs'!$B$9,MATCH($B100,'CAPEX Annuity calcs'!$B$9:$B$500,0)+$C110,G$6))","v":0},{"$f":"IF($B100=\"Blank\",0,OFFSET('CAPEX Annuity calcs'!$B$9,MATCH($B100,'CAPEX Annuity calcs'!$B$9:$B$500,0)+$C110,H$6))","v":0},{"$f":"IF($B100=\"Blank\",0,OFFSET('CAPEX Annuity calcs'!$B$9,MATCH($B100,'CAPEX Annuity calcs'!$B$9:$B$500,0)+$C110,I$6))","v":0},null,null,null,null,null,null,null,"CAPEX Instalation costs",0,0,0,0,0]
[null,{"$f":"Inputs!$Z$68","v":"Luminaire UNIT price"},{"$f":"C110+1","v":2},null,{"$f":"IF($B100=\"Blank\",0,OFFSET('CAPEX Annuity calcs'!$B$9,MATCH($B100,'CAPEX Annuity calcs'!$B$9:$B$500,0)+$C111,E$6))","v":17.729617151402259},{"$f":"IF($B100=\"Blank\",0,OFFSET('CAPEX Annuity calcs'!$B$9,MATCH($B100,'CAPEX Annuity calcs'!$B$9:$B$500,0)+$C111,F$6))","v":17.729617151402259},{"$f":"IF($B100=\"Blank\",0,OFFSET('CAPEX Annuity calcs'!$B$9,MATCH($B100,'CAPEX Annuity calcs'!$B$9:$B$500,0)+$C111,G$6))","v":17.729617151402259},{"$f":"IF($B100=\"Blank\",0,OFFSET('CAPEX Annuity calcs'!$B$9,MATCH($B100,'CAPEX Annuity calcs'!$B$9:$B$500,0)+$C111,H$6))","v":17.729617151402259},{"$f":"IF($B100=\"Blank\",0,OFFSET('CAPEX Annuity calcs'!$B$9,MATCH($B100,'CAPEX Annuity calcs'!$B$9:$B$500,0)+$C111,I$6))","v":17.729617151402259},null,null,null,null,null,null,null,"Luminaire UNIT price",4.8441576916399613,4.8574293565485638,4.8574293565485638,4.8574293565485638,4.8441576916399613]
[null,{"$f":"Inputs!$AA$68","v":"CAPEX Instalation costs"},3,null,{"$f":"IF($B100=\"Blank\",0,OFFSET('CAPEX Annuity calcs'!$B$9,MATCH($B100,'CAPEX Annuity calcs'!$B$9:$B$500,0)+$C112,E$6))","v":18.736141709912243},{"$f":"IF($B100=\"Blank\",0,OFFSET('CAPEX Annuity calcs'!$B$9,MATCH($B100,'CAPEX Annuity calcs'!$B$9:$B$500,0)+$C112,F$6))","v":18.74779128716041},{"$f":"IF($B100=\"Blank\",0,OFFSET('CAPEX Annuity calcs'!$B$9,MATCH($B100,'CAPEX Annuity calcs'!$B$9:$B$500,0)+$C112,G$6))","v":18.765559678232343},{"$f":"IF($B100=\"Blank\",0,OFFSET('CAPEX Annuity calcs'!$B$9,MATCH($B100,'CAPEX Annuity calcs'!$B$9:$B$500,0)+$C112,H$6))","v":18.787465819916616},{"$f":"IF($B100=\"Blank\",0,OFFSET('CAPEX Annuity calcs'!$B$9,MATCH($B100,'CAPEX Annuity calcs'!$B$9:$B$500,0)+$C112,I$6))","v":18.813047608397444},null,null,null,null,null,null,null,"CAPEX Instalation costs",5.1191644016153672,5.1363811745644954,5.1412492269129713,5.1472509095661954,5.1401769421850938]
[null,null,null,null,{"$f":"SUM(E101:E112)","v":145.92905877820277},{"$f":"SUM(F101:F112)","v":145.08599436037326},129.28175144869488,128.42017714611455,127.76340953467304,null,null,null,null,null,null,null,null,{"$f":"ROUND(E113/R$2*100,3)","v":39.871000000000002},{"$f":"ROUND(F113/S$2*100,3)","v":39.75},{"$f":"ROUND(G113/T$2*100,3)","v":35.42},{"$f":"ROUND(H113/U$2*100,3)","v":35.183999999999997},{"$f":"ROUND(I113/V$2*100,3)","v":34.908000000000001}]
[]
[{"$f":"A100+1","v":8},{"$f":"IFERROR(VLOOKUP($A115,Inputs!$B$68:$AN$129,MATCH($B$7,Inputs!$B$68:$AN$68,0),FALSE),\"Blank\")","v":"2x24W Fluorescent"},null,null,null,null,null,null,null,null,null,null,null,null,null,null,{"$f":"IFERROR(VLOOKUP($A115,Inputs!$B$68:$AN$129,MATCH($B$7,Inputs!$B$68:$AN$68,0),FALSE),\"Blank\")","v":"2x24W Fluorescent"}]
[null,{"$f":"Inputs!$S$68","v":"Lamp UNIT price Annualised Cost"},{"$f":"Inputs!$Q$68","v":"Lamp Maintenance cycle"},null,{"$f":"IF($B115=\"Blank\",0,VLOOKUP($B115,Inputs!$C$68:$AN$129,MATCH($B116,Inputs!$C$68:$AN$68,0),FALSE))","v":1.4370046282556002},{"$f":"IF($B115=\"Blank\",0,VLOOKUP($B115,Inputs!$C$68:$AN$129,MATCH($B116,Inputs!$C$68:$AN$68,0),FALSE))","v":1.4370046282556002},{"$f":"IF($B115=\"Blank\",0,VLOOKUP($B115,Inputs!$C$68:$AN$129,MATCH($B116,Inputs!$C$68:$AN$68,0),FALSE))","v":1.4370046282556002},{"$f":"IF($B115=\"Blank\",0,VLOOKUP($B115,Inputs!$C$68:$AN$129,MATCH($B116,Inputs!$C$68:$AN$68,0),FALSE))","v":1.4370046282556002},{"$f":"IF($B115=\"Blank\",0,VLOOKUP($B115,Inputs!$C$68:$AN$129,MATCH($B116,Inputs!$C$68:$AN$68,0),FALSE))","v":1.4370046282556002},null,null,null,null,null,null,null,{"$f":"B116","v":"Lamp UNIT price Annualised Cost"},{"$f":"IF(E116=\"NA\",\"\",E116/R$2*100)","v":0.39262421537038256},{"$f":"IF(F116=\"NA\",\"\",F116/S$2*100)","v":0.39369989815221923},{"$f":"IF(G116=\"NA\",\"\",G116/T$2*100)","v":0.39369989815221923},{"$f":"IF(H116=\"NA\",\"\",H116/U$2*100)","v":0.39369989815221923},{"$f":"IF(I116=\"NA\",\"\",I116/V$2*100)","v":0.39262421537038256}]
[null,{"$f":"Inputs!$K$68","v":"PE Cell UNIT price Annualised Cost"},{"$f":"Inputs!$I$68","v":"PE Cell Maintenance Cycle"},null,{"$f":"IF($B115=\"Blank\",0,VLOOKUP($B115,Inputs!$C$68:$AN$129,MATCH($B117,Inputs!$C$68:$AN$68,0),FALSE))","v":0.58131255188333353},{"$f":"IF($B115=\"Blank\",0,VLOOKUP($B115,Inputs!$C$68:$AN$129,MATCH($B117,Inputs!$C$68:$AN$68,0),FALSE))","v":0.58131255188333353},{"$f":"IF($B115=\"Blank\",0,VLOOKUP($B115,Inputs!$C$68:$AN$129,MATCH($B117,Inputs!$C$68:$AN$68,0),FALSE))","v":0.58131255188333353},{"$f":"IF($B115=\"Blank\",0,VLOOKUP($B115,Inputs!$C$68:$AN$129,MATCH($B117,Inputs!$C$68:$AN$68,0),FALSE))","v":0.58131255188333353},{"$f":"IF($B115=\"Blank\",0,VLOOKUP($B115,Inputs!$C$68:$AN$129,MATCH($B117,Inputs!$C$68:$AN$68,0),FALSE))","v":0.58131255188333353},null,null,null,null,null,null,null,"PE Cell UNIT price Annualised Cost",0.15882856608834248,0.15926371284474891,0.15926371284474891,0.15926371284474891,0.15882856608834248]
[null,"Corp capex annuity per light",null,null,{"$f":"IF($B115=\"Blank\",0,'Corp Capex Annuity calcs'!F$142)","v":18.582309905017571},{"$f":"IF($B115=\"Blank\",0,'Corp Capex Annuity calcs'!G$142)","v":18.552026408230436},{"$f":"IF($B115=\"Blank\",0,'Corp Capex Annuity calcs'!H$142)","v":18.401377631486287},{"$f":"IF($B115=\"Blank\",0,'Corp Capex Annuity calcs'!I$142)","v":18.205761940470655},{"$f":"IF($B115=\"Blank\",0,'Corp Capex Annuity calcs'!J$142)","v":17.995165449295623},null,null,null,null,null,null,null,"Corp capex annuity per light",5.0771338538299373,5.0827469611590237,5.0414733236948734,4.9878799836905907,4.9167118713922466]
[null,{"$f":"Inputs!$U$68","v":"Lamp Service costs Annualised"},"Labour Portion of Lamp Service costs annualised",null,{"$f":"IF($B115=\"Blank\",0,VLOOKUP($B115,Inputs!$C$68:$AN$129,MATCH($B119,Inputs!$C$68:$AN$68,0),FALSE))+IFERROR(IF($B115=\"Blank\",0,VLOOKUP($B115,Inputs!$C$68:$AN$129,MATCH($C119,Inputs!$C$68:$AN$68,0),FALSE))*('Master Data'!K$42),0)","v":24.127490039840644},{"$f":"IF($B115=\"Blank\",0,VLOOKUP($B115,Inputs!$C$68:$AN$129,MATCH($B119,Inputs!$C$68:$AN$68,0),FALSE))+IFERROR(IF($B115=\"Blank\",0,VLOOKUP($B115,Inputs!$C$68:$AN$129,MATCH($C119,Inputs!$C$68:$AN$68,0),FALSE))*('Master Data'!L$42),0)","v":24.131023426294828},{"$f":"IF($B115=\"Blank\",0,VLOOKUP($B115,Inputs!$C$68:$AN$129,MATCH($B119,Inputs!$C$68:$AN$68,0),FALSE))+IFERROR(IF($B115=\"Blank\",0,VLOOKUP($B115,Inputs!$C$68:$AN$129,MATCH($C119,Inputs!$C$68:$AN$68,0),FALSE))*('Master Data'!M$42),0)","v":24.136412685577696},{"$f":"IF($B115=\"Blank\",0,VLOOKUP($B115,Inputs!$C$68:$AN$129,MATCH($B119,Inputs!$C$68:$AN$68,0),FALSE))+IFERROR(IF($B115=\"Blank\",0,VLOOKUP($B115,Inputs!$C$68:$AN$129,MATCH($C119,Inputs!$C$68:$AN$68,0),FALSE))*('Master Data'!N$42),0)","v":24.143056949368709},{"$f":"IF($B115=\"Blank\",0,VLOOKUP($B115,Inputs!$C$68:$AN$129,MATCH($B119,Inputs!$C$68:$AN$68,0),FALSE))+IFERROR(IF($B115=\"Blank\",0,VLOOKUP($B115,Inputs!$C$68:$AN$129,MATCH($C119,Inputs!$C$68:$AN$68,0),FALSE))*('Master Data'!O$42),0)","v":24.150816058816748},null,null,null,null,null,null,null,"Lamp Service costs Annualised",6.5922103933990828,6.611239294875296,6.6127158042678618,6.6145361505119755,6.598583622627527]
[null,{"$f":"Inputs!$M$68","v":"PE Cell Service costs Annualised"},"Labour Portion of PE Cell Service costs Annualised",null,{"$f":"IF($B115=\"Blank\",0,VLOOKUP($B115,Inputs!$C$68:$AN$129,MATCH($B120,Inputs!$C$68:$AN$68,0),FALSE))+IFERROR(IF($B115=\"Blank\",0,VLOOKUP($B115,Inputs!$C$68:$AN$129,MATCH($C120,Inputs!$C$68:$AN$68,0),FALSE))*('Master Data'!K$42),0)","v":0},{"$f":"IF($B115=\"Blank\",0,VLOOKUP($B115,Inputs!$C$68:$AN$129,MATCH($B120,Inputs!$C$68:$AN$68,0),FALSE))+IFERROR(IF($B115=\"Blank\",0,VLOOKUP($B115,Inputs!$C$68:$AN$129,MATCH($C120,Inputs!$C$68:$AN$68,0),FALSE))*('Master Data'!L$42),0)","v":0},{"$f":"IF($B115=\"Blank\",0,VLOOKUP($B115,Inputs!$C$68:$AN$129,MATCH($B120,Inputs!$C$68:$AN$68,0),FALSE))+IFERROR(IF($B115=\"Blank\",0,VLOOKUP($B115,Inputs!$C$68:$AN$129,MATCH($C120,Inputs!$C$68:$AN$68,0),FALSE))*('Master Data'!M$42),0)","v":0},{"$f":"IF($B115=\"Blank\",0,VLOOKUP($B115,Inputs!$C$68:$AN$129,MATCH($B120,Inputs!$C$68:$AN$68,0),FALSE))+IFERROR(IF($B115=\"Blank\",0,VLOOKUP($B115,Inputs!$C$68:$AN$129,MATCH($C120,Inputs!$C$68:$AN$68,0),FALSE))*('Master Data'!N$42),0)","v":0},{"$f":"IF($B115=\"Blank\",0,VLOOKUP($B115,Inputs!$C$68:$AN$129,MATCH($B120,Inputs!$C$68:$AN$68,0),FALSE))+IFERROR(IF($B115=\"Blank\",0,VLOOKUP($B115,Inputs!$C$68:$AN$129,MATCH($C120,Inputs!$C$68:$AN$68,0),FALSE))*('Master Data'!O$42),0)","v":0},null,null,null,null,null,null,null,"PE Cell Service costs Annualised",0,0,0,0,0]
[null,"Indirect Opex",null,null,{"$f":"IF($B115=\"Blank\",0,IF($B$8=\"Private Contract Lighting\",'Opex Weighting'!D$48,'Opex Weighting'!D$46))","v":25.762407087322877},{"$f":"IF($B115=\"Blank\",0,IF($B$8=\"Private Contract Lighting\",'Opex Weighting'!E$48,'Opex Weighting'!E$46))","v":25.880403763800857},{"$f":"IF($B115=\"Blank\",0,IF($B$8=\"Private Contract Lighting\",'Opex Weighting'!F$48,'Opex Weighting'!F$46))","v":20.013740175030701},{"$f":"IF($B115=\"Blank\",0,IF($B$8=\"Private Contract Lighting\",'Opex Weighting'!G$48,'Opex Weighting'!G$46))","v":19.55949970528431},{"$f":"IF($B115=\"Blank\",0,IF($B$8=\"Private Contract Lighting\",'Opex Weighting'!H$48,'Opex Weighting'!H$46))","v":19.096814305933613},null,null,null,null,null,null,null,"Indirect Opex",7.0389090402521521,7.0905215791235223,5.4832164863097814,5.3587670425436471,5.2177088267578178]
[null,"Indirect Capex",null,null,{"$f":"'Capex Weighting'!D$59","v":0},{"$f":"'Capex Weighting'!E$59","v":0},{"$f":"'Capex Weighting'!F$59","v":0},{"$f":"'Capex Weighting'!G$59","v":0},{"$f":"'Capex Weighting'!H$59","v":0},null,null,null,null,null,null,null,"Indirect Capex",0,0,0,0,0]
[null,"Opex Overheads Costs per light",null,null,{"$f":"IF($B115=\"Blank\",0,IF($B$8=\"Private Contract Lighting\",'Building Block'!C$40,'Building Block'!C$39))","v":32.224036557323004},{"$f":"IF($B115=\"Blank\",0,IF($B$8=\"Private Contract Lighting\",'Building Block'!D$40,'Building Block'!D$39))","v":31.278075996100256},{"$f":"IF($B115=\"Blank\",0,IF($B$8=\"Private Contract Lighting\",'Building Block'!E$40,'Building Block'!E$39))","v":21.467987799581408},{"$f":"IF($B115=\"Blank\",0,IF($B$8=\"Private Contract Lighting\",'Building Block'!F$40,'Building Block'!F$39))","v":21.22771925228782},{"$f":"IF($B115=\"Blank\",0,IF($B$8=\"Private Contract Lighting\",'Building Block'!G$40,'Building Block'!G$39))","v":21.210892633443169},null,null,null,null,null,null,null,"Opex Overheads Costs per light",8.8043815730390715,8.5693358893425362,5.8816404930360022,5.815813493777485,5.7953258561320133]
[null,{"$f":"Inputs!$AK$68","v":"Bracket UNIT price"},0,null,{"$f":"IF($B115=\"Blank\",0,OFFSET('CAPEX Annuity calcs'!$B$9,MATCH($B115,'CAPEX Annuity calcs'!$B$9:$B$500,0)+$C124,E$6))","v":6.1673796159250225},{"$f":"IF($B115=\"Blank\",0,OFFSET('CAPEX Annuity calcs'!$B$9,MATCH($B115,'CAPEX Annuity calcs'!$B$9:$B$500,0)+$C124,F$6))","v":6.1673796159250225},{"$f":"IF($B115=\"Blank\",0,OFFSET('CAPEX Annuity calcs'!$B$9,MATCH($B115,'CAPEX Annuity calcs'!$B$9:$B$500,0)+$C124,G$6))","v":6.1673796159250225},{"$f":"IF($B115=\"Blank\",0,OFFSET('CAPEX Annuity calcs'!$B$9,MATCH($B115,'CAPEX Annuity calcs'!$B$9:$B$500,0)+$C124,H$6))","v":6.1673796159250225},{"$f":"IF($B115=\"Blank\",0,OFFSET('CAPEX Annuity calcs'!$B$9,MATCH($B115,'CAPEX Annuity calcs'!$B$9:$B$500,0)+$C124,I$6))","v":6.1673796159250225},null,null,null,null,null,null,null,"Bracket UNIT price",1.6850763977937218,1.6896930454589103,1.6896930454589103,1.6896930454589103,1.6850763977937218]
[null,{"$f":"Inputs!$AA$68","v":"CAPEX Instalation costs"},{"$f":"C124+1","v":1},null,{"$f":"IF($B115=\"Blank\",0,OFFSET('CAPEX Annuity calcs'!$B$9,MATCH($B115,'CAPEX Annuity calcs'!$B$9:$B$500,0)+$C125,E$6))","v":0},{"$f":"IF($B115=\"Blank\",0,OFFSET('CAPEX Annuity calcs'!$B$9,MATCH($B115,'CAPEX Annuity calcs'!$B$9:$B$500,0)+$C125,F$6))","v":0},{"$f":"IF($B115=\"Blank\",0,OFFSET('CAPEX Annuity calcs'!$B$9,MATCH($B115,'CAPEX Annuity calcs'!$B$9:$B$500,0)+$C125,G$6))","v":0},{"$f":"IF($B115=\"Blank\",0,OFFSET('CAPEX Annuity calcs'!$B$9,MATCH($B115,'CAPEX Annuity calcs'!$B$9:$B$500,0)+$C125,H$6))","v":0},{"$f":"IF($B115=\"Blank\",0,OFFSET('CAPEX Annuity calcs'!$B$9,MATCH($B115,'CAPEX Annuity calcs'!$B$9:$B$500,0)+$C125,I$6))","v":0},null,null,null,null,null,null,null,"CAPEX Instalation costs",0,0,0,0,0]
[null,{"$f":"Inputs!$Z$68","v":"Luminaire UNIT price"},{"$f":"C125+1","v":2},null,{"$f":"IF($B115=\"Blank\",0,OFFSET('CAPEX Annuity calcs'!$B$9,MATCH($B115,'CAPEX Annuity calcs'!$B$9:$B$500,0)+$C126,E$6))","v":18.082441280696486},{"$f":"IF($B115=\"Blank\",0,OFFSET('CAPEX Annuity calcs'!$B$9,MATCH($B115,'CAPEX Annuity calcs'!$B$9:$B$500,0)+$C126,F$6))","v":18.082441280696486},{"$f":"IF($B115=\"Blank\",0,OFFSET('CAPEX Annuity calcs'!$B$9,MATCH($B115,'CAPEX Annuity calcs'!$B$9:$B$500,0)+$C126,G$6))","v":18.082441280696486},{"$f":"IF($B115=\"Blank\",0,OFFSET('CAPEX Annuity calcs'!$B$9,MATCH($B115,'CAPEX Annuity calcs'!$B$9:$B$500,0)+$C126,H$6))","v":18.082441280696486},{"$f":"IF($B115=\"Blank\",0,OFFSET('CAPEX Annuity calcs'!$B$9,MATCH($B115,'CAPEX Annuity calcs'!$B$9:$B$500,0)+$C126,I$6))","v":18.082441280696486},null,null,null,null,null,null,null,"Luminaire UNIT price",4.9405577269662526,4.9540935015606813,4.9540935015606813,4.9540935015606813,4.9405577269662526]
[null,{"$f":"Inputs!$AA$68","v":"CAPEX Instalation costs"},3,null,{"$f":"IF($B115=\"Blank\",0,OFFSET('CAPEX Annuity calcs'!$B$9,MATCH($B115,'CAPEX Annuity calcs'!$B$9:$B$500,0)+$C127,E$6))","v":18.736141709912243},{"$f":"IF($B115=\"Blank\",0,OFFSET('CAPEX Annuity calcs'!$B$9,MATCH($B115,'CAPEX Annuity calcs'!$B$9:$B$500,0)+$C127,F$6))","v":18.74779128716041},{"$f":"IF($B115=\"Blank\",0,OFFSET('CAPEX Annuity calcs'!$B$9,MATCH($B115,'CAPEX Annuity calcs'!$B$9:$B$500,0)+$C127,G$6))","v":18.765559678232343},{"$f":"IF($B115=\"Blank\",0,OFFSET('CAPEX Annuity calcs'!$B$9,MATCH($B115,'CAPEX Annuity calcs'!$B$9:$B$500,0)+$C127,H$6))","v":18.787465819916616},{"$f":"IF($B115=\"Blank\",0,OFFSET('CAPEX Annuity calcs'!$B$9,MATCH($B115,'CAPEX Annuity calcs'!$B$9:$B$500,0)+$C127,I$6))","v":18.813047608397444},null,null,null,null,null,null,null,"CAPEX Instalation costs",5.1191644016153672,5.1363811745644954,5.1412492269129713,5.1472509095661954,5.1401769421850938]
[null,null,null,null,{"$f":"SUM(E116:E127)","v":145.70052337617679},{"$f":"SUM(F116:F127)","v":144.85745895834725},129.05321604666889,128.19164174408854,127.53487413264705,null,null,null,null,null,null,null,null,{"$f":"ROUND(E128/R$2*100,3)","v":39.808999999999997},{"$f":"ROUND(F128/S$2*100,3)","v":39.686999999999998},{"$f":"ROUND(G128/T$2*100,3)","v":35.356999999999999},{"$f":"ROUND(H128/U$2*100,3)","v":35.121000000000002},{"$f":"ROUND(I128/V$2*100,3)","v":34.845999999999997}]
[]
[{"$f":"A115+1","v":9},{"$f":"IFERROR(VLOOKUP($A130,Inputs!$B$68:$AN$129,MATCH($B$7,Inputs!$B$68:$AN$68,0),FALSE),\"Blank\")","v":"T5 Fluorescent 2 x 24W"},null,null,null,null,null,null,null,null,null,null,null,null,null,null,{"$f":"IFERROR(VLOOKUP($A130,Inputs!$B$68:$AN$129,MATCH($B$7,Inputs!$B$68:$AN$68,0),FALSE),\"Blank\")","v":"T5 Fluorescent 2 x 24W"}]
[null,{"$f":"Inputs!$S$68","v":"Lamp UNIT price Annualised Cost"},{"$f":"Inputs!$Q$68","v":"Lamp Maintenance cycle"},null,{"$f":"IF($B130=\"Blank\",0,VLOOKUP($B130,Inputs!$C$68:$AN$129,MATCH($B131,Inputs!$C$68:$AN$68,0),FALSE))","v":2.0183641595758375},{"$f":"IF($B130=\"Blank\",0,VLOOKUP($B130,Inputs!$C$68:$AN$129,MATCH($B131,Inputs!$C$68:$AN$68,0),FALSE))","v":2.0183641595758375},{"$f":"IF($B130=\"Blank\",0,VLOOKUP($B130,Inputs!$C$68:$AN$129,MATCH($B131,Inputs!$C$68:$AN$68,0),FALSE))","v":2.0183641595758375},{"$f":"IF($B130=\"Blank\",0,VLOOKUP($B130,Inputs!$C$68:$AN$129,MATCH($B131,Inputs!$C$68:$AN$68,0),FALSE))","v":2.0183641595758375},{"$f":"IF($B130=\"Blank\",0,VLOOKUP($B130,Inputs!$C$68:$AN$129,MATCH($B131,Inputs!$C$68:$AN$68,0),FALSE))","v":2.0183641595758375},null,null,null,null,null,null,null,{"$f":"B131","v":"Lamp UNIT price Annualised Cost"},{"$f":"IF(E131=\"NA\",\"\",E131/R$2*100)","v":0.55146561737044741},{"$f":"IF(F131=\"NA\",\"\",F131/S$2*100)","v":0.55297648207557193},{"$f":"IF(G131=\"NA\",\"\",G131/T$2*100)","v":0.55297648207557193},{"$f":"IF(H131=\"NA\",\"\",H131/U$2*100)","v":0.55297648207557193},{"$f":"IF(I131=\"NA\",\"\",I131/V$2*100)","v":0.55146561737044741}]
[null,{"$f":"Inputs!$K$68","v":"PE Cell UNIT price Annualised Cost"},{"$f":"Inputs!$I$68","v":"PE Cell Maintenance Cycle"},null,{"$f":"IF($B130=\"Blank\",0,VLOOKUP($B130,Inputs!$C$68:$AN$129,MATCH($B132,Inputs!$C$68:$AN$68,0),FALSE))","v":0.58131255188333353},{"$f":"IF($B130=\"Blank\",0,VLOOKUP($B130,Inputs!$C$68:$AN$129,MATCH($B132,Inputs!$C$68:$AN$68,0),FALSE))","v":0.58131255188333353},{"$f":"IF($B130=\"Blank\",0,VLOOKUP($B130,Inputs!$C$68:$AN$129,MATCH($B132,Inputs!$C$68:$AN$68,0),FALSE))","v":0.58131255188333353},{"$f":"IF($B130=\"Blank\",0,VLOOKUP($B130,Inputs!$C$68:$AN$129,MATCH($B132,Inputs!$C$68:$AN$68,0),FALSE))","v":0.58131255188333353},{"$f":"IF($B130=\"Blank\",0,VLOOKUP($B130,Inputs!$C$68:$AN$129,MATCH($B132,Inputs!$C$68:$AN$68,0),FALSE))","v":0.58131255188333353},null,null,null,null,null,null,null,"PE Cell UNIT price Annualised Cost",0.15882856608834248,0.15926371284474891,0.15926371284474891,0.15926371284474891,0.15882856608834248]
[null,"Corp capex annuity per light",null,null,{"$f":"IF($B130=\"Blank\",0,'Corp Capex Annuity calcs'!F$142)","v":18.582309905017571},{"$f":"IF($B130=\"Blank\",0,'Corp Capex Annuity calcs'!G$142)","v":18.552026408230436},{"$f":"IF($B130=\"Blank\",0,'Corp Capex Annuity calcs'!H$142)","v":18.401377631486287},{"$f":"IF($B130=\"Blank\",0,'Corp Capex Annuity calcs'!I$142)","v":18.205761940470655},{"$f":"IF($B130=\"Blank\",0,'Corp Capex Annuity calcs'!J$142)","v":17.995165449295623},null,null,null,null,null,null,null,"Corp capex annuity per light",5.0771338538299373,5.0827469611590237,5.0414733236948734,4.9878799836905907,4.9167118713922466]
[null,{"$f":"Inputs!$U$68","v":"Lamp Service costs Annualised"},"Labour Portion of Lamp Service costs annualised",null,{"$f":"IF($B130=\"Blank\",0,VLOOKUP($B130,Inputs!$C$68:$AN$129,MATCH($B134,Inputs!$C$68:$AN$68,0),FALSE))+IFERROR(IF($B130=\"Blank\",0,VLOOKUP($B130,Inputs!$C$68:$AN$129,MATCH($C134,Inputs!$C$68:$AN$68,0),FALSE))*('Master Data'!K$42),0)","v":24.127490039840644},{"$f":"IF($B130=\"Blank\",0,VLOOKUP($B130,Inputs!$C$68:$AN$129,MATCH($B134,Inputs!$C$68:$AN$68,0),FALSE))+IFERROR(IF($B130=\"Blank\",0,VLOOKUP($B130,Inputs!$C$68:$AN$129,MATCH($C134,Inputs!$C$68:$AN$68,0),FALSE))*('Master Data'!L$42),0)","v":24.131023426294828},{"$f":"IF($B130=\"Blank\",0,VLOOKUP($B130,Inputs!$C$68:$AN$129,MATCH($B134,Inputs!$C$68:$AN$68,0),FALSE))+IFERROR(IF($B130=\"Blank\",0,VLOOKUP($B130,Inputs!$C$68:$AN$129,MATCH($C134,Inputs!$C$68:$AN$68,0),FALSE))*('Master Data'!M$42),0)","v":24.136412685577696},{"$f":"IF($B130=\"Blank\",0,VLOOKUP($B130,Inputs!$C$68:$AN$129,MATCH($B134,Inputs!$C$68:$AN$68,0),FALSE))+IFERROR(IF($B130=\"Blank\",0,VLOOKUP($B130,Inputs!$C$68:$AN$129,MATCH($C134,Inputs!$C$68:$AN$68,0),FALSE))*('Master Data'!N$42),0)","v":24.143056949368709},{"$f":"IF($B130=\"Blank\",0,VLOOKUP($B130,Inputs!$C$68:$AN$129,MATCH($B134,Inputs!$C$68:$AN$68,0),FALSE))+IFERROR(IF($B130=\"Blank\",0,VLOOKUP($B130,Inputs!$C$68:$AN$129,MATCH($C134,Inputs!$C$68:$AN$68,0),FALSE))*('Master Data'!O$42),0)","v":24.150816058816748},null,null,null,null,null,null,null,"Lamp Service costs Annualised",6.5922103933990828,6.611239294875296,6.6127158042678618,6.6145361505119755,6.598583622627527]
[null,{"$f":"Inputs!$M$68","v":"PE Cell Service costs Annualised"},"Labour Portion of PE Cell Service costs Annualised",null,{"$f":"IF($B130=\"Blank\",0,VLOOKUP($B130,Inputs!$C$68:$AN$129,MATCH($B135,Inputs!$C$68:$AN$68,0),FALSE))+IFERROR(IF($B130=\"Blank\",0,VLOOKUP($B130,Inputs!$C$68:$AN$129,MATCH($C135,Inputs!$C$68:$AN$68,0),FALSE))*('Master Data'!K$42),0)","v":0},{"$f":"IF($B130=\"Blank\",0,VLOOKUP($B130,Inputs!$C$68:$AN$129,MATCH($B135,Inputs!$C$68:$AN$68,0),FALSE))+IFERROR(IF($B130=\"Blank\",0,VLOOKUP($B130,Inputs!$C$68:$AN$129,MATCH($C135,Inputs!$C$68:$AN$68,0),FALSE))*('Master Data'!L$42),0)","v":0},{"$f":"IF($B130=\"Blank\",0,VLOOKUP($B130,Inputs!$C$68:$AN$129,MATCH($B135,Inputs!$C$68:$AN$68,0),FALSE))+IFERROR(IF($B130=\"Blank\",0,VLOOKUP($B130,Inputs!$C$68:$AN$129,MATCH($C135,Inputs!$C$68:$AN$68,0),FALSE))*('Master Data'!M$42),0)","v":0},{"$f":"IF($B130=\"Blank\",0,VLOOKUP($B130,Inputs!$C$68:$AN$129,MATCH($B135,Inputs!$C$68:$AN$68,0),FALSE))+IFERROR(IF($B130=\"Blank\",0,VLOOKUP($B130,Inputs!$C$68:$AN$129,MATCH($C135,Inputs!$C$68:$AN$68,0),FALSE))*('Master Data'!N$42),0)","v":0},{"$f":"IF($B130=\"Blank\",0,VLOOKUP($B130,Inputs!$C$68:$AN$129,MATCH($B135,Inputs!$C$68:$AN$68,0),FALSE))+IFERROR(IF($B130=\"Blank\",0,VLOOKUP($B130,Inputs!$C$68:$AN$129,MATCH($C135,Inputs!$C$68:$AN$68,0),FALSE))*('Master Data'!O$42),0)","v":0},null,null,null,null,null,null,null,"PE Cell Service costs Annualised",0,0,0,0,0]
[null,"Indirect Opex",null,null,{"$f":"IF($B130=\"Blank\",0,IF($B$8=\"Private Contract Lighting\",'Opex Weighting'!D$48,'Opex Weighting'!D$46))","v":25.762407087322877},{"$f":"IF($B130=\"Blank\",0,IF($B$8=\"Private Contract Lighting\",'Opex Weighting'!E$48,'Opex Weighting'!E$46))","v":25.880403763800857},{"$f":"IF($B130=\"Blank\",0,IF($B$8=\"Private Contract Lighting\",'Opex Weighting'!F$48,'Opex Weighting'!F$46))","v":20.013740175030701},{"$f":"IF($B130=\"Blank\",0,IF($B$8=\"Private Contract Lighting\",'Opex Weighting'!G$48,'Opex Weighting'!G$46))","v":19.55949970528431},{"$f":"IF($B130=\"Blank\",0,IF($B$8=\"Private Contract Lighting\",'Opex Weighting'!H$48,'Opex Weighting'!H$46))","v":19.096814305933613},null,null,null,null,null,null,null,"Indirect Opex",7.0389090402521521,7.0905215791235223,5.4832164863097814,5.3587670425436471,5.2177088267578178]
[null,"Indirect Capex",null,null,{"$f":"'Capex Weighting'!D$59","v":0},{"$f":"'Capex Weighting'!E$59","v":0},{"$f":"'Capex Weighting'!F$59","v":0},{"$f":"'Capex Weighting'!G$59","v":0},{"$f":"'Capex Weighting'!H$59","v":0},null,null,null,null,null,null,null,"Indirect Capex",0,0,0,0,0]
[null,"Opex Overheads Costs per light",null,null,{"$f":"IF($B130=\"Blank\",0,IF($B$8=\"Private Contract Lighting\",'Building Block'!C$40,'Building Block'!C$39))","v":32.224036557323004},{"$f":"IF($B130=\"Blank\",0,IF($B$8=\"Private Contract Lighting\",'Building Block'!D$40,'Building Block'!D$39))","v":31.278075996100256},{"$f":"IF($B130=\"Blank\",0,IF($B$8=\"Private Contract Lighting\",'Building Block'!E$40,'Building Block'!E$39))","v":21.467987799581408},{"$f":"IF($B130=\"Blank\",0,IF($B$8=\"Private Contract Lighting\",'Building Block'!F$40,'Building Block'!F$39))","v":21.22771925228782},{"$f":"IF($B130=\"Blank\",0,IF($B$8=\"Private Contract Lighting\",'Building Block'!G$40,'Building Block'!G$39))","v":21.210892633443169},null,null,null,null,null,null,null,"Opex Overheads Costs per light",8.8043815730390715,8.5693358893425362,5.8816404930360022,5.815813493777485,5.7953258561320133]
[null,{"$f":"Inputs!$AK$68","v":"Bracket UNIT price"},0,null,{"$f":"IF($B130=\"Blank\",0,OFFSET('CAPEX Annuity calcs'!$B$9,MATCH($B130,'CAPEX Annuity calcs'!$B$9:$B$500,0)+$C139,E$6))","v":6.1673796159250225},{"$f":"IF($B130=\"Blank\",0,OFFSET('CAPEX Annuity calcs'!$B$9,MATCH($B130,'CAPEX Annuity calcs'!$B$9:$B$500,0)+$C139,F$6))","v":6.1673796159250225},{"$f":"IF($B130=\"Blank\",0,OFFSET('CAPEX Annuity calcs'!$B$9,MATCH($B130,'CAPEX Annuity calcs'!$B$9:$B$500,0)+$C139,G$6))","v":6.1673796159250225},{"$f":"IF($B130=\"Blank\",0,OFFSET('CAPEX Annuity calcs'!$B$9,MATCH($B130,'CAPEX Annuity calcs'!$B$9:$B$500,0)+$C139,H$6))","v":6.1673796159250225},{"$f":"IF($B130=\"Blank\",0,OFFSET('CAPEX Annuity calcs'!$B$9,MATCH($B130,'CAPEX Annuity calcs'!$B$9:$B$500,0)+$C139,I$6))","v":6.1673796159250225},null,null,null,null,null,null,null,"Bracket UNIT price",1.6850763977937218,1.6896930454589103,1.6896930454589103,1.6896930454589103,1.6850763977937218]
[null,{"$f":"Inputs!$AA$68","v":"CAPEX Instalation costs"},{"$f":"C139+1","v":1},null,{"$f":"IF($B130=\"Blank\",0,OFFSET('CAPEX Annuity calcs'!$B$9,MATCH($B130,'CAPEX Annuity calcs'!$B$9:$B$500,0)+$C140,E$6))","v":0},{"$f":"IF($B130=\"Blank\",0,OFFSET('CAPEX Annuity calcs'!$B$9,MATCH($B130,'CAPEX Annuity calcs'!$B$9:$B$500,0)+$C140,F$6))","v":0},{"$f":"IF($B130=\"Blank\",0,OFFSET('CAPEX Annuity calcs'!$B$9,MATCH($B130,'CAPEX Annuity calcs'!$B$9:$B$500,0)+$C140,G$6))","v":0},{"$f":"IF($B130=\"Blank\",0,OFFSET('CAPEX Annuity calcs'!$B$9,MATCH($B130,'CAPEX Annuity calcs'!$B$9:$B$500,0)+$C140,H$6))","v":0},{"$f":"IF($B130=\"Blank\",0,OFFSET('CAPEX Annuity calcs'!$B$9,MATCH($B130,'CAPEX Annuity calcs'!$B$9:$B$500,0)+$C140,I$6))","v":0},null,null,null,null,null,null,null,"CAPEX Instalation costs",0,0,0,0,0]
[null,{"$f":"Inputs!$Z$68","v":"Luminaire UNIT price"},{"$f":"C140+1","v":2},null,{"$f":"IF($B130=\"Blank\",0,OFFSET('CAPEX Annuity calcs'!$B$9,MATCH($B130,'CAPEX Annuity calcs'!$B$9:$B$500,0)+$C141,E$6))","v":17.729617151402259},{"$f":"IF($B130=\"Blank\",0,OFFSET('CAPEX Annuity calcs'!$B$9,MATCH($B130,'CAPEX Annuity calcs'!$B$9:$B$500,0)+$C141,F$6))","v":17.729617151402259},{"$f":"IF($B130=\"Blank\",0,OFFSET('CAPEX Annuity calcs'!$B$9,MATCH($B130,'CAPEX Annuity calcs'!$B$9:$B$500,0)+$C141,G$6))","v":17.729617151402259},{"$f":"IF($B130=\"Blank\",0,OFFSET('CAPEX Annuity calcs'!$B$9,MATCH($B130,'CAPEX Annuity calcs'!$B$9:$B$500,0)+$C141,H$6))","v":17.729617151402259},{"$f":"IF($B130=\"Blank\",0,OFFSET('CAPEX Annuity calcs'!$B$9,MATCH($B130,'CAPEX Annuity calcs'!$B$9:$B$500,0)+$C141,I$6))","v":17.729617151402259},null,null,null,null,null,null,null,"Luminaire UNIT price",4.8441576916399613,4.8574293565485638,4.8574293565485638,4.8574293565485638,4.8441576916399613]
[null,{"$f":"Inputs!$AA$68","v":"CAPEX Instalation costs"},3,null,{"$f":"IF($B130=\"Blank\",0,OFFSET('CAPEX Annuity calcs'!$B$9,MATCH($B130,'CAPEX Annuity calcs'!$B$9:$B$500,0)+$C142,E$6))","v":18.736141709912243},{"$f":"IF($B130=\"Blank\",0,OFFSET('CAPEX Annuity calcs'!$B$9,MATCH($B130,'CAPEX Annuity calcs'!$B$9:$B$500,0)+$C142,F$6))","v":18.74779128716041},{"$f":"IF($B130=\"Blank\",0,OFFSET('CAPEX Annuity calcs'!$B$9,MATCH($B130,'CAPEX Annuity calcs'!$B$9:$B$500,0)+$C142,G$6))","v":18.765559678232343},{"$f":"IF($B130=\"Blank\",0,OFFSET('CAPEX Annuity calcs'!$B$9,MATCH($B130,'CAPEX Annuity calcs'!$B$9:$B$500,0)+$C142,H$6))","v":18.787465819916616},{"$f":"IF($B130=\"Blank\",0,OFFSET('CAPEX Annuity calcs'!$B$9,MATCH($B130,'CAPEX Annuity calcs'!$B$9:$B$500,0)+$C142,I$6))","v":18.813047608397444},null,null,null,null,null,null,null,"CAPEX Instalation costs",5.1191644016153672,5.1363811745644954,5.1412492269129713,5.1472509095661954,5.1401769421850938]
[null,null,null,null,{"$f":"SUM(E131:E142)","v":145.92905877820277},{"$f":"SUM(F131:F142)","v":145.08599436037326},129.28175144869488,128.42017714611455,127.76340953467304,null,null,null,null,null,null,null,null,{"$f":"ROUND(E143/R$2*100,3)","v":39.871000000000002},{"$f":"ROUND(F143/S$2*100,3)","v":39.75},{"$f":"ROUND(G143/T$2*100,3)","v":35.42},{"$f":"ROUND(H143/U$2*100,3)","v":35.183999999999997},{"$f":"ROUND(I143/V$2*100,3)","v":34.908000000000001}]
[]
[{"$f":"A130+1","v":10},{"$f":"IFERROR(VLOOKUP($A145,Inputs!$B$68:$AN$129,MATCH($B$7,Inputs!$B$68:$AN$68,0),FALSE),\"Blank\")","v":"20 Fluorescent 1X20FL"},null,null,null,null,null,null,null,null,null,null,null,null,null,null,{"$f":"IFERROR(VLOOKUP($A145,Inputs!$B$68:$AN$129,MATCH($B$7,Inputs!$B$68:$AN$68,0),FALSE),\"Blank\")","v":"20 Fluorescent 1X20FL"}]
[null,{"$f":"Inputs!$S$68","v":"Lamp UNIT price Annualised Cost"},{"$f":"Inputs!$Q$68","v":"Lamp Maintenance cycle"},null,{"$f":"IF($B145=\"Blank\",0,VLOOKUP($B145,Inputs!$C$68:$AN$129,MATCH($B146,Inputs!$C$68:$AN$68,0),FALSE))","v":1.0091820797879187},{"$f":"IF($B145=\"Blank\",0,VLOOKUP($B145,Inputs!$C$68:$AN$129,MATCH($B146,Inputs!$C$68:$AN$68,0),FALSE))","v":1.0091820797879187},{"$f":"IF($B145=\"Blank\",0,VLOOKUP($B145,Inputs!$C$68:$AN$129,MATCH($B146,Inputs!$C$68:$AN$68,0),FALSE))","v":1.0091820797879187},{"$f":"IF($B145=\"Blank\",0,VLOOKUP($B145,Inputs!$C$68:$AN$129,MATCH($B146,Inputs!$C$68:$AN$68,0),FALSE))","v":1.0091820797879187},{"$f":"IF($B145=\"Blank\",0,VLOOKUP($B145,Inputs!$C$68:$AN$129,MATCH($B146,Inputs!$C$68:$AN$68,0),FALSE))","v":1.0091820797879187},null,null,null,null,null,null,null,{"$f":"B146","v":"Lamp UNIT price Annualised Cost"},{"$f":"IF(E146=\"NA\",\"\",E146/R$2*100)","v":0.27573280868522371},{"$f":"IF(F146=\"NA\",\"\",F146/S$2*100)","v":0.27648824103778596},{"$f":"IF(G146=\"NA\",\"\",G146/T$2*100)","v":0.27648824103778596},{"$f":"IF(H146=\"NA\",\"\",H146/U$2*100)","v":0.27648824103778596},{"$f":"IF(I146=\"NA\",\"\",I146/V$2*100)","v":0.27573280868522371}]
[null,{"$f":"Inputs!$K$68","v":"PE Cell UNIT price Annualised Cost"},{"$f":"Inputs!$I$68","v":"PE Cell Maintenance Cycle"},null,{"$f":"IF($B145=\"Blank\",0,VLOOKUP($B145,Inputs!$C$68:$AN$129,MATCH($B147,Inputs!$C$68:$AN$68,0),FALSE))","v":0.58131255188333353},{"$f":"IF($B145=\"Blank\",0,VLOOKUP($B145,Inputs!$C$68:$AN$129,MATCH($B147,Inputs!$C$68:$AN$68,0),FALSE))","v":0.58131255188333353},{"$f":"IF($B145=\"Blank\",0,VLOOKUP($B145,Inputs!$C$68:$AN$129,MATCH($B147,Inputs!$C$68:$AN$68,0),FALSE))","v":0.58131255188333353},{"$f":"IF($B145=\"Blank\",0,VLOOKUP($B145,Inputs!$C$68:$AN$129,MATCH($B147,Inputs!$C$68:$AN$68,0),FALSE))","v":0.58131255188333353},{"$f":"IF($B145=\"Blank\",0,VLOOKUP($B145,Inputs!$C$68:$AN$129,MATCH($B147,Inputs!$C$68:$AN$68,0),FALSE))","v":0.58131255188333353},null,null,null,null,null,null,null,"PE Cell UNIT price Annualised Cost",0.15882856608834248,0.15926371284474891,0.15926371284474891,0.15926371284474891,0.15882856608834248]
[null,"Corp capex annuity per light",null,null,{"$f":"IF($B145=\"Blank\",0,'Corp Capex Annuity calcs'!F$142)","v":18.582309905017571},{"$f":"IF($B145=\"Blank\",0,'Corp Capex Annuity calcs'!G$142)","v":18.552026408230436},{"$f":"IF($B145=\"Blank\",0,'Corp Capex Annuity calcs'!H$142)","v":18.401377631486287},{"$f":"IF($B145=\"Blank\",0,'Corp Capex Annuity calcs'!I$142)","v":18.205761940470655},{"$f":"IF($B145=\"Blank\",0,'Corp Capex Annuity calcs'!J$142)","v":17.995165449295623},null,null,null,null,null,null,null,"Corp capex annuity per light",5.0771338538299373,5.0827469611590237,5.0414733236948734,4.9878799836905907,4.9167118713922466]
[null,{"$f":"Inputs!$U$68","v":"Lamp Service costs Annualised"},"Labour Portion of Lamp Service costs annualised",null,{"$f":"IF($B145=\"Blank\",0,VLOOKUP($B145,Inputs!$C$68:$AN$129,MATCH($B149,Inputs!$C$68:$AN$68,0),FALSE))+IFERROR(IF($B145=\"Blank\",0,VLOOKUP($B145,Inputs!$C$68:$AN$129,MATCH($C149,Inputs!$C$68:$AN$68,0),FALSE))*('Master Data'!K$42),0)","v":24.127490039840644},{"$f":"IF($B145=\"Blank\",0,VLOOKUP($B145,Inputs!$C$68:$AN$129,MATCH($B149,Inputs!$C$68:$AN$68,0),FALSE))+IFERROR(IF($B145=\"Blank\",0,VLOOKUP($B145,Inputs!$C$68:$AN$129,MATCH($C149,Inputs!$C$68:$AN$68,0),FALSE))*('Master Data'!L$42),0)","v":24.131023426294828},{"$f":"IF($B145=\"Blank\",0,VLOOKUP($B145,Inputs!$C$68:$AN$129,MATCH($B149,Inputs!$C$68:$AN$68,0),FALSE))+IFERROR(IF($B145=\"Blank\",0,VLOOKUP($B145,Inputs!$C$68:$AN$129,MATCH($C149,Inputs!$C$68:$AN$68,0),FALSE))*('Master Data'!M$42),0)","v":24.136412685577696},{"$f":"IF($B145=\"Blank\",0,VLOOKUP($B145,Inputs!$C$68:$AN$129,MATCH($B149,Inputs!$C$68:$AN$68,0),FALSE))+IFERROR(IF($B145=\"Blank\",0,VLOOKUP($B145,Inputs!$C$68:$AN$129,MATCH($C149,Inputs!$C$68:$AN$68,0),FALSE))*('Master Data'!N$42),0)","v":24.143056949368709},{"$f":"IF($B145=\"Blank\",0,VLOOKUP($B145,Inputs!$C$68:$AN$129,MATCH($B149,Inputs!$C$68:$AN$68,0),FALSE))+IFERROR(IF($B145=\"Blank\",0,VLOOKUP($B145,Inputs!$C$68:$AN$129,MATCH($C149,Inputs!$C$68:$AN$68,0),FALSE))*('Master Data'!O$42),0)","v":24.150816058816748},null,null,null,null,null,null,null,"Lamp Service costs Annualised",6.5922103933990828,6.611239294875296,6.6127158042678618,6.6145361505119755,6.598583622627527]
[null,{"$f":"Inputs!$M$68","v":"PE Cell Service costs Annualised"},"Labour Portion of PE Cell Service costs Annualised",null,{"$f":"IF($B145=\"Blank\",0,VLOOKUP($B145,Inputs!$C$68:$AN$129,MATCH($B150,Inputs!$C$68:$AN$68,0),FALSE))+IFERROR(IF($B145=\"Blank\",0,VLOOKUP($B145,Inputs!$C$68:$AN$129,MATCH($C150,Inputs!$C$68:$AN$68,0),FALSE))*('Master Data'!K$42),0)","v":0},{"$f":"IF($B145=\"Blank\",0,VLOOKUP($B145,Inputs!$C$68:$AN$129,MATCH($B150,Inputs!$C$68:$AN$68,0),FALSE))+IFERROR(IF($B145=\"Blank\",0,VLOOKUP($B145,Inputs!$C$68:$AN$129,MATCH($C150,Inputs!$C$68:$AN$68,0),FALSE))*('Master Data'!L$42),0)","v":0},{"$f":"IF($B145=\"Blank\",0,VLOOKUP($B145,Inputs!$C$68:$AN$129,MATCH($B150,Inputs!$C$68:$AN$68,0),FALSE))+IFERROR(IF($B145=\"Blank\",0,VLOOKUP($B145,Inputs!$C$68:$AN$129,MATCH($C150,Inputs!$C$68:$AN$68,0),FALSE))*('Master Data'!M$42),0)","v":0},{"$f":"IF($B145=\"Blank\",0,VLOOKUP($B145,Inputs!$C$68:$AN$129,MATCH($B150,Inputs!$C$68:$AN$68,0),FALSE))+IFERROR(IF($B145=\"Blank\",0,VLOOKUP($B145,Inputs!$C$68:$AN$129,MATCH($C150,Inputs!$C$68:$AN$68,0),FALSE))*('Master Data'!N$42),0)","v":0},{"$f":"IF($B145=\"Blank\",0,VLOOKUP($B145,Inputs!$C$68:$AN$129,MATCH($B150,Inputs!$C$68:$AN$68,0),FALSE))+IFERROR(IF($B145=\"Blank\",0,VLOOKUP($B145,Inputs!$C$68:$AN$129,MATCH($C150,Inputs!$C$68:$AN$68,0),FALSE))*('Master Data'!O$42),0)","v":0},null,null,null,null,null,null,null,"PE Cell Service costs Annualised",0,0,0,0,0]
[null,"Indirect Opex",null,null,{"$f":"IF($B145=\"Blank\",0,IF($B$8=\"Private Contract Lighting\",'Opex Weighting'!D$48,'Opex Weighting'!D$46))","v":25.762407087322877},{"$f":"IF($B145=\"Blank\",0,IF($B$8=\"Private Contract Lighting\",'Opex Weighting'!E$48,'Opex Weighting'!E$46))","v":25.880403763800857},{"$f":"IF($B145=\"Blank\",0,IF($B$8=\"Private Contract Lighting\",'Opex Weighting'!F$48,'Opex Weighting'!F$46))","v":20.013740175030701},{"$f":"IF($B145=\"Blank\",0,IF($B$8=\"Private Contract Lighting\",'Opex Weighting'!G$48,'Opex Weighting'!G$46))","v":19.55949970528431},{"$f":"IF($B145=\"Blank\",0,IF($B$8=\"Private Contract Lighting\",'Opex Weighting'!H$48,'Opex Weighting'!H$46))","v":19.096814305933613},null,null,null,null,null,null,null,"Indirect Opex",7.0389090402521521,7.0905215791235223,5.4832164863097814,5.3587670425436471,5.2177088267578178]
[null,"Indirect Capex",null,null,{"$f":"'Capex Weighting'!D$59","v":0},{"$f":"'Capex Weighting'!E$59","v":0},{"$f":"'Capex Weighting'!F$59","v":0},{"$f":"'Capex Weighting'!G$59","v":0},{"$f":"'Capex Weighting'!H$59","v":0},null,null,null,null,null,null,null,"Indirect Capex",0,0,0,0,0]
[null,"Opex Overheads Costs per light",null,null,{"$f":"IF($B145=\"Blank\",0,IF($B$8=\"Private Contract Lighting\",'Building Block'!C$40,'Building Block'!C$39))","v":32.224036557323004},{"$f":"IF($B145=\"Blank\",0,IF($B$8=\"Private Contract Lighting\",'Building Block'!D$40,'Building Block'!D$39))","v":31.278075996100256},{"$f":"IF($B145=\"Blank\",0,IF($B$8=\"Private Contract Lighting\",'Building Block'!E$40,'Building Block'!E$39))","v":21.467987799581408},{"$f":"IF($B145=\"Blank\",0,IF($B$8=\"Private Contract Lighting\",'Building Block'!F$40,'Building Block'!F$39))","v":21.22771925228782},{"$f":"IF($B145=\"Blank\",0,IF($B$8=\"Private Contract Lighting\",'Building Block'!G$40,'Building Block'!G$39))","v":21.210892633443169},null,null,null,null,null,null,null,"Opex Overheads Costs per light",8.8043815730390715,8.5693358893425362,5.8816404930360022,5.815813493777485,5.7953258561320133]
[null,{"$f":"Inputs!$AK$68","v":"Bracket UNIT price"},0,null,{"$f":"IF($B145=\"Blank\",0,OFFSET('CAPEX Annuity calcs'!$B$9,MATCH($B145,'CAPEX Annuity calcs'!$B$9:$B$500,0)+$C154,E$6))","v":6.1673796159250225},{"$f":"IF($B145=\"Blank\",0,OFFSET('CAPEX Annuity calcs'!$B$9,MATCH($B145,'CAPEX Annuity calcs'!$B$9:$B$500,0)+$C154,F$6))","v":6.1673796159250225},{"$f":"IF($B145=\"Blank\",0,OFFSET('CAPEX Annuity calcs'!$B$9,MATCH($B145,'CAPEX Annuity calcs'!$B$9:$B$500,0)+$C154,G$6))","v":6.1673796159250225},{"$f":"IF($B145=\"Blank\",0,OFFSET('CAPEX Annuity calcs'!$B$9,MATCH($B145,'CAPEX Annuity calcs'!$B$9:$B$500,0)+$C154,H$6))","v":6.1673796159250225},{"$f":"IF($B145=\"Blank\",0,OFFSET('CAPEX Annuity calcs'!$B$9,MATCH($B145,'CAPEX Annuity calcs'!$B$9:$B$500,0)+$C154,I$6))","v":6.1673796159250225},null,null,null,null,null,null,null,"Bracket UNIT price",1.6850763977937218,1.6896930454589103,1.6896930454589103,1.6896930454589103,1.6850763977937218]
[null,{"$f":"Inputs!$AA$68","v":"CAPEX Instalation costs"},{"$f":"C154+1","v":1},null,{"$f":"IF($B145=\"Blank\",0,OFFSET('CAPEX Annuity calcs'!$B$9,MATCH($B145,'CAPEX Annuity calcs'!$B$9:$B$500,0)+$C155,E$6))","v":0},{"$f":"IF($B145=\"Blank\",0,OFFSET('CAPEX Annuity calcs'!$B$9,MATCH($B145,'CAPEX Annuity calcs'!$B$9:$B$500,0)+$C155,F$6))","v":0},{"$f":"IF($B145=\"Blank\",0,OFFSET('CAPEX Annuity calcs'!$B$9,MATCH($B145,'CAPEX Annuity calcs'!$B$9:$B$500,0)+$C155,G$6))","v":0},{"$f":"IF($B145=\"Blank\",0,OFFSET('CAPEX Annuity calcs'!$B$9,MATCH($B145,'CAPEX Annuity calcs'!$B$9:$B$500,0)+$C155,H$6))","v":0},{"$f":"IF($B145=\"Blank\",0,OFFSET('CAPEX Annuity calcs'!$B$9,MATCH($B145,'CAPEX Annuity calcs'!$B$9:$B$500,0)+$C155,I$6))","v":0},null,null,null,null,null,null,null,"CAPEX Instalation costs",0,0,0,0,0]
[null,{"$f":"Inputs!$Z$68","v":"Luminaire UNIT price"},{"$f":"C155+1","v":2},null,{"$f":"IF($B145=\"Blank\",0,OFFSET('CAPEX Annuity calcs'!$B$9,MATCH($B145,'CAPEX Annuity calcs'!$B$9:$B$500,0)+$C156,E$6))","v":17.729617151402259},{"$f":"IF($B145=\"Blank\",0,OFFSET('CAPEX Annuity calcs'!$B$9,MATCH($B145,'CAPEX Annuity calcs'!$B$9:$B$500,0)+$C156,F$6))","v":17.729617151402259},{"$f":"IF($B145=\"Blank\",0,OFFSET('CAPEX Annuity calcs'!$B$9,MATCH($B145,'CAPEX Annuity calcs'!$B$9:$B$500,0)+$C156,G$6))","v":17.729617151402259},{"$f":"IF($B145=\"Blank\",0,OFFSET('CAPEX Annuity calcs'!$B$9,MATCH($B145,'CAPEX Annuity calcs'!$B$9:$B$500,0)+$C156,H$6))","v":17.729617151402259},{"$f":"IF($B145=\"Blank\",0,OFFSET('CAPEX Annuity calcs'!$B$9,MATCH($B145,'CAPEX Annuity calcs'!$B$9:$B$500,0)+$C156,I$6))","v":17.729617151402259},null,null,null,null,null,null,null,"Luminaire UNIT price",4.8441576916399613,4.8574293565485638,4.8574293565485638,4.8574293565485638,4.8441576916399613]
[null,{"$f":"Inputs!$AA$68","v":"CAPEX Instalation costs"},3,null,{"$f":"IF($B145=\"Blank\",0,OFFSET('CAPEX Annuity calcs'!$B$9,MATCH($B145,'CAPEX Annuity calcs'!$B$9:$B$500,0)+$C157,E$6))","v":18.736141709912243},{"$f":"IF($B145=\"Blank\",0,OFFSET('CAPEX Annuity calcs'!$B$9,MATCH($B145,'CAPEX Annuity calcs'!$B$9:$B$500,0)+$C157,F$6))","v":18.74779128716041},{"$f":"IF($B145=\"Blank\",0,OFFSET('CAPEX Annuity calcs'!$B$9,MATCH($B145,'CAPEX Annuity calcs'!$B$9:$B$500,0)+$C157,G$6))","v":18.765559678232343},{"$f":"IF($B145=\"Blank\",0,OFFSET('CAPEX Annuity calcs'!$B$9,MATCH($B145,'CAPEX Annuity calcs'!$B$9:$B$500,0)+$C157,H$6))","v":18.787465819916616},{"$f":"IF($B145=\"Blank\",0,OFFSET('CAPEX Annuity calcs'!$B$9,MATCH($B145,'CAPEX Annuity calcs'!$B$9:$B$500,0)+$C157,I$6))","v":18.813047608397444},null,null,null,null,null,null,null,"CAPEX Instalation costs",5.1191644016153672,5.1363811745644954,5.1412492269129713,5.1472509095661954,5.1401769421850938]
[null,null,null,null,{"$f":"SUM(E146:E157)","v":144.91987669841487},{"$f":"SUM(F146:F157)","v":144.07681228058533},128.27256936890697,127.41099506632666,126.75422745488514,null,null,null,null,null,null,null,null,{"$f":"ROUND(E158/R$2*100,3)","v":39.595999999999997},{"$f":"ROUND(F158/S$2*100,3)","v":39.472999999999999},{"$f":"ROUND(G158/T$2*100,3)","v":35.143000000000001},{"$f":"ROUND(H158/U$2*100,3)","v":34.906999999999996},{"$f":"ROUND(I158/V$2*100,3)","v":34.631999999999998}]
[]
[{"$f":"A145+1","v":11},{"$f":"IFERROR(VLOOKUP($A160,Inputs!$B$68:$AN$129,MATCH($B$7,Inputs!$B$68:$AN$68,0),FALSE),\"Blank\")","v":"2x40W Fluorescent"},null,null,null,null,null,null,null,null,null,null,null,null,null,null,{"$f":"IFERROR(VLOOKUP($A160,Inputs!$B$68:$AN$129,MATCH($B$7,Inputs!$B$68:$AN$68,0),FALSE),\"Blank\")","v":"2x40W Fluorescent"}]
[null,{"$f":"Inputs!$S$68","v":"Lamp UNIT price Annualised Cost"},{"$f":"Inputs!$Q$68","v":"Lamp Maintenance cycle"},null,{"$f":"IF($B160=\"Blank\",0,VLOOKUP($B160,Inputs!$C$68:$AN$129,MATCH($B161,Inputs!$C$68:$AN$68,0),FALSE))","v":2.1494875852559381},{"$f":"IF($B160=\"Blank\",0,VLOOKUP($B160,Inputs!$C$68:$AN$129,MATCH($B161,Inputs!$C$68:$AN$68,0),FALSE))","v":2.1494875852559381},{"$f":"IF($B160=\"Blank\",0,VLOOKUP($B160,Inputs!$C$68:$AN$129,MATCH($B161,Inputs!$C$68:$AN$68,0),FALSE))","v":2.1494875852559381},{"$f":"IF($B160=\"Blank\",0,VLOOKUP($B160,Inputs!$C$68:$AN$129,MATCH($B161,Inputs!$C$68:$AN$68,0),FALSE))","v":2.1494875852559381},{"$f":"IF($B160=\"Blank\",0,VLOOKUP($B160,Inputs!$C$68:$AN$129,MATCH($B161,Inputs!$C$68:$AN$68,0),FALSE))","v":2.1494875852559381},null,null,null,null,null,null,null,{"$f":"B161","v":"Lamp UNIT price Annualised Cost"},{"$f":"IF(E161=\"NA\",\"\",E161/R$2*100)","v":0.58729168996063885},{"$f":"IF(F161=\"NA\",\"\",F161/S$2*100)","v":0.58890070828929819},{"$f":"IF(G161=\"NA\",\"\",G161/T$2*100)","v":0.58890070828929819},{"$f":"IF(H161=\"NA\",\"\",H161/U$2*100)","v":0.58890070828929819},{"$f":"IF(I161=\"NA\",\"\",I161/V$2*100)","v":0.58729168996063885}]
[null,{"$f":"Inputs!$K$68","v":"PE Cell UNIT price Annualised Cost"},{"$f":"Inputs!$I$68","v":"PE Cell Maintenance Cycle"},null,{"$f":"IF($B160=\"Blank\",0,VLOOKUP($B160,Inputs!$C$68:$AN$129,MATCH($B162,Inputs!$C$68:$AN$68,0),FALSE))","v":0.58131255188333353},{"$f":"IF($B160=\"Blank\",0,VLOOKUP($B160,Inputs!$C$68:$AN$129,MATCH($B162,Inputs!$C$68:$AN$68,0),FALSE))","v":0.58131255188333353},{"$f":"IF($B160=\"Blank\",0,VLOOKUP($B160,Inputs!$C$68:$AN$129,MATCH($B162,Inputs!$C$68:$AN$68,0),FALSE))","v":0.58131255188333353},{"$f":"IF($B160=\"Blank\",0,VLOOKUP($B160,Inputs!$C$68:$AN$129,MATCH($B162,Inputs!$C$68:$AN$68,0),FALSE))","v":0.58131255188333353},{"$f":"IF($B160=\"Blank\",0,VLOOKUP($B160,Inputs!$C$68:$AN$129,MATCH($B162,Inputs!$C$68:$AN$68,0),FALSE))","v":0.58131255188333353},null,null,null,null,null,null,null,"PE Cell UNIT price Annualised Cost",0.15882856608834248,0.15926371284474891,0.15926371284474891,0.15926371284474891,0.15882856608834248]
[null,"Corp capex annuity per light",null,null,{"$f":"IF($B160=\"Blank\",0,'Corp Capex Annuity calcs'!F$142)","v":18.582309905017571},{"$f":"IF($B160=\"Blank\",0,'Corp Capex Annuity calcs'!G$142)","v":18.552026408230436},{"$f":"IF($B160=\"Blank\",0,'Corp Capex Annuity calcs'!H$142)","v":18.401377631486287},{"$f":"IF($B160=\"Blank\",0,'Corp Capex Annuity calcs'!I$142)","v":18.205761940470655},{"$f":"IF($B160=\"Blank\",0,'Corp Capex Annuity calcs'!J$142)","v":17.995165449295623},null,null,null,null,null,null,null,"Corp capex annuity per light",5.0771338538299373,5.0827469611590237,5.0414733236948734,4.9878799836905907,4.9167118713922466]
[null,{"$f":"Inputs!$U$68","v":"Lamp Service costs Annualised"},"Labour Portion of Lamp Service costs annualised",null,{"$f":"IF($B160=\"Blank\",0,VLOOKUP($B160,Inputs!$C$68:$AN$129,MATCH($B164,Inputs!$C$68:$AN$68,0),FALSE))+IFERROR(IF($B160=\"Blank\",0,VLOOKUP($B160,Inputs!$C$68:$AN$129,MATCH($C164,Inputs!$C$68:$AN$68,0),FALSE))*('Master Data'!K$42),0)","v":24.127490039840644},{"$f":"IF($B160=\"Blank\",0,VLOOKUP($B160,Inputs!$C$68:$AN$129,MATCH($B164,Inputs!$C$68:$AN$68,0),FALSE))+IFERROR(IF($B160=\"Blank\",0,VLOOKUP($B160,Inputs!$C$68:$AN$129,MATCH($C164,Inputs!$C$68:$AN$68,0),FALSE))*('Master Data'!L$42),0)","v":24.131023426294828},{"$f":"IF($B160=\"Blank\",0,VLOOKUP($B160,Inputs!$C$68:$AN$129,MATCH($B164,Inputs!$C$68:$AN$68,0),FALSE))+IFERROR(IF($B160=\"Blank\",0,VLOOKUP($B160,Inputs!$C$68:$AN$129,MATCH($C164,Inputs!$C$68:$AN$68,0),FALSE))*('Master Data'!M$42),0)","v":24.136412685577696},{"$f":"IF($B160=\"Blank\",0,VLOOKUP($B160,Inputs!$C$68:$AN$129,MATCH($B164,Inputs!$C$68:$AN$68,0),FALSE))+IFERROR(IF($B160=\"Blank\",0,VLOOKUP($B160,Inputs!$C$68:$AN$129,MATCH($C164,Inputs!$C$68:$AN$68,0),FALSE))*('Master Data'!N$42),0)","v":24.143056949368709},{"$f":"IF($B160=\"Blank\",0,VLOOKUP($B160,Inputs!$C$68:$AN$129,MATCH($B164,Inputs!$C$68:$AN$68,0),FALSE))+IFERROR(IF($B160=\"Blank\",0,VLOOKUP($B160,Inputs!$C$68:$AN$129,MATCH($C164,Inputs!$C$68:$AN$68,0),FALSE))*('Master Data'!O$42),0)","v":24.150816058816748},null,null,null,null,null,null,null,"Lamp Service costs Annualised",6.5922103933990828,6.611239294875296,6.6127158042678618,6.6145361505119755,6.598583622627527]
[null,{"$f":"Inputs!$M$68","v":"PE Cell Service costs Annualised"},"Labour Portion of PE Cell Service costs Annualised",null,{"$f":"IF($B160=\"Blank\",0,VLOOKUP($B160,Inputs!$C$68:$AN$129,MATCH($B165,Inputs!$C$68:$AN$68,0),FALSE))+IFERROR(IF($B160=\"Blank\",0,VLOOKUP($B160,Inputs!$C$68:$AN$129,MATCH($C165,Inputs!$C$68:$AN$68,0),FALSE))*('Master Data'!K$42),0)","v":0},{"$f":"IF($B160=\"Blank\",0,VLOOKUP($B160,Inputs!$C$68:$AN$129,MATCH($B165,Inputs!$C$68:$AN$68,0),FALSE))+IFERROR(IF($B160=\"Blank\",0,VLOOKUP($B160,Inputs!$C$68:$AN$129,MATCH($C165,Inputs!$C$68:$AN$68,0),FALSE))*('Master Data'!L$42),0)","v":0},{"$f":"IF($B160=\"Blank\",0,VLOOKUP($B160,Inputs!$C$68:$AN$129,MATCH($B165,Inputs!$C$68:$AN$68,0),FALSE))+IFERROR(IF($B160=\"Blank\",0,VLOOKUP($B160,Inputs!$C$68:$AN$129,MATCH($C165,Inputs!$C$68:$AN$68,0),FALSE))*('Master Data'!M$42),0)","v":0},{"$f":"IF($B160=\"Blank\",0,VLOOKUP($B160,Inputs!$C$68:$AN$129,MATCH($B165,Inputs!$C$68:$AN$68,0),FALSE))+IFERROR(IF($B160=\"Blank\",0,VLOOKUP($B160,Inputs!$C$68:$AN$129,MATCH($C165,Inputs!$C$68:$AN$68,0),FALSE))*('Master Data'!N$42),0)","v":0},{"$f":"IF($B160=\"Blank\",0,VLOOKUP($B160,Inputs!$C$68:$AN$129,MATCH($B165,Inputs!$C$68:$AN$68,0),FALSE))+IFERROR(IF($B160=\"Blank\",0,VLOOKUP($B160,Inputs!$C$68:$AN$129,MATCH($C165,Inputs!$C$68:$AN$68,0),FALSE))*('Master Data'!O$42),0)","v":0},null,null,null,null,null,null,null,"PE Cell Service costs Annualised",0,0,0,0,0]
[null,"Indirect Opex",null,null,{"$f":"IF($B160=\"Blank\",0,IF($B$8=\"Private Contract Lighting\",'Opex Weighting'!D$48,'Opex Weighting'!D$46))","v":25.762407087322877},{"$f":"IF($B160=\"Blank\",0,IF($B$8=\"Private Contract Lighting\",'Opex Weighting'!E$48,'Opex Weighting'!E$46))","v":25.880403763800857},{"$f":"IF($B160=\"Blank\",0,IF($B$8=\"Private Contract Lighting\",'Opex Weighting'!F$48,'Opex Weighting'!F$46))","v":20.013740175030701},{"$f":"IF($B160=\"Blank\",0,IF($B$8=\"Private Contract Lighting\",'Opex Weighting'!G$48,'Opex Weighting'!G$46))","v":19.55949970528431},{"$f":"IF($B160=\"Blank\",0,IF($B$8=\"Private Contract Lighting\",'Opex Weighting'!H$48,'Opex Weighting'!H$46))","v":19.096814305933613},null,null,null,null,null,null,null,"Indirect Opex",7.0389090402521521,7.0905215791235223,5.4832164863097814,5.3587670425436471,5.2177088267578178]
[null,"Indirect Capex",null,null,{"$f":"'Capex Weighting'!D$59","v":0},{"$f":"'Capex Weighting'!E$59","v":0},{"$f":"'Capex Weighting'!F$59","v":0},{"$f":"'Capex Weighting'!G$59","v":0},{"$f":"'Capex Weighting'!H$59","v":0},null,null,null,null,null,null,null,"Indirect Capex",0,0,0,0,0]
[null,"Opex Overheads Costs per light",null,null,{"$f":"IF($B160=\"Blank\",0,IF($B$8=\"Private Contract Lighting\",'Building Block'!C$40,'Building Block'!C$39))","v":32.224036557323004},{"$f":"IF($B160=\"Blank\",0,IF($B$8=\"Private Contract Lighting\",'Building Block'!D$40,'Building Block'!D$39))","v":31.278075996100256},{"$f":"IF($B160=\"Blank\",0,IF($B$8=\"Private Contract Lighting\",'Building Block'!E$40,'Building Block'!E$39))","v":21.467987799581408},{"$f":"IF($B160=\"Blank\",0,IF($B$8=\"Private Contract Lighting\",'Building Block'!F$40,'Building Block'!F$39))","v":21.22771925228782},{"$f":"IF($B160=\"Blank\",0,IF($B$8=\"Private Contract Lighting\",'Building Block'!G$40,'Building Block'!G$39))","v":21.210892633443169},null,null,null,null,null,null,null,"Opex Overheads Costs per light",8.8043815730390715,8.5693358893425362,5.8816404930360022,5.815813493777485,5.7953258561320133]
[null,{"$f":"Inputs!$AK$68","v":"Bracket UNIT price"},0,null,{"$f":"IF($B160=\"Blank\",0,OFFSET('CAPEX Annuity calcs'!$B$9,MATCH($B160,'CAPEX Annuity calcs'!$B$9:$B$500,0)+$C169,E$6))","v":6.1673796159250225},{"$f":"IF($B160=\"Blank\",0,OFFSET('CAPEX Annuity calcs'!$B$9,MATCH($B160,'CAPEX Annuity calcs'!$B$9:$B$500,0)+$C169,F$6))","v":6.1673796159250225},{"$f":"IF($B160=\"Blank\",0,OFFSET('CAPEX Annuity calcs'!$B$9,MATCH($B160,'CAPEX Annuity calcs'!$B$9:$B$500,0)+$C169,G$6))","v":6.1673796159250225},{"$f":"IF($B160=\"Blank\",0,OFFSET('CAPEX Annuity calcs'!$B$9,MATCH($B160,'CAPEX Annuity calcs'!$B$9:$B$500,0)+$C169,H$6))","v":6.1673796159250225},{"$f":"IF($B160=\"Blank\",0,OFFSET('CAPEX Annuity calcs'!$B$9,MATCH($B160,'CAPEX Annuity calcs'!$B$9:$B$500,0)+$C169,I$6))","v":6.1673796159250225},null,null,null,null,null,null,null,"Bracket UNIT price",1.6850763977937218,1.6896930454589103,1.6896930454589103,1.6896930454589103,1.6850763977937218]
[null,{"$f":"Inputs!$AA$68","v":"CAPEX Instalation costs"},{"$f":"C169+1","v":1},null,{"$f":"IF($B160=\"Blank\",0,OFFSET('CAPEX Annuity calcs'!$B$9,MATCH($B160,'CAPEX Annuity calcs'!$B$9:$B$500,0)+$C170,E$6))","v":0},{"$f":"IF($B160=\"Blank\",0,OFFSET('CAPEX Annuity calcs'!$B$9,MATCH($B160,'CAPEX Annuity calcs'!$B$9:$B$500,0)+$C170,F$6))","v":0},{"$f":"IF($B160=\"Blank\",0,OFFSET('CAPEX Annuity calcs'!$B$9,MATCH($B160,'CAPEX Annuity calcs'!$B$9:$B$500,0)+$C170,G$6))","v":0},{"$f":"IF($B160=\"Blank\",0,OFFSET('CAPEX Annuity calcs'!$B$9,MATCH($B160,'CAPEX Annuity calcs'!$B$9:$B$500,0)+$C170,H$6))","v":0},{"$f":"IF($B160=\"Blank\",0,OFFSET('CAPEX Annuity calcs'!$B$9,MATCH($B160,'CAPEX Annuity calcs'!$B$9:$B$500,0)+$C170,I$6))","v":0},null,null,null,null,null,null,null,"CAPEX Instalation costs",0,0,0,0,0]
[null,{"$f":"Inputs!$Z$68","v":"Luminaire UNIT price"},{"$f":"C170+1","v":2},null,{"$f":"IF($B160=\"Blank\",0,OFFSET('CAPEX Annuity calcs'!$B$9,MATCH($B160,'CAPEX Annuity calcs'!$B$9:$B$500,0)+$C171,E$6))","v":13.891938455041847},{"$f":"IF($B160=\"Blank\",0,OFFSET('CAPEX Annuity calcs'!$B$9,MATCH($B160,'CAPEX Annuity calcs'!$B$9:$B$500,0)+$C171,F$6))","v":13.891938455041847},{"$f":"IF($B160=\"Blank\",0,OFFSET('CAPEX Annuity calcs'!$B$9,MATCH($B160,'CAPEX Annuity calcs'!$B$9:$B$500,0)+$C171,G$6))","v":13.891938455041847},{"$f":"IF($B160=\"Blank\",0,OFFSET('CAPEX Annuity calcs'!$B$9,MATCH($B160,'CAPEX Annuity calcs'!$B$9:$B$500,0)+$C171,H$6))","v":13.891938455041847},{"$f":"IF($B160=\"Blank\",0,OFFSET('CAPEX Annuity calcs'!$B$9,MATCH($B160,'CAPEX Annuity calcs'!$B$9:$B$500,0)+$C171,I$6))","v":13.891938455041847},null,null,null,null,null,null,null,"Luminaire UNIT price",3.7956115997382098,3.806010535627903,3.806010535627903,3.806010535627903,3.7956115997382098]
[null,{"$f":"Inputs!$AA$68","v":"CAPEX Instalation costs"},3,null,{"$f":"IF($B160=\"Blank\",0,OFFSET('CAPEX Annuity calcs'!$B$9,MATCH($B160,'CAPEX Annuity calcs'!$B$9:$B$500,0)+$C172,E$6))","v":18.736141709912243},{"$f":"IF($B160=\"Blank\",0,OFFSET('CAPEX Annuity calcs'!$B$9,MATCH($B160,'CAPEX Annuity calcs'!$B$9:$B$500,0)+$C172,F$6))","v":18.74779128716041},{"$f":"IF($B160=\"Blank\",0,OFFSET('CAPEX Annuity calcs'!$B$9,MATCH($B160,'CAPEX Annuity calcs'!$B$9:$B$500,0)+$C172,G$6))","v":18.765559678232343},{"$f":"IF($B160=\"Blank\",0,OFFSET('CAPEX Annuity calcs'!$B$9,MATCH($B160,'CAPEX Annuity calcs'!$B$9:$B$500,0)+$C172,H$6))","v":18.787465819916616},{"$f":"IF($B160=\"Blank\",0,OFFSET('CAPEX Annuity calcs'!$B$9,MATCH($B160,'CAPEX Annuity calcs'!$B$9:$B$500,0)+$C172,I$6))","v":18.813047608397444},null,null,null,null,null,null,null,"CAPEX Instalation costs",5.1191644016153672,5.1363811745644954,5.1412492269129713,5.1472509095661954,5.1401769421850938]
[null,null,null,null,{"$f":"SUM(E161:E172)","v":142.22250350752248},{"$f":"SUM(F161:F172)","v":141.37943908969294},125.57519617801458,124.71362187543426,124.05685426399275,null,null,null,null,null,null,null,null,{"$f":"ROUND(E173/R$2*100,3)","v":38.859000000000002},{"$f":"ROUND(F173/S$2*100,3)","v":38.734000000000002},{"$f":"ROUND(G173/T$2*100,3)","v":34.404000000000003},{"$f":"ROUND(H173/U$2*100,3)","v":34.167999999999999},{"$f":"ROUND(I173/V$2*100,3)","v":33.895000000000003}]
[]
[{"$f":"A160+1","v":12},{"$f":"IFERROR(VLOOKUP($A175,Inputs!$B$68:$AN$129,MATCH($B$7,Inputs!$B$68:$AN$68,0),FALSE),\"Blank\")","v":"3x40W Fluorescent"},null,null,null,null,null,null,null,null,null,null,null,null,null,null,{"$f":"IFERROR(VLOOKUP($A175,Inputs!$B$68:$AN$129,MATCH($B$7,Inputs!$B$68:$AN$68,0),FALSE),\"Blank\")","v":"3x40W Fluorescent"}]
[null,{"$f":"Inputs!$S$68","v":"Lamp UNIT price Annualised Cost"},{"$f":"Inputs!$Q$68","v":"Lamp Maintenance cycle"},null,{"$f":"IF($B175=\"Blank\",0,VLOOKUP($B175,Inputs!$C$68:$AN$129,MATCH($B176,Inputs!$C$68:$AN$68,0),FALSE))","v":3.2242313778839078},{"$f":"IF($B175=\"Blank\",0,VLOOKUP($B175,Inputs!$C$68:$AN$129,MATCH($B176,Inputs!$C$68:$AN$68,0),FALSE))","v":3.2242313778839078},{"$f":"IF($B175=\"Blank\",0,VLOOKUP($B175,Inputs!$C$68:$AN$129,MATCH($B176,Inputs!$C$68:$AN$68,0),FALSE))","v":3.2242313778839078},{"$f":"IF($B175=\"Blank\",0,VLOOKUP($B175,Inputs!$C$68:$AN$129,MATCH($B176,Inputs!$C$68:$AN$68,0),FALSE))","v":3.2242313778839078},{"$f":"IF($B175=\"Blank\",0,VLOOKUP($B175,Inputs!$C$68:$AN$129,MATCH($B176,Inputs!$C$68:$AN$68,0),FALSE))","v":3.2242313778839078},null,null,null,null,null,null,null,{"$f":"B176","v":"Lamp UNIT price Annualised Cost"},{"$f":"IF(E176=\"NA\",\"\",E176/R$2*100)","v":0.88093753494095839},{"$f":"IF(F176=\"NA\",\"\",F176/S$2*100)","v":0.88335106243394734},{"$f":"IF(G176=\"NA\",\"\",G176/T$2*100)","v":0.88335106243394734},{"$f":"IF(H176=\"NA\",\"\",H176/U$2*100)","v":0.88335106243394734},{"$f":"IF(I176=\"NA\",\"\",I176/V$2*100)","v":0.88093753494095839}]
[null,{"$f":"Inputs!$K$68","v":"PE Cell UNIT price Annualised Cost"},{"$f":"Inputs!$I$68","v":"PE Cell Maintenance Cycle"},null,{"$f":"IF($B175=\"Blank\",0,VLOOKUP($B175,Inputs!$C$68:$AN$129,MATCH($B177,Inputs!$C$68:$AN$68,0),FALSE))","v":1.6930974392480003},{"$f":"IF($B175=\"Blank\",0,VLOOKUP($B175,Inputs!$C$68:$AN$129,MATCH($B177,Inputs!$C$68:$AN$68,0),FALSE))","v":1.6930974392480003},{"$f":"IF($B175=\"Blank\",0,VLOOKUP($B175,Inputs!$C$68:$AN$129,MATCH($B177,Inputs!$C$68:$AN$68,0),FALSE))","v":1.6930974392480003},{"$f":"IF($B175=\"Blank\",0,VLOOKUP($B175,Inputs!$C$68:$AN$129,MATCH($B177,Inputs!$C$68:$AN$68,0),FALSE))","v":1.6930974392480003},{"$f":"IF($B175=\"Blank\",0,VLOOKUP($B175,Inputs!$C$68:$AN$129,MATCH($B177,Inputs!$C$68:$AN$68,0),FALSE))","v":1.6930974392480003},null,null,null,null,null,null,null,"PE Cell UNIT price Annualised Cost",0.46259492875628422,0.46386231212273976,0.46386231212273976,0.46386231212273976,0.46259492875628422]
[null,"Corp capex annuity per light",null,null,{"$f":"IF($B175=\"Blank\",0,'Corp Capex Annuity calcs'!F$142)","v":18.582309905017571},{"$f":"IF($B175=\"Blank\",0,'Corp Capex Annuity calcs'!G$142)","v":18.552026408230436},{"$f":"IF($B175=\"Blank\",0,'Corp Capex Annuity calcs'!H$142)","v":18.401377631486287},{"$f":"IF($B175=\"Blank\",0,'Corp Capex Annuity calcs'!I$142)","v":18.205761940470655},{"$f":"IF($B175=\"Blank\",0,'Corp Capex Annuity calcs'!J$142)","v":17.995165449295623},null,null,null,null,null,null,null,"Corp capex annuity per light",5.0771338538299373,5.0827469611590237,5.0414733236948734,4.9878799836905907,4.9167118713922466]
[null,{"$f":"Inputs!$U$68","v":"Lamp Service costs Annualised"},"Labour Portion of Lamp Service costs annualised",null,{"$f":"IF($B175=\"Blank\",0,VLOOKUP($B175,Inputs!$C$68:$AN$129,MATCH($B179,Inputs!$C$68:$AN$68,0),FALSE))+IFERROR(IF($B175=\"Blank\",0,VLOOKUP($B175,Inputs!$C$68:$AN$129,MATCH($C179,Inputs!$C$68:$AN$68,0),FALSE))*('Master Data'!K$42),0)","v":34.921367162927247},{"$f":"IF($B175=\"Blank\",0,VLOOKUP($B175,Inputs!$C$68:$AN$129,MATCH($B179,Inputs!$C$68:$AN$68,0),FALSE))+IFERROR(IF($B175=\"Blank\",0,VLOOKUP($B175,Inputs!$C$68:$AN$129,MATCH($C179,Inputs!$C$68:$AN$68,0),FALSE))*('Master Data'!L$42),0)","v":34.926481274900404},{"$f":"IF($B175=\"Blank\",0,VLOOKUP($B175,Inputs!$C$68:$AN$129,MATCH($B179,Inputs!$C$68:$AN$68,0),FALSE))+IFERROR(IF($B175=\"Blank\",0,VLOOKUP($B175,Inputs!$C$68:$AN$129,MATCH($C179,Inputs!$C$68:$AN$68,0),FALSE))*('Master Data'!M$42),0)","v":34.934281518599292},{"$f":"IF($B175=\"Blank\",0,VLOOKUP($B175,Inputs!$C$68:$AN$129,MATCH($B179,Inputs!$C$68:$AN$68,0),FALSE))+IFERROR(IF($B175=\"Blank\",0,VLOOKUP($B175,Inputs!$C$68:$AN$129,MATCH($C179,Inputs!$C$68:$AN$68,0),FALSE))*('Master Data'!N$42),0)","v":34.943898216191549},{"$f":"IF($B175=\"Blank\",0,VLOOKUP($B175,Inputs!$C$68:$AN$129,MATCH($B179,Inputs!$C$68:$AN$68,0),FALSE))+IFERROR(IF($B175=\"Blank\",0,VLOOKUP($B175,Inputs!$C$68:$AN$129,MATCH($C179,Inputs!$C$68:$AN$68,0),FALSE))*('Master Data'!O$42),0)","v":34.955128506182135},null,null,null,null,null,null,null,"Lamp Service costs Annualised",9.5413571483407775,9.5688989794247679,9.5710360324929571,9.5736707441620688,9.5505815590661562]
[null,{"$f":"Inputs!$M$68","v":"PE Cell Service costs Annualised"},"Labour Portion of PE Cell Service costs Annualised",null,{"$f":"IF($B175=\"Blank\",0,VLOOKUP($B175,Inputs!$C$68:$AN$129,MATCH($B180,Inputs!$C$68:$AN$68,0),FALSE))+IFERROR(IF($B175=\"Blank\",0,VLOOKUP($B175,Inputs!$C$68:$AN$129,MATCH($C180,Inputs!$C$68:$AN$68,0),FALSE))*('Master Data'!K$42),0)","v":0},{"$f":"IF($B175=\"Blank\",0,VLOOKUP($B175,Inputs!$C$68:$AN$129,MATCH($B180,Inputs!$C$68:$AN$68,0),FALSE))+IFERROR(IF($B175=\"Blank\",0,VLOOKUP($B175,Inputs!$C$68:$AN$129,MATCH($C180,Inputs!$C$68:$AN$68,0),FALSE))*('Master Data'!L$42),0)","v":0},{"$f":"IF($B175=\"Blank\",0,VLOOKUP($B175,Inputs!$C$68:$AN$129,MATCH($B180,Inputs!$C$68:$AN$68,0),FALSE))+IFERROR(IF($B175=\"Blank\",0,VLOOKUP($B175,Inputs!$C$68:$AN$129,MATCH($C180,Inputs!$C$68:$AN$68,0),FALSE))*('Master Data'!M$42),0)","v":0},{"$f":"IF($B175=\"Blank\",0,VLOOKUP($B175,Inputs!$C$68:$AN$129,MATCH($B180,Inputs!$C$68:$AN$68,0),FALSE))+IFERROR(IF($B175=\"Blank\",0,VLOOKUP($B175,Inputs!$C$68:$AN$129,MATCH($C180,Inputs!$C$68:$AN$68,0),FALSE))*('Master Data'!N$42),0)","v":0},{"$f":"IF($B175=\"Blank\",0,VLOOKUP($B175,Inputs!$C$68:$AN$129,MATCH($B180,Inputs!$C$68:$AN$68,0),FALSE))+IFERROR(IF($B175=\"Blank\",0,VLOOKUP($B175,Inputs!$C$68:$AN$129,MATCH($C180,Inputs!$C$68:$AN$68,0),FALSE))*('Master Data'!O$42),0)","v":0},null,null,null,null,null,null,null,"PE Cell Service costs Annualised",0,0,0,0,0]
[null,"Indirect Opex",null,null,{"$f":"IF($B175=\"Blank\",0,IF($B$8=\"Private Contract Lighting\",'Opex Weighting'!D$48,'Opex Weighting'!D$46))","v":25.762407087322877},{"$f":"IF($B175=\"Blank\",0,IF($B$8=\"Private Contract Lighting\",'Opex Weighting'!E$48,'Opex Weighting'!E$46))","v":25.880403763800857},{"$f":"IF($B175=\"Blank\",0,IF($B$8=\"Private Contract Lighting\",'Opex Weighting'!F$48,'Opex Weighting'!F$46))","v":20.013740175030701},{"$f":"IF($B175=\"Blank\",0,IF($B$8=\"Private Contract Lighting\",'Opex Weighting'!G$48,'Opex Weighting'!G$46))","v":19.55949970528431},{"$f":"IF($B175=\"Blank\",0,IF($B$8=\"Private Contract Lighting\",'Opex Weighting'!H$48,'Opex Weighting'!H$46))","v":19.096814305933613},null,null,null,null,null,null,null,"Indirect Opex",7.0389090402521521,7.0905215791235223,5.4832164863097814,5.3587670425436471,5.2177088267578178]
[null,"Indirect Capex",null,null,{"$f":"'Capex Weighting'!D$59","v":0},{"$f":"'Capex Weighting'!E$59","v":0},{"$f":"'Capex Weighting'!F$59","v":0},{"$f":"'Capex Weighting'!G$59","v":0},{"$f":"'Capex Weighting'!H$59","v":0},null,null,null,null,null,null,null,"Indirect Capex",0,0,0,0,0]
[null,"Opex Overheads Costs per light",null,null,{"$f":"IF($B175=\"Blank\",0,IF($B$8=\"Private Contract Lighting\",'Building Block'!C$40,'Building Block'!C$39))","v":32.224036557323004},{"$f":"IF($B175=\"Blank\",0,IF($B$8=\"Private Contract Lighting\",'Building Block'!D$40,'Building Block'!D$39))","v":31.278075996100256},{"$f":"IF($B175=\"Blank\",0,IF($B$8=\"Private Contract Lighting\",'Building Block'!E$40,'Building Block'!E$39))","v":21.467987799581408},{"$f":"IF($B175=\"Blank\",0,IF($B$8=\"Private Contract Lighting\",'Building Block'!F$40,'Building Block'!F$39))","v":21.22771925228782},{"$f":"IF($B175=\"Blank\",0,IF($B$8=\"Private Contract Lighting\",'Building Block'!G$40,'Building Block'!G$39))","v":21.210892633443169},null,null,null,null,null,null,null,"Opex Overheads Costs per light",8.8043815730390715,8.5693358893425362,5.8816404930360022,5.815813493777485,5.7953258561320133]
[null,{"$f":"Inputs!$AK$68","v":"Bracket UNIT price"},0,null,{"$f":"IF($B175=\"Blank\",0,OFFSET('CAPEX Annuity calcs'!$B$9,MATCH($B175,'CAPEX Annuity calcs'!$B$9:$B$500,0)+$C184,E$6))","v":6.1673796159250225},{"$f":"IF($B175=\"Blank\",0,OFFSET('CAPEX Annuity calcs'!$B$9,MATCH($B175,'CAPEX Annuity calcs'!$B$9:$B$500,0)+$C184,F$6))","v":6.1673796159250225},{"$f":"IF($B175=\"Blank\",0,OFFSET('CAPEX Annuity calcs'!$B$9,MATCH($B175,'CAPEX Annuity calcs'!$B$9:$B$500,0)+$C184,G$6))","v":6.1673796159250225},{"$f":"IF($B175=\"Blank\",0,OFFSET('CAPEX Annuity calcs'!$B$9,MATCH($B175,'CAPEX Annuity calcs'!$B$9:$B$500,0)+$C184,H$6))","v":6.1673796159250225},{"$f":"IF($B175=\"Blank\",0,OFFSET('CAPEX Annuity calcs'!$B$9,MATCH($B175,'CAPEX Annuity calcs'!$B$9:$B$500,0)+$C184,I$6))","v":6.1673796159250225},null,null,null,null,null,null,null,"Bracket UNIT price",1.6850763977937218,1.6896930454589103,1.6896930454589103,1.6896930454589103,1.6850763977937218]
[null,{"$f":"Inputs!$AA$68","v":"CAPEX Instalation costs"},{"$f":"C184+1","v":1},null,{"$f":"IF($B175=\"Blank\",0,OFFSET('CAPEX Annuity calcs'!$B$9,MATCH($B175,'CAPEX Annuity calcs'!$B$9:$B$500,0)+$C185,E$6))","v":0},{"$f":"IF($B175=\"Blank\",0,OFFSET('CAPEX Annuity calcs'!$B$9,MATCH($B175,'CAPEX Annuity calcs'!$B$9:$B$500,0)+$C185,F$6))","v":0},{"$f":"IF($B175=\"Blank\",0,OFFSET('CAPEX Annuity calcs'!$B$9,MATCH($B175,'CAPEX Annuity calcs'!$B$9:$B$500,0)+$C185,G$6))","v":0},{"$f":"IF($B175=\"Blank\",0,OFFSET('CAPEX Annuity calcs'!$B$9,MATCH($B175,'CAPEX Annuity calcs'!$B$9:$B$500,0)+$C185,H$6))","v":0},{"$f":"IF($B175=\"Blank\",0,OFFSET('CAPEX Annuity calcs'!$B$9,MATCH($B175,'CAPEX Annuity calcs'!$B$9:$B$500,0)+$C185,I$6))","v":0},null,null,null,null,null,null,null,"CAPEX Instalation costs",0,0,0,0,0]
[null,{"$f":"Inputs!$Z$68","v":"Luminaire UNIT price"},{"$f":"C185+1","v":2},null,{"$f":"IF($B175=\"Blank\",0,OFFSET('CAPEX Annuity calcs'!$B$9,MATCH($B175,'CAPEX Annuity calcs'!$B$9:$B$500,0)+$C186,E$6))","v":13.891938455041847},{"$f":"IF($B175=\"Blank\",0,OFFSET('CAPEX Annuity calcs'!$B$9,MATCH($B175,'CAPEX Annuity calcs'!$B$9:$B$500,0)+$C186,F$6))","v":13.891938455041847},{"$f":"IF($B175=\"Blank\",0,OFFSET('CAPEX Annuity calcs'!$B$9,MATCH($B175,'CAPEX Annuity calcs'!$B$9:$B$500,0)+$C186,G$6))","v":13.891938455041847},{"$f":"IF($B175=\"Blank\",0,OFFSET('CAPEX Annuity calcs'!$B$9,MATCH($B175,'CAPEX Annuity calcs'!$B$9:$B$500,0)+$C186,H$6))","v":13.891938455041847},{"$f":"IF($B175=\"Blank\",0,OFFSET('CAPEX Annuity calcs'!$B$9,MATCH($B175,'CAPEX Annuity calcs'!$B$9:$B$500,0)+$C186,I$6))","v":13.891938455041847},null,null,null,null,null,null,null,"Luminaire UNIT price",3.7956115997382098,3.806010535627903,3.806010535627903,3.806010535627903,3.7956115997382098]
[null,{"$f":"Inputs!$AA$68","v":"CAPEX Instalation costs"},3,null,{"$f":"IF($B175=\"Blank\",0,OFFSET('CAPEX Annuity calcs'!$B$9,MATCH($B175,'CAPEX Annuity calcs'!$B$9:$B$500,0)+$C187,E$6))","v":29.489604830309908},{"$f":"IF($B175=\"Blank\",0,OFFSET('CAPEX Annuity calcs'!$B$9,MATCH($B175,'CAPEX Annuity calcs'!$B$9:$B$500,0)+$C187,F$6))","v":29.507480464650605},{"$f":"IF($B175=\"Blank\",0,OFFSET('CAPEX Annuity calcs'!$B$9,MATCH($B175,'CAPEX Annuity calcs'!$B$9:$B$500,0)+$C187,G$6))","v":29.534745081628376},{"$f":"IF($B175=\"Blank\",0,OFFSET('CAPEX Annuity calcs'!$B$9,MATCH($B175,'CAPEX Annuity calcs'!$B$9:$B$500,0)+$C187,H$6))","v":29.568358848911217},{"$f":"IF($B175=\"Blank\",0,OFFSET('CAPEX Annuity calcs'!$B$9,MATCH($B175,'CAPEX Annuity calcs'!$B$9:$B$500,0)+$C187,I$6))","v":29.607612693657906},null,null,null,null,null,null,null,"CAPEX Instalation costs",8.0572690793196475,8.0842412231919472,8.0917109812680472,8.1009202325784155,8.0895116649338537]
[null,null,null,null,{"$f":"SUM(E176:E187)","v":165.95637243099938},{"$f":"SUM(F176:F187)","v":165.12111479578132},149.32877909442485,148.48188485124433,147.84226047661124,null,null,null,null,null,null,null,null,{"$f":"ROUND(E188/R$2*100,3)","v":45.343000000000004},{"$f":"ROUND(F188/S$2*100,3)","v":45.238999999999997},{"$f":"ROUND(G188/T$2*100,3)","v":40.911999999999999},{"$f":"ROUND(H188/U$2*100,3)","v":40.68},{"$f":"ROUND(I188/V$2*100,3)","v":40.393999999999998}]
[]
[{"$f":"A175+1","v":13},{"$f":"IFERROR(VLOOKUP($A190,Inputs!$B$68:$AN$129,MATCH($B$7,Inputs!$B$68:$AN$68,0),FALSE),\"Blank\")","v":"4x20 Fluorescent"},null,null,null,null,null,null,null,null,null,null,null,null,null,null,{"$f":"IFERROR(VLOOKUP($A190,Inputs!$B$68:$AN$129,MATCH($B$7,Inputs!$B$68:$AN$68,0),FALSE),\"Blank\")","v":"4x20 Fluorescent"}]
[null,{"$f":"Inputs!$S$68","v":"Lamp UNIT price Annualised Cost"},{"$f":"Inputs!$Q$68","v":"Lamp Maintenance cycle"},null,{"$f":"IF($B190=\"Blank\",0,VLOOKUP($B190,Inputs!$C$68:$AN$129,MATCH($B191,Inputs!$C$68:$AN$68,0),FALSE))","v":4.036728319151675},{"$f":"IF($B190=\"Blank\",0,VLOOKUP($B190,Inputs!$C$68:$AN$129,MATCH($B191,Inputs!$C$68:$AN$68,0),FALSE))","v":4.036728319151675},{"$f":"IF($B190=\"Blank\",0,VLOOKUP($B190,Inputs!$C$68:$AN$129,MATCH($B191,Inputs!$C$68:$AN$68,0),FALSE))","v":4.036728319151675},{"$f":"IF($B190=\"Blank\",0,VLOOKUP($B190,Inputs!$C$68:$AN$129,MATCH($B191,Inputs!$C$68:$AN$68,0),FALSE))","v":4.036728319151675},{"$f":"IF($B190=\"Blank\",0,VLOOKUP($B190,Inputs!$C$68:$AN$129,MATCH($B191,Inputs!$C$68:$AN$68,0),FALSE))","v":4.036728319151675},null,null,null,null,null,null,null,{"$f":"B191","v":"Lamp UNIT price Annualised Cost"},{"$f":"IF(E191=\"NA\",\"\",E191/R$2*100)","v":1.1029312347408948},{"$f":"IF(F191=\"NA\",\"\",F191/S$2*100)","v":1.1059529641511439},{"$f":"IF(G191=\"NA\",\"\",G191/T$2*100)","v":1.1059529641511439},{"$f":"IF(H191=\"NA\",\"\",H191/U$2*100)","v":1.1059529641511439},{"$f":"IF(I191=\"NA\",\"\",I191/V$2*100)","v":1.1029312347408948}]
[null,{"$f":"Inputs!$K$68","v":"PE Cell UNIT price Annualised Cost"},{"$f":"Inputs!$I$68","v":"PE Cell Maintenance Cycle"},null,{"$f":"IF($B190=\"Blank\",0,VLOOKUP($B190,Inputs!$C$68:$AN$129,MATCH($B192,Inputs!$C$68:$AN$68,0),FALSE))","v":0.58131255188333353},{"$f":"IF($B190=\"Blank\",0,VLOOKUP($B190,Inputs!$C$68:$AN$129,MATCH($B192,Inputs!$C$68:$AN$68,0),FALSE))","v":0.58131255188333353},{"$f":"IF($B190=\"Blank\",0,VLOOKUP($B190,Inputs!$C$68:$AN$129,MATCH($B192,Inputs!$C$68:$AN$68,0),FALSE))","v":0.58131255188333353},{"$f":"IF($B190=\"Blank\",0,VLOOKUP($B190,Inputs!$C$68:$AN$129,MATCH($B192,Inputs!$C$68:$AN$68,0),FALSE))","v":0.58131255188333353},{"$f":"IF($B190=\"Blank\",0,VLOOKUP($B190,Inputs!$C$68:$AN$129,MATCH($B192,Inputs!$C$68:$AN$68,0),FALSE))","v":0.58131255188333353},null,null,null,null,null,null,null,"PE Cell UNIT price Annualised Cost",0.15882856608834248,0.15926371284474891,0.15926371284474891,0.15926371284474891,0.15882856608834248]
[null,"Corp capex annuity per light",null,null,{"$f":"IF($B190=\"Blank\",0,'Corp Capex Annuity calcs'!F$142)","v":18.582309905017571},{"$f":"IF($B190=\"Blank\",0,'Corp Capex Annuity calcs'!G$142)","v":18.552026408230436},{"$f":"IF($B190=\"Blank\",0,'Corp Capex Annuity calcs'!H$142)","v":18.401377631486287},{"$f":"IF($B190=\"Blank\",0,'Corp Capex Annuity calcs'!I$142)","v":18.205761940470655},{"$f":"IF($B190=\"Blank\",0,'Corp Capex Annuity calcs'!J$142)","v":17.995165449295623},null,null,null,null,null,null,null,"Corp capex annuity per light",5.0771338538299373,5.0827469611590237,5.0414733236948734,4.9878799836905907,4.9167118713922466]
[null,{"$f":"Inputs!$U$68","v":"Lamp Service costs Annualised"},"Labour Portion of Lamp Service costs annualised",null,{"$f":"IF($B190=\"Blank\",0,VLOOKUP($B190,Inputs!$C$68:$AN$129,MATCH($B194,Inputs!$C$68:$AN$68,0),FALSE))+IFERROR(IF($B190=\"Blank\",0,VLOOKUP($B190,Inputs!$C$68:$AN$129,MATCH($C194,Inputs!$C$68:$AN$68,0),FALSE))*('Master Data'!K$42),0)","v":24.127490039840644},{"$f":"IF($B190=\"Blank\",0,VLOOKUP($B190,Inputs!$C$68:$AN$129,MATCH($B194,Inputs!$C$68:$AN$68,0),FALSE))+IFERROR(IF($B190=\"Blank\",0,VLOOKUP($B190,Inputs!$C$68:$AN$129,MATCH($C194,Inputs!$C$68:$AN$68,0),FALSE))*('Master Data'!L$42),0)","v":24.131023426294828},{"$f":"IF($B190=\"Blank\",0,VLOOKUP($B190,Inputs!$C$68:$AN$129,MATCH($B194,Inputs!$C$68:$AN$68,0),FALSE))+IFERROR(IF($B190=\"Blank\",0,VLOOKUP($B190,Inputs!$C$68:$AN$129,MATCH($C194,Inputs!$C$68:$AN$68,0),FALSE))*('Master Data'!M$42),0)","v":24.136412685577696},{"$f":"IF($B190=\"Blank\",0,VLOOKUP($B190,Inputs!$C$68:$AN$129,MATCH($B194,Inputs!$C$68:$AN$68,0),FALSE))+IFERROR(IF($B190=\"Blank\",0,VLOOKUP($B190,Inputs!$C$68:$AN$129,MATCH($C194,Inputs!$C$68:$AN$68,0),FALSE))*('Master Data'!N$42),0)","v":24.143056949368709},{"$f":"IF($B190=\"Blank\",0,VLOOKUP($B190,Inputs!$C$68:$AN$129,MATCH($B194,Inputs!$C$68:$AN$68,0),FALSE))+IFERROR(IF($B190=\"Blank\",0,VLOOKUP($B190,Inputs!$C$68:$AN$129,MATCH($C194,Inputs!$C$68:$AN$68,0),FALSE))*('Master Data'!O$42),0)","v":24.150816058816748},null,null,null,null,null,null,null,"Lamp Service costs Annualised",6.5922103933990828,6.611239294875296,6.6127158042678618,6.6145361505119755,6.598583622627527]
[null,{"$f":"Inputs!$M$68","v":"PE Cell Service costs Annualised"},"Labour Portion of PE Cell Service costs Annualised",null,{"$f":"IF($B190=\"Blank\",0,VLOOKUP($B190,Inputs!$C$68:$AN$129,MATCH($B195,Inputs!$C$68:$AN$68,0),FALSE))+IFERROR(IF($B190=\"Blank\",0,VLOOKUP($B190,Inputs!$C$68:$AN$129,MATCH($C195,Inputs!$C$68:$AN$68,0),FALSE))*('Master Data'!K$42),0)","v":0},{"$f":"IF($B190=\"Blank\",0,VLOOKUP($B190,Inputs!$C$68:$AN$129,MATCH($B195,Inputs!$C$68:$AN$68,0),FALSE))+IFERROR(IF($B190=\"Blank\",0,VLOOKUP($B190,Inputs!$C$68:$AN$129,MATCH($C195,Inputs!$C$68:$AN$68,0),FALSE))*('Master Data'!L$42),0)","v":0},{"$f":"IF($B190=\"Blank\",0,VLOOKUP($B190,Inputs!$C$68:$AN$129,MATCH($B195,Inputs!$C$68:$AN$68,0),FALSE))+IFERROR(IF($B190=\"Blank\",0,VLOOKUP($B190,Inputs!$C$68:$AN$129,MATCH($C195,Inputs!$C$68:$AN$68,0),FALSE))*('Master Data'!M$42),0)","v":0},{"$f":"IF($B190=\"Blank\",0,VLOOKUP($B190,Inputs!$C$68:$AN$129,MATCH($B195,Inputs!$C$68:$AN$68,0),FALSE))+IFERROR(IF($B190=\"Blank\",0,VLOOKUP($B190,Inputs!$C$68:$AN$129,MATCH($C195,Inputs!$C$68:$AN$68,0),FALSE))*('Master Data'!N$42),0)","v":0},{"$f":"IF($B190=\"Blank\",0,VLOOKUP($B190,Inputs!$C$68:$AN$129,MATCH($B195,Inputs!$C$68:$AN$68,0),FALSE))+IFERROR(IF($B190=\"Blank\",0,VLOOKUP($B190,Inputs!$C$68:$AN$129,MATCH($C195,Inputs!$C$68:$AN$68,0),FALSE))*('Master Data'!O$42),0)","v":0},null,null,null,null,null,null,null,"PE Cell Service costs Annualised",0,0,0,0,0]
[null,"Indirect Opex",null,null,{"$f":"IF($B190=\"Blank\",0,IF($B$8=\"Private Contract Lighting\",'Opex Weighting'!D$48,'Opex Weighting'!D$46))","v":25.762407087322877},{"$f":"IF($B190=\"Blank\",0,IF($B$8=\"Private Contract Lighting\",'Opex Weighting'!E$48,'Opex Weighting'!E$46))","v":25.880403763800857},{"$f":"IF($B190=\"Blank\",0,IF($B$8=\"Private Contract Lighting\",'Opex Weighting'!F$48,'Opex Weighting'!F$46))","v":20.013740175030701},{"$f":"IF($B190=\"Blank\",0,IF($B$8=\"Private Contract Lighting\",'Opex Weighting'!G$48,'Opex Weighting'!G$46))","v":19.55949970528431},{"$f":"IF($B190=\"Blank\",0,IF($B$8=\"Private Contract Lighting\",'Opex Weighting'!H$48,'Opex Weighting'!H$46))","v":19.096814305933613},null,null,null,null,null,null,null,"Indirect Opex",7.0389090402521521,7.0905215791235223,5.4832164863097814,5.3587670425436471,5.2177088267578178]
[null,"Indirect Capex",null,null,{"$f":"'Capex Weighting'!D$59","v":0},{"$f":"'Capex Weighting'!E$59","v":0},{"$f":"'Capex Weighting'!F$59","v":0},{"$f":"'Capex Weighting'!G$59","v":0},{"$f":"'Capex Weighting'!H$59","v":0},null,null,null,null,null,null,null,"Indirect Capex",0,0,0,0,0]
[null,"Opex Overheads Costs per light",null,null,{"$f":"IF($B190=\"Blank\",0,IF($B$8=\"Private Contract Lighting\",'Building Block'!C$40,'Building Block'!C$39))","v":32.224036557323004},{"$f":"IF($B190=\"Blank\",0,IF($B$8=\"Private Contract Lighting\",'Building Block'!D$40,'Building Block'!D$39))","v":31.278075996100256},{"$f":"IF($B190=\"Blank\",0,IF($B$8=\"Private Contract Lighting\",'Building Block'!E$40,'Building Block'!E$39))","v":21.467987799581408},{"$f":"IF($B190=\"Blank\",0,IF($B$8=\"Private Contract Lighting\",'Building Block'!F$40,'Building Block'!F$39))","v":21.22771925228782},{"$f":"IF($B190=\"Blank\",0,IF($B$8=\"Private Contract Lighting\",'Building Block'!G$40,'Building Block'!G$39))","v":21.210892633443169},null,null,null,null,null,null,null,"Opex Overheads Costs per light",8.8043815730390715,8.5693358893425362,5.8816404930360022,5.815813493777485,5.7953258561320133]
[null,{"$f":"Inputs!$AK$68","v":"Bracket UNIT price"},0,null,{"$f":"IF($B190=\"Blank\",0,OFFSET('CAPEX Annuity calcs'!$B$9,MATCH($B190,'CAPEX Annuity calcs'!$B$9:$B$500,0)+$C199,E$6))","v":6.1673796159250225},{"$f":"IF($B190=\"Blank\",0,OFFSET('CAPEX Annuity calcs'!$B$9,MATCH($B190,'CAPEX Annuity calcs'!$B$9:$B$500,0)+$C199,F$6))","v":6.1673796159250225},{"$f":"IF($B190=\"Blank\",0,OFFSET('CAPEX Annuity calcs'!$B$9,MATCH($B190,'CAPEX Annuity calcs'!$B$9:$B$500,0)+$C199,G$6))","v":6.1673796159250225},{"$f":"IF($B190=\"Blank\",0,OFFSET('CAPEX Annuity calcs'!$B$9,MATCH($B190,'CAPEX Annuity calcs'!$B$9:$B$500,0)+$C199,H$6))","v":6.1673796159250225},{"$f":"IF($B190=\"Blank\",0,OFFSET('CAPEX Annuity calcs'!$B$9,MATCH($B190,'CAPEX Annuity calcs'!$B$9:$B$500,0)+$C199,I$6))","v":6.1673796159250225},null,null,null,null,null,null,null,"Bracket UNIT price",1.6850763977937218,1.6896930454589103,1.6896930454589103,1.6896930454589103,1.6850763977937218]
[null,{"$f":"Inputs!$AA$68","v":"CAPEX Instalation costs"},{"$f":"C199+1","v":1},null,{"$f":"IF($B190=\"Blank\",0,OFFSET('CAPEX Annuity calcs'!$B$9,MATCH($B190,'CAPEX Annuity calcs'!$B$9:$B$500,0)+$C200,E$6))","v":0},{"$f":"IF($B190=\"Blank\",0,OFFSET('CAPEX Annuity calcs'!$B$9,MATCH($B190,'CAPEX Annuity calcs'!$B$9:$B$500,0)+$C200,F$6))","v":0},{"$f":"IF($B190=\"Blank\",0,OFFSET('CAPEX Annuity calcs'!$B$9,MATCH($B190,'CAPEX Annuity calcs'!$B$9:$B$500,0)+$C200,G$6))","v":0},{"$f":"IF($B190=\"Blank\",0,OFFSET('CAPEX Annuity calcs'!$B$9,MATCH($B190,'CAPEX Annuity calcs'!$B$9:$B$500,0)+$C200,H$6))","v":0},{"$f":"IF($B190=\"Blank\",0,OFFSET('CAPEX Annuity calcs'!$B$9,MATCH($B190,'CAPEX Annuity calcs'!$B$9:$B$500,0)+$C200,I$6))","v":0},null,null,null,null,null,null,null,"CAPEX Instalation costs",0,0,0,0,0]
[null,{"$f":"Inputs!$Z$68","v":"Luminaire UNIT price"},{"$f":"C200+1","v":2},null,{"$f":"IF($B190=\"Blank\",0,OFFSET('CAPEX Annuity calcs'!$B$9,MATCH($B190,'CAPEX Annuity calcs'!$B$9:$B$500,0)+$C201,E$6))","v":17.729617151402259},{"$f":"IF($B190=\"Blank\",0,OFFSET('CAPEX Annuity calcs'!$B$9,MATCH($B190,'CAPEX Annuity calcs'!$B$9:$B$500,0)+$C201,F$6))","v":17.729617151402259},{"$f":"IF($B190=\"Blank\",0,OFFSET('CAPEX Annuity calcs'!$B$9,MATCH($B190,'CAPEX Annuity calcs'!$B$9:$B$500,0)+$C201,G$6))","v":17.729617151402259},{"$f":"IF($B190=\"Blank\",0,OFFSET('CAPEX Annuity calcs'!$B$9,MATCH($B190,'CAPEX Annuity calcs'!$B$9:$B$500,0)+$C201,H$6))","v":17.729617151402259},{"$f":"IF($B190=\"Blank\",0,OFFSET('CAPEX Annuity calcs'!$B$9,MATCH($B190,'CAPEX Annuity calcs'!$B$9:$B$500,0)+$C201,I$6))","v":17.729617151402259},null,null,null,null,null,null,null,"Luminaire UNIT price",4.8441576916399613,4.8574293565485638,4.8574293565485638,4.8574293565485638,4.8441576916399613]
[null,{"$f":"Inputs!$AA$68","v":"CAPEX Instalation costs"},3,null,{"$f":"IF($B190=\"Blank\",0,OFFSET('CAPEX Annuity calcs'!$B$9,MATCH($B190,'CAPEX Annuity calcs'!$B$9:$B$500,0)+$C202,E$6))","v":18.736141709912243},{"$f":"IF($B190=\"Blank\",0,OFFSET('CAPEX Annuity calcs'!$B$9,MATCH($B190,'CAPEX Annuity calcs'!$B$9:$B$500,0)+$C202,F$6))","v":18.74779128716041},{"$f":"IF($B190=\"Blank\",0,OFFSET('CAPEX Annuity calcs'!$B$9,MATCH($B190,'CAPEX Annuity calcs'!$B$9:$B$500,0)+$C202,G$6))","v":18.765559678232343},{"$f":"IF($B190=\"Blank\",0,OFFSET('CAPEX Annuity calcs'!$B$9,MATCH($B190,'CAPEX Annuity calcs'!$B$9:$B$500,0)+$C202,H$6))","v":18.787465819916616},{"$f":"IF($B190=\"Blank\",0,OFFSET('CAPEX Annuity calcs'!$B$9,MATCH($B190,'CAPEX Annuity calcs'!$B$9:$B$500,0)+$C202,I$6))","v":18.813047608397444},null,null,null,null,null,null,null,"CAPEX Instalation costs",5.1191644016153672,5.1363811745644954,5.1412492269129713,5.1472509095661954,5.1401769421850938]
[null,null,null,null,{"$f":"SUM(E191:E202)","v":147.94742293777861},{"$f":"SUM(F191:F202)","v":147.10435851994907},131.30011560827072,130.43854130569039,129.7817736942489,null,null,null,null,null,null,null,null,{"$f":"ROUND(E203/R$2*100,3)","v":40.423000000000002},{"$f":"ROUND(F203/S$2*100,3)","v":40.302999999999997},{"$f":"ROUND(G203/T$2*100,3)","v":35.972999999999999},{"$f":"ROUND(H203/U$2*100,3)","v":35.737000000000002},{"$f":"ROUND(I203/V$2*100,3)","v":35.46}]
[]
[{"$f":"A190+1","v":14},{"$f":"IFERROR(VLOOKUP($A205,Inputs!$B$68:$AN$129,MATCH($B$7,Inputs!$B$68:$AN$68,0),FALSE),\"Blank\")","v":"4x40W Fluorescent"},null,null,null,null,null,null,null,null,null,null,null,null,null,null,{"$f":"IFERROR(VLOOKUP($A205,Inputs!$B$68:$AN$129,MATCH($B$7,Inputs!$B$68:$AN$68,0),FALSE),\"Blank\")","v":"4x40W Fluorescent"}]
[null,{"$f":"Inputs!$S$68","v":"Lamp UNIT price Annualised Cost"},{"$f":"Inputs!$Q$68","v":"Lamp Maintenance cycle"},null,{"$f":"IF($B205=\"Blank\",0,VLOOKUP($B205,Inputs!$C$68:$AN$129,MATCH($B206,Inputs!$C$68:$AN$68,0),FALSE))","v":4.2989751705118762},{"$f":"IF($B205=\"Blank\",0,VLOOKUP($B205,Inputs!$C$68:$AN$129,MATCH($B206,Inputs!$C$68:$AN$68,0),FALSE))","v":4.2989751705118762},{"$f":"IF($B205=\"Blank\",0,VLOOKUP($B205,Inputs!$C$68:$AN$129,MATCH($B206,Inputs!$C$68:$AN$68,0),FALSE))","v":4.2989751705118762},{"$f":"IF($B205=\"Blank\",0,VLOOKUP($B205,Inputs!$C$68:$AN$129,MATCH($B206,Inputs!$C$68:$AN$68,0),FALSE))","v":4.2989751705118762},{"$f":"IF($B205=\"Blank\",0,VLOOKUP($B205,Inputs!$C$68:$AN$129,MATCH($B206,Inputs!$C$68:$AN$68,0),FALSE))","v":4.2989751705118762},null,null,null,null,null,null,null,{"$f":"B206","v":"Lamp UNIT price Annualised Cost"},{"$f":"IF(E206=\"NA\",\"\",E206/R$2*100)","v":1.1745833799212777},{"$f":"IF(F206=\"NA\",\"\",F206/S$2*100)","v":1.1778014165785964},{"$f":"IF(G206=\"NA\",\"\",G206/T$2*100)","v":1.1778014165785964},{"$f":"IF(H206=\"NA\",\"\",H206/U$2*100)","v":1.1778014165785964},{"$f":"IF(I206=\"NA\",\"\",I206/V$2*100)","v":1.1745833799212777}]
[null,{"$f":"Inputs!$K$68","v":"PE Cell UNIT price Annualised Cost"},{"$f":"Inputs!$I$68","v":"PE Cell Maintenance Cycle"},null,{"$f":"IF($B205=\"Blank\",0,VLOOKUP($B205,Inputs!$C$68:$AN$129,MATCH($B207,Inputs!$C$68:$AN$68,0),FALSE))","v":1.6930974392480003},{"$f":"IF($B205=\"Blank\",0,VLOOKUP($B205,Inputs!$C$68:$AN$129,MATCH($B207,Inputs!$C$68:$AN$68,0),FALSE))","v":1.6930974392480003},{"$f":"IF($B205=\"Blank\",0,VLOOKUP($B205,Inputs!$C$68:$AN$129,MATCH($B207,Inputs!$C$68:$AN$68,0),FALSE))","v":1.6930974392480003},{"$f":"IF($B205=\"Blank\",0,VLOOKUP($B205,Inputs!$C$68:$AN$129,MATCH($B207,Inputs!$C$68:$AN$68,0),FALSE))","v":1.6930974392480003},{"$f":"IF($B205=\"Blank\",0,VLOOKUP($B205,Inputs!$C$68:$AN$129,MATCH($B207,Inputs!$C$68:$AN$68,0),FALSE))","v":1.6930974392480003},null,null,null,null,null,null,null,"PE Cell UNIT price Annualised Cost",0.46259492875628422,0.46386231212273976,0.46386231212273976,0.46386231212273976,0.46259492875628422]
[null,"Corp capex annuity per light",null,null,{"$f":"IF($B205=\"Blank\",0,'Corp Capex Annuity calcs'!F$142)","v":18.582309905017571},{"$f":"IF($B205=\"Blank\",0,'Corp Capex Annuity calcs'!G$142)","v":18.552026408230436},{"$f":"IF($B205=\"Blank\",0,'Corp Capex Annuity calcs'!H$142)","v":18.401377631486287},{"$f":"IF($B205=\"Blank\",0,'Corp Capex Annuity calcs'!I$142)","v":18.205761940470655},{"$f":"IF($B205=\"Blank\",0,'Corp Capex Annuity calcs'!J$142)","v":17.995165449295623},null,null,null,null,null,null,null,"Corp capex annuity per light",5.0771338538299373,5.0827469611590237,5.0414733236948734,4.9878799836905907,4.9167118713922466]
[null,{"$f":"Inputs!$U$68","v":"Lamp Service costs Annualised"},"Labour Portion of Lamp Service costs annualised",null,{"$f":"IF($B205=\"Blank\",0,VLOOKUP($B205,Inputs!$C$68:$AN$129,MATCH($B209,Inputs!$C$68:$AN$68,0),FALSE))+IFERROR(IF($B205=\"Blank\",0,VLOOKUP($B205,Inputs!$C$68:$AN$129,MATCH($C209,Inputs!$C$68:$AN$68,0),FALSE))*('Master Data'!K$42),0)","v":34.921367162927247},{"$f":"IF($B205=\"Blank\",0,VLOOKUP($B205,Inputs!$C$68:$AN$129,MATCH($B209,Inputs!$C$68:$AN$68,0),FALSE))+IFERROR(IF($B205=\"Blank\",0,VLOOKUP($B205,Inputs!$C$68:$AN$129,MATCH($C209,Inputs!$C$68:$AN$68,0),FALSE))*('Master Data'!L$42),0)","v":34.926481274900404},{"$f":"IF($B205=\"Blank\",0,VLOOKUP($B205,Inputs!$C$68:$AN$129,MATCH($B209,Inputs!$C$68:$AN$68,0),FALSE))+IFERROR(IF($B205=\"Blank\",0,VLOOKUP($B205,Inputs!$C$68:$AN$129,MATCH($C209,Inputs!$C$68:$AN$68,0),FALSE))*('Master Data'!M$42),0)","v":34.934281518599292},{"$f":"IF($B205=\"Blank\",0,VLOOKUP($B205,Inputs!$C$68:$AN$129,MATCH($B209,Inputs!$C$68:$AN$68,0),FALSE))+IFERROR(IF($B205=\"Blank\",0,VLOOKUP($B205,Inputs!$C$68:$AN$129,MATCH($C209,Inputs!$C$68:$AN$68,0),FALSE))*('Master Data'!N$42),0)","v":34.943898216191549},{"$f":"IF($B205=\"Blank\",0,VLOOKUP($B205,Inputs!$C$68:$AN$129,MATCH($B209,Inputs!$C$68:$AN$68,0),FALSE))+IFERROR(IF($B205=\"Blank\",0,VLOOKUP($B205,Inputs!$C$68:$AN$129,MATCH($C209,Inputs!$C$68:$AN$68,0),FALSE))*('Master Data'!O$42),0)","v":34.955128506182135},null,null,null,null,null,null,null,"Lamp Service costs Annualised",9.5413571483407775,9.5688989794247679,9.5710360324929571,9.5736707441620688,9.5505815590661562]
[null,{"$f":"Inputs!$M$68","v":"PE Cell Service costs Annualised"},"Labour Portion of PE Cell Service costs Annualised",null,{"$f":"IF($B205=\"Blank\",0,VLOOKUP($B205,Inputs!$C$68:$AN$129,MATCH($B210,Inputs!$C$68:$AN$68,0),FALSE))+IFERROR(IF($B205=\"Blank\",0,VLOOKUP($B205,Inputs!$C$68:$AN$129,MATCH($C210,Inputs!$C$68:$AN$68,0),FALSE))*('Master Data'!K$42),0)","v":0},{"$f":"IF($B205=\"Blank\",0,VLOOKUP($B205,Inputs!$C$68:$AN$129,MATCH($B210,Inputs!$C$68:$AN$68,0),FALSE))+IFERROR(IF($B205=\"Blank\",0,VLOOKUP($B205,Inputs!$C$68:$AN$129,MATCH($C210,Inputs!$C$68:$AN$68,0),FALSE))*('Master Data'!L$42),0)","v":0},{"$f":"IF($B205=\"Blank\",0,VLOOKUP($B205,Inputs!$C$68:$AN$129,MATCH($B210,Inputs!$C$68:$AN$68,0),FALSE))+IFERROR(IF($B205=\"Blank\",0,VLOOKUP($B205,Inputs!$C$68:$AN$129,MATCH($C210,Inputs!$C$68:$AN$68,0),FALSE))*('Master Data'!M$42),0)","v":0},{"$f":"IF($B205=\"Blank\",0,VLOOKUP($B205,Inputs!$C$68:$AN$129,MATCH($B210,Inputs!$C$68:$AN$68,0),FALSE))+IFERROR(IF($B205=\"Blank\",0,VLOOKUP($B205,Inputs!$C$68:$AN$129,MATCH($C210,Inputs!$C$68:$AN$68,0),FALSE))*('Master Data'!N$42),0)","v":0},{"$f":"IF($B205=\"Blank\",0,VLOOKUP($B205,Inputs!$C$68:$AN$129,MATCH($B210,Inputs!$C$68:$AN$68,0),FALSE))+IFERROR(IF($B205=\"Blank\",0,VLOOKUP($B205,Inputs!$C$68:$AN$129,MATCH($C210,Inputs!$C$68:$AN$68,0),FALSE))*('Master Data'!O$42),0)","v":0},null,null,null,null,null,null,null,"PE Cell Service costs Annualised",0,0,0,0,0]
[null,"Indirect Opex",null,null,{"$f":"IF($B205=\"Blank\",0,IF($B$8=\"Private Contract Lighting\",'Opex Weighting'!D$48,'Opex Weighting'!D$46))","v":25.762407087322877},{"$f":"IF($B205=\"Blank\",0,IF($B$8=\"Private Contract Lighting\",'Opex Weighting'!E$48,'Opex Weighting'!E$46))","v":25.880403763800857},{"$f":"IF($B205=\"Blank\",0,IF($B$8=\"Private Contract Lighting\",'Opex Weighting'!F$48,'Opex Weighting'!F$46))","v":20.013740175030701},{"$f":"IF($B205=\"Blank\",0,IF($B$8=\"Private Contract Lighting\",'Opex Weighting'!G$48,'Opex Weighting'!G$46))","v":19.55949970528431},{"$f":"IF($B205=\"Blank\",0,IF($B$8=\"Private Contract Lighting\",'Opex Weighting'!H$48,'Opex Weighting'!H$46))","v":19.096814305933613},null,null,null,null,null,null,null,"Indirect Opex",7.0389090402521521,7.0905215791235223,5.4832164863097814,5.3587670425436471,5.2177088267578178]
[null,"Indirect Capex",null,null,{"$f":"'Capex Weighting'!D$59","v":0},{"$f":"'Capex Weighting'!E$59","v":0},{"$f":"'Capex Weighting'!F$59","v":0},{"$f":"'Capex Weighting'!G$59","v":0},{"$f":"'Capex Weighting'!H$59","v":0},null,null,null,null,null,null,null,"Indirect Capex",0,0,0,0,0]
[null,"Opex Overheads Costs per light",null,null,{"$f":"IF($B205=\"Blank\",0,IF($B$8=\"Private Contract Lighting\",'Building Block'!C$40,'Building Block'!C$39))","v":32.224036557323004},{"$f":"IF($B205=\"Blank\",0,IF($B$8=\"Private Contract Lighting\",'Building Block'!D$40,'Building Block'!D$39))","v":31.278075996100256},{"$f":"IF($B205=\"Blank\",0,IF($B$8=\"Private Contract Lighting\",'Building Block'!E$40,'Building Block'!E$39))","v":21.467987799581408},{"$f":"IF($B205=\"Blank\",0,IF($B$8=\"Private Contract Lighting\",'Building Block'!F$40,'Building Block'!F$39))","v":21.22771925228782},{"$f":"IF($B205=\"Blank\",0,IF($B$8=\"Private Contract Lighting\",'Building Block'!G$40,'Building Block'!G$39))","v":21.210892633443169},null,null,null,null,null,null,null,"Opex Overheads Costs per light",8.8043815730390715,8.5693358893425362,5.8816404930360022,5.815813493777485,5.7953258561320133]
[null,{"$f":"Inputs!$AK$68","v":"Bracket UNIT price"},0,null,{"$f":"IF($B205=\"Blank\",0,OFFSET('CAPEX Annuity calcs'!$B$9,MATCH($B205,'CAPEX Annuity calcs'!$B$9:$B$500,0)+$C214,E$6))","v":6.1673796159250225},{"$f":"IF($B205=\"Blank\",0,OFFSET('CAPEX Annuity calcs'!$B$9,MATCH($B205,'CAPEX Annuity calcs'!$B$9:$B$500,0)+$C214,F$6))","v":6.1673796159250225},{"$f":"IF($B205=\"Blank\",0,OFFSET('CAPEX Annuity calcs'!$B$9,MATCH($B205,'CAPEX Annuity calcs'!$B$9:$B$500,0)+$C214,G$6))","v":6.1673796159250225},{"$f":"IF($B205=\"Blank\",0,OFFSET('CAPEX Annuity calcs'!$B$9,MATCH($B205,'CAPEX Annuity calcs'!$B$9:$B$500,0)+$C214,H$6))","v":6.1673796159250225},{"$f":"IF($B205=\"Blank\",0,OFFSET('CAPEX Annuity calcs'!$B$9,MATCH($B205,'CAPEX Annuity calcs'!$B$9:$B$500,0)+$C214,I$6))","v":6.1673796159250225},null,null,null,null,null,null,null,"Bracket UNIT price",1.6850763977937218,1.6896930454589103,1.6896930454589103,1.6896930454589103,1.6850763977937218]
[null,{"$f":"Inputs!$AA$68","v":"CAPEX Instalation costs"},{"$f":"C214+1","v":1},null,{"$f":"IF($B205=\"Blank\",0,OFFSET('CAPEX Annuity calcs'!$B$9,MATCH($B205,'CAPEX Annuity calcs'!$B$9:$B$500,0)+$C215,E$6))","v":0},{"$f":"IF($B205=\"Blank\",0,OFFSET('CAPEX Annuity calcs'!$B$9,MATCH($B205,'CAPEX Annuity calcs'!$B$9:$B$500,0)+$C215,F$6))","v":0},{"$f":"IF($B205=\"Blank\",0,OFFSET('CAPEX Annuity calcs'!$B$9,MATCH($B205,'CAPEX Annuity calcs'!$B$9:$B$500,0)+$C215,G$6))","v":0},{"$f":"IF($B205=\"Blank\",0,OFFSET('CAPEX Annuity calcs'!$B$9,MATCH($B205,'CAPEX Annuity calcs'!$B$9:$B$500,0)+$C215,H$6))","v":0},{"$f":"IF($B205=\"Blank\",0,OFFSET('CAPEX Annuity calcs'!$B$9,MATCH($B205,'CAPEX Annuity calcs'!$B$9:$B$500,0)+$C215,I$6))","v":0},null,null,null,null,null,null,null,"CAPEX Instalation costs",0,0,0,0,0]
[null,{"$f":"Inputs!$Z$68","v":"Luminaire UNIT price"},{"$f":"C215+1","v":2},null,{"$f":"IF($B205=\"Blank\",0,OFFSET('CAPEX Annuity calcs'!$B$9,MATCH($B205,'CAPEX Annuity calcs'!$B$9:$B$500,0)+$C216,E$6))","v":17.729617151402259},{"$f":"IF($B205=\"Blank\",0,OFFSET('CAPEX Annuity calcs'!$B$9,MATCH($B205,'CAPEX Annuity calcs'!$B$9:$B$500,0)+$C216,F$6))","v":17.729617151402259},{"$f":"IF($B205=\"Blank\",0,OFFSET('CAPEX Annuity calcs'!$B$9,MATCH($B205,'CAPEX Annuity calcs'!$B$9:$B$500,0)+$C216,G$6))","v":17.729617151402259},{"$f":"IF($B205=\"Blank\",0,OFFSET('CAPEX Annuity calcs'!$B$9,MATCH($B205,'CAPEX Annuity calcs'!$B$9:$B$500,0)+$C216,H$6))","v":17.729617151402259},{"$f":"IF($B205=\"Blank\",0,OFFSET('CAPEX Annuity calcs'!$B$9,MATCH($B205,'CAPEX Annuity calcs'!$B$9:$B$500,0)+$C216,I$6))","v":17.729617151402259},null,null,null,null,null,null,null,"Luminaire UNIT price",4.8441576916399613,4.8574293565485638,4.8574293565485638,4.8574293565485638,4.8441576916399613]
[null,{"$f":"Inputs!$AA$68","v":"CAPEX Instalation costs"},3,null,{"$f":"IF($B205=\"Blank\",0,OFFSET('CAPEX Annuity calcs'!$B$9,MATCH($B205,'CAPEX Annuity calcs'!$B$9:$B$500,0)+$C217,E$6))","v":29.489604830309908},{"$f":"IF($B205=\"Blank\",0,OFFSET('CAPEX Annuity calcs'!$B$9,MATCH($B205,'CAPEX Annuity calcs'!$B$9:$B$500,0)+$C217,F$6))","v":29.507480464650605},{"$f":"IF($B205=\"Blank\",0,OFFSET('CAPEX Annuity calcs'!$B$9,MATCH($B205,'CAPEX Annuity calcs'!$B$9:$B$500,0)+$C217,G$6))","v":29.534745081628376},{"$f":"IF($B205=\"Blank\",0,OFFSET('CAPEX Annuity calcs'!$B$9,MATCH($B205,'CAPEX Annuity calcs'!$B$9:$B$500,0)+$C217,H$6))","v":29.568358848911217},{"$f":"IF($B205=\"Blank\",0,OFFSET('CAPEX Annuity calcs'!$B$9,MATCH($B205,'CAPEX Annuity calcs'!$B$9:$B$500,0)+$C217,I$6))","v":29.607612693657906},null,null,null,null,null,null,null,"CAPEX Instalation costs",8.0572690793196475,8.0842412231919472,8.0917109812680472,8.1009202325784155,8.0895116649338537]
[null,null,null,null,{"$f":"SUM(E206:E217)","v":170.86879491998775},{"$f":"SUM(F206:F217)","v":170.03353728476972},154.24120158341324,153.39430734023273,152.75468296559961,null,null,null,null,null,null,null,null,{"$f":"ROUND(E218/R$2*100,3)","v":46.685000000000002},{"$f":"ROUND(F218/S$2*100,3)","v":46.585000000000001},{"$f":"ROUND(G218/T$2*100,3)","v":42.258000000000003},{"$f":"ROUND(H218/U$2*100,3)","v":42.026000000000003},{"$f":"ROUND(I218/V$2*100,3)","v":41.735999999999997}]
[]
[{"$f":"A205+1","v":15},{"$f":"IFERROR(VLOOKUP($A220,Inputs!$B$68:$AN$129,MATCH($B$7,Inputs!$B$68:$AN$68,0),FALSE),\"Blank\")","v":"100W Sodium Vapour"},null,null,null,null,null,null,null,null,null,null,null,null,null,null,{"$f":"IFERROR(VLOOKUP($A220,Inputs!$B$68:$AN$129,MATCH($B$7,Inputs!$B$68:$AN$68,0),FALSE),\"Blank\")","v":"100W Sodium Vapour"}]
[null,{"$f":"Inputs!$S$68","v":"Lamp UNIT price Annualised Cost"},{"$f":"Inputs!$Q$68","v":"Lamp Maintenance cycle"},null,{"$f":"IF($B220=\"Blank\",0,VLOOKUP($B220,Inputs!$C$68:$AN$129,MATCH($B221,Inputs!$C$68:$AN$68,0),FALSE))","v":3.6534015972599994},{"$f":"IF($B220=\"Blank\",0,VLOOKUP($B220,Inputs!$C$68:$AN$129,MATCH($B221,Inputs!$C$68:$AN$68,0),FALSE))","v":3.6534015972599994},{"$f":"IF($B220=\"Blank\",0,VLOOKUP($B220,Inputs!$C$68:$AN$129,MATCH($B221,Inputs!$C$68:$AN$68,0),FALSE))","v":3.6534015972599994},{"$f":"IF($B220=\"Blank\",0,VLOOKUP($B220,Inputs!$C$68:$AN$129,MATCH($B221,Inputs!$C$68:$AN$68,0),FALSE))","v":3.6534015972599994},{"$f":"IF($B220=\"Blank\",0,VLOOKUP($B220,Inputs!$C$68:$AN$129,MATCH($B221,Inputs!$C$68:$AN$68,0),FALSE))","v":3.6534015972599994},null,null,null,null,null,null,null,{"$f":"B221","v":"Lamp UNIT price Annualised Cost"},{"$f":"IF(E221=\"NA\",\"\",E221/R$2*100)","v":0.99819715772131135},{"$f":"IF(F221=\"NA\",\"\",F221/S$2*100)","v":1.0009319444547944},{"$f":"IF(G221=\"NA\",\"\",G221/T$2*100)","v":1.0009319444547944},{"$f":"IF(H221=\"NA\",\"\",H221/U$2*100)","v":1.0009319444547944},{"$f":"IF(I221=\"NA\",\"\",I221/V$2*100)","v":0.99819715772131135}]
[null,{"$f":"Inputs!$K$68","v":"PE Cell UNIT price Annualised Cost"},{"$f":"Inputs!$I$68","v":"PE Cell Maintenance Cycle"},null,{"$f":"IF($B220=\"Blank\",0,VLOOKUP($B220,Inputs!$C$68:$AN$129,MATCH($B222,Inputs!$C$68:$AN$68,0),FALSE))","v":1.6930974392480003},{"$f":"IF($B220=\"Blank\",0,VLOOKUP($B220,Inputs!$C$68:$AN$129,MATCH($B222,Inputs!$C$68:$AN$68,0),FALSE))","v":1.6930974392480003},{"$f":"IF($B220=\"Blank\",0,VLOOKUP($B220,Inputs!$C$68:$AN$129,MATCH($B222,Inputs!$C$68:$AN$68,0),FALSE))","v":1.6930974392480003},{"$f":"IF($B220=\"Blank\",0,VLOOKUP($B220,Inputs!$C$68:$AN$129,MATCH($B222,Inputs!$C$68:$AN$68,0),FALSE))","v":1.6930974392480003},{"$f":"IF($B220=\"Blank\",0,VLOOKUP($B220,Inputs!$C$68:$AN$129,MATCH($B222,Inputs!$C$68:$AN$68,0),FALSE))","v":1.6930974392480003},null,null,null,null,null,null,null,"PE Cell UNIT price Annualised Cost",0.46259492875628422,0.46386231212273976,0.46386231212273976,0.46386231212273976,0.46259492875628422]
[null,"Corp capex annuity per light",null,null,{"$f":"IF($B220=\"Blank\",0,'Corp Capex Annuity calcs'!F$142)","v":18.582309905017571},{"$f":"IF($B220=\"Blank\",0,'Corp Capex Annuity calcs'!G$142)","v":18.552026408230436},{"$f":"IF($B220=\"Blank\",0,'Corp Capex Annuity calcs'!H$142)","v":18.401377631486287},{"$f":"IF($B220=\"Blank\",0,'Corp Capex Annuity calcs'!I$142)","v":18.205761940470655},{"$f":"IF($B220=\"Blank\",0,'Corp Capex Annuity calcs'!J$142)","v":17.995165449295623},null,null,null,null,null,null,null,"Corp capex annuity per light",5.0771338538299373,5.0827469611590237,5.0414733236948734,4.9878799836905907,4.9167118713922466]
[null,{"$f":"Inputs!$U$68","v":"Lamp Service costs Annualised"},"Labour Portion of Lamp Service costs annualised",null,{"$f":"IF($B220=\"Blank\",0,VLOOKUP($B220,Inputs!$C$68:$AN$129,MATCH($B224,Inputs!$C$68:$AN$68,0),FALSE))+IFERROR(IF($B220=\"Blank\",0,VLOOKUP($B220,Inputs!$C$68:$AN$129,MATCH($C224,Inputs!$C$68:$AN$68,0),FALSE))*('Master Data'!K$42),0)","v":34.921367162927247},{"$f":"IF($B220=\"Blank\",0,VLOOKUP($B220,Inputs!$C$68:$AN$129,MATCH($B224,Inputs!$C$68:$AN$68,0),FALSE))+IFERROR(IF($B220=\"Blank\",0,VLOOKUP($B220,Inputs!$C$68:$AN$129,MATCH($C224,Inputs!$C$68:$AN$68,0),FALSE))*('Master Data'!L$42),0)","v":34.926481274900404},{"$f":"IF($B220=\"Blank\",0,VLOOKUP($B220,Inputs!$C$68:$AN$129,MATCH($B224,Inputs!$C$68:$AN$68,0),FALSE))+IFERROR(IF($B220=\"Blank\",0,VLOOKUP($B220,Inputs!$C$68:$AN$129,MATCH($C224,Inputs!$C$68:$AN$68,0),FALSE))*('Master Data'!M$42),0)","v":34.934281518599292},{"$f":"IF($B220=\"Blank\",0,VLOOKUP($B220,Inputs!$C$68:$AN$129,MATCH($B224,Inputs!$C$68:$AN$68,0),FALSE))+IFERROR(IF($B220=\"Blank\",0,VLOOKUP($B220,Inputs!$C$68:$AN$129,MATCH($C224,Inputs!$C$68:$AN$68,0),FALSE))*('Master Data'!N$42),0)","v":34.943898216191549},{"$f":"IF($B220=\"Blank\",0,VLOOKUP($B220,Inputs!$C$68:$AN$129,MATCH($B224,Inputs!$C$68:$AN$68,0),FALSE))+IFERROR(IF($B220=\"Blank\",0,VLOOKUP($B220,Inputs!$C$68:$AN$129,MATCH($C224,Inputs!$C$68:$AN$68,0),FALSE))*('Master Data'!O$42),0)","v":34.955128506182135},null,null,null,null,null,null,null,"Lamp Service costs Annualised",9.5413571483407775,9.5688989794247679,9.5710360324929571,9.5736707441620688,9.5505815590661562]
[null,{"$f":"Inputs!$M$68","v":"PE Cell Service costs Annualised"},"Labour Portion of PE Cell Service costs Annualised",null,{"$f":"IF($B220=\"Blank\",0,VLOOKUP($B220,Inputs!$C$68:$AN$129,MATCH($B225,Inputs!$C$68:$AN$68,0),FALSE))+IFERROR(IF($B220=\"Blank\",0,VLOOKUP($B220,Inputs!$C$68:$AN$129,MATCH($C225,Inputs!$C$68:$AN$68,0),FALSE))*('Master Data'!K$42),0)","v":0},{"$f":"IF($B220=\"Blank\",0,VLOOKUP($B220,Inputs!$C$68:$AN$129,MATCH($B225,Inputs!$C$68:$AN$68,0),FALSE))+IFERROR(IF($B220=\"Blank\",0,VLOOKUP($B220,Inputs!$C$68:$AN$129,MATCH($C225,Inputs!$C$68:$AN$68,0),FALSE))*('Master Data'!L$42),0)","v":0},{"$f":"IF($B220=\"Blank\",0,VLOOKUP($B220,Inputs!$C$68:$AN$129,MATCH($B225,Inputs!$C$68:$AN$68,0),FALSE))+IFERROR(IF($B220=\"Blank\",0,VLOOKUP($B220,Inputs!$C$68:$AN$129,MATCH($C225,Inputs!$C$68:$AN$68,0),FALSE))*('Master Data'!M$42),0)","v":0},{"$f":"IF($B220=\"Blank\",0,VLOOKUP($B220,Inputs!$C$68:$AN$129,MATCH($B225,Inputs!$C$68:$AN$68,0),FALSE))+IFERROR(IF($B220=\"Blank\",0,VLOOKUP($B220,Inputs!$C$68:$AN$129,MATCH($C225,Inputs!$C$68:$AN$68,0),FALSE))*('Master Data'!N$42),0)","v":0},{"$f":"IF($B220=\"Blank\",0,VLOOKUP($B220,Inputs!$C$68:$AN$129,MATCH($B225,Inputs!$C$68:$AN$68,0),FALSE))+IFERROR(IF($B220=\"Blank\",0,VLOOKUP($B220,Inputs!$C$68:$AN$129,MATCH($C225,Inputs!$C$68:$AN$68,0),FALSE))*('Master Data'!O$42),0)","v":0},null,null,null,null,null,null,null,"PE Cell Service costs Annualised",0,0,0,0,0]
[null,"Indirect Opex",null,null,{"$f":"IF($B220=\"Blank\",0,IF($B$8=\"Private Contract Lighting\",'Opex Weighting'!D$48,'Opex Weighting'!D$46))","v":25.762407087322877},{"$f":"IF($B220=\"Blank\",0,IF($B$8=\"Private Contract Lighting\",'Opex Weighting'!E$48,'Opex Weighting'!E$46))","v":25.880403763800857},{"$f":"IF($B220=\"Blank\",0,IF($B$8=\"Private Contract Lighting\",'Opex Weighting'!F$48,'Opex Weighting'!F$46))","v":20.013740175030701},{"$f":"IF($B220=\"Blank\",0,IF($B$8=\"Private Contract Lighting\",'Opex Weighting'!G$48,'Opex Weighting'!G$46))","v":19.55949970528431},{"$f":"IF($B220=\"Blank\",0,IF($B$8=\"Private Contract Lighting\",'Opex Weighting'!H$48,'Opex Weighting'!H$46))","v":19.096814305933613},null,null,null,null,null,null,null,"Indirect Opex",7.0389090402521521,7.0905215791235223,5.4832164863097814,5.3587670425436471,5.2177088267578178]
[null,"Indirect Capex",null,null,{"$f":"'Capex Weighting'!D$59","v":0},{"$f":"'Capex Weighting'!E$59","v":0},{"$f":"'Capex Weighting'!F$59","v":0},{"$f":"'Capex Weighting'!G$59","v":0},{"$f":"'Capex Weighting'!H$59","v":0},null,null,null,null,null,null,null,"Indirect Capex",0,0,0,0,0]
[null,"Opex Overheads Costs per light",null,null,{"$f":"IF($B220=\"Blank\",0,IF($B$8=\"Private Contract Lighting\",'Building Block'!C$40,'Building Block'!C$39))","v":32.224036557323004},{"$f":"IF($B220=\"Blank\",0,IF($B$8=\"Private Contract Lighting\",'Building Block'!D$40,'Building Block'!D$39))","v":31.278075996100256},{"$f":"IF($B220=\"Blank\",0,IF($B$8=\"Private Contract Lighting\",'Building Block'!E$40,'Building Block'!E$39))","v":21.467987799581408},{"$f":"IF($B220=\"Blank\",0,IF($B$8=\"Private Contract Lighting\",'Building Block'!F$40,'Building Block'!F$39))","v":21.22771925228782},{"$f":"IF($B220=\"Blank\",0,IF($B$8=\"Private Contract Lighting\",'Building Block'!G$40,'Building Block'!G$39))","v":21.210892633443169},null,null,null,null,null,null,null,"Opex Overheads Costs per light",8.8043815730390715,8.5693358893425362,5.8816404930360022,5.815813493777485,5.7953258561320133]
[null,{"$f":"Inputs!$AK$68","v":"Bracket UNIT price"},0,null,{"$f":"IF($B220=\"Blank\",0,OFFSET('CAPEX Annuity calcs'!$B$9,MATCH($B220,'CAPEX Annuity calcs'!$B$9:$B$500,0)+$C229,E$6))","v":5.5951444065074343},{"$f":"IF($B220=\"Blank\",0,OFFSET('CAPEX Annuity calcs'!$B$9,MATCH($B220,'CAPEX Annuity calcs'!$B$9:$B$500,0)+$C229,F$6))","v":5.5951444065074343},{"$f":"IF($B220=\"Blank\",0,OFFSET('CAPEX Annuity calcs'!$B$9,MATCH($B220,'CAPEX Annuity calcs'!$B$9:$B$500,0)+$C229,G$6))","v":5.5951444065074343},{"$f":"IF($B220=\"Blank\",0,OFFSET('CAPEX Annuity calcs'!$B$9,MATCH($B220,'CAPEX Annuity calcs'!$B$9:$B$500,0)+$C229,H$6))","v":5.5951444065074343},{"$f":"IF($B220=\"Blank\",0,OFFSET('CAPEX Annuity calcs'!$B$9,MATCH($B220,'CAPEX Annuity calcs'!$B$9:$B$500,0)+$C229,I$6))","v":5.5951444065074343},null,null,null,null,null,null,null,"Bracket UNIT price",1.5287279799200642,1.5329162757554615,1.5329162757554615,1.5329162757554615,1.5287279799200642]
[null,{"$f":"Inputs!$AA$68","v":"CAPEX Instalation costs"},{"$f":"C229+1","v":1},null,{"$f":"IF($B220=\"Blank\",0,OFFSET('CAPEX Annuity calcs'!$B$9,MATCH($B220,'CAPEX Annuity calcs'!$B$9:$B$500,0)+$C230,E$6))","v":0},{"$f":"IF($B220=\"Blank\",0,OFFSET('CAPEX Annuity calcs'!$B$9,MATCH($B220,'CAPEX Annuity calcs'!$B$9:$B$500,0)+$C230,F$6))","v":0},{"$f":"IF($B220=\"Blank\",0,OFFSET('CAPEX Annuity calcs'!$B$9,MATCH($B220,'CAPEX Annuity calcs'!$B$9:$B$500,0)+$C230,G$6))","v":0},{"$f":"IF($B220=\"Blank\",0,OFFSET('CAPEX Annuity calcs'!$B$9,MATCH($B220,'CAPEX Annuity calcs'!$B$9:$B$500,0)+$C230,H$6))","v":0},{"$f":"IF($B220=\"Blank\",0,OFFSET('CAPEX Annuity calcs'!$B$9,MATCH($B220,'CAPEX Annuity calcs'!$B$9:$B$500,0)+$C230,I$6))","v":0},null,null,null,null,null,null,null,"CAPEX Instalation costs",0,0,0,0,0]
[null,{"$f":"Inputs!$Z$68","v":"Luminaire UNIT price"},{"$f":"C230+1","v":2},null,{"$f":"IF($B220=\"Blank\",0,OFFSET('CAPEX Annuity calcs'!$B$9,MATCH($B220,'CAPEX Annuity calcs'!$B$9:$B$500,0)+$C231,E$6))","v":10.834860270117009},{"$f":"IF($B220=\"Blank\",0,OFFSET('CAPEX Annuity calcs'!$B$9,MATCH($B220,'CAPEX Annuity calcs'!$B$9:$B$500,0)+$C231,F$6))","v":10.834860270117009},{"$f":"IF($B220=\"Blank\",0,OFFSET('CAPEX Annuity calcs'!$B$9,MATCH($B220,'CAPEX Annuity calcs'!$B$9:$B$500,0)+$C231,G$6))","v":10.834860270117009},{"$f":"IF($B220=\"Blank\",0,OFFSET('CAPEX Annuity calcs'!$B$9,MATCH($B220,'CAPEX Annuity calcs'!$B$9:$B$500,0)+$C231,H$6))","v":10.834860270117009},{"$f":"IF($B220=\"Blank\",0,OFFSET('CAPEX Annuity calcs'!$B$9,MATCH($B220,'CAPEX Annuity calcs'!$B$9:$B$500,0)+$C231,I$6))","v":10.834860270117009},null,null,null,null,null,null,null,"Luminaire UNIT price",2.9603443360975432,2.9684548685252077,2.9684548685252077,2.9684548685252077,2.9603443360975432]
[null,{"$f":"Inputs!$AA$68","v":"CAPEX Instalation costs"},3,null,{"$f":"IF($B220=\"Blank\",0,OFFSET('CAPEX Annuity calcs'!$B$9,MATCH($B220,'CAPEX Annuity calcs'!$B$9:$B$500,0)+$C232,E$6))","v":29.489604830309908},{"$f":"IF($B220=\"Blank\",0,OFFSET('CAPEX Annuity calcs'!$B$9,MATCH($B220,'CAPEX Annuity calcs'!$B$9:$B$500,0)+$C232,F$6))","v":29.507480464650605},{"$f":"IF($B220=\"Blank\",0,OFFSET('CAPEX Annuity calcs'!$B$9,MATCH($B220,'CAPEX Annuity calcs'!$B$9:$B$500,0)+$C232,G$6))","v":29.534745081628376},{"$f":"IF($B220=\"Blank\",0,OFFSET('CAPEX Annuity calcs'!$B$9,MATCH($B220,'CAPEX Annuity calcs'!$B$9:$B$500,0)+$C232,H$6))","v":29.568358848911217},{"$f":"IF($B220=\"Blank\",0,OFFSET('CAPEX Annuity calcs'!$B$9,MATCH($B220,'CAPEX Annuity calcs'!$B$9:$B$500,0)+$C232,I$6))","v":29.607612693657906},null,null,null,null,null,null,null,"CAPEX Instalation costs",8.0572690793196475,8.0842412231919472,8.0917109812680472,8.1009202325784155,8.0895116649338537]
[null,null,null,null,{"$f":"SUM(E221:E232)","v":162.75622925603304},{"$f":"SUM(F221:F232)","v":161.92097162081498},146.1286359194585,145.28174167627799,144.64211730164487,null,null,null,null,null,null,null,null,{"$f":"ROUND(E233/R$2*100,3)","v":44.469000000000001},{"$f":"ROUND(F233/S$2*100,3)","v":44.362000000000002},{"$f":"ROUND(G233/T$2*100,3)","v":40.034999999999997},{"$f":"ROUND(H233/U$2*100,3)","v":39.802999999999997},{"$f":"ROUND(I233/V$2*100,3)","v":39.520000000000003}]
[]
[{"$f":"A220+1","v":16},{"$f":"IFERROR(VLOOKUP($A235,Inputs!$B$68:$AN$129,MATCH($B$7,Inputs!$B$68:$AN$68,0),FALSE),\"Blank\")","v":"150W Sodium Vapour"},null,null,null,null,null,null,null,null,null,null,null,null,null,null,{"$f":"IFERROR(VLOOKUP($A235,Inputs!$B$68:$AN$129,MATCH($B$7,Inputs!$B$68:$AN$68,0),FALSE),\"Blank\")","v":"150W Sodium Vapour"}]
[null,{"$f":"Inputs!$S$68","v":"Lamp UNIT price Annualised Cost"},{"$f":"Inputs!$Q$68","v":"Lamp Maintenance cycle"},null,{"$f":"IF($B235=\"Blank\",0,VLOOKUP($B235,Inputs!$C$68:$AN$129,MATCH($B236,Inputs!$C$68:$AN$68,0),FALSE))","v":3.6395683290762002},{"$f":"IF($B235=\"Blank\",0,VLOOKUP($B235,Inputs!$C$68:$AN$129,MATCH($B236,Inputs!$C$68:$AN$68,0),FALSE))","v":3.6395683290762002},{"$f":"IF($B235=\"Blank\",0,VLOOKUP($B235,Inputs!$C$68:$AN$129,MATCH($B236,Inputs!$C$68:$AN$68,0),FALSE))","v":3.6395683290762002},{"$f":"IF($B235=\"Blank\",0,VLOOKUP($B235,Inputs!$C$68:$AN$129,MATCH($B236,Inputs!$C$68:$AN$68,0),FALSE))","v":3.6395683290762002},{"$f":"IF($B235=\"Blank\",0,VLOOKUP($B235,Inputs!$C$68:$AN$129,MATCH($B236,Inputs!$C$68:$AN$68,0),FALSE))","v":3.6395683290762002},null,null,null,null,null,null,null,{"$f":"B236","v":"Lamp UNIT price Annualised Cost"},{"$f":"IF(E236=\"NA\",\"\",E236/R$2*100)","v":0.99441757625032789},{"$f":"IF(F236=\"NA\",\"\",F236/S$2*100)","v":0.99714200796608232},{"$f":"IF(G236=\"NA\",\"\",G236/T$2*100)","v":0.99714200796608232},{"$f":"IF(H236=\"NA\",\"\",H236/U$2*100)","v":0.99714200796608232},{"$f":"IF(I236=\"NA\",\"\",I236/V$2*100)","v":0.99441757625032789}]
[null,{"$f":"Inputs!$K$68","v":"PE Cell UNIT price Annualised Cost"},{"$f":"Inputs!$I$68","v":"PE Cell Maintenance Cycle"},null,{"$f":"IF($B235=\"Blank\",0,VLOOKUP($B235,Inputs!$C$68:$AN$129,MATCH($B237,Inputs!$C$68:$AN$68,0),FALSE))","v":1.6930974392480003},{"$f":"IF($B235=\"Blank\",0,VLOOKUP($B235,Inputs!$C$68:$AN$129,MATCH($B237,Inputs!$C$68:$AN$68,0),FALSE))","v":1.6930974392480003},{"$f":"IF($B235=\"Blank\",0,VLOOKUP($B235,Inputs!$C$68:$AN$129,MATCH($B237,Inputs!$C$68:$AN$68,0),FALSE))","v":1.6930974392480003},{"$f":"IF($B235=\"Blank\",0,VLOOKUP($B235,Inputs!$C$68:$AN$129,MATCH($B237,Inputs!$C$68:$AN$68,0),FALSE))","v":1.6930974392480003},{"$f":"IF($B235=\"Blank\",0,VLOOKUP($B235,Inputs!$C$68:$AN$129,MATCH($B237,Inputs!$C$68:$AN$68,0),FALSE))","v":1.6930974392480003},null,null,null,null,null,null,null,"PE Cell UNIT price Annualised Cost",0.46259492875628422,0.46386231212273976,0.46386231212273976,0.46386231212273976,0.46259492875628422]
[null,"Corp capex annuity per light",null,null,{"$f":"IF($B235=\"Blank\",0,'Corp Capex Annuity calcs'!F$142)","v":18.582309905017571},{"$f":"IF($B235=\"Blank\",0,'Corp Capex Annuity calcs'!G$142)","v":18.552026408230436},{"$f":"IF($B235=\"Blank\",0,'Corp Capex Annuity calcs'!H$142)","v":18.401377631486287},{"$f":"IF($B235=\"Blank\",0,'Corp Capex Annuity calcs'!I$142)","v":18.205761940470655},{"$f":"IF($B235=\"Blank\",0,'Corp Capex Annuity calcs'!J$142)","v":17.995165449295623},null,null,null,null,null,null,null,"Corp capex annuity per light",5.0771338538299373,5.0827469611590237,5.0414733236948734,4.9878799836905907,4.9167118713922466]
[null,{"$f":"Inputs!$U$68","v":"Lamp Service costs Annualised"},"Labour Portion of Lamp Service costs annualised",null,{"$f":"IF($B235=\"Blank\",0,VLOOKUP($B235,Inputs!$C$68:$AN$129,MATCH($B239,Inputs!$C$68:$AN$68,0),FALSE))+IFERROR(IF($B235=\"Blank\",0,VLOOKUP($B235,Inputs!$C$68:$AN$129,MATCH($C239,Inputs!$C$68:$AN$68,0),FALSE))*('Master Data'!K$42),0)","v":34.921367162927247},{"$f":"IF($B235=\"Blank\",0,VLOOKUP($B235,Inputs!$C$68:$AN$129,MATCH($B239,Inputs!$C$68:$AN$68,0),FALSE))+IFERROR(IF($B235=\"Blank\",0,VLOOKUP($B235,Inputs!$C$68:$AN$129,MATCH($C239,Inputs!$C$68:$AN$68,0),FALSE))*('Master Data'!L$42),0)","v":34.926481274900404},{"$f":"IF($B235=\"Blank\",0,VLOOKUP($B235,Inputs!$C$68:$AN$129,MATCH($B239,Inputs!$C$68:$AN$68,0),FALSE))+IFERROR(IF($B235=\"Blank\",0,VLOOKUP($B235,Inputs!$C$68:$AN$129,MATCH($C239,Inputs!$C$68:$AN$68,0),FALSE))*('Master Data'!M$42),0)","v":34.934281518599292},{"$f":"IF($B235=\"Blank\",0,VLOOKUP($B235,Inputs!$C$68:$AN$129,MATCH($B239,Inputs!$C$68:$AN$68,0),FALSE))+IFERROR(IF($B235=\"Blank\",0,VLOOKUP($B235,Inputs!$C$68:$AN$129,MATCH($C239,Inputs!$C$68:$AN$68,0),FALSE))*('Master Data'!N$42),0)","v":34.943898216191549},{"$f":"IF($B235=\"Blank\",0,VLOOKUP($B235,Inputs!$C$68:$AN$129,MATCH($B239,Inputs!$C$68:$AN$68,0),FALSE))+IFERROR(IF($B235=\"Blank\",0,VLOOKUP($B235,Inputs!$C$68:$AN$129,MATCH($C239,Inputs!$C$68:$AN$68,0),FALSE))*('Master Data'!O$42),0)","v":34.955128506182135},null,null,null,null,null,null,null,"Lamp Service costs Annualised",9.5413571483407775,9.5688989794247679,9.5710360324929571,9.5736707441620688,9.5505815590661562]
[null,{"$f":"Inputs!$M$68","v":"PE Cell Service costs Annualised"},"Labour Portion of PE Cell Service costs Annualised",null,{"$f":"IF($B235=\"Blank\",0,VLOOKUP($B235,Inputs!$C$68:$AN$129,MATCH($B240,Inputs!$C$68:$AN$68,0),FALSE))+IFERROR(IF($B235=\"Blank\",0,VLOOKUP($B235,Inputs!$C$68:$AN$129,MATCH($C240,Inputs!$C$68:$AN$68,0),FALSE))*('Master Data'!K$42),0)","v":0},{"$f":"IF($B235=\"Blank\",0,VLOOKUP($B235,Inputs!$C$68:$AN$129,MATCH($B240,Inputs!$C$68:$AN$68,0),FALSE))+IFERROR(IF($B235=\"Blank\",0,VLOOKUP($B235,Inputs!$C$68:$AN$129,MATCH($C240,Inputs!$C$68:$AN$68,0),FALSE))*('Master Data'!L$42),0)","v":0},{"$f":"IF($B235=\"Blank\",0,VLOOKUP($B235,Inputs!$C$68:$AN$129,MATCH($B240,Inputs!$C$68:$AN$68,0),FALSE))+IFERROR(IF($B235=\"Blank\",0,VLOOKUP($B235,Inputs!$C$68:$AN$129,MATCH($C240,Inputs!$C$68:$AN$68,0),FALSE))*('Master Data'!M$42),0)","v":0},{"$f":"IF($B235=\"Blank\",0,VLOOKUP($B235,Inputs!$C$68:$AN$129,MATCH($B240,Inputs!$C$68:$AN$68,0),FALSE))+IFERROR(IF($B235=\"Blank\",0,VLOOKUP($B235,Inputs!$C$68:$AN$129,MATCH($C240,Inputs!$C$68:$AN$68,0),FALSE))*('Master Data'!N$42),0)","v":0},{"$f":"IF($B235=\"Blank\",0,VLOOKUP($B235,Inputs!$C$68:$AN$129,MATCH($B240,Inputs!$C$68:$AN$68,0),FALSE))+IFERROR(IF($B235=\"Blank\",0,VLOOKUP($B235,Inputs!$C$68:$AN$129,MATCH($C240,Inputs!$C$68:$AN$68,0),FALSE))*('Master Data'!O$42),0)","v":0},null,null,null,null,null,null,null,"PE Cell Service costs Annualised",0,0,0,0,0]
[null,"Indirect Opex",null,null,{"$f":"IF($B235=\"Blank\",0,IF($B$8=\"Private Contract Lighting\",'Opex Weighting'!D$48,'Opex Weighting'!D$46))","v":25.762407087322877},{"$f":"IF($B235=\"Blank\",0,IF($B$8=\"Private Contract Lighting\",'Opex Weighting'!E$48,'Opex Weighting'!E$46))","v":25.880403763800857},{"$f":"IF($B235=\"Blank\",0,IF($B$8=\"Private Contract Lighting\",'Opex Weighting'!F$48,'Opex Weighting'!F$46))","v":20.013740175030701},{"$f":"IF($B235=\"Blank\",0,IF($B$8=\"Private Contract Lighting\",'Opex Weighting'!G$48,'Opex Weighting'!G$46))","v":19.55949970528431},{"$f":"IF($B235=\"Blank\",0,IF($B$8=\"Private Contract Lighting\",'Opex Weighting'!H$48,'Opex Weighting'!H$46))","v":19.096814305933613},null,null,null,null,null,null,null,"Indirect Opex",7.0389090402521521,7.0905215791235223,5.4832164863097814,5.3587670425436471,5.2177088267578178]
[null,"Indirect Capex",null,null,{"$f":"'Capex Weighting'!D$59","v":0},{"$f":"'Capex Weighting'!E$59","v":0},{"$f":"'Capex Weighting'!F$59","v":0},{"$f":"'Capex Weighting'!G$59","v":0},{"$f":"'Capex Weighting'!H$59","v":0},null,null,null,null,null,null,null,"Indirect Capex",0,0,0,0,0]
[null,"Opex Overheads Costs per light",null,null,{"$f":"IF($B235=\"Blank\",0,IF($B$8=\"Private Contract Lighting\",'Building Block'!C$40,'Building Block'!C$39))","v":32.224036557323004},{"$f":"IF($B235=\"Blank\",0,IF($B$8=\"Private Contract Lighting\",'Building Block'!D$40,'Building Block'!D$39))","v":31.278075996100256},{"$f":"IF($B235=\"Blank\",0,IF($B$8=\"Private Contract Lighting\",'Building Block'!E$40,'Building Block'!E$39))","v":21.467987799581408},{"$f":"IF($B235=\"Blank\",0,IF($B$8=\"Private Contract Lighting\",'Building Block'!F$40,'Building Block'!F$39))","v":21.22771925228782},{"$f":"IF($B235=\"Blank\",0,IF($B$8=\"Private Contract Lighting\",'Building Block'!G$40,'Building Block'!G$39))","v":21.210892633443169},null,null,null,null,null,null,null,"Opex Overheads Costs per light",8.8043815730390715,8.5693358893425362,5.8816404930360022,5.815813493777485,5.7953258561320133]
[null,{"$f":"Inputs!$AK$68","v":"Bracket UNIT price"},0,null,{"$f":"IF($B235=\"Blank\",0,OFFSET('CAPEX Annuity calcs'!$B$9,MATCH($B235,'CAPEX Annuity calcs'!$B$9:$B$500,0)+$C244,E$6))","v":9.6313933001632801},{"$f":"IF($B235=\"Blank\",0,OFFSET('CAPEX Annuity calcs'!$B$9,MATCH($B235,'CAPEX Annuity calcs'!$B$9:$B$500,0)+$C244,F$6))","v":9.6313933001632801},{"$f":"IF($B235=\"Blank\",0,OFFSET('CAPEX Annuity calcs'!$B$9,MATCH($B235,'CAPEX Annuity calcs'!$B$9:$B$500,0)+$C244,G$6))","v":9.6313933001632801},{"$f":"IF($B235=\"Blank\",0,OFFSET('CAPEX Annuity calcs'!$B$9,MATCH($B235,'CAPEX Annuity calcs'!$B$9:$B$500,0)+$C244,H$6))","v":9.6313933001632801},{"$f":"IF($B235=\"Blank\",0,OFFSET('CAPEX Annuity calcs'!$B$9,MATCH($B235,'CAPEX Annuity calcs'!$B$9:$B$500,0)+$C244,I$6))","v":9.6313933001632801},null,null,null,null,null,null,null,"Bracket UNIT price",2.6315282240883278,2.6387378904556931,2.6387378904556931,2.6387378904556931,2.6315282240883278]
[null,{"$f":"Inputs!$AA$68","v":"CAPEX Instalation costs"},{"$f":"C244+1","v":1},null,{"$f":"IF($B235=\"Blank\",0,OFFSET('CAPEX Annuity calcs'!$B$9,MATCH($B235,'CAPEX Annuity calcs'!$B$9:$B$500,0)+$C245,E$6))","v":0},{"$f":"IF($B235=\"Blank\",0,OFFSET('CAPEX Annuity calcs'!$B$9,MATCH($B235,'CAPEX Annuity calcs'!$B$9:$B$500,0)+$C245,F$6))","v":0},{"$f":"IF($B235=\"Blank\",0,OFFSET('CAPEX Annuity calcs'!$B$9,MATCH($B235,'CAPEX Annuity calcs'!$B$9:$B$500,0)+$C245,G$6))","v":0},{"$f":"IF($B235=\"Blank\",0,OFFSET('CAPEX Annuity calcs'!$B$9,MATCH($B235,'CAPEX Annuity calcs'!$B$9:$B$500,0)+$C245,H$6))","v":0},{"$f":"IF($B235=\"Blank\",0,OFFSET('CAPEX Annuity calcs'!$B$9,MATCH($B235,'CAPEX Annuity calcs'!$B$9:$B$500,0)+$C245,I$6))","v":0},null,null,null,null,null,null,null,"CAPEX Instalation costs",0,0,0,0,0]
[null,{"$f":"Inputs!$Z$68","v":"Luminaire UNIT price"},{"$f":"C245+1","v":2},null,{"$f":"IF($B235=\"Blank\",0,OFFSET('CAPEX Annuity calcs'!$B$9,MATCH($B235,'CAPEX Annuity calcs'!$B$9:$B$500,0)+$C246,E$6))","v":15.164285716484658},{"$f":"IF($B235=\"Blank\",0,OFFSET('CAPEX Annuity calcs'!$B$9,MATCH($B235,'CAPEX Annuity calcs'!$B$9:$B$500,0)+$C246,F$6))","v":15.164285716484658},{"$f":"IF($B235=\"Blank\",0,OFFSET('CAPEX Annuity calcs'!$B$9,MATCH($B235,'CAPEX Annuity calcs'!$B$9:$B$500,0)+$C246,G$6))","v":15.164285716484658},{"$f":"IF($B235=\"Blank\",0,OFFSET('CAPEX Annuity calcs'!$B$9,MATCH($B235,'CAPEX Annuity calcs'!$B$9:$B$500,0)+$C246,H$6))","v":15.164285716484658},{"$f":"IF($B235=\"Blank\",0,OFFSET('CAPEX Annuity calcs'!$B$9,MATCH($B235,'CAPEX Annuity calcs'!$B$9:$B$500,0)+$C246,I$6))","v":15.164285716484658},null,null,null,null,null,null,null,"Luminaire UNIT price",4.1432474635203986,4.1545988264341531,4.1545988264341531,4.1545988264341531,4.1432474635203986]
[null,{"$f":"Inputs!$AA$68","v":"CAPEX Instalation costs"},3,null,{"$f":"IF($B235=\"Blank\",0,OFFSET('CAPEX Annuity calcs'!$B$9,MATCH($B235,'CAPEX Annuity calcs'!$B$9:$B$500,0)+$C247,E$6))","v":29.489604830309908},{"$f":"IF($B235=\"Blank\",0,OFFSET('CAPEX Annuity calcs'!$B$9,MATCH($B235,'CAPEX Annuity calcs'!$B$9:$B$500,0)+$C247,F$6))","v":29.507480464650605},{"$f":"IF($B235=\"Blank\",0,OFFSET('CAPEX Annuity calcs'!$B$9,MATCH($B235,'CAPEX Annuity calcs'!$B$9:$B$500,0)+$C247,G$6))","v":29.534745081628376},{"$f":"IF($B235=\"Blank\",0,OFFSET('CAPEX Annuity calcs'!$B$9,MATCH($B235,'CAPEX Annuity calcs'!$B$9:$B$500,0)+$C247,H$6))","v":29.568358848911217},{"$f":"IF($B235=\"Blank\",0,OFFSET('CAPEX Annuity calcs'!$B$9,MATCH($B235,'CAPEX Annuity calcs'!$B$9:$B$500,0)+$C247,I$6))","v":29.607612693657906},null,null,null,null,null,null,null,"CAPEX Instalation costs",8.0572690793196475,8.0842412231919472,8.0917109812680472,8.1009202325784155,8.0895116649338537]
[null,null,null,null,{"$f":"SUM(E236:E247)","v":171.10807032787275},{"$f":"SUM(F236:F247)","v":170.2728126926547},154.48047699129822,153.6335827481177,152.99395837348459,null,null,null,null,null,null,null,null,{"$f":"ROUND(E248/R$2*100,3)","v":46.750999999999998},{"$f":"ROUND(F248/S$2*100,3)","v":46.65},{"$f":"ROUND(G248/T$2*100,3)","v":42.323},{"$f":"ROUND(H248/U$2*100,3)","v":42.091000000000001},{"$f":"ROUND(I248/V$2*100,3)","v":41.802}]
[]
[{"$f":"A235+1","v":17},{"$f":"IFERROR(VLOOKUP($A250,Inputs!$B$68:$AN$129,MATCH($B$7,Inputs!$B$68:$AN$68,0),FALSE),\"Blank\")","v":"250W Sodium Vapour"},null,null,null,null,null,null,null,null,null,null,null,null,null,null,{"$f":"IFERROR(VLOOKUP($A250,Inputs!$B$68:$AN$129,MATCH($B$7,Inputs!$B$68:$AN$68,0),FALSE),\"Blank\")","v":"250W Sodium Vapour"}]
[null,{"$f":"Inputs!$S$68","v":"Lamp UNIT price Annualised Cost"},{"$f":"Inputs!$Q$68","v":"Lamp Maintenance cycle"},null,{"$f":"IF($B250=\"Blank\",0,VLOOKUP($B250,Inputs!$C$68:$AN$129,MATCH($B251,Inputs!$C$68:$AN$68,0),FALSE))","v":4.0928443282184501},{"$f":"IF($B250=\"Blank\",0,VLOOKUP($B250,Inputs!$C$68:$AN$129,MATCH($B251,Inputs!$C$68:$AN$68,0),FALSE))","v":4.0928443282184501},{"$f":"IF($B250=\"Blank\",0,VLOOKUP($B250,Inputs!$C$68:$AN$129,MATCH($B251,Inputs!$C$68:$AN$68,0),FALSE))","v":4.0928443282184501},{"$f":"IF($B250=\"Blank\",0,VLOOKUP($B250,Inputs!$C$68:$AN$129,MATCH($B251,Inputs!$C$68:$AN$68,0),FALSE))","v":4.0928443282184501},{"$f":"IF($B250=\"Blank\",0,VLOOKUP($B250,Inputs!$C$68:$AN$129,MATCH($B251,Inputs!$C$68:$AN$68,0),FALSE))","v":4.0928443282184501},null,null,null,null,null,null,null,{"$f":"B251","v":"Lamp UNIT price Annualised Cost"},{"$f":"IF(E251=\"NA\",\"\",E251/R$2*100)","v":1.1182634776553142},{"$f":"IF(F251=\"NA\",\"\",F251/S$2*100)","v":1.1213272132105343},{"$f":"IF(G251=\"NA\",\"\",G251/T$2*100)","v":1.1213272132105343},{"$f":"IF(H251=\"NA\",\"\",H251/U$2*100)","v":1.1213272132105343},{"$f":"IF(I251=\"NA\",\"\",I251/V$2*100)","v":1.1182634776553142}]
[null,{"$f":"Inputs!$K$68","v":"PE Cell UNIT price Annualised Cost"},{"$f":"Inputs!$I$68","v":"PE Cell Maintenance Cycle"},null,{"$f":"IF($B250=\"Blank\",0,VLOOKUP($B250,Inputs!$C$68:$AN$129,MATCH($B252,Inputs!$C$68:$AN$68,0),FALSE))","v":1.6930974392480003},{"$f":"IF($B250=\"Blank\",0,VLOOKUP($B250,Inputs!$C$68:$AN$129,MATCH($B252,Inputs!$C$68:$AN$68,0),FALSE))","v":1.6930974392480003},{"$f":"IF($B250=\"Blank\",0,VLOOKUP($B250,Inputs!$C$68:$AN$129,MATCH($B252,Inputs!$C$68:$AN$68,0),FALSE))","v":1.6930974392480003},{"$f":"IF($B250=\"Blank\",0,VLOOKUP($B250,Inputs!$C$68:$AN$129,MATCH($B252,Inputs!$C$68:$AN$68,0),FALSE))","v":1.6930974392480003},{"$f":"IF($B250=\"Blank\",0,VLOOKUP($B250,Inputs!$C$68:$AN$129,MATCH($B252,Inputs!$C$68:$AN$68,0),FALSE))","v":1.6930974392480003},null,null,null,null,null,null,null,"PE Cell UNIT price Annualised Cost",0.46259492875628422,0.46386231212273976,0.46386231212273976,0.46386231212273976,0.46259492875628422]
[null,"Corp capex annuity per light",null,null,{"$f":"IF($B250=\"Blank\",0,'Corp Capex Annuity calcs'!F$142)","v":18.582309905017571},{"$f":"IF($B250=\"Blank\",0,'Corp Capex Annuity calcs'!G$142)","v":18.552026408230436},{"$f":"IF($B250=\"Blank\",0,'Corp Capex Annuity calcs'!H$142)","v":18.401377631486287},{"$f":"IF($B250=\"Blank\",0,'Corp Capex Annuity calcs'!I$142)","v":18.205761940470655},{"$f":"IF($B250=\"Blank\",0,'Corp Capex Annuity calcs'!J$142)","v":17.995165449295623},null,null,null,null,null,null,null,"Corp capex annuity per light",5.0771338538299373,5.0827469611590237,5.0414733236948734,4.9878799836905907,4.9167118713922466]
[null,{"$f":"Inputs!$U$68","v":"Lamp Service costs Annualised"},"Labour Portion of Lamp Service costs annualised",null,{"$f":"IF($B250=\"Blank\",0,VLOOKUP($B250,Inputs!$C$68:$AN$129,MATCH($B254,Inputs!$C$68:$AN$68,0),FALSE))+IFERROR(IF($B250=\"Blank\",0,VLOOKUP($B250,Inputs!$C$68:$AN$129,MATCH($C254,Inputs!$C$68:$AN$68,0),FALSE))*('Master Data'!K$42),0)","v":34.921367162927247},{"$f":"IF($B250=\"Blank\",0,VLOOKUP($B250,Inputs!$C$68:$AN$129,MATCH($B254,Inputs!$C$68:$AN$68,0),FALSE))+IFERROR(IF($B250=\"Blank\",0,VLOOKUP($B250,Inputs!$C$68:$AN$129,MATCH($C254,Inputs!$C$68:$AN$68,0),FALSE))*('Master Data'!L$42),0)","v":34.926481274900404},{"$f":"IF($B250=\"Blank\",0,VLOOKUP($B250,Inputs!$C$68:$AN$129,MATCH($B254,Inputs!$C$68:$AN$68,0),FALSE))+IFERROR(IF($B250=\"Blank\",0,VLOOKUP($B250,Inputs!$C$68:$AN$129,MATCH($C254,Inputs!$C$68:$AN$68,0),FALSE))*('Master Data'!M$42),0)","v":34.934281518599292},{"$f":"IF($B250=\"Blank\",0,VLOOKUP($B250,Inputs!$C$68:$AN$129,MATCH($B254,Inputs!$C$68:$AN$68,0),FALSE))+IFERROR(IF($B250=\"Blank\",0,VLOOKUP($B250,Inputs!$C$68:$AN$129,MATCH($C254,Inputs!$C$68:$AN$68,0),FALSE))*('Master Data'!N$42),0)","v":34.943898216191549},{"$f":"IF($B250=\"Blank\",0,VLOOKUP($B250,Inputs!$C$68:$AN$129,MATCH($B254,Inputs!$C$68:$AN$68,0),FALSE))+IFERROR(IF($B250=\"Blank\",0,VLOOKUP($B250,Inputs!$C$68:$AN$129,MATCH($C254,Inputs!$C$68:$AN$68,0),FALSE))*('Master Data'!O$42),0)","v":34.955128506182135},null,null,null,null,null,null,null,"Lamp Service costs Annualised",9.5413571483407775,9.5688989794247679,9.5710360324929571,9.5736707441620688,9.5505815590661562]
[null,{"$f":"Inputs!$M$68","v":"PE Cell Service costs Annualised"},"Labour Portion of PE Cell Service costs Annualised",null,{"$f":"IF($B250=\"Blank\",0,VLOOKUP($B250,Inputs!$C$68:$AN$129,MATCH($B255,Inputs!$C$68:$AN$68,0),FALSE))+IFERROR(IF($B250=\"Blank\",0,VLOOKUP($B250,Inputs!$C$68:$AN$129,MATCH($C255,Inputs!$C$68:$AN$68,0),FALSE))*('Master Data'!K$42),0)","v":0},{"$f":"IF($B250=\"Blank\",0,VLOOKUP($B250,Inputs!$C$68:$AN$129,MATCH($B255,Inputs!$C$68:$AN$68,0),FALSE))+IFERROR(IF($B250=\"Blank\",0,VLOOKUP($B250,Inputs!$C$68:$AN$129,MATCH($C255,Inputs!$C$68:$AN$68,0),FALSE))*('Master Data'!L$42),0)","v":0},{"$f":"IF($B250=\"Blank\",0,VLOOKUP($B250,Inputs!$C$68:$AN$129,MATCH($B255,Inputs!$C$68:$AN$68,0),FALSE))+IFERROR(IF($B250=\"Blank\",0,VLOOKUP($B250,Inputs!$C$68:$AN$129,MATCH($C255,Inputs!$C$68:$AN$68,0),FALSE))*('Master Data'!M$42),0)","v":0},{"$f":"IF($B250=\"Blank\",0,VLOOKUP($B250,Inputs!$C$68:$AN$129,MATCH($B255,Inputs!$C$68:$AN$68,0),FALSE))+IFERROR(IF($B250=\"Blank\",0,VLOOKUP($B250,Inputs!$C$68:$AN$129,MATCH($C255,Inputs!$C$68:$AN$68,0),FALSE))*('Master Data'!N$42),0)","v":0},{"$f":"IF($B250=\"Blank\",0,VLOOKUP($B250,Inputs!$C$68:$AN$129,MATCH($B255,Inputs!$C$68:$AN$68,0),FALSE))+IFERROR(IF($B250=\"Blank\",0,VLOOKUP($B250,Inputs!$C$68:$AN$129,MATCH($C255,Inputs!$C$68:$AN$68,0),FALSE))*('Master Data'!O$42),0)","v":0},null,null,null,null,null,null,null,"PE Cell Service costs Annualised",0,0,0,0,0]
[null,"Indirect Opex",null,null,{"$f":"IF($B250=\"Blank\",0,IF($B$8=\"Private Contract Lighting\",'Opex Weighting'!D$48,'Opex Weighting'!D$46))","v":25.762407087322877},{"$f":"IF($B250=\"Blank\",0,IF($B$8=\"Private Contract Lighting\",'Opex Weighting'!E$48,'Opex Weighting'!E$46))","v":25.880403763800857},{"$f":"IF($B250=\"Blank\",0,IF($B$8=\"Private Contract Lighting\",'Opex Weighting'!F$48,'Opex Weighting'!F$46))","v":20.013740175030701},{"$f":"IF($B250=\"Blank\",0,IF($B$8=\"Private Contract Lighting\",'Opex Weighting'!G$48,'Opex Weighting'!G$46))","v":19.55949970528431},{"$f":"IF($B250=\"Blank\",0,IF($B$8=\"Private Contract Lighting\",'Opex Weighting'!H$48,'Opex Weighting'!H$46))","v":19.096814305933613},null,null,null,null,null,null,null,"Indirect Opex",7.0389090402521521,7.0905215791235223,5.4832164863097814,5.3587670425436471,5.2177088267578178]
[null,"Indirect Capex",null,null,{"$f":"'Capex Weighting'!D$59","v":0},{"$f":"'Capex Weighting'!E$59","v":0},{"$f":"'Capex Weighting'!F$59","v":0},{"$f":"'Capex Weighting'!G$59","v":0},{"$f":"'Capex Weighting'!H$59","v":0},null,null,null,null,null,null,null,"Indirect Capex",0,0,0,0,0]
[null,"Opex Overheads Costs per light",null,null,{"$f":"IF($B250=\"Blank\",0,IF($B$8=\"Private Contract Lighting\",'Building Block'!C$40,'Building Block'!C$39))","v":32.224036557323004},{"$f":"IF($B250=\"Blank\",0,IF($B$8=\"Private Contract Lighting\",'Building Block'!D$40,'Building Block'!D$39))","v":31.278075996100256},{"$f":"IF($B250=\"Blank\",0,IF($B$8=\"Private Contract Lighting\",'Building Block'!E$40,'Building Block'!E$39))","v":21.467987799581408},{"$f":"IF($B250=\"Blank\",0,IF($B$8=\"Private Contract Lighting\",'Building Block'!F$40,'Building Block'!F$39))","v":21.22771925228782},{"$f":"IF($B250=\"Blank\",0,IF($B$8=\"Private Contract Lighting\",'Building Block'!G$40,'Building Block'!G$39))","v":21.210892633443169},null,null,null,null,null,null,null,"Opex Overheads Costs per light",8.8043815730390715,8.5693358893425362,5.8816404930360022,5.815813493777485,5.7953258561320133]
[null,{"$f":"Inputs!$AK$68","v":"Bracket UNIT price"},0,null,{"$f":"IF($B250=\"Blank\",0,OFFSET('CAPEX Annuity calcs'!$B$9,MATCH($B250,'CAPEX Annuity calcs'!$B$9:$B$500,0)+$C259,E$6))","v":12.359265722063284},{"$f":"IF($B250=\"Blank\",0,OFFSET('CAPEX Annuity calcs'!$B$9,MATCH($B250,'CAPEX Annuity calcs'!$B$9:$B$500,0)+$C259,F$6))","v":12.359265722063284},{"$f":"IF($B250=\"Blank\",0,OFFSET('CAPEX Annuity calcs'!$B$9,MATCH($B250,'CAPEX Annuity calcs'!$B$9:$B$500,0)+$C259,G$6))","v":12.359265722063284},{"$f":"IF($B250=\"Blank\",0,OFFSET('CAPEX Annuity calcs'!$B$9,MATCH($B250,'CAPEX Annuity calcs'!$B$9:$B$500,0)+$C259,H$6))","v":12.359265722063284},{"$f":"IF($B250=\"Blank\",0,OFFSET('CAPEX Annuity calcs'!$B$9,MATCH($B250,'CAPEX Annuity calcs'!$B$9:$B$500,0)+$C259,I$6))","v":12.359265722063284},null,null,null,null,null,null,null,"Bracket UNIT price",3.3768485579407885,3.3861001978255576,3.3861001978255576,3.3861001978255576,3.3768485579407885]
[null,{"$f":"Inputs!$AA$68","v":"CAPEX Instalation costs"},{"$f":"C259+1","v":1},null,{"$f":"IF($B250=\"Blank\",0,OFFSET('CAPEX Annuity calcs'!$B$9,MATCH($B250,'CAPEX Annuity calcs'!$B$9:$B$500,0)+$C260,E$6))","v":0},{"$f":"IF($B250=\"Blank\",0,OFFSET('CAPEX Annuity calcs'!$B$9,MATCH($B250,'CAPEX Annuity calcs'!$B$9:$B$500,0)+$C260,F$6))","v":0},{"$f":"IF($B250=\"Blank\",0,OFFSET('CAPEX Annuity calcs'!$B$9,MATCH($B250,'CAPEX Annuity calcs'!$B$9:$B$500,0)+$C260,G$6))","v":0},{"$f":"IF($B250=\"Blank\",0,OFFSET('CAPEX Annuity calcs'!$B$9,MATCH($B250,'CAPEX Annuity calcs'!$B$9:$B$500,0)+$C260,H$6))","v":0},{"$f":"IF($B250=\"Blank\",0,OFFSET('CAPEX Annuity calcs'!$B$9,MATCH($B250,'CAPEX Annuity calcs'!$B$9:$B$500,0)+$C260,I$6))","v":0},null,null,null,null,null,null,null,"CAPEX Instalation costs",0,0,0,0,0]
[null,{"$f":"Inputs!$Z$68","v":"Luminaire UNIT price"},{"$f":"C260+1","v":2},null,{"$f":"IF($B250=\"Blank\",0,OFFSET('CAPEX Annuity calcs'!$B$9,MATCH($B250,'CAPEX Annuity calcs'!$B$9:$B$500,0)+$C261,E$6))","v":16.221945397916532},{"$f":"IF($B250=\"Blank\",0,OFFSET('CAPEX Annuity calcs'!$B$9,MATCH($B250,'CAPEX Annuity calcs'!$B$9:$B$500,0)+$C261,F$6))","v":16.221945397916532},{"$f":"IF($B250=\"Blank\",0,OFFSET('CAPEX Annuity calcs'!$B$9,MATCH($B250,'CAPEX Annuity calcs'!$B$9:$B$500,0)+$C261,G$6))","v":16.221945397916532},{"$f":"IF($B250=\"Blank\",0,OFFSET('CAPEX Annuity calcs'!$B$9,MATCH($B250,'CAPEX Annuity calcs'!$B$9:$B$500,0)+$C261,H$6))","v":16.221945397916532},{"$f":"IF($B250=\"Blank\",0,OFFSET('CAPEX Annuity calcs'!$B$9,MATCH($B250,'CAPEX Annuity calcs'!$B$9:$B$500,0)+$C261,I$6))","v":16.221945397916532},null,null,null,null,null,null,null,"Luminaire UNIT price",4.4322255185564288,4.4443686021689128,4.4443686021689128,4.4443686021689128,4.4322255185564288]
[null,{"$f":"Inputs!$AA$68","v":"CAPEX Instalation costs"},3,null,{"$f":"IF($B250=\"Blank\",0,OFFSET('CAPEX Annuity calcs'!$B$9,MATCH($B250,'CAPEX Annuity calcs'!$B$9:$B$500,0)+$C262,E$6))","v":29.489604830309908},{"$f":"IF($B250=\"Blank\",0,OFFSET('CAPEX Annuity calcs'!$B$9,MATCH($B250,'CAPEX Annuity calcs'!$B$9:$B$500,0)+$C262,F$6))","v":29.507480464650605},{"$f":"IF($B250=\"Blank\",0,OFFSET('CAPEX Annuity calcs'!$B$9,MATCH($B250,'CAPEX Annuity calcs'!$B$9:$B$500,0)+$C262,G$6))","v":29.534745081628376},{"$f":"IF($B250=\"Blank\",0,OFFSET('CAPEX Annuity calcs'!$B$9,MATCH($B250,'CAPEX Annuity calcs'!$B$9:$B$500,0)+$C262,H$6))","v":29.568358848911217},{"$f":"IF($B250=\"Blank\",0,OFFSET('CAPEX Annuity calcs'!$B$9,MATCH($B250,'CAPEX Annuity calcs'!$B$9:$B$500,0)+$C262,I$6))","v":29.607612693657906},null,null,null,null,null,null,null,"CAPEX Instalation costs",8.0572690793196475,8.0842412231919472,8.0917109812680472,8.1009202325784155,8.0895116649338537]
[null,null,null,null,{"$f":"SUM(E251:E262)","v":175.34687843034686},{"$f":"SUM(F251:F262)","v":174.51162079512883},158.71928509377236,157.87239085059184,157.2327664759587,null,null,null,null,null,null,null,null,{"$f":"ROUND(E263/R$2*100,3)","v":47.908999999999999},{"$f":"ROUND(F263/S$2*100,3)","v":47.811},{"$f":"ROUND(G263/T$2*100,3)","v":43.484999999999999},{"$f":"ROUND(H263/U$2*100,3)","v":43.253},{"$f":"ROUND(I263/V$2*100,3)","v":42.96}]
[]
[{"$f":"A250+1","v":18},{"$f":"IFERROR(VLOOKUP($A265,Inputs!$B$68:$AN$129,MATCH($B$7,Inputs!$B$68:$AN$68,0),FALSE),\"Blank\")","v":"250W Sodium Vapour - Flood Light"},null,null,null,null,null,null,null,null,null,null,null,null,null,null,{"$f":"IFERROR(VLOOKUP($A265,Inputs!$B$68:$AN$129,MATCH($B$7,Inputs!$B$68:$AN$68,0),FALSE),\"Blank\")","v":"250W Sodium Vapour - Flood Light"}]
[null,{"$f":"Inputs!$S$68","v":"Lamp UNIT price Annualised Cost"},{"$f":"Inputs!$Q$68","v":"Lamp Maintenance cycle"},null,{"$f":"IF($B265=\"Blank\",0,VLOOKUP($B265,Inputs!$C$68:$AN$129,MATCH($B266,Inputs!$C$68:$AN$68,0),FALSE))","v":4.0928443282184501},{"$f":"IF($B265=\"Blank\",0,VLOOKUP($B265,Inputs!$C$68:$AN$129,MATCH($B266,Inputs!$C$68:$AN$68,0),FALSE))","v":4.0928443282184501},{"$f":"IF($B265=\"Blank\",0,VLOOKUP($B265,Inputs!$C$68:$AN$129,MATCH($B266,Inputs!$C$68:$AN$68,0),FALSE))","v":4.0928443282184501},{"$f":"IF($B265=\"Blank\",0,VLOOKUP($B265,Inputs!$C$68:$AN$129,MATCH($B266,Inputs!$C$68:$AN$68,0),FALSE))","v":4.0928443282184501},{"$f":"IF($B265=\"Blank\",0,VLOOKUP($B265,Inputs!$C$68:$AN$129,MATCH($B266,Inputs!$C$68:$AN$68,0),FALSE))","v":4.0928443282184501},null,null,null,null,null,null,null,{"$f":"B266","v":"Lamp UNIT price Annualised Cost"},{"$f":"IF(E266=\"NA\",\"\",E266/R$2*100)","v":1.1182634776553142},{"$f":"IF(F266=\"NA\",\"\",F266/S$2*100)","v":1.1213272132105343},{"$f":"IF(G266=\"NA\",\"\",G266/T$2*100)","v":1.1213272132105343},{"$f":"IF(H266=\"NA\",\"\",H266/U$2*100)","v":1.1213272132105343},{"$f":"IF(I266=\"NA\",\"\",I266/V$2*100)","v":1.1182634776553142}]
[null,{"$f":"Inputs!$K$68","v":"PE Cell UNIT price Annualised Cost"},{"$f":"Inputs!$I$68","v":"PE Cell Maintenance Cycle"},null,{"$f":"IF($B265=\"Blank\",0,VLOOKUP($B265,Inputs!$C$68:$AN$129,MATCH($B267,Inputs!$C$68:$AN$68,0),FALSE))","v":1.6930974392480003},{"$f":"IF($B265=\"Blank\",0,VLOOKUP($B265,Inputs!$C$68:$AN$129,MATCH($B267,Inputs!$C$68:$AN$68,0),FALSE))","v":1.6930974392480003},{"$f":"IF($B265=\"Blank\",0,VLOOKUP($B265,Inputs!$C$68:$AN$129,MATCH($B267,Inputs!$C$68:$AN$68,0),FALSE))","v":1.6930974392480003},{"$f":"IF($B265=\"Blank\",0,VLOOKUP($B265,Inputs!$C$68:$AN$129,MATCH($B267,Inputs!$C$68:$AN$68,0),FALSE))","v":1.6930974392480003},{"$f":"IF($B265=\"Blank\",0,VLOOKUP($B265,Inputs!$C$68:$AN$129,MATCH($B267,Inputs!$C$68:$AN$68,0),FALSE))","v":1.6930974392480003},null,null,null,null,null,null,null,"PE Cell UNIT price Annualised Cost",0.46259492875628422,0.46386231212273976,0.46386231212273976,0.46386231212273976,0.46259492875628422]
[null,"Corp capex annuity per light",null,null,{"$f":"IF($B265=\"Blank\",0,'Corp Capex Annuity calcs'!F$142)","v":18.582309905017571},{"$f":"IF($B265=\"Blank\",0,'Corp Capex Annuity calcs'!G$142)","v":18.552026408230436},{"$f":"IF($B265=\"Blank\",0,'Corp Capex Annuity calcs'!H$142)","v":18.401377631486287},{"$f":"IF($B265=\"Blank\",0,'Corp Capex Annuity calcs'!I$142)","v":18.205761940470655},{"$f":"IF($B265=\"Blank\",0,'Corp Capex Annuity calcs'!J$142)","v":17.995165449295623},null,null,null,null,null,null,null,"Corp capex annuity per light",5.0771338538299373,5.0827469611590237,5.0414733236948734,4.9878799836905907,4.9167118713922466]
[null,{"$f":"Inputs!$U$68","v":"Lamp Service costs Annualised"},"Labour Portion of Lamp Service costs annualised",null,{"$f":"IF($B265=\"Blank\",0,VLOOKUP($B265,Inputs!$C$68:$AN$129,MATCH($B269,Inputs!$C$68:$AN$68,0),FALSE))+IFERROR(IF($B265=\"Blank\",0,VLOOKUP($B265,Inputs!$C$68:$AN$129,MATCH($C269,Inputs!$C$68:$AN$68,0),FALSE))*('Master Data'!K$42),0)","v":34.921367162927247},{"$f":"IF($B265=\"Blank\",0,VLOOKUP($B265,Inputs!$C$68:$AN$129,MATCH($B269,Inputs!$C$68:$AN$68,0),FALSE))+IFERROR(IF($B265=\"Blank\",0,VLOOKUP($B265,Inputs!$C$68:$AN$129,MATCH($C269,Inputs!$C$68:$AN$68,0),FALSE))*('Master Data'!L$42),0)","v":34.926481274900404},{"$f":"IF($B265=\"Blank\",0,VLOOKUP($B265,Inputs!$C$68:$AN$129,MATCH($B269,Inputs!$C$68:$AN$68,0),FALSE))+IFERROR(IF($B265=\"Blank\",0,VLOOKUP($B265,Inputs!$C$68:$AN$129,MATCH($C269,Inputs!$C$68:$AN$68,0),FALSE))*('Master Data'!M$42),0)","v":34.934281518599292},{"$f":"IF($B265=\"Blank\",0,VLOOKUP($B265,Inputs!$C$68:$AN$129,MATCH($B269,Inputs!$C$68:$AN$68,0),FALSE))+IFERROR(IF($B265=\"Blank\",0,VLOOKUP($B265,Inputs!$C$68:$AN$129,MATCH($C269,Inputs!$C$68:$AN$68,0),FALSE))*('Master Data'!N$42),0)","v":34.943898216191549},{"$f":"IF($B265=\"Blank\",0,VLOOKUP($B265,Inputs!$C$68:$AN$129,MATCH($B269,Inputs!$C$68:$AN$68,0),FALSE))+IFERROR(IF($B265=\"Blank\",0,VLOOKUP($B265,Inputs!$C$68:$AN$129,MATCH($C269,Inputs!$C$68:$AN$68,0),FALSE))*('Master Data'!O$42),0)","v":34.955128506182135},null,null,null,null,null,null,null,"Lamp Service costs Annualised",9.5413571483407775,9.5688989794247679,9.5710360324929571,9.5736707441620688,9.5505815590661562]
[null,{"$f":"Inputs!$M$68","v":"PE Cell Service costs Annualised"},"Labour Portion of PE Cell Service costs Annualised",null,{"$f":"IF($B265=\"Blank\",0,VLOOKUP($B265,Inputs!$C$68:$AN$129,MATCH($B270,Inputs!$C$68:$AN$68,0),FALSE))+IFERROR(IF($B265=\"Blank\",0,VLOOKUP($B265,Inputs!$C$68:$AN$129,MATCH($C270,Inputs!$C$68:$AN$68,0),FALSE))*('Master Data'!K$42),0)","v":0},{"$f":"IF($B265=\"Blank\",0,VLOOKUP($B265,Inputs!$C$68:$AN$129,MATCH($B270,Inputs!$C$68:$AN$68,0),FALSE))+IFERROR(IF($B265=\"Blank\",0,VLOOKUP($B265,Inputs!$C$68:$AN$129,MATCH($C270,Inputs!$C$68:$AN$68,0),FALSE))*('Master Data'!L$42),0)","v":0},{"$f":"IF($B265=\"Blank\",0,VLOOKUP($B265,Inputs!$C$68:$AN$129,MATCH($B270,Inputs!$C$68:$AN$68,0),FALSE))+IFERROR(IF($B265=\"Blank\",0,VLOOKUP($B265,Inputs!$C$68:$AN$129,MATCH($C270,Inputs!$C$68:$AN$68,0),FALSE))*('Master Data'!M$42),0)","v":0},{"$f":"IF($B265=\"Blank\",0,VLOOKUP($B265,Inputs!$C$68:$AN$129,MATCH($B270,Inputs!$C$68:$AN$68,0),FALSE))+IFERROR(IF($B265=\"Blank\",0,VLOOKUP($B265,Inputs!$C$68:$AN$129,MATCH($C270,Inputs!$C$68:$AN$68,0),FALSE))*('Master Data'!N$42),0)","v":0},{"$f":"IF($B265=\"Blank\",0,VLOOKUP($B265,Inputs!$C$68:$AN$129,MATCH($B270,Inputs!$C$68:$AN$68,0),FALSE))+IFERROR(IF($B265=\"Blank\",0,VLOOKUP($B265,Inputs!$C$68:$AN$129,MATCH($C270,Inputs!$C$68:$AN$68,0),FALSE))*('Master Data'!O$42),0)","v":0},null,null,null,null,null,null,null,"PE Cell Service costs Annualised",0,0,0,0,0]
[null,"Indirect Opex",null,null,{"$f":"IF($B265=\"Blank\",0,IF($B$8=\"Private Contract Lighting\",'Opex Weighting'!D$48,'Opex Weighting'!D$46))","v":25.762407087322877},{"$f":"IF($B265=\"Blank\",0,IF($B$8=\"Private Contract Lighting\",'Opex Weighting'!E$48,'Opex Weighting'!E$46))","v":25.880403763800857},{"$f":"IF($B265=\"Blank\",0,IF($B$8=\"Private Contract Lighting\",'Opex Weighting'!F$48,'Opex Weighting'!F$46))","v":20.013740175030701},{"$f":"IF($B265=\"Blank\",0,IF($B$8=\"Private Contract Lighting\",'Opex Weighting'!G$48,'Opex Weighting'!G$46))","v":19.55949970528431},{"$f":"IF($B265=\"Blank\",0,IF($B$8=\"Private Contract Lighting\",'Opex Weighting'!H$48,'Opex Weighting'!H$46))","v":19.096814305933613},null,null,null,null,null,null,null,"Indirect Opex",7.0389090402521521,7.0905215791235223,5.4832164863097814,5.3587670425436471,5.2177088267578178]
[null,"Indirect Capex",null,null,{"$f":"'Capex Weighting'!D$59","v":0},{"$f":"'Capex Weighting'!E$59","v":0},{"$f":"'Capex Weighting'!F$59","v":0},{"$f":"'Capex Weighting'!G$59","v":0},{"$f":"'Capex Weighting'!H$59","v":0},null,null,null,null,null,null,null,"Indirect Capex",0,0,0,0,0]
[null,"Opex Overheads Costs per light",null,null,{"$f":"IF($B265=\"Blank\",0,IF($B$8=\"Private Contract Lighting\",'Building Block'!C$40,'Building Block'!C$39))","v":32.224036557323004},{"$f":"IF($B265=\"Blank\",0,IF($B$8=\"Private Contract Lighting\",'Building Block'!D$40,'Building Block'!D$39))","v":31.278075996100256},{"$f":"IF($B265=\"Blank\",0,IF($B$8=\"Private Contract Lighting\",'Building Block'!E$40,'Building Block'!E$39))","v":21.467987799581408},{"$f":"IF($B265=\"Blank\",0,IF($B$8=\"Private Contract Lighting\",'Building Block'!F$40,'Building Block'!F$39))","v":21.22771925228782},{"$f":"IF($B265=\"Blank\",0,IF($B$8=\"Private Contract Lighting\",'Building Block'!G$40,'Building Block'!G$39))","v":21.210892633443169},null,null,null,null,null,null,null,"Opex Overheads Costs per light",8.8043815730390715,8.5693358893425362,5.8816404930360022,5.815813493777485,5.7953258561320133]
[null,{"$f":"Inputs!$AK$68","v":"Bracket UNIT price"},0,null,{"$f":"IF($B265=\"Blank\",0,OFFSET('CAPEX Annuity calcs'!$B$9,MATCH($B265,'CAPEX Annuity calcs'!$B$9:$B$500,0)+$C274,E$6))","v":12.359265722063284},{"$f":"IF($B265=\"Blank\",0,OFFSET('CAPEX Annuity calcs'!$B$9,MATCH($B265,'CAPEX Annuity calcs'!$B$9:$B$500,0)+$C274,F$6))","v":12.359265722063284},{"$f":"IF($B265=\"Blank\",0,OFFSET('CAPEX Annuity calcs'!$B$9,MATCH($B265,'CAPEX Annuity calcs'!$B$9:$B$500,0)+$C274,G$6))","v":12.359265722063284},{"$f":"IF($B265=\"Blank\",0,OFFSET('CAPEX Annuity calcs'!$B$9,MATCH($B265,'CAPEX Annuity calcs'!$B$9:$B$500,0)+$C274,H$6))","v":12.359265722063284},{"$f":"IF($B265=\"Blank\",0,OFFSET('CAPEX Annuity calcs'!$B$9,MATCH($B265,'CAPEX Annuity calcs'!$B$9:$B$500,0)+$C274,I$6))","v":12.359265722063284},null,null,null,null,null,null,null,"Bracket UNIT price",3.3768485579407885,3.3861001978255576,3.3861001978255576,3.3861001978255576,3.3768485579407885]
[null,{"$f":"Inputs!$AA$68","v":"CAPEX Instalation costs"},{"$f":"C274+1","v":1},null,{"$f":"IF($B265=\"Blank\",0,OFFSET('CAPEX Annuity calcs'!$B$9,MATCH($B265,'CAPEX Annuity calcs'!$B$9:$B$500,0)+$C275,E$6))","v":0},{"$f":"IF($B265=\"Blank\",0,OFFSET('CAPEX Annuity calcs'!$B$9,MATCH($B265,'CAPEX Annuity calcs'!$B$9:$B$500,0)+$C275,F$6))","v":0},{"$f":"IF($B265=\"Blank\",0,OFFSET('CAPEX Annuity calcs'!$B$9,MATCH($B265,'CAPEX Annuity calcs'!$B$9:$B$500,0)+$C275,G$6))","v":0},{"$f":"IF($B265=\"Blank\",0,OFFSET('CAPEX Annuity calcs'!$B$9,MATCH($B265,'CAPEX Annuity calcs'!$B$9:$B$500,0)+$C275,H$6))","v":0},{"$f":"IF($B265=\"Blank\",0,OFFSET('CAPEX Annuity calcs'!$B$9,MATCH($B265,'CAPEX Annuity calcs'!$B$9:$B$500,0)+$C275,I$6))","v":0},null,null,null,null,null,null,null,"CAPEX Instalation costs",0,0,0,0,0]
[null,{"$f":"Inputs!$Z$68","v":"Luminaire UNIT price"},{"$f":"C275+1","v":2},null,{"$f":"IF($B265=\"Blank\",0,OFFSET('CAPEX Annuity calcs'!$B$9,MATCH($B265,'CAPEX Annuity calcs'!$B$9:$B$500,0)+$C276,E$6))","v":29.28924220977289},{"$f":"IF($B265=\"Blank\",0,OFFSET('CAPEX Annuity calcs'!$B$9,MATCH($B265,'CAPEX Annuity calcs'!$B$9:$B$500,0)+$C276,F$6))","v":29.28924220977289},{"$f":"IF($B265=\"Blank\",0,OFFSET('CAPEX Annuity calcs'!$B$9,MATCH($B265,'CAPEX Annuity calcs'!$B$9:$B$500,0)+$C276,G$6))","v":29.28924220977289},{"$f":"IF($B265=\"Blank\",0,OFFSET('CAPEX Annuity calcs'!$B$9,MATCH($B265,'CAPEX Annuity calcs'!$B$9:$B$500,0)+$C276,H$6))","v":29.28924220977289},{"$f":"IF($B265=\"Blank\",0,OFFSET('CAPEX Annuity calcs'!$B$9,MATCH($B265,'CAPEX Annuity calcs'!$B$9:$B$500,0)+$C276,I$6))","v":29.28924220977289},null,null,null,null,null,null,null,"Luminaire UNIT price",8.0025251939270188,8.0244499204857238,8.0244499204857238,8.0244499204857238,8.0025251939270188]
[null,{"$f":"Inputs!$AA$68","v":"CAPEX Instalation costs"},3,null,{"$f":"IF($B265=\"Blank\",0,OFFSET('CAPEX Annuity calcs'!$B$9,MATCH($B265,'CAPEX Annuity calcs'!$B$9:$B$500,0)+$C277,E$6))","v":29.489604830309908},{"$f":"IF($B265=\"Blank\",0,OFFSET('CAPEX Annuity calcs'!$B$9,MATCH($B265,'CAPEX Annuity calcs'!$B$9:$B$500,0)+$C277,F$6))","v":29.507480464650605},{"$f":"IF($B265=\"Blank\",0,OFFSET('CAPEX Annuity calcs'!$B$9,MATCH($B265,'CAPEX Annuity calcs'!$B$9:$B$500,0)+$C277,G$6))","v":29.534745081628376},{"$f":"IF($B265=\"Blank\",0,OFFSET('CAPEX Annuity calcs'!$B$9,MATCH($B265,'CAPEX Annuity calcs'!$B$9:$B$500,0)+$C277,H$6))","v":29.568358848911217},{"$f":"IF($B265=\"Blank\",0,OFFSET('CAPEX Annuity calcs'!$B$9,MATCH($B265,'CAPEX Annuity calcs'!$B$9:$B$500,0)+$C277,I$6))","v":29.607612693657906},null,null,null,null,null,null,null,"CAPEX Instalation costs",8.0572690793196475,8.0842412231919472,8.0917109812680472,8.1009202325784155,8.0895116649338537]
[null,null,null,null,{"$f":"SUM(E266:E277)","v":188.41417524220321},{"$f":"SUM(F266:F277)","v":187.57891760698519},171.78658190562871,170.93968766244819,170.30006328781505,null,null,null,null,null,null,null,null,{"$f":"ROUND(E278/R$2*100,3)","v":51.478999999999999},{"$f":"ROUND(F278/S$2*100,3)","v":51.390999999999998},{"$f":"ROUND(G278/T$2*100,3)","v":47.064999999999998},{"$f":"ROUND(H278/U$2*100,3)","v":46.832999999999998},{"$f":"ROUND(I278/V$2*100,3)","v":46.53}]
[]
[{"$f":"A265+1","v":19},{"$f":"IFERROR(VLOOKUP($A280,Inputs!$B$68:$AN$129,MATCH($B$7,Inputs!$B$68:$AN$68,0),FALSE),\"Blank\")","v":"400W Sodium Vapour"},null,null,null,null,null,null,null,null,null,null,null,null,null,null,{"$f":"IFERROR(VLOOKUP($A280,Inputs!$B$68:$AN$129,MATCH($B$7,Inputs!$B$68:$AN$68,0),FALSE),\"Blank\")","v":"400W Sodium Vapour"}]
[null,{"$f":"Inputs!$S$68","v":"Lamp UNIT price Annualised Cost"},{"$f":"Inputs!$Q$68","v":"Lamp Maintenance cycle"},null,{"$f":"IF($B280=\"Blank\",0,VLOOKUP($B280,Inputs!$C$68:$AN$129,MATCH($B281,Inputs!$C$68:$AN$68,0),FALSE))","v":4.2464881915077495},{"$f":"IF($B280=\"Blank\",0,VLOOKUP($B280,Inputs!$C$68:$AN$129,MATCH($B281,Inputs!$C$68:$AN$68,0),FALSE))","v":4.2464881915077495},{"$f":"IF($B280=\"Blank\",0,VLOOKUP($B280,Inputs!$C$68:$AN$129,MATCH($B281,Inputs!$C$68:$AN$68,0),FALSE))","v":4.2464881915077495},{"$f":"IF($B280=\"Blank\",0,VLOOKUP($B280,Inputs!$C$68:$AN$129,MATCH($B281,Inputs!$C$68:$AN$68,0),FALSE))","v":4.2464881915077495},{"$f":"IF($B280=\"Blank\",0,VLOOKUP($B280,Inputs!$C$68:$AN$129,MATCH($B281,Inputs!$C$68:$AN$68,0),FALSE))","v":4.2464881915077495},null,null,null,null,null,null,null,{"$f":"B281","v":"Lamp UNIT price Annualised Cost"},{"$f":"IF(E281=\"NA\",\"\",E281/R$2*100)","v":1.1602426752753414},{"$f":"IF(F281=\"NA\",\"\",F281/S$2*100)","v":1.1634214223308903},{"$f":"IF(G281=\"NA\",\"\",G281/T$2*100)","v":1.1634214223308903},{"$f":"IF(H281=\"NA\",\"\",H281/U$2*100)","v":1.1634214223308903},{"$f":"IF(I281=\"NA\",\"\",I281/V$2*100)","v":1.1602426752753414}]
[null,{"$f":"Inputs!$K$68","v":"PE Cell UNIT price Annualised Cost"},{"$f":"Inputs!$I$68","v":"PE Cell Maintenance Cycle"},null,{"$f":"IF($B280=\"Blank\",0,VLOOKUP($B280,Inputs!$C$68:$AN$129,MATCH($B282,Inputs!$C$68:$AN$68,0),FALSE))","v":1.6930974392480003},{"$f":"IF($B280=\"Blank\",0,VLOOKUP($B280,Inputs!$C$68:$AN$129,MATCH($B282,Inputs!$C$68:$AN$68,0),FALSE))","v":1.6930974392480003},{"$f":"IF($B280=\"Blank\",0,VLOOKUP($B280,Inputs!$C$68:$AN$129,MATCH($B282,Inputs!$C$68:$AN$68,0),FALSE))","v":1.6930974392480003},{"$f":"IF($B280=\"Blank\",0,VLOOKUP($B280,Inputs!$C$68:$AN$129,MATCH($B282,Inputs!$C$68:$AN$68,0),FALSE))","v":1.6930974392480003},{"$f":"IF($B280=\"Blank\",0,VLOOKUP($B280,Inputs!$C$68:$AN$129,MATCH($B282,Inputs!$C$68:$AN$68,0),FALSE))","v":1.6930974392480003},null,null,null,null,null,null,null,"PE Cell UNIT price Annualised Cost",0.46259492875628422,0.46386231212273976,0.46386231212273976,0.46386231212273976,0.46259492875628422]
[null,"Corp capex annuity per light",null,null,{"$f":"IF($B280=\"Blank\",0,'Corp Capex Annuity calcs'!F$142)","v":18.582309905017571},{"$f":"IF($B280=\"Blank\",0,'Corp Capex Annuity calcs'!G$142)","v":18.552026408230436},{"$f":"IF($B280=\"Blank\",0,'Corp Capex Annuity calcs'!H$142)","v":18.401377631486287},{"$f":"IF($B280=\"Blank\",0,'Corp Capex Annuity calcs'!I$142)","v":18.205761940470655},{"$f":"IF($B280=\"Blank\",0,'Corp Capex Annuity calcs'!J$142)","v":17.995165449295623},null,null,null,null,null,null,null,"Corp capex annuity per light",5.0771338538299373,5.0827469611590237,5.0414733236948734,4.9878799836905907,4.9167118713922466]
[null,{"$f":"Inputs!$U$68","v":"Lamp Service costs Annualised"},"Labour Portion of Lamp Service costs annualised",null,{"$f":"IF($B280=\"Blank\",0,VLOOKUP($B280,Inputs!$C$68:$AN$129,MATCH($B284,Inputs!$C$68:$AN$68,0),FALSE))+IFERROR(IF($B280=\"Blank\",0,VLOOKUP($B280,Inputs!$C$68:$AN$129,MATCH($C284,Inputs!$C$68:$AN$68,0),FALSE))*('Master Data'!K$42),0)","v":34.921367162927247},{"$f":"IF($B280=\"Blank\",0,VLOOKUP($B280,Inputs!$C$68:$AN$129,MATCH($B284,Inputs!$C$68:$AN$68,0),FALSE))+IFERROR(IF($B280=\"Blank\",0,VLOOKUP($B280,Inputs!$C$68:$AN$129,MATCH($C284,Inputs!$C$68:$AN$68,0),FALSE))*('Master Data'!L$42),0)","v":34.926481274900404},{"$f":"IF($B280=\"Blank\",0,VLOOKUP($B280,Inputs!$C$68:$AN$129,MATCH($B284,Inputs!$C$68:$AN$68,0),FALSE))+IFERROR(IF($B280=\"Blank\",0,VLOOKUP($B280,Inputs!$C$68:$AN$129,MATCH($C284,Inputs!$C$68:$AN$68,0),FALSE))*('Master Data'!M$42),0)","v":34.934281518599292},{"$f":"IF($B280=\"Blank\",0,VLOOKUP($B280,Inputs!$C$68:$AN$129,MATCH($B284,Inputs!$C$68:$AN$68,0),FALSE))+IFERROR(IF($B280=\"Blank\",0,VLOOKUP($B280,Inputs!$C$68:$AN$129,MATCH($C284,Inputs!$C$68:$AN$68,0),FALSE))*('Master Data'!N$42),0)","v":34.943898216191549},{"$f":"IF($B280=\"Blank\",0,VLOOKUP($B280,Inputs!$C$68:$AN$129,MATCH($B284,Inputs!$C$68:$AN$68,0),FALSE))+IFERROR(IF($B280=\"Blank\",0,VLOOKUP($B280,Inputs!$C$68:$AN$129,MATCH($C284,Inputs!$C$68:$AN$68,0),FALSE))*('Master Data'!O$42),0)","v":34.955128506182135},null,null,null,null,null,null,null,"Lamp Service costs Annualised",9.5413571483407775,9.5688989794247679,9.5710360324929571,9.5736707441620688,9.5505815590661562]
[null,{"$f":"Inputs!$M$68","v":"PE Cell Service costs Annualised"},"Labour Portion of PE Cell Service costs Annualised",null,{"$f":"IF($B280=\"Blank\",0,VLOOKUP($B280,Inputs!$C$68:$AN$129,MATCH($B285,Inputs!$C$68:$AN$68,0),FALSE))+IFERROR(IF($B280=\"Blank\",0,VLOOKUP($B280,Inputs!$C$68:$AN$129,MATCH($C285,Inputs!$C$68:$AN$68,0),FALSE))*('Master Data'!K$42),0)","v":0},{"$f":"IF($B280=\"Blank\",0,VLOOKUP($B280,Inputs!$C$68:$AN$129,MATCH($B285,Inputs!$C$68:$AN$68,0),FALSE))+IFERROR(IF($B280=\"Blank\",0,VLOOKUP($B280,Inputs!$C$68:$AN$129,MATCH($C285,Inputs!$C$68:$AN$68,0),FALSE))*('Master Data'!L$42),0)","v":0},{"$f":"IF($B280=\"Blank\",0,VLOOKUP($B280,Inputs!$C$68:$AN$129,MATCH($B285,Inputs!$C$68:$AN$68,0),FALSE))+IFERROR(IF($B280=\"Blank\",0,VLOOKUP($B280,Inputs!$C$68:$AN$129,MATCH($C285,Inputs!$C$68:$AN$68,0),FALSE))*('Master Data'!M$42),0)","v":0},{"$f":"IF($B280=\"Blank\",0,VLOOKUP($B280,Inputs!$C$68:$AN$129,MATCH($B285,Inputs!$C$68:$AN$68,0),FALSE))+IFERROR(IF($B280=\"Blank\",0,VLOOKUP($B280,Inputs!$C$68:$AN$129,MATCH($C285,Inputs!$C$68:$AN$68,0),FALSE))*('Master Data'!N$42),0)","v":0},{"$f":"IF($B280=\"Blank\",0,VLOOKUP($B280,Inputs!$C$68:$AN$129,MATCH($B285,Inputs!$C$68:$AN$68,0),FALSE))+IFERROR(IF($B280=\"Blank\",0,VLOOKUP($B280,Inputs!$C$68:$AN$129,MATCH($C285,Inputs!$C$68:$AN$68,0),FALSE))*('Master Data'!O$42),0)","v":0},null,null,null,null,null,null,null,"PE Cell Service costs Annualised",0,0,0,0,0]
[null,"Indirect Opex",null,null,{"$f":"IF($B280=\"Blank\",0,IF($B$8=\"Private Contract Lighting\",'Opex Weighting'!D$48,'Opex Weighting'!D$46))","v":25.762407087322877},{"$f":"IF($B280=\"Blank\",0,IF($B$8=\"Private Contract Lighting\",'Opex Weighting'!E$48,'Opex Weighting'!E$46))","v":25.880403763800857},{"$f":"IF($B280=\"Blank\",0,IF($B$8=\"Private Contract Lighting\",'Opex Weighting'!F$48,'Opex Weighting'!F$46))","v":20.013740175030701},{"$f":"IF($B280=\"Blank\",0,IF($B$8=\"Private Contract Lighting\",'Opex Weighting'!G$48,'Opex Weighting'!G$46))","v":19.55949970528431},{"$f":"IF($B280=\"Blank\",0,IF($B$8=\"Private Contract Lighting\",'Opex Weighting'!H$48,'Opex Weighting'!H$46))","v":19.096814305933613},null,null,null,null,null,null,null,"Indirect Opex",7.0389090402521521,7.0905215791235223,5.4832164863097814,5.3587670425436471,5.2177088267578178]
[null,"Indirect Capex",null,null,{"$f":"'Capex Weighting'!D$59","v":0},{"$f":"'Capex Weighting'!E$59","v":0},{"$f":"'Capex Weighting'!F$59","v":0},{"$f":"'Capex Weighting'!G$59","v":0},{"$f":"'Capex Weighting'!H$59","v":0},null,null,null,null,null,null,null,"Indirect Capex",0,0,0,0,0]
[null,"Opex Overheads Costs per light",null,null,{"$f":"IF($B280=\"Blank\",0,IF($B$8=\"Private Contract Lighting\",'Building Block'!C$40,'Building Block'!C$39))","v":32.224036557323004},{"$f":"IF($B280=\"Blank\",0,IF($B$8=\"Private Contract Lighting\",'Building Block'!D$40,'Building Block'!D$39))","v":31.278075996100256},{"$f":"IF($B280=\"Blank\",0,IF($B$8=\"Private Contract Lighting\",'Building Block'!E$40,'Building Block'!E$39))","v":21.467987799581408},{"$f":"IF($B280=\"Blank\",0,IF($B$8=\"Private Contract Lighting\",'Building Block'!F$40,'Building Block'!F$39))","v":21.22771925228782},{"$f":"IF($B280=\"Blank\",0,IF($B$8=\"Private Contract Lighting\",'Building Block'!G$40,'Building Block'!G$39))","v":21.210892633443169},null,null,null,null,null,null,null,"Opex Overheads Costs per light",8.8043815730390715,8.5693358893425362,5.8816404930360022,5.815813493777485,5.7953258561320133]
[null,{"$f":"Inputs!$AK$68","v":"Bracket UNIT price"},0,null,{"$f":"IF($B280=\"Blank\",0,OFFSET('CAPEX Annuity calcs'!$B$9,MATCH($B280,'CAPEX Annuity calcs'!$B$9:$B$500,0)+$C289,E$6))","v":8.9160003868670579},{"$f":"IF($B280=\"Blank\",0,OFFSET('CAPEX Annuity calcs'!$B$9,MATCH($B280,'CAPEX Annuity calcs'!$B$9:$B$500,0)+$C289,F$6))","v":8.9160003868670579},{"$f":"IF($B280=\"Blank\",0,OFFSET('CAPEX Annuity calcs'!$B$9,MATCH($B280,'CAPEX Annuity calcs'!$B$9:$B$500,0)+$C289,G$6))","v":8.9160003868670579},{"$f":"IF($B280=\"Blank\",0,OFFSET('CAPEX Annuity calcs'!$B$9,MATCH($B280,'CAPEX Annuity calcs'!$B$9:$B$500,0)+$C289,H$6))","v":8.9160003868670579},{"$f":"IF($B280=\"Blank\",0,OFFSET('CAPEX Annuity calcs'!$B$9,MATCH($B280,'CAPEX Annuity calcs'!$B$9:$B$500,0)+$C289,I$6))","v":8.9160003868670579},null,null,null,null,null,null,null,"Bracket UNIT price",2.4360656794718736,2.442739832018372,2.442739832018372,2.442739832018372,2.4360656794718736]
[null,{"$f":"Inputs!$AA$68","v":"CAPEX Instalation costs"},{"$f":"C289+1","v":1},null,{"$f":"IF($B280=\"Blank\",0,OFFSET('CAPEX Annuity calcs'!$B$9,MATCH($B280,'CAPEX Annuity calcs'!$B$9:$B$500,0)+$C290,E$6))","v":0},{"$f":"IF($B280=\"Blank\",0,OFFSET('CAPEX Annuity calcs'!$B$9,MATCH($B280,'CAPEX Annuity calcs'!$B$9:$B$500,0)+$C290,F$6))","v":0},{"$f":"IF($B280=\"Blank\",0,OFFSET('CAPEX Annuity calcs'!$B$9,MATCH($B280,'CAPEX Annuity calcs'!$B$9:$B$500,0)+$C290,G$6))","v":0},{"$f":"IF($B280=\"Blank\",0,OFFSET('CAPEX Annuity calcs'!$B$9,MATCH($B280,'CAPEX Annuity calcs'!$B$9:$B$500,0)+$C290,H$6))","v":0},{"$f":"IF($B280=\"Blank\",0,OFFSET('CAPEX Annuity calcs'!$B$9,MATCH($B280,'CAPEX Annuity calcs'!$B$9:$B$500,0)+$C290,I$6))","v":0},null,null,null,null,null,null,null,"CAPEX Instalation costs",0,0,0,0,0]
[null,{"$f":"Inputs!$Z$68","v":"Luminaire UNIT price"},{"$f":"C290+1","v":2},null,{"$f":"IF($B280=\"Blank\",0,OFFSET('CAPEX Annuity calcs'!$B$9,MATCH($B280,'CAPEX Annuity calcs'!$B$9:$B$500,0)+$C291,E$6))","v":21.545378998696641},{"$f":"IF($B280=\"Blank\",0,OFFSET('CAPEX Annuity calcs'!$B$9,MATCH($B280,'CAPEX Annuity calcs'!$B$9:$B$500,0)+$C291,F$6))","v":21.545378998696641},{"$f":"IF($B280=\"Blank\",0,OFFSET('CAPEX Annuity calcs'!$B$9,MATCH($B280,'CAPEX Annuity calcs'!$B$9:$B$500,0)+$C291,G$6))","v":21.545378998696641},{"$f":"IF($B280=\"Blank\",0,OFFSET('CAPEX Annuity calcs'!$B$9,MATCH($B280,'CAPEX Annuity calcs'!$B$9:$B$500,0)+$C291,H$6))","v":21.545378998696641},{"$f":"IF($B280=\"Blank\",0,OFFSET('CAPEX Annuity calcs'!$B$9,MATCH($B280,'CAPEX Annuity calcs'!$B$9:$B$500,0)+$C291,I$6))","v":21.545378998696641},null,null,null,null,null,null,null,"Luminaire UNIT price",5.8867155734143823,5.9028435612867511,5.9028435612867511,5.9028435612867511,5.8867155734143823]
[null,{"$f":"Inputs!$AA$68","v":"CAPEX Instalation costs"},3,null,{"$f":"IF($B280=\"Blank\",0,OFFSET('CAPEX Annuity calcs'!$B$9,MATCH($B280,'CAPEX Annuity calcs'!$B$9:$B$500,0)+$C292,E$6))","v":29.489604830309908},{"$f":"IF($B280=\"Blank\",0,OFFSET('CAPEX Annuity calcs'!$B$9,MATCH($B280,'CAPEX Annuity calcs'!$B$9:$B$500,0)+$C292,F$6))","v":29.507480464650605},{"$f":"IF($B280=\"Blank\",0,OFFSET('CAPEX Annuity calcs'!$B$9,MATCH($B280,'CAPEX Annuity calcs'!$B$9:$B$500,0)+$C292,G$6))","v":29.534745081628376},{"$f":"IF($B280=\"Blank\",0,OFFSET('CAPEX Annuity calcs'!$B$9,MATCH($B280,'CAPEX Annuity calcs'!$B$9:$B$500,0)+$C292,H$6))","v":29.568358848911217},{"$f":"IF($B280=\"Blank\",0,OFFSET('CAPEX Annuity calcs'!$B$9,MATCH($B280,'CAPEX Annuity calcs'!$B$9:$B$500,0)+$C292,I$6))","v":29.607612693657906},null,null,null,null,null,null,null,"CAPEX Instalation costs",8.0572690793196475,8.0842412231919472,8.0917109812680472,8.1009202325784155,8.0895116649338537]
[null,null,null,null,{"$f":"SUM(E281:E292)","v":177.38069055922003},{"$f":"SUM(F281:F292)","v":176.545432924002},160.75309722264552,159.90620297946498,159.26657860483189,null,null,null,null,null,null,null,null,{"$f":"ROUND(E293/R$2*100,3)","v":48.465000000000003},{"$f":"ROUND(F293/S$2*100,3)","v":48.369},{"$f":"ROUND(G293/T$2*100,3)","v":44.042000000000002},{"$f":"ROUND(H293/U$2*100,3)","v":43.81},{"$f":"ROUND(I293/V$2*100,3)","v":43.515000000000001}]
[]
[{"$f":"A280+1","v":20},{"$f":"IFERROR(VLOOKUP($A295,Inputs!$B$68:$AN$129,MATCH($B$7,Inputs!$B$68:$AN$68,0),FALSE),\"Blank\")","v":"400W Sodium Vapour - Flood Light"},null,null,null,null,null,null,null,null,null,null,null,null,null,null,{"$f":"IFERROR(VLOOKUP($A295,Inputs!$B$68:$AN$129,MATCH($B$7,Inputs!$B$68:$AN$68,0),FALSE),\"Blank\")","v":"400W Sodium Vapour - Flood Light"}]
[null,{"$f":"Inputs!$S$68","v":"Lamp UNIT price Annualised Cost"},{"$f":"Inputs!$Q$68","v":"Lamp Maintenance cycle"},null,{"$f":"IF($B295=\"Blank\",0,VLOOKUP($B295,Inputs!$C$68:$AN$129,MATCH($B296,Inputs!$C$68:$AN$68,0),FALSE))","v":4.2464881915077495},{"$f":"IF($B295=\"Blank\",0,VLOOKUP($B295,Inputs!$C$68:$AN$129,MATCH($B296,Inputs!$C$68:$AN$68,0),FALSE))","v":4.2464881915077495},{"$f":"IF($B295=\"Blank\",0,VLOOKUP($B295,Inputs!$C$68:$AN$129,MATCH($B296,Inputs!$C$68:$AN$68,0),FALSE))","v":4.2464881915077495},{"$f":"IF($B295=\"Blank\",0,VLOOKUP($B295,Inputs!$C$68:$AN$129,MATCH($B296,Inputs!$C$68:$AN$68,0),FALSE))","v":4.2464881915077495},{"$f":"IF($B295=\"Blank\",0,VLOOKUP($B295,Inputs!$C$68:$AN$129,MATCH($B296,Inputs!$C$68:$AN$68,0),FALSE))","v":4.2464881915077495},null,null,null,null,null,null,null,{"$f":"B296","v":"Lamp UNIT price Annualised Cost"},{"$f":"IF(E296=\"NA\",\"\",E296/R$2*100)","v":1.1602426752753414},{"$f":"IF(F296=\"NA\",\"\",F296/S$2*100)","v":1.1634214223308903},{"$f":"IF(G296=\"NA\",\"\",G296/T$2*100)","v":1.1634214223308903},{"$f":"IF(H296=\"NA\",\"\",H296/U$2*100)","v":1.1634214223308903},{"$f":"IF(I296=\"NA\",\"\",I296/V$2*100)","v":1.1602426752753414}]
[null,{"$f":"Inputs!$K$68","v":"PE Cell UNIT price Annualised Cost"},{"$f":"Inputs!$I$68","v":"PE Cell Maintenance Cycle"},null,{"$f":"IF($B295=\"Blank\",0,VLOOKUP($B295,Inputs!$C$68:$AN$129,MATCH($B297,Inputs!$C$68:$AN$68,0),FALSE))","v":1.6930974392480003},{"$f":"IF($B295=\"Blank\",0,VLOOKUP($B295,Inputs!$C$68:$AN$129,MATCH($B297,Inputs!$C$68:$AN$68,0),FALSE))","v":1.6930974392480003},{"$f":"IF($B295=\"Blank\",0,VLOOKUP($B295,Inputs!$C$68:$AN$129,MATCH($B297,Inputs!$C$68:$AN$68,0),FALSE))","v":1.6930974392480003},{"$f":"IF($B295=\"Blank\",0,VLOOKUP($B295,Inputs!$C$68:$AN$129,MATCH($B297,Inputs!$C$68:$AN$68,0),FALSE))","v":1.6930974392480003},{"$f":"IF($B295=\"Blank\",0,VLOOKUP($B295,Inputs!$C$68:$AN$129,MATCH($B297,Inputs!$C$68:$AN$68,0),FALSE))","v":1.6930974392480003},null,null,null,null,null,null,null,"PE Cell UNIT price Annualised Cost",0.46259492875628422,0.46386231212273976,0.46386231212273976,0.46386231212273976,0.46259492875628422]
[null,"Corp capex annuity per light",null,null,{"$f":"IF($B295=\"Blank\",0,'Corp Capex Annuity calcs'!F$142)","v":18.582309905017571},{"$f":"IF($B295=\"Blank\",0,'Corp Capex Annuity calcs'!G$142)","v":18.552026408230436},{"$f":"IF($B295=\"Blank\",0,'Corp Capex Annuity calcs'!H$142)","v":18.401377631486287},{"$f":"IF($B295=\"Blank\",0,'Corp Capex Annuity calcs'!I$142)","v":18.205761940470655},{"$f":"IF($B295=\"Blank\",0,'Corp Capex Annuity calcs'!J$142)","v":17.995165449295623},null,null,null,null,null,null,null,"Corp capex annuity per light",5.0771338538299373,5.0827469611590237,5.0414733236948734,4.9878799836905907,4.9167118713922466]
[null,{"$f":"Inputs!$U$68","v":"Lamp Service costs Annualised"},"Labour Portion of Lamp Service costs annualised",null,{"$f":"IF($B295=\"Blank\",0,VLOOKUP($B295,Inputs!$C$68:$AN$129,MATCH($B299,Inputs!$C$68:$AN$68,0),FALSE))+IFERROR(IF($B295=\"Blank\",0,VLOOKUP($B295,Inputs!$C$68:$AN$129,MATCH($C299,Inputs!$C$68:$AN$68,0),FALSE))*('Master Data'!K$42),0)","v":34.921367162927247},{"$f":"IF($B295=\"Blank\",0,VLOOKUP($B295,Inputs!$C$68:$AN$129,MATCH($B299,Inputs!$C$68:$AN$68,0),FALSE))+IFERROR(IF($B295=\"Blank\",0,VLOOKUP($B295,Inputs!$C$68:$AN$129,MATCH($C299,Inputs!$C$68:$AN$68,0),FALSE))*('Master Data'!L$42),0)","v":34.926481274900404},{"$f":"IF($B295=\"Blank\",0,VLOOKUP($B295,Inputs!$C$68:$AN$129,MATCH($B299,Inputs!$C$68:$AN$68,0),FALSE))+IFERROR(IF($B295=\"Blank\",0,VLOOKUP($B295,Inputs!$C$68:$AN$129,MATCH($C299,Inputs!$C$68:$AN$68,0),FALSE))*('Master Data'!M$42),0)","v":34.934281518599292},{"$f":"IF($B295=\"Blank\",0,VLOOKUP($B295,Inputs!$C$68:$AN$129,MATCH($B299,Inputs!$C$68:$AN$68,0),FALSE))+IFERROR(IF($B295=\"Blank\",0,VLOOKUP($B295,Inputs!$C$68:$AN$129,MATCH($C299,Inputs!$C$68:$AN$68,0),FALSE))*('Master Data'!N$42),0)","v":34.943898216191549},{"$f":"IF($B295=\"Blank\",0,VLOOKUP($B295,Inputs!$C$68:$AN$129,MATCH($B299,Inputs!$C$68:$AN$68,0),FALSE))+IFERROR(IF($B295=\"Blank\",0,VLOOKUP($B295,Inputs!$C$68:$AN$129,MATCH($C299,Inputs!$C$68:$AN$68,0),FALSE))*('Master Data'!O$42),0)","v":34.955128506182135},null,null,null,null,null,null,null,"Lamp Service costs Annualised",9.5413571483407775,9.5688989794247679,9.5710360324929571,9.5736707441620688,9.5505815590661562]
[null,{"$f":"Inputs!$M$68","v":"PE Cell Service costs Annualised"},"Labour Portion of PE Cell Service costs Annualised",null,{"$f":"IF($B295=\"Blank\",0,VLOOKUP($B295,Inputs!$C$68:$AN$129,MATCH($B300,Inputs!$C$68:$AN$68,0),FALSE))+IFERROR(IF($B295=\"Blank\",0,VLOOKUP($B295,Inputs!$C$68:$AN$129,MATCH($C300,Inputs!$C$68:$AN$68,0),FALSE))*('Master Data'!K$42),0)","v":0},{"$f":"IF($B295=\"Blank\",0,VLOOKUP($B295,Inputs!$C$68:$AN$129,MATCH($B300,Inputs!$C$68:$AN$68,0),FALSE))+IFERROR(IF($B295=\"Blank\",0,VLOOKUP($B295,Inputs!$C$68:$AN$129,MATCH($C300,Inputs!$C$68:$AN$68,0),FALSE))*('Master Data'!L$42),0)","v":0},{"$f":"IF($B295=\"Blank\",0,VLOOKUP($B295,Inputs!$C$68:$AN$129,MATCH($B300,Inputs!$C$68:$AN$68,0),FALSE))+IFERROR(IF($B295=\"Blank\",0,VLOOKUP($B295,Inputs!$C$68:$AN$129,MATCH($C300,Inputs!$C$68:$AN$68,0),FALSE))*('Master Data'!M$42),0)","v":0},{"$f":"IF($B295=\"Blank\",0,VLOOKUP($B295,Inputs!$C$68:$AN$129,MATCH($B300,Inputs!$C$68:$AN$68,0),FALSE))+IFERROR(IF($B295=\"Blank\",0,VLOOKUP($B295,Inputs!$C$68:$AN$129,MATCH($C300,Inputs!$C$68:$AN$68,0),FALSE))*('Master Data'!N$42),0)","v":0},{"$f":"IF($B295=\"Blank\",0,VLOOKUP($B295,Inputs!$C$68:$AN$129,MATCH($B300,Inputs!$C$68:$AN$68,0),FALSE))+IFERROR(IF($B295=\"Blank\",0,VLOOKUP($B295,Inputs!$C$68:$AN$129,MATCH($C300,Inputs!$C$68:$AN$68,0),FALSE))*('Master Data'!O$42),0)","v":0},null,null,null,null,null,null,null,"PE Cell Service costs Annualised",0,0,0,0,0]
[null,"Indirect Opex",null,null,{"$f":"IF($B295=\"Blank\",0,IF($B$8=\"Private Contract Lighting\",'Opex Weighting'!D$48,'Opex Weighting'!D$46))","v":25.762407087322877},{"$f":"IF($B295=\"Blank\",0,IF($B$8=\"Private Contract Lighting\",'Opex Weighting'!E$48,'Opex Weighting'!E$46))","v":25.880403763800857},{"$f":"IF($B295=\"Blank\",0,IF($B$8=\"Private Contract Lighting\",'Opex Weighting'!F$48,'Opex Weighting'!F$46))","v":20.013740175030701},{"$f":"IF($B295=\"Blank\",0,IF($B$8=\"Private Contract Lighting\",'Opex Weighting'!G$48,'Opex Weighting'!G$46))","v":19.55949970528431},{"$f":"IF($B295=\"Blank\",0,IF($B$8=\"Private Contract Lighting\",'Opex Weighting'!H$48,'Opex Weighting'!H$46))","v":19.096814305933613},null,null,null,null,null,null,null,"Indirect Opex",7.0389090402521521,7.0905215791235223,5.4832164863097814,5.3587670425436471,5.2177088267578178]
[null,"Indirect Capex",null,null,{"$f":"'Capex Weighting'!D$59","v":0},{"$f":"'Capex Weighting'!E$59","v":0},{"$f":"'Capex Weighting'!F$59","v":0},{"$f":"'Capex Weighting'!G$59","v":0},{"$f":"'Capex Weighting'!H$59","v":0},null,null,null,null,null,null,null,"Indirect Capex",0,0,0,0,0]
[null,"Opex Overheads Costs per light",null,null,{"$f":"IF($B295=\"Blank\",0,IF($B$8=\"Private Contract Lighting\",'Building Block'!C$40,'Building Block'!C$39))","v":32.224036557323004},{"$f":"IF($B295=\"Blank\",0,IF($B$8=\"Private Contract Lighting\",'Building Block'!D$40,'Building Block'!D$39))","v":31.278075996100256},{"$f":"IF($B295=\"Blank\",0,IF($B$8=\"Private Contract Lighting\",'Building Block'!E$40,'Building Block'!E$39))","v":21.467987799581408},{"$f":"IF($B295=\"Blank\",0,IF($B$8=\"Private Contract Lighting\",'Building Block'!F$40,'Building Block'!F$39))","v":21.22771925228782},{"$f":"IF($B295=\"Blank\",0,IF($B$8=\"Private Contract Lighting\",'Building Block'!G$40,'Building Block'!G$39))","v":21.210892633443169},null,null,null,null,null,null,null,"Opex Overheads Costs per light",8.8043815730390715,8.5693358893425362,5.8816404930360022,5.815813493777485,5.7953258561320133]
[null,{"$f":"Inputs!$AK$68","v":"Bracket UNIT price"},0,null,{"$f":"IF($B295=\"Blank\",0,OFFSET('CAPEX Annuity calcs'!$B$9,MATCH($B295,'CAPEX Annuity calcs'!$B$9:$B$500,0)+$C304,E$6))","v":8.9160003868670579},{"$f":"IF($B295=\"Blank\",0,OFFSET('CAPEX Annuity calcs'!$B$9,MATCH($B295,'CAPEX Annuity calcs'!$B$9:$B$500,0)+$C304,F$6))","v":8.9160003868670579},{"$f":"IF($B295=\"Blank\",0,OFFSET('CAPEX Annuity calcs'!$B$9,MATCH($B295,'CAPEX Annuity calcs'!$B$9:$B$500,0)+$C304,G$6))","v":8.9160003868670579},{"$f":"IF($B295=\"Blank\",0,OFFSET('CAPEX Annuity calcs'!$B$9,MATCH($B295,'CAPEX Annuity calcs'!$B$9:$B$500,0)+$C304,H$6))","v":8.9160003868670579},{"$f":"IF($B295=\"Blank\",0,OFFSET('CAPEX Annuity calcs'!$B$9,MATCH($B295,'CAPEX Annuity calcs'!$B$9:$B$500,0)+$C304,I$6))","v":8.9160003868670579},null,null,null,null,null,null,null,"Bracket UNIT price",2.4360656794718736,2.442739832018372,2.442739832018372,2.442739832018372,2.4360656794718736]
[null,{"$f":"Inputs!$AA$68","v":"CAPEX Instalation costs"},{"$f":"C304+1","v":1},null,{"$f":"IF($B295=\"Blank\",0,OFFSET('CAPEX Annuity calcs'!$B$9,MATCH($B295,'CAPEX Annuity calcs'!$B$9:$B$500,0)+$C305,E$6))","v":0},{"$f":"IF($B295=\"Blank\",0,OFFSET('CAPEX Annuity calcs'!$B$9,MATCH($B295,'CAPEX Annuity calcs'!$B$9:$B$500,0)+$C305,F$6))","v":0},{"$f":"IF($B295=\"Blank\",0,OFFSET('CAPEX Annuity calcs'!$B$9,MATCH($B295,'CAPEX Annuity calcs'!$B$9:$B$500,0)+$C305,G$6))","v":0},{"$f":"IF($B295=\"Blank\",0,OFFSET('CAPEX Annuity calcs'!$B$9,MATCH($B295,'CAPEX Annuity calcs'!$B$9:$B$500,0)+$C305,H$6))","v":0},{"$f":"IF($B295=\"Blank\",0,OFFSET('CAPEX Annuity calcs'!$B$9,MATCH($B295,'CAPEX Annuity calcs'!$B$9:$B$500,0)+$C305,I$6))","v":0},null,null,null,null,null,null,null,"CAPEX Instalation costs",0,0,0,0,0]
[null,{"$f":"Inputs!$Z$68","v":"Luminaire UNIT price"},{"$f":"C305+1","v":2},null,{"$f":"IF($B295=\"Blank\",0,OFFSET('CAPEX Annuity calcs'!$B$9,MATCH($B295,'CAPEX Annuity calcs'!$B$9:$B$500,0)+$C306,E$6))","v":30.163742329061371},{"$f":"IF($B295=\"Blank\",0,OFFSET('CAPEX Annuity calcs'!$B$9,MATCH($B295,'CAPEX Annuity calcs'!$B$9:$B$500,0)+$C306,F$6))","v":30.163742329061371},{"$f":"IF($B295=\"Blank\",0,OFFSET('CAPEX Annuity calcs'!$B$9,MATCH($B295,'CAPEX Annuity calcs'!$B$9:$B$500,0)+$C306,G$6))","v":30.163742329061371},{"$f":"IF($B295=\"Blank\",0,OFFSET('CAPEX Annuity calcs'!$B$9,MATCH($B295,'CAPEX Annuity calcs'!$B$9:$B$500,0)+$C306,H$6))","v":30.163742329061371},{"$f":"IF($B295=\"Blank\",0,OFFSET('CAPEX Annuity calcs'!$B$9,MATCH($B295,'CAPEX Annuity calcs'!$B$9:$B$500,0)+$C306,I$6))","v":30.163742329061371},null,null,null,null,null,null,null,"Luminaire UNIT price",8.2414596527490094,8.2640389942633892,8.2640389942633892,8.2640389942633892,8.2414596527490094]
[null,{"$f":"Inputs!$AA$68","v":"CAPEX Instalation costs"},3,null,{"$f":"IF($B295=\"Blank\",0,OFFSET('CAPEX Annuity calcs'!$B$9,MATCH($B295,'CAPEX Annuity calcs'!$B$9:$B$500,0)+$C307,E$6))","v":29.489604830309908},{"$f":"IF($B295=\"Blank\",0,OFFSET('CAPEX Annuity calcs'!$B$9,MATCH($B295,'CAPEX Annuity calcs'!$B$9:$B$500,0)+$C307,F$6))","v":29.507480464650605},{"$f":"IF($B295=\"Blank\",0,OFFSET('CAPEX Annuity calcs'!$B$9,MATCH($B295,'CAPEX Annuity calcs'!$B$9:$B$500,0)+$C307,G$6))","v":29.534745081628376},{"$f":"IF($B295=\"Blank\",0,OFFSET('CAPEX Annuity calcs'!$B$9,MATCH($B295,'CAPEX Annuity calcs'!$B$9:$B$500,0)+$C307,H$6))","v":29.568358848911217},{"$f":"IF($B295=\"Blank\",0,OFFSET('CAPEX Annuity calcs'!$B$9,MATCH($B295,'CAPEX Annuity calcs'!$B$9:$B$500,0)+$C307,I$6))","v":29.607612693657906},null,null,null,null,null,null,null,"CAPEX Instalation costs",8.0572690793196475,8.0842412231919472,8.0917109812680472,8.1009202325784155,8.0895116649338537]
[null,null,null,null,{"$f":"SUM(E296:E307)","v":185.99905388958476},{"$f":"SUM(F296:F307)","v":185.16379625436673},169.37146055301025,168.52456630982971,167.88494193519662,null,null,null,null,null,null,null,null,{"$f":"ROUND(E308/R$2*100,3)","v":50.819000000000003},{"$f":"ROUND(F308/S$2*100,3)","v":50.73},{"$f":"ROUND(G308/T$2*100,3)","v":46.402999999999999},{"$f":"ROUND(H308/U$2*100,3)","v":46.170999999999999},{"$f":"ROUND(I308/V$2*100,3)","v":45.87}]
[]
[{"$f":"A295+1","v":21},{"$f":"IFERROR(VLOOKUP($A310,Inputs!$B$68:$AN$129,MATCH($B$7,Inputs!$B$68:$AN$68,0),FALSE),\"Blank\")","v":"70W Sodium Vapour"},null,null,null,null,null,null,null,null,null,null,null,null,null,null,{"$f":"IFERROR(VLOOKUP($A310,Inputs!$B$68:$AN$129,MATCH($B$7,Inputs!$B$68:$AN$68,0),FALSE),\"Blank\")","v":"70W Sodium Vapour"}]
[null,{"$f":"Inputs!$S$68","v":"Lamp UNIT price Annualised Cost"},{"$f":"Inputs!$Q$68","v":"Lamp Maintenance cycle"},null,{"$f":"IF($B310=\"Blank\",0,VLOOKUP($B310,Inputs!$C$68:$AN$129,MATCH($B311,Inputs!$C$68:$AN$68,0),FALSE))","v":1.8209369368867503},{"$f":"IF($B310=\"Blank\",0,VLOOKUP($B310,Inputs!$C$68:$AN$129,MATCH($B311,Inputs!$C$68:$AN$68,0),FALSE))","v":1.8209369368867503},{"$f":"IF($B310=\"Blank\",0,VLOOKUP($B310,Inputs!$C$68:$AN$129,MATCH($B311,Inputs!$C$68:$AN$68,0),FALSE))","v":1.8209369368867503},{"$f":"IF($B310=\"Blank\",0,VLOOKUP($B310,Inputs!$C$68:$AN$129,MATCH($B311,Inputs!$C$68:$AN$68,0),FALSE))","v":1.8209369368867503},{"$f":"IF($B310=\"Blank\",0,VLOOKUP($B310,Inputs!$C$68:$AN$129,MATCH($B311,Inputs!$C$68:$AN$68,0),FALSE))","v":1.8209369368867503},null,null,null,null,null,null,null,{"$f":"B311","v":"Lamp UNIT price Annualised Cost"},{"$f":"IF(E311=\"NA\",\"\",E311/R$2*100)","v":0.497523753247746},{"$f":"IF(F311=\"NA\",\"\",F311/S$2*100)","v":0.49888683202376721},{"$f":"IF(G311=\"NA\",\"\",G311/T$2*100)","v":0.49888683202376721},{"$f":"IF(H311=\"NA\",\"\",H311/U$2*100)","v":0.49888683202376721},{"$f":"IF(I311=\"NA\",\"\",I311/V$2*100)","v":0.497523753247746}]
[null,{"$f":"Inputs!$K$68","v":"PE Cell UNIT price Annualised Cost"},{"$f":"Inputs!$I$68","v":"PE Cell Maintenance Cycle"},null,{"$f":"IF($B310=\"Blank\",0,VLOOKUP($B310,Inputs!$C$68:$AN$129,MATCH($B312,Inputs!$C$68:$AN$68,0),FALSE))","v":0.58131255188333353},{"$f":"IF($B310=\"Blank\",0,VLOOKUP($B310,Inputs!$C$68:$AN$129,MATCH($B312,Inputs!$C$68:$AN$68,0),FALSE))","v":0.58131255188333353},{"$f":"IF($B310=\"Blank\",0,VLOOKUP($B310,Inputs!$C$68:$AN$129,MATCH($B312,Inputs!$C$68:$AN$68,0),FALSE))","v":0.58131255188333353},{"$f":"IF($B310=\"Blank\",0,VLOOKUP($B310,Inputs!$C$68:$AN$129,MATCH($B312,Inputs!$C$68:$AN$68,0),FALSE))","v":0.58131255188333353},{"$f":"IF($B310=\"Blank\",0,VLOOKUP($B310,Inputs!$C$68:$AN$129,MATCH($B312,Inputs!$C$68:$AN$68,0),FALSE))","v":0.58131255188333353},null,null,null,null,null,null,null,"PE Cell UNIT price Annualised Cost",0.15882856608834248,0.15926371284474891,0.15926371284474891,0.15926371284474891,0.15882856608834248]
[null,"Corp capex annuity per light",null,null,{"$f":"IF($B310=\"Blank\",0,'Corp Capex Annuity calcs'!F$142)","v":18.582309905017571},{"$f":"IF($B310=\"Blank\",0,'Corp Capex Annuity calcs'!G$142)","v":18.552026408230436},{"$f":"IF($B310=\"Blank\",0,'Corp Capex Annuity calcs'!H$142)","v":18.401377631486287},{"$f":"IF($B310=\"Blank\",0,'Corp Capex Annuity calcs'!I$142)","v":18.205761940470655},{"$f":"IF($B310=\"Blank\",0,'Corp Capex Annuity calcs'!J$142)","v":17.995165449295623},null,null,null,null,null,null,null,"Corp capex annuity per light",5.0771338538299373,5.0827469611590237,5.0414733236948734,4.9878799836905907,4.9167118713922466]
[null,{"$f":"Inputs!$U$68","v":"Lamp Service costs Annualised"},"Labour Portion of Lamp Service costs annualised",null,{"$f":"IF($B310=\"Blank\",0,VLOOKUP($B310,Inputs!$C$68:$AN$129,MATCH($B314,Inputs!$C$68:$AN$68,0),FALSE))+IFERROR(IF($B310=\"Blank\",0,VLOOKUP($B310,Inputs!$C$68:$AN$129,MATCH($C314,Inputs!$C$68:$AN$68,0),FALSE))*('Master Data'!K$42),0)","v":24.127490039840644},{"$f":"IF($B310=\"Blank\",0,VLOOKUP($B310,Inputs!$C$68:$AN$129,MATCH($B314,Inputs!$C$68:$AN$68,0),FALSE))+IFERROR(IF($B310=\"Blank\",0,VLOOKUP($B310,Inputs!$C$68:$AN$129,MATCH($C314,Inputs!$C$68:$AN$68,0),FALSE))*('Master Data'!L$42),0)","v":24.131023426294828},{"$f":"IF($B310=\"Blank\",0,VLOOKUP($B310,Inputs!$C$68:$AN$129,MATCH($B314,Inputs!$C$68:$AN$68,0),FALSE))+IFERROR(IF($B310=\"Blank\",0,VLOOKUP($B310,Inputs!$C$68:$AN$129,MATCH($C314,Inputs!$C$68:$AN$68,0),FALSE))*('Master Data'!M$42),0)","v":24.136412685577696},{"$f":"IF($B310=\"Blank\",0,VLOOKUP($B310,Inputs!$C$68:$AN$129,MATCH($B314,Inputs!$C$68:$AN$68,0),FALSE))+IFERROR(IF($B310=\"Blank\",0,VLOOKUP($B310,Inputs!$C$68:$AN$129,MATCH($C314,Inputs!$C$68:$AN$68,0),FALSE))*('Master Data'!N$42),0)","v":24.143056949368709},{"$f":"IF($B310=\"Blank\",0,VLOOKUP($B310,Inputs!$C$68:$AN$129,MATCH($B314,Inputs!$C$68:$AN$68,0),FALSE))+IFERROR(IF($B310=\"Blank\",0,VLOOKUP($B310,Inputs!$C$68:$AN$129,MATCH($C314,Inputs!$C$68:$AN$68,0),FALSE))*('Master Data'!O$42),0)","v":24.150816058816748},null,null,null,null,null,null,null,"Lamp Service costs Annualised",6.5922103933990828,6.611239294875296,6.6127158042678618,6.6145361505119755,6.598583622627527]
[null,{"$f":"Inputs!$M$68","v":"PE Cell Service costs Annualised"},"Labour Portion of PE Cell Service costs Annualised",null,{"$f":"IF($B310=\"Blank\",0,VLOOKUP($B310,Inputs!$C$68:$AN$129,MATCH($B315,Inputs!$C$68:$AN$68,0),FALSE))+IFERROR(IF($B310=\"Blank\",0,VLOOKUP($B310,Inputs!$C$68:$AN$129,MATCH($C315,Inputs!$C$68:$AN$68,0),FALSE))*('Master Data'!K$42),0)","v":0},{"$f":"IF($B310=\"Blank\",0,VLOOKUP($B310,Inputs!$C$68:$AN$129,MATCH($B315,Inputs!$C$68:$AN$68,0),FALSE))+IFERROR(IF($B310=\"Blank\",0,VLOOKUP($B310,Inputs!$C$68:$AN$129,MATCH($C315,Inputs!$C$68:$AN$68,0),FALSE))*('Master Data'!L$42),0)","v":0},{"$f":"IF($B310=\"Blank\",0,VLOOKUP($B310,Inputs!$C$68:$AN$129,MATCH($B315,Inputs!$C$68:$AN$68,0),FALSE))+IFERROR(IF($B310=\"Blank\",0,VLOOKUP($B310,Inputs!$C$68:$AN$129,MATCH($C315,Inputs!$C$68:$AN$68,0),FALSE))*('Master Data'!M$42),0)","v":0},{"$f":"IF($B310=\"Blank\",0,VLOOKUP($B310,Inputs!$C$68:$AN$129,MATCH($B315,Inputs!$C$68:$AN$68,0),FALSE))+IFERROR(IF($B310=\"Blank\",0,VLOOKUP($B310,Inputs!$C$68:$AN$129,MATCH($C315,Inputs!$C$68:$AN$68,0),FALSE))*('Master Data'!N$42),0)","v":0},{"$f":"IF($B310=\"Blank\",0,VLOOKUP($B310,Inputs!$C$68:$AN$129,MATCH($B315,Inputs!$C$68:$AN$68,0),FALSE))+IFERROR(IF($B310=\"Blank\",0,VLOOKUP($B310,Inputs!$C$68:$AN$129,MATCH($C315,Inputs!$C$68:$AN$68,0),FALSE))*('Master Data'!O$42),0)","v":0},null,null,null,null,null,null,null,"PE Cell Service costs Annualised",0,0,0,0,0]
[null,"Indirect Opex",null,null,{"$f":"IF($B310=\"Blank\",0,IF($B$8=\"Private Contract Lighting\",'Opex Weighting'!D$48,'Opex Weighting'!D$46))","v":25.762407087322877},{"$f":"IF($B310=\"Blank\",0,IF($B$8=\"Private Contract Lighting\",'Opex Weighting'!E$48,'Opex Weighting'!E$46))","v":25.880403763800857},{"$f":"IF($B310=\"Blank\",0,IF($B$8=\"Private Contract Lighting\",'Opex Weighting'!F$48,'Opex Weighting'!F$46))","v":20.013740175030701},{"$f":"IF($B310=\"Blank\",0,IF($B$8=\"Private Contract Lighting\",'Opex Weighting'!G$48,'Opex Weighting'!G$46))","v":19.55949970528431},{"$f":"IF($B310=\"Blank\",0,IF($B$8=\"Private Contract Lighting\",'Opex Weighting'!H$48,'Opex Weighting'!H$46))","v":19.096814305933613},null,null,null,null,null,null,null,"Indirect Opex",7.0389090402521521,7.0905215791235223,5.4832164863097814,5.3587670425436471,5.2177088267578178]
[null,"Indirect Capex",null,null,{"$f":"'Capex Weighting'!D$59","v":0},{"$f":"'Capex Weighting'!E$59","v":0},{"$f":"'Capex Weighting'!F$59","v":0},{"$f":"'Capex Weighting'!G$59","v":0},{"$f":"'Capex Weighting'!H$59","v":0},null,null,null,null,null,null,null,"Indirect Capex",0,0,0,0,0]
[null,"Opex Overheads Costs per light",null,null,{"$f":"IF($B310=\"Blank\",0,IF($B$8=\"Private Contract Lighting\",'Building Block'!C$40,'Building Block'!C$39))","v":32.224036557323004},{"$f":"IF($B310=\"Blank\",0,IF($B$8=\"Private Contract Lighting\",'Building Block'!D$40,'Building Block'!D$39))","v":31.278075996100256},{"$f":"IF($B310=\"Blank\",0,IF($B$8=\"Private Contract Lighting\",'Building Block'!E$40,'Building Block'!E$39))","v":21.467987799581408},{"$f":"IF($B310=\"Blank\",0,IF($B$8=\"Private Contract Lighting\",'Building Block'!F$40,'Building Block'!F$39))","v":21.22771925228782},{"$f":"IF($B310=\"Blank\",0,IF($B$8=\"Private Contract Lighting\",'Building Block'!G$40,'Building Block'!G$39))","v":21.210892633443169},null,null,null,null,null,null,null,"Opex Overheads Costs per light",8.8043815730390715,8.5693358893425362,5.8816404930360022,5.815813493777485,5.7953258561320133]
[null,{"$f":"Inputs!$AK$68","v":"Bracket UNIT price"},0,null,{"$f":"IF($B310=\"Blank\",0,OFFSET('CAPEX Annuity calcs'!$B$9,MATCH($B310,'CAPEX Annuity calcs'!$B$9:$B$500,0)+$C319,E$6))","v":5.4097162724452899},{"$f":"IF($B310=\"Blank\",0,OFFSET('CAPEX Annuity calcs'!$B$9,MATCH($B310,'CAPEX Annuity calcs'!$B$9:$B$500,0)+$C319,F$6))","v":5.4097162724452899},{"$f":"IF($B310=\"Blank\",0,OFFSET('CAPEX Annuity calcs'!$B$9,MATCH($B310,'CAPEX Annuity calcs'!$B$9:$B$500,0)+$C319,G$6))","v":5.4097162724452899},{"$f":"IF($B310=\"Blank\",0,OFFSET('CAPEX Annuity calcs'!$B$9,MATCH($B310,'CAPEX Annuity calcs'!$B$9:$B$500,0)+$C319,H$6))","v":5.4097162724452899},{"$f":"IF($B310=\"Blank\",0,OFFSET('CAPEX Annuity calcs'!$B$9,MATCH($B310,'CAPEX Annuity calcs'!$B$9:$B$500,0)+$C319,I$6))","v":5.4097162724452899},null,null,null,null,null,null,null,"Bracket UNIT price",1.4780645553129208,1.4821140472452849,1.4821140472452849,1.4821140472452849,1.4780645553129208]
[null,{"$f":"Inputs!$AA$68","v":"CAPEX Instalation costs"},{"$f":"C319+1","v":1},null,{"$f":"IF($B310=\"Blank\",0,OFFSET('CAPEX Annuity calcs'!$B$9,MATCH($B310,'CAPEX Annuity calcs'!$B$9:$B$500,0)+$C320,E$6))","v":0},{"$f":"IF($B310=\"Blank\",0,OFFSET('CAPEX Annuity calcs'!$B$9,MATCH($B310,'CAPEX Annuity calcs'!$B$9:$B$500,0)+$C320,F$6))","v":0},{"$f":"IF($B310=\"Blank\",0,OFFSET('CAPEX Annuity calcs'!$B$9,MATCH($B310,'CAPEX Annuity calcs'!$B$9:$B$500,0)+$C320,G$6))","v":0},{"$f":"IF($B310=\"Blank\",0,OFFSET('CAPEX Annuity calcs'!$B$9,MATCH($B310,'CAPEX Annuity calcs'!$B$9:$B$500,0)+$C320,H$6))","v":0},{"$f":"IF($B310=\"Blank\",0,OFFSET('CAPEX Annuity calcs'!$B$9,MATCH($B310,'CAPEX Annuity calcs'!$B$9:$B$500,0)+$C320,I$6))","v":0},null,null,null,null,null,null,null,"CAPEX Instalation costs",0,0,0,0,0]
[null,{"$f":"Inputs!$Z$68","v":"Luminaire UNIT price"},{"$f":"C320+1","v":2},null,{"$f":"IF($B310=\"Blank\",0,OFFSET('CAPEX Annuity calcs'!$B$9,MATCH($B310,'CAPEX Annuity calcs'!$B$9:$B$500,0)+$C321,E$6))","v":11.267680813142622},{"$f":"IF($B310=\"Blank\",0,OFFSET('CAPEX Annuity calcs'!$B$9,MATCH($B310,'CAPEX Annuity calcs'!$B$9:$B$500,0)+$C321,F$6))","v":11.267680813142622},{"$f":"IF($B310=\"Blank\",0,OFFSET('CAPEX Annuity calcs'!$B$9,MATCH($B310,'CAPEX Annuity calcs'!$B$9:$B$500,0)+$C321,G$6))","v":11.267680813142622},{"$f":"IF($B310=\"Blank\",0,OFFSET('CAPEX Annuity calcs'!$B$9,MATCH($B310,'CAPEX Annuity calcs'!$B$9:$B$500,0)+$C321,H$6))","v":11.267680813142622},{"$f":"IF($B310=\"Blank\",0,OFFSET('CAPEX Annuity calcs'!$B$9,MATCH($B310,'CAPEX Annuity calcs'!$B$9:$B$500,0)+$C321,I$6))","v":11.267680813142622},null,null,null,null,null,null,null,"Luminaire UNIT price",3.0786013150662903,3.0870358392171569,3.0870358392171569,3.0870358392171569,3.0786013150662903]
[null,{"$f":"Inputs!$AA$68","v":"CAPEX Instalation costs"},3,null,{"$f":"IF($B310=\"Blank\",0,OFFSET('CAPEX Annuity calcs'!$B$9,MATCH($B310,'CAPEX Annuity calcs'!$B$9:$B$500,0)+$C322,E$6))","v":18.736141709912243},{"$f":"IF($B310=\"Blank\",0,OFFSET('CAPEX Annuity calcs'!$B$9,MATCH($B310,'CAPEX Annuity calcs'!$B$9:$B$500,0)+$C322,F$6))","v":18.74779128716041},{"$f":"IF($B310=\"Blank\",0,OFFSET('CAPEX Annuity calcs'!$B$9,MATCH($B310,'CAPEX Annuity calcs'!$B$9:$B$500,0)+$C322,G$6))","v":18.765559678232343},{"$f":"IF($B310=\"Blank\",0,OFFSET('CAPEX Annuity calcs'!$B$9,MATCH($B310,'CAPEX Annuity calcs'!$B$9:$B$500,0)+$C322,H$6))","v":18.787465819916616},{"$f":"IF($B310=\"Blank\",0,OFFSET('CAPEX Annuity calcs'!$B$9,MATCH($B310,'CAPEX Annuity calcs'!$B$9:$B$500,0)+$C322,I$6))","v":18.813047608397444},null,null,null,null,null,null,null,"CAPEX Instalation costs",5.1191644016153672,5.1363811745644954,5.1412492269129713,5.1472509095661954,5.1401769421850938]
[null,null,null,null,{"$f":"SUM(E311:E322)","v":138.51203187377433},{"$f":"SUM(F311:F322)","v":137.66896745594477},121.86472454426644,121.00315024168611,120.34638263024459,null,null,null,null,null,null,null,null,{"$f":"ROUND(E323/R$2*100,3)","v":37.844999999999999},{"$f":"ROUND(F323/S$2*100,3)","v":37.718000000000004},{"$f":"ROUND(G323/T$2*100,3)","v":33.387999999999998},{"$f":"ROUND(H323/U$2*100,3)","v":33.152000000000001},{"$f":"ROUND(I323/V$2*100,3)","v":32.881999999999998}]
[]
[{"$f":"A310+1","v":22},{"$f":"IFERROR(VLOOKUP($A325,Inputs!$B$68:$AN$129,MATCH($B$7,Inputs!$B$68:$AN$68,0),FALSE),\"Blank\")","v":"100W Incandescent"},null,null,null,null,null,null,null,null,null,null,null,null,null,null,{"$f":"IFERROR(VLOOKUP($A325,Inputs!$B$68:$AN$129,MATCH($B$7,Inputs!$B$68:$AN$68,0),FALSE),\"Blank\")","v":"100W Incandescent"}]
[null,{"$f":"Inputs!$S$68","v":"Lamp UNIT price Annualised Cost"},{"$f":"Inputs!$Q$68","v":"Lamp Maintenance cycle"},null,{"$f":"IF($B325=\"Blank\",0,VLOOKUP($B325,Inputs!$C$68:$AN$129,MATCH($B326,Inputs!$C$68:$AN$68,0),FALSE))","v":0.43083411294890273},{"$f":"IF($B325=\"Blank\",0,VLOOKUP($B325,Inputs!$C$68:$AN$129,MATCH($B326,Inputs!$C$68:$AN$68,0),FALSE))","v":0.43083411294890273},{"$f":"IF($B325=\"Blank\",0,VLOOKUP($B325,Inputs!$C$68:$AN$129,MATCH($B326,Inputs!$C$68:$AN$68,0),FALSE))","v":0.43083411294890273},{"$f":"IF($B325=\"Blank\",0,VLOOKUP($B325,Inputs!$C$68:$AN$129,MATCH($B326,Inputs!$C$68:$AN$68,0),FALSE))","v":0.43083411294890273},{"$f":"IF($B325=\"Blank\",0,VLOOKUP($B325,Inputs!$C$68:$AN$129,MATCH($B326,Inputs!$C$68:$AN$68,0),FALSE))","v":0.43083411294890273},null,null,null,null,null,null,null,{"$f":"B326","v":"Lamp UNIT price Annualised Cost"},{"$f":"IF(E326=\"NA\",\"\",E326/R$2*100)","v":0.11771423851062916},{"$f":"IF(F326=\"NA\",\"\",F326/S$2*100)","v":0.11803674327367199},{"$f":"IF(G326=\"NA\",\"\",G326/T$2*100)","v":0.11803674327367199},{"$f":"IF(H326=\"NA\",\"\",H326/U$2*100)","v":0.11803674327367199},{"$f":"IF(I326=\"NA\",\"\",I326/V$2*100)","v":0.11771423851062916}]
[null,{"$f":"Inputs!$K$68","v":"PE Cell UNIT price Annualised Cost"},{"$f":"Inputs!$I$68","v":"PE Cell Maintenance Cycle"},null,{"$f":"IF($B325=\"Blank\",0,VLOOKUP($B325,Inputs!$C$68:$AN$129,MATCH($B327,Inputs!$C$68:$AN$68,0),FALSE))","v":1.6930974392480003},{"$f":"IF($B325=\"Blank\",0,VLOOKUP($B325,Inputs!$C$68:$AN$129,MATCH($B327,Inputs!$C$68:$AN$68,0),FALSE))","v":1.6930974392480003},{"$f":"IF($B325=\"Blank\",0,VLOOKUP($B325,Inputs!$C$68:$AN$129,MATCH($B327,Inputs!$C$68:$AN$68,0),FALSE))","v":1.6930974392480003},{"$f":"IF($B325=\"Blank\",0,VLOOKUP($B325,Inputs!$C$68:$AN$129,MATCH($B327,Inputs!$C$68:$AN$68,0),FALSE))","v":1.6930974392480003},{"$f":"IF($B325=\"Blank\",0,VLOOKUP($B325,Inputs!$C$68:$AN$129,MATCH($B327,Inputs!$C$68:$AN$68,0),FALSE))","v":1.6930974392480003},null,null,null,null,null,null,null,"PE Cell UNIT price Annualised Cost",0.46259492875628422,0.46386231212273976,0.46386231212273976,0.46386231212273976,0.46259492875628422]
[null,"Corp capex annuity per light",null,null,{"$f":"IF($B325=\"Blank\",0,'Corp Capex Annuity calcs'!F$142)","v":18.582309905017571},{"$f":"IF($B325=\"Blank\",0,'Corp Capex Annuity calcs'!G$142)","v":18.552026408230436},{"$f":"IF($B325=\"Blank\",0,'Corp Capex Annuity calcs'!H$142)","v":18.401377631486287},{"$f":"IF($B325=\"Blank\",0,'Corp Capex Annuity calcs'!I$142)","v":18.205761940470655},{"$f":"IF($B325=\"Blank\",0,'Corp Capex Annuity calcs'!J$142)","v":17.995165449295623},null,null,null,null,null,null,null,"Corp capex annuity per light",5.0771338538299373,5.0827469611590237,5.0414733236948734,4.9878799836905907,4.9167118713922466]
[null,{"$f":"Inputs!$U$68","v":"Lamp Service costs Annualised"},"Labour Portion of Lamp Service costs annualised",null,{"$f":"IF($B325=\"Blank\",0,VLOOKUP($B325,Inputs!$C$68:$AN$129,MATCH($B329,Inputs!$C$68:$AN$68,0),FALSE))+IFERROR(IF($B325=\"Blank\",0,VLOOKUP($B325,Inputs!$C$68:$AN$129,MATCH($C329,Inputs!$C$68:$AN$68,0),FALSE))*('Master Data'!K$42),0)","v":34.921367162927247},{"$f":"IF($B325=\"Blank\",0,VLOOKUP($B325,Inputs!$C$68:$AN$129,MATCH($B329,Inputs!$C$68:$AN$68,0),FALSE))+IFERROR(IF($B325=\"Blank\",0,VLOOKUP($B325,Inputs!$C$68:$AN$129,MATCH($C329,Inputs!$C$68:$AN$68,0),FALSE))*('Master Data'!L$42),0)","v":34.926481274900404},{"$f":"IF($B325=\"Blank\",0,VLOOKUP($B325,Inputs!$C$68:$AN$129,MATCH($B329,Inputs!$C$68:$AN$68,0),FALSE))+IFERROR(IF($B325=\"Blank\",0,VLOOKUP($B325,Inputs!$C$68:$AN$129,MATCH($C329,Inputs!$C$68:$AN$68,0),FALSE))*('Master Data'!M$42),0)","v":34.934281518599292},{"$f":"IF($B325=\"Blank\",0,VLOOKUP($B325,Inputs!$C$68:$AN$129,MATCH($B329,Inputs!$C$68:$AN$68,0),FALSE))+IFERROR(IF($B325=\"Blank\",0,VLOOKUP($B325,Inputs!$C$68:$AN$129,MATCH($C329,Inputs!$C$68:$AN$68,0),FALSE))*('Master Data'!N$42),0)","v":34.943898216191549},{"$f":"IF($B325=\"Blank\",0,VLOOKUP($B325,Inputs!$C$68:$AN$129,MATCH($B329,Inputs!$C$68:$AN$68,0),FALSE))+IFERROR(IF($B325=\"Blank\",0,VLOOKUP($B325,Inputs!$C$68:$AN$129,MATCH($C329,Inputs!$C$68:$AN$68,0),FALSE))*('Master Data'!O$42),0)","v":34.955128506182135},null,null,null,null,null,null,null,"Lamp Service costs Annualised",9.5413571483407775,9.5688989794247679,9.5710360324929571,9.5736707441620688,9.5505815590661562]
[null,{"$f":"Inputs!$M$68","v":"PE Cell Service costs Annualised"},"Labour Portion of PE Cell Service costs Annualised",null,{"$f":"IF($B325=\"Blank\",0,VLOOKUP($B325,Inputs!$C$68:$AN$129,MATCH($B330,Inputs!$C$68:$AN$68,0),FALSE))+IFERROR(IF($B325=\"Blank\",0,VLOOKUP($B325,Inputs!$C$68:$AN$129,MATCH($C330,Inputs!$C$68:$AN$68,0),FALSE))*('Master Data'!K$42),0)","v":0},{"$f":"IF($B325=\"Blank\",0,VLOOKUP($B325,Inputs!$C$68:$AN$129,MATCH($B330,Inputs!$C$68:$AN$68,0),FALSE))+IFERROR(IF($B325=\"Blank\",0,VLOOKUP($B325,Inputs!$C$68:$AN$129,MATCH($C330,Inputs!$C$68:$AN$68,0),FALSE))*('Master Data'!L$42),0)","v":0},{"$f":"IF($B325=\"Blank\",0,VLOOKUP($B325,Inputs!$C$68:$AN$129,MATCH($B330,Inputs!$C$68:$AN$68,0),FALSE))+IFERROR(IF($B325=\"Blank\",0,VLOOKUP($B325,Inputs!$C$68:$AN$129,MATCH($C330,Inputs!$C$68:$AN$68,0),FALSE))*('Master Data'!M$42),0)","v":0},{"$f":"IF($B325=\"Blank\",0,VLOOKUP($B325,Inputs!$C$68:$AN$129,MATCH($B330,Inputs!$C$68:$AN$68,0),FALSE))+IFERROR(IF($B325=\"Blank\",0,VLOOKUP($B325,Inputs!$C$68:$AN$129,MATCH($C330,Inputs!$C$68:$AN$68,0),FALSE))*('Master Data'!N$42),0)","v":0},{"$f":"IF($B325=\"Blank\",0,VLOOKUP($B325,Inputs!$C$68:$AN$129,MATCH($B330,Inputs!$C$68:$AN$68,0),FALSE))+IFERROR(IF($B325=\"Blank\",0,VLOOKUP($B325,Inputs!$C$68:$AN$129,MATCH($C330,Inputs!$C$68:$AN$68,0),FALSE))*('Master Data'!O$42),0)","v":0},null,null,null,null,null,null,null,"PE Cell Service costs Annualised",0,0,0,0,0]
[null,"Indirect Opex",null,null,{"$f":"IF($B325=\"Blank\",0,IF($B$8=\"Private Contract Lighting\",'Opex Weighting'!D$48,'Opex Weighting'!D$46))","v":25.762407087322877},{"$f":"IF($B325=\"Blank\",0,IF($B$8=\"Private Contract Lighting\",'Opex Weighting'!E$48,'Opex Weighting'!E$46))","v":25.880403763800857},{"$f":"IF($B325=\"Blank\",0,IF($B$8=\"Private Contract Lighting\",'Opex Weighting'!F$48,'Opex Weighting'!F$46))","v":20.013740175030701},{"$f":"IF($B325=\"Blank\",0,IF($B$8=\"Private Contract Lighting\",'Opex Weighting'!G$48,'Opex Weighting'!G$46))","v":19.55949970528431},{"$f":"IF($B325=\"Blank\",0,IF($B$8=\"Private Contract Lighting\",'Opex Weighting'!H$48,'Opex Weighting'!H$46))","v":19.096814305933613},null,null,null,null,null,null,null,"Indirect Opex",7.0389090402521521,7.0905215791235223,5.4832164863097814,5.3587670425436471,5.2177088267578178]
[null,"Indirect Capex",null,null,{"$f":"'Capex Weighting'!D$59","v":0},{"$f":"'Capex Weighting'!E$59","v":0},{"$f":"'Capex Weighting'!F$59","v":0},{"$f":"'Capex Weighting'!G$59","v":0},{"$f":"'Capex Weighting'!H$59","v":0},null,null,null,null,null,null,null,"Indirect Capex",0,0,0,0,0]
[null,"Opex Overheads Costs per light",null,null,{"$f":"IF($B325=\"Blank\",0,IF($B$8=\"Private Contract Lighting\",'Building Block'!C$40,'Building Block'!C$39))","v":32.224036557323004},{"$f":"IF($B325=\"Blank\",0,IF($B$8=\"Private Contract Lighting\",'Building Block'!D$40,'Building Block'!D$39))","v":31.278075996100256},{"$f":"IF($B325=\"Blank\",0,IF($B$8=\"Private Contract Lighting\",'Building Block'!E$40,'Building Block'!E$39))","v":21.467987799581408},{"$f":"IF($B325=\"Blank\",0,IF($B$8=\"Private Contract Lighting\",'Building Block'!F$40,'Building Block'!F$39))","v":21.22771925228782},{"$f":"IF($B325=\"Blank\",0,IF($B$8=\"Private Contract Lighting\",'Building Block'!G$40,'Building Block'!G$39))","v":21.210892633443169},null,null,null,null,null,null,null,"Opex Overheads Costs per light",8.8043815730390715,8.5693358893425362,5.8816404930360022,5.815813493777485,5.7953258561320133]
[null,{"$f":"Inputs!$AK$68","v":"Bracket UNIT price"},0,null,{"$f":"IF($B325=\"Blank\",0,OFFSET('CAPEX Annuity calcs'!$B$9,MATCH($B325,'CAPEX Annuity calcs'!$B$9:$B$500,0)+$C334,E$6))","v":4.0229650548743354},{"$f":"IF($B325=\"Blank\",0,OFFSET('CAPEX Annuity calcs'!$B$9,MATCH($B325,'CAPEX Annuity calcs'!$B$9:$B$500,0)+$C334,F$6))","v":4.0229650548743354},{"$f":"IF($B325=\"Blank\",0,OFFSET('CAPEX Annuity calcs'!$B$9,MATCH($B325,'CAPEX Annuity calcs'!$B$9:$B$500,0)+$C334,G$6))","v":4.0229650548743354},{"$f":"IF($B325=\"Blank\",0,OFFSET('CAPEX Annuity calcs'!$B$9,MATCH($B325,'CAPEX Annuity calcs'!$B$9:$B$500,0)+$C334,H$6))","v":4.0229650548743354},{"$f":"IF($B325=\"Blank\",0,OFFSET('CAPEX Annuity calcs'!$B$9,MATCH($B325,'CAPEX Annuity calcs'!$B$9:$B$500,0)+$C334,I$6))","v":4.0229650548743354},null,null,null,null,null,null,null,"Bracket UNIT price",1.0991707800203101,1.1021822068148863,1.1021822068148863,1.1021822068148863,1.0991707800203101]
[null,{"$f":"Inputs!$AA$68","v":"CAPEX Instalation costs"},{"$f":"C334+1","v":1},null,{"$f":"IF($B325=\"Blank\",0,OFFSET('CAPEX Annuity calcs'!$B$9,MATCH($B325,'CAPEX Annuity calcs'!$B$9:$B$500,0)+$C335,E$6))","v":0},{"$f":"IF($B325=\"Blank\",0,OFFSET('CAPEX Annuity calcs'!$B$9,MATCH($B325,'CAPEX Annuity calcs'!$B$9:$B$500,0)+$C335,F$6))","v":0},{"$f":"IF($B325=\"Blank\",0,OFFSET('CAPEX Annuity calcs'!$B$9,MATCH($B325,'CAPEX Annuity calcs'!$B$9:$B$500,0)+$C335,G$6))","v":0},{"$f":"IF($B325=\"Blank\",0,OFFSET('CAPEX Annuity calcs'!$B$9,MATCH($B325,'CAPEX Annuity calcs'!$B$9:$B$500,0)+$C335,H$6))","v":0},{"$f":"IF($B325=\"Blank\",0,OFFSET('CAPEX Annuity calcs'!$B$9,MATCH($B325,'CAPEX Annuity calcs'!$B$9:$B$500,0)+$C335,I$6))","v":0},null,null,null,null,null,null,null,"CAPEX Instalation costs",0,0,0,0,0]
[null,{"$f":"Inputs!$Z$68","v":"Luminaire UNIT price"},{"$f":"C335+1","v":2},null,{"$f":"IF($B325=\"Blank\",0,OFFSET('CAPEX Annuity calcs'!$B$9,MATCH($B325,'CAPEX Annuity calcs'!$B$9:$B$500,0)+$C336,E$6))","v":3.9056239463173044},{"$f":"IF($B325=\"Blank\",0,OFFSET('CAPEX Annuity calcs'!$B$9,MATCH($B325,'CAPEX Annuity calcs'!$B$9:$B$500,0)+$C336,F$6))","v":3.9056239463173044},{"$f":"IF($B325=\"Blank\",0,OFFSET('CAPEX Annuity calcs'!$B$9,MATCH($B325,'CAPEX Annuity calcs'!$B$9:$B$500,0)+$C336,G$6))","v":3.9056239463173044},{"$f":"IF($B325=\"Blank\",0,OFFSET('CAPEX Annuity calcs'!$B$9,MATCH($B325,'CAPEX Annuity calcs'!$B$9:$B$500,0)+$C336,H$6))","v":3.9056239463173044},{"$f":"IF($B325=\"Blank\",0,OFFSET('CAPEX Annuity calcs'!$B$9,MATCH($B325,'CAPEX Annuity calcs'!$B$9:$B$500,0)+$C336,I$6))","v":3.9056239463173044},null,null,null,null,null,null,null,"Luminaire UNIT price",1.0671103678462581,1.0700339578951519,1.0700339578951519,1.0700339578951519,1.0671103678462581]
[null,{"$f":"Inputs!$AA$68","v":"CAPEX Instalation costs"},3,null,{"$f":"IF($B325=\"Blank\",0,OFFSET('CAPEX Annuity calcs'!$B$9,MATCH($B325,'CAPEX Annuity calcs'!$B$9:$B$500,0)+$C337,E$6))","v":29.489604830309908},{"$f":"IF($B325=\"Blank\",0,OFFSET('CAPEX Annuity calcs'!$B$9,MATCH($B325,'CAPEX Annuity calcs'!$B$9:$B$500,0)+$C337,F$6))","v":29.507480464650605},{"$f":"IF($B325=\"Blank\",0,OFFSET('CAPEX Annuity calcs'!$B$9,MATCH($B325,'CAPEX Annuity calcs'!$B$9:$B$500,0)+$C337,G$6))","v":29.534745081628376},{"$f":"IF($B325=\"Blank\",0,OFFSET('CAPEX Annuity calcs'!$B$9,MATCH($B325,'CAPEX Annuity calcs'!$B$9:$B$500,0)+$C337,H$6))","v":29.568358848911217},{"$f":"IF($B325=\"Blank\",0,OFFSET('CAPEX Annuity calcs'!$B$9,MATCH($B325,'CAPEX Annuity calcs'!$B$9:$B$500,0)+$C337,I$6))","v":29.607612693657906},null,null,null,null,null,null,null,"CAPEX Instalation costs",8.0572690793196475,8.0842412231919472,8.0917109812680472,8.1009202325784155,8.0895116649338537]
[null,null,null,null,{"$f":"SUM(E326:E337)","v":151.03224609628916},{"$f":"SUM(F326:F337)","v":150.1969884610711},134.40465275971462,133.55775851653408,132.91813414190099,null,null,null,null,null,null,null,null,{"$f":"ROUND(E338/R$2*100,3)","v":41.265999999999998},{"$f":"ROUND(F338/S$2*100,3)","v":41.15},{"$f":"ROUND(G338/T$2*100,3)","v":36.823},{"$f":"ROUND(H338/U$2*100,3)","v":36.591000000000001},{"$f":"ROUND(I338/V$2*100,3)","v":36.316000000000003}]
[]
[{"$f":"A325+1","v":23},{"$f":"IFERROR(VLOOKUP($A340,Inputs!$B$68:$AN$129,MATCH($B$7,Inputs!$B$68:$AN$68,0),FALSE),\"Blank\")","v":"60W Incandescent"},null,null,null,null,null,null,null,null,null,null,null,null,null,null,{"$f":"IFERROR(VLOOKUP($A340,Inputs!$B$68:$AN$129,MATCH($B$7,Inputs!$B$68:$AN$68,0),FALSE),\"Blank\")","v":"60W Incandescent"}]
[null,{"$f":"Inputs!$S$68","v":"Lamp UNIT price Annualised Cost"},{"$f":"Inputs!$Q$68","v":"Lamp Maintenance cycle"},null,{"$f":"IF($B340=\"Blank\",0,VLOOKUP($B340,Inputs!$C$68:$AN$129,MATCH($B341,Inputs!$C$68:$AN$68,0),FALSE))","v":0.43083411294890273},{"$f":"IF($B340=\"Blank\",0,VLOOKUP($B340,Inputs!$C$68:$AN$129,MATCH($B341,Inputs!$C$68:$AN$68,0),FALSE))","v":0.43083411294890273},{"$f":"IF($B340=\"Blank\",0,VLOOKUP($B340,Inputs!$C$68:$AN$129,MATCH($B341,Inputs!$C$68:$AN$68,0),FALSE))","v":0.43083411294890273},{"$f":"IF($B340=\"Blank\",0,VLOOKUP($B340,Inputs!$C$68:$AN$129,MATCH($B341,Inputs!$C$68:$AN$68,0),FALSE))","v":0.43083411294890273},{"$f":"IF($B340=\"Blank\",0,VLOOKUP($B340,Inputs!$C$68:$AN$129,MATCH($B341,Inputs!$C$68:$AN$68,0),FALSE))","v":0.43083411294890273},null,null,null,null,null,null,null,{"$f":"B341","v":"Lamp UNIT price Annualised Cost"},{"$f":"IF(E341=\"NA\",\"\",E341/R$2*100)","v":0.11771423851062916},{"$f":"IF(F341=\"NA\",\"\",F341/S$2*100)","v":0.11803674327367199},{"$f":"IF(G341=\"NA\",\"\",G341/T$2*100)","v":0.11803674327367199},{"$f":"IF(H341=\"NA\",\"\",H341/U$2*100)","v":0.11803674327367199},{"$f":"IF(I341=\"NA\",\"\",I341/V$2*100)","v":0.11771423851062916}]
[null,{"$f":"Inputs!$K$68","v":"PE Cell UNIT price Annualised Cost"},{"$f":"Inputs!$I$68","v":"PE Cell Maintenance Cycle"},null,{"$f":"IF($B340=\"Blank\",0,VLOOKUP($B340,Inputs!$C$68:$AN$129,MATCH($B342,Inputs!$C$68:$AN$68,0),FALSE))","v":0.58131255188333353},{"$f":"IF($B340=\"Blank\",0,VLOOKUP($B340,Inputs!$C$68:$AN$129,MATCH($B342,Inputs!$C$68:$AN$68,0),FALSE))","v":0.58131255188333353},{"$f":"IF($B340=\"Blank\",0,VLOOKUP($B340,Inputs!$C$68:$AN$129,MATCH($B342,Inputs!$C$68:$AN$68,0),FALSE))","v":0.58131255188333353},{"$f":"IF($B340=\"Blank\",0,VLOOKUP($B340,Inputs!$C$68:$AN$129,MATCH($B342,Inputs!$C$68:$AN$68,0),FALSE))","v":0.58131255188333353},{"$f":"IF($B340=\"Blank\",0,VLOOKUP($B340,Inputs!$C$68:$AN$129,MATCH($B342,Inputs!$C$68:$AN$68,0),FALSE))","v":0.58131255188333353},null,null,null,null,null,null,null,"PE Cell UNIT price Annualised Cost",0.15882856608834248,0.15926371284474891,0.15926371284474891,0.15926371284474891,0.15882856608834248]
[null,"Corp capex annuity per light",null,null,{"$f":"IF($B340=\"Blank\",0,'Corp Capex Annuity calcs'!F$142)","v":18.582309905017571},{"$f":"IF($B340=\"Blank\",0,'Corp Capex Annuity calcs'!G$142)","v":18.552026408230436},{"$f":"IF($B340=\"Blank\",0,'Corp Capex Annuity calcs'!H$142)","v":18.401377631486287},{"$f":"IF($B340=\"Blank\",0,'Corp Capex Annuity calcs'!I$142)","v":18.205761940470655},{"$f":"IF($B340=\"Blank\",0,'Corp Capex Annuity calcs'!J$142)","v":17.995165449295623},null,null,null,null,null,null,null,"Corp capex annuity per light",5.0771338538299373,5.0827469611590237,5.0414733236948734,4.9878799836905907,4.9167118713922466]
[null,{"$f":"Inputs!$U$68","v":"Lamp Service costs Annualised"},"Labour Portion of Lamp Service costs annualised",null,{"$f":"IF($B340=\"Blank\",0,VLOOKUP($B340,Inputs!$C$68:$AN$129,MATCH($B344,Inputs!$C$68:$AN$68,0),FALSE))+IFERROR(IF($B340=\"Blank\",0,VLOOKUP($B340,Inputs!$C$68:$AN$129,MATCH($C344,Inputs!$C$68:$AN$68,0),FALSE))*('Master Data'!K$42),0)","v":24.127490039840644},{"$f":"IF($B340=\"Blank\",0,VLOOKUP($B340,Inputs!$C$68:$AN$129,MATCH($B344,Inputs!$C$68:$AN$68,0),FALSE))+IFERROR(IF($B340=\"Blank\",0,VLOOKUP($B340,Inputs!$C$68:$AN$129,MATCH($C344,Inputs!$C$68:$AN$68,0),FALSE))*('Master Data'!L$42),0)","v":24.131023426294828},{"$f":"IF($B340=\"Blank\",0,VLOOKUP($B340,Inputs!$C$68:$AN$129,MATCH($B344,Inputs!$C$68:$AN$68,0),FALSE))+IFERROR(IF($B340=\"Blank\",0,VLOOKUP($B340,Inputs!$C$68:$AN$129,MATCH($C344,Inputs!$C$68:$AN$68,0),FALSE))*('Master Data'!M$42),0)","v":24.136412685577696},{"$f":"IF($B340=\"Blank\",0,VLOOKUP($B340,Inputs!$C$68:$AN$129,MATCH($B344,Inputs!$C$68:$AN$68,0),FALSE))+IFERROR(IF($B340=\"Blank\",0,VLOOKUP($B340,Inputs!$C$68:$AN$129,MATCH($C344,Inputs!$C$68:$AN$68,0),FALSE))*('Master Data'!N$42),0)","v":24.143056949368709},{"$f":"IF($B340=\"Blank\",0,VLOOKUP($B340,Inputs!$C$68:$AN$129,MATCH($B344,Inputs!$C$68:$AN$68,0),FALSE))+IFERROR(IF($B340=\"Blank\",0,VLOOKUP($B340,Inputs!$C$68:$AN$129,MATCH($C344,Inputs!$C$68:$AN$68,0),FALSE))*('Master Data'!O$42),0)","v":24.150816058816748},null,null,null,null,null,null,null,"Lamp Service costs Annualised",6.5922103933990828,6.611239294875296,6.6127158042678618,6.6145361505119755,6.598583622627527]
[null,{"$f":"Inputs!$M$68","v":"PE Cell Service costs Annualised"},"Labour Portion of PE Cell Service costs Annualised",null,{"$f":"IF($B340=\"Blank\",0,VLOOKUP($B340,Inputs!$C$68:$AN$129,MATCH($B345,Inputs!$C$68:$AN$68,0),FALSE))+IFERROR(IF($B340=\"Blank\",0,VLOOKUP($B340,Inputs!$C$68:$AN$129,MATCH($C345,Inputs!$C$68:$AN$68,0),FALSE))*('Master Data'!K$42),0)","v":0},{"$f":"IF($B340=\"Blank\",0,VLOOKUP($B340,Inputs!$C$68:$AN$129,MATCH($B345,Inputs!$C$68:$AN$68,0),FALSE))+IFERROR(IF($B340=\"Blank\",0,VLOOKUP($B340,Inputs!$C$68:$AN$129,MATCH($C345,Inputs!$C$68:$AN$68,0),FALSE))*('Master Data'!L$42),0)","v":0},{"$f":"IF($B340=\"Blank\",0,VLOOKUP($B340,Inputs!$C$68:$AN$129,MATCH($B345,Inputs!$C$68:$AN$68,0),FALSE))+IFERROR(IF($B340=\"Blank\",0,VLOOKUP($B340,Inputs!$C$68:$AN$129,MATCH($C345,Inputs!$C$68:$AN$68,0),FALSE))*('Master Data'!M$42),0)","v":0},{"$f":"IF($B340=\"Blank\",0,VLOOKUP($B340,Inputs!$C$68:$AN$129,MATCH($B345,Inputs!$C$68:$AN$68,0),FALSE))+IFERROR(IF($B340=\"Blank\",0,VLOOKUP($B340,Inputs!$C$68:$AN$129,MATCH($C345,Inputs!$C$68:$AN$68,0),FALSE))*('Master Data'!N$42),0)","v":0},{"$f":"IF($B340=\"Blank\",0,VLOOKUP($B340,Inputs!$C$68:$AN$129,MATCH($B345,Inputs!$C$68:$AN$68,0),FALSE))+IFERROR(IF($B340=\"Blank\",0,VLOOKUP($B340,Inputs!$C$68:$AN$129,MATCH($C345,Inputs!$C$68:$AN$68,0),FALSE))*('Master Data'!O$42),0)","v":0},null,null,null,null,null,null,null,"PE Cell Service costs Annualised",0,0,0,0,0]
[null,"Indirect Opex",null,null,{"$f":"IF($B340=\"Blank\",0,IF($B$8=\"Private Contract Lighting\",'Opex Weighting'!D$48,'Opex Weighting'!D$46))","v":25.762407087322877},{"$f":"IF($B340=\"Blank\",0,IF($B$8=\"Private Contract Lighting\",'Opex Weighting'!E$48,'Opex Weighting'!E$46))","v":25.880403763800857},{"$f":"IF($B340=\"Blank\",0,IF($B$8=\"Private Contract Lighting\",'Opex Weighting'!F$48,'Opex Weighting'!F$46))","v":20.013740175030701},{"$f":"IF($B340=\"Blank\",0,IF($B$8=\"Private Contract Lighting\",'Opex Weighting'!G$48,'Opex Weighting'!G$46))","v":19.55949970528431},{"$f":"IF($B340=\"Blank\",0,IF($B$8=\"Private Contract Lighting\",'Opex Weighting'!H$48,'Opex Weighting'!H$46))","v":19.096814305933613},null,null,null,null,null,null,null,"Indirect Opex",7.0389090402521521,7.0905215791235223,5.4832164863097814,5.3587670425436471,5.2177088267578178]
[null,"Indirect Capex",null,null,{"$f":"'Capex Weighting'!D$59","v":0},{"$f":"'Capex Weighting'!E$59","v":0},{"$f":"'Capex Weighting'!F$59","v":0},{"$f":"'Capex Weighting'!G$59","v":0},{"$f":"'Capex Weighting'!H$59","v":0},null,null,null,null,null,null,null,"Indirect Capex",0,0,0,0,0]
[null,"Opex Overheads Costs per light",null,null,{"$f":"IF($B340=\"Blank\",0,IF($B$8=\"Private Contract Lighting\",'Building Block'!C$40,'Building Block'!C$39))","v":32.224036557323004},{"$f":"IF($B340=\"Blank\",0,IF($B$8=\"Private Contract Lighting\",'Building Block'!D$40,'Building Block'!D$39))","v":31.278075996100256},{"$f":"IF($B340=\"Blank\",0,IF($B$8=\"Private Contract Lighting\",'Building Block'!E$40,'Building Block'!E$39))","v":21.467987799581408},{"$f":"IF($B340=\"Blank\",0,IF($B$8=\"Private Contract Lighting\",'Building Block'!F$40,'Building Block'!F$39))","v":21.22771925228782},{"$f":"IF($B340=\"Blank\",0,IF($B$8=\"Private Contract Lighting\",'Building Block'!G$40,'Building Block'!G$39))","v":21.210892633443169},null,null,null,null,null,null,null,"Opex Overheads Costs per light",8.8043815730390715,8.5693358893425362,5.8816404930360022,5.815813493777485,5.7953258561320133]
[null,{"$f":"Inputs!$AK$68","v":"Bracket UNIT price"},0,null,{"$f":"IF($B340=\"Blank\",0,OFFSET('CAPEX Annuity calcs'!$B$9,MATCH($B340,'CAPEX Annuity calcs'!$B$9:$B$500,0)+$C349,E$6))","v":4.0229650548743354},{"$f":"IF($B340=\"Blank\",0,OFFSET('CAPEX Annuity calcs'!$B$9,MATCH($B340,'CAPEX Annuity calcs'!$B$9:$B$500,0)+$C349,F$6))","v":4.0229650548743354},{"$f":"IF($B340=\"Blank\",0,OFFSET('CAPEX Annuity calcs'!$B$9,MATCH($B340,'CAPEX Annuity calcs'!$B$9:$B$500,0)+$C349,G$6))","v":4.0229650548743354},{"$f":"IF($B340=\"Blank\",0,OFFSET('CAPEX Annuity calcs'!$B$9,MATCH($B340,'CAPEX Annuity calcs'!$B$9:$B$500,0)+$C349,H$6))","v":4.0229650548743354},{"$f":"IF($B340=\"Blank\",0,OFFSET('CAPEX Annuity calcs'!$B$9,MATCH($B340,'CAPEX Annuity calcs'!$B$9:$B$500,0)+$C349,I$6))","v":4.0229650548743354},null,null,null,null,null,null,null,"Bracket UNIT price",1.0991707800203101,1.1021822068148863,1.1021822068148863,1.1021822068148863,1.0991707800203101]
[null,{"$f":"Inputs!$AA$68","v":"CAPEX Instalation costs"},{"$f":"C349+1","v":1},null,{"$f":"IF($B340=\"Blank\",0,OFFSET('CAPEX Annuity calcs'!$B$9,MATCH($B340,'CAPEX Annuity calcs'!$B$9:$B$500,0)+$C350,E$6))","v":0},{"$f":"IF($B340=\"Blank\",0,OFFSET('CAPEX Annuity calcs'!$B$9,MATCH($B340,'CAPEX Annuity calcs'!$B$9:$B$500,0)+$C350,F$6))","v":0},{"$f":"IF($B340=\"Blank\",0,OFFSET('CAPEX Annuity calcs'!$B$9,MATCH($B340,'CAPEX Annuity calcs'!$B$9:$B$500,0)+$C350,G$6))","v":0},{"$f":"IF($B340=\"Blank\",0,OFFSET('CAPEX Annuity calcs'!$B$9,MATCH($B340,'CAPEX Annuity calcs'!$B$9:$B$500,0)+$C350,H$6))","v":0},{"$f":"IF($B340=\"Blank\",0,OFFSET('CAPEX Annuity calcs'!$B$9,MATCH($B340,'CAPEX Annuity calcs'!$B$9:$B$500,0)+$C350,I$6))","v":0},null,null,null,null,null,null,null,"CAPEX Instalation costs",0,0,0,0,0]
[null,{"$f":"Inputs!$Z$68","v":"Luminaire UNIT price"},{"$f":"C350+1","v":2},null,{"$f":"IF($B340=\"Blank\",0,OFFSET('CAPEX Annuity calcs'!$B$9,MATCH($B340,'CAPEX Annuity calcs'!$B$9:$B$500,0)+$C351,E$6))","v":3.9056239463173044},{"$f":"IF($B340=\"Blank\",0,OFFSET('CAPEX Annuity calcs'!$B$9,MATCH($B340,'CAPEX Annuity calcs'!$B$9:$B$500,0)+$C351,F$6))","v":3.9056239463173044},{"$f":"IF($B340=\"Blank\",0,OFFSET('CAPEX Annuity calcs'!$B$9,MATCH($B340,'CAPEX Annuity calcs'!$B$9:$B$500,0)+$C351,G$6))","v":3.9056239463173044},{"$f":"IF($B340=\"Blank\",0,OFFSET('CAPEX Annuity calcs'!$B$9,MATCH($B340,'CAPEX Annuity calcs'!$B$9:$B$500,0)+$C351,H$6))","v":3.9056239463173044},{"$f":"IF($B340=\"Blank\",0,OFFSET('CAPEX Annuity calcs'!$B$9,MATCH($B340,'CAPEX Annuity calcs'!$B$9:$B$500,0)+$C351,I$6))","v":3.9056239463173044},null,null,null,null,null,null,null,"Luminaire UNIT price",1.0671103678462581,1.0700339578951519,1.0700339578951519,1.0700339578951519,1.0671103678462581]
[null,{"$f":"Inputs!$AA$68","v":"CAPEX Instalation costs"},3,null,{"$f":"IF($B340=\"Blank\",0,OFFSET('CAPEX Annuity calcs'!$B$9,MATCH($B340,'CAPEX Annuity calcs'!$B$9:$B$500,0)+$C352,E$6))","v":18.736141709912243},{"$f":"IF($B340=\"Blank\",0,OFFSET('CAPEX Annuity calcs'!$B$9,MATCH($B340,'CAPEX Annuity calcs'!$B$9:$B$500,0)+$C352,F$6))","v":18.74779128716041},{"$f":"IF($B340=\"Blank\",0,OFFSET('CAPEX Annuity calcs'!$B$9,MATCH($B340,'CAPEX Annuity calcs'!$B$9:$B$500,0)+$C352,G$6))","v":18.765559678232343},{"$f":"IF($B340=\"Blank\",0,OFFSET('CAPEX Annuity calcs'!$B$9,MATCH($B340,'CAPEX Annuity calcs'!$B$9:$B$500,0)+$C352,H$6))","v":18.787465819916616},{"$f":"IF($B340=\"Blank\",0,OFFSET('CAPEX Annuity calcs'!$B$9,MATCH($B340,'CAPEX Annuity calcs'!$B$9:$B$500,0)+$C352,I$6))","v":18.813047608397444},null,null,null,null,null,null,null,"CAPEX Instalation costs",5.1191644016153672,5.1363811745644954,5.1412492269129713,5.1472509095661954,5.1401769421850938]
[null,null,null,null,{"$f":"SUM(E341:E352)","v":128.37312096544019},{"$f":"SUM(F341:F352)","v":127.53005654761066},111.72581363593233,110.86423933335199,110.20747172191047,null,null,null,null,null,null,null,null,{"$f":"ROUND(E353/R$2*100,3)","v":35.075000000000003},{"$f":"ROUND(F353/S$2*100,3)","v":34.94},{"$f":"ROUND(G353/T$2*100,3)","v":30.61},{"$f":"ROUND(H353/U$2*100,3)","v":30.373999999999999},{"$f":"ROUND(I353/V$2*100,3)","v":30.111000000000001}]
[null,"Labour Portion of PE Cell Service costs Annualised"]
[{"$f":"A340+1","v":24},{"$f":"IFERROR(VLOOKUP($A355,Inputs!$B$68:$AN$129,MATCH($B$7,Inputs!$B$68:$AN$68,0),FALSE),\"Blank\")","v":"18W LED"},null,null,null,null,null,null,null,null,null,null,null,null,null,null,{"$f":"IFERROR(VLOOKUP($A355,Inputs!$B$68:$AN$129,MATCH($B$7,Inputs!$B$68:$AN$68,0),FALSE),\"Blank\")","v":"18W LED"}]
[null,{"$f":"Inputs!$S$68","v":"Lamp UNIT price Annualised Cost"},{"$f":"Inputs!$Q$68","v":"Lamp Maintenance cycle"},null,{"$f":"IF($B355=\"Blank\",0,VLOOKUP($B355,Inputs!$C$68:$AN$129,MATCH($B356,Inputs!$C$68:$AN$68,0),FALSE))","v":0},{"$f":"IF($B355=\"Blank\",0,VLOOKUP($B355,Inputs!$C$68:$AN$129,MATCH($B356,Inputs!$C$68:$AN$68,0),FALSE))","v":0},{"$f":"IF($B355=\"Blank\",0,VLOOKUP($B355,Inputs!$C$68:$AN$129,MATCH($B356,Inputs!$C$68:$AN$68,0),FALSE))","v":0},{"$f":"IF($B355=\"Blank\",0,VLOOKUP($B355,Inputs!$C$68:$AN$129,MATCH($B356,Inputs!$C$68:$AN$68,0),FALSE))","v":0},{"$f":"IF($B355=\"Blank\",0,VLOOKUP($B355,Inputs!$C$68:$AN$129,MATCH($B356,Inputs!$C$68:$AN$68,0),FALSE))","v":0},null,null,null,null,null,null,null,{"$f":"B356","v":"Lamp UNIT price Annualised Cost"},{"$f":"IF(E356=\"NA\",\"\",E356/R$2*100)","v":0},{"$f":"IF(F356=\"NA\",\"\",F356/S$2*100)","v":0},{"$f":"IF(G356=\"NA\",\"\",G356/T$2*100)","v":0},{"$f":"IF(H356=\"NA\",\"\",H356/U$2*100)","v":0},{"$f":"IF(I356=\"NA\",\"\",I356/V$2*100)","v":0}]
[null,{"$f":"Inputs!$K$68","v":"PE Cell UNIT price Annualised Cost"},{"$f":"Inputs!$I$68","v":"PE Cell Maintenance Cycle"},null,{"$f":"IF($B355=\"Blank\",0,VLOOKUP($B355,Inputs!$C$68:$AN$129,MATCH($B357,Inputs!$C$68:$AN$68,0),FALSE))","v":0.29065627594166676},{"$f":"IF($B355=\"Blank\",0,VLOOKUP($B355,Inputs!$C$68:$AN$129,MATCH($B357,Inputs!$C$68:$AN$68,0),FALSE))","v":0.29065627594166676},{"$f":"IF($B355=\"Blank\",0,VLOOKUP($B355,Inputs!$C$68:$AN$129,MATCH($B357,Inputs!$C$68:$AN$68,0),FALSE))","v":0.29065627594166676},{"$f":"IF($B355=\"Blank\",0,VLOOKUP($B355,Inputs!$C$68:$AN$129,MATCH($B357,Inputs!$C$68:$AN$68,0),FALSE))","v":0.29065627594166676},{"$f":"IF($B355=\"Blank\",0,VLOOKUP($B355,Inputs!$C$68:$AN$129,MATCH($B357,Inputs!$C$68:$AN$68,0),FALSE))","v":0.29065627594166676},null,null,null,null,null,null,null,"PE Cell UNIT price Annualised Cost",7.9414283044171238E-2,7.9631856422374456E-2,7.9631856422374456E-2,7.9631856422374456E-2,7.9414283044171238E-2]
[null,"Corp capex annuity per light",null,null,{"$f":"IF($B355=\"Blank\",0,'Corp Capex Annuity calcs'!F$142)","v":18.582309905017571},{"$f":"IF($B355=\"Blank\",0,'Corp Capex Annuity calcs'!G$142)","v":18.552026408230436},{"$f":"IF($B355=\"Blank\",0,'Corp Capex Annuity calcs'!H$142)","v":18.401377631486287},{"$f":"IF($B355=\"Blank\",0,'Corp Capex Annuity calcs'!I$142)","v":18.205761940470655},{"$f":"IF($B355=\"Blank\",0,'Corp Capex Annuity calcs'!J$142)","v":17.995165449295623},null,null,null,null,null,null,null,"Corp capex annuity per light",5.0771338538299373,5.0827469611590237,5.0414733236948734,4.9878799836905907,4.9167118713922466]
[null,{"$f":"Inputs!$U$68","v":"Lamp Service costs Annualised"},"Labour Portion of Lamp Service costs annualised",null,{"$f":"IF($B355=\"Blank\",0,VLOOKUP($B355,Inputs!$C$68:$AN$129,MATCH($B359,Inputs!$C$68:$AN$68,0),FALSE))+IFERROR(IF($B355=\"Blank\",0,VLOOKUP($B355,Inputs!$C$68:$AN$129,MATCH($C359,Inputs!$C$68:$AN$68,0),FALSE))*('Master Data'!K$42),0)","v":0},{"$f":"IF($B355=\"Blank\",0,VLOOKUP($B355,Inputs!$C$68:$AN$129,MATCH($B359,Inputs!$C$68:$AN$68,0),FALSE))+IFERROR(IF($B355=\"Blank\",0,VLOOKUP($B355,Inputs!$C$68:$AN$129,MATCH($C359,Inputs!$C$68:$AN$68,0),FALSE))*('Master Data'!L$42),0)","v":0},{"$f":"IF($B355=\"Blank\",0,VLOOKUP($B355,Inputs!$C$68:$AN$129,MATCH($B359,Inputs!$C$68:$AN$68,0),FALSE))+IFERROR(IF($B355=\"Blank\",0,VLOOKUP($B355,Inputs!$C$68:$AN$129,MATCH($C359,Inputs!$C$68:$AN$68,0),FALSE))*('Master Data'!M$42),0)","v":0},{"$f":"IF($B355=\"Blank\",0,VLOOKUP($B355,Inputs!$C$68:$AN$129,MATCH($B359,Inputs!$C$68:$AN$68,0),FALSE))+IFERROR(IF($B355=\"Blank\",0,VLOOKUP($B355,Inputs!$C$68:$AN$129,MATCH($C359,Inputs!$C$68:$AN$68,0),FALSE))*('Master Data'!N$42),0)","v":0},{"$f":"IF($B355=\"Blank\",0,VLOOKUP($B355,Inputs!$C$68:$AN$129,MATCH($B359,Inputs!$C$68:$AN$68,0),FALSE))+IFERROR(IF($B355=\"Blank\",0,VLOOKUP($B355,Inputs!$C$68:$AN$129,MATCH($C359,Inputs!$C$68:$AN$68,0),FALSE))*('Master Data'!O$42),0)","v":0},null,null,null,null,null,null,null,"Lamp Service costs Annualised",0,0,0,0,0]
[null,{"$f":"Inputs!$M$68","v":"PE Cell Service costs Annualised"},"Labour Portion of PE Cell Service costs Annualised",null,{"$f":"IF($B355=\"Blank\",0,VLOOKUP($B355,Inputs!$C$68:$AN$129,MATCH($B360,Inputs!$C$68:$AN$68,0),FALSE))+IFERROR(IF($B355=\"Blank\",0,VLOOKUP($B355,Inputs!$C$68:$AN$129,MATCH($C360,Inputs!$C$68:$AN$68,0),FALSE))*('Master Data'!K$42),0)","v":6.0318725099601611},{"$f":"IF($B355=\"Blank\",0,VLOOKUP($B355,Inputs!$C$68:$AN$129,MATCH($B360,Inputs!$C$68:$AN$68,0),FALSE))+IFERROR(IF($B355=\"Blank\",0,VLOOKUP($B355,Inputs!$C$68:$AN$129,MATCH($C360,Inputs!$C$68:$AN$68,0),FALSE))*('Master Data'!L$42),0)","v":6.0327558565737069},{"$f":"IF($B355=\"Blank\",0,VLOOKUP($B355,Inputs!$C$68:$AN$129,MATCH($B360,Inputs!$C$68:$AN$68,0),FALSE))+IFERROR(IF($B355=\"Blank\",0,VLOOKUP($B355,Inputs!$C$68:$AN$129,MATCH($C360,Inputs!$C$68:$AN$68,0),FALSE))*('Master Data'!M$42),0)","v":6.034103171394424},{"$f":"IF($B355=\"Blank\",0,VLOOKUP($B355,Inputs!$C$68:$AN$129,MATCH($B360,Inputs!$C$68:$AN$68,0),FALSE))+IFERROR(IF($B355=\"Blank\",0,VLOOKUP($B355,Inputs!$C$68:$AN$129,MATCH($C360,Inputs!$C$68:$AN$68,0),FALSE))*('Master Data'!N$42),0)","v":6.0357642373421774},{"$f":"IF($B355=\"Blank\",0,VLOOKUP($B355,Inputs!$C$68:$AN$129,MATCH($B360,Inputs!$C$68:$AN$68,0),FALSE))+IFERROR(IF($B355=\"Blank\",0,VLOOKUP($B355,Inputs!$C$68:$AN$129,MATCH($C360,Inputs!$C$68:$AN$68,0),FALSE))*('Master Data'!O$42),0)","v":6.0377040147041869},null,null,null,null,null,null,null,"PE Cell Service costs Annualised",{"$f":"IF(E360=\"NA\",\"\",E360/R$2*100)","v":1.6480525983497707},1.652809823718824,1.6531789510669654,1.6536340376279939,1.6496459056568817]
[null,"Indirect Opex",null,null,{"$f":"IF($B355=\"Blank\",0,IF($B$8=\"Private Contract Lighting\",'Opex Weighting'!D$48,'Opex Weighting'!D$46))","v":25.762407087322877},{"$f":"IF($B355=\"Blank\",0,IF($B$8=\"Private Contract Lighting\",'Opex Weighting'!E$48,'Opex Weighting'!E$46))","v":25.880403763800857},{"$f":"IF($B355=\"Blank\",0,IF($B$8=\"Private Contract Lighting\",'Opex Weighting'!F$48,'Opex Weighting'!F$46))","v":20.013740175030701},{"$f":"IF($B355=\"Blank\",0,IF($B$8=\"Private Contract Lighting\",'Opex Weighting'!G$48,'Opex Weighting'!G$46))","v":19.55949970528431},{"$f":"IF($B355=\"Blank\",0,IF($B$8=\"Private Contract Lighting\",'Opex Weighting'!H$48,'Opex Weighting'!H$46))","v":19.096814305933613},null,null,null,null,null,null,null,"Indirect Opex",7.0389090402521521,7.0905215791235223,5.4832164863097814,5.3587670425436471,5.2177088267578178]
[null,"Indirect Capex",null,null,{"$f":"'Capex Weighting'!D$59","v":0},{"$f":"'Capex Weighting'!E$59","v":0},{"$f":"'Capex Weighting'!F$59","v":0},{"$f":"'Capex Weighting'!G$59","v":0},{"$f":"'Capex Weighting'!H$59","v":0},null,null,null,null,null,null,null,"Indirect Capex",0,0,0,0,0]
[null,"Opex Overheads Costs per light",null,null,{"$f":"IF($B355=\"Blank\",0,IF($B$8=\"Private Contract Lighting\",'Building Block'!C$40,'Building Block'!C$39))","v":32.224036557323004},{"$f":"IF($B355=\"Blank\",0,IF($B$8=\"Private Contract Lighting\",'Building Block'!D$40,'Building Block'!D$39))","v":31.278075996100256},{"$f":"IF($B355=\"Blank\",0,IF($B$8=\"Private Contract Lighting\",'Building Block'!E$40,'Building Block'!E$39))","v":21.467987799581408},{"$f":"IF($B355=\"Blank\",0,IF($B$8=\"Private Contract Lighting\",'Building Block'!F$40,'Building Block'!F$39))","v":21.22771925228782},{"$f":"IF($B355=\"Blank\",0,IF($B$8=\"Private Contract Lighting\",'Building Block'!G$40,'Building Block'!G$39))","v":21.210892633443169},null,null,null,null,null,null,null,"Opex Overheads Costs per light",8.8043815730390715,8.5693358893425362,5.8816404930360022,5.815813493777485,5.7953258561320133]
[null,{"$f":"Inputs!$AK$68","v":"Bracket UNIT price"},0,null,{"$f":"IF($B355=\"Blank\",0,OFFSET('CAPEX Annuity calcs'!$B$9,MATCH($B355,'CAPEX Annuity calcs'!$B$9:$B$500,0)+$C364,E$6))","v":4.6160992576591218},{"$f":"IF($B355=\"Blank\",0,OFFSET('CAPEX Annuity calcs'!$B$9,MATCH($B355,'CAPEX Annuity calcs'!$B$9:$B$500,0)+$C364,F$6))","v":4.6160992576591218},{"$f":"IF($B355=\"Blank\",0,OFFSET('CAPEX Annuity calcs'!$B$9,MATCH($B355,'CAPEX Annuity calcs'!$B$9:$B$500,0)+$C364,G$6))","v":4.6160992576591218},{"$f":"IF($B355=\"Blank\",0,OFFSET('CAPEX Annuity calcs'!$B$9,MATCH($B355,'CAPEX Annuity calcs'!$B$9:$B$500,0)+$C364,H$6))","v":4.6160992576591218},{"$f":"IF($B355=\"Blank\",0,OFFSET('CAPEX Annuity calcs'!$B$9,MATCH($B355,'CAPEX Annuity calcs'!$B$9:$B$500,0)+$C364,I$6))","v":4.6160992576591218},null,null,null,null,null,null,null,"Bracket UNIT price",1.2612293053713448,1.2646847281257869,1.2646847281257869,1.2646847281257869,1.2612293053713448]
[null,{"$f":"Inputs!$AA$68","v":"CAPEX Instalation costs"},{"$f":"C364+1","v":1},null,{"$f":"IF($B355=\"Blank\",0,OFFSET('CAPEX Annuity calcs'!$B$9,MATCH($B355,'CAPEX Annuity calcs'!$B$9:$B$500,0)+$C365,E$6))","v":0},{"$f":"IF($B355=\"Blank\",0,OFFSET('CAPEX Annuity calcs'!$B$9,MATCH($B355,'CAPEX Annuity calcs'!$B$9:$B$500,0)+$C365,F$6))","v":0},{"$f":"IF($B355=\"Blank\",0,OFFSET('CAPEX Annuity calcs'!$B$9,MATCH($B355,'CAPEX Annuity calcs'!$B$9:$B$500,0)+$C365,G$6))","v":0},{"$f":"IF($B355=\"Blank\",0,OFFSET('CAPEX Annuity calcs'!$B$9,MATCH($B355,'CAPEX Annuity calcs'!$B$9:$B$500,0)+$C365,H$6))","v":0},{"$f":"IF($B355=\"Blank\",0,OFFSET('CAPEX Annuity calcs'!$B$9,MATCH($B355,'CAPEX Annuity calcs'!$B$9:$B$500,0)+$C365,I$6))","v":0},null,null,null,null,null,null,null,"CAPEX Instalation costs",0,0,0,0,0]
[null,{"$f":"Inputs!$Z$68","v":"Luminaire UNIT price"},{"$f":"C365+1","v":2},null,{"$f":"IF($B355=\"Blank\",0,OFFSET('CAPEX Annuity calcs'!$B$9,MATCH($B355,'CAPEX Annuity calcs'!$B$9:$B$500,0)+$C366,E$6))","v":25.571882785727663},{"$f":"IF($B355=\"Blank\",0,OFFSET('CAPEX Annuity calcs'!$B$9,MATCH($B355,'CAPEX Annuity calcs'!$B$9:$B$500,0)+$C366,F$6))","v":25.571882785727663},{"$f":"IF($B355=\"Blank\",0,OFFSET('CAPEX Annuity calcs'!$B$9,MATCH($B355,'CAPEX Annuity calcs'!$B$9:$B$500,0)+$C366,G$6))","v":25.571882785727663},{"$f":"IF($B355=\"Blank\",0,OFFSET('CAPEX Annuity calcs'!$B$9,MATCH($B355,'CAPEX Annuity calcs'!$B$9:$B$500,0)+$C366,H$6))","v":25.571882785727663},{"$f":"IF($B355=\"Blank\",0,OFFSET('CAPEX Annuity calcs'!$B$9,MATCH($B355,'CAPEX Annuity calcs'!$B$9:$B$500,0)+$C366,I$6))","v":25.571882785727663},null,null,null,null,null,null,null,"Luminaire UNIT price",6.9868532201441704,7.0059952837610036,7.0059952837610036,7.0059952837610036,6.9868532201441704]
[null,{"$f":"Inputs!$AA$68","v":"CAPEX Instalation costs"},3,null,{"$f":"IF($B355=\"Blank\",0,OFFSET('CAPEX Annuity calcs'!$B$9,MATCH($B355,'CAPEX Annuity calcs'!$B$9:$B$500,0)+$C367,E$6))","v":18.736141709912243},{"$f":"IF($B355=\"Blank\",0,OFFSET('CAPEX Annuity calcs'!$B$9,MATCH($B355,'CAPEX Annuity calcs'!$B$9:$B$500,0)+$C367,F$6))","v":18.74779128716041},{"$f":"IF($B355=\"Blank\",0,OFFSET('CAPEX Annuity calcs'!$B$9,MATCH($B355,'CAPEX Annuity calcs'!$B$9:$B$500,0)+$C367,G$6))","v":18.765559678232343},{"$f":"IF($B355=\"Blank\",0,OFFSET('CAPEX Annuity calcs'!$B$9,MATCH($B355,'CAPEX Annuity calcs'!$B$9:$B$500,0)+$C367,H$6))","v":18.787465819916616},{"$f":"IF($B355=\"Blank\",0,OFFSET('CAPEX Annuity calcs'!$B$9,MATCH($B355,'CAPEX Annuity calcs'!$B$9:$B$500,0)+$C367,I$6))","v":18.813047608397444},null,null,null,null,null,null,null,"CAPEX Instalation costs",5.1191644016153672,5.1363811745644954,5.1412492269129713,5.1472509095661954,5.1401769421850938]
[null,null,null,null,{"$f":"SUM(E356:E367)","v":131.81540608886431},{"$f":"SUM(F356:F367)","v":130.96969163119411},115.16140677505362,114.29484927463002,113.63226233110248,null,null,null,null,null,null,null,null,{"$f":"ROUND(E368/R$2*100,3)","v":36.015000000000001},{"$f":"ROUND(F368/S$2*100,3)","v":35.881999999999998},{"$f":"ROUND(G368/T$2*100,3)","v":31.550999999999998},{"$f":"ROUND(H368/U$2*100,3)","v":31.314},{"$f":"ROUND(I368/V$2*100,3)","v":31.047000000000001}]
[]
[{"$f":"A355+1","v":25},{"$f":"IFERROR(VLOOKUP($A370,Inputs!$B$68:$AN$129,MATCH($B$7,Inputs!$B$68:$AN$68,0),FALSE),\"Blank\")","v":"18W LED Decorative - Bottom Pole Entry"},null,null,null,null,null,null,null,null,null,null,null,null,null,null,{"$f":"IFERROR(VLOOKUP($A370,Inputs!$B$68:$AN$129,MATCH($B$7,Inputs!$B$68:$AN$68,0),FALSE),\"Blank\")","v":"18W LED Decorative - Bottom Pole Entry"}]
[null,{"$f":"Inputs!$S$68","v":"Lamp UNIT price Annualised Cost"},{"$f":"Inputs!$Q$68","v":"Lamp Maintenance cycle"},null,{"$f":"IF($B370=\"Blank\",0,VLOOKUP($B370,Inputs!$C$68:$AN$129,MATCH($B371,Inputs!$C$68:$AN$68,0),FALSE))","v":0},{"$f":"IF($B370=\"Blank\",0,VLOOKUP($B370,Inputs!$C$68:$AN$129,MATCH($B371,Inputs!$C$68:$AN$68,0),FALSE))","v":0},{"$f":"IF($B370=\"Blank\",0,VLOOKUP($B370,Inputs!$C$68:$AN$129,MATCH($B371,Inputs!$C$68:$AN$68,0),FALSE))","v":0},{"$f":"IF($B370=\"Blank\",0,VLOOKUP($B370,Inputs!$C$68:$AN$129,MATCH($B371,Inputs!$C$68:$AN$68,0),FALSE))","v":0},{"$f":"IF($B370=\"Blank\",0,VLOOKUP($B370,Inputs!$C$68:$AN$129,MATCH($B371,Inputs!$C$68:$AN$68,0),FALSE))","v":0},null,null,null,null,null,null,null,{"$f":"B371","v":"Lamp UNIT price Annualised Cost"},{"$f":"IF(E371=\"NA\",\"\",E371/R$2*100)","v":0},{"$f":"IF(F371=\"NA\",\"\",F371/S$2*100)","v":0},{"$f":"IF(G371=\"NA\",\"\",G371/T$2*100)","v":0},{"$f":"IF(H371=\"NA\",\"\",H371/U$2*100)","v":0},{"$f":"IF(I371=\"NA\",\"\",I371/V$2*100)","v":0}]
[null,{"$f":"Inputs!$K$68","v":"PE Cell UNIT price Annualised Cost"},{"$f":"Inputs!$I$68","v":"PE Cell Maintenance Cycle"},null,{"$f":"IF($B370=\"Blank\",0,VLOOKUP($B370,Inputs!$C$68:$AN$129,MATCH($B372,Inputs!$C$68:$AN$68,0),FALSE))","v":0.29065627594166676},{"$f":"IF($B370=\"Blank\",0,VLOOKUP($B370,Inputs!$C$68:$AN$129,MATCH($B372,Inputs!$C$68:$AN$68,0),FALSE))","v":0.29065627594166676},{"$f":"IF($B370=\"Blank\",0,VLOOKUP($B370,Inputs!$C$68:$AN$129,MATCH($B372,Inputs!$C$68:$AN$68,0),FALSE))","v":0.29065627594166676},{"$f":"IF($B370=\"Blank\",0,VLOOKUP($B370,Inputs!$C$68:$AN$129,MATCH($B372,Inputs!$C$68:$AN$68,0),FALSE))","v":0.29065627594166676},{"$f":"IF($B370=\"Blank\",0,VLOOKUP($B370,Inputs!$C$68:$AN$129,MATCH($B372,Inputs!$C$68:$AN$68,0),FALSE))","v":0.29065627594166676},null,null,null,null,null,null,null,"PE Cell UNIT price Annualised Cost",7.9414283044171238E-2,7.9631856422374456E-2,7.9631856422374456E-2,7.9631856422374456E-2,7.9414283044171238E-2]
[null,"Corp capex annuity per light",null,null,{"$f":"IF($B370=\"Blank\",0,'Corp Capex Annuity calcs'!F$142)","v":18.582309905017571},{"$f":"IF($B370=\"Blank\",0,'Corp Capex Annuity calcs'!G$142)","v":18.552026408230436},{"$f":"IF($B370=\"Blank\",0,'Corp Capex Annuity calcs'!H$142)","v":18.401377631486287},{"$f":"IF($B370=\"Blank\",0,'Corp Capex Annuity calcs'!I$142)","v":18.205761940470655},{"$f":"IF($B370=\"Blank\",0,'Corp Capex Annuity calcs'!J$142)","v":17.995165449295623},null,null,null,null,null,null,null,"Corp capex annuity per light",5.0771338538299373,5.0827469611590237,5.0414733236948734,4.9878799836905907,4.9167118713922466]
[null,{"$f":"Inputs!$U$68","v":"Lamp Service costs Annualised"},"Labour Portion of Lamp Service costs annualised",null,{"$f":"IF($B370=\"Blank\",0,VLOOKUP($B370,Inputs!$C$68:$AN$129,MATCH($B374,Inputs!$C$68:$AN$68,0),FALSE))+IFERROR(IF($B370=\"Blank\",0,VLOOKUP($B370,Inputs!$C$68:$AN$129,MATCH($C374,Inputs!$C$68:$AN$68,0),FALSE))*('Master Data'!K$42),0)","v":0},{"$f":"IF($B370=\"Blank\",0,VLOOKUP($B370,Inputs!$C$68:$AN$129,MATCH($B374,Inputs!$C$68:$AN$68,0),FALSE))+IFERROR(IF($B370=\"Blank\",0,VLOOKUP($B370,Inputs!$C$68:$AN$129,MATCH($C374,Inputs!$C$68:$AN$68,0),FALSE))*('Master Data'!L$42),0)","v":0},{"$f":"IF($B370=\"Blank\",0,VLOOKUP($B370,Inputs!$C$68:$AN$129,MATCH($B374,Inputs!$C$68:$AN$68,0),FALSE))+IFERROR(IF($B370=\"Blank\",0,VLOOKUP($B370,Inputs!$C$68:$AN$129,MATCH($C374,Inputs!$C$68:$AN$68,0),FALSE))*('Master Data'!M$42),0)","v":0},{"$f":"IF($B370=\"Blank\",0,VLOOKUP($B370,Inputs!$C$68:$AN$129,MATCH($B374,Inputs!$C$68:$AN$68,0),FALSE))+IFERROR(IF($B370=\"Blank\",0,VLOOKUP($B370,Inputs!$C$68:$AN$129,MATCH($C374,Inputs!$C$68:$AN$68,0),FALSE))*('Master Data'!N$42),0)","v":0},{"$f":"IF($B370=\"Blank\",0,VLOOKUP($B370,Inputs!$C$68:$AN$129,MATCH($B374,Inputs!$C$68:$AN$68,0),FALSE))+IFERROR(IF($B370=\"Blank\",0,VLOOKUP($B370,Inputs!$C$68:$AN$129,MATCH($C374,Inputs!$C$68:$AN$68,0),FALSE))*('Master Data'!O$42),0)","v":0},null,null,null,null,null,null,null,"Lamp Service costs Annualised",0,0,0,0,0]
[null,{"$f":"Inputs!$M$68","v":"PE Cell Service costs Annualised"},"Labour Portion of PE Cell Service costs Annualised",null,{"$f":"IF($B370=\"Blank\",0,VLOOKUP($B370,Inputs!$C$68:$AN$129,MATCH($B375,Inputs!$C$68:$AN$68,0),FALSE))+IFERROR(IF($B370=\"Blank\",0,VLOOKUP($B370,Inputs!$C$68:$AN$129,MATCH($C375,Inputs!$C$68:$AN$68,0),FALSE))*('Master Data'!K$42),0)","v":6.0318725099601611},{"$f":"IF($B370=\"Blank\",0,VLOOKUP($B370,Inputs!$C$68:$AN$129,MATCH($B375,Inputs!$C$68:$AN$68,0),FALSE))+IFERROR(IF($B370=\"Blank\",0,VLOOKUP($B370,Inputs!$C$68:$AN$129,MATCH($C375,Inputs!$C$68:$AN$68,0),FALSE))*('Master Data'!L$42),0)","v":6.0327558565737069},{"$f":"IF($B370=\"Blank\",0,VLOOKUP($B370,Inputs!$C$68:$AN$129,MATCH($B375,Inputs!$C$68:$AN$68,0),FALSE))+IFERROR(IF($B370=\"Blank\",0,VLOOKUP($B370,Inputs!$C$68:$AN$129,MATCH($C375,Inputs!$C$68:$AN$68,0),FALSE))*('Master Data'!M$42),0)","v":6.034103171394424},{"$f":"IF($B370=\"Blank\",0,VLOOKUP($B370,Inputs!$C$68:$AN$129,MATCH($B375,Inputs!$C$68:$AN$68,0),FALSE))+IFERROR(IF($B370=\"Blank\",0,VLOOKUP($B370,Inputs!$C$68:$AN$129,MATCH($C375,Inputs!$C$68:$AN$68,0),FALSE))*('Master Data'!N$42),0)","v":6.0357642373421774},{"$f":"IF($B370=\"Blank\",0,VLOOKUP($B370,Inputs!$C$68:$AN$129,MATCH($B375,Inputs!$C$68:$AN$68,0),FALSE))+IFERROR(IF($B370=\"Blank\",0,VLOOKUP($B370,Inputs!$C$68:$AN$129,MATCH($C375,Inputs!$C$68:$AN$68,0),FALSE))*('Master Data'!O$42),0)","v":6.0377040147041869},null,null,null,null,null,null,null,"PE Cell Service costs Annualised",1.6480525983497707,1.652809823718824,1.6531789510669654,1.6536340376279939,1.6496459056568817]
[null,"Indirect Opex",null,null,{"$f":"IF($B370=\"Blank\",0,IF($B$8=\"Private Contract Lighting\",'Opex Weighting'!D$48,'Opex Weighting'!D$46))","v":25.762407087322877},{"$f":"IF($B370=\"Blank\",0,IF($B$8=\"Private Contract Lighting\",'Opex Weighting'!E$48,'Opex Weighting'!E$46))","v":25.880403763800857},{"$f":"IF($B370=\"Blank\",0,IF($B$8=\"Private Contract Lighting\",'Opex Weighting'!F$48,'Opex Weighting'!F$46))","v":20.013740175030701},{"$f":"IF($B370=\"Blank\",0,IF($B$8=\"Private Contract Lighting\",'Opex Weighting'!G$48,'Opex Weighting'!G$46))","v":19.55949970528431},{"$f":"IF($B370=\"Blank\",0,IF($B$8=\"Private Contract Lighting\",'Opex Weighting'!H$48,'Opex Weighting'!H$46))","v":19.096814305933613},null,null,null,null,null,null,null,"Indirect Opex",7.0389090402521521,7.0905215791235223,5.4832164863097814,5.3587670425436471,5.2177088267578178]
[null,"Indirect Capex",null,null,{"$f":"'Capex Weighting'!D$59","v":0},{"$f":"'Capex Weighting'!E$59","v":0},{"$f":"'Capex Weighting'!F$59","v":0},{"$f":"'Capex Weighting'!G$59","v":0},{"$f":"'Capex Weighting'!H$59","v":0},null,null,null,null,null,null,null,"Indirect Capex",0,0,0,0,0]
[null,"Opex Overheads Costs per light",null,null,{"$f":"IF($B370=\"Blank\",0,IF($B$8=\"Private Contract Lighting\",'Building Block'!C$40,'Building Block'!C$39))","v":32.224036557323004},{"$f":"IF($B370=\"Blank\",0,IF($B$8=\"Private Contract Lighting\",'Building Block'!D$40,'Building Block'!D$39))","v":31.278075996100256},{"$f":"IF($B370=\"Blank\",0,IF($B$8=\"Private Contract Lighting\",'Building Block'!E$40,'Building Block'!E$39))","v":21.467987799581408},{"$f":"IF($B370=\"Blank\",0,IF($B$8=\"Private Contract Lighting\",'Building Block'!F$40,'Building Block'!F$39))","v":21.22771925228782},{"$f":"IF($B370=\"Blank\",0,IF($B$8=\"Private Contract Lighting\",'Building Block'!G$40,'Building Block'!G$39))","v":21.210892633443169},null,null,null,null,null,null,null,"Opex Overheads Costs per light",8.8043815730390715,8.5693358893425362,5.8816404930360022,5.815813493777485,5.7953258561320133]
[null,{"$f":"Inputs!$AK$68","v":"Bracket UNIT price"},0,null,{"$f":"IF($B370=\"Blank\",0,OFFSET('CAPEX Annuity calcs'!$B$9,MATCH($B370,'CAPEX Annuity calcs'!$B$9:$B$500,0)+$C379,E$6))","v":4.6160992576591218},{"$f":"IF($B370=\"Blank\",0,OFFSET('CAPEX Annuity calcs'!$B$9,MATCH($B370,'CAPEX Annuity calcs'!$B$9:$B$500,0)+$C379,F$6))","v":4.6160992576591218},{"$f":"IF($B370=\"Blank\",0,OFFSET('CAPEX Annuity calcs'!$B$9,MATCH($B370,'CAPEX Annuity calcs'!$B$9:$B$500,0)+$C379,G$6))","v":4.6160992576591218},{"$f":"IF($B370=\"Blank\",0,OFFSET('CAPEX Annuity calcs'!$B$9,MATCH($B370,'CAPEX Annuity calcs'!$B$9:$B$500,0)+$C379,H$6))","v":4.6160992576591218},{"$f":"IF($B370=\"Blank\",0,OFFSET('CAPEX Annuity calcs'!$B$9,MATCH($B370,'CAPEX Annuity calcs'!$B$9:$B$500,0)+$C379,I$6))","v":4.6160992576591218},null,null,null,null,null,null,null,"Bracket UNIT price",1.2612293053713448,1.2646847281257869,1.2646847281257869,1.2646847281257869,1.2612293053713448]
[null,{"$f":"Inputs!$AA$68","v":"CAPEX Instalation costs"},{"$f":"C379+1","v":1},null,{"$f":"IF($B370=\"Blank\",0,OFFSET('CAPEX Annuity calcs'!$B$9,MATCH($B370,'CAPEX Annuity calcs'!$B$9:$B$500,0)+$C380,E$6))","v":0},{"$f":"IF($B370=\"Blank\",0,OFFSET('CAPEX Annuity calcs'!$B$9,MATCH($B370,'CAPEX Annuity calcs'!$B$9:$B$500,0)+$C380,F$6))","v":0},{"$f":"IF($B370=\"Blank\",0,OFFSET('CAPEX Annuity calcs'!$B$9,MATCH($B370,'CAPEX Annuity calcs'!$B$9:$B$500,0)+$C380,G$6))","v":0},{"$f":"IF($B370=\"Blank\",0,OFFSET('CAPEX Annuity calcs'!$B$9,MATCH($B370,'CAPEX Annuity calcs'!$B$9:$B$500,0)+$C380,H$6))","v":0},{"$f":"IF($B370=\"Blank\",0,OFFSET('CAPEX Annuity calcs'!$B$9,MATCH($B370,'CAPEX Annuity calcs'!$B$9:$B$500,0)+$C380,I$6))","v":0},null,null,null,null,null,null,null,"CAPEX Instalation costs",0,0,0,0,0]
[null,{"$f":"Inputs!$Z$68","v":"Luminaire UNIT price"},{"$f":"C380+1","v":2},null,{"$f":"IF($B370=\"Blank\",0,OFFSET('CAPEX Annuity calcs'!$B$9,MATCH($B370,'CAPEX Annuity calcs'!$B$9:$B$500,0)+$C381,E$6))","v":71.558233995524816},{"$f":"IF($B370=\"Blank\",0,OFFSET('CAPEX Annuity calcs'!$B$9,MATCH($B370,'CAPEX Annuity calcs'!$B$9:$B$500,0)+$C381,F$6))","v":71.558233995524816},{"$f":"IF($B370=\"Blank\",0,OFFSET('CAPEX Annuity calcs'!$B$9,MATCH($B370,'CAPEX Annuity calcs'!$B$9:$B$500,0)+$C381,G$6))","v":71.558233995524816},{"$f":"IF($B370=\"Blank\",0,OFFSET('CAPEX Annuity calcs'!$B$9,MATCH($B370,'CAPEX Annuity calcs'!$B$9:$B$500,0)+$C381,H$6))","v":71.558233995524816},{"$f":"IF($B370=\"Blank\",0,OFFSET('CAPEX Annuity calcs'!$B$9,MATCH($B370,'CAPEX Annuity calcs'!$B$9:$B$500,0)+$C381,I$6))","v":71.558233995524816},null,null,null,null,null,null,null,"Luminaire UNIT price",19.551430053422081,19.604995615212278,19.604995615212278,19.604995615212278,19.551430053422081]
[null,{"$f":"Inputs!$AA$68","v":"CAPEX Instalation costs"},3,null,{"$f":"IF($B370=\"Blank\",0,OFFSET('CAPEX Annuity calcs'!$B$9,MATCH($B370,'CAPEX Annuity calcs'!$B$9:$B$500,0)+$C382,E$6))","v":18.736141709912243},{"$f":"IF($B370=\"Blank\",0,OFFSET('CAPEX Annuity calcs'!$B$9,MATCH($B370,'CAPEX Annuity calcs'!$B$9:$B$500,0)+$C382,F$6))","v":18.74779128716041},{"$f":"IF($B370=\"Blank\",0,OFFSET('CAPEX Annuity calcs'!$B$9,MATCH($B370,'CAPEX Annuity calcs'!$B$9:$B$500,0)+$C382,G$6))","v":18.765559678232343},{"$f":"IF($B370=\"Blank\",0,OFFSET('CAPEX Annuity calcs'!$B$9,MATCH($B370,'CAPEX Annuity calcs'!$B$9:$B$500,0)+$C382,H$6))","v":18.787465819916616},{"$f":"IF($B370=\"Blank\",0,OFFSET('CAPEX Annuity calcs'!$B$9,MATCH($B370,'CAPEX Annuity calcs'!$B$9:$B$500,0)+$C382,I$6))","v":18.813047608397444},null,null,null,null,null,null,null,"CAPEX Instalation costs",5.1191644016153672,5.1363811745644954,5.1412492269129713,5.1472509095661954,5.1401769421850938]
[null,null,null,null,{"$f":"SUM(E371:E382)","v":177.80175729866144},{"$f":"SUM(F371:F382)","v":176.95604284099124},161.14775798485076,160.28120048442716,159.61861354089964,null,null,null,null,null,null,null,null,{"$f":"ROUND(E383/R$2*100,3)","v":48.58},{"$f":"ROUND(F383/S$2*100,3)","v":48.481000000000002},{"$f":"ROUND(G383/T$2*100,3)","v":44.15},{"$f":"ROUND(H383/U$2*100,3)","v":43.912999999999997},{"$f":"ROUND(I383/V$2*100,3)","v":43.612000000000002}]
[]
[{"$f":"A370+1","v":26},{"$f":"IFERROR(VLOOKUP($A385,Inputs!$B$68:$AN$129,MATCH($B$7,Inputs!$B$68:$AN$68,0),FALSE),\"Blank\")","v":"18W LED Decorative - Side Entry"},null,null,null,null,null,null,null,null,null,null,null,null,null,null,{"$f":"IFERROR(VLOOKUP($A385,Inputs!$B$68:$AN$129,MATCH($B$7,Inputs!$B$68:$AN$68,0),FALSE),\"Blank\")","v":"18W LED Decorative - Side Entry"}]
[null,{"$f":"Inputs!$S$68","v":"Lamp UNIT price Annualised Cost"},{"$f":"Inputs!$Q$68","v":"Lamp Maintenance cycle"},null,{"$f":"IF($B385=\"Blank\",0,VLOOKUP($B385,Inputs!$C$68:$AN$129,MATCH($B386,Inputs!$C$68:$AN$68,0),FALSE))","v":0},{"$f":"IF($B385=\"Blank\",0,VLOOKUP($B385,Inputs!$C$68:$AN$129,MATCH($B386,Inputs!$C$68:$AN$68,0),FALSE))","v":0},{"$f":"IF($B385=\"Blank\",0,VLOOKUP($B385,Inputs!$C$68:$AN$129,MATCH($B386,Inputs!$C$68:$AN$68,0),FALSE))","v":0},{"$f":"IF($B385=\"Blank\",0,VLOOKUP($B385,Inputs!$C$68:$AN$129,MATCH($B386,Inputs!$C$68:$AN$68,0),FALSE))","v":0},{"$f":"IF($B385=\"Blank\",0,VLOOKUP($B385,Inputs!$C$68:$AN$129,MATCH($B386,Inputs!$C$68:$AN$68,0),FALSE))","v":0},null,null,null,null,null,null,null,{"$f":"B386","v":"Lamp UNIT price Annualised Cost"},{"$f":"IF(E386=\"NA\",\"\",E386/R$2*100)","v":0},{"$f":"IF(F386=\"NA\",\"\",F386/S$2*100)","v":0},{"$f":"IF(G386=\"NA\",\"\",G386/T$2*100)","v":0},{"$f":"IF(H386=\"NA\",\"\",H386/U$2*100)","v":0},{"$f":"IF(I386=\"NA\",\"\",I386/V$2*100)","v":0}]
[null,{"$f":"Inputs!$K$68","v":"PE Cell UNIT price Annualised Cost"},{"$f":"Inputs!$I$68","v":"PE Cell Maintenance Cycle"},null,{"$f":"IF($B385=\"Blank\",0,VLOOKUP($B385,Inputs!$C$68:$AN$129,MATCH($B387,Inputs!$C$68:$AN$68,0),FALSE))","v":0.29065627594166676},{"$f":"IF($B385=\"Blank\",0,VLOOKUP($B385,Inputs!$C$68:$AN$129,MATCH($B387,Inputs!$C$68:$AN$68,0),FALSE))","v":0.29065627594166676},{"$f":"IF($B385=\"Blank\",0,VLOOKUP($B385,Inputs!$C$68:$AN$129,MATCH($B387,Inputs!$C$68:$AN$68,0),FALSE))","v":0.29065627594166676},{"$f":"IF($B385=\"Blank\",0,VLOOKUP($B385,Inputs!$C$68:$AN$129,MATCH($B387,Inputs!$C$68:$AN$68,0),FALSE))","v":0.29065627594166676},{"$f":"IF($B385=\"Blank\",0,VLOOKUP($B385,Inputs!$C$68:$AN$129,MATCH($B387,Inputs!$C$68:$AN$68,0),FALSE))","v":0.29065627594166676},null,null,null,null,null,null,null,"PE Cell UNIT price Annualised Cost",7.9414283044171238E-2,7.9631856422374456E-2,7.9631856422374456E-2,7.9631856422374456E-2,7.9414283044171238E-2]
[null,"Corp capex annuity per light",null,null,{"$f":"IF($B385=\"Blank\",0,'Corp Capex Annuity calcs'!F$142)","v":18.582309905017571},{"$f":"IF($B385=\"Blank\",0,'Corp Capex Annuity calcs'!G$142)","v":18.552026408230436},{"$f":"IF($B385=\"Blank\",0,'Corp Capex Annuity calcs'!H$142)","v":18.401377631486287},{"$f":"IF($B385=\"Blank\",0,'Corp Capex Annuity calcs'!I$142)","v":18.205761940470655},{"$f":"IF($B385=\"Blank\",0,'Corp Capex Annuity calcs'!J$142)","v":17.995165449295623},null,null,null,null,null,null,null,"Corp capex annuity per light",5.0771338538299373,5.0827469611590237,5.0414733236948734,4.9878799836905907,4.9167118713922466]
[null,{"$f":"Inputs!$U$68","v":"Lamp Service costs Annualised"},"Labour Portion of Lamp Service costs annualised",null,{"$f":"IF($B385=\"Blank\",0,VLOOKUP($B385,Inputs!$C$68:$AN$129,MATCH($B389,Inputs!$C$68:$AN$68,0),FALSE))+IFERROR(IF($B385=\"Blank\",0,VLOOKUP($B385,Inputs!$C$68:$AN$129,MATCH($C389,Inputs!$C$68:$AN$68,0),FALSE))*('Master Data'!K$42),0)","v":0},{"$f":"IF($B385=\"Blank\",0,VLOOKUP($B385,Inputs!$C$68:$AN$129,MATCH($B389,Inputs!$C$68:$AN$68,0),FALSE))+IFERROR(IF($B385=\"Blank\",0,VLOOKUP($B385,Inputs!$C$68:$AN$129,MATCH($C389,Inputs!$C$68:$AN$68,0),FALSE))*('Master Data'!L$42),0)","v":0},{"$f":"IF($B385=\"Blank\",0,VLOOKUP($B385,Inputs!$C$68:$AN$129,MATCH($B389,Inputs!$C$68:$AN$68,0),FALSE))+IFERROR(IF($B385=\"Blank\",0,VLOOKUP($B385,Inputs!$C$68:$AN$129,MATCH($C389,Inputs!$C$68:$AN$68,0),FALSE))*('Master Data'!M$42),0)","v":0},{"$f":"IF($B385=\"Blank\",0,VLOOKUP($B385,Inputs!$C$68:$AN$129,MATCH($B389,Inputs!$C$68:$AN$68,0),FALSE))+IFERROR(IF($B385=\"Blank\",0,VLOOKUP($B385,Inputs!$C$68:$AN$129,MATCH($C389,Inputs!$C$68:$AN$68,0),FALSE))*('Master Data'!N$42),0)","v":0},{"$f":"IF($B385=\"Blank\",0,VLOOKUP($B385,Inputs!$C$68:$AN$129,MATCH($B389,Inputs!$C$68:$AN$68,0),FALSE))+IFERROR(IF($B385=\"Blank\",0,VLOOKUP($B385,Inputs!$C$68:$AN$129,MATCH($C389,Inputs!$C$68:$AN$68,0),FALSE))*('Master Data'!O$42),0)","v":0},null,null,null,null,null,null,null,"Lamp Service costs Annualised",0,0,0,0,0]
[null,{"$f":"Inputs!$M$68","v":"PE Cell Service costs Annualised"},"Labour Portion of PE Cell Service costs Annualised",null,{"$f":"IF($B385=\"Blank\",0,VLOOKUP($B385,Inputs!$C$68:$AN$129,MATCH($B390,Inputs!$C$68:$AN$68,0),FALSE))+IFERROR(IF($B385=\"Blank\",0,VLOOKUP($B385,Inputs!$C$68:$AN$129,MATCH($C390,Inputs!$C$68:$AN$68,0),FALSE))*('Master Data'!K$42),0)","v":6.0318725099601611},{"$f":"IF($B385=\"Blank\",0,VLOOKUP($B385,Inputs!$C$68:$AN$129,MATCH($B390,Inputs!$C$68:$AN$68,0),FALSE))+IFERROR(IF($B385=\"Blank\",0,VLOOKUP($B385,Inputs!$C$68:$AN$129,MATCH($C390,Inputs!$C$68:$AN$68,0),FALSE))*('Master Data'!L$42),0)","v":6.0327558565737069},{"$f":"IF($B385=\"Blank\",0,VLOOKUP($B385,Inputs!$C$68:$AN$129,MATCH($B390,Inputs!$C$68:$AN$68,0),FALSE))+IFERROR(IF($B385=\"Blank\",0,VLOOKUP($B385,Inputs!$C$68:$AN$129,MATCH($C390,Inputs!$C$68:$AN$68,0),FALSE))*('Master Data'!M$42),0)","v":6.034103171394424},{"$f":"IF($B385=\"Blank\",0,VLOOKUP($B385,Inputs!$C$68:$AN$129,MATCH($B390,Inputs!$C$68:$AN$68,0),FALSE))+IFERROR(IF($B385=\"Blank\",0,VLOOKUP($B385,Inputs!$C$68:$AN$129,MATCH($C390,Inputs!$C$68:$AN$68,0),FALSE))*('Master Data'!N$42),0)","v":6.0357642373421774},{"$f":"IF($B385=\"Blank\",0,VLOOKUP($B385,Inputs!$C$68:$AN$129,MATCH($B390,Inputs!$C$68:$AN$68,0),FALSE))+IFERROR(IF($B385=\"Blank\",0,VLOOKUP($B385,Inputs!$C$68:$AN$129,MATCH($C390,Inputs!$C$68:$AN$68,0),FALSE))*('Master Data'!O$42),0)","v":6.0377040147041869},null,null,null,null,null,null,null,"PE Cell Service costs Annualised",1.6480525983497707,1.652809823718824,1.6531789510669654,1.6536340376279939,1.6496459056568817]
[null,"Indirect Opex",null,null,{"$f":"IF($B385=\"Blank\",0,IF($B$8=\"Private Contract Lighting\",'Opex Weighting'!D$48,'Opex Weighting'!D$46))","v":25.762407087322877},{"$f":"IF($B385=\"Blank\",0,IF($B$8=\"Private Contract Lighting\",'Opex Weighting'!E$48,'Opex Weighting'!E$46))","v":25.880403763800857},{"$f":"IF($B385=\"Blank\",0,IF($B$8=\"Private Contract Lighting\",'Opex Weighting'!F$48,'Opex Weighting'!F$46))","v":20.013740175030701},{"$f":"IF($B385=\"Blank\",0,IF($B$8=\"Private Contract Lighting\",'Opex Weighting'!G$48,'Opex Weighting'!G$46))","v":19.55949970528431},{"$f":"IF($B385=\"Blank\",0,IF($B$8=\"Private Contract Lighting\",'Opex Weighting'!H$48,'Opex Weighting'!H$46))","v":19.096814305933613},null,null,null,null,null,null,null,"Indirect Opex",7.0389090402521521,7.0905215791235223,5.4832164863097814,5.3587670425436471,5.2177088267578178]
[null,"Indirect Capex",null,null,{"$f":"'Capex Weighting'!D$59","v":0},{"$f":"'Capex Weighting'!E$59","v":0},{"$f":"'Capex Weighting'!F$59","v":0},{"$f":"'Capex Weighting'!G$59","v":0},{"$f":"'Capex Weighting'!H$59","v":0},null,null,null,null,null,null,null,"Indirect Capex",0,0,0,0,0]
[null,"Opex Overheads Costs per light",null,null,{"$f":"IF($B385=\"Blank\",0,IF($B$8=\"Private Contract Lighting\",'Building Block'!C$40,'Building Block'!C$39))","v":32.224036557323004},{"$f":"IF($B385=\"Blank\",0,IF($B$8=\"Private Contract Lighting\",'Building Block'!D$40,'Building Block'!D$39))","v":31.278075996100256},{"$f":"IF($B385=\"Blank\",0,IF($B$8=\"Private Contract Lighting\",'Building Block'!E$40,'Building Block'!E$39))","v":21.467987799581408},{"$f":"IF($B385=\"Blank\",0,IF($B$8=\"Private Contract Lighting\",'Building Block'!F$40,'Building Block'!F$39))","v":21.22771925228782},{"$f":"IF($B385=\"Blank\",0,IF($B$8=\"Private Contract Lighting\",'Building Block'!G$40,'Building Block'!G$39))","v":21.210892633443169},null,null,null,null,null,null,null,"Opex Overheads Costs per light",8.8043815730390715,8.5693358893425362,5.8816404930360022,5.815813493777485,5.7953258561320133]
[null,{"$f":"Inputs!$AK$68","v":"Bracket UNIT price"},0,null,{"$f":"IF($B385=\"Blank\",0,OFFSET('CAPEX Annuity calcs'!$B$9,MATCH($B385,'CAPEX Annuity calcs'!$B$9:$B$500,0)+$C394,E$6))","v":4.6160992576591218},{"$f":"IF($B385=\"Blank\",0,OFFSET('CAPEX Annuity calcs'!$B$9,MATCH($B385,'CAPEX Annuity calcs'!$B$9:$B$500,0)+$C394,F$6))","v":4.6160992576591218},{"$f":"IF($B385=\"Blank\",0,OFFSET('CAPEX Annuity calcs'!$B$9,MATCH($B385,'CAPEX Annuity calcs'!$B$9:$B$500,0)+$C394,G$6))","v":4.6160992576591218},{"$f":"IF($B385=\"Blank\",0,OFFSET('CAPEX Annuity calcs'!$B$9,MATCH($B385,'CAPEX Annuity calcs'!$B$9:$B$500,0)+$C394,H$6))","v":4.6160992576591218},{"$f":"IF($B385=\"Blank\",0,OFFSET('CAPEX Annuity calcs'!$B$9,MATCH($B385,'CAPEX Annuity calcs'!$B$9:$B$500,0)+$C394,I$6))","v":4.6160992576591218},null,null,null,null,null,null,null,"Bracket UNIT price",1.2612293053713448,1.2646847281257869,1.2646847281257869,1.2646847281257869,1.2612293053713448]
[null,{"$f":"Inputs!$AA$68","v":"CAPEX Instalation costs"},{"$f":"C394+1","v":1},null,{"$f":"IF($B385=\"Blank\",0,OFFSET('CAPEX Annuity calcs'!$B$9,MATCH($B385,'CAPEX Annuity calcs'!$B$9:$B$500,0)+$C395,E$6))","v":0},{"$f":"IF($B385=\"Blank\",0,OFFSET('CAPEX Annuity calcs'!$B$9,MATCH($B385,'CAPEX Annuity calcs'!$B$9:$B$500,0)+$C395,F$6))","v":0},{"$f":"IF($B385=\"Blank\",0,OFFSET('CAPEX Annuity calcs'!$B$9,MATCH($B385,'CAPEX Annuity calcs'!$B$9:$B$500,0)+$C395,G$6))","v":0},{"$f":"IF($B385=\"Blank\",0,OFFSET('CAPEX Annuity calcs'!$B$9,MATCH($B385,'CAPEX Annuity calcs'!$B$9:$B$500,0)+$C395,H$6))","v":0},{"$f":"IF($B385=\"Blank\",0,OFFSET('CAPEX Annuity calcs'!$B$9,MATCH($B385,'CAPEX Annuity calcs'!$B$9:$B$500,0)+$C395,I$6))","v":0},null,null,null,null,null,null,null,"CAPEX Instalation costs",0,0,0,0,0]
[null,{"$f":"Inputs!$Z$68","v":"Luminaire UNIT price"},{"$f":"C395+1","v":2},null,{"$f":"IF($B385=\"Blank\",0,OFFSET('CAPEX Annuity calcs'!$B$9,MATCH($B385,'CAPEX Annuity calcs'!$B$9:$B$500,0)+$C396,E$6))","v":71.558233995524816},{"$f":"IF($B385=\"Blank\",0,OFFSET('CAPEX Annuity calcs'!$B$9,MATCH($B385,'CAPEX Annuity calcs'!$B$9:$B$500,0)+$C396,F$6))","v":71.558233995524816},{"$f":"IF($B385=\"Blank\",0,OFFSET('CAPEX Annuity calcs'!$B$9,MATCH($B385,'CAPEX Annuity calcs'!$B$9:$B$500,0)+$C396,G$6))","v":71.558233995524816},{"$f":"IF($B385=\"Blank\",0,OFFSET('CAPEX Annuity calcs'!$B$9,MATCH($B385,'CAPEX Annuity calcs'!$B$9:$B$500,0)+$C396,H$6))","v":71.558233995524816},{"$f":"IF($B385=\"Blank\",0,OFFSET('CAPEX Annuity calcs'!$B$9,MATCH($B385,'CAPEX Annuity calcs'!$B$9:$B$500,0)+$C396,I$6))","v":71.558233995524816},null,null,null,null,null,null,null,"Luminaire UNIT price",19.551430053422081,19.604995615212278,19.604995615212278,19.604995615212278,19.551430053422081]
[null,{"$f":"Inputs!$AA$68","v":"CAPEX Instalation costs"},3,null,{"$f":"IF($B385=\"Blank\",0,OFFSET('CAPEX Annuity calcs'!$B$9,MATCH($B385,'CAPEX Annuity calcs'!$B$9:$B$500,0)+$C397,E$6))","v":18.736141709912243},{"$f":"IF($B385=\"Blank\",0,OFFSET('CAPEX Annuity calcs'!$B$9,MATCH($B385,'CAPEX Annuity calcs'!$B$9:$B$500,0)+$C397,F$6))","v":18.74779128716041},{"$f":"IF($B385=\"Blank\",0,OFFSET('CAPEX Annuity calcs'!$B$9,MATCH($B385,'CAPEX Annuity calcs'!$B$9:$B$500,0)+$C397,G$6))","v":18.765559678232343},{"$f":"IF($B385=\"Blank\",0,OFFSET('CAPEX Annuity calcs'!$B$9,MATCH($B385,'CAPEX Annuity calcs'!$B$9:$B$500,0)+$C397,H$6))","v":18.787465819916616},{"$f":"IF($B385=\"Blank\",0,OFFSET('CAPEX Annuity calcs'!$B$9,MATCH($B385,'CAPEX Annuity calcs'!$B$9:$B$500,0)+$C397,I$6))","v":18.813047608397444},null,null,null,null,null,null,null,"CAPEX Instalation costs",5.1191644016153672,5.1363811745644954,5.1412492269129713,5.1472509095661954,5.1401769421850938]
[null,null,null,null,{"$f":"SUM(E386:E397)","v":177.80175729866144},{"$f":"SUM(F386:F397)","v":176.95604284099124},161.14775798485076,160.28120048442716,159.61861354089964,null,null,null,null,null,null,null,null,{"$f":"ROUND(E398/R$2*100,3)","v":48.58},{"$f":"ROUND(F398/S$2*100,3)","v":48.481000000000002},{"$f":"ROUND(G398/T$2*100,3)","v":44.15},{"$f":"ROUND(H398/U$2*100,3)","v":43.912999999999997},{"$f":"ROUND(I398/V$2*100,3)","v":43.612000000000002}]
[]
[{"$f":"A385+1","v":27},{"$f":"IFERROR(VLOOKUP($A400,Inputs!$B$68:$AN$129,MATCH($B$7,Inputs!$B$68:$AN$68,0),FALSE),\"Blank\")","v":"18W LED Decorative - Top Entry"},null,null,null,null,null,null,null,null,null,null,null,null,null,null,{"$f":"IFERROR(VLOOKUP($A400,Inputs!$B$68:$AN$129,MATCH($B$7,Inputs!$B$68:$AN$68,0),FALSE),\"Blank\")","v":"18W LED Decorative - Top Entry"}]
[null,{"$f":"Inputs!$S$68","v":"Lamp UNIT price Annualised Cost"},{"$f":"Inputs!$Q$68","v":"Lamp Maintenance cycle"},null,{"$f":"IF($B400=\"Blank\",0,VLOOKUP($B400,Inputs!$C$68:$AN$129,MATCH($B401,Inputs!$C$68:$AN$68,0),FALSE))","v":0},{"$f":"IF($B400=\"Blank\",0,VLOOKUP($B400,Inputs!$C$68:$AN$129,MATCH($B401,Inputs!$C$68:$AN$68,0),FALSE))","v":0},{"$f":"IF($B400=\"Blank\",0,VLOOKUP($B400,Inputs!$C$68:$AN$129,MATCH($B401,Inputs!$C$68:$AN$68,0),FALSE))","v":0},{"$f":"IF($B400=\"Blank\",0,VLOOKUP($B400,Inputs!$C$68:$AN$129,MATCH($B401,Inputs!$C$68:$AN$68,0),FALSE))","v":0},{"$f":"IF($B400=\"Blank\",0,VLOOKUP($B400,Inputs!$C$68:$AN$129,MATCH($B401,Inputs!$C$68:$AN$68,0),FALSE))","v":0},null,null,null,null,null,null,null,{"$f":"B401","v":"Lamp UNIT price Annualised Cost"},{"$f":"IF(E401=\"NA\",\"\",E401/R$2*100)","v":0},{"$f":"IF(F401=\"NA\",\"\",F401/S$2*100)","v":0},{"$f":"IF(G401=\"NA\",\"\",G401/T$2*100)","v":0},{"$f":"IF(H401=\"NA\",\"\",H401/U$2*100)","v":0},{"$f":"IF(I401=\"NA\",\"\",I401/V$2*100)","v":0}]
[null,{"$f":"Inputs!$K$68","v":"PE Cell UNIT price Annualised Cost"},{"$f":"Inputs!$I$68","v":"PE Cell Maintenance Cycle"},null,{"$f":"IF($B400=\"Blank\",0,VLOOKUP($B400,Inputs!$C$68:$AN$129,MATCH($B402,Inputs!$C$68:$AN$68,0),FALSE))","v":0.29065627594166676},{"$f":"IF($B400=\"Blank\",0,VLOOKUP($B400,Inputs!$C$68:$AN$129,MATCH($B402,Inputs!$C$68:$AN$68,0),FALSE))","v":0.29065627594166676},{"$f":"IF($B400=\"Blank\",0,VLOOKUP($B400,Inputs!$C$68:$AN$129,MATCH($B402,Inputs!$C$68:$AN$68,0),FALSE))","v":0.29065627594166676},{"$f":"IF($B400=\"Blank\",0,VLOOKUP($B400,Inputs!$C$68:$AN$129,MATCH($B402,Inputs!$C$68:$AN$68,0),FALSE))","v":0.29065627594166676},{"$f":"IF($B400=\"Blank\",0,VLOOKUP($B400,Inputs!$C$68:$AN$129,MATCH($B402,Inputs!$C$68:$AN$68,0),FALSE))","v":0.29065627594166676},null,null,null,null,null,null,null,"PE Cell UNIT price Annualised Cost",7.9414283044171238E-2,7.9631856422374456E-2,7.9631856422374456E-2,7.9631856422374456E-2,7.9414283044171238E-2]
[null,"Corp capex annuity per light",null,null,{"$f":"IF($B400=\"Blank\",0,'Corp Capex Annuity calcs'!F$142)","v":18.582309905017571},{"$f":"IF($B400=\"Blank\",0,'Corp Capex Annuity calcs'!G$142)","v":18.552026408230436},{"$f":"IF($B400=\"Blank\",0,'Corp Capex Annuity calcs'!H$142)","v":18.401377631486287},{"$f":"IF($B400=\"Blank\",0,'Corp Capex Annuity calcs'!I$142)","v":18.205761940470655},{"$f":"IF($B400=\"Blank\",0,'Corp Capex Annuity calcs'!J$142)","v":17.995165449295623},null,null,null,null,null,null,null,"Corp capex annuity per light",5.0771338538299373,5.0827469611590237,5.0414733236948734,4.9878799836905907,4.9167118713922466]
[null,{"$f":"Inputs!$U$68","v":"Lamp Service costs Annualised"},"Labour Portion of Lamp Service costs annualised",null,{"$f":"IF($B400=\"Blank\",0,VLOOKUP($B400,Inputs!$C$68:$AN$129,MATCH($B404,Inputs!$C$68:$AN$68,0),FALSE))+IFERROR(IF($B400=\"Blank\",0,VLOOKUP($B400,Inputs!$C$68:$AN$129,MATCH($C404,Inputs!$C$68:$AN$68,0),FALSE))*('Master Data'!K$42),0)","v":0},{"$f":"IF($B400=\"Blank\",0,VLOOKUP($B400,Inputs!$C$68:$AN$129,MATCH($B404,Inputs!$C$68:$AN$68,0),FALSE))+IFERROR(IF($B400=\"Blank\",0,VLOOKUP($B400,Inputs!$C$68:$AN$129,MATCH($C404,Inputs!$C$68:$AN$68,0),FALSE))*('Master Data'!L$42),0)","v":0},{"$f":"IF($B400=\"Blank\",0,VLOOKUP($B400,Inputs!$C$68:$AN$129,MATCH($B404,Inputs!$C$68:$AN$68,0),FALSE))+IFERROR(IF($B400=\"Blank\",0,VLOOKUP($B400,Inputs!$C$68:$AN$129,MATCH($C404,Inputs!$C$68:$AN$68,0),FALSE))*('Master Data'!M$42),0)","v":0},{"$f":"IF($B400=\"Blank\",0,VLOOKUP($B400,Inputs!$C$68:$AN$129,MATCH($B404,Inputs!$C$68:$AN$68,0),FALSE))+IFERROR(IF($B400=\"Blank\",0,VLOOKUP($B400,Inputs!$C$68:$AN$129,MATCH($C404,Inputs!$C$68:$AN$68,0),FALSE))*('Master Data'!N$42),0)","v":0},{"$f":"IF($B400=\"Blank\",0,VLOOKUP($B400,Inputs!$C$68:$AN$129,MATCH($B404,Inputs!$C$68:$AN$68,0),FALSE))+IFERROR(IF($B400=\"Blank\",0,VLOOKUP($B400,Inputs!$C$68:$AN$129,MATCH($C404,Inputs!$C$68:$AN$68,0),FALSE))*('Master Data'!O$42),0)","v":0},null,null,null,null,null,null,null,"Lamp Service costs Annualised",0,0,0,0,0]
[null,{"$f":"Inputs!$M$68","v":"PE Cell Service costs Annualised"},"Labour Portion of PE Cell Service costs Annualised",null,{"$f":"IF($B400=\"Blank\",0,VLOOKUP($B400,Inputs!$C$68:$AN$129,MATCH($B405,Inputs!$C$68:$AN$68,0),FALSE))+IFERROR(IF($B400=\"Blank\",0,VLOOKUP($B400,Inputs!$C$68:$AN$129,MATCH($C405,Inputs!$C$68:$AN$68,0),FALSE))*('Master Data'!K$42),0)","v":6.0318725099601611},{"$f":"IF($B400=\"Blank\",0,VLOOKUP($B400,Inputs!$C$68:$AN$129,MATCH($B405,Inputs!$C$68:$AN$68,0),FALSE))+IFERROR(IF($B400=\"Blank\",0,VLOOKUP($B400,Inputs!$C$68:$AN$129,MATCH($C405,Inputs!$C$68:$AN$68,0),FALSE))*('Master Data'!L$42),0)","v":6.0327558565737069},{"$f":"IF($B400=\"Blank\",0,VLOOKUP($B400,Inputs!$C$68:$AN$129,MATCH($B405,Inputs!$C$68:$AN$68,0),FALSE))+IFERROR(IF($B400=\"Blank\",0,VLOOKUP($B400,Inputs!$C$68:$AN$129,MATCH($C405,Inputs!$C$68:$AN$68,0),FALSE))*('Master Data'!M$42),0)","v":6.034103171394424},{"$f":"IF($B400=\"Blank\",0,VLOOKUP($B400,Inputs!$C$68:$AN$129,MATCH($B405,Inputs!$C$68:$AN$68,0),FALSE))+IFERROR(IF($B400=\"Blank\",0,VLOOKUP($B400,Inputs!$C$68:$AN$129,MATCH($C405,Inputs!$C$68:$AN$68,0),FALSE))*('Master Data'!N$42),0)","v":6.0357642373421774},{"$f":"IF($B400=\"Blank\",0,VLOOKUP($B400,Inputs!$C$68:$AN$129,MATCH($B405,Inputs!$C$68:$AN$68,0),FALSE))+IFERROR(IF($B400=\"Blank\",0,VLOOKUP($B400,Inputs!$C$68:$AN$129,MATCH($C405,Inputs!$C$68:$AN$68,0),FALSE))*('Master Data'!O$42),0)","v":6.0377040147041869},null,null,null,null,null,null,null,"PE Cell Service costs Annualised",1.6480525983497707,1.652809823718824,1.6531789510669654,1.6536340376279939,1.6496459056568817]
[null,"Indirect Opex",null,null,{"$f":"IF($B400=\"Blank\",0,IF($B$8=\"Private Contract Lighting\",'Opex Weighting'!D$48,'Opex Weighting'!D$46))","v":25.762407087322877},{"$f":"IF($B400=\"Blank\",0,IF($B$8=\"Private Contract Lighting\",'Opex Weighting'!E$48,'Opex Weighting'!E$46))","v":25.880403763800857},{"$f":"IF($B400=\"Blank\",0,IF($B$8=\"Private Contract Lighting\",'Opex Weighting'!F$48,'Opex Weighting'!F$46))","v":20.013740175030701},{"$f":"IF($B400=\"Blank\",0,IF($B$8=\"Private Contract Lighting\",'Opex Weighting'!G$48,'Opex Weighting'!G$46))","v":19.55949970528431},{"$f":"IF($B400=\"Blank\",0,IF($B$8=\"Private Contract Lighting\",'Opex Weighting'!H$48,'Opex Weighting'!H$46))","v":19.096814305933613},null,null,null,null,null,null,null,"Indirect Opex",7.0389090402521521,7.0905215791235223,5.4832164863097814,5.3587670425436471,5.2177088267578178]
[null,"Indirect Capex",null,null,{"$f":"'Capex Weighting'!D$59","v":0},{"$f":"'Capex Weighting'!E$59","v":0},{"$f":"'Capex Weighting'!F$59","v":0},{"$f":"'Capex Weighting'!G$59","v":0},{"$f":"'Capex Weighting'!H$59","v":0},null,null,null,null,null,null,null,"Indirect Capex",0,0,0,0,0]
[null,"Opex Overheads Costs per light",null,null,{"$f":"IF($B400=\"Blank\",0,IF($B$8=\"Private Contract Lighting\",'Building Block'!C$40,'Building Block'!C$39))","v":32.224036557323004},{"$f":"IF($B400=\"Blank\",0,IF($B$8=\"Private Contract Lighting\",'Building Block'!D$40,'Building Block'!D$39))","v":31.278075996100256},{"$f":"IF($B400=\"Blank\",0,IF($B$8=\"Private Contract Lighting\",'Building Block'!E$40,'Building Block'!E$39))","v":21.467987799581408},{"$f":"IF($B400=\"Blank\",0,IF($B$8=\"Private Contract Lighting\",'Building Block'!F$40,'Building Block'!F$39))","v":21.22771925228782},{"$f":"IF($B400=\"Blank\",0,IF($B$8=\"Private Contract Lighting\",'Building Block'!G$40,'Building Block'!G$39))","v":21.210892633443169},null,null,null,null,null,null,null,"Opex Overheads Costs per light",8.8043815730390715,8.5693358893425362,5.8816404930360022,5.815813493777485,5.7953258561320133]
[null,{"$f":"Inputs!$AK$68","v":"Bracket UNIT price"},0,null,{"$f":"IF($B400=\"Blank\",0,OFFSET('CAPEX Annuity calcs'!$B$9,MATCH($B400,'CAPEX Annuity calcs'!$B$9:$B$500,0)+$C409,E$6))","v":4.6160992576591218},{"$f":"IF($B400=\"Blank\",0,OFFSET('CAPEX Annuity calcs'!$B$9,MATCH($B400,'CAPEX Annuity calcs'!$B$9:$B$500,0)+$C409,F$6))","v":4.6160992576591218},{"$f":"IF($B400=\"Blank\",0,OFFSET('CAPEX Annuity calcs'!$B$9,MATCH($B400,'CAPEX Annuity calcs'!$B$9:$B$500,0)+$C409,G$6))","v":4.6160992576591218},{"$f":"IF($B400=\"Blank\",0,OFFSET('CAPEX Annuity calcs'!$B$9,MATCH($B400,'CAPEX Annuity calcs'!$B$9:$B$500,0)+$C409,H$6))","v":4.6160992576591218},{"$f":"IF($B400=\"Blank\",0,OFFSET('CAPEX Annuity calcs'!$B$9,MATCH($B400,'CAPEX Annuity calcs'!$B$9:$B$500,0)+$C409,I$6))","v":4.6160992576591218},null,null,null,null,null,null,null,"Bracket UNIT price",1.2612293053713448,1.2646847281257869,1.2646847281257869,1.2646847281257869,1.2612293053713448]
[null,{"$f":"Inputs!$AA$68","v":"CAPEX Instalation costs"},{"$f":"C409+1","v":1},null,{"$f":"IF($B400=\"Blank\",0,OFFSET('CAPEX Annuity calcs'!$B$9,MATCH($B400,'CAPEX Annuity calcs'!$B$9:$B$500,0)+$C410,E$6))","v":0},{"$f":"IF($B400=\"Blank\",0,OFFSET('CAPEX Annuity calcs'!$B$9,MATCH($B400,'CAPEX Annuity calcs'!$B$9:$B$500,0)+$C410,F$6))","v":0},{"$f":"IF($B400=\"Blank\",0,OFFSET('CAPEX Annuity calcs'!$B$9,MATCH($B400,'CAPEX Annuity calcs'!$B$9:$B$500,0)+$C410,G$6))","v":0},{"$f":"IF($B400=\"Blank\",0,OFFSET('CAPEX Annuity calcs'!$B$9,MATCH($B400,'CAPEX Annuity calcs'!$B$9:$B$500,0)+$C410,H$6))","v":0},{"$f":"IF($B400=\"Blank\",0,OFFSET('CAPEX Annuity calcs'!$B$9,MATCH($B400,'CAPEX Annuity calcs'!$B$9:$B$500,0)+$C410,I$6))","v":0},null,null,null,null,null,null,null,"CAPEX Instalation costs",0,0,0,0,0]
[null,{"$f":"Inputs!$Z$68","v":"Luminaire UNIT price"},{"$f":"C410+1","v":2},null,{"$f":"IF($B400=\"Blank\",0,OFFSET('CAPEX Annuity calcs'!$B$9,MATCH($B400,'CAPEX Annuity calcs'!$B$9:$B$500,0)+$C411,E$6))","v":71.558233995524816},{"$f":"IF($B400=\"Blank\",0,OFFSET('CAPEX Annuity calcs'!$B$9,MATCH($B400,'CAPEX Annuity calcs'!$B$9:$B$500,0)+$C411,F$6))","v":71.558233995524816},{"$f":"IF($B400=\"Blank\",0,OFFSET('CAPEX Annuity calcs'!$B$9,MATCH($B400,'CAPEX Annuity calcs'!$B$9:$B$500,0)+$C411,G$6))","v":71.558233995524816},{"$f":"IF($B400=\"Blank\",0,OFFSET('CAPEX Annuity calcs'!$B$9,MATCH($B400,'CAPEX Annuity calcs'!$B$9:$B$500,0)+$C411,H$6))","v":71.558233995524816},{"$f":"IF($B400=\"Blank\",0,OFFSET('CAPEX Annuity calcs'!$B$9,MATCH($B400,'CAPEX Annuity calcs'!$B$9:$B$500,0)+$C411,I$6))","v":71.558233995524816},null,null,null,null,null,null,null,"Luminaire UNIT price",19.551430053422081,19.604995615212278,19.604995615212278,19.604995615212278,19.551430053422081]
[null,{"$f":"Inputs!$AA$68","v":"CAPEX Instalation costs"},3,null,{"$f":"IF($B400=\"Blank\",0,OFFSET('CAPEX Annuity calcs'!$B$9,MATCH($B400,'CAPEX Annuity calcs'!$B$9:$B$500,0)+$C412,E$6))","v":18.736141709912243},{"$f":"IF($B400=\"Blank\",0,OFFSET('CAPEX Annuity calcs'!$B$9,MATCH($B400,'CAPEX Annuity calcs'!$B$9:$B$500,0)+$C412,F$6))","v":18.74779128716041},{"$f":"IF($B400=\"Blank\",0,OFFSET('CAPEX Annuity calcs'!$B$9,MATCH($B400,'CAPEX Annuity calcs'!$B$9:$B$500,0)+$C412,G$6))","v":18.765559678232343},{"$f":"IF($B400=\"Blank\",0,OFFSET('CAPEX Annuity calcs'!$B$9,MATCH($B400,'CAPEX Annuity calcs'!$B$9:$B$500,0)+$C412,H$6))","v":18.787465819916616},{"$f":"IF($B400=\"Blank\",0,OFFSET('CAPEX Annuity calcs'!$B$9,MATCH($B400,'CAPEX Annuity calcs'!$B$9:$B$500,0)+$C412,I$6))","v":18.813047608397444},null,null,null,null,null,null,null,"CAPEX Instalation costs",5.1191644016153672,5.1363811745644954,5.1412492269129713,5.1472509095661954,5.1401769421850938]
[null,null,null,null,{"$f":"SUM(E401:E412)","v":177.80175729866144},{"$f":"SUM(F401:F412)","v":176.95604284099124},161.14775798485076,160.28120048442716,159.61861354089964,null,null,null,null,null,null,null,null,{"$f":"ROUND(E413/R$2*100,3)","v":48.58},{"$f":"ROUND(F413/S$2*100,3)","v":48.481000000000002},{"$f":"ROUND(G413/T$2*100,3)","v":44.15},{"$f":"ROUND(H413/U$2*100,3)","v":43.912999999999997},{"$f":"ROUND(I413/V$2*100,3)","v":43.612000000000002}]
[]
[{"$f":"A400+1","v":28},{"$f":"IFERROR(VLOOKUP($A415,Inputs!$B$68:$AN$129,MATCH($B$7,Inputs!$B$68:$AN$68,0),FALSE),\"Blank\")","v":"25W LED"},null,null,null,null,null,null,null,null,null,null,null,null,null,null,{"$f":"IFERROR(VLOOKUP($A415,Inputs!$B$68:$AN$129,MATCH($B$7,Inputs!$B$68:$AN$68,0),FALSE),\"Blank\")","v":"25W LED"}]
[null,{"$f":"Inputs!$S$68","v":"Lamp UNIT price Annualised Cost"},{"$f":"Inputs!$Q$68","v":"Lamp Maintenance cycle"},null,{"$f":"IF($B415=\"Blank\",0,VLOOKUP($B415,Inputs!$C$68:$AN$129,MATCH($B416,Inputs!$C$68:$AN$68,0),FALSE))","v":0},{"$f":"IF($B415=\"Blank\",0,VLOOKUP($B415,Inputs!$C$68:$AN$129,MATCH($B416,Inputs!$C$68:$AN$68,0),FALSE))","v":0},{"$f":"IF($B415=\"Blank\",0,VLOOKUP($B415,Inputs!$C$68:$AN$129,MATCH($B416,Inputs!$C$68:$AN$68,0),FALSE))","v":0},{"$f":"IF($B415=\"Blank\",0,VLOOKUP($B415,Inputs!$C$68:$AN$129,MATCH($B416,Inputs!$C$68:$AN$68,0),FALSE))","v":0},{"$f":"IF($B415=\"Blank\",0,VLOOKUP($B415,Inputs!$C$68:$AN$129,MATCH($B416,Inputs!$C$68:$AN$68,0),FALSE))","v":0},null,null,null,null,null,null,null,{"$f":"B416","v":"Lamp UNIT price Annualised Cost"},{"$f":"IF(E416=\"NA\",\"\",E416/R$2*100)","v":0},{"$f":"IF(F416=\"NA\",\"\",F416/S$2*100)","v":0},{"$f":"IF(G416=\"NA\",\"\",G416/T$2*100)","v":0},{"$f":"IF(H416=\"NA\",\"\",H416/U$2*100)","v":0},{"$f":"IF(I416=\"NA\",\"\",I416/V$2*100)","v":0}]
[null,{"$f":"Inputs!$K$68","v":"PE Cell UNIT price Annualised Cost"},{"$f":"Inputs!$I$68","v":"PE Cell Maintenance Cycle"},null,{"$f":"IF($B415=\"Blank\",0,VLOOKUP($B415,Inputs!$C$68:$AN$129,MATCH($B417,Inputs!$C$68:$AN$68,0),FALSE))","v":0.29065627594166676},{"$f":"IF($B415=\"Blank\",0,VLOOKUP($B415,Inputs!$C$68:$AN$129,MATCH($B417,Inputs!$C$68:$AN$68,0),FALSE))","v":0.29065627594166676},{"$f":"IF($B415=\"Blank\",0,VLOOKUP($B415,Inputs!$C$68:$AN$129,MATCH($B417,Inputs!$C$68:$AN$68,0),FALSE))","v":0.29065627594166676},{"$f":"IF($B415=\"Blank\",0,VLOOKUP($B415,Inputs!$C$68:$AN$129,MATCH($B417,Inputs!$C$68:$AN$68,0),FALSE))","v":0.29065627594166676},{"$f":"IF($B415=\"Blank\",0,VLOOKUP($B415,Inputs!$C$68:$AN$129,MATCH($B417,Inputs!$C$68:$AN$68,0),FALSE))","v":0.29065627594166676},null,null,null,null,null,null,null,"PE Cell UNIT price Annualised Cost",7.9414283044171238E-2,7.9631856422374456E-2,7.9631856422374456E-2,7.9631856422374456E-2,7.9414283044171238E-2]
[null,"Corp capex annuity per light",null,null,{"$f":"IF($B415=\"Blank\",0,'Corp Capex Annuity calcs'!F$142)","v":18.582309905017571},{"$f":"IF($B415=\"Blank\",0,'Corp Capex Annuity calcs'!G$142)","v":18.552026408230436},{"$f":"IF($B415=\"Blank\",0,'Corp Capex Annuity calcs'!H$142)","v":18.401377631486287},{"$f":"IF($B415=\"Blank\",0,'Corp Capex Annuity calcs'!I$142)","v":18.205761940470655},{"$f":"IF($B415=\"Blank\",0,'Corp Capex Annuity calcs'!J$142)","v":17.995165449295623},null,null,null,null,null,null,null,"Corp capex annuity per light",5.0771338538299373,5.0827469611590237,5.0414733236948734,4.9878799836905907,4.9167118713922466]
[null,{"$f":"Inputs!$U$68","v":"Lamp Service costs Annualised"},"Labour Portion of Lamp Service costs annualised",null,{"$f":"IF($B415=\"Blank\",0,VLOOKUP($B415,Inputs!$C$68:$AN$129,MATCH($B419,Inputs!$C$68:$AN$68,0),FALSE))+IFERROR(IF($B415=\"Blank\",0,VLOOKUP($B415,Inputs!$C$68:$AN$129,MATCH($C419,Inputs!$C$68:$AN$68,0),FALSE))*('Master Data'!K$42),0)","v":0},{"$f":"IF($B415=\"Blank\",0,VLOOKUP($B415,Inputs!$C$68:$AN$129,MATCH($B419,Inputs!$C$68:$AN$68,0),FALSE))+IFERROR(IF($B415=\"Blank\",0,VLOOKUP($B415,Inputs!$C$68:$AN$129,MATCH($C419,Inputs!$C$68:$AN$68,0),FALSE))*('Master Data'!L$42),0)","v":0},{"$f":"IF($B415=\"Blank\",0,VLOOKUP($B415,Inputs!$C$68:$AN$129,MATCH($B419,Inputs!$C$68:$AN$68,0),FALSE))+IFERROR(IF($B415=\"Blank\",0,VLOOKUP($B415,Inputs!$C$68:$AN$129,MATCH($C419,Inputs!$C$68:$AN$68,0),FALSE))*('Master Data'!M$42),0)","v":0},{"$f":"IF($B415=\"Blank\",0,VLOOKUP($B415,Inputs!$C$68:$AN$129,MATCH($B419,Inputs!$C$68:$AN$68,0),FALSE))+IFERROR(IF($B415=\"Blank\",0,VLOOKUP($B415,Inputs!$C$68:$AN$129,MATCH($C419,Inputs!$C$68:$AN$68,0),FALSE))*('Master Data'!N$42),0)","v":0},{"$f":"IF($B415=\"Blank\",0,VLOOKUP($B415,Inputs!$C$68:$AN$129,MATCH($B419,Inputs!$C$68:$AN$68,0),FALSE))+IFERROR(IF($B415=\"Blank\",0,VLOOKUP($B415,Inputs!$C$68:$AN$129,MATCH($C419,Inputs!$C$68:$AN$68,0),FALSE))*('Master Data'!O$42),0)","v":0},null,null,null,null,null,null,null,"Lamp Service costs Annualised",0,0,0,0,0]
[null,{"$f":"Inputs!$M$68","v":"PE Cell Service costs Annualised"},"Labour Portion of PE Cell Service costs Annualised",null,{"$f":"IF($B415=\"Blank\",0,VLOOKUP($B415,Inputs!$C$68:$AN$129,MATCH($B420,Inputs!$C$68:$AN$68,0),FALSE))+IFERROR(IF($B415=\"Blank\",0,VLOOKUP($B415,Inputs!$C$68:$AN$129,MATCH($C420,Inputs!$C$68:$AN$68,0),FALSE))*('Master Data'!K$42),0)","v":6.0318725099601611},{"$f":"IF($B415=\"Blank\",0,VLOOKUP($B415,Inputs!$C$68:$AN$129,MATCH($B420,Inputs!$C$68:$AN$68,0),FALSE))+IFERROR(IF($B415=\"Blank\",0,VLOOKUP($B415,Inputs!$C$68:$AN$129,MATCH($C420,Inputs!$C$68:$AN$68,0),FALSE))*('Master Data'!L$42),0)","v":6.0327558565737069},{"$f":"IF($B415=\"Blank\",0,VLOOKUP($B415,Inputs!$C$68:$AN$129,MATCH($B420,Inputs!$C$68:$AN$68,0),FALSE))+IFERROR(IF($B415=\"Blank\",0,VLOOKUP($B415,Inputs!$C$68:$AN$129,MATCH($C420,Inputs!$C$68:$AN$68,0),FALSE))*('Master Data'!M$42),0)","v":6.034103171394424},{"$f":"IF($B415=\"Blank\",0,VLOOKUP($B415,Inputs!$C$68:$AN$129,MATCH($B420,Inputs!$C$68:$AN$68,0),FALSE))+IFERROR(IF($B415=\"Blank\",0,VLOOKUP($B415,Inputs!$C$68:$AN$129,MATCH($C420,Inputs!$C$68:$AN$68,0),FALSE))*('Master Data'!N$42),0)","v":6.0357642373421774},{"$f":"IF($B415=\"Blank\",0,VLOOKUP($B415,Inputs!$C$68:$AN$129,MATCH($B420,Inputs!$C$68:$AN$68,0),FALSE))+IFERROR(IF($B415=\"Blank\",0,VLOOKUP($B415,Inputs!$C$68:$AN$129,MATCH($C420,Inputs!$C$68:$AN$68,0),FALSE))*('Master Data'!O$42),0)","v":6.0377040147041869},null,null,null,null,null,null,null,"PE Cell Service costs Annualised",1.6480525983497707,1.652809823718824,1.6531789510669654,1.6536340376279939,1.6496459056568817]
[null,"Indirect Opex",null,null,{"$f":"IF($B415=\"Blank\",0,IF($B$8=\"Private Contract Lighting\",'Opex Weighting'!D$48,'Opex Weighting'!D$46))","v":25.762407087322877},{"$f":"IF($B415=\"Blank\",0,IF($B$8=\"Private Contract Lighting\",'Opex Weighting'!E$48,'Opex Weighting'!E$46))","v":25.880403763800857},{"$f":"IF($B415=\"Blank\",0,IF($B$8=\"Private Contract Lighting\",'Opex Weighting'!F$48,'Opex Weighting'!F$46))","v":20.013740175030701},{"$f":"IF($B415=\"Blank\",0,IF($B$8=\"Private Contract Lighting\",'Opex Weighting'!G$48,'Opex Weighting'!G$46))","v":19.55949970528431},{"$f":"IF($B415=\"Blank\",0,IF($B$8=\"Private Contract Lighting\",'Opex Weighting'!H$48,'Opex Weighting'!H$46))","v":19.096814305933613},null,null,null,null,null,null,null,"Indirect Opex",7.0389090402521521,7.0905215791235223,5.4832164863097814,5.3587670425436471,5.2177088267578178]
[null,"Indirect Capex",null,null,{"$f":"'Capex Weighting'!D$59","v":0},{"$f":"'Capex Weighting'!E$59","v":0},{"$f":"'Capex Weighting'!F$59","v":0},{"$f":"'Capex Weighting'!G$59","v":0},{"$f":"'Capex Weighting'!H$59","v":0},null,null,null,null,null,null,null,"Indirect Capex",0,0,0,0,0]
[null,"Opex Overheads Costs per light",null,null,{"$f":"IF($B415=\"Blank\",0,IF($B$8=\"Private Contract Lighting\",'Building Block'!C$40,'Building Block'!C$39))","v":32.224036557323004},{"$f":"IF($B415=\"Blank\",0,IF($B$8=\"Private Contract Lighting\",'Building Block'!D$40,'Building Block'!D$39))","v":31.278075996100256},{"$f":"IF($B415=\"Blank\",0,IF($B$8=\"Private Contract Lighting\",'Building Block'!E$40,'Building Block'!E$39))","v":21.467987799581408},{"$f":"IF($B415=\"Blank\",0,IF($B$8=\"Private Contract Lighting\",'Building Block'!F$40,'Building Block'!F$39))","v":21.22771925228782},{"$f":"IF($B415=\"Blank\",0,IF($B$8=\"Private Contract Lighting\",'Building Block'!G$40,'Building Block'!G$39))","v":21.210892633443169},null,null,null,null,null,null,null,"Opex Overheads Costs per light",8.8043815730390715,8.5693358893425362,5.8816404930360022,5.815813493777485,5.7953258561320133]
[null,{"$f":"Inputs!$AK$68","v":"Bracket UNIT price"},0,null,{"$f":"IF($B415=\"Blank\",0,OFFSET('CAPEX Annuity calcs'!$B$9,MATCH($B415,'CAPEX Annuity calcs'!$B$9:$B$500,0)+$C424,E$6))","v":5.4237039034018384},{"$f":"IF($B415=\"Blank\",0,OFFSET('CAPEX Annuity calcs'!$B$9,MATCH($B415,'CAPEX Annuity calcs'!$B$9:$B$500,0)+$C424,F$6))","v":5.4237039034018384},{"$f":"IF($B415=\"Blank\",0,OFFSET('CAPEX Annuity calcs'!$B$9,MATCH($B415,'CAPEX Annuity calcs'!$B$9:$B$500,0)+$C424,G$6))","v":5.4237039034018384},{"$f":"IF($B415=\"Blank\",0,OFFSET('CAPEX Annuity calcs'!$B$9,MATCH($B415,'CAPEX Annuity calcs'!$B$9:$B$500,0)+$C424,H$6))","v":5.4237039034018384},{"$f":"IF($B415=\"Blank\",0,OFFSET('CAPEX Annuity calcs'!$B$9,MATCH($B415,'CAPEX Annuity calcs'!$B$9:$B$500,0)+$C424,I$6))","v":5.4237039034018384},null,null,null,null,null,null,null,"Bracket UNIT price",1.4818863124048738,1.4859462749046133,1.4859462749046133,1.4859462749046133,1.4818863124048738]
[null,{"$f":"Inputs!$AA$68","v":"CAPEX Instalation costs"},{"$f":"C424+1","v":1},null,{"$f":"IF($B415=\"Blank\",0,OFFSET('CAPEX Annuity calcs'!$B$9,MATCH($B415,'CAPEX Annuity calcs'!$B$9:$B$500,0)+$C425,E$6))","v":0},{"$f":"IF($B415=\"Blank\",0,OFFSET('CAPEX Annuity calcs'!$B$9,MATCH($B415,'CAPEX Annuity calcs'!$B$9:$B$500,0)+$C425,F$6))","v":0},{"$f":"IF($B415=\"Blank\",0,OFFSET('CAPEX Annuity calcs'!$B$9,MATCH($B415,'CAPEX Annuity calcs'!$B$9:$B$500,0)+$C425,G$6))","v":0},{"$f":"IF($B415=\"Blank\",0,OFFSET('CAPEX Annuity calcs'!$B$9,MATCH($B415,'CAPEX Annuity calcs'!$B$9:$B$500,0)+$C425,H$6))","v":0},{"$f":"IF($B415=\"Blank\",0,OFFSET('CAPEX Annuity calcs'!$B$9,MATCH($B415,'CAPEX Annuity calcs'!$B$9:$B$500,0)+$C425,I$6))","v":0},null,null,null,null,null,null,null,"CAPEX Instalation costs",0,0,0,0,0]
[null,{"$f":"Inputs!$Z$68","v":"Luminaire UNIT price"},{"$f":"C425+1","v":2},null,{"$f":"IF($B415=\"Blank\",0,OFFSET('CAPEX Annuity calcs'!$B$9,MATCH($B415,'CAPEX Annuity calcs'!$B$9:$B$500,0)+$C426,E$6))","v":25.571882785727663},{"$f":"IF($B415=\"Blank\",0,OFFSET('CAPEX Annuity calcs'!$B$9,MATCH($B415,'CAPEX Annuity calcs'!$B$9:$B$500,0)+$C426,F$6))","v":25.571882785727663},{"$f":"IF($B415=\"Blank\",0,OFFSET('CAPEX Annuity calcs'!$B$9,MATCH($B415,'CAPEX Annuity calcs'!$B$9:$B$500,0)+$C426,G$6))","v":25.571882785727663},{"$f":"IF($B415=\"Blank\",0,OFFSET('CAPEX Annuity calcs'!$B$9,MATCH($B415,'CAPEX Annuity calcs'!$B$9:$B$500,0)+$C426,H$6))","v":25.571882785727663},{"$f":"IF($B415=\"Blank\",0,OFFSET('CAPEX Annuity calcs'!$B$9,MATCH($B415,'CAPEX Annuity calcs'!$B$9:$B$500,0)+$C426,I$6))","v":25.571882785727663},null,null,null,null,null,null,null,"Luminaire UNIT price",6.9868532201441704,7.0059952837610036,7.0059952837610036,7.0059952837610036,6.9868532201441704]
[null,{"$f":"Inputs!$AA$68","v":"CAPEX Instalation costs"},3,null,{"$f":"IF($B415=\"Blank\",0,OFFSET('CAPEX Annuity calcs'!$B$9,MATCH($B415,'CAPEX Annuity calcs'!$B$9:$B$500,0)+$C427,E$6))","v":18.736141709912243},{"$f":"IF($B415=\"Blank\",0,OFFSET('CAPEX Annuity calcs'!$B$9,MATCH($B415,'CAPEX Annuity calcs'!$B$9:$B$500,0)+$C427,F$6))","v":18.74779128716041},{"$f":"IF($B415=\"Blank\",0,OFFSET('CAPEX Annuity calcs'!$B$9,MATCH($B415,'CAPEX Annuity calcs'!$B$9:$B$500,0)+$C427,G$6))","v":18.765559678232343},{"$f":"IF($B415=\"Blank\",0,OFFSET('CAPEX Annuity calcs'!$B$9,MATCH($B415,'CAPEX Annuity calcs'!$B$9:$B$500,0)+$C427,H$6))","v":18.787465819916616},{"$f":"IF($B415=\"Blank\",0,OFFSET('CAPEX Annuity calcs'!$B$9,MATCH($B415,'CAPEX Annuity calcs'!$B$9:$B$500,0)+$C427,I$6))","v":18.813047608397444},null,null,null,null,null,null,null,"CAPEX Instalation costs",5.1191644016153672,5.1363811745644954,5.1412492269129713,5.1472509095661954,5.1401769421850938]
[null,null,null,null,{"$f":"SUM(E416:E427)","v":132.62301073460702},{"$f":"SUM(F416:F427)","v":131.77729627693685},115.96901142079633,115.10245392037275,114.43986697684521,null,null,null,null,null,null,null,null,{"$f":"ROUND(E428/R$2*100,3)","v":36.235999999999997},{"$f":"ROUND(F428/S$2*100,3)","v":36.103000000000002},{"$f":"ROUND(G428/T$2*100,3)","v":31.771999999999998},{"$f":"ROUND(H428/U$2*100,3)","v":31.535},{"$f":"ROUND(I428/V$2*100,3)","v":31.268000000000001}]
[]
[{"$f":"A415+1","v":29},{"$f":"IFERROR(VLOOKUP($A430,Inputs!$B$68:$AN$129,MATCH($B$7,Inputs!$B$68:$AN$68,0),FALSE),\"Blank\")","v":"25W LED Decorative - Bottom Pole Entry"},null,null,null,null,null,null,null,null,null,null,null,null,null,null,{"$f":"IFERROR(VLOOKUP($A430,Inputs!$B$68:$AN$129,MATCH($B$7,Inputs!$B$68:$AN$68,0),FALSE),\"Blank\")","v":"25W LED Decorative - Bottom Pole Entry"}]
[null,{"$f":"Inputs!$S$68","v":"Lamp UNIT price Annualised Cost"},{"$f":"Inputs!$Q$68","v":"Lamp Maintenance cycle"},null,{"$f":"IF($B430=\"Blank\",0,VLOOKUP($B430,Inputs!$C$68:$AN$129,MATCH($B431,Inputs!$C$68:$AN$68,0),FALSE))","v":0},{"$f":"IF($B430=\"Blank\",0,VLOOKUP($B430,Inputs!$C$68:$AN$129,MATCH($B431,Inputs!$C$68:$AN$68,0),FALSE))","v":0},{"$f":"IF($B430=\"Blank\",0,VLOOKUP($B430,Inputs!$C$68:$AN$129,MATCH($B431,Inputs!$C$68:$AN$68,0),FALSE))","v":0},{"$f":"IF($B430=\"Blank\",0,VLOOKUP($B430,Inputs!$C$68:$AN$129,MATCH($B431,Inputs!$C$68:$AN$68,0),FALSE))","v":0},{"$f":"IF($B430=\"Blank\",0,VLOOKUP($B430,Inputs!$C$68:$AN$129,MATCH($B431,Inputs!$C$68:$AN$68,0),FALSE))","v":0},null,null,null,null,null,null,null,{"$f":"B431","v":"Lamp UNIT price Annualised Cost"},{"$f":"IF(E431=\"NA\",\"\",E431/R$2*100)","v":0},{"$f":"IF(F431=\"NA\",\"\",F431/S$2*100)","v":0},{"$f":"IF(G431=\"NA\",\"\",G431/T$2*100)","v":0},{"$f":"IF(H431=\"NA\",\"\",H431/U$2*100)","v":0},{"$f":"IF(I431=\"NA\",\"\",I431/V$2*100)","v":0}]
[null,{"$f":"Inputs!$K$68","v":"PE Cell UNIT price Annualised Cost"},{"$f":"Inputs!$I$68","v":"PE Cell Maintenance Cycle"},null,{"$f":"IF($B430=\"Blank\",0,VLOOKUP($B430,Inputs!$C$68:$AN$129,MATCH($B432,Inputs!$C$68:$AN$68,0),FALSE))","v":0.29065627594166676},{"$f":"IF($B430=\"Blank\",0,VLOOKUP($B430,Inputs!$C$68:$AN$129,MATCH($B432,Inputs!$C$68:$AN$68,0),FALSE))","v":0.29065627594166676},{"$f":"IF($B430=\"Blank\",0,VLOOKUP($B430,Inputs!$C$68:$AN$129,MATCH($B432,Inputs!$C$68:$AN$68,0),FALSE))","v":0.29065627594166676},{"$f":"IF($B430=\"Blank\",0,VLOOKUP($B430,Inputs!$C$68:$AN$129,MATCH($B432,Inputs!$C$68:$AN$68,0),FALSE))","v":0.29065627594166676},{"$f":"IF($B430=\"Blank\",0,VLOOKUP($B430,Inputs!$C$68:$AN$129,MATCH($B432,Inputs!$C$68:$AN$68,0),FALSE))","v":0.29065627594166676},null,null,null,null,null,null,null,"PE Cell UNIT price Annualised Cost",7.9414283044171238E-2,7.9631856422374456E-2,7.9631856422374456E-2,7.9631856422374456E-2,7.9414283044171238E-2]
[null,"Corp capex annuity per light",null,null,{"$f":"IF($B430=\"Blank\",0,'Corp Capex Annuity calcs'!F$142)","v":18.582309905017571},{"$f":"IF($B430=\"Blank\",0,'Corp Capex Annuity calcs'!G$142)","v":18.552026408230436},{"$f":"IF($B430=\"Blank\",0,'Corp Capex Annuity calcs'!H$142)","v":18.401377631486287},{"$f":"IF($B430=\"Blank\",0,'Corp Capex Annuity calcs'!I$142)","v":18.205761940470655},{"$f":"IF($B430=\"Blank\",0,'Corp Capex Annuity calcs'!J$142)","v":17.995165449295623},null,null,null,null,null,null,null,"Corp capex annuity per light",5.0771338538299373,5.0827469611590237,5.0414733236948734,4.9878799836905907,4.9167118713922466]
[null,{"$f":"Inputs!$U$68","v":"Lamp Service costs Annualised"},"Labour Portion of Lamp Service costs annualised",null,{"$f":"IF($B430=\"Blank\",0,VLOOKUP($B430,Inputs!$C$68:$AN$129,MATCH($B434,Inputs!$C$68:$AN$68,0),FALSE))+IFERROR(IF($B430=\"Blank\",0,VLOOKUP($B430,Inputs!$C$68:$AN$129,MATCH($C434,Inputs!$C$68:$AN$68,0),FALSE))*('Master Data'!K$42),0)","v":0},{"$f":"IF($B430=\"Blank\",0,VLOOKUP($B430,Inputs!$C$68:$AN$129,MATCH($B434,Inputs!$C$68:$AN$68,0),FALSE))+IFERROR(IF($B430=\"Blank\",0,VLOOKUP($B430,Inputs!$C$68:$AN$129,MATCH($C434,Inputs!$C$68:$AN$68,0),FALSE))*('Master Data'!L$42),0)","v":0},{"$f":"IF($B430=\"Blank\",0,VLOOKUP($B430,Inputs!$C$68:$AN$129,MATCH($B434,Inputs!$C$68:$AN$68,0),FALSE))+IFERROR(IF($B430=\"Blank\",0,VLOOKUP($B430,Inputs!$C$68:$AN$129,MATCH($C434,Inputs!$C$68:$AN$68,0),FALSE))*('Master Data'!M$42),0)","v":0},{"$f":"IF($B430=\"Blank\",0,VLOOKUP($B430,Inputs!$C$68:$AN$129,MATCH($B434,Inputs!$C$68:$AN$68,0),FALSE))+IFERROR(IF($B430=\"Blank\",0,VLOOKUP($B430,Inputs!$C$68:$AN$129,MATCH($C434,Inputs!$C$68:$AN$68,0),FALSE))*('Master Data'!N$42),0)","v":0},{"$f":"IF($B430=\"Blank\",0,VLOOKUP($B430,Inputs!$C$68:$AN$129,MATCH($B434,Inputs!$C$68:$AN$68,0),FALSE))+IFERROR(IF($B430=\"Blank\",0,VLOOKUP($B430,Inputs!$C$68:$AN$129,MATCH($C434,Inputs!$C$68:$AN$68,0),FALSE))*('Master Data'!O$42),0)","v":0},null,null,null,null,null,null,null,"Lamp Service costs Annualised",0,0,0,0,0]
[null,{"$f":"Inputs!$M$68","v":"PE Cell Service costs Annualised"},"Labour Portion of PE Cell Service costs Annualised",null,{"$f":"IF($B430=\"Blank\",0,VLOOKUP($B430,Inputs!$C$68:$AN$129,MATCH($B435,Inputs!$C$68:$AN$68,0),FALSE))+IFERROR(IF($B430=\"Blank\",0,VLOOKUP($B430,Inputs!$C$68:$AN$129,MATCH($C435,Inputs!$C$68:$AN$68,0),FALSE))*('Master Data'!K$42),0)","v":6.0318725099601611},{"$f":"IF($B430=\"Blank\",0,VLOOKUP($B430,Inputs!$C$68:$AN$129,MATCH($B435,Inputs!$C$68:$AN$68,0),FALSE))+IFERROR(IF($B430=\"Blank\",0,VLOOKUP($B430,Inputs!$C$68:$AN$129,MATCH($C435,Inputs!$C$68:$AN$68,0),FALSE))*('Master Data'!L$42),0)","v":6.0327558565737069},{"$f":"IF($B430=\"Blank\",0,VLOOKUP($B430,Inputs!$C$68:$AN$129,MATCH($B435,Inputs!$C$68:$AN$68,0),FALSE))+IFERROR(IF($B430=\"Blank\",0,VLOOKUP($B430,Inputs!$C$68:$AN$129,MATCH($C435,Inputs!$C$68:$AN$68,0),FALSE))*('Master Data'!M$42),0)","v":6.034103171394424},{"$f":"IF($B430=\"Blank\",0,VLOOKUP($B430,Inputs!$C$68:$AN$129,MATCH($B435,Inputs!$C$68:$AN$68,0),FALSE))+IFERROR(IF($B430=\"Blank\",0,VLOOKUP($B430,Inputs!$C$68:$AN$129,MATCH($C435,Inputs!$C$68:$AN$68,0),FALSE))*('Master Data'!N$42),0)","v":6.0357642373421774},{"$f":"IF($B430=\"Blank\",0,VLOOKUP($B430,Inputs!$C$68:$AN$129,MATCH($B435,Inputs!$C$68:$AN$68,0),FALSE))+IFERROR(IF($B430=\"Blank\",0,VLOOKUP($B430,Inputs!$C$68:$AN$129,MATCH($C435,Inputs!$C$68:$AN$68,0),FALSE))*('Master Data'!O$42),0)","v":6.0377040147041869},null,null,null,null,null,null,null,"PE Cell Service costs Annualised",1.6480525983497707,1.652809823718824,1.6531789510669654,1.6536340376279939,1.6496459056568817]
[null,"Indirect Opex",null,null,{"$f":"IF($B430=\"Blank\",0,IF($B$8=\"Private Contract Lighting\",'Opex Weighting'!D$48,'Opex Weighting'!D$46))","v":25.762407087322877},{"$f":"IF($B430=\"Blank\",0,IF($B$8=\"Private Contract Lighting\",'Opex Weighting'!E$48,'Opex Weighting'!E$46))","v":25.880403763800857},{"$f":"IF($B430=\"Blank\",0,IF($B$8=\"Private Contract Lighting\",'Opex Weighting'!F$48,'Opex Weighting'!F$46))","v":20.013740175030701},{"$f":"IF($B430=\"Blank\",0,IF($B$8=\"Private Contract Lighting\",'Opex Weighting'!G$48,'Opex Weighting'!G$46))","v":19.55949970528431},{"$f":"IF($B430=\"Blank\",0,IF($B$8=\"Private Contract Lighting\",'Opex Weighting'!H$48,'Opex Weighting'!H$46))","v":19.096814305933613},null,null,null,null,null,null,null,"Indirect Opex",7.0389090402521521,7.0905215791235223,5.4832164863097814,5.3587670425436471,5.2177088267578178]
[null,"Indirect Capex",null,null,{"$f":"'Capex Weighting'!D$59","v":0},{"$f":"'Capex Weighting'!E$59","v":0},{"$f":"'Capex Weighting'!F$59","v":0},{"$f":"'Capex Weighting'!G$59","v":0},{"$f":"'Capex Weighting'!H$59","v":0},null,null,null,null,null,null,null,"Indirect Capex",0,0,0,0,0]
[null,"Opex Overheads Costs per light",null,null,{"$f":"IF($B430=\"Blank\",0,IF($B$8=\"Private Contract Lighting\",'Building Block'!C$40,'Building Block'!C$39))","v":32.224036557323004},{"$f":"IF($B430=\"Blank\",0,IF($B$8=\"Private Contract Lighting\",'Building Block'!D$40,'Building Block'!D$39))","v":31.278075996100256},{"$f":"IF($B430=\"Blank\",0,IF($B$8=\"Private Contract Lighting\",'Building Block'!E$40,'Building Block'!E$39))","v":21.467987799581408},{"$f":"IF($B430=\"Blank\",0,IF($B$8=\"Private Contract Lighting\",'Building Block'!F$40,'Building Block'!F$39))","v":21.22771925228782},{"$f":"IF($B430=\"Blank\",0,IF($B$8=\"Private Contract Lighting\",'Building Block'!G$40,'Building Block'!G$39))","v":21.210892633443169},null,null,null,null,null,null,null,"Opex Overheads Costs per light",8.8043815730390715,8.5693358893425362,5.8816404930360022,5.815813493777485,5.7953258561320133]
[null,{"$f":"Inputs!$AK$68","v":"Bracket UNIT price"},0,null,{"$f":"IF($B430=\"Blank\",0,OFFSET('CAPEX Annuity calcs'!$B$9,MATCH($B430,'CAPEX Annuity calcs'!$B$9:$B$500,0)+$C439,E$6))","v":5.4237039034018384},{"$f":"IF($B430=\"Blank\",0,OFFSET('CAPEX Annuity calcs'!$B$9,MATCH($B430,'CAPEX Annuity calcs'!$B$9:$B$500,0)+$C439,F$6))","v":5.4237039034018384},{"$f":"IF($B430=\"Blank\",0,OFFSET('CAPEX Annuity calcs'!$B$9,MATCH($B430,'CAPEX Annuity calcs'!$B$9:$B$500,0)+$C439,G$6))","v":5.4237039034018384},{"$f":"IF($B430=\"Blank\",0,OFFSET('CAPEX Annuity calcs'!$B$9,MATCH($B430,'CAPEX Annuity calcs'!$B$9:$B$500,0)+$C439,H$6))","v":5.4237039034018384},{"$f":"IF($B430=\"Blank\",0,OFFSET('CAPEX Annuity calcs'!$B$9,MATCH($B430,'CAPEX Annuity calcs'!$B$9:$B$500,0)+$C439,I$6))","v":5.4237039034018384},null,null,null,null,null,null,null,"Bracket UNIT price",1.4818863124048738,1.4859462749046133,1.4859462749046133,1.4859462749046133,1.4818863124048738]
[null,{"$f":"Inputs!$AA$68","v":"CAPEX Instalation costs"},{"$f":"C439+1","v":1},null,{"$f":"IF($B430=\"Blank\",0,OFFSET('CAPEX Annuity calcs'!$B$9,MATCH($B430,'CAPEX Annuity calcs'!$B$9:$B$500,0)+$C440,E$6))","v":0},{"$f":"IF($B430=\"Blank\",0,OFFSET('CAPEX Annuity calcs'!$B$9,MATCH($B430,'CAPEX Annuity calcs'!$B$9:$B$500,0)+$C440,F$6))","v":0},{"$f":"IF($B430=\"Blank\",0,OFFSET('CAPEX Annuity calcs'!$B$9,MATCH($B430,'CAPEX Annuity calcs'!$B$9:$B$500,0)+$C440,G$6))","v":0},{"$f":"IF($B430=\"Blank\",0,OFFSET('CAPEX Annuity calcs'!$B$9,MATCH($B430,'CAPEX Annuity calcs'!$B$9:$B$500,0)+$C440,H$6))","v":0},{"$f":"IF($B430=\"Blank\",0,OFFSET('CAPEX Annuity calcs'!$B$9,MATCH($B430,'CAPEX Annuity calcs'!$B$9:$B$500,0)+$C440,I$6))","v":0},null,null,null,null,null,null,null,"CAPEX Instalation costs",0,0,0,0,0]
[null,{"$f":"Inputs!$Z$68","v":"Luminaire UNIT price"},{"$f":"C440+1","v":2},null,{"$f":"IF($B430=\"Blank\",0,OFFSET('CAPEX Annuity calcs'!$B$9,MATCH($B430,'CAPEX Annuity calcs'!$B$9:$B$500,0)+$C441,E$6))","v":71.558233995524816},{"$f":"IF($B430=\"Blank\",0,OFFSET('CAPEX Annuity calcs'!$B$9,MATCH($B430,'CAPEX Annuity calcs'!$B$9:$B$500,0)+$C441,F$6))","v":71.558233995524816},{"$f":"IF($B430=\"Blank\",0,OFFSET('CAPEX Annuity calcs'!$B$9,MATCH($B430,'CAPEX Annuity calcs'!$B$9:$B$500,0)+$C441,G$6))","v":71.558233995524816},{"$f":"IF($B430=\"Blank\",0,OFFSET('CAPEX Annuity calcs'!$B$9,MATCH($B430,'CAPEX Annuity calcs'!$B$9:$B$500,0)+$C441,H$6))","v":71.558233995524816},{"$f":"IF($B430=\"Blank\",0,OFFSET('CAPEX Annuity calcs'!$B$9,MATCH($B430,'CAPEX Annuity calcs'!$B$9:$B$500,0)+$C441,I$6))","v":71.558233995524816},null,null,null,null,null,null,null,"Luminaire UNIT price",19.551430053422081,19.604995615212278,19.604995615212278,19.604995615212278,19.551430053422081]
[null,{"$f":"Inputs!$AA$68","v":"CAPEX Instalation costs"},3,null,{"$f":"IF($B430=\"Blank\",0,OFFSET('CAPEX Annuity calcs'!$B$9,MATCH($B430,'CAPEX Annuity calcs'!$B$9:$B$500,0)+$C442,E$6))","v":18.736141709912243},{"$f":"IF($B430=\"Blank\",0,OFFSET('CAPEX Annuity calcs'!$B$9,MATCH($B430,'CAPEX Annuity calcs'!$B$9:$B$500,0)+$C442,F$6))","v":18.74779128716041},{"$f":"IF($B430=\"Blank\",0,OFFSET('CAPEX Annuity calcs'!$B$9,MATCH($B430,'CAPEX Annuity calcs'!$B$9:$B$500,0)+$C442,G$6))","v":18.765559678232343},{"$f":"IF($B430=\"Blank\",0,OFFSET('CAPEX Annuity calcs'!$B$9,MATCH($B430,'CAPEX Annuity calcs'!$B$9:$B$500,0)+$C442,H$6))","v":18.787465819916616},{"$f":"IF($B430=\"Blank\",0,OFFSET('CAPEX Annuity calcs'!$B$9,MATCH($B430,'CAPEX Annuity calcs'!$B$9:$B$500,0)+$C442,I$6))","v":18.813047608397444},null,null,null,null,null,null,null,"CAPEX Instalation costs",5.1191644016153672,5.1363811745644954,5.1412492269129713,5.1472509095661954,5.1401769421850938]
[null,null,null,null,{"$f":"SUM(E431:E442)","v":178.60936194440418},{"$f":"SUM(F431:F442)","v":177.76364748673399},161.9553626305935,161.0888051301699,160.42621818664239,null,null,null,null,null,null,null,null,{"$f":"ROUND(E443/R$2*100,3)","v":48.8},{"$f":"ROUND(F443/S$2*100,3)","v":48.701999999999998},{"$f":"ROUND(G443/T$2*100,3)","v":44.371000000000002},{"$f":"ROUND(H443/U$2*100,3)","v":44.134},{"$f":"ROUND(I443/V$2*100,3)","v":43.832000000000001}]
[]
[{"$f":"A430+1","v":30},{"$f":"IFERROR(VLOOKUP($A445,Inputs!$B$68:$AN$129,MATCH($B$7,Inputs!$B$68:$AN$68,0),FALSE),\"Blank\")","v":"25W LED Decorative - Side Entry"},null,null,null,null,null,null,null,null,null,null,null,null,null,null,{"$f":"IFERROR(VLOOKUP($A445,Inputs!$B$68:$AN$129,MATCH($B$7,Inputs!$B$68:$AN$68,0),FALSE),\"Blank\")","v":"25W LED Decorative - Side Entry"}]
[null,{"$f":"Inputs!$S$68","v":"Lamp UNIT price Annualised Cost"},{"$f":"Inputs!$Q$68","v":"Lamp Maintenance cycle"},null,{"$f":"IF($B445=\"Blank\",0,VLOOKUP($B445,Inputs!$C$68:$AN$129,MATCH($B446,Inputs!$C$68:$AN$68,0),FALSE))","v":0},{"$f":"IF($B445=\"Blank\",0,VLOOKUP($B445,Inputs!$C$68:$AN$129,MATCH($B446,Inputs!$C$68:$AN$68,0),FALSE))","v":0},{"$f":"IF($B445=\"Blank\",0,VLOOKUP($B445,Inputs!$C$68:$AN$129,MATCH($B446,Inputs!$C$68:$AN$68,0),FALSE))","v":0},{"$f":"IF($B445=\"Blank\",0,VLOOKUP($B445,Inputs!$C$68:$AN$129,MATCH($B446,Inputs!$C$68:$AN$68,0),FALSE))","v":0},{"$f":"IF($B445=\"Blank\",0,VLOOKUP($B445,Inputs!$C$68:$AN$129,MATCH($B446,Inputs!$C$68:$AN$68,0),FALSE))","v":0},null,null,null,null,null,null,null,{"$f":"B446","v":"Lamp UNIT price Annualised Cost"},{"$f":"IF(E446=\"NA\",\"\",E446/R$2*100)","v":0},{"$f":"IF(F446=\"NA\",\"\",F446/S$2*100)","v":0},{"$f":"IF(G446=\"NA\",\"\",G446/T$2*100)","v":0},{"$f":"IF(H446=\"NA\",\"\",H446/U$2*100)","v":0},{"$f":"IF(I446=\"NA\",\"\",I446/V$2*100)","v":0}]
[null,{"$f":"Inputs!$K$68","v":"PE Cell UNIT price Annualised Cost"},{"$f":"Inputs!$I$68","v":"PE Cell Maintenance Cycle"},null,{"$f":"IF($B445=\"Blank\",0,VLOOKUP($B445,Inputs!$C$68:$AN$129,MATCH($B447,Inputs!$C$68:$AN$68,0),FALSE))","v":0.29065627594166676},{"$f":"IF($B445=\"Blank\",0,VLOOKUP($B445,Inputs!$C$68:$AN$129,MATCH($B447,Inputs!$C$68:$AN$68,0),FALSE))","v":0.29065627594166676},{"$f":"IF($B445=\"Blank\",0,VLOOKUP($B445,Inputs!$C$68:$AN$129,MATCH($B447,Inputs!$C$68:$AN$68,0),FALSE))","v":0.29065627594166676},{"$f":"IF($B445=\"Blank\",0,VLOOKUP($B445,Inputs!$C$68:$AN$129,MATCH($B447,Inputs!$C$68:$AN$68,0),FALSE))","v":0.29065627594166676},{"$f":"IF($B445=\"Blank\",0,VLOOKUP($B445,Inputs!$C$68:$AN$129,MATCH($B447,Inputs!$C$68:$AN$68,0),FALSE))","v":0.29065627594166676},null,null,null,null,null,null,null,"PE Cell UNIT price Annualised Cost",7.9414283044171238E-2,7.9631856422374456E-2,7.9631856422374456E-2,7.9631856422374456E-2,7.9414283044171238E-2]
[null,"Corp capex annuity per light",null,null,{"$f":"IF($B445=\"Blank\",0,'Corp Capex Annuity calcs'!F$142)","v":18.582309905017571},{"$f":"IF($B445=\"Blank\",0,'Corp Capex Annuity calcs'!G$142)","v":18.552026408230436},{"$f":"IF($B445=\"Blank\",0,'Corp Capex Annuity calcs'!H$142)","v":18.401377631486287},{"$f":"IF($B445=\"Blank\",0,'Corp Capex Annuity calcs'!I$142)","v":18.205761940470655},{"$f":"IF($B445=\"Blank\",0,'Corp Capex Annuity calcs'!J$142)","v":17.995165449295623},null,null,null,null,null,null,null,"Corp capex annuity per light",5.0771338538299373,5.0827469611590237,5.0414733236948734,4.9878799836905907,4.9167118713922466]
[null,{"$f":"Inputs!$U$68","v":"Lamp Service costs Annualised"},"Labour Portion of Lamp Service costs annualised",null,{"$f":"IF($B445=\"Blank\",0,VLOOKUP($B445,Inputs!$C$68:$AN$129,MATCH($B449,Inputs!$C$68:$AN$68,0),FALSE))+IFERROR(IF($B445=\"Blank\",0,VLOOKUP($B445,Inputs!$C$68:$AN$129,MATCH($C449,Inputs!$C$68:$AN$68,0),FALSE))*('Master Data'!K$42),0)","v":0},{"$f":"IF($B445=\"Blank\",0,VLOOKUP($B445,Inputs!$C$68:$AN$129,MATCH($B449,Inputs!$C$68:$AN$68,0),FALSE))+IFERROR(IF($B445=\"Blank\",0,VLOOKUP($B445,Inputs!$C$68:$AN$129,MATCH($C449,Inputs!$C$68:$AN$68,0),FALSE))*('Master Data'!L$42),0)","v":0},{"$f":"IF($B445=\"Blank\",0,VLOOKUP($B445,Inputs!$C$68:$AN$129,MATCH($B449,Inputs!$C$68:$AN$68,0),FALSE))+IFERROR(IF($B445=\"Blank\",0,VLOOKUP($B445,Inputs!$C$68:$AN$129,MATCH($C449,Inputs!$C$68:$AN$68,0),FALSE))*('Master Data'!M$42),0)","v":0},{"$f":"IF($B445=\"Blank\",0,VLOOKUP($B445,Inputs!$C$68:$AN$129,MATCH($B449,Inputs!$C$68:$AN$68,0),FALSE))+IFERROR(IF($B445=\"Blank\",0,VLOOKUP($B445,Inputs!$C$68:$AN$129,MATCH($C449,Inputs!$C$68:$AN$68,0),FALSE))*('Master Data'!N$42),0)","v":0},{"$f":"IF($B445=\"Blank\",0,VLOOKUP($B445,Inputs!$C$68:$AN$129,MATCH($B449,Inputs!$C$68:$AN$68,0),FALSE))+IFERROR(IF($B445=\"Blank\",0,VLOOKUP($B445,Inputs!$C$68:$AN$129,MATCH($C449,Inputs!$C$68:$AN$68,0),FALSE))*('Master Data'!O$42),0)","v":0},null,null,null,null,null,null,null,"Lamp Service costs Annualised",0,0,0,0,0]
[null,{"$f":"Inputs!$M$68","v":"PE Cell Service costs Annualised"},"Labour Portion of PE Cell Service costs Annualised",null,{"$f":"IF($B445=\"Blank\",0,VLOOKUP($B445,Inputs!$C$68:$AN$129,MATCH($B450,Inputs!$C$68:$AN$68,0),FALSE))+IFERROR(IF($B445=\"Blank\",0,VLOOKUP($B445,Inputs!$C$68:$AN$129,MATCH($C450,Inputs!$C$68:$AN$68,0),FALSE))*('Master Data'!K$42),0)","v":6.0318725099601611},{"$f":"IF($B445=\"Blank\",0,VLOOKUP($B445,Inputs!$C$68:$AN$129,MATCH($B450,Inputs!$C$68:$AN$68,0),FALSE))+IFERROR(IF($B445=\"Blank\",0,VLOOKUP($B445,Inputs!$C$68:$AN$129,MATCH($C450,Inputs!$C$68:$AN$68,0),FALSE))*('Master Data'!L$42),0)","v":6.0327558565737069},{"$f":"IF($B445=\"Blank\",0,VLOOKUP($B445,Inputs!$C$68:$AN$129,MATCH($B450,Inputs!$C$68:$AN$68,0),FALSE))+IFERROR(IF($B445=\"Blank\",0,VLOOKUP($B445,Inputs!$C$68:$AN$129,MATCH($C450,Inputs!$C$68:$AN$68,0),FALSE))*('Master Data'!M$42),0)","v":6.034103171394424},{"$f":"IF($B445=\"Blank\",0,VLOOKUP($B445,Inputs!$C$68:$AN$129,MATCH($B450,Inputs!$C$68:$AN$68,0),FALSE))+IFERROR(IF($B445=\"Blank\",0,VLOOKUP($B445,Inputs!$C$68:$AN$129,MATCH($C450,Inputs!$C$68:$AN$68,0),FALSE))*('Master Data'!N$42),0)","v":6.0357642373421774},{"$f":"IF($B445=\"Blank\",0,VLOOKUP($B445,Inputs!$C$68:$AN$129,MATCH($B450,Inputs!$C$68:$AN$68,0),FALSE))+IFERROR(IF($B445=\"Blank\",0,VLOOKUP($B445,Inputs!$C$68:$AN$129,MATCH($C450,Inputs!$C$68:$AN$68,0),FALSE))*('Master Data'!O$42),0)","v":6.0377040147041869},null,null,null,null,null,null,null,"PE Cell Service costs Annualised",1.6480525983497707,1.652809823718824,1.6531789510669654,1.6536340376279939,1.6496459056568817]
[null,"Indirect Opex",null,null,{"$f":"IF($B445=\"Blank\",0,IF($B$8=\"Private Contract Lighting\",'Opex Weighting'!D$48,'Opex Weighting'!D$46))","v":25.762407087322877},{"$f":"IF($B445=\"Blank\",0,IF($B$8=\"Private Contract Lighting\",'Opex Weighting'!E$48,'Opex Weighting'!E$46))","v":25.880403763800857},{"$f":"IF($B445=\"Blank\",0,IF($B$8=\"Private Contract Lighting\",'Opex Weighting'!F$48,'Opex Weighting'!F$46))","v":20.013740175030701},{"$f":"IF($B445=\"Blank\",0,IF($B$8=\"Private Contract Lighting\",'Opex Weighting'!G$48,'Opex Weighting'!G$46))","v":19.55949970528431},{"$f":"IF($B445=\"Blank\",0,IF($B$8=\"Private Contract Lighting\",'Opex Weighting'!H$48,'Opex Weighting'!H$46))","v":19.096814305933613},null,null,null,null,null,null,null,"Indirect Opex",7.0389090402521521,7.0905215791235223,5.4832164863097814,5.3587670425436471,5.2177088267578178]
[null,"Indirect Capex",null,null,{"$f":"'Capex Weighting'!D$59","v":0},{"$f":"'Capex Weighting'!E$59","v":0},{"$f":"'Capex Weighting'!F$59","v":0},{"$f":"'Capex Weighting'!G$59","v":0},{"$f":"'Capex Weighting'!H$59","v":0},null,null,null,null,null,null,null,"Indirect Capex",0,0,0,0,0]
[null,"Opex Overheads Costs per light",null,null,{"$f":"IF($B445=\"Blank\",0,IF($B$8=\"Private Contract Lighting\",'Building Block'!C$40,'Building Block'!C$39))","v":32.224036557323004},{"$f":"IF($B445=\"Blank\",0,IF($B$8=\"Private Contract Lighting\",'Building Block'!D$40,'Building Block'!D$39))","v":31.278075996100256},{"$f":"IF($B445=\"Blank\",0,IF($B$8=\"Private Contract Lighting\",'Building Block'!E$40,'Building Block'!E$39))","v":21.467987799581408},{"$f":"IF($B445=\"Blank\",0,IF($B$8=\"Private Contract Lighting\",'Building Block'!F$40,'Building Block'!F$39))","v":21.22771925228782},{"$f":"IF($B445=\"Blank\",0,IF($B$8=\"Private Contract Lighting\",'Building Block'!G$40,'Building Block'!G$39))","v":21.210892633443169},null,null,null,null,null,null,null,"Opex Overheads Costs per light",8.8043815730390715,8.5693358893425362,5.8816404930360022,5.815813493777485,5.7953258561320133]
[null,{"$f":"Inputs!$AK$68","v":"Bracket UNIT price"},0,null,{"$f":"IF($B445=\"Blank\",0,OFFSET('CAPEX Annuity calcs'!$B$9,MATCH($B445,'CAPEX Annuity calcs'!$B$9:$B$500,0)+$C454,E$6))","v":5.4237039034018384},{"$f":"IF($B445=\"Blank\",0,OFFSET('CAPEX Annuity calcs'!$B$9,MATCH($B445,'CAPEX Annuity calcs'!$B$9:$B$500,0)+$C454,F$6))","v":5.4237039034018384},{"$f":"IF($B445=\"Blank\",0,OFFSET('CAPEX Annuity calcs'!$B$9,MATCH($B445,'CAPEX Annuity calcs'!$B$9:$B$500,0)+$C454,G$6))","v":5.4237039034018384},{"$f":"IF($B445=\"Blank\",0,OFFSET('CAPEX Annuity calcs'!$B$9,MATCH($B445,'CAPEX Annuity calcs'!$B$9:$B$500,0)+$C454,H$6))","v":5.4237039034018384},{"$f":"IF($B445=\"Blank\",0,OFFSET('CAPEX Annuity calcs'!$B$9,MATCH($B445,'CAPEX Annuity calcs'!$B$9:$B$500,0)+$C454,I$6))","v":5.4237039034018384},null,null,null,null,null,null,null,"Bracket UNIT price",1.4818863124048738,1.4859462749046133,1.4859462749046133,1.4859462749046133,1.4818863124048738]
[null,{"$f":"Inputs!$AA$68","v":"CAPEX Instalation costs"},{"$f":"C454+1","v":1},null,{"$f":"IF($B445=\"Blank\",0,OFFSET('CAPEX Annuity calcs'!$B$9,MATCH($B445,'CAPEX Annuity calcs'!$B$9:$B$500,0)+$C455,E$6))","v":0},{"$f":"IF($B445=\"Blank\",0,OFFSET('CAPEX Annuity calcs'!$B$9,MATCH($B445,'CAPEX Annuity calcs'!$B$9:$B$500,0)+$C455,F$6))","v":0},{"$f":"IF($B445=\"Blank\",0,OFFSET('CAPEX Annuity calcs'!$B$9,MATCH($B445,'CAPEX Annuity calcs'!$B$9:$B$500,0)+$C455,G$6))","v":0},{"$f":"IF($B445=\"Blank\",0,OFFSET('CAPEX Annuity calcs'!$B$9,MATCH($B445,'CAPEX Annuity calcs'!$B$9:$B$500,0)+$C455,H$6))","v":0},{"$f":"IF($B445=\"Blank\",0,OFFSET('CAPEX Annuity calcs'!$B$9,MATCH($B445,'CAPEX Annuity calcs'!$B$9:$B$500,0)+$C455,I$6))","v":0},null,null,null,null,null,null,null,"CAPEX Instalation costs",0,0,0,0,0]
[null,{"$f":"Inputs!$Z$68","v":"Luminaire UNIT price"},{"$f":"C455+1","v":2},null,{"$f":"IF($B445=\"Blank\",0,OFFSET('CAPEX Annuity calcs'!$B$9,MATCH($B445,'CAPEX Annuity calcs'!$B$9:$B$500,0)+$C456,E$6))","v":71.558233995524816},{"$f":"IF($B445=\"Blank\",0,OFFSET('CAPEX Annuity calcs'!$B$9,MATCH($B445,'CAPEX Annuity calcs'!$B$9:$B$500,0)+$C456,F$6))","v":71.558233995524816},{"$f":"IF($B445=\"Blank\",0,OFFSET('CAPEX Annuity calcs'!$B$9,MATCH($B445,'CAPEX Annuity calcs'!$B$9:$B$500,0)+$C456,G$6))","v":71.558233995524816},{"$f":"IF($B445=\"Blank\",0,OFFSET('CAPEX Annuity calcs'!$B$9,MATCH($B445,'CAPEX Annuity calcs'!$B$9:$B$500,0)+$C456,H$6))","v":71.558233995524816},{"$f":"IF($B445=\"Blank\",0,OFFSET('CAPEX Annuity calcs'!$B$9,MATCH($B445,'CAPEX Annuity calcs'!$B$9:$B$500,0)+$C456,I$6))","v":71.558233995524816},null,null,null,null,null,null,null,"Luminaire UNIT price",19.551430053422081,19.604995615212278,19.604995615212278,19.604995615212278,19.551430053422081]
[null,{"$f":"Inputs!$AA$68","v":"CAPEX Instalation costs"},3,null,{"$f":"IF($B445=\"Blank\",0,OFFSET('CAPEX Annuity calcs'!$B$9,MATCH($B445,'CAPEX Annuity calcs'!$B$9:$B$500,0)+$C457,E$6))","v":18.736141709912243},{"$f":"IF($B445=\"Blank\",0,OFFSET('CAPEX Annuity calcs'!$B$9,MATCH($B445,'CAPEX Annuity calcs'!$B$9:$B$500,0)+$C457,F$6))","v":18.74779128716041},{"$f":"IF($B445=\"Blank\",0,OFFSET('CAPEX Annuity calcs'!$B$9,MATCH($B445,'CAPEX Annuity calcs'!$B$9:$B$500,0)+$C457,G$6))","v":18.765559678232343},{"$f":"IF($B445=\"Blank\",0,OFFSET('CAPEX Annuity calcs'!$B$9,MATCH($B445,'CAPEX Annuity calcs'!$B$9:$B$500,0)+$C457,H$6))","v":18.787465819916616},{"$f":"IF($B445=\"Blank\",0,OFFSET('CAPEX Annuity calcs'!$B$9,MATCH($B445,'CAPEX Annuity calcs'!$B$9:$B$500,0)+$C457,I$6))","v":18.813047608397444},null,null,null,null,null,null,null,"CAPEX Instalation costs",5.1191644016153672,5.1363811745644954,5.1412492269129713,5.1472509095661954,5.1401769421850938]
[null,null,null,null,{"$f":"SUM(E446:E457)","v":178.60936194440418},{"$f":"SUM(F446:F457)","v":177.76364748673399},161.9553626305935,161.0888051301699,160.42621818664239,null,null,null,null,null,null,null,null,{"$f":"ROUND(E458/R$2*100,3)","v":48.8},{"$f":"ROUND(F458/S$2*100,3)","v":48.701999999999998},{"$f":"ROUND(G458/T$2*100,3)","v":44.371000000000002},{"$f":"ROUND(H458/U$2*100,3)","v":44.134},{"$f":"ROUND(I458/V$2*100,3)","v":43.832000000000001}]
[]
[{"$f":"A445+1","v":31},{"$f":"IFERROR(VLOOKUP($A460,Inputs!$B$68:$AN$129,MATCH($B$7,Inputs!$B$68:$AN$68,0),FALSE),\"Blank\")","v":"25W LED Decorative - Top Entry"},null,null,null,null,null,null,null,null,null,null,null,null,null,null,{"$f":"IFERROR(VLOOKUP($A460,Inputs!$B$68:$AN$129,MATCH($B$7,Inputs!$B$68:$AN$68,0),FALSE),\"Blank\")","v":"25W LED Decorative - Top Entry"}]
[null,{"$f":"Inputs!$S$68","v":"Lamp UNIT price Annualised Cost"},{"$f":"Inputs!$Q$68","v":"Lamp Maintenance cycle"},null,{"$f":"IF($B460=\"Blank\",0,VLOOKUP($B460,Inputs!$C$68:$AN$129,MATCH($B461,Inputs!$C$68:$AN$68,0),FALSE))","v":0},{"$f":"IF($B460=\"Blank\",0,VLOOKUP($B460,Inputs!$C$68:$AN$129,MATCH($B461,Inputs!$C$68:$AN$68,0),FALSE))","v":0},{"$f":"IF($B460=\"Blank\",0,VLOOKUP($B460,Inputs!$C$68:$AN$129,MATCH($B461,Inputs!$C$68:$AN$68,0),FALSE))","v":0},{"$f":"IF($B460=\"Blank\",0,VLOOKUP($B460,Inputs!$C$68:$AN$129,MATCH($B461,Inputs!$C$68:$AN$68,0),FALSE))","v":0},{"$f":"IF($B460=\"Blank\",0,VLOOKUP($B460,Inputs!$C$68:$AN$129,MATCH($B461,Inputs!$C$68:$AN$68,0),FALSE))","v":0},null,null,null,null,null,null,null,{"$f":"B461","v":"Lamp UNIT price Annualised Cost"},{"$f":"IF(E461=\"NA\",\"\",E461/R$2*100)","v":0},{"$f":"IF(F461=\"NA\",\"\",F461/S$2*100)","v":0},{"$f":"IF(G461=\"NA\",\"\",G461/T$2*100)","v":0},{"$f":"IF(H461=\"NA\",\"\",H461/U$2*100)","v":0},{"$f":"IF(I461=\"NA\",\"\",I461/V$2*100)","v":0}]
[null,{"$f":"Inputs!$K$68","v":"PE Cell UNIT price Annualised Cost"},{"$f":"Inputs!$I$68","v":"PE Cell Maintenance Cycle"},null,{"$f":"IF($B460=\"Blank\",0,VLOOKUP($B460,Inputs!$C$68:$AN$129,MATCH($B462,Inputs!$C$68:$AN$68,0),FALSE))","v":0.29065627594166676},{"$f":"IF($B460=\"Blank\",0,VLOOKUP($B460,Inputs!$C$68:$AN$129,MATCH($B462,Inputs!$C$68:$AN$68,0),FALSE))","v":0.29065627594166676},{"$f":"IF($B460=\"Blank\",0,VLOOKUP($B460,Inputs!$C$68:$AN$129,MATCH($B462,Inputs!$C$68:$AN$68,0),FALSE))","v":0.29065627594166676},{"$f":"IF($B460=\"Blank\",0,VLOOKUP($B460,Inputs!$C$68:$AN$129,MATCH($B462,Inputs!$C$68:$AN$68,0),FALSE))","v":0.29065627594166676},{"$f":"IF($B460=\"Blank\",0,VLOOKUP($B460,Inputs!$C$68:$AN$129,MATCH($B462,Inputs!$C$68:$AN$68,0),FALSE))","v":0.29065627594166676},null,null,null,null,null,null,null,"PE Cell UNIT price Annualised Cost",7.9414283044171238E-2,7.9631856422374456E-2,7.9631856422374456E-2,7.9631856422374456E-2,7.9414283044171238E-2]
[null,"Corp capex annuity per light",null,null,{"$f":"IF($B460=\"Blank\",0,'Corp Capex Annuity calcs'!F$142)","v":18.582309905017571},{"$f":"IF($B460=\"Blank\",0,'Corp Capex Annuity calcs'!G$142)","v":18.552026408230436},{"$f":"IF($B460=\"Blank\",0,'Corp Capex Annuity calcs'!H$142)","v":18.401377631486287},{"$f":"IF($B460=\"Blank\",0,'Corp Capex Annuity calcs'!I$142)","v":18.205761940470655},{"$f":"IF($B460=\"Blank\",0,'Corp Capex Annuity calcs'!J$142)","v":17.995165449295623},null,null,null,null,null,null,null,"Corp capex annuity per light",5.0771338538299373,5.0827469611590237,5.0414733236948734,4.9878799836905907,4.9167118713922466]
[null,{"$f":"Inputs!$U$68","v":"Lamp Service costs Annualised"},"Labour Portion of Lamp Service costs annualised",null,{"$f":"IF($B460=\"Blank\",0,VLOOKUP($B460,Inputs!$C$68:$AN$129,MATCH($B464,Inputs!$C$68:$AN$68,0),FALSE))+IFERROR(IF($B460=\"Blank\",0,VLOOKUP($B460,Inputs!$C$68:$AN$129,MATCH($C464,Inputs!$C$68:$AN$68,0),FALSE))*('Master Data'!K$42),0)","v":0},{"$f":"IF($B460=\"Blank\",0,VLOOKUP($B460,Inputs!$C$68:$AN$129,MATCH($B464,Inputs!$C$68:$AN$68,0),FALSE))+IFERROR(IF($B460=\"Blank\",0,VLOOKUP($B460,Inputs!$C$68:$AN$129,MATCH($C464,Inputs!$C$68:$AN$68,0),FALSE))*('Master Data'!L$42),0)","v":0},{"$f":"IF($B460=\"Blank\",0,VLOOKUP($B460,Inputs!$C$68:$AN$129,MATCH($B464,Inputs!$C$68:$AN$68,0),FALSE))+IFERROR(IF($B460=\"Blank\",0,VLOOKUP($B460,Inputs!$C$68:$AN$129,MATCH($C464,Inputs!$C$68:$AN$68,0),FALSE))*('Master Data'!M$42),0)","v":0},{"$f":"IF($B460=\"Blank\",0,VLOOKUP($B460,Inputs!$C$68:$AN$129,MATCH($B464,Inputs!$C$68:$AN$68,0),FALSE))+IFERROR(IF($B460=\"Blank\",0,VLOOKUP($B460,Inputs!$C$68:$AN$129,MATCH($C464,Inputs!$C$68:$AN$68,0),FALSE))*('Master Data'!N$42),0)","v":0},{"$f":"IF($B460=\"Blank\",0,VLOOKUP($B460,Inputs!$C$68:$AN$129,MATCH($B464,Inputs!$C$68:$AN$68,0),FALSE))+IFERROR(IF($B460=\"Blank\",0,VLOOKUP($B460,Inputs!$C$68:$AN$129,MATCH($C464,Inputs!$C$68:$AN$68,0),FALSE))*('Master Data'!O$42),0)","v":0},null,null,null,null,null,null,null,"Lamp Service costs Annualised",0,0,0,0,0]
[null,{"$f":"Inputs!$M$68","v":"PE Cell Service costs Annualised"},"Labour Portion of PE Cell Service costs Annualised",null,{"$f":"IF($B460=\"Blank\",0,VLOOKUP($B460,Inputs!$C$68:$AN$129,MATCH($B465,Inputs!$C$68:$AN$68,0),FALSE))+IFERROR(IF($B460=\"Blank\",0,VLOOKUP($B460,Inputs!$C$68:$AN$129,MATCH($C465,Inputs!$C$68:$AN$68,0),FALSE))*('Master Data'!K$42),0)","v":6.0318725099601611},{"$f":"IF($B460=\"Blank\",0,VLOOKUP($B460,Inputs!$C$68:$AN$129,MATCH($B465,Inputs!$C$68:$AN$68,0),FALSE))+IFERROR(IF($B460=\"Blank\",0,VLOOKUP($B460,Inputs!$C$68:$AN$129,MATCH($C465,Inputs!$C$68:$AN$68,0),FALSE))*('Master Data'!L$42),0)","v":6.0327558565737069},{"$f":"IF($B460=\"Blank\",0,VLOOKUP($B460,Inputs!$C$68:$AN$129,MATCH($B465,Inputs!$C$68:$AN$68,0),FALSE))+IFERROR(IF($B460=\"Blank\",0,VLOOKUP($B460,Inputs!$C$68:$AN$129,MATCH($C465,Inputs!$C$68:$AN$68,0),FALSE))*('Master Data'!M$42),0)","v":6.034103171394424},{"$f":"IF($B460=\"Blank\",0,VLOOKUP($B460,Inputs!$C$68:$AN$129,MATCH($B465,Inputs!$C$68:$AN$68,0),FALSE))+IFERROR(IF($B460=\"Blank\",0,VLOOKUP($B460,Inputs!$C$68:$AN$129,MATCH($C465,Inputs!$C$68:$AN$68,0),FALSE))*('Master Data'!N$42),0)","v":6.0357642373421774},{"$f":"IF($B460=\"Blank\",0,VLOOKUP($B460,Inputs!$C$68:$AN$129,MATCH($B465,Inputs!$C$68:$AN$68,0),FALSE))+IFERROR(IF($B460=\"Blank\",0,VLOOKUP($B460,Inputs!$C$68:$AN$129,MATCH($C465,Inputs!$C$68:$AN$68,0),FALSE))*('Master Data'!O$42),0)","v":6.0377040147041869},null,null,null,null,null,null,null,"PE Cell Service costs Annualised",1.6480525983497707,1.652809823718824,1.6531789510669654,1.6536340376279939,1.6496459056568817]
[null,"Indirect Opex",null,null,{"$f":"IF($B460=\"Blank\",0,IF($B$8=\"Private Contract Lighting\",'Opex Weighting'!D$48,'Opex Weighting'!D$46))","v":25.762407087322877},{"$f":"IF($B460=\"Blank\",0,IF($B$8=\"Private Contract Lighting\",'Opex Weighting'!E$48,'Opex Weighting'!E$46))","v":25.880403763800857},{"$f":"IF($B460=\"Blank\",0,IF($B$8=\"Private Contract Lighting\",'Opex Weighting'!F$48,'Opex Weighting'!F$46))","v":20.013740175030701},{"$f":"IF($B460=\"Blank\",0,IF($B$8=\"Private Contract Lighting\",'Opex Weighting'!G$48,'Opex Weighting'!G$46))","v":19.55949970528431},{"$f":"IF($B460=\"Blank\",0,IF($B$8=\"Private Contract Lighting\",'Opex Weighting'!H$48,'Opex Weighting'!H$46))","v":19.096814305933613},null,null,null,null,null,null,null,"Indirect Opex",7.0389090402521521,7.0905215791235223,5.4832164863097814,5.3587670425436471,5.2177088267578178]
[null,"Indirect Capex",null,null,{"$f":"'Capex Weighting'!D$59","v":0},{"$f":"'Capex Weighting'!E$59","v":0},{"$f":"'Capex Weighting'!F$59","v":0},{"$f":"'Capex Weighting'!G$59","v":0},{"$f":"'Capex Weighting'!H$59","v":0},null,null,null,null,null,null,null,"Indirect Capex",0,0,0,0,0]
[null,"Opex Overheads Costs per light",null,null,{"$f":"IF($B460=\"Blank\",0,IF($B$8=\"Private Contract Lighting\",'Building Block'!C$40,'Building Block'!C$39))","v":32.224036557323004},{"$f":"IF($B460=\"Blank\",0,IF($B$8=\"Private Contract Lighting\",'Building Block'!D$40,'Building Block'!D$39))","v":31.278075996100256},{"$f":"IF($B460=\"Blank\",0,IF($B$8=\"Private Contract Lighting\",'Building Block'!E$40,'Building Block'!E$39))","v":21.467987799581408},{"$f":"IF($B460=\"Blank\",0,IF($B$8=\"Private Contract Lighting\",'Building Block'!F$40,'Building Block'!F$39))","v":21.22771925228782},{"$f":"IF($B460=\"Blank\",0,IF($B$8=\"Private Contract Lighting\",'Building Block'!G$40,'Building Block'!G$39))","v":21.210892633443169},null,null,null,null,null,null,null,"Opex Overheads Costs per light",8.8043815730390715,8.5693358893425362,5.8816404930360022,5.815813493777485,5.7953258561320133]
[null,{"$f":"Inputs!$AK$68","v":"Bracket UNIT price"},0,null,{"$f":"IF($B460=\"Blank\",0,OFFSET('CAPEX Annuity calcs'!$B$9,MATCH($B460,'CAPEX Annuity calcs'!$B$9:$B$500,0)+$C469,E$6))","v":5.4237039034018384},{"$f":"IF($B460=\"Blank\",0,OFFSET('CAPEX Annuity calcs'!$B$9,MATCH($B460,'CAPEX Annuity calcs'!$B$9:$B$500,0)+$C469,F$6))","v":5.4237039034018384},{"$f":"IF($B460=\"Blank\",0,OFFSET('CAPEX Annuity calcs'!$B$9,MATCH($B460,'CAPEX Annuity calcs'!$B$9:$B$500,0)+$C469,G$6))","v":5.4237039034018384},{"$f":"IF($B460=\"Blank\",0,OFFSET('CAPEX Annuity calcs'!$B$9,MATCH($B460,'CAPEX Annuity calcs'!$B$9:$B$500,0)+$C469,H$6))","v":5.4237039034018384},{"$f":"IF($B460=\"Blank\",0,OFFSET('CAPEX Annuity calcs'!$B$9,MATCH($B460,'CAPEX Annuity calcs'!$B$9:$B$500,0)+$C469,I$6))","v":5.4237039034018384},null,null,null,null,null,null,null,"Bracket UNIT price",1.4818863124048738,1.4859462749046133,1.4859462749046133,1.4859462749046133,1.4818863124048738]
[null,{"$f":"Inputs!$AA$68","v":"CAPEX Instalation costs"},{"$f":"C469+1","v":1},null,{"$f":"IF($B460=\"Blank\",0,OFFSET('CAPEX Annuity calcs'!$B$9,MATCH($B460,'CAPEX Annuity calcs'!$B$9:$B$500,0)+$C470,E$6))","v":0},{"$f":"IF($B460=\"Blank\",0,OFFSET('CAPEX Annuity calcs'!$B$9,MATCH($B460,'CAPEX Annuity calcs'!$B$9:$B$500,0)+$C470,F$6))","v":0},{"$f":"IF($B460=\"Blank\",0,OFFSET('CAPEX Annuity calcs'!$B$9,MATCH($B460,'CAPEX Annuity calcs'!$B$9:$B$500,0)+$C470,G$6))","v":0},{"$f":"IF($B460=\"Blank\",0,OFFSET('CAPEX Annuity calcs'!$B$9,MATCH($B460,'CAPEX Annuity calcs'!$B$9:$B$500,0)+$C470,H$6))","v":0},{"$f":"IF($B460=\"Blank\",0,OFFSET('CAPEX Annuity calcs'!$B$9,MATCH($B460,'CAPEX Annuity calcs'!$B$9:$B$500,0)+$C470,I$6))","v":0},null,null,null,null,null,null,null,"CAPEX Instalation costs",0,0,0,0,0]
[null,{"$f":"Inputs!$Z$68","v":"Luminaire UNIT price"},{"$f":"C470+1","v":2},null,{"$f":"IF($B460=\"Blank\",0,OFFSET('CAPEX Annuity calcs'!$B$9,MATCH($B460,'CAPEX Annuity calcs'!$B$9:$B$500,0)+$C471,E$6))","v":71.558233995524816},{"$f":"IF($B460=\"Blank\",0,OFFSET('CAPEX Annuity calcs'!$B$9,MATCH($B460,'CAPEX Annuity calcs'!$B$9:$B$500,0)+$C471,F$6))","v":71.558233995524816},{"$f":"IF($B460=\"Blank\",0,OFFSET('CAPEX Annuity calcs'!$B$9,MATCH($B460,'CAPEX Annuity calcs'!$B$9:$B$500,0)+$C471,G$6))","v":71.558233995524816},{"$f":"IF($B460=\"Blank\",0,OFFSET('CAPEX Annuity calcs'!$B$9,MATCH($B460,'CAPEX Annuity calcs'!$B$9:$B$500,0)+$C471,H$6))","v":71.558233995524816},{"$f":"IF($B460=\"Blank\",0,OFFSET('CAPEX Annuity calcs'!$B$9,MATCH($B460,'CAPEX Annuity calcs'!$B$9:$B$500,0)+$C471,I$6))","v":71.558233995524816},null,null,null,null,null,null,null,"Luminaire UNIT price",19.551430053422081,19.604995615212278,19.604995615212278,19.604995615212278,19.551430053422081]
[null,{"$f":"Inputs!$AA$68","v":"CAPEX Instalation costs"},3,null,{"$f":"IF($B460=\"Blank\",0,OFFSET('CAPEX Annuity calcs'!$B$9,MATCH($B460,'CAPEX Annuity calcs'!$B$9:$B$500,0)+$C472,E$6))","v":18.736141709912243},{"$f":"IF($B460=\"Blank\",0,OFFSET('CAPEX Annuity calcs'!$B$9,MATCH($B460,'CAPEX Annuity calcs'!$B$9:$B$500,0)+$C472,F$6))","v":18.74779128716041},{"$f":"IF($B460=\"Blank\",0,OFFSET('CAPEX Annuity calcs'!$B$9,MATCH($B460,'CAPEX Annuity calcs'!$B$9:$B$500,0)+$C472,G$6))","v":18.765559678232343},{"$f":"IF($B460=\"Blank\",0,OFFSET('CAPEX Annuity calcs'!$B$9,MATCH($B460,'CAPEX Annuity calcs'!$B$9:$B$500,0)+$C472,H$6))","v":18.787465819916616},{"$f":"IF($B460=\"Blank\",0,OFFSET('CAPEX Annuity calcs'!$B$9,MATCH($B460,'CAPEX Annuity calcs'!$B$9:$B$500,0)+$C472,I$6))","v":18.813047608397444},null,null,null,null,null,null,null,"CAPEX Instalation costs",5.1191644016153672,5.1363811745644954,5.1412492269129713,5.1472509095661954,5.1401769421850938]
[null,null,null,null,{"$f":"SUM(E461:E472)","v":178.60936194440418},{"$f":"SUM(F461:F472)","v":177.76364748673399},161.9553626305935,161.0888051301699,160.42621818664239,null,null,null,null,null,null,null,null,{"$f":"ROUND(E473/R$2*100,3)","v":48.8},{"$f":"ROUND(F473/S$2*100,3)","v":48.701999999999998},{"$f":"ROUND(G473/T$2*100,3)","v":44.371000000000002},{"$f":"ROUND(H473/U$2*100,3)","v":44.134},{"$f":"ROUND(I473/V$2*100,3)","v":43.832000000000001}]
[]
[{"$f":"A460+1","v":32},{"$f":"IFERROR(VLOOKUP($A475,Inputs!$B$68:$AN$129,MATCH($B$7,Inputs!$B$68:$AN$68,0),FALSE),\"Blank\")","v":"30W LED"},null,null,null,null,null,null,null,null,null,null,null,null,null,null,{"$f":"IFERROR(VLOOKUP($A475,Inputs!$B$68:$AN$129,MATCH($B$7,Inputs!$B$68:$AN$68,0),FALSE),\"Blank\")","v":"30W LED"}]
[null,{"$f":"Inputs!$S$68","v":"Lamp UNIT price Annualised Cost"},{"$f":"Inputs!$Q$68","v":"Lamp Maintenance cycle"},null,{"$f":"IF($B475=\"Blank\",0,VLOOKUP($B475,Inputs!$C$68:$AN$129,MATCH($B476,Inputs!$C$68:$AN$68,0),FALSE))","v":0},{"$f":"IF($B475=\"Blank\",0,VLOOKUP($B475,Inputs!$C$68:$AN$129,MATCH($B476,Inputs!$C$68:$AN$68,0),FALSE))","v":0},{"$f":"IF($B475=\"Blank\",0,VLOOKUP($B475,Inputs!$C$68:$AN$129,MATCH($B476,Inputs!$C$68:$AN$68,0),FALSE))","v":0},{"$f":"IF($B475=\"Blank\",0,VLOOKUP($B475,Inputs!$C$68:$AN$129,MATCH($B476,Inputs!$C$68:$AN$68,0),FALSE))","v":0},{"$f":"IF($B475=\"Blank\",0,VLOOKUP($B475,Inputs!$C$68:$AN$129,MATCH($B476,Inputs!$C$68:$AN$68,0),FALSE))","v":0},null,null,null,null,null,null,null,{"$f":"B476","v":"Lamp UNIT price Annualised Cost"},{"$f":"IF(E476=\"NA\",\"\",E476/R$2*100)","v":0},{"$f":"IF(F476=\"NA\",\"\",F476/S$2*100)","v":0},{"$f":"IF(G476=\"NA\",\"\",G476/T$2*100)","v":0},{"$f":"IF(H476=\"NA\",\"\",H476/U$2*100)","v":0},{"$f":"IF(I476=\"NA\",\"\",I476/V$2*100)","v":0}]
[null,{"$f":"Inputs!$K$68","v":"PE Cell UNIT price Annualised Cost"},{"$f":"Inputs!$I$68","v":"PE Cell Maintenance Cycle"},null,{"$f":"IF($B475=\"Blank\",0,VLOOKUP($B475,Inputs!$C$68:$AN$129,MATCH($B477,Inputs!$C$68:$AN$68,0),FALSE))","v":0.29065627594166676},{"$f":"IF($B475=\"Blank\",0,VLOOKUP($B475,Inputs!$C$68:$AN$129,MATCH($B477,Inputs!$C$68:$AN$68,0),FALSE))","v":0.29065627594166676},{"$f":"IF($B475=\"Blank\",0,VLOOKUP($B475,Inputs!$C$68:$AN$129,MATCH($B477,Inputs!$C$68:$AN$68,0),FALSE))","v":0.29065627594166676},{"$f":"IF($B475=\"Blank\",0,VLOOKUP($B475,Inputs!$C$68:$AN$129,MATCH($B477,Inputs!$C$68:$AN$68,0),FALSE))","v":0.29065627594166676},{"$f":"IF($B475=\"Blank\",0,VLOOKUP($B475,Inputs!$C$68:$AN$129,MATCH($B477,Inputs!$C$68:$AN$68,0),FALSE))","v":0.29065627594166676},null,null,null,null,null,null,null,"PE Cell UNIT price Annualised Cost",7.9414283044171238E-2,7.9631856422374456E-2,7.9631856422374456E-2,7.9631856422374456E-2,7.9414283044171238E-2]
[null,"Corp capex annuity per light",null,null,{"$f":"IF($B475=\"Blank\",0,'Corp Capex Annuity calcs'!F$142)","v":18.582309905017571},{"$f":"IF($B475=\"Blank\",0,'Corp Capex Annuity calcs'!G$142)","v":18.552026408230436},{"$f":"IF($B475=\"Blank\",0,'Corp Capex Annuity calcs'!H$142)","v":18.401377631486287},{"$f":"IF($B475=\"Blank\",0,'Corp Capex Annuity calcs'!I$142)","v":18.205761940470655},{"$f":"IF($B475=\"Blank\",0,'Corp Capex Annuity calcs'!J$142)","v":17.995165449295623},null,null,null,null,null,null,null,"Corp capex annuity per light",5.0771338538299373,5.0827469611590237,5.0414733236948734,4.9878799836905907,4.9167118713922466]
[null,{"$f":"Inputs!$U$68","v":"Lamp Service costs Annualised"},"Labour Portion of Lamp Service costs annualised",null,{"$f":"IF($B475=\"Blank\",0,VLOOKUP($B475,Inputs!$C$68:$AN$129,MATCH($B479,Inputs!$C$68:$AN$68,0),FALSE))+IFERROR(IF($B475=\"Blank\",0,VLOOKUP($B475,Inputs!$C$68:$AN$129,MATCH($C479,Inputs!$C$68:$AN$68,0),FALSE))*('Master Data'!K$42),0)","v":0},{"$f":"IF($B475=\"Blank\",0,VLOOKUP($B475,Inputs!$C$68:$AN$129,MATCH($B479,Inputs!$C$68:$AN$68,0),FALSE))+IFERROR(IF($B475=\"Blank\",0,VLOOKUP($B475,Inputs!$C$68:$AN$129,MATCH($C479,Inputs!$C$68:$AN$68,0),FALSE))*('Master Data'!L$42),0)","v":0},{"$f":"IF($B475=\"Blank\",0,VLOOKUP($B475,Inputs!$C$68:$AN$129,MATCH($B479,Inputs!$C$68:$AN$68,0),FALSE))+IFERROR(IF($B475=\"Blank\",0,VLOOKUP($B475,Inputs!$C$68:$AN$129,MATCH($C479,Inputs!$C$68:$AN$68,0),FALSE))*('Master Data'!M$42),0)","v":0},{"$f":"IF($B475=\"Blank\",0,VLOOKUP($B475,Inputs!$C$68:$AN$129,MATCH($B479,Inputs!$C$68:$AN$68,0),FALSE))+IFERROR(IF($B475=\"Blank\",0,VLOOKUP($B475,Inputs!$C$68:$AN$129,MATCH($C479,Inputs!$C$68:$AN$68,0),FALSE))*('Master Data'!N$42),0)","v":0},{"$f":"IF($B475=\"Blank\",0,VLOOKUP($B475,Inputs!$C$68:$AN$129,MATCH($B479,Inputs!$C$68:$AN$68,0),FALSE))+IFERROR(IF($B475=\"Blank\",0,VLOOKUP($B475,Inputs!$C$68:$AN$129,MATCH($C479,Inputs!$C$68:$AN$68,0),FALSE))*('Master Data'!O$42),0)","v":0},null,null,null,null,null,null,null,"Lamp Service costs Annualised",0,0,0,0,0]
[null,{"$f":"Inputs!$M$68","v":"PE Cell Service costs Annualised"},"Labour Portion of PE Cell Service costs Annualised",null,{"$f":"IF($B475=\"Blank\",0,VLOOKUP($B475,Inputs!$C$68:$AN$129,MATCH($B480,Inputs!$C$68:$AN$68,0),FALSE))+IF($B475=\"Blank\",0,VLOOKUP($B475,Inputs!$C$68:$AN$129,MATCH($C480,Inputs!$C$68:$AN$68,0),FALSE))*('Master Data'!K$42)","v":6.0318725099601611},{"$f":"IF($B475=\"Blank\",0,VLOOKUP($B475,Inputs!$C$68:$AN$129,MATCH($B480,Inputs!$C$68:$AN$68,0),FALSE))+IF($B475=\"Blank\",0,VLOOKUP($B475,Inputs!$C$68:$AN$129,MATCH($C480,Inputs!$C$68:$AN$68,0),FALSE))*('Master Data'!L$42)","v":6.0327558565737069},{"$f":"IF($B475=\"Blank\",0,VLOOKUP($B475,Inputs!$C$68:$AN$129,MATCH($B480,Inputs!$C$68:$AN$68,0),FALSE))+IF($B475=\"Blank\",0,VLOOKUP($B475,Inputs!$C$68:$AN$129,MATCH($C480,Inputs!$C$68:$AN$68,0),FALSE))*('Master Data'!M$42)","v":6.034103171394424},{"$f":"IF($B475=\"Blank\",0,VLOOKUP($B475,Inputs!$C$68:$AN$129,MATCH($B480,Inputs!$C$68:$AN$68,0),FALSE))+IF($B475=\"Blank\",0,VLOOKUP($B475,Inputs!$C$68:$AN$129,MATCH($C480,Inputs!$C$68:$AN$68,0),FALSE))*('Master Data'!N$42)","v":6.0357642373421774},{"$f":"IF($B475=\"Blank\",0,VLOOKUP($B475,Inputs!$C$68:$AN$129,MATCH($B480,Inputs!$C$68:$AN$68,0),FALSE))+IF($B475=\"Blank\",0,VLOOKUP($B475,Inputs!$C$68:$AN$129,MATCH($C480,Inputs!$C$68:$AN$68,0),FALSE))*('Master Data'!O$42)","v":6.0377040147041869},null,null,null,null,null,null,null,"PE Cell Service costs Annualised",1.6480525983497707,1.652809823718824,1.6531789510669654,1.6536340376279939,1.6496459056568817]
[null,"Indirect Opex",null,null,{"$f":"IF($B475=\"Blank\",0,IF($B$8=\"Private Contract Lighting\",'Opex Weighting'!D$48,'Opex Weighting'!D$46))","v":25.762407087322877},{"$f":"IF($B475=\"Blank\",0,IF($B$8=\"Private Contract Lighting\",'Opex Weighting'!E$48,'Opex Weighting'!E$46))","v":25.880403763800857},{"$f":"IF($B475=\"Blank\",0,IF($B$8=\"Private Contract Lighting\",'Opex Weighting'!F$48,'Opex Weighting'!F$46))","v":20.013740175030701},{"$f":"IF($B475=\"Blank\",0,IF($B$8=\"Private Contract Lighting\",'Opex Weighting'!G$48,'Opex Weighting'!G$46))","v":19.55949970528431},{"$f":"IF($B475=\"Blank\",0,IF($B$8=\"Private Contract Lighting\",'Opex Weighting'!H$48,'Opex Weighting'!H$46))","v":19.096814305933613},null,null,null,null,null,null,null,"Indirect Opex",7.0389090402521521,7.0905215791235223,5.4832164863097814,5.3587670425436471,5.2177088267578178]
[null,"Indirect Capex",null,null,{"$f":"'Capex Weighting'!D$59","v":0},{"$f":"'Capex Weighting'!E$59","v":0},{"$f":"'Capex Weighting'!F$59","v":0},{"$f":"'Capex Weighting'!G$59","v":0},{"$f":"'Capex Weighting'!H$59","v":0},null,null,null,null,null,null,null,"Indirect Capex",0,0,0,0,0]
[null,"Opex Overheads Costs per light",null,null,{"$f":"IF($B475=\"Blank\",0,IF($B$8=\"Private Contract Lighting\",'Building Block'!C$40,'Building Block'!C$39))","v":32.224036557323004},{"$f":"IF($B475=\"Blank\",0,IF($B$8=\"Private Contract Lighting\",'Building Block'!D$40,'Building Block'!D$39))","v":31.278075996100256},{"$f":"IF($B475=\"Blank\",0,IF($B$8=\"Private Contract Lighting\",'Building Block'!E$40,'Building Block'!E$39))","v":21.467987799581408},{"$f":"IF($B475=\"Blank\",0,IF($B$8=\"Private Contract Lighting\",'Building Block'!F$40,'Building Block'!F$39))","v":21.22771925228782},{"$f":"IF($B475=\"Blank\",0,IF($B$8=\"Private Contract Lighting\",'Building Block'!G$40,'Building Block'!G$39))","v":21.210892633443169},null,null,null,null,null,null,null,"Opex Overheads Costs per light",8.8043815730390715,8.5693358893425362,5.8816404930360022,5.815813493777485,5.7953258561320133]
[null,{"$f":"Inputs!$AK$68","v":"Bracket UNIT price"},0,null,{"$f":"IF($B475=\"Blank\",0,OFFSET('CAPEX Annuity calcs'!$B$9,MATCH($B475,'CAPEX Annuity calcs'!$B$9:$B$500,0)+$C484,E$6))","v":5.4237039034018384},{"$f":"IF($B475=\"Blank\",0,OFFSET('CAPEX Annuity calcs'!$B$9,MATCH($B475,'CAPEX Annuity calcs'!$B$9:$B$500,0)+$C484,F$6))","v":5.4237039034018384},{"$f":"IF($B475=\"Blank\",0,OFFSET('CAPEX Annuity calcs'!$B$9,MATCH($B475,'CAPEX Annuity calcs'!$B$9:$B$500,0)+$C484,G$6))","v":5.4237039034018384},{"$f":"IF($B475=\"Blank\",0,OFFSET('CAPEX Annuity calcs'!$B$9,MATCH($B475,'CAPEX Annuity calcs'!$B$9:$B$500,0)+$C484,H$6))","v":5.4237039034018384},{"$f":"IF($B475=\"Blank\",0,OFFSET('CAPEX Annuity calcs'!$B$9,MATCH($B475,'CAPEX Annuity calcs'!$B$9:$B$500,0)+$C484,I$6))","v":5.4237039034018384},null,null,null,null,null,null,null,"Bracket UNIT price",1.4818863124048738,1.4859462749046133,1.4859462749046133,1.4859462749046133,1.4818863124048738]
[null,{"$f":"Inputs!$AA$68","v":"CAPEX Instalation costs"},{"$f":"C484+1","v":1},null,{"$f":"IF($B475=\"Blank\",0,OFFSET('CAPEX Annuity calcs'!$B$9,MATCH($B475,'CAPEX Annuity calcs'!$B$9:$B$500,0)+$C485,E$6))","v":0},{"$f":"IF($B475=\"Blank\",0,OFFSET('CAPEX Annuity calcs'!$B$9,MATCH($B475,'CAPEX Annuity calcs'!$B$9:$B$500,0)+$C485,F$6))","v":0},{"$f":"IF($B475=\"Blank\",0,OFFSET('CAPEX Annuity calcs'!$B$9,MATCH($B475,'CAPEX Annuity calcs'!$B$9:$B$500,0)+$C485,G$6))","v":0},{"$f":"IF($B475=\"Blank\",0,OFFSET('CAPEX Annuity calcs'!$B$9,MATCH($B475,'CAPEX Annuity calcs'!$B$9:$B$500,0)+$C485,H$6))","v":0},{"$f":"IF($B475=\"Blank\",0,OFFSET('CAPEX Annuity calcs'!$B$9,MATCH($B475,'CAPEX Annuity calcs'!$B$9:$B$500,0)+$C485,I$6))","v":0},null,null,null,null,null,null,null,"CAPEX Instalation costs",0,0,0,0,0]
[null,{"$f":"Inputs!$Z$68","v":"Luminaire UNIT price"},{"$f":"C485+1","v":2},null,{"$f":"IF($B475=\"Blank\",0,OFFSET('CAPEX Annuity calcs'!$B$9,MATCH($B475,'CAPEX Annuity calcs'!$B$9:$B$500,0)+$C486,E$6))","v":25.571882785727663},{"$f":"IF($B475=\"Blank\",0,OFFSET('CAPEX Annuity calcs'!$B$9,MATCH($B475,'CAPEX Annuity calcs'!$B$9:$B$500,0)+$C486,F$6))","v":25.571882785727663},{"$f":"IF($B475=\"Blank\",0,OFFSET('CAPEX Annuity calcs'!$B$9,MATCH($B475,'CAPEX Annuity calcs'!$B$9:$B$500,0)+$C486,G$6))","v":25.571882785727663},{"$f":"IF($B475=\"Blank\",0,OFFSET('CAPEX Annuity calcs'!$B$9,MATCH($B475,'CAPEX Annuity calcs'!$B$9:$B$500,0)+$C486,H$6))","v":25.571882785727663},{"$f":"IF($B475=\"Blank\",0,OFFSET('CAPEX Annuity calcs'!$B$9,MATCH($B475,'CAPEX Annuity calcs'!$B$9:$B$500,0)+$C486,I$6))","v":25.571882785727663},null,null,null,null,null,null,null,"Luminaire UNIT price",6.9868532201441704,7.0059952837610036,7.0059952837610036,7.0059952837610036,6.9868532201441704]
[null,{"$f":"Inputs!$AA$68","v":"CAPEX Instalation costs"},3,null,{"$f":"IF($B475=\"Blank\",0,OFFSET('CAPEX Annuity calcs'!$B$9,MATCH($B475,'CAPEX Annuity calcs'!$B$9:$B$500,0)+$C487,E$6))","v":18.736141709912243},{"$f":"IF($B475=\"Blank\",0,OFFSET('CAPEX Annuity calcs'!$B$9,MATCH($B475,'CAPEX Annuity calcs'!$B$9:$B$500,0)+$C487,F$6))","v":18.74779128716041},{"$f":"IF($B475=\"Blank\",0,OFFSET('CAPEX Annuity calcs'!$B$9,MATCH($B475,'CAPEX Annuity calcs'!$B$9:$B$500,0)+$C487,G$6))","v":18.765559678232343},{"$f":"IF($B475=\"Blank\",0,OFFSET('CAPEX Annuity calcs'!$B$9,MATCH($B475,'CAPEX Annuity calcs'!$B$9:$B$500,0)+$C487,H$6))","v":18.787465819916616},{"$f":"IF($B475=\"Blank\",0,OFFSET('CAPEX Annuity calcs'!$B$9,MATCH($B475,'CAPEX Annuity calcs'!$B$9:$B$500,0)+$C487,I$6))","v":18.813047608397444},null,null,null,null,null,null,null,"CAPEX Instalation costs",5.1191644016153672,5.1363811745644954,5.1412492269129713,5.1472509095661954,5.1401769421850938]
[null,null,null,null,{"$f":"SUM(E476:E487)","v":132.62301073460702},{"$f":"SUM(F476:F487)","v":131.77729627693685},115.96901142079633,115.10245392037275,114.43986697684521,null,null,null,null,null,null,null,null,{"$f":"ROUND(E488/R$2*100,3)","v":36.235999999999997},{"$f":"ROUND(F488/S$2*100,3)","v":36.103000000000002},{"$f":"ROUND(G488/T$2*100,3)","v":31.771999999999998},{"$f":"ROUND(H488/U$2*100,3)","v":31.535},{"$f":"ROUND(I488/V$2*100,3)","v":31.268000000000001}]
[]
[{"$f":"A475+1","v":33},{"$f":"IFERROR(VLOOKUP($A490,Inputs!$B$68:$AN$129,MATCH($B$7,Inputs!$B$68:$AN$68,0),FALSE),\"Blank\")","v":"88 LED Light"},null,null,null,null,null,null,null,null,null,null,null,null,null,null,{"$f":"IFERROR(VLOOKUP($A490,Inputs!$B$68:$AN$129,MATCH($B$7,Inputs!$B$68:$AN$68,0),FALSE),\"Blank\")","v":"88 LED Light"}]
[null,{"$f":"Inputs!$S$68","v":"Lamp UNIT price Annualised Cost"},{"$f":"Inputs!$Q$68","v":"Lamp Maintenance cycle"},null,{"$f":"IF($B490=\"Blank\",0,VLOOKUP($B490,Inputs!$C$68:$AN$129,MATCH($B491,Inputs!$C$68:$AN$68,0),FALSE))","v":0},{"$f":"IF($B490=\"Blank\",0,VLOOKUP($B490,Inputs!$C$68:$AN$129,MATCH($B491,Inputs!$C$68:$AN$68,0),FALSE))","v":0},{"$f":"IF($B490=\"Blank\",0,VLOOKUP($B490,Inputs!$C$68:$AN$129,MATCH($B491,Inputs!$C$68:$AN$68,0),FALSE))","v":0},{"$f":"IF($B490=\"Blank\",0,VLOOKUP($B490,Inputs!$C$68:$AN$129,MATCH($B491,Inputs!$C$68:$AN$68,0),FALSE))","v":0},{"$f":"IF($B490=\"Blank\",0,VLOOKUP($B490,Inputs!$C$68:$AN$129,MATCH($B491,Inputs!$C$68:$AN$68,0),FALSE))","v":0},null,null,null,null,null,null,null,{"$f":"B491","v":"Lamp UNIT price Annualised Cost"},{"$f":"IF(E491=\"NA\",\"\",E491/R$2*100)","v":0},{"$f":"IF(F491=\"NA\",\"\",F491/S$2*100)","v":0},{"$f":"IF(G491=\"NA\",\"\",G491/T$2*100)","v":0},{"$f":"IF(H491=\"NA\",\"\",H491/U$2*100)","v":0},{"$f":"IF(I491=\"NA\",\"\",I491/V$2*100)","v":0}]
[null,{"$f":"Inputs!$K$68","v":"PE Cell UNIT price Annualised Cost"},{"$f":"Inputs!$I$68","v":"PE Cell Maintenance Cycle"},null,{"$f":"IF($B490=\"Blank\",0,VLOOKUP($B490,Inputs!$C$68:$AN$129,MATCH($B492,Inputs!$C$68:$AN$68,0),FALSE))","v":0.29065627594166676},{"$f":"IF($B490=\"Blank\",0,VLOOKUP($B490,Inputs!$C$68:$AN$129,MATCH($B492,Inputs!$C$68:$AN$68,0),FALSE))","v":0.29065627594166676},{"$f":"IF($B490=\"Blank\",0,VLOOKUP($B490,Inputs!$C$68:$AN$129,MATCH($B492,Inputs!$C$68:$AN$68,0),FALSE))","v":0.29065627594166676},{"$f":"IF($B490=\"Blank\",0,VLOOKUP($B490,Inputs!$C$68:$AN$129,MATCH($B492,Inputs!$C$68:$AN$68,0),FALSE))","v":0.29065627594166676},{"$f":"IF($B490=\"Blank\",0,VLOOKUP($B490,Inputs!$C$68:$AN$129,MATCH($B492,Inputs!$C$68:$AN$68,0),FALSE))","v":0.29065627594166676},null,null,null,null,null,null,null,"PE Cell UNIT price Annualised Cost",7.9414283044171238E-2,7.9631856422374456E-2,7.9631856422374456E-2,7.9631856422374456E-2,7.9414283044171238E-2]
[null,"Corp capex annuity per light",null,null,{"$f":"IF($B490=\"Blank\",0,'Corp Capex Annuity calcs'!F$142)","v":18.582309905017571},{"$f":"IF($B490=\"Blank\",0,'Corp Capex Annuity calcs'!G$142)","v":18.552026408230436},{"$f":"IF($B490=\"Blank\",0,'Corp Capex Annuity calcs'!H$142)","v":18.401377631486287},{"$f":"IF($B490=\"Blank\",0,'Corp Capex Annuity calcs'!I$142)","v":18.205761940470655},{"$f":"IF($B490=\"Blank\",0,'Corp Capex Annuity calcs'!J$142)","v":17.995165449295623},null,null,null,null,null,null,null,"Corp capex annuity per light",5.0771338538299373,5.0827469611590237,5.0414733236948734,4.9878799836905907,4.9167118713922466]
[null,{"$f":"Inputs!$U$68","v":"Lamp Service costs Annualised"},"Labour Portion of Lamp Service costs annualised",null,{"$f":"IF($B490=\"Blank\",0,VLOOKUP($B490,Inputs!$C$68:$AN$129,MATCH($B494,Inputs!$C$68:$AN$68,0),FALSE))+IFERROR(IF($B490=\"Blank\",0,VLOOKUP($B490,Inputs!$C$68:$AN$129,MATCH($C494,Inputs!$C$68:$AN$68,0),FALSE))*('Master Data'!K$42),0)","v":0},{"$f":"IF($B490=\"Blank\",0,VLOOKUP($B490,Inputs!$C$68:$AN$129,MATCH($B494,Inputs!$C$68:$AN$68,0),FALSE))+IFERROR(IF($B490=\"Blank\",0,VLOOKUP($B490,Inputs!$C$68:$AN$129,MATCH($C494,Inputs!$C$68:$AN$68,0),FALSE))*('Master Data'!L$42),0)","v":0},{"$f":"IF($B490=\"Blank\",0,VLOOKUP($B490,Inputs!$C$68:$AN$129,MATCH($B494,Inputs!$C$68:$AN$68,0),FALSE))+IFERROR(IF($B490=\"Blank\",0,VLOOKUP($B490,Inputs!$C$68:$AN$129,MATCH($C494,Inputs!$C$68:$AN$68,0),FALSE))*('Master Data'!M$42),0)","v":0},{"$f":"IF($B490=\"Blank\",0,VLOOKUP($B490,Inputs!$C$68:$AN$129,MATCH($B494,Inputs!$C$68:$AN$68,0),FALSE))+IFERROR(IF($B490=\"Blank\",0,VLOOKUP($B490,Inputs!$C$68:$AN$129,MATCH($C494,Inputs!$C$68:$AN$68,0),FALSE))*('Master Data'!N$42),0)","v":0},{"$f":"IF($B490=\"Blank\",0,VLOOKUP($B490,Inputs!$C$68:$AN$129,MATCH($B494,Inputs!$C$68:$AN$68,0),FALSE))+IFERROR(IF($B490=\"Blank\",0,VLOOKUP($B490,Inputs!$C$68:$AN$129,MATCH($C494,Inputs!$C$68:$AN$68,0),FALSE))*('Master Data'!O$42),0)","v":0},null,null,null,null,null,null,null,"Lamp Service costs Annualised",0,0,0,0,0]
[null,{"$f":"Inputs!$M$68","v":"PE Cell Service costs Annualised"},"Labour Portion of PE Cell Service costs Annualised",null,{"$f":"IF($B490=\"Blank\",0,VLOOKUP($B490,Inputs!$C$68:$AN$129,MATCH($B495,Inputs!$C$68:$AN$68,0),FALSE))+IFERROR(IF($B490=\"Blank\",0,VLOOKUP($B490,Inputs!$C$68:$AN$129,MATCH($C495,Inputs!$C$68:$AN$68,0),FALSE))*('Master Data'!K$42),0)","v":6.0318725099601611},{"$f":"IF($B490=\"Blank\",0,VLOOKUP($B490,Inputs!$C$68:$AN$129,MATCH($B495,Inputs!$C$68:$AN$68,0),FALSE))+IFERROR(IF($B490=\"Blank\",0,VLOOKUP($B490,Inputs!$C$68:$AN$129,MATCH($C495,Inputs!$C$68:$AN$68,0),FALSE))*('Master Data'!L$42),0)","v":6.0327558565737069},{"$f":"IF($B490=\"Blank\",0,VLOOKUP($B490,Inputs!$C$68:$AN$129,MATCH($B495,Inputs!$C$68:$AN$68,0),FALSE))+IFERROR(IF($B490=\"Blank\",0,VLOOKUP($B490,Inputs!$C$68:$AN$129,MATCH($C495,Inputs!$C$68:$AN$68,0),FALSE))*('Master Data'!M$42),0)","v":6.034103171394424},{"$f":"IF($B490=\"Blank\",0,VLOOKUP($B490,Inputs!$C$68:$AN$129,MATCH($B495,Inputs!$C$68:$AN$68,0),FALSE))+IFERROR(IF($B490=\"Blank\",0,VLOOKUP($B490,Inputs!$C$68:$AN$129,MATCH($C495,Inputs!$C$68:$AN$68,0),FALSE))*('Master Data'!N$42),0)","v":6.0357642373421774},{"$f":"IF($B490=\"Blank\",0,VLOOKUP($B490,Inputs!$C$68:$AN$129,MATCH($B495,Inputs!$C$68:$AN$68,0),FALSE))+IFERROR(IF($B490=\"Blank\",0,VLOOKUP($B490,Inputs!$C$68:$AN$129,MATCH($C495,Inputs!$C$68:$AN$68,0),FALSE))*('Master Data'!O$42),0)","v":6.0377040147041869},null,null,null,null,null,null,null,"PE Cell Service costs Annualised",1.6480525983497707,1.652809823718824,1.6531789510669654,1.6536340376279939,1.6496459056568817]
[null,"Indirect Opex",null,null,{"$f":"IF($B490=\"Blank\",0,IF($B$8=\"Private Contract Lighting\",'Opex Weighting'!D$48,'Opex Weighting'!D$46))","v":25.762407087322877},{"$f":"IF($B490=\"Blank\",0,IF($B$8=\"Private Contract Lighting\",'Opex Weighting'!E$48,'Opex Weighting'!E$46))","v":25.880403763800857},{"$f":"IF($B490=\"Blank\",0,IF($B$8=\"Private Contract Lighting\",'Opex Weighting'!F$48,'Opex Weighting'!F$46))","v":20.013740175030701},{"$f":"IF($B490=\"Blank\",0,IF($B$8=\"Private Contract Lighting\",'Opex Weighting'!G$48,'Opex Weighting'!G$46))","v":19.55949970528431},{"$f":"IF($B490=\"Blank\",0,IF($B$8=\"Private Contract Lighting\",'Opex Weighting'!H$48,'Opex Weighting'!H$46))","v":19.096814305933613},null,null,null,null,null,null,null,"Indirect Opex",7.0389090402521521,7.0905215791235223,5.4832164863097814,5.3587670425436471,5.2177088267578178]
[null,"Indirect Capex",null,null,{"$f":"'Capex Weighting'!D$59","v":0},{"$f":"'Capex Weighting'!E$59","v":0},{"$f":"'Capex Weighting'!F$59","v":0},{"$f":"'Capex Weighting'!G$59","v":0},{"$f":"'Capex Weighting'!H$59","v":0},null,null,null,null,null,null,null,"Indirect Capex",0,0,0,0,0]
[null,"Opex Overheads Costs per light",null,null,{"$f":"IF($B490=\"Blank\",0,IF($B$8=\"Private Contract Lighting\",'Building Block'!C$40,'Building Block'!C$39))","v":32.224036557323004},{"$f":"IF($B490=\"Blank\",0,IF($B$8=\"Private Contract Lighting\",'Building Block'!D$40,'Building Block'!D$39))","v":31.278075996100256},{"$f":"IF($B490=\"Blank\",0,IF($B$8=\"Private Contract Lighting\",'Building Block'!E$40,'Building Block'!E$39))","v":21.467987799581408},{"$f":"IF($B490=\"Blank\",0,IF($B$8=\"Private Contract Lighting\",'Building Block'!F$40,'Building Block'!F$39))","v":21.22771925228782},{"$f":"IF($B490=\"Blank\",0,IF($B$8=\"Private Contract Lighting\",'Building Block'!G$40,'Building Block'!G$39))","v":21.210892633443169},null,null,null,null,null,null,null,"Opex Overheads Costs per light",8.8043815730390715,8.5693358893425362,5.8816404930360022,5.815813493777485,5.7953258561320133]
[null,{"$f":"Inputs!$AK$68","v":"Bracket UNIT price"},0,null,{"$f":"IF($B490=\"Blank\",0,OFFSET('CAPEX Annuity calcs'!$B$9,MATCH($B490,'CAPEX Annuity calcs'!$B$9:$B$500,0)+$C499,E$6))","v":5.4237039034018384},{"$f":"IF($B490=\"Blank\",0,OFFSET('CAPEX Annuity calcs'!$B$9,MATCH($B490,'CAPEX Annuity calcs'!$B$9:$B$500,0)+$C499,F$6))","v":5.4237039034018384},{"$f":"IF($B490=\"Blank\",0,OFFSET('CAPEX Annuity calcs'!$B$9,MATCH($B490,'CAPEX Annuity calcs'!$B$9:$B$500,0)+$C499,G$6))","v":5.4237039034018384},{"$f":"IF($B490=\"Blank\",0,OFFSET('CAPEX Annuity calcs'!$B$9,MATCH($B490,'CAPEX Annuity calcs'!$B$9:$B$500,0)+$C499,H$6))","v":5.4237039034018384},{"$f":"IF($B490=\"Blank\",0,OFFSET('CAPEX Annuity calcs'!$B$9,MATCH($B490,'CAPEX Annuity calcs'!$B$9:$B$500,0)+$C499,I$6))","v":5.4237039034018384},null,null,null,null,null,null,null,"Bracket UNIT price",1.4818863124048738,1.4859462749046133,1.4859462749046133,1.4859462749046133,1.4818863124048738]
[null,{"$f":"Inputs!$AA$68","v":"CAPEX Instalation costs"},{"$f":"C499+1","v":1},null,{"$f":"IF($B490=\"Blank\",0,OFFSET('CAPEX Annuity calcs'!$B$9,MATCH($B490,'CAPEX Annuity calcs'!$B$9:$B$500,0)+$C500,E$6))","v":0},{"$f":"IF($B490=\"Blank\",0,OFFSET('CAPEX Annuity calcs'!$B$9,MATCH($B490,'CAPEX Annuity calcs'!$B$9:$B$500,0)+$C500,F$6))","v":0},{"$f":"IF($B490=\"Blank\",0,OFFSET('CAPEX Annuity calcs'!$B$9,MATCH($B490,'CAPEX Annuity calcs'!$B$9:$B$500,0)+$C500,G$6))","v":0},{"$f":"IF($B490=\"Blank\",0,OFFSET('CAPEX Annuity calcs'!$B$9,MATCH($B490,'CAPEX Annuity calcs'!$B$9:$B$500,0)+$C500,H$6))","v":0},{"$f":"IF($B490=\"Blank\",0,OFFSET('CAPEX Annuity calcs'!$B$9,MATCH($B490,'CAPEX Annuity calcs'!$B$9:$B$500,0)+$C500,I$6))","v":0},null,null,null,null,null,null,null,"CAPEX Instalation costs",0,0,0,0,0]
[null,{"$f":"Inputs!$Z$68","v":"Luminaire UNIT price"},{"$f":"C500+1","v":2},null,{"$f":"IF($B490=\"Blank\",0,OFFSET('CAPEX Annuity calcs'!$B$9,MATCH($B490,'CAPEX Annuity calcs'!$B$9:$B$500,0)+$C501,E$6))","v":25.571882785727663},{"$f":"IF($B490=\"Blank\",0,OFFSET('CAPEX Annuity calcs'!$B$9,MATCH($B490,'CAPEX Annuity calcs'!$B$9:$B$500,0)+$C501,F$6))","v":25.571882785727663},{"$f":"IF($B490=\"Blank\",0,OFFSET('CAPEX Annuity calcs'!$B$9,MATCH($B490,'CAPEX Annuity calcs'!$B$9:$B$500,0)+$C501,G$6))","v":25.571882785727663},{"$f":"IF($B490=\"Blank\",0,OFFSET('CAPEX Annuity calcs'!$B$9,MATCH($B490,'CAPEX Annuity calcs'!$B$9:$B$500,0)+$C501,H$6))","v":25.571882785727663},{"$f":"IF($B490=\"Blank\",0,OFFSET('CAPEX Annuity calcs'!$B$9,MATCH($B490,'CAPEX Annuity calcs'!$B$9:$B$500,0)+$C501,I$6))","v":25.571882785727663},null,null,null,null,null,null,null,"Luminaire UNIT price",6.9868532201441704,7.0059952837610036,7.0059952837610036,7.0059952837610036,6.9868532201441704]
[null,{"$f":"Inputs!$AA$68","v":"CAPEX Instalation costs"},3,null,{"$f":"IF($B490=\"Blank\",0,OFFSET('CAPEX Annuity calcs'!$B$9,MATCH($B490,'CAPEX Annuity calcs'!$B$9:$B$500,0)+$C502,E$6))","v":18.736141709912243},{"$f":"IF($B490=\"Blank\",0,OFFSET('CAPEX Annuity calcs'!$B$9,MATCH($B490,'CAPEX Annuity calcs'!$B$9:$B$500,0)+$C502,F$6))","v":18.74779128716041},{"$f":"IF($B490=\"Blank\",0,OFFSET('CAPEX Annuity calcs'!$B$9,MATCH($B490,'CAPEX Annuity calcs'!$B$9:$B$500,0)+$C502,G$6))","v":18.765559678232343},{"$f":"IF($B490=\"Blank\",0,OFFSET('CAPEX Annuity calcs'!$B$9,MATCH($B490,'CAPEX Annuity calcs'!$B$9:$B$500,0)+$C502,H$6))","v":18.787465819916616},{"$f":"IF($B490=\"Blank\",0,OFFSET('CAPEX Annuity calcs'!$B$9,MATCH($B490,'CAPEX Annuity calcs'!$B$9:$B$500,0)+$C502,I$6))","v":18.813047608397444},null,null,null,null,null,null,null,"CAPEX Instalation costs",5.1191644016153672,5.1363811745644954,5.1412492269129713,5.1472509095661954,5.1401769421850938]
[null,null,null,null,{"$f":"SUM(E491:E502)","v":132.62301073460702},{"$f":"SUM(F491:F502)","v":131.77729627693685},115.96901142079633,115.10245392037275,114.43986697684521,null,null,null,null,null,null,null,null,{"$f":"ROUND(E503/R$2*100,3)","v":36.235999999999997},{"$f":"ROUND(F503/S$2*100,3)","v":36.103000000000002},{"$f":"ROUND(G503/T$2*100,3)","v":31.771999999999998},{"$f":"ROUND(H503/U$2*100,3)","v":31.535},{"$f":"ROUND(I503/V$2*100,3)","v":31.268000000000001}]
[]
[{"$f":"A490+1","v":34},{"$f":"IFERROR(VLOOKUP($A505,Inputs!$B$68:$AN$129,MATCH($B$7,Inputs!$B$68:$AN$68,0),FALSE),\"Blank\")","v":"100W Metal Halide"},null,null,null,null,null,null,null,null,null,null,null,null,null,null,{"$f":"IFERROR(VLOOKUP($A505,Inputs!$B$68:$AN$129,MATCH($B$7,Inputs!$B$68:$AN$68,0),FALSE),\"Blank\")","v":"100W Metal Halide"}]
[null,{"$f":"Inputs!$S$68","v":"Lamp UNIT price Annualised Cost"},{"$f":"Inputs!$Q$68","v":"Lamp Maintenance cycle"},null,{"$f":"IF($B505=\"Blank\",0,VLOOKUP($B505,Inputs!$C$68:$AN$129,MATCH($B506,Inputs!$C$68:$AN$68,0),FALSE))","v":3.6415782911199996},{"$f":"IF($B505=\"Blank\",0,VLOOKUP($B505,Inputs!$C$68:$AN$129,MATCH($B506,Inputs!$C$68:$AN$68,0),FALSE))","v":3.6415782911199996},{"$f":"IF($B505=\"Blank\",0,VLOOKUP($B505,Inputs!$C$68:$AN$129,MATCH($B506,Inputs!$C$68:$AN$68,0),FALSE))","v":3.6415782911199996},{"$f":"IF($B505=\"Blank\",0,VLOOKUP($B505,Inputs!$C$68:$AN$129,MATCH($B506,Inputs!$C$68:$AN$68,0),FALSE))","v":3.6415782911199996},{"$f":"IF($B505=\"Blank\",0,VLOOKUP($B505,Inputs!$C$68:$AN$129,MATCH($B506,Inputs!$C$68:$AN$68,0),FALSE))","v":3.6415782911199996},null,null,null,null,null,null,null,{"$f":"B506","v":"Lamp UNIT price Annualised Cost"},{"$f":"IF(E506=\"NA\",\"\",E506/R$2*100)","v":0.99496674620765013},{"$f":"IF(F506=\"NA\",\"\",F506/S$2*100)","v":0.99769268249863008},{"$f":"IF(G506=\"NA\",\"\",G506/T$2*100)","v":0.99769268249863008},{"$f":"IF(H506=\"NA\",\"\",H506/U$2*100)","v":0.99769268249863008},{"$f":"IF(I506=\"NA\",\"\",I506/V$2*100)","v":0.99496674620765013}]
[null,{"$f":"Inputs!$K$68","v":"PE Cell UNIT price Annualised Cost"},{"$f":"Inputs!$I$68","v":"PE Cell Maintenance Cycle"},null,{"$f":"IF($B505=\"Blank\",0,VLOOKUP($B505,Inputs!$C$68:$AN$129,MATCH($B507,Inputs!$C$68:$AN$68,0),FALSE))","v":1.6930974392480003},{"$f":"IF($B505=\"Blank\",0,VLOOKUP($B505,Inputs!$C$68:$AN$129,MATCH($B507,Inputs!$C$68:$AN$68,0),FALSE))","v":1.6930974392480003},{"$f":"IF($B505=\"Blank\",0,VLOOKUP($B505,Inputs!$C$68:$AN$129,MATCH($B507,Inputs!$C$68:$AN$68,0),FALSE))","v":1.6930974392480003},{"$f":"IF($B505=\"Blank\",0,VLOOKUP($B505,Inputs!$C$68:$AN$129,MATCH($B507,Inputs!$C$68:$AN$68,0),FALSE))","v":1.6930974392480003},{"$f":"IF($B505=\"Blank\",0,VLOOKUP($B505,Inputs!$C$68:$AN$129,MATCH($B507,Inputs!$C$68:$AN$68,0),FALSE))","v":1.6930974392480003},null,null,null,null,null,null,null,"PE Cell UNIT price Annualised Cost",0.46259492875628422,0.46386231212273976,0.46386231212273976,0.46386231212273976,0.46259492875628422]
[null,"Corp capex annuity per light",null,null,{"$f":"IF($B505=\"Blank\",0,'Corp Capex Annuity calcs'!F$142)","v":18.582309905017571},{"$f":"IF($B505=\"Blank\",0,'Corp Capex Annuity calcs'!G$142)","v":18.552026408230436},{"$f":"IF($B505=\"Blank\",0,'Corp Capex Annuity calcs'!H$142)","v":18.401377631486287},{"$f":"IF($B505=\"Blank\",0,'Corp Capex Annuity calcs'!I$142)","v":18.205761940470655},{"$f":"IF($B505=\"Blank\",0,'Corp Capex Annuity calcs'!J$142)","v":17.995165449295623},null,null,null,null,null,null,null,"Corp capex annuity per light",5.0771338538299373,5.0827469611590237,5.0414733236948734,4.9878799836905907,4.9167118713922466]
[null,{"$f":"Inputs!$U$68","v":"Lamp Service costs Annualised"},"Labour Portion of Lamp Service costs annualised",null,{"$f":"IF($B505=\"Blank\",0,VLOOKUP($B505,Inputs!$C$68:$AN$129,MATCH($B509,Inputs!$C$68:$AN$68,0),FALSE))+IFERROR(IF($B505=\"Blank\",0,VLOOKUP($B505,Inputs!$C$68:$AN$129,MATCH($C509,Inputs!$C$68:$AN$68,0),FALSE))*('Master Data'!K$42),0)","v":34.921367162927247},{"$f":"IF($B505=\"Blank\",0,VLOOKUP($B505,Inputs!$C$68:$AN$129,MATCH($B509,Inputs!$C$68:$AN$68,0),FALSE))+IFERROR(IF($B505=\"Blank\",0,VLOOKUP($B505,Inputs!$C$68:$AN$129,MATCH($C509,Inputs!$C$68:$AN$68,0),FALSE))*('Master Data'!L$42),0)","v":34.926481274900404},{"$f":"IF($B505=\"Blank\",0,VLOOKUP($B505,Inputs!$C$68:$AN$129,MATCH($B509,Inputs!$C$68:$AN$68,0),FALSE))+IFERROR(IF($B505=\"Blank\",0,VLOOKUP($B505,Inputs!$C$68:$AN$129,MATCH($C509,Inputs!$C$68:$AN$68,0),FALSE))*('Master Data'!M$42),0)","v":34.934281518599292},{"$f":"IF($B505=\"Blank\",0,VLOOKUP($B505,Inputs!$C$68:$AN$129,MATCH($B509,Inputs!$C$68:$AN$68,0),FALSE))+IFERROR(IF($B505=\"Blank\",0,VLOOKUP($B505,Inputs!$C$68:$AN$129,MATCH($C509,Inputs!$C$68:$AN$68,0),FALSE))*('Master Data'!N$42),0)","v":34.943898216191549},{"$f":"IF($B505=\"Blank\",0,VLOOKUP($B505,Inputs!$C$68:$AN$129,MATCH($B509,Inputs!$C$68:$AN$68,0),FALSE))+IFERROR(IF($B505=\"Blank\",0,VLOOKUP($B505,Inputs!$C$68:$AN$129,MATCH($C509,Inputs!$C$68:$AN$68,0),FALSE))*('Master Data'!O$42),0)","v":34.955128506182135},null,null,null,null,null,null,null,"Lamp Service costs Annualised",9.5413571483407775,9.5688989794247679,9.5710360324929571,9.5736707441620688,9.5505815590661562]
[null,{"$f":"Inputs!$M$68","v":"PE Cell Service costs Annualised"},"Labour Portion of PE Cell Service costs Annualised",null,{"$f":"IF($B505=\"Blank\",0,VLOOKUP($B505,Inputs!$C$68:$AN$129,MATCH($B510,Inputs!$C$68:$AN$68,0),FALSE))+IFERROR(IF($B505=\"Blank\",0,VLOOKUP($B505,Inputs!$C$68:$AN$129,MATCH($C510,Inputs!$C$68:$AN$68,0),FALSE))*('Master Data'!K$42),0)","v":0},{"$f":"IF($B505=\"Blank\",0,VLOOKUP($B505,Inputs!$C$68:$AN$129,MATCH($B510,Inputs!$C$68:$AN$68,0),FALSE))+IFERROR(IF($B505=\"Blank\",0,VLOOKUP($B505,Inputs!$C$68:$AN$129,MATCH($C510,Inputs!$C$68:$AN$68,0),FALSE))*('Master Data'!L$42),0)","v":0},{"$f":"IF($B505=\"Blank\",0,VLOOKUP($B505,Inputs!$C$68:$AN$129,MATCH($B510,Inputs!$C$68:$AN$68,0),FALSE))+IFERROR(IF($B505=\"Blank\",0,VLOOKUP($B505,Inputs!$C$68:$AN$129,MATCH($C510,Inputs!$C$68:$AN$68,0),FALSE))*('Master Data'!M$42),0)","v":0},{"$f":"IF($B505=\"Blank\",0,VLOOKUP($B505,Inputs!$C$68:$AN$129,MATCH($B510,Inputs!$C$68:$AN$68,0),FALSE))+IFERROR(IF($B505=\"Blank\",0,VLOOKUP($B505,Inputs!$C$68:$AN$129,MATCH($C510,Inputs!$C$68:$AN$68,0),FALSE))*('Master Data'!N$42),0)","v":0},{"$f":"IF($B505=\"Blank\",0,VLOOKUP($B505,Inputs!$C$68:$AN$129,MATCH($B510,Inputs!$C$68:$AN$68,0),FALSE))+IFERROR(IF($B505=\"Blank\",0,VLOOKUP($B505,Inputs!$C$68:$AN$129,MATCH($C510,Inputs!$C$68:$AN$68,0),FALSE))*('Master Data'!O$42),0)","v":0},null,null,null,null,null,null,null,"PE Cell Service costs Annualised",0,0,0,0,0]
[null,"Indirect Opex",null,null,{"$f":"IF($B505=\"Blank\",0,IF($B$8=\"Private Contract Lighting\",'Opex Weighting'!D$48,'Opex Weighting'!D$46))","v":25.762407087322877},{"$f":"IF($B505=\"Blank\",0,IF($B$8=\"Private Contract Lighting\",'Opex Weighting'!E$48,'Opex Weighting'!E$46))","v":25.880403763800857},{"$f":"IF($B505=\"Blank\",0,IF($B$8=\"Private Contract Lighting\",'Opex Weighting'!F$48,'Opex Weighting'!F$46))","v":20.013740175030701},{"$f":"IF($B505=\"Blank\",0,IF($B$8=\"Private Contract Lighting\",'Opex Weighting'!G$48,'Opex Weighting'!G$46))","v":19.55949970528431},{"$f":"IF($B505=\"Blank\",0,IF($B$8=\"Private Contract Lighting\",'Opex Weighting'!H$48,'Opex Weighting'!H$46))","v":19.096814305933613},null,null,null,null,null,null,null,"Indirect Opex",7.0389090402521521,7.0905215791235223,5.4832164863097814,5.3587670425436471,5.2177088267578178]
[null,"Indirect Capex",null,null,{"$f":"'Capex Weighting'!D$59","v":0},{"$f":"'Capex Weighting'!E$59","v":0},{"$f":"'Capex Weighting'!F$59","v":0},{"$f":"'Capex Weighting'!G$59","v":0},{"$f":"'Capex Weighting'!H$59","v":0},null,null,null,null,null,null,null,"Indirect Capex",0,0,0,0,0]
[null,"Opex Overheads Costs per light",null,null,{"$f":"IF($B505=\"Blank\",0,IF($B$8=\"Private Contract Lighting\",'Building Block'!C$40,'Building Block'!C$39))","v":32.224036557323004},{"$f":"IF($B505=\"Blank\",0,IF($B$8=\"Private Contract Lighting\",'Building Block'!D$40,'Building Block'!D$39))","v":31.278075996100256},{"$f":"IF($B505=\"Blank\",0,IF($B$8=\"Private Contract Lighting\",'Building Block'!E$40,'Building Block'!E$39))","v":21.467987799581408},{"$f":"IF($B505=\"Blank\",0,IF($B$8=\"Private Contract Lighting\",'Building Block'!F$40,'Building Block'!F$39))","v":21.22771925228782},{"$f":"IF($B505=\"Blank\",0,IF($B$8=\"Private Contract Lighting\",'Building Block'!G$40,'Building Block'!G$39))","v":21.210892633443169},null,null,null,null,null,null,null,"Opex Overheads Costs per light",8.8043815730390715,8.5693358893425362,5.8816404930360022,5.815813493777485,5.7953258561320133]
[null,{"$f":"Inputs!$AK$68","v":"Bracket UNIT price"},0,null,{"$f":"IF($B505=\"Blank\",0,OFFSET('CAPEX Annuity calcs'!$B$9,MATCH($B505,'CAPEX Annuity calcs'!$B$9:$B$500,0)+$C514,E$6))","v":5.5951444065074343},{"$f":"IF($B505=\"Blank\",0,OFFSET('CAPEX Annuity calcs'!$B$9,MATCH($B505,'CAPEX Annuity calcs'!$B$9:$B$500,0)+$C514,F$6))","v":5.5951444065074343},{"$f":"IF($B505=\"Blank\",0,OFFSET('CAPEX Annuity calcs'!$B$9,MATCH($B505,'CAPEX Annuity calcs'!$B$9:$B$500,0)+$C514,G$6))","v":5.5951444065074343},{"$f":"IF($B505=\"Blank\",0,OFFSET('CAPEX Annuity calcs'!$B$9,MATCH($B505,'CAPEX Annuity calcs'!$B$9:$B$500,0)+$C514,H$6))","v":5.5951444065074343},{"$f":"IF($B505=\"Blank\",0,OFFSET('CAPEX Annuity calcs'!$B$9,MATCH($B505,'CAPEX Annuity calcs'!$B$9:$B$500,0)+$C514,I$6))","v":5.5951444065074343},null,null,null,null,null,null,null,"Bracket UNIT price",1.5287279799200642,1.5329162757554615,1.5329162757554615,1.5329162757554615,1.5287279799200642]
[null,{"$f":"Inputs!$AA$68","v":"CAPEX Instalation costs"},{"$f":"C514+1","v":1},null,{"$f":"IF($B505=\"Blank\",0,OFFSET('CAPEX Annuity calcs'!$B$9,MATCH($B505,'CAPEX Annuity calcs'!$B$9:$B$500,0)+$C515,E$6))","v":0},{"$f":"IF($B505=\"Blank\",0,OFFSET('CAPEX Annuity calcs'!$B$9,MATCH($B505,'CAPEX Annuity calcs'!$B$9:$B$500,0)+$C515,F$6))","v":0},{"$f":"IF($B505=\"Blank\",0,OFFSET('CAPEX Annuity calcs'!$B$9,MATCH($B505,'CAPEX Annuity calcs'!$B$9:$B$500,0)+$C515,G$6))","v":0},{"$f":"IF($B505=\"Blank\",0,OFFSET('CAPEX Annuity calcs'!$B$9,MATCH($B505,'CAPEX Annuity calcs'!$B$9:$B$500,0)+$C515,H$6))","v":0},{"$f":"IF($B505=\"Blank\",0,OFFSET('CAPEX Annuity calcs'!$B$9,MATCH($B505,'CAPEX Annuity calcs'!$B$9:$B$500,0)+$C515,I$6))","v":0},null,null,null,null,null,null,null,"CAPEX Instalation costs",0,0,0,0,0]
[null,{"$f":"Inputs!$Z$68","v":"Luminaire UNIT price"},{"$f":"C515+1","v":2},null,{"$f":"IF($B505=\"Blank\",0,OFFSET('CAPEX Annuity calcs'!$B$9,MATCH($B505,'CAPEX Annuity calcs'!$B$9:$B$500,0)+$C516,E$6))","v":11.339741183816606},{"$f":"IF($B505=\"Blank\",0,OFFSET('CAPEX Annuity calcs'!$B$9,MATCH($B505,'CAPEX Annuity calcs'!$B$9:$B$500,0)+$C516,F$6))","v":11.339741183816606},{"$f":"IF($B505=\"Blank\",0,OFFSET('CAPEX Annuity calcs'!$B$9,MATCH($B505,'CAPEX Annuity calcs'!$B$9:$B$500,0)+$C516,G$6))","v":11.339741183816606},{"$f":"IF($B505=\"Blank\",0,OFFSET('CAPEX Annuity calcs'!$B$9,MATCH($B505,'CAPEX Annuity calcs'!$B$9:$B$500,0)+$C516,H$6))","v":11.339741183816606},{"$f":"IF($B505=\"Blank\",0,OFFSET('CAPEX Annuity calcs'!$B$9,MATCH($B505,'CAPEX Annuity calcs'!$B$9:$B$500,0)+$C516,I$6))","v":11.339741183816606},null,null,null,null,null,null,null,"Luminaire UNIT price",3.098289940933499,3.1067784065250974,3.1067784065250974,3.1067784065250974,3.098289940933499]
[null,{"$f":"Inputs!$AA$68","v":"CAPEX Instalation costs"},3,null,{"$f":"IF($B505=\"Blank\",0,OFFSET('CAPEX Annuity calcs'!$B$9,MATCH($B505,'CAPEX Annuity calcs'!$B$9:$B$500,0)+$C517,E$6))","v":29.489604830309908},{"$f":"IF($B505=\"Blank\",0,OFFSET('CAPEX Annuity calcs'!$B$9,MATCH($B505,'CAPEX Annuity calcs'!$B$9:$B$500,0)+$C517,F$6))","v":29.507480464650605},{"$f":"IF($B505=\"Blank\",0,OFFSET('CAPEX Annuity calcs'!$B$9,MATCH($B505,'CAPEX Annuity calcs'!$B$9:$B$500,0)+$C517,G$6))","v":29.534745081628376},{"$f":"IF($B505=\"Blank\",0,OFFSET('CAPEX Annuity calcs'!$B$9,MATCH($B505,'CAPEX Annuity calcs'!$B$9:$B$500,0)+$C517,H$6))","v":29.568358848911217},{"$f":"IF($B505=\"Blank\",0,OFFSET('CAPEX Annuity calcs'!$B$9,MATCH($B505,'CAPEX Annuity calcs'!$B$9:$B$500,0)+$C517,I$6))","v":29.607612693657906},null,null,null,null,null,null,null,"CAPEX Instalation costs",8.0572690793196475,8.0842412231919472,8.0917109812680472,8.1009202325784155,8.0895116649338537]
[null,null,null,null,{"$f":"SUM(E506:E517)","v":163.24928686359263},{"$f":"SUM(F506:F517)","v":162.41402922837457},146.62169352701812,145.77479928383758,145.13517490920447,null,null,null,null,null,null,null,null,{"$f":"ROUND(E518/R$2*100,3)","v":44.603999999999999},{"$f":"ROUND(F518/S$2*100,3)","v":44.497},{"$f":"ROUND(G518/T$2*100,3)","v":40.17},{"$f":"ROUND(H518/U$2*100,3)","v":39.938000000000002},{"$f":"ROUND(I518/V$2*100,3)","v":39.654000000000003}]
[]
[{"$f":"A505+1","v":35},{"$f":"IFERROR(VLOOKUP($A520,Inputs!$B$68:$AN$129,MATCH($B$7,Inputs!$B$68:$AN$68,0),FALSE),\"Blank\")","v":"150W Metal Halide"},null,null,null,null,null,null,null,null,null,null,null,null,null,null,{"$f":"IFERROR(VLOOKUP($A520,Inputs!$B$68:$AN$129,MATCH($B$7,Inputs!$B$68:$AN$68,0),FALSE),\"Blank\")","v":"150W Metal Halide"}]
[null,{"$f":"Inputs!$S$68","v":"Lamp UNIT price Annualised Cost"},{"$f":"Inputs!$Q$68","v":"Lamp Maintenance cycle"},null,{"$f":"IF($B520=\"Blank\",0,VLOOKUP($B520,Inputs!$C$68:$AN$129,MATCH($B521,Inputs!$C$68:$AN$68,0),FALSE))","v":4.1438966180000003},{"$f":"IF($B520=\"Blank\",0,VLOOKUP($B520,Inputs!$C$68:$AN$129,MATCH($B521,Inputs!$C$68:$AN$68,0),FALSE))","v":4.1438966180000003},{"$f":"IF($B520=\"Blank\",0,VLOOKUP($B520,Inputs!$C$68:$AN$129,MATCH($B521,Inputs!$C$68:$AN$68,0),FALSE))","v":4.1438966180000003},{"$f":"IF($B520=\"Blank\",0,VLOOKUP($B520,Inputs!$C$68:$AN$129,MATCH($B521,Inputs!$C$68:$AN$68,0),FALSE))","v":4.1438966180000003},{"$f":"IF($B520=\"Blank\",0,VLOOKUP($B520,Inputs!$C$68:$AN$129,MATCH($B521,Inputs!$C$68:$AN$68,0),FALSE))","v":4.1438966180000003},null,null,null,null,null,null,null,{"$f":"B521","v":"Lamp UNIT price Annualised Cost"},{"$f":"IF(E521=\"NA\",\"\",E521/R$2*100)","v":1.1322121907103826},{"$f":"IF(F521=\"NA\",\"\",F521/S$2*100)","v":1.1353141419178083},{"$f":"IF(G521=\"NA\",\"\",G521/T$2*100)","v":1.1353141419178083},{"$f":"IF(H521=\"NA\",\"\",H521/U$2*100)","v":1.1353141419178083},{"$f":"IF(I521=\"NA\",\"\",I521/V$2*100)","v":1.1322121907103826}]
[null,{"$f":"Inputs!$K$68","v":"PE Cell UNIT price Annualised Cost"},{"$f":"Inputs!$I$68","v":"PE Cell Maintenance Cycle"},null,{"$f":"IF($B520=\"Blank\",0,VLOOKUP($B520,Inputs!$C$68:$AN$129,MATCH($B522,Inputs!$C$68:$AN$68,0),FALSE))","v":1.6930974392480003},{"$f":"IF($B520=\"Blank\",0,VLOOKUP($B520,Inputs!$C$68:$AN$129,MATCH($B522,Inputs!$C$68:$AN$68,0),FALSE))","v":1.6930974392480003},{"$f":"IF($B520=\"Blank\",0,VLOOKUP($B520,Inputs!$C$68:$AN$129,MATCH($B522,Inputs!$C$68:$AN$68,0),FALSE))","v":1.6930974392480003},{"$f":"IF($B520=\"Blank\",0,VLOOKUP($B520,Inputs!$C$68:$AN$129,MATCH($B522,Inputs!$C$68:$AN$68,0),FALSE))","v":1.6930974392480003},{"$f":"IF($B520=\"Blank\",0,VLOOKUP($B520,Inputs!$C$68:$AN$129,MATCH($B522,Inputs!$C$68:$AN$68,0),FALSE))","v":1.6930974392480003},null,null,null,null,null,null,null,"PE Cell UNIT price Annualised Cost",0.46259492875628422,0.46386231212273976,0.46386231212273976,0.46386231212273976,0.46259492875628422]
[null,"Corp capex annuity per light",null,null,{"$f":"IF($B520=\"Blank\",0,'Corp Capex Annuity calcs'!F$142)","v":18.582309905017571},{"$f":"IF($B520=\"Blank\",0,'Corp Capex Annuity calcs'!G$142)","v":18.552026408230436},{"$f":"IF($B520=\"Blank\",0,'Corp Capex Annuity calcs'!H$142)","v":18.401377631486287},{"$f":"IF($B520=\"Blank\",0,'Corp Capex Annuity calcs'!I$142)","v":18.205761940470655},{"$f":"IF($B520=\"Blank\",0,'Corp Capex Annuity calcs'!J$142)","v":17.995165449295623},null,null,null,null,null,null,null,"Corp capex annuity per light",5.0771338538299373,5.0827469611590237,5.0414733236948734,4.9878799836905907,4.9167118713922466]
[null,{"$f":"Inputs!$U$68","v":"Lamp Service costs Annualised"},"Labour Portion of Lamp Service costs annualised",null,{"$f":"IF($B520=\"Blank\",0,VLOOKUP($B520,Inputs!$C$68:$AN$129,MATCH($B524,Inputs!$C$68:$AN$68,0),FALSE))+IFERROR(IF($B520=\"Blank\",0,VLOOKUP($B520,Inputs!$C$68:$AN$129,MATCH($C524,Inputs!$C$68:$AN$68,0),FALSE))*('Master Data'!K$42),0)","v":34.921367162927247},{"$f":"IF($B520=\"Blank\",0,VLOOKUP($B520,Inputs!$C$68:$AN$129,MATCH($B524,Inputs!$C$68:$AN$68,0),FALSE))+IFERROR(IF($B520=\"Blank\",0,VLOOKUP($B520,Inputs!$C$68:$AN$129,MATCH($C524,Inputs!$C$68:$AN$68,0),FALSE))*('Master Data'!L$42),0)","v":34.926481274900404},{"$f":"IF($B520=\"Blank\",0,VLOOKUP($B520,Inputs!$C$68:$AN$129,MATCH($B524,Inputs!$C$68:$AN$68,0),FALSE))+IFERROR(IF($B520=\"Blank\",0,VLOOKUP($B520,Inputs!$C$68:$AN$129,MATCH($C524,Inputs!$C$68:$AN$68,0),FALSE))*('Master Data'!M$42),0)","v":34.934281518599292},{"$f":"IF($B520=\"Blank\",0,VLOOKUP($B520,Inputs!$C$68:$AN$129,MATCH($B524,Inputs!$C$68:$AN$68,0),FALSE))+IFERROR(IF($B520=\"Blank\",0,VLOOKUP($B520,Inputs!$C$68:$AN$129,MATCH($C524,Inputs!$C$68:$AN$68,0),FALSE))*('Master Data'!N$42),0)","v":34.943898216191549},{"$f":"IF($B520=\"Blank\",0,VLOOKUP($B520,Inputs!$C$68:$AN$129,MATCH($B524,Inputs!$C$68:$AN$68,0),FALSE))+IFERROR(IF($B520=\"Blank\",0,VLOOKUP($B520,Inputs!$C$68:$AN$129,MATCH($C524,Inputs!$C$68:$AN$68,0),FALSE))*('Master Data'!O$42),0)","v":34.955128506182135},null,null,null,null,null,null,null,"Lamp Service costs Annualised",9.5413571483407775,9.5688989794247679,9.5710360324929571,9.5736707441620688,9.5505815590661562]
[null,{"$f":"Inputs!$M$68","v":"PE Cell Service costs Annualised"},"Labour Portion of PE Cell Service costs Annualised",null,{"$f":"IF($B520=\"Blank\",0,VLOOKUP($B520,Inputs!$C$68:$AN$129,MATCH($B525,Inputs!$C$68:$AN$68,0),FALSE))+IFERROR(IF($B520=\"Blank\",0,VLOOKUP($B520,Inputs!$C$68:$AN$129,MATCH($C525,Inputs!$C$68:$AN$68,0),FALSE))*('Master Data'!K$42),0)","v":0},{"$f":"IF($B520=\"Blank\",0,VLOOKUP($B520,Inputs!$C$68:$AN$129,MATCH($B525,Inputs!$C$68:$AN$68,0),FALSE))+IFERROR(IF($B520=\"Blank\",0,VLOOKUP($B520,Inputs!$C$68:$AN$129,MATCH($C525,Inputs!$C$68:$AN$68,0),FALSE))*('Master Data'!L$42),0)","v":0},{"$f":"IF($B520=\"Blank\",0,VLOOKUP($B520,Inputs!$C$68:$AN$129,MATCH($B525,Inputs!$C$68:$AN$68,0),FALSE))+IFERROR(IF($B520=\"Blank\",0,VLOOKUP($B520,Inputs!$C$68:$AN$129,MATCH($C525,Inputs!$C$68:$AN$68,0),FALSE))*('Master Data'!M$42),0)","v":0},{"$f":"IF($B520=\"Blank\",0,VLOOKUP($B520,Inputs!$C$68:$AN$129,MATCH($B525,Inputs!$C$68:$AN$68,0),FALSE))+IFERROR(IF($B520=\"Blank\",0,VLOOKUP($B520,Inputs!$C$68:$AN$129,MATCH($C525,Inputs!$C$68:$AN$68,0),FALSE))*('Master Data'!N$42),0)","v":0},{"$f":"IF($B520=\"Blank\",0,VLOOKUP($B520,Inputs!$C$68:$AN$129,MATCH($B525,Inputs!$C$68:$AN$68,0),FALSE))+IFERROR(IF($B520=\"Blank\",0,VLOOKUP($B520,Inputs!$C$68:$AN$129,MATCH($C525,Inputs!$C$68:$AN$68,0),FALSE))*('Master Data'!O$42),0)","v":0},null,null,null,null,null,null,null,"PE Cell Service costs Annualised",0,0,0,0,0]
[null,"Indirect Opex",null,null,{"$f":"IF($B520=\"Blank\",0,IF($B$8=\"Private Contract Lighting\",'Opex Weighting'!D$48,'Opex Weighting'!D$46))","v":25.762407087322877},{"$f":"IF($B520=\"Blank\",0,IF($B$8=\"Private Contract Lighting\",'Opex Weighting'!E$48,'Opex Weighting'!E$46))","v":25.880403763800857},{"$f":"IF($B520=\"Blank\",0,IF($B$8=\"Private Contract Lighting\",'Opex Weighting'!F$48,'Opex Weighting'!F$46))","v":20.013740175030701},{"$f":"IF($B520=\"Blank\",0,IF($B$8=\"Private Contract Lighting\",'Opex Weighting'!G$48,'Opex Weighting'!G$46))","v":19.55949970528431},{"$f":"IF($B520=\"Blank\",0,IF($B$8=\"Private Contract Lighting\",'Opex Weighting'!H$48,'Opex Weighting'!H$46))","v":19.096814305933613},null,null,null,null,null,null,null,"Indirect Opex",7.0389090402521521,7.0905215791235223,5.4832164863097814,5.3587670425436471,5.2177088267578178]
[null,"Indirect Capex",null,null,{"$f":"'Capex Weighting'!D$59","v":0},{"$f":"'Capex Weighting'!E$59","v":0},{"$f":"'Capex Weighting'!F$59","v":0},{"$f":"'Capex Weighting'!G$59","v":0},{"$f":"'Capex Weighting'!H$59","v":0},null,null,null,null,null,null,null,"Indirect Capex",0,0,0,0,0]
[null,"Opex Overheads Costs per light",null,null,{"$f":"IF($B520=\"Blank\",0,IF($B$8=\"Private Contract Lighting\",'Building Block'!C$40,'Building Block'!C$39))","v":32.224036557323004},{"$f":"IF($B520=\"Blank\",0,IF($B$8=\"Private Contract Lighting\",'Building Block'!D$40,'Building Block'!D$39))","v":31.278075996100256},{"$f":"IF($B520=\"Blank\",0,IF($B$8=\"Private Contract Lighting\",'Building Block'!E$40,'Building Block'!E$39))","v":21.467987799581408},{"$f":"IF($B520=\"Blank\",0,IF($B$8=\"Private Contract Lighting\",'Building Block'!F$40,'Building Block'!F$39))","v":21.22771925228782},{"$f":"IF($B520=\"Blank\",0,IF($B$8=\"Private Contract Lighting\",'Building Block'!G$40,'Building Block'!G$39))","v":21.210892633443169},null,null,null,null,null,null,null,"Opex Overheads Costs per light",8.8043815730390715,8.5693358893425362,5.8816404930360022,5.815813493777485,5.7953258561320133]
[null,{"$f":"Inputs!$AK$68","v":"Bracket UNIT price"},0,null,{"$f":"IF($B520=\"Blank\",0,OFFSET('CAPEX Annuity calcs'!$B$9,MATCH($B520,'CAPEX Annuity calcs'!$B$9:$B$500,0)+$C529,E$6))","v":9.6313933001632801},{"$f":"IF($B520=\"Blank\",0,OFFSET('CAPEX Annuity calcs'!$B$9,MATCH($B520,'CAPEX Annuity calcs'!$B$9:$B$500,0)+$C529,F$6))","v":9.6313933001632801},{"$f":"IF($B520=\"Blank\",0,OFFSET('CAPEX Annuity calcs'!$B$9,MATCH($B520,'CAPEX Annuity calcs'!$B$9:$B$500,0)+$C529,G$6))","v":9.6313933001632801},{"$f":"IF($B520=\"Blank\",0,OFFSET('CAPEX Annuity calcs'!$B$9,MATCH($B520,'CAPEX Annuity calcs'!$B$9:$B$500,0)+$C529,H$6))","v":9.6313933001632801},{"$f":"IF($B520=\"Blank\",0,OFFSET('CAPEX Annuity calcs'!$B$9,MATCH($B520,'CAPEX Annuity calcs'!$B$9:$B$500,0)+$C529,I$6))","v":9.6313933001632801},null,null,null,null,null,null,null,"Bracket UNIT price",2.6315282240883278,2.6387378904556931,2.6387378904556931,2.6387378904556931,2.6315282240883278]
[null,{"$f":"Inputs!$AA$68","v":"CAPEX Instalation costs"},{"$f":"C529+1","v":1},null,{"$f":"IF($B520=\"Blank\",0,OFFSET('CAPEX Annuity calcs'!$B$9,MATCH($B520,'CAPEX Annuity calcs'!$B$9:$B$500,0)+$C530,E$6))","v":0},{"$f":"IF($B520=\"Blank\",0,OFFSET('CAPEX Annuity calcs'!$B$9,MATCH($B520,'CAPEX Annuity calcs'!$B$9:$B$500,0)+$C530,F$6))","v":0},{"$f":"IF($B520=\"Blank\",0,OFFSET('CAPEX Annuity calcs'!$B$9,MATCH($B520,'CAPEX Annuity calcs'!$B$9:$B$500,0)+$C530,G$6))","v":0},{"$f":"IF($B520=\"Blank\",0,OFFSET('CAPEX Annuity calcs'!$B$9,MATCH($B520,'CAPEX Annuity calcs'!$B$9:$B$500,0)+$C530,H$6))","v":0},{"$f":"IF($B520=\"Blank\",0,OFFSET('CAPEX Annuity calcs'!$B$9,MATCH($B520,'CAPEX Annuity calcs'!$B$9:$B$500,0)+$C530,I$6))","v":0},null,null,null,null,null,null,null,"CAPEX Instalation costs",0,0,0,0,0]
[null,{"$f":"Inputs!$Z$68","v":"Luminaire UNIT price"},{"$f":"C530+1","v":2},null,{"$f":"IF($B520=\"Blank\",0,OFFSET('CAPEX Annuity calcs'!$B$9,MATCH($B520,'CAPEX Annuity calcs'!$B$9:$B$500,0)+$C531,E$6))","v":16.542149955182875},{"$f":"IF($B520=\"Blank\",0,OFFSET('CAPEX Annuity calcs'!$B$9,MATCH($B520,'CAPEX Annuity calcs'!$B$9:$B$500,0)+$C531,F$6))","v":16.542149955182875},{"$f":"IF($B520=\"Blank\",0,OFFSET('CAPEX Annuity calcs'!$B$9,MATCH($B520,'CAPEX Annuity calcs'!$B$9:$B$500,0)+$C531,G$6))","v":16.542149955182875},{"$f":"IF($B520=\"Blank\",0,OFFSET('CAPEX Annuity calcs'!$B$9,MATCH($B520,'CAPEX Annuity calcs'!$B$9:$B$500,0)+$C531,H$6))","v":16.542149955182875},{"$f":"IF($B520=\"Blank\",0,OFFSET('CAPEX Annuity calcs'!$B$9,MATCH($B520,'CAPEX Annuity calcs'!$B$9:$B$500,0)+$C531,I$6))","v":16.542149955182875},null,null,null,null,null,null,null,"Luminaire UNIT price",4.5197131025089821,4.5320958781322949,4.5320958781322949,4.5320958781322949,4.5197131025089821]
[null,{"$f":"Inputs!$AA$68","v":"CAPEX Instalation costs"},3,null,{"$f":"IF($B520=\"Blank\",0,OFFSET('CAPEX Annuity calcs'!$B$9,MATCH($B520,'CAPEX Annuity calcs'!$B$9:$B$500,0)+$C532,E$6))","v":29.489604830309908},{"$f":"IF($B520=\"Blank\",0,OFFSET('CAPEX Annuity calcs'!$B$9,MATCH($B520,'CAPEX Annuity calcs'!$B$9:$B$500,0)+$C532,F$6))","v":29.507480464650605},{"$f":"IF($B520=\"Blank\",0,OFFSET('CAPEX Annuity calcs'!$B$9,MATCH($B520,'CAPEX Annuity calcs'!$B$9:$B$500,0)+$C532,G$6))","v":29.534745081628376},{"$f":"IF($B520=\"Blank\",0,OFFSET('CAPEX Annuity calcs'!$B$9,MATCH($B520,'CAPEX Annuity calcs'!$B$9:$B$500,0)+$C532,H$6))","v":29.568358848911217},{"$f":"IF($B520=\"Blank\",0,OFFSET('CAPEX Annuity calcs'!$B$9,MATCH($B520,'CAPEX Annuity calcs'!$B$9:$B$500,0)+$C532,I$6))","v":29.607612693657906},null,null,null,null,null,null,null,"CAPEX Instalation costs",8.0572690793196475,8.0842412231919472,8.0917109812680472,8.1009202325784155,8.0895116649338537]
[null,null,null,null,{"$f":"SUM(E521:E532)","v":172.99026285549476},{"$f":"SUM(F521:F532)","v":172.15500522027671},156.36266951892023,155.51577527573971,154.8761509011066,null,null,null,null,null,null,null,null,{"$f":"ROUND(E533/R$2*100,3)","v":47.265000000000001},{"$f":"ROUND(F533/S$2*100,3)","v":47.165999999999997},{"$f":"ROUND(G533/T$2*100,3)","v":42.838999999999999},{"$f":"ROUND(H533/U$2*100,3)","v":42.606999999999999},{"$f":"ROUND(I533/V$2*100,3)","v":42.316000000000003}]
[]
[{"$f":"A520+1","v":36},{"$f":"IFERROR(VLOOKUP($A535,Inputs!$B$68:$AN$129,MATCH($B$7,Inputs!$B$68:$AN$68,0),FALSE),\"Blank\")","v":"250W Metal Halide"},null,null,null,null,null,null,null,null,null,null,null,null,null,null,{"$f":"IFERROR(VLOOKUP($A535,Inputs!$B$68:$AN$129,MATCH($B$7,Inputs!$B$68:$AN$68,0),FALSE),\"Blank\")","v":"250W Metal Halide"}]
[null,{"$f":"Inputs!$S$68","v":"Lamp UNIT price Annualised Cost"},{"$f":"Inputs!$Q$68","v":"Lamp Maintenance cycle"},null,{"$f":"IF($B535=\"Blank\",0,VLOOKUP($B535,Inputs!$C$68:$AN$129,MATCH($B536,Inputs!$C$68:$AN$68,0),FALSE))","v":4.1438966180000003},{"$f":"IF($B535=\"Blank\",0,VLOOKUP($B535,Inputs!$C$68:$AN$129,MATCH($B536,Inputs!$C$68:$AN$68,0),FALSE))","v":4.1438966180000003},{"$f":"IF($B535=\"Blank\",0,VLOOKUP($B535,Inputs!$C$68:$AN$129,MATCH($B536,Inputs!$C$68:$AN$68,0),FALSE))","v":4.1438966180000003},{"$f":"IF($B535=\"Blank\",0,VLOOKUP($B535,Inputs!$C$68:$AN$129,MATCH($B536,Inputs!$C$68:$AN$68,0),FALSE))","v":4.1438966180000003},{"$f":"IF($B535=\"Blank\",0,VLOOKUP($B535,Inputs!$C$68:$AN$129,MATCH($B536,Inputs!$C$68:$AN$68,0),FALSE))","v":4.1438966180000003},null,null,null,null,null,null,null,{"$f":"B536","v":"Lamp UNIT price Annualised Cost"},{"$f":"IF(E536=\"NA\",\"\",E536/R$2*100)","v":1.1322121907103826},{"$f":"IF(F536=\"NA\",\"\",F536/S$2*100)","v":1.1353141419178083},{"$f":"IF(G536=\"NA\",\"\",G536/T$2*100)","v":1.1353141419178083},{"$f":"IF(H536=\"NA\",\"\",H536/U$2*100)","v":1.1353141419178083},{"$f":"IF(I536=\"NA\",\"\",I536/V$2*100)","v":1.1322121907103826}]
[null,{"$f":"Inputs!$K$68","v":"PE Cell UNIT price Annualised Cost"},{"$f":"Inputs!$I$68","v":"PE Cell Maintenance Cycle"},null,{"$f":"IF($B535=\"Blank\",0,VLOOKUP($B535,Inputs!$C$68:$AN$129,MATCH($B537,Inputs!$C$68:$AN$68,0),FALSE))","v":1.6930974392480003},{"$f":"IF($B535=\"Blank\",0,VLOOKUP($B535,Inputs!$C$68:$AN$129,MATCH($B537,Inputs!$C$68:$AN$68,0),FALSE))","v":1.6930974392480003},{"$f":"IF($B535=\"Blank\",0,VLOOKUP($B535,Inputs!$C$68:$AN$129,MATCH($B537,Inputs!$C$68:$AN$68,0),FALSE))","v":1.6930974392480003},{"$f":"IF($B535=\"Blank\",0,VLOOKUP($B535,Inputs!$C$68:$AN$129,MATCH($B537,Inputs!$C$68:$AN$68,0),FALSE))","v":1.6930974392480003},{"$f":"IF($B535=\"Blank\",0,VLOOKUP($B535,Inputs!$C$68:$AN$129,MATCH($B537,Inputs!$C$68:$AN$68,0),FALSE))","v":1.6930974392480003},null,null,null,null,null,null,null,"PE Cell UNIT price Annualised Cost",0.46259492875628422,0.46386231212273976,0.46386231212273976,0.46386231212273976,0.46259492875628422]
[null,"Corp capex annuity per light",null,null,{"$f":"IF($B535=\"Blank\",0,'Corp Capex Annuity calcs'!F$142)","v":18.582309905017571},{"$f":"IF($B535=\"Blank\",0,'Corp Capex Annuity calcs'!G$142)","v":18.552026408230436},{"$f":"IF($B535=\"Blank\",0,'Corp Capex Annuity calcs'!H$142)","v":18.401377631486287},{"$f":"IF($B535=\"Blank\",0,'Corp Capex Annuity calcs'!I$142)","v":18.205761940470655},{"$f":"IF($B535=\"Blank\",0,'Corp Capex Annuity calcs'!J$142)","v":17.995165449295623},null,null,null,null,null,null,null,"Corp capex annuity per light",5.0771338538299373,5.0827469611590237,5.0414733236948734,4.9878799836905907,4.9167118713922466]
[null,{"$f":"Inputs!$U$68","v":"Lamp Service costs Annualised"},"Labour Portion of Lamp Service costs annualised",null,{"$f":"IF($B535=\"Blank\",0,VLOOKUP($B535,Inputs!$C$68:$AN$129,MATCH($B539,Inputs!$C$68:$AN$68,0),FALSE))+IFERROR(IF($B535=\"Blank\",0,VLOOKUP($B535,Inputs!$C$68:$AN$129,MATCH($C539,Inputs!$C$68:$AN$68,0),FALSE))*('Master Data'!K$42),0)","v":34.921367162927247},{"$f":"IF($B535=\"Blank\",0,VLOOKUP($B535,Inputs!$C$68:$AN$129,MATCH($B539,Inputs!$C$68:$AN$68,0),FALSE))+IFERROR(IF($B535=\"Blank\",0,VLOOKUP($B535,Inputs!$C$68:$AN$129,MATCH($C539,Inputs!$C$68:$AN$68,0),FALSE))*('Master Data'!L$42),0)","v":34.926481274900404},{"$f":"IF($B535=\"Blank\",0,VLOOKUP($B535,Inputs!$C$68:$AN$129,MATCH($B539,Inputs!$C$68:$AN$68,0),FALSE))+IFERROR(IF($B535=\"Blank\",0,VLOOKUP($B535,Inputs!$C$68:$AN$129,MATCH($C539,Inputs!$C$68:$AN$68,0),FALSE))*('Master Data'!M$42),0)","v":34.934281518599292},{"$f":"IF($B535=\"Blank\",0,VLOOKUP($B535,Inputs!$C$68:$AN$129,MATCH($B539,Inputs!$C$68:$AN$68,0),FALSE))+IFERROR(IF($B535=\"Blank\",0,VLOOKUP($B535,Inputs!$C$68:$AN$129,MATCH($C539,Inputs!$C$68:$AN$68,0),FALSE))*('Master Data'!N$42),0)","v":34.943898216191549},{"$f":"IF($B535=\"Blank\",0,VLOOKUP($B535,Inputs!$C$68:$AN$129,MATCH($B539,Inputs!$C$68:$AN$68,0),FALSE))+IFERROR(IF($B535=\"Blank\",0,VLOOKUP($B535,Inputs!$C$68:$AN$129,MATCH($C539,Inputs!$C$68:$AN$68,0),FALSE))*('Master Data'!O$42),0)","v":34.955128506182135},null,null,null,null,null,null,null,"Lamp Service costs Annualised",9.5413571483407775,9.5688989794247679,9.5710360324929571,9.5736707441620688,9.5505815590661562]
[null,{"$f":"Inputs!$M$68","v":"PE Cell Service costs Annualised"},"Labour Portion of PE Cell Service costs Annualised",null,{"$f":"IF($B535=\"Blank\",0,VLOOKUP($B535,Inputs!$C$68:$AN$129,MATCH($B540,Inputs!$C$68:$AN$68,0),FALSE))+IFERROR(IF($B535=\"Blank\",0,VLOOKUP($B535,Inputs!$C$68:$AN$129,MATCH($C540,Inputs!$C$68:$AN$68,0),FALSE))*('Master Data'!K$42),0)","v":0},{"$f":"IF($B535=\"Blank\",0,VLOOKUP($B535,Inputs!$C$68:$AN$129,MATCH($B540,Inputs!$C$68:$AN$68,0),FALSE))+IFERROR(IF($B535=\"Blank\",0,VLOOKUP($B535,Inputs!$C$68:$AN$129,MATCH($C540,Inputs!$C$68:$AN$68,0),FALSE))*('Master Data'!L$42),0)","v":0},{"$f":"IF($B535=\"Blank\",0,VLOOKUP($B535,Inputs!$C$68:$AN$129,MATCH($B540,Inputs!$C$68:$AN$68,0),FALSE))+IFERROR(IF($B535=\"Blank\",0,VLOOKUP($B535,Inputs!$C$68:$AN$129,MATCH($C540,Inputs!$C$68:$AN$68,0),FALSE))*('Master Data'!M$42),0)","v":0},{"$f":"IF($B535=\"Blank\",0,VLOOKUP($B535,Inputs!$C$68:$AN$129,MATCH($B540,Inputs!$C$68:$AN$68,0),FALSE))+IFERROR(IF($B535=\"Blank\",0,VLOOKUP($B535,Inputs!$C$68:$AN$129,MATCH($C540,Inputs!$C$68:$AN$68,0),FALSE))*('Master Data'!N$42),0)","v":0},{"$f":"IF($B535=\"Blank\",0,VLOOKUP($B535,Inputs!$C$68:$AN$129,MATCH($B540,Inputs!$C$68:$AN$68,0),FALSE))+IFERROR(IF($B535=\"Blank\",0,VLOOKUP($B535,Inputs!$C$68:$AN$129,MATCH($C540,Inputs!$C$68:$AN$68,0),FALSE))*('Master Data'!O$42),0)","v":0},null,null,null,null,null,null,null,"PE Cell Service costs Annualised",0,0,0,0,0]
[null,"Indirect Opex",null,null,{"$f":"IF($B535=\"Blank\",0,IF($B$8=\"Private Contract Lighting\",'Opex Weighting'!D$48,'Opex Weighting'!D$46))","v":25.762407087322877},{"$f":"IF($B535=\"Blank\",0,IF($B$8=\"Private Contract Lighting\",'Opex Weighting'!E$48,'Opex Weighting'!E$46))","v":25.880403763800857},{"$f":"IF($B535=\"Blank\",0,IF($B$8=\"Private Contract Lighting\",'Opex Weighting'!F$48,'Opex Weighting'!F$46))","v":20.013740175030701},{"$f":"IF($B535=\"Blank\",0,IF($B$8=\"Private Contract Lighting\",'Opex Weighting'!G$48,'Opex Weighting'!G$46))","v":19.55949970528431},{"$f":"IF($B535=\"Blank\",0,IF($B$8=\"Private Contract Lighting\",'Opex Weighting'!H$48,'Opex Weighting'!H$46))","v":19.096814305933613},null,null,null,null,null,null,null,"Indirect Opex",7.0389090402521521,7.0905215791235223,5.4832164863097814,5.3587670425436471,5.2177088267578178]
[null,"Indirect Capex",null,null,{"$f":"'Capex Weighting'!D$59","v":0},{"$f":"'Capex Weighting'!E$59","v":0},{"$f":"'Capex Weighting'!F$59","v":0},{"$f":"'Capex Weighting'!G$59","v":0},{"$f":"'Capex Weighting'!H$59","v":0},null,null,null,null,null,null,null,"Indirect Capex",0,0,0,0,0]
[null,"Opex Overheads Costs per light",null,null,{"$f":"IF($B535=\"Blank\",0,IF($B$8=\"Private Contract Lighting\",'Building Block'!C$40,'Building Block'!C$39))","v":32.224036557323004},{"$f":"IF($B535=\"Blank\",0,IF($B$8=\"Private Contract Lighting\",'Building Block'!D$40,'Building Block'!D$39))","v":31.278075996100256},{"$f":"IF($B535=\"Blank\",0,IF($B$8=\"Private Contract Lighting\",'Building Block'!E$40,'Building Block'!E$39))","v":21.467987799581408},{"$f":"IF($B535=\"Blank\",0,IF($B$8=\"Private Contract Lighting\",'Building Block'!F$40,'Building Block'!F$39))","v":21.22771925228782},{"$f":"IF($B535=\"Blank\",0,IF($B$8=\"Private Contract Lighting\",'Building Block'!G$40,'Building Block'!G$39))","v":21.210892633443169},null,null,null,null,null,null,null,"Opex Overheads Costs per light",8.8043815730390715,8.5693358893425362,5.8816404930360022,5.815813493777485,5.7953258561320133]
[null,{"$f":"Inputs!$AK$68","v":"Bracket UNIT price"},0,null,{"$f":"IF($B535=\"Blank\",0,OFFSET('CAPEX Annuity calcs'!$B$9,MATCH($B535,'CAPEX Annuity calcs'!$B$9:$B$500,0)+$C544,E$6))","v":12.359265722063284},{"$f":"IF($B535=\"Blank\",0,OFFSET('CAPEX Annuity calcs'!$B$9,MATCH($B535,'CAPEX Annuity calcs'!$B$9:$B$500,0)+$C544,F$6))","v":12.359265722063284},{"$f":"IF($B535=\"Blank\",0,OFFSET('CAPEX Annuity calcs'!$B$9,MATCH($B535,'CAPEX Annuity calcs'!$B$9:$B$500,0)+$C544,G$6))","v":12.359265722063284},{"$f":"IF($B535=\"Blank\",0,OFFSET('CAPEX Annuity calcs'!$B$9,MATCH($B535,'CAPEX Annuity calcs'!$B$9:$B$500,0)+$C544,H$6))","v":12.359265722063284},{"$f":"IF($B535=\"Blank\",0,OFFSET('CAPEX Annuity calcs'!$B$9,MATCH($B535,'CAPEX Annuity calcs'!$B$9:$B$500,0)+$C544,I$6))","v":12.359265722063284},null,null,null,null,null,null,null,"Bracket UNIT price",3.3768485579407885,3.3861001978255576,3.3861001978255576,3.3861001978255576,3.3768485579407885]
[null,{"$f":"Inputs!$AA$68","v":"CAPEX Instalation costs"},{"$f":"C544+1","v":1},null,{"$f":"IF($B535=\"Blank\",0,OFFSET('CAPEX Annuity calcs'!$B$9,MATCH($B535,'CAPEX Annuity calcs'!$B$9:$B$500,0)+$C545,E$6))","v":0},{"$f":"IF($B535=\"Blank\",0,OFFSET('CAPEX Annuity calcs'!$B$9,MATCH($B535,'CAPEX Annuity calcs'!$B$9:$B$500,0)+$C545,F$6))","v":0},{"$f":"IF($B535=\"Blank\",0,OFFSET('CAPEX Annuity calcs'!$B$9,MATCH($B535,'CAPEX Annuity calcs'!$B$9:$B$500,0)+$C545,G$6))","v":0},{"$f":"IF($B535=\"Blank\",0,OFFSET('CAPEX Annuity calcs'!$B$9,MATCH($B535,'CAPEX Annuity calcs'!$B$9:$B$500,0)+$C545,H$6))","v":0},{"$f":"IF($B535=\"Blank\",0,OFFSET('CAPEX Annuity calcs'!$B$9,MATCH($B535,'CAPEX Annuity calcs'!$B$9:$B$500,0)+$C545,I$6))","v":0},null,null,null,null,null,null,null,"CAPEX Instalation costs",0,0,0,0,0]
[null,{"$f":"Inputs!$Z$68","v":"Luminaire UNIT price"},{"$f":"C545+1","v":2},null,{"$f":"IF($B535=\"Blank\",0,OFFSET('CAPEX Annuity calcs'!$B$9,MATCH($B535,'CAPEX Annuity calcs'!$B$9:$B$500,0)+$C546,E$6))","v":17.136377331813542},{"$f":"IF($B535=\"Blank\",0,OFFSET('CAPEX Annuity calcs'!$B$9,MATCH($B535,'CAPEX Annuity calcs'!$B$9:$B$500,0)+$C546,F$6))","v":17.136377331813542},{"$f":"IF($B535=\"Blank\",0,OFFSET('CAPEX Annuity calcs'!$B$9,MATCH($B535,'CAPEX Annuity calcs'!$B$9:$B$500,0)+$C546,G$6))","v":17.136377331813542},{"$f":"IF($B535=\"Blank\",0,OFFSET('CAPEX Annuity calcs'!$B$9,MATCH($B535,'CAPEX Annuity calcs'!$B$9:$B$500,0)+$C546,H$6))","v":17.136377331813542},{"$f":"IF($B535=\"Blank\",0,OFFSET('CAPEX Annuity calcs'!$B$9,MATCH($B535,'CAPEX Annuity calcs'!$B$9:$B$500,0)+$C546,I$6))","v":17.136377331813542},null,null,null,null,null,null,null,"Luminaire UNIT price",4.6820703092386733,4.6948978991269978,4.6948978991269978,4.6948978991269978,4.6820703092386733]
[null,{"$f":"Inputs!$AA$68","v":"CAPEX Instalation costs"},3,null,{"$f":"IF($B535=\"Blank\",0,OFFSET('CAPEX Annuity calcs'!$B$9,MATCH($B535,'CAPEX Annuity calcs'!$B$9:$B$500,0)+$C547,E$6))","v":29.489604830309908},{"$f":"IF($B535=\"Blank\",0,OFFSET('CAPEX Annuity calcs'!$B$9,MATCH($B535,'CAPEX Annuity calcs'!$B$9:$B$500,0)+$C547,F$6))","v":29.507480464650605},{"$f":"IF($B535=\"Blank\",0,OFFSET('CAPEX Annuity calcs'!$B$9,MATCH($B535,'CAPEX Annuity calcs'!$B$9:$B$500,0)+$C547,G$6))","v":29.534745081628376},{"$f":"IF($B535=\"Blank\",0,OFFSET('CAPEX Annuity calcs'!$B$9,MATCH($B535,'CAPEX Annuity calcs'!$B$9:$B$500,0)+$C547,H$6))","v":29.568358848911217},{"$f":"IF($B535=\"Blank\",0,OFFSET('CAPEX Annuity calcs'!$B$9,MATCH($B535,'CAPEX Annuity calcs'!$B$9:$B$500,0)+$C547,I$6))","v":29.607612693657906},null,null,null,null,null,null,null,"CAPEX Instalation costs",8.0572690793196475,8.0842412231919472,8.0917109812680472,8.1009202325784155,8.0895116649338537]
[null,null,null,null,{"$f":"SUM(E536:E547)","v":176.31236265402543},{"$f":"SUM(F536:F547)","v":175.47710501880738},159.6847693174509,158.83787507427036,158.19825069963727,null,null,null,null,null,null,null,null,{"$f":"ROUND(E548/R$2*100,3)","v":48.173000000000002},{"$f":"ROUND(F548/S$2*100,3)","v":48.076000000000001},{"$f":"ROUND(G548/T$2*100,3)","v":43.749000000000002},{"$f":"ROUND(H548/U$2*100,3)","v":43.517000000000003},{"$f":"ROUND(I548/V$2*100,3)","v":43.223999999999997}]
[]
[{"$f":"A535+1","v":37},{"$f":"IFERROR(VLOOKUP($A550,Inputs!$B$68:$AN$129,MATCH($B$7,Inputs!$B$68:$AN$68,0),FALSE),\"Blank\")","v":"400W Metal Halide"},null,null,null,null,null,null,null,null,null,null,null,null,null,null,{"$f":"IFERROR(VLOOKUP($A550,Inputs!$B$68:$AN$129,MATCH($B$7,Inputs!$B$68:$AN$68,0),FALSE),\"Blank\")","v":"400W Metal Halide"}]
[null,{"$f":"Inputs!$S$68","v":"Lamp UNIT price Annualised Cost"},{"$f":"Inputs!$Q$68","v":"Lamp Maintenance cycle"},null,{"$f":"IF($B550=\"Blank\",0,VLOOKUP($B550,Inputs!$C$68:$AN$129,MATCH($B551,Inputs!$C$68:$AN$68,0),FALSE))","v":6.5429946599999997},{"$f":"IF($B550=\"Blank\",0,VLOOKUP($B550,Inputs!$C$68:$AN$129,MATCH($B551,Inputs!$C$68:$AN$68,0),FALSE))","v":6.5429946599999997},{"$f":"IF($B550=\"Blank\",0,VLOOKUP($B550,Inputs!$C$68:$AN$129,MATCH($B551,Inputs!$C$68:$AN$68,0),FALSE))","v":6.5429946599999997},{"$f":"IF($B550=\"Blank\",0,VLOOKUP($B550,Inputs!$C$68:$AN$129,MATCH($B551,Inputs!$C$68:$AN$68,0),FALSE))","v":6.5429946599999997},{"$f":"IF($B550=\"Blank\",0,VLOOKUP($B550,Inputs!$C$68:$AN$129,MATCH($B551,Inputs!$C$68:$AN$68,0),FALSE))","v":6.5429946599999997},null,null,null,null,null,null,null,{"$f":"B551","v":"Lamp UNIT price Annualised Cost"},{"$f":"IF(E551=\"NA\",\"\",E551/R$2*100)","v":1.7877034590163936},{"$f":"IF(F551=\"NA\",\"\",F551/S$2*100)","v":1.7926012767123287},{"$f":"IF(G551=\"NA\",\"\",G551/T$2*100)","v":1.7926012767123287},{"$f":"IF(H551=\"NA\",\"\",H551/U$2*100)","v":1.7926012767123287},{"$f":"IF(I551=\"NA\",\"\",I551/V$2*100)","v":1.7877034590163936}]
[null,{"$f":"Inputs!$K$68","v":"PE Cell UNIT price Annualised Cost"},{"$f":"Inputs!$I$68","v":"PE Cell Maintenance Cycle"},null,{"$f":"IF($B550=\"Blank\",0,VLOOKUP($B550,Inputs!$C$68:$AN$129,MATCH($B552,Inputs!$C$68:$AN$68,0),FALSE))","v":1.6930974392480003},{"$f":"IF($B550=\"Blank\",0,VLOOKUP($B550,Inputs!$C$68:$AN$129,MATCH($B552,Inputs!$C$68:$AN$68,0),FALSE))","v":1.6930974392480003},{"$f":"IF($B550=\"Blank\",0,VLOOKUP($B550,Inputs!$C$68:$AN$129,MATCH($B552,Inputs!$C$68:$AN$68,0),FALSE))","v":1.6930974392480003},{"$f":"IF($B550=\"Blank\",0,VLOOKUP($B550,Inputs!$C$68:$AN$129,MATCH($B552,Inputs!$C$68:$AN$68,0),FALSE))","v":1.6930974392480003},{"$f":"IF($B550=\"Blank\",0,VLOOKUP($B550,Inputs!$C$68:$AN$129,MATCH($B552,Inputs!$C$68:$AN$68,0),FALSE))","v":1.6930974392480003},null,null,null,null,null,null,null,"PE Cell UNIT price Annualised Cost",0.46259492875628422,0.46386231212273976,0.46386231212273976,0.46386231212273976,0.46259492875628422]
[null,"Corp capex annuity per light",null,null,{"$f":"IF($B550=\"Blank\",0,'Corp Capex Annuity calcs'!F$142)","v":18.582309905017571},{"$f":"IF($B550=\"Blank\",0,'Corp Capex Annuity calcs'!G$142)","v":18.552026408230436},{"$f":"IF($B550=\"Blank\",0,'Corp Capex Annuity calcs'!H$142)","v":18.401377631486287},{"$f":"IF($B550=\"Blank\",0,'Corp Capex Annuity calcs'!I$142)","v":18.205761940470655},{"$f":"IF($B550=\"Blank\",0,'Corp Capex Annuity calcs'!J$142)","v":17.995165449295623},null,null,null,null,null,null,null,"Corp capex annuity per light",5.0771338538299373,5.0827469611590237,5.0414733236948734,4.9878799836905907,4.9167118713922466]
[null,{"$f":"Inputs!$U$68","v":"Lamp Service costs Annualised"},"Labour Portion of Lamp Service costs annualised",null,{"$f":"IF($B550=\"Blank\",0,VLOOKUP($B550,Inputs!$C$68:$AN$129,MATCH($B554,Inputs!$C$68:$AN$68,0),FALSE))+IFERROR(IF($B550=\"Blank\",0,VLOOKUP($B550,Inputs!$C$68:$AN$129,MATCH($C554,Inputs!$C$68:$AN$68,0),FALSE))*('Master Data'!K$42),0)","v":34.921367162927247},{"$f":"IF($B550=\"Blank\",0,VLOOKUP($B550,Inputs!$C$68:$AN$129,MATCH($B554,Inputs!$C$68:$AN$68,0),FALSE))+IFERROR(IF($B550=\"Blank\",0,VLOOKUP($B550,Inputs!$C$68:$AN$129,MATCH($C554,Inputs!$C$68:$AN$68,0),FALSE))*('Master Data'!L$42),0)","v":34.926481274900404},{"$f":"IF($B550=\"Blank\",0,VLOOKUP($B550,Inputs!$C$68:$AN$129,MATCH($B554,Inputs!$C$68:$AN$68,0),FALSE))+IFERROR(IF($B550=\"Blank\",0,VLOOKUP($B550,Inputs!$C$68:$AN$129,MATCH($C554,Inputs!$C$68:$AN$68,0),FALSE))*('Master Data'!M$42),0)","v":34.934281518599292},{"$f":"IF($B550=\"Blank\",0,VLOOKUP($B550,Inputs!$C$68:$AN$129,MATCH($B554,Inputs!$C$68:$AN$68,0),FALSE))+IFERROR(IF($B550=\"Blank\",0,VLOOKUP($B550,Inputs!$C$68:$AN$129,MATCH($C554,Inputs!$C$68:$AN$68,0),FALSE))*('Master Data'!N$42),0)","v":34.943898216191549},{"$f":"IF($B550=\"Blank\",0,VLOOKUP($B550,Inputs!$C$68:$AN$129,MATCH($B554,Inputs!$C$68:$AN$68,0),FALSE))+IFERROR(IF($B550=\"Blank\",0,VLOOKUP($B550,Inputs!$C$68:$AN$129,MATCH($C554,Inputs!$C$68:$AN$68,0),FALSE))*('Master Data'!O$42),0)","v":34.955128506182135},null,null,null,null,null,null,null,"Lamp Service costs Annualised",9.5413571483407775,9.5688989794247679,9.5710360324929571,9.5736707441620688,9.5505815590661562]
[null,{"$f":"Inputs!$M$68","v":"PE Cell Service costs Annualised"},"Labour Portion of PE Cell Service costs Annualised",null,{"$f":"IF($B550=\"Blank\",0,VLOOKUP($B550,Inputs!$C$68:$AN$129,MATCH($B555,Inputs!$C$68:$AN$68,0),FALSE))+IFERROR(IF($B550=\"Blank\",0,VLOOKUP($B550,Inputs!$C$68:$AN$129,MATCH($C555,Inputs!$C$68:$AN$68,0),FALSE))*('Master Data'!K$42),0)","v":0},{"$f":"IF($B550=\"Blank\",0,VLOOKUP($B550,Inputs!$C$68:$AN$129,MATCH($B555,Inputs!$C$68:$AN$68,0),FALSE))+IFERROR(IF($B550=\"Blank\",0,VLOOKUP($B550,Inputs!$C$68:$AN$129,MATCH($C555,Inputs!$C$68:$AN$68,0),FALSE))*('Master Data'!L$42),0)","v":0},{"$f":"IF($B550=\"Blank\",0,VLOOKUP($B550,Inputs!$C$68:$AN$129,MATCH($B555,Inputs!$C$68:$AN$68,0),FALSE))+IFERROR(IF($B550=\"Blank\",0,VLOOKUP($B550,Inputs!$C$68:$AN$129,MATCH($C555,Inputs!$C$68:$AN$68,0),FALSE))*('Master Data'!M$42),0)","v":0},{"$f":"IF($B550=\"Blank\",0,VLOOKUP($B550,Inputs!$C$68:$AN$129,MATCH($B555,Inputs!$C$68:$AN$68,0),FALSE))+IFERROR(IF($B550=\"Blank\",0,VLOOKUP($B550,Inputs!$C$68:$AN$129,MATCH($C555,Inputs!$C$68:$AN$68,0),FALSE))*('Master Data'!N$42),0)","v":0},{"$f":"IF($B550=\"Blank\",0,VLOOKUP($B550,Inputs!$C$68:$AN$129,MATCH($B555,Inputs!$C$68:$AN$68,0),FALSE))+IFERROR(IF($B550=\"Blank\",0,VLOOKUP($B550,Inputs!$C$68:$AN$129,MATCH($C555,Inputs!$C$68:$AN$68,0),FALSE))*('Master Data'!O$42),0)","v":0},null,null,null,null,null,null,null,"PE Cell Service costs Annualised",0,0,0,0,0]
[null,"Indirect Opex",null,null,{"$f":"IF($B550=\"Blank\",0,IF($B$8=\"Private Contract Lighting\",'Opex Weighting'!D$48,'Opex Weighting'!D$46))","v":25.762407087322877},{"$f":"IF($B550=\"Blank\",0,IF($B$8=\"Private Contract Lighting\",'Opex Weighting'!E$48,'Opex Weighting'!E$46))","v":25.880403763800857},{"$f":"IF($B550=\"Blank\",0,IF($B$8=\"Private Contract Lighting\",'Opex Weighting'!F$48,'Opex Weighting'!F$46))","v":20.013740175030701},{"$f":"IF($B550=\"Blank\",0,IF($B$8=\"Private Contract Lighting\",'Opex Weighting'!G$48,'Opex Weighting'!G$46))","v":19.55949970528431},{"$f":"IF($B550=\"Blank\",0,IF($B$8=\"Private Contract Lighting\",'Opex Weighting'!H$48,'Opex Weighting'!H$46))","v":19.096814305933613},null,null,null,null,null,null,null,"Indirect Opex",7.0389090402521521,7.0905215791235223,5.4832164863097814,5.3587670425436471,5.2177088267578178]
[null,"Indirect Capex",null,null,{"$f":"'Capex Weighting'!D$59","v":0},{"$f":"'Capex Weighting'!E$59","v":0},{"$f":"'Capex Weighting'!F$59","v":0},{"$f":"'Capex Weighting'!G$59","v":0},{"$f":"'Capex Weighting'!H$59","v":0},null,null,null,null,null,null,null,"Indirect Capex",0,0,0,0,0]
[null,"Opex Overheads Costs per light",null,null,{"$f":"IF($B550=\"Blank\",0,IF($B$8=\"Private Contract Lighting\",'Building Block'!C$40,'Building Block'!C$39))","v":32.224036557323004},{"$f":"IF($B550=\"Blank\",0,IF($B$8=\"Private Contract Lighting\",'Building Block'!D$40,'Building Block'!D$39))","v":31.278075996100256},{"$f":"IF($B550=\"Blank\",0,IF($B$8=\"Private Contract Lighting\",'Building Block'!E$40,'Building Block'!E$39))","v":21.467987799581408},{"$f":"IF($B550=\"Blank\",0,IF($B$8=\"Private Contract Lighting\",'Building Block'!F$40,'Building Block'!F$39))","v":21.22771925228782},{"$f":"IF($B550=\"Blank\",0,IF($B$8=\"Private Contract Lighting\",'Building Block'!G$40,'Building Block'!G$39))","v":21.210892633443169},null,null,null,null,null,null,null,"Opex Overheads Costs per light",8.8043815730390715,8.5693358893425362,5.8816404930360022,5.815813493777485,5.7953258561320133]
[null,{"$f":"Inputs!$AK$68","v":"Bracket UNIT price"},0,null,{"$f":"IF($B550=\"Blank\",0,OFFSET('CAPEX Annuity calcs'!$B$9,MATCH($B550,'CAPEX Annuity calcs'!$B$9:$B$500,0)+$C559,E$6))","v":8.9160003868670579},{"$f":"IF($B550=\"Blank\",0,OFFSET('CAPEX Annuity calcs'!$B$9,MATCH($B550,'CAPEX Annuity calcs'!$B$9:$B$500,0)+$C559,F$6))","v":8.9160003868670579},{"$f":"IF($B550=\"Blank\",0,OFFSET('CAPEX Annuity calcs'!$B$9,MATCH($B550,'CAPEX Annuity calcs'!$B$9:$B$500,0)+$C559,G$6))","v":8.9160003868670579},{"$f":"IF($B550=\"Blank\",0,OFFSET('CAPEX Annuity calcs'!$B$9,MATCH($B550,'CAPEX Annuity calcs'!$B$9:$B$500,0)+$C559,H$6))","v":8.9160003868670579},{"$f":"IF($B550=\"Blank\",0,OFFSET('CAPEX Annuity calcs'!$B$9,MATCH($B550,'CAPEX Annuity calcs'!$B$9:$B$500,0)+$C559,I$6))","v":8.9160003868670579},null,null,null,null,null,null,null,"Bracket UNIT price",2.4360656794718736,2.442739832018372,2.442739832018372,2.442739832018372,2.4360656794718736]
[null,{"$f":"Inputs!$AA$68","v":"CAPEX Instalation costs"},{"$f":"C559+1","v":1},null,{"$f":"IF($B550=\"Blank\",0,OFFSET('CAPEX Annuity calcs'!$B$9,MATCH($B550,'CAPEX Annuity calcs'!$B$9:$B$500,0)+$C560,E$6))","v":0},{"$f":"IF($B550=\"Blank\",0,OFFSET('CAPEX Annuity calcs'!$B$9,MATCH($B550,'CAPEX Annuity calcs'!$B$9:$B$500,0)+$C560,F$6))","v":0},{"$f":"IF($B550=\"Blank\",0,OFFSET('CAPEX Annuity calcs'!$B$9,MATCH($B550,'CAPEX Annuity calcs'!$B$9:$B$500,0)+$C560,G$6))","v":0},{"$f":"IF($B550=\"Blank\",0,OFFSET('CAPEX Annuity calcs'!$B$9,MATCH($B550,'CAPEX Annuity calcs'!$B$9:$B$500,0)+$C560,H$6))","v":0},{"$f":"IF($B550=\"Blank\",0,OFFSET('CAPEX Annuity calcs'!$B$9,MATCH($B550,'CAPEX Annuity calcs'!$B$9:$B$500,0)+$C560,I$6))","v":0},null,null,null,null,null,null,null,"CAPEX Instalation costs",0,0,0,0,0]
[null,{"$f":"Inputs!$Z$68","v":"Luminaire UNIT price"},{"$f":"C560+1","v":2},null,{"$f":"IF($B550=\"Blank\",0,OFFSET('CAPEX Annuity calcs'!$B$9,MATCH($B550,'CAPEX Annuity calcs'!$B$9:$B$500,0)+$C561,E$6))","v":34.806326717321895},{"$f":"IF($B550=\"Blank\",0,OFFSET('CAPEX Annuity calcs'!$B$9,MATCH($B550,'CAPEX Annuity calcs'!$B$9:$B$500,0)+$C561,F$6))","v":34.806326717321895},{"$f":"IF($B550=\"Blank\",0,OFFSET('CAPEX Annuity calcs'!$B$9,MATCH($B550,'CAPEX Annuity calcs'!$B$9:$B$500,0)+$C561,G$6))","v":34.806326717321895},{"$f":"IF($B550=\"Blank\",0,OFFSET('CAPEX Annuity calcs'!$B$9,MATCH($B550,'CAPEX Annuity calcs'!$B$9:$B$500,0)+$C561,H$6))","v":34.806326717321895},{"$f":"IF($B550=\"Blank\",0,OFFSET('CAPEX Annuity calcs'!$B$9,MATCH($B550,'CAPEX Annuity calcs'!$B$9:$B$500,0)+$C561,I$6))","v":34.806326717321895},null,null,null,null,null,null,null,"Luminaire UNIT price",9.5099253326016111,9.5359799225539437,9.5359799225539437,9.5359799225539437,9.5099253326016111]
[null,{"$f":"Inputs!$AA$68","v":"CAPEX Instalation costs"},3,null,{"$f":"IF($B550=\"Blank\",0,OFFSET('CAPEX Annuity calcs'!$B$9,MATCH($B550,'CAPEX Annuity calcs'!$B$9:$B$500,0)+$C562,E$6))","v":29.489604830309908},{"$f":"IF($B550=\"Blank\",0,OFFSET('CAPEX Annuity calcs'!$B$9,MATCH($B550,'CAPEX Annuity calcs'!$B$9:$B$500,0)+$C562,F$6))","v":29.507480464650605},{"$f":"IF($B550=\"Blank\",0,OFFSET('CAPEX Annuity calcs'!$B$9,MATCH($B550,'CAPEX Annuity calcs'!$B$9:$B$500,0)+$C562,G$6))","v":29.534745081628376},{"$f":"IF($B550=\"Blank\",0,OFFSET('CAPEX Annuity calcs'!$B$9,MATCH($B550,'CAPEX Annuity calcs'!$B$9:$B$500,0)+$C562,H$6))","v":29.568358848911217},{"$f":"IF($B550=\"Blank\",0,OFFSET('CAPEX Annuity calcs'!$B$9,MATCH($B550,'CAPEX Annuity calcs'!$B$9:$B$500,0)+$C562,I$6))","v":29.607612693657906},null,null,null,null,null,null,null,"CAPEX Instalation costs",8.0572690793196475,8.0842412231919472,8.0917109812680472,8.1009202325784155,8.0895116649338537]
[null,null,null,null,{"$f":"SUM(E551:E562)","v":192.93814474633754},{"$f":"SUM(F551:F562)","v":192.10288711111951},176.31055140976304,175.46365716658249,174.82403279194941,null,null,null,null,null,null,null,null,{"$f":"ROUND(E563/R$2*100,3)","v":52.715000000000003},{"$f":"ROUND(F563/S$2*100,3)","v":52.631},{"$f":"ROUND(G563/T$2*100,3)","v":48.304000000000002},{"$f":"ROUND(H563/U$2*100,3)","v":48.072000000000003},{"$f":"ROUND(I563/V$2*100,3)","v":47.765999999999998}]
[]
[{"$f":"A550+1","v":38},{"$f":"IFERROR(VLOOKUP($A565,Inputs!$B$68:$AN$129,MATCH($B$7,Inputs!$B$68:$AN$68,0),FALSE),\"Blank\")","v":"70W Metal Halide"},null,null,null,null,null,null,null,null,null,null,null,null,null,null,{"$f":"IFERROR(VLOOKUP($A565,Inputs!$B$68:$AN$129,MATCH($B$7,Inputs!$B$68:$AN$68,0),FALSE),\"Blank\")","v":"70W Metal Halide"}]
[null,{"$f":"Inputs!$S$68","v":"Lamp UNIT price Annualised Cost"},{"$f":"Inputs!$Q$68","v":"Lamp Maintenance cycle"},null,{"$f":"IF($B565=\"Blank\",0,VLOOKUP($B565,Inputs!$C$68:$AN$129,MATCH($B566,Inputs!$C$68:$AN$68,0),FALSE))","v":3.5765501073499997},{"$f":"IF($B565=\"Blank\",0,VLOOKUP($B565,Inputs!$C$68:$AN$129,MATCH($B566,Inputs!$C$68:$AN$68,0),FALSE))","v":3.5765501073499997},{"$f":"IF($B565=\"Blank\",0,VLOOKUP($B565,Inputs!$C$68:$AN$129,MATCH($B566,Inputs!$C$68:$AN$68,0),FALSE))","v":3.5765501073499997},{"$f":"IF($B565=\"Blank\",0,VLOOKUP($B565,Inputs!$C$68:$AN$129,MATCH($B566,Inputs!$C$68:$AN$68,0),FALSE))","v":3.5765501073499997},{"$f":"IF($B565=\"Blank\",0,VLOOKUP($B565,Inputs!$C$68:$AN$129,MATCH($B566,Inputs!$C$68:$AN$68,0),FALSE))","v":3.5765501073499997},null,null,null,null,null,null,null,{"$f":"B566","v":"Lamp UNIT price Annualised Cost"},{"$f":"IF(E566=\"NA\",\"\",E566/R$2*100)","v":0.97719948288251357},{"$f":"IF(F566=\"NA\",\"\",F566/S$2*100)","v":0.97987674173972594},{"$f":"IF(G566=\"NA\",\"\",G566/T$2*100)","v":0.97987674173972594},{"$f":"IF(H566=\"NA\",\"\",H566/U$2*100)","v":0.97987674173972594},{"$f":"IF(I566=\"NA\",\"\",I566/V$2*100)","v":0.97719948288251357}]
[null,{"$f":"Inputs!$K$68","v":"PE Cell UNIT price Annualised Cost"},{"$f":"Inputs!$I$68","v":"PE Cell Maintenance Cycle"},null,{"$f":"IF($B565=\"Blank\",0,VLOOKUP($B565,Inputs!$C$68:$AN$129,MATCH($B567,Inputs!$C$68:$AN$68,0),FALSE))","v":0.58131255188333353},{"$f":"IF($B565=\"Blank\",0,VLOOKUP($B565,Inputs!$C$68:$AN$129,MATCH($B567,Inputs!$C$68:$AN$68,0),FALSE))","v":0.58131255188333353},{"$f":"IF($B565=\"Blank\",0,VLOOKUP($B565,Inputs!$C$68:$AN$129,MATCH($B567,Inputs!$C$68:$AN$68,0),FALSE))","v":0.58131255188333353},{"$f":"IF($B565=\"Blank\",0,VLOOKUP($B565,Inputs!$C$68:$AN$129,MATCH($B567,Inputs!$C$68:$AN$68,0),FALSE))","v":0.58131255188333353},{"$f":"IF($B565=\"Blank\",0,VLOOKUP($B565,Inputs!$C$68:$AN$129,MATCH($B567,Inputs!$C$68:$AN$68,0),FALSE))","v":0.58131255188333353},null,null,null,null,null,null,null,"PE Cell UNIT price Annualised Cost",0.15882856608834248,0.15926371284474891,0.15926371284474891,0.15926371284474891,0.15882856608834248]
[null,"Corp capex annuity per light",null,null,{"$f":"IF($B565=\"Blank\",0,'Corp Capex Annuity calcs'!F$142)","v":18.582309905017571},{"$f":"IF($B565=\"Blank\",0,'Corp Capex Annuity calcs'!G$142)","v":18.552026408230436},{"$f":"IF($B565=\"Blank\",0,'Corp Capex Annuity calcs'!H$142)","v":18.401377631486287},{"$f":"IF($B565=\"Blank\",0,'Corp Capex Annuity calcs'!I$142)","v":18.205761940470655},{"$f":"IF($B565=\"Blank\",0,'Corp Capex Annuity calcs'!J$142)","v":17.995165449295623},null,null,null,null,null,null,null,"Corp capex annuity per light",5.0771338538299373,5.0827469611590237,5.0414733236948734,4.9878799836905907,4.9167118713922466]
[null,{"$f":"Inputs!$U$68","v":"Lamp Service costs Annualised"},"Labour Portion of Lamp Service costs annualised",null,{"$f":"IF($B565=\"Blank\",0,VLOOKUP($B565,Inputs!$C$68:$AN$129,MATCH($B569,Inputs!$C$68:$AN$68,0),FALSE))+IFERROR(IF($B565=\"Blank\",0,VLOOKUP($B565,Inputs!$C$68:$AN$129,MATCH($C569,Inputs!$C$68:$AN$68,0),FALSE))*('Master Data'!K$42),0)","v":24.127490039840644},{"$f":"IF($B565=\"Blank\",0,VLOOKUP($B565,Inputs!$C$68:$AN$129,MATCH($B569,Inputs!$C$68:$AN$68,0),FALSE))+IFERROR(IF($B565=\"Blank\",0,VLOOKUP($B565,Inputs!$C$68:$AN$129,MATCH($C569,Inputs!$C$68:$AN$68,0),FALSE))*('Master Data'!L$42),0)","v":24.131023426294828},{"$f":"IF($B565=\"Blank\",0,VLOOKUP($B565,Inputs!$C$68:$AN$129,MATCH($B569,Inputs!$C$68:$AN$68,0),FALSE))+IFERROR(IF($B565=\"Blank\",0,VLOOKUP($B565,Inputs!$C$68:$AN$129,MATCH($C569,Inputs!$C$68:$AN$68,0),FALSE))*('Master Data'!M$42),0)","v":24.136412685577696},{"$f":"IF($B565=\"Blank\",0,VLOOKUP($B565,Inputs!$C$68:$AN$129,MATCH($B569,Inputs!$C$68:$AN$68,0),FALSE))+IFERROR(IF($B565=\"Blank\",0,VLOOKUP($B565,Inputs!$C$68:$AN$129,MATCH($C569,Inputs!$C$68:$AN$68,0),FALSE))*('Master Data'!N$42),0)","v":24.143056949368709},{"$f":"IF($B565=\"Blank\",0,VLOOKUP($B565,Inputs!$C$68:$AN$129,MATCH($B569,Inputs!$C$68:$AN$68,0),FALSE))+IFERROR(IF($B565=\"Blank\",0,VLOOKUP($B565,Inputs!$C$68:$AN$129,MATCH($C569,Inputs!$C$68:$AN$68,0),FALSE))*('Master Data'!O$42),0)","v":24.150816058816748},null,null,null,null,null,null,null,"Lamp Service costs Annualised",6.5922103933990828,6.611239294875296,6.6127158042678618,6.6145361505119755,6.598583622627527]
[null,{"$f":"Inputs!$M$68","v":"PE Cell Service costs Annualised"},"Labour Portion of PE Cell Service costs Annualised",null,{"$f":"IF($B565=\"Blank\",0,VLOOKUP($B565,Inputs!$C$68:$AN$129,MATCH($B570,Inputs!$C$68:$AN$68,0),FALSE))+IFERROR(IF($B565=\"Blank\",0,VLOOKUP($B565,Inputs!$C$68:$AN$129,MATCH($C570,Inputs!$C$68:$AN$68,0),FALSE))*('Master Data'!K$42),0)","v":0},{"$f":"IF($B565=\"Blank\",0,VLOOKUP($B565,Inputs!$C$68:$AN$129,MATCH($B570,Inputs!$C$68:$AN$68,0),FALSE))+IFERROR(IF($B565=\"Blank\",0,VLOOKUP($B565,Inputs!$C$68:$AN$129,MATCH($C570,Inputs!$C$68:$AN$68,0),FALSE))*('Master Data'!L$42),0)","v":0},{"$f":"IF($B565=\"Blank\",0,VLOOKUP($B565,Inputs!$C$68:$AN$129,MATCH($B570,Inputs!$C$68:$AN$68,0),FALSE))+IFERROR(IF($B565=\"Blank\",0,VLOOKUP($B565,Inputs!$C$68:$AN$129,MATCH($C570,Inputs!$C$68:$AN$68,0),FALSE))*('Master Data'!M$42),0)","v":0},{"$f":"IF($B565=\"Blank\",0,VLOOKUP($B565,Inputs!$C$68:$AN$129,MATCH($B570,Inputs!$C$68:$AN$68,0),FALSE))+IFERROR(IF($B565=\"Blank\",0,VLOOKUP($B565,Inputs!$C$68:$AN$129,MATCH($C570,Inputs!$C$68:$AN$68,0),FALSE))*('Master Data'!N$42),0)","v":0},{"$f":"IF($B565=\"Blank\",0,VLOOKUP($B565,Inputs!$C$68:$AN$129,MATCH($B570,Inputs!$C$68:$AN$68,0),FALSE))+IFERROR(IF($B565=\"Blank\",0,VLOOKUP($B565,Inputs!$C$68:$AN$129,MATCH($C570,Inputs!$C$68:$AN$68,0),FALSE))*('Master Data'!O$42),0)","v":0},null,null,null,null,null,null,null,"PE Cell Service costs Annualised",0,0,0,0,0]
[null,"Indirect Opex",null,null,{"$f":"IF($B565=\"Blank\",0,IF($B$8=\"Private Contract Lighting\",'Opex Weighting'!D$48,'Opex Weighting'!D$46))","v":25.762407087322877},{"$f":"IF($B565=\"Blank\",0,IF($B$8=\"Private Contract Lighting\",'Opex Weighting'!E$48,'Opex Weighting'!E$46))","v":25.880403763800857},{"$f":"IF($B565=\"Blank\",0,IF($B$8=\"Private Contract Lighting\",'Opex Weighting'!F$48,'Opex Weighting'!F$46))","v":20.013740175030701},{"$f":"IF($B565=\"Blank\",0,IF($B$8=\"Private Contract Lighting\",'Opex Weighting'!G$48,'Opex Weighting'!G$46))","v":19.55949970528431},{"$f":"IF($B565=\"Blank\",0,IF($B$8=\"Private Contract Lighting\",'Opex Weighting'!H$48,'Opex Weighting'!H$46))","v":19.096814305933613},null,null,null,null,null,null,null,"Indirect Opex",7.0389090402521521,7.0905215791235223,5.4832164863097814,5.3587670425436471,5.2177088267578178]
[null,"Indirect Capex",null,null,{"$f":"'Capex Weighting'!D$59","v":0},{"$f":"'Capex Weighting'!E$59","v":0},{"$f":"'Capex Weighting'!F$59","v":0},{"$f":"'Capex Weighting'!G$59","v":0},{"$f":"'Capex Weighting'!H$59","v":0},null,null,null,null,null,null,null,"Indirect Capex",0,0,0,0,0]
[null,"Opex Overheads Costs per light",null,null,{"$f":"IF($B565=\"Blank\",0,IF($B$8=\"Private Contract Lighting\",'Building Block'!C$40,'Building Block'!C$39))","v":32.224036557323004},{"$f":"IF($B565=\"Blank\",0,IF($B$8=\"Private Contract Lighting\",'Building Block'!D$40,'Building Block'!D$39))","v":31.278075996100256},{"$f":"IF($B565=\"Blank\",0,IF($B$8=\"Private Contract Lighting\",'Building Block'!E$40,'Building Block'!E$39))","v":21.467987799581408},{"$f":"IF($B565=\"Blank\",0,IF($B$8=\"Private Contract Lighting\",'Building Block'!F$40,'Building Block'!F$39))","v":21.22771925228782},{"$f":"IF($B565=\"Blank\",0,IF($B$8=\"Private Contract Lighting\",'Building Block'!G$40,'Building Block'!G$39))","v":21.210892633443169},null,null,null,null,null,null,null,"Opex Overheads Costs per light",8.8043815730390715,8.5693358893425362,5.8816404930360022,5.815813493777485,5.7953258561320133]
[null,{"$f":"Inputs!$AK$68","v":"Bracket UNIT price"},0,null,{"$f":"IF($B565=\"Blank\",0,OFFSET('CAPEX Annuity calcs'!$B$9,MATCH($B565,'CAPEX Annuity calcs'!$B$9:$B$500,0)+$C574,E$6))","v":5.5951444065074343},{"$f":"IF($B565=\"Blank\",0,OFFSET('CAPEX Annuity calcs'!$B$9,MATCH($B565,'CAPEX Annuity calcs'!$B$9:$B$500,0)+$C574,F$6))","v":5.5951444065074343},{"$f":"IF($B565=\"Blank\",0,OFFSET('CAPEX Annuity calcs'!$B$9,MATCH($B565,'CAPEX Annuity calcs'!$B$9:$B$500,0)+$C574,G$6))","v":5.5951444065074343},{"$f":"IF($B565=\"Blank\",0,OFFSET('CAPEX Annuity calcs'!$B$9,MATCH($B565,'CAPEX Annuity calcs'!$B$9:$B$500,0)+$C574,H$6))","v":5.5951444065074343},{"$f":"IF($B565=\"Blank\",0,OFFSET('CAPEX Annuity calcs'!$B$9,MATCH($B565,'CAPEX Annuity calcs'!$B$9:$B$500,0)+$C574,I$6))","v":5.5951444065074343},null,null,null,null,null,null,null,"Bracket UNIT price",1.5287279799200642,1.5329162757554615,1.5329162757554615,1.5329162757554615,1.5287279799200642]
[null,{"$f":"Inputs!$AA$68","v":"CAPEX Instalation costs"},{"$f":"C574+1","v":1},null,{"$f":"IF($B565=\"Blank\",0,OFFSET('CAPEX Annuity calcs'!$B$9,MATCH($B565,'CAPEX Annuity calcs'!$B$9:$B$500,0)+$C575,E$6))","v":0},{"$f":"IF($B565=\"Blank\",0,OFFSET('CAPEX Annuity calcs'!$B$9,MATCH($B565,'CAPEX Annuity calcs'!$B$9:$B$500,0)+$C575,F$6))","v":0},{"$f":"IF($B565=\"Blank\",0,OFFSET('CAPEX Annuity calcs'!$B$9,MATCH($B565,'CAPEX Annuity calcs'!$B$9:$B$500,0)+$C575,G$6))","v":0},{"$f":"IF($B565=\"Blank\",0,OFFSET('CAPEX Annuity calcs'!$B$9,MATCH($B565,'CAPEX Annuity calcs'!$B$9:$B$500,0)+$C575,H$6))","v":0},{"$f":"IF($B565=\"Blank\",0,OFFSET('CAPEX Annuity calcs'!$B$9,MATCH($B565,'CAPEX Annuity calcs'!$B$9:$B$500,0)+$C575,I$6))","v":0},null,null,null,null,null,null,null,"CAPEX Instalation costs",0,0,0,0,0]
[null,{"$f":"Inputs!$Z$68","v":"Luminaire UNIT price"},{"$f":"C575+1","v":2},null,{"$f":"IF($B565=\"Blank\",0,OFFSET('CAPEX Annuity calcs'!$B$9,MATCH($B565,'CAPEX Annuity calcs'!$B$9:$B$500,0)+$C576,E$6))","v":5.9993705640934598},{"$f":"IF($B565=\"Blank\",0,OFFSET('CAPEX Annuity calcs'!$B$9,MATCH($B565,'CAPEX Annuity calcs'!$B$9:$B$500,0)+$C576,F$6))","v":5.9993705640934598},{"$f":"IF($B565=\"Blank\",0,OFFSET('CAPEX Annuity calcs'!$B$9,MATCH($B565,'CAPEX Annuity calcs'!$B$9:$B$500,0)+$C576,G$6))","v":5.9993705640934598},{"$f":"IF($B565=\"Blank\",0,OFFSET('CAPEX Annuity calcs'!$B$9,MATCH($B565,'CAPEX Annuity calcs'!$B$9:$B$500,0)+$C576,H$6))","v":5.9993705640934598},{"$f":"IF($B565=\"Blank\",0,OFFSET('CAPEX Annuity calcs'!$B$9,MATCH($B565,'CAPEX Annuity calcs'!$B$9:$B$500,0)+$C576,I$6))","v":5.9993705640934598},null,null,null,null,null,null,null,"Luminaire UNIT price",1.6391722852714372,1.6436631682447835,1.6436631682447835,1.6436631682447835,1.6391722852714372]
[null,{"$f":"Inputs!$AA$68","v":"CAPEX Instalation costs"},3,null,{"$f":"IF($B565=\"Blank\",0,OFFSET('CAPEX Annuity calcs'!$B$9,MATCH($B565,'CAPEX Annuity calcs'!$B$9:$B$500,0)+$C577,E$6))","v":18.736141709912243},{"$f":"IF($B565=\"Blank\",0,OFFSET('CAPEX Annuity calcs'!$B$9,MATCH($B565,'CAPEX Annuity calcs'!$B$9:$B$500,0)+$C577,F$6))","v":18.74779128716041},{"$f":"IF($B565=\"Blank\",0,OFFSET('CAPEX Annuity calcs'!$B$9,MATCH($B565,'CAPEX Annuity calcs'!$B$9:$B$500,0)+$C577,G$6))","v":18.765559678232343},{"$f":"IF($B565=\"Blank\",0,OFFSET('CAPEX Annuity calcs'!$B$9,MATCH($B565,'CAPEX Annuity calcs'!$B$9:$B$500,0)+$C577,H$6))","v":18.787465819916616},{"$f":"IF($B565=\"Blank\",0,OFFSET('CAPEX Annuity calcs'!$B$9,MATCH($B565,'CAPEX Annuity calcs'!$B$9:$B$500,0)+$C577,I$6))","v":18.813047608397444},null,null,null,null,null,null,null,"CAPEX Instalation costs",5.1191644016153672,5.1363811745644954,5.1412492269129713,5.1472509095661954,5.1401769421850938]
[null,null,null,null,{"$f":"SUM(E566:E577)","v":135.18476292925055},{"$f":"SUM(F566:F577)","v":134.34169851142099},118.53745559974266,117.67588129716233,117.01911368572081,null,null,null,null,null,null,null,null,{"$f":"ROUND(E578/R$2*100,3)","v":36.936},{"$f":"ROUND(F578/S$2*100,3)","v":36.805999999999997},{"$f":"ROUND(G578/T$2*100,3)","v":32.475999999999999},{"$f":"ROUND(H578/U$2*100,3)","v":32.24},{"$f":"ROUND(I578/V$2*100,3)","v":31.972000000000001}]
[]
[{"$f":"A565+1","v":39},{"$f":"IFERROR(VLOOKUP($A580,Inputs!$B$68:$AN$129,MATCH($B$7,Inputs!$B$68:$AN$68,0),FALSE),\"Blank\")","v":"250W Metal Halide - Flood Light"},null,null,null,null,null,null,null,null,null,null,null,null,null,null,{"$f":"IFERROR(VLOOKUP($A580,Inputs!$B$68:$AN$129,MATCH($B$7,Inputs!$B$68:$AN$68,0),FALSE),\"Blank\")","v":"250W Metal Halide - Flood Light"}]
[null,{"$f":"Inputs!$S$68","v":"Lamp UNIT price Annualised Cost"},{"$f":"Inputs!$Q$68","v":"Lamp Maintenance cycle"},null,{"$f":"IF($B580=\"Blank\",0,VLOOKUP($B580,Inputs!$C$68:$AN$129,MATCH($B581,Inputs!$C$68:$AN$68,0),FALSE))","v":4.1438966180000003},{"$f":"IF($B580=\"Blank\",0,VLOOKUP($B580,Inputs!$C$68:$AN$129,MATCH($B581,Inputs!$C$68:$AN$68,0),FALSE))","v":4.1438966180000003},{"$f":"IF($B580=\"Blank\",0,VLOOKUP($B580,Inputs!$C$68:$AN$129,MATCH($B581,Inputs!$C$68:$AN$68,0),FALSE))","v":4.1438966180000003},{"$f":"IF($B580=\"Blank\",0,VLOOKUP($B580,Inputs!$C$68:$AN$129,MATCH($B581,Inputs!$C$68:$AN$68,0),FALSE))","v":4.1438966180000003},{"$f":"IF($B580=\"Blank\",0,VLOOKUP($B580,Inputs!$C$68:$AN$129,MATCH($B581,Inputs!$C$68:$AN$68,0),FALSE))","v":4.1438966180000003},null,null,null,null,null,null,null,{"$f":"B581","v":"Lamp UNIT price Annualised Cost"},{"$f":"IF(E581=\"NA\",\"\",E581/R$2*100)","v":1.1322121907103826},{"$f":"IF(F581=\"NA\",\"\",F581/S$2*100)","v":1.1353141419178083},{"$f":"IF(G581=\"NA\",\"\",G581/T$2*100)","v":1.1353141419178083},{"$f":"IF(H581=\"NA\",\"\",H581/U$2*100)","v":1.1353141419178083},{"$f":"IF(I581=\"NA\",\"\",I581/V$2*100)","v":1.1322121907103826}]
[null,{"$f":"Inputs!$K$68","v":"PE Cell UNIT price Annualised Cost"},{"$f":"Inputs!$I$68","v":"PE Cell Maintenance Cycle"},null,{"$f":"IF($B580=\"Blank\",0,VLOOKUP($B580,Inputs!$C$68:$AN$129,MATCH($B582,Inputs!$C$68:$AN$68,0),FALSE))","v":1.6930974392480003},{"$f":"IF($B580=\"Blank\",0,VLOOKUP($B580,Inputs!$C$68:$AN$129,MATCH($B582,Inputs!$C$68:$AN$68,0),FALSE))","v":1.6930974392480003},{"$f":"IF($B580=\"Blank\",0,VLOOKUP($B580,Inputs!$C$68:$AN$129,MATCH($B582,Inputs!$C$68:$AN$68,0),FALSE))","v":1.6930974392480003},{"$f":"IF($B580=\"Blank\",0,VLOOKUP($B580,Inputs!$C$68:$AN$129,MATCH($B582,Inputs!$C$68:$AN$68,0),FALSE))","v":1.6930974392480003},{"$f":"IF($B580=\"Blank\",0,VLOOKUP($B580,Inputs!$C$68:$AN$129,MATCH($B582,Inputs!$C$68:$AN$68,0),FALSE))","v":1.6930974392480003},null,null,null,null,null,null,null,"PE Cell UNIT price Annualised Cost",0.46259492875628422,0.46386231212273976,0.46386231212273976,0.46386231212273976,0.46259492875628422]
[null,"Corp capex annuity per light",null,null,{"$f":"IF($B580=\"Blank\",0,'Corp Capex Annuity calcs'!F$142)","v":18.582309905017571},{"$f":"IF($B580=\"Blank\",0,'Corp Capex Annuity calcs'!G$142)","v":18.552026408230436},{"$f":"IF($B580=\"Blank\",0,'Corp Capex Annuity calcs'!H$142)","v":18.401377631486287},{"$f":"IF($B580=\"Blank\",0,'Corp Capex Annuity calcs'!I$142)","v":18.205761940470655},{"$f":"IF($B580=\"Blank\",0,'Corp Capex Annuity calcs'!J$142)","v":17.995165449295623},null,null,null,null,null,null,null,"Corp capex annuity per light",5.0771338538299373,5.0827469611590237,5.0414733236948734,4.9878799836905907,4.9167118713922466]
[null,{"$f":"Inputs!$U$68","v":"Lamp Service costs Annualised"},"Labour Portion of Lamp Service costs annualised",null,{"$f":"IF($B580=\"Blank\",0,VLOOKUP($B580,Inputs!$C$68:$AN$129,MATCH($B584,Inputs!$C$68:$AN$68,0),FALSE))+IFERROR(IF($B580=\"Blank\",0,VLOOKUP($B580,Inputs!$C$68:$AN$129,MATCH($C584,Inputs!$C$68:$AN$68,0),FALSE))*('Master Data'!K$42),0)","v":34.921367162927247},{"$f":"IF($B580=\"Blank\",0,VLOOKUP($B580,Inputs!$C$68:$AN$129,MATCH($B584,Inputs!$C$68:$AN$68,0),FALSE))+IFERROR(IF($B580=\"Blank\",0,VLOOKUP($B580,Inputs!$C$68:$AN$129,MATCH($C584,Inputs!$C$68:$AN$68,0),FALSE))*('Master Data'!L$42),0)","v":34.926481274900404},{"$f":"IF($B580=\"Blank\",0,VLOOKUP($B580,Inputs!$C$68:$AN$129,MATCH($B584,Inputs!$C$68:$AN$68,0),FALSE))+IFERROR(IF($B580=\"Blank\",0,VLOOKUP($B580,Inputs!$C$68:$AN$129,MATCH($C584,Inputs!$C$68:$AN$68,0),FALSE))*('Master Data'!M$42),0)","v":34.934281518599292},{"$f":"IF($B580=\"Blank\",0,VLOOKUP($B580,Inputs!$C$68:$AN$129,MATCH($B584,Inputs!$C$68:$AN$68,0),FALSE))+IFERROR(IF($B580=\"Blank\",0,VLOOKUP($B580,Inputs!$C$68:$AN$129,MATCH($C584,Inputs!$C$68:$AN$68,0),FALSE))*('Master Data'!N$42),0)","v":34.943898216191549},{"$f":"IF($B580=\"Blank\",0,VLOOKUP($B580,Inputs!$C$68:$AN$129,MATCH($B584,Inputs!$C$68:$AN$68,0),FALSE))+IFERROR(IF($B580=\"Blank\",0,VLOOKUP($B580,Inputs!$C$68:$AN$129,MATCH($C584,Inputs!$C$68:$AN$68,0),FALSE))*('Master Data'!O$42),0)","v":34.955128506182135},null,null,null,null,null,null,null,"Lamp Service costs Annualised",9.5413571483407775,9.5688989794247679,9.5710360324929571,9.5736707441620688,9.5505815590661562]
[null,{"$f":"Inputs!$M$68","v":"PE Cell Service costs Annualised"},"Labour Portion of PE Cell Service costs Annualised",null,{"$f":"IF($B580=\"Blank\",0,VLOOKUP($B580,Inputs!$C$68:$AN$129,MATCH($B585,Inputs!$C$68:$AN$68,0),FALSE))+IFERROR(IF($B580=\"Blank\",0,VLOOKUP($B580,Inputs!$C$68:$AN$129,MATCH($C585,Inputs!$C$68:$AN$68,0),FALSE))*('Master Data'!K$42),0)","v":0},{"$f":"IF($B580=\"Blank\",0,VLOOKUP($B580,Inputs!$C$68:$AN$129,MATCH($B585,Inputs!$C$68:$AN$68,0),FALSE))+IFERROR(IF($B580=\"Blank\",0,VLOOKUP($B580,Inputs!$C$68:$AN$129,MATCH($C585,Inputs!$C$68:$AN$68,0),FALSE))*('Master Data'!L$42),0)","v":0},{"$f":"IF($B580=\"Blank\",0,VLOOKUP($B580,Inputs!$C$68:$AN$129,MATCH($B585,Inputs!$C$68:$AN$68,0),FALSE))+IFERROR(IF($B580=\"Blank\",0,VLOOKUP($B580,Inputs!$C$68:$AN$129,MATCH($C585,Inputs!$C$68:$AN$68,0),FALSE))*('Master Data'!M$42),0)","v":0},{"$f":"IF($B580=\"Blank\",0,VLOOKUP($B580,Inputs!$C$68:$AN$129,MATCH($B585,Inputs!$C$68:$AN$68,0),FALSE))+IFERROR(IF($B580=\"Blank\",0,VLOOKUP($B580,Inputs!$C$68:$AN$129,MATCH($C585,Inputs!$C$68:$AN$68,0),FALSE))*('Master Data'!N$42),0)","v":0},{"$f":"IF($B580=\"Blank\",0,VLOOKUP($B580,Inputs!$C$68:$AN$129,MATCH($B585,Inputs!$C$68:$AN$68,0),FALSE))+IFERROR(IF($B580=\"Blank\",0,VLOOKUP($B580,Inputs!$C$68:$AN$129,MATCH($C585,Inputs!$C$68:$AN$68,0),FALSE))*('Master Data'!O$42),0)","v":0},null,null,null,null,null,null,null,"PE Cell Service costs Annualised",0,0,0,0,0]
[null,"Indirect Opex",null,null,{"$f":"IF($B580=\"Blank\",0,IF($B$8=\"Private Contract Lighting\",'Opex Weighting'!D$48,'Opex Weighting'!D$46))","v":25.762407087322877},{"$f":"IF($B580=\"Blank\",0,IF($B$8=\"Private Contract Lighting\",'Opex Weighting'!E$48,'Opex Weighting'!E$46))","v":25.880403763800857},{"$f":"IF($B580=\"Blank\",0,IF($B$8=\"Private Contract Lighting\",'Opex Weighting'!F$48,'Opex Weighting'!F$46))","v":20.013740175030701},{"$f":"IF($B580=\"Blank\",0,IF($B$8=\"Private Contract Lighting\",'Opex Weighting'!G$48,'Opex Weighting'!G$46))","v":19.55949970528431},{"$f":"IF($B580=\"Blank\",0,IF($B$8=\"Private Contract Lighting\",'Opex Weighting'!H$48,'Opex Weighting'!H$46))","v":19.096814305933613},null,null,null,null,null,null,null,"Indirect Opex",7.0389090402521521,7.0905215791235223,5.4832164863097814,5.3587670425436471,5.2177088267578178]
[null,"Indirect Capex",null,null,{"$f":"'Capex Weighting'!D$59","v":0},{"$f":"'Capex Weighting'!E$59","v":0},{"$f":"'Capex Weighting'!F$59","v":0},{"$f":"'Capex Weighting'!G$59","v":0},{"$f":"'Capex Weighting'!H$59","v":0},null,null,null,null,null,null,null,"Indirect Capex",0,0,0,0,0]
[null,"Opex Overheads Costs per light",null,null,{"$f":"IF($B580=\"Blank\",0,IF($B$8=\"Private Contract Lighting\",'Building Block'!C$40,'Building Block'!C$39))","v":32.224036557323004},{"$f":"IF($B580=\"Blank\",0,IF($B$8=\"Private Contract Lighting\",'Building Block'!D$40,'Building Block'!D$39))","v":31.278075996100256},{"$f":"IF($B580=\"Blank\",0,IF($B$8=\"Private Contract Lighting\",'Building Block'!E$40,'Building Block'!E$39))","v":21.467987799581408},{"$f":"IF($B580=\"Blank\",0,IF($B$8=\"Private Contract Lighting\",'Building Block'!F$40,'Building Block'!F$39))","v":21.22771925228782},{"$f":"IF($B580=\"Blank\",0,IF($B$8=\"Private Contract Lighting\",'Building Block'!G$40,'Building Block'!G$39))","v":21.210892633443169},null,null,null,null,null,null,null,"Opex Overheads Costs per light",8.8043815730390715,8.5693358893425362,5.8816404930360022,5.815813493777485,5.7953258561320133]
[null,{"$f":"Inputs!$AK$68","v":"Bracket UNIT price"},0,null,{"$f":"IF($B580=\"Blank\",0,OFFSET('CAPEX Annuity calcs'!$B$9,MATCH($B580,'CAPEX Annuity calcs'!$B$9:$B$500,0)+$C589,E$6))","v":12.359265722063284},{"$f":"IF($B580=\"Blank\",0,OFFSET('CAPEX Annuity calcs'!$B$9,MATCH($B580,'CAPEX Annuity calcs'!$B$9:$B$500,0)+$C589,F$6))","v":12.359265722063284},{"$f":"IF($B580=\"Blank\",0,OFFSET('CAPEX Annuity calcs'!$B$9,MATCH($B580,'CAPEX Annuity calcs'!$B$9:$B$500,0)+$C589,G$6))","v":12.359265722063284},{"$f":"IF($B580=\"Blank\",0,OFFSET('CAPEX Annuity calcs'!$B$9,MATCH($B580,'CAPEX Annuity calcs'!$B$9:$B$500,0)+$C589,H$6))","v":12.359265722063284},{"$f":"IF($B580=\"Blank\",0,OFFSET('CAPEX Annuity calcs'!$B$9,MATCH($B580,'CAPEX Annuity calcs'!$B$9:$B$500,0)+$C589,I$6))","v":12.359265722063284},null,null,null,null,null,null,null,"Bracket UNIT price",3.3768485579407885,3.3861001978255576,3.3861001978255576,3.3861001978255576,3.3768485579407885]
[null,{"$f":"Inputs!$AA$68","v":"CAPEX Instalation costs"},{"$f":"C589+1","v":1},null,{"$f":"IF($B580=\"Blank\",0,OFFSET('CAPEX Annuity calcs'!$B$9,MATCH($B580,'CAPEX Annuity calcs'!$B$9:$B$500,0)+$C590,E$6))","v":0},{"$f":"IF($B580=\"Blank\",0,OFFSET('CAPEX Annuity calcs'!$B$9,MATCH($B580,'CAPEX Annuity calcs'!$B$9:$B$500,0)+$C590,F$6))","v":0},{"$f":"IF($B580=\"Blank\",0,OFFSET('CAPEX Annuity calcs'!$B$9,MATCH($B580,'CAPEX Annuity calcs'!$B$9:$B$500,0)+$C590,G$6))","v":0},{"$f":"IF($B580=\"Blank\",0,OFFSET('CAPEX Annuity calcs'!$B$9,MATCH($B580,'CAPEX Annuity calcs'!$B$9:$B$500,0)+$C590,H$6))","v":0},{"$f":"IF($B580=\"Blank\",0,OFFSET('CAPEX Annuity calcs'!$B$9,MATCH($B580,'CAPEX Annuity calcs'!$B$9:$B$500,0)+$C590,I$6))","v":0},null,null,null,null,null,null,null,"CAPEX Instalation costs",0,0,0,0,0]
[null,{"$f":"Inputs!$Z$68","v":"Luminaire UNIT price"},{"$f":"C590+1","v":2},null,{"$f":"IF($B580=\"Blank\",0,OFFSET('CAPEX Annuity calcs'!$B$9,MATCH($B580,'CAPEX Annuity calcs'!$B$9:$B$500,0)+$C591,E$6))","v":34.806326717321895},{"$f":"IF($B580=\"Blank\",0,OFFSET('CAPEX Annuity calcs'!$B$9,MATCH($B580,'CAPEX Annuity calcs'!$B$9:$B$500,0)+$C591,F$6))","v":34.806326717321895},{"$f":"IF($B580=\"Blank\",0,OFFSET('CAPEX Annuity calcs'!$B$9,MATCH($B580,'CAPEX Annuity calcs'!$B$9:$B$500,0)+$C591,G$6))","v":34.806326717321895},{"$f":"IF($B580=\"Blank\",0,OFFSET('CAPEX Annuity calcs'!$B$9,MATCH($B580,'CAPEX Annuity calcs'!$B$9:$B$500,0)+$C591,H$6))","v":34.806326717321895},{"$f":"IF($B580=\"Blank\",0,OFFSET('CAPEX Annuity calcs'!$B$9,MATCH($B580,'CAPEX Annuity calcs'!$B$9:$B$500,0)+$C591,I$6))","v":34.806326717321895},null,null,null,null,null,null,null,"Luminaire UNIT price",9.5099253326016111,9.5359799225539437,9.5359799225539437,9.5359799225539437,9.5099253326016111]
[null,{"$f":"Inputs!$AA$68","v":"CAPEX Instalation costs"},3,null,{"$f":"IF($B580=\"Blank\",0,OFFSET('CAPEX Annuity calcs'!$B$9,MATCH($B580,'CAPEX Annuity calcs'!$B$9:$B$500,0)+$C592,E$6))","v":29.489604830309908},{"$f":"IF($B580=\"Blank\",0,OFFSET('CAPEX Annuity calcs'!$B$9,MATCH($B580,'CAPEX Annuity calcs'!$B$9:$B$500,0)+$C592,F$6))","v":29.507480464650605},{"$f":"IF($B580=\"Blank\",0,OFFSET('CAPEX Annuity calcs'!$B$9,MATCH($B580,'CAPEX Annuity calcs'!$B$9:$B$500,0)+$C592,G$6))","v":29.534745081628376},{"$f":"IF($B580=\"Blank\",0,OFFSET('CAPEX Annuity calcs'!$B$9,MATCH($B580,'CAPEX Annuity calcs'!$B$9:$B$500,0)+$C592,H$6))","v":29.568358848911217},{"$f":"IF($B580=\"Blank\",0,OFFSET('CAPEX Annuity calcs'!$B$9,MATCH($B580,'CAPEX Annuity calcs'!$B$9:$B$500,0)+$C592,I$6))","v":29.607612693657906},null,null,null,null,null,null,null,"CAPEX Instalation costs",8.0572690793196475,8.0842412231919472,8.0917109812680472,8.1009202325784155,8.0895116649338537]
[null,null,null,null,{"$f":"SUM(E581:E592)","v":193.98231203953378},{"$f":"SUM(F581:F592)","v":193.14705440431572},177.35471870295925,176.5078244597787,175.86820008514562,null,null,null,null,null,null,null,null,{"$f":"ROUND(E593/R$2*100,3)","v":53.000999999999998},{"$f":"ROUND(F593/S$2*100,3)","v":52.917000000000002},{"$f":"ROUND(G593/T$2*100,3)","v":48.59},{"$f":"ROUND(H593/U$2*100,3)","v":48.357999999999997},{"$f":"ROUND(I593/V$2*100,3)","v":48.051000000000002}]
[]
[{"$f":"A580+1","v":40},{"$f":"IFERROR(VLOOKUP($A595,Inputs!$B$68:$AN$129,MATCH($B$7,Inputs!$B$68:$AN$68,0),FALSE),\"Blank\")","v":"400W Metal Halide - Flood Light"},null,null,null,null,null,null,null,null,null,null,null,null,null,null,{"$f":"IFERROR(VLOOKUP($A595,Inputs!$B$68:$AN$129,MATCH($B$7,Inputs!$B$68:$AN$68,0),FALSE),\"Blank\")","v":"400W Metal Halide - Flood Light"}]
[null,{"$f":"Inputs!$S$68","v":"Lamp UNIT price Annualised Cost"},{"$f":"Inputs!$Q$68","v":"Lamp Maintenance cycle"},null,{"$f":"IF($B595=\"Blank\",0,VLOOKUP($B595,Inputs!$C$68:$AN$129,MATCH($B596,Inputs!$C$68:$AN$68,0),FALSE))","v":6.5429946599999997},{"$f":"IF($B595=\"Blank\",0,VLOOKUP($B595,Inputs!$C$68:$AN$129,MATCH($B596,Inputs!$C$68:$AN$68,0),FALSE))","v":6.5429946599999997},{"$f":"IF($B595=\"Blank\",0,VLOOKUP($B595,Inputs!$C$68:$AN$129,MATCH($B596,Inputs!$C$68:$AN$68,0),FALSE))","v":6.5429946599999997},{"$f":"IF($B595=\"Blank\",0,VLOOKUP($B595,Inputs!$C$68:$AN$129,MATCH($B596,Inputs!$C$68:$AN$68,0),FALSE))","v":6.5429946599999997},{"$f":"IF($B595=\"Blank\",0,VLOOKUP($B595,Inputs!$C$68:$AN$129,MATCH($B596,Inputs!$C$68:$AN$68,0),FALSE))","v":6.5429946599999997},null,null,null,null,null,null,null,{"$f":"B596","v":"Lamp UNIT price Annualised Cost"},{"$f":"IF(E596=\"NA\",\"\",E596/R$2*100)","v":1.7877034590163936},{"$f":"IF(F596=\"NA\",\"\",F596/S$2*100)","v":1.7926012767123287},{"$f":"IF(G596=\"NA\",\"\",G596/T$2*100)","v":1.7926012767123287},{"$f":"IF(H596=\"NA\",\"\",H596/U$2*100)","v":1.7926012767123287},{"$f":"IF(I596=\"NA\",\"\",I596/V$2*100)","v":1.7877034590163936}]
[null,{"$f":"Inputs!$K$68","v":"PE Cell UNIT price Annualised Cost"},{"$f":"Inputs!$I$68","v":"PE Cell Maintenance Cycle"},null,{"$f":"IF($B595=\"Blank\",0,VLOOKUP($B595,Inputs!$C$68:$AN$129,MATCH($B597,Inputs!$C$68:$AN$68,0),FALSE))","v":1.6930974392480003},{"$f":"IF($B595=\"Blank\",0,VLOOKUP($B595,Inputs!$C$68:$AN$129,MATCH($B597,Inputs!$C$68:$AN$68,0),FALSE))","v":1.6930974392480003},{"$f":"IF($B595=\"Blank\",0,VLOOKUP($B595,Inputs!$C$68:$AN$129,MATCH($B597,Inputs!$C$68:$AN$68,0),FALSE))","v":1.6930974392480003},{"$f":"IF($B595=\"Blank\",0,VLOOKUP($B595,Inputs!$C$68:$AN$129,MATCH($B597,Inputs!$C$68:$AN$68,0),FALSE))","v":1.6930974392480003},{"$f":"IF($B595=\"Blank\",0,VLOOKUP($B595,Inputs!$C$68:$AN$129,MATCH($B597,Inputs!$C$68:$AN$68,0),FALSE))","v":1.6930974392480003},null,null,null,null,null,null,null,"PE Cell UNIT price Annualised Cost",0.46259492875628422,0.46386231212273976,0.46386231212273976,0.46386231212273976,0.46259492875628422]
[null,"Corp capex annuity per light",null,null,{"$f":"IF($B595=\"Blank\",0,'Corp Capex Annuity calcs'!F$142)","v":18.582309905017571},{"$f":"IF($B595=\"Blank\",0,'Corp Capex Annuity calcs'!G$142)","v":18.552026408230436},{"$f":"IF($B595=\"Blank\",0,'Corp Capex Annuity calcs'!H$142)","v":18.401377631486287},{"$f":"IF($B595=\"Blank\",0,'Corp Capex Annuity calcs'!I$142)","v":18.205761940470655},{"$f":"IF($B595=\"Blank\",0,'Corp Capex Annuity calcs'!J$142)","v":17.995165449295623},null,null,null,null,null,null,null,"Corp capex annuity per light",5.0771338538299373,5.0827469611590237,5.0414733236948734,4.9878799836905907,4.9167118713922466]
[null,{"$f":"Inputs!$U$68","v":"Lamp Service costs Annualised"},"Labour Portion of Lamp Service costs annualised",null,{"$f":"IF($B595=\"Blank\",0,VLOOKUP($B595,Inputs!$C$68:$AN$129,MATCH($B599,Inputs!$C$68:$AN$68,0),FALSE))+IFERROR(IF($B595=\"Blank\",0,VLOOKUP($B595,Inputs!$C$68:$AN$129,MATCH($C599,Inputs!$C$68:$AN$68,0),FALSE))*('Master Data'!K$42),0)","v":34.921367162927247},{"$f":"IF($B595=\"Blank\",0,VLOOKUP($B595,Inputs!$C$68:$AN$129,MATCH($B599,Inputs!$C$68:$AN$68,0),FALSE))+IFERROR(IF($B595=\"Blank\",0,VLOOKUP($B595,Inputs!$C$68:$AN$129,MATCH($C599,Inputs!$C$68:$AN$68,0),FALSE))*('Master Data'!L$42),0)","v":34.926481274900404},{"$f":"IF($B595=\"Blank\",0,VLOOKUP($B595,Inputs!$C$68:$AN$129,MATCH($B599,Inputs!$C$68:$AN$68,0),FALSE))+IFERROR(IF($B595=\"Blank\",0,VLOOKUP($B595,Inputs!$C$68:$AN$129,MATCH($C599,Inputs!$C$68:$AN$68,0),FALSE))*('Master Data'!M$42),0)","v":34.934281518599292},{"$f":"IF($B595=\"Blank\",0,VLOOKUP($B595,Inputs!$C$68:$AN$129,MATCH($B599,Inputs!$C$68:$AN$68,0),FALSE))+IFERROR(IF($B595=\"Blank\",0,VLOOKUP($B595,Inputs!$C$68:$AN$129,MATCH($C599,Inputs!$C$68:$AN$68,0),FALSE))*('Master Data'!N$42),0)","v":34.943898216191549},{"$f":"IF($B595=\"Blank\",0,VLOOKUP($B595,Inputs!$C$68:$AN$129,MATCH($B599,Inputs!$C$68:$AN$68,0),FALSE))+IFERROR(IF($B595=\"Blank\",0,VLOOKUP($B595,Inputs!$C$68:$AN$129,MATCH($C599,Inputs!$C$68:$AN$68,0),FALSE))*('Master Data'!O$42),0)","v":34.955128506182135},null,null,null,null,null,null,null,"Lamp Service costs Annualised",9.5413571483407775,9.5688989794247679,9.5710360324929571,9.5736707441620688,9.5505815590661562]
[null,{"$f":"Inputs!$M$68","v":"PE Cell Service costs Annualised"},"Labour Portion of PE Cell Service costs Annualised",null,{"$f":"IF($B595=\"Blank\",0,VLOOKUP($B595,Inputs!$C$68:$AN$129,MATCH($B600,Inputs!$C$68:$AN$68,0),FALSE))+IFERROR(IF($B595=\"Blank\",0,VLOOKUP($B595,Inputs!$C$68:$AN$129,MATCH($C600,Inputs!$C$68:$AN$68,0),FALSE))*('Master Data'!K$42),0)","v":0},{"$f":"IF($B595=\"Blank\",0,VLOOKUP($B595,Inputs!$C$68:$AN$129,MATCH($B600,Inputs!$C$68:$AN$68,0),FALSE))+IFERROR(IF($B595=\"Blank\",0,VLOOKUP($B595,Inputs!$C$68:$AN$129,MATCH($C600,Inputs!$C$68:$AN$68,0),FALSE))*('Master Data'!L$42),0)","v":0},{"$f":"IF($B595=\"Blank\",0,VLOOKUP($B595,Inputs!$C$68:$AN$129,MATCH($B600,Inputs!$C$68:$AN$68,0),FALSE))+IFERROR(IF($B595=\"Blank\",0,VLOOKUP($B595,Inputs!$C$68:$AN$129,MATCH($C600,Inputs!$C$68:$AN$68,0),FALSE))*('Master Data'!M$42),0)","v":0},{"$f":"IF($B595=\"Blank\",0,VLOOKUP($B595,Inputs!$C$68:$AN$129,MATCH($B600,Inputs!$C$68:$AN$68,0),FALSE))+IFERROR(IF($B595=\"Blank\",0,VLOOKUP($B595,Inputs!$C$68:$AN$129,MATCH($C600,Inputs!$C$68:$AN$68,0),FALSE))*('Master Data'!N$42),0)","v":0},{"$f":"IF($B595=\"Blank\",0,VLOOKUP($B595,Inputs!$C$68:$AN$129,MATCH($B600,Inputs!$C$68:$AN$68,0),FALSE))+IFERROR(IF($B595=\"Blank\",0,VLOOKUP($B595,Inputs!$C$68:$AN$129,MATCH($C600,Inputs!$C$68:$AN$68,0),FALSE))*('Master Data'!O$42),0)","v":0},null,null,null,null,null,null,null,"PE Cell Service costs Annualised",0,0,0,0,0]
[null,"Indirect Opex",null,null,{"$f":"IF($B595=\"Blank\",0,IF($B$8=\"Private Contract Lighting\",'Opex Weighting'!D$48,'Opex Weighting'!D$46))","v":25.762407087322877},{"$f":"IF($B595=\"Blank\",0,IF($B$8=\"Private Contract Lighting\",'Opex Weighting'!E$48,'Opex Weighting'!E$46))","v":25.880403763800857},{"$f":"IF($B595=\"Blank\",0,IF($B$8=\"Private Contract Lighting\",'Opex Weighting'!F$48,'Opex Weighting'!F$46))","v":20.013740175030701},{"$f":"IF($B595=\"Blank\",0,IF($B$8=\"Private Contract Lighting\",'Opex Weighting'!G$48,'Opex Weighting'!G$46))","v":19.55949970528431},{"$f":"IF($B595=\"Blank\",0,IF($B$8=\"Private Contract Lighting\",'Opex Weighting'!H$48,'Opex Weighting'!H$46))","v":19.096814305933613},null,null,null,null,null,null,null,"Indirect Opex",7.0389090402521521,7.0905215791235223,5.4832164863097814,5.3587670425436471,5.2177088267578178]
[null,"Indirect Capex",null,null,{"$f":"'Capex Weighting'!D$59","v":0},{"$f":"'Capex Weighting'!E$59","v":0},{"$f":"'Capex Weighting'!F$59","v":0},{"$f":"'Capex Weighting'!G$59","v":0},{"$f":"'Capex Weighting'!H$59","v":0},null,null,null,null,null,null,null,"Indirect Capex",0,0,0,0,0]
[null,"Opex Overheads Costs per light",null,null,{"$f":"IF($B595=\"Blank\",0,IF($B$8=\"Private Contract Lighting\",'Building Block'!C$40,'Building Block'!C$39))","v":32.224036557323004},{"$f":"IF($B595=\"Blank\",0,IF($B$8=\"Private Contract Lighting\",'Building Block'!D$40,'Building Block'!D$39))","v":31.278075996100256},{"$f":"IF($B595=\"Blank\",0,IF($B$8=\"Private Contract Lighting\",'Building Block'!E$40,'Building Block'!E$39))","v":21.467987799581408},{"$f":"IF($B595=\"Blank\",0,IF($B$8=\"Private Contract Lighting\",'Building Block'!F$40,'Building Block'!F$39))","v":21.22771925228782},{"$f":"IF($B595=\"Blank\",0,IF($B$8=\"Private Contract Lighting\",'Building Block'!G$40,'Building Block'!G$39))","v":21.210892633443169},null,null,null,null,null,null,null,"Opex Overheads Costs per light",8.8043815730390715,8.5693358893425362,5.8816404930360022,5.815813493777485,5.7953258561320133]
[null,{"$f":"Inputs!$AK$68","v":"Bracket UNIT price"},0,null,{"$f":"IF($B595=\"Blank\",0,OFFSET('CAPEX Annuity calcs'!$B$9,MATCH($B595,'CAPEX Annuity calcs'!$B$9:$B$500,0)+$C604,E$6))","v":8.9160003868670579},{"$f":"IF($B595=\"Blank\",0,OFFSET('CAPEX Annuity calcs'!$B$9,MATCH($B595,'CAPEX Annuity calcs'!$B$9:$B$500,0)+$C604,F$6))","v":8.9160003868670579},{"$f":"IF($B595=\"Blank\",0,OFFSET('CAPEX Annuity calcs'!$B$9,MATCH($B595,'CAPEX Annuity calcs'!$B$9:$B$500,0)+$C604,G$6))","v":8.9160003868670579},{"$f":"IF($B595=\"Blank\",0,OFFSET('CAPEX Annuity calcs'!$B$9,MATCH($B595,'CAPEX Annuity calcs'!$B$9:$B$500,0)+$C604,H$6))","v":8.9160003868670579},{"$f":"IF($B595=\"Blank\",0,OFFSET('CAPEX Annuity calcs'!$B$9,MATCH($B595,'CAPEX Annuity calcs'!$B$9:$B$500,0)+$C604,I$6))","v":8.9160003868670579},null,null,null,null,null,null,null,"Bracket UNIT price",2.4360656794718736,2.442739832018372,2.442739832018372,2.442739832018372,2.4360656794718736]
[null,{"$f":"Inputs!$AA$68","v":"CAPEX Instalation costs"},{"$f":"C604+1","v":1},null,{"$f":"IF($B595=\"Blank\",0,OFFSET('CAPEX Annuity calcs'!$B$9,MATCH($B595,'CAPEX Annuity calcs'!$B$9:$B$500,0)+$C605,E$6))","v":0},{"$f":"IF($B595=\"Blank\",0,OFFSET('CAPEX Annuity calcs'!$B$9,MATCH($B595,'CAPEX Annuity calcs'!$B$9:$B$500,0)+$C605,F$6))","v":0},{"$f":"IF($B595=\"Blank\",0,OFFSET('CAPEX Annuity calcs'!$B$9,MATCH($B595,'CAPEX Annuity calcs'!$B$9:$B$500,0)+$C605,G$6))","v":0},{"$f":"IF($B595=\"Blank\",0,OFFSET('CAPEX Annuity calcs'!$B$9,MATCH($B595,'CAPEX Annuity calcs'!$B$9:$B$500,0)+$C605,H$6))","v":0},{"$f":"IF($B595=\"Blank\",0,OFFSET('CAPEX Annuity calcs'!$B$9,MATCH($B595,'CAPEX Annuity calcs'!$B$9:$B$500,0)+$C605,I$6))","v":0},null,null,null,null,null,null,null,"CAPEX Instalation costs",0,0,0,0,0]
[null,{"$f":"Inputs!$Z$68","v":"Luminaire UNIT price"},{"$f":"C605+1","v":2},null,{"$f":"IF($B595=\"Blank\",0,OFFSET('CAPEX Annuity calcs'!$B$9,MATCH($B595,'CAPEX Annuity calcs'!$B$9:$B$500,0)+$C606,E$6))","v":34.806326717321895},{"$f":"IF($B595=\"Blank\",0,OFFSET('CAPEX Annuity calcs'!$B$9,MATCH($B595,'CAPEX Annuity calcs'!$B$9:$B$500,0)+$C606,F$6))","v":34.806326717321895},{"$f":"IF($B595=\"Blank\",0,OFFSET('CAPEX Annuity calcs'!$B$9,MATCH($B595,'CAPEX Annuity calcs'!$B$9:$B$500,0)+$C606,G$6))","v":34.806326717321895},{"$f":"IF($B595=\"Blank\",0,OFFSET('CAPEX Annuity calcs'!$B$9,MATCH($B595,'CAPEX Annuity calcs'!$B$9:$B$500,0)+$C606,H$6))","v":34.806326717321895},{"$f":"IF($B595=\"Blank\",0,OFFSET('CAPEX Annuity calcs'!$B$9,MATCH($B595,'CAPEX Annuity calcs'!$B$9:$B$500,0)+$C606,I$6))","v":34.806326717321895},null,null,null,null,null,null,null,"Luminaire UNIT price",9.5099253326016111,9.5359799225539437,9.5359799225539437,9.5359799225539437,9.5099253326016111]
[null,{"$f":"Inputs!$AA$68","v":"CAPEX Instalation costs"},3,null,{"$f":"IF($B595=\"Blank\",0,OFFSET('CAPEX Annuity calcs'!$B$9,MATCH($B595,'CAPEX Annuity calcs'!$B$9:$B$500,0)+$C607,E$6))","v":29.489604830309908},{"$f":"IF($B595=\"Blank\",0,OFFSET('CAPEX Annuity calcs'!$B$9,MATCH($B595,'CAPEX Annuity calcs'!$B$9:$B$500,0)+$C607,F$6))","v":29.507480464650605},{"$f":"IF($B595=\"Blank\",0,OFFSET('CAPEX Annuity calcs'!$B$9,MATCH($B595,'CAPEX Annuity calcs'!$B$9:$B$500,0)+$C607,G$6))","v":29.534745081628376},{"$f":"IF($B595=\"Blank\",0,OFFSET('CAPEX Annuity calcs'!$B$9,MATCH($B595,'CAPEX Annuity calcs'!$B$9:$B$500,0)+$C607,H$6))","v":29.568358848911217},{"$f":"IF($B595=\"Blank\",0,OFFSET('CAPEX Annuity calcs'!$B$9,MATCH($B595,'CAPEX Annuity calcs'!$B$9:$B$500,0)+$C607,I$6))","v":29.607612693657906},null,null,null,null,null,null,null,"CAPEX Instalation costs",8.0572690793196475,8.0842412231919472,8.0917109812680472,8.1009202325784155,8.0895116649338537]
[null,null,null,null,{"$f":"SUM(E596:E607)","v":192.93814474633754},{"$f":"SUM(F596:F607)","v":192.10288711111951},176.31055140976304,175.46365716658249,174.82403279194941,null,null,null,null,null,null,null,null,{"$f":"ROUND(E608/R$2*100,3)","v":52.715000000000003},{"$f":"ROUND(F608/S$2*100,3)","v":52.631},{"$f":"ROUND(G608/T$2*100,3)","v":48.304000000000002},{"$f":"ROUND(H608/U$2*100,3)","v":48.072000000000003},{"$f":"ROUND(I608/V$2*100,3)","v":47.765999999999998}]
[]
[{"$f":"A595+1","v":41},{"$f":"IFERROR(VLOOKUP($A610,Inputs!$B$68:$AN$129,MATCH($B$7,Inputs!$B$68:$AN$68,0),FALSE),\"Blank\")","v":"125W Mercury Vapour"},null,null,null,null,null,null,null,null,null,null,null,null,null,null,{"$f":"IFERROR(VLOOKUP($A610,Inputs!$B$68:$AN$129,MATCH($B$7,Inputs!$B$68:$AN$68,0),FALSE),\"Blank\")","v":"125W Mercury Vapour"}]
[null,{"$f":"Inputs!$S$68","v":"Lamp UNIT price Annualised Cost"},{"$f":"Inputs!$Q$68","v":"Lamp Maintenance cycle"},null,{"$f":"IF($B610=\"Blank\",0,VLOOKUP($B610,Inputs!$C$68:$AN$129,MATCH($B611,Inputs!$C$68:$AN$68,0),FALSE))","v":0.54524955500000005},{"$f":"IF($B610=\"Blank\",0,VLOOKUP($B610,Inputs!$C$68:$AN$129,MATCH($B611,Inputs!$C$68:$AN$68,0),FALSE))","v":0.54524955500000005},{"$f":"IF($B610=\"Blank\",0,VLOOKUP($B610,Inputs!$C$68:$AN$129,MATCH($B611,Inputs!$C$68:$AN$68,0),FALSE))","v":0.54524955500000005},{"$f":"IF($B610=\"Blank\",0,VLOOKUP($B610,Inputs!$C$68:$AN$129,MATCH($B611,Inputs!$C$68:$AN$68,0),FALSE))","v":0.54524955500000005},{"$f":"IF($B610=\"Blank\",0,VLOOKUP($B610,Inputs!$C$68:$AN$129,MATCH($B611,Inputs!$C$68:$AN$68,0),FALSE))","v":0.54524955500000005},null,null,null,null,null,null,null,{"$f":"B611","v":"Lamp UNIT price Annualised Cost"},{"$f":"IF(E611=\"NA\",\"\",E611/R$2*100)","v":0.14897528825136613},{"$f":"IF(F611=\"NA\",\"\",F611/S$2*100)","v":0.14938343972602741},{"$f":"IF(G611=\"NA\",\"\",G611/T$2*100)","v":0.14938343972602741},{"$f":"IF(H611=\"NA\",\"\",H611/U$2*100)","v":0.14938343972602741},{"$f":"IF(I611=\"NA\",\"\",I611/V$2*100)","v":0.14897528825136613}]
[null,{"$f":"Inputs!$K$68","v":"PE Cell UNIT price Annualised Cost"},{"$f":"Inputs!$I$68","v":"PE Cell Maintenance Cycle"},null,{"$f":"IF($B610=\"Blank\",0,VLOOKUP($B610,Inputs!$C$68:$AN$129,MATCH($B612,Inputs!$C$68:$AN$68,0),FALSE))","v":1.6930974392480003},{"$f":"IF($B610=\"Blank\",0,VLOOKUP($B610,Inputs!$C$68:$AN$129,MATCH($B612,Inputs!$C$68:$AN$68,0),FALSE))","v":1.6930974392480003},{"$f":"IF($B610=\"Blank\",0,VLOOKUP($B610,Inputs!$C$68:$AN$129,MATCH($B612,Inputs!$C$68:$AN$68,0),FALSE))","v":1.6930974392480003},{"$f":"IF($B610=\"Blank\",0,VLOOKUP($B610,Inputs!$C$68:$AN$129,MATCH($B612,Inputs!$C$68:$AN$68,0),FALSE))","v":1.6930974392480003},{"$f":"IF($B610=\"Blank\",0,VLOOKUP($B610,Inputs!$C$68:$AN$129,MATCH($B612,Inputs!$C$68:$AN$68,0),FALSE))","v":1.6930974392480003},null,null,null,null,null,null,null,"PE Cell UNIT price Annualised Cost",0.46259492875628422,0.46386231212273976,0.46386231212273976,0.46386231212273976,0.46259492875628422]
[null,"Corp capex annuity per light",null,null,{"$f":"IF($B610=\"Blank\",0,'Corp Capex Annuity calcs'!F$142)","v":18.582309905017571},{"$f":"IF($B610=\"Blank\",0,'Corp Capex Annuity calcs'!G$142)","v":18.552026408230436},{"$f":"IF($B610=\"Blank\",0,'Corp Capex Annuity calcs'!H$142)","v":18.401377631486287},{"$f":"IF($B610=\"Blank\",0,'Corp Capex Annuity calcs'!I$142)","v":18.205761940470655},{"$f":"IF($B610=\"Blank\",0,'Corp Capex Annuity calcs'!J$142)","v":17.995165449295623},null,null,null,null,null,null,null,"Corp capex annuity per light",5.0771338538299373,5.0827469611590237,5.0414733236948734,4.9878799836905907,4.9167118713922466]
[null,{"$f":"Inputs!$U$68","v":"Lamp Service costs Annualised"},"Labour Portion of Lamp Service costs annualised",null,{"$f":"IF($B610=\"Blank\",0,VLOOKUP($B610,Inputs!$C$68:$AN$129,MATCH($B614,Inputs!$C$68:$AN$68,0),FALSE))+IFERROR(IF($B610=\"Blank\",0,VLOOKUP($B610,Inputs!$C$68:$AN$129,MATCH($C614,Inputs!$C$68:$AN$68,0),FALSE))*('Master Data'!K$42),0)","v":34.921367162927247},{"$f":"IF($B610=\"Blank\",0,VLOOKUP($B610,Inputs!$C$68:$AN$129,MATCH($B614,Inputs!$C$68:$AN$68,0),FALSE))+IFERROR(IF($B610=\"Blank\",0,VLOOKUP($B610,Inputs!$C$68:$AN$129,MATCH($C614,Inputs!$C$68:$AN$68,0),FALSE))*('Master Data'!L$42),0)","v":34.926481274900404},{"$f":"IF($B610=\"Blank\",0,VLOOKUP($B610,Inputs!$C$68:$AN$129,MATCH($B614,Inputs!$C$68:$AN$68,0),FALSE))+IFERROR(IF($B610=\"Blank\",0,VLOOKUP($B610,Inputs!$C$68:$AN$129,MATCH($C614,Inputs!$C$68:$AN$68,0),FALSE))*('Master Data'!M$42),0)","v":34.934281518599292},{"$f":"IF($B610=\"Blank\",0,VLOOKUP($B610,Inputs!$C$68:$AN$129,MATCH($B614,Inputs!$C$68:$AN$68,0),FALSE))+IFERROR(IF($B610=\"Blank\",0,VLOOKUP($B610,Inputs!$C$68:$AN$129,MATCH($C614,Inputs!$C$68:$AN$68,0),FALSE))*('Master Data'!N$42),0)","v":34.943898216191549},{"$f":"IF($B610=\"Blank\",0,VLOOKUP($B610,Inputs!$C$68:$AN$129,MATCH($B614,Inputs!$C$68:$AN$68,0),FALSE))+IFERROR(IF($B610=\"Blank\",0,VLOOKUP($B610,Inputs!$C$68:$AN$129,MATCH($C614,Inputs!$C$68:$AN$68,0),FALSE))*('Master Data'!O$42),0)","v":34.955128506182135},null,null,null,null,null,null,null,"Lamp Service costs Annualised",9.5413571483407775,9.5688989794247679,9.5710360324929571,9.5736707441620688,9.5505815590661562]
[null,{"$f":"Inputs!$M$68","v":"PE Cell Service costs Annualised"},"Labour Portion of PE Cell Service costs Annualised",null,{"$f":"IF($B610=\"Blank\",0,VLOOKUP($B610,Inputs!$C$68:$AN$129,MATCH($B615,Inputs!$C$68:$AN$68,0),FALSE))+IFERROR(IF($B610=\"Blank\",0,VLOOKUP($B610,Inputs!$C$68:$AN$129,MATCH($C615,Inputs!$C$68:$AN$68,0),FALSE))*('Master Data'!K$42),0)","v":0},{"$f":"IF($B610=\"Blank\",0,VLOOKUP($B610,Inputs!$C$68:$AN$129,MATCH($B615,Inputs!$C$68:$AN$68,0),FALSE))+IFERROR(IF($B610=\"Blank\",0,VLOOKUP($B610,Inputs!$C$68:$AN$129,MATCH($C615,Inputs!$C$68:$AN$68,0),FALSE))*('Master Data'!L$42),0)","v":0},{"$f":"IF($B610=\"Blank\",0,VLOOKUP($B610,Inputs!$C$68:$AN$129,MATCH($B615,Inputs!$C$68:$AN$68,0),FALSE))+IFERROR(IF($B610=\"Blank\",0,VLOOKUP($B610,Inputs!$C$68:$AN$129,MATCH($C615,Inputs!$C$68:$AN$68,0),FALSE))*('Master Data'!M$42),0)","v":0},{"$f":"IF($B610=\"Blank\",0,VLOOKUP($B610,Inputs!$C$68:$AN$129,MATCH($B615,Inputs!$C$68:$AN$68,0),FALSE))+IFERROR(IF($B610=\"Blank\",0,VLOOKUP($B610,Inputs!$C$68:$AN$129,MATCH($C615,Inputs!$C$68:$AN$68,0),FALSE))*('Master Data'!N$42),0)","v":0},{"$f":"IF($B610=\"Blank\",0,VLOOKUP($B610,Inputs!$C$68:$AN$129,MATCH($B615,Inputs!$C$68:$AN$68,0),FALSE))+IFERROR(IF($B610=\"Blank\",0,VLOOKUP($B610,Inputs!$C$68:$AN$129,MATCH($C615,Inputs!$C$68:$AN$68,0),FALSE))*('Master Data'!O$42),0)","v":0},null,null,null,null,null,null,null,"PE Cell Service costs Annualised",0,0,0,0,0]
[null,"Indirect Opex",null,null,{"$f":"IF($B610=\"Blank\",0,IF($B$8=\"Private Contract Lighting\",'Opex Weighting'!D$48,'Opex Weighting'!D$46))","v":25.762407087322877},{"$f":"IF($B610=\"Blank\",0,IF($B$8=\"Private Contract Lighting\",'Opex Weighting'!E$48,'Opex Weighting'!E$46))","v":25.880403763800857},{"$f":"IF($B610=\"Blank\",0,IF($B$8=\"Private Contract Lighting\",'Opex Weighting'!F$48,'Opex Weighting'!F$46))","v":20.013740175030701},{"$f":"IF($B610=\"Blank\",0,IF($B$8=\"Private Contract Lighting\",'Opex Weighting'!G$48,'Opex Weighting'!G$46))","v":19.55949970528431},{"$f":"IF($B610=\"Blank\",0,IF($B$8=\"Private Contract Lighting\",'Opex Weighting'!H$48,'Opex Weighting'!H$46))","v":19.096814305933613},null,null,null,null,null,null,null,"Indirect Opex",7.0389090402521521,7.0905215791235223,5.4832164863097814,5.3587670425436471,5.2177088267578178]
[null,"Indirect Capex",null,null,{"$f":"'Capex Weighting'!D$59","v":0},{"$f":"'Capex Weighting'!E$59","v":0},{"$f":"'Capex Weighting'!F$59","v":0},{"$f":"'Capex Weighting'!G$59","v":0},{"$f":"'Capex Weighting'!H$59","v":0},null,null,null,null,null,null,null,"Indirect Capex",0,0,0,0,0]
[null,"Opex Overheads Costs per light",null,null,{"$f":"IF($B610=\"Blank\",0,IF($B$8=\"Private Contract Lighting\",'Building Block'!C$40,'Building Block'!C$39))","v":32.224036557323004},{"$f":"IF($B610=\"Blank\",0,IF($B$8=\"Private Contract Lighting\",'Building Block'!D$40,'Building Block'!D$39))","v":31.278075996100256},{"$f":"IF($B610=\"Blank\",0,IF($B$8=\"Private Contract Lighting\",'Building Block'!E$40,'Building Block'!E$39))","v":21.467987799581408},{"$f":"IF($B610=\"Blank\",0,IF($B$8=\"Private Contract Lighting\",'Building Block'!F$40,'Building Block'!F$39))","v":21.22771925228782},{"$f":"IF($B610=\"Blank\",0,IF($B$8=\"Private Contract Lighting\",'Building Block'!G$40,'Building Block'!G$39))","v":21.210892633443169},null,null,null,null,null,null,null,"Opex Overheads Costs per light",8.8043815730390715,8.5693358893425362,5.8816404930360022,5.815813493777485,5.7953258561320133]
[null,{"$f":"Inputs!$AK$68","v":"Bracket UNIT price"},0,null,{"$f":"IF($B610=\"Blank\",0,OFFSET('CAPEX Annuity calcs'!$B$9,MATCH($B610,'CAPEX Annuity calcs'!$B$9:$B$500,0)+$C619,E$6))","v":10.046556639149154},{"$f":"IF($B610=\"Blank\",0,OFFSET('CAPEX Annuity calcs'!$B$9,MATCH($B610,'CAPEX Annuity calcs'!$B$9:$B$500,0)+$C619,F$6))","v":10.046556639149154},{"$f":"IF($B610=\"Blank\",0,OFFSET('CAPEX Annuity calcs'!$B$9,MATCH($B610,'CAPEX Annuity calcs'!$B$9:$B$500,0)+$C619,G$6))","v":10.046556639149154},{"$f":"IF($B610=\"Blank\",0,OFFSET('CAPEX Annuity calcs'!$B$9,MATCH($B610,'CAPEX Annuity calcs'!$B$9:$B$500,0)+$C619,H$6))","v":10.046556639149154},{"$f":"IF($B610=\"Blank\",0,OFFSET('CAPEX Annuity calcs'!$B$9,MATCH($B610,'CAPEX Annuity calcs'!$B$9:$B$500,0)+$C619,I$6))","v":10.046556639149154},null,null,null,null,null,null,null,"Bracket UNIT price",2.7449608303686213,2.7524812709997679,2.7524812709997679,2.7524812709997679,2.7449608303686213]
[null,{"$f":"Inputs!$AA$68","v":"CAPEX Instalation costs"},{"$f":"C619+1","v":1},null,{"$f":"IF($B610=\"Blank\",0,OFFSET('CAPEX Annuity calcs'!$B$9,MATCH($B610,'CAPEX Annuity calcs'!$B$9:$B$500,0)+$C620,E$6))","v":0},{"$f":"IF($B610=\"Blank\",0,OFFSET('CAPEX Annuity calcs'!$B$9,MATCH($B610,'CAPEX Annuity calcs'!$B$9:$B$500,0)+$C620,F$6))","v":0},{"$f":"IF($B610=\"Blank\",0,OFFSET('CAPEX Annuity calcs'!$B$9,MATCH($B610,'CAPEX Annuity calcs'!$B$9:$B$500,0)+$C620,G$6))","v":0},{"$f":"IF($B610=\"Blank\",0,OFFSET('CAPEX Annuity calcs'!$B$9,MATCH($B610,'CAPEX Annuity calcs'!$B$9:$B$500,0)+$C620,H$6))","v":0},{"$f":"IF($B610=\"Blank\",0,OFFSET('CAPEX Annuity calcs'!$B$9,MATCH($B610,'CAPEX Annuity calcs'!$B$9:$B$500,0)+$C620,I$6))","v":0},null,null,null,null,null,null,null,"CAPEX Instalation costs",0,0,0,0,0]
[null,{"$f":"Inputs!$Z$68","v":"Luminaire UNIT price"},{"$f":"C620+1","v":2},null,{"$f":"IF($B610=\"Blank\",0,OFFSET('CAPEX Annuity calcs'!$B$9,MATCH($B610,'CAPEX Annuity calcs'!$B$9:$B$500,0)+$C621,E$6))","v":10.004324093050466},{"$f":"IF($B610=\"Blank\",0,OFFSET('CAPEX Annuity calcs'!$B$9,MATCH($B610,'CAPEX Annuity calcs'!$B$9:$B$500,0)+$C621,F$6))","v":10.004324093050466},{"$f":"IF($B610=\"Blank\",0,OFFSET('CAPEX Annuity calcs'!$B$9,MATCH($B610,'CAPEX Annuity calcs'!$B$9:$B$500,0)+$C621,G$6))","v":10.004324093050466},{"$f":"IF($B610=\"Blank\",0,OFFSET('CAPEX Annuity calcs'!$B$9,MATCH($B610,'CAPEX Annuity calcs'!$B$9:$B$500,0)+$C621,H$6))","v":10.004324093050466},{"$f":"IF($B610=\"Blank\",0,OFFSET('CAPEX Annuity calcs'!$B$9,MATCH($B610,'CAPEX Annuity calcs'!$B$9:$B$500,0)+$C621,I$6))","v":10.004324093050466},null,null,null,null,null,null,null,"Luminaire UNIT price",2.7334218833471216,2.7409107104247852,2.7409107104247852,2.7409107104247852,2.7334218833471216]
[null,{"$f":"Inputs!$AA$68","v":"CAPEX Instalation costs"},3,null,{"$f":"IF($B610=\"Blank\",0,OFFSET('CAPEX Annuity calcs'!$B$9,MATCH($B610,'CAPEX Annuity calcs'!$B$9:$B$500,0)+$C622,E$6))","v":29.489604830309908},{"$f":"IF($B610=\"Blank\",0,OFFSET('CAPEX Annuity calcs'!$B$9,MATCH($B610,'CAPEX Annuity calcs'!$B$9:$B$500,0)+$C622,F$6))","v":29.507480464650605},{"$f":"IF($B610=\"Blank\",0,OFFSET('CAPEX Annuity calcs'!$B$9,MATCH($B610,'CAPEX Annuity calcs'!$B$9:$B$500,0)+$C622,G$6))","v":29.534745081628376},{"$f":"IF($B610=\"Blank\",0,OFFSET('CAPEX Annuity calcs'!$B$9,MATCH($B610,'CAPEX Annuity calcs'!$B$9:$B$500,0)+$C622,H$6))","v":29.568358848911217},{"$f":"IF($B610=\"Blank\",0,OFFSET('CAPEX Annuity calcs'!$B$9,MATCH($B610,'CAPEX Annuity calcs'!$B$9:$B$500,0)+$C622,I$6))","v":29.607612693657906},null,null,null,null,null,null,null,"CAPEX Instalation costs",8.0572690793196475,8.0842412231919472,8.0917109812680472,8.1009202325784155,8.0895116649338537]
[null,null,null,null,{"$f":"SUM(E611:E622)","v":163.26895326934823},{"$f":"SUM(F611:F622)","v":162.43369563413017},146.6413599327737,145.79446568959315,145.15484131496007,null,null,null,null,null,null,null,null,{"$f":"ROUND(E623/R$2*100,3)","v":44.609000000000002},{"$f":"ROUND(F623/S$2*100,3)","v":44.502000000000002},{"$f":"ROUND(G623/T$2*100,3)","v":40.176000000000002},{"$f":"ROUND(H623/U$2*100,3)","v":39.944000000000003},{"$f":"ROUND(I623/V$2*100,3)","v":39.659999999999997}]
[]
[{"$f":"A610+1","v":42},{"$f":"IFERROR(VLOOKUP($A625,Inputs!$B$68:$AN$129,MATCH($B$7,Inputs!$B$68:$AN$68,0),FALSE),\"Blank\")","v":"250W Mercury Vapour"},null,null,null,null,null,null,null,null,null,null,null,null,null,null,{"$f":"IFERROR(VLOOKUP($A625,Inputs!$B$68:$AN$129,MATCH($B$7,Inputs!$B$68:$AN$68,0),FALSE),\"Blank\")","v":"250W Mercury Vapour"}]
[null,{"$f":"Inputs!$S$68","v":"Lamp UNIT price Annualised Cost"},{"$f":"Inputs!$Q$68","v":"Lamp Maintenance cycle"},null,{"$f":"IF($B625=\"Blank\",0,VLOOKUP($B625,Inputs!$C$68:$AN$129,MATCH($B626,Inputs!$C$68:$AN$68,0),FALSE))","v":0.54524955500000005},{"$f":"IF($B625=\"Blank\",0,VLOOKUP($B625,Inputs!$C$68:$AN$129,MATCH($B626,Inputs!$C$68:$AN$68,0),FALSE))","v":0.54524955500000005},{"$f":"IF($B625=\"Blank\",0,VLOOKUP($B625,Inputs!$C$68:$AN$129,MATCH($B626,Inputs!$C$68:$AN$68,0),FALSE))","v":0.54524955500000005},{"$f":"IF($B625=\"Blank\",0,VLOOKUP($B625,Inputs!$C$68:$AN$129,MATCH($B626,Inputs!$C$68:$AN$68,0),FALSE))","v":0.54524955500000005},{"$f":"IF($B625=\"Blank\",0,VLOOKUP($B625,Inputs!$C$68:$AN$129,MATCH($B626,Inputs!$C$68:$AN$68,0),FALSE))","v":0.54524955500000005},null,null,null,null,null,null,null,{"$f":"B626","v":"Lamp UNIT price Annualised Cost"},{"$f":"IF(E626=\"NA\",\"\",E626/R$2*100)","v":0.14897528825136613},{"$f":"IF(F626=\"NA\",\"\",F626/S$2*100)","v":0.14938343972602741},{"$f":"IF(G626=\"NA\",\"\",G626/T$2*100)","v":0.14938343972602741},{"$f":"IF(H626=\"NA\",\"\",H626/U$2*100)","v":0.14938343972602741},{"$f":"IF(I626=\"NA\",\"\",I626/V$2*100)","v":0.14897528825136613}]
[null,{"$f":"Inputs!$K$68","v":"PE Cell UNIT price Annualised Cost"},{"$f":"Inputs!$I$68","v":"PE Cell Maintenance Cycle"},null,{"$f":"IF($B625=\"Blank\",0,VLOOKUP($B625,Inputs!$C$68:$AN$129,MATCH($B627,Inputs!$C$68:$AN$68,0),FALSE))","v":1.6930974392480003},{"$f":"IF($B625=\"Blank\",0,VLOOKUP($B625,Inputs!$C$68:$AN$129,MATCH($B627,Inputs!$C$68:$AN$68,0),FALSE))","v":1.6930974392480003},{"$f":"IF($B625=\"Blank\",0,VLOOKUP($B625,Inputs!$C$68:$AN$129,MATCH($B627,Inputs!$C$68:$AN$68,0),FALSE))","v":1.6930974392480003},{"$f":"IF($B625=\"Blank\",0,VLOOKUP($B625,Inputs!$C$68:$AN$129,MATCH($B627,Inputs!$C$68:$AN$68,0),FALSE))","v":1.6930974392480003},{"$f":"IF($B625=\"Blank\",0,VLOOKUP($B625,Inputs!$C$68:$AN$129,MATCH($B627,Inputs!$C$68:$AN$68,0),FALSE))","v":1.6930974392480003},null,null,null,null,null,null,null,"PE Cell UNIT price Annualised Cost",0.46259492875628422,0.46386231212273976,0.46386231212273976,0.46386231212273976,0.46259492875628422]
[null,"Corp capex annuity per light",null,null,{"$f":"IF($B625=\"Blank\",0,'Corp Capex Annuity calcs'!F$142)","v":18.582309905017571},{"$f":"IF($B625=\"Blank\",0,'Corp Capex Annuity calcs'!G$142)","v":18.552026408230436},{"$f":"IF($B625=\"Blank\",0,'Corp Capex Annuity calcs'!H$142)","v":18.401377631486287},{"$f":"IF($B625=\"Blank\",0,'Corp Capex Annuity calcs'!I$142)","v":18.205761940470655},{"$f":"IF($B625=\"Blank\",0,'Corp Capex Annuity calcs'!J$142)","v":17.995165449295623},null,null,null,null,null,null,null,"Corp capex annuity per light",5.0771338538299373,5.0827469611590237,5.0414733236948734,4.9878799836905907,4.9167118713922466]
[null,{"$f":"Inputs!$U$68","v":"Lamp Service costs Annualised"},"Labour Portion of Lamp Service costs annualised",null,{"$f":"IF($B625=\"Blank\",0,VLOOKUP($B625,Inputs!$C$68:$AN$129,MATCH($B629,Inputs!$C$68:$AN$68,0),FALSE))+IFERROR(IF($B625=\"Blank\",0,VLOOKUP($B625,Inputs!$C$68:$AN$129,MATCH($C629,Inputs!$C$68:$AN$68,0),FALSE))*('Master Data'!K$42),0)","v":34.921367162927247},{"$f":"IF($B625=\"Blank\",0,VLOOKUP($B625,Inputs!$C$68:$AN$129,MATCH($B629,Inputs!$C$68:$AN$68,0),FALSE))+IFERROR(IF($B625=\"Blank\",0,VLOOKUP($B625,Inputs!$C$68:$AN$129,MATCH($C629,Inputs!$C$68:$AN$68,0),FALSE))*('Master Data'!L$42),0)","v":34.926481274900404},{"$f":"IF($B625=\"Blank\",0,VLOOKUP($B625,Inputs!$C$68:$AN$129,MATCH($B629,Inputs!$C$68:$AN$68,0),FALSE))+IFERROR(IF($B625=\"Blank\",0,VLOOKUP($B625,Inputs!$C$68:$AN$129,MATCH($C629,Inputs!$C$68:$AN$68,0),FALSE))*('Master Data'!M$42),0)","v":34.934281518599292},{"$f":"IF($B625=\"Blank\",0,VLOOKUP($B625,Inputs!$C$68:$AN$129,MATCH($B629,Inputs!$C$68:$AN$68,0),FALSE))+IFERROR(IF($B625=\"Blank\",0,VLOOKUP($B625,Inputs!$C$68:$AN$129,MATCH($C629,Inputs!$C$68:$AN$68,0),FALSE))*('Master Data'!N$42),0)","v":34.943898216191549},{"$f":"IF($B625=\"Blank\",0,VLOOKUP($B625,Inputs!$C$68:$AN$129,MATCH($B629,Inputs!$C$68:$AN$68,0),FALSE))+IFERROR(IF($B625=\"Blank\",0,VLOOKUP($B625,Inputs!$C$68:$AN$129,MATCH($C629,Inputs!$C$68:$AN$68,0),FALSE))*('Master Data'!O$42),0)","v":34.955128506182135},null,null,null,null,null,null,null,"Lamp Service costs Annualised",9.5413571483407775,9.5688989794247679,9.5710360324929571,9.5736707441620688,9.5505815590661562]
[null,{"$f":"Inputs!$M$68","v":"PE Cell Service costs Annualised"},"Labour Portion of PE Cell Service costs Annualised",null,{"$f":"IF($B625=\"Blank\",0,VLOOKUP($B625,Inputs!$C$68:$AN$129,MATCH($B630,Inputs!$C$68:$AN$68,0),FALSE))+IFERROR(IF($B625=\"Blank\",0,VLOOKUP($B625,Inputs!$C$68:$AN$129,MATCH($C630,Inputs!$C$68:$AN$68,0),FALSE))*('Master Data'!K$42),0)","v":0},{"$f":"IF($B625=\"Blank\",0,VLOOKUP($B625,Inputs!$C$68:$AN$129,MATCH($B630,Inputs!$C$68:$AN$68,0),FALSE))+IFERROR(IF($B625=\"Blank\",0,VLOOKUP($B625,Inputs!$C$68:$AN$129,MATCH($C630,Inputs!$C$68:$AN$68,0),FALSE))*('Master Data'!L$42),0)","v":0},{"$f":"IF($B625=\"Blank\",0,VLOOKUP($B625,Inputs!$C$68:$AN$129,MATCH($B630,Inputs!$C$68:$AN$68,0),FALSE))+IFERROR(IF($B625=\"Blank\",0,VLOOKUP($B625,Inputs!$C$68:$AN$129,MATCH($C630,Inputs!$C$68:$AN$68,0),FALSE))*('Master Data'!M$42),0)","v":0},{"$f":"IF($B625=\"Blank\",0,VLOOKUP($B625,Inputs!$C$68:$AN$129,MATCH($B630,Inputs!$C$68:$AN$68,0),FALSE))+IFERROR(IF($B625=\"Blank\",0,VLOOKUP($B625,Inputs!$C$68:$AN$129,MATCH($C630,Inputs!$C$68:$AN$68,0),FALSE))*('Master Data'!N$42),0)","v":0},{"$f":"IF($B625=\"Blank\",0,VLOOKUP($B625,Inputs!$C$68:$AN$129,MATCH($B630,Inputs!$C$68:$AN$68,0),FALSE))+IFERROR(IF($B625=\"Blank\",0,VLOOKUP($B625,Inputs!$C$68:$AN$129,MATCH($C630,Inputs!$C$68:$AN$68,0),FALSE))*('Master Data'!O$42),0)","v":0},null,null,null,null,null,null,null,"PE Cell Service costs Annualised",0,0,0,0,0]
[null,"Indirect Opex",null,null,{"$f":"IF($B625=\"Blank\",0,IF($B$8=\"Private Contract Lighting\",'Opex Weighting'!D$48,'Opex Weighting'!D$46))","v":25.762407087322877},{"$f":"IF($B625=\"Blank\",0,IF($B$8=\"Private Contract Lighting\",'Opex Weighting'!E$48,'Opex Weighting'!E$46))","v":25.880403763800857},{"$f":"IF($B625=\"Blank\",0,IF($B$8=\"Private Contract Lighting\",'Opex Weighting'!F$48,'Opex Weighting'!F$46))","v":20.013740175030701},{"$f":"IF($B625=\"Blank\",0,IF($B$8=\"Private Contract Lighting\",'Opex Weighting'!G$48,'Opex Weighting'!G$46))","v":19.55949970528431},{"$f":"IF($B625=\"Blank\",0,IF($B$8=\"Private Contract Lighting\",'Opex Weighting'!H$48,'Opex Weighting'!H$46))","v":19.096814305933613},null,null,null,null,null,null,null,"Indirect Opex",7.0389090402521521,7.0905215791235223,5.4832164863097814,5.3587670425436471,5.2177088267578178]
[null,"Indirect Capex",null,null,{"$f":"'Capex Weighting'!D$59","v":0},{"$f":"'Capex Weighting'!E$59","v":0},{"$f":"'Capex Weighting'!F$59","v":0},{"$f":"'Capex Weighting'!G$59","v":0},{"$f":"'Capex Weighting'!H$59","v":0},null,null,null,null,null,null,null,"Indirect Capex",0,0,0,0,0]
[null,"Opex Overheads Costs per light",null,null,{"$f":"IF($B625=\"Blank\",0,IF($B$8=\"Private Contract Lighting\",'Building Block'!C$40,'Building Block'!C$39))","v":32.224036557323004},{"$f":"IF($B625=\"Blank\",0,IF($B$8=\"Private Contract Lighting\",'Building Block'!D$40,'Building Block'!D$39))","v":31.278075996100256},{"$f":"IF($B625=\"Blank\",0,IF($B$8=\"Private Contract Lighting\",'Building Block'!E$40,'Building Block'!E$39))","v":21.467987799581408},{"$f":"IF($B625=\"Blank\",0,IF($B$8=\"Private Contract Lighting\",'Building Block'!F$40,'Building Block'!F$39))","v":21.22771925228782},{"$f":"IF($B625=\"Blank\",0,IF($B$8=\"Private Contract Lighting\",'Building Block'!G$40,'Building Block'!G$39))","v":21.210892633443169},null,null,null,null,null,null,null,"Opex Overheads Costs per light",8.8043815730390715,8.5693358893425362,5.8816404930360022,5.815813493777485,5.7953258561320133]
[null,{"$f":"Inputs!$AK$68","v":"Bracket UNIT price"},0,null,{"$f":"IF($B625=\"Blank\",0,OFFSET('CAPEX Annuity calcs'!$B$9,MATCH($B625,'CAPEX Annuity calcs'!$B$9:$B$500,0)+$C634,E$6))","v":10.046556639149154},{"$f":"IF($B625=\"Blank\",0,OFFSET('CAPEX Annuity calcs'!$B$9,MATCH($B625,'CAPEX Annuity calcs'!$B$9:$B$500,0)+$C634,F$6))","v":10.046556639149154},{"$f":"IF($B625=\"Blank\",0,OFFSET('CAPEX Annuity calcs'!$B$9,MATCH($B625,'CAPEX Annuity calcs'!$B$9:$B$500,0)+$C634,G$6))","v":10.046556639149154},{"$f":"IF($B625=\"Blank\",0,OFFSET('CAPEX Annuity calcs'!$B$9,MATCH($B625,'CAPEX Annuity calcs'!$B$9:$B$500,0)+$C634,H$6))","v":10.046556639149154},{"$f":"IF($B625=\"Blank\",0,OFFSET('CAPEX Annuity calcs'!$B$9,MATCH($B625,'CAPEX Annuity calcs'!$B$9:$B$500,0)+$C634,I$6))","v":10.046556639149154},null,null,null,null,null,null,null,"Bracket UNIT price",2.7449608303686213,2.7524812709997679,2.7524812709997679,2.7524812709997679,2.7449608303686213]
[null,{"$f":"Inputs!$AA$68","v":"CAPEX Instalation costs"},{"$f":"C634+1","v":1},null,{"$f":"IF($B625=\"Blank\",0,OFFSET('CAPEX Annuity calcs'!$B$9,MATCH($B625,'CAPEX Annuity calcs'!$B$9:$B$500,0)+$C635,E$6))","v":0},{"$f":"IF($B625=\"Blank\",0,OFFSET('CAPEX Annuity calcs'!$B$9,MATCH($B625,'CAPEX Annuity calcs'!$B$9:$B$500,0)+$C635,F$6))","v":0},{"$f":"IF($B625=\"Blank\",0,OFFSET('CAPEX Annuity calcs'!$B$9,MATCH($B625,'CAPEX Annuity calcs'!$B$9:$B$500,0)+$C635,G$6))","v":0},{"$f":"IF($B625=\"Blank\",0,OFFSET('CAPEX Annuity calcs'!$B$9,MATCH($B625,'CAPEX Annuity calcs'!$B$9:$B$500,0)+$C635,H$6))","v":0},{"$f":"IF($B625=\"Blank\",0,OFFSET('CAPEX Annuity calcs'!$B$9,MATCH($B625,'CAPEX Annuity calcs'!$B$9:$B$500,0)+$C635,I$6))","v":0},null,null,null,null,null,null,null,"CAPEX Instalation costs",0,0,0,0,0]
[null,{"$f":"Inputs!$Z$68","v":"Luminaire UNIT price"},{"$f":"C635+1","v":2},null,{"$f":"IF($B625=\"Blank\",0,OFFSET('CAPEX Annuity calcs'!$B$9,MATCH($B625,'CAPEX Annuity calcs'!$B$9:$B$500,0)+$C636,E$6))","v":11.555604197487963},{"$f":"IF($B625=\"Blank\",0,OFFSET('CAPEX Annuity calcs'!$B$9,MATCH($B625,'CAPEX Annuity calcs'!$B$9:$B$500,0)+$C636,F$6))","v":11.555604197487963},{"$f":"IF($B625=\"Blank\",0,OFFSET('CAPEX Annuity calcs'!$B$9,MATCH($B625,'CAPEX Annuity calcs'!$B$9:$B$500,0)+$C636,G$6))","v":11.555604197487963},{"$f":"IF($B625=\"Blank\",0,OFFSET('CAPEX Annuity calcs'!$B$9,MATCH($B625,'CAPEX Annuity calcs'!$B$9:$B$500,0)+$C636,H$6))","v":11.555604197487963},{"$f":"IF($B625=\"Blank\",0,OFFSET('CAPEX Annuity calcs'!$B$9,MATCH($B625,'CAPEX Annuity calcs'!$B$9:$B$500,0)+$C636,I$6))","v":11.555604197487963},null,null,null,null,null,null,null,"Luminaire UNIT price",3.1572689064174764,3.1659189582158804,3.1659189582158804,3.1659189582158804,3.1572689064174764]
[null,{"$f":"Inputs!$AA$68","v":"CAPEX Instalation costs"},3,null,{"$f":"IF($B625=\"Blank\",0,OFFSET('CAPEX Annuity calcs'!$B$9,MATCH($B625,'CAPEX Annuity calcs'!$B$9:$B$500,0)+$C637,E$6))","v":29.489604830309908},{"$f":"IF($B625=\"Blank\",0,OFFSET('CAPEX Annuity calcs'!$B$9,MATCH($B625,'CAPEX Annuity calcs'!$B$9:$B$500,0)+$C637,F$6))","v":29.507480464650605},{"$f":"IF($B625=\"Blank\",0,OFFSET('CAPEX Annuity calcs'!$B$9,MATCH($B625,'CAPEX Annuity calcs'!$B$9:$B$500,0)+$C637,G$6))","v":29.534745081628376},{"$f":"IF($B625=\"Blank\",0,OFFSET('CAPEX Annuity calcs'!$B$9,MATCH($B625,'CAPEX Annuity calcs'!$B$9:$B$500,0)+$C637,H$6))","v":29.568358848911217},{"$f":"IF($B625=\"Blank\",0,OFFSET('CAPEX Annuity calcs'!$B$9,MATCH($B625,'CAPEX Annuity calcs'!$B$9:$B$500,0)+$C637,I$6))","v":29.607612693657906},null,null,null,null,null,null,null,"CAPEX Instalation costs",8.0572690793196475,8.0842412231919472,8.0917109812680472,8.1009202325784155,8.0895116649338537]
[null,null,null,null,{"$f":"SUM(E626:E637)","v":164.82023337378573},{"$f":"SUM(F626:F637)","v":163.98497573856767},148.19264003721119,147.34574579403068,146.70612141939756,null,null,null,null,null,null,null,null,{"$f":"ROUND(E638/R$2*100,3)","v":45.033000000000001},{"$f":"ROUND(F638/S$2*100,3)","v":44.927},{"$f":"ROUND(G638/T$2*100,3)","v":40.600999999999999},{"$f":"ROUND(H638/U$2*100,3)","v":40.369},{"$f":"ROUND(I638/V$2*100,3)","v":40.084000000000003}]
[]
[{"$f":"A625+1","v":43},{"$f":"IFERROR(VLOOKUP($A640,Inputs!$B$68:$AN$129,MATCH($B$7,Inputs!$B$68:$AN$68,0),FALSE),\"Blank\")","v":"400W Mercury Vapour"},null,null,null,null,null,null,null,null,null,null,null,null,null,null,{"$f":"IFERROR(VLOOKUP($A640,Inputs!$B$68:$AN$129,MATCH($B$7,Inputs!$B$68:$AN$68,0),FALSE),\"Blank\")","v":"400W Mercury Vapour"}]
[null,{"$f":"Inputs!$S$68","v":"Lamp UNIT price Annualised Cost"},{"$f":"Inputs!$Q$68","v":"Lamp Maintenance cycle"},null,{"$f":"IF($B640=\"Blank\",0,VLOOKUP($B640,Inputs!$C$68:$AN$129,MATCH($B641,Inputs!$C$68:$AN$68,0),FALSE))","v":1.0686891278000004},{"$f":"IF($B640=\"Blank\",0,VLOOKUP($B640,Inputs!$C$68:$AN$129,MATCH($B641,Inputs!$C$68:$AN$68,0),FALSE))","v":1.0686891278000004},{"$f":"IF($B640=\"Blank\",0,VLOOKUP($B640,Inputs!$C$68:$AN$129,MATCH($B641,Inputs!$C$68:$AN$68,0),FALSE))","v":1.0686891278000004},{"$f":"IF($B640=\"Blank\",0,VLOOKUP($B640,Inputs!$C$68:$AN$129,MATCH($B641,Inputs!$C$68:$AN$68,0),FALSE))","v":1.0686891278000004},{"$f":"IF($B640=\"Blank\",0,VLOOKUP($B640,Inputs!$C$68:$AN$129,MATCH($B641,Inputs!$C$68:$AN$68,0),FALSE))","v":1.0686891278000004},null,null,null,null,null,null,null,{"$f":"B641","v":"Lamp UNIT price Annualised Cost"},{"$f":"IF(E641=\"NA\",\"\",E641/R$2*100)","v":0.2919915649726777},{"$f":"IF(F641=\"NA\",\"\",F641/S$2*100)","v":0.29279154186301382},{"$f":"IF(G641=\"NA\",\"\",G641/T$2*100)","v":0.29279154186301382},{"$f":"IF(H641=\"NA\",\"\",H641/U$2*100)","v":0.29279154186301382},{"$f":"IF(I641=\"NA\",\"\",I641/V$2*100)","v":0.2919915649726777}]
[null,{"$f":"Inputs!$K$68","v":"PE Cell UNIT price Annualised Cost"},{"$f":"Inputs!$I$68","v":"PE Cell Maintenance Cycle"},null,{"$f":"IF($B640=\"Blank\",0,VLOOKUP($B640,Inputs!$C$68:$AN$129,MATCH($B642,Inputs!$C$68:$AN$68,0),FALSE))","v":1.6930974392480003},{"$f":"IF($B640=\"Blank\",0,VLOOKUP($B640,Inputs!$C$68:$AN$129,MATCH($B642,Inputs!$C$68:$AN$68,0),FALSE))","v":1.6930974392480003},{"$f":"IF($B640=\"Blank\",0,VLOOKUP($B640,Inputs!$C$68:$AN$129,MATCH($B642,Inputs!$C$68:$AN$68,0),FALSE))","v":1.6930974392480003},{"$f":"IF($B640=\"Blank\",0,VLOOKUP($B640,Inputs!$C$68:$AN$129,MATCH($B642,Inputs!$C$68:$AN$68,0),FALSE))","v":1.6930974392480003},{"$f":"IF($B640=\"Blank\",0,VLOOKUP($B640,Inputs!$C$68:$AN$129,MATCH($B642,Inputs!$C$68:$AN$68,0),FALSE))","v":1.6930974392480003},null,null,null,null,null,null,null,"PE Cell UNIT price Annualised Cost",0.46259492875628422,0.46386231212273976,0.46386231212273976,0.46386231212273976,0.46259492875628422]
[null,"Corp capex annuity per light",null,null,{"$f":"IF($B640=\"Blank\",0,'Corp Capex Annuity calcs'!F$142)","v":18.582309905017571},{"$f":"IF($B640=\"Blank\",0,'Corp Capex Annuity calcs'!G$142)","v":18.552026408230436},{"$f":"IF($B640=\"Blank\",0,'Corp Capex Annuity calcs'!H$142)","v":18.401377631486287},{"$f":"IF($B640=\"Blank\",0,'Corp Capex Annuity calcs'!I$142)","v":18.205761940470655},{"$f":"IF($B640=\"Blank\",0,'Corp Capex Annuity calcs'!J$142)","v":17.995165449295623},null,null,null,null,null,null,null,"Corp capex annuity per light",5.0771338538299373,5.0827469611590237,5.0414733236948734,4.9878799836905907,4.9167118713922466]
[null,{"$f":"Inputs!$U$68","v":"Lamp Service costs Annualised"},"Labour Portion of Lamp Service costs annualised",null,{"$f":"IF($B640=\"Blank\",0,VLOOKUP($B640,Inputs!$C$68:$AN$129,MATCH($B644,Inputs!$C$68:$AN$68,0),FALSE))+IFERROR(IF($B640=\"Blank\",0,VLOOKUP($B640,Inputs!$C$68:$AN$129,MATCH($C644,Inputs!$C$68:$AN$68,0),FALSE))*('Master Data'!K$42),0)","v":34.921367162927247},{"$f":"IF($B640=\"Blank\",0,VLOOKUP($B640,Inputs!$C$68:$AN$129,MATCH($B644,Inputs!$C$68:$AN$68,0),FALSE))+IFERROR(IF($B640=\"Blank\",0,VLOOKUP($B640,Inputs!$C$68:$AN$129,MATCH($C644,Inputs!$C$68:$AN$68,0),FALSE))*('Master Data'!L$42),0)","v":34.926481274900404},{"$f":"IF($B640=\"Blank\",0,VLOOKUP($B640,Inputs!$C$68:$AN$129,MATCH($B644,Inputs!$C$68:$AN$68,0),FALSE))+IFERROR(IF($B640=\"Blank\",0,VLOOKUP($B640,Inputs!$C$68:$AN$129,MATCH($C644,Inputs!$C$68:$AN$68,0),FALSE))*('Master Data'!M$42),0)","v":34.934281518599292},{"$f":"IF($B640=\"Blank\",0,VLOOKUP($B640,Inputs!$C$68:$AN$129,MATCH($B644,Inputs!$C$68:$AN$68,0),FALSE))+IFERROR(IF($B640=\"Blank\",0,VLOOKUP($B640,Inputs!$C$68:$AN$129,MATCH($C644,Inputs!$C$68:$AN$68,0),FALSE))*('Master Data'!N$42),0)","v":34.943898216191549},{"$f":"IF($B640=\"Blank\",0,VLOOKUP($B640,Inputs!$C$68:$AN$129,MATCH($B644,Inputs!$C$68:$AN$68,0),FALSE))+IFERROR(IF($B640=\"Blank\",0,VLOOKUP($B640,Inputs!$C$68:$AN$129,MATCH($C644,Inputs!$C$68:$AN$68,0),FALSE))*('Master Data'!O$42),0)","v":34.955128506182135},null,null,null,null,null,null,null,"Lamp Service costs Annualised",9.5413571483407775,9.5688989794247679,9.5710360324929571,9.5736707441620688,9.5505815590661562]
[null,{"$f":"Inputs!$M$68","v":"PE Cell Service costs Annualised"},"Labour Portion of PE Cell Service costs Annualised",null,{"$f":"IF($B640=\"Blank\",0,VLOOKUP($B640,Inputs!$C$68:$AN$129,MATCH($B645,Inputs!$C$68:$AN$68,0),FALSE))+IFERROR(IF($B640=\"Blank\",0,VLOOKUP($B640,Inputs!$C$68:$AN$129,MATCH($C645,Inputs!$C$68:$AN$68,0),FALSE))*('Master Data'!K$42),0)","v":0},{"$f":"IF($B640=\"Blank\",0,VLOOKUP($B640,Inputs!$C$68:$AN$129,MATCH($B645,Inputs!$C$68:$AN$68,0),FALSE))+IFERROR(IF($B640=\"Blank\",0,VLOOKUP($B640,Inputs!$C$68:$AN$129,MATCH($C645,Inputs!$C$68:$AN$68,0),FALSE))*('Master Data'!L$42),0)","v":0},{"$f":"IF($B640=\"Blank\",0,VLOOKUP($B640,Inputs!$C$68:$AN$129,MATCH($B645,Inputs!$C$68:$AN$68,0),FALSE))+IFERROR(IF($B640=\"Blank\",0,VLOOKUP($B640,Inputs!$C$68:$AN$129,MATCH($C645,Inputs!$C$68:$AN$68,0),FALSE))*('Master Data'!M$42),0)","v":0},{"$f":"IF($B640=\"Blank\",0,VLOOKUP($B640,Inputs!$C$68:$AN$129,MATCH($B645,Inputs!$C$68:$AN$68,0),FALSE))+IFERROR(IF($B640=\"Blank\",0,VLOOKUP($B640,Inputs!$C$68:$AN$129,MATCH($C645,Inputs!$C$68:$AN$68,0),FALSE))*('Master Data'!N$42),0)","v":0},{"$f":"IF($B640=\"Blank\",0,VLOOKUP($B640,Inputs!$C$68:$AN$129,MATCH($B645,Inputs!$C$68:$AN$68,0),FALSE))+IFERROR(IF($B640=\"Blank\",0,VLOOKUP($B640,Inputs!$C$68:$AN$129,MATCH($C645,Inputs!$C$68:$AN$68,0),FALSE))*('Master Data'!O$42),0)","v":0},null,null,null,null,null,null,null,"PE Cell Service costs Annualised",0,0,0,0,0]
[null,"Indirect Opex",null,null,{"$f":"IF($B640=\"Blank\",0,IF($B$8=\"Private Contract Lighting\",'Opex Weighting'!D$48,'Opex Weighting'!D$46))","v":25.762407087322877},{"$f":"IF($B640=\"Blank\",0,IF($B$8=\"Private Contract Lighting\",'Opex Weighting'!E$48,'Opex Weighting'!E$46))","v":25.880403763800857},{"$f":"IF($B640=\"Blank\",0,IF($B$8=\"Private Contract Lighting\",'Opex Weighting'!F$48,'Opex Weighting'!F$46))","v":20.013740175030701},{"$f":"IF($B640=\"Blank\",0,IF($B$8=\"Private Contract Lighting\",'Opex Weighting'!G$48,'Opex Weighting'!G$46))","v":19.55949970528431},{"$f":"IF($B640=\"Blank\",0,IF($B$8=\"Private Contract Lighting\",'Opex Weighting'!H$48,'Opex Weighting'!H$46))","v":19.096814305933613},null,null,null,null,null,null,null,"Indirect Opex",7.0389090402521521,7.0905215791235223,5.4832164863097814,5.3587670425436471,5.2177088267578178]
[null,"Indirect Capex",null,null,{"$f":"'Capex Weighting'!D$59","v":0},{"$f":"'Capex Weighting'!E$59","v":0},{"$f":"'Capex Weighting'!F$59","v":0},{"$f":"'Capex Weighting'!G$59","v":0},{"$f":"'Capex Weighting'!H$59","v":0},null,null,null,null,null,null,null,"Indirect Capex",0,0,0,0,0]
[null,"Opex Overheads Costs per light",null,null,{"$f":"IF($B640=\"Blank\",0,IF($B$8=\"Private Contract Lighting\",'Building Block'!C$40,'Building Block'!C$39))","v":32.224036557323004},{"$f":"IF($B640=\"Blank\",0,IF($B$8=\"Private Contract Lighting\",'Building Block'!D$40,'Building Block'!D$39))","v":31.278075996100256},{"$f":"IF($B640=\"Blank\",0,IF($B$8=\"Private Contract Lighting\",'Building Block'!E$40,'Building Block'!E$39))","v":21.467987799581408},{"$f":"IF($B640=\"Blank\",0,IF($B$8=\"Private Contract Lighting\",'Building Block'!F$40,'Building Block'!F$39))","v":21.22771925228782},{"$f":"IF($B640=\"Blank\",0,IF($B$8=\"Private Contract Lighting\",'Building Block'!G$40,'Building Block'!G$39))","v":21.210892633443169},null,null,null,null,null,null,null,"Opex Overheads Costs per light",8.8043815730390715,8.5693358893425362,5.8816404930360022,5.815813493777485,5.7953258561320133]
[null,{"$f":"Inputs!$AK$68","v":"Bracket UNIT price"},0,null,{"$f":"IF($B640=\"Blank\",0,OFFSET('CAPEX Annuity calcs'!$B$9,MATCH($B640,'CAPEX Annuity calcs'!$B$9:$B$500,0)+$C649,E$6))","v":9.1650056675657527},{"$f":"IF($B640=\"Blank\",0,OFFSET('CAPEX Annuity calcs'!$B$9,MATCH($B640,'CAPEX Annuity calcs'!$B$9:$B$500,0)+$C649,F$6))","v":9.1650056675657527},{"$f":"IF($B640=\"Blank\",0,OFFSET('CAPEX Annuity calcs'!$B$9,MATCH($B640,'CAPEX Annuity calcs'!$B$9:$B$500,0)+$C649,G$6))","v":9.1650056675657527},{"$f":"IF($B640=\"Blank\",0,OFFSET('CAPEX Annuity calcs'!$B$9,MATCH($B640,'CAPEX Annuity calcs'!$B$9:$B$500,0)+$C649,H$6))","v":9.1650056675657527},{"$f":"IF($B640=\"Blank\",0,OFFSET('CAPEX Annuity calcs'!$B$9,MATCH($B640,'CAPEX Annuity calcs'!$B$9:$B$500,0)+$C649,I$6))","v":9.1650056675657527},null,null,null,null,null,null,null,"Bracket UNIT price",2.5040999091709706,2.5109604568673296,2.5109604568673296,2.5109604568673296,2.5040999091709706]
[null,{"$f":"Inputs!$AA$68","v":"CAPEX Instalation costs"},{"$f":"C649+1","v":1},null,{"$f":"IF($B640=\"Blank\",0,OFFSET('CAPEX Annuity calcs'!$B$9,MATCH($B640,'CAPEX Annuity calcs'!$B$9:$B$500,0)+$C650,E$6))","v":0},{"$f":"IF($B640=\"Blank\",0,OFFSET('CAPEX Annuity calcs'!$B$9,MATCH($B640,'CAPEX Annuity calcs'!$B$9:$B$500,0)+$C650,F$6))","v":0},{"$f":"IF($B640=\"Blank\",0,OFFSET('CAPEX Annuity calcs'!$B$9,MATCH($B640,'CAPEX Annuity calcs'!$B$9:$B$500,0)+$C650,G$6))","v":0},{"$f":"IF($B640=\"Blank\",0,OFFSET('CAPEX Annuity calcs'!$B$9,MATCH($B640,'CAPEX Annuity calcs'!$B$9:$B$500,0)+$C650,H$6))","v":0},{"$f":"IF($B640=\"Blank\",0,OFFSET('CAPEX Annuity calcs'!$B$9,MATCH($B640,'CAPEX Annuity calcs'!$B$9:$B$500,0)+$C650,I$6))","v":0},null,null,null,null,null,null,null,"CAPEX Instalation costs",0,0,0,0,0]
[null,{"$f":"Inputs!$Z$68","v":"Luminaire UNIT price"},{"$f":"C650+1","v":2},null,{"$f":"IF($B640=\"Blank\",0,OFFSET('CAPEX Annuity calcs'!$B$9,MATCH($B640,'CAPEX Annuity calcs'!$B$9:$B$500,0)+$C651,E$6))","v":17.338709133829891},{"$f":"IF($B640=\"Blank\",0,OFFSET('CAPEX Annuity calcs'!$B$9,MATCH($B640,'CAPEX Annuity calcs'!$B$9:$B$500,0)+$C651,F$6))","v":17.338709133829891},{"$f":"IF($B640=\"Blank\",0,OFFSET('CAPEX Annuity calcs'!$B$9,MATCH($B640,'CAPEX Annuity calcs'!$B$9:$B$500,0)+$C651,G$6))","v":17.338709133829891},{"$f":"IF($B640=\"Blank\",0,OFFSET('CAPEX Annuity calcs'!$B$9,MATCH($B640,'CAPEX Annuity calcs'!$B$9:$B$500,0)+$C651,H$6))","v":17.338709133829891},{"$f":"IF($B640=\"Blank\",0,OFFSET('CAPEX Annuity calcs'!$B$9,MATCH($B640,'CAPEX Annuity calcs'!$B$9:$B$500,0)+$C651,I$6))","v":17.338709133829891},null,null,null,null,null,null,null,"Luminaire UNIT price",4.7373522223578934,4.7503312695424356,4.7503312695424356,4.7503312695424356,4.7373522223578934]
[null,{"$f":"Inputs!$AA$68","v":"CAPEX Instalation costs"},3,null,{"$f":"IF($B640=\"Blank\",0,OFFSET('CAPEX Annuity calcs'!$B$9,MATCH($B640,'CAPEX Annuity calcs'!$B$9:$B$500,0)+$C652,E$6))","v":29.489604830309908},{"$f":"IF($B640=\"Blank\",0,OFFSET('CAPEX Annuity calcs'!$B$9,MATCH($B640,'CAPEX Annuity calcs'!$B$9:$B$500,0)+$C652,F$6))","v":29.507480464650605},{"$f":"IF($B640=\"Blank\",0,OFFSET('CAPEX Annuity calcs'!$B$9,MATCH($B640,'CAPEX Annuity calcs'!$B$9:$B$500,0)+$C652,G$6))","v":29.534745081628376},{"$f":"IF($B640=\"Blank\",0,OFFSET('CAPEX Annuity calcs'!$B$9,MATCH($B640,'CAPEX Annuity calcs'!$B$9:$B$500,0)+$C652,H$6))","v":29.568358848911217},{"$f":"IF($B640=\"Blank\",0,OFFSET('CAPEX Annuity calcs'!$B$9,MATCH($B640,'CAPEX Annuity calcs'!$B$9:$B$500,0)+$C652,I$6))","v":29.607612693657906},null,null,null,null,null,null,null,"CAPEX Instalation costs",8.0572690793196475,8.0842412231919472,8.0917109812680472,8.1009202325784155,8.0895116649338537]
[null,null,null,null,{"$f":"SUM(E641:E652)","v":170.24522691134425},{"$f":"SUM(F641:F652)","v":169.40996927612619},153.61763357476971,152.7707393315892,152.13111495695608,null,null,null,null,null,null,null,null,{"$f":"ROUND(E653/R$2*100,3)","v":46.515000000000001},{"$f":"ROUND(F653/S$2*100,3)","v":46.414000000000001},{"$f":"ROUND(G653/T$2*100,3)","v":42.087000000000003},{"$f":"ROUND(H653/U$2*100,3)","v":41.854999999999997},{"$f":"ROUND(I653/V$2*100,3)","v":41.566000000000003}]
[]
[{"$f":"A640+1","v":44},{"$f":"IFERROR(VLOOKUP($A655,Inputs!$B$68:$AN$129,MATCH($B$7,Inputs!$B$68:$AN$68,0),FALSE),\"Blank\")","v":"50W Mercury Vapour"},null,null,null,null,null,null,null,null,null,null,null,null,null,null,{"$f":"IFERROR(VLOOKUP($A655,Inputs!$B$68:$AN$129,MATCH($B$7,Inputs!$B$68:$AN$68,0),FALSE),\"Blank\")","v":"50W Mercury Vapour"}]
[null,{"$f":"Inputs!$S$68","v":"Lamp UNIT price Annualised Cost"},{"$f":"Inputs!$Q$68","v":"Lamp Maintenance cycle"},null,{"$f":"IF($B655=\"Blank\",0,VLOOKUP($B655,Inputs!$C$68:$AN$129,MATCH($B656,Inputs!$C$68:$AN$68,0),FALSE))","v":0.64212375646340014},{"$f":"IF($B655=\"Blank\",0,VLOOKUP($B655,Inputs!$C$68:$AN$129,MATCH($B656,Inputs!$C$68:$AN$68,0),FALSE))","v":0.64212375646340014},{"$f":"IF($B655=\"Blank\",0,VLOOKUP($B655,Inputs!$C$68:$AN$129,MATCH($B656,Inputs!$C$68:$AN$68,0),FALSE))","v":0.64212375646340014},{"$f":"IF($B655=\"Blank\",0,VLOOKUP($B655,Inputs!$C$68:$AN$129,MATCH($B656,Inputs!$C$68:$AN$68,0),FALSE))","v":0.64212375646340014},{"$f":"IF($B655=\"Blank\",0,VLOOKUP($B655,Inputs!$C$68:$AN$129,MATCH($B656,Inputs!$C$68:$AN$68,0),FALSE))","v":0.64212375646340014},null,null,null,null,null,null,null,{"$f":"B656","v":"Lamp UNIT price Annualised Cost"},{"$f":"IF(E656=\"NA\",\"\",E656/R$2*100)","v":0.17544364930693995},{"$f":"IF(F656=\"NA\",\"\",F656/S$2*100)","v":0.17592431683928772},{"$f":"IF(G656=\"NA\",\"\",G656/T$2*100)","v":0.17592431683928772},{"$f":"IF(H656=\"NA\",\"\",H656/U$2*100)","v":0.17592431683928772},{"$f":"IF(I656=\"NA\",\"\",I656/V$2*100)","v":0.17544364930693995}]
[null,{"$f":"Inputs!$K$68","v":"PE Cell UNIT price Annualised Cost"},{"$f":"Inputs!$I$68","v":"PE Cell Maintenance Cycle"},null,{"$f":"IF($B655=\"Blank\",0,VLOOKUP($B655,Inputs!$C$68:$AN$129,MATCH($B657,Inputs!$C$68:$AN$68,0),FALSE))","v":0.58131255188333353},{"$f":"IF($B655=\"Blank\",0,VLOOKUP($B655,Inputs!$C$68:$AN$129,MATCH($B657,Inputs!$C$68:$AN$68,0),FALSE))","v":0.58131255188333353},{"$f":"IF($B655=\"Blank\",0,VLOOKUP($B655,Inputs!$C$68:$AN$129,MATCH($B657,Inputs!$C$68:$AN$68,0),FALSE))","v":0.58131255188333353},{"$f":"IF($B655=\"Blank\",0,VLOOKUP($B655,Inputs!$C$68:$AN$129,MATCH($B657,Inputs!$C$68:$AN$68,0),FALSE))","v":0.58131255188333353},{"$f":"IF($B655=\"Blank\",0,VLOOKUP($B655,Inputs!$C$68:$AN$129,MATCH($B657,Inputs!$C$68:$AN$68,0),FALSE))","v":0.58131255188333353},null,null,null,null,null,null,null,"PE Cell UNIT price Annualised Cost",0.15882856608834248,0.15926371284474891,0.15926371284474891,0.15926371284474891,0.15882856608834248]
[null,"Corp capex annuity per light",null,null,{"$f":"IF($B655=\"Blank\",0,'Corp Capex Annuity calcs'!F$142)","v":18.582309905017571},{"$f":"IF($B655=\"Blank\",0,'Corp Capex Annuity calcs'!G$142)","v":18.552026408230436},{"$f":"IF($B655=\"Blank\",0,'Corp Capex Annuity calcs'!H$142)","v":18.401377631486287},{"$f":"IF($B655=\"Blank\",0,'Corp Capex Annuity calcs'!I$142)","v":18.205761940470655},{"$f":"IF($B655=\"Blank\",0,'Corp Capex Annuity calcs'!J$142)","v":17.995165449295623},null,null,null,null,null,null,null,"Corp capex annuity per light",5.0771338538299373,5.0827469611590237,5.0414733236948734,4.9878799836905907,4.9167118713922466]
[null,{"$f":"Inputs!$U$68","v":"Lamp Service costs Annualised"},"Labour Portion of Lamp Service costs annualised",null,{"$f":"IF($B655=\"Blank\",0,VLOOKUP($B655,Inputs!$C$68:$AN$129,MATCH($B659,Inputs!$C$68:$AN$68,0),FALSE))+IFERROR(IF($B655=\"Blank\",0,VLOOKUP($B655,Inputs!$C$68:$AN$129,MATCH($C659,Inputs!$C$68:$AN$68,0),FALSE))*('Master Data'!K$42),0)","v":24.127490039840644},{"$f":"IF($B655=\"Blank\",0,VLOOKUP($B655,Inputs!$C$68:$AN$129,MATCH($B659,Inputs!$C$68:$AN$68,0),FALSE))+IFERROR(IF($B655=\"Blank\",0,VLOOKUP($B655,Inputs!$C$68:$AN$129,MATCH($C659,Inputs!$C$68:$AN$68,0),FALSE))*('Master Data'!L$42),0)","v":24.131023426294828},{"$f":"IF($B655=\"Blank\",0,VLOOKUP($B655,Inputs!$C$68:$AN$129,MATCH($B659,Inputs!$C$68:$AN$68,0),FALSE))+IFERROR(IF($B655=\"Blank\",0,VLOOKUP($B655,Inputs!$C$68:$AN$129,MATCH($C659,Inputs!$C$68:$AN$68,0),FALSE))*('Master Data'!M$42),0)","v":24.136412685577696},{"$f":"IF($B655=\"Blank\",0,VLOOKUP($B655,Inputs!$C$68:$AN$129,MATCH($B659,Inputs!$C$68:$AN$68,0),FALSE))+IFERROR(IF($B655=\"Blank\",0,VLOOKUP($B655,Inputs!$C$68:$AN$129,MATCH($C659,Inputs!$C$68:$AN$68,0),FALSE))*('Master Data'!N$42),0)","v":24.143056949368709},{"$f":"IF($B655=\"Blank\",0,VLOOKUP($B655,Inputs!$C$68:$AN$129,MATCH($B659,Inputs!$C$68:$AN$68,0),FALSE))+IFERROR(IF($B655=\"Blank\",0,VLOOKUP($B655,Inputs!$C$68:$AN$129,MATCH($C659,Inputs!$C$68:$AN$68,0),FALSE))*('Master Data'!O$42),0)","v":24.150816058816748},null,null,null,null,null,null,null,"Lamp Service costs Annualised",6.5922103933990828,6.611239294875296,6.6127158042678618,6.6145361505119755,6.598583622627527]
[null,{"$f":"Inputs!$M$68","v":"PE Cell Service costs Annualised"},"Labour Portion of PE Cell Service costs Annualised",null,{"$f":"IF($B655=\"Blank\",0,VLOOKUP($B655,Inputs!$C$68:$AN$129,MATCH($B660,Inputs!$C$68:$AN$68,0),FALSE))+IFERROR(IF($B655=\"Blank\",0,VLOOKUP($B655,Inputs!$C$68:$AN$129,MATCH($C660,Inputs!$C$68:$AN$68,0),FALSE))*('Master Data'!K$42),0)","v":0},{"$f":"IF($B655=\"Blank\",0,VLOOKUP($B655,Inputs!$C$68:$AN$129,MATCH($B660,Inputs!$C$68:$AN$68,0),FALSE))+IFERROR(IF($B655=\"Blank\",0,VLOOKUP($B655,Inputs!$C$68:$AN$129,MATCH($C660,Inputs!$C$68:$AN$68,0),FALSE))*('Master Data'!L$42),0)","v":0},{"$f":"IF($B655=\"Blank\",0,VLOOKUP($B655,Inputs!$C$68:$AN$129,MATCH($B660,Inputs!$C$68:$AN$68,0),FALSE))+IFERROR(IF($B655=\"Blank\",0,VLOOKUP($B655,Inputs!$C$68:$AN$129,MATCH($C660,Inputs!$C$68:$AN$68,0),FALSE))*('Master Data'!M$42),0)","v":0},{"$f":"IF($B655=\"Blank\",0,VLOOKUP($B655,Inputs!$C$68:$AN$129,MATCH($B660,Inputs!$C$68:$AN$68,0),FALSE))+IFERROR(IF($B655=\"Blank\",0,VLOOKUP($B655,Inputs!$C$68:$AN$129,MATCH($C660,Inputs!$C$68:$AN$68,0),FALSE))*('Master Data'!N$42),0)","v":0},{"$f":"IF($B655=\"Blank\",0,VLOOKUP($B655,Inputs!$C$68:$AN$129,MATCH($B660,Inputs!$C$68:$AN$68,0),FALSE))+IFERROR(IF($B655=\"Blank\",0,VLOOKUP($B655,Inputs!$C$68:$AN$129,MATCH($C660,Inputs!$C$68:$AN$68,0),FALSE))*('Master Data'!O$42),0)","v":0},null,null,null,null,null,null,null,"PE Cell Service costs Annualised",0,0,0,0,0]
[null,"Indirect Opex",null,null,{"$f":"IF($B655=\"Blank\",0,IF($B$8=\"Private Contract Lighting\",'Opex Weighting'!D$48,'Opex Weighting'!D$46))","v":25.762407087322877},{"$f":"IF($B655=\"Blank\",0,IF($B$8=\"Private Contract Lighting\",'Opex Weighting'!E$48,'Opex Weighting'!E$46))","v":25.880403763800857},{"$f":"IF($B655=\"Blank\",0,IF($B$8=\"Private Contract Lighting\",'Opex Weighting'!F$48,'Opex Weighting'!F$46))","v":20.013740175030701},{"$f":"IF($B655=\"Blank\",0,IF($B$8=\"Private Contract Lighting\",'Opex Weighting'!G$48,'Opex Weighting'!G$46))","v":19.55949970528431},{"$f":"IF($B655=\"Blank\",0,IF($B$8=\"Private Contract Lighting\",'Opex Weighting'!H$48,'Opex Weighting'!H$46))","v":19.096814305933613},null,null,null,null,null,null,null,"Indirect Opex",7.0389090402521521,7.0905215791235223,5.4832164863097814,5.3587670425436471,5.2177088267578178]
[null,"Indirect Capex",null,null,{"$f":"'Capex Weighting'!D$59","v":0},{"$f":"'Capex Weighting'!E$59","v":0},{"$f":"'Capex Weighting'!F$59","v":0},{"$f":"'Capex Weighting'!G$59","v":0},{"$f":"'Capex Weighting'!H$59","v":0},null,null,null,null,null,null,null,"Indirect Capex",0,0,0,0,0]
[null,"Opex Overheads Costs per light",null,null,{"$f":"IF($B655=\"Blank\",0,IF($B$8=\"Private Contract Lighting\",'Building Block'!C$40,'Building Block'!C$39))","v":32.224036557323004},{"$f":"IF($B655=\"Blank\",0,IF($B$8=\"Private Contract Lighting\",'Building Block'!D$40,'Building Block'!D$39))","v":31.278075996100256},{"$f":"IF($B655=\"Blank\",0,IF($B$8=\"Private Contract Lighting\",'Building Block'!E$40,'Building Block'!E$39))","v":21.467987799581408},{"$f":"IF($B655=\"Blank\",0,IF($B$8=\"Private Contract Lighting\",'Building Block'!F$40,'Building Block'!F$39))","v":21.22771925228782},{"$f":"IF($B655=\"Blank\",0,IF($B$8=\"Private Contract Lighting\",'Building Block'!G$40,'Building Block'!G$39))","v":21.210892633443169},null,null,null,null,null,null,null,"Opex Overheads Costs per light",8.8043815730390715,8.5693358893425362,5.8816404930360022,5.815813493777485,5.7953258561320133]
[null,{"$f":"Inputs!$AK$68","v":"Bracket UNIT price"},0,null,{"$f":"IF($B655=\"Blank\",0,OFFSET('CAPEX Annuity calcs'!$B$9,MATCH($B655,'CAPEX Annuity calcs'!$B$9:$B$500,0)+$C664,E$6))","v":3.380534877380811},{"$f":"IF($B655=\"Blank\",0,OFFSET('CAPEX Annuity calcs'!$B$9,MATCH($B655,'CAPEX Annuity calcs'!$B$9:$B$500,0)+$C664,F$6))","v":3.380534877380811},{"$f":"IF($B655=\"Blank\",0,OFFSET('CAPEX Annuity calcs'!$B$9,MATCH($B655,'CAPEX Annuity calcs'!$B$9:$B$500,0)+$C664,G$6))","v":3.380534877380811},{"$f":"IF($B655=\"Blank\",0,OFFSET('CAPEX Annuity calcs'!$B$9,MATCH($B655,'CAPEX Annuity calcs'!$B$9:$B$500,0)+$C664,H$6))","v":3.380534877380811},{"$f":"IF($B655=\"Blank\",0,OFFSET('CAPEX Annuity calcs'!$B$9,MATCH($B655,'CAPEX Annuity calcs'!$B$9:$B$500,0)+$C664,I$6))","v":3.380534877380811},null,null,null,null,null,null,null,"Bracket UNIT price",0.92364340912044018,0.92617393900844136,0.92617393900844136,0.92617393900844136,0.92364340912044018]
[null,{"$f":"Inputs!$AA$68","v":"CAPEX Instalation costs"},{"$f":"C664+1","v":1},null,{"$f":"IF($B655=\"Blank\",0,OFFSET('CAPEX Annuity calcs'!$B$9,MATCH($B655,'CAPEX Annuity calcs'!$B$9:$B$500,0)+$C665,E$6))","v":0},{"$f":"IF($B655=\"Blank\",0,OFFSET('CAPEX Annuity calcs'!$B$9,MATCH($B655,'CAPEX Annuity calcs'!$B$9:$B$500,0)+$C665,F$6))","v":0},{"$f":"IF($B655=\"Blank\",0,OFFSET('CAPEX Annuity calcs'!$B$9,MATCH($B655,'CAPEX Annuity calcs'!$B$9:$B$500,0)+$C665,G$6))","v":0},{"$f":"IF($B655=\"Blank\",0,OFFSET('CAPEX Annuity calcs'!$B$9,MATCH($B655,'CAPEX Annuity calcs'!$B$9:$B$500,0)+$C665,H$6))","v":0},{"$f":"IF($B655=\"Blank\",0,OFFSET('CAPEX Annuity calcs'!$B$9,MATCH($B655,'CAPEX Annuity calcs'!$B$9:$B$500,0)+$C665,I$6))","v":0},null,null,null,null,null,null,null,"CAPEX Instalation costs",0,0,0,0,0]
[null,{"$f":"Inputs!$Z$68","v":"Luminaire UNIT price"},{"$f":"C665+1","v":2},null,{"$f":"IF($B655=\"Blank\",0,OFFSET('CAPEX Annuity calcs'!$B$9,MATCH($B655,'CAPEX Annuity calcs'!$B$9:$B$500,0)+$C666,E$6))","v":6.0351520982729436},{"$f":"IF($B655=\"Blank\",0,OFFSET('CAPEX Annuity calcs'!$B$9,MATCH($B655,'CAPEX Annuity calcs'!$B$9:$B$500,0)+$C666,F$6))","v":6.0351520982729436},{"$f":"IF($B655=\"Blank\",0,OFFSET('CAPEX Annuity calcs'!$B$9,MATCH($B655,'CAPEX Annuity calcs'!$B$9:$B$500,0)+$C666,G$6))","v":6.0351520982729436},{"$f":"IF($B655=\"Blank\",0,OFFSET('CAPEX Annuity calcs'!$B$9,MATCH($B655,'CAPEX Annuity calcs'!$B$9:$B$500,0)+$C666,H$6))","v":6.0351520982729436},{"$f":"IF($B655=\"Blank\",0,OFFSET('CAPEX Annuity calcs'!$B$9,MATCH($B655,'CAPEX Annuity calcs'!$B$9:$B$500,0)+$C666,I$6))","v":6.0351520982729436},null,null,null,null,null,null,null,"Luminaire UNIT price",1.6489486607303125,1.6534663282939572,1.6534663282939572,1.6534663282939572,1.6489486607303125]
[null,{"$f":"Inputs!$AA$68","v":"CAPEX Instalation costs"},3,null,{"$f":"IF($B655=\"Blank\",0,OFFSET('CAPEX Annuity calcs'!$B$9,MATCH($B655,'CAPEX Annuity calcs'!$B$9:$B$500,0)+$C667,E$6))","v":18.736141709912243},{"$f":"IF($B655=\"Blank\",0,OFFSET('CAPEX Annuity calcs'!$B$9,MATCH($B655,'CAPEX Annuity calcs'!$B$9:$B$500,0)+$C667,F$6))","v":18.74779128716041},{"$f":"IF($B655=\"Blank\",0,OFFSET('CAPEX Annuity calcs'!$B$9,MATCH($B655,'CAPEX Annuity calcs'!$B$9:$B$500,0)+$C667,G$6))","v":18.765559678232343},{"$f":"IF($B655=\"Blank\",0,OFFSET('CAPEX Annuity calcs'!$B$9,MATCH($B655,'CAPEX Annuity calcs'!$B$9:$B$500,0)+$C667,H$6))","v":18.787465819916616},{"$f":"IF($B655=\"Blank\",0,OFFSET('CAPEX Annuity calcs'!$B$9,MATCH($B655,'CAPEX Annuity calcs'!$B$9:$B$500,0)+$C667,I$6))","v":18.813047608397444},null,null,null,null,null,null,null,"CAPEX Instalation costs",5.1191644016153672,5.1363811745644954,5.1412492269129713,5.1472509095661954,5.1401769421850938]
[null,null,null,null,{"$f":"SUM(E656:E667)","v":130.07150858341683},{"$f":"SUM(F656:F667)","v":129.22844416558729},113.42420125390893,112.5626269513286,111.90585933988709,null,null,null,null,null,null,null,null,{"$f":"ROUND(E668/R$2*100,3)","v":35.539000000000001},{"$f":"ROUND(F668/S$2*100,3)","v":35.405000000000001},{"$f":"ROUND(G668/T$2*100,3)","v":31.074999999999999},{"$f":"ROUND(H668/U$2*100,3)","v":30.838999999999999},{"$f":"ROUND(I668/V$2*100,3)","v":30.574999999999999}]
[]
[{"$f":"A655+1","v":45},{"$f":"IFERROR(VLOOKUP($A670,Inputs!$B$68:$AN$129,MATCH($B$7,Inputs!$B$68:$AN$68,0),FALSE),\"Blank\")","v":"80W Mercury Vapour Art decorative"},null,null,null,null,null,null,null,null,null,null,null,null,null,null,{"$f":"IFERROR(VLOOKUP($A670,Inputs!$B$68:$AN$129,MATCH($B$7,Inputs!$B$68:$AN$68,0),FALSE),\"Blank\")","v":"80W Mercury Vapour Art decorative"}]
[null,{"$f":"Inputs!$S$68","v":"Lamp UNIT price Annualised Cost"},{"$f":"Inputs!$Q$68","v":"Lamp Maintenance cycle"},null,{"$f":"IF($B670=\"Blank\",0,VLOOKUP($B670,Inputs!$C$68:$AN$129,MATCH($B671,Inputs!$C$68:$AN$68,0),FALSE))","v":0.53408829660915003},{"$f":"IF($B670=\"Blank\",0,VLOOKUP($B670,Inputs!$C$68:$AN$129,MATCH($B671,Inputs!$C$68:$AN$68,0),FALSE))","v":0.53408829660915003},{"$f":"IF($B670=\"Blank\",0,VLOOKUP($B670,Inputs!$C$68:$AN$129,MATCH($B671,Inputs!$C$68:$AN$68,0),FALSE))","v":0.53408829660915003},{"$f":"IF($B670=\"Blank\",0,VLOOKUP($B670,Inputs!$C$68:$AN$129,MATCH($B671,Inputs!$C$68:$AN$68,0),FALSE))","v":0.53408829660915003},{"$f":"IF($B670=\"Blank\",0,VLOOKUP($B670,Inputs!$C$68:$AN$129,MATCH($B671,Inputs!$C$68:$AN$68,0),FALSE))","v":0.53408829660915003},null,null,null,null,null,null,null,{"$f":"B671","v":"Lamp UNIT price Annualised Cost"},{"$f":"IF(E671=\"NA\",\"\",E671/R$2*100)","v":0.14592576410086067},{"$f":"IF(F671=\"NA\",\"\",F671/S$2*100)","v":0.14632556071483563},{"$f":"IF(G671=\"NA\",\"\",G671/T$2*100)","v":0.14632556071483563},{"$f":"IF(H671=\"NA\",\"\",H671/U$2*100)","v":0.14632556071483563},{"$f":"IF(I671=\"NA\",\"\",I671/V$2*100)","v":0.14592576410086067}]
[null,{"$f":"Inputs!$K$68","v":"PE Cell UNIT price Annualised Cost"},{"$f":"Inputs!$I$68","v":"PE Cell Maintenance Cycle"},null,{"$f":"IF($B670=\"Blank\",0,VLOOKUP($B670,Inputs!$C$68:$AN$129,MATCH($B672,Inputs!$C$68:$AN$68,0),FALSE))","v":0.58131255188333353},{"$f":"IF($B670=\"Blank\",0,VLOOKUP($B670,Inputs!$C$68:$AN$129,MATCH($B672,Inputs!$C$68:$AN$68,0),FALSE))","v":0.58131255188333353},{"$f":"IF($B670=\"Blank\",0,VLOOKUP($B670,Inputs!$C$68:$AN$129,MATCH($B672,Inputs!$C$68:$AN$68,0),FALSE))","v":0.58131255188333353},{"$f":"IF($B670=\"Blank\",0,VLOOKUP($B670,Inputs!$C$68:$AN$129,MATCH($B672,Inputs!$C$68:$AN$68,0),FALSE))","v":0.58131255188333353},{"$f":"IF($B670=\"Blank\",0,VLOOKUP($B670,Inputs!$C$68:$AN$129,MATCH($B672,Inputs!$C$68:$AN$68,0),FALSE))","v":0.58131255188333353},null,null,null,null,null,null,null,"PE Cell UNIT price Annualised Cost",0.15882856608834248,0.15926371284474891,0.15926371284474891,0.15926371284474891,0.15882856608834248]
[null,"Corp capex annuity per light",null,null,{"$f":"IF($B670=\"Blank\",0,'Corp Capex Annuity calcs'!F$142)","v":18.582309905017571},{"$f":"IF($B670=\"Blank\",0,'Corp Capex Annuity calcs'!G$142)","v":18.552026408230436},{"$f":"IF($B670=\"Blank\",0,'Corp Capex Annuity calcs'!H$142)","v":18.401377631486287},{"$f":"IF($B670=\"Blank\",0,'Corp Capex Annuity calcs'!I$142)","v":18.205761940470655},{"$f":"IF($B670=\"Blank\",0,'Corp Capex Annuity calcs'!J$142)","v":17.995165449295623},null,null,null,null,null,null,null,"Corp capex annuity per light",5.0771338538299373,5.0827469611590237,5.0414733236948734,4.9878799836905907,4.9167118713922466]
[null,{"$f":"Inputs!$U$68","v":"Lamp Service costs Annualised"},"Labour Portion of Lamp Service costs annualised",null,{"$f":"IF($B670=\"Blank\",0,VLOOKUP($B670,Inputs!$C$68:$AN$129,MATCH($B674,Inputs!$C$68:$AN$68,0),FALSE))+IFERROR(IF($B670=\"Blank\",0,VLOOKUP($B670,Inputs!$C$68:$AN$129,MATCH($C674,Inputs!$C$68:$AN$68,0),FALSE))*('Master Data'!K$42),0)","v":24.127490039840644},{"$f":"IF($B670=\"Blank\",0,VLOOKUP($B670,Inputs!$C$68:$AN$129,MATCH($B674,Inputs!$C$68:$AN$68,0),FALSE))+IFERROR(IF($B670=\"Blank\",0,VLOOKUP($B670,Inputs!$C$68:$AN$129,MATCH($C674,Inputs!$C$68:$AN$68,0),FALSE))*('Master Data'!L$42),0)","v":24.131023426294828},{"$f":"IF($B670=\"Blank\",0,VLOOKUP($B670,Inputs!$C$68:$AN$129,MATCH($B674,Inputs!$C$68:$AN$68,0),FALSE))+IFERROR(IF($B670=\"Blank\",0,VLOOKUP($B670,Inputs!$C$68:$AN$129,MATCH($C674,Inputs!$C$68:$AN$68,0),FALSE))*('Master Data'!M$42),0)","v":24.136412685577696},{"$f":"IF($B670=\"Blank\",0,VLOOKUP($B670,Inputs!$C$68:$AN$129,MATCH($B674,Inputs!$C$68:$AN$68,0),FALSE))+IFERROR(IF($B670=\"Blank\",0,VLOOKUP($B670,Inputs!$C$68:$AN$129,MATCH($C674,Inputs!$C$68:$AN$68,0),FALSE))*('Master Data'!N$42),0)","v":24.143056949368709},{"$f":"IF($B670=\"Blank\",0,VLOOKUP($B670,Inputs!$C$68:$AN$129,MATCH($B674,Inputs!$C$68:$AN$68,0),FALSE))+IFERROR(IF($B670=\"Blank\",0,VLOOKUP($B670,Inputs!$C$68:$AN$129,MATCH($C674,Inputs!$C$68:$AN$68,0),FALSE))*('Master Data'!O$42),0)","v":24.150816058816748},null,null,null,null,null,null,null,"Lamp Service costs Annualised",6.5922103933990828,6.611239294875296,6.6127158042678618,6.6145361505119755,6.598583622627527]
[null,{"$f":"Inputs!$M$68","v":"PE Cell Service costs Annualised"},"Labour Portion of PE Cell Service costs Annualised",null,{"$f":"IF($B670=\"Blank\",0,VLOOKUP($B670,Inputs!$C$68:$AN$129,MATCH($B675,Inputs!$C$68:$AN$68,0),FALSE))+IFERROR(IF($B670=\"Blank\",0,VLOOKUP($B670,Inputs!$C$68:$AN$129,MATCH($C675,Inputs!$C$68:$AN$68,0),FALSE))*('Master Data'!K$42),0)","v":0},{"$f":"IF($B670=\"Blank\",0,VLOOKUP($B670,Inputs!$C$68:$AN$129,MATCH($B675,Inputs!$C$68:$AN$68,0),FALSE))+IFERROR(IF($B670=\"Blank\",0,VLOOKUP($B670,Inputs!$C$68:$AN$129,MATCH($C675,Inputs!$C$68:$AN$68,0),FALSE))*('Master Data'!L$42),0)","v":0},{"$f":"IF($B670=\"Blank\",0,VLOOKUP($B670,Inputs!$C$68:$AN$129,MATCH($B675,Inputs!$C$68:$AN$68,0),FALSE))+IFERROR(IF($B670=\"Blank\",0,VLOOKUP($B670,Inputs!$C$68:$AN$129,MATCH($C675,Inputs!$C$68:$AN$68,0),FALSE))*('Master Data'!M$42),0)","v":0},{"$f":"IF($B670=\"Blank\",0,VLOOKUP($B670,Inputs!$C$68:$AN$129,MATCH($B675,Inputs!$C$68:$AN$68,0),FALSE))+IFERROR(IF($B670=\"Blank\",0,VLOOKUP($B670,Inputs!$C$68:$AN$129,MATCH($C675,Inputs!$C$68:$AN$68,0),FALSE))*('Master Data'!N$42),0)","v":0},{"$f":"IF($B670=\"Blank\",0,VLOOKUP($B670,Inputs!$C$68:$AN$129,MATCH($B675,Inputs!$C$68:$AN$68,0),FALSE))+IFERROR(IF($B670=\"Blank\",0,VLOOKUP($B670,Inputs!$C$68:$AN$129,MATCH($C675,Inputs!$C$68:$AN$68,0),FALSE))*('Master Data'!O$42),0)","v":0},null,null,null,null,null,null,null,"PE Cell Service costs Annualised",0,0,0,0,0]
[null,"Indirect Opex",null,null,{"$f":"IF($B670=\"Blank\",0,IF($B$8=\"Private Contract Lighting\",'Opex Weighting'!D$48,'Opex Weighting'!D$46))","v":25.762407087322877},{"$f":"IF($B670=\"Blank\",0,IF($B$8=\"Private Contract Lighting\",'Opex Weighting'!E$48,'Opex Weighting'!E$46))","v":25.880403763800857},{"$f":"IF($B670=\"Blank\",0,IF($B$8=\"Private Contract Lighting\",'Opex Weighting'!F$48,'Opex Weighting'!F$46))","v":20.013740175030701},{"$f":"IF($B670=\"Blank\",0,IF($B$8=\"Private Contract Lighting\",'Opex Weighting'!G$48,'Opex Weighting'!G$46))","v":19.55949970528431},{"$f":"IF($B670=\"Blank\",0,IF($B$8=\"Private Contract Lighting\",'Opex Weighting'!H$48,'Opex Weighting'!H$46))","v":19.096814305933613},null,null,null,null,null,null,null,"Indirect Opex",7.0389090402521521,7.0905215791235223,5.4832164863097814,5.3587670425436471,5.2177088267578178]
[null,"Indirect Capex",null,null,{"$f":"'Capex Weighting'!D$59","v":0},{"$f":"'Capex Weighting'!E$59","v":0},{"$f":"'Capex Weighting'!F$59","v":0},{"$f":"'Capex Weighting'!G$59","v":0},{"$f":"'Capex Weighting'!H$59","v":0},null,null,null,null,null,null,null,"Indirect Capex",0,0,0,0,0]
[null,"Opex Overheads Costs per light",null,null,{"$f":"IF($B670=\"Blank\",0,IF($B$8=\"Private Contract Lighting\",'Building Block'!C$40,'Building Block'!C$39))","v":32.224036557323004},{"$f":"IF($B670=\"Blank\",0,IF($B$8=\"Private Contract Lighting\",'Building Block'!D$40,'Building Block'!D$39))","v":31.278075996100256},{"$f":"IF($B670=\"Blank\",0,IF($B$8=\"Private Contract Lighting\",'Building Block'!E$40,'Building Block'!E$39))","v":21.467987799581408},{"$f":"IF($B670=\"Blank\",0,IF($B$8=\"Private Contract Lighting\",'Building Block'!F$40,'Building Block'!F$39))","v":21.22771925228782},{"$f":"IF($B670=\"Blank\",0,IF($B$8=\"Private Contract Lighting\",'Building Block'!G$40,'Building Block'!G$39))","v":21.210892633443169},null,null,null,null,null,null,null,"Opex Overheads Costs per light",8.8043815730390715,8.5693358893425362,5.8816404930360022,5.815813493777485,5.7953258561320133]
[null,{"$f":"Inputs!$AK$68","v":"Bracket UNIT price"},0,null,{"$f":"IF($B670=\"Blank\",0,OFFSET('CAPEX Annuity calcs'!$B$9,MATCH($B670,'CAPEX Annuity calcs'!$B$9:$B$500,0)+$C679,E$6))","v":3.5147101390336242},{"$f":"IF($B670=\"Blank\",0,OFFSET('CAPEX Annuity calcs'!$B$9,MATCH($B670,'CAPEX Annuity calcs'!$B$9:$B$500,0)+$C679,F$6))","v":3.5147101390336242},{"$f":"IF($B670=\"Blank\",0,OFFSET('CAPEX Annuity calcs'!$B$9,MATCH($B670,'CAPEX Annuity calcs'!$B$9:$B$500,0)+$C679,G$6))","v":3.5147101390336242},{"$f":"IF($B670=\"Blank\",0,OFFSET('CAPEX Annuity calcs'!$B$9,MATCH($B670,'CAPEX Annuity calcs'!$B$9:$B$500,0)+$C679,H$6))","v":3.5147101390336242},{"$f":"IF($B670=\"Blank\",0,OFFSET('CAPEX Annuity calcs'!$B$9,MATCH($B670,'CAPEX Annuity calcs'!$B$9:$B$500,0)+$C679,I$6))","v":3.5147101390336242},null,null,null,null,null,null,null,"Bracket UNIT price",0.96030331667585367,0.96293428466674624,0.96293428466674624,0.96293428466674624,0.96030331667585367]
[null,{"$f":"Inputs!$AA$68","v":"CAPEX Instalation costs"},{"$f":"C679+1","v":1},null,{"$f":"IF($B670=\"Blank\",0,OFFSET('CAPEX Annuity calcs'!$B$9,MATCH($B670,'CAPEX Annuity calcs'!$B$9:$B$500,0)+$C680,E$6))","v":0},{"$f":"IF($B670=\"Blank\",0,OFFSET('CAPEX Annuity calcs'!$B$9,MATCH($B670,'CAPEX Annuity calcs'!$B$9:$B$500,0)+$C680,F$6))","v":0},{"$f":"IF($B670=\"Blank\",0,OFFSET('CAPEX Annuity calcs'!$B$9,MATCH($B670,'CAPEX Annuity calcs'!$B$9:$B$500,0)+$C680,G$6))","v":0},{"$f":"IF($B670=\"Blank\",0,OFFSET('CAPEX Annuity calcs'!$B$9,MATCH($B670,'CAPEX Annuity calcs'!$B$9:$B$500,0)+$C680,H$6))","v":0},{"$f":"IF($B670=\"Blank\",0,OFFSET('CAPEX Annuity calcs'!$B$9,MATCH($B670,'CAPEX Annuity calcs'!$B$9:$B$500,0)+$C680,I$6))","v":0},null,null,null,null,null,null,null,"CAPEX Instalation costs",0,0,0,0,0]
[null,{"$f":"Inputs!$Z$68","v":"Luminaire UNIT price"},{"$f":"C680+1","v":2},null,{"$f":"IF($B670=\"Blank\",0,OFFSET('CAPEX Annuity calcs'!$B$9,MATCH($B670,'CAPEX Annuity calcs'!$B$9:$B$500,0)+$C681,E$6))","v":63.62297553628224},{"$f":"IF($B670=\"Blank\",0,OFFSET('CAPEX Annuity calcs'!$B$9,MATCH($B670,'CAPEX Annuity calcs'!$B$9:$B$500,0)+$C681,F$6))","v":63.62297553628224},{"$f":"IF($B670=\"Blank\",0,OFFSET('CAPEX Annuity calcs'!$B$9,MATCH($B670,'CAPEX Annuity calcs'!$B$9:$B$500,0)+$C681,G$6))","v":63.62297553628224},{"$f":"IF($B670=\"Blank\",0,OFFSET('CAPEX Annuity calcs'!$B$9,MATCH($B670,'CAPEX Annuity calcs'!$B$9:$B$500,0)+$C681,H$6))","v":63.62297553628224},{"$f":"IF($B670=\"Blank\",0,OFFSET('CAPEX Annuity calcs'!$B$9,MATCH($B670,'CAPEX Annuity calcs'!$B$9:$B$500,0)+$C681,I$6))","v":63.62297553628224},null,null,null,null,null,null,null,"Luminaire UNIT price",17.383326649257445,17.430952201721162,17.430952201721162,17.430952201721162,17.383326649257445]
[null,{"$f":"Inputs!$AA$68","v":"CAPEX Instalation costs"},3,null,{"$f":"IF($B670=\"Blank\",0,OFFSET('CAPEX Annuity calcs'!$B$9,MATCH($B670,'CAPEX Annuity calcs'!$B$9:$B$500,0)+$C682,E$6))","v":18.736141709912243},{"$f":"IF($B670=\"Blank\",0,OFFSET('CAPEX Annuity calcs'!$B$9,MATCH($B670,'CAPEX Annuity calcs'!$B$9:$B$500,0)+$C682,F$6))","v":18.74779128716041},{"$f":"IF($B670=\"Blank\",0,OFFSET('CAPEX Annuity calcs'!$B$9,MATCH($B670,'CAPEX Annuity calcs'!$B$9:$B$500,0)+$C682,G$6))","v":18.765559678232343},{"$f":"IF($B670=\"Blank\",0,OFFSET('CAPEX Annuity calcs'!$B$9,MATCH($B670,'CAPEX Annuity calcs'!$B$9:$B$500,0)+$C682,H$6))","v":18.787465819916616},{"$f":"IF($B670=\"Blank\",0,OFFSET('CAPEX Annuity calcs'!$B$9,MATCH($B670,'CAPEX Annuity calcs'!$B$9:$B$500,0)+$C682,I$6))","v":18.813047608397444},null,null,null,null,null,null,null,"CAPEX Instalation costs",5.1191644016153672,5.1363811745644954,5.1412492269129713,5.1472509095661954,5.1401769421850938]
[null,null,null,null,{"$f":"SUM(E671:E682)","v":187.68547182322467},{"$f":"SUM(F671:F682)","v":186.84240740539514},171.03816449371678,170.17659019113646,169.51982257969496,null,null,null,null,null,null,null,null,{"$f":"ROUND(E683/R$2*100,3)","v":51.28},{"$f":"ROUND(F683/S$2*100,3)","v":51.19},{"$f":"ROUND(G683/T$2*100,3)","v":46.86},{"$f":"ROUND(H683/U$2*100,3)","v":46.624000000000002},{"$f":"ROUND(I683/V$2*100,3)","v":46.317}]
[]
[{"$f":"A670+1","v":46},{"$f":"IFERROR(VLOOKUP($A685,Inputs!$B$68:$AN$129,MATCH($B$7,Inputs!$B$68:$AN$68,0),FALSE),\"Blank\")","v":"80W Mercury Vapour"},null,null,null,null,null,null,null,null,null,null,null,null,null,null,{"$f":"IFERROR(VLOOKUP($A685,Inputs!$B$68:$AN$129,MATCH($B$7,Inputs!$B$68:$AN$68,0),FALSE),\"Blank\")","v":"80W Mercury Vapour"}]
[null,{"$f":"Inputs!$S$68","v":"Lamp UNIT price Annualised Cost"},{"$f":"Inputs!$Q$68","v":"Lamp Maintenance cycle"},null,{"$f":"IF($B685=\"Blank\",0,VLOOKUP($B685,Inputs!$C$68:$AN$129,MATCH($B686,Inputs!$C$68:$AN$68,0),FALSE))","v":0.53408829660915003},{"$f":"IF($B685=\"Blank\",0,VLOOKUP($B685,Inputs!$C$68:$AN$129,MATCH($B686,Inputs!$C$68:$AN$68,0),FALSE))","v":0.53408829660915003},{"$f":"IF($B685=\"Blank\",0,VLOOKUP($B685,Inputs!$C$68:$AN$129,MATCH($B686,Inputs!$C$68:$AN$68,0),FALSE))","v":0.53408829660915003},{"$f":"IF($B685=\"Blank\",0,VLOOKUP($B685,Inputs!$C$68:$AN$129,MATCH($B686,Inputs!$C$68:$AN$68,0),FALSE))","v":0.53408829660915003},{"$f":"IF($B685=\"Blank\",0,VLOOKUP($B685,Inputs!$C$68:$AN$129,MATCH($B686,Inputs!$C$68:$AN$68,0),FALSE))","v":0.53408829660915003},null,null,null,null,null,null,null,{"$f":"B686","v":"Lamp UNIT price Annualised Cost"},{"$f":"IF(E686=\"NA\",\"\",E686/R$2*100)","v":0.14592576410086067},{"$f":"IF(F686=\"NA\",\"\",F686/S$2*100)","v":0.14632556071483563},{"$f":"IF(G686=\"NA\",\"\",G686/T$2*100)","v":0.14632556071483563},{"$f":"IF(H686=\"NA\",\"\",H686/U$2*100)","v":0.14632556071483563},{"$f":"IF(I686=\"NA\",\"\",I686/V$2*100)","v":0.14592576410086067}]
[null,{"$f":"Inputs!$K$68","v":"PE Cell UNIT price Annualised Cost"},{"$f":"Inputs!$I$68","v":"PE Cell Maintenance Cycle"},null,{"$f":"IF($B685=\"Blank\",0,VLOOKUP($B685,Inputs!$C$68:$AN$129,MATCH($B687,Inputs!$C$68:$AN$68,0),FALSE))","v":0.58131255188333353},{"$f":"IF($B685=\"Blank\",0,VLOOKUP($B685,Inputs!$C$68:$AN$129,MATCH($B687,Inputs!$C$68:$AN$68,0),FALSE))","v":0.58131255188333353},{"$f":"IF($B685=\"Blank\",0,VLOOKUP($B685,Inputs!$C$68:$AN$129,MATCH($B687,Inputs!$C$68:$AN$68,0),FALSE))","v":0.58131255188333353},{"$f":"IF($B685=\"Blank\",0,VLOOKUP($B685,Inputs!$C$68:$AN$129,MATCH($B687,Inputs!$C$68:$AN$68,0),FALSE))","v":0.58131255188333353},{"$f":"IF($B685=\"Blank\",0,VLOOKUP($B685,Inputs!$C$68:$AN$129,MATCH($B687,Inputs!$C$68:$AN$68,0),FALSE))","v":0.58131255188333353},null,null,null,null,null,null,null,"PE Cell UNIT price Annualised Cost",0.15882856608834248,0.15926371284474891,0.15926371284474891,0.15926371284474891,0.15882856608834248]
[null,"Corp capex annuity per light",null,null,{"$f":"IF($B685=\"Blank\",0,'Corp Capex Annuity calcs'!F$142)","v":18.582309905017571},{"$f":"IF($B685=\"Blank\",0,'Corp Capex Annuity calcs'!G$142)","v":18.552026408230436},{"$f":"IF($B685=\"Blank\",0,'Corp Capex Annuity calcs'!H$142)","v":18.401377631486287},{"$f":"IF($B685=\"Blank\",0,'Corp Capex Annuity calcs'!I$142)","v":18.205761940470655},{"$f":"IF($B685=\"Blank\",0,'Corp Capex Annuity calcs'!J$142)","v":17.995165449295623},null,null,null,null,null,null,null,"Corp capex annuity per light",5.0771338538299373,5.0827469611590237,5.0414733236948734,4.9878799836905907,4.9167118713922466]
[null,{"$f":"Inputs!$U$68","v":"Lamp Service costs Annualised"},"Labour Portion of Lamp Service costs annualised",null,{"$f":"IF($B685=\"Blank\",0,VLOOKUP($B685,Inputs!$C$68:$AN$129,MATCH($B689,Inputs!$C$68:$AN$68,0),FALSE))+IFERROR(IF($B685=\"Blank\",0,VLOOKUP($B685,Inputs!$C$68:$AN$129,MATCH($C689,Inputs!$C$68:$AN$68,0),FALSE))*('Master Data'!K$42),0)","v":24.127490039840644},{"$f":"IF($B685=\"Blank\",0,VLOOKUP($B685,Inputs!$C$68:$AN$129,MATCH($B689,Inputs!$C$68:$AN$68,0),FALSE))+IFERROR(IF($B685=\"Blank\",0,VLOOKUP($B685,Inputs!$C$68:$AN$129,MATCH($C689,Inputs!$C$68:$AN$68,0),FALSE))*('Master Data'!L$42),0)","v":24.131023426294828},{"$f":"IF($B685=\"Blank\",0,VLOOKUP($B685,Inputs!$C$68:$AN$129,MATCH($B689,Inputs!$C$68:$AN$68,0),FALSE))+IFERROR(IF($B685=\"Blank\",0,VLOOKUP($B685,Inputs!$C$68:$AN$129,MATCH($C689,Inputs!$C$68:$AN$68,0),FALSE))*('Master Data'!M$42),0)","v":24.136412685577696},{"$f":"IF($B685=\"Blank\",0,VLOOKUP($B685,Inputs!$C$68:$AN$129,MATCH($B689,Inputs!$C$68:$AN$68,0),FALSE))+IFERROR(IF($B685=\"Blank\",0,VLOOKUP($B685,Inputs!$C$68:$AN$129,MATCH($C689,Inputs!$C$68:$AN$68,0),FALSE))*('Master Data'!N$42),0)","v":24.143056949368709},{"$f":"IF($B685=\"Blank\",0,VLOOKUP($B685,Inputs!$C$68:$AN$129,MATCH($B689,Inputs!$C$68:$AN$68,0),FALSE))+IFERROR(IF($B685=\"Blank\",0,VLOOKUP($B685,Inputs!$C$68:$AN$129,MATCH($C689,Inputs!$C$68:$AN$68,0),FALSE))*('Master Data'!O$42),0)","v":24.150816058816748},null,null,null,null,null,null,null,"Lamp Service costs Annualised",6.5922103933990828,6.611239294875296,6.6127158042678618,6.6145361505119755,6.598583622627527]
[null,{"$f":"Inputs!$M$68","v":"PE Cell Service costs Annualised"},"Labour Portion of PE Cell Service costs Annualised",null,{"$f":"IF($B685=\"Blank\",0,VLOOKUP($B685,Inputs!$C$68:$AN$129,MATCH($B690,Inputs!$C$68:$AN$68,0),FALSE))+IFERROR(IF($B685=\"Blank\",0,VLOOKUP($B685,Inputs!$C$68:$AN$129,MATCH($C690,Inputs!$C$68:$AN$68,0),FALSE))*('Master Data'!K$42),0)","v":0},{"$f":"IF($B685=\"Blank\",0,VLOOKUP($B685,Inputs!$C$68:$AN$129,MATCH($B690,Inputs!$C$68:$AN$68,0),FALSE))+IFERROR(IF($B685=\"Blank\",0,VLOOKUP($B685,Inputs!$C$68:$AN$129,MATCH($C690,Inputs!$C$68:$AN$68,0),FALSE))*('Master Data'!L$42),0)","v":0},{"$f":"IF($B685=\"Blank\",0,VLOOKUP($B685,Inputs!$C$68:$AN$129,MATCH($B690,Inputs!$C$68:$AN$68,0),FALSE))+IFERROR(IF($B685=\"Blank\",0,VLOOKUP($B685,Inputs!$C$68:$AN$129,MATCH($C690,Inputs!$C$68:$AN$68,0),FALSE))*('Master Data'!M$42),0)","v":0},{"$f":"IF($B685=\"Blank\",0,VLOOKUP($B685,Inputs!$C$68:$AN$129,MATCH($B690,Inputs!$C$68:$AN$68,0),FALSE))+IFERROR(IF($B685=\"Blank\",0,VLOOKUP($B685,Inputs!$C$68:$AN$129,MATCH($C690,Inputs!$C$68:$AN$68,0),FALSE))*('Master Data'!N$42),0)","v":0},{"$f":"IF($B685=\"Blank\",0,VLOOKUP($B685,Inputs!$C$68:$AN$129,MATCH($B690,Inputs!$C$68:$AN$68,0),FALSE))+IFERROR(IF($B685=\"Blank\",0,VLOOKUP($B685,Inputs!$C$68:$AN$129,MATCH($C690,Inputs!$C$68:$AN$68,0),FALSE))*('Master Data'!O$42),0)","v":0},null,null,null,null,null,null,null,"PE Cell Service costs Annualised",0,0,0,0,0]
[null,"Indirect Opex",null,null,{"$f":"IF($B685=\"Blank\",0,IF($B$8=\"Private Contract Lighting\",'Opex Weighting'!D$48,'Opex Weighting'!D$46))","v":25.762407087322877},{"$f":"IF($B685=\"Blank\",0,IF($B$8=\"Private Contract Lighting\",'Opex Weighting'!E$48,'Opex Weighting'!E$46))","v":25.880403763800857},{"$f":"IF($B685=\"Blank\",0,IF($B$8=\"Private Contract Lighting\",'Opex Weighting'!F$48,'Opex Weighting'!F$46))","v":20.013740175030701},{"$f":"IF($B685=\"Blank\",0,IF($B$8=\"Private Contract Lighting\",'Opex Weighting'!G$48,'Opex Weighting'!G$46))","v":19.55949970528431},{"$f":"IF($B685=\"Blank\",0,IF($B$8=\"Private Contract Lighting\",'Opex Weighting'!H$48,'Opex Weighting'!H$46))","v":19.096814305933613},null,null,null,null,null,null,null,"Indirect Opex",7.0389090402521521,7.0905215791235223,5.4832164863097814,5.3587670425436471,5.2177088267578178]
[null,"Indirect Capex",null,null,{"$f":"'Capex Weighting'!D$59","v":0},{"$f":"'Capex Weighting'!E$59","v":0},{"$f":"'Capex Weighting'!F$59","v":0},{"$f":"'Capex Weighting'!G$59","v":0},{"$f":"'Capex Weighting'!H$59","v":0},null,null,null,null,null,null,null,"Indirect Capex",0,0,0,0,0]
[null,"Opex Overheads Costs per light",null,null,{"$f":"IF($B685=\"Blank\",0,IF($B$8=\"Private Contract Lighting\",'Building Block'!C$40,'Building Block'!C$39))","v":32.224036557323004},{"$f":"IF($B685=\"Blank\",0,IF($B$8=\"Private Contract Lighting\",'Building Block'!D$40,'Building Block'!D$39))","v":31.278075996100256},{"$f":"IF($B685=\"Blank\",0,IF($B$8=\"Private Contract Lighting\",'Building Block'!E$40,'Building Block'!E$39))","v":21.467987799581408},{"$f":"IF($B685=\"Blank\",0,IF($B$8=\"Private Contract Lighting\",'Building Block'!F$40,'Building Block'!F$39))","v":21.22771925228782},{"$f":"IF($B685=\"Blank\",0,IF($B$8=\"Private Contract Lighting\",'Building Block'!G$40,'Building Block'!G$39))","v":21.210892633443169},null,null,null,null,null,null,null,"Opex Overheads Costs per light",8.8043815730390715,8.5693358893425362,5.8816404930360022,5.815813493777485,5.7953258561320133]
[null,{"$f":"Inputs!$AK$68","v":"Bracket UNIT price"},0,null,{"$f":"IF($B685=\"Blank\",0,OFFSET('CAPEX Annuity calcs'!$B$9,MATCH($B685,'CAPEX Annuity calcs'!$B$9:$B$500,0)+$C694,E$6))","v":3.5147101390336242},{"$f":"IF($B685=\"Blank\",0,OFFSET('CAPEX Annuity calcs'!$B$9,MATCH($B685,'CAPEX Annuity calcs'!$B$9:$B$500,0)+$C694,F$6))","v":3.5147101390336242},{"$f":"IF($B685=\"Blank\",0,OFFSET('CAPEX Annuity calcs'!$B$9,MATCH($B685,'CAPEX Annuity calcs'!$B$9:$B$500,0)+$C694,G$6))","v":3.5147101390336242},{"$f":"IF($B685=\"Blank\",0,OFFSET('CAPEX Annuity calcs'!$B$9,MATCH($B685,'CAPEX Annuity calcs'!$B$9:$B$500,0)+$C694,H$6))","v":3.5147101390336242},{"$f":"IF($B685=\"Blank\",0,OFFSET('CAPEX Annuity calcs'!$B$9,MATCH($B685,'CAPEX Annuity calcs'!$B$9:$B$500,0)+$C694,I$6))","v":3.5147101390336242},null,null,null,null,null,null,null,"Bracket UNIT price",0.96030331667585367,0.96293428466674624,0.96293428466674624,0.96293428466674624,0.96030331667585367]
[null,{"$f":"Inputs!$AA$68","v":"CAPEX Instalation costs"},{"$f":"C694+1","v":1},null,{"$f":"IF($B685=\"Blank\",0,OFFSET('CAPEX Annuity calcs'!$B$9,MATCH($B685,'CAPEX Annuity calcs'!$B$9:$B$500,0)+$C695,E$6))","v":0},{"$f":"IF($B685=\"Blank\",0,OFFSET('CAPEX Annuity calcs'!$B$9,MATCH($B685,'CAPEX Annuity calcs'!$B$9:$B$500,0)+$C695,F$6))","v":0},{"$f":"IF($B685=\"Blank\",0,OFFSET('CAPEX Annuity calcs'!$B$9,MATCH($B685,'CAPEX Annuity calcs'!$B$9:$B$500,0)+$C695,G$6))","v":0},{"$f":"IF($B685=\"Blank\",0,OFFSET('CAPEX Annuity calcs'!$B$9,MATCH($B685,'CAPEX Annuity calcs'!$B$9:$B$500,0)+$C695,H$6))","v":0},{"$f":"IF($B685=\"Blank\",0,OFFSET('CAPEX Annuity calcs'!$B$9,MATCH($B685,'CAPEX Annuity calcs'!$B$9:$B$500,0)+$C695,I$6))","v":0},null,null,null,null,null,null,null,"CAPEX Instalation costs",0,0,0,0,0]
[null,{"$f":"Inputs!$Z$68","v":"Luminaire UNIT price"},{"$f":"C695+1","v":2},null,{"$f":"IF($B685=\"Blank\",0,OFFSET('CAPEX Annuity calcs'!$B$9,MATCH($B685,'CAPEX Annuity calcs'!$B$9:$B$500,0)+$C696,E$6))","v":5.9993705640934598},{"$f":"IF($B685=\"Blank\",0,OFFSET('CAPEX Annuity calcs'!$B$9,MATCH($B685,'CAPEX Annuity calcs'!$B$9:$B$500,0)+$C696,F$6))","v":5.9993705640934598},{"$f":"IF($B685=\"Blank\",0,OFFSET('CAPEX Annuity calcs'!$B$9,MATCH($B685,'CAPEX Annuity calcs'!$B$9:$B$500,0)+$C696,G$6))","v":5.9993705640934598},{"$f":"IF($B685=\"Blank\",0,OFFSET('CAPEX Annuity calcs'!$B$9,MATCH($B685,'CAPEX Annuity calcs'!$B$9:$B$500,0)+$C696,H$6))","v":5.9993705640934598},{"$f":"IF($B685=\"Blank\",0,OFFSET('CAPEX Annuity calcs'!$B$9,MATCH($B685,'CAPEX Annuity calcs'!$B$9:$B$500,0)+$C696,I$6))","v":5.9993705640934598},null,null,null,null,null,null,null,"Luminaire UNIT price",1.6391722852714372,1.6436631682447835,1.6436631682447835,1.6436631682447835,1.6391722852714372]
[null,{"$f":"Inputs!$AA$68","v":"CAPEX Instalation costs"},3,null,{"$f":"IF($B685=\"Blank\",0,OFFSET('CAPEX Annuity calcs'!$B$9,MATCH($B685,'CAPEX Annuity calcs'!$B$9:$B$500,0)+$C697,E$6))","v":18.736141709912243},{"$f":"IF($B685=\"Blank\",0,OFFSET('CAPEX Annuity calcs'!$B$9,MATCH($B685,'CAPEX Annuity calcs'!$B$9:$B$500,0)+$C697,F$6))","v":18.74779128716041},{"$f":"IF($B685=\"Blank\",0,OFFSET('CAPEX Annuity calcs'!$B$9,MATCH($B685,'CAPEX Annuity calcs'!$B$9:$B$500,0)+$C697,G$6))","v":18.765559678232343},{"$f":"IF($B685=\"Blank\",0,OFFSET('CAPEX Annuity calcs'!$B$9,MATCH($B685,'CAPEX Annuity calcs'!$B$9:$B$500,0)+$C697,H$6))","v":18.787465819916616},{"$f":"IF($B685=\"Blank\",0,OFFSET('CAPEX Annuity calcs'!$B$9,MATCH($B685,'CAPEX Annuity calcs'!$B$9:$B$500,0)+$C697,I$6))","v":18.813047608397444},null,null,null,null,null,null,null,"CAPEX Instalation costs",5.1191644016153672,5.1363811745644954,5.1412492269129713,5.1472509095661954,5.1401769421850938]
[null,null,null,null,{"$f":"SUM(E686:E697)","v":130.06186685103589},{"$f":"SUM(F686:F697)","v":129.21880243320635},113.41455952152799,112.55298521894767,111.89621760750616,null,null,null,null,null,null,null,null,{"$f":"ROUND(E698/R$2*100,3)","v":35.536000000000001},{"$f":"ROUND(F698/S$2*100,3)","v":35.402000000000001},{"$f":"ROUND(G698/T$2*100,3)","v":31.071999999999999},{"$f":"ROUND(H698/U$2*100,3)","v":30.835999999999999},{"$f":"ROUND(I698/V$2*100,3)","v":30.573}]
[]
[{"$f":"A685+1","v":47},{"$f":"IFERROR(VLOOKUP($A700,Inputs!$B$68:$AN$129,MATCH($B$7,Inputs!$B$68:$AN$68,0),FALSE),\"Blank\")","v":"14W LED"},null,null,null,null,null,null,null,null,null,null,null,null,null,null,{"$f":"IFERROR(VLOOKUP($A700,Inputs!$B$68:$AN$129,MATCH($B$7,Inputs!$B$68:$AN$68,0),FALSE),\"Blank\")","v":"14W LED"}]
[null,{"$f":"Inputs!$S$68","v":"Lamp UNIT price Annualised Cost"},{"$f":"Inputs!$Q$68","v":"Lamp Maintenance cycle"},null,{"$f":"IF($B700=\"Blank\",0,VLOOKUP($B700,Inputs!$C$68:$AN$129,MATCH($B701,Inputs!$C$68:$AN$68,0),FALSE))","v":0},{"$f":"IF($B700=\"Blank\",0,VLOOKUP($B700,Inputs!$C$68:$AN$129,MATCH($B701,Inputs!$C$68:$AN$68,0),FALSE))","v":0},{"$f":"IF($B700=\"Blank\",0,VLOOKUP($B700,Inputs!$C$68:$AN$129,MATCH($B701,Inputs!$C$68:$AN$68,0),FALSE))","v":0},{"$f":"IF($B700=\"Blank\",0,VLOOKUP($B700,Inputs!$C$68:$AN$129,MATCH($B701,Inputs!$C$68:$AN$68,0),FALSE))","v":0},{"$f":"IF($B700=\"Blank\",0,VLOOKUP($B700,Inputs!$C$68:$AN$129,MATCH($B701,Inputs!$C$68:$AN$68,0),FALSE))","v":0},null,null,null,null,null,null,null,{"$f":"B701","v":"Lamp UNIT price Annualised Cost"},{"$f":"IF(E701=\"NA\",\"\",E701/R$2*100)","v":0},{"$f":"IF(F701=\"NA\",\"\",F701/S$2*100)","v":0},{"$f":"IF(G701=\"NA\",\"\",G701/T$2*100)","v":0},{"$f":"IF(H701=\"NA\",\"\",H701/U$2*100)","v":0},{"$f":"IF(I701=\"NA\",\"\",I701/V$2*100)","v":0}]
[null,{"$f":"Inputs!$K$68","v":"PE Cell UNIT price Annualised Cost"},{"$f":"Inputs!$I$68","v":"PE Cell Maintenance Cycle"},null,{"$f":"IF($B700=\"Blank\",0,VLOOKUP($B700,Inputs!$C$68:$AN$129,MATCH($B702,Inputs!$C$68:$AN$68,0),FALSE))","v":0.84654871962400013},{"$f":"IF($B700=\"Blank\",0,VLOOKUP($B700,Inputs!$C$68:$AN$129,MATCH($B702,Inputs!$C$68:$AN$68,0),FALSE))","v":0.84654871962400013},{"$f":"IF($B700=\"Blank\",0,VLOOKUP($B700,Inputs!$C$68:$AN$129,MATCH($B702,Inputs!$C$68:$AN$68,0),FALSE))","v":0.84654871962400013},{"$f":"IF($B700=\"Blank\",0,VLOOKUP($B700,Inputs!$C$68:$AN$129,MATCH($B702,Inputs!$C$68:$AN$68,0),FALSE))","v":0.84654871962400013},{"$f":"IF($B700=\"Blank\",0,VLOOKUP($B700,Inputs!$C$68:$AN$129,MATCH($B702,Inputs!$C$68:$AN$68,0),FALSE))","v":0.84654871962400013},null,null,null,null,null,null,null,"PE Cell UNIT price Annualised Cost",0.23129746437814211,0.23193115606136988,0.23193115606136988,0.23193115606136988,0.23129746437814211]
[null,"Corp capex annuity per light",null,null,{"$f":"IF($B700=\"Blank\",0,'Corp Capex Annuity calcs'!F$142)","v":18.582309905017571},{"$f":"IF($B700=\"Blank\",0,'Corp Capex Annuity calcs'!G$142)","v":18.552026408230436},{"$f":"IF($B700=\"Blank\",0,'Corp Capex Annuity calcs'!H$142)","v":18.401377631486287},{"$f":"IF($B700=\"Blank\",0,'Corp Capex Annuity calcs'!I$142)","v":18.205761940470655},{"$f":"IF($B700=\"Blank\",0,'Corp Capex Annuity calcs'!J$142)","v":17.995165449295623},null,null,null,null,null,null,null,"Corp capex annuity per light",5.0771338538299373,5.0827469611590237,5.0414733236948734,4.9878799836905907,4.9167118713922466]
[null,{"$f":"Inputs!$U$68","v":"Lamp Service costs Annualised"},"Labour Portion of Lamp Service costs annualised",null,{"$f":"IF($B700=\"Blank\",0,VLOOKUP($B700,Inputs!$C$68:$AN$129,MATCH($B704,Inputs!$C$68:$AN$68,0),FALSE))+IFERROR(IF($B700=\"Blank\",0,VLOOKUP($B700,Inputs!$C$68:$AN$129,MATCH($C704,Inputs!$C$68:$AN$68,0),FALSE))*('Master Data'!K$42),0)","v":0},{"$f":"IF($B700=\"Blank\",0,VLOOKUP($B700,Inputs!$C$68:$AN$129,MATCH($B704,Inputs!$C$68:$AN$68,0),FALSE))+IFERROR(IF($B700=\"Blank\",0,VLOOKUP($B700,Inputs!$C$68:$AN$129,MATCH($C704,Inputs!$C$68:$AN$68,0),FALSE))*('Master Data'!L$42),0)","v":0},{"$f":"IF($B700=\"Blank\",0,VLOOKUP($B700,Inputs!$C$68:$AN$129,MATCH($B704,Inputs!$C$68:$AN$68,0),FALSE))+IFERROR(IF($B700=\"Blank\",0,VLOOKUP($B700,Inputs!$C$68:$AN$129,MATCH($C704,Inputs!$C$68:$AN$68,0),FALSE))*('Master Data'!M$42),0)","v":0},{"$f":"IF($B700=\"Blank\",0,VLOOKUP($B700,Inputs!$C$68:$AN$129,MATCH($B704,Inputs!$C$68:$AN$68,0),FALSE))+IFERROR(IF($B700=\"Blank\",0,VLOOKUP($B700,Inputs!$C$68:$AN$129,MATCH($C704,Inputs!$C$68:$AN$68,0),FALSE))*('Master Data'!N$42),0)","v":0},{"$f":"IF($B700=\"Blank\",0,VLOOKUP($B700,Inputs!$C$68:$AN$129,MATCH($B704,Inputs!$C$68:$AN$68,0),FALSE))+IFERROR(IF($B700=\"Blank\",0,VLOOKUP($B700,Inputs!$C$68:$AN$129,MATCH($C704,Inputs!$C$68:$AN$68,0),FALSE))*('Master Data'!O$42),0)","v":0},null,null,null,null,null,null,null,"Lamp Service costs Annualised",0,0,0,0,0]
[null,{"$f":"Inputs!$M$68","v":"PE Cell Service costs Annualised"},"Labour Portion of PE Cell Service costs Annualised",null,{"$f":"IF($B700=\"Blank\",0,VLOOKUP($B700,Inputs!$C$68:$AN$129,MATCH($B705,Inputs!$C$68:$AN$68,0),FALSE))+IFERROR(IF($B700=\"Blank\",0,VLOOKUP($B700,Inputs!$C$68:$AN$129,MATCH($C705,Inputs!$C$68:$AN$68,0),FALSE))*('Master Data'!K$42),0)","v":6.0318725099601611},{"$f":"IF($B700=\"Blank\",0,VLOOKUP($B700,Inputs!$C$68:$AN$129,MATCH($B705,Inputs!$C$68:$AN$68,0),FALSE))+IFERROR(IF($B700=\"Blank\",0,VLOOKUP($B700,Inputs!$C$68:$AN$129,MATCH($C705,Inputs!$C$68:$AN$68,0),FALSE))*('Master Data'!L$42),0)","v":6.0327558565737069},{"$f":"IF($B700=\"Blank\",0,VLOOKUP($B700,Inputs!$C$68:$AN$129,MATCH($B705,Inputs!$C$68:$AN$68,0),FALSE))+IFERROR(IF($B700=\"Blank\",0,VLOOKUP($B700,Inputs!$C$68:$AN$129,MATCH($C705,Inputs!$C$68:$AN$68,0),FALSE))*('Master Data'!M$42),0)","v":6.034103171394424},{"$f":"IF($B700=\"Blank\",0,VLOOKUP($B700,Inputs!$C$68:$AN$129,MATCH($B705,Inputs!$C$68:$AN$68,0),FALSE))+IFERROR(IF($B700=\"Blank\",0,VLOOKUP($B700,Inputs!$C$68:$AN$129,MATCH($C705,Inputs!$C$68:$AN$68,0),FALSE))*('Master Data'!N$42),0)","v":6.0357642373421774},{"$f":"IF($B700=\"Blank\",0,VLOOKUP($B700,Inputs!$C$68:$AN$129,MATCH($B705,Inputs!$C$68:$AN$68,0),FALSE))+IFERROR(IF($B700=\"Blank\",0,VLOOKUP($B700,Inputs!$C$68:$AN$129,MATCH($C705,Inputs!$C$68:$AN$68,0),FALSE))*('Master Data'!O$42),0)","v":6.0377040147041869},null,null,null,null,null,null,null,"PE Cell Service costs Annualised",1.6480525983497707,1.652809823718824,1.6531789510669654,1.6536340376279939,1.6496459056568817]
[null,"Indirect Opex",null,null,{"$f":"IF($B700=\"Blank\",0,IF($B$8=\"Private Contract Lighting\",'Opex Weighting'!D$48,'Opex Weighting'!D$46))","v":25.762407087322877},{"$f":"IF($B700=\"Blank\",0,IF($B$8=\"Private Contract Lighting\",'Opex Weighting'!E$48,'Opex Weighting'!E$46))","v":25.880403763800857},{"$f":"IF($B700=\"Blank\",0,IF($B$8=\"Private Contract Lighting\",'Opex Weighting'!F$48,'Opex Weighting'!F$46))","v":20.013740175030701},{"$f":"IF($B700=\"Blank\",0,IF($B$8=\"Private Contract Lighting\",'Opex Weighting'!G$48,'Opex Weighting'!G$46))","v":19.55949970528431},{"$f":"IF($B700=\"Blank\",0,IF($B$8=\"Private Contract Lighting\",'Opex Weighting'!H$48,'Opex Weighting'!H$46))","v":19.096814305933613},null,null,null,null,null,null,null,"Indirect Opex",7.0389090402521521,7.0905215791235223,5.4832164863097814,5.3587670425436471,5.2177088267578178]
[null,"Indirect Capex",null,null,{"$f":"'Capex Weighting'!D$59","v":0},{"$f":"'Capex Weighting'!E$59","v":0},{"$f":"'Capex Weighting'!F$59","v":0},{"$f":"'Capex Weighting'!G$59","v":0},{"$f":"'Capex Weighting'!H$59","v":0},null,null,null,null,null,null,null,"Indirect Capex",0,0,0,0,0]
[null,"Opex Overheads Costs per light",null,null,{"$f":"IF($B700=\"Blank\",0,IF($B$8=\"Private Contract Lighting\",'Building Block'!C$40,'Building Block'!C$39))","v":32.224036557323004},{"$f":"IF($B700=\"Blank\",0,IF($B$8=\"Private Contract Lighting\",'Building Block'!D$40,'Building Block'!D$39))","v":31.278075996100256},{"$f":"IF($B700=\"Blank\",0,IF($B$8=\"Private Contract Lighting\",'Building Block'!E$40,'Building Block'!E$39))","v":21.467987799581408},{"$f":"IF($B700=\"Blank\",0,IF($B$8=\"Private Contract Lighting\",'Building Block'!F$40,'Building Block'!F$39))","v":21.22771925228782},{"$f":"IF($B700=\"Blank\",0,IF($B$8=\"Private Contract Lighting\",'Building Block'!G$40,'Building Block'!G$39))","v":21.210892633443169},null,null,null,null,null,null,null,"Opex Overheads Costs per light",8.8043815730390715,8.5693358893425362,5.8816404930360022,5.815813493777485,5.7953258561320133]
[null,{"$f":"Inputs!$AK$68","v":"Bracket UNIT price"},0,null,{"$f":"IF($B700=\"Blank\",0,OFFSET('CAPEX Annuity calcs'!$B$9,MATCH($B700,'CAPEX Annuity calcs'!$B$9:$B$500,0)+$C709,E$6))","v":4.2012897394372093},{"$f":"IF($B700=\"Blank\",0,OFFSET('CAPEX Annuity calcs'!$B$9,MATCH($B700,'CAPEX Annuity calcs'!$B$9:$B$500,0)+$C709,F$6))","v":4.2012897394372093},{"$f":"IF($B700=\"Blank\",0,OFFSET('CAPEX Annuity calcs'!$B$9,MATCH($B700,'CAPEX Annuity calcs'!$B$9:$B$500,0)+$C709,G$6))","v":4.2012897394372093},{"$f":"IF($B700=\"Blank\",0,OFFSET('CAPEX Annuity calcs'!$B$9,MATCH($B700,'CAPEX Annuity calcs'!$B$9:$B$500,0)+$C709,H$6))","v":4.2012897394372093},{"$f":"IF($B700=\"Blank\",0,OFFSET('CAPEX Annuity calcs'!$B$9,MATCH($B700,'CAPEX Annuity calcs'!$B$9:$B$500,0)+$C709,I$6))","v":4.2012897394372093},null,null,null,null,null,null,null,"Bracket UNIT price",1.1478933714309314,1.1510382847773175,1.1510382847773175,1.1510382847773175,1.1478933714309314]
[null,{"$f":"Inputs!$AA$68","v":"CAPEX Instalation costs"},{"$f":"C709+1","v":1},null,{"$f":"IF($B700=\"Blank\",0,OFFSET('CAPEX Annuity calcs'!$B$9,MATCH($B700,'CAPEX Annuity calcs'!$B$9:$B$500,0)+$C710,E$6))","v":0},{"$f":"IF($B700=\"Blank\",0,OFFSET('CAPEX Annuity calcs'!$B$9,MATCH($B700,'CAPEX Annuity calcs'!$B$9:$B$500,0)+$C710,F$6))","v":0},{"$f":"IF($B700=\"Blank\",0,OFFSET('CAPEX Annuity calcs'!$B$9,MATCH($B700,'CAPEX Annuity calcs'!$B$9:$B$500,0)+$C710,G$6))","v":0},{"$f":"IF($B700=\"Blank\",0,OFFSET('CAPEX Annuity calcs'!$B$9,MATCH($B700,'CAPEX Annuity calcs'!$B$9:$B$500,0)+$C710,H$6))","v":0},{"$f":"IF($B700=\"Blank\",0,OFFSET('CAPEX Annuity calcs'!$B$9,MATCH($B700,'CAPEX Annuity calcs'!$B$9:$B$500,0)+$C710,I$6))","v":0},null,null,null,null,null,null,null,"CAPEX Instalation costs",0,0,0,0,0]
[null,{"$f":"Inputs!$Z$68","v":"Luminaire UNIT price"},{"$f":"C710+1","v":2},null,{"$f":"IF($B700=\"Blank\",0,OFFSET('CAPEX Annuity calcs'!$B$9,MATCH($B700,'CAPEX Annuity calcs'!$B$9:$B$500,0)+$C711,E$6))","v":18.914114486484959},{"$f":"IF($B700=\"Blank\",0,OFFSET('CAPEX Annuity calcs'!$B$9,MATCH($B700,'CAPEX Annuity calcs'!$B$9:$B$500,0)+$C711,F$6))","v":18.914114486484959},{"$f":"IF($B700=\"Blank\",0,OFFSET('CAPEX Annuity calcs'!$B$9,MATCH($B700,'CAPEX Annuity calcs'!$B$9:$B$500,0)+$C711,G$6))","v":18.914114486484959},{"$f":"IF($B700=\"Blank\",0,OFFSET('CAPEX Annuity calcs'!$B$9,MATCH($B700,'CAPEX Annuity calcs'!$B$9:$B$500,0)+$C711,H$6))","v":18.914114486484959},{"$f":"IF($B700=\"Blank\",0,OFFSET('CAPEX Annuity calcs'!$B$9,MATCH($B700,'CAPEX Annuity calcs'!$B$9:$B$500,0)+$C711,I$6))","v":18.914114486484959},null,null,null,null,null,null,null,"Luminaire UNIT price",5.1677908433019013,5.181949174379441,5.181949174379441,5.181949174379441,5.1677908433019013]
[null,{"$f":"Inputs!$AA$68","v":"CAPEX Instalation costs"},3,null,{"$f":"IF($B700=\"Blank\",0,OFFSET('CAPEX Annuity calcs'!$B$9,MATCH($B700,'CAPEX Annuity calcs'!$B$9:$B$500,0)+$C712,E$6))","v":18.736141709912243},{"$f":"IF($B700=\"Blank\",0,OFFSET('CAPEX Annuity calcs'!$B$9,MATCH($B700,'CAPEX Annuity calcs'!$B$9:$B$500,0)+$C712,F$6))","v":18.74779128716041},{"$f":"IF($B700=\"Blank\",0,OFFSET('CAPEX Annuity calcs'!$B$9,MATCH($B700,'CAPEX Annuity calcs'!$B$9:$B$500,0)+$C712,G$6))","v":18.765559678232343},{"$f":"IF($B700=\"Blank\",0,OFFSET('CAPEX Annuity calcs'!$B$9,MATCH($B700,'CAPEX Annuity calcs'!$B$9:$B$500,0)+$C712,H$6))","v":18.787465819916616},{"$f":"IF($B700=\"Blank\",0,OFFSET('CAPEX Annuity calcs'!$B$9,MATCH($B700,'CAPEX Annuity calcs'!$B$9:$B$500,0)+$C712,I$6))","v":18.813047608397444},null,null,null,null,null,null,null,"CAPEX Instalation costs",5.1191644016153672,5.1363811745644954,5.1412492269129713,5.1472509095661954,5.1401769421850938]
[null,null,null,null,{"$f":"SUM(E701:E712)","v":125.29872071508203},{"$f":"SUM(F701:F712)","v":124.45300625741184},108.64472140127134,107.77816390084776,107.1155769573202,null,null,null,null,null,null,null,null,{"$f":"ROUND(E713/R$2*100,3)","v":34.234999999999999},{"$f":"ROUND(F713/S$2*100,3)","v":34.097000000000001},{"$f":"ROUND(G713/T$2*100,3)","v":29.765999999999998},{"$f":"ROUND(H713/U$2*100,3)","v":29.527999999999999},{"$f":"ROUND(I713/V$2*100,3)","v":29.266999999999999}]
[]
[{"$f":"A700+1","v":48},{"$f":"IFERROR(VLOOKUP($A715,Inputs!$B$68:$AN$129,MATCH($B$7,Inputs!$B$68:$AN$68,0),FALSE),\"Blank\")","v":"New technology - Minor"},null,null,null,null,null,null,null,null,null,null,null,null,null,null,{"$f":"IFERROR(VLOOKUP($A715,Inputs!$B$68:$AN$129,MATCH($B$7,Inputs!$B$68:$AN$68,0),FALSE),\"Blank\")","v":"New technology - Minor"}]
[null,{"$f":"Inputs!$S$68","v":"Lamp UNIT price Annualised Cost"},{"$f":"Inputs!$Q$68","v":"Lamp Maintenance cycle"},null,{"$f":"IF($B715=\"Blank\",0,VLOOKUP($B715,Inputs!$C$68:$AN$129,MATCH($B716,Inputs!$C$68:$AN$68,0),FALSE))","v":0},{"$f":"IF($B715=\"Blank\",0,VLOOKUP($B715,Inputs!$C$68:$AN$129,MATCH($B716,Inputs!$C$68:$AN$68,0),FALSE))","v":0},{"$f":"IF($B715=\"Blank\",0,VLOOKUP($B715,Inputs!$C$68:$AN$129,MATCH($B716,Inputs!$C$68:$AN$68,0),FALSE))","v":0},{"$f":"IF($B715=\"Blank\",0,VLOOKUP($B715,Inputs!$C$68:$AN$129,MATCH($B716,Inputs!$C$68:$AN$68,0),FALSE))","v":0},{"$f":"IF($B715=\"Blank\",0,VLOOKUP($B715,Inputs!$C$68:$AN$129,MATCH($B716,Inputs!$C$68:$AN$68,0),FALSE))","v":0},null,null,null,null,null,null,null,{"$f":"B716","v":"Lamp UNIT price Annualised Cost"},{"$f":"IF(E716=\"NA\",\"\",E716/R$2*100)","v":0},{"$f":"IF(F716=\"NA\",\"\",F716/S$2*100)","v":0},{"$f":"IF(G716=\"NA\",\"\",G716/T$2*100)","v":0},{"$f":"IF(H716=\"NA\",\"\",H716/U$2*100)","v":0},{"$f":"IF(I716=\"NA\",\"\",I716/V$2*100)","v":0}]
[null,{"$f":"Inputs!$K$68","v":"PE Cell UNIT price Annualised Cost"},{"$f":"Inputs!$I$68","v":"PE Cell Maintenance Cycle"},null,{"$f":"IF($B715=\"Blank\",0,VLOOKUP($B715,Inputs!$C$68:$AN$129,MATCH($B717,Inputs!$C$68:$AN$68,0),FALSE))","v":0.84654871962400013},{"$f":"IF($B715=\"Blank\",0,VLOOKUP($B715,Inputs!$C$68:$AN$129,MATCH($B717,Inputs!$C$68:$AN$68,0),FALSE))","v":0.84654871962400013},{"$f":"IF($B715=\"Blank\",0,VLOOKUP($B715,Inputs!$C$68:$AN$129,MATCH($B717,Inputs!$C$68:$AN$68,0),FALSE))","v":0.84654871962400013},{"$f":"IF($B715=\"Blank\",0,VLOOKUP($B715,Inputs!$C$68:$AN$129,MATCH($B717,Inputs!$C$68:$AN$68,0),FALSE))","v":0.84654871962400013},{"$f":"IF($B715=\"Blank\",0,VLOOKUP($B715,Inputs!$C$68:$AN$129,MATCH($B717,Inputs!$C$68:$AN$68,0),FALSE))","v":0.84654871962400013},null,null,null,null,null,null,null,"PE Cell UNIT price Annualised Cost",0.23129746437814211,0.23193115606136988,0.23193115606136988,0.23193115606136988,0.23129746437814211]
[null,"Corp capex annuity per light",null,null,{"$f":"IF($B715=\"Blank\",0,'Corp Capex Annuity calcs'!F$142)","v":18.582309905017571},{"$f":"IF($B715=\"Blank\",0,'Corp Capex Annuity calcs'!G$142)","v":18.552026408230436},{"$f":"IF($B715=\"Blank\",0,'Corp Capex Annuity calcs'!H$142)","v":18.401377631486287},{"$f":"IF($B715=\"Blank\",0,'Corp Capex Annuity calcs'!I$142)","v":18.205761940470655},{"$f":"IF($B715=\"Blank\",0,'Corp Capex Annuity calcs'!J$142)","v":17.995165449295623},null,null,null,null,null,null,null,"Corp capex annuity per light",5.0771338538299373,5.0827469611590237,5.0414733236948734,4.9878799836905907,4.9167118713922466]
[null,{"$f":"Inputs!$U$68","v":"Lamp Service costs Annualised"},"Labour Portion of Lamp Service costs annualised",null,{"$f":"IF($B715=\"Blank\",0,VLOOKUP($B715,Inputs!$C$68:$AN$129,MATCH($B719,Inputs!$C$68:$AN$68,0),FALSE))+IFERROR(IF($B715=\"Blank\",0,VLOOKUP($B715,Inputs!$C$68:$AN$129,MATCH($C719,Inputs!$C$68:$AN$68,0),FALSE))*('Master Data'!K$42),0)","v":0},{"$f":"IF($B715=\"Blank\",0,VLOOKUP($B715,Inputs!$C$68:$AN$129,MATCH($B719,Inputs!$C$68:$AN$68,0),FALSE))+IFERROR(IF($B715=\"Blank\",0,VLOOKUP($B715,Inputs!$C$68:$AN$129,MATCH($C719,Inputs!$C$68:$AN$68,0),FALSE))*('Master Data'!L$42),0)","v":0},{"$f":"IF($B715=\"Blank\",0,VLOOKUP($B715,Inputs!$C$68:$AN$129,MATCH($B719,Inputs!$C$68:$AN$68,0),FALSE))+IFERROR(IF($B715=\"Blank\",0,VLOOKUP($B715,Inputs!$C$68:$AN$129,MATCH($C719,Inputs!$C$68:$AN$68,0),FALSE))*('Master Data'!M$42),0)","v":0},{"$f":"IF($B715=\"Blank\",0,VLOOKUP($B715,Inputs!$C$68:$AN$129,MATCH($B719,Inputs!$C$68:$AN$68,0),FALSE))+IFERROR(IF($B715=\"Blank\",0,VLOOKUP($B715,Inputs!$C$68:$AN$129,MATCH($C719,Inputs!$C$68:$AN$68,0),FALSE))*('Master Data'!N$42),0)","v":0},{"$f":"IF($B715=\"Blank\",0,VLOOKUP($B715,Inputs!$C$68:$AN$129,MATCH($B719,Inputs!$C$68:$AN$68,0),FALSE))+IFERROR(IF($B715=\"Blank\",0,VLOOKUP($B715,Inputs!$C$68:$AN$129,MATCH($C719,Inputs!$C$68:$AN$68,0),FALSE))*('Master Data'!O$42),0)","v":0},null,null,null,null,null,null,null,"Lamp Service costs Annualised",0,0,0,0,0]
[null,{"$f":"Inputs!$M$68","v":"PE Cell Service costs Annualised"},"Labour Portion of PE Cell Service costs Annualised",null,{"$f":"IF($B715=\"Blank\",0,VLOOKUP($B715,Inputs!$C$68:$AN$129,MATCH($B720,Inputs!$C$68:$AN$68,0),FALSE))+IFERROR(IF($B715=\"Blank\",0,VLOOKUP($B715,Inputs!$C$68:$AN$129,MATCH($C720,Inputs!$C$68:$AN$68,0),FALSE))*('Master Data'!K$42),0)","v":6.0318725099601611},{"$f":"IF($B715=\"Blank\",0,VLOOKUP($B715,Inputs!$C$68:$AN$129,MATCH($B720,Inputs!$C$68:$AN$68,0),FALSE))+IFERROR(IF($B715=\"Blank\",0,VLOOKUP($B715,Inputs!$C$68:$AN$129,MATCH($C720,Inputs!$C$68:$AN$68,0),FALSE))*('Master Data'!L$42),0)","v":6.0327558565737069},{"$f":"IF($B715=\"Blank\",0,VLOOKUP($B715,Inputs!$C$68:$AN$129,MATCH($B720,Inputs!$C$68:$AN$68,0),FALSE))+IFERROR(IF($B715=\"Blank\",0,VLOOKUP($B715,Inputs!$C$68:$AN$129,MATCH($C720,Inputs!$C$68:$AN$68,0),FALSE))*('Master Data'!M$42),0)","v":6.034103171394424},{"$f":"IF($B715=\"Blank\",0,VLOOKUP($B715,Inputs!$C$68:$AN$129,MATCH($B720,Inputs!$C$68:$AN$68,0),FALSE))+IFERROR(IF($B715=\"Blank\",0,VLOOKUP($B715,Inputs!$C$68:$AN$129,MATCH($C720,Inputs!$C$68:$AN$68,0),FALSE))*('Master Data'!N$42),0)","v":6.0357642373421774},{"$f":"IF($B715=\"Blank\",0,VLOOKUP($B715,Inputs!$C$68:$AN$129,MATCH($B720,Inputs!$C$68:$AN$68,0),FALSE))+IFERROR(IF($B715=\"Blank\",0,VLOOKUP($B715,Inputs!$C$68:$AN$129,MATCH($C720,Inputs!$C$68:$AN$68,0),FALSE))*('Master Data'!O$42),0)","v":6.0377040147041869},null,null,null,null,null,null,null,"PE Cell Service costs Annualised",1.6480525983497707,1.652809823718824,1.6531789510669654,1.6536340376279939,1.6496459056568817]
[null,"Indirect Opex",null,null,{"$f":"IF($B715=\"Blank\",0,IF($B$8=\"Private Contract Lighting\",'Opex Weighting'!D$48,'Opex Weighting'!D$46))","v":25.762407087322877},{"$f":"IF($B715=\"Blank\",0,IF($B$8=\"Private Contract Lighting\",'Opex Weighting'!E$48,'Opex Weighting'!E$46))","v":25.880403763800857},{"$f":"IF($B715=\"Blank\",0,IF($B$8=\"Private Contract Lighting\",'Opex Weighting'!F$48,'Opex Weighting'!F$46))","v":20.013740175030701},{"$f":"IF($B715=\"Blank\",0,IF($B$8=\"Private Contract Lighting\",'Opex Weighting'!G$48,'Opex Weighting'!G$46))","v":19.55949970528431},{"$f":"IF($B715=\"Blank\",0,IF($B$8=\"Private Contract Lighting\",'Opex Weighting'!H$48,'Opex Weighting'!H$46))","v":19.096814305933613},null,null,null,null,null,null,null,"Indirect Opex",7.0389090402521521,7.0905215791235223,5.4832164863097814,5.3587670425436471,5.2177088267578178]
[null,"Indirect Capex",null,null,{"$f":"'Capex Weighting'!D$59","v":0},{"$f":"'Capex Weighting'!E$59","v":0},{"$f":"'Capex Weighting'!F$59","v":0},{"$f":"'Capex Weighting'!G$59","v":0},{"$f":"'Capex Weighting'!H$59","v":0},null,null,null,null,null,null,null,"Indirect Capex",0,0,0,0,0]
[null,"Opex Overheads Costs per light",null,null,{"$f":"IF($B715=\"Blank\",0,IF($B$8=\"Private Contract Lighting\",'Building Block'!C$40,'Building Block'!C$39))","v":32.224036557323004},{"$f":"IF($B715=\"Blank\",0,IF($B$8=\"Private Contract Lighting\",'Building Block'!D$40,'Building Block'!D$39))","v":31.278075996100256},{"$f":"IF($B715=\"Blank\",0,IF($B$8=\"Private Contract Lighting\",'Building Block'!E$40,'Building Block'!E$39))","v":21.467987799581408},{"$f":"IF($B715=\"Blank\",0,IF($B$8=\"Private Contract Lighting\",'Building Block'!F$40,'Building Block'!F$39))","v":21.22771925228782},{"$f":"IF($B715=\"Blank\",0,IF($B$8=\"Private Contract Lighting\",'Building Block'!G$40,'Building Block'!G$39))","v":21.210892633443169},null,null,null,null,null,null,null,"Opex Overheads Costs per light",8.8043815730390715,8.5693358893425362,5.8816404930360022,5.815813493777485,5.7953258561320133]
[null,{"$f":"Inputs!$AK$68","v":"Bracket UNIT price"},0,null,{"$f":"IF($B715=\"Blank\",0,OFFSET('CAPEX Annuity calcs'!$B$9,MATCH($B715,'CAPEX Annuity calcs'!$B$9:$B$500,0)+$C724,E$6))","v":4.2012897394372093},{"$f":"IF($B715=\"Blank\",0,OFFSET('CAPEX Annuity calcs'!$B$9,MATCH($B715,'CAPEX Annuity calcs'!$B$9:$B$500,0)+$C724,F$6))","v":4.2012897394372093},{"$f":"IF($B715=\"Blank\",0,OFFSET('CAPEX Annuity calcs'!$B$9,MATCH($B715,'CAPEX Annuity calcs'!$B$9:$B$500,0)+$C724,G$6))","v":4.2012897394372093},{"$f":"IF($B715=\"Blank\",0,OFFSET('CAPEX Annuity calcs'!$B$9,MATCH($B715,'CAPEX Annuity calcs'!$B$9:$B$500,0)+$C724,H$6))","v":4.2012897394372093},{"$f":"IF($B715=\"Blank\",0,OFFSET('CAPEX Annuity calcs'!$B$9,MATCH($B715,'CAPEX Annuity calcs'!$B$9:$B$500,0)+$C724,I$6))","v":4.2012897394372093},null,null,null,null,null,null,null,"Bracket UNIT price",1.1478933714309314,1.1510382847773175,1.1510382847773175,1.1510382847773175,1.1478933714309314]
[null,{"$f":"Inputs!$AA$68","v":"CAPEX Instalation costs"},{"$f":"C724+1","v":1},null,{"$f":"IF($B715=\"Blank\",0,OFFSET('CAPEX Annuity calcs'!$B$9,MATCH($B715,'CAPEX Annuity calcs'!$B$9:$B$500,0)+$C725,E$6))","v":0},{"$f":"IF($B715=\"Blank\",0,OFFSET('CAPEX Annuity calcs'!$B$9,MATCH($B715,'CAPEX Annuity calcs'!$B$9:$B$500,0)+$C725,F$6))","v":0},{"$f":"IF($B715=\"Blank\",0,OFFSET('CAPEX Annuity calcs'!$B$9,MATCH($B715,'CAPEX Annuity calcs'!$B$9:$B$500,0)+$C725,G$6))","v":0},{"$f":"IF($B715=\"Blank\",0,OFFSET('CAPEX Annuity calcs'!$B$9,MATCH($B715,'CAPEX Annuity calcs'!$B$9:$B$500,0)+$C725,H$6))","v":0},{"$f":"IF($B715=\"Blank\",0,OFFSET('CAPEX Annuity calcs'!$B$9,MATCH($B715,'CAPEX Annuity calcs'!$B$9:$B$500,0)+$C725,I$6))","v":0},null,null,null,null,null,null,null,"CAPEX Instalation costs",0,0,0,0,0]
[null,{"$f":"Inputs!$Z$68","v":"Luminaire UNIT price"},{"$f":"C725+1","v":2},null,{"$f":"IF($B715=\"Blank\",0,OFFSET('CAPEX Annuity calcs'!$B$9,MATCH($B715,'CAPEX Annuity calcs'!$B$9:$B$500,0)+$C726,E$6))","v":18.914114486484959},{"$f":"IF($B715=\"Blank\",0,OFFSET('CAPEX Annuity calcs'!$B$9,MATCH($B715,'CAPEX Annuity calcs'!$B$9:$B$500,0)+$C726,F$6))","v":18.914114486484959},{"$f":"IF($B715=\"Blank\",0,OFFSET('CAPEX Annuity calcs'!$B$9,MATCH($B715,'CAPEX Annuity calcs'!$B$9:$B$500,0)+$C726,G$6))","v":18.914114486484959},{"$f":"IF($B715=\"Blank\",0,OFFSET('CAPEX Annuity calcs'!$B$9,MATCH($B715,'CAPEX Annuity calcs'!$B$9:$B$500,0)+$C726,H$6))","v":18.914114486484959},{"$f":"IF($B715=\"Blank\",0,OFFSET('CAPEX Annuity calcs'!$B$9,MATCH($B715,'CAPEX Annuity calcs'!$B$9:$B$500,0)+$C726,I$6))","v":18.914114486484959},null,null,null,null,null,null,null,"Luminaire UNIT price",5.1677908433019013,5.181949174379441,5.181949174379441,5.181949174379441,5.1677908433019013]
[null,{"$f":"Inputs!$AA$68","v":"CAPEX Instalation costs"},3,null,{"$f":"IF($B715=\"Blank\",0,OFFSET('CAPEX Annuity calcs'!$B$9,MATCH($B715,'CAPEX Annuity calcs'!$B$9:$B$500,0)+$C727,E$6))","v":18.736141709912243},{"$f":"IF($B715=\"Blank\",0,OFFSET('CAPEX Annuity calcs'!$B$9,MATCH($B715,'CAPEX Annuity calcs'!$B$9:$B$500,0)+$C727,F$6))","v":18.74779128716041},{"$f":"IF($B715=\"Blank\",0,OFFSET('CAPEX Annuity calcs'!$B$9,MATCH($B715,'CAPEX Annuity calcs'!$B$9:$B$500,0)+$C727,G$6))","v":18.765559678232343},{"$f":"IF($B715=\"Blank\",0,OFFSET('CAPEX Annuity calcs'!$B$9,MATCH($B715,'CAPEX Annuity calcs'!$B$9:$B$500,0)+$C727,H$6))","v":18.787465819916616},{"$f":"IF($B715=\"Blank\",0,OFFSET('CAPEX Annuity calcs'!$B$9,MATCH($B715,'CAPEX Annuity calcs'!$B$9:$B$500,0)+$C727,I$6))","v":18.813047608397444},null,null,null,null,null,null,null,"CAPEX Instalation costs",5.1191644016153672,5.1363811745644954,5.1412492269129713,5.1472509095661954,5.1401769421850938]
[null,null,null,null,{"$f":"SUM(E716:E727)","v":125.29872071508203},{"$f":"SUM(F716:F727)","v":124.45300625741184},108.64472140127134,107.77816390084776,107.1155769573202,null,null,null,null,null,null,null,null,{"$f":"ROUND(E728/R$2*100,3)","v":34.234999999999999},{"$f":"ROUND(F728/S$2*100,3)","v":34.097000000000001},{"$f":"ROUND(G728/T$2*100,3)","v":29.765999999999998},{"$f":"ROUND(H728/U$2*100,3)","v":29.527999999999999},{"$f":"ROUND(I728/V$2*100,3)","v":29.266999999999999}]
[]
[{"$f":"A715+1","v":49},{"$f":"IFERROR(VLOOKUP($A730,Inputs!$B$68:$AN$129,MATCH($B$7,Inputs!$B$68:$AN$68,0),FALSE),\"Blank\")","v":"New technology - Major"},null,null,null,null,null,null,null,null,null,null,null,null,null,null,{"$f":"IFERROR(VLOOKUP($A730,Inputs!$B$68:$AN$129,MATCH($B$7,Inputs!$B$68:$AN$68,0),FALSE),\"Blank\")","v":"New technology - Major"}]
[null,{"$f":"Inputs!$S$68","v":"Lamp UNIT price Annualised Cost"},{"$f":"Inputs!$Q$68","v":"Lamp Maintenance cycle"},null,{"$f":"IF($B730=\"Blank\",0,VLOOKUP($B730,Inputs!$C$68:$AN$129,MATCH($B731,Inputs!$C$68:$AN$68,0),FALSE))","v":0},{"$f":"IF($B730=\"Blank\",0,VLOOKUP($B730,Inputs!$C$68:$AN$129,MATCH($B731,Inputs!$C$68:$AN$68,0),FALSE))","v":0},{"$f":"IF($B730=\"Blank\",0,VLOOKUP($B730,Inputs!$C$68:$AN$129,MATCH($B731,Inputs!$C$68:$AN$68,0),FALSE))","v":0},{"$f":"IF($B730=\"Blank\",0,VLOOKUP($B730,Inputs!$C$68:$AN$129,MATCH($B731,Inputs!$C$68:$AN$68,0),FALSE))","v":0},{"$f":"IF($B730=\"Blank\",0,VLOOKUP($B730,Inputs!$C$68:$AN$129,MATCH($B731,Inputs!$C$68:$AN$68,0),FALSE))","v":0},null,null,null,null,null,null,null,{"$f":"B731","v":"Lamp UNIT price Annualised Cost"},{"$f":"IF(E731=\"NA\",\"\",E731/R$2*100)","v":0},{"$f":"IF(F731=\"NA\",\"\",F731/S$2*100)","v":0},{"$f":"IF(G731=\"NA\",\"\",G731/T$2*100)","v":0},{"$f":"IF(H731=\"NA\",\"\",H731/U$2*100)","v":0},{"$f":"IF(I731=\"NA\",\"\",I731/V$2*100)","v":0}]
[null,{"$f":"Inputs!$K$68","v":"PE Cell UNIT price Annualised Cost"},{"$f":"Inputs!$I$68","v":"PE Cell Maintenance Cycle"},null,{"$f":"IF($B730=\"Blank\",0,VLOOKUP($B730,Inputs!$C$68:$AN$129,MATCH($B732,Inputs!$C$68:$AN$68,0),FALSE))","v":0.84654871962400013},{"$f":"IF($B730=\"Blank\",0,VLOOKUP($B730,Inputs!$C$68:$AN$129,MATCH($B732,Inputs!$C$68:$AN$68,0),FALSE))","v":0.84654871962400013},{"$f":"IF($B730=\"Blank\",0,VLOOKUP($B730,Inputs!$C$68:$AN$129,MATCH($B732,Inputs!$C$68:$AN$68,0),FALSE))","v":0.84654871962400013},{"$f":"IF($B730=\"Blank\",0,VLOOKUP($B730,Inputs!$C$68:$AN$129,MATCH($B732,Inputs!$C$68:$AN$68,0),FALSE))","v":0.84654871962400013},{"$f":"IF($B730=\"Blank\",0,VLOOKUP($B730,Inputs!$C$68:$AN$129,MATCH($B732,Inputs!$C$68:$AN$68,0),FALSE))","v":0.84654871962400013},null,null,null,null,null,null,null,"PE Cell UNIT price Annualised Cost",0.23129746437814211,0.23193115606136988,0.23193115606136988,0.23193115606136988,0.23129746437814211]
[null,"Corp capex annuity per light",null,null,{"$f":"IF($B730=\"Blank\",0,'Corp Capex Annuity calcs'!F$142)","v":18.582309905017571},{"$f":"IF($B730=\"Blank\",0,'Corp Capex Annuity calcs'!G$142)","v":18.552026408230436},{"$f":"IF($B730=\"Blank\",0,'Corp Capex Annuity calcs'!H$142)","v":18.401377631486287},{"$f":"IF($B730=\"Blank\",0,'Corp Capex Annuity calcs'!I$142)","v":18.205761940470655},{"$f":"IF($B730=\"Blank\",0,'Corp Capex Annuity calcs'!J$142)","v":17.995165449295623},null,null,null,null,null,null,null,"Corp capex annuity per light",5.0771338538299373,5.0827469611590237,5.0414733236948734,4.9878799836905907,4.9167118713922466]
[null,{"$f":"Inputs!$U$68","v":"Lamp Service costs Annualised"},"Labour Portion of Lamp Service costs annualised",null,{"$f":"IF($B730=\"Blank\",0,VLOOKUP($B730,Inputs!$C$68:$AN$129,MATCH($B734,Inputs!$C$68:$AN$68,0),FALSE))+IFERROR(IF($B730=\"Blank\",0,VLOOKUP($B730,Inputs!$C$68:$AN$129,MATCH($C734,Inputs!$C$68:$AN$68,0),FALSE))*('Master Data'!K$42),0)","v":0},{"$f":"IF($B730=\"Blank\",0,VLOOKUP($B730,Inputs!$C$68:$AN$129,MATCH($B734,Inputs!$C$68:$AN$68,0),FALSE))+IFERROR(IF($B730=\"Blank\",0,VLOOKUP($B730,Inputs!$C$68:$AN$129,MATCH($C734,Inputs!$C$68:$AN$68,0),FALSE))*('Master Data'!L$42),0)","v":0},{"$f":"IF($B730=\"Blank\",0,VLOOKUP($B730,Inputs!$C$68:$AN$129,MATCH($B734,Inputs!$C$68:$AN$68,0),FALSE))+IFERROR(IF($B730=\"Blank\",0,VLOOKUP($B730,Inputs!$C$68:$AN$129,MATCH($C734,Inputs!$C$68:$AN$68,0),FALSE))*('Master Data'!M$42),0)","v":0},{"$f":"IF($B730=\"Blank\",0,VLOOKUP($B730,Inputs!$C$68:$AN$129,MATCH($B734,Inputs!$C$68:$AN$68,0),FALSE))+IFERROR(IF($B730=\"Blank\",0,VLOOKUP($B730,Inputs!$C$68:$AN$129,MATCH($C734,Inputs!$C$68:$AN$68,0),FALSE))*('Master Data'!N$42),0)","v":0},{"$f":"IF($B730=\"Blank\",0,VLOOKUP($B730,Inputs!$C$68:$AN$129,MATCH($B734,Inputs!$C$68:$AN$68,0),FALSE))+IFERROR(IF($B730=\"Blank\",0,VLOOKUP($B730,Inputs!$C$68:$AN$129,MATCH($C734,Inputs!$C$68:$AN$68,0),FALSE))*('Master Data'!O$42),0)","v":0},null,null,null,null,null,null,null,"Lamp Service costs Annualised",0,0,0,0,0]
[null,{"$f":"Inputs!$M$68","v":"PE Cell Service costs Annualised"},"Labour Portion of PE Cell Service costs Annualised",null,{"$f":"IF($B730=\"Blank\",0,VLOOKUP($B730,Inputs!$C$68:$AN$129,MATCH($B735,Inputs!$C$68:$AN$68,0),FALSE))+IFERROR(IF($B730=\"Blank\",0,VLOOKUP($B730,Inputs!$C$68:$AN$129,MATCH($C735,Inputs!$C$68:$AN$68,0),FALSE))*('Master Data'!K$42),0)","v":8.7303417907318117},{"$f":"IF($B730=\"Blank\",0,VLOOKUP($B730,Inputs!$C$68:$AN$129,MATCH($B735,Inputs!$C$68:$AN$68,0),FALSE))+IFERROR(IF($B730=\"Blank\",0,VLOOKUP($B730,Inputs!$C$68:$AN$129,MATCH($C735,Inputs!$C$68:$AN$68,0),FALSE))*('Master Data'!L$42),0)","v":8.7316203187251009},{"$f":"IF($B730=\"Blank\",0,VLOOKUP($B730,Inputs!$C$68:$AN$129,MATCH($B735,Inputs!$C$68:$AN$68,0),FALSE))+IFERROR(IF($B730=\"Blank\",0,VLOOKUP($B730,Inputs!$C$68:$AN$129,MATCH($C735,Inputs!$C$68:$AN$68,0),FALSE))*('Master Data'!M$42),0)","v":8.733570379649823},{"$f":"IF($B730=\"Blank\",0,VLOOKUP($B730,Inputs!$C$68:$AN$129,MATCH($B735,Inputs!$C$68:$AN$68,0),FALSE))+IFERROR(IF($B730=\"Blank\",0,VLOOKUP($B730,Inputs!$C$68:$AN$129,MATCH($C735,Inputs!$C$68:$AN$68,0),FALSE))*('Master Data'!N$42),0)","v":8.7359745540478873},{"$f":"IF($B730=\"Blank\",0,VLOOKUP($B730,Inputs!$C$68:$AN$129,MATCH($B735,Inputs!$C$68:$AN$68,0),FALSE))+IFERROR(IF($B730=\"Blank\",0,VLOOKUP($B730,Inputs!$C$68:$AN$129,MATCH($C735,Inputs!$C$68:$AN$68,0),FALSE))*('Master Data'!O$42),0)","v":8.7387821265455337},null,null,null,null,null,null,null,"PE Cell Service costs Annualised",2.3853392870851944,2.392224744856192,2.3927590081232393,2.3934176860405172,2.3876453897665391]
[null,"Indirect Opex",null,null,{"$f":"IF($B730=\"Blank\",0,IF($B$8=\"Private Contract Lighting\",'Opex Weighting'!D$48,'Opex Weighting'!D$46))","v":25.762407087322877},{"$f":"IF($B730=\"Blank\",0,IF($B$8=\"Private Contract Lighting\",'Opex Weighting'!E$48,'Opex Weighting'!E$46))","v":25.880403763800857},{"$f":"IF($B730=\"Blank\",0,IF($B$8=\"Private Contract Lighting\",'Opex Weighting'!F$48,'Opex Weighting'!F$46))","v":20.013740175030701},{"$f":"IF($B730=\"Blank\",0,IF($B$8=\"Private Contract Lighting\",'Opex Weighting'!G$48,'Opex Weighting'!G$46))","v":19.55949970528431},{"$f":"IF($B730=\"Blank\",0,IF($B$8=\"Private Contract Lighting\",'Opex Weighting'!H$48,'Opex Weighting'!H$46))","v":19.096814305933613},null,null,null,null,null,null,null,"Indirect Opex",7.0389090402521521,7.0905215791235223,5.4832164863097814,5.3587670425436471,5.2177088267578178]
[null,"Indirect Capex",null,null,{"$f":"'Capex Weighting'!D$59","v":0},{"$f":"'Capex Weighting'!E$59","v":0},{"$f":"'Capex Weighting'!F$59","v":0},{"$f":"'Capex Weighting'!G$59","v":0},{"$f":"'Capex Weighting'!H$59","v":0},null,null,null,null,null,null,null,"Indirect Capex",0,0,0,0,0]
[null,"Opex Overheads Costs per light",null,null,{"$f":"IF($B730=\"Blank\",0,IF($B$8=\"Private Contract Lighting\",'Building Block'!C$40,'Building Block'!C$39))","v":32.224036557323004},{"$f":"IF($B730=\"Blank\",0,IF($B$8=\"Private Contract Lighting\",'Building Block'!D$40,'Building Block'!D$39))","v":31.278075996100256},{"$f":"IF($B730=\"Blank\",0,IF($B$8=\"Private Contract Lighting\",'Building Block'!E$40,'Building Block'!E$39))","v":21.467987799581408},{"$f":"IF($B730=\"Blank\",0,IF($B$8=\"Private Contract Lighting\",'Building Block'!F$40,'Building Block'!F$39))","v":21.22771925228782},{"$f":"IF($B730=\"Blank\",0,IF($B$8=\"Private Contract Lighting\",'Building Block'!G$40,'Building Block'!G$39))","v":21.210892633443169},null,null,null,null,null,null,null,"Opex Overheads Costs per light",8.8043815730390715,8.5693358893425362,5.8816404930360022,5.815813493777485,5.7953258561320133]
[null,{"$f":"Inputs!$AK$68","v":"Bracket UNIT price"},0,null,{"$f":"IF($B730=\"Blank\",0,OFFSET('CAPEX Annuity calcs'!$B$9,MATCH($B730,'CAPEX Annuity calcs'!$B$9:$B$500,0)+$C739,E$6))","v":9.6313933001632801},{"$f":"IF($B730=\"Blank\",0,OFFSET('CAPEX Annuity calcs'!$B$9,MATCH($B730,'CAPEX Annuity calcs'!$B$9:$B$500,0)+$C739,F$6))","v":9.6313933001632801},{"$f":"IF($B730=\"Blank\",0,OFFSET('CAPEX Annuity calcs'!$B$9,MATCH($B730,'CAPEX Annuity calcs'!$B$9:$B$500,0)+$C739,G$6))","v":9.6313933001632801},{"$f":"IF($B730=\"Blank\",0,OFFSET('CAPEX Annuity calcs'!$B$9,MATCH($B730,'CAPEX Annuity calcs'!$B$9:$B$500,0)+$C739,H$6))","v":9.6313933001632801},{"$f":"IF($B730=\"Blank\",0,OFFSET('CAPEX Annuity calcs'!$B$9,MATCH($B730,'CAPEX Annuity calcs'!$B$9:$B$500,0)+$C739,I$6))","v":9.6313933001632801},null,null,null,null,null,null,null,"Bracket UNIT price",2.6315282240883278,2.6387378904556931,2.6387378904556931,2.6387378904556931,2.6315282240883278]
[null,{"$f":"Inputs!$AA$68","v":"CAPEX Instalation costs"},{"$f":"C739+1","v":1},null,{"$f":"IF($B730=\"Blank\",0,OFFSET('CAPEX Annuity calcs'!$B$9,MATCH($B730,'CAPEX Annuity calcs'!$B$9:$B$500,0)+$C740,E$6))","v":0},{"$f":"IF($B730=\"Blank\",0,OFFSET('CAPEX Annuity calcs'!$B$9,MATCH($B730,'CAPEX Annuity calcs'!$B$9:$B$500,0)+$C740,F$6))","v":0},{"$f":"IF($B730=\"Blank\",0,OFFSET('CAPEX Annuity calcs'!$B$9,MATCH($B730,'CAPEX Annuity calcs'!$B$9:$B$500,0)+$C740,G$6))","v":0},{"$f":"IF($B730=\"Blank\",0,OFFSET('CAPEX Annuity calcs'!$B$9,MATCH($B730,'CAPEX Annuity calcs'!$B$9:$B$500,0)+$C740,H$6))","v":0},{"$f":"IF($B730=\"Blank\",0,OFFSET('CAPEX Annuity calcs'!$B$9,MATCH($B730,'CAPEX Annuity calcs'!$B$9:$B$500,0)+$C740,I$6))","v":0},null,null,null,null,null,null,null,"CAPEX Instalation costs",0,0,0,0,0]
[null,{"$f":"Inputs!$Z$68","v":"Luminaire UNIT price"},{"$f":"C740+1","v":2},null,{"$f":"IF($B730=\"Blank\",0,OFFSET('CAPEX Annuity calcs'!$B$9,MATCH($B730,'CAPEX Annuity calcs'!$B$9:$B$500,0)+$C741,E$6))","v":41.989334159996602},{"$f":"IF($B730=\"Blank\",0,OFFSET('CAPEX Annuity calcs'!$B$9,MATCH($B730,'CAPEX Annuity calcs'!$B$9:$B$500,0)+$C741,F$6))","v":41.989334159996602},{"$f":"IF($B730=\"Blank\",0,OFFSET('CAPEX Annuity calcs'!$B$9,MATCH($B730,'CAPEX Annuity calcs'!$B$9:$B$500,0)+$C741,G$6))","v":41.989334159996602},{"$f":"IF($B730=\"Blank\",0,OFFSET('CAPEX Annuity calcs'!$B$9,MATCH($B730,'CAPEX Annuity calcs'!$B$9:$B$500,0)+$C741,H$6))","v":41.989334159996602},{"$f":"IF($B730=\"Blank\",0,OFFSET('CAPEX Annuity calcs'!$B$9,MATCH($B730,'CAPEX Annuity calcs'!$B$9:$B$500,0)+$C741,I$6))","v":41.989334159996602},null,null,null,null,null,null,null,"Luminaire UNIT price",11.472495672130218,11.503927167122356,11.503927167122356,11.503927167122356,11.472495672130218]
[null,{"$f":"Inputs!$AA$68","v":"CAPEX Instalation costs"},3,null,{"$f":"IF($B730=\"Blank\",0,OFFSET('CAPEX Annuity calcs'!$B$9,MATCH($B730,'CAPEX Annuity calcs'!$B$9:$B$500,0)+$C742,E$6))","v":29.489604830309908},{"$f":"IF($B730=\"Blank\",0,OFFSET('CAPEX Annuity calcs'!$B$9,MATCH($B730,'CAPEX Annuity calcs'!$B$9:$B$500,0)+$C742,F$6))","v":29.507480464650605},{"$f":"IF($B730=\"Blank\",0,OFFSET('CAPEX Annuity calcs'!$B$9,MATCH($B730,'CAPEX Annuity calcs'!$B$9:$B$500,0)+$C742,G$6))","v":29.534745081628376},{"$f":"IF($B730=\"Blank\",0,OFFSET('CAPEX Annuity calcs'!$B$9,MATCH($B730,'CAPEX Annuity calcs'!$B$9:$B$500,0)+$C742,H$6))","v":29.568358848911217},{"$f":"IF($B730=\"Blank\",0,OFFSET('CAPEX Annuity calcs'!$B$9,MATCH($B730,'CAPEX Annuity calcs'!$B$9:$B$500,0)+$C742,I$6))","v":29.607612693657906},null,null,null,null,null,null,null,"CAPEX Instalation costs",8.0572690793196475,8.0842412231919472,8.0917109812680472,8.1009202325784155,8.0895116649338537]
[null,null,null,null,{"$f":"SUM(E731:E742)","v":167.25597635048905},{"$f":"SUM(F731:F742)","v":166.41688313129112},150.6186972471605,149.76459048078578,149.11654338865972,null,null,null,null,null,null,null,null,{"$f":"ROUND(E743/R$2*100,3)","v":45.698},{"$f":"ROUND(F743/S$2*100,3)","v":45.594000000000001},{"$f":"ROUND(G743/T$2*100,3)","v":41.265000000000001},{"$f":"ROUND(H743/U$2*100,3)","v":41.030999999999999},{"$f":"ROUND(I743/V$2*100,3)","v":40.741999999999997}]
[]
[{"$f":"A730+1","v":50},{"$f":"IFERROR(VLOOKUP($A745,Inputs!$B$68:$AN$129,MATCH($B$7,Inputs!$B$68:$AN$68,0),FALSE),\"Blank\")","v":"Blank"},null,null,null,null,null,null,null,null,null,null,null,null,null,null,{"$f":"IFERROR(VLOOKUP($A745,Inputs!$B$68:$AN$129,MATCH($B$7,Inputs!$B$68:$AN$68,0),FALSE),\"Blank\")","v":"Blank"}]
[null,{"$f":"Inputs!$S$68","v":"Lamp UNIT price Annualised Cost"},{"$f":"Inputs!$Q$68","v":"Lamp Maintenance cycle"},null,{"$f":"IF($B745=\"Blank\",0,VLOOKUP($B745,Inputs!$C$68:$AN$129,MATCH($B746,Inputs!$C$68:$AN$68,0),FALSE))","v":0},{"$f":"IF($B745=\"Blank\",0,VLOOKUP($B745,Inputs!$C$68:$AN$129,MATCH($B746,Inputs!$C$68:$AN$68,0),FALSE))","v":0},{"$f":"IF($B745=\"Blank\",0,VLOOKUP($B745,Inputs!$C$68:$AN$129,MATCH($B746,Inputs!$C$68:$AN$68,0),FALSE))","v":0},{"$f":"IF($B745=\"Blank\",0,VLOOKUP($B745,Inputs!$C$68:$AN$129,MATCH($B746,Inputs!$C$68:$AN$68,0),FALSE))","v":0},{"$f":"IF($B745=\"Blank\",0,VLOOKUP($B745,Inputs!$C$68:$AN$129,MATCH($B746,Inputs!$C$68:$AN$68,0),FALSE))","v":0},null,null,null,null,null,null,null,{"$f":"B746","v":"Lamp UNIT price Annualised Cost"},{"$f":"IF(E746=\"NA\",\"\",E746/R$2*100)","v":0},{"$f":"IF(F746=\"NA\",\"\",F746/S$2*100)","v":0},{"$f":"IF(G746=\"NA\",\"\",G746/T$2*100)","v":0},{"$f":"IF(H746=\"NA\",\"\",H746/U$2*100)","v":0},{"$f":"IF(I746=\"NA\",\"\",I746/V$2*100)","v":0}]
[null,{"$f":"Inputs!$K$68","v":"PE Cell UNIT price Annualised Cost"},{"$f":"Inputs!$I$68","v":"PE Cell Maintenance Cycle"},null,{"$f":"IF($B745=\"Blank\",0,VLOOKUP($B745,Inputs!$C$68:$AN$129,MATCH($B747,Inputs!$C$68:$AN$68,0),FALSE))","v":0},{"$f":"IF($B745=\"Blank\",0,VLOOKUP($B745,Inputs!$C$68:$AN$129,MATCH($B747,Inputs!$C$68:$AN$68,0),FALSE))","v":0},{"$f":"IF($B745=\"Blank\",0,VLOOKUP($B745,Inputs!$C$68:$AN$129,MATCH($B747,Inputs!$C$68:$AN$68,0),FALSE))","v":0},{"$f":"IF($B745=\"Blank\",0,VLOOKUP($B745,Inputs!$C$68:$AN$129,MATCH($B747,Inputs!$C$68:$AN$68,0),FALSE))","v":0},{"$f":"IF($B745=\"Blank\",0,VLOOKUP($B745,Inputs!$C$68:$AN$129,MATCH($B747,Inputs!$C$68:$AN$68,0),FALSE))","v":0},null,null,null,null,null,null,null,"PE Cell UNIT price Annualised Cost",0,0,0,0,0]
[null,"Corp capex annuity per light",null,null,{"$f":"IF($B745=\"Blank\",0,'Corp Capex Annuity calcs'!F$142)","v":0},{"$f":"IF($B745=\"Blank\",0,'Corp Capex Annuity calcs'!G$142)","v":0},{"$f":"IF($B745=\"Blank\",0,'Corp Capex Annuity calcs'!H$142)","v":0},{"$f":"IF($B745=\"Blank\",0,'Corp Capex Annuity calcs'!I$142)","v":0},{"$f":"IF($B745=\"Blank\",0,'Corp Capex Annuity calcs'!J$142)","v":0},null,null,null,null,null,null,null,"Corp capex annuity per light",0,0,0,0,0]
[null,{"$f":"Inputs!$U$68","v":"Lamp Service costs Annualised"},"Labour Portion of Lamp Service costs annualised",null,{"$f":"IF($B745=\"Blank\",0,VLOOKUP($B745,Inputs!$C$68:$AN$129,MATCH($B749,Inputs!$C$68:$AN$68,0),FALSE))+IFERROR(IF($B745=\"Blank\",0,VLOOKUP($B745,Inputs!$C$68:$AN$129,MATCH($C749,Inputs!$C$68:$AN$68,0),FALSE))*('Master Data'!K$42),0)","v":0},{"$f":"IF($B745=\"Blank\",0,VLOOKUP($B745,Inputs!$C$68:$AN$129,MATCH($B749,Inputs!$C$68:$AN$68,0),FALSE))+IFERROR(IF($B745=\"Blank\",0,VLOOKUP($B745,Inputs!$C$68:$AN$129,MATCH($C749,Inputs!$C$68:$AN$68,0),FALSE))*('Master Data'!L$42),0)","v":0},{"$f":"IF($B745=\"Blank\",0,VLOOKUP($B745,Inputs!$C$68:$AN$129,MATCH($B749,Inputs!$C$68:$AN$68,0),FALSE))+IFERROR(IF($B745=\"Blank\",0,VLOOKUP($B745,Inputs!$C$68:$AN$129,MATCH($C749,Inputs!$C$68:$AN$68,0),FALSE))*('Master Data'!M$42),0)","v":0},{"$f":"IF($B745=\"Blank\",0,VLOOKUP($B745,Inputs!$C$68:$AN$129,MATCH($B749,Inputs!$C$68:$AN$68,0),FALSE))+IFERROR(IF($B745=\"Blank\",0,VLOOKUP($B745,Inputs!$C$68:$AN$129,MATCH($C749,Inputs!$C$68:$AN$68,0),FALSE))*('Master Data'!N$42),0)","v":0},{"$f":"IF($B745=\"Blank\",0,VLOOKUP($B745,Inputs!$C$68:$AN$129,MATCH($B749,Inputs!$C$68:$AN$68,0),FALSE))+IFERROR(IF($B745=\"Blank\",0,VLOOKUP($B745,Inputs!$C$68:$AN$129,MATCH($C749,Inputs!$C$68:$AN$68,0),FALSE))*('Master Data'!O$42),0)","v":0},null,null,null,null,null,null,null,"Lamp Service costs Annualised",0,0,0,0,0]
[null,{"$f":"Inputs!$M$68","v":"PE Cell Service costs Annualised"},"Labour Portion of PE Cell Service costs Annualised",null,{"$f":"IF($B745=\"Blank\",0,VLOOKUP($B745,Inputs!$C$68:$AN$129,MATCH($B750,Inputs!$C$68:$AN$68,0),FALSE))+IFERROR(IF($B745=\"Blank\",0,VLOOKUP($B745,Inputs!$C$68:$AN$129,MATCH($C750,Inputs!$C$68:$AN$68,0),FALSE))*('Master Data'!K$42),0)","v":0},{"$f":"IF($B745=\"Blank\",0,VLOOKUP($B745,Inputs!$C$68:$AN$129,MATCH($B750,Inputs!$C$68:$AN$68,0),FALSE))+IFERROR(IF($B745=\"Blank\",0,VLOOKUP($B745,Inputs!$C$68:$AN$129,MATCH($C750,Inputs!$C$68:$AN$68,0),FALSE))*('Master Data'!L$42),0)","v":0},{"$f":"IF($B745=\"Blank\",0,VLOOKUP($B745,Inputs!$C$68:$AN$129,MATCH($B750,Inputs!$C$68:$AN$68,0),FALSE))+IFERROR(IF($B745=\"Blank\",0,VLOOKUP($B745,Inputs!$C$68:$AN$129,MATCH($C750,Inputs!$C$68:$AN$68,0),FALSE))*('Master Data'!M$42),0)","v":0},{"$f":"IF($B745=\"Blank\",0,VLOOKUP($B745,Inputs!$C$68:$AN$129,MATCH($B750,Inputs!$C$68:$AN$68,0),FALSE))+IFERROR(IF($B745=\"Blank\",0,VLOOKUP($B745,Inputs!$C$68:$AN$129,MATCH($C750,Inputs!$C$68:$AN$68,0),FALSE))*('Master Data'!N$42),0)","v":0},{"$f":"IF($B745=\"Blank\",0,VLOOKUP($B745,Inputs!$C$68:$AN$129,MATCH($B750,Inputs!$C$68:$AN$68,0),FALSE))+IFERROR(IF($B745=\"Blank\",0,VLOOKUP($B745,Inputs!$C$68:$AN$129,MATCH($C750,Inputs!$C$68:$AN$68,0),FALSE))*('Master Data'!O$42),0)","v":0},null,null,null,null,null,null,null,"PE Cell Service costs Annualised",0,0,0,0,0]
[null,"Indirect Opex",null,null,{"$f":"IF($B745=\"Blank\",0,IF($B$8=\"Private Contract Lighting\",'Opex Weighting'!D$48,'Opex Weighting'!D$46))","v":0},{"$f":"IF($B745=\"Blank\",0,IF($B$8=\"Private Contract Lighting\",'Opex Weighting'!E$48,'Opex Weighting'!E$46))","v":0},{"$f":"IF($B745=\"Blank\",0,IF($B$8=\"Private Contract Lighting\",'Opex Weighting'!F$48,'Opex Weighting'!F$46))","v":0},{"$f":"IF($B745=\"Blank\",0,IF($B$8=\"Private Contract Lighting\",'Opex Weighting'!G$48,'Opex Weighting'!G$46))","v":0},{"$f":"IF($B745=\"Blank\",0,IF($B$8=\"Private Contract Lighting\",'Opex Weighting'!H$48,'Opex Weighting'!H$46))","v":0},null,null,null,null,null,null,null,"Indirect Opex",0,0,0,0,0]
[null,"Indirect Capex",null,null,{"$f":"'Capex Weighting'!D$59","v":0},{"$f":"'Capex Weighting'!E$59","v":0},{"$f":"'Capex Weighting'!F$59","v":0},{"$f":"'Capex Weighting'!G$59","v":0},{"$f":"'Capex Weighting'!H$59","v":0},null,null,null,null,null,null,null,"Indirect Capex",0,0,0,0,0]
[null,"Opex Overheads Costs per light",null,null,{"$f":"IF($B745=\"Blank\",0,IF($B$8=\"Private Contract Lighting\",'Building Block'!C$40,'Building Block'!C$39))","v":0},{"$f":"IF($B745=\"Blank\",0,IF($B$8=\"Private Contract Lighting\",'Building Block'!D$40,'Building Block'!D$39))","v":0},{"$f":"IF($B745=\"Blank\",0,IF($B$8=\"Private Contract Lighting\",'Building Block'!E$40,'Building Block'!E$39))","v":0},{"$f":"IF($B745=\"Blank\",0,IF($B$8=\"Private Contract Lighting\",'Building Block'!F$40,'Building Block'!F$39))","v":0},{"$f":"IF($B745=\"Blank\",0,IF($B$8=\"Private Contract Lighting\",'Building Block'!G$40,'Building Block'!G$39))","v":0},null,null,null,null,null,null,null,"Opex Overheads Costs per light",0,0,0,0,0]
[null,{"$f":"Inputs!$AK$68","v":"Bracket UNIT price"},0,null,{"$f":"IF($B745=\"Blank\",0,OFFSET('CAPEX Annuity calcs'!$B$9,MATCH($B745,'CAPEX Annuity calcs'!$B$9:$B$500,0)+$C754,E$6))","v":0},{"$f":"IF($B745=\"Blank\",0,OFFSET('CAPEX Annuity calcs'!$B$9,MATCH($B745,'CAPEX Annuity calcs'!$B$9:$B$500,0)+$C754,F$6))","v":0},{"$f":"IF($B745=\"Blank\",0,OFFSET('CAPEX Annuity calcs'!$B$9,MATCH($B745,'CAPEX Annuity calcs'!$B$9:$B$500,0)+$C754,G$6))","v":0},{"$f":"IF($B745=\"Blank\",0,OFFSET('CAPEX Annuity calcs'!$B$9,MATCH($B745,'CAPEX Annuity calcs'!$B$9:$B$500,0)+$C754,H$6))","v":0},{"$f":"IF($B745=\"Blank\",0,OFFSET('CAPEX Annuity calcs'!$B$9,MATCH($B745,'CAPEX Annuity calcs'!$B$9:$B$500,0)+$C754,I$6))","v":0},null,null,null,null,null,null,null,"Bracket UNIT price",0,0,0,0,0]
[null,{"$f":"Inputs!$AA$68","v":"CAPEX Instalation costs"},{"$f":"C754+1","v":1},null,{"$f":"IF($B745=\"Blank\",0,OFFSET('CAPEX Annuity calcs'!$B$9,MATCH($B745,'CAPEX Annuity calcs'!$B$9:$B$500,0)+$C755,E$6))","v":0},{"$f":"IF($B745=\"Blank\",0,OFFSET('CAPEX Annuity calcs'!$B$9,MATCH($B745,'CAPEX Annuity calcs'!$B$9:$B$500,0)+$C755,F$6))","v":0},{"$f":"IF($B745=\"Blank\",0,OFFSET('CAPEX Annuity calcs'!$B$9,MATCH($B745,'CAPEX Annuity calcs'!$B$9:$B$500,0)+$C755,G$6))","v":0},{"$f":"IF($B745=\"Blank\",0,OFFSET('CAPEX Annuity calcs'!$B$9,MATCH($B745,'CAPEX Annuity calcs'!$B$9:$B$500,0)+$C755,H$6))","v":0},{"$f":"IF($B745=\"Blank\",0,OFFSET('CAPEX Annuity calcs'!$B$9,MATCH($B745,'CAPEX Annuity calcs'!$B$9:$B$500,0)+$C755,I$6))","v":0},null,null,null,null,null,null,null,"CAPEX Instalation costs",0,0,0,0,0]
[null,{"$f":"Inputs!$Z$68","v":"Luminaire UNIT price"},{"$f":"C755+1","v":2},null,{"$f":"IF($B745=\"Blank\",0,OFFSET('CAPEX Annuity calcs'!$B$9,MATCH($B745,'CAPEX Annuity calcs'!$B$9:$B$500,0)+$C756,E$6))","v":0},{"$f":"IF($B745=\"Blank\",0,OFFSET('CAPEX Annuity calcs'!$B$9,MATCH($B745,'CAPEX Annuity calcs'!$B$9:$B$500,0)+$C756,F$6))","v":0},{"$f":"IF($B745=\"Blank\",0,OFFSET('CAPEX Annuity calcs'!$B$9,MATCH($B745,'CAPEX Annuity calcs'!$B$9:$B$500,0)+$C756,G$6))","v":0},{"$f":"IF($B745=\"Blank\",0,OFFSET('CAPEX Annuity calcs'!$B$9,MATCH($B745,'CAPEX Annuity calcs'!$B$9:$B$500,0)+$C756,H$6))","v":0},{"$f":"IF($B745=\"Blank\",0,OFFSET('CAPEX Annuity calcs'!$B$9,MATCH($B745,'CAPEX Annuity calcs'!$B$9:$B$500,0)+$C756,I$6))","v":0},null,null,null,null,null,null,null,"Luminaire UNIT price",0,0,0,0,0]
[null,{"$f":"Inputs!$AA$68","v":"CAPEX Instalation costs"},3,null,{"$f":"IF($B745=\"Blank\",0,OFFSET('CAPEX Annuity calcs'!$B$9,MATCH($B745,'CAPEX Annuity calcs'!$B$9:$B$500,0)+$C757,E$6))","v":0},{"$f":"IF($B745=\"Blank\",0,OFFSET('CAPEX Annuity calcs'!$B$9,MATCH($B745,'CAPEX Annuity calcs'!$B$9:$B$500,0)+$C757,F$6))","v":0},{"$f":"IF($B745=\"Blank\",0,OFFSET('CAPEX Annuity calcs'!$B$9,MATCH($B745,'CAPEX Annuity calcs'!$B$9:$B$500,0)+$C757,G$6))","v":0},{"$f":"IF($B745=\"Blank\",0,OFFSET('CAPEX Annuity calcs'!$B$9,MATCH($B745,'CAPEX Annuity calcs'!$B$9:$B$500,0)+$C757,H$6))","v":0},{"$f":"IF($B745=\"Blank\",0,OFFSET('CAPEX Annuity calcs'!$B$9,MATCH($B745,'CAPEX Annuity calcs'!$B$9:$B$500,0)+$C757,I$6))","v":0},null,null,null,null,null,null,null,"CAPEX Instalation costs",0,0,0,0,0]
[null,null,null,null,{"$f":"SUM(E746:E757)","v":0},{"$f":"SUM(F746:F757)","v":0},0,0,0,null,null,null,null,null,null,null,null,{"$f":"ROUND(E758/R$2*100,3)","v":0},{"$f":"ROUND(F758/S$2*100,3)","v":0},{"$f":"ROUND(G758/T$2*100,3)","v":0},{"$f":"ROUND(H758/U$2*100,3)","v":0},{"$f":"ROUND(I758/V$2*100,3)","v":0}]

{"sheet":"CAPEX Annuity calcs","index":9,"n_rows":356,"n_cols":36,"rows_kept":356,"cut":false,"hidden":false,"merged":[]}
[null,"$2016-17 base data"]
[null,null,null,null,null,null,null,null,null,null,null,null,null,null,null,null,null,null,null,null,null,null,null,null,null,null,null,null,null,null,{"$f":"'Master Data'!J27","v":"2019-06-30"},{"$f":"'Master Data'!K27","v":"2020-06-30"},{"$f":"'Master Data'!L27","v":"2021-06-30"},{"$f":"'Master Data'!M27","v":"2022-06-30"},{"$f":"'Master Data'!N27","v":"2023-06-30"},{"$f":"'Master Data'!O27","v":"2024-06-30"}]
[null,null,null,null,null,null,null,null,null,null,null,null,null,null,null,null,null,null,null,null,null,null,null,null,null,null,null,null,null,null,null,{"$f":"AF2-AE2","v":366},{"$f":"AG2-AF2","v":365},365,365,366]
[null,null,null,null,null,null,null,null,null,null,null,null,null,null,null,null,"Lookup/Offset Value",1,{"$f":"R4+1","v":2},3,4,5,6,7,8,9,10]
[null,"Public Lighting Capital Cost",null,null,null,null,null,null,null,null,null,null,null,null,null,null,"Public Lighting Capital Cost","Annuity calculation"]
[]
[null,{"$f":"Inputs!$C$68","v":"Light Description"},{"$f":"Inputs!$H$68","v":"Major/Minor size"},"Useful Life",{"$f":"'Master Data'!K34","v":"2019-20"},{"$f":"'Master Data'!L34","v":"2020-21"},{"$f":"'Master Data'!M34","v":"2021-22"},{"$f":"'Master Data'!N34","v":"2022-23"},{"$f":"'Master Data'!O34","v":"2023-24"},{"$f":"'Master Data'!P$34","v":"2024-25"},{"$f":"'Master Data'!Q$34","v":"2025-26"},{"$f":"'Master Data'!R$34","v":"2026-27"},{"$f":"'Master Data'!S$34","v":"2027-28"},{"$f":"'Master Data'!T$34","v":"2028-29"},null,null,"Light Description",{"$f":"'Master Data'!K$34","v":"2019-20"},{"$f":"'Master Data'!L$34","v":"2020-21"},{"$f":"'Master Data'!M$34","v":"2021-22"},{"$f":"'Master Data'!N$34","v":"2022-23"},{"$f":"'Master Data'!O$34","v":"2023-24"},{"$f":"'Master Data'!P$34","v":"2024-25"},{"$f":"'Master Data'!Q$34","v":"2025-26"},{"$f":"'Master Data'!R$34","v":"2026-27"},{"$f":"'Master Data'!S$34","v":"2027-28"},{"$f":"'Master Data'!T$34","v":"2028-29"}]
[]
[1,{"$f":"VLOOKUP($A9,Inputs!$B$68:$AN$129,MATCH($B$7,Inputs!$B$68:$AN$68,0),FALSE)","v":"32W Compact Fluorescent"},{"$f":"VLOOKUP($A9,Inputs!$B$68:$AN$129,MATCH($C$7,Inputs!$B$68:$AN$68,0),FALSE)","v":"RLMIN"},null,null,null,null,null,null,null,null,null,null,null,null,null,{"$f":"VLOOKUP($A9,Inputs!$B$68:$AN$129,MATCH($B$7,Inputs!$B$68:$AN$68,0),FALSE)","v":"32W Compact Fluorescent"}]
[null,{"$f":"Inputs!$AK$68","v":"Bracket UNIT price"},null,{"$f":"Inputs!$D$10","v":40},{"$f":"VLOOKUP($B9,Inputs!$C$68:$AN$129,MATCH($B10,Inputs!$C$68:$AN$68,0),FALSE)","v":72.970104296491868},{"$f":"E10","v":72.970104296491868},{"$f":"F10","v":72.970104296491868},72.970104296491868,72.970104296491868,null,null,null,null,null,null,null,{"$f":"B10","v":"Bracket UNIT price"},{"$f":"-PMT(Inputs!$D$4,'CAPEX Annuity calcs'!$D10,E10)","v":3.380534877380811},{"$f":"-PMT(Inputs!$D$4,'CAPEX Annuity calcs'!$D10,F10)","v":3.380534877380811},{"$f":"-PMT(Inputs!$D$4,'CAPEX Annuity calcs'!$D10,G10)","v":3.380534877380811},{"$f":"-PMT(Inputs!$D$4,'CAPEX Annuity calcs'!$D10,H10)","v":3.380534877380811},{"$f":"-PMT(Inputs!$D$4,'CAPEX Annuity calcs'!$D10,I10)","v":3.380534877380811}]
[null,{"$f":"Inputs!$AA$68","v":"CAPEX Instalation costs"},{"$f":"\"Bracket (\"&Inputs!$D$10&\"yrs)\"","v":"Bracket (40yrs)"},{"$f":"Inputs!$D$10","v":40},null,{"$f":"E11","v":0},{"$f":"F11","v":0},{"$f":"G11","v":0},{"$f":"H11","v":0},null,null,null,null,null,null,null,{"$f":"B11","v":"CAPEX Instalation costs"},{"$f":"-PMT(Inputs!$D$4,'CAPEX Annuity calcs'!$D11,E11)","v":0},{"$f":"-PMT(Inputs!$D$4,'CAPEX Annuity calcs'!$D11,F11)","v":0},{"$f":"-PMT(Inputs!$D$4,'CAPEX Annuity calcs'!$D11,G11)","v":0},{"$f":"-PMT(Inputs!$D$4,'CAPEX Annuity calcs'!$D11,H11)","v":0},{"$f":"-PMT(Inputs!$D$4,'CAPEX Annuity calcs'!$D11,I11)","v":0}]
[null,{"$f":"Inputs!$Z$68","v":"Luminaire UNIT price"},null,{"$f":"Inputs!$D$9","v":20},{"$f":"VLOOKUP($B9,Inputs!$C$68:$AN$129,MATCH($B12,Inputs!$C$68:$AN$68,0),FALSE)","v":188.90717086145477},{"$f":"E12","v":188.90717086145477},188.90717086145477,188.90717086145477,188.90717086145477,null,null,null,null,null,null,null,"Luminaire UNIT price",{"$f":"-PMT(Inputs!$D$4,'CAPEX Annuity calcs'!$D12,E12)","v":13.208916292020449},{"$f":"-PMT(Inputs!$D$4,'CAPEX Annuity calcs'!$D12,F12)","v":13.208916292020449},{"$f":"-PMT(Inputs!$D$4,'CAPEX Annuity calcs'!$D12,G12)","v":13.208916292020449},{"$f":"-PMT(Inputs!$D$4,'CAPEX Annuity calcs'!$D12,H12)","v":13.208916292020449},{"$f":"-PMT(Inputs!$D$4,'CAPEX Annuity calcs'!$D12,I12)","v":13.208916292020449}]
[{"$f":"Inputs!AD68","v":"Labour Portion of CAPEX Instalation costs"},{"$f":"Inputs!$AA$68","v":"CAPEX Instalation costs"},{"$f":"\"Luminaire (\"&Inputs!D9&\"yrs)\"","v":"Luminaire (20yrs)"},{"$f":"Inputs!$D$9","v":20},{"$f":"VLOOKUP($B9,Inputs!$C$68:$AN$129,MATCH($B13,Inputs!$C$68:$AN$68,0),FALSE)+(VLOOKUP($B9,Inputs!$C$68:$AN$129,MATCH($A13,Inputs!$C$68:$AN$68,0),FALSE)*('Master Data'!K$42))","v":267.95472429611652},{"$f":"VLOOKUP($B9,Inputs!$C$68:$AN$129,MATCH($B13,Inputs!$C$68:$AN$68,0),FALSE)+(VLOOKUP($B9,Inputs!$C$68:$AN$129,MATCH($A13,Inputs!$C$68:$AN$68,0),FALSE)*('Master Data'!L$42))","v":268.12133059681764},{"$f":"VLOOKUP($B9,Inputs!$C$68:$AN$129,MATCH($B13,Inputs!$C$68:$AN$68,0),FALSE)+(VLOOKUP($B9,Inputs!$C$68:$AN$129,MATCH($A13,Inputs!$C$68:$AN$68,0),FALSE)*('Master Data'!M$42))","v":268.37544504602391},{"$f":"VLOOKUP($B9,Inputs!$C$68:$AN$129,MATCH($B13,Inputs!$C$68:$AN$68,0),FALSE)+(VLOOKUP($B9,Inputs!$C$68:$AN$129,MATCH($A13,Inputs!$C$68:$AN$68,0),FALSE)*('Master Data'!N$42))","v":268.68873549003757},{"$f":"VLOOKUP($B9,Inputs!$C$68:$AN$129,MATCH($B13,Inputs!$C$68:$AN$68,0),FALSE)+(VLOOKUP($B9,Inputs!$C$68:$AN$129,MATCH($A13,Inputs!$C$68:$AN$68,0),FALSE)*('Master Data'!O$42))","v":269.05459315622693},null,null,null,null,null,null,null,"CAPEX Instalation costs",{"$f":"-PMT(Inputs!$D$4,'CAPEX Annuity calcs'!$D13,E13)","v":18.736141709912243},{"$f":"-PMT(Inputs!$D$4,'CAPEX Annuity calcs'!$D13,F13)","v":18.74779128716041},{"$f":"-PMT(Inputs!$D$4,'CAPEX Annuity calcs'!$D13,G13)","v":18.765559678232343},{"$f":"-PMT(Inputs!$D$4,'CAPEX Annuity calcs'!$D13,H13)","v":18.787465819916616},{"$f":"-PMT(Inputs!$D$4,'CAPEX Annuity calcs'!$D13,I13)","v":18.813047608397444}]
[]
[]
[{"$f":"A9+1","v":2},{"$f":"VLOOKUP($A16,Inputs!$B$68:$AN$129,MATCH($B$7,Inputs!$B$68:$AN$68,0),FALSE)","v":"42W Compact Fluorescent"},{"$f":"VLOOKUP($A16,Inputs!$B$68:$AN$129,MATCH($C$7,Inputs!$B$68:$AN$68,0),FALSE)","v":"RLMIN"},null,null,null,null,null,null,null,null,null,null,null,null,null,{"$f":"VLOOKUP($A16,Inputs!$B$68:$AN$129,MATCH($B$7,Inputs!$B$68:$AN$68,0),FALSE)","v":"42W Compact Fluorescent"}]
[null,{"$f":"Inputs!$AK$68","v":"Bracket UNIT price"},null,{"$f":"Inputs!$D$10","v":40},{"$f":"VLOOKUP($B16,Inputs!$C$68:$AN$129,MATCH($B17,Inputs!$C$68:$AN$68,0),FALSE)","v":74.686113233791573},{"$f":"E17","v":74.686113233791573},{"$f":"F17","v":74.686113233791573},74.686113233791573,74.686113233791573,null,null,null,null,null,null,null,{"$f":"B17","v":"Bracket UNIT price"},{"$f":"-PMT(Inputs!$D$4,'CAPEX Annuity calcs'!$D17,E17)","v":3.4600335723376956},{"$f":"-PMT(Inputs!$D$4,'CAPEX Annuity calcs'!$D17,F17)","v":3.4600335723376956},{"$f":"-PMT(Inputs!$D$4,'CAPEX Annuity calcs'!$D17,G17)","v":3.4600335723376956},{"$f":"-PMT(Inputs!$D$4,'CAPEX Annuity calcs'!$D17,H17)","v":3.4600335723376956},{"$f":"-PMT(Inputs!$D$4,'CAPEX Annuity calcs'!$D17,I17)","v":3.4600335723376956}]
[null,{"$f":"Inputs!$AA$68","v":"CAPEX Instalation costs"},{"$f":"\"Bracket (\"&Inputs!$D$10&\"yrs)\"","v":"Bracket (40yrs)"},{"$f":"Inputs!$D$10","v":40},null,{"$f":"E18","v":0},0,0,0,null,null,null,null,null,null,null,{"$f":"B18","v":"CAPEX Instalation costs"},{"$f":"-PMT(Inputs!$D$4,'CAPEX Annuity calcs'!$D18,E18)","v":0},{"$f":"-PMT(Inputs!$D$4,'CAPEX Annuity calcs'!$D18,F18)","v":0},{"$f":"-PMT(Inputs!$D$4,'CAPEX Annuity calcs'!$D18,G18)","v":0},{"$f":"-PMT(Inputs!$D$4,'CAPEX Annuity calcs'!$D18,H18)","v":0},{"$f":"-PMT(Inputs!$D$4,'CAPEX Annuity calcs'!$D18,I18)","v":0}]
[null,{"$f":"Inputs!$Z$68","v":"Luminaire UNIT price"},null,{"$f":"Inputs!$D$9","v":20},{"$f":"VLOOKUP($B16,Inputs!$C$68:$AN$129,MATCH($B19,Inputs!$C$68:$AN$68,0),FALSE)","v":188.90717086145477},{"$f":"E19","v":188.90717086145477},188.90717086145477,188.90717086145477,188.90717086145477,null,null,null,null,null,null,null,"Luminaire UNIT price",{"$f":"-PMT(Inputs!$D$4,'CAPEX Annuity calcs'!$D19,E19)","v":13.208916292020449},{"$f":"-PMT(Inputs!$D$4,'CAPEX Annuity calcs'!$D19,F19)","v":13.208916292020449},{"$f":"-PMT(Inputs!$D$4,'CAPEX Annuity calcs'!$D19,G19)","v":13.208916292020449},{"$f":"-PMT(Inputs!$D$4,'CAPEX Annuity calcs'!$D19,H19)","v":13.208916292020449},{"$f":"-PMT(Inputs!$D$4,'CAPEX Annuity calcs'!$D19,I19)","v":13.208916292020449}]
[{"$f":"$A$13","v":"Labour Portion of CAPEX Instalation costs"},{"$f":"Inputs!$AA$68","v":"CAPEX Instalation costs"},"Luminaire (20yrs)",{"$f":"Inputs!$D$9","v":20},{"$f":"VLOOKUP($B16,Inputs!$C$68:$AN$129,MATCH($B20,Inputs!$C$68:$AN$68,0),FALSE)+(VLOOKUP($B16,Inputs!$C$68:$AN$129,MATCH($A20,Inputs!$C$68:$AN$68,0),FALSE)*('Master Data'!K$42))","v":267.95472429611652},{"$f":"VLOOKUP($B16,Inputs!$C$68:$AN$129,MATCH($B20,Inputs!$C$68:$AN$68,0),FALSE)+(VLOOKUP($B16,Inputs!$C$68:$AN$129,MATCH($A20,Inputs!$C$68:$AN$68,0),FALSE)*('Master Data'!L$42))","v":268.12133059681764},{"$f":"VLOOKUP($B16,Inputs!$C$68:$AN$129,MATCH($B20,Inputs!$C$68:$AN$68,0),FALSE)+(VLOOKUP($B16,Inputs!$C$68:$AN$129,MATCH($A20,Inputs!$C$68:$AN$68,0),FALSE)*('Master Data'!M$42))","v":268.37544504602391},{"$f":"VLOOKUP($B16,Inputs!$C$68:$AN$129,MATCH($B20,Inputs!$C$68:$AN$68,0),FALSE)+(VLOOKUP($B16,Inputs!$C$68:$AN$129,MATCH($A20,Inputs!$C$68:$AN$68,0),FALSE)*('Master Data'!N$42))","v":268.68873549003757},{"$f":"VLOOKUP($B16,Inputs!$C$68:$AN$129,MATCH($B20,Inputs!$C$68:$AN$68,0),FALSE)+(VLOOKUP($B16,Inputs!$C$68:$AN$129,MATCH($A20,Inputs!$C$68:$AN$68,0),FALSE)*('Master Data'!O$42))","v":269.05459315622693},null,null,null,null,null,null,null,"CAPEX Instalation costs",{"$f":"-PMT(Inputs!$D$4,'CAPEX Annuity calcs'!$D20,E20)","v":18.736141709912243},{"$f":"-PMT(Inputs!$D$4,'CAPEX Annuity calcs'!$D20,F20)","v":18.74779128716041},{"$f":"-PMT(Inputs!$D$4,'CAPEX Annuity calcs'!$D20,G20)","v":18.765559678232343},{"$f":"-PMT(Inputs!$D$4,'CAPEX Annuity calcs'!$D20,H20)","v":18.787465819916616},{"$f":"-PMT(Inputs!$D$4,'CAPEX Annuity calcs'!$D20,I20)","v":18.813047608397444}]
[]
[]
[{"$f":"A16+1","v":3},{"$f":"VLOOKUP($A23,Inputs!$B$68:$AN$129,MATCH($B$7,Inputs!$B$68:$AN$68,0),FALSE)","v":"42W Compact Fluorescent - Bottom Pole Entry"},{"$f":"VLOOKUP($A23,Inputs!$B$68:$AN$129,MATCH($C$7,Inputs!$B$68:$AN$68,0),FALSE)","v":"RLMIN"},null,null,null,null,null,null,null,null,null,null,null,null,null,{"$f":"VLOOKUP($A23,Inputs!$B$68:$AN$129,MATCH($B$7,Inputs!$B$68:$AN$68,0),FALSE)","v":"42W Compact Fluorescent - Bottom Pole Entry"}]
[null,{"$f":"Inputs!$AK$68","v":"Bracket UNIT price"},null,{"$f":"Inputs!$D$10","v":40},{"$f":"VLOOKUP($B23,Inputs!$C$68:$AN$129,MATCH($B24,Inputs!$C$68:$AN$68,0),FALSE)","v":74.686113233791573},{"$f":"E24","v":74.686113233791573},{"$f":"F24","v":74.686113233791573},74.686113233791573,74.686113233791573,null,null,null,null,null,null,null,{"$f":"B24","v":"Bracket UNIT price"},{"$f":"-PMT(Inputs!$D$4,'CAPEX Annuity calcs'!$D24,E24)","v":3.4600335723376956},{"$f":"-PMT(Inputs!$D$4,'CAPEX Annuity calcs'!$D24,F24)","v":3.4600335723376956},{"$f":"-PMT(Inputs!$D$4,'CAPEX Annuity calcs'!$D24,G24)","v":3.4600335723376956},{"$f":"-PMT(Inputs!$D$4,'CAPEX Annuity calcs'!$D24,H24)","v":3.4600335723376956},{"$f":"-PMT(Inputs!$D$4,'CAPEX Annuity calcs'!$D24,I24)","v":3.4600335723376956}]
[null,{"$f":"Inputs!$AA$68","v":"CAPEX Instalation costs"},{"$f":"\"Bracket (\"&Inputs!$D$10&\"yrs)\"","v":"Bracket (40yrs)"},{"$f":"Inputs!$D$10","v":40},null,{"$f":"E25","v":0},0,0,0,null,null,null,null,null,null,null,{"$f":"B25","v":"CAPEX Instalation costs"},{"$f":"-PMT(Inputs!$D$4,'CAPEX Annuity calcs'!$D25,E25)","v":0},{"$f":"-PMT(Inputs!$D$4,'CAPEX Annuity calcs'!$D25,F25)","v":0},{"$f":"-PMT(Inputs!$D$4,'CAPEX Annuity calcs'!$D25,G25)","v":0},{"$f":"-PMT(Inputs!$D$4,'CAPEX Annuity calcs'!$D25,H25)","v":0},{"$f":"-PMT(Inputs!$D$4,'CAPEX Annuity calcs'!$D25,I25)","v":0}]
[null,{"$f":"Inputs!$Z$68","v":"Luminaire UNIT price"},null,{"$f":"Inputs!$D$9","v":20},{"$f":"VLOOKUP($B23,Inputs!$C$68:$AN$129,MATCH($B26,Inputs!$C$68:$AN$68,0),FALSE)","v":188.90717086145477},{"$f":"E26","v":188.90717086145477},188.90717086145477,188.90717086145477,188.90717086145477,null,null,null,null,null,null,null,"Luminaire UNIT price",{"$f":"-PMT(Inputs!$D$4,'CAPEX Annuity calcs'!$D26,E26)","v":13.208916292020449},{"$f":"-PMT(Inputs!$D$4,'CAPEX Annuity calcs'!$D26,F26)","v":13.208916292020449},{"$f":"-PMT(Inputs!$D$4,'CAPEX Annuity calcs'!$D26,G26)","v":13.208916292020449},{"$f":"-PMT(Inputs!$D$4,'CAPEX Annuity calcs'!$D26,H26)","v":13.208916292020449},{"$f":"-PMT(Inputs!$D$4,'CAPEX Annuity calcs'!$D26,I26)","v":13.208916292020449}]
[{"$f":"$A$13","v":"Labour Portion of CAPEX Instalation costs"},{"$f":"Inputs!$AA$68","v":"CAPEX Instalation costs"},"Luminaire (20yrs)",{"$f":"Inputs!$D$9","v":20},{"$f":"VLOOKUP($B23,Inputs!$C$68:$AN$129,MATCH($B27,Inputs!$C$68:$AN$68,0),FALSE)+(VLOOKUP($B23,Inputs!$C$68:$AN$129,MATCH($A27,Inputs!$C$68:$AN$68,0),FALSE)*('Master Data'!K$42))","v":267.95472429611652},{"$f":"VLOOKUP($B23,Inputs!$C$68:$AN$129,MATCH($B27,Inputs!$C$68:$AN$68,0),FALSE)+(VLOOKUP($B23,Inputs!$C$68:$AN$129,MATCH($A27,Inputs!$C$68:$AN$68,0),FALSE)*('Master Data'!L$42))","v":268.12133059681764},{"$f":"VLOOKUP($B23,Inputs!$C$68:$AN$129,MATCH($B27,Inputs!$C$68:$AN$68,0),FALSE)+(VLOOKUP($B23,Inputs!$C$68:$AN$129,MATCH($A27,Inputs!$C$68:$AN$68,0),FALSE)*('Master Data'!M$42))","v":268.37544504602391},{"$f":"VLOOKUP($B23,Inputs!$C$68:$AN$129,MATCH($B27,Inputs!$C$68:$AN$68,0),FALSE)+(VLOOKUP($B23,Inputs!$C$68:$AN$129,MATCH($A27,Inputs!$C$68:$AN$68,0),FALSE)*('Master Data'!N$42))","v":268.68873549003757},{"$f":"VLOOKUP($B23,Inputs!$C$68:$AN$129,MATCH($B27,Inputs!$C$68:$AN$68,0),FALSE)+(VLOOKUP($B23,Inputs!$C$68:$AN$129,MATCH($A27,Inputs!$C$68:$AN$68,0),FALSE)*('Master Data'!O$42))","v":269.05459315622693},null,null,null,null,null,null,null,"CAPEX Instalation costs",{"$f":"-PMT(Inputs!$D$4,'CAPEX Annuity calcs'!$D27,E27)","v":18.736141709912243},{"$f":"-PMT(Inputs!$D$4,'CAPEX Annuity calcs'!$D27,F27)","v":18.74779128716041},{"$f":"-PMT(Inputs!$D$4,'CAPEX Annuity calcs'!$D27,G27)","v":18.765559678232343},{"$f":"-PMT(Inputs!$D$4,'CAPEX Annuity calcs'!$D27,H27)","v":18.787465819916616},{"$f":"-PMT(Inputs!$D$4,'CAPEX Annuity calcs'!$D27,I27)","v":18.813047608397444}]
[]
[]
[{"$f":"A23+1","v":4},{"$f":"VLOOKUP($A30,Inputs!$B$68:$AN$129,MATCH($B$7,Inputs!$B$68:$AN$68,0),FALSE)","v":"2x24W Compact Fluorescent"},{"$f":"VLOOKUP($A30,Inputs!$B$68:$AN$129,MATCH($C$7,Inputs!$B$68:$AN$68,0),FALSE)","v":"RLMIN"},null,null,null,null,null,null,null,null,null,null,null,null,null,{"$f":"VLOOKUP($A30,Inputs!$B$68:$AN$129,MATCH($B$7,Inputs!$B$68:$AN$68,0),FALSE)","v":"2x24W Compact Fluorescent"}]
[null,{"$f":"Inputs!$AK$68","v":"Bracket UNIT price"},null,{"$f":"Inputs!$D$10","v":40},{"$f":"VLOOKUP($B30,Inputs!$C$68:$AN$129,MATCH($B31,Inputs!$C$68:$AN$68,0),FALSE)","v":96.408411541879389},{"$f":"E31","v":96.408411541879389},{"$f":"F31","v":96.408411541879389},96.408411541879389,96.408411541879389,null,null,null,null,null,null,null,{"$f":"B31","v":"Bracket UNIT price"},{"$f":"-PMT(Inputs!$D$4,'CAPEX Annuity calcs'!$D31,E31)","v":4.4663770297759422},{"$f":"-PMT(Inputs!$D$4,'CAPEX Annuity calcs'!$D31,F31)","v":4.4663770297759422},{"$f":"-PMT(Inputs!$D$4,'CAPEX Annuity calcs'!$D31,G31)","v":4.4663770297759422},{"$f":"-PMT(Inputs!$D$4,'CAPEX Annuity calcs'!$D31,H31)","v":4.4663770297759422},{"$f":"-PMT(Inputs!$D$4,'CAPEX Annuity calcs'!$D31,I31)","v":4.4663770297759422}]
[null,{"$f":"Inputs!$AA$68","v":"CAPEX Instalation costs"},{"$f":"\"Bracket (\"&Inputs!$D$10&\"yrs)\"","v":"Bracket (40yrs)"},{"$f":"Inputs!$D$10","v":40},null,{"$f":"E32","v":0},0,0,0,null,null,null,null,null,null,null,{"$f":"B32","v":"CAPEX Instalation costs"},{"$f":"-PMT(Inputs!$D$4,'CAPEX Annuity calcs'!$D32,E32)","v":0},{"$f":"-PMT(Inputs!$D$4,'CAPEX Annuity calcs'!$D32,F32)","v":0},{"$f":"-PMT(Inputs!$D$4,'CAPEX Annuity calcs'!$D32,G32)","v":0},{"$f":"-PMT(Inputs!$D$4,'CAPEX Annuity calcs'!$D32,H32)","v":0},{"$f":"-PMT(Inputs!$D$4,'CAPEX Annuity calcs'!$D32,I32)","v":0}]
[null,{"$f":"Inputs!$Z$68","v":"Luminaire UNIT price"},null,{"$f":"Inputs!$D$9","v":20},{"$f":"VLOOKUP($B30,Inputs!$C$68:$AN$129,MATCH($B33,Inputs!$C$68:$AN$68,0),FALSE)","v":188.90717086145477},{"$f":"E33","v":188.90717086145477},188.90717086145477,188.90717086145477,188.90717086145477,null,null,null,null,null,null,null,"Luminaire UNIT price",{"$f":"-PMT(Inputs!$D$4,'CAPEX Annuity calcs'!$D33,E33)","v":13.208916292020449},{"$f":"-PMT(Inputs!$D$4,'CAPEX Annuity calcs'!$D33,F33)","v":13.208916292020449},{"$f":"-PMT(Inputs!$D$4,'CAPEX Annuity calcs'!$D33,G33)","v":13.208916292020449},{"$f":"-PMT(Inputs!$D$4,'CAPEX Annuity calcs'!$D33,H33)","v":13.208916292020449},{"$f":"-PMT(Inputs!$D$4,'CAPEX Annuity calcs'!$D33,I33)","v":13.208916292020449}]
[{"$f":"$A$13","v":"Labour Portion of CAPEX Instalation costs"},{"$f":"Inputs!$AA$68","v":"CAPEX Instalation costs"},"Luminaire (20yrs)",{"$f":"Inputs!$D$9","v":20},{"$f":"VLOOKUP($B30,Inputs!$C$68:$AN$129,MATCH($B34,Inputs!$C$68:$AN$68,0),FALSE)+(VLOOKUP($B30,Inputs!$C$68:$AN$129,MATCH($A34,Inputs!$C$68:$AN$68,0),FALSE)*('Master Data'!K$42))","v":267.95472429611652},{"$f":"VLOOKUP($B30,Inputs!$C$68:$AN$129,MATCH($B34,Inputs!$C$68:$AN$68,0),FALSE)+(VLOOKUP($B30,Inputs!$C$68:$AN$129,MATCH($A34,Inputs!$C$68:$AN$68,0),FALSE)*('Master Data'!L$42))","v":268.12133059681764},{"$f":"VLOOKUP($B30,Inputs!$C$68:$AN$129,MATCH($B34,Inputs!$C$68:$AN$68,0),FALSE)+(VLOOKUP($B30,Inputs!$C$68:$AN$129,MATCH($A34,Inputs!$C$68:$AN$68,0),FALSE)*('Master Data'!M$42))","v":268.37544504602391},{"$f":"VLOOKUP($B30,Inputs!$C$68:$AN$129,MATCH($B34,Inputs!$C$68:$AN$68,0),FALSE)+(VLOOKUP($B30,Inputs!$C$68:$AN$129,MATCH($A34,Inputs!$C$68:$AN$68,0),FALSE)*('Master Data'!N$42))","v":268.68873549003757},{"$f":"VLOOKUP($B30,Inputs!$C$68:$AN$129,MATCH($B34,Inputs!$C$68:$AN$68,0),FALSE)+(VLOOKUP($B30,Inputs!$C$68:$AN$129,MATCH($A34,Inputs!$C$68:$AN$68,0),FALSE)*('Master Data'!O$42))","v":269.05459315622693},null,null,null,null,null,null,null,"CAPEX Instalation costs",{"$f":"-PMT(Inputs!$D$4,'CAPEX Annuity calcs'!$D34,E34)","v":18.736141709912243},{"$f":"-PMT(Inputs!$D$4,'CAPEX Annuity calcs'!$D34,F34)","v":18.74779128716041},{"$f":"-PMT(Inputs!$D$4,'CAPEX Annuity calcs'!$D34,G34)","v":18.765559678232343},{"$f":"-PMT(Inputs!$D$4,'CAPEX Annuity calcs'!$D34,H34)","v":18.787465819916616},{"$f":"-PMT(Inputs!$D$4,'CAPEX Annuity calcs'!$D34,I34)","v":18.813047608397444}]
[]
[]
[{"$f":"A30+1","v":5},{"$f":"VLOOKUP($A37,Inputs!$B$68:$AN$129,MATCH($B$7,Inputs!$B$68:$AN$68,0),FALSE)","v":"1x20W Fluorescent"},{"$f":"VLOOKUP($A37,Inputs!$B$68:$AN$129,MATCH($C$7,Inputs!$B$68:$AN$68,0),FALSE)","v":"RLMIN"},null,null,null,null,null,null,null,null,null,null,null,null,null,{"$f":"VLOOKUP($A37,Inputs!$B$68:$AN$129,MATCH($B$7,Inputs!$B$68:$AN$68,0),FALSE)","v":"1x20W Fluorescent"}]
[null,{"$f":"Inputs!$AK$68","v":"Bracket UNIT price"},null,{"$f":"Inputs!$D$10","v":40},{"$f":"VLOOKUP($B37,Inputs!$C$68:$AN$129,MATCH($B38,Inputs!$C$68:$AN$68,0),FALSE)","v":133.12518584597089},{"$f":"E38","v":133.12518584597089},{"$f":"F38","v":133.12518584597089},133.12518584597089,133.12518584597089,null,null,null,null,null,null,null,{"$f":"B38","v":"Bracket UNIT price"},{"$f":"-PMT(Inputs!$D$4,'CAPEX Annuity calcs'!$D38,E38)","v":6.1673796159250225},{"$f":"-PMT(Inputs!$D$4,'CAPEX Annuity calcs'!$D38,F38)","v":6.1673796159250225},{"$f":"-PMT(Inputs!$D$4,'CAPEX Annuity calcs'!$D38,G38)","v":6.1673796159250225},{"$f":"-PMT(Inputs!$D$4,'CAPEX Annuity calcs'!$D38,H38)","v":6.1673796159250225},{"$f":"-PMT(Inputs!$D$4,'CAPEX Annuity calcs'!$D38,I38)","v":6.1673796159250225}]
[null,{"$f":"Inputs!$AA$68","v":"CAPEX Instalation costs"},{"$f":"\"Bracket (\"&Inputs!$D$10&\"yrs)\"","v":"Bracket (40yrs)"},{"$f":"Inputs!$D$10","v":40},null,{"$f":"E39","v":0},0,0,0,null,null,null,null,null,null,null,{"$f":"B39","v":"CAPEX Instalation costs"},{"$f":"-PMT(Inputs!$D$4,'CAPEX Annuity calcs'!$D39,E39)","v":0},{"$f":"-PMT(Inputs!$D$4,'CAPEX Annuity calcs'!$D39,F39)","v":0},{"$f":"-PMT(Inputs!$D$4,'CAPEX Annuity calcs'!$D39,G39)","v":0},{"$f":"-PMT(Inputs!$D$4,'CAPEX Annuity calcs'!$D39,H39)","v":0},{"$f":"-PMT(Inputs!$D$4,'CAPEX Annuity calcs'!$D39,I39)","v":0}]
[null,{"$f":"Inputs!$Z$68","v":"Luminaire UNIT price"},null,{"$f":"Inputs!$D$9","v":20},{"$f":"VLOOKUP($B37,Inputs!$C$68:$AN$129,MATCH($B40,Inputs!$C$68:$AN$68,0),FALSE)","v":253.55992440889494},{"$f":"E40","v":253.55992440889494},253.55992440889494,253.55992440889494,253.55992440889494,null,null,null,null,null,null,null,"Luminaire UNIT price",{"$f":"-PMT(Inputs!$D$4,'CAPEX Annuity calcs'!$D40,E40)","v":17.729617151402259},{"$f":"-PMT(Inputs!$D$4,'CAPEX Annuity calcs'!$D40,F40)","v":17.729617151402259},{"$f":"-PMT(Inputs!$D$4,'CAPEX Annuity calcs'!$D40,G40)","v":17.729617151402259},{"$f":"-PMT(Inputs!$D$4,'CAPEX Annuity calcs'!$D40,H40)","v":17.729617151402259},{"$f":"-PMT(Inputs!$D$4,'CAPEX Annuity calcs'!$D40,I40)","v":17.729617151402259}]
[{"$f":"$A$13","v":"Labour Portion of CAPEX Instalation costs"},{"$f":"Inputs!$AA$68","v":"CAPEX Instalation costs"},"Luminaire (20yrs)",{"$f":"Inputs!$D$9","v":20},{"$f":"VLOOKUP($B37,Inputs!$C$68:$AN$129,MATCH($B41,Inputs!$C$68:$AN$68,0),FALSE)+(VLOOKUP($B37,Inputs!$C$68:$AN$129,MATCH($A41,Inputs!$C$68:$AN$68,0),FALSE)*('Master Data'!K$42))","v":267.95472429611652},{"$f":"VLOOKUP($B37,Inputs!$C$68:$AN$129,MATCH($B41,Inputs!$C$68:$AN$68,0),FALSE)+(VLOOKUP($B37,Inputs!$C$68:$AN$129,MATCH($A41,Inputs!$C$68:$AN$68,0),FALSE)*('Master Data'!L$42))","v":268.12133059681764},{"$f":"VLOOKUP($B37,Inputs!$C$68:$AN$129,MATCH($B41,Inputs!$C$68:$AN$68,0),FALSE)+(VLOOKUP($B37,Inputs!$C$68:$AN$129,MATCH($A41,Inputs!$C$68:$AN$68,0),FALSE)*('Master Data'!M$42))","v":268.37544504602391},{"$f":"VLOOKUP($B37,Inputs!$C$68:$AN$129,MATCH($B41,Inputs!$C$68:$AN$68,0),FALSE)+(VLOOKUP($B37,Inputs!$C$68:$AN$129,MATCH($A41,Inputs!$C$68:$AN$68,0),FALSE)*('Master Data'!N$42))","v":268.68873549003757},{"$f":"VLOOKUP($B37,Inputs!$C$68:$AN$129,MATCH($B41,Inputs!$C$68:$AN$68,0),FALSE)+(VLOOKUP($B37,Inputs!$C$68:$AN$129,MATCH($A41,Inputs!$C$68:$AN$68,0),FALSE)*('Master Data'!O$42))","v":269.05459315622693},null,null,null,null,null,null,null,"CAPEX Instalation costs",{"$f":"-PMT(Inputs!$D$4,'CAPEX Annuity calcs'!$D41,E41)","v":18.736141709912243},{"$f":"-PMT(Inputs!$D$4,'CAPEX Annuity calcs'!$D41,F41)","v":18.74779128716041},{"$f":"-PMT(Inputs!$D$4,'CAPEX Annuity calcs'!$D41,G41)","v":18.765559678232343},{"$f":"-PMT(Inputs!$D$4,'CAPEX Annuity calcs'!$D41,H41)","v":18.787465819916616},{"$f":"-PMT(Inputs!$D$4,'CAPEX Annuity calcs'!$D41,I41)","v":18.813047608397444}]
[]
[]
[{"$f":"A37+1","v":6},{"$f":"VLOOKUP($A44,Inputs!$B$68:$AN$129,MATCH($B$7,Inputs!$B$68:$AN$68,0),FALSE)","v":"1x40W Fluorescent"},{"$f":"VLOOKUP($A44,Inputs!$B$68:$AN$129,MATCH($C$7,Inputs!$B$68:$AN$68,0),FALSE)","v":"RLMIN"},null,null,null,null,null,null,null,null,null,null,null,null,null,{"$f":"VLOOKUP($A44,Inputs!$B$68:$AN$129,MATCH($B$7,Inputs!$B$68:$AN$68,0),FALSE)","v":"1x40W Fluorescent"}]
[null,{"$f":"Inputs!$AK$68","v":"Bracket UNIT price"},null,{"$f":"Inputs!$D$10","v":40},{"$f":"VLOOKUP($B44,Inputs!$C$68:$AN$129,MATCH($B45,Inputs!$C$68:$AN$68,0),FALSE)","v":133.12518584597089},{"$f":"E45","v":133.12518584597089},{"$f":"F45","v":133.12518584597089},133.12518584597089,133.12518584597089,null,null,null,null,null,null,null,{"$f":"B45","v":"Bracket UNIT price"},{"$f":"-PMT(Inputs!$D$4,'CAPEX Annuity calcs'!$D45,E45)","v":6.1673796159250225},{"$f":"-PMT(Inputs!$D$4,'CAPEX Annuity calcs'!$D45,F45)","v":6.1673796159250225},{"$f":"-PMT(Inputs!$D$4,'CAPEX Annuity calcs'!$D45,G45)","v":6.1673796159250225},{"$f":"-PMT(Inputs!$D$4,'CAPEX Annuity calcs'!$D45,H45)","v":6.1673796159250225},{"$f":"-PMT(Inputs!$D$4,'CAPEX Annuity calcs'!$D45,I45)","v":6.1673796159250225}]
[null,{"$f":"Inputs!$AA$68","v":"CAPEX Instalation costs"},{"$f":"\"Bracket (\"&Inputs!$D$10&\"yrs)\"","v":"Bracket (40yrs)"},{"$f":"Inputs!$D$10","v":40},null,{"$f":"E46","v":0},0,0,0,null,null,null,null,null,null,null,{"$f":"B46","v":"CAPEX Instalation costs"},{"$f":"-PMT(Inputs!$D$4,'CAPEX Annuity calcs'!$D46,E46)","v":0},{"$f":"-PMT(Inputs!$D$4,'CAPEX Annuity calcs'!$D46,F46)","v":0},{"$f":"-PMT(Inputs!$D$4,'CAPEX Annuity calcs'!$D46,G46)","v":0},{"$f":"-PMT(Inputs!$D$4,'CAPEX Annuity calcs'!$D46,H46)","v":0},{"$f":"-PMT(Inputs!$D$4,'CAPEX Annuity calcs'!$D46,I46)","v":0}]
[null,{"$f":"Inputs!$Z$68","v":"Luminaire UNIT price"},null,{"$f":"Inputs!$D$9","v":20},{"$f":"VLOOKUP($B44,Inputs!$C$68:$AN$129,MATCH($B47,Inputs!$C$68:$AN$68,0),FALSE)","v":198.67540480279561},{"$f":"E47","v":198.67540480279561},{"$f":"F47","v":198.67540480279561},198.67540480279561,198.67540480279561,null,null,null,null,null,null,null,"Luminaire UNIT price",{"$f":"-PMT(Inputs!$D$4,'CAPEX Annuity calcs'!$D47,E47)","v":13.891938455041847},{"$f":"-PMT(Inputs!$D$4,'CAPEX Annuity calcs'!$D47,F47)","v":13.891938455041847},{"$f":"-PMT(Inputs!$D$4,'CAPEX Annuity calcs'!$D47,G47)","v":13.891938455041847},{"$f":"-PMT(Inputs!$D$4,'CAPEX Annuity calcs'!$D47,H47)","v":13.891938455041847},{"$f":"-PMT(Inputs!$D$4,'CAPEX Annuity calcs'!$D47,I47)","v":13.891938455041847}]
[{"$f":"$A$13","v":"Labour Portion of CAPEX Instalation costs"},{"$f":"Inputs!$AA$68","v":"CAPEX Instalation costs"},"Luminaire (20yrs)",{"$f":"Inputs!$D$9","v":20},{"$f":"VLOOKUP($B44,Inputs!$C$68:$AN$129,MATCH($B48,Inputs!$C$68:$AN$68,0),FALSE)+(VLOOKUP($B44,Inputs!$C$68:$AN$129,MATCH($A48,Inputs!$C$68:$AN$68,0),FALSE)*('Master Data'!K$42))","v":267.95472429611652},{"$f":"VLOOKUP($B44,Inputs!$C$68:$AN$129,MATCH($B48,Inputs!$C$68:$AN$68,0),FALSE)+(VLOOKUP($B44,Inputs!$C$68:$AN$129,MATCH($A48,Inputs!$C$68:$AN$68,0),FALSE)*('Master Data'!L$42))","v":268.12133059681764},{"$f":"VLOOKUP($B44,Inputs!$C$68:$AN$129,MATCH($B48,Inputs!$C$68:$AN$68,0),FALSE)+(VLOOKUP($B44,Inputs!$C$68:$AN$129,MATCH($A48,Inputs!$C$68:$AN$68,0),FALSE)*('Master Data'!M$42))","v":268.37544504602391},{"$f":"VLOOKUP($B44,Inputs!$C$68:$AN$129,MATCH($B48,Inputs!$C$68:$AN$68,0),FALSE)+(VLOOKUP($B44,Inputs!$C$68:$AN$129,MATCH($A48,Inputs!$C$68:$AN$68,0),FALSE)*('Master Data'!N$42))","v":268.68873549003757},{"$f":"VLOOKUP($B44,Inputs!$C$68:$AN$129,MATCH($B48,Inputs!$C$68:$AN$68,0),FALSE)+(VLOOKUP($B44,Inputs!$C$68:$AN$129,MATCH($A48,Inputs!$C$68:$AN$68,0),FALSE)*('Master Data'!O$42))","v":269.05459315622693},null,null,null,null,null,null,null,"CAPEX Instalation costs",{"$f":"-PMT(Inputs!$D$4,'CAPEX Annuity calcs'!$D48,E48)","v":18.736141709912243},{"$f":"-PMT(Inputs!$D$4,'CAPEX Annuity calcs'!$D48,F48)","v":18.74779128716041},{"$f":"-PMT(Inputs!$D$4,'CAPEX Annuity calcs'!$D48,G48)","v":18.765559678232343},{"$f":"-PMT(Inputs!$D$4,'CAPEX Annuity calcs'!$D48,H48)","v":18.787465819916616},{"$f":"-PMT(Inputs!$D$4,'CAPEX Annuity calcs'!$D48,I48)","v":18.813047608397444}]
[]
[]
[{"$f":"A44+1","v":7},{"$f":"VLOOKUP($A51,Inputs!$B$68:$AN$129,MATCH($B$7,Inputs!$B$68:$AN$68,0),FALSE)","v":"2x20W Fluorescent"},{"$f":"VLOOKUP($A51,Inputs!$B$68:$AN$129,MATCH($C$7,Inputs!$B$68:$AN$68,0),FALSE)","v":"RLMIN"},null,null,null,null,null,null,null,null,null,null,null,null,null,{"$f":"VLOOKUP($A51,Inputs!$B$68:$AN$129,MATCH($B$7,Inputs!$B$68:$AN$68,0),FALSE)","v":"2x20W Fluorescent"}]
[null,{"$f":"Inputs!$AK$68","v":"Bracket UNIT price"},null,{"$f":"Inputs!$D$10","v":40},{"$f":"VLOOKUP($B51,Inputs!$C$68:$AN$129,MATCH($B52,Inputs!$C$68:$AN$68,0),FALSE)","v":133.12518584597089},{"$f":"E52","v":133.12518584597089},{"$f":"F52","v":133.12518584597089},133.12518584597089,133.12518584597089,null,null,null,null,null,null,null,{"$f":"B52","v":"Bracket UNIT price"},{"$f":"-PMT(Inputs!$D$4,'CAPEX Annuity calcs'!$D52,E52)","v":6.1673796159250225},{"$f":"-PMT(Inputs!$D$4,'CAPEX Annuity calcs'!$D52,F52)","v":6.1673796159250225},{"$f":"-PMT(Inputs!$D$4,'CAPEX Annuity calcs'!$D52,G52)","v":6.1673796159250225},{"$f":"-PMT(Inputs!$D$4,'CAPEX Annuity calcs'!$D52,H52)","v":6.1673796159250225},{"$f":"-PMT(Inputs!$D$4,'CAPEX Annuity calcs'!$D52,I52)","v":6.1673796159250225}]
[null,{"$f":"Inputs!$AA$68","v":"CAPEX Instalation costs"},{"$f":"\"Bracket (\"&Inputs!$D$10&\"yrs)\"","v":"Bracket (40yrs)"},{"$f":"Inputs!$D$10","v":40},null,{"$f":"E53","v":0},0,0,0,null,null,null,null,null,null,null,{"$f":"B53","v":"CAPEX Instalation costs"},{"$f":"-PMT(Inputs!$D$4,'CAPEX Annuity calcs'!$D53,E53)","v":0},{"$f":"-PMT(Inputs!$D$4,'CAPEX Annuity calcs'!$D53,F53)","v":0},{"$f":"-PMT(Inputs!$D$4,'CAPEX Annuity calcs'!$D53,G53)","v":0},{"$f":"-PMT(Inputs!$D$4,'CAPEX Annuity calcs'!$D53,H53)","v":0},{"$f":"-PMT(Inputs!$D$4,'CAPEX Annuity calcs'!$D53,I53)","v":0}]
[null,{"$f":"Inputs!$Z$68","v":"Luminaire UNIT price"},null,{"$f":"Inputs!$D$9","v":20},{"$f":"VLOOKUP($B51,Inputs!$C$68:$AN$129,MATCH($B54,Inputs!$C$68:$AN$68,0),FALSE)","v":253.55992440889494},{"$f":"E54","v":253.55992440889494},{"$f":"F54","v":253.55992440889494},253.55992440889494,253.55992440889494,null,null,null,null,null,null,null,"Luminaire UNIT price",{"$f":"-PMT(Inputs!$D$4,'CAPEX Annuity calcs'!$D54,E54)","v":17.729617151402259},{"$f":"-PMT(Inputs!$D$4,'CAPEX Annuity calcs'!$D54,F54)","v":17.729617151402259},{"$f":"-PMT(Inputs!$D$4,'CAPEX Annuity calcs'!$D54,G54)","v":17.729617151402259},{"$f":"-PMT(Inputs!$D$4,'CAPEX Annuity calcs'!$D54,H54)","v":17.729617151402259},{"$f":"-PMT(Inputs!$D$4,'CAPEX Annuity calcs'!$D54,I54)","v":17.729617151402259}]
[{"$f":"$A$13","v":"Labour Portion of CAPEX Instalation costs"},{"$f":"Inputs!$AA$68","v":"CAPEX Instalation costs"},"Luminaire (20yrs)",{"$f":"Inputs!$D$9","v":20},{"$f":"VLOOKUP($B51,Inputs!$C$68:$AN$129,MATCH($B55,Inputs!$C$68:$AN$68,0),FALSE)+(VLOOKUP($B51,Inputs!$C$68:$AN$129,MATCH($A55,Inputs!$C$68:$AN$68,0),FALSE)*('Master Data'!K$42))","v":267.95472429611652},{"$f":"VLOOKUP($B51,Inputs!$C$68:$AN$129,MATCH($B55,Inputs!$C$68:$AN$68,0),FALSE)+(VLOOKUP($B51,Inputs!$C$68:$AN$129,MATCH($A55,Inputs!$C$68:$AN$68,0),FALSE)*('Master Data'!L$42))","v":268.12133059681764},{"$f":"VLOOKUP($B51,Inputs!$C$68:$AN$129,MATCH($B55,Inputs!$C$68:$AN$68,0),FALSE)+(VLOOKUP($B51,Inputs!$C$68:$AN$129,MATCH($A55,Inputs!$C$68:$AN$68,0),FALSE)*('Master Data'!M$42))","v":268.37544504602391},{"$f":"VLOOKUP($B51,Inputs!$C$68:$AN$129,MATCH($B55,Inputs!$C$68:$AN$68,0),FALSE)+(VLOOKUP($B51,Inputs!$C$68:$AN$129,MATCH($A55,Inputs!$C$68:$AN$68,0),FALSE)*('Master Data'!N$42))","v":268.68873549003757},{"$f":"VLOOKUP($B51,Inputs!$C$68:$AN$129,MATCH($B55,Inputs!$C$68:$AN$68,0),FALSE)+(VLOOKUP($B51,Inputs!$C$68:$AN$129,MATCH($A55,Inputs!$C$68:$AN$68,0),FALSE)*('Master Data'!O$42))","v":269.05459315622693},null,null,null,null,null,null,null,"CAPEX Instalation costs",{"$f":"-PMT(Inputs!$D$4,'CAPEX Annuity calcs'!$D55,E55)","v":18.736141709912243},{"$f":"-PMT(Inputs!$D$4,'CAPEX Annuity calcs'!$D55,F55)","v":18.74779128716041},{"$f":"-PMT(Inputs!$D$4,'CAPEX Annuity calcs'!$D55,G55)","v":18.765559678232343},{"$f":"-PMT(Inputs!$D$4,'CAPEX Annuity calcs'!$D55,H55)","v":18.787465819916616},{"$f":"-PMT(Inputs!$D$4,'CAPEX Annuity calcs'!$D55,I55)","v":18.813047608397444}]
[]
[]
[{"$f":"A51+1","v":8},{"$f":"VLOOKUP($A58,Inputs!$B$68:$AN$129,MATCH($B$7,Inputs!$B$68:$AN$68,0),FALSE)","v":"2x24W Fluorescent"},{"$f":"VLOOKUP($A58,Inputs!$B$68:$AN$129,MATCH($C$7,Inputs!$B$68:$AN$68,0),FALSE)","v":"RLMIN"},null,null,null,null,null,null,null,null,null,null,null,null,null,{"$f":"VLOOKUP($A58,Inputs!$B$68:$AN$129,MATCH($B$7,Inputs!$B$68:$AN$68,0),FALSE)","v":"2x24W Fluorescent"}]
[null,{"$f":"Inputs!$AK$68","v":"Bracket UNIT price"},null,{"$f":"Inputs!$D$10","v":40},{"$f":"VLOOKUP($B58,Inputs!$C$68:$AN$129,MATCH($B59,Inputs!$C$68:$AN$68,0),FALSE)","v":133.12518584597089},{"$f":"E59","v":133.12518584597089},{"$f":"F59","v":133.12518584597089},133.12518584597089,133.12518584597089,null,null,null,null,null,null,null,{"$f":"B59","v":"Bracket UNIT price"},{"$f":"-PMT(Inputs!$D$4,'CAPEX Annuity calcs'!$D59,E59)","v":6.1673796159250225},{"$f":"-PMT(Inputs!$D$4,'CAPEX Annuity calcs'!$D59,F59)","v":6.1673796159250225},{"$f":"-PMT(Inputs!$D$4,'CAPEX Annuity calcs'!$D59,G59)","v":6.1673796159250225},{"$f":"-PMT(Inputs!$D$4,'CAPEX Annuity calcs'!$D59,H59)","v":6.1673796159250225},{"$f":"-PMT(Inputs!$D$4,'CAPEX Annuity calcs'!$D59,I59)","v":6.1673796159250225}]
[null,{"$f":"Inputs!$AA$68","v":"CAPEX Instalation costs"},{"$f":"\"Bracket (\"&Inputs!$D$10&\"yrs)\"","v":"Bracket (40yrs)"},{"$f":"Inputs!$D$10","v":40},null,{"$f":"E60","v":0},0,0,0,null,null,null,null,null,null,null,{"$f":"B60","v":"CAPEX Instalation costs"},{"$f":"-PMT(Inputs!$D$4,'CAPEX Annuity calcs'!$D60,E60)","v":0},{"$f":"-PMT(Inputs!$D$4,'CAPEX Annuity calcs'!$D60,F60)","v":0},{"$f":"-PMT(Inputs!$D$4,'CAPEX Annuity calcs'!$D60,G60)","v":0},{"$f":"-PMT(Inputs!$D$4,'CAPEX Annuity calcs'!$D60,H60)","v":0},{"$f":"-PMT(Inputs!$D$4,'CAPEX Annuity calcs'!$D60,I60)","v":0}]
[null,{"$f":"Inputs!$Z$68","v":"Luminaire UNIT price"},null,{"$f":"Inputs!$D$9","v":20},{"$f":"VLOOKUP($B58,Inputs!$C$68:$AN$129,MATCH($B61,Inputs!$C$68:$AN$68,0),FALSE)","v":258.60583480783453},{"$f":"E61","v":258.60583480783453},{"$f":"F61","v":258.60583480783453},258.60583480783453,258.60583480783453,null,null,null,null,null,null,null,"Luminaire UNIT price",{"$f":"-PMT(Inputs!$D$4,'CAPEX Annuity calcs'!$D61,E61)","v":18.082441280696486},{"$f":"-PMT(Inputs!$D$4,'CAPEX Annuity calcs'!$D61,F61)","v":18.082441280696486},{"$f":"-PMT(Inputs!$D$4,'CAPEX Annuity calcs'!$D61,G61)","v":18.082441280696486},{"$f":"-PMT(Inputs!$D$4,'CAPEX Annuity calcs'!$D61,H61)","v":18.082441280696486},{"$f":"-PMT(Inputs!$D$4,'CAPEX Annuity calcs'!$D61,I61)","v":18.082441280696486}]
[{"$f":"$A$13","v":"Labour Portion of CAPEX Instalation costs"},{"$f":"Inputs!$AA$68","v":"CAPEX Instalation costs"},"Luminaire (20yrs)",{"$f":"Inputs!$D$9","v":20},{"$f":"VLOOKUP($B58,Inputs!$C$68:$AN$129,MATCH($B62,Inputs!$C$68:$AN$68,0),FALSE)+(VLOOKUP($B58,Inputs!$C$68:$AN$129,MATCH($A62,Inputs!$C$68:$AN$68,0),FALSE)*('Master Data'!K$42))","v":267.95472429611652},{"$f":"VLOOKUP($B58,Inputs!$C$68:$AN$129,MATCH($B62,Inputs!$C$68:$AN$68,0),FALSE)+(VLOOKUP($B58,Inputs!$C$68:$AN$129,MATCH($A62,Inputs!$C$68:$AN$68,0),FALSE)*('Master Data'!L$42))","v":268.12133059681764},{"$f":"VLOOKUP($B58,Inputs!$C$68:$AN$129,MATCH($B62,Inputs!$C$68:$AN$68,0),FALSE)+(VLOOKUP($B58,Inputs!$C$68:$AN$129,MATCH($A62,Inputs!$C$68:$AN$68,0),FALSE)*('Master Data'!M$42))","v":268.37544504602391},{"$f":"VLOOKUP($B58,Inputs!$C$68:$AN$129,MATCH($B62,Inputs!$C$68:$AN$68,0),FALSE)+(VLOOKUP($B58,Inputs!$C$68:$AN$129,MATCH($A62,Inputs!$C$68:$AN$68,0),FALSE)*('Master Data'!N$42))","v":268.68873549003757},{"$f":"VLOOKUP($B58,Inputs!$C$68:$AN$129,MATCH($B62,Inputs!$C$68:$AN$68,0),FALSE)+(VLOOKUP($B58,Inputs!$C$68:$AN$129,MATCH($A62,Inputs!$C$68:$AN$68,0),FALSE)*('Master Data'!O$42))","v":269.05459315622693},null,null,null,null,null,null,null,"CAPEX Instalation costs",{"$f":"-PMT(Inputs!$D$4,'CAPEX Annuity calcs'!$D62,E62)","v":18.736141709912243},{"$f":"-PMT(Inputs!$D$4,'CAPEX Annuity calcs'!$D62,F62)","v":18.74779128716041},{"$f":"-PMT(Inputs!$D$4,'CAPEX Annuity calcs'!$D62,G62)","v":18.765559678232343},{"$f":"-PMT(Inputs!$D$4,'CAPEX Annuity calcs'!$D62,H62)","v":18.787465819916616},{"$f":"-PMT(Inputs!$D$4,'CAPEX Annuity calcs'!$D62,I62)","v":18.813047608397444}]
[]
[]
[{"$f":"A58+1","v":9},{"$f":"VLOOKUP($A65,Inputs!$B$68:$AN$129,MATCH($B$7,Inputs!$B$68:$AN$68,0),FALSE)","v":"T5 Fluorescent 2 x 24W"},{"$f":"VLOOKUP($A65,Inputs!$B$68:$AN$129,MATCH($C$7,Inputs!$B$68:$AN$68,0),FALSE)","v":"RLMIN"},null,null,null,null,null,null,null,null,null,null,null,null,null,{"$f":"VLOOKUP($A65,Inputs!$B$68:$AN$129,MATCH($B$7,Inputs!$B$68:$AN$68,0),FALSE)","v":"T5 Fluorescent 2 x 24W"}]
[null,{"$f":"Inputs!$AK$68","v":"Bracket UNIT price"},null,{"$f":"Inputs!$D$10","v":40},{"$f":"VLOOKUP($B65,Inputs!$C$68:$AN$129,MATCH($B66,Inputs!$C$68:$AN$68,0),FALSE)","v":133.12518584597089},{"$f":"E66","v":133.12518584597089},{"$f":"F66","v":133.12518584597089},133.12518584597089,133.12518584597089,null,null,null,null,null,null,null,{"$f":"B66","v":"Bracket UNIT price"},{"$f":"-PMT(Inputs!$D$4,'CAPEX Annuity calcs'!$D66,E66)","v":6.1673796159250225},{"$f":"-PMT(Inputs!$D$4,'CAPEX Annuity calcs'!$D66,F66)","v":6.1673796159250225},{"$f":"-PMT(Inputs!$D$4,'CAPEX Annuity calcs'!$D66,G66)","v":6.1673796159250225},{"$f":"-PMT(Inputs!$D$4,'CAPEX Annuity calcs'!$D66,H66)","v":6.1673796159250225},{"$f":"-PMT(Inputs!$D$4,'CAPEX Annuity calcs'!$D66,I66)","v":6.1673796159250225}]
[null,{"$f":"Inputs!$AA$68","v":"CAPEX Instalation costs"},{"$f":"\"Bracket (\"&Inputs!$D$10&\"yrs)\"","v":"Bracket (40yrs)"},{"$f":"Inputs!$D$10","v":40},null,{"$f":"E67","v":0},0,0,0,null,null,null,null,null,null,null,{"$f":"B67","v":"CAPEX Instalation costs"},{"$f":"-PMT(Inputs!$D$4,'CAPEX Annuity calcs'!$D67,E67)","v":0},{"$f":"-PMT(Inputs!$D$4,'CAPEX Annuity calcs'!$D67,F67)","v":0},{"$f":"-PMT(Inputs!$D$4,'CAPEX Annuity calcs'!$D67,G67)","v":0},{"$f":"-PMT(Inputs!$D$4,'CAPEX Annuity calcs'!$D67,H67)","v":0},{"$f":"-PMT(Inputs!$D$4,'CAPEX Annuity calcs'!$D67,I67)","v":0}]
[null,{"$f":"Inputs!$Z$68","v":"Luminaire UNIT price"},null,{"$f":"Inputs!$D$9","v":20},{"$f":"VLOOKUP($B65,Inputs!$C$68:$AN$129,MATCH($B68,Inputs!$C$68:$AN$68,0),FALSE)","v":253.55992440889494},{"$f":"E68","v":253.55992440889494},{"$f":"F68","v":253.55992440889494},253.55992440889494,253.55992440889494,null,null,null,null,null,null,null,"Luminaire UNIT price",{"$f":"-PMT(Inputs!$D$4,'CAPEX Annuity calcs'!$D68,E68)","v":17.729617151402259},{"$f":"-PMT(Inputs!$D$4,'CAPEX Annuity calcs'!$D68,F68)","v":17.729617151402259},{"$f":"-PMT(Inputs!$D$4,'CAPEX Annuity calcs'!$D68,G68)","v":17.729617151402259},{"$f":"-PMT(Inputs!$D$4,'CAPEX Annuity calcs'!$D68,H68)","v":17.729617151402259},{"$f":"-PMT(Inputs!$D$4,'CAPEX Annuity calcs'!$D68,I68)","v":17.729617151402259}]
[{"$f":"$A$13","v":"Labour Portion of CAPEX Instalation costs"},{"$f":"Inputs!$AA$68","v":"CAPEX Instalation costs"},"Luminaire (20yrs)",{"$f":"Inputs!$D$9","v":20},{"$f":"VLOOKUP($B65,Inputs!$C$68:$AN$129,MATCH($B69,Inputs!$C$68:$AN$68,0),FALSE)+(VLOOKUP($B65,Inputs!$C$68:$AN$129,MATCH($A69,Inputs!$C$68:$AN$68,0),FALSE)*('Master Data'!K$42))","v":267.95472429611652},{"$f":"VLOOKUP($B65,Inputs!$C$68:$AN$129,MATCH($B69,Inputs!$C$68:$AN$68,0),FALSE)+(VLOOKUP($B65,Inputs!$C$68:$AN$129,MATCH($A69,Inputs!$C$68:$AN$68,0),FALSE)*('Master Data'!L$42))","v":268.12133059681764},{"$f":"VLOOKUP($B65,Inputs!$C$68:$AN$129,MATCH($B69,Inputs!$C$68:$AN$68,0),FALSE)+(VLOOKUP($B65,Inputs!$C$68:$AN$129,MATCH($A69,Inputs!$C$68:$AN$68,0),FALSE)*('Master Data'!M$42))","v":268.37544504602391},{"$f":"VLOOKUP($B65,Inputs!$C$68:$AN$129,MATCH($B69,Inputs!$C$68:$AN$68,0),FALSE)+(VLOOKUP($B65,Inputs!$C$68:$AN$129,MATCH($A69,Inputs!$C$68:$AN$68,0),FALSE)*('Master Data'!N$42))","v":268.68873549003757},{"$f":"VLOOKUP($B65,Inputs!$C$68:$AN$129,MATCH($B69,Inputs!$C$68:$AN$68,0),FALSE)+(VLOOKUP($B65,Inputs!$C$68:$AN$129,MATCH($A69,Inputs!$C$68:$AN$68,0),FALSE)*('Master Data'!O$42))","v":269.05459315622693},null,null,null,null,null,null,null,"CAPEX Instalation costs",{"$f":"-PMT(Inputs!$D$4,'CAPEX Annuity calcs'!$D69,E69)","v":18.736141709912243},{"$f":"-PMT(Inputs!$D$4,'CAPEX Annuity calcs'!$D69,F69)","v":18.74779128716041},{"$f":"-PMT(Inputs!$D$4,'CAPEX Annuity calcs'!$D69,G69)","v":18.765559678232343},{"$f":"-PMT(Inputs!$D$4,'CAPEX Annuity calcs'!$D69,H69)","v":18.787465819916616},{"$f":"-PMT(Inputs!$D$4,'CAPEX Annuity calcs'!$D69,I69)","v":18.813047608397444}]
[]
[]
[{"$f":"A65+1","v":10},{"$f":"VLOOKUP($A72,Inputs!$B$68:$AN$129,MATCH($B$7,Inputs!$B$68:$AN$68,0),FALSE)","v":"20 Fluorescent 1X20FL"},{"$f":"VLOOKUP($A72,Inputs!$B$68:$AN$129,MATCH($C$7,Inputs!$B$68:$AN$68,0),FALSE)","v":"RLMIN"},null,null,null,null,null,null,null,null,null,null,null,null,null,{"$f":"VLOOKUP($A72,Inputs!$B$68:$AN$129,MATCH($B$7,Inputs!$B$68:$AN$68,0),FALSE)","v":"20 Fluorescent 1X20FL"}]
[null,{"$f":"Inputs!$AK$68","v":"Bracket UNIT price"},null,{"$f":"Inputs!$D$10","v":40},{"$f":"VLOOKUP($B72,Inputs!$C$68:$AN$129,MATCH($B73,Inputs!$C$68:$AN$68,0),FALSE)","v":133.12518584597089},{"$f":"E73","v":133.12518584597089},{"$f":"F73","v":133.12518584597089},133.12518584597089,133.12518584597089,null,null,null,null,null,null,null,{"$f":"B73","v":"Bracket UNIT price"},{"$f":"-PMT(Inputs!$D$4,'CAPEX Annuity calcs'!$D73,E73)","v":6.1673796159250225},{"$f":"-PMT(Inputs!$D$4,'CAPEX Annuity calcs'!$D73,F73)","v":6.1673796159250225},{"$f":"-PMT(Inputs!$D$4,'CAPEX Annuity calcs'!$D73,G73)","v":6.1673796159250225},{"$f":"-PMT(Inputs!$D$4,'CAPEX Annuity calcs'!$D73,H73)","v":6.1673796159250225},{"$f":"-PMT(Inputs!$D$4,'CAPEX Annuity calcs'!$D73,I73)","v":6.1673796159250225}]
[null,{"$f":"Inputs!$AA$68","v":"CAPEX Instalation costs"},{"$f":"\"Bracket (\"&Inputs!$D$10&\"yrs)\"","v":"Bracket (40yrs)"},{"$f":"Inputs!$D$10","v":40},null,{"$f":"E74","v":0},0,0,0,null,null,null,null,null,null,null,{"$f":"B74","v":"CAPEX Instalation costs"},{"$f":"-PMT(Inputs!$D$4,'CAPEX Annuity calcs'!$D74,E74)","v":0},{"$f":"-PMT(Inputs!$D$4,'CAPEX Annuity calcs'!$D74,F74)","v":0},{"$f":"-PMT(Inputs!$D$4,'CAPEX Annuity calcs'!$D74,G74)","v":0},{"$f":"-PMT(Inputs!$D$4,'CAPEX Annuity calcs'!$D74,H74)","v":0},{"$f":"-PMT(Inputs!$D$4,'CAPEX Annuity calcs'!$D74,I74)","v":0}]
[null,{"$f":"Inputs!$Z$68","v":"Luminaire UNIT price"},null,{"$f":"Inputs!$D$9","v":20},{"$f":"VLOOKUP($B72,Inputs!$C$68:$AN$129,MATCH($B75,Inputs!$C$68:$AN$68,0),FALSE)","v":253.55992440889494},{"$f":"E75","v":253.55992440889494},{"$f":"F75","v":253.55992440889494},253.55992440889494,253.55992440889494,null,null,null,null,null,null,null,"Luminaire UNIT price",{"$f":"-PMT(Inputs!$D$4,'CAPEX Annuity calcs'!$D75,E75)","v":17.729617151402259},{"$f":"-PMT(Inputs!$D$4,'CAPEX Annuity calcs'!$D75,F75)","v":17.729617151402259},{"$f":"-PMT(Inputs!$D$4,'CAPEX Annuity calcs'!$D75,G75)","v":17.729617151402259},{"$f":"-PMT(Inputs!$D$4,'CAPEX Annuity calcs'!$D75,H75)","v":17.729617151402259},{"$f":"-PMT(Inputs!$D$4,'CAPEX Annuity calcs'!$D75,I75)","v":17.729617151402259}]
[{"$f":"$A$13","v":"Labour Portion of CAPEX Instalation costs"},{"$f":"Inputs!$AA$68","v":"CAPEX Instalation costs"},"Luminaire (20yrs)",{"$f":"Inputs!$D$9","v":20},{"$f":"VLOOKUP($B72,Inputs!$C$68:$AN$129,MATCH($B76,Inputs!$C$68:$AN$68,0),FALSE)+(VLOOKUP($B72,Inputs!$C$68:$AN$129,MATCH($A76,Inputs!$C$68:$AN$68,0),FALSE)*('Master Data'!K$42))","v":267.95472429611652},{"$f":"VLOOKUP($B72,Inputs!$C$68:$AN$129,MATCH($B76,Inputs!$C$68:$AN$68,0),FALSE)+(VLOOKUP($B72,Inputs!$C$68:$AN$129,MATCH($A76,Inputs!$C$68:$AN$68,0),FALSE)*('Master Data'!L$42))","v":268.12133059681764},{"$f":"VLOOKUP($B72,Inputs!$C$68:$AN$129,MATCH($B76,Inputs!$C$68:$AN$68,0),FALSE)+(VLOOKUP($B72,Inputs!$C$68:$AN$129,MATCH($A76,Inputs!$C$68:$AN$68,0),FALSE)*('Master Data'!M$42))","v":268.37544504602391},{"$f":"VLOOKUP($B72,Inputs!$C$68:$AN$129,MATCH($B76,Inputs!$C$68:$AN$68,0),FALSE)+(VLOOKUP($B72,Inputs!$C$68:$AN$129,MATCH($A76,Inputs!$C$68:$AN$68,0),FALSE)*('Master Data'!N$42))","v":268.68873549003757},{"$f":"VLOOKUP($B72,Inputs!$C$68:$AN$129,MATCH($B76,Inputs!$C$68:$AN$68,0),FALSE)+(VLOOKUP($B72,Inputs!$C$68:$AN$129,MATCH($A76,Inputs!$C$68:$AN$68,0),FALSE)*('Master Data'!O$42))","v":269.05459315622693},null,null,null,null,null,null,null,"CAPEX Instalation costs",{"$f":"-PMT(Inputs!$D$4,'CAPEX Annuity calcs'!$D76,E76)","v":18.736141709912243},{"$f":"-PMT(Inputs!$D$4,'CAPEX Annuity calcs'!$D76,F76)","v":18.74779128716041},{"$f":"-PMT(Inputs!$D$4,'CAPEX Annuity calcs'!$D76,G76)","v":18.765559678232343},{"$f":"-PMT(Inputs!$D$4,'CAPEX Annuity calcs'!$D76,H76)","v":18.787465819916616},{"$f":"-PMT(Inputs!$D$4,'CAPEX Annuity calcs'!$D76,I76)","v":18.813047608397444}]
[]
[]
[{"$f":"A72+1","v":11},{"$f":"VLOOKUP($A79,Inputs!$B$68:$AN$129,MATCH($B$7,Inputs!$B$68:$AN$68,0),FALSE)","v":"2x40W Fluorescent"},{"$f":"VLOOKUP($A79,Inputs!$B$68:$AN$129,MATCH($C$7,Inputs!$B$68:$AN$68,0),FALSE)","v":"RLMIN"},null,null,null,null,null,null,null,null,null,null,null,null,null,{"$f":"VLOOKUP($A79,Inputs!$B$68:$AN$129,MATCH($B$7,Inputs!$B$68:$AN$68,0),FALSE)","v":"2x40W Fluorescent"}]
[null,{"$f":"Inputs!$AK$68","v":"Bracket UNIT price"},null,{"$f":"Inputs!$D$10","v":40},{"$f":"VLOOKUP($B79,Inputs!$C$68:$AN$129,MATCH($B80,Inputs!$C$68:$AN$68,0),FALSE)","v":133.12518584597089},{"$f":"E80","v":133.12518584597089},{"$f":"F80","v":133.12518584597089},133.12518584597089,133.12518584597089,null,null,null,null,null,null,null,{"$f":"B80","v":"Bracket UNIT price"},{"$f":"-PMT(Inputs!$D$4,'CAPEX Annuity calcs'!$D80,E80)","v":6.1673796159250225},{"$f":"-PMT(Inputs!$D$4,'CAPEX Annuity calcs'!$D80,F80)","v":6.1673796159250225},{"$f":"-PMT(Inputs!$D$4,'CAPEX Annuity calcs'!$D80,G80)","v":6.1673796159250225},{"$f":"-PMT(Inputs!$D$4,'CAPEX Annuity calcs'!$D80,H80)","v":6.1673796159250225},{"$f":"-PMT(Inputs!$D$4,'CAPEX Annuity calcs'!$D80,I80)","v":6.1673796159250225}]
[null,{"$f":"Inputs!$AA$68","v":"CAPEX Instalation costs"},{"$f":"\"Bracket (\"&Inputs!$D$10&\"yrs)\"","v":"Bracket (40yrs)"},{"$f":"Inputs!$D$10","v":40},null,{"$f":"E81","v":0},0,0,0,null,null,null,null,null,null,null,{"$f":"B81","v":"CAPEX Instalation costs"},{"$f":"-PMT(Inputs!$D$4,'CAPEX Annuity calcs'!$D81,E81)","v":0},{"$f":"-PMT(Inputs!$D$4,'CAPEX Annuity calcs'!$D81,F81)","v":0},{"$f":"-PMT(Inputs!$D$4,'CAPEX Annuity calcs'!$D81,G81)","v":0},{"$f":"-PMT(Inputs!$D$4,'CAPEX Annuity calcs'!$D81,H81)","v":0},{"$f":"-PMT(Inputs!$D$4,'CAPEX Annuity calcs'!$D81,I81)","v":0}]
[null,{"$f":"Inputs!$Z$68","v":"Luminaire UNIT price"},null,{"$f":"Inputs!$D$9","v":20},{"$f":"VLOOKUP($B79,Inputs!$C$68:$AN$129,MATCH($B82,Inputs!$C$68:$AN$68,0),FALSE)","v":198.67540480279561},{"$f":"E82","v":198.67540480279561},{"$f":"F82","v":198.67540480279561},198.67540480279561,198.67540480279561,null,null,null,null,null,null,null,"Luminaire UNIT price",{"$f":"-PMT(Inputs!$D$4,'CAPEX Annuity calcs'!$D82,E82)","v":13.891938455041847},{"$f":"-PMT(Inputs!$D$4,'CAPEX Annuity calcs'!$D82,F82)","v":13.891938455041847},{"$f":"-PMT(Inputs!$D$4,'CAPEX Annuity calcs'!$D82,G82)","v":13.891938455041847},{"$f":"-PMT(Inputs!$D$4,'CAPEX Annuity calcs'!$D82,H82)","v":13.891938455041847},{"$f":"-PMT(Inputs!$D$4,'CAPEX Annuity calcs'!$D82,I82)","v":13.891938455041847}]
[{"$f":"$A$13","v":"Labour Portion of CAPEX Instalation costs"},{"$f":"Inputs!$AA$68","v":"CAPEX Instalation costs"},"Luminaire (20yrs)",{"$f":"Inputs!$D$9","v":20},{"$f":"VLOOKUP($B79,Inputs!$C$68:$AN$129,MATCH($B83,Inputs!$C$68:$AN$68,0),FALSE)+(VLOOKUP($B79,Inputs!$C$68:$AN$129,MATCH($A83,Inputs!$C$68:$AN$68,0),FALSE)*('Master Data'!K$42))","v":267.95472429611652},{"$f":"VLOOKUP($B79,Inputs!$C$68:$AN$129,MATCH($B83,Inputs!$C$68:$AN$68,0),FALSE)+(VLOOKUP($B79,Inputs!$C$68:$AN$129,MATCH($A83,Inputs!$C$68:$AN$68,0),FALSE)*('Master Data'!L$42))","v":268.12133059681764},{"$f":"VLOOKUP($B79,Inputs!$C$68:$AN$129,MATCH($B83,Inputs!$C$68:$AN$68,0),FALSE)+(VLOOKUP($B79,Inputs!$C$68:$AN$129,MATCH($A83,Inputs!$C$68:$AN$68,0),FALSE)*('Master Data'!M$42))","v":268.37544504602391},{"$f":"VLOOKUP($B79,Inputs!$C$68:$AN$129,MATCH($B83,Inputs!$C$68:$AN$68,0),FALSE)+(VLOOKUP($B79,Inputs!$C$68:$AN$129,MATCH($A83,Inputs!$C$68:$AN$68,0),FALSE)*('Master Data'!N$42))","v":268.68873549003757},{"$f":"VLOOKUP($B79,Inputs!$C$68:$AN$129,MATCH($B83,Inputs!$C$68:$AN$68,0),FALSE)+(VLOOKUP($B79,Inputs!$C$68:$AN$129,MATCH($A83,Inputs!$C$68:$AN$68,0),FALSE)*('Master Data'!O$42))","v":269.05459315622693},null,null,null,null,null,null,null,"CAPEX Instalation costs",{"$f":"-PMT(Inputs!$D$4,'CAPEX Annuity calcs'!$D83,E83)","v":18.736141709912243},{"$f":"-PMT(Inputs!$D$4,'CAPEX Annuity calcs'!$D83,F83)","v":18.74779128716041},{"$f":"-PMT(Inputs!$D$4,'CAPEX Annuity calcs'!$D83,G83)","v":18.765559678232343},{"$f":"-PMT(Inputs!$D$4,'CAPEX Annuity calcs'!$D83,H83)","v":18.787465819916616},{"$f":"-PMT(Inputs!$D$4,'CAPEX Annuity calcs'!$D83,I83)","v":18.813047608397444}]
[]
[]
[{"$f":"A79+1","v":12},{"$f":"VLOOKUP($A86,Inputs!$B$68:$AN$129,MATCH($B$7,Inputs!$B$68:$AN$68,0),FALSE)","v":"3x40W Fluorescent"},{"$f":"VLOOKUP($A86,Inputs!$B$68:$AN$129,MATCH($C$7,Inputs!$B$68:$AN$68,0),FALSE)","v":"RLMAJ"},null,null,null,null,null,null,null,null,null,null,null,null,null,"32W Compact Fluorescent"]
[null,{"$f":"Inputs!$AK$68","v":"Bracket UNIT price"},null,40,{"$f":"VLOOKUP($B86,Inputs!$C$68:$AN$129,MATCH($B87,Inputs!$C$68:$AN$68,0),FALSE)","v":133.12518584597089},{"$f":"E87","v":133.12518584597089},{"$f":"F87","v":133.12518584597089},133.12518584597089,133.12518584597089,null,null,null,null,null,null,null,"Bracket UNIT price",{"$f":"-PMT(Inputs!$D$4,'CAPEX Annuity calcs'!$D87,E87)","v":6.1673796159250225},{"$f":"-PMT(Inputs!$D$4,'CAPEX Annuity calcs'!$D87,F87)","v":6.1673796159250225},{"$f":"-PMT(Inputs!$D$4,'CAPEX Annuity calcs'!$D87,G87)","v":6.1673796159250225},{"$f":"-PMT(Inputs!$D$4,'CAPEX Annuity calcs'!$D87,H87)","v":6.1673796159250225},{"$f":"-PMT(Inputs!$D$4,'CAPEX Annuity calcs'!$D87,I87)","v":6.1673796159250225}]
[null,{"$f":"Inputs!$AA$68","v":"CAPEX Instalation costs"},{"$f":"\"Bracket (\"&Inputs!$D$10&\"yrs)\"","v":"Bracket (40yrs)"},40,null,{"$f":"E88","v":0},0,0,0,null,null,null,null,null,null,null,"CAPEX Instralation costs",{"$f":"-PMT(Inputs!$D$4,'CAPEX Annuity calcs'!$D88,E88)","v":0},{"$f":"-PMT(Inputs!$D$4,'CAPEX Annuity calcs'!$D88,F88)","v":0},{"$f":"-PMT(Inputs!$D$4,'CAPEX Annuity calcs'!$D88,G88)","v":0},{"$f":"-PMT(Inputs!$D$4,'CAPEX Annuity calcs'!$D88,H88)","v":0},{"$f":"-PMT(Inputs!$D$4,'CAPEX Annuity calcs'!$D88,I88)","v":0}]
[null,{"$f":"Inputs!$Z$68","v":"Luminaire UNIT price"},null,20,{"$f":"VLOOKUP($B86,Inputs!$C$68:$AN$129,MATCH($B89,Inputs!$C$68:$AN$68,0),FALSE)","v":198.67540480279561},{"$f":"E89","v":198.67540480279561},{"$f":"F89","v":198.67540480279561},198.67540480279561,198.67540480279561,null,null,null,null,null,null,null,"Luminaire UNIT price",{"$f":"-PMT(Inputs!$D$4,'CAPEX Annuity calcs'!$D89,E89)","v":13.891938455041847},{"$f":"-PMT(Inputs!$D$4,'CAPEX Annuity calcs'!$D89,F89)","v":13.891938455041847},{"$f":"-PMT(Inputs!$D$4,'CAPEX Annuity calcs'!$D89,G89)","v":13.891938455041847},{"$f":"-PMT(Inputs!$D$4,'CAPEX Annuity calcs'!$D89,H89)","v":13.891938455041847},{"$f":"-PMT(Inputs!$D$4,'CAPEX Annuity calcs'!$D89,I89)","v":13.891938455041847}]
[{"$f":"$A$13","v":"Labour Portion of CAPEX Instalation costs"},{"$f":"Inputs!$AA$68","v":"CAPEX Instalation costs"},"Luminaire (20yrs)",20,{"$f":"VLOOKUP($B86,Inputs!$C$68:$AN$129,MATCH($B90,Inputs!$C$68:$AN$68,0),FALSE)+(VLOOKUP($B86,Inputs!$C$68:$AN$129,MATCH($A90,Inputs!$C$68:$AN$68,0),FALSE)*('Master Data'!K$42))","v":421.74525866906089},{"$f":"VLOOKUP($B86,Inputs!$C$68:$AN$129,MATCH($B90,Inputs!$C$68:$AN$68,0),FALSE)+(VLOOKUP($B86,Inputs!$C$68:$AN$129,MATCH($A90,Inputs!$C$68:$AN$68,0),FALSE)*('Master Data'!L$42))","v":422.00090685669414},{"$f":"VLOOKUP($B86,Inputs!$C$68:$AN$129,MATCH($B90,Inputs!$C$68:$AN$68,0),FALSE)+(VLOOKUP($B86,Inputs!$C$68:$AN$129,MATCH($A90,Inputs!$C$68:$AN$68,0),FALSE)*('Master Data'!M$42))","v":422.39083147609711},{"$f":"VLOOKUP($B86,Inputs!$C$68:$AN$129,MATCH($B90,Inputs!$C$68:$AN$68,0),FALSE)+(VLOOKUP($B86,Inputs!$C$68:$AN$129,MATCH($A90,Inputs!$C$68:$AN$68,0),FALSE)*('Master Data'!N$42))","v":422.87155839865568},{"$f":"VLOOKUP($B86,Inputs!$C$68:$AN$129,MATCH($B90,Inputs!$C$68:$AN$68,0),FALSE)+(VLOOKUP($B86,Inputs!$C$68:$AN$129,MATCH($A90,Inputs!$C$68:$AN$68,0),FALSE)*('Master Data'!O$42))","v":423.43294682694113},null,null,null,null,null,null,null,"CAPEX Instralation costs",{"$f":"-PMT(Inputs!$D$4,'CAPEX Annuity calcs'!$D90,E90)","v":29.489604830309908},{"$f":"-PMT(Inputs!$D$4,'CAPEX Annuity calcs'!$D90,F90)","v":29.507480464650605},{"$f":"-PMT(Inputs!$D$4,'CAPEX Annuity calcs'!$D90,G90)","v":29.534745081628376},{"$f":"-PMT(Inputs!$D$4,'CAPEX Annuity calcs'!$D90,H90)","v":29.568358848911217},{"$f":"-PMT(Inputs!$D$4,'CAPEX Annuity calcs'!$D90,I90)","v":29.607612693657906}]
[]
[]
[{"$f":"A86+1","v":13},{"$f":"VLOOKUP($A93,Inputs!$B$68:$AN$129,MATCH($B$7,Inputs!$B$68:$AN$68,0),FALSE)","v":"4x20 Fluorescent"},{"$f":"VLOOKUP($A93,Inputs!$B$68:$AN$129,MATCH($C$7,Inputs!$B$68:$AN$68,0),FALSE)","v":"RLMIN"},null,null,null,null,null,null,null,null,null,null,null,null,null,{"$f":"VLOOKUP($A93,Inputs!$B$68:$AN$129,MATCH($B$7,Inputs!$B$68:$AN$68,0),FALSE)","v":"4x20 Fluorescent"}]
[null,{"$f":"Inputs!$AK$68","v":"Bracket UNIT price"},null,{"$f":"Inputs!$D$10","v":40},{"$f":"VLOOKUP($B93,Inputs!$C$68:$AN$129,MATCH($B94,Inputs!$C$68:$AN$68,0),FALSE)","v":133.12518584597089},{"$f":"E94","v":133.12518584597089},{"$f":"F94","v":133.12518584597089},133.12518584597089,133.12518584597089,null,null,null,null,null,null,null,{"$f":"B94","v":"Bracket UNIT price"},{"$f":"-PMT(Inputs!$D$4,'CAPEX Annuity calcs'!$D94,E94)","v":6.1673796159250225},{"$f":"-PMT(Inputs!$D$4,'CAPEX Annuity calcs'!$D94,F94)","v":6.1673796159250225},{"$f":"-PMT(Inputs!$D$4,'CAPEX Annuity calcs'!$D94,G94)","v":6.1673796159250225},{"$f":"-PMT(Inputs!$D$4,'CAPEX Annuity calcs'!$D94,H94)","v":6.1673796159250225},{"$f":"-PMT(Inputs!$D$4,'CAPEX Annuity calcs'!$D94,I94)","v":6.1673796159250225}]
[null,{"$f":"Inputs!$AA$68","v":"CAPEX Instalation costs"},{"$f":"\"Bracket (\"&Inputs!$D$10&\"yrs)\"","v":"Bracket (40yrs)"},{"$f":"Inputs!$D$10","v":40},null,{"$f":"E95","v":0},0,0,0,null,null,null,null,null,null,null,{"$f":"B95","v":"CAPEX Instalation costs"},{"$f":"-PMT(Inputs!$D$4,'CAPEX Annuity calcs'!$D95,E95)","v":0},{"$f":"-PMT(Inputs!$D$4,'CAPEX Annuity calcs'!$D95,F95)","v":0},{"$f":"-PMT(Inputs!$D$4,'CAPEX Annuity calcs'!$D95,G95)","v":0},{"$f":"-PMT(Inputs!$D$4,'CAPEX Annuity calcs'!$D95,H95)","v":0},{"$f":"-PMT(Inputs!$D$4,'CAPEX Annuity calcs'!$D95,I95)","v":0}]
[null,{"$f":"Inputs!$Z$68","v":"Luminaire UNIT price"},null,{"$f":"Inputs!$D$9","v":20},{"$f":"VLOOKUP($B93,Inputs!$C$68:$AN$129,MATCH($B96,Inputs!$C$68:$AN$68,0),FALSE)","v":253.55992440889494},{"$f":"E96","v":253.55992440889494},{"$f":"F96","v":253.55992440889494},253.55992440889494,253.55992440889494,null,null,null,null,null,null,null,"Luminaire UNIT price",{"$f":"-PMT(Inputs!$D$4,'CAPEX Annuity calcs'!$D96,E96)","v":17.729617151402259},{"$f":"-PMT(Inputs!$D$4,'CAPEX Annuity calcs'!$D96,F96)","v":17.729617151402259},{"$f":"-PMT(Inputs!$D$4,'CAPEX Annuity calcs'!$D96,G96)","v":17.729617151402259},{"$f":"-PMT(Inputs!$D$4,'CAPEX Annuity calcs'!$D96,H96)","v":17.729617151402259},{"$f":"-PMT(Inputs!$D$4,'CAPEX Annuity calcs'!$D96,I96)","v":17.729617151402259}]
[{"$f":"$A$13","v":"Labour Portion of CAPEX Instalation costs"},{"$f":"Inputs!$AA$68","v":"CAPEX Instalation costs"},"Luminaire (20yrs)",{"$f":"Inputs!$D$9","v":20},{"$f":"VLOOKUP($B93,Inputs!$C$68:$AN$129,MATCH($B97,Inputs!$C$68:$AN$68,0),FALSE)+(VLOOKUP($B93,Inputs!$C$68:$AN$129,MATCH($A97,Inputs!$C$68:$AN$68,0),FALSE)*('Master Data'!K$42))","v":267.95472429611652},{"$f":"VLOOKUP($B93,Inputs!$C$68:$AN$129,MATCH($B97,Inputs!$C$68:$AN$68,0),FALSE)+(VLOOKUP($B93,Inputs!$C$68:$AN$129,MATCH($A97,Inputs!$C$68:$AN$68,0),FALSE)*('Master Data'!L$42))","v":268.12133059681764},{"$f":"VLOOKUP($B93,Inputs!$C$68:$AN$129,MATCH($B97,Inputs!$C$68:$AN$68,0),FALSE)+(VLOOKUP($B93,Inputs!$C$68:$AN$129,MATCH($A97,Inputs!$C$68:$AN$68,0),FALSE)*('Master Data'!M$42))","v":268.37544504602391},{"$f":"VLOOKUP($B93,Inputs!$C$68:$AN$129,MATCH($B97,Inputs!$C$68:$AN$68,0),FALSE)+(VLOOKUP($B93,Inputs!$C$68:$AN$129,MATCH($A97,Inputs!$C$68:$AN$68,0),FALSE)*('Master Data'!N$42))","v":268.68873549003757},{"$f":"VLOOKUP($B93,Inputs!$C$68:$AN$129,MATCH($B97,Inputs!$C$68:$AN$68,0),FALSE)+(VLOOKUP($B93,Inputs!$C$68:$AN$129,MATCH($A97,Inputs!$C$68:$AN$68,0),FALSE)*('Master Data'!O$42))","v":269.05459315622693},null,null,null,null,null,null,null,"CAPEX Instalation costs",{"$f":"-PMT(Inputs!$D$4,'CAPEX Annuity calcs'!$D97,E97)","v":18.736141709912243},{"$f":"-PMT(Inputs!$D$4,'CAPEX Annuity calcs'!$D97,F97)","v":18.74779128716041},{"$f":"-PMT(Inputs!$D$4,'CAPEX Annuity calcs'!$D97,G97)","v":18.765559678232343},{"$f":"-PMT(Inputs!$D$4,'CAPEX Annuity calcs'!$D97,H97)","v":18.787465819916616},{"$f":"-PMT(Inputs!$D$4,'CAPEX Annuity calcs'!$D97,I97)","v":18.813047608397444}]
[]
[]
[{"$f":"A93+1","v":14},{"$f":"VLOOKUP($A100,Inputs!$B$68:$AN$129,MATCH($B$7,Inputs!$B$68:$AN$68,0),FALSE)","v":"4x40W Fluorescent"},{"$f":"VLOOKUP($A100,Inputs!$B$68:$AN$129,MATCH($C$7,Inputs!$B$68:$AN$68,0),FALSE)","v":"RLMAJ"},null,null,null,null,null,null,null,null,null,null,null,null,null,{"$f":"VLOOKUP($A100,Inputs!$B$68:$AN$129,MATCH($B$7,Inputs!$B$68:$AN$68,0),FALSE)","v":"4x40W Fluorescent"}]
[null,{"$f":"Inputs!$AK$68","v":"Bracket UNIT price"},null,{"$f":"Inputs!$D$10","v":40},{"$f":"VLOOKUP($B100,Inputs!$C$68:$AN$129,MATCH($B101,Inputs!$C$68:$AN$68,0),FALSE)","v":133.12518584597089},{"$f":"E101","v":133.12518584597089},{"$f":"F101","v":133.12518584597089},133.12518584597089,133.12518584597089,null,null,null,null,null,null,null,{"$f":"B101","v":"Bracket UNIT price"},{"$f":"-PMT(Inputs!$D$4,'CAPEX Annuity calcs'!$D101,E101)","v":6.1673796159250225},{"$f":"-PMT(Inputs!$D$4,'CAPEX Annuity calcs'!$D101,F101)","v":6.1673796159250225},{"$f":"-PMT(Inputs!$D$4,'CAPEX Annuity calcs'!$D101,G101)","v":6.1673796159250225},{"$f":"-PMT(Inputs!$D$4,'CAPEX Annuity calcs'!$D101,H101)","v":6.1673796159250225},{"$f":"-PMT(Inputs!$D$4,'CAPEX Annuity calcs'!$D101,I101)","v":6.1673796159250225}]
[null,{"$f":"Inputs!$AA$68","v":"CAPEX Instalation costs"},{"$f":"\"Bracket (\"&Inputs!$D$10&\"yrs)\"","v":"Bracket (40yrs)"},{"$f":"Inputs!$D$10","v":40},null,{"$f":"E102","v":0},0,0,0,null,null,null,null,null,null,null,{"$f":"B102","v":"CAPEX Instalation costs"},{"$f":"-PMT(Inputs!$D$4,'CAPEX Annuity calcs'!$D102,E102)","v":0},{"$f":"-PMT(Inputs!$D$4,'CAPEX Annuity calcs'!$D102,F102)","v":0},{"$f":"-PMT(Inputs!$D$4,'CAPEX Annuity calcs'!$D102,G102)","v":0},{"$f":"-PMT(Inputs!$D$4,'CAPEX Annuity calcs'!$D102,H102)","v":0},{"$f":"-PMT(Inputs!$D$4,'CAPEX Annuity calcs'!$D102,I102)","v":0}]
[null,{"$f":"Inputs!$Z$68","v":"Luminaire UNIT price"},null,{"$f":"Inputs!$D$9","v":20},{"$f":"VLOOKUP($B100,Inputs!$C$68:$AN$129,MATCH($B103,Inputs!$C$68:$AN$68,0),FALSE)","v":253.55992440889494},{"$f":"E103","v":253.55992440889494},{"$f":"F103","v":253.55992440889494},253.55992440889494,253.55992440889494,null,null,null,null,null,null,null,"Luminaire UNIT price",{"$f":"-PMT(Inputs!$D$4,'CAPEX Annuity calcs'!$D103,E103)","v":17.729617151402259},{"$f":"-PMT(Inputs!$D$4,'CAPEX Annuity calcs'!$D103,F103)","v":17.729617151402259},{"$f":"-PMT(Inputs!$D$4,'CAPEX Annuity calcs'!$D103,G103)","v":17.729617151402259},{"$f":"-PMT(Inputs!$D$4,'CAPEX Annuity calcs'!$D103,H103)","v":17.729617151402259},{"$f":"-PMT(Inputs!$D$4,'CAPEX Annuity calcs'!$D103,I103)","v":17.729617151402259}]
[{"$f":"$A$13","v":"Labour Portion of CAPEX Instalation costs"},{"$f":"Inputs!$AA$68","v":"CAPEX Instalation costs"},"Luminaire (20yrs)",{"$f":"Inputs!$D$9","v":20},{"$f":"VLOOKUP($B100,Inputs!$C$68:$AN$129,MATCH($B104,Inputs!$C$68:$AN$68,0),FALSE)+(VLOOKUP($B100,Inputs!$C$68:$AN$129,MATCH($A104,Inputs!$C$68:$AN$68,0),FALSE)*('Master Data'!K$42))","v":421.74525866906089},{"$f":"VLOOKUP($B100,Inputs!$C$68:$AN$129,MATCH($B104,Inputs!$C$68:$AN$68,0),FALSE)+(VLOOKUP($B100,Inputs!$C$68:$AN$129,MATCH($A104,Inputs!$C$68:$AN$68,0),FALSE)*('Master Data'!L$42))","v":422.00090685669414},{"$f":"VLOOKUP($B100,Inputs!$C$68:$AN$129,MATCH($B104,Inputs!$C$68:$AN$68,0),FALSE)+(VLOOKUP($B100,Inputs!$C$68:$AN$129,MATCH($A104,Inputs!$C$68:$AN$68,0),FALSE)*('Master Data'!M$42))","v":422.39083147609711},{"$f":"VLOOKUP($B100,Inputs!$C$68:$AN$129,MATCH($B104,Inputs!$C$68:$AN$68,0),FALSE)+(VLOOKUP($B100,Inputs!$C$68:$AN$129,MATCH($A104,Inputs!$C$68:$AN$68,0),FALSE)*('Master Data'!N$42))","v":422.87155839865568},{"$f":"VLOOKUP($B100,Inputs!$C$68:$AN$129,MATCH($B104,Inputs!$C$68:$AN$68,0),FALSE)+(VLOOKUP($B100,Inputs!$C$68:$AN$129,MATCH($A104,Inputs!$C$68:$AN$68,0),FALSE)*('Master Data'!O$42))","v":423.43294682694113},null,null,null,null,null,null,null,"CAPEX Instalation costs",{"$f":"-PMT(Inputs!$D$4,'CAPEX Annuity calcs'!$D104,E104)","v":29.489604830309908},{"$f":"-PMT(Inputs!$D$4,'CAPEX Annuity calcs'!$D104,F104)","v":29.507480464650605},{"$f":"-PMT(Inputs!$D$4,'CAPEX Annuity calcs'!$D104,G104)","v":29.534745081628376},{"$f":"-PMT(Inputs!$D$4,'CAPEX Annuity calcs'!$D104,H104)","v":29.568358848911217},{"$f":"-PMT(Inputs!$D$4,'CAPEX Annuity calcs'!$D104,I104)","v":29.607612693657906}]
[]
[]
[{"$f":"A100+1","v":15},{"$f":"VLOOKUP($A107,Inputs!$B$68:$AN$129,MATCH($B$7,Inputs!$B$68:$AN$68,0),FALSE)","v":"100W Sodium Vapour"},{"$f":"VLOOKUP($A107,Inputs!$B$68:$AN$129,MATCH($C$7,Inputs!$B$68:$AN$68,0),FALSE)","v":"RLMAJ"},null,null,null,null,null,null,null,null,null,null,null,null,null,{"$f":"VLOOKUP($A107,Inputs!$B$68:$AN$129,MATCH($B$7,Inputs!$B$68:$AN$68,0),FALSE)","v":"100W Sodium Vapour"}]
[null,{"$f":"Inputs!$AK$68","v":"Bracket UNIT price"},null,{"$f":"Inputs!$D$10","v":40},{"$f":"VLOOKUP($B107,Inputs!$C$68:$AN$129,MATCH($B108,Inputs!$C$68:$AN$68,0),FALSE)","v":120.7732757406451},{"$f":"E108","v":120.7732757406451},{"$f":"F108","v":120.7732757406451},120.7732757406451,120.7732757406451,null,null,null,null,null,null,null,{"$f":"B108","v":"Bracket UNIT price"},{"$f":"-PMT(Inputs!$D$4,'CAPEX Annuity calcs'!$D108,E108)","v":5.5951444065074343},{"$f":"-PMT(Inputs!$D$4,'CAPEX Annuity calcs'!$D108,F108)","v":5.5951444065074343},{"$f":"-PMT(Inputs!$D$4,'CAPEX Annuity calcs'!$D108,G108)","v":5.5951444065074343},{"$f":"-PMT(Inputs!$D$4,'CAPEX Annuity calcs'!$D108,H108)","v":5.5951444065074343},{"$f":"-PMT(Inputs!$D$4,'CAPEX Annuity calcs'!$D108,I108)","v":5.5951444065074343}]
[null,{"$f":"Inputs!$AA$68","v":"CAPEX Instalation costs"},{"$f":"\"Bracket (\"&Inputs!$D$10&\"yrs)\"","v":"Bracket (40yrs)"},{"$f":"Inputs!$D$10","v":40},null,{"$f":"E109","v":0},0,0,0,null,null,null,null,null,null,null,{"$f":"B109","v":"CAPEX Instalation costs"},{"$f":"-PMT(Inputs!$D$4,'CAPEX Annuity calcs'!$D109,E109)","v":0},{"$f":"-PMT(Inputs!$D$4,'CAPEX Annuity calcs'!$D109,F109)","v":0},{"$f":"-PMT(Inputs!$D$4,'CAPEX Annuity calcs'!$D109,G109)","v":0},{"$f":"-PMT(Inputs!$D$4,'CAPEX Annuity calcs'!$D109,H109)","v":0},{"$f":"-PMT(Inputs!$D$4,'CAPEX Annuity calcs'!$D109,I109)","v":0}]
[null,{"$f":"Inputs!$Z$68","v":"Luminaire UNIT price"},null,{"$f":"Inputs!$D$9","v":20},{"$f":"VLOOKUP($B107,Inputs!$C$68:$AN$129,MATCH($B110,Inputs!$C$68:$AN$68,0),FALSE)","v":154.95463481311108},{"$f":"E110","v":154.95463481311108},{"$f":"F110","v":154.95463481311108},154.95463481311108,154.95463481311108,null,null,null,null,null,null,null,"Luminaire UNIT price",{"$f":"-PMT(Inputs!$D$4,'CAPEX Annuity calcs'!$D110,E110)","v":10.834860270117009},{"$f":"-PMT(Inputs!$D$4,'CAPEX Annuity calcs'!$D110,F110)","v":10.834860270117009},{"$f":"-PMT(Inputs!$D$4,'CAPEX Annuity calcs'!$D110,G110)","v":10.834860270117009},{"$f":"-PMT(Inputs!$D$4,'CAPEX Annuity calcs'!$D110,H110)","v":10.834860270117009},{"$f":"-PMT(Inputs!$D$4,'CAPEX Annuity calcs'!$D110,I110)","v":10.834860270117009}]
[{"$f":"$A$13","v":"Labour Portion of CAPEX Instalation costs"},{"$f":"Inputs!$AA$68","v":"CAPEX Instalation costs"},"Luminaire (20yrs)",{"$f":"Inputs!$D$9","v":20},{"$f":"VLOOKUP($B107,Inputs!$C$68:$AN$129,MATCH($B111,Inputs!$C$68:$AN$68,0),FALSE)+(VLOOKUP($B107,Inputs!$C$68:$AN$129,MATCH($A111,Inputs!$C$68:$AN$68,0),FALSE)*('Master Data'!K$42))","v":421.74525866906089},{"$f":"VLOOKUP($B107,Inputs!$C$68:$AN$129,MATCH($B111,Inputs!$C$68:$AN$68,0),FALSE)+(VLOOKUP($B107,Inputs!$C$68:$AN$129,MATCH($A111,Inputs!$C$68:$AN$68,0),FALSE)*('Master Data'!L$42))","v":422.00090685669414},{"$f":"VLOOKUP($B107,Inputs!$C$68:$AN$129,MATCH($B111,Inputs!$C$68:$AN$68,0),FALSE)+(VLOOKUP($B107,Inputs!$C$68:$AN$129,MATCH($A111,Inputs!$C$68:$AN$68,0),FALSE)*('Master Data'!M$42))","v":422.39083147609711},{"$f":"VLOOKUP($B107,Inputs!$C$68:$AN$129,MATCH($B111,Inputs!$C$68:$AN$68,0),FALSE)+(VLOOKUP($B107,Inputs!$C$68:$AN$129,MATCH($A111,Inputs!$C$68:$AN$68,0),FALSE)*('Master Data'!N$42))","v":422.87155839865568},{"$f":"VLOOKUP($B107,Inputs!$C$68:$AN$129,MATCH($B111,Inputs!$C$68:$AN$68,0),FALSE)+(VLOOKUP($B107,Inputs!$C$68:$AN$129,MATCH($A111,Inputs!$C$68:$AN$68,0),FALSE)*('Master Data'!O$42))","v":423.43294682694113},null,null,null,null,null,null,null,"CAPEX Instalation costs",{"$f":"-PMT(Inputs!$D$4,'CAPEX Annuity calcs'!$D111,E111)","v":29.489604830309908},{"$f":"-PMT(Inputs!$D$4,'CAPEX Annuity calcs'!$D111,F111)","v":29.507480464650605},{"$f":"-PMT(Inputs!$D$4,'CAPEX Annuity calcs'!$D111,G111)","v":29.534745081628376},{"$f":"-PMT(Inputs!$D$4,'CAPEX Annuity calcs'!$D111,H111)","v":29.568358848911217},{"$f":"-PMT(Inputs!$D$4,'CAPEX Annuity calcs'!$D111,I111)","v":29.607612693657906}]
[]
[]
[{"$f":"A107+1","v":16},{"$f":"VLOOKUP($A114,Inputs!$B$68:$AN$129,MATCH($B$7,Inputs!$B$68:$AN$68,0),FALSE)","v":"150W Sodium Vapour"},{"$f":"VLOOKUP($A114,Inputs!$B$68:$AN$129,MATCH($C$7,Inputs!$B$68:$AN$68,0),FALSE)","v":"RLMAJ"},null,null,null,null,null,null,null,null,null,null,null,null,null,{"$f":"VLOOKUP($A114,Inputs!$B$68:$AN$129,MATCH($B$7,Inputs!$B$68:$AN$68,0),FALSE)","v":"150W Sodium Vapour"}]
[null,{"$f":"Inputs!$AK$68","v":"Bracket UNIT price"},null,{"$f":"Inputs!$D$10","v":40},{"$f":"VLOOKUP($B114,Inputs!$C$68:$AN$129,MATCH($B115,Inputs!$C$68:$AN$68,0),FALSE)","v":207.89721127739688},{"$f":"E115","v":207.89721127739688},{"$f":"F115","v":207.89721127739688},207.89721127739688,207.89721127739688,null,null,null,null,null,null,null,{"$f":"B115","v":"Bracket UNIT price"},{"$f":"-PMT(Inputs!$D$4,'CAPEX Annuity calcs'!$D115,E115)","v":9.6313933001632801},{"$f":"-PMT(Inputs!$D$4,'CAPEX Annuity calcs'!$D115,F115)","v":9.6313933001632801},{"$f":"-PMT(Inputs!$D$4,'CAPEX Annuity calcs'!$D115,G115)","v":9.6313933001632801},{"$f":"-PMT(Inputs!$D$4,'CAPEX Annuity calcs'!$D115,H115)","v":9.6313933001632801},{"$f":"-PMT(Inputs!$D$4,'CAPEX Annuity calcs'!$D115,I115)","v":9.6313933001632801}]
[null,{"$f":"Inputs!$AA$68","v":"CAPEX Instalation costs"},{"$f":"\"Bracket (\"&Inputs!$D$10&\"yrs)\"","v":"Bracket (40yrs)"},{"$f":"Inputs!$D$10","v":40},null,{"$f":"E116","v":0},0,0,0,null,null,null,null,null,null,null,{"$f":"B116","v":"CAPEX Instalation costs"},{"$f":"-PMT(Inputs!$D$4,'CAPEX Annuity calcs'!$D116,E116)","v":0},{"$f":"-PMT(Inputs!$D$4,'CAPEX Annuity calcs'!$D116,F116)","v":0},{"$f":"-PMT(Inputs!$D$4,'CAPEX Annuity calcs'!$D116,G116)","v":0},{"$f":"-PMT(Inputs!$D$4,'CAPEX Annuity calcs'!$D116,H116)","v":0},{"$f":"-PMT(Inputs!$D$4,'CAPEX Annuity calcs'!$D116,I116)","v":0}]
[null,{"$f":"Inputs!$Z$68","v":"Luminaire UNIT price"},null,{"$f":"Inputs!$D$9","v":20},{"$f":"VLOOKUP($B114,Inputs!$C$68:$AN$129,MATCH($B117,Inputs!$C$68:$AN$68,0),FALSE)","v":216.87186514812163},{"$f":"E117","v":216.87186514812163},{"$f":"F117","v":216.87186514812163},216.87186514812163,216.87186514812163,null,null,null,null,null,null,null,"Luminaire UNIT price",{"$f":"-PMT(Inputs!$D$4,'CAPEX Annuity calcs'!$D117,E117)","v":15.164285716484658},{"$f":"-PMT(Inputs!$D$4,'CAPEX Annuity calcs'!$D117,F117)","v":15.164285716484658},{"$f":"-PMT(Inputs!$D$4,'CAPEX Annuity calcs'!$D117,G117)","v":15.164285716484658},{"$f":"-PMT(Inputs!$D$4,'CAPEX Annuity calcs'!$D117,H117)","v":15.164285716484658},{"$f":"-PMT(Inputs!$D$4,'CAPEX Annuity calcs'!$D117,I117)","v":15.164285716484658}]
[{"$f":"$A$13","v":"Labour Portion of CAPEX Instalation costs"},{"$f":"Inputs!$AA$68","v":"CAPEX Instalation costs"},"Luminaire (20yrs)",{"$f":"Inputs!$D$9","v":20},{"$f":"VLOOKUP($B114,Inputs!$C$68:$AN$129,MATCH($B118,Inputs!$C$68:$AN$68,0),FALSE)+(VLOOKUP($B114,Inputs!$C$68:$AN$129,MATCH($A118,Inputs!$C$68:$AN$68,0),FALSE)*('Master Data'!K$42))","v":421.74525866906089},{"$f":"VLOOKUP($B114,Inputs!$C$68:$AN$129,MATCH($B118,Inputs!$C$68:$AN$68,0),FALSE)+(VLOOKUP($B114,Inputs!$C$68:$AN$129,MATCH($A118,Inputs!$C$68:$AN$68,0),FALSE)*('Master Data'!L$42))","v":422.00090685669414},{"$f":"VLOOKUP($B114,Inputs!$C$68:$AN$129,MATCH($B118,Inputs!$C$68:$AN$68,0),FALSE)+(VLOOKUP($B114,Inputs!$C$68:$AN$129,MATCH($A118,Inputs!$C$68:$AN$68,0),FALSE)*('Master Data'!M$42))","v":422.39083147609711},{"$f":"VLOOKUP($B114,Inputs!$C$68:$AN$129,MATCH($B118,Inputs!$C$68:$AN$68,0),FALSE)+(VLOOKUP($B114,Inputs!$C$68:$AN$129,MATCH($A118,Inputs!$C$68:$AN$68,0),FALSE)*('Master Data'!N$42))","v":422.87155839865568},{"$f":"VLOOKUP($B114,Inputs!$C$68:$AN$129,MATCH($B118,Inputs!$C$68:$AN$68,0),FALSE)+(VLOOKUP($B114,Inputs!$C$68:$AN$129,MATCH($A118,Inputs!$C$68:$AN$68,0),FALSE)*('Master Data'!O$42))","v":423.43294682694113},null,null,null,null,null,null,null,"CAPEX Instalation costs",{"$f":"-PMT(Inputs!$D$4,'CAPEX Annuity calcs'!$D118,E118)","v":29.489604830309908},{"$f":"-PMT(Inputs!$D$4,'CAPEX Annuity calcs'!$D118,F118)","v":29.507480464650605},{"$f":"-PMT(Inputs!$D$4,'CAPEX Annuity calcs'!$D118,G118)","v":29.534745081628376},{"$f":"-PMT(Inputs!$D$4,'CAPEX Annuity calcs'!$D118,H118)","v":29.568358848911217},{"$f":"-PMT(Inputs!$D$4,'CAPEX Annuity calcs'!$D118,I118)","v":29.607612693657906}]
[]
[]
[{"$f":"A114+1","v":17},{"$f":"VLOOKUP($A121,Inputs!$B$68:$AN$129,MATCH($B$7,Inputs!$B$68:$AN$68,0),FALSE)","v":"250W Sodium Vapour"},{"$f":"VLOOKUP($A121,Inputs!$B$68:$AN$129,MATCH($C$7,Inputs!$B$68:$AN$68,0),FALSE)","v":"RLMAJ"},null,null,null,null,null,null,null,null,null,null,null,null,null,{"$f":"VLOOKUP($A121,Inputs!$B$68:$AN$129,MATCH($B$7,Inputs!$B$68:$AN$68,0),FALSE)","v":"250W Sodium Vapour"}]
[null,{"$f":"Inputs!$AK$68","v":"Bracket UNIT price"},null,{"$f":"Inputs!$D$10","v":40},{"$f":"VLOOKUP($B121,Inputs!$C$68:$AN$129,MATCH($B122,Inputs!$C$68:$AN$68,0),FALSE)","v":266.77935340982498},{"$f":"E122","v":266.77935340982498},{"$f":"F122","v":266.77935340982498},266.77935340982498,266.77935340982498,null,null,null,null,null,null,null,{"$f":"B122","v":"Bracket UNIT price"},{"$f":"-PMT(Inputs!$D$4,'CAPEX Annuity calcs'!$D122,E122)","v":12.359265722063284},{"$f":"-PMT(Inputs!$D$4,'CAPEX Annuity calcs'!$D122,F122)","v":12.359265722063284},{"$f":"-PMT(Inputs!$D$4,'CAPEX Annuity calcs'!$D122,G122)","v":12.359265722063284},{"$f":"-PMT(Inputs!$D$4,'CAPEX Annuity calcs'!$D122,H122)","v":12.359265722063284},{"$f":"-PMT(Inputs!$D$4,'CAPEX Annuity calcs'!$D122,I122)","v":12.359265722063284}]
[null,{"$f":"Inputs!$AA$68","v":"CAPEX Instalation costs"},{"$f":"\"Bracket (\"&Inputs!$D$10&\"yrs)\"","v":"Bracket (40yrs)"},{"$f":"Inputs!$D$10","v":40},null,{"$f":"E123","v":0},0,0,0,null,null,null,null,null,null,null,{"$f":"B123","v":"CAPEX Instalation costs"},{"$f":"-PMT(Inputs!$D$4,'CAPEX Annuity calcs'!$D123,E123)","v":0},{"$f":"-PMT(Inputs!$D$4,'CAPEX Annuity calcs'!$D123,F123)","v":0},{"$f":"-PMT(Inputs!$D$4,'CAPEX Annuity calcs'!$D123,G123)","v":0},{"$f":"-PMT(Inputs!$D$4,'CAPEX Annuity calcs'!$D123,H123)","v":0},{"$f":"-PMT(Inputs!$D$4,'CAPEX Annuity calcs'!$D123,I123)","v":0}]
[null,{"$f":"Inputs!$Z$68","v":"Luminaire UNIT price"},null,{"$f":"Inputs!$D$9","v":20},{"$f":"VLOOKUP($B121,Inputs!$C$68:$AN$129,MATCH($B124,Inputs!$C$68:$AN$68,0),FALSE)","v":231.9979734325857},{"$f":"E124","v":231.9979734325857},{"$f":"F124","v":231.9979734325857},231.9979734325857,231.9979734325857,null,null,null,null,null,null,null,"Luminaire UNIT price",{"$f":"-PMT(Inputs!$D$4,'CAPEX Annuity calcs'!$D124,E124)","v":16.221945397916532},{"$f":"-PMT(Inputs!$D$4,'CAPEX Annuity calcs'!$D124,F124)","v":16.221945397916532},{"$f":"-PMT(Inputs!$D$4,'CAPEX Annuity calcs'!$D124,G124)","v":16.221945397916532},{"$f":"-PMT(Inputs!$D$4,'CAPEX Annuity calcs'!$D124,H124)","v":16.221945397916532},{"$f":"-PMT(Inputs!$D$4,'CAPEX Annuity calcs'!$D124,I124)","v":16.221945397916532}]
[{"$f":"$A$13","v":"Labour Portion of CAPEX Instalation costs"},{"$f":"Inputs!$AA$68","v":"CAPEX Instalation costs"},"Luminaire (20yrs)",{"$f":"Inputs!$D$9","v":20},{"$f":"VLOOKUP($B121,Inputs!$C$68:$AN$129,MATCH($B125,Inputs!$C$68:$AN$68,0),FALSE)+(VLOOKUP($B121,Inputs!$C$68:$AN$129,MATCH($A125,Inputs!$C$68:$AN$68,0),FALSE)*('Master Data'!K$42))","v":421.74525866906089},{"$f":"VLOOKUP($B121,Inputs!$C$68:$AN$129,MATCH($B125,Inputs!$C$68:$AN$68,0),FALSE)+(VLOOKUP($B121,Inputs!$C$68:$AN$129,MATCH($A125,Inputs!$C$68:$AN$68,0),FALSE)*('Master Data'!L$42))","v":422.00090685669414},{"$f":"VLOOKUP($B121,Inputs!$C$68:$AN$129,MATCH($B125,Inputs!$C$68:$AN$68,0),FALSE)+(VLOOKUP($B121,Inputs!$C$68:$AN$129,MATCH($A125,Inputs!$C$68:$AN$68,0),FALSE)*('Master Data'!M$42))","v":422.39083147609711},{"$f":"VLOOKUP($B121,Inputs!$C$68:$AN$129,MATCH($B125,Inputs!$C$68:$AN$68,0),FALSE)+(VLOOKUP($B121,Inputs!$C$68:$AN$129,MATCH($A125,Inputs!$C$68:$AN$68,0),FALSE)*('Master Data'!N$42))","v":422.87155839865568},{"$f":"VLOOKUP($B121,Inputs!$C$68:$AN$129,MATCH($B125,Inputs!$C$68:$AN$68,0),FALSE)+(VLOOKUP($B121,Inputs!$C$68:$AN$129,MATCH($A125,Inputs!$C$68:$AN$68,0),FALSE)*('Master Data'!O$42))","v":423.43294682694113},null,null,null,null,null,null,null,"CAPEX Instalation costs",{"$f":"-PMT(Inputs!$D$4,'CAPEX Annuity calcs'!$D125,E125)","v":29.489604830309908},{"$f":"-PMT(Inputs!$D$4,'CAPEX Annuity calcs'!$D125,F125)","v":29.507480464650605},{"$f":"-PMT(Inputs!$D$4,'CAPEX Annuity calcs'!$D125,G125)","v":29.534745081628376},{"$f":"-PMT(Inputs!$D$4,'CAPEX Annuity calcs'!$D125,H125)","v":29.568358848911217},{"$f":"-PMT(Inputs!$D$4,'CAPEX Annuity calcs'!$D125,I125)","v":29.607612693657906}]
[]
[]
[{"$f":"A121+1","v":18},{"$f":"VLOOKUP($A128,Inputs!$B$68:$AN$129,MATCH($B$7,Inputs!$B$68:$AN$68,0),FALSE)","v":"250W Sodium Vapour - Flood Light"},{"$f":"VLOOKUP($A128,Inputs!$B$68:$AN$129,MATCH($C$7,Inputs!$B$68:$AN$68,0),FALSE)","v":"RLMAJ"},null,null,null,null,null,null,null,null,null,null,null,null,null,{"$f":"VLOOKUP($A128,Inputs!$B$68:$AN$129,MATCH($B$7,Inputs!$B$68:$AN$68,0),FALSE)","v":"250W Sodium Vapour - Flood Light"}]
[null,{"$f":"Inputs!$AK$68","v":"Bracket UNIT price"},null,{"$f":"Inputs!$D$10","v":40},{"$f":"VLOOKUP($B128,Inputs!$C$68:$AN$129,MATCH($B129,Inputs!$C$68:$AN$68,0),FALSE)","v":266.77935340982498},{"$f":"E129","v":266.77935340982498},{"$f":"F129","v":266.77935340982498},266.77935340982498,266.77935340982498,null,null,null,null,null,null,null,{"$f":"B129","v":"Bracket UNIT price"},{"$f":"-PMT(Inputs!$D$4,'CAPEX Annuity calcs'!$D129,E129)","v":12.359265722063284},{"$f":"-PMT(Inputs!$D$4,'CAPEX Annuity calcs'!$D129,F129)","v":12.359265722063284},{"$f":"-PMT(Inputs!$D$4,'CAPEX Annuity calcs'!$D129,G129)","v":12.359265722063284},{"$f":"-PMT(Inputs!$D$4,'CAPEX Annuity calcs'!$D129,H129)","v":12.359265722063284},{"$f":"-PMT(Inputs!$D$4,'CAPEX Annuity calcs'!$D129,I129)","v":12.359265722063284}]
[null,{"$f":"Inputs!$AA$68","v":"CAPEX Instalation costs"},{"$f":"\"Bracket (\"&Inputs!$D$10&\"yrs)\"","v":"Bracket (40yrs)"},{"$f":"Inputs!$D$10","v":40},null,{"$f":"E130","v":0},0,0,0,null,null,null,null,null,null,null,{"$f":"B130","v":"CAPEX Instalation costs"},{"$f":"-PMT(Inputs!$D$4,'CAPEX Annuity calcs'!$D130,E130)","v":0},{"$f":"-PMT(Inputs!$D$4,'CAPEX Annuity calcs'!$D130,F130)","v":0},{"$f":"-PMT(Inputs!$D$4,'CAPEX Annuity calcs'!$D130,G130)","v":0},{"$f":"-PMT(Inputs!$D$4,'CAPEX Annuity calcs'!$D130,H130)","v":0},{"$f":"-PMT(Inputs!$D$4,'CAPEX Annuity calcs'!$D130,I130)","v":0}]
[null,{"$f":"Inputs!$Z$68","v":"Luminaire UNIT price"},null,{"$f":"Inputs!$D$9","v":20},{"$f":"VLOOKUP($B128,Inputs!$C$68:$AN$129,MATCH($B131,Inputs!$C$68:$AN$68,0),FALSE)","v":418.87977485833363},{"$f":"E131","v":418.87977485833363},{"$f":"F131","v":418.87977485833363},418.87977485833363,418.87977485833363,null,null,null,null,null,null,null,"Luminaire UNIT price",{"$f":"-PMT(Inputs!$D$4,'CAPEX Annuity calcs'!$D131,E131)","v":29.28924220977289},{"$f":"-PMT(Inputs!$D$4,'CAPEX Annuity calcs'!$D131,F131)","v":29.28924220977289},{"$f":"-PMT(Inputs!$D$4,'CAPEX Annuity calcs'!$D131,G131)","v":29.28924220977289},{"$f":"-PMT(Inputs!$D$4,'CAPEX Annuity calcs'!$D131,H131)","v":29.28924220977289},{"$f":"-PMT(Inputs!$D$4,'CAPEX Annuity calcs'!$D131,I131)","v":29.28924220977289}]
[{"$f":"$A$13","v":"Labour Portion of CAPEX Instalation costs"},{"$f":"Inputs!$AA$68","v":"CAPEX Instalation costs"},"Luminaire (20yrs)",{"$f":"Inputs!$D$9","v":20},{"$f":"VLOOKUP($B128,Inputs!$C$68:$AN$129,MATCH($B132,Inputs!$C$68:$AN$68,0),FALSE)+(VLOOKUP($B128,Inputs!$C$68:$AN$129,MATCH($A132,Inputs!$C$68:$AN$68,0),FALSE)*('Master Data'!K$42))","v":421.74525866906089},{"$f":"VLOOKUP($B128,Inputs!$C$68:$AN$129,MATCH($B132,Inputs!$C$68:$AN$68,0),FALSE)+(VLOOKUP($B128,Inputs!$C$68:$AN$129,MATCH($A132,Inputs!$C$68:$AN$68,0),FALSE)*('Master Data'!L$42))","v":422.00090685669414},{"$f":"VLOOKUP($B128,Inputs!$C$68:$AN$129,MATCH($B132,Inputs!$C$68:$AN$68,0),FALSE)+(VLOOKUP($B128,Inputs!$C$68:$AN$129,MATCH($A132,Inputs!$C$68:$AN$68,0),FALSE)*('Master Data'!M$42))","v":422.39083147609711},{"$f":"VLOOKUP($B128,Inputs!$C$68:$AN$129,MATCH($B132,Inputs!$C$68:$AN$68,0),FALSE)+(VLOOKUP($B128,Inputs!$C$68:$AN$129,MATCH($A132,Inputs!$C$68:$AN$68,0),FALSE)*('Master Data'!N$42))","v":422.87155839865568},{"$f":"VLOOKUP($B128,Inputs!$C$68:$AN$129,MATCH($B132,Inputs!$C$68:$AN$68,0),FALSE)+(VLOOKUP($B128,Inputs!$C$68:$AN$129,MATCH($A132,Inputs!$C$68:$AN$68,0),FALSE)*('Master Data'!O$42))","v":423.43294682694113},null,null,null,null,null,null,null,"CAPEX Instalation costs",{"$f":"-PMT(Inputs!$D$4,'CAPEX Annuity calcs'!$D132,E132)","v":29.489604830309908},{"$f":"-PMT(Inputs!$D$4,'CAPEX Annuity calcs'!$D132,F132)","v":29.507480464650605},{"$f":"-PMT(Inputs!$D$4,'CAPEX Annuity calcs'!$D132,G132)","v":29.534745081628376},{"$f":"-PMT(Inputs!$D$4,'CAPEX Annuity calcs'!$D132,H132)","v":29.568358848911217},{"$f":"-PMT(Inputs!$D$4,'CAPEX Annuity calcs'!$D132,I132)","v":29.607612693657906}]
[]
[]
[{"$f":"A128+1","v":19},{"$f":"VLOOKUP($A135,Inputs!$B$68:$AN$129,MATCH($B$7,Inputs!$B$68:$AN$68,0),FALSE)","v":"400W Sodium Vapour"},{"$f":"VLOOKUP($A135,Inputs!$B$68:$AN$129,MATCH($C$7,Inputs!$B$68:$AN$68,0),FALSE)","v":"RLMAJ"},null,null,null,null,null,null,null,null,null,null,null,null,null,{"$f":"VLOOKUP($A135,Inputs!$B$68:$AN$129,MATCH($B$7,Inputs!$B$68:$AN$68,0),FALSE)","v":"400W Sodium Vapour"}]
[null,{"$f":"Inputs!$AK$68","v":"Bracket UNIT price"},null,{"$f":"Inputs!$D$10","v":40},{"$f":"VLOOKUP($B135,Inputs!$C$68:$AN$129,MATCH($B136,Inputs!$C$68:$AN$68,0),FALSE)","v":192.45518881950642},{"$f":"E136","v":192.45518881950642},{"$f":"F136","v":192.45518881950642},192.45518881950642,192.45518881950642,null,null,null,null,null,null,null,{"$f":"B136","v":"Bracket UNIT price"},{"$f":"-PMT(Inputs!$D$4,'CAPEX Annuity calcs'!$D136,E136)","v":8.9160003868670579},{"$f":"-PMT(Inputs!$D$4,'CAPEX Annuity calcs'!$D136,F136)","v":8.9160003868670579},{"$f":"-PMT(Inputs!$D$4,'CAPEX Annuity calcs'!$D136,G136)","v":8.9160003868670579},{"$f":"-PMT(Inputs!$D$4,'CAPEX Annuity calcs'!$D136,H136)","v":8.9160003868670579},{"$f":"-PMT(Inputs!$D$4,'CAPEX Annuity calcs'!$D136,I136)","v":8.9160003868670579}]
[null,{"$f":"Inputs!$AA$68","v":"CAPEX Instalation costs"},{"$f":"\"Bracket (\"&Inputs!$D$10&\"yrs)\"","v":"Bracket (40yrs)"},{"$f":"Inputs!$D$10","v":40},null,{"$f":"E137","v":0},0,0,0,null,null,null,null,null,null,null,{"$f":"B137","v":"CAPEX Instalation costs"},{"$f":"-PMT(Inputs!$D$4,'CAPEX Annuity calcs'!$D137,E137)","v":0},{"$f":"-PMT(Inputs!$D$4,'CAPEX Annuity calcs'!$D137,F137)","v":0},{"$f":"-PMT(Inputs!$D$4,'CAPEX Annuity calcs'!$D137,G137)","v":0},{"$f":"-PMT(Inputs!$D$4,'CAPEX Annuity calcs'!$D137,H137)","v":0},{"$f":"-PMT(Inputs!$D$4,'CAPEX Annuity calcs'!$D137,I137)","v":0}]
[null,{"$f":"Inputs!$Z$68","v":"Luminaire UNIT price"},null,{"$f":"Inputs!$D$9","v":20},{"$f":"VLOOKUP($B135,Inputs!$C$68:$AN$129,MATCH($B138,Inputs!$C$68:$AN$68,0),FALSE)","v":308.13100043947838},{"$f":"E138","v":308.13100043947838},{"$f":"F138","v":308.13100043947838},308.13100043947838,308.13100043947838,null,null,null,null,null,null,null,"Luminaire UNIT price",{"$f":"-PMT(Inputs!$D$4,'CAPEX Annuity calcs'!$D138,E138)","v":21.545378998696641},{"$f":"-PMT(Inputs!$D$4,'CAPEX Annuity calcs'!$D138,F138)","v":21.545378998696641},{"$f":"-PMT(Inputs!$D$4,'CAPEX Annuity calcs'!$D138,G138)","v":21.545378998696641},{"$f":"-PMT(Inputs!$D$4,'CAPEX Annuity calcs'!$D138,H138)","v":21.545378998696641},{"$f":"-PMT(Inputs!$D$4,'CAPEX Annuity calcs'!$D138,I138)","v":21.545378998696641}]
[{"$f":"$A$13","v":"Labour Portion of CAPEX Instalation costs"},{"$f":"Inputs!$AA$68","v":"CAPEX Instalation costs"},"Luminaire (20yrs)",{"$f":"Inputs!$D$9","v":20},{"$f":"VLOOKUP($B135,Inputs!$C$68:$AN$129,MATCH($B139,Inputs!$C$68:$AN$68,0),FALSE)+(VLOOKUP($B135,Inputs!$C$68:$AN$129,MATCH($A139,Inputs!$C$68:$AN$68,0),FALSE)*('Master Data'!K$42))","v":421.74525866906089},{"$f":"VLOOKUP($B135,Inputs!$C$68:$AN$129,MATCH($B139,Inputs!$C$68:$AN$68,0),FALSE)+(VLOOKUP($B135,Inputs!$C$68:$AN$129,MATCH($A139,Inputs!$C$68:$AN$68,0),FALSE)*('Master Data'!L$42))","v":422.00090685669414},{"$f":"VLOOKUP($B135,Inputs!$C$68:$AN$129,MATCH($B139,Inputs!$C$68:$AN$68,0),FALSE)+(VLOOKUP($B135,Inputs!$C$68:$AN$129,MATCH($A139,Inputs!$C$68:$AN$68,0),FALSE)*('Master Data'!M$42))","v":422.39083147609711},{"$f":"VLOOKUP($B135,Inputs!$C$68:$AN$129,MATCH($B139,Inputs!$C$68:$AN$68,0),FALSE)+(VLOOKUP($B135,Inputs!$C$68:$AN$129,MATCH($A139,Inputs!$C$68:$AN$68,0),FALSE)*('Master Data'!N$42))","v":422.87155839865568},{"$f":"VLOOKUP($B135,Inputs!$C$68:$AN$129,MATCH($B139,Inputs!$C$68:$AN$68,0),FALSE)+(VLOOKUP($B135,Inputs!$C$68:$AN$129,MATCH($A139,Inputs!$C$68:$AN$68,0),FALSE)*('Master Data'!O$42))","v":423.43294682694113},null,null,null,null,null,null,null,"CAPEX Instalation costs",{"$f":"-PMT(Inputs!$D$4,'CAPEX Annuity calcs'!$D139,E139)","v":29.489604830309908},{"$f":"-PMT(Inputs!$D$4,'CAPEX Annuity calcs'!$D139,F139)","v":29.507480464650605},{"$f":"-PMT(Inputs!$D$4,'CAPEX Annuity calcs'!$D139,G139)","v":29.534745081628376},{"$f":"-PMT(Inputs!$D$4,'CAPEX Annuity calcs'!$D139,H139)","v":29.568358848911217},{"$f":"-PMT(Inputs!$D$4,'CAPEX Annuity calcs'!$D139,I139)","v":29.607612693657906}]
[]
[]
[{"$f":"A135+1","v":20},{"$f":"VLOOKUP($A142,Inputs!$B$68:$AN$129,MATCH($B$7,Inputs!$B$68:$AN$68,0),FALSE)","v":"400W Sodium Vapour - Flood Light"},{"$f":"VLOOKUP($A142,Inputs!$B$68:$AN$129,MATCH($C$7,Inputs!$B$68:$AN$68,0),FALSE)","v":"RLMAJ"},null,null,null,null,null,null,null,null,null,null,null,null,null,{"$f":"VLOOKUP($A142,Inputs!$B$68:$AN$129,MATCH($B$7,Inputs!$B$68:$AN$68,0),FALSE)","v":"400W Sodium Vapour - Flood Light"}]
[null,{"$f":"Inputs!$AK$68","v":"Bracket UNIT price"},null,{"$f":"Inputs!$D$10","v":40},{"$f":"VLOOKUP($B142,Inputs!$C$68:$AN$129,MATCH($B143,Inputs!$C$68:$AN$68,0),FALSE)","v":192.45518881950642},{"$f":"E143","v":192.45518881950642},{"$f":"F143","v":192.45518881950642},192.45518881950642,192.45518881950642,null,null,null,null,null,null,null,{"$f":"B143","v":"Bracket UNIT price"},{"$f":"-PMT(Inputs!$D$4,'CAPEX Annuity calcs'!$D143,E143)","v":8.9160003868670579},{"$f":"-PMT(Inputs!$D$4,'CAPEX Annuity calcs'!$D143,F143)","v":8.9160003868670579},{"$f":"-PMT(Inputs!$D$4,'CAPEX Annuity calcs'!$D143,G143)","v":8.9160003868670579},{"$f":"-PMT(Inputs!$D$4,'CAPEX Annuity calcs'!$D143,H143)","v":8.9160003868670579},{"$f":"-PMT(Inputs!$D$4,'CAPEX Annuity calcs'!$D143,I143)","v":8.9160003868670579}]
[null,{"$f":"Inputs!$AA$68","v":"CAPEX Instalation costs"},{"$f":"\"Bracket (\"&Inputs!$D$10&\"yrs)\"","v":"Bracket (40yrs)"},{"$f":"Inputs!$D$10","v":40},null,{"$f":"E144","v":0},0,0,0,null,null,null,null,null,null,null,{"$f":"B144","v":"CAPEX Instalation costs"},{"$f":"-PMT(Inputs!$D$4,'CAPEX Annuity calcs'!$D144,E144)","v":0},{"$f":"-PMT(Inputs!$D$4,'CAPEX Annuity calcs'!$D144,F144)","v":0},{"$f":"-PMT(Inputs!$D$4,'CAPEX Annuity calcs'!$D144,G144)","v":0},{"$f":"-PMT(Inputs!$D$4,'CAPEX Annuity calcs'!$D144,H144)","v":0},{"$f":"-PMT(Inputs!$D$4,'CAPEX Annuity calcs'!$D144,I144)","v":0}]
[null,{"$f":"Inputs!$Z$68","v":"Luminaire UNIT price"},null,{"$f":"Inputs!$D$9","v":20},{"$f":"VLOOKUP($B142,Inputs!$C$68:$AN$129,MATCH($B145,Inputs!$C$68:$AN$68,0),FALSE)","v":431.38642868220484},{"$f":"E145","v":431.38642868220484},{"$f":"F145","v":431.38642868220484},431.38642868220484,431.38642868220484,null,null,null,null,null,null,null,"Luminaire UNIT price",{"$f":"-PMT(Inputs!$D$4,'CAPEX Annuity calcs'!$D145,E145)","v":30.163742329061371},{"$f":"-PMT(Inputs!$D$4,'CAPEX Annuity calcs'!$D145,F145)","v":30.163742329061371},{"$f":"-PMT(Inputs!$D$4,'CAPEX Annuity calcs'!$D145,G145)","v":30.163742329061371},{"$f":"-PMT(Inputs!$D$4,'CAPEX Annuity calcs'!$D145,H145)","v":30.163742329061371},{"$f":"-PMT(Inputs!$D$4,'CAPEX Annuity calcs'!$D145,I145)","v":30.163742329061371}]
[{"$f":"$A$13","v":"Labour Portion of CAPEX Instalation costs"},{"$f":"Inputs!$AA$68","v":"CAPEX Instalation costs"},"Luminaire (20yrs)",{"$f":"Inputs!$D$9","v":20},{"$f":"VLOOKUP($B142,Inputs!$C$68:$AN$129,MATCH($B146,Inputs!$C$68:$AN$68,0),FALSE)+(VLOOKUP($B142,Inputs!$C$68:$AN$129,MATCH($A146,Inputs!$C$68:$AN$68,0),FALSE)*('Master Data'!K$42))","v":421.74525866906089},{"$f":"VLOOKUP($B142,Inputs!$C$68:$AN$129,MATCH($B146,Inputs!$C$68:$AN$68,0),FALSE)+(VLOOKUP($B142,Inputs!$C$68:$AN$129,MATCH($A146,Inputs!$C$68:$AN$68,0),FALSE)*('Master Data'!L$42))","v":422.00090685669414},{"$f":"VLOOKUP($B142,Inputs!$C$68:$AN$129,MATCH($B146,Inputs!$C$68:$AN$68,0),FALSE)+(VLOOKUP($B142,Inputs!$C$68:$AN$129,MATCH($A146,Inputs!$C$68:$AN$68,0),FALSE)*('Master Data'!M$42))","v":422.39083147609711},{"$f":"VLOOKUP($B142,Inputs!$C$68:$AN$129,MATCH($B146,Inputs!$C$68:$AN$68,0),FALSE)+(VLOOKUP($B142,Inputs!$C$68:$AN$129,MATCH($A146,Inputs!$C$68:$AN$68,0),FALSE)*('Master Data'!N$42))","v":422.87155839865568},{"$f":"VLOOKUP($B142,Inputs!$C$68:$AN$129,MATCH($B146,Inputs!$C$68:$AN$68,0),FALSE)+(VLOOKUP($B142,Inputs!$C$68:$AN$129,MATCH($A146,Inputs!$C$68:$AN$68,0),FALSE)*('Master Data'!O$42))","v":423.43294682694113},null,null,null,null,null,null,null,"CAPEX Instalation costs",{"$f":"-PMT(Inputs!$D$4,'CAPEX Annuity calcs'!$D146,E146)","v":29.489604830309908},{"$f":"-PMT(Inputs!$D$4,'CAPEX Annuity calcs'!$D146,F146)","v":29.507480464650605},{"$f":"-PMT(Inputs!$D$4,'CAPEX Annuity calcs'!$D146,G146)","v":29.534745081628376},{"$f":"-PMT(Inputs!$D$4,'CAPEX Annuity calcs'!$D146,H146)","v":29.568358848911217},{"$f":"-PMT(Inputs!$D$4,'CAPEX Annuity calcs'!$D146,I146)","v":29.607612693657906}]
[]
[]
[{"$f":"A142+1","v":21},{"$f":"VLOOKUP($A149,Inputs!$B$68:$AN$129,MATCH($B$7,Inputs!$B$68:$AN$68,0),FALSE)","v":"70W Sodium Vapour"},{"$f":"VLOOKUP($A149,Inputs!$B$68:$AN$129,MATCH($C$7,Inputs!$B$68:$AN$68,0),FALSE)","v":"RLMIN"},null,null,null,null,null,null,null,null,null,null,null,null,null,{"$f":"VLOOKUP($A149,Inputs!$B$68:$AN$129,MATCH($B$7,Inputs!$B$68:$AN$68,0),FALSE)","v":"70W Sodium Vapour"}]
[null,{"$f":"Inputs!$AK$68","v":"Bracket UNIT price"},null,{"$f":"Inputs!$D$10","v":40},{"$f":"VLOOKUP($B149,Inputs!$C$68:$AN$129,MATCH($B150,Inputs!$C$68:$AN$68,0),FALSE)","v":116.77074041034791},{"$f":"E150","v":116.77074041034791},{"$f":"F150","v":116.77074041034791},116.77074041034791,116.77074041034791,null,null,null,null,null,null,null,{"$f":"B150","v":"Bracket UNIT price"},{"$f":"-PMT(Inputs!$D$4,'CAPEX Annuity calcs'!$D150,E150)","v":5.4097162724452899},{"$f":"-PMT(Inputs!$D$4,'CAPEX Annuity calcs'!$D150,F150)","v":5.4097162724452899},{"$f":"-PMT(Inputs!$D$4,'CAPEX Annuity calcs'!$D150,G150)","v":5.4097162724452899},{"$f":"-PMT(Inputs!$D$4,'CAPEX Annuity calcs'!$D150,H150)","v":5.4097162724452899},{"$f":"-PMT(Inputs!$D$4,'CAPEX Annuity calcs'!$D150,I150)","v":5.4097162724452899}]
[null,{"$f":"Inputs!$AA$68","v":"CAPEX Instalation costs"},{"$f":"\"Bracket (\"&Inputs!$D$10&\"yrs)\"","v":"Bracket (40yrs)"},{"$f":"Inputs!$D$10","v":40},null,{"$f":"E151","v":0},0,0,0,null,null,null,null,null,null,null,{"$f":"B151","v":"CAPEX Instalation costs"},{"$f":"-PMT(Inputs!$D$4,'CAPEX Annuity calcs'!$D151,E151)","v":0},{"$f":"-PMT(Inputs!$D$4,'CAPEX Annuity calcs'!$D151,F151)","v":0},{"$f":"-PMT(Inputs!$D$4,'CAPEX Annuity calcs'!$D151,G151)","v":0},{"$f":"-PMT(Inputs!$D$4,'CAPEX Annuity calcs'!$D151,H151)","v":0},{"$f":"-PMT(Inputs!$D$4,'CAPEX Annuity calcs'!$D151,I151)","v":0}]
[null,{"$f":"Inputs!$Z$68","v":"Luminaire UNIT price"},null,{"$f":"Inputs!$D$9","v":20},{"$f":"VLOOKUP($B149,Inputs!$C$68:$AN$129,MATCH($B152,Inputs!$C$68:$AN$68,0),FALSE)","v":161.14461304191406},{"$f":"E152","v":161.14461304191406},{"$f":"F152","v":161.14461304191406},161.14461304191406,161.14461304191406,null,null,null,null,null,null,null,"Luminaire UNIT price",{"$f":"-PMT(Inputs!$D$4,'CAPEX Annuity calcs'!$D152,E152)","v":11.267680813142622},{"$f":"-PMT(Inputs!$D$4,'CAPEX Annuity calcs'!$D152,F152)","v":11.267680813142622},{"$f":"-PMT(Inputs!$D$4,'CAPEX Annuity calcs'!$D152,G152)","v":11.267680813142622},{"$f":"-PMT(Inputs!$D$4,'CAPEX Annuity calcs'!$D152,H152)","v":11.267680813142622},{"$f":"-PMT(Inputs!$D$4,'CAPEX Annuity calcs'!$D152,I152)","v":11.267680813142622}]
[{"$f":"$A$13","v":"Labour Portion of CAPEX Instalation costs"},{"$f":"Inputs!$AA$68","v":"CAPEX Instalation costs"},"Luminaire (20yrs)",{"$f":"Inputs!$D$9","v":20},{"$f":"VLOOKUP($B149,Inputs!$C$68:$AN$129,MATCH($B153,Inputs!$C$68:$AN$68,0),FALSE)+(VLOOKUP($B149,Inputs!$C$68:$AN$129,MATCH($A153,Inputs!$C$68:$AN$68,0),FALSE)*('Master Data'!K$42))","v":267.95472429611652},{"$f":"VLOOKUP($B149,Inputs!$C$68:$AN$129,MATCH($B153,Inputs!$C$68:$AN$68,0),FALSE)+(VLOOKUP($B149,Inputs!$C$68:$AN$129,MATCH($A153,Inputs!$C$68:$AN$68,0),FALSE)*('Master Data'!L$42))","v":268.12133059681764},{"$f":"VLOOKUP($B149,Inputs!$C$68:$AN$129,MATCH($B153,Inputs!$C$68:$AN$68,0),FALSE)+(VLOOKUP($B149,Inputs!$C$68:$AN$129,MATCH($A153,Inputs!$C$68:$AN$68,0),FALSE)*('Master Data'!M$42))","v":268.37544504602391},{"$f":"VLOOKUP($B149,Inputs!$C$68:$AN$129,MATCH($B153,Inputs!$C$68:$AN$68,0),FALSE)+(VLOOKUP($B149,Inputs!$C$68:$AN$129,MATCH($A153,Inputs!$C$68:$AN$68,0),FALSE)*('Master Data'!N$42))","v":268.68873549003757},{"$f":"VLOOKUP($B149,Inputs!$C$68:$AN$129,MATCH($B153,Inputs!$C$68:$AN$68,0),FALSE)+(VLOOKUP($B149,Inputs!$C$68:$AN$129,MATCH($A153,Inputs!$C$68:$AN$68,0),FALSE)*('Master Data'!O$42))","v":269.05459315622693},null,null,null,null,null,null,null,"CAPEX Instalation costs",{"$f":"-PMT(Inputs!$D$4,'CAPEX Annuity calcs'!$D153,E153)","v":18.736141709912243},{"$f":"-PMT(Inputs!$D$4,'CAPEX Annuity calcs'!$D153,F153)","v":18.74779128716041},{"$f":"-PMT(Inputs!$D$4,'CAPEX Annuity calcs'!$D153,G153)","v":18.765559678232343},{"$f":"-PMT(Inputs!$D$4,'CAPEX Annuity calcs'!$D153,H153)","v":18.787465819916616},{"$f":"-PMT(Inputs!$D$4,'CAPEX Annuity calcs'!$D153,I153)","v":18.813047608397444}]
[]
[]
[{"$f":"A149+1","v":22},{"$f":"VLOOKUP($A156,Inputs!$B$68:$AN$129,MATCH($B$7,Inputs!$B$68:$AN$68,0),FALSE)","v":"100W Incandescent"},{"$f":"VLOOKUP($A156,Inputs!$B$68:$AN$129,MATCH($C$7,Inputs!$B$68:$AN$68,0),FALSE)","v":"RLMAJ"},null,null,null,null,null,null,null,null,null,null,null,null,null,{"$f":"VLOOKUP($A156,Inputs!$B$68:$AN$129,MATCH($B$7,Inputs!$B$68:$AN$68,0),FALSE)","v":"100W Incandescent"}]
[null,{"$f":"Inputs!$AK$68","v":"Bracket UNIT price"},null,{"$f":"Inputs!$D$10","v":40},{"$f":"VLOOKUP($B156,Inputs!$C$68:$AN$129,MATCH($B157,Inputs!$C$68:$AN$68,0),FALSE)","v":86.837198929527219},{"$f":"E157","v":86.837198929527219},{"$f":"F157","v":86.837198929527219},86.837198929527219,86.837198929527219,null,null,null,null,null,null,null,{"$f":"B157","v":"Bracket UNIT price"},{"$f":"-PMT(Inputs!$D$4,'CAPEX Annuity calcs'!$D157,E157)","v":4.0229650548743354},{"$f":"-PMT(Inputs!$D$4,'CAPEX Annuity calcs'!$D157,F157)","v":4.0229650548743354},{"$f":"-PMT(Inputs!$D$4,'CAPEX Annuity calcs'!$D157,G157)","v":4.0229650548743354},{"$f":"-PMT(Inputs!$D$4,'CAPEX Annuity calcs'!$D157,H157)","v":4.0229650548743354},{"$f":"-PMT(Inputs!$D$4,'CAPEX Annuity calcs'!$D157,I157)","v":4.0229650548743354}]
[null,{"$f":"Inputs!$AA$68","v":"CAPEX Instalation costs"},{"$f":"\"Bracket (\"&Inputs!$D$10&\"yrs)\"","v":"Bracket (40yrs)"},{"$f":"Inputs!$D$10","v":40},null,{"$f":"E158","v":0},0,0,0,null,null,null,null,null,null,null,{"$f":"B158","v":"CAPEX Instalation costs"},{"$f":"-PMT(Inputs!$D$4,'CAPEX Annuity calcs'!$D158,E158)","v":0},{"$f":"-PMT(Inputs!$D$4,'CAPEX Annuity calcs'!$D158,F158)","v":0},{"$f":"-PMT(Inputs!$D$4,'CAPEX Annuity calcs'!$D158,G158)","v":0},{"$f":"-PMT(Inputs!$D$4,'CAPEX Annuity calcs'!$D158,H158)","v":0},{"$f":"-PMT(Inputs!$D$4,'CAPEX Annuity calcs'!$D158,I158)","v":0}]
[null,{"$f":"Inputs!$Z$68","v":"Luminaire UNIT price"},null,{"$f":"Inputs!$D$9","v":20},{"$f":"VLOOKUP($B156,Inputs!$C$68:$AN$129,MATCH($B159,Inputs!$C$68:$AN$68,0),FALSE)","v":55.856237849978655},{"$f":"E159","v":55.856237849978655},{"$f":"F159","v":55.856237849978655},55.856237849978655,55.856237849978655,null,null,null,null,null,null,null,"Luminaire UNIT price",{"$f":"-PMT(Inputs!$D$4,'CAPEX Annuity calcs'!$D159,E159)","v":3.9056239463173044},{"$f":"-PMT(Inputs!$D$4,'CAPEX Annuity calcs'!$D159,F159)","v":3.9056239463173044},{"$f":"-PMT(Inputs!$D$4,'CAPEX Annuity calcs'!$D159,G159)","v":3.9056239463173044},{"$f":"-PMT(Inputs!$D$4,'CAPEX Annuity calcs'!$D159,H159)","v":3.9056239463173044},{"$f":"-PMT(Inputs!$D$4,'CAPEX Annuity calcs'!$D159,I159)","v":3.9056239463173044}]
[{"$f":"$A$13","v":"Labour Portion of CAPEX Instalation costs"},{"$f":"Inputs!$AA$68","v":"CAPEX Instalation costs"},"Luminaire (20yrs)",{"$f":"Inputs!$D$9","v":20},{"$f":"VLOOKUP($B156,Inputs!$C$68:$AN$129,MATCH($B160,Inputs!$C$68:$AN$68,0),FALSE)+(VLOOKUP($B156,Inputs!$C$68:$AN$129,MATCH($A160,Inputs!$C$68:$AN$68,0),FALSE)*('Master Data'!K$42))","v":421.74525866906089},{"$f":"VLOOKUP($B156,Inputs!$C$68:$AN$129,MATCH($B160,Inputs!$C$68:$AN$68,0),FALSE)+(VLOOKUP($B156,Inputs!$C$68:$AN$129,MATCH($A160,Inputs!$C$68:$AN$68,0),FALSE)*('Master Data'!L$42))","v":422.00090685669414},{"$f":"VLOOKUP($B156,Inputs!$C$68:$AN$129,MATCH($B160,Inputs!$C$68:$AN$68,0),FALSE)+(VLOOKUP($B156,Inputs!$C$68:$AN$129,MATCH($A160,Inputs!$C$68:$AN$68,0),FALSE)*('Master Data'!M$42))","v":422.39083147609711},{"$f":"VLOOKUP($B156,Inputs!$C$68:$AN$129,MATCH($B160,Inputs!$C$68:$AN$68,0),FALSE)+(VLOOKUP($B156,Inputs!$C$68:$AN$129,MATCH($A160,Inputs!$C$68:$AN$68,0),FALSE)*('Master Data'!N$42))","v":422.87155839865568},{"$f":"VLOOKUP($B156,Inputs!$C$68:$AN$129,MATCH($B160,Inputs!$C$68:$AN$68,0),FALSE)+(VLOOKUP($B156,Inputs!$C$68:$AN$129,MATCH($A160,Inputs!$C$68:$AN$68,0),FALSE)*('Master Data'!O$42))","v":423.43294682694113},null,null,null,null,null,null,null,"CAPEX Instalation costs",{"$f":"-PMT(Inputs!$D$4,'CAPEX Annuity calcs'!$D160,E160)","v":29.489604830309908},{"$f":"-PMT(Inputs!$D$4,'CAPEX Annuity calcs'!$D160,F160)","v":29.507480464650605},{"$f":"-PMT(Inputs!$D$4,'CAPEX Annuity calcs'!$D160,G160)","v":29.534745081628376},{"$f":"-PMT(Inputs!$D$4,'CAPEX Annuity calcs'!$D160,H160)","v":29.568358848911217},{"$f":"-PMT(Inputs!$D$4,'CAPEX Annuity calcs'!$D160,I160)","v":29.607612693657906}]
[]
[]
[{"$f":"A156+1","v":23},{"$f":"VLOOKUP($A163,Inputs!$B$68:$AN$129,MATCH($B$7,Inputs!$B$68:$AN$68,0),FALSE)","v":"60W Incandescent"},{"$f":"VLOOKUP($A163,Inputs!$B$68:$AN$129,MATCH($C$7,Inputs!$B$68:$AN$68,0),FALSE)","v":"RLMIN"},null,null,null,null,null,null,null,null,null,null,null,null,null,{"$f":"VLOOKUP($A163,Inputs!$B$68:$AN$129,MATCH($B$7,Inputs!$B$68:$AN$68,0),FALSE)","v":"60W Incandescent"}]
[null,{"$f":"Inputs!$AK$68","v":"Bracket UNIT price"},null,{"$f":"Inputs!$D$10","v":40},{"$f":"VLOOKUP($B163,Inputs!$C$68:$AN$129,MATCH($B164,Inputs!$C$68:$AN$68,0),FALSE)","v":86.837198929527219},{"$f":"E164","v":86.837198929527219},{"$f":"F164","v":86.837198929527219},86.837198929527219,86.837198929527219,null,null,null,null,null,null,null,{"$f":"B164","v":"Bracket UNIT price"},{"$f":"-PMT(Inputs!$D$4,'CAPEX Annuity calcs'!$D164,E164)","v":4.0229650548743354},{"$f":"-PMT(Inputs!$D$4,'CAPEX Annuity calcs'!$D164,F164)","v":4.0229650548743354},{"$f":"-PMT(Inputs!$D$4,'CAPEX Annuity calcs'!$D164,G164)","v":4.0229650548743354},{"$f":"-PMT(Inputs!$D$4,'CAPEX Annuity calcs'!$D164,H164)","v":4.0229650548743354},{"$f":"-PMT(Inputs!$D$4,'CAPEX Annuity calcs'!$D164,I164)","v":4.0229650548743354}]
[null,{"$f":"Inputs!$AA$68","v":"CAPEX Instalation costs"},{"$f":"\"Bracket (\"&Inputs!$D$10&\"yrs)\"","v":"Bracket (40yrs)"},{"$f":"Inputs!$D$10","v":40},null,{"$f":"E165","v":0},0,0,0,null,null,null,null,null,null,null,{"$f":"B165","v":"CAPEX Instalation costs"},{"$f":"-PMT(Inputs!$D$4,'CAPEX Annuity calcs'!$D165,E165)","v":0},{"$f":"-PMT(Inputs!$D$4,'CAPEX Annuity calcs'!$D165,F165)","v":0},{"$f":"-PMT(Inputs!$D$4,'CAPEX Annuity calcs'!$D165,G165)","v":0},{"$f":"-PMT(Inputs!$D$4,'CAPEX Annuity calcs'!$D165,H165)","v":0},{"$f":"-PMT(Inputs!$D$4,'CAPEX Annuity calcs'!$D165,I165)","v":0}]
[null,{"$f":"Inputs!$Z$68","v":"Luminaire UNIT price"},null,{"$f":"Inputs!$D$9","v":20},{"$f":"VLOOKUP($B163,Inputs!$C$68:$AN$129,MATCH($B166,Inputs!$C$68:$AN$68,0),FALSE)","v":55.856237849978655},{"$f":"E166","v":55.856237849978655},{"$f":"F166","v":55.856237849978655},55.856237849978655,55.856237849978655,null,null,null,null,null,null,null,"Luminaire UNIT price",{"$f":"-PMT(Inputs!$D$4,'CAPEX Annuity calcs'!$D166,E166)","v":3.9056239463173044},{"$f":"-PMT(Inputs!$D$4,'CAPEX Annuity calcs'!$D166,F166)","v":3.9056239463173044},{"$f":"-PMT(Inputs!$D$4,'CAPEX Annuity calcs'!$D166,G166)","v":3.9056239463173044},{"$f":"-PMT(Inputs!$D$4,'CAPEX Annuity calcs'!$D166,H166)","v":3.9056239463173044},{"$f":"-PMT(Inputs!$D$4,'CAPEX Annuity calcs'!$D166,I166)","v":3.9056239463173044}]
[{"$f":"$A$13","v":"Labour Portion of CAPEX Instalation costs"},{"$f":"Inputs!$AA$68","v":"CAPEX Instalation costs"},"Luminaire (20yrs)",{"$f":"Inputs!$D$9","v":20},{"$f":"VLOOKUP($B163,Inputs!$C$68:$AN$129,MATCH($B167,Inputs!$C$68:$AN$68,0),FALSE)+(VLOOKUP($B163,Inputs!$C$68:$AN$129,MATCH($A167,Inputs!$C$68:$AN$68,0),FALSE)*('Master Data'!K$42))","v":267.95472429611652},{"$f":"VLOOKUP($B163,Inputs!$C$68:$AN$129,MATCH($B167,Inputs!$C$68:$AN$68,0),FALSE)+(VLOOKUP($B163,Inputs!$C$68:$AN$129,MATCH($A167,Inputs!$C$68:$AN$68,0),FALSE)*('Master Data'!L$42))","v":268.12133059681764},{"$f":"VLOOKUP($B163,Inputs!$C$68:$AN$129,MATCH($B167,Inputs!$C$68:$AN$68,0),FALSE)+(VLOOKUP($B163,Inputs!$C$68:$AN$129,MATCH($A167,Inputs!$C$68:$AN$68,0),FALSE)*('Master Data'!M$42))","v":268.37544504602391},{"$f":"VLOOKUP($B163,Inputs!$C$68:$AN$129,MATCH($B167,Inputs!$C$68:$AN$68,0),FALSE)+(VLOOKUP($B163,Inputs!$C$68:$AN$129,MATCH($A167,Inputs!$C$68:$AN$68,0),FALSE)*('Master Data'!N$42))","v":268.68873549003757},{"$f":"VLOOKUP($B163,Inputs!$C$68:$AN$129,MATCH($B167,Inputs!$C$68:$AN$68,0),FALSE)+(VLOOKUP($B163,Inputs!$C$68:$AN$129,MATCH($A167,Inputs!$C$68:$AN$68,0),FALSE)*('Master Data'!O$42))","v":269.05459315622693},null,null,null,null,null,null,null,"CAPEX Instalation costs",{"$f":"-PMT(Inputs!$D$4,'CAPEX Annuity calcs'!$D167,E167)","v":18.736141709912243},{"$f":"-PMT(Inputs!$D$4,'CAPEX Annuity calcs'!$D167,F167)","v":18.74779128716041},{"$f":"-PMT(Inputs!$D$4,'CAPEX Annuity calcs'!$D167,G167)","v":18.765559678232343},{"$f":"-PMT(Inputs!$D$4,'CAPEX Annuity calcs'!$D167,H167)","v":18.787465819916616},{"$f":"-PMT(Inputs!$D$4,'CAPEX Annuity calcs'!$D167,I167)","v":18.813047608397444}]
[]
[]
[{"$f":"A163+1","v":24},{"$f":"VLOOKUP($A170,Inputs!$B$68:$AN$129,MATCH($B$7,Inputs!$B$68:$AN$68,0),FALSE)","v":"18W LED"},{"$f":"VLOOKUP($A170,Inputs!$B$68:$AN$129,MATCH($C$7,Inputs!$B$68:$AN$68,0),FALSE)","v":"RLMIN"},null,null,null,null,null,null,null,null,null,null,null,null,null,{"$f":"VLOOKUP($A170,Inputs!$B$68:$AN$129,MATCH($B$7,Inputs!$B$68:$AN$68,0),FALSE)","v":"18W LED"}]
[null,{"$f":"Inputs!$AK$68","v":"Bracket UNIT price"},null,{"$f":"Inputs!$D$10","v":40},{"$f":"VLOOKUP($B170,Inputs!$C$68:$AN$129,MATCH($B171,Inputs!$C$68:$AN$68,0),FALSE)","v":99.640221589821721},{"$f":"E171","v":99.640221589821721},{"$f":"F171","v":99.640221589821721},99.640221589821721,99.640221589821721,null,null,null,null,null,null,null,{"$f":"B171","v":"Bracket UNIT price"},{"$f":"-PMT(Inputs!$D$4,'CAPEX Annuity calcs'!$D171,E171)","v":4.6160992576591218},{"$f":"-PMT(Inputs!$D$4,'CAPEX Annuity calcs'!$D171,F171)","v":4.6160992576591218},{"$f":"-PMT(Inputs!$D$4,'CAPEX Annuity calcs'!$D171,G171)","v":4.6160992576591218},{"$f":"-PMT(Inputs!$D$4,'CAPEX Annuity calcs'!$D171,H171)","v":4.6160992576591218},{"$f":"-PMT(Inputs!$D$4,'CAPEX Annuity calcs'!$D171,I171)","v":4.6160992576591218}]
[null,{"$f":"Inputs!$AA$68","v":"CAPEX Instalation costs"},{"$f":"\"Bracket (\"&Inputs!$D$10&\"yrs)\"","v":"Bracket (40yrs)"},{"$f":"Inputs!$D$10","v":40},null,{"$f":"E172","v":0},0,0,0,null,null,null,null,null,null,null,{"$f":"B172","v":"CAPEX Instalation costs"},{"$f":"-PMT(Inputs!$D$4,'CAPEX Annuity calcs'!$D172,E172)","v":0},{"$f":"-PMT(Inputs!$D$4,'CAPEX Annuity calcs'!$D172,F172)","v":0},{"$f":"-PMT(Inputs!$D$4,'CAPEX Annuity calcs'!$D172,G172)","v":0},{"$f":"-PMT(Inputs!$D$4,'CAPEX Annuity calcs'!$D172,H172)","v":0},{"$f":"-PMT(Inputs!$D$4,'CAPEX Annuity calcs'!$D172,I172)","v":0}]
[null,{"$f":"Inputs!$Z$68","v":"Luminaire UNIT price"},null,{"$f":"Inputs!$D$9","v":20},{"$f":"VLOOKUP($B170,Inputs!$C$68:$AN$129,MATCH($B173,Inputs!$C$68:$AN$68,0),FALSE)","v":365.71600000000001},{"$f":"E173","v":365.71600000000001},{"$f":"F173","v":365.71600000000001},365.71600000000001,365.71600000000001,null,null,null,null,null,null,null,"Luminaire UNIT price",{"$f":"-PMT(Inputs!$D$4,'CAPEX Annuity calcs'!$D173,E173)","v":25.571882785727663},{"$f":"-PMT(Inputs!$D$4,'CAPEX Annuity calcs'!$D173,F173)","v":25.571882785727663},{"$f":"-PMT(Inputs!$D$4,'CAPEX Annuity calcs'!$D173,G173)","v":25.571882785727663},{"$f":"-PMT(Inputs!$D$4,'CAPEX Annuity calcs'!$D173,H173)","v":25.571882785727663},{"$f":"-PMT(Inputs!$D$4,'CAPEX Annuity calcs'!$D173,I173)","v":25.571882785727663}]
[{"$f":"$A$13","v":"Labour Portion of CAPEX Instalation costs"},{"$f":"Inputs!$AA$68","v":"CAPEX Instalation costs"},"Luminaire (20yrs)",{"$f":"Inputs!$D$9","v":20},{"$f":"VLOOKUP($B170,Inputs!$C$68:$AN$129,MATCH($B174,Inputs!$C$68:$AN$68,0),FALSE)+(VLOOKUP($B170,Inputs!$C$68:$AN$129,MATCH($A174,Inputs!$C$68:$AN$68,0),FALSE)*('Master Data'!K$42))","v":267.95472429611652},{"$f":"VLOOKUP($B170,Inputs!$C$68:$AN$129,MATCH($B174,Inputs!$C$68:$AN$68,0),FALSE)+(VLOOKUP($B170,Inputs!$C$68:$AN$129,MATCH($A174,Inputs!$C$68:$AN$68,0),FALSE)*('Master Data'!L$42))","v":268.12133059681764},{"$f":"VLOOKUP($B170,Inputs!$C$68:$AN$129,MATCH($B174,Inputs!$C$68:$AN$68,0),FALSE)+(VLOOKUP($B170,Inputs!$C$68:$AN$129,MATCH($A174,Inputs!$C$68:$AN$68,0),FALSE)*('Master Data'!M$42))","v":268.37544504602391},{"$f":"VLOOKUP($B170,Inputs!$C$68:$AN$129,MATCH($B174,Inputs!$C$68:$AN$68,0),FALSE)+(VLOOKUP($B170,Inputs!$C$68:$AN$129,MATCH($A174,Inputs!$C$68:$AN$68,0),FALSE)*('Master Data'!N$42))","v":268.68873549003757},{"$f":"VLOOKUP($B170,Inputs!$C$68:$AN$129,MATCH($B174,Inputs!$C$68:$AN$68,0),FALSE)+(VLOOKUP($B170,Inputs!$C$68:$AN$129,MATCH($A174,Inputs!$C$68:$AN$68,0),FALSE)*('Master Data'!O$42))","v":269.05459315622693},null,null,null,null,null,null,null,"CAPEX Instalation costs",{"$f":"-PMT(Inputs!$D$4,'CAPEX Annuity calcs'!$D174,E174)","v":18.736141709912243},{"$f":"-PMT(Inputs!$D$4,'CAPEX Annuity calcs'!$D174,F174)","v":18.74779128716041},{"$f":"-PMT(Inputs!$D$4,'CAPEX Annuity calcs'!$D174,G174)","v":18.765559678232343},{"$f":"-PMT(Inputs!$D$4,'CAPEX Annuity calcs'!$D174,H174)","v":18.787465819916616},{"$f":"-PMT(Inputs!$D$4,'CAPEX Annuity calcs'!$D174,I174)","v":18.813047608397444}]
[]
[]
[{"$f":"A170+1","v":25},{"$f":"VLOOKUP($A177,Inputs!$B$68:$AN$129,MATCH($B$7,Inputs!$B$68:$AN$68,0),FALSE)","v":"18W LED Decorative - Bottom Pole Entry"},{"$f":"VLOOKUP($A177,Inputs!$B$68:$AN$129,MATCH($C$7,Inputs!$B$68:$AN$68,0),FALSE)","v":"RLMIN"},null,null,null,null,null,null,null,null,null,null,null,null,null,{"$f":"VLOOKUP($A177,Inputs!$B$68:$AN$129,MATCH($B$7,Inputs!$B$68:$AN$68,0),FALSE)","v":"18W LED Decorative - Bottom Pole Entry"}]
[null,{"$f":"Inputs!$AK$68","v":"Bracket UNIT price"},null,{"$f":"Inputs!$D$10","v":40},{"$f":"VLOOKUP($B177,Inputs!$C$68:$AN$129,MATCH($B178,Inputs!$C$68:$AN$68,0),FALSE)","v":99.640221589821721},{"$f":"E178","v":99.640221589821721},{"$f":"F178","v":99.640221589821721},99.640221589821721,99.640221589821721,null,null,null,null,null,null,null,{"$f":"B178","v":"Bracket UNIT price"},{"$f":"-PMT(Inputs!$D$4,'CAPEX Annuity calcs'!$D178,E178)","v":4.6160992576591218},{"$f":"-PMT(Inputs!$D$4,'CAPEX Annuity calcs'!$D178,F178)","v":4.6160992576591218},{"$f":"-PMT(Inputs!$D$4,'CAPEX Annuity calcs'!$D178,G178)","v":4.6160992576591218},{"$f":"-PMT(Inputs!$D$4,'CAPEX Annuity calcs'!$D178,H178)","v":4.6160992576591218},{"$f":"-PMT(Inputs!$D$4,'CAPEX Annuity calcs'!$D178,I178)","v":4.6160992576591218}]
[null,{"$f":"Inputs!$AA$68","v":"CAPEX Instalation costs"},{"$f":"\"Bracket (\"&Inputs!$D$10&\"yrs)\"","v":"Bracket (40yrs)"},{"$f":"Inputs!$D$10","v":40},null,{"$f":"E179","v":0},0,0,0,null,null,null,null,null,null,null,{"$f":"B179","v":"CAPEX Instalation costs"},{"$f":"-PMT(Inputs!$D$4,'CAPEX Annuity calcs'!$D179,E179)","v":0},{"$f":"-PMT(Inputs!$D$4,'CAPEX Annuity calcs'!$D179,F179)","v":0},{"$f":"-PMT(Inputs!$D$4,'CAPEX Annuity calcs'!$D179,G179)","v":0},{"$f":"-PMT(Inputs!$D$4,'CAPEX Annuity calcs'!$D179,H179)","v":0},{"$f":"-PMT(Inputs!$D$4,'CAPEX Annuity calcs'!$D179,I179)","v":0}]
[null,{"$f":"Inputs!$Z$68","v":"Luminaire UNIT price"},null,{"$f":"Inputs!$D$9","v":20},{"$f":"VLOOKUP($B177,Inputs!$C$68:$AN$129,MATCH($B180,Inputs!$C$68:$AN$68,0),FALSE)","v":1023.3892953128},{"$f":"E180","v":1023.3892953128},{"$f":"F180","v":1023.3892953128},1023.3892953128,1023.3892953128,null,null,null,null,null,null,null,"Luminaire UNIT price",{"$f":"-PMT(Inputs!$D$4,'CAPEX Annuity calcs'!$D180,E180)","v":71.558233995524816},{"$f":"-PMT(Inputs!$D$4,'CAPEX Annuity calcs'!$D180,F180)","v":71.558233995524816},{"$f":"-PMT(Inputs!$D$4,'CAPEX Annuity calcs'!$D180,G180)","v":71.558233995524816},{"$f":"-PMT(Inputs!$D$4,'CAPEX Annuity calcs'!$D180,H180)","v":71.558233995524816},{"$f":"-PMT(Inputs!$D$4,'CAPEX Annuity calcs'!$D180,I180)","v":71.558233995524816}]
[{"$f":"$A$13","v":"Labour Portion of CAPEX Instalation costs"},{"$f":"Inputs!$AA$68","v":"CAPEX Instalation costs"},"Luminaire (20yrs)",{"$f":"Inputs!$D$9","v":20},{"$f":"VLOOKUP($B177,Inputs!$C$68:$AN$129,MATCH($B181,Inputs!$C$68:$AN$68,0),FALSE)+(VLOOKUP($B177,Inputs!$C$68:$AN$129,MATCH($A181,Inputs!$C$68:$AN$68,0),FALSE)*('Master Data'!K$42))","v":267.95472429611652},{"$f":"VLOOKUP($B177,Inputs!$C$68:$AN$129,MATCH($B181,Inputs!$C$68:$AN$68,0),FALSE)+(VLOOKUP($B177,Inputs!$C$68:$AN$129,MATCH($A181,Inputs!$C$68:$AN$68,0),FALSE)*('Master Data'!L$42))","v":268.12133059681764},{"$f":"VLOOKUP($B177,Inputs!$C$68:$AN$129,MATCH($B181,Inputs!$C$68:$AN$68,0),FALSE)+(VLOOKUP($B177,Inputs!$C$68:$AN$129,MATCH($A181,Inputs!$C$68:$AN$68,0),FALSE)*('Master Data'!M$42))","v":268.37544504602391},{"$f":"VLOOKUP($B177,Inputs!$C$68:$AN$129,MATCH($B181,Inputs!$C$68:$AN$68,0),FALSE)+(VLOOKUP($B177,Inputs!$C$68:$AN$129,MATCH($A181,Inputs!$C$68:$AN$68,0),FALSE)*('Master Data'!N$42))","v":268.68873549003757},{"$f":"VLOOKUP($B177,Inputs!$C$68:$AN$129,MATCH($B181,Inputs!$C$68:$AN$68,0),FALSE)+(VLOOKUP($B177,Inputs!$C$68:$AN$129,MATCH($A181,Inputs!$C$68:$AN$68,0),FALSE)*('Master Data'!O$42))","v":269.05459315622693},null,null,null,null,null,null,null,"CAPEX Instalation costs",{"$f":"-PMT(Inputs!$D$4,'CAPEX Annuity calcs'!$D181,E181)","v":18.736141709912243},{"$f":"-PMT(Inputs!$D$4,'CAPEX Annuity calcs'!$D181,F181)","v":18.74779128716041},{"$f":"-PMT(Inputs!$D$4,'CAPEX Annuity calcs'!$D181,G181)","v":18.765559678232343},{"$f":"-PMT(Inputs!$D$4,'CAPEX Annuity calcs'!$D181,H181)","v":18.787465819916616},{"$f":"-PMT(Inputs!$D$4,'CAPEX Annuity calcs'!$D181,I181)","v":18.813047608397444}]
[]
[]
[{"$f":"A177+1","v":26},{"$f":"VLOOKUP($A184,Inputs!$B$68:$AN$129,MATCH($B$7,Inputs!$B$68:$AN$68,0),FALSE)","v":"18W LED Decorative - Side Entry"},{"$f":"VLOOKUP($A184,Inputs!$B$68:$AN$129,MATCH($C$7,Inputs!$B$68:$AN$68,0),FALSE)","v":"RLMIN"},null,null,null,null,null,null,null,null,null,null,null,null,null,{"$f":"VLOOKUP($A184,Inputs!$B$68:$AN$129,MATCH($B$7,Inputs!$B$68:$AN$68,0),FALSE)","v":"18W LED Decorative - Side Entry"}]
[null,{"$f":"Inputs!$AK$68","v":"Bracket UNIT price"},null,{"$f":"Inputs!$D$10","v":40},{"$f":"VLOOKUP($B184,Inputs!$C$68:$AN$129,MATCH($B185,Inputs!$C$68:$AN$68,0),FALSE)","v":99.640221589821721},{"$f":"E185","v":99.640221589821721},{"$f":"F185","v":99.640221589821721},99.640221589821721,99.640221589821721,null,null,null,null,null,null,null,{"$f":"B185","v":"Bracket UNIT price"},{"$f":"-PMT(Inputs!$D$4,'CAPEX Annuity calcs'!$D185,E185)","v":4.6160992576591218},{"$f":"-PMT(Inputs!$D$4,'CAPEX Annuity calcs'!$D185,F185)","v":4.6160992576591218},{"$f":"-PMT(Inputs!$D$4,'CAPEX Annuity calcs'!$D185,G185)","v":4.6160992576591218},{"$f":"-PMT(Inputs!$D$4,'CAPEX Annuity calcs'!$D185,H185)","v":4.6160992576591218},{"$f":"-PMT(Inputs!$D$4,'CAPEX Annuity calcs'!$D185,I185)","v":4.6160992576591218}]
[null,{"$f":"Inputs!$AA$68","v":"CAPEX Instalation costs"},{"$f":"\"Bracket (\"&Inputs!$D$10&\"yrs)\"","v":"Bracket (40yrs)"},{"$f":"Inputs!$D$10","v":40},null,{"$f":"E186","v":0},0,0,0,null,null,null,null,null,null,null,{"$f":"B186","v":"CAPEX Instalation costs"},{"$f":"-PMT(Inputs!$D$4,'CAPEX Annuity calcs'!$D186,E186)","v":0},{"$f":"-PMT(Inputs!$D$4,'CAPEX Annuity calcs'!$D186,F186)","v":0},{"$f":"-PMT(Inputs!$D$4,'CAPEX Annuity calcs'!$D186,G186)","v":0},{"$f":"-PMT(Inputs!$D$4,'CAPEX Annuity calcs'!$D186,H186)","v":0},{"$f":"-PMT(Inputs!$D$4,'CAPEX Annuity calcs'!$D186,I186)","v":0}]
[null,{"$f":"Inputs!$Z$68","v":"Luminaire UNIT price"},null,{"$f":"Inputs!$D$9","v":20},{"$f":"VLOOKUP($B184,Inputs!$C$68:$AN$129,MATCH($B187,Inputs!$C$68:$AN$68,0),FALSE)","v":1023.3892953128},{"$f":"E187","v":1023.3892953128},{"$f":"F187","v":1023.3892953128},1023.3892953128,1023.3892953128,null,null,null,null,null,null,null,"Luminaire UNIT price",{"$f":"-PMT(Inputs!$D$4,'CAPEX Annuity calcs'!$D187,E187)","v":71.558233995524816},{"$f":"-PMT(Inputs!$D$4,'CAPEX Annuity calcs'!$D187,F187)","v":71.558233995524816},{"$f":"-PMT(Inputs!$D$4,'CAPEX Annuity calcs'!$D187,G187)","v":71.558233995524816},{"$f":"-PMT(Inputs!$D$4,'CAPEX Annuity calcs'!$D187,H187)","v":71.558233995524816},{"$f":"-PMT(Inputs!$D$4,'CAPEX Annuity calcs'!$D187,I187)","v":71.558233995524816}]
[{"$f":"$A$13","v":"Labour Portion of CAPEX Instalation costs"},{"$f":"Inputs!$AA$68","v":"CAPEX Instalation costs"},"Luminaire (20yrs)",{"$f":"Inputs!$D$9","v":20},{"$f":"VLOOKUP($B184,Inputs!$C$68:$AN$129,MATCH($B188,Inputs!$C$68:$AN$68,0),FALSE)+(VLOOKUP($B184,Inputs!$C$68:$AN$129,MATCH($A188,Inputs!$C$68:$AN$68,0),FALSE)*('Master Data'!K$42))","v":267.95472429611652},{"$f":"VLOOKUP($B184,Inputs!$C$68:$AN$129,MATCH($B188,Inputs!$C$68:$AN$68,0),FALSE)+(VLOOKUP($B184,Inputs!$C$68:$AN$129,MATCH($A188,Inputs!$C$68:$AN$68,0),FALSE)*('Master Data'!L$42))","v":268.12133059681764},{"$f":"VLOOKUP($B184,Inputs!$C$68:$AN$129,MATCH($B188,Inputs!$C$68:$AN$68,0),FALSE)+(VLOOKUP($B184,Inputs!$C$68:$AN$129,MATCH($A188,Inputs!$C$68:$AN$68,0),FALSE)*('Master Data'!M$42))","v":268.37544504602391},{"$f":"VLOOKUP($B184,Inputs!$C$68:$AN$129,MATCH($B188,Inputs!$C$68:$AN$68,0),FALSE)+(VLOOKUP($B184,Inputs!$C$68:$AN$129,MATCH($A188,Inputs!$C$68:$AN$68,0),FALSE)*('Master Data'!N$42))","v":268.68873549003757},{"$f":"VLOOKUP($B184,Inputs!$C$68:$AN$129,MATCH($B188,Inputs!$C$68:$AN$68,0),FALSE)+(VLOOKUP($B184,Inputs!$C$68:$AN$129,MATCH($A188,Inputs!$C$68:$AN$68,0),FALSE)*('Master Data'!O$42))","v":269.05459315622693},null,null,null,null,null,null,null,"CAPEX Instalation costs",{"$f":"-PMT(Inputs!$D$4,'CAPEX Annuity calcs'!$D188,E188)","v":18.736141709912243},{"$f":"-PMT(Inputs!$D$4,'CAPEX Annuity calcs'!$D188,F188)","v":18.74779128716041},{"$f":"-PMT(Inputs!$D$4,'CAPEX Annuity calcs'!$D188,G188)","v":18.765559678232343},{"$f":"-PMT(Inputs!$D$4,'CAPEX Annuity calcs'!$D188,H188)","v":18.787465819916616},{"$f":"-PMT(Inputs!$D$4,'CAPEX Annuity calcs'!$D188,I188)","v":18.813047608397444}]
[]
[]
[{"$f":"A184+1","v":27},{"$f":"VLOOKUP($A191,Inputs!$B$68:$AN$129,MATCH($B$7,Inputs!$B$68:$AN$68,0),FALSE)","v":"18W LED Decorative - Top Entry"},{"$f":"VLOOKUP($A191,Inputs!$B$68:$AN$129,MATCH($C$7,Inputs!$B$68:$AN$68,0),FALSE)","v":"RLMIN"},null,null,null,null,null,null,null,null,null,null,null,null,null,{"$f":"VLOOKUP($A191,Inputs!$B$68:$AN$129,MATCH($B$7,Inputs!$B$68:$AN$68,0),FALSE)","v":"18W LED Decorative - Top Entry"}]
[null,{"$f":"Inputs!$AK$68","v":"Bracket UNIT price"},null,{"$f":"Inputs!$D$10","v":40},{"$f":"VLOOKUP($B191,Inputs!$C$68:$AN$129,MATCH($B192,Inputs!$C$68:$AN$68,0),FALSE)","v":99.640221589821721},{"$f":"E192","v":99.640221589821721},{"$f":"F192","v":99.640221589821721},99.640221589821721,99.640221589821721,null,null,null,null,null,null,null,{"$f":"B192","v":"Bracket UNIT price"},{"$f":"-PMT(Inputs!$D$4,'CAPEX Annuity calcs'!$D192,E192)","v":4.6160992576591218},{"$f":"-PMT(Inputs!$D$4,'CAPEX Annuity calcs'!$D192,F192)","v":4.6160992576591218},{"$f":"-PMT(Inputs!$D$4,'CAPEX Annuity calcs'!$D192,G192)","v":4.6160992576591218},{"$f":"-PMT(Inputs!$D$4,'CAPEX Annuity calcs'!$D192,H192)","v":4.6160992576591218},{"$f":"-PMT(Inputs!$D$4,'CAPEX Annuity calcs'!$D192,I192)","v":4.6160992576591218}]
[null,{"$f":"Inputs!$AA$68","v":"CAPEX Instalation costs"},{"$f":"\"Bracket (\"&Inputs!$D$10&\"yrs)\"","v":"Bracket (40yrs)"},{"$f":"Inputs!$D$10","v":40},null,{"$f":"E193","v":0},0,0,0,null,null,null,null,null,null,null,{"$f":"B193","v":"CAPEX Instalation costs"},{"$f":"-PMT(Inputs!$D$4,'CAPEX Annuity calcs'!$D193,E193)","v":0},{"$f":"-PMT(Inputs!$D$4,'CAPEX Annuity calcs'!$D193,F193)","v":0},{"$f":"-PMT(Inputs!$D$4,'CAPEX Annuity calcs'!$D193,G193)","v":0},{"$f":"-PMT(Inputs!$D$4,'CAPEX Annuity calcs'!$D193,H193)","v":0},{"$f":"-PMT(Inputs!$D$4,'CAPEX Annuity calcs'!$D193,I193)","v":0}]
[null,{"$f":"Inputs!$Z$68","v":"Luminaire UNIT price"},null,{"$f":"Inputs!$D$9","v":20},{"$f":"VLOOKUP($B191,Inputs!$C$68:$AN$129,MATCH($B194,Inputs!$C$68:$AN$68,0),FALSE)","v":1023.3892953128},{"$f":"E194","v":1023.3892953128},{"$f":"F194","v":1023.3892953128},1023.3892953128,1023.3892953128,null,null,null,null,null,null,null,"Luminaire UNIT price",{"$f":"-PMT(Inputs!$D$4,'CAPEX Annuity calcs'!$D194,E194)","v":71.558233995524816},{"$f":"-PMT(Inputs!$D$4,'CAPEX Annuity calcs'!$D194,F194)","v":71.558233995524816},{"$f":"-PMT(Inputs!$D$4,'CAPEX Annuity calcs'!$D194,G194)","v":71.558233995524816},{"$f":"-PMT(Inputs!$D$4,'CAPEX Annuity calcs'!$D194,H194)","v":71.558233995524816},{"$f":"-PMT(Inputs!$D$4,'CAPEX Annuity calcs'!$D194,I194)","v":71.558233995524816}]
[{"$f":"$A$13","v":"Labour Portion of CAPEX Instalation costs"},{"$f":"Inputs!$AA$68","v":"CAPEX Instalation costs"},"Luminaire (20yrs)",{"$f":"Inputs!$D$9","v":20},{"$f":"VLOOKUP($B191,Inputs!$C$68:$AN$129,MATCH($B195,Inputs!$C$68:$AN$68,0),FALSE)+(VLOOKUP($B191,Inputs!$C$68:$AN$129,MATCH($A195,Inputs!$C$68:$AN$68,0),FALSE)*('Master Data'!K$42))","v":267.95472429611652},{"$f":"VLOOKUP($B191,Inputs!$C$68:$AN$129,MATCH($B195,Inputs!$C$68:$AN$68,0),FALSE)+(VLOOKUP($B191,Inputs!$C$68:$AN$129,MATCH($A195,Inputs!$C$68:$AN$68,0),FALSE)*('Master Data'!L$42))","v":268.12133059681764},{"$f":"VLOOKUP($B191,Inputs!$C$68:$AN$129,MATCH($B195,Inputs!$C$68:$AN$68,0),FALSE)+(VLOOKUP($B191,Inputs!$C$68:$AN$129,MATCH($A195,Inputs!$C$68:$AN$68,0),FALSE)*('Master Data'!M$42))","v":268.37544504602391},{"$f":"VLOOKUP($B191,Inputs!$C$68:$AN$129,MATCH($B195,Inputs!$C$68:$AN$68,0),FALSE)+(VLOOKUP($B191,Inputs!$C$68:$AN$129,MATCH($A195,Inputs!$C$68:$AN$68,0),FALSE)*('Master Data'!N$42))","v":268.68873549003757},{"$f":"VLOOKUP($B191,Inputs!$C$68:$AN$129,MATCH($B195,Inputs!$C$68:$AN$68,0),FALSE)+(VLOOKUP($B191,Inputs!$C$68:$AN$129,MATCH($A195,Inputs!$C$68:$AN$68,0),FALSE)*('Master Data'!O$42))","v":269.05459315622693},null,null,null,null,null,null,null,"CAPEX Instalation costs",{"$f":"-PMT(Inputs!$D$4,'CAPEX Annuity calcs'!$D195,E195)","v":18.736141709912243},{"$f":"-PMT(Inputs!$D$4,'CAPEX Annuity calcs'!$D195,F195)","v":18.74779128716041},{"$f":"-PMT(Inputs!$D$4,'CAPEX Annuity calcs'!$D195,G195)","v":18.765559678232343},{"$f":"-PMT(Inputs!$D$4,'CAPEX Annuity calcs'!$D195,H195)","v":18.787465819916616},{"$f":"-PMT(Inputs!$D$4,'CAPEX Annuity calcs'!$D195,I195)","v":18.813047608397444}]
[]
[]
[{"$f":"A191+1","v":28},{"$f":"VLOOKUP($A198,Inputs!$B$68:$AN$129,MATCH($B$7,Inputs!$B$68:$AN$68,0),FALSE)","v":"25W LED"},{"$f":"VLOOKUP($A198,Inputs!$B$68:$AN$129,MATCH($C$7,Inputs!$B$68:$AN$68,0),FALSE)","v":"RLMIN"},null,null,null,null,null,null,null,null,null,null,null,null,null,{"$f":"VLOOKUP($A198,Inputs!$B$68:$AN$129,MATCH($B$7,Inputs!$B$68:$AN$68,0),FALSE)","v":"25W LED"}]
[null,{"$f":"Inputs!$AK$68","v":"Bracket UNIT price"},null,{"$f":"Inputs!$D$10","v":40},{"$f":"VLOOKUP($B198,Inputs!$C$68:$AN$129,MATCH($B199,Inputs!$C$68:$AN$68,0),FALSE)","v":117.07266863377478},{"$f":"E199","v":117.07266863377478},{"$f":"F199","v":117.07266863377478},117.07266863377478,117.07266863377478,null,null,null,null,null,null,null,{"$f":"B199","v":"Bracket UNIT price"},{"$f":"-PMT(Inputs!$D$4,'CAPEX Annuity calcs'!$D199,E199)","v":5.4237039034018384},{"$f":"-PMT(Inputs!$D$4,'CAPEX Annuity calcs'!$D199,F199)","v":5.4237039034018384},{"$f":"-PMT(Inputs!$D$4,'CAPEX Annuity calcs'!$D199,G199)","v":5.4237039034018384},{"$f":"-PMT(Inputs!$D$4,'CAPEX Annuity calcs'!$D199,H199)","v":5.4237039034018384},{"$f":"-PMT(Inputs!$D$4,'CAPEX Annuity calcs'!$D199,I199)","v":5.4237039034018384}]
[null,{"$f":"Inputs!$AA$68","v":"CAPEX Instalation costs"},{"$f":"\"Bracket (\"&Inputs!$D$10&\"yrs)\"","v":"Bracket (40yrs)"},{"$f":"Inputs!$D$10","v":40},null,{"$f":"E200","v":0},0,0,0,null,null,null,null,null,null,null,{"$f":"B200","v":"CAPEX Instalation costs"},{"$f":"-PMT(Inputs!$D$4,'CAPEX Annuity calcs'!$D200,E200)","v":0},{"$f":"-PMT(Inputs!$D$4,'CAPEX Annuity calcs'!$D200,F200)","v":0},{"$f":"-PMT(Inputs!$D$4,'CAPEX Annuity calcs'!$D200,G200)","v":0},{"$f":"-PMT(Inputs!$D$4,'CAPEX Annuity calcs'!$D200,H200)","v":0},{"$f":"-PMT(Inputs!$D$4,'CAPEX Annuity calcs'!$D200,I200)","v":0}]
[null,{"$f":"Inputs!$Z$68","v":"Luminaire UNIT price"},null,{"$f":"Inputs!$D$9","v":20},{"$f":"VLOOKUP($B198,Inputs!$C$68:$AN$129,MATCH($B201,Inputs!$C$68:$AN$68,0),FALSE)","v":365.71600000000001},{"$f":"E201","v":365.71600000000001},{"$f":"F201","v":365.71600000000001},365.71600000000001,365.71600000000001,null,null,null,null,null,null,null,"Luminaire UNIT price",{"$f":"-PMT(Inputs!$D$4,'CAPEX Annuity calcs'!$D201,E201)","v":25.571882785727663},{"$f":"-PMT(Inputs!$D$4,'CAPEX Annuity calcs'!$D201,F201)","v":25.571882785727663},{"$f":"-PMT(Inputs!$D$4,'CAPEX Annuity calcs'!$D201,G201)","v":25.571882785727663},{"$f":"-PMT(Inputs!$D$4,'CAPEX Annuity calcs'!$D201,H201)","v":25.571882785727663},{"$f":"-PMT(Inputs!$D$4,'CAPEX Annuity calcs'!$D201,I201)","v":25.571882785727663}]
[{"$f":"$A$13","v":"Labour Portion of CAPEX Instalation costs"},{"$f":"Inputs!$AA$68","v":"CAPEX Instalation costs"},"Luminaire (20yrs)",{"$f":"Inputs!$D$9","v":20},{"$f":"VLOOKUP($B198,Inputs!$C$68:$AN$129,MATCH($B202,Inputs!$C$68:$AN$68,0),FALSE)+(VLOOKUP($B198,Inputs!$C$68:$AN$129,MATCH($A202,Inputs!$C$68:$AN$68,0),FALSE)*('Master Data'!K$42))","v":267.95472429611652},{"$f":"VLOOKUP($B198,Inputs!$C$68:$AN$129,MATCH($B202,Inputs!$C$68:$AN$68,0),FALSE)+(VLOOKUP($B198,Inputs!$C$68:$AN$129,MATCH($A202,Inputs!$C$68:$AN$68,0),FALSE)*('Master Data'!L$42))","v":268.12133059681764},{"$f":"VLOOKUP($B198,Inputs!$C$68:$AN$129,MATCH($B202,Inputs!$C$68:$AN$68,0),FALSE)+(VLOOKUP($B198,Inputs!$C$68:$AN$129,MATCH($A202,Inputs!$C$68:$AN$68,0),FALSE)*('Master Data'!M$42))","v":268.37544504602391},{"$f":"VLOOKUP($B198,Inputs!$C$68:$AN$129,MATCH($B202,Inputs!$C$68:$AN$68,0),FALSE)+(VLOOKUP($B198,Inputs!$C$68:$AN$129,MATCH($A202,Inputs!$C$68:$AN$68,0),FALSE)*('Master Data'!N$42))","v":268.68873549003757},{"$f":"VLOOKUP($B198,Inputs!$C$68:$AN$129,MATCH($B202,Inputs!$C$68:$AN$68,0),FALSE)+(VLOOKUP($B198,Inputs!$C$68:$AN$129,MATCH($A202,Inputs!$C$68:$AN$68,0),FALSE)*('Master Data'!O$42))","v":269.05459315622693},null,null,null,null,null,null,null,"CAPEX Instalation costs",{"$f":"-PMT(Inputs!$D$4,'CAPEX Annuity calcs'!$D202,E202)","v":18.736141709912243},{"$f":"-PMT(Inputs!$D$4,'CAPEX Annuity calcs'!$D202,F202)","v":18.74779128716041},{"$f":"-PMT(Inputs!$D$4,'CAPEX Annuity calcs'!$D202,G202)","v":18.765559678232343},{"$f":"-PMT(Inputs!$D$4,'CAPEX Annuity calcs'!$D202,H202)","v":18.787465819916616},{"$f":"-PMT(Inputs!$D$4,'CAPEX Annuity calcs'!$D202,I202)","v":18.813047608397444}]
[]
[]
[{"$f":"A198+1","v":29},{"$f":"VLOOKUP($A205,Inputs!$B$68:$AN$129,MATCH($B$7,Inputs!$B$68:$AN$68,0),FALSE)","v":"25W LED Decorative - Bottom Pole Entry"},{"$f":"VLOOKUP($A205,Inputs!$B$68:$AN$129,MATCH($C$7,Inputs!$B$68:$AN$68,0),FALSE)","v":"RLMIN"},null,null,null,null,null,null,null,null,null,null,null,null,null,{"$f":"VLOOKUP($A205,Inputs!$B$68:$AN$129,MATCH($B$7,Inputs!$B$68:$AN$68,0),FALSE)","v":"25W LED Decorative - Bottom Pole Entry"}]
[null,{"$f":"Inputs!$AK$68","v":"Bracket UNIT price"},null,{"$f":"Inputs!$D$10","v":40},{"$f":"VLOOKUP($B205,Inputs!$C$68:$AN$129,MATCH($B206,Inputs!$C$68:$AN$68,0),FALSE)","v":117.07266863377478},{"$f":"E206","v":117.07266863377478},{"$f":"F206","v":117.07266863377478},117.07266863377478,117.07266863377478,null,null,null,null,null,null,null,{"$f":"B206","v":"Bracket UNIT price"},{"$f":"-PMT(Inputs!$D$4,'CAPEX Annuity calcs'!$D206,E206)","v":5.4237039034018384},{"$f":"-PMT(Inputs!$D$4,'CAPEX Annuity calcs'!$D206,F206)","v":5.4237039034018384},{"$f":"-PMT(Inputs!$D$4,'CAPEX Annuity calcs'!$D206,G206)","v":5.4237039034018384},{"$f":"-PMT(Inputs!$D$4,'CAPEX Annuity calcs'!$D206,H206)","v":5.4237039034018384},{"$f":"-PMT(Inputs!$D$4,'CAPEX Annuity calcs'!$D206,I206)","v":5.4237039034018384}]
[null,{"$f":"Inputs!$AA$68","v":"CAPEX Instalation costs"},{"$f":"\"Bracket (\"&Inputs!$D$10&\"yrs)\"","v":"Bracket (40yrs)"},{"$f":"Inputs!$D$10","v":40},null,{"$f":"E207","v":0},0,0,0,null,null,null,null,null,null,null,{"$f":"B207","v":"CAPEX Instalation costs"},{"$f":"-PMT(Inputs!$D$4,'CAPEX Annuity calcs'!$D207,E207)","v":0},{"$f":"-PMT(Inputs!$D$4,'CAPEX Annuity calcs'!$D207,F207)","v":0},{"$f":"-PMT(Inputs!$D$4,'CAPEX Annuity calcs'!$D207,G207)","v":0},{"$f":"-PMT(Inputs!$D$4,'CAPEX Annuity calcs'!$D207,H207)","v":0},{"$f":"-PMT(Inputs!$D$4,'CAPEX Annuity calcs'!$D207,I207)","v":0}]
[null,{"$f":"Inputs!$Z$68","v":"Luminaire UNIT price"},null,{"$f":"Inputs!$D$9","v":20},{"$f":"VLOOKUP($B205,Inputs!$C$68:$AN$129,MATCH($B208,Inputs!$C$68:$AN$68,0),FALSE)","v":1023.3892953128},{"$f":"E208","v":1023.3892953128},{"$f":"F208","v":1023.3892953128},1023.3892953128,1023.3892953128,null,null,null,null,null,null,null,"Luminaire UNIT price",{"$f":"-PMT(Inputs!$D$4,'CAPEX Annuity calcs'!$D208,E208)","v":71.558233995524816},{"$f":"-PMT(Inputs!$D$4,'CAPEX Annuity calcs'!$D208,F208)","v":71.558233995524816},{"$f":"-PMT(Inputs!$D$4,'CAPEX Annuity calcs'!$D208,G208)","v":71.558233995524816},{"$f":"-PMT(Inputs!$D$4,'CAPEX Annuity calcs'!$D208,H208)","v":71.558233995524816},{"$f":"-PMT(Inputs!$D$4,'CAPEX Annuity calcs'!$D208,I208)","v":71.558233995524816}]
[{"$f":"$A$13","v":"Labour Portion of CAPEX Instalation costs"},{"$f":"Inputs!$AA$68","v":"CAPEX Instalation costs"},"Luminaire (20yrs)",{"$f":"Inputs!$D$9","v":20},{"$f":"VLOOKUP($B205,Inputs!$C$68:$AN$129,MATCH($B209,Inputs!$C$68:$AN$68,0),FALSE)+(VLOOKUP($B205,Inputs!$C$68:$AN$129,MATCH($A209,Inputs!$C$68:$AN$68,0),FALSE)*('Master Data'!K$42))","v":267.95472429611652},{"$f":"VLOOKUP($B205,Inputs!$C$68:$AN$129,MATCH($B209,Inputs!$C$68:$AN$68,0),FALSE)+(VLOOKUP($B205,Inputs!$C$68:$AN$129,MATCH($A209,Inputs!$C$68:$AN$68,0),FALSE)*('Master Data'!L$42))","v":268.12133059681764},{"$f":"VLOOKUP($B205,Inputs!$C$68:$AN$129,MATCH($B209,Inputs!$C$68:$AN$68,0),FALSE)+(VLOOKUP($B205,Inputs!$C$68:$AN$129,MATCH($A209,Inputs!$C$68:$AN$68,0),FALSE)*('Master Data'!M$42))","v":268.37544504602391},{"$f":"VLOOKUP($B205,Inputs!$C$68:$AN$129,MATCH($B209,Inputs!$C$68:$AN$68,0),FALSE)+(VLOOKUP($B205,Inputs!$C$68:$AN$129,MATCH($A209,Inputs!$C$68:$AN$68,0),FALSE)*('Master Data'!N$42))","v":268.68873549003757},{"$f":"VLOOKUP($B205,Inputs!$C$68:$AN$129,MATCH($B209,Inputs!$C$68:$AN$68,0),FALSE)+(VLOOKUP($B205,Inputs!$C$68:$AN$129,MATCH($A209,Inputs!$C$68:$AN$68,0),FALSE)*('Master Data'!O$42))","v":269.05459315622693},null,null,null,null,null,null,null,"CAPEX Instalation costs",{"$f":"-PMT(Inputs!$D$4,'CAPEX Annuity calcs'!$D209,E209)","v":18.736141709912243},{"$f":"-PMT(Inputs!$D$4,'CAPEX Annuity calcs'!$D209,F209)","v":18.74779128716041},{"$f":"-PMT(Inputs!$D$4,'CAPEX Annuity calcs'!$D209,G209)","v":18.765559678232343},{"$f":"-PMT(Inputs!$D$4,'CAPEX Annuity calcs'!$D209,H209)","v":18.787465819916616},{"$f":"-PMT(Inputs!$D$4,'CAPEX Annuity calcs'!$D209,I209)","v":18.813047608397444}]
[]
[]
[{"$f":"A205+1","v":30},{"$f":"VLOOKUP($A212,Inputs!$B$68:$AN$129,MATCH($B$7,Inputs!$B$68:$AN$68,0),FALSE)","v":"25W LED Decorative - Side Entry"},{"$f":"VLOOKUP($A212,Inputs!$B$68:$AN$129,MATCH($C$7,Inputs!$B$68:$AN$68,0),FALSE)","v":"RLMIN"},null,null,null,null,null,null,null,null,null,null,null,null,null,{"$f":"VLOOKUP($A212,Inputs!$B$68:$AN$129,MATCH($B$7,Inputs!$B$68:$AN$68,0),FALSE)","v":"25W LED Decorative - Side Entry"}]
[null,{"$f":"Inputs!$AK$68","v":"Bracket UNIT price"},null,{"$f":"Inputs!$D$10","v":40},{"$f":"VLOOKUP($B212,Inputs!$C$68:$AN$129,MATCH($B213,Inputs!$C$68:$AN$68,0),FALSE)","v":117.07266863377478},{"$f":"E213","v":117.07266863377478},{"$f":"F213","v":117.07266863377478},117.07266863377478,117.07266863377478,null,null,null,null,null,null,null,{"$f":"B213","v":"Bracket UNIT price"},{"$f":"-PMT(Inputs!$D$4,'CAPEX Annuity calcs'!$D213,E213)","v":5.4237039034018384},{"$f":"-PMT(Inputs!$D$4,'CAPEX Annuity calcs'!$D213,F213)","v":5.4237039034018384},{"$f":"-PMT(Inputs!$D$4,'CAPEX Annuity calcs'!$D213,G213)","v":5.4237039034018384},{"$f":"-PMT(Inputs!$D$4,'CAPEX Annuity calcs'!$D213,H213)","v":5.4237039034018384},{"$f":"-PMT(Inputs!$D$4,'CAPEX Annuity calcs'!$D213,I213)","v":5.4237039034018384}]
[null,{"$f":"Inputs!$AA$68","v":"CAPEX Instalation costs"},{"$f":"\"Bracket (\"&Inputs!$D$10&\"yrs)\"","v":"Bracket (40yrs)"},{"$f":"Inputs!$D$10","v":40},null,{"$f":"E214","v":0},0,0,0,null,null,null,null,null,null,null,{"$f":"B214","v":"CAPEX Instalation costs"},{"$f":"-PMT(Inputs!$D$4,'CAPEX Annuity calcs'!$D214,E214)","v":0},{"$f":"-PMT(Inputs!$D$4,'CAPEX Annuity calcs'!$D214,F214)","v":0},{"$f":"-PMT(Inputs!$D$4,'CAPEX Annuity calcs'!$D214,G214)","v":0},{"$f":"-PMT(Inputs!$D$4,'CAPEX Annuity calcs'!$D214,H214)","v":0},{"$f":"-PMT(Inputs!$D$4,'CAPEX Annuity calcs'!$D214,I214)","v":0}]
[null,{"$f":"Inputs!$Z$68","v":"Luminaire UNIT price"},null,{"$f":"Inputs!$D$9","v":20},{"$f":"VLOOKUP($B212,Inputs!$C$68:$AN$129,MATCH($B215,Inputs!$C$68:$AN$68,0),FALSE)","v":1023.3892953128},{"$f":"E215","v":1023.3892953128},{"$f":"F215","v":1023.3892953128},1023.3892953128,1023.3892953128,null,null,null,null,null,null,null,"Luminaire UNIT price",{"$f":"-PMT(Inputs!$D$4,'CAPEX Annuity calcs'!$D215,E215)","v":71.558233995524816},{"$f":"-PMT(Inputs!$D$4,'CAPEX Annuity calcs'!$D215,F215)","v":71.558233995524816},{"$f":"-PMT(Inputs!$D$4,'CAPEX Annuity calcs'!$D215,G215)","v":71.558233995524816},{"$f":"-PMT(Inputs!$D$4,'CAPEX Annuity calcs'!$D215,H215)","v":71.558233995524816},{"$f":"-PMT(Inputs!$D$4,'CAPEX Annuity calcs'!$D215,I215)","v":71.558233995524816}]
[{"$f":"$A$13","v":"Labour Portion of CAPEX Instalation costs"},{"$f":"Inputs!$AA$68","v":"CAPEX Instalation costs"},"Luminaire (20yrs)",{"$f":"Inputs!$D$9","v":20},{"$f":"VLOOKUP($B212,Inputs!$C$68:$AN$129,MATCH($B216,Inputs!$C$68:$AN$68,0),FALSE)+(VLOOKUP($B212,Inputs!$C$68:$AN$129,MATCH($A216,Inputs!$C$68:$AN$68,0),FALSE)*('Master Data'!K$42))","v":267.95472429611652},{"$f":"VLOOKUP($B212,Inputs!$C$68:$AN$129,MATCH($B216,Inputs!$C$68:$AN$68,0),FALSE)+(VLOOKUP($B212,Inputs!$C$68:$AN$129,MATCH($A216,Inputs!$C$68:$AN$68,0),FALSE)*('Master Data'!L$42))","v":268.12133059681764},{"$f":"VLOOKUP($B212,Inputs!$C$68:$AN$129,MATCH($B216,Inputs!$C$68:$AN$68,0),FALSE)+(VLOOKUP($B212,Inputs!$C$68:$AN$129,MATCH($A216,Inputs!$C$68:$AN$68,0),FALSE)*('Master Data'!M$42))","v":268.37544504602391},{"$f":"VLOOKUP($B212,Inputs!$C$68:$AN$129,MATCH($B216,Inputs!$C$68:$AN$68,0),FALSE)+(VLOOKUP($B212,Inputs!$C$68:$AN$129,MATCH($A216,Inputs!$C$68:$AN$68,0),FALSE)*('Master Data'!N$42))","v":268.68873549003757},{"$f":"VLOOKUP($B212,Inputs!$C$68:$AN$129,MATCH($B216,Inputs!$C$68:$AN$68,0),FALSE)+(VLOOKUP($B212,Inputs!$C$68:$AN$129,MATCH($A216,Inputs!$C$68:$AN$68,0),FALSE)*('Master Data'!O$42))","v":269.05459315622693},null,null,null,null,null,null,null,"CAPEX Instalation costs",{"$f":"-PMT(Inputs!$D$4,'CAPEX Annuity calcs'!$D216,E216)","v":18.736141709912243},{"$f":"-PMT(Inputs!$D$4,'CAPEX Annuity calcs'!$D216,F216)","v":18.74779128716041},{"$f":"-PMT(Inputs!$D$4,'CAPEX Annuity calcs'!$D216,G216)","v":18.765559678232343},{"$f":"-PMT(Inputs!$D$4,'CAPEX Annuity calcs'!$D216,H216)","v":18.787465819916616},{"$f":"-PMT(Inputs!$D$4,'CAPEX Annuity calcs'!$D216,I216)","v":18.813047608397444}]
[]
[]
[{"$f":"A212+1","v":31},{"$f":"VLOOKUP($A219,Inputs!$B$68:$AN$129,MATCH($B$7,Inputs!$B$68:$AN$68,0),FALSE)","v":"25W LED Decorative - Top Entry"},{"$f":"VLOOKUP($A219,Inputs!$B$68:$AN$129,MATCH($C$7,Inputs!$B$68:$AN$68,0),FALSE)","v":"RLMIN"},null,null,null,null,null,null,null,null,null,null,null,null,null,{"$f":"VLOOKUP($A219,Inputs!$B$68:$AN$129,MATCH($B$7,Inputs!$B$68:$AN$68,0),FALSE)","v":"25W LED Decorative - Top Entry"}]
[null,{"$f":"Inputs!$AK$68","v":"Bracket UNIT price"},null,{"$f":"Inputs!$D$10","v":40},{"$f":"VLOOKUP($B219,Inputs!$C$68:$AN$129,MATCH($B220,Inputs!$C$68:$AN$68,0),FALSE)","v":117.07266863377478},{"$f":"E220","v":117.07266863377478},{"$f":"F220","v":117.07266863377478},117.07266863377478,117.07266863377478,null,null,null,null,null,null,null,{"$f":"B220","v":"Bracket UNIT price"},{"$f":"-PMT(Inputs!$D$4,'CAPEX Annuity calcs'!$D220,E220)","v":5.4237039034018384},{"$f":"-PMT(Inputs!$D$4,'CAPEX Annuity calcs'!$D220,F220)","v":5.4237039034018384},{"$f":"-PMT(Inputs!$D$4,'CAPEX Annuity calcs'!$D220,G220)","v":5.4237039034018384},{"$f":"-PMT(Inputs!$D$4,'CAPEX Annuity calcs'!$D220,H220)","v":5.4237039034018384},{"$f":"-PMT(Inputs!$D$4,'CAPEX Annuity calcs'!$D220,I220)","v":5.4237039034018384}]
[null,{"$f":"Inputs!$AA$68","v":"CAPEX Instalation costs"},{"$f":"\"Bracket (\"&Inputs!$D$10&\"yrs)\"","v":"Bracket (40yrs)"},{"$f":"Inputs!$D$10","v":40},null,{"$f":"E221","v":0},0,0,0,null,null,null,null,null,null,null,{"$f":"B221","v":"CAPEX Instalation costs"},{"$f":"-PMT(Inputs!$D$4,'CAPEX Annuity calcs'!$D221,E221)","v":0},{"$f":"-PMT(Inputs!$D$4,'CAPEX Annuity calcs'!$D221,F221)","v":0},{"$f":"-PMT(Inputs!$D$4,'CAPEX Annuity calcs'!$D221,G221)","v":0},{"$f":"-PMT(Inputs!$D$4,'CAPEX Annuity calcs'!$D221,H221)","v":0},{"$f":"-PMT(Inputs!$D$4,'CAPEX Annuity calcs'!$D221,I221)","v":0}]
[null,{"$f":"Inputs!$Z$68","v":"Luminaire UNIT price"},null,{"$f":"Inputs!$D$9","v":20},{"$f":"VLOOKUP($B219,Inputs!$C$68:$AN$129,MATCH($B222,Inputs!$C$68:$AN$68,0),FALSE)","v":1023.3892953128},{"$f":"E222","v":1023.3892953128},{"$f":"F222","v":1023.3892953128},1023.3892953128,1023.3892953128,null,null,null,null,null,null,null,"Luminaire UNIT price",{"$f":"-PMT(Inputs!$D$4,'CAPEX Annuity calcs'!$D222,E222)","v":71.558233995524816},{"$f":"-PMT(Inputs!$D$4,'CAPEX Annuity calcs'!$D222,F222)","v":71.558233995524816},{"$f":"-PMT(Inputs!$D$4,'CAPEX Annuity calcs'!$D222,G222)","v":71.558233995524816},{"$f":"-PMT(Inputs!$D$4,'CAPEX Annuity calcs'!$D222,H222)","v":71.558233995524816},{"$f":"-PMT(Inputs!$D$4,'CAPEX Annuity calcs'!$D222,I222)","v":71.558233995524816}]
[{"$f":"$A$13","v":"Labour Portion of CAPEX Instalation costs"},{"$f":"Inputs!$AA$68","v":"CAPEX Instalation costs"},"Luminaire (20yrs)",{"$f":"Inputs!$D$9","v":20},{"$f":"VLOOKUP($B219,Inputs!$C$68:$AN$129,MATCH($B223,Inputs!$C$68:$AN$68,0),FALSE)+(VLOOKUP($B219,Inputs!$C$68:$AN$129,MATCH($A223,Inputs!$C$68:$AN$68,0),FALSE)*('Master Data'!K$42))","v":267.95472429611652},{"$f":"VLOOKUP($B219,Inputs!$C$68:$AN$129,MATCH($B223,Inputs!$C$68:$AN$68,0),FALSE)+(VLOOKUP($B219,Inputs!$C$68:$AN$129,MATCH($A223,Inputs!$C$68:$AN$68,0),FALSE)*('Master Data'!L$42))","v":268.12133059681764},{"$f":"VLOOKUP($B219,Inputs!$C$68:$AN$129,MATCH($B223,Inputs!$C$68:$AN$68,0),FALSE)+(VLOOKUP($B219,Inputs!$C$68:$AN$129,MATCH($A223,Inputs!$C$68:$AN$68,0),FALSE)*('Master Data'!M$42))","v":268.37544504602391},{"$f":"VLOOKUP($B219,Inputs!$C$68:$AN$129,MATCH($B223,Inputs!$C$68:$AN$68,0),FALSE)+(VLOOKUP($B219,Inputs!$C$68:$AN$129,MATCH($A223,Inputs!$C$68:$AN$68,0),FALSE)*('Master Data'!N$42))","v":268.68873549003757},{"$f":"VLOOKUP($B219,Inputs!$C$68:$AN$129,MATCH($B223,Inputs!$C$68:$AN$68,0),FALSE)+(VLOOKUP($B219,Inputs!$C$68:$AN$129,MATCH($A223,Inputs!$C$68:$AN$68,0),FALSE)*('Master Data'!O$42))","v":269.05459315622693},null,null,null,null,null,null,null,"CAPEX Instalation costs",{"$f":"-PMT(Inputs!$D$4,'CAPEX Annuity calcs'!$D223,E223)","v":18.736141709912243},{"$f":"-PMT(Inputs!$D$4,'CAPEX Annuity calcs'!$D223,F223)","v":18.74779128716041},{"$f":"-PMT(Inputs!$D$4,'CAPEX Annuity calcs'!$D223,G223)","v":18.765559678232343},{"$f":"-PMT(Inputs!$D$4,'CAPEX Annuity calcs'!$D223,H223)","v":18.787465819916616},{"$f":"-PMT(Inputs!$D$4,'CAPEX Annuity calcs'!$D223,I223)","v":18.813047608397444}]
[]
[]
[{"$f":"A219+1","v":32},{"$f":"VLOOKUP($A226,Inputs!$B$68:$AN$129,MATCH($B$7,Inputs!$B$68:$AN$68,0),FALSE)","v":"30W LED"},{"$f":"VLOOKUP($A226,Inputs!$B$68:$AN$129,MATCH($C$7,Inputs!$B$68:$AN$68,0),FALSE)","v":"RLMIN"},null,null,null,null,null,null,null,null,null,null,null,null,null,{"$f":"VLOOKUP($A226,Inputs!$B$68:$AN$129,MATCH($B$7,Inputs!$B$68:$AN$68,0),FALSE)","v":"30W LED"}]
[null,{"$f":"Inputs!$AK$68","v":"Bracket UNIT price"},null,{"$f":"Inputs!$D$10","v":40},{"$f":"VLOOKUP($B226,Inputs!$C$68:$AN$129,MATCH($B227,Inputs!$C$68:$AN$68,0),FALSE)","v":117.07266863377478},{"$f":"E227","v":117.07266863377478},{"$f":"F227","v":117.07266863377478},117.07266863377478,117.07266863377478,null,null,null,null,null,null,null,{"$f":"B227","v":"Bracket UNIT price"},{"$f":"-PMT(Inputs!$D$4,'CAPEX Annuity calcs'!$D227,E227)","v":5.4237039034018384},{"$f":"-PMT(Inputs!$D$4,'CAPEX Annuity calcs'!$D227,F227)","v":5.4237039034018384},{"$f":"-PMT(Inputs!$D$4,'CAPEX Annuity calcs'!$D227,G227)","v":5.4237039034018384},{"$f":"-PMT(Inputs!$D$4,'CAPEX Annuity calcs'!$D227,H227)","v":5.4237039034018384},{"$f":"-PMT(Inputs!$D$4,'CAPEX Annuity calcs'!$D227,I227)","v":5.4237039034018384}]
[null,{"$f":"Inputs!$AA$68","v":"CAPEX Instalation costs"},{"$f":"\"Bracket (\"&Inputs!$D$10&\"yrs)\"","v":"Bracket (40yrs)"},{"$f":"Inputs!$D$10","v":40},null,{"$f":"E228","v":0},0,0,0,null,null,null,null,null,null,null,{"$f":"B228","v":"CAPEX Instalation costs"},{"$f":"-PMT(Inputs!$D$4,'CAPEX Annuity calcs'!$D228,E228)","v":0},{"$f":"-PMT(Inputs!$D$4,'CAPEX Annuity calcs'!$D228,F228)","v":0},{"$f":"-PMT(Inputs!$D$4,'CAPEX Annuity calcs'!$D228,G228)","v":0},{"$f":"-PMT(Inputs!$D$4,'CAPEX Annuity calcs'!$D228,H228)","v":0},{"$f":"-PMT(Inputs!$D$4,'CAPEX Annuity calcs'!$D228,I228)","v":0}]
[null,{"$f":"Inputs!$Z$68","v":"Luminaire UNIT price"},null,{"$f":"Inputs!$D$9","v":20},{"$f":"VLOOKUP($B226,Inputs!$C$68:$AN$129,MATCH($B229,Inputs!$C$68:$AN$68,0),FALSE)","v":365.71600000000001},{"$f":"E229","v":365.71600000000001},{"$f":"F229","v":365.71600000000001},365.71600000000001,365.71600000000001,null,null,null,null,null,null,null,"Luminaire UNIT price",{"$f":"-PMT(Inputs!$D$4,'CAPEX Annuity calcs'!$D229,E229)","v":25.571882785727663},{"$f":"-PMT(Inputs!$D$4,'CAPEX Annuity calcs'!$D229,F229)","v":25.571882785727663},{"$f":"-PMT(Inputs!$D$4,'CAPEX Annuity calcs'!$D229,G229)","v":25.571882785727663},{"$f":"-PMT(Inputs!$D$4,'CAPEX Annuity calcs'!$D229,H229)","v":25.571882785727663},{"$f":"-PMT(Inputs!$D$4,'CAPEX Annuity calcs'!$D229,I229)","v":25.571882785727663}]
[{"$f":"$A$13","v":"Labour Portion of CAPEX Instalation costs"},{"$f":"Inputs!$AA$68","v":"CAPEX Instalation costs"},"Luminaire (20yrs)",{"$f":"Inputs!$D$9","v":20},{"$f":"VLOOKUP($B226,Inputs!$C$68:$AN$129,MATCH($B230,Inputs!$C$68:$AN$68,0),FALSE)+(VLOOKUP($B226,Inputs!$C$68:$AN$129,MATCH($A230,Inputs!$C$68:$AN$68,0),FALSE)*('Master Data'!K$42))","v":267.95472429611652},{"$f":"VLOOKUP($B226,Inputs!$C$68:$AN$129,MATCH($B230,Inputs!$C$68:$AN$68,0),FALSE)+(VLOOKUP($B226,Inputs!$C$68:$AN$129,MATCH($A230,Inputs!$C$68:$AN$68,0),FALSE)*('Master Data'!L$42))","v":268.12133059681764},{"$f":"VLOOKUP($B226,Inputs!$C$68:$AN$129,MATCH($B230,Inputs!$C$68:$AN$68,0),FALSE)+(VLOOKUP($B226,Inputs!$C$68:$AN$129,MATCH($A230,Inputs!$C$68:$AN$68,0),FALSE)*('Master Data'!M$42))","v":268.37544504602391},{"$f":"VLOOKUP($B226,Inputs!$C$68:$AN$129,MATCH($B230,Inputs!$C$68:$AN$68,0),FALSE)+(VLOOKUP($B226,Inputs!$C$68:$AN$129,MATCH($A230,Inputs!$C$68:$AN$68,0),FALSE)*('Master Data'!N$42))","v":268.68873549003757},{"$f":"VLOOKUP($B226,Inputs!$C$68:$AN$129,MATCH($B230,Inputs!$C$68:$AN$68,0),FALSE)+(VLOOKUP($B226,Inputs!$C$68:$AN$129,MATCH($A230,Inputs!$C$68:$AN$68,0),FALSE)*('Master Data'!O$42))","v":269.05459315622693},null,null,null,null,null,null,null,"CAPEX Instalation costs",{"$f":"-PMT(Inputs!$D$4,'CAPEX Annuity calcs'!$D230,E230)","v":18.736141709912243},{"$f":"-PMT(Inputs!$D$4,'CAPEX Annuity calcs'!$D230,F230)","v":18.74779128716041},{"$f":"-PMT(Inputs!$D$4,'CAPEX Annuity calcs'!$D230,G230)","v":18.765559678232343},{"$f":"-PMT(Inputs!$D$4,'CAPEX Annuity calcs'!$D230,H230)","v":18.787465819916616},{"$f":"-PMT(Inputs!$D$4,'CAPEX Annuity calcs'!$D230,I230)","v":18.813047608397444}]
[]
[]
[{"$f":"A226+1","v":33},{"$f":"VLOOKUP($A233,Inputs!$B$68:$AN$129,MATCH($B$7,Inputs!$B$68:$AN$68,0),FALSE)","v":"88 LED Light"},{"$f":"VLOOKUP($A233,Inputs!$B$68:$AN$129,MATCH($C$7,Inputs!$B$68:$AN$68,0),FALSE)","v":"RLMIN"},null,null,null,null,null,null,null,null,null,null,null,null,null,{"$f":"VLOOKUP($A233,Inputs!$B$68:$AN$129,MATCH($B$7,Inputs!$B$68:$AN$68,0),FALSE)","v":"88 LED Light"}]
[null,{"$f":"Inputs!$AK$68","v":"Bracket UNIT price"},null,{"$f":"Inputs!$D$10","v":40},{"$f":"VLOOKUP($B233,Inputs!$C$68:$AN$129,MATCH($B234,Inputs!$C$68:$AN$68,0),FALSE)","v":117.07266863377478},{"$f":"E234","v":117.07266863377478},{"$f":"F234","v":117.07266863377478},117.07266863377478,117.07266863377478,null,null,null,null,null,null,null,{"$f":"B234","v":"Bracket UNIT price"},{"$f":"-PMT(Inputs!$D$4,'CAPEX Annuity calcs'!$D234,E234)","v":5.4237039034018384},{"$f":"-PMT(Inputs!$D$4,'CAPEX Annuity calcs'!$D234,F234)","v":5.4237039034018384},{"$f":"-PMT(Inputs!$D$4,'CAPEX Annuity calcs'!$D234,G234)","v":5.4237039034018384},{"$f":"-PMT(Inputs!$D$4,'CAPEX Annuity calcs'!$D234,H234)","v":5.4237039034018384},{"$f":"-PMT(Inputs!$D$4,'CAPEX Annuity calcs'!$D234,I234)","v":5.4237039034018384}]
[null,{"$f":"Inputs!$AA$68","v":"CAPEX Instalation costs"},{"$f":"\"Bracket (\"&Inputs!$D$10&\"yrs)\"","v":"Bracket (40yrs)"},{"$f":"Inputs!$D$10","v":40},null,{"$f":"E235","v":0},0,0,0,null,null,null,null,null,null,null,{"$f":"B235","v":"CAPEX Instalation costs"},{"$f":"-PMT(Inputs!$D$4,'CAPEX Annuity calcs'!$D235,E235)","v":0},{"$f":"-PMT(Inputs!$D$4,'CAPEX Annuity calcs'!$D235,F235)","v":0},{"$f":"-PMT(Inputs!$D$4,'CAPEX Annuity calcs'!$D235,G235)","v":0},{"$f":"-PMT(Inputs!$D$4,'CAPEX Annuity calcs'!$D235,H235)","v":0},{"$f":"-PMT(Inputs!$D$4,'CAPEX Annuity calcs'!$D235,I235)","v":0}]
[null,{"$f":"Inputs!$Z$68","v":"Luminaire UNIT price"},null,{"$f":"Inputs!$D$9","v":20},{"$f":"VLOOKUP($B233,Inputs!$C$68:$AN$129,MATCH($B236,Inputs!$C$68:$AN$68,0),FALSE)","v":365.71600000000001},{"$f":"E236","v":365.71600000000001},{"$f":"F236","v":365.71600000000001},365.71600000000001,365.71600000000001,null,null,null,null,null,null,null,"Luminaire UNIT price",{"$f":"-PMT(Inputs!$D$4,'CAPEX Annuity calcs'!$D236,E236)","v":25.571882785727663},{"$f":"-PMT(Inputs!$D$4,'CAPEX Annuity calcs'!$D236,F236)","v":25.571882785727663},{"$f":"-PMT(Inputs!$D$4,'CAPEX Annuity calcs'!$D236,G236)","v":25.571882785727663},{"$f":"-PMT(Inputs!$D$4,'CAPEX Annuity calcs'!$D236,H236)","v":25.571882785727663},{"$f":"-PMT(Inputs!$D$4,'CAPEX Annuity calcs'!$D236,I236)","v":25.571882785727663}]
[{"$f":"$A$13","v":"Labour Portion of CAPEX Instalation costs"},{"$f":"Inputs!$AA$68","v":"CAPEX Instalation costs"},"Luminaire (20yrs)",{"$f":"Inputs!$D$9","v":20},{"$f":"VLOOKUP($B233,Inputs!$C$68:$AN$129,MATCH($B237,Inputs!$C$68:$AN$68,0),FALSE)+(VLOOKUP($B233,Inputs!$C$68:$AN$129,MATCH($A237,Inputs!$C$68:$AN$68,0),FALSE)*('Master Data'!K$42))","v":267.95472429611652},{"$f":"VLOOKUP($B233,Inputs!$C$68:$AN$129,MATCH($B237,Inputs!$C$68:$AN$68,0),FALSE)+(VLOOKUP($B233,Inputs!$C$68:$AN$129,MATCH($A237,Inputs!$C$68:$AN$68,0),FALSE)*('Master Data'!L$42))","v":268.12133059681764},{"$f":"VLOOKUP($B233,Inputs!$C$68:$AN$129,MATCH($B237,Inputs!$C$68:$AN$68,0),FALSE)+(VLOOKUP($B233,Inputs!$C$68:$AN$129,MATCH($A237,Inputs!$C$68:$AN$68,0),FALSE)*('Master Data'!M$42))","v":268.37544504602391},{"$f":"VLOOKUP($B233,Inputs!$C$68:$AN$129,MATCH($B237,Inputs!$C$68:$AN$68,0),FALSE)+(VLOOKUP($B233,Inputs!$C$68:$AN$129,MATCH($A237,Inputs!$C$68:$AN$68,0),FALSE)*('Master Data'!N$42))","v":268.68873549003757},{"$f":"VLOOKUP($B233,Inputs!$C$68:$AN$129,MATCH($B237,Inputs!$C$68:$AN$68,0),FALSE)+(VLOOKUP($B233,Inputs!$C$68:$AN$129,MATCH($A237,Inputs!$C$68:$AN$68,0),FALSE)*('Master Data'!O$42))","v":269.05459315622693},null,null,null,null,null,null,null,"CAPEX Instalation costs",{"$f":"-PMT(Inputs!$D$4,'CAPEX Annuity calcs'!$D237,E237)","v":18.736141709912243},{"$f":"-PMT(Inputs!$D$4,'CAPEX Annuity calcs'!$D237,F237)","v":18.74779128716041},{"$f":"-PMT(Inputs!$D$4,'CAPEX Annuity calcs'!$D237,G237)","v":18.765559678232343},{"$f":"-PMT(Inputs!$D$4,'CAPEX Annuity calcs'!$D237,H237)","v":18.787465819916616},{"$f":"-PMT(Inputs!$D$4,'CAPEX Annuity calcs'!$D237,I237)","v":18.813047608397444}]
[]
[]
[{"$f":"A233+1","v":34},{"$f":"VLOOKUP($A240,Inputs!$B$68:$AN$129,MATCH($B$7,Inputs!$B$68:$AN$68,0),FALSE)","v":"100W Metal Halide"},{"$f":"VLOOKUP($A240,Inputs!$B$68:$AN$129,MATCH($C$7,Inputs!$B$68:$AN$68,0),FALSE)","v":"RLMAJ"},null,null,null,null,null,null,null,null,null,null,null,null,null,{"$f":"VLOOKUP($A240,Inputs!$B$68:$AN$129,MATCH($B$7,Inputs!$B$68:$AN$68,0),FALSE)","v":"100W Metal Halide"}]
[null,{"$f":"Inputs!$AK$68","v":"Bracket UNIT price"},null,{"$f":"Inputs!$D$10","v":40},{"$f":"VLOOKUP($B240,Inputs!$C$68:$AN$129,MATCH($B241,Inputs!$C$68:$AN$68,0),FALSE)","v":120.7732757406451},{"$f":"E241","v":120.7732757406451},{"$f":"F241","v":120.7732757406451},120.7732757406451,120.7732757406451,null,null,null,null,null,null,null,{"$f":"B241","v":"Bracket UNIT price"},{"$f":"-PMT(Inputs!$D$4,'CAPEX Annuity calcs'!$D241,E241)","v":5.5951444065074343},{"$f":"-PMT(Inputs!$D$4,'CAPEX Annuity calcs'!$D241,F241)","v":5.5951444065074343},{"$f":"-PMT(Inputs!$D$4,'CAPEX Annuity calcs'!$D241,G241)","v":5.5951444065074343},{"$f":"-PMT(Inputs!$D$4,'CAPEX Annuity calcs'!$D241,H241)","v":5.5951444065074343},{"$f":"-PMT(Inputs!$D$4,'CAPEX Annuity calcs'!$D241,I241)","v":5.5951444065074343}]
[null,{"$f":"Inputs!$AA$68","v":"CAPEX Instalation costs"},{"$f":"\"Bracket (\"&Inputs!$D$10&\"yrs)\"","v":"Bracket (40yrs)"},{"$f":"Inputs!$D$10","v":40},null,{"$f":"E242","v":0},0,0,0,null,null,null,null,null,null,null,{"$f":"B242","v":"CAPEX Instalation costs"},{"$f":"-PMT(Inputs!$D$4,'CAPEX Annuity calcs'!$D242,E242)","v":0},{"$f":"-PMT(Inputs!$D$4,'CAPEX Annuity calcs'!$D242,F242)","v":0},{"$f":"-PMT(Inputs!$D$4,'CAPEX Annuity calcs'!$D242,G242)","v":0},{"$f":"-PMT(Inputs!$D$4,'CAPEX Annuity calcs'!$D242,H242)","v":0},{"$f":"-PMT(Inputs!$D$4,'CAPEX Annuity calcs'!$D242,I242)","v":0}]
[null,{"$f":"Inputs!$Z$68","v":"Luminaire UNIT price"},null,{"$f":"Inputs!$D$9","v":20},{"$f":"VLOOKUP($B240,Inputs!$C$68:$AN$129,MATCH($B243,Inputs!$C$68:$AN$68,0),FALSE)","v":162.17518363940306},{"$f":"E243","v":162.17518363940306},{"$f":"F243","v":162.17518363940306},162.17518363940306,162.17518363940306,null,null,null,null,null,null,null,"Luminaire UNIT price",{"$f":"-PMT(Inputs!$D$4,'CAPEX Annuity calcs'!$D243,E243)","v":11.339741183816606},{"$f":"-PMT(Inputs!$D$4,'CAPEX Annuity calcs'!$D243,F243)","v":11.339741183816606},{"$f":"-PMT(Inputs!$D$4,'CAPEX Annuity calcs'!$D243,G243)","v":11.339741183816606},{"$f":"-PMT(Inputs!$D$4,'CAPEX Annuity calcs'!$D243,H243)","v":11.339741183816606},{"$f":"-PMT(Inputs!$D$4,'CAPEX Annuity calcs'!$D243,I243)","v":11.339741183816606}]
[{"$f":"$A$13","v":"Labour Portion of CAPEX Instalation costs"},{"$f":"Inputs!$AA$68","v":"CAPEX Instalation costs"},"Luminaire (20yrs)",{"$f":"Inputs!$D$9","v":20},{"$f":"VLOOKUP($B240,Inputs!$C$68:$AN$129,MATCH($B244,Inputs!$C$68:$AN$68,0),FALSE)+(VLOOKUP($B240,Inputs!$C$68:$AN$129,MATCH($A244,Inputs!$C$68:$AN$68,0),FALSE)*('Master Data'!K$42))","v":421.74525866906089},{"$f":"VLOOKUP($B240,Inputs!$C$68:$AN$129,MATCH($B244,Inputs!$C$68:$AN$68,0),FALSE)+(VLOOKUP($B240,Inputs!$C$68:$AN$129,MATCH($A244,Inputs!$C$68:$AN$68,0),FALSE)*('Master Data'!L$42))","v":422.00090685669414},{"$f":"VLOOKUP($B240,Inputs!$C$68:$AN$129,MATCH($B244,Inputs!$C$68:$AN$68,0),FALSE)+(VLOOKUP($B240,Inputs!$C$68:$AN$129,MATCH($A244,Inputs!$C$68:$AN$68,0),FALSE)*('Master Data'!M$42))","v":422.39083147609711},{"$f":"VLOOKUP($B240,Inputs!$C$68:$AN$129,MATCH($B244,Inputs!$C$68:$AN$68,0),FALSE)+(VLOOKUP($B240,Inputs!$C$68:$AN$129,MATCH($A244,Inputs!$C$68:$AN$68,0),FALSE)*('Master Data'!N$42))","v":422.87155839865568},{"$f":"VLOOKUP($B240,Inputs!$C$68:$AN$129,MATCH($B244,Inputs!$C$68:$AN$68,0),FALSE)+(VLOOKUP($B240,Inputs!$C$68:$AN$129,MATCH($A244,Inputs!$C$68:$AN$68,0),FALSE)*('Master Data'!O$42))","v":423.43294682694113},null,null,null,null,null,null,null,"CAPEX Instalation costs",{"$f":"-PMT(Inputs!$D$4,'CAPEX Annuity calcs'!$D244,E244)","v":29.489604830309908},{"$f":"-PMT(Inputs!$D$4,'CAPEX Annuity calcs'!$D244,F244)","v":29.507480464650605},{"$f":"-PMT(Inputs!$D$4,'CAPEX Annuity calcs'!$D244,G244)","v":29.534745081628376},{"$f":"-PMT(Inputs!$D$4,'CAPEX Annuity calcs'!$D244,H244)","v":29.568358848911217},{"$f":"-PMT(Inputs!$D$4,'CAPEX Annuity calcs'!$D244,I244)","v":29.607612693657906}]
[]
[]
[{"$f":"A240+1","v":35},{"$f":"VLOOKUP($A247,Inputs!$B$68:$AN$129,MATCH($B$7,Inputs!$B$68:$AN$68,0),FALSE)","v":"150W Metal Halide"},{"$f":"VLOOKUP($A247,Inputs!$B$68:$AN$129,MATCH($C$7,Inputs!$B$68:$AN$68,0),FALSE)","v":"RLMAJ"},null,null,null,null,null,null,null,null,null,null,null,null,null,{"$f":"VLOOKUP($A247,Inputs!$B$68:$AN$129,MATCH($B$7,Inputs!$B$68:$AN$68,0),FALSE)","v":"150W Metal Halide"}]
[null,{"$f":"Inputs!$AK$68","v":"Bracket UNIT price"},null,{"$f":"Inputs!$D$10","v":40},{"$f":"VLOOKUP($B247,Inputs!$C$68:$AN$129,MATCH($B248,Inputs!$C$68:$AN$68,0),FALSE)","v":207.89721127739688},{"$f":"E248","v":207.89721127739688},{"$f":"F248","v":207.89721127739688},207.89721127739688,207.89721127739688,null,null,null,null,null,null,null,{"$f":"B248","v":"Bracket UNIT price"},{"$f":"-PMT(Inputs!$D$4,'CAPEX Annuity calcs'!$D248,E248)","v":9.6313933001632801},{"$f":"-PMT(Inputs!$D$4,'CAPEX Annuity calcs'!$D248,F248)","v":9.6313933001632801},{"$f":"-PMT(Inputs!$D$4,'CAPEX Annuity calcs'!$D248,G248)","v":9.6313933001632801},{"$f":"-PMT(Inputs!$D$4,'CAPEX Annuity calcs'!$D248,H248)","v":9.6313933001632801},{"$f":"-PMT(Inputs!$D$4,'CAPEX Annuity calcs'!$D248,I248)","v":9.6313933001632801}]
[null,{"$f":"Inputs!$AA$68","v":"CAPEX Instalation costs"},{"$f":"\"Bracket (\"&Inputs!$D$10&\"yrs)\"","v":"Bracket (40yrs)"},{"$f":"Inputs!$D$10","v":40},null,{"$f":"E249","v":0},0,0,0,null,null,null,null,null,null,null,{"$f":"B249","v":"CAPEX Instalation costs"},{"$f":"-PMT(Inputs!$D$4,'CAPEX Annuity calcs'!$D249,E249)","v":0},{"$f":"-PMT(Inputs!$D$4,'CAPEX Annuity calcs'!$D249,F249)","v":0},{"$f":"-PMT(Inputs!$D$4,'CAPEX Annuity calcs'!$D249,G249)","v":0},{"$f":"-PMT(Inputs!$D$4,'CAPEX Annuity calcs'!$D249,H249)","v":0},{"$f":"-PMT(Inputs!$D$4,'CAPEX Annuity calcs'!$D249,I249)","v":0}]
[null,{"$f":"Inputs!$Z$68","v":"Luminaire UNIT price"},null,{"$f":"Inputs!$D$9","v":20},{"$f":"VLOOKUP($B247,Inputs!$C$68:$AN$129,MATCH($B250,Inputs!$C$68:$AN$68,0),FALSE)","v":236.57737538145497},{"$f":"E250","v":236.57737538145497},{"$f":"F250","v":236.57737538145497},236.57737538145497,236.57737538145497,null,null,null,null,null,null,null,"Luminaire UNIT price",{"$f":"-PMT(Inputs!$D$4,'CAPEX Annuity calcs'!$D250,E250)","v":16.542149955182875},{"$f":"-PMT(Inputs!$D$4,'CAPEX Annuity calcs'!$D250,F250)","v":16.542149955182875},{"$f":"-PMT(Inputs!$D$4,'CAPEX Annuity calcs'!$D250,G250)","v":16.542149955182875},{"$f":"-PMT(Inputs!$D$4,'CAPEX Annuity calcs'!$D250,H250)","v":16.542149955182875},{"$f":"-PMT(Inputs!$D$4,'CAPEX Annuity calcs'!$D250,I250)","v":16.542149955182875}]
[{"$f":"$A$13","v":"Labour Portion of CAPEX Instalation costs"},{"$f":"Inputs!$AA$68","v":"CAPEX Instalation costs"},"Luminaire (20yrs)",{"$f":"Inputs!$D$9","v":20},{"$f":"VLOOKUP($B247,Inputs!$C$68:$AN$129,MATCH($B251,Inputs!$C$68:$AN$68,0),FALSE)+(VLOOKUP($B247,Inputs!$C$68:$AN$129,MATCH($A251,Inputs!$C$68:$AN$68,0),FALSE)*('Master Data'!K$42))","v":421.74525866906089},{"$f":"VLOOKUP($B247,Inputs!$C$68:$AN$129,MATCH($B251,Inputs!$C$68:$AN$68,0),FALSE)+(VLOOKUP($B247,Inputs!$C$68:$AN$129,MATCH($A251,Inputs!$C$68:$AN$68,0),FALSE)*('Master Data'!L$42))","v":422.00090685669414},{"$f":"VLOOKUP($B247,Inputs!$C$68:$AN$129,MATCH($B251,Inputs!$C$68:$AN$68,0),FALSE)+(VLOOKUP($B247,Inputs!$C$68:$AN$129,MATCH($A251,Inputs!$C$68:$AN$68,0),FALSE)*('Master Data'!M$42))","v":422.39083147609711},{"$f":"VLOOKUP($B247,Inputs!$C$68:$AN$129,MATCH($B251,Inputs!$C$68:$AN$68,0),FALSE)+(VLOOKUP($B247,Inputs!$C$68:$AN$129,MATCH($A251,Inputs!$C$68:$AN$68,0),FALSE)*('Master Data'!N$42))","v":422.87155839865568},{"$f":"VLOOKUP($B247,Inputs!$C$68:$AN$129,MATCH($B251,Inputs!$C$68:$AN$68,0),FALSE)+(VLOOKUP($B247,Inputs!$C$68:$AN$129,MATCH($A251,Inputs!$C$68:$AN$68,0),FALSE)*('Master Data'!O$42))","v":423.43294682694113},null,null,null,null,null,null,null,"CAPEX Instalation costs",{"$f":"-PMT(Inputs!$D$4,'CAPEX Annuity calcs'!$D251,E251)","v":29.489604830309908},{"$f":"-PMT(Inputs!$D$4,'CAPEX Annuity calcs'!$D251,F251)","v":29.507480464650605},{"$f":"-PMT(Inputs!$D$4,'CAPEX Annuity calcs'!$D251,G251)","v":29.534745081628376},{"$f":"-PMT(Inputs!$D$4,'CAPEX Annuity calcs'!$D251,H251)","v":29.568358848911217},{"$f":"-PMT(Inputs!$D$4,'CAPEX Annuity calcs'!$D251,I251)","v":29.607612693657906}]
[]
[]
[{"$f":"A247+1","v":36},{"$f":"VLOOKUP($A254,Inputs!$B$68:$AN$129,MATCH($B$7,Inputs!$B$68:$AN$68,0),FALSE)","v":"250W Metal Halide"},{"$f":"VLOOKUP($A254,Inputs!$B$68:$AN$129,MATCH($C$7,Inputs!$B$68:$AN$68,0),FALSE)","v":"RLMAJ"},null,null,null,null,null,null,null,null,null,null,null,null,null,{"$f":"VLOOKUP($A254,Inputs!$B$68:$AN$129,MATCH($B$7,Inputs!$B$68:$AN$68,0),FALSE)","v":"250W Metal Halide"}]
[null,{"$f":"Inputs!$AK$68","v":"Bracket UNIT price"},null,{"$f":"Inputs!$D$10","v":40},{"$f":"VLOOKUP($B254,Inputs!$C$68:$AN$129,MATCH($B255,Inputs!$C$68:$AN$68,0),FALSE)","v":266.77935340982498},{"$f":"E255","v":266.77935340982498},{"$f":"F255","v":266.77935340982498},266.77935340982498,266.77935340982498,null,null,null,null,null,null,null,{"$f":"B255","v":"Bracket UNIT price"},{"$f":"-PMT(Inputs!$D$4,'CAPEX Annuity calcs'!$D255,E255)","v":12.359265722063284},{"$f":"-PMT(Inputs!$D$4,'CAPEX Annuity calcs'!$D255,F255)","v":12.359265722063284},{"$f":"-PMT(Inputs!$D$4,'CAPEX Annuity calcs'!$D255,G255)","v":12.359265722063284},{"$f":"-PMT(Inputs!$D$4,'CAPEX Annuity calcs'!$D255,H255)","v":12.359265722063284},{"$f":"-PMT(Inputs!$D$4,'CAPEX Annuity calcs'!$D255,I255)","v":12.359265722063284}]
[null,{"$f":"Inputs!$AA$68","v":"CAPEX Instalation costs"},{"$f":"\"Bracket (\"&Inputs!$D$10&\"yrs)\"","v":"Bracket (40yrs)"},{"$f":"Inputs!$D$10","v":40},null,{"$f":"E256","v":0},0,0,0,null,null,null,null,null,null,null,{"$f":"B256","v":"CAPEX Instalation costs"},{"$f":"-PMT(Inputs!$D$4,'CAPEX Annuity calcs'!$D256,E256)","v":0},{"$f":"-PMT(Inputs!$D$4,'CAPEX Annuity calcs'!$D256,F256)","v":0},{"$f":"-PMT(Inputs!$D$4,'CAPEX Annuity calcs'!$D256,G256)","v":0},{"$f":"-PMT(Inputs!$D$4,'CAPEX Annuity calcs'!$D256,H256)","v":0},{"$f":"-PMT(Inputs!$D$4,'CAPEX Annuity calcs'!$D256,I256)","v":0}]
[null,{"$f":"Inputs!$Z$68","v":"Luminaire UNIT price"},null,{"$f":"Inputs!$D$9","v":20},{"$f":"VLOOKUP($B254,Inputs!$C$68:$AN$129,MATCH($B257,Inputs!$C$68:$AN$68,0),FALSE)","v":245.07571166325397},{"$f":"E257","v":245.07571166325397},{"$f":"F257","v":245.07571166325397},245.07571166325397,245.07571166325397,null,null,null,null,null,null,null,"Luminaire UNIT price",{"$f":"-PMT(Inputs!$D$4,'CAPEX Annuity calcs'!$D257,E257)","v":17.136377331813542},{"$f":"-PMT(Inputs!$D$4,'CAPEX Annuity calcs'!$D257,F257)","v":17.136377331813542},{"$f":"-PMT(Inputs!$D$4,'CAPEX Annuity calcs'!$D257,G257)","v":17.136377331813542},{"$f":"-PMT(Inputs!$D$4,'CAPEX Annuity calcs'!$D257,H257)","v":17.136377331813542},{"$f":"-PMT(Inputs!$D$4,'CAPEX Annuity calcs'!$D257,I257)","v":17.136377331813542}]
[{"$f":"$A$13","v":"Labour Portion of CAPEX Instalation costs"},{"$f":"Inputs!$AA$68","v":"CAPEX Instalation costs"},"Luminaire (20yrs)",{"$f":"Inputs!$D$9","v":20},{"$f":"VLOOKUP($B254,Inputs!$C$68:$AN$129,MATCH($B258,Inputs!$C$68:$AN$68,0),FALSE)+(VLOOKUP($B254,Inputs!$C$68:$AN$129,MATCH($A258,Inputs!$C$68:$AN$68,0),FALSE)*('Master Data'!K$42))","v":421.74525866906089},{"$f":"VLOOKUP($B254,Inputs!$C$68:$AN$129,MATCH($B258,Inputs!$C$68:$AN$68,0),FALSE)+(VLOOKUP($B254,Inputs!$C$68:$AN$129,MATCH($A258,Inputs!$C$68:$AN$68,0),FALSE)*('Master Data'!L$42))","v":422.00090685669414},{"$f":"VLOOKUP($B254,Inputs!$C$68:$AN$129,MATCH($B258,Inputs!$C$68:$AN$68,0),FALSE)+(VLOOKUP($B254,Inputs!$C$68:$AN$129,MATCH($A258,Inputs!$C$68:$AN$68,0),FALSE)*('Master Data'!M$42))","v":422.39083147609711},{"$f":"VLOOKUP($B254,Inputs!$C$68:$AN$129,MATCH($B258,Inputs!$C$68:$AN$68,0),FALSE)+(VLOOKUP($B254,Inputs!$C$68:$AN$129,MATCH($A258,Inputs!$C$68:$AN$68,0),FALSE)*('Master Data'!N$42))","v":422.87155839865568},{"$f":"VLOOKUP($B254,Inputs!$C$68:$AN$129,MATCH($B258,Inputs!$C$68:$AN$68,0),FALSE)+(VLOOKUP($B254,Inputs!$C$68:$AN$129,MATCH($A258,Inputs!$C$68:$AN$68,0),FALSE)*('Master Data'!O$42))","v":423.43294682694113},null,null,null,null,null,null,null,"CAPEX Instalation costs",{"$f":"-PMT(Inputs!$D$4,'CAPEX Annuity calcs'!$D258,E258)","v":29.489604830309908},{"$f":"-PMT(Inputs!$D$4,'CAPEX Annuity calcs'!$D258,F258)","v":29.507480464650605},{"$f":"-PMT(Inputs!$D$4,'CAPEX Annuity calcs'!$D258,G258)","v":29.534745081628376},{"$f":"-PMT(Inputs!$D$4,'CAPEX Annuity calcs'!$D258,H258)","v":29.568358848911217},{"$f":"-PMT(Inputs!$D$4,'CAPEX Annuity calcs'!$D258,I258)","v":29.607612693657906}]
[]
[]
[{"$f":"A254+1","v":37},{"$f":"VLOOKUP($A261,Inputs!$B$68:$AN$129,MATCH($B$7,Inputs!$B$68:$AN$68,0),FALSE)","v":"400W Metal Halide"},{"$f":"VLOOKUP($A261,Inputs!$B$68:$AN$129,MATCH($C$7,Inputs!$B$68:$AN$68,0),FALSE)","v":"RLMAJ"},null,null,null,null,null,null,null,null,null,null,null,null,null,{"$f":"VLOOKUP($A261,Inputs!$B$68:$AN$129,MATCH($B$7,Inputs!$B$68:$AN$68,0),FALSE)","v":"400W Metal Halide"}]
[null,{"$f":"Inputs!$AK$68","v":"Bracket UNIT price"},null,{"$f":"Inputs!$D$10","v":40},{"$f":"VLOOKUP($B261,Inputs!$C$68:$AN$129,MATCH($B262,Inputs!$C$68:$AN$68,0),FALSE)","v":192.45518881950642},{"$f":"E262","v":192.45518881950642},{"$f":"F262","v":192.45518881950642},192.45518881950642,192.45518881950642,null,null,null,null,null,null,null,{"$f":"B262","v":"Bracket UNIT price"},{"$f":"-PMT(Inputs!$D$4,'CAPEX Annuity calcs'!$D262,E262)","v":8.9160003868670579},{"$f":"-PMT(Inputs!$D$4,'CAPEX Annuity calcs'!$D262,F262)","v":8.9160003868670579},{"$f":"-PMT(Inputs!$D$4,'CAPEX Annuity calcs'!$D262,G262)","v":8.9160003868670579},{"$f":"-PMT(Inputs!$D$4,'CAPEX Annuity calcs'!$D262,H262)","v":8.9160003868670579},{"$f":"-PMT(Inputs!$D$4,'CAPEX Annuity calcs'!$D262,I262)","v":8.9160003868670579}]
[null,{"$f":"Inputs!$AA$68","v":"CAPEX Instalation costs"},{"$f":"\"Bracket (\"&Inputs!$D$10&\"yrs)\"","v":"Bracket (40yrs)"},{"$f":"Inputs!$D$10","v":40},null,{"$f":"E263","v":0},0,0,0,null,null,null,null,null,null,null,{"$f":"B263","v":"CAPEX Instalation costs"},{"$f":"-PMT(Inputs!$D$4,'CAPEX Annuity calcs'!$D263,E263)","v":0},{"$f":"-PMT(Inputs!$D$4,'CAPEX Annuity calcs'!$D263,F263)","v":0},{"$f":"-PMT(Inputs!$D$4,'CAPEX Annuity calcs'!$D263,G263)","v":0},{"$f":"-PMT(Inputs!$D$4,'CAPEX Annuity calcs'!$D263,H263)","v":0},{"$f":"-PMT(Inputs!$D$4,'CAPEX Annuity calcs'!$D263,I263)","v":0}]
[null,{"$f":"Inputs!$Z$68","v":"Luminaire UNIT price"},null,{"$f":"Inputs!$D$9","v":20},{"$f":"VLOOKUP($B261,Inputs!$C$68:$AN$129,MATCH($B264,Inputs!$C$68:$AN$68,0),FALSE)","v":497.78229817542456},{"$f":"E264","v":497.78229817542456},{"$f":"F264","v":497.78229817542456},497.78229817542456,497.78229817542456,null,null,null,null,null,null,null,"Luminaire UNIT price",{"$f":"-PMT(Inputs!$D$4,'CAPEX Annuity calcs'!$D264,E264)","v":34.806326717321895},{"$f":"-PMT(Inputs!$D$4,'CAPEX Annuity calcs'!$D264,F264)","v":34.806326717321895},{"$f":"-PMT(Inputs!$D$4,'CAPEX Annuity calcs'!$D264,G264)","v":34.806326717321895},{"$f":"-PMT(Inputs!$D$4,'CAPEX Annuity calcs'!$D264,H264)","v":34.806326717321895},{"$f":"-PMT(Inputs!$D$4,'CAPEX Annuity calcs'!$D264,I264)","v":34.806326717321895}]
[{"$f":"$A$13","v":"Labour Portion of CAPEX Instalation costs"},{"$f":"Inputs!$AA$68","v":"CAPEX Instalation costs"},"Luminaire (20yrs)",{"$f":"Inputs!$D$9","v":20},{"$f":"VLOOKUP($B261,Inputs!$C$68:$AN$129,MATCH($B265,Inputs!$C$68:$AN$68,0),FALSE)+(VLOOKUP($B261,Inputs!$C$68:$AN$129,MATCH($A265,Inputs!$C$68:$AN$68,0),FALSE)*('Master Data'!K$42))","v":421.74525866906089},{"$f":"VLOOKUP($B261,Inputs!$C$68:$AN$129,MATCH($B265,Inputs!$C$68:$AN$68,0),FALSE)+(VLOOKUP($B261,Inputs!$C$68:$AN$129,MATCH($A265,Inputs!$C$68:$AN$68,0),FALSE)*('Master Data'!L$42))","v":422.00090685669414},{"$f":"VLOOKUP($B261,Inputs!$C$68:$AN$129,MATCH($B265,Inputs!$C$68:$AN$68,0),FALSE)+(VLOOKUP($B261,Inputs!$C$68:$AN$129,MATCH($A265,Inputs!$C$68:$AN$68,0),FALSE)*('Master Data'!M$42))","v":422.39083147609711},{"$f":"VLOOKUP($B261,Inputs!$C$68:$AN$129,MATCH($B265,Inputs!$C$68:$AN$68,0),FALSE)+(VLOOKUP($B261,Inputs!$C$68:$AN$129,MATCH($A265,Inputs!$C$68:$AN$68,0),FALSE)*('Master Data'!N$42))","v":422.87155839865568},{"$f":"VLOOKUP($B261,Inputs!$C$68:$AN$129,MATCH($B265,Inputs!$C$68:$AN$68,0),FALSE)+(VLOOKUP($B261,Inputs!$C$68:$AN$129,MATCH($A265,Inputs!$C$68:$AN$68,0),FALSE)*('Master Data'!O$42))","v":423.43294682694113},null,null,null,null,null,null,null,"CAPEX Instalation costs",{"$f":"-PMT(Inputs!$D$4,'CAPEX Annuity calcs'!$D265,E265)","v":29.489604830309908},{"$f":"-PMT(Inputs!$D$4,'CAPEX Annuity calcs'!$D265,F265)","v":29.507480464650605},{"$f":"-PMT(Inputs!$D$4,'CAPEX Annuity calcs'!$D265,G265)","v":29.534745081628376},{"$f":"-PMT(Inputs!$D$4,'CAPEX Annuity calcs'!$D265,H265)","v":29.568358848911217},{"$f":"-PMT(Inputs!$D$4,'CAPEX Annuity calcs'!$D265,I265)","v":29.607612693657906}]
[]
[]
[{"$f":"A261+1","v":38},{"$f":"VLOOKUP($A268,Inputs!$B$68:$AN$129,MATCH($B$7,Inputs!$B$68:$AN$68,0),FALSE)","v":"70W Metal Halide"},{"$f":"VLOOKUP($A268,Inputs!$B$68:$AN$129,MATCH($C$7,Inputs!$B$68:$AN$68,0),FALSE)","v":"RLMIN"},null,null,null,null,null,null,null,null,null,null,null,null,null,{"$f":"VLOOKUP($A268,Inputs!$B$68:$AN$129,MATCH($B$7,Inputs!$B$68:$AN$68,0),FALSE)","v":"70W Metal Halide"}]
[null,{"$f":"Inputs!$AK$68","v":"Bracket UNIT price"},null,{"$f":"Inputs!$D$10","v":40},{"$f":"VLOOKUP($B268,Inputs!$C$68:$AN$129,MATCH($B269,Inputs!$C$68:$AN$68,0),FALSE)","v":120.7732757406451},{"$f":"E269","v":120.7732757406451},{"$f":"F269","v":120.7732757406451},120.7732757406451,120.7732757406451,null,null,null,null,null,null,null,{"$f":"B269","v":"Bracket UNIT price"},{"$f":"-PMT(Inputs!$D$4,'CAPEX Annuity calcs'!$D269,E269)","v":5.5951444065074343},{"$f":"-PMT(Inputs!$D$4,'CAPEX Annuity calcs'!$D269,F269)","v":5.5951444065074343},{"$f":"-PMT(Inputs!$D$4,'CAPEX Annuity calcs'!$D269,G269)","v":5.5951444065074343},{"$f":"-PMT(Inputs!$D$4,'CAPEX Annuity calcs'!$D269,H269)","v":5.5951444065074343},{"$f":"-PMT(Inputs!$D$4,'CAPEX Annuity calcs'!$D269,I269)","v":5.5951444065074343}]
[null,{"$f":"Inputs!$AA$68","v":"CAPEX Instalation costs"},{"$f":"\"Bracket (\"&Inputs!$D$10&\"yrs)\"","v":"Bracket (40yrs)"},{"$f":"Inputs!$D$10","v":40},null,{"$f":"E270","v":0},0,0,0,null,null,null,null,null,null,null,{"$f":"B270","v":"CAPEX Instalation costs"},{"$f":"-PMT(Inputs!$D$4,'CAPEX Annuity calcs'!$D270,E270)","v":0},{"$f":"-PMT(Inputs!$D$4,'CAPEX Annuity calcs'!$D270,F270)","v":0},{"$f":"-PMT(Inputs!$D$4,'CAPEX Annuity calcs'!$D270,G270)","v":0},{"$f":"-PMT(Inputs!$D$4,'CAPEX Annuity calcs'!$D270,H270)","v":0},{"$f":"-PMT(Inputs!$D$4,'CAPEX Annuity calcs'!$D270,I270)","v":0}]
[null,{"$f":"Inputs!$Z$68","v":"Luminaire UNIT price"},null,{"$f":"Inputs!$D$9","v":20},{"$f":"VLOOKUP($B268,Inputs!$C$68:$AN$129,MATCH($B271,Inputs!$C$68:$AN$68,0),FALSE)","v":85.799932042648379},{"$f":"E271","v":85.799932042648379},{"$f":"F271","v":85.799932042648379},85.799932042648379,85.799932042648379,null,null,null,null,null,null,null,"Luminaire UNIT price",{"$f":"-PMT(Inputs!$D$4,'CAPEX Annuity calcs'!$D271,E271)","v":5.9993705640934598},{"$f":"-PMT(Inputs!$D$4,'CAPEX Annuity calcs'!$D271,F271)","v":5.9993705640934598},{"$f":"-PMT(Inputs!$D$4,'CAPEX Annuity calcs'!$D271,G271)","v":5.9993705640934598},{"$f":"-PMT(Inputs!$D$4,'CAPEX Annuity calcs'!$D271,H271)","v":5.9993705640934598},{"$f":"-PMT(Inputs!$D$4,'CAPEX Annuity calcs'!$D271,I271)","v":5.9993705640934598}]
[{"$f":"$A$13","v":"Labour Portion of CAPEX Instalation costs"},{"$f":"Inputs!$AA$68","v":"CAPEX Instalation costs"},"Luminaire (20yrs)",{"$f":"Inputs!$D$9","v":20},{"$f":"VLOOKUP($B268,Inputs!$C$68:$AN$129,MATCH($B272,Inputs!$C$68:$AN$68,0),FALSE)+(VLOOKUP($B268,Inputs!$C$68:$AN$129,MATCH($A272,Inputs!$C$68:$AN$68,0),FALSE)*('Master Data'!K$42))","v":267.95472429611652},{"$f":"VLOOKUP($B268,Inputs!$C$68:$AN$129,MATCH($B272,Inputs!$C$68:$AN$68,0),FALSE)+(VLOOKUP($B268,Inputs!$C$68:$AN$129,MATCH($A272,Inputs!$C$68:$AN$68,0),FALSE)*('Master Data'!L$42))","v":268.12133059681764},{"$f":"VLOOKUP($B268,Inputs!$C$68:$AN$129,MATCH($B272,Inputs!$C$68:$AN$68,0),FALSE)+(VLOOKUP($B268,Inputs!$C$68:$AN$129,MATCH($A272,Inputs!$C$68:$AN$68,0),FALSE)*('Master Data'!M$42))","v":268.37544504602391},{"$f":"VLOOKUP($B268,Inputs!$C$68:$AN$129,MATCH($B272,Inputs!$C$68:$AN$68,0),FALSE)+(VLOOKUP($B268,Inputs!$C$68:$AN$129,MATCH($A272,Inputs!$C$68:$AN$68,0),FALSE)*('Master Data'!N$42))","v":268.68873549003757},{"$f":"VLOOKUP($B268,Inputs!$C$68:$AN$129,MATCH($B272,Inputs!$C$68:$AN$68,0),FALSE)+(VLOOKUP($B268,Inputs!$C$68:$AN$129,MATCH($A272,Inputs!$C$68:$AN$68,0),FALSE)*('Master Data'!O$42))","v":269.05459315622693},null,null,null,null,null,null,null,"CAPEX Instalation costs",{"$f":"-PMT(Inputs!$D$4,'CAPEX Annuity calcs'!$D272,E272)","v":18.736141709912243},{"$f":"-PMT(Inputs!$D$4,'CAPEX Annuity calcs'!$D272,F272)","v":18.74779128716041},{"$f":"-PMT(Inputs!$D$4,'CAPEX Annuity calcs'!$D272,G272)","v":18.765559678232343},{"$f":"-PMT(Inputs!$D$4,'CAPEX Annuity calcs'!$D272,H272)","v":18.787465819916616},{"$f":"-PMT(Inputs!$D$4,'CAPEX Annuity calcs'!$D272,I272)","v":18.813047608397444}]
[]
[]
[{"$f":"A268+1","v":39},{"$f":"VLOOKUP($A275,Inputs!$B$68:$AN$129,MATCH($B$7,Inputs!$B$68:$AN$68,0),FALSE)","v":"250W Metal Halide - Flood Light"},{"$f":"VLOOKUP($A275,Inputs!$B$68:$AN$129,MATCH($C$7,Inputs!$B$68:$AN$68,0),FALSE)","v":"RLMAJ"},null,null,null,null,null,null,null,null,null,null,null,null,null,{"$f":"VLOOKUP($A275,Inputs!$B$68:$AN$129,MATCH($B$7,Inputs!$B$68:$AN$68,0),FALSE)","v":"250W Metal Halide - Flood Light"}]
[null,{"$f":"Inputs!$AK$68","v":"Bracket UNIT price"},null,{"$f":"Inputs!$D$10","v":40},{"$f":"VLOOKUP($B275,Inputs!$C$68:$AN$129,MATCH($B276,Inputs!$C$68:$AN$68,0),FALSE)","v":266.77935340982498},{"$f":"E276","v":266.77935340982498},{"$f":"F276","v":266.77935340982498},266.77935340982498,266.77935340982498,null,null,null,null,null,null,null,{"$f":"B276","v":"Bracket UNIT price"},{"$f":"-PMT(Inputs!$D$4,'CAPEX Annuity calcs'!$D276,E276)","v":12.359265722063284},{"$f":"-PMT(Inputs!$D$4,'CAPEX Annuity calcs'!$D276,F276)","v":12.359265722063284},{"$f":"-PMT(Inputs!$D$4,'CAPEX Annuity calcs'!$D276,G276)","v":12.359265722063284},{"$f":"-PMT(Inputs!$D$4,'CAPEX Annuity calcs'!$D276,H276)","v":12.359265722063284},{"$f":"-PMT(Inputs!$D$4,'CAPEX Annuity calcs'!$D276,I276)","v":12.359265722063284}]
[null,{"$f":"Inputs!$AA$68","v":"CAPEX Instalation costs"},{"$f":"\"Bracket (\"&Inputs!$D$10&\"yrs)\"","v":"Bracket (40yrs)"},{"$f":"Inputs!$D$10","v":40},null,{"$f":"E277","v":0},0,0,0,null,null,null,null,null,null,null,{"$f":"B277","v":"CAPEX Instalation costs"},{"$f":"-PMT(Inputs!$D$4,'CAPEX Annuity calcs'!$D277,E277)","v":0},{"$f":"-PMT(Inputs!$D$4,'CAPEX Annuity calcs'!$D277,F277)","v":0},{"$f":"-PMT(Inputs!$D$4,'CAPEX Annuity calcs'!$D277,G277)","v":0},{"$f":"-PMT(Inputs!$D$4,'CAPEX Annuity calcs'!$D277,H277)","v":0},{"$f":"-PMT(Inputs!$D$4,'CAPEX Annuity calcs'!$D277,I277)","v":0}]
[null,{"$f":"Inputs!$Z$68","v":"Luminaire UNIT price"},null,{"$f":"Inputs!$D$9","v":20},{"$f":"VLOOKUP($B275,Inputs!$C$68:$AN$129,MATCH($B278,Inputs!$C$68:$AN$68,0),FALSE)","v":497.78229817542456},{"$f":"E278","v":497.78229817542456},{"$f":"F278","v":497.78229817542456},497.78229817542456,497.78229817542456,null,null,null,null,null,null,null,"Luminaire UNIT price",{"$f":"-PMT(Inputs!$D$4,'CAPEX Annuity calcs'!$D278,E278)","v":34.806326717321895},{"$f":"-PMT(Inputs!$D$4,'CAPEX Annuity calcs'!$D278,F278)","v":34.806326717321895},{"$f":"-PMT(Inputs!$D$4,'CAPEX Annuity calcs'!$D278,G278)","v":34.806326717321895},{"$f":"-PMT(Inputs!$D$4,'CAPEX Annuity calcs'!$D278,H278)","v":34.806326717321895},{"$f":"-PMT(Inputs!$D$4,'CAPEX Annuity calcs'!$D278,I278)","v":34.806326717321895}]
[{"$f":"$A$13","v":"Labour Portion of CAPEX Instalation costs"},{"$f":"Inputs!$AA$68","v":"CAPEX Instalation costs"},"Luminaire (20yrs)",{"$f":"Inputs!$D$9","v":20},{"$f":"VLOOKUP($B275,Inputs!$C$68:$AN$129,MATCH($B279,Inputs!$C$68:$AN$68,0),FALSE)+(VLOOKUP($B275,Inputs!$C$68:$AN$129,MATCH($A279,Inputs!$C$68:$AN$68,0),FALSE)*('Master Data'!K$42))","v":421.74525866906089},{"$f":"VLOOKUP($B275,Inputs!$C$68:$AN$129,MATCH($B279,Inputs!$C$68:$AN$68,0),FALSE)+(VLOOKUP($B275,Inputs!$C$68:$AN$129,MATCH($A279,Inputs!$C$68:$AN$68,0),FALSE)*('Master Data'!L$42))","v":422.00090685669414},{"$f":"VLOOKUP($B275,Inputs!$C$68:$AN$129,MATCH($B279,Inputs!$C$68:$AN$68,0),FALSE)+(VLOOKUP($B275,Inputs!$C$68:$AN$129,MATCH($A279,Inputs!$C$68:$AN$68,0),FALSE)*('Master Data'!M$42))","v":422.39083147609711},{"$f":"VLOOKUP($B275,Inputs!$C$68:$AN$129,MATCH($B279,Inputs!$C$68:$AN$68,0),FALSE)+(VLOOKUP($B275,Inputs!$C$68:$AN$129,MATCH($A279,Inputs!$C$68:$AN$68,0),FALSE)*('Master Data'!N$42))","v":422.87155839865568},{"$f":"VLOOKUP($B275,Inputs!$C$68:$AN$129,MATCH($B279,Inputs!$C$68:$AN$68,0),FALSE)+(VLOOKUP($B275,Inputs!$C$68:$AN$129,MATCH($A279,Inputs!$C$68:$AN$68,0),FALSE)*('Master Data'!O$42))","v":423.43294682694113},null,null,null,null,null,null,null,"CAPEX Instalation costs",{"$f":"-PMT(Inputs!$D$4,'CAPEX Annuity calcs'!$D279,E279)","v":29.489604830309908},{"$f":"-PMT(Inputs!$D$4,'CAPEX Annuity calcs'!$D279,F279)","v":29.507480464650605},{"$f":"-PMT(Inputs!$D$4,'CAPEX Annuity calcs'!$D279,G279)","v":29.534745081628376},{"$f":"-PMT(Inputs!$D$4,'CAPEX Annuity calcs'!$D279,H279)","v":29.568358848911217},{"$f":"-PMT(Inputs!$D$4,'CAPEX Annuity calcs'!$D279,I279)","v":29.607612693657906}]
[]
[]
[{"$f":"A275+1","v":40},{"$f":"VLOOKUP($A282,Inputs!$B$68:$AN$129,MATCH($B$7,Inputs!$B$68:$AN$68,0),FALSE)","v":"400W Metal Halide - Flood Light"},{"$f":"VLOOKUP($A282,Inputs!$B$68:$AN$129,MATCH($C$7,Inputs!$B$68:$AN$68,0),FALSE)","v":"RLMAJ"},null,null,null,null,null,null,null,null,null,null,null,null,null,{"$f":"VLOOKUP($A282,Inputs!$B$68:$AN$129,MATCH($B$7,Inputs!$B$68:$AN$68,0),FALSE)","v":"400W Metal Halide - Flood Light"}]
[null,{"$f":"Inputs!$AK$68","v":"Bracket UNIT price"},null,{"$f":"Inputs!$D$10","v":40},{"$f":"VLOOKUP($B282,Inputs!$C$68:$AN$129,MATCH($B283,Inputs!$C$68:$AN$68,0),FALSE)","v":192.45518881950642},{"$f":"E283","v":192.45518881950642},{"$f":"F283","v":192.45518881950642},192.45518881950642,192.45518881950642,null,null,null,null,null,null,null,{"$f":"B283","v":"Bracket UNIT price"},{"$f":"-PMT(Inputs!$D$4,'CAPEX Annuity calcs'!$D283,E283)","v":8.9160003868670579},{"$f":"-PMT(Inputs!$D$4,'CAPEX Annuity calcs'!$D283,F283)","v":8.9160003868670579},{"$f":"-PMT(Inputs!$D$4,'CAPEX Annuity calcs'!$D283,G283)","v":8.9160003868670579},{"$f":"-PMT(Inputs!$D$4,'CAPEX Annuity calcs'!$D283,H283)","v":8.9160003868670579},{"$f":"-PMT(Inputs!$D$4,'CAPEX Annuity calcs'!$D283,I283)","v":8.9160003868670579}]
[null,{"$f":"Inputs!$AA$68","v":"CAPEX Instalation costs"},{"$f":"\"Bracket (\"&Inputs!$D$10&\"yrs)\"","v":"Bracket (40yrs)"},{"$f":"Inputs!$D$10","v":40},null,{"$f":"E284","v":0},0,0,0,null,null,null,null,null,null,null,{"$f":"B284","v":"CAPEX Instalation costs"},{"$f":"-PMT(Inputs!$D$4,'CAPEX Annuity calcs'!$D284,E284)","v":0},{"$f":"-PMT(Inputs!$D$4,'CAPEX Annuity calcs'!$D284,F284)","v":0},{"$f":"-PMT(Inputs!$D$4,'CAPEX Annuity calcs'!$D284,G284)","v":0},{"$f":"-PMT(Inputs!$D$4,'CAPEX Annuity calcs'!$D284,H284)","v":0},{"$f":"-PMT(Inputs!$D$4,'CAPEX Annuity calcs'!$D284,I284)","v":0}]
[null,{"$f":"Inputs!$Z$68","v":"Luminaire UNIT price"},null,{"$f":"Inputs!$D$9","v":20},{"$f":"VLOOKUP($B282,Inputs!$C$68:$AN$129,MATCH($B285,Inputs!$C$68:$AN$68,0),FALSE)","v":497.78229817542456},{"$f":"E285","v":497.78229817542456},{"$f":"F285","v":497.78229817542456},497.78229817542456,497.78229817542456,null,null,null,null,null,null,null,"Luminaire UNIT price",{"$f":"-PMT(Inputs!$D$4,'CAPEX Annuity calcs'!$D285,E285)","v":34.806326717321895},{"$f":"-PMT(Inputs!$D$4,'CAPEX Annuity calcs'!$D285,F285)","v":34.806326717321895},{"$f":"-PMT(Inputs!$D$4,'CAPEX Annuity calcs'!$D285,G285)","v":34.806326717321895},{"$f":"-PMT(Inputs!$D$4,'CAPEX Annuity calcs'!$D285,H285)","v":34.806326717321895},{"$f":"-PMT(Inputs!$D$4,'CAPEX Annuity calcs'!$D285,I285)","v":34.806326717321895}]
[{"$f":"$A$13","v":"Labour Portion of CAPEX Instalation costs"},{"$f":"Inputs!$AA$68","v":"CAPEX Instalation costs"},"Luminaire (20yrs)",{"$f":"Inputs!$D$9","v":20},{"$f":"VLOOKUP($B282,Inputs!$C$68:$AN$129,MATCH($B286,Inputs!$C$68:$AN$68,0),FALSE)+(VLOOKUP($B282,Inputs!$C$68:$AN$129,MATCH($A286,Inputs!$C$68:$AN$68,0),FALSE)*('Master Data'!K$42))","v":421.74525866906089},{"$f":"VLOOKUP($B282,Inputs!$C$68:$AN$129,MATCH($B286,Inputs!$C$68:$AN$68,0),FALSE)+(VLOOKUP($B282,Inputs!$C$68:$AN$129,MATCH($A286,Inputs!$C$68:$AN$68,0),FALSE)*('Master Data'!L$42))","v":422.00090685669414},{"$f":"VLOOKUP($B282,Inputs!$C$68:$AN$129,MATCH($B286,Inputs!$C$68:$AN$68,0),FALSE)+(VLOOKUP($B282,Inputs!$C$68:$AN$129,MATCH($A286,Inputs!$C$68:$AN$68,0),FALSE)*('Master Data'!M$42))","v":422.39083147609711},{"$f":"VLOOKUP($B282,Inputs!$C$68:$AN$129,MATCH($B286,Inputs!$C$68:$AN$68,0),FALSE)+(VLOOKUP($B282,Inputs!$C$68:$AN$129,MATCH($A286,Inputs!$C$68:$AN$68,0),FALSE)*('Master Data'!N$42))","v":422.87155839865568},{"$f":"VLOOKUP($B282,Inputs!$C$68:$AN$129,MATCH($B286,Inputs!$C$68:$AN$68,0),FALSE)+(VLOOKUP($B282,Inputs!$C$68:$AN$129,MATCH($A286,Inputs!$C$68:$AN$68,0),FALSE)*('Master Data'!O$42))","v":423.43294682694113},null,null,null,null,null,null,null,"CAPEX Instalation costs",{"$f":"-PMT(Inputs!$D$4,'CAPEX Annuity calcs'!$D286,E286)","v":29.489604830309908},{"$f":"-PMT(Inputs!$D$4,'CAPEX Annuity calcs'!$D286,F286)","v":29.507480464650605},{"$f":"-PMT(Inputs!$D$4,'CAPEX Annuity calcs'!$D286,G286)","v":29.534745081628376},{"$f":"-PMT(Inputs!$D$4,'CAPEX Annuity calcs'!$D286,H286)","v":29.568358848911217},{"$f":"-PMT(Inputs!$D$4,'CAPEX Annuity calcs'!$D286,I286)","v":29.607612693657906}]
[]
[]
[{"$f":"A282+1","v":41},{"$f":"VLOOKUP($A289,Inputs!$B$68:$AN$129,MATCH($B$7,Inputs!$B$68:$AN$68,0),FALSE)","v":"125W Mercury Vapour"},{"$f":"VLOOKUP($A289,Inputs!$B$68:$AN$129,MATCH($C$7,Inputs!$B$68:$AN$68,0),FALSE)","v":"RLMAJ"},null,null,null,null,null,null,null,null,null,null,null,null,null,{"$f":"VLOOKUP($A289,Inputs!$B$68:$AN$129,MATCH($B$7,Inputs!$B$68:$AN$68,0),FALSE)","v":"125W Mercury Vapour"}]
[null,{"$f":"Inputs!$AK$68","v":"Bracket UNIT price"},null,{"$f":"Inputs!$D$10","v":40},{"$f":"VLOOKUP($B289,Inputs!$C$68:$AN$129,MATCH($B290,Inputs!$C$68:$AN$68,0),FALSE)","v":216.85866656323935},{"$f":"E290","v":216.85866656323935},{"$f":"F290","v":216.85866656323935},216.85866656323935,216.85866656323935,null,null,null,null,null,null,null,{"$f":"B290","v":"Bracket UNIT price"},{"$f":"-PMT(Inputs!$D$4,'CAPEX Annuity calcs'!$D290,E290)","v":10.046556639149154},{"$f":"-PMT(Inputs!$D$4,'CAPEX Annuity calcs'!$D290,F290)","v":10.046556639149154},{"$f":"-PMT(Inputs!$D$4,'CAPEX Annuity calcs'!$D290,G290)","v":10.046556639149154},{"$f":"-PMT(Inputs!$D$4,'CAPEX Annuity calcs'!$D290,H290)","v":10.046556639149154},{"$f":"-PMT(Inputs!$D$4,'CAPEX Annuity calcs'!$D290,I290)","v":10.046556639149154}]
[null,{"$f":"Inputs!$AA$68","v":"CAPEX Instalation costs"},{"$f":"\"Bracket (\"&Inputs!$D$10&\"yrs)\"","v":"Bracket (40yrs)"},{"$f":"Inputs!$D$10","v":40},null,{"$f":"E291","v":0},0,0,0,null,null,null,null,null,null,null,{"$f":"B291","v":"CAPEX Instalation costs"},{"$f":"-PMT(Inputs!$D$4,'CAPEX Annuity calcs'!$D291,E291)","v":0},{"$f":"-PMT(Inputs!$D$4,'CAPEX Annuity calcs'!$D291,F291)","v":0},{"$f":"-PMT(Inputs!$D$4,'CAPEX Annuity calcs'!$D291,G291)","v":0},{"$f":"-PMT(Inputs!$D$4,'CAPEX Annuity calcs'!$D291,H291)","v":0},{"$f":"-PMT(Inputs!$D$4,'CAPEX Annuity calcs'!$D291,I291)","v":0}]
[null,{"$f":"Inputs!$Z$68","v":"Luminaire UNIT price"},null,{"$f":"Inputs!$D$9","v":20},{"$f":"VLOOKUP($B289,Inputs!$C$68:$AN$129,MATCH($B292,Inputs!$C$68:$AN$68,0),FALSE)","v":143.07673082468855},{"$f":"E292","v":143.07673082468855},{"$f":"F292","v":143.07673082468855},143.07673082468855,143.07673082468855,null,null,null,null,null,null,null,"Luminaire UNIT price",{"$f":"-PMT(Inputs!$D$4,'CAPEX Annuity calcs'!$D292,E292)","v":10.004324093050466},{"$f":"-PMT(Inputs!$D$4,'CAPEX Annuity calcs'!$D292,F292)","v":10.004324093050466},{"$f":"-PMT(Inputs!$D$4,'CAPEX Annuity calcs'!$D292,G292)","v":10.004324093050466},{"$f":"-PMT(Inputs!$D$4,'CAPEX Annuity calcs'!$D292,H292)","v":10.004324093050466},{"$f":"-PMT(Inputs!$D$4,'CAPEX Annuity calcs'!$D292,I292)","v":10.004324093050466}]
[{"$f":"$A$13","v":"Labour Portion of CAPEX Instalation costs"},{"$f":"Inputs!$AA$68","v":"CAPEX Instalation costs"},"Luminaire (20yrs)",{"$f":"Inputs!$D$9","v":20},{"$f":"VLOOKUP($B289,Inputs!$C$68:$AN$129,MATCH($B293,Inputs!$C$68:$AN$68,0),FALSE)+(VLOOKUP($B289,Inputs!$C$68:$AN$129,MATCH($A293,Inputs!$C$68:$AN$68,0),FALSE)*('Master Data'!K$42))","v":421.74525866906089},{"$f":"VLOOKUP($B289,Inputs!$C$68:$AN$129,MATCH($B293,Inputs!$C$68:$AN$68,0),FALSE)+(VLOOKUP($B289,Inputs!$C$68:$AN$129,MATCH($A293,Inputs!$C$68:$AN$68,0),FALSE)*('Master Data'!L$42))","v":422.00090685669414},{"$f":"VLOOKUP($B289,Inputs!$C$68:$AN$129,MATCH($B293,Inputs!$C$68:$AN$68,0),FALSE)+(VLOOKUP($B289,Inputs!$C$68:$AN$129,MATCH($A293,Inputs!$C$68:$AN$68,0),FALSE)*('Master Data'!M$42))","v":422.39083147609711},{"$f":"VLOOKUP($B289,Inputs!$C$68:$AN$129,MATCH($B293,Inputs!$C$68:$AN$68,0),FALSE)+(VLOOKUP($B289,Inputs!$C$68:$AN$129,MATCH($A293,Inputs!$C$68:$AN$68,0),FALSE)*('Master Data'!N$42))","v":422.87155839865568},{"$f":"VLOOKUP($B289,Inputs!$C$68:$AN$129,MATCH($B293,Inputs!$C$68:$AN$68,0),FALSE)+(VLOOKUP($B289,Inputs!$C$68:$AN$129,MATCH($A293,Inputs!$C$68:$AN$68,0),FALSE)*('Master Data'!O$42))","v":423.43294682694113},null,null,null,null,null,null,null,"CAPEX Instalation costs",{"$f":"-PMT(Inputs!$D$4,'CAPEX Annuity calcs'!$D293,E293)","v":29.489604830309908},{"$f":"-PMT(Inputs!$D$4,'CAPEX Annuity calcs'!$D293,F293)","v":29.507480464650605},{"$f":"-PMT(Inputs!$D$4,'CAPEX Annuity calcs'!$D293,G293)","v":29.534745081628376},{"$f":"-PMT(Inputs!$D$4,'CAPEX Annuity calcs'!$D293,H293)","v":29.568358848911217},{"$f":"-PMT(Inputs!$D$4,'CAPEX Annuity calcs'!$D293,I293)","v":29.607612693657906}]
[]
[]
[{"$f":"A289+1","v":42},{"$f":"VLOOKUP($A296,Inputs!$B$68:$AN$129,MATCH($B$7,Inputs!$B$68:$AN$68,0),FALSE)","v":"250W Mercury Vapour"},{"$f":"VLOOKUP($A296,Inputs!$B$68:$AN$129,MATCH($C$7,Inputs!$B$68:$AN$68,0),FALSE)","v":"RLMAJ"},null,null,null,null,null,null,null,null,null,null,null,null,null,{"$f":"VLOOKUP($A296,Inputs!$B$68:$AN$129,MATCH($B$7,Inputs!$B$68:$AN$68,0),FALSE)","v":"250W Mercury Vapour"}]
[null,{"$f":"Inputs!$AK$68","v":"Bracket UNIT price"},null,{"$f":"Inputs!$D$10","v":40},{"$f":"VLOOKUP($B296,Inputs!$C$68:$AN$129,MATCH($B297,Inputs!$C$68:$AN$68,0),FALSE)","v":216.85866656323935},{"$f":"E297","v":216.85866656323935},{"$f":"F297","v":216.85866656323935},216.85866656323935,216.85866656323935,null,null,null,null,null,null,null,{"$f":"B297","v":"Bracket UNIT price"},{"$f":"-PMT(Inputs!$D$4,'CAPEX Annuity calcs'!$D297,E297)","v":10.046556639149154},{"$f":"-PMT(Inputs!$D$4,'CAPEX Annuity calcs'!$D297,F297)","v":10.046556639149154},{"$f":"-PMT(Inputs!$D$4,'CAPEX Annuity calcs'!$D297,G297)","v":10.046556639149154},{"$f":"-PMT(Inputs!$D$4,'CAPEX Annuity calcs'!$D297,H297)","v":10.046556639149154},{"$f":"-PMT(Inputs!$D$4,'CAPEX Annuity calcs'!$D297,I297)","v":10.046556639149154}]
[null,{"$f":"Inputs!$AA$68","v":"CAPEX Instalation costs"},{"$f":"\"Bracket (\"&Inputs!$D$10&\"yrs)\"","v":"Bracket (40yrs)"},{"$f":"Inputs!$D$10","v":40},null,{"$f":"E298","v":0},0,0,0,null,null,null,null,null,null,null,{"$f":"B298","v":"CAPEX Instalation costs"},{"$f":"-PMT(Inputs!$D$4,'CAPEX Annuity calcs'!$D298,E298)","v":0},{"$f":"-PMT(Inputs!$D$4,'CAPEX Annuity calcs'!$D298,F298)","v":0},{"$f":"-PMT(Inputs!$D$4,'CAPEX Annuity calcs'!$D298,G298)","v":0},{"$f":"-PMT(Inputs!$D$4,'CAPEX Annuity calcs'!$D298,H298)","v":0},{"$f":"-PMT(Inputs!$D$4,'CAPEX Annuity calcs'!$D298,I298)","v":0}]
[null,{"$f":"Inputs!$Z$68","v":"Luminaire UNIT price"},null,{"$f":"Inputs!$D$9","v":20},{"$f":"VLOOKUP($B296,Inputs!$C$68:$AN$129,MATCH($B299,Inputs!$C$68:$AN$68,0),FALSE)","v":165.26234615181278},{"$f":"E299","v":165.26234615181278},{"$f":"F299","v":165.26234615181278},165.26234615181278,165.26234615181278,null,null,null,null,null,null,null,"Luminaire UNIT price",{"$f":"-PMT(Inputs!$D$4,'CAPEX Annuity calcs'!$D299,E299)","v":11.555604197487963},{"$f":"-PMT(Inputs!$D$4,'CAPEX Annuity calcs'!$D299,F299)","v":11.555604197487963},{"$f":"-PMT(Inputs!$D$4,'CAPEX Annuity calcs'!$D299,G299)","v":11.555604197487963},{"$f":"-PMT(Inputs!$D$4,'CAPEX Annuity calcs'!$D299,H299)","v":11.555604197487963},{"$f":"-PMT(Inputs!$D$4,'CAPEX Annuity calcs'!$D299,I299)","v":11.555604197487963}]
[{"$f":"$A$13","v":"Labour Portion of CAPEX Instalation costs"},{"$f":"Inputs!$AA$68","v":"CAPEX Instalation costs"},"Luminaire (20yrs)",{"$f":"Inputs!$D$9","v":20},{"$f":"VLOOKUP($B296,Inputs!$C$68:$AN$129,MATCH($B300,Inputs!$C$68:$AN$68,0),FALSE)+(VLOOKUP($B296,Inputs!$C$68:$AN$129,MATCH($A300,Inputs!$C$68:$AN$68,0),FALSE)*('Master Data'!K$42))","v":421.74525866906089},{"$f":"VLOOKUP($B296,Inputs!$C$68:$AN$129,MATCH($B300,Inputs!$C$68:$AN$68,0),FALSE)+(VLOOKUP($B296,Inputs!$C$68:$AN$129,MATCH($A300,Inputs!$C$68:$AN$68,0),FALSE)*('Master Data'!L$42))","v":422.00090685669414},{"$f":"VLOOKUP($B296,Inputs!$C$68:$AN$129,MATCH($B300,Inputs!$C$68:$AN$68,0),FALSE)+(VLOOKUP($B296,Inputs!$C$68:$AN$129,MATCH($A300,Inputs!$C$68:$AN$68,0),FALSE)*('Master Data'!M$42))","v":422.39083147609711},{"$f":"VLOOKUP($B296,Inputs!$C$68:$AN$129,MATCH($B300,Inputs!$C$68:$AN$68,0),FALSE)+(VLOOKUP($B296,Inputs!$C$68:$AN$129,MATCH($A300,Inputs!$C$68:$AN$68,0),FALSE)*('Master Data'!N$42))","v":422.87155839865568},{"$f":"VLOOKUP($B296,Inputs!$C$68:$AN$129,MATCH($B300,Inputs!$C$68:$AN$68,0),FALSE)+(VLOOKUP($B296,Inputs!$C$68:$AN$129,MATCH($A300,Inputs!$C$68:$AN$68,0),FALSE)*('Master Data'!O$42))","v":423.43294682694113},null,null,null,null,null,null,null,"CAPEX Instalation costs",{"$f":"-PMT(Inputs!$D$4,'CAPEX Annuity calcs'!$D300,E300)","v":29.489604830309908},{"$f":"-PMT(Inputs!$D$4,'CAPEX Annuity calcs'!$D300,F300)","v":29.507480464650605},{"$f":"-PMT(Inputs!$D$4,'CAPEX Annuity calcs'!$D300,G300)","v":29.534745081628376},{"$f":"-PMT(Inputs!$D$4,'CAPEX Annuity calcs'!$D300,H300)","v":29.568358848911217},{"$f":"-PMT(Inputs!$D$4,'CAPEX Annuity calcs'!$D300,I300)","v":29.607612693657906}]
[]
[]
[{"$f":"A296+1","v":43},{"$f":"VLOOKUP($A303,Inputs!$B$68:$AN$129,MATCH($B$7,Inputs!$B$68:$AN$68,0),FALSE)","v":"400W Mercury Vapour"},{"$f":"VLOOKUP($A303,Inputs!$B$68:$AN$129,MATCH($C$7,Inputs!$B$68:$AN$68,0),FALSE)","v":"RLMAJ"},null,null,null,null,null,null,null,null,null,null,null,null,null,{"$f":"VLOOKUP($A303,Inputs!$B$68:$AN$129,MATCH($B$7,Inputs!$B$68:$AN$68,0),FALSE)","v":"400W Mercury Vapour"}]
[null,{"$f":"Inputs!$AK$68","v":"Bracket UNIT price"},null,{"$f":"Inputs!$D$10","v":40},{"$f":"VLOOKUP($B303,Inputs!$C$68:$AN$129,MATCH($B304,Inputs!$C$68:$AN$68,0),FALSE)","v":197.8300605371557},{"$f":"E304","v":197.8300605371557},{"$f":"F304","v":197.8300605371557},197.8300605371557,197.8300605371557,null,null,null,null,null,null,null,{"$f":"B304","v":"Bracket UNIT price"},{"$f":"-PMT(Inputs!$D$4,'CAPEX Annuity calcs'!$D304,E304)","v":9.1650056675657527},{"$f":"-PMT(Inputs!$D$4,'CAPEX Annuity calcs'!$D304,F304)","v":9.1650056675657527},{"$f":"-PMT(Inputs!$D$4,'CAPEX Annuity calcs'!$D304,G304)","v":9.1650056675657527},{"$f":"-PMT(Inputs!$D$4,'CAPEX Annuity calcs'!$D304,H304)","v":9.1650056675657527},{"$f":"-PMT(Inputs!$D$4,'CAPEX Annuity calcs'!$D304,I304)","v":9.1650056675657527}]
[null,{"$f":"Inputs!$AA$68","v":"CAPEX Instalation costs"},{"$f":"\"Bracket (\"&Inputs!$D$10&\"yrs)\"","v":"Bracket (40yrs)"},{"$f":"Inputs!$D$10","v":40},null,{"$f":"E305","v":0},0,0,0,null,null,null,null,null,null,null,{"$f":"B305","v":"CAPEX Instalation costs"},{"$f":"-PMT(Inputs!$D$4,'CAPEX Annuity calcs'!$D305,E305)","v":0},{"$f":"-PMT(Inputs!$D$4,'CAPEX Annuity calcs'!$D305,F305)","v":0},{"$f":"-PMT(Inputs!$D$4,'CAPEX Annuity calcs'!$D305,G305)","v":0},{"$f":"-PMT(Inputs!$D$4,'CAPEX Annuity calcs'!$D305,H305)","v":0},{"$f":"-PMT(Inputs!$D$4,'CAPEX Annuity calcs'!$D305,I305)","v":0}]
[null,{"$f":"Inputs!$Z$68","v":"Luminaire UNIT price"},null,{"$f":"Inputs!$D$9","v":20},{"$f":"VLOOKUP($B303,Inputs!$C$68:$AN$129,MATCH($B306,Inputs!$C$68:$AN$68,0),FALSE)","v":247.9693577012184},{"$f":"E306","v":247.9693577012184},{"$f":"F306","v":247.9693577012184},247.9693577012184,247.9693577012184,null,null,null,null,null,null,null,"Luminaire UNIT price",{"$f":"-PMT(Inputs!$D$4,'CAPEX Annuity calcs'!$D306,E306)","v":17.338709133829891},{"$f":"-PMT(Inputs!$D$4,'CAPEX Annuity calcs'!$D306,F306)","v":17.338709133829891},{"$f":"-PMT(Inputs!$D$4,'CAPEX Annuity calcs'!$D306,G306)","v":17.338709133829891},{"$f":"-PMT(Inputs!$D$4,'CAPEX Annuity calcs'!$D306,H306)","v":17.338709133829891},{"$f":"-PMT(Inputs!$D$4,'CAPEX Annuity calcs'!$D306,I306)","v":17.338709133829891}]
[{"$f":"$A$13","v":"Labour Portion of CAPEX Instalation costs"},{"$f":"Inputs!$AA$68","v":"CAPEX Instalation costs"},"Luminaire (20yrs)",{"$f":"Inputs!$D$9","v":20},{"$f":"VLOOKUP($B303,Inputs!$C$68:$AN$129,MATCH($B307,Inputs!$C$68:$AN$68,0),FALSE)+(VLOOKUP($B303,Inputs!$C$68:$AN$129,MATCH($A307,Inputs!$C$68:$AN$68,0),FALSE)*('Master Data'!K$42))","v":421.74525866906089},{"$f":"VLOOKUP($B303,Inputs!$C$68:$AN$129,MATCH($B307,Inputs!$C$68:$AN$68,0),FALSE)+(VLOOKUP($B303,Inputs!$C$68:$AN$129,MATCH($A307,Inputs!$C$68:$AN$68,0),FALSE)*('Master Data'!L$42))","v":422.00090685669414},{"$f":"VLOOKUP($B303,Inputs!$C$68:$AN$129,MATCH($B307,Inputs!$C$68:$AN$68,0),FALSE)+(VLOOKUP($B303,Inputs!$C$68:$AN$129,MATCH($A307,Inputs!$C$68:$AN$68,0),FALSE)*('Master Data'!M$42))","v":422.39083147609711},{"$f":"VLOOKUP($B303,Inputs!$C$68:$AN$129,MATCH($B307,Inputs!$C$68:$AN$68,0),FALSE)+(VLOOKUP($B303,Inputs!$C$68:$AN$129,MATCH($A307,Inputs!$C$68:$AN$68,0),FALSE)*('Master Data'!N$42))","v":422.87155839865568},{"$f":"VLOOKUP($B303,Inputs!$C$68:$AN$129,MATCH($B307,Inputs!$C$68:$AN$68,0),FALSE)+(VLOOKUP($B303,Inputs!$C$68:$AN$129,MATCH($A307,Inputs!$C$68:$AN$68,0),FALSE)*('Master Data'!O$42))","v":423.43294682694113},null,null,null,null,null,null,null,"CAPEX Instalation costs",{"$f":"-PMT(Inputs!$D$4,'CAPEX Annuity calcs'!$D307,E307)","v":29.489604830309908},{"$f":"-PMT(Inputs!$D$4,'CAPEX Annuity calcs'!$D307,F307)","v":29.507480464650605},{"$f":"-PMT(Inputs!$D$4,'CAPEX Annuity calcs'!$D307,G307)","v":29.534745081628376},{"$f":"-PMT(Inputs!$D$4,'CAPEX Annuity calcs'!$D307,H307)","v":29.568358848911217},{"$f":"-PMT(Inputs!$D$4,'CAPEX Annuity calcs'!$D307,I307)","v":29.607612693657906}]
[]
[]
[{"$f":"A303+1","v":44},{"$f":"VLOOKUP($A310,Inputs!$B$68:$AN$129,MATCH($B$7,Inputs!$B$68:$AN$68,0),FALSE)","v":"50W Mercury Vapour"},{"$f":"VLOOKUP($A310,Inputs!$B$68:$AN$129,MATCH($C$7,Inputs!$B$68:$AN$68,0),FALSE)","v":"RLMIN"},null,null,null,null,null,null,null,null,null,null,null,null,null,{"$f":"VLOOKUP($A310,Inputs!$B$68:$AN$129,MATCH($B$7,Inputs!$B$68:$AN$68,0),FALSE)","v":"50W Mercury Vapour"}]
[null,{"$f":"Inputs!$AK$68","v":"Bracket UNIT price"},null,{"$f":"Inputs!$D$10","v":40},{"$f":"VLOOKUP($B310,Inputs!$C$68:$AN$129,MATCH($B311,Inputs!$C$68:$AN$68,0),FALSE)","v":72.970104296491868},{"$f":"E311","v":72.970104296491868},{"$f":"F311","v":72.970104296491868},72.970104296491868,72.970104296491868,null,null,null,null,null,null,null,{"$f":"B311","v":"Bracket UNIT price"},{"$f":"-PMT(Inputs!$D$4,'CAPEX Annuity calcs'!$D311,E311)","v":3.380534877380811},{"$f":"-PMT(Inputs!$D$4,'CAPEX Annuity calcs'!$D311,F311)","v":3.380534877380811},{"$f":"-PMT(Inputs!$D$4,'CAPEX Annuity calcs'!$D311,G311)","v":3.380534877380811},{"$f":"-PMT(Inputs!$D$4,'CAPEX Annuity calcs'!$D311,H311)","v":3.380534877380811},{"$f":"-PMT(Inputs!$D$4,'CAPEX Annuity calcs'!$D311,I311)","v":3.380534877380811}]
[null,{"$f":"Inputs!$AA$68","v":"CAPEX Instalation costs"},{"$f":"\"Bracket (\"&Inputs!$D$10&\"yrs)\"","v":"Bracket (40yrs)"},{"$f":"Inputs!$D$10","v":40},null,{"$f":"E312","v":0},0,0,0,null,null,null,null,null,null,null,{"$f":"B312","v":"CAPEX Instalation costs"},{"$f":"-PMT(Inputs!$D$4,'CAPEX Annuity calcs'!$D312,E312)","v":0},{"$f":"-PMT(Inputs!$D$4,'CAPEX Annuity calcs'!$D312,F312)","v":0},{"$f":"-PMT(Inputs!$D$4,'CAPEX Annuity calcs'!$D312,G312)","v":0},{"$f":"-PMT(Inputs!$D$4,'CAPEX Annuity calcs'!$D312,H312)","v":0},{"$f":"-PMT(Inputs!$D$4,'CAPEX Annuity calcs'!$D312,I312)","v":0}]
[null,{"$f":"Inputs!$Z$68","v":"Luminaire UNIT price"},null,{"$f":"Inputs!$D$9","v":20},{"$f":"VLOOKUP($B310,Inputs!$C$68:$AN$129,MATCH($B313,Inputs!$C$68:$AN$68,0),FALSE)","v":86.311661259602545},{"$f":"E313","v":86.311661259602545},{"$f":"F313","v":86.311661259602545},86.311661259602545,86.311661259602545,null,null,null,null,null,null,null,"Luminaire UNIT price",{"$f":"-PMT(Inputs!$D$4,'CAPEX Annuity calcs'!$D313,E313)","v":6.0351520982729436},{"$f":"-PMT(Inputs!$D$4,'CAPEX Annuity calcs'!$D313,F313)","v":6.0351520982729436},{"$f":"-PMT(Inputs!$D$4,'CAPEX Annuity calcs'!$D313,G313)","v":6.0351520982729436},{"$f":"-PMT(Inputs!$D$4,'CAPEX Annuity calcs'!$D313,H313)","v":6.0351520982729436},{"$f":"-PMT(Inputs!$D$4,'CAPEX Annuity calcs'!$D313,I313)","v":6.0351520982729436}]
[{"$f":"$A$13","v":"Labour Portion of CAPEX Instalation costs"},{"$f":"Inputs!$AA$68","v":"CAPEX Instalation costs"},"Luminaire (20yrs)",{"$f":"Inputs!$D$9","v":20},{"$f":"VLOOKUP($B310,Inputs!$C$68:$AN$129,MATCH($B314,Inputs!$C$68:$AN$68,0),FALSE)+(VLOOKUP($B310,Inputs!$C$68:$AN$129,MATCH($A314,Inputs!$C$68:$AN$68,0),FALSE)*('Master Data'!K$42))","v":267.95472429611652},{"$f":"VLOOKUP($B310,Inputs!$C$68:$AN$129,MATCH($B314,Inputs!$C$68:$AN$68,0),FALSE)+(VLOOKUP($B310,Inputs!$C$68:$AN$129,MATCH($A314,Inputs!$C$68:$AN$68,0),FALSE)*('Master Data'!L$42))","v":268.12133059681764},{"$f":"VLOOKUP($B310,Inputs!$C$68:$AN$129,MATCH($B314,Inputs!$C$68:$AN$68,0),FALSE)+(VLOOKUP($B310,Inputs!$C$68:$AN$129,MATCH($A314,Inputs!$C$68:$AN$68,0),FALSE)*('Master Data'!M$42))","v":268.37544504602391},{"$f":"VLOOKUP($B310,Inputs!$C$68:$AN$129,MATCH($B314,Inputs!$C$68:$AN$68,0),FALSE)+(VLOOKUP($B310,Inputs!$C$68:$AN$129,MATCH($A314,Inputs!$C$68:$AN$68,0),FALSE)*('Master Data'!N$42))","v":268.68873549003757},{"$f":"VLOOKUP($B310,Inputs!$C$68:$AN$129,MATCH($B314,Inputs!$C$68:$AN$68,0),FALSE)+(VLOOKUP($B310,Inputs!$C$68:$AN$129,MATCH($A314,Inputs!$C$68:$AN$68,0),FALSE)*('Master Data'!O$42))","v":269.05459315622693},null,null,null,null,null,null,null,"CAPEX Instalation costs",{"$f":"-PMT(Inputs!$D$4,'CAPEX Annuity calcs'!$D314,E314)","v":18.736141709912243},{"$f":"-PMT(Inputs!$D$4,'CAPEX Annuity calcs'!$D314,F314)","v":18.74779128716041},{"$f":"-PMT(Inputs!$D$4,'CAPEX Annuity calcs'!$D314,G314)","v":18.765559678232343},{"$f":"-PMT(Inputs!$D$4,'CAPEX Annuity calcs'!$D314,H314)","v":18.787465819916616},{"$f":"-PMT(Inputs!$D$4,'CAPEX Annuity calcs'!$D314,I314)","v":18.813047608397444}]
[]
[]
[{"$f":"A310+1","v":45},{"$f":"VLOOKUP($A317,Inputs!$B$68:$AN$129,MATCH($B$7,Inputs!$B$68:$AN$68,0),FALSE)","v":"80W Mercury Vapour Art decorative"},{"$f":"VLOOKUP($A317,Inputs!$B$68:$AN$129,MATCH($C$7,Inputs!$B$68:$AN$68,0),FALSE)","v":"RLMIN"},null,null,null,null,null,null,null,null,null,null,null,null,null,{"$f":"VLOOKUP($A317,Inputs!$B$68:$AN$129,MATCH($B$7,Inputs!$B$68:$AN$68,0),FALSE)","v":"80W Mercury Vapour Art decorative"}]
[null,{"$f":"Inputs!$AK$68","v":"Bracket UNIT price"},null,{"$f":"Inputs!$D$10","v":40},{"$f":"VLOOKUP($B317,Inputs!$C$68:$AN$129,MATCH($B318,Inputs!$C$68:$AN$68,0),FALSE)","v":75.866327288399177},{"$f":"E318","v":75.866327288399177},{"$f":"F318","v":75.866327288399177},75.866327288399177,75.866327288399177,null,null,null,null,null,null,null,{"$f":"B318","v":"Bracket UNIT price"},{"$f":"-PMT(Inputs!$D$4,'CAPEX Annuity calcs'!$D318,E318)","v":3.5147101390336242},{"$f":"-PMT(Inputs!$D$4,'CAPEX Annuity calcs'!$D318,F318)","v":3.5147101390336242},{"$f":"-PMT(Inputs!$D$4,'CAPEX Annuity calcs'!$D318,G318)","v":3.5147101390336242},{"$f":"-PMT(Inputs!$D$4,'CAPEX Annuity calcs'!$D318,H318)","v":3.5147101390336242},{"$f":"-PMT(Inputs!$D$4,'CAPEX Annuity calcs'!$D318,I318)","v":3.5147101390336242}]
[null,{"$f":"Inputs!$AA$68","v":"CAPEX Instalation costs"},{"$f":"\"Bracket (\"&Inputs!$D$10&\"yrs)\"","v":"Bracket (40yrs)"},{"$f":"Inputs!$D$10","v":40},null,{"$f":"E319","v":0},0,0,0,null,null,null,null,null,null,null,{"$f":"B319","v":"CAPEX Instalation costs"},{"$f":"-PMT(Inputs!$D$4,'CAPEX Annuity calcs'!$D319,E319)","v":0},{"$f":"-PMT(Inputs!$D$4,'CAPEX Annuity calcs'!$D319,F319)","v":0},{"$f":"-PMT(Inputs!$D$4,'CAPEX Annuity calcs'!$D319,G319)","v":0},{"$f":"-PMT(Inputs!$D$4,'CAPEX Annuity calcs'!$D319,H319)","v":0},{"$f":"-PMT(Inputs!$D$4,'CAPEX Annuity calcs'!$D319,I319)","v":0}]
[null,{"$f":"Inputs!$Z$68","v":"Luminaire UNIT price"},null,{"$f":"Inputs!$D$9","v":20},{"$f":"VLOOKUP($B317,Inputs!$C$68:$AN$129,MATCH($B320,Inputs!$C$68:$AN$68,0),FALSE)","v":909.9032838604063},{"$f":"E320","v":909.9032838604063},{"$f":"F320","v":909.9032838604063},909.9032838604063,909.9032838604063,null,null,null,null,null,null,null,"Luminaire UNIT price",{"$f":"-PMT(Inputs!$D$4,'CAPEX Annuity calcs'!$D320,E320)","v":63.62297553628224},{"$f":"-PMT(Inputs!$D$4,'CAPEX Annuity calcs'!$D320,F320)","v":63.62297553628224},{"$f":"-PMT(Inputs!$D$4,'CAPEX Annuity calcs'!$D320,G320)","v":63.62297553628224},{"$f":"-PMT(Inputs!$D$4,'CAPEX Annuity calcs'!$D320,H320)","v":63.62297553628224},{"$f":"-PMT(Inputs!$D$4,'CAPEX Annuity calcs'!$D320,I320)","v":63.62297553628224}]
[{"$f":"$A$13","v":"Labour Portion of CAPEX Instalation costs"},{"$f":"Inputs!$AA$68","v":"CAPEX Instalation costs"},"Luminaire (20yrs)",{"$f":"Inputs!$D$9","v":20},{"$f":"VLOOKUP($B317,Inputs!$C$68:$AN$129,MATCH($B321,Inputs!$C$68:$AN$68,0),FALSE)+(VLOOKUP($B317,Inputs!$C$68:$AN$129,MATCH($A321,Inputs!$C$68:$AN$68,0),FALSE)*('Master Data'!K$42))","v":267.95472429611652},{"$f":"VLOOKUP($B317,Inputs!$C$68:$AN$129,MATCH($B321,Inputs!$C$68:$AN$68,0),FALSE)+(VLOOKUP($B317,Inputs!$C$68:$AN$129,MATCH($A321,Inputs!$C$68:$AN$68,0),FALSE)*('Master Data'!L$42))","v":268.12133059681764},{"$f":"VLOOKUP($B317,Inputs!$C$68:$AN$129,MATCH($B321,Inputs!$C$68:$AN$68,0),FALSE)+(VLOOKUP($B317,Inputs!$C$68:$AN$129,MATCH($A321,Inputs!$C$68:$AN$68,0),FALSE)*('Master Data'!M$42))","v":268.37544504602391},{"$f":"VLOOKUP($B317,Inputs!$C$68:$AN$129,MATCH($B321,Inputs!$C$68:$AN$68,0),FALSE)+(VLOOKUP($B317,Inputs!$C$68:$AN$129,MATCH($A321,Inputs!$C$68:$AN$68,0),FALSE)*('Master Data'!N$42))","v":268.68873549003757},{"$f":"VLOOKUP($B317,Inputs!$C$68:$AN$129,MATCH($B321,Inputs!$C$68:$AN$68,0),FALSE)+(VLOOKUP($B317,Inputs!$C$68:$AN$129,MATCH($A321,Inputs!$C$68:$AN$68,0),FALSE)*('Master Data'!O$42))","v":269.05459315622693},null,null,null,null,null,null,null,"CAPEX Instalation costs",{"$f":"-PMT(Inputs!$D$4,'CAPEX Annuity calcs'!$D321,E321)","v":18.736141709912243},{"$f":"-PMT(Inputs!$D$4,'CAPEX Annuity calcs'!$D321,F321)","v":18.74779128716041},{"$f":"-PMT(Inputs!$D$4,'CAPEX Annuity calcs'!$D321,G321)","v":18.765559678232343},{"$f":"-PMT(Inputs!$D$4,'CAPEX Annuity calcs'!$D321,H321)","v":18.787465819916616},{"$f":"-PMT(Inputs!$D$4,'CAPEX Annuity calcs'!$D321,I321)","v":18.813047608397444}]
[]
[]
[{"$f":"A317+1","v":46},{"$f":"VLOOKUP($A324,Inputs!$B$68:$AN$129,MATCH($B$7,Inputs!$B$68:$AN$68,0),FALSE)","v":"80W Mercury Vapour"},{"$f":"VLOOKUP($A324,Inputs!$B$68:$AN$129,MATCH($C$7,Inputs!$B$68:$AN$68,0),FALSE)","v":"RLMIN"},null,null,null,null,null,null,null,null,null,null,null,null,null,{"$f":"VLOOKUP($A324,Inputs!$B$68:$AN$129,MATCH($B$7,Inputs!$B$68:$AN$68,0),FALSE)","v":"80W Mercury Vapour"}]
[null,{"$f":"Inputs!$AK$68","v":"Bracket UNIT price"},null,{"$f":"Inputs!$D$10","v":40},{"$f":"VLOOKUP($B324,Inputs!$C$68:$AN$129,MATCH($B325,Inputs!$C$68:$AN$68,0),FALSE)","v":75.866327288399177},{"$f":"E325","v":75.866327288399177},{"$f":"F325","v":75.866327288399177},75.866327288399177,75.866327288399177,null,null,null,null,null,null,null,{"$f":"B325","v":"Bracket UNIT price"},{"$f":"-PMT(Inputs!$D$4,'CAPEX Annuity calcs'!$D325,E325)","v":3.5147101390336242},{"$f":"-PMT(Inputs!$D$4,'CAPEX Annuity calcs'!$D325,F325)","v":3.5147101390336242},{"$f":"-PMT(Inputs!$D$4,'CAPEX Annuity calcs'!$D325,G325)","v":3.5147101390336242},{"$f":"-PMT(Inputs!$D$4,'CAPEX Annuity calcs'!$D325,H325)","v":3.5147101390336242},{"$f":"-PMT(Inputs!$D$4,'CAPEX Annuity calcs'!$D325,I325)","v":3.5147101390336242}]
[null,{"$f":"Inputs!$AA$68","v":"CAPEX Instalation costs"},{"$f":"\"Bracket (\"&Inputs!$D$10&\"yrs)\"","v":"Bracket (40yrs)"},{"$f":"Inputs!$D$10","v":40},null,{"$f":"E326","v":0},0,0,0,null,null,null,null,null,null,null,{"$f":"B326","v":"CAPEX Instalation costs"},{"$f":"-PMT(Inputs!$D$4,'CAPEX Annuity calcs'!$D326,E326)","v":0},{"$f":"-PMT(Inputs!$D$4,'CAPEX Annuity calcs'!$D326,F326)","v":0},{"$f":"-PMT(Inputs!$D$4,'CAPEX Annuity calcs'!$D326,G326)","v":0},{"$f":"-PMT(Inputs!$D$4,'CAPEX Annuity calcs'!$D326,H326)","v":0},{"$f":"-PMT(Inputs!$D$4,'CAPEX Annuity calcs'!$D326,I326)","v":0}]
[null,{"$f":"Inputs!$Z$68","v":"Luminaire UNIT price"},null,{"$f":"Inputs!$D$9","v":20},{"$f":"VLOOKUP($B324,Inputs!$C$68:$AN$129,MATCH($B327,Inputs!$C$68:$AN$68,0),FALSE)","v":85.799932042648379},{"$f":"E327","v":85.799932042648379},{"$f":"F327","v":85.799932042648379},85.799932042648379,85.799932042648379,null,null,null,null,null,null,null,"Luminaire UNIT price",{"$f":"-PMT(Inputs!$D$4,'CAPEX Annuity calcs'!$D327,E327)","v":5.9993705640934598},{"$f":"-PMT(Inputs!$D$4,'CAPEX Annuity calcs'!$D327,F327)","v":5.9993705640934598},{"$f":"-PMT(Inputs!$D$4,'CAPEX Annuity calcs'!$D327,G327)","v":5.9993705640934598},{"$f":"-PMT(Inputs!$D$4,'CAPEX Annuity calcs'!$D327,H327)","v":5.9993705640934598},{"$f":"-PMT(Inputs!$D$4,'CAPEX Annuity calcs'!$D327,I327)","v":5.9993705640934598}]
[{"$f":"$A$13","v":"Labour Portion of CAPEX Instalation costs"},{"$f":"Inputs!$AA$68","v":"CAPEX Instalation costs"},"Luminaire (20yrs)",{"$f":"Inputs!$D$9","v":20},{"$f":"VLOOKUP($B324,Inputs!$C$68:$AN$129,MATCH($B328,Inputs!$C$68:$AN$68,0),FALSE)+(VLOOKUP($B324,Inputs!$C$68:$AN$129,MATCH($A328,Inputs!$C$68:$AN$68,0),FALSE)*('Master Data'!K$42))","v":267.95472429611652},{"$f":"VLOOKUP($B324,Inputs!$C$68:$AN$129,MATCH($B328,Inputs!$C$68:$AN$68,0),FALSE)+(VLOOKUP($B324,Inputs!$C$68:$AN$129,MATCH($A328,Inputs!$C$68:$AN$68,0),FALSE)*('Master Data'!L$42))","v":268.12133059681764},{"$f":"VLOOKUP($B324,Inputs!$C$68:$AN$129,MATCH($B328,Inputs!$C$68:$AN$68,0),FALSE)+(VLOOKUP($B324,Inputs!$C$68:$AN$129,MATCH($A328,Inputs!$C$68:$AN$68,0),FALSE)*('Master Data'!M$42))","v":268.37544504602391},{"$f":"VLOOKUP($B324,Inputs!$C$68:$AN$129,MATCH($B328,Inputs!$C$68:$AN$68,0),FALSE)+(VLOOKUP($B324,Inputs!$C$68:$AN$129,MATCH($A328,Inputs!$C$68:$AN$68,0),FALSE)*('Master Data'!N$42))","v":268.68873549003757},{"$f":"VLOOKUP($B324,Inputs!$C$68:$AN$129,MATCH($B328,Inputs!$C$68:$AN$68,0),FALSE)+(VLOOKUP($B324,Inputs!$C$68:$AN$129,MATCH($A328,Inputs!$C$68:$AN$68,0),FALSE)*('Master Data'!O$42))","v":269.05459315622693},null,null,null,null,null,null,null,"CAPEX Instalation costs",{"$f":"-PMT(Inputs!$D$4,'CAPEX Annuity calcs'!$D328,E328)","v":18.736141709912243},{"$f":"-PMT(Inputs!$D$4,'CAPEX Annuity calcs'!$D328,F328)","v":18.74779128716041},{"$f":"-PMT(Inputs!$D$4,'CAPEX Annuity calcs'!$D328,G328)","v":18.765559678232343},{"$f":"-PMT(Inputs!$D$4,'CAPEX Annuity calcs'!$D328,H328)","v":18.787465819916616},{"$f":"-PMT(Inputs!$D$4,'CAPEX Annuity calcs'!$D328,I328)","v":18.813047608397444}]
[]
[]
[{"$f":"A324+1","v":47},{"$f":"VLOOKUP($A331,Inputs!$B$68:$AN$129,MATCH($B$7,Inputs!$B$68:$AN$68,0),FALSE)","v":"14W LED"},{"$f":"VLOOKUP($A331,Inputs!$B$68:$AN$129,MATCH($C$7,Inputs!$B$68:$AN$68,0),FALSE)","v":"RLMAJ"},null,null,null,null,null,null,null,null,null,null,null,null,null,{"$f":"VLOOKUP($A331,Inputs!$B$68:$AN$129,MATCH($B$7,Inputs!$B$68:$AN$68,0),FALSE)","v":"14W LED"}]
[null,{"$f":"Inputs!$AK$68","v":"Bracket UNIT price"},null,{"$f":"Inputs!$D$10","v":40},{"$f":"VLOOKUP($B331,Inputs!$C$68:$AN$129,MATCH($B332,Inputs!$C$68:$AN$68,0),FALSE)","v":90.686403656938197},{"$f":"E332","v":90.686403656938197},{"$f":"F332","v":90.686403656938197},90.686403656938197,90.686403656938197,null,null,null,null,null,null,null,{"$f":"B332","v":"Bracket UNIT price"},{"$f":"-PMT(Inputs!$D$4,'CAPEX Annuity calcs'!$D332,E332)","v":4.2012897394372093},{"$f":"-PMT(Inputs!$D$4,'CAPEX Annuity calcs'!$D332,F332)","v":4.2012897394372093},{"$f":"-PMT(Inputs!$D$4,'CAPEX Annuity calcs'!$D332,G332)","v":4.2012897394372093},{"$f":"-PMT(Inputs!$D$4,'CAPEX Annuity calcs'!$D332,H332)","v":4.2012897394372093},{"$f":"-PMT(Inputs!$D$4,'CAPEX Annuity calcs'!$D332,I332)","v":4.2012897394372093}]
[null,{"$f":"Inputs!$AA$68","v":"CAPEX Instalation costs"},{"$f":"\"Bracket (\"&Inputs!$D$10&\"yrs)\"","v":"Bracket (40yrs)"},{"$f":"Inputs!$D$10","v":40},null,{"$f":"E333","v":0},0,0,0,null,null,null,null,null,null,null,{"$f":"B333","v":"CAPEX Instalation costs"},{"$f":"-PMT(Inputs!$D$4,'CAPEX Annuity calcs'!$D333,E333)","v":0},{"$f":"-PMT(Inputs!$D$4,'CAPEX Annuity calcs'!$D333,F333)","v":0},{"$f":"-PMT(Inputs!$D$4,'CAPEX Annuity calcs'!$D333,G333)","v":0},{"$f":"-PMT(Inputs!$D$4,'CAPEX Annuity calcs'!$D333,H333)","v":0},{"$f":"-PMT(Inputs!$D$4,'CAPEX Annuity calcs'!$D333,I333)","v":0}]
[null,{"$f":"Inputs!$Z$68","v":"Luminaire UNIT price"},null,{"$f":"Inputs!$D$9","v":20},{"$f":"VLOOKUP($B331,Inputs!$C$68:$AN$129,MATCH($B334,Inputs!$C$68:$AN$68,0),FALSE)","v":270.5},{"$f":"E334","v":270.5},{"$f":"F334","v":270.5},270.5,270.5,null,null,null,null,null,null,null,"Luminaire UNIT price",{"$f":"-PMT(Inputs!$D$4,'CAPEX Annuity calcs'!$D334,E334)","v":18.914114486484959},{"$f":"-PMT(Inputs!$D$4,'CAPEX Annuity calcs'!$D334,F334)","v":18.914114486484959},{"$f":"-PMT(Inputs!$D$4,'CAPEX Annuity calcs'!$D334,G334)","v":18.914114486484959},{"$f":"-PMT(Inputs!$D$4,'CAPEX Annuity calcs'!$D334,H334)","v":18.914114486484959},{"$f":"-PMT(Inputs!$D$4,'CAPEX Annuity calcs'!$D334,I334)","v":18.914114486484959}]
[{"$f":"$A$13","v":"Labour Portion of CAPEX Instalation costs"},{"$f":"Inputs!$AA$68","v":"CAPEX Instalation costs"},"Luminaire (20yrs)",{"$f":"Inputs!$D$9","v":20},{"$f":"VLOOKUP($B331,Inputs!$C$68:$AN$129,MATCH($B335,Inputs!$C$68:$AN$68,0),FALSE)+(VLOOKUP($B331,Inputs!$C$68:$AN$129,MATCH($A335,Inputs!$C$68:$AN$68,0),FALSE)*('Master Data'!K$42))","v":267.95472429611652},{"$f":"VLOOKUP($B331,Inputs!$C$68:$AN$129,MATCH($B335,Inputs!$C$68:$AN$68,0),FALSE)+(VLOOKUP($B331,Inputs!$C$68:$AN$129,MATCH($A335,Inputs!$C$68:$AN$68,0),FALSE)*('Master Data'!L$42))","v":268.12133059681764},{"$f":"VLOOKUP($B331,Inputs!$C$68:$AN$129,MATCH($B335,Inputs!$C$68:$AN$68,0),FALSE)+(VLOOKUP($B331,Inputs!$C$68:$AN$129,MATCH($A335,Inputs!$C$68:$AN$68,0),FALSE)*('Master Data'!M$42))","v":268.37544504602391},{"$f":"VLOOKUP($B331,Inputs!$C$68:$AN$129,MATCH($B335,Inputs!$C$68:$AN$68,0),FALSE)+(VLOOKUP($B331,Inputs!$C$68:$AN$129,MATCH($A335,Inputs!$C$68:$AN$68,0),FALSE)*('Master Data'!N$42))","v":268.68873549003757},{"$f":"VLOOKUP($B331,Inputs!$C$68:$AN$129,MATCH($B335,Inputs!$C$68:$AN$68,0),FALSE)+(VLOOKUP($B331,Inputs!$C$68:$AN$129,MATCH($A335,Inputs!$C$68:$AN$68,0),FALSE)*('Master Data'!O$42))","v":269.05459315622693},null,null,null,null,null,null,null,"CAPEX Instalation costs",{"$f":"-PMT(Inputs!$D$4,'CAPEX Annuity calcs'!$D335,E335)","v":18.736141709912243},{"$f":"-PMT(Inputs!$D$4,'CAPEX Annuity calcs'!$D335,F335)","v":18.74779128716041},{"$f":"-PMT(Inputs!$D$4,'CAPEX Annuity calcs'!$D335,G335)","v":18.765559678232343},{"$f":"-PMT(Inputs!$D$4,'CAPEX Annuity calcs'!$D335,H335)","v":18.787465819916616},{"$f":"-PMT(Inputs!$D$4,'CAPEX Annuity calcs'!$D335,I335)","v":18.813047608397444}]
[]
[]
[{"$f":"A331+1","v":48},{"$f":"VLOOKUP($A338,Inputs!$B$68:$AN$129,MATCH($B$7,Inputs!$B$68:$AN$68,0),FALSE)","v":"New technology - Minor"},{"$f":"VLOOKUP($A338,Inputs!$B$68:$AN$129,MATCH($C$7,Inputs!$B$68:$AN$68,0),FALSE)","v":"RLMAJ"},null,null,null,null,null,null,null,null,null,null,null,null,null,{"$f":"VLOOKUP($A338,Inputs!$B$68:$AN$129,MATCH($B$7,Inputs!$B$68:$AN$68,0),FALSE)","v":"New technology - Minor"}]
[null,{"$f":"Inputs!$AK$68","v":"Bracket UNIT price"},null,{"$f":"Inputs!$D$10","v":40},{"$f":"VLOOKUP($B338,Inputs!$C$68:$AN$129,MATCH($B339,Inputs!$C$68:$AN$68,0),FALSE)","v":90.686403656938197},{"$f":"E339","v":90.686403656938197},{"$f":"F339","v":90.686403656938197},90.686403656938197,90.686403656938197,null,null,null,null,null,null,null,{"$f":"B339","v":"Bracket UNIT price"},{"$f":"-PMT(Inputs!$D$4,'CAPEX Annuity calcs'!$D339,E339)","v":4.2012897394372093},{"$f":"-PMT(Inputs!$D$4,'CAPEX Annuity calcs'!$D339,F339)","v":4.2012897394372093},{"$f":"-PMT(Inputs!$D$4,'CAPEX Annuity calcs'!$D339,G339)","v":4.2012897394372093},{"$f":"-PMT(Inputs!$D$4,'CAPEX Annuity calcs'!$D339,H339)","v":4.2012897394372093},{"$f":"-PMT(Inputs!$D$4,'CAPEX Annuity calcs'!$D339,I339)","v":4.2012897394372093}]
[null,{"$f":"Inputs!$AA$68","v":"CAPEX Instalation costs"},{"$f":"\"Bracket (\"&Inputs!$D$10&\"yrs)\"","v":"Bracket (40yrs)"},{"$f":"Inputs!$D$10","v":40},null,{"$f":"E340","v":0},0,0,0,null,null,null,null,null,null,null,{"$f":"B340","v":"CAPEX Instalation costs"},{"$f":"-PMT(Inputs!$D$4,'CAPEX Annuity calcs'!$D340,E340)","v":0},{"$f":"-PMT(Inputs!$D$4,'CAPEX Annuity calcs'!$D340,F340)","v":0},{"$f":"-PMT(Inputs!$D$4,'CAPEX Annuity calcs'!$D340,G340)","v":0},{"$f":"-PMT(Inputs!$D$4,'CAPEX Annuity calcs'!$D340,H340)","v":0},{"$f":"-PMT(Inputs!$D$4,'CAPEX Annuity calcs'!$D340,I340)","v":0}]
[null,{"$f":"Inputs!$Z$68","v":"Luminaire UNIT price"},null,{"$f":"Inputs!$D$9","v":20},{"$f":"VLOOKUP($B338,Inputs!$C$68:$AN$129,MATCH($B341,Inputs!$C$68:$AN$68,0),FALSE)","v":270.5},{"$f":"E341","v":270.5},{"$f":"F341","v":270.5},270.5,270.5,null,null,null,null,null,null,null,"Luminaire UNIT price",{"$f":"-PMT(Inputs!$D$4,'CAPEX Annuity calcs'!$D341,E341)","v":18.914114486484959},{"$f":"-PMT(Inputs!$D$4,'CAPEX Annuity calcs'!$D341,F341)","v":18.914114486484959},{"$f":"-PMT(Inputs!$D$4,'CAPEX Annuity calcs'!$D341,G341)","v":18.914114486484959},{"$f":"-PMT(Inputs!$D$4,'CAPEX Annuity calcs'!$D341,H341)","v":18.914114486484959},{"$f":"-PMT(Inputs!$D$4,'CAPEX Annuity calcs'!$D341,I341)","v":18.914114486484959}]
[{"$f":"$A$13","v":"Labour Portion of CAPEX Instalation costs"},{"$f":"Inputs!$AA$68","v":"CAPEX Instalation costs"},"Luminaire (20yrs)",{"$f":"Inputs!$D$9","v":20},{"$f":"VLOOKUP($B338,Inputs!$C$68:$AN$129,MATCH($B342,Inputs!$C$68:$AN$68,0),FALSE)+(VLOOKUP($B338,Inputs!$C$68:$AN$129,MATCH($A342,Inputs!$C$68:$AN$68,0),FALSE)*('Master Data'!K$42))","v":267.95472429611652},{"$f":"VLOOKUP($B338,Inputs!$C$68:$AN$129,MATCH($B342,Inputs!$C$68:$AN$68,0),FALSE)+(VLOOKUP($B338,Inputs!$C$68:$AN$129,MATCH($A342,Inputs!$C$68:$AN$68,0),FALSE)*('Master Data'!L$42))","v":268.12133059681764},{"$f":"VLOOKUP($B338,Inputs!$C$68:$AN$129,MATCH($B342,Inputs!$C$68:$AN$68,0),FALSE)+(VLOOKUP($B338,Inputs!$C$68:$AN$129,MATCH($A342,Inputs!$C$68:$AN$68,0),FALSE)*('Master Data'!M$42))","v":268.37544504602391},{"$f":"VLOOKUP($B338,Inputs!$C$68:$AN$129,MATCH($B342,Inputs!$C$68:$AN$68,0),FALSE)+(VLOOKUP($B338,Inputs!$C$68:$AN$129,MATCH($A342,Inputs!$C$68:$AN$68,0),FALSE)*('Master Data'!N$42))","v":268.68873549003757},{"$f":"VLOOKUP($B338,Inputs!$C$68:$AN$129,MATCH($B342,Inputs!$C$68:$AN$68,0),FALSE)+(VLOOKUP($B338,Inputs!$C$68:$AN$129,MATCH($A342,Inputs!$C$68:$AN$68,0),FALSE)*('Master Data'!O$42))","v":269.05459315622693},null,null,null,null,null,null,null,"CAPEX Instalation costs",{"$f":"-PMT(Inputs!$D$4,'CAPEX Annuity calcs'!$D342,E342)","v":18.736141709912243},{"$f":"-PMT(Inputs!$D$4,'CAPEX Annuity calcs'!$D342,F342)","v":18.74779128716041},{"$f":"-PMT(Inputs!$D$4,'CAPEX Annuity calcs'!$D342,G342)","v":18.765559678232343},{"$f":"-PMT(Inputs!$D$4,'CAPEX Annuity calcs'!$D342,H342)","v":18.787465819916616},{"$f":"-PMT(Inputs!$D$4,'CAPEX Annuity calcs'!$D342,I342)","v":18.813047608397444}]
[]
[]
[{"$f":"A338+1","v":49},{"$f":"VLOOKUP($A345,Inputs!$B$68:$AN$129,MATCH($B$7,Inputs!$B$68:$AN$68,0),FALSE)","v":"New technology - Major"},{"$f":"VLOOKUP($A345,Inputs!$B$68:$AN$129,MATCH($C$7,Inputs!$B$68:$AN$68,0),FALSE)","v":"RLMAJ"},null,null,null,null,null,null,null,null,null,null,null,null,null,{"$f":"VLOOKUP($A345,Inputs!$B$68:$AN$129,MATCH($B$7,Inputs!$B$68:$AN$68,0),FALSE)","v":"New technology - Major"}]
[null,{"$f":"Inputs!$AK$68","v":"Bracket UNIT price"},null,{"$f":"Inputs!$D$10","v":40},{"$f":"VLOOKUP($B345,Inputs!$C$68:$AN$129,MATCH($B346,Inputs!$C$68:$AN$68,0),FALSE)","v":207.89721127739688},{"$f":"E346","v":207.89721127739688},{"$f":"F346","v":207.89721127739688},207.89721127739688,207.89721127739688,null,null,null,null,null,null,null,{"$f":"B346","v":"Bracket UNIT price"},{"$f":"-PMT(Inputs!$D$4,'CAPEX Annuity calcs'!$D346,E346)","v":9.6313933001632801},{"$f":"-PMT(Inputs!$D$4,'CAPEX Annuity calcs'!$D346,F346)","v":9.6313933001632801},{"$f":"-PMT(Inputs!$D$4,'CAPEX Annuity calcs'!$D346,G346)","v":9.6313933001632801},{"$f":"-PMT(Inputs!$D$4,'CAPEX Annuity calcs'!$D346,H346)","v":9.6313933001632801},{"$f":"-PMT(Inputs!$D$4,'CAPEX Annuity calcs'!$D346,I346)","v":9.6313933001632801}]
[null,{"$f":"Inputs!$AA$68","v":"CAPEX Instalation costs"},{"$f":"\"Bracket (\"&Inputs!$D$10&\"yrs)\"","v":"Bracket (40yrs)"},{"$f":"Inputs!$D$10","v":40},null,{"$f":"E347","v":0},0,0,0,null,null,null,null,null,null,null,{"$f":"B347","v":"CAPEX Instalation costs"},{"$f":"-PMT(Inputs!$D$4,'CAPEX Annuity calcs'!$D347,E347)","v":0},{"$f":"-PMT(Inputs!$D$4,'CAPEX Annuity calcs'!$D347,F347)","v":0},{"$f":"-PMT(Inputs!$D$4,'CAPEX Annuity calcs'!$D347,G347)","v":0},{"$f":"-PMT(Inputs!$D$4,'CAPEX Annuity calcs'!$D347,H347)","v":0},{"$f":"-PMT(Inputs!$D$4,'CAPEX Annuity calcs'!$D347,I347)","v":0}]
[null,{"$f":"Inputs!$Z$68","v":"Luminaire UNIT price"},null,{"$f":"Inputs!$D$9","v":20},{"$f":"VLOOKUP($B345,Inputs!$C$68:$AN$129,MATCH($B348,Inputs!$C$68:$AN$68,0),FALSE)","v":600.51},{"$f":"E348","v":600.51},{"$f":"F348","v":600.51},600.51,600.51,null,null,null,null,null,null,null,"Luminaire UNIT price",{"$f":"-PMT(Inputs!$D$4,'CAPEX Annuity calcs'!$D348,E348)","v":41.989334159996602},{"$f":"-PMT(Inputs!$D$4,'CAPEX Annuity calcs'!$D348,F348)","v":41.989334159996602},{"$f":"-PMT(Inputs!$D$4,'CAPEX Annuity calcs'!$D348,G348)","v":41.989334159996602},{"$f":"-PMT(Inputs!$D$4,'CAPEX Annuity calcs'!$D348,H348)","v":41.989334159996602},{"$f":"-PMT(Inputs!$D$4,'CAPEX Annuity calcs'!$D348,I348)","v":41.989334159996602}]
[{"$f":"$A$13","v":"Labour Portion of CAPEX Instalation costs"},{"$f":"Inputs!$AA$68","v":"CAPEX Instalation costs"},"Luminaire (20yrs)",{"$f":"Inputs!$D$9","v":20},{"$f":"VLOOKUP($B345,Inputs!$C$68:$AN$129,MATCH($B349,Inputs!$C$68:$AN$68,0),FALSE)+(VLOOKUP($B345,Inputs!$C$68:$AN$129,MATCH($A349,Inputs!$C$68:$AN$68,0),FALSE)*('Master Data'!K$42))","v":421.74525866906089},{"$f":"VLOOKUP($B345,Inputs!$C$68:$AN$129,MATCH($B349,Inputs!$C$68:$AN$68,0),FALSE)+(VLOOKUP($B345,Inputs!$C$68:$AN$129,MATCH($A349,Inputs!$C$68:$AN$68,0),FALSE)*('Master Data'!L$42))","v":422.00090685669414},{"$f":"VLOOKUP($B345,Inputs!$C$68:$AN$129,MATCH($B349,Inputs!$C$68:$AN$68,0),FALSE)+(VLOOKUP($B345,Inputs!$C$68:$AN$129,MATCH($A349,Inputs!$C$68:$AN$68,0),FALSE)*('Master Data'!M$42))","v":422.39083147609711},{"$f":"VLOOKUP($B345,Inputs!$C$68:$AN$129,MATCH($B349,Inputs!$C$68:$AN$68,0),FALSE)+(VLOOKUP($B345,Inputs!$C$68:$AN$129,MATCH($A349,Inputs!$C$68:$AN$68,0),FALSE)*('Master Data'!N$42))","v":422.87155839865568},{"$f":"VLOOKUP($B345,Inputs!$C$68:$AN$129,MATCH($B349,Inputs!$C$68:$AN$68,0),FALSE)+(VLOOKUP($B345,Inputs!$C$68:$AN$129,MATCH($A349,Inputs!$C$68:$AN$68,0),FALSE)*('Master Data'!O$42))","v":423.43294682694113},null,null,null,null,null,null,null,"CAPEX Instalation costs",{"$f":"-PMT(Inputs!$D$4,'CAPEX Annuity calcs'!$D349,E349)","v":29.489604830309908},{"$f":"-PMT(Inputs!$D$4,'CAPEX Annuity calcs'!$D349,F349)","v":29.507480464650605},{"$f":"-PMT(Inputs!$D$4,'CAPEX Annuity calcs'!$D349,G349)","v":29.534745081628376},{"$f":"-PMT(Inputs!$D$4,'CAPEX Annuity calcs'!$D349,H349)","v":29.568358848911217},{"$f":"-PMT(Inputs!$D$4,'CAPEX Annuity calcs'!$D349,I349)","v":29.607612693657906}]
[]
[]
[{"$f":"A345+1","v":50},{"$f":"VLOOKUP($A352,Inputs!$B$68:$AN$129,MATCH($B$7,Inputs!$B$68:$AN$68,0),FALSE)","v":{"$error":"#N/A"}},{"$f":"VLOOKUP($A352,Inputs!$B$68:$AN$129,MATCH($C$7,Inputs!$B$68:$AN$68,0),FALSE)","v":{"$error":"#N/A"}},null,null,null,null,null,null,null,null,null,null,null,null,null,{"$f":"VLOOKUP($A352,Inputs!$B$68:$AN$129,MATCH($B$7,Inputs!$B$68:$AN$68,0),FALSE)","v":{"$error":"#N/A"}}]
[null,{"$f":"Inputs!$AK$68","v":"Bracket UNIT price"},null,{"$f":"Inputs!$D$10","v":40},{"$f":"VLOOKUP($B352,Inputs!$C$68:$AN$129,MATCH($B353,Inputs!$C$68:$AN$68,0),FALSE)","v":{"$error":"#N/A"}},{"$f":"E353","v":{"$error":"#N/A"}},{"$f":"F353","v":{"$error":"#N/A"}},{"$error":"#N/A"},{"$error":"#N/A"},null,null,null,null,null,null,null,{"$f":"B353","v":"Bracket UNIT price"},{"$f":"-PMT(Inputs!$D$4,'CAPEX Annuity calcs'!$D353,E353)","v":{"$error":"#N/A"}},{"$f":"-PMT(Inputs!$D$4,'CAPEX Annuity calcs'!$D353,F353)","v":{"$error":"#N/A"}},{"$f":"-PMT(Inputs!$D$4,'CAPEX Annuity calcs'!$D353,G353)","v":{"$error":"#N/A"}},{"$f":"-PMT(Inputs!$D$4,'CAPEX Annuity calcs'!$D353,H353)","v":{"$error":"#N/A"}},{"$f":"-PMT(Inputs!$D$4,'CAPEX Annuity calcs'!$D353,I353)","v":{"$error":"#N/A"}}]
[null,{"$f":"Inputs!$AA$68","v":"CAPEX Instalation costs"},{"$f":"\"Bracket (\"&Inputs!$D$10&\"yrs)\"","v":"Bracket (40yrs)"},{"$f":"Inputs!$D$10","v":40},null,{"$f":"E354","v":0},0,0,0,null,null,null,null,null,null,null,{"$f":"B354","v":"CAPEX Instalation costs"},{"$f":"-PMT(Inputs!$D$4,'CAPEX Annuity calcs'!$D354,E354)","v":0},{"$f":"-PMT(Inputs!$D$4,'CAPEX Annuity calcs'!$D354,F354)","v":0},{"$f":"-PMT(Inputs!$D$4,'CAPEX Annuity calcs'!$D354,G354)","v":0},{"$f":"-PMT(Inputs!$D$4,'CAPEX Annuity calcs'!$D354,H354)","v":0},{"$f":"-PMT(Inputs!$D$4,'CAPEX Annuity calcs'!$D354,I354)","v":0}]
[null,{"$f":"Inputs!$Z$68","v":"Luminaire UNIT price"},null,{"$f":"Inputs!$D$9","v":20},{"$f":"VLOOKUP($B352,Inputs!$C$68:$AN$129,MATCH($B355,Inputs!$C$68:$AN$68,0),FALSE)","v":{"$error":"#N/A"}},{"$f":"E355","v":{"$error":"#N/A"}},{"$f":"F355","v":{"$error":"#N/A"}},{"$error":"#N/A"},{"$error":"#N/A"},null,null,null,null,null,null,null,"Luminaire UNIT price",{"$f":"-PMT(Inputs!$D$4,'CAPEX Annuity calcs'!$D355,E355)","v":{"$error":"#N/A"}},{"$f":"-PMT(Inputs!$D$4,'CAPEX Annuity calcs'!$D355,F355)","v":{"$error":"#N/A"}},{"$f":"-PMT(Inputs!$D$4,'CAPEX Annuity calcs'!$D355,G355)","v":{"$error":"#N/A"}},{"$f":"-PMT(Inputs!$D$4,'CAPEX Annuity calcs'!$D355,H355)","v":{"$error":"#N/A"}},{"$f":"-PMT(Inputs!$D$4,'CAPEX Annuity calcs'!$D355,I355)","v":{"$error":"#N/A"}}]
[{"$f":"$A$13","v":"Labour Portion of CAPEX Instalation costs"},{"$f":"Inputs!$AA$68","v":"CAPEX Instalation costs"},"Luminaire (20yrs)",{"$f":"Inputs!$D$9","v":20},{"$f":"VLOOKUP($B352,Inputs!$C$68:$AN$129,MATCH($B356,Inputs!$C$68:$AN$68,0),FALSE)+(VLOOKUP($B352,Inputs!$C$68:$AN$129,MATCH($A356,Inputs!$C$68:$AN$68,0),FALSE)*('Master Data'!K$42))","v":{"$error":"#N/A"}},{"$f":"VLOOKUP($B352,Inputs!$C$68:$AN$129,MATCH($B356,Inputs!$C$68:$AN$68,0),FALSE)+(VLOOKUP($B352,Inputs!$C$68:$AN$129,MATCH($A356,Inputs!$C$68:$AN$68,0),FALSE)*('Master Data'!L$42))","v":{"$error":"#N/A"}},{"$f":"VLOOKUP($B352,Inputs!$C$68:$AN$129,MATCH($B356,Inputs!$C$68:$AN$68,0),FALSE)+(VLOOKUP($B352,Inputs!$C$68:$AN$129,MATCH($A356,Inputs!$C$68:$AN$68,0),FALSE)*('Master Data'!M$42))","v":{"$error":"#N/A"}},{"$f":"VLOOKUP($B352,Inputs!$C$68:$AN$129,MATCH($B356,Inputs!$C$68:$AN$68,0),FALSE)+(VLOOKUP($B352,Inputs!$C$68:$AN$129,MATCH($A356,Inputs!$C$68:$AN$68,0),FALSE)*('Master Data'!N$42))","v":{"$error":"#N/A"}},{"$f":"VLOOKUP($B352,Inputs!$C$68:$AN$129,MATCH($B356,Inputs!$C$68:$AN$68,0),FALSE)+(VLOOKUP($B352,Inputs!$C$68:$AN$129,MATCH($A356,Inputs!$C$68:$AN$68,0),FALSE)*('Master Data'!O$42))","v":{"$error":"#N/A"}},null,null,null,null,null,null,null,"CAPEX Instalation costs",{"$f":"-PMT(Inputs!$D$4,'CAPEX Annuity calcs'!$D356,E356)","v":{"$error":"#N/A"}},{"$f":"-PMT(Inputs!$D$4,'CAPEX Annuity calcs'!$D356,F356)","v":{"$error":"#N/A"}},{"$f":"-PMT(Inputs!$D$4,'CAPEX Annuity calcs'!$D356,G356)","v":{"$error":"#N/A"}},{"$f":"-PMT(Inputs!$D$4,'CAPEX Annuity calcs'!$D356,H356)","v":{"$error":"#N/A"}},{"$f":"-PMT(Inputs!$D$4,'CAPEX Annuity calcs'!$D356,I356)","v":{"$error":"#N/A"}}]

{"sheet":"Corp Capex Annuity calcs","index":10,"n_rows":142,"n_cols":16,"rows_kept":142,"cut":false,"hidden":false,"merged":[[1,2,1,3],[1,5,1,9]]}
[null,"$2016-17 base data"]
[null,null,null,null,null,"Annuity Calculation 2016-17 $'s"]
[]
[null,null,null,null,null,{"$f":"'Master Data'!K25","v":"2019-20"},{"$f":"'Master Data'!L25","v":"2020-21"},{"$f":"'Master Data'!M25","v":"2021-22"},{"$f":"'Master Data'!N25","v":"2022-23"},{"$f":"'Master Data'!O25","v":"2023-24"},{"$f":"'Master Data'!P25","v":"2024-25"},{"$f":"'Master Data'!Q25","v":"2025-26"},{"$f":"'Master Data'!R25","v":"2026-27"},{"$f":"'Master Data'!S25","v":"2027-28"},{"$f":"'Master Data'!T25","v":"2028-29"}]
[null,"Shared Assets","2016-17 $'s","Remaining / Effective Life","Annual Annuity","Annual Annuity","Annual Annuity","Annual Annuity","Annual Annuity","Annual Annuity","Annual Annuity","Annual Annuity","Annual Annuity","Annual Annuity","Annual Annuity"]
[null,null,null,"Year",0,1,2,3,4,5]
[null,"30 June 2019 WDBV"]
[null,{"$f":"'Building Block'!B44","v":"Spare Parts"},{"$f":"'Building Block'!C44","v":0},{"$f":"'Building Block'!D44","v":"n/a"},{"$f":"IFERROR(-PMT(Inputs!$D$4,D8,C8),0)","v":0},{"$f":"IF($D8<=E$6,\"\",IF($D8>F$6-0.000001,$E8,$E8*($D8-INT($D8))))","v":0},{"$f":"IF($D8<=F$6,\"\",IF($D8>G$6-0.000001,$E8,$E8*($D8-INT($D8))))","v":0},0,0,0]
[null,{"$f":"'Building Block'!B17","v":"Motor Vehicles"},{"$f":"'Building Block'!C45*'Master Data'!$H$39","v":310345.03524758905},{"$f":"'Building Block'!D45","v":4.6592782087319993},{"$f":"IFERROR(-PMT(Inputs!$D$4,D9,C9),0)","v":73207.668626850878},{"$f":"IF($D9<=E$6,\"\",IF($D9>F$6-0.000001,$E9,$E9*($D9-INT($D9))))","v":73207.668626850878},{"$f":"IF($D9<=F$6,\"\",IF($D9>G$6-0.000001,$E9,$E9*($D9-INT($D9))))","v":73207.668626850878},73207.668626850878,73207.668626850878,48264.220637756029]
[null,{"$f":"'Building Block'!B18","v":"Minor Assets"},{"$f":"'Building Block'!C46*'Master Data'!$H$39","v":2276266.9123418941},{"$f":"'Building Block'!D46","v":3.977220119552209},{"$f":"IFERROR(-PMT(Inputs!$D$4,D10,C10),0)","v":622012.13032642135},{"$f":"IF($D10<=E$6,\"\",IF($D10>F$6-0.000001,$E10,$E10*($D10-INT($D10))))","v":622012.13032642135},{"$f":"IF($D10<=F$6,\"\",IF($D10>G$6-0.000001,$E10,$E10*($D10-INT($D10))))","v":622012.13032642135},{"$f":"IF($D10<=G$6,\"\",IF($D10>H$6-0.000001,$E10,$E10*($D10-INT($D10))))","v":622012.13032642135},{"$f":"IF($D10<=H$6,\"\",IF($D10>I$6-0.000001,$E10,$E10*($D10-INT($D10))))","v":607842.76836050965},{"$f":"IF($D10<=I$6,\"\",IF($D10>J$6-0.000001,$E10,$E10*($D10-INT($D10))))","v":""}]
[null,{"$f":"'Building Block'!B19","v":"NEM Assets"},{"$f":"'Building Block'!C47*'Master Data'!$H$39","v":-5721.3800833320456},{"$f":"'Building Block'!D47","v":1},{"$f":"IFERROR(-PMT(Inputs!$D$4,D11,C11),0)","v":-5917.6832211330657},{"$f":"IF($D11<=E$6,\"\",IF($D11>F$6-0.000001,$E11,$E11*($D11-INT($D11))))","v":-5917.6832211330657},{"$f":"IF($D11<=F$6,\"\",IF($D11>G$6-0.000001,$E11,$E11*($D11-INT($D11))))","v":""},"","",""]
[null,{"$f":"'Building Block'!B20","v":"Streetlights"},null,null,null,{"$f":"IF($D12<=E$6,\"\",IF($D12>F$6-0.000001,$E12,$E12*($D12-INT($D12))))","v":""},"","","",""]
[null,{"$f":"'Building Block'!B21","v":"Non System Property"},{"$f":"'Building Block'!C49*'Master Data'!$H$39","v":198575.68801969758},{"$f":"'Building Block'!D49","v":42.494829550993522},{"$f":"IFERROR(-PMT(Inputs!$D$4,D13,C13),0)","v":8946.6133334359001},{"$f":"IF($D13<=E$6,\"\",IF($D13>F$6-0.000001,$E13,$E13*($D13-INT($D13))))","v":8946.6133334359001},8946.6133334359001,8946.6133334359001,8946.6133334359001,8946.6133334359001]
[null,{"$f":"'Building Block'!B22","v":"Business Management Systems"},{"$f":"'Building Block'!C50*'Master Data'!$H$39","v":0},{"$f":"'Building Block'!D50","v":0},{"$f":"IFERROR(-PMT(Inputs!$D$4,D14,C14),0)","v":0},{"$f":"IF($D14<=E$6,\"\",IF($D14>F$6-0.000001,$E14,$E14*($D14-INT($D14))))","v":""},"","","",""]
[null,{"$f":"'Building Block'!B23","v":"Overhead High Voltage Lines Rural"},{"$f":"'Building Block'!C51*'Master Data'!$H$39","v":413512.58983392187},{"$f":"'Building Block'!D51","v":16.585293013920541},{"$f":"IFERROR(-PMT(Inputs!$D$4,D15,C15),0)","v":33109.791580267469},{"$f":"IF($D15<=E$6,\"\",IF($D15>F$6-0.000001,$E15,$E15*($D15-INT($D15))))","v":33109.791580267469},33109.791580267469,33109.791580267469,33109.791580267469,33109.791580267469]
[null,"Indirect POW Capex",{"$f":"'Building Block'!C52*'Master Data'!$H$39","v":525616.0697375692},{"$f":"'Building Block'!D52","v":39},{"$f":"IFERROR(-PMT(Inputs!$D$4,D16,C16),0)","v":24646.752965331088},{"$f":"IF($D16<=E$6,\"\",IF($D16>F$6-0.000001,$E16,$E16*($D16-INT($D16))))","v":24646.752965331088},{"$f":"IF($D16<=F$6,\"\",IF($D16>G$6-0.000001,$E16,$E16*($D16-INT($D16))))","v":24646.752965331088},{"$f":"IF($D16<=G$6,\"\",IF($D16>H$6-0.000001,$E16,$E16*($D16-INT($D16))))","v":24646.752965331088},{"$f":"IF($D16<=H$6,\"\",IF($D16>I$6-0.000001,$E16,$E16*($D16-INT($D16))))","v":24646.752965331088},{"$f":"IF($D16<=I$6,\"\",IF($D16>J$6-0.000001,$E16,$E16*($D16-INT($D16))))","v":24646.752965331088}]
[]
[null,{"$f":"'Master Data'!K25","v":"2019-20"}]
[null,{"$f":"B8","v":"Spare Parts"},{"$f":"VLOOKUP(B19,'Building Block'!$B$16:$G$23,MATCH(B$18,'Building Block'!$B$3:$G$3,0),FALSE)*1000000","v":0},{"$f":"VLOOKUP(B19,'Building Block'!$B$43:$H$52,4,FALSE)","v":5},{"$f":"IFERROR(-PMT(Inputs!$D$4,D19,C19),0)","v":0},null,{"$f":"IF($D19<=F$6,\"\",IF($D19>G$6-0.000001,$E19,$E19*($D19-INT($D19))))","v":0},0,0,0]
[null,"Motor Vehicles",{"$f":"VLOOKUP(B20,'Building Block'!$B$16:$G$23,MATCH(B$18,'Building Block'!$B$3:$G$3,0),FALSE)*1000000","v":108995.77514952006},{"$f":"VLOOKUP(B20,'Building Block'!$B$43:$H$52,4,FALSE)","v":6},{"$f":"IFERROR(-PMT(Inputs!$D$4,D20,C20),0)","v":20408.734934051718},null,{"$f":"IF($D20<=F$6,\"\",IF($D20>G$6-0.000001,$E20,$E20*($D20-INT($D20))))","v":20408.734934051718},{"$f":"IF($D20<=G$6,\"\",IF($D20>H$6-0.000001,$E20,$E20*($D20-INT($D20))))","v":20408.734934051718},{"$f":"IF($D20<=H$6,\"\",IF($D20>I$6-0.000001,$E20,$E20*($D20-INT($D20))))","v":20408.734934051718},{"$f":"IF($D20<=I$6,\"\",IF($D20>J$6-0.000001,$E20,$E20*($D20-INT($D20))))","v":20408.734934051718}]
[null,"Minor Assets",{"$f":"VLOOKUP(B21,'Building Block'!$B$16:$G$23,MATCH(B$18,'Building Block'!$B$3:$G$3,0),FALSE)*1000000","v":782964.93533370923},{"$f":"VLOOKUP(B21,'Building Block'!$B$43:$H$52,4,FALSE)","v":5},{"$f":"IFERROR(-PMT(Inputs!$D$4,D21,C21),0)","v":173073.63794682419},null,{"$f":"IF($D21<=F$6,\"\",IF($D21>G$6-0.000001,$E21,$E21*($D21-INT($D21))))","v":173073.63794682419},{"$f":"IF($D21<=G$6,\"\",IF($D21>H$6-0.000001,$E21,$E21*($D21-INT($D21))))","v":173073.63794682419},173073.63794682419,173073.63794682419]
[null,"NEM Assets",{"$f":"VLOOKUP(B22,'Building Block'!$B$16:$G$23,MATCH(B$18,'Building Block'!$B$3:$G$3,0),FALSE)*1000000","v":0},{"$f":"VLOOKUP(B22,'Building Block'!$B$43:$H$52,4,FALSE)","v":5},{"$f":"IFERROR(-PMT(Inputs!$D$4,D22,C22),0)","v":0},null,0,0,0,0]
[null,"Streetlights",null,null,null,null,"","","",""]
[null,"Non System Property",{"$f":"VLOOKUP(B24,'Building Block'!$B$16:$G$23,MATCH(B$18,'Building Block'!$B$3:$G$3,0),FALSE)*1000000","v":178079.05302327365},{"$f":"VLOOKUP(B24,'Building Block'!$B$43:$H$52,4,FALSE)","v":40},{"$f":"IFERROR(-PMT(Inputs!$D$4,D24,C24),0)","v":8249.9875185880119},null,8249.9875185880119,8249.9875185880119,8249.9875185880119,8249.9875185880119]
[null,"Business Management Systems",{"$f":"VLOOKUP(B25,'Building Block'!$B$16:$G$23,MATCH(B$18,'Building Block'!$B$3:$G$3,0),FALSE)*1000000","v":100596.56259698438},{"$f":"VLOOKUP(B25,'Building Block'!$B$43:$H$52,4,FALSE)","v":10},{"$f":"IFERROR(-PMT(Inputs!$D$4,D25,C25),0)","v":12053.865482578851},null,{"$f":"IF($D25<=F$6,\"\",IF($D25>G$6-0.000001,$E25,$E25*($D25-INT($D25))))","v":12053.865482578851},{"$f":"IF($D25<=G$6,\"\",IF($D25>H$6-0.000001,$E25,$E25*($D25-INT($D25))))","v":12053.865482578851},{"$f":"IF($D25<=H$6,\"\",IF($D25>I$6-0.000001,$E25,$E25*($D25-INT($D25))))","v":12053.865482578851},{"$f":"IF($D25<=I$6,\"\",IF($D25>J$6-0.000001,$E25,$E25*($D25-INT($D25))))","v":12053.865482578851}]
[null,"Overhead High Voltage Lines Rural",{"$f":"VLOOKUP(B26,'Building Block'!$B$16:$G$23,MATCH(B$18,'Building Block'!$B$3:$G$3,0),FALSE)*1000000","v":0},{"$f":"VLOOKUP(B26,'Building Block'!$B$43:$H$52,4,FALSE)","v":35},{"$f":"IFERROR(-PMT(Inputs!$D$4,D26,C26),0)","v":0},null,0,0,0,0]
[null,"Indirect POW Capex",{"$f":"'Capex Weighting'!D$36","v":372619.07999999996},{"$f":"VLOOKUP(B27,'Building Block'!$B$43:$H$52,4,FALSE)","v":40},{"$f":"IFERROR(-PMT(Inputs!$D$4,D27,C27),0)","v":17262.573598625237},null,17262.573598625237,17262.573598625237,17262.573598625237,17262.573598625237]
[]
[null,{"$f":"'Master Data'!L25","v":"2020-21"}]
[null,{"$f":"B19","v":"Spare Parts"},{"$f":"VLOOKUP(B30,'Building Block'!$B$16:$G$23,MATCH(B$29,'Building Block'!$B$3:$G$3,0),FALSE)*1000000","v":0},{"$f":"VLOOKUP(B30,'Building Block'!$B$43:$H$52,4,FALSE)","v":5},{"$f":"IFERROR(-PMT(Inputs!$D$4,D30,C30),0)","v":0},null,null,{"$f":"IF($D30<=G$6,\"\",IF($D30>H$6-0.000001,$E30,$E30*($D30-INT($D30))))","v":0},{"$f":"IF($D30<=H$6,\"\",IF($D30>I$6-0.000001,$E30,$E30*($D30-INT($D30))))","v":0},{"$f":"IF($D30<=I$6,\"\",IF($D30>J$6-0.000001,$E30,$E30*($D30-INT($D30))))","v":0}]
[null,"Motor Vehicles",{"$f":"VLOOKUP(B31,'Building Block'!$B$16:$G$23,MATCH(B$29,'Building Block'!$B$3:$G$3,0),FALSE)*1000000","v":93785.525782329511},{"$f":"VLOOKUP(B31,'Building Block'!$B$43:$H$52,4,FALSE)","v":6},{"$f":"IFERROR(-PMT(Inputs!$D$4,D31,C31),0)","v":17560.716768301863},null,null,17560.716768301863,17560.716768301863,17560.716768301863]
[null,"Minor Assets",{"$f":"VLOOKUP(B32,'Building Block'!$B$16:$G$23,MATCH(B$29,'Building Block'!$B$3:$G$3,0),FALSE)*1000000","v":597764.34649440472},{"$f":"VLOOKUP(B32,'Building Block'!$B$43:$H$52,4,FALSE)","v":5},{"$f":"IFERROR(-PMT(Inputs!$D$4,D32,C32),0)","v":132135.22779100933},null,null,132135.22779100933,132135.22779100933,132135.22779100933]
[null,"NEM Assets",{"$f":"VLOOKUP(B33,'Building Block'!$B$16:$G$23,MATCH(B$29,'Building Block'!$B$3:$G$3,0),FALSE)*1000000","v":0},{"$f":"VLOOKUP(B33,'Building Block'!$B$43:$H$52,4,FALSE)","v":5},{"$f":"IFERROR(-PMT(Inputs!$D$4,D33,C33),0)","v":0},null,null,0,0,0]
[null,"Streetlights",null,null,null,null,null,"","",""]
[null,"Non System Property",{"$f":"VLOOKUP(B35,'Building Block'!$B$16:$G$23,MATCH(B$29,'Building Block'!$B$3:$G$3,0),FALSE)*1000000","v":113477.53113646666},{"$f":"VLOOKUP(B35,'Building Block'!$B$43:$H$52,4,FALSE)","v":40},{"$f":"IFERROR(-PMT(Inputs!$D$4,D35,C35),0)","v":5257.1495615134436},null,null,5257.1495615134436,5257.1495615134436,5257.1495615134436]
[null,"Business Management Systems",{"$f":"VLOOKUP(B36,'Building Block'!$B$16:$G$23,MATCH(B$29,'Building Block'!$B$3:$G$3,0),FALSE)*1000000","v":61731.986385003533},{"$f":"VLOOKUP(B36,'Building Block'!$B$43:$H$52,4,FALSE)","v":10},{"$f":"IFERROR(-PMT(Inputs!$D$4,D36,C36),0)","v":7396.9630835032931},null,null,7396.9630835032931,7396.9630835032931,7396.9630835032931]
[null,"Overhead High Voltage Lines Rural",{"$f":"VLOOKUP(B37,'Building Block'!$B$16:$G$23,MATCH(B$29,'Building Block'!$B$3:$G$3,0),FALSE)*1000000","v":0},{"$f":"VLOOKUP(B37,'Building Block'!$B$43:$H$52,4,FALSE)","v":35},{"$f":"IFERROR(-PMT(Inputs!$D$4,D37,C37),0)","v":0},null,null,{"$f":"IF($D37<=G$6,\"\",IF($D37>H$6-0.000001,$E37,$E37*($D37-INT($D37))))","v":0},{"$f":"IF($D37<=H$6,\"\",IF($D37>I$6-0.000001,$E37,$E37*($D37-INT($D37))))","v":0},{"$f":"IF($D37<=I$6,\"\",IF($D37>J$6-0.000001,$E37,$E37*($D37-INT($D37))))","v":0}]
[null,"Indirect POW Capex",{"$f":"'Capex Weighting'!E$36","v":170818.38576500025},{"$f":"VLOOKUP(B38,'Building Block'!$B$43:$H$52,4,FALSE)","v":40},{"$f":"IFERROR(-PMT(Inputs!$D$4,D38,C38),0)","v":7913.6177252830812},null,null,7913.6177252830812,7913.6177252830812,7913.6177252830812]
[]
[null,{"$f":"'Master Data'!M25","v":"2021-22"}]
[null,{"$f":"B30","v":"Spare Parts"},{"$f":"VLOOKUP(B41,'Building Block'!$B$16:$G$23,MATCH(B$40,'Building Block'!$B$3:$G$3,0),FALSE)*1000000","v":0},{"$f":"VLOOKUP(B41,'Building Block'!$B$43:$H$52,4,FALSE)","v":5},{"$f":"IFERROR(-PMT(Inputs!$D$4,D41,C41),0)","v":0},null,null,null,{"$f":"IF($D41<=H$6,\"\",IF($D41>I$6-0.000001,$E41,$E41*($D41-INT($D41))))","v":0},{"$f":"IF($D41<=I$6,\"\",IF($D41>J$6-0.000001,$E41,$E41*($D41-INT($D41))))","v":0}]
[null,"Motor Vehicles",{"$f":"VLOOKUP(B42,'Building Block'!$B$16:$G$23,MATCH(B$40,'Building Block'!$B$3:$G$3,0),FALSE)*1000000","v":53627.268740713196},{"$f":"VLOOKUP(B42,'Building Block'!$B$43:$H$52,4,FALSE)","v":6},{"$f":"IFERROR(-PMT(Inputs!$D$4,D42,C42),0)","v":10041.349873102787},null,null,null,10041.349873102787,10041.349873102787]
[null,"Minor Assets",{"$f":"VLOOKUP(B43,'Building Block'!$B$16:$G$23,MATCH(B$40,'Building Block'!$B$3:$G$3,0),FALSE)*1000000","v":230923.50224340105},{"$f":"VLOOKUP(B43,'Building Block'!$B$43:$H$52,4,FALSE)","v":5},{"$f":"IFERROR(-PMT(Inputs!$D$4,D43,C43),0)","v":51045.415723058788},null,null,null,51045.415723058788,51045.415723058788]
[null,"NEM Assets",{"$f":"VLOOKUP(B44,'Building Block'!$B$16:$G$23,MATCH(B$40,'Building Block'!$B$3:$G$3,0),FALSE)*1000000","v":0},{"$f":"VLOOKUP(B44,'Building Block'!$B$43:$H$52,4,FALSE)","v":5},{"$f":"IFERROR(-PMT(Inputs!$D$4,D44,C44),0)","v":0},null,null,null,0,0]
[null,"Streetlights",null,null,null,null,null,null,"",""]
[null,"Non System Property",{"$f":"VLOOKUP(B46,'Building Block'!$B$16:$G$23,MATCH(B$40,'Building Block'!$B$3:$G$3,0),FALSE)*1000000","v":24449.965973891554},{"$f":"VLOOKUP(B46,'Building Block'!$B$43:$H$52,4,FALSE)","v":40},{"$f":"IFERROR(-PMT(Inputs!$D$4,D46,C46),0)","v":1132.7099436458964},null,null,null,1132.7099436458964,1132.7099436458964]
[null,"Business Management Systems",{"$f":"VLOOKUP(B47,'Building Block'!$B$16:$G$23,MATCH(B$40,'Building Block'!$B$3:$G$3,0),FALSE)*1000000","v":35029.1683276326},{"$f":"VLOOKUP(B47,'Building Block'!$B$43:$H$52,4,FALSE)","v":10},{"$f":"IFERROR(-PMT(Inputs!$D$4,D47,C47),0)","v":4197.3291341920303},null,null,null,4197.3291341920303,4197.3291341920303]
[null,"Overhead High Voltage Lines Rural",{"$f":"VLOOKUP(B48,'Building Block'!$B$16:$G$23,MATCH(B$40,'Building Block'!$B$3:$G$3,0),FALSE)*1000000","v":0},{"$f":"VLOOKUP(B48,'Building Block'!$B$43:$H$52,4,FALSE)","v":35},{"$f":"IFERROR(-PMT(Inputs!$D$4,D48,C48),0)","v":0},null,null,null,0,0]
[null,"Indirect POW Capex",{"$f":"'Capex Weighting'!F$36","v":171230.79786632856},{"$f":"VLOOKUP(B49,'Building Block'!$B$43:$H$52,4,FALSE)","v":40},{"$f":"IFERROR(-PMT(Inputs!$D$4,D49,C49),0)","v":7932.7238168233853},null,null,null,{"$f":"IF($D49<=H$6,\"\",IF($D49>I$6-0.000001,$E49,$E49*($D49-INT($D49))))","v":7932.7238168233853},{"$f":"IF($D49<=I$6,\"\",IF($D49>J$6-0.000001,$E49,$E49*($D49-INT($D49))))","v":7932.7238168233853}]
[]
[null,{"$f":"'Master Data'!N25","v":"2022-23"}]
[null,{"$f":"B41","v":"Spare Parts"},{"$f":"VLOOKUP(B52,'Building Block'!$B$16:$G$23,MATCH(B$51,'Building Block'!$B$3:$G$3,0),FALSE)*1000000","v":0},{"$f":"VLOOKUP(B52,'Building Block'!$B$43:$H$52,4,FALSE)","v":5},{"$f":"IFERROR(-PMT(Inputs!$D$4,D52,C52),0)","v":0},null,null,null,null,{"$f":"IF($D52<=I$6,\"\",IF($D52>J$6-0.000001,$E52,$E52*($D52-INT($D52))))","v":0}]
[null,"Motor Vehicles",{"$f":"VLOOKUP(B53,'Building Block'!$B$16:$G$23,MATCH(B$51,'Building Block'!$B$3:$G$3,0),FALSE)*1000000","v":47214.534629928661},{"$f":"VLOOKUP(B53,'Building Block'!$B$43:$H$52,4,FALSE)","v":6},{"$f":"IFERROR(-PMT(Inputs!$D$4,D53,C53),0)","v":8840.6080049889206},null,null,null,null,{"$f":"IF($D53<=I$6,\"\",IF($D53>J$6-0.000001,$E53,$E53*($D53-INT($D53))))","v":8840.6080049889206}]
[null,"Minor Assets",{"$f":"VLOOKUP(B54,'Building Block'!$B$16:$G$23,MATCH(B$51,'Building Block'!$B$3:$G$3,0),FALSE)*1000000","v":288076.07381553756},{"$f":"VLOOKUP(B54,'Building Block'!$B$43:$H$52,4,FALSE)","v":5},{"$f":"IFERROR(-PMT(Inputs!$D$4,D54,C54),0)","v":63678.93611920526},null,null,null,null,{"$f":"IF($D54<=I$6,\"\",IF($D54>J$6-0.000001,$E54,$E54*($D54-INT($D54))))","v":63678.93611920526}]
[null,"NEM Assets",{"$f":"VLOOKUP(B55,'Building Block'!$B$16:$G$23,MATCH(B$51,'Building Block'!$B$3:$G$3,0),FALSE)*1000000","v":0},{"$f":"VLOOKUP(B55,'Building Block'!$B$43:$H$52,4,FALSE)","v":5},{"$f":"IFERROR(-PMT(Inputs!$D$4,D55,C55),0)","v":0},null,null,null,null,0]
[null,"Streetlights",null,null,null,null,null,null,null,""]
[null,"Non System Property",{"$f":"VLOOKUP(B57,'Building Block'!$B$16:$G$23,MATCH(B$51,'Building Block'!$B$3:$G$3,0),FALSE)*1000000","v":21977.694808916112},{"$f":"VLOOKUP(B57,'Building Block'!$B$43:$H$52,4,FALSE)","v":40},{"$f":"IFERROR(-PMT(Inputs!$D$4,D57,C57),0)","v":1018.1753821276093},null,null,null,null,1018.1753821276093]
[null,"Business Management Systems",{"$f":"VLOOKUP(B58,'Building Block'!$B$16:$G$23,MATCH(B$51,'Building Block'!$B$3:$G$3,0),FALSE)*1000000","v":301223.03034678649},{"$f":"VLOOKUP(B58,'Building Block'!$B$43:$H$52,4,FALSE)","v":10},{"$f":"IFERROR(-PMT(Inputs!$D$4,D58,C58),0)","v":36093.697382098973},null,null,null,null,36093.697382098973]
[null,"Overhead High Voltage Lines Rural",{"$f":"VLOOKUP(B59,'Building Block'!$B$16:$G$23,MATCH(B$51,'Building Block'!$B$3:$G$3,0),FALSE)*1000000","v":0},{"$f":"VLOOKUP(B59,'Building Block'!$B$43:$H$52,4,FALSE)","v":35},{"$f":"IFERROR(-PMT(Inputs!$D$4,D59,C59),0)","v":0},null,null,null,null,0]
[null,"Indirect POW Capex",{"$f":"'Capex Weighting'!G$36","v":164957.84585587372},{"$f":"VLOOKUP(B60,'Building Block'!$B$43:$H$52,4,FALSE)","v":40},{"$f":"IFERROR(-PMT(Inputs!$D$4,D60,C60),0)","v":7642.1125691086381},null,null,null,null,{"$f":"IF($D60<=I$6,\"\",IF($D60>J$6-0.000001,$E60,$E60*($D60-INT($D60))))","v":7642.1125691086381}]
[]
[null,{"$f":"'Master Data'!O25","v":"2023-24"}]
[null,{"$f":"B52","v":"Spare Parts"},{"$f":"VLOOKUP(B63,'Building Block'!$B$16:$G$23,MATCH(B$62,'Building Block'!$B$3:$G$3,0),FALSE)*1000000","v":0},{"$f":"VLOOKUP(B63,'Building Block'!$B$43:$H$52,4,FALSE)","v":5},{"$f":"IFERROR(-PMT(Inputs!$D$4,D63,C63),0)","v":0}]
[null,"Motor Vehicles",{"$f":"VLOOKUP(B64,'Building Block'!$B$16:$G$23,MATCH(B$62,'Building Block'!$B$3:$G$3,0),FALSE)*1000000","v":67183.932940717656},{"$f":"VLOOKUP(B64,'Building Block'!$B$43:$H$52,4,FALSE)","v":6},{"$f":"IFERROR(-PMT(Inputs!$D$4,D64,C64),0)","v":12579.745199603269}]
[null,"Minor Assets",{"$f":"VLOOKUP(B65,'Building Block'!$B$16:$G$23,MATCH(B$62,'Building Block'!$B$3:$G$3,0),FALSE)*1000000","v":284299.51738940843},{"$f":"VLOOKUP(B65,'Building Block'!$B$43:$H$52,4,FALSE)","v":5},{"$f":"IFERROR(-PMT(Inputs!$D$4,D65,C65),0)","v":62844.131991861999}]
[null,"NEM Assets",{"$f":"VLOOKUP(B66,'Building Block'!$B$16:$G$23,MATCH(B$62,'Building Block'!$B$3:$G$3,0),FALSE)*1000000","v":0},{"$f":"VLOOKUP(B66,'Building Block'!$B$43:$H$52,4,FALSE)","v":5},{"$f":"IFERROR(-PMT(Inputs!$D$4,D66,C66),0)","v":0}]
[null,"Streetlights"]
[null,"Non System Property",{"$f":"VLOOKUP(B68,'Building Block'!$B$16:$G$23,MATCH(B$62,'Building Block'!$B$3:$G$3,0),FALSE)*1000000","v":10635.232955948648},{"$f":"VLOOKUP(B68,'Building Block'!$B$43:$H$52,4,FALSE)","v":40},{"$f":"IFERROR(-PMT(Inputs!$D$4,D68,C68),0)","v":492.70555775240547}]
[null,"Business Management Systems",{"$f":"VLOOKUP(B69,'Building Block'!$B$16:$G$23,MATCH(B$62,'Building Block'!$B$3:$G$3,0),FALSE)*1000000","v":355283.54364113888},{"$f":"VLOOKUP(B69,'Building Block'!$B$43:$H$52,4,FALSE)","v":10},{"$f":"IFERROR(-PMT(Inputs!$D$4,D69,C69),0)","v":42571.435173000631}]
[null,"Overhead High Voltage Lines Rural",{"$f":"VLOOKUP(B70,'Building Block'!$B$16:$G$23,MATCH(B$62,'Building Block'!$B$3:$G$3,0),FALSE)*1000000","v":0},{"$f":"VLOOKUP(B70,'Building Block'!$B$43:$H$52,4,FALSE)","v":35},{"$f":"IFERROR(-PMT(Inputs!$D$4,D70,C70),0)","v":0}]
[null,"Indirect POW Capex",{"$f":"'Capex Weighting'!H$36","v":164414.8260225674},{"$f":"VLOOKUP(B71,'Building Block'!$B$43:$H$52,4,FALSE)","v":40},{"$f":"IFERROR(-PMT(Inputs!$D$4,D71,C71),0)","v":7616.9557257232609}]
[]
[null,{"$f":"'Master Data'!P25","v":"2024-25"}]
[null,{"$f":"B63","v":"Spare Parts"},{"$f":"VLOOKUP(B74,'Building Block'!$B$16:$L$23,MATCH(B$73,'Building Block'!$B$3:$L$3,0),FALSE)*1000000","v":0},{"$f":"VLOOKUP(B74,'Building Block'!$B$43:$H$52,4,FALSE)","v":5},{"$f":"IFERROR(-PMT(Inputs!$D$4,D74,C74),0)","v":0}]
[null,"Motor Vehicles",{"$f":"VLOOKUP(B75,'Building Block'!$B$16:$L$23,MATCH(B$73,'Building Block'!$B$3:$L$3,0),FALSE)*1000000","v":0},{"$f":"VLOOKUP(B75,'Building Block'!$B$43:$H$52,4,FALSE)","v":6},{"$f":"IFERROR(-PMT(Inputs!$D$4,D75,C75),0)","v":0}]
[null,"Minor Assets",{"$f":"VLOOKUP(B76,'Building Block'!$B$16:$L$23,MATCH(B$73,'Building Block'!$B$3:$L$3,0),FALSE)*1000000","v":0},{"$f":"VLOOKUP(B76,'Building Block'!$B$43:$H$52,4,FALSE)","v":5},{"$f":"IFERROR(-PMT(Inputs!$D$4,D76,C76),0)","v":0}]
[null,"NEM Assets",{"$f":"VLOOKUP(B77,'Building Block'!$B$16:$L$23,MATCH(B$73,'Building Block'!$B$3:$L$3,0),FALSE)*1000000","v":0},{"$f":"VLOOKUP(B77,'Building Block'!$B$43:$H$52,4,FALSE)","v":5},{"$f":"IFERROR(-PMT(Inputs!$D$4,D77,C77),0)","v":0}]
[null,"Streetlights"]
[null,"Non System Property",{"$f":"VLOOKUP(B79,'Building Block'!$B$16:$L$23,MATCH(B$73,'Building Block'!$B$3:$L$3,0),FALSE)*1000000","v":0},{"$f":"VLOOKUP(B79,'Building Block'!$B$43:$H$52,4,FALSE)","v":40},{"$f":"IFERROR(-PMT(Inputs!$D$4,D79,C79),0)","v":0}]
[null,"Business Management Systems",{"$f":"VLOOKUP(B80,'Building Block'!$B$16:$L$23,MATCH(B$73,'Building Block'!$B$3:$L$3,0),FALSE)*1000000","v":0},{"$f":"VLOOKUP(B80,'Building Block'!$B$43:$H$52,4,FALSE)","v":10},{"$f":"IFERROR(-PMT(Inputs!$D$4,D80,C80),0)","v":0}]
[null,"Overhead High Voltage Lines Rural",{"$f":"VLOOKUP(B81,'Building Block'!$B$16:$L$23,MATCH(B$73,'Building Block'!$B$3:$L$3,0),FALSE)*1000000","v":0},{"$f":"VLOOKUP(B81,'Building Block'!$B$43:$H$52,4,FALSE)","v":35},{"$f":"IFERROR(-PMT(Inputs!$D$4,D81,C81),0)","v":0}]
[null,"Indirect POW Capex",{"$f":"'Capex Weighting'!I$36","v":0},{"$f":"VLOOKUP(B82,'Building Block'!$B$43:$H$52,4,FALSE)","v":40},{"$f":"IFERROR(-PMT(Inputs!$D$4,D82,C82),0)","v":0}]
[]
[null,{"$f":"'Master Data'!Q25","v":"2025-26"}]
[null,{"$f":"B74","v":"Spare Parts"},{"$f":"VLOOKUP(B85,'Building Block'!$B$16:$L$23,MATCH(B$84,'Building Block'!$B$3:$L$3,0),FALSE)*1000000","v":0},{"$f":"VLOOKUP(B85,'Building Block'!$B$43:$H$52,4,FALSE)","v":5},{"$f":"IFERROR(-PMT(Inputs!$D$4,D85,C85),0)","v":0}]
[null,"Motor Vehicles",{"$f":"VLOOKUP(B86,'Building Block'!$B$16:$L$23,MATCH(B$84,'Building Block'!$B$3:$L$3,0),FALSE)*1000000","v":0},{"$f":"VLOOKUP(B86,'Building Block'!$B$43:$H$52,4,FALSE)","v":6},{"$f":"IFERROR(-PMT(Inputs!$D$4,D86,C86),0)","v":0}]
[null,"Minor Assets",{"$f":"VLOOKUP(B87,'Building Block'!$B$16:$L$23,MATCH(B$84,'Building Block'!$B$3:$L$3,0),FALSE)*1000000","v":0},{"$f":"VLOOKUP(B87,'Building Block'!$B$43:$H$52,4,FALSE)","v":5},{"$f":"IFERROR(-PMT(Inputs!$D$4,D87,C87),0)","v":0}]
[null,"NEM Assets",{"$f":"VLOOKUP(B88,'Building Block'!$B$16:$L$23,MATCH(B$84,'Building Block'!$B$3:$L$3,0),FALSE)*1000000","v":0},{"$f":"VLOOKUP(B88,'Building Block'!$B$43:$H$52,4,FALSE)","v":5},{"$f":"IFERROR(-PMT(Inputs!$D$4,D88,C88),0)","v":0}]
[null,"Streetlights"]
[null,"Non System Property",{"$f":"VLOOKUP(B90,'Building Block'!$B$16:$L$23,MATCH(B$84,'Building Block'!$B$3:$L$3,0),FALSE)*1000000","v":0},{"$f":"VLOOKUP(B90,'Building Block'!$B$43:$H$52,4,FALSE)","v":40},{"$f":"IFERROR(-PMT(Inputs!$D$4,D90,C90),0)","v":0}]
[null,"Business Management Systems",{"$f":"VLOOKUP(B91,'Building Block'!$B$16:$L$23,MATCH(B$84,'Building Block'!$B$3:$L$3,0),FALSE)*1000000","v":0},{"$f":"VLOOKUP(B91,'Building Block'!$B$43:$H$52,4,FALSE)","v":10},{"$f":"IFERROR(-PMT(Inputs!$D$4,D91,C91),0)","v":0}]
[null,"Overhead High Voltage Lines Rural",{"$f":"VLOOKUP(B92,'Building Block'!$B$16:$L$23,MATCH(B$84,'Building Block'!$B$3:$L$3,0),FALSE)*1000000","v":0},{"$f":"VLOOKUP(B92,'Building Block'!$B$43:$H$52,4,FALSE)","v":35},{"$f":"IFERROR(-PMT(Inputs!$D$4,D92,C92),0)","v":0}]
[null,"Indirect POW Capex",{"$f":"'Capex Weighting'!J$36","v":0},{"$f":"VLOOKUP(B93,'Building Block'!$B$43:$H$52,4,FALSE)","v":40},{"$f":"IFERROR(-PMT(Inputs!$D$4,D93,C93),0)","v":0}]
[]
[null,{"$f":"'Master Data'!R25","v":"2026-27"}]
[null,{"$f":"B85","v":"Spare Parts"},{"$f":"VLOOKUP(B96,'Building Block'!$B$16:$L$23,MATCH(B$95,'Building Block'!$B$3:$L$3,0),FALSE)*1000000","v":0},{"$f":"VLOOKUP(B96,'Building Block'!$B$43:$H$52,4,FALSE)","v":5},{"$f":"IFERROR(-PMT(Inputs!$D$4,D96,C96),0)","v":0}]
[null,"Motor Vehicles",{"$f":"VLOOKUP(B97,'Building Block'!$B$16:$L$23,MATCH(B$95,'Building Block'!$B$3:$L$3,0),FALSE)*1000000","v":0},{"$f":"VLOOKUP(B97,'Building Block'!$B$43:$H$52,4,FALSE)","v":6},{"$f":"IFERROR(-PMT(Inputs!$D$4,D97,C97),0)","v":0}]
[null,"Minor Assets",{"$f":"VLOOKUP(B98,'Building Block'!$B$16:$L$23,MATCH(B$95,'Building Block'!$B$3:$L$3,0),FALSE)*1000000","v":0},{"$f":"VLOOKUP(B98,'Building Block'!$B$43:$H$52,4,FALSE)","v":5},{"$f":"IFERROR(-PMT(Inputs!$D$4,D98,C98),0)","v":0}]
[null,"NEM Assets",{"$f":"VLOOKUP(B99,'Building Block'!$B$16:$L$23,MATCH(B$95,'Building Block'!$B$3:$L$3,0),FALSE)*1000000","v":0},{"$f":"VLOOKUP(B99,'Building Block'!$B$43:$H$52,4,FALSE)","v":5},{"$f":"IFERROR(-PMT(Inputs!$D$4,D99,C99),0)","v":0}]
[null,"Streetlights"]
[null,"Non System Property",{"$f":"VLOOKUP(B101,'Building Block'!$B$16:$L$23,MATCH(B$95,'Building Block'!$B$3:$L$3,0),FALSE)*1000000","v":0},{"$f":"VLOOKUP(B101,'Building Block'!$B$43:$H$52,4,FALSE)","v":40},{"$f":"IFERROR(-PMT(Inputs!$D$4,D101,C101),0)","v":0}]
[null,"Business Management Systems",{"$f":"VLOOKUP(B102,'Building Block'!$B$16:$L$23,MATCH(B$95,'Building Block'!$B$3:$L$3,0),FALSE)*1000000","v":0},{"$f":"VLOOKUP(B102,'Building Block'!$B$43:$H$52,4,FALSE)","v":10},{"$f":"IFERROR(-PMT(Inputs!$D$4,D102,C102),0)","v":0}]
[null,"Overhead High Voltage Lines Rural",{"$f":"VLOOKUP(B103,'Building Block'!$B$16:$L$23,MATCH(B$95,'Building Block'!$B$3:$L$3,0),FALSE)*1000000","v":0},{"$f":"VLOOKUP(B103,'Building Block'!$B$43:$H$52,4,FALSE)","v":35},{"$f":"IFERROR(-PMT(Inputs!$D$4,D103,C103),0)","v":0}]
[null,"Indirect POW Capex",{"$f":"'Capex Weighting'!K$36","v":0},{"$f":"VLOOKUP(B104,'Building Block'!$B$43:$H$52,4,FALSE)","v":40},{"$f":"IFERROR(-PMT(Inputs!$D$4,D104,C104),0)","v":0}]
[]
[null,{"$f":"'Master Data'!S25","v":"2027-28"}]
[null,{"$f":"B96","v":"Spare Parts"},{"$f":"VLOOKUP(B107,'Building Block'!$B$16:$L$23,MATCH(B$106,'Building Block'!$B$3:$L$3,0),FALSE)*1000000","v":0},{"$f":"VLOOKUP(B107,'Building Block'!$B$43:$H$52,4,FALSE)","v":5},{"$f":"IFERROR(-PMT(Inputs!$D$4,D107,C107),0)","v":0}]
[null,"Motor Vehicles",{"$f":"VLOOKUP(B108,'Building Block'!$B$16:$L$23,MATCH(B$106,'Building Block'!$B$3:$L$3,0),FALSE)*1000000","v":0},{"$f":"VLOOKUP(B108,'Building Block'!$B$43:$H$52,4,FALSE)","v":6},{"$f":"IFERROR(-PMT(Inputs!$D$4,D108,C108),0)","v":0}]
[null,"Minor Assets",{"$f":"VLOOKUP(B109,'Building Block'!$B$16:$L$23,MATCH(B$106,'Building Block'!$B$3:$L$3,0),FALSE)*1000000","v":0},{"$f":"VLOOKUP(B109,'Building Block'!$B$43:$H$52,4,FALSE)","v":5},{"$f":"IFERROR(-PMT(Inputs!$D$4,D109,C109),0)","v":0}]
[null,"NEM Assets",{"$f":"VLOOKUP(B110,'Building Block'!$B$16:$L$23,MATCH(B$106,'Building Block'!$B$3:$L$3,0),FALSE)*1000000","v":0},{"$f":"VLOOKUP(B110,'Building Block'!$B$43:$H$52,4,FALSE)","v":5},{"$f":"IFERROR(-PMT(Inputs!$D$4,D110,C110),0)","v":0}]
[null,"Streetlights"]
[null,"Non System Property",{"$f":"VLOOKUP(B112,'Building Block'!$B$16:$L$23,MATCH(B$106,'Building Block'!$B$3:$L$3,0),FALSE)*1000000","v":0},{"$f":"VLOOKUP(B112,'Building Block'!$B$43:$H$52,4,FALSE)","v":40},{"$f":"IFERROR(-PMT(Inputs!$D$4,D112,C112),0)","v":0}]
[null,"Business Management Systems",{"$f":"VLOOKUP(B113,'Building Block'!$B$16:$L$23,MATCH(B$106,'Building Block'!$B$3:$L$3,0),FALSE)*1000000","v":0},{"$f":"VLOOKUP(B113,'Building Block'!$B$43:$H$52,4,FALSE)","v":10},{"$f":"IFERROR(-PMT(Inputs!$D$4,D113,C113),0)","v":0}]
[null,"Overhead High Voltage Lines Rural",{"$f":"VLOOKUP(B114,'Building Block'!$B$16:$L$23,MATCH(B$106,'Building Block'!$B$3:$L$3,0),FALSE)*1000000","v":0},{"$f":"VLOOKUP(B114,'Building Block'!$B$43:$H$52,4,FALSE)","v":35},{"$f":"IFERROR(-PMT(Inputs!$D$4,D114,C114),0)","v":0}]
[null,"Indirect POW Capex",{"$f":"'Capex Weighting'!L$36","v":0},{"$f":"VLOOKUP(B115,'Building Block'!$B$43:$H$52,4,FALSE)","v":40},{"$f":"IFERROR(-PMT(Inputs!$D$4,D115,C115),0)","v":0}]
[]
[null,{"$f":"'Master Data'!T25","v":"2028-29"}]
[null,{"$f":"B107","v":"Spare Parts"},{"$f":"VLOOKUP(B118,'Building Block'!$B$16:$L$23,MATCH(B$117,'Building Block'!$B$3:$L$3,0),FALSE)*1000000","v":0},{"$f":"VLOOKUP(B118,'Building Block'!$B$43:$H$52,4,FALSE)","v":5},{"$f":"IFERROR(-PMT(Inputs!$D$4,D118,C118),0)","v":0}]
[null,"Motor Vehicles",{"$f":"VLOOKUP(B119,'Building Block'!$B$16:$L$23,MATCH(B$117,'Building Block'!$B$3:$L$3,0),FALSE)*1000000","v":0},{"$f":"VLOOKUP(B119,'Building Block'!$B$43:$H$52,4,FALSE)","v":6},{"$f":"IFERROR(-PMT(Inputs!$D$4,D119,C119),0)","v":0}]
[null,"Minor Assets",{"$f":"VLOOKUP(B120,'Building Block'!$B$16:$L$23,MATCH(B$117,'Building Block'!$B$3:$L$3,0),FALSE)*1000000","v":0},{"$f":"VLOOKUP(B120,'Building Block'!$B$43:$H$52,4,FALSE)","v":5},{"$f":"IFERROR(-PMT(Inputs!$D$4,D120,C120),0)","v":0}]
[null,"NEM Assets",{"$f":"VLOOKUP(B121,'Building Block'!$B$16:$L$23,MATCH(B$117,'Building Block'!$B$3:$L$3,0),FALSE)*1000000","v":0},{"$f":"VLOOKUP(B121,'Building Block'!$B$43:$H$52,4,FALSE)","v":5},{"$f":"IFERROR(-PMT(Inputs!$D$4,D121,C121),0)","v":0}]
[null,"Streetlights"]
[null,"Non System Property",{"$f":"VLOOKUP(B123,'Building Block'!$B$16:$L$23,MATCH(B$117,'Building Block'!$B$3:$L$3,0),FALSE)*1000000","v":0},{"$f":"VLOOKUP(B123,'Building Block'!$B$43:$H$52,4,FALSE)","v":40},{"$f":"IFERROR(-PMT(Inputs!$D$4,D123,C123),0)","v":0}]
[null,"Business Management Systems",{"$f":"VLOOKUP(B124,'Building Block'!$B$16:$L$23,MATCH(B$117,'Building Block'!$B$3:$L$3,0),FALSE)*1000000","v":0},{"$f":"VLOOKUP(B124,'Building Block'!$B$43:$H$52,4,FALSE)","v":10},{"$f":"IFERROR(-PMT(Inputs!$D$4,D124,C124),0)","v":0}]
[null,"Overhead High Voltage Lines Rural",{"$f":"VLOOKUP(B125,'Building Block'!$B$16:$L$23,MATCH(B$117,'Building Block'!$B$3:$L$3,0),FALSE)*1000000","v":0},{"$f":"VLOOKUP(B125,'Building Block'!$B$43:$H$52,4,FALSE)","v":35},{"$f":"IFERROR(-PMT(Inputs!$D$4,D125,C125),0)","v":0}]
[null,"Indirect POW Capex",{"$f":"'Capex Weighting'!M$36","v":0},{"$f":"VLOOKUP(B126,'Building Block'!$B$43:$H$52,4,FALSE)","v":40},{"$f":"IFERROR(-PMT(Inputs!$D$4,D126,C126),0)","v":0}]
[]
[]
[null,"Total",{"$f":"SUM(C8:C72)","v":8519955.0323228259},null,{"$f":"SUM(E8:E72)","v":1475045.7796177466},756005.2736111735,992971.75631297461,1163235.4312425856,1223415.5977674969,707902.91087542183]
[]
[]
[]
[]
[null,null,null,"NPV",{"$f":"NPV(Inputs!$D$4,F134:J134)","v":4377391.0699499734},{"$f":"F129","v":756005.2736111735},{"$f":"G129","v":992971.75631297461},{"$f":"H129","v":1163235.4312425856},{"$f":"I129","v":1223415.5977674969},707902.91087542183,null,null,null,null,null,"NPV"]
[]
[null,null,null,"NPV",{"$f":"NPV(Inputs!$D$4,F136:J136)","v":4377391.0699499734},{"$f":"$E$134/$E$137","v":967618.04137407488},{"$f":"$E$134/$E$137","v":967618.04137407488},{"$f":"$E$134/$E$137","v":967618.04137407488},{"$f":"$E$134/$E$137","v":967618.04137407488},{"$f":"$E$134/$E$137","v":967618.04137407488},null,null,null,null,null,"NPV"]
[null,null,null,"Discount factor",{"$f":"SUM(F137:J137)","v":4.5238832708553254},{"$f":"1/(1+Inputs!$D$4)^1","v":0.96682770427791942},{"$f":"1/(1+Inputs!$D$4)^2","v":0.93475580975931194},{"$f":"1/(1+Inputs!$D$4)^3","v":0.90374781361004319},{"$f":"1/(1+Inputs!$D$4)^4","v":0.87376842387878706},{"$f":"1/(1+Inputs!$D$4)^5","v":0.84478351932926365},null,null,null,null,null,"Discount factor"]
[]
[null,"Real Annuity Charge to be allocated",null,null,null,{"$f":"F136","v":967618.04137407488},{"$f":"G136","v":967618.04137407488},967618.04137407488,967618.04137407488,967618.04137407488]
[]
[null,{"$f":"Volumes!B86","v":"Total Lights"},null,null,null,{"$f":"VLOOKUP($B141,Volumes!$B$86:$H$86,MATCH('Corp Capex Annuity calcs'!F4,Volumes!$B$4:$H$4,0),FALSE)","v":52072},{"$f":"VLOOKUP($B141,Volumes!$B$86:$H$86,MATCH('Corp Capex Annuity calcs'!G4,Volumes!$B$4:$H$4,0),FALSE)","v":52157},{"$f":"VLOOKUP($B141,Volumes!$B$86:$H$86,MATCH('Corp Capex Annuity calcs'!H4,Volumes!$B$4:$H$4,0),FALSE)","v":52584},{"$f":"VLOOKUP($B141,Volumes!$B$86:$H$86,MATCH('Corp Capex Annuity calcs'!I4,Volumes!$B$4:$H$4,0),FALSE)","v":53149},{"$f":"VLOOKUP($B141,Volumes!$B$86:$H$86,MATCH('Corp Capex Annuity calcs'!J4,Volumes!$B$4:$H$4,0),FALSE)","v":53771}]
[null,"Corp capex annuity per Light $16/17",null,null,null,{"$f":"F139/F141","v":18.582309905017571},{"$f":"G139/G141","v":18.552026408230436},{"$f":"H139/H141","v":18.401377631486287},{"$f":"I139/I141","v":18.205761940470655},{"$f":"J139/J141","v":17.995165449295623}]

{"sheet":"Capex Weighting","index":11,"n_rows":36,"n_cols":13,"rows_kept":36,"cut":false,"hidden":false,"merged":[[1,3,1,7]]}
[null,"$2016-17 base data"]
[null,"Extract information from 'Capex Forecast Model - Standard Control - Summary Output - January 2018'"]
[null,null,null,{"$f":"'Master Data'!K$25","v":"2019-20"},{"$f":"'Master Data'!L$25","v":"2020-21"},{"$f":"'Master Data'!M$25","v":"2021-22"},{"$f":"'Master Data'!N$25","v":"2022-23"},{"$f":"'Master Data'!O$25","v":"2023-24"},{"$f":"'Master Data'!P$25","v":"2024-25"},{"$f":"'Master Data'!Q$25","v":"2025-26"},{"$f":"'Master Data'!R$25","v":"2026-27"},{"$f":"'Master Data'!S$25","v":"2027-28"},{"$f":"'Master Data'!T$25","v":"2028-29"}]
[null,"Work category description","Work categories","2019/20","2020/21","2021/22","2022/23","2023/24","2024/25","2025/26","2026/27","2027/28","2028/29"]
[null,"Capex - Replace luminaires","RLMAJ",366152.99,366152.99,366152.99,366152.99,366152.99]
[null,"Capex - Replace luminaires ","RLMIN",2093175.63,2087443.05,556256.25,550523.67000000004,550523.67000000004]
[null,"Capex - New Streetlight installation","RLOLI",389070.5,389070.5,389070.5,389070.5,389070.5]
[null,"Capex - Replace control relays on pilot and cascade roadlighting control systems or Replace OH Swtichwire","RLREL",218470.85,23888,23888,23888,23888]
[null,"Capex - Road Light Replace Underground Cable","RLRUC",58000,58000,58000,58000,58000]
[null,"Capex - New supply to Private Contract Lighting","RLSPR",0,0,0,0,0]
[null,"Capex - Replace condemned wide based steel poles","RLWBP",305343.5,305343.5,333102,333102,360860.5]
[null,"Total POW Opex (January 2018)",null,{"$f":"SUM(D5:D11)","v":3430213.47},3229898.04,1726469.74,1720737.1600000001,1748495.6600000001]
[null,"Allocate difference to Capex - Replace luminaires ",{"$f":"C6","v":"RLMIN"},{"$f":"'Corporate OH'!$L18-D12","v":0},{"$f":"'Corporate OH'!$L19-E12","v":2639.3208099999465},{"$f":"'Corporate OH'!$L20-F12","v":3462.230653854087},{"$f":"'Corporate OH'!$L21-G12","v":5195.3559080290142},{"$f":"'Corporate OH'!$L22-H12","v":7096.104143147124}]
[null,"Capex adjustment in line with volume adjustment (August 2018)"]
[null,"Capex - Replace luminaires","RLMAJ",{"$f":"D5*-0.25","v":-91538.247499999998},{"$f":"E5*-0.25","v":-91538.247499999998},-91538.247499999998,-91538.247499999998,-91538.247499999998]
[null,"Capex - Replace luminaires ","RLMIN",{"$f":"D6*-0.25","v":-523293.90749999997},{"$f":"E6*-0.25","v":-521860.76250000001},-139064.0625,-137630.91750000001,-137630.91750000001]
[null,null,null,{"$f":"SUM(D15:D16)","v":-614832.15500000003},{"$f":"SUM(E15:E16)","v":-613399.01},-230602.31,-229169.16500000001,-229169.16500000001]
[]
[null,"Direct POW Capex allocation Public and Contract"]
[null,"RLMAJ & RLMIN allocated with Materials and installation",null,{"$f":"D3","v":"2019-20"},"2020-21","2021-22","2022-23","2023-24","2024-25","2025-26","2026-27","2027-28","2028-29"]
[]
[null,"Capex - Replace luminaires","RLMAJ",230059.74249999999,230278.14113499998,230497.60992331145,230718.15410868567,230939.77896056825]
[null,"Capex - Replace luminaires ","RLMIN",1518288.4924999999,1520988.5030999999,371966.52221035998,373719.49503544066,374040.8900168644]
[null,{"$f":"B7","v":"Capex - New Streetlight installation"},"RLOLI",389070.5,389070.5,389070.5,389070.5,389070.5]
[null,{"$f":"B11","v":"Capex - Replace condemned wide based steel poles"},"RLWBP",305343.5,305343.5,333102,333102,360860.5]
[null,null,null,{"$f":"SUM(D22:D25)","v":2442762.2349999999},{"$f":"SUM(E22:E25)","v":2445680.644235},1324636.6321336715,1326610.1491441263,1354911.6689774327]
[]
[null,"Indirect POW Capex allocation Public and Contract"]
[null,"RLMAJ & RLMIN allocated with Materials and installation",null,{"$f":"D3","v":"2019-20"},"2020-21","2021-22","2022-23","2023-24","2024-25","2025-26","2026-27","2027-28","2028-29"]
[]
[null,"Capex - Replace luminaires","RLMAJ",{"$f":"D5+D15-D22","v":44555},{"$f":"E5+E15-E22","v":44336.60136500001},44117.132576688542,43896.588391314319,43674.963539431745]
[null,"Capex - Replace luminaires ","RLMIN",{"$f":"D6+D16-D23","v":51593.229999999981},{"$f":"E6+E16-E23","v":44593.784400000237},45225.665289640019,39173.2574645594,38851.862483135657]
[null,{"$f":"B8","v":"Capex - Replace control relays on pilot and cascade roadlighting control systems or Replace OH Swtichwire"},"RLREL",218470.85,23888,23888,23888,23888]
[null,{"$f":"B9","v":"Capex - Road Light Replace Underground Cable"},"RLRUC",58000,58000,58000,58000,58000]
[null,{"$f":"B10","v":"Capex - New supply to Private Contract Lighting"},"RLSPR",0,0,0,0,0]
[null,null,null,{"$f":"SUM(D31:D35)","v":372619.07999999996},170818.38576500025,171230.79786632856,164957.84585587372,164414.8260225674]

{"sheet":"Opex Weighting","index":12,"n_rows":48,"n_cols":13,"rows_kept":48,"cut":false,"hidden":false,"merged":[[14,3,14,7],[1,3,1,7]]}
[null,"$2016-17 base data"]
[null,"Extract information from 'Capex Forecast Model - Standard Control - Summary Output - January 2018'"]
[null,null,null,{"$f":"'Master Data'!K$25","v":"2019-20"},{"$f":"'Master Data'!L$25","v":"2020-21"},{"$f":"'Master Data'!M$25","v":"2021-22"},{"$f":"'Master Data'!N$25","v":"2022-23"},{"$f":"'Master Data'!O$25","v":"2023-24"},{"$f":"'Master Data'!P$25","v":"2024-25"},{"$f":"'Master Data'!Q$25","v":"2025-26"},{"$f":"'Master Data'!R$25","v":"2026-27"},{"$f":"'Master Data'!S$25","v":"2027-28"},{"$f":"'Master Data'!T$25","v":"2028-29"}]
[null,"Work category description","Work categories","2019/20","2020/21","2021/22","2022/23","2023/24","2024/25","2025/26","2026/27","2027/28","2028/29"]
[null,"Opex - Road lighting - bulk lamp replacement program","RLBLR",1125770.1399999999,1147383.25,1168786.52,1190399.6299999999,1211802.8999999999]
[null,"Opex - Road Lighting UG Cable Inspection & Monitoring","RLCIM",4566.2,4566.2,4566.2,4566.2,4566.2]
[null,"Opex - Remove redundant OH Switchwire","RLDEC",628600,628600,628600,628600,628600]
[null,"Opex - Road lighting Inspection","RLICM",91452.24,91452.24,36227.599999999999,36227.599999999999,36227.599999999999]
[null,"Opex - Road lighting repairs","RLREM",343887.49,337703.56,213345.78999999998,207161.86,200977.91999999998]
[null,"Opex - Road Lighting Underground System Asset Repair","RLSAR",6756.8,6756.8,6756.8,6756.8,6756.8]
[null,"Total POW Opex",null,{"$f":"SUM(D5:D10)","v":2201032.8699999996},2216462.0499999998,2058282.9100000001,2073712.09,2088931.42]
[null,"Opex ex Corporate OH TAB",null,{"$f":"'Corporate OH'!$C4","v":2201032.87},{"$f":"'Corporate OH'!$C5","v":2219392.4451179998},{"$f":"'Corporate OH'!$C6","v":2063288.5457727478},{"$f":"'Corporate OH'!$C7","v":2081202.4780837307},{"$f":"'Corporate OH'!$C8","v":2098894.1489072675}]
[null,"Allocate difference to bulk lamp replacement program",{"$f":"C5","v":"RLBLR"},{"$f":"D12-D11","v":0},{"$f":"E12-E11","v":2930.3951179999858},5005.6357727476861,7490.3880837305915,9962.728907267563]
[]
[]
[null,"Indirect POW OPEX allocation Public and Contract"]
[null,"RLBLR allocated with Materials and installation",null,{"$f":"D3","v":"2019-20"},"2020-21","2021-22","2022-23","2023-24","2024-25","2025-26","2026-27","2027-28","2028-29"]
[]
[null,{"$f":"B6","v":"Opex - Road Lighting UG Cable Inspection & Monitoring"},"RLCIM",4566.2,4566.2,4566.2,4566.2,4566.2]
[null,{"$f":"B7","v":"Opex - Remove redundant OH Switchwire"},"RLDEC",628600,628600,628600,628600,628600]
[]
[null,null,null,{"$f":"SUM(D19:D21)","v":633166.19999999995},{"$f":"SUM(E19:E21)","v":633166.19999999995},{"$f":"SUM(F19:F21)","v":633166.19999999995},{"$f":"SUM(G19:G21)","v":633166.19999999995},{"$f":"SUM(H19:H21)","v":633166.19999999995}]
[]
[null,"Total Lights",null,{"$f":"VLOOKUP($B24,Volumes!$B$86:$H$86,MATCH('Opex Weighting'!D17,Volumes!$B$4:$H$4,0),FALSE)","v":52072},{"$f":"VLOOKUP($B24,Volumes!$B$86:$H$86,MATCH('Opex Weighting'!E17,Volumes!$B$4:$H$4,0),FALSE)","v":52157},{"$f":"VLOOKUP($B24,Volumes!$B$86:$H$86,MATCH('Opex Weighting'!F17,Volumes!$B$4:$H$4,0),FALSE)","v":52584},{"$f":"VLOOKUP($B24,Volumes!$B$86:$H$86,MATCH('Opex Weighting'!G17,Volumes!$B$4:$H$4,0),FALSE)","v":53149},{"$f":"VLOOKUP($B24,Volumes!$B$86:$H$86,MATCH('Opex Weighting'!H17,Volumes!$B$4:$H$4,0),FALSE)","v":53771}]
[null,null,null,{"$f":"D22/D24","v":12.159436933476723},12.139620760396495,12.041042902784117,11.913040696908689,11.775235721857506]
[]
[null,"Indirect POW OPEX allocation Public"]
[null,{"$f":"B8","v":"Opex - Road lighting Inspection"},"RLICM",91452.24,91452.24,36227.599999999999,36227.599999999999,36227.599999999999]
[null,{"$f":"B9","v":"Opex - Road lighting repairs"},"RLREM",343887.49,337703.56,213345.78999999998,207161.86,200977.91999999998]
[null,{"$f":"B10","v":"Opex - Road Lighting Underground System Asset Repair"},"RLSAR",6756.8,6756.8,6756.8,6756.8,6756.8]
[null,null,null,{"$f":"SUM(D28:D30)","v":442096.52999999997},{"$f":"SUM(E28:E30)","v":435912.6},{"$f":"SUM(F28:F30)","v":256330.18999999997},{"$f":"SUM(G28:G30)","v":250146.25999999998},{"$f":"SUM(H28:H30)","v":243962.31999999998}]
[]
[null,"Total Public Lighting",null,{"$f":"VLOOKUP($B33,Volumes!$B$82:$H$82,MATCH('Opex Weighting'!D17,Volumes!$B$4:$H$4,0),FALSE)","v":32500},{"$f":"VLOOKUP($B33,Volumes!$B$82:$H$82,MATCH('Opex Weighting'!E17,Volumes!$B$4:$H$4,0),FALSE)","v":31724},{"$f":"VLOOKUP($B33,Volumes!$B$82:$H$82,MATCH('Opex Weighting'!F17,Volumes!$B$4:$H$4,0),FALSE)","v":32151},{"$f":"VLOOKUP($B33,Volumes!$B$82:$H$82,MATCH('Opex Weighting'!G17,Volumes!$B$4:$H$4,0),FALSE)","v":32714},{"$f":"VLOOKUP($B33,Volumes!$B$82:$H$82,MATCH('Opex Weighting'!H17,Volumes!$B$4:$H$4,0),FALSE)","v":33321}]
[null,null,null,{"$f":"D31/D33","v":13.602970153846153},13.740783003404362,7.9726972722465854,7.6464590083756185,7.3215785840761072]
[]
[null,"Indirect POW OPEX allocation Private"]
[]
[]
[null,null,null,{"$f":"SUM(D37:D38)","v":0},0,0,0,0]
[]
[null,"Total Private",null,{"$f":"VLOOKUP($B41,Volumes!$B$34:$H$34,MATCH('Opex Weighting'!D17,Volumes!$B$4:$H$4,0),FALSE)","v":19572},{"$f":"VLOOKUP($B41,Volumes!$B$34:$H$34,MATCH('Opex Weighting'!E17,Volumes!$B$4:$H$4,0),FALSE)","v":20433},{"$f":"VLOOKUP($B41,Volumes!$B$34:$H$34,MATCH('Opex Weighting'!F17,Volumes!$B$4:$H$4,0),FALSE)","v":20433},{"$f":"VLOOKUP($B41,Volumes!$B$34:$H$34,MATCH('Opex Weighting'!G17,Volumes!$B$4:$H$4,0),FALSE)","v":20435},{"$f":"VLOOKUP($B41,Volumes!$B$34:$H$34,MATCH('Opex Weighting'!H17,Volumes!$B$4:$H$4,0),FALSE)","v":20450}]
[null,null,null,{"$f":"D39/D41","v":0},{"$f":"E39/E41","v":0},{"$f":"F39/F41","v":0},{"$f":"G39/G41","v":0},{"$f":"H39/H41","v":0}]
[]
[]
[]
[null,"Public Lighting Total rate",null,{"$f":"D25+D34","v":25.762407087322877},{"$f":"E25+E34","v":25.880403763800857},20.013740175030701,19.55949970528431,{"$f":"H25+H34","v":19.096814305933613}]
[]
[null,"Private Contract Lighting Total rate",null,{"$f":"D25+D42","v":12.159436933476723},{"$f":"E25+E42","v":12.139620760396495},12.041042902784117,11.913040696908689,11.775235721857506]

{"sheet":"Building Block","index":13,"n_rows":52,"n_cols":12,"rows_kept":52,"cut":false,"hidden":false,"merged":[]}
[null,"$2016-17 base data"]
[null,"Extract information from 'Capex Forecast Model - Standard Control - Summary Output - January 2018'"]
[null,"Forecast Capital Expenditure",{"$f":"'Master Data'!K25","v":"2019-20"},{"$f":"'Master Data'!L25","v":"2020-21"},{"$f":"'Master Data'!M25","v":"2021-22"},{"$f":"'Master Data'!N25","v":"2022-23"},{"$f":"'Master Data'!O25","v":"2023-24"},{"$f":"'Master Data'!P25","v":"2024-25"},{"$f":"'Master Data'!Q25","v":"2025-26"},{"$f":"'Master Data'!R25","v":"2026-27"},{"$f":"'Master Data'!S25","v":"2027-28"},{"$f":"'Master Data'!T25","v":"2028-29"}]
[null,"Motor Vehicles",0.10899577514952007,9.3785525782329515E-2,5.3627268740713198E-2,4.721453462992866E-2,6.7183932940717658E-2]
[null,"Minor Assets",0.78296493533370926,0.59776434649440469,0.23092350224340105,0.28807607381553757,0.28429951738940845]
[null,"Non-System Property",0.17807905302327365,0.11347753113646665,2.4449965973891555E-2,2.1977694808916114E-2,1.0635232955948648E-2]
[null,"Business Management Systems",0.10059656259698438,6.1731986385003532E-2,3.5029168327632601E-2,0.30122303034678649,0.3552835436411389]
[null,"NEM Assets"]
[null,"Streetlighting",{"$f":"'Corporate OH'!$F18/10^6","v":3.5192266437500006},{"$f":"'Corporate OH'!$F19/10^6","v":3.2739229385124995},{"$f":"'Corporate OH'!$F20/10^6","v":1.8741620758173174},{"$f":"'Corporate OH'!$F21/10^6","v":1.8709541886350363},{"$f":"'Corporate OH'!$F22/10^6","v":1.9080282489289342}]
[null,"Spare Parts"]
[null,"Overhead High Voltage Lines Rural"]
[null,null,{"$f":"SUM(C4:C11)","v":4.6898629698534879},4.1406823283107039,2.2181919811029558,2.5294455222362053,2.625430475856148]
[null,null,6.2012499900551123,5.6916949435900701,3.6504360869915402,3.9451333184507247,4.0180963653224726]
[null,null,{"$f":"C12-C13","v":-1.5113870202016244},-1.5510126152793662,-1.4322441058885844,-1.4156877962145193,-1.3926658894663246]
[null,"Re-order into PTRM order"]
[null,"Spare Parts",{"$f":"C10","v":0},0,0,0,0]
[null,"Motor Vehicles",{"$f":"C4","v":0.10899577514952007},9.3785525782329515E-2,5.3627268740713198E-2,4.721453462992866E-2,6.7183932940717658E-2]
[null,"Minor Assets",{"$f":"C5","v":0.78296493533370926},0.59776434649440469,0.23092350224340105,0.28807607381553757,0.28429951738940845]
[null,"NEM Assets",{"$f":"C8","v":0},0,0,0,0]
[null,"Streetlights",{"$f":"C9","v":3.5192266437500006},3.2739229385124995,1.8741620758173174,1.8709541886350363,1.9080282489289342]
[null,"Non System Property",{"$f":"C6","v":0.17807905302327365},0.11347753113646665,2.4449965973891555E-2,2.1977694808916114E-2,1.0635232955948648E-2]
[null,"Business Management Systems",{"$f":"C7","v":0.10059656259698438},6.1731986385003532E-2,3.5029168327632601E-2,0.30122303034678649,0.3552835436411389]
[null,"Overhead High Voltage Lines Rural",{"$f":"C11","v":0},0,0,0,0]
[null,null,{"$f":"SUM(C16:C23)","v":4.6898629698534888},{"$f":"SUM(D16:D23)","v":4.1406823283107039},2.2181919811029558,2.5294455222362053,2.6254304758561475]
[]
[]
[null,"Corporate Capex",{"$f":"(C24-C20)*1000000","v":1170636.3261034882},{"$f":"(D24-D20)*1000000","v":866759.38979820441},344029.90528563835,658491.33360116906,717402.22692721337]
[]
[]
[null,"Forecast Operational and Maintenance Expenditure ($m 2016-17)",{"$f":"'Master Data'!K$25","v":"2019-20"},{"$f":"'Master Data'!L$25","v":"2020-21"},{"$f":"'Master Data'!M$25","v":"2021-22"},{"$f":"'Master Data'!N$25","v":"2022-23"},{"$f":"'Master Data'!O$25","v":"2023-24"}]
[null,"Corporate Overheads Per Light"]
[null,"Total Private",{"$f":"VLOOKUP($B32,Volumes!$B$34:$H$34,MATCH('Building Block'!C$30,Volumes!$B$4:$H$4,0),FALSE)","v":19572},{"$f":"VLOOKUP($B32,Volumes!$B$34:$H$34,MATCH('Building Block'!D$30,Volumes!$B$4:$H$4,0),FALSE)","v":20433},{"$f":"VLOOKUP($B32,Volumes!$B$34:$H$34,MATCH('Building Block'!E$30,Volumes!$B$4:$H$4,0),FALSE)","v":20433},{"$f":"VLOOKUP($B32,Volumes!$B$34:$H$34,MATCH('Building Block'!F$30,Volumes!$B$4:$H$4,0),FALSE)","v":20435},{"$f":"VLOOKUP($B32,Volumes!$B$34:$H$34,MATCH('Building Block'!G$30,Volumes!$B$4:$H$4,0),FALSE)","v":20450}]
[null,"Total Public Lighting",{"$f":"VLOOKUP($B33,Volumes!$B$82:$H$82,MATCH('Building Block'!C$30,Volumes!$B$4:$H$4,0),FALSE)","v":32500},{"$f":"VLOOKUP($B33,Volumes!$B$82:$H$82,MATCH('Building Block'!D$30,Volumes!$B$4:$H$4,0),FALSE)","v":31724},{"$f":"VLOOKUP($B33,Volumes!$B$82:$H$82,MATCH('Building Block'!E$30,Volumes!$B$4:$H$4,0),FALSE)","v":32151},{"$f":"VLOOKUP($B33,Volumes!$B$82:$H$82,MATCH('Building Block'!F$30,Volumes!$B$4:$H$4,0),FALSE)","v":32714},{"$f":"VLOOKUP($B33,Volumes!$B$82:$H$82,MATCH('Building Block'!G$30,Volumes!$B$4:$H$4,0),FALSE)","v":33321}]
[null,{"$f":"Volumes!B86","v":"Total Lights"},{"$f":"VLOOKUP($B34,Volumes!$B$86:$H$86,MATCH('Building Block'!C$30,Volumes!$B$4:$H$4,0),FALSE)","v":52072},{"$f":"VLOOKUP($B34,Volumes!$B$86:$H$86,MATCH('Building Block'!D$30,Volumes!$B$4:$H$4,0),FALSE)","v":52157},{"$f":"VLOOKUP($B34,Volumes!$B$86:$H$86,MATCH('Building Block'!E$30,Volumes!$B$4:$H$4,0),FALSE)","v":52584},{"$f":"VLOOKUP($B34,Volumes!$B$86:$H$86,MATCH('Building Block'!F$30,Volumes!$B$4:$H$4,0),FALSE)","v":53149},{"$f":"VLOOKUP($B34,Volumes!$B$86:$H$86,MATCH('Building Block'!G$30,Volumes!$B$4:$H$4,0),FALSE)","v":53771}]
[null,"CAPEX Corporate Overheads",{"$f":"'Corporate OH'!D18","v":703845.3287500001},{"$f":"'Corporate OH'!D19","v":654784.58770249994},{"$f":"'Corporate OH'!D20","v":374832.41516346345},{"$f":"'Corporate OH'!D21","v":374190.83772700722},{"$f":"'Corporate OH'!D22","v":381605.64978578687}]
[null,"OPEX Corporate Overheads",{"$f":"('Corporate OH'!D4+'Corporate OH'!E4)","v":550258.21750000003},{"$f":"('Corporate OH'!D5+'Corporate OH'!E5)","v":554848.11127949995},{"$f":"('Corporate OH'!D6+'Corporate OH'!E6)","v":515822.13644318708},{"$f":"('Corporate OH'!D7+'Corporate OH'!E7)","v":520300.61952093261},{"$f":"('Corporate OH'!D8+'Corporate OH'!E8)","v":524723.53722681687}]
[null,"Annual Allocation"]
[]
[null,"Public Lighting Total rate",{"$f":"(C35/C33)+(C36/C34)","v":32.224036557323004},{"$f":"(D35/D33)+(D36/D34)","v":31.278075996100256},21.467987799581408,21.22771925228782,21.210892633443169]
[null,"Private Contract Lighting Total rate",{"$f":"(C36/C34)","v":10.567257211169151},{"$f":"(D36/D34)","v":10.638037296614067},9.8094883699069495,9.7894714768092079,9.7584857493224391]
[]
[]
[null,"Opening Regulatory Asset Base for 2018-19 ($m Nominal)","Opening Asset Value","Average Remaining Life (Year)","Standard Life (Year)","Opening Tax Value","Average Tax Remaining Life (Year)","Tax Standard Life (Year)"]
[null,"Spare Parts",0,"n/a",5,0,"n/a",0]
[null,"Motor Vehicles",323270.78237482277,4.6592782087319993,6,0.21181783904508272,4.715859284066811,0]
[null,"Minor Assets",2371072.5227475758,3.977220119552209,5,1.8246116429487893,4.0019385555615719,0]
[null,"NEM Assets",-5959.6732853384601,1,5,8.9214773550785831E-2,1,0]
[null,"Streetlights"]
[null,"Non System Property",206846.28634556208,42.494829550993522,40,0.10298002636615974,41.911042117181033,0]
[null,"Business Management Systems",0,null,10,0,null,0]
[null,"Overhead High Voltage Lines Rural",430735.22452455468,16.585293013920541,35,0.37138222288061229,15.585293013920541,0]
[null,"Indirect POW Capex",{"$f":"524403.84*('Master Data'!J37)","v":547507.7697224525},39,40]

{"sheet":"Corporate OH","index":14,"n_rows":27,"n_cols":12,"rows_kept":27,"cut":false,"hidden":false,"merged":[[1,9,1,11],[1,7,1,8],[15,7,15,8]]}
["$2016-17 base data","Extract information from 'Capex Forecast Model - Standard Control - Summary Output - January 2018'"]
["R19 OPEX",null,null,null,null,null,null,"AER Draft Decision",null,"August 2018 Submission"]
[null,"Expenditure Type","Amount","Internal Overheads (WSD)","Internal Overheads (Corp)","Total Opex including OH and capitalised labour",null,"Total Opex Overheads","Adjustment Total Opex Overheads","Total Opex Overheads","Internal Overheads (WSD)","Internal Overheads (Corp)"]
["2019/20","Alternative Control Public Lighting Opex",2201032.87,{"$f":"H4*K4/J4","v":122859.32133527067},{"$f":"H4*L4/J4","v":427398.89616472932},{"$f":"SUM(C4:E4)","v":2751291.0874999999},null,{"$f":"SUM(I4:J4)","v":550258.21750000003},{"$f":"C4*25%-J4","v":-965606.78249999997},{"$f":"SUM(K4:L4)","v":1515865},338455.90890405932,1177409.0910959407]
["2020/21","Alternative Control Public Lighting Opex",2219392.4451179998,{"$f":"H5*K5/J5","v":123208.87133372818},{"$f":"H5*L5/J5","v":431639.23994577181},{"$f":"SUM(C5:E5)","v":2774240.5563974995},null,{"$f":"SUM(I5:J5)","v":554848.11127949995},{"$f":"C5*25%-J5","v":-978148.88872050005},{"$f":"SUM(K5:L5)","v":1532997},340415.37907091336,1192581.6209290866]
["2021/22","Alternative Control Public Lighting Opex",2063288.5457727478,112443.40859898996,403378.72784419713,2579110.6822159351,null,515822.13644318702,-856688.86355681298,1372511,299191.9196096895,1073319.0803903106]
["2022/23","Alternative Control Public Lighting Opex",2081202.4780837307,113673.81418696389,406626.80533396872,2601503.0976046631,null,520300.61952093267,-824374.38047906733,1344675,293780.80739668629,1050894.1926033136]
["2023/24","Alternative Control Public Lighting Opex",2098894.1489072675,114112.00941214275,410611.52781467407,2623617.6861340846,null,524723.53722681687,-836377.46277318313,1361101,295999.6247619043,1065101.3752380956]
["2024/25","Alternative Control Public Lighting Opex"]
["2025/26","Alternative Control Public Lighting Opex"]
["2026/27","Alternative Control Public Lighting Opex"]
["2027/28","Alternative Control Public Lighting Opex"]
["2028/29","Alternative Control Public Lighting Opex"]
[]
[]
["R19 CAPEX",null,null,null,null,null,null,"AER Draft Decision",null,"August 2018 Submission","August 2018 Submission","January 2018 Submission"]
[null,"Expenditure Type","Amount","Internal Overheads","Asset Disposal – as incurred","Total Capex including Ohs and capitalised labour",null,"Capex Overheads"," Adjustment Capex Overheads","Internal Overheads","Volume Adjustment Direct Costs","Direct costs"]
["2019/20","Alternative Control Public Lighting",{"$f":"SUM(K18:L18)","v":2815381.3150000004},{"$f":"H18","v":703845.3287500001},0,{"$f":"SUM(C18:D18)","v":3519226.6437500007},null,{"$f":"SUM(I18:J18)","v":703845.3287500001},{"$f":"C18*25%-J18","v":-496454.816713718},1200300.1454637181,{"$f":"'Capex Weighting'!D$17","v":-614832.15500000003},3430213.47]
["2020/21","Alternative Control Public Lighting",{"$f":"SUM(K19:L19)","v":2619138.3508099997},{"$f":"H19","v":654784.58770249994},0,{"$f":"SUM(C19:D19)","v":3273922.9385124994},null,{"$f":"SUM(I19:J19)","v":654784.58770249994},{"$f":"C19*25%-J19","v":-539514.05703389947},1194298.6447363994,{"$f":"'Capex Weighting'!E$17","v":-613399.01},3232537.36081]
["2021/22","Alternative Control Public Lighting",{"$f":"SUM(K20:L20)","v":1499329.660653854},374832.41516346345,0,1874162.0758173175,null,374832.41516346345,-807523.2431255721,1182355.6582890355,{"$f":"'Capex Weighting'!F$17","v":-230602.31},1729931.9706538541]
["2022/23","Alternative Control Public Lighting",{"$f":"SUM(K21:L21)","v":1496763.3509080291},374190.83772700722,0,1870954.1886350363,null,374190.83772700722,-796341.26397913764,1170532.1017061449,{"$f":"'Capex Weighting'!G$17","v":-229169.16500000001},1725932.5159080292]
["2023/24","Alternative Control Public Lighting",{"$f":"SUM(K22:L22)","v":1526422.5991431472},381605.64978578687,0,1908028.2489289341,null,381605.64978578687,-777221.13090329687,1158826.7806890837,{"$f":"'Capex Weighting'!H$17","v":-229169.16500000001},1755591.7641431473]
["2024/25","Alternative Control Public Lighting"]
["2025/26","Alternative Control Public Lighting"]
["2026/27","Alternative Control Public Lighting"]
["2027/28","Alternative Control Public Lighting"]
["2028/29","Alternative Control Public Lighting"]

{"sheet":"Inputs","index":15,"n_rows":153,"n_cols":40,"rows_kept":153,"cut":false,"hidden":false,"merged":[[66,24,66,28],[66,35,66,39],[48,8,49,8],[66,8,66,15],[66,16,66,23],[66,30,66,34]]}
[]
[null,null,"Cost data Inputs"]
[]
[null,null,"Pre-tax Real WACC Rate",{"$f":"'Master Data'!B46","v":3.4310452188433649E-2}]
[]
[null,null,"Warehousing costs",8.2000000000000003E-2]
[]
[null,null,"Asset Lives (yrs)"]
[null,null,"Luminaire Fitting Life",20]
[null,null,"Bracket Life",40]
[null,null,"PE Cell"]
[null,null,"LED",10]
[null,null,"Other",8]
[]
[null,null,"Maintenance life cycle"]
[null,null,"Lamp Maintenance"]
[null,null,"LED",20]
[null,null,"Other",4]
[]
[null,null,"Maintenance Life Cycle for allocations",20]
[]
[]
[null,"Public Lighting Installation Cost - includes Warehouse Handling Fee"]
[null,null,"Unit Rate (16/17 Dollars)","Linked to POW"]
[null,"CAPEX",null,"Linked Values","Static Values"]
[null,"RLMAJ","Replace luminaires - major (Bulk Replacement)",802,802,{"$f":"E26=D26","v":true}]
[null,"RLMIN","Replace luminaires – minor (Bulk Replacement)",572,572,{"$f":"E27=D27","v":true}]
[null,"OPEX","Road lighting - bulk lamp replacement program - minor",152,152,{"$f":"E28=D28","v":true}]
[null,null,"Road lighting - bulk lamp replacement program - major",220,220,{"$f":"E29=D29","v":true}]
[]
[null,null,"Unit Rates (2016-17 dollars)",{"$f":"'Master Data'!$H$37","v":1}]
[null,null,"Work Category Code",{"$f":"'Master Data'!I$25","v":"2017-18"}]
[null,{"$f":"B25","v":"CAPEX"},{"$f":"C26","v":"Replace luminaires - major (Bulk Replacement)"},{"$f":"E26*'Master Data'!$H$37","v":802}]
[null,null,{"$f":"C27","v":"Replace luminaires – minor (Bulk Replacement)"},{"$f":"E27*'Master Data'!$H$37","v":572}]
[null,{"$f":"B28","v":"OPEX"},{"$f":"C28","v":"Road lighting - bulk lamp replacement program - minor"},{"$f":"E28*'Master Data'!$H$37","v":152}]
[null,null,{"$f":"C29","v":"Road lighting - bulk lamp replacement program - major"},{"$f":"E29*'Master Data'!$H$37","v":220}]
[]
[null,null,"Capex - Replace luminaires ",null,"Labour","Material","Contractor","Plant ","Other","TOTAL","net of materials"]
[null,null,"LMCO % Split of the Unit rate as per the POW",null,0.13859275053304906,0.47413309392885206,0.36337111435304681,2.3903041185052189E-2,0,{"$f":"SUM(E39:I39)","v":1.0000000000000002}]
[null,"RLMAJ","LMCO $ Split of the Unit rate as per the POW",null,{"$f":"$D$33*E39","v":111.15138592750534},{"$f":"$D$33*F39","v":380.25474133093934},291.42363371114357,19.170239030411857,0,802.00000000000023,{"$f":"J40-F40","v":421.74525866906089},{"$f":"D33=J40","v":true}]
[]
[null,null,"LMCO % Split of the Unit rate as per the POW",null,0.12663902455237355,0.5315476847969991,0.32052000337878961,2.1293287271837765E-2,0,{"$f":"SUM(E42:I42)","v":1}]
[null,"RLMIN","LMCO $ Split of the Unit rate as per the POW",null,{"$f":"$D$34*E42","v":72.437522043957671},304.04527570388348,183.33744193266764,12.179760319491201,0,572,{"$f":"J43-F43","v":267.95472429611652},{"$f":"D34=J43","v":true}]
[]
[null,null,"Opex - Road lighting - bulk lamp replacement program",null,"Labour","Material","Contractor","Plant ","Other","TOTAL"]
[null,"RLBLR","LMCO % Split of the Unit rate as per the POW",null,5.0534703292094779E-2,0.20633256447892642,0.7320192912560286,1.0589222059131893E-2,5.242189138184106E-4,{"$f":"SUM(E46:I46)","v":1.0000000000000002}]
[null,"Minor","LMCO $ Split of the Unit rate as per the POW",null,{"$f":"$D$35*E46","v":7.6812749003984067},{"$f":"$D$35*F46","v":31.362549800796817},111.26693227091634,1.6095617529880477,7.9681274900398419E-2,152.00000000000003,null,{"$f":"J47=D35","v":true}]
[null,"Major","LMCO $ Split of the Unit rate as per the POW",null,{"$f":"$D$36*E46","v":11.117634724260851},45.393164185363815,161.04424407632629,2.3296288530090163,0.11532816104005034,220.00000000000006,null,{"$f":"J48=D36","v":true}]
[null,null,null,null,null,null,null,null,"Net of Materials",{"$f":"J47-F47","v":120.63745019920322}]
[null,"PE Cell cost to Purchase - Excluding Warehouse Handling Fee",null,null,null,null,null,null,null,{"$f":"J48-F48","v":174.60683581463624}]
[null,null,"Cost Per unit 2016/17 Contract Price"]
[null,"Raw cost from Contract",null,"Linked Values","Static Values"]
[null,"RLMAJ","Replacement of Photo Electric Cell Major Road",{"$f":"'Warehouse Pricing'!W55","v":15.647850640000001},15.647850640000001,{"$f":"E53=D53","v":true}]
[null,"RLMIN","Replacement of Photo Electric Cell Minor Road",{"$f":"'Warehouse Pricing'!W56","v":5.3725744166666676},5.3725744166666676,{"$f":"E54=D54","v":true}]
[null,"Inclusive of Warehouse Handling Fee"]
[null,null,null,{"$f":"D53*(1+$D$6)","v":16.930974392480003},16.930974392480003,{"$f":"E56=D56","v":true}]
[null,null,null,{"$f":"D54*(1+$D$6)","v":5.8131255188333348},5.8131255188333348,{"$f":"E57=D57","v":true}]
[]
[null,null,"Unit Rates (2016-17 dollars)"]
[null,null,"Work Category Code"]
[null,{"$f":"B53","v":"RLMAJ"},{"$f":"C53","v":"Replacement of Photo Electric Cell Major Road"},{"$f":"E56","v":16.930974392480003}]
[null,{"$f":"B54","v":"RLMIN"},{"$f":"C54","v":"Replacement of Photo Electric Cell Minor Road"},{"$f":"E57","v":5.8131255188333348}]
[]
[null,null,null,null,null,null,null,null,null,null,null,null,null,null,null,null,null,null,null,null,null,null,null,null,null,"Warehouse"]
[null,null,null,null,null,null,null,null,null,null,null,null,null,null,null,null,null,null,null,null,null,null,null,null,null,"Index old"]
[]
[null,null,null,"Light types, watts and loads have been taken from the corporate plan model",null,"Link to file Nominal Wattage",null,null,"OPEX",null,null,null,null,null,null,null,"OPEX",null,null,null,null,null,null,null,"CAPEX",null,null,null,null,null,"Spare",null,null,null,null,"CAPEX"]
[null,null,"Light Description","Light type","FIXTC_CODE","Nominal Wattage","Number Lamps","Major/Minor size","PE Cell Maintenance Cycle","PE Cell UNIT price","PE Cell UNIT price Annualised Cost","PE Cell Service costs","PE Cell Service costs Annualised","Labour Portion of PE Cell Service costs Annualised","20 year life cycle cost","PE Cell Annualised Cost","Lamp Maintenance cycle","Lamp UNIT price","Lamp UNIT price Annualised Cost","Lamp Service costs","Lamp Service costs Annualised","Labour Portion of Lamp Service costs annualised","20 year life cycle cost","LAMP Annualised Cost","luminaire  Maintenance cycle","Luminaire UNIT price","CAPEX Instalation costs","20 year life cycle cost","Lamp Annualised Cost","Labour Portion of CAPEX Instalation costs","  Maintenance cycle","UNIT price","Service costs","20 year life cycle cost","Annualised Cost","Bracket  Maintenance cycle","Bracket UNIT price","Bracket Service costs","20 year life cycle cost","Bracket Annualised Cost"]
[null,1,"32W Compact Fluorescent","Compact Fluorescent 32","CFL_32",32,1,{"$f":"IF(F69>=100,\"RLMAJ\",IF(LEFT($E69,6)=\"LED_14\",\"RLMAJ\",\"RLMIN\"))","v":"RLMIN"},{"$f":"IF(LEFT($D69,3)=\"LED\",$D$12,$D$13)","v":8},{"$f":"VLOOKUP(H69,$B$61:$D$62,3,FALSE)","v":5.8131255188333348},{"$f":"IFERROR((ROUNDDOWN((($D$20-0.1)/I69),0)*SUM(J69))/$D$20,0)","v":0.58131255188333353},{"$f":"IF(LEFT($D69,3)=\"LED\",IF($F69>=100,($J$48-$F$48),($J$47-$F$47)),\"NA included in Lamp cycle\")","v":"NA included in Lamp cycle"},{"$f":"IFERROR((ROUNDDOWN((($D$20-0.1)/I69),0)*SUM(L69))/$D$20,0)","v":0},{"$f":"IF(LEFT($D69,3)=\"LED\",IF($F69>=100,($E$48/$J$50)*M69,($E$47/$J$49)*M69),\"NA included in Lamp cycle\")","v":"NA included in Lamp cycle"},{"$f":"IFERROR(ROUNDDOWN((($D$20-0.1)/I69),0)*SUM(J69,L69),0)","v":11.62625103766667},{"$f":"IFERROR(O69/$D$20,0)","v":0.58131255188333353},{"$f":"IF(LEFT($D69,3)=\"LED\",$D$17,$D$18)","v":4},{"$f":"'Warehouse Pricing'!$Y$46*G69","v":5.4923198122346664},{"$f":"IFERROR((ROUNDDOWN((($D$20-0.1)/Q69),0)*SUM(R69))/$D$20,0)","v":1.0984639624469332},{"$f":"IF(LEFT($D69,3)=\"LED\",\"NA included in Lamp cycle\",IF($F69>=100,($J$48-$F$48),($J$47-$F$47)))","v":120.63745019920322},{"$f":"IFERROR((ROUNDDOWN((($D$20-0.1)/Q69),0)*SUM(T69))/$D$20,0)","v":24.127490039840644},{"$f":"IF(LEFT($D69,3)=\"LED\",\"NA included in Lamp cycle\",IF($F69>=100,($E$48/$J$50)*U69,($E$47/$J$49)*U69))","v":1.5362549800796814},{"$f":"IFERROR(ROUNDDOWN((($D$20-0.1)/Q69),0)*SUM(R69,T69),0)","v":504.51908004575154},{"$f":"IFERROR(W69/$D$20,0)","v":25.225954002287576},{"$f":"$D$9","v":20},{"$f":"'Warehouse Pricing'!$Y$9","v":188.90717086145477},{"$f":"IF($F69>=100,($J$40-$F$40),($J$43-$F$43))","v":267.95472429611652},{"$f":"IFERROR(($D$20/Y69)*SUM(Z69:AA69),0)","v":456.86189515757133},{"$f":"IFERROR(AB69/$D$20,0)","v":22.843094757878568},{"$f":"IF($F69>=100,($E$40/$K$40)*AA69,($E$43/$K$43)*AA69)","v":72.437522043957671},null,null,null,{"$f":"IFERROR(($D$20/AE69)*SUM(AF69:AG69),0)","v":0},{"$f":"IFERROR(AH69/$D$20,0)","v":0},{"$f":"$D$10","v":40},{"$f":"IFERROR(VLOOKUP(E69,'Bracket Summary'!$A$79:$B$122,2,FALSE),VLOOKUP(E69,'Bracket Summary'!$B$43:$V$72,MATCH('Bracket Summary'!$V$43,'Bracket Summary'!$B$43:$V$43,0),FALSE))","v":72.970104296491868},"NA included in Lminaire",{"$f":"IFERROR(($D$20/AJ69)*SUM(AK69:AL69),0)","v":36.485052148245934},{"$f":"IFERROR(AM69/$D$20,0)","v":1.8242526074122967}]
[null,{"$f":"IF(C70=\"\",\"\",IF(C69=\"\",IF(C68=\"\",IF(C67=\"\",IF(C66=\"\",\"Error\",B66+1),B67+1),B68+1),B69+1))","v":2},"42W Compact Fluorescent","Compact Fluorescent 42","CFL_42",42,1,"RLMIN",{"$f":"IF(LEFT($D70,3)=\"LED\",$D$12,$D$13)","v":8},{"$f":"VLOOKUP(H70,$B$61:$D$62,3,FALSE)","v":5.8131255188333348},{"$f":"IFERROR((ROUNDDOWN((($D$20-0.1)/I70),0)*SUM(J70))/$D$20,0)","v":0.58131255188333353},{"$f":"IF(LEFT($D70,3)=\"LED\",IF($F70>=100,($J$48-$F$48),($J$47-$F$47)),\"NA included in Lamp cycle\")","v":"NA included in Lamp cycle"},0,{"$f":"IF(LEFT($D70,3)=\"LED\",IF($F70>=100,($E$48/$J$50)*M70,($E$47/$J$49)*M70),\"NA included in Lamp cycle\")","v":"NA included in Lamp cycle"},11.62625103766667,{"$f":"IFERROR(O70/$D$20,0)","v":0.58131255188333353},4,{"$f":"'Warehouse Pricing'!$Y$46*G70","v":5.4923198122346664},{"$f":"IFERROR((ROUNDDOWN((($D$20-0.1)/Q70),0)*SUM(R70))/$D$20,0)","v":1.0984639624469332},{"$f":"IF(LEFT($D70,3)=\"LED\",\"NA included in Lamp cycle\",IF($F70>=100,($J$48-$F$48),($J$47-$F$47)))","v":120.63745019920322},{"$f":"IFERROR((ROUNDDOWN((($D$20-0.1)/Q70),0)*SUM(T70))/$D$20,0)","v":24.127490039840644},{"$f":"IF(LEFT($D70,3)=\"LED\",\"NA included in Lamp cycle\",IF($F70>=100,($E$48/$J$50)*U70,($E$47/$J$49)*U70))","v":1.5362549800796814},{"$f":"IFERROR(ROUNDDOWN((($D$20-0.1)/Q70),0)*SUM(R70,T70),0)","v":504.51908004575154},{"$f":"IFERROR(W70/$D$20,0)","v":25.225954002287576},{"$f":"$D$9","v":20},{"$f":"'Warehouse Pricing'!$Y$9","v":188.90717086145477},{"$f":"IF($F70>=100,($J$40-$F$40),($J$43-$F$43))","v":267.95472429611652},{"$f":"IFERROR(($D$20/Y70)*SUM(Z70:AA70),0)","v":456.86189515757133},{"$f":"IFERROR(AB70/$D$20,0)","v":22.843094757878568},{"$f":"IF($F70>=100,($E$40/$K$40)*AA70,($E$43/$K$43)*AA70)","v":72.437522043957671},null,null,null,{"$f":"IFERROR(($D$20/AE70)*SUM(AF70:AG70),0)","v":0},{"$f":"IFERROR(AH70/$D$20,0)","v":0},{"$f":"$D$10","v":40},{"$f":"IFERROR(VLOOKUP(E70,'Bracket Summary'!$A$79:$B$122,2,FALSE),VLOOKUP(E70,'Bracket Summary'!$B$43:$V$72,MATCH('Bracket Summary'!$V$43,'Bracket Summary'!$B$43:$V$43,0),FALSE))","v":74.686113233791573},"NA included in Lminaire",{"$f":"IFERROR(($D$20/AJ70)*SUM(AK70:AL70),0)","v":37.343056616895787},{"$f":"IFERROR(AM70/$D$20,0)","v":1.8671528308447893}]
[null,3,"42W Compact Fluorescent - Bottom Pole Entry",null,"CFL_42",42,1,"RLMIN",{"$f":"IF(LEFT($D71,3)=\"LED\",$D$12,$D$13)","v":8},{"$f":"VLOOKUP(H71,$B$61:$D$62,3,FALSE)","v":5.8131255188333348},0.58131255188333353,"NA included in Lamp cycle",0,"NA included in Lamp cycle",11.62625103766667,{"$f":"IFERROR(O71/$D$20,0)","v":0.58131255188333353},4,{"$f":"'Warehouse Pricing'!$Y$46*G71","v":5.4923198122346664},1.0984639624469332,120.63745019920322,24.127490039840644,{"$f":"IF(LEFT($D71,3)=\"LED\",\"NA included in Lamp cycle\",IF($F71>=100,($E$48/$J$50)*U71,($E$47/$J$49)*U71))","v":1.5362549800796814},504.51908004575154,{"$f":"IFERROR(W71/$D$20,0)","v":25.225954002287576},{"$f":"$D$9","v":20},{"$f":"'Warehouse Pricing'!$Y$9","v":188.90717086145477},{"$f":"IF($F71>=100,($J$40-$F$40),($J$43-$F$43))","v":267.95472429611652},{"$f":"IFERROR(($D$20/Y71)*SUM(Z71:AA71),0)","v":456.86189515757133},{"$f":"IFERROR(AB71/$D$20,0)","v":22.843094757878568},72.437522043957671,null,null,null,{"$f":"IFERROR(($D$20/AE71)*SUM(AF71:AG71),0)","v":0},{"$f":"IFERROR(AH71/$D$20,0)","v":0},{"$f":"$D$10","v":40},{"$f":"IFERROR(VLOOKUP(E71,'Bracket Summary'!$A$79:$B$122,2,FALSE),VLOOKUP(E71,'Bracket Summary'!$B$43:$V$72,MATCH('Bracket Summary'!$V$43,'Bracket Summary'!$B$43:$V$43,0),FALSE))","v":74.686113233791573},"NA included in Lminaire",{"$f":"IFERROR(($D$20/AJ71)*SUM(AK71:AL71),0)","v":37.343056616895787},{"$f":"IFERROR(AM71/$D$20,0)","v":1.8671528308447893}]
[null,4,"2x24W Compact Fluorescent","Compact Fluorescent 2x24","CFL_24x2",42,2,"RLMIN",8,5.8131255188333348,0.58131255188333353,"NA included in Lamp cycle",0,"NA included in Lamp cycle",11.62625103766667,0.58131255188333353,4,{"$f":"'Warehouse Pricing'!$Y$46*G72","v":10.984639624469333},2.1969279248938665,120.63745019920322,24.127490039840644,{"$f":"IF(LEFT($D72,3)=\"LED\",\"NA included in Lamp cycle\",IF($F72>=100,($E$48/$J$50)*U72,($E$47/$J$49)*U72))","v":1.5362549800796814},526.48835929469021,26.324417964734511,20,{"$f":"'Warehouse Pricing'!$Y$9","v":188.90717086145477},267.95472429611652,{"$f":"IFERROR(($D$20/Y72)*SUM(Z72:AA72),0)","v":456.86189515757133},{"$f":"IFERROR(AB72/$D$20,0)","v":22.843094757878568},72.437522043957671,null,null,null,0,0,40,{"$f":"IFERROR(VLOOKUP(E72,'Bracket Summary'!$A$79:$B$122,2,FALSE),VLOOKUP(E72,'Bracket Summary'!$B$43:$V$72,MATCH('Bracket Summary'!$V$43,'Bracket Summary'!$B$43:$V$43,0),FALSE))","v":96.408411541879389},"NA included in Lminaire",48.204205770939694,2.4102102885469847]
[null,5,"1x20W Fluorescent","Fluorescent 1x20","FL_1X20",20,1,"RLMIN",{"$f":"IF(LEFT($D73,3)=\"LED\",$D$12,$D$13)","v":8},{"$f":"VLOOKUP(H73,$B$61:$D$62,3,FALSE)","v":5.8131255188333348},0.58131255188333353,"NA included in Lamp cycle",0,"NA included in Lamp cycle",11.62625103766667,0.58131255188333353,4,{"$f":"'Old PL unit prices (2012-17) '!$I$19*G73","v":5.0459103989395935},1.0091820797879187,120.63745019920322,24.127490039840644,1.5362549800796814,502.73344239257125,{"$f":"IFERROR(W73/$D$20,0)","v":25.136672119628564},20,{"$f":"'Old PL unit prices (2012-17) '!$K$19","v":253.55992440889494},{"$f":"IF($F73>=100,($J$40-$F$40),($J$43-$F$43))","v":267.95472429611652},{"$f":"IFERROR(($D$20/Y73)*SUM(Z73:AA73),0)","v":521.5146487050115},{"$f":"IFERROR(AB73/$D$20,0)","v":26.075732435250575},72.437522043957671,null,null,null,0,0,40,{"$f":"IFERROR(VLOOKUP(E73,'Bracket Summary'!$A$79:$B$122,2,FALSE),VLOOKUP(E73,'Bracket Summary'!$B$43:$V$72,MATCH('Bracket Summary'!$V$43,'Bracket Summary'!$B$43:$V$43,0),FALSE))","v":133.12518584597089},"NA included in Lminaire",66.562592922985445,3.3281296461492724]
[null,6,"1x40W Fluorescent","Fluorescent 1x40","FL_1X40",40,1,"RLMIN",8,5.8131255188333348,0.58131255188333353,"NA included in Lamp cycle",0,"NA included in Lamp cycle",11.62625103766667,{"$f":"IFERROR(O74/$D$20,0)","v":0.58131255188333353},4,{"$f":"'Old PL unit prices (2012-17) '!$I$21*G74","v":5.3737189631398454},1.074743792627969,120.63745019920322,24.127490039840644,1.5362549800796814,504.04467664937226,25.202233832468615,20,{"$f":"'Old PL unit prices (2012-17) '!$K$21","v":198.67540480279561},267.95472429611652,{"$f":"IFERROR(($D$20/Y74)*SUM(Z74:AA74),0)","v":466.63012909891211},{"$f":"IFERROR(AB74/$D$20,0)","v":23.331506454945604},72.437522043957671,null,null,null,0,0,{"$f":"$D$10","v":40},{"$f":"IFERROR(VLOOKUP(E74,'Bracket Summary'!$A$79:$B$122,2,FALSE),VLOOKUP(E74,'Bracket Summary'!$B$43:$V$72,MATCH('Bracket Summary'!$V$43,'Bracket Summary'!$B$43:$V$43,0),FALSE))","v":133.12518584597089},"NA included in Lminaire",66.562592922985445,3.3281296461492724]
[null,7,"2x20W Fluorescent","Fluorescent 2X20","FL_2X20",40,2,"RLMIN",8,{"$f":"VLOOKUP(H75,$B$61:$D$62,3,FALSE)","v":5.8131255188333348},0.58131255188333353,"NA included in Lamp cycle",0,"NA included in Lamp cycle",11.62625103766667,{"$f":"IFERROR(O75/$D$20,0)","v":0.58131255188333353},4,{"$f":"'Old PL unit prices (2012-17) '!$I$19*G75","v":10.091820797879187},2.0183641595758375,{"$f":"IF(LEFT($D75,3)=\"LED\",\"NA included in Lamp cycle\",IF($F75>=100,($J$48-$F$48),($J$47-$F$47)))","v":120.63745019920322},24.127490039840644,1.5362549800796814,522.91708398832964,26.145854199416483,20,{"$f":"'Old PL unit prices (2012-17) '!$K$19","v":253.55992440889494},267.95472429611652,521.5146487050115,{"$f":"IFERROR(AB75/$D$20,0)","v":26.075732435250575},72.437522043957671,null,null,null,0,0,{"$f":"$D$10","v":40},{"$f":"IFERROR(VLOOKUP(E75,'Bracket Summary'!$A$79:$B$122,2,FALSE),VLOOKUP(E75,'Bracket Summary'!$B$43:$V$72,MATCH('Bracket Summary'!$V$43,'Bracket Summary'!$B$43:$V$43,0),FALSE))","v":133.12518584597089},"NA included in Lminaire",66.562592922985445,3.3281296461492724]
[null,8,"2x24W Fluorescent","Fluorescent 2X24","FL_2X24",48,2,"RLMIN",8,5.8131255188333348,0.58131255188333353,"NA included in Lamp cycle",0,"NA included in Lamp cycle",11.62625103766667,0.58131255188333353,4,{"$f":"'Warehouse Pricing'!Y47*G76","v":7.185023141278001},1.4370046282556002,120.63745019920322,24.127490039840644,1.5362549800796814,511.28989336192484,25.564494668096241,20,{"$f":"'Old PL unit prices (2012-17) '!$K$20","v":258.60583480783453},267.95472429611652,526.56055910395105,{"$f":"IFERROR(AB76/$D$20,0)","v":26.328027955197552},72.437522043957671,null,null,null,0,0,{"$f":"$D$10","v":40},{"$f":"IFERROR(VLOOKUP(E76,'Bracket Summary'!$A$79:$B$122,2,FALSE),VLOOKUP(E76,'Bracket Summary'!$B$43:$V$72,MATCH('Bracket Summary'!$V$43,'Bracket Summary'!$B$43:$V$43,0),FALSE))","v":133.12518584597089},"NA included in Lminaire",66.562592922985445,3.3281296461492724]
[null,9,"T5 Fluorescent 2 x 24W",null,"FL_2X24",48,2,"RLMIN",8,5.8131255188333348,0.58131255188333353,"NA included in Lamp cycle",0,"NA included in Lamp cycle",11.62625103766667,0.58131255188333353,4,{"$f":"'Old PL unit prices (2012-17) '!$I$19*G77","v":10.091820797879187},2.0183641595758375,120.63745019920322,24.127490039840644,1.5362549800796814,522.91708398832964,{"$f":"IFERROR(W77/$D$20,0)","v":26.145854199416483},{"$f":"$D$9","v":20},{"$f":"'Old PL unit prices (2012-17) '!$K$19","v":253.55992440889494},267.95472429611652,{"$f":"IFERROR(($D$20/Y77)*SUM(Z77:AA77),0)","v":521.5146487050115},{"$f":"IFERROR(AB77/$D$20,0)","v":26.075732435250575},72.437522043957671,null,null,null,0,0,{"$f":"$D$10","v":40},{"$f":"IFERROR(VLOOKUP(E77,'Bracket Summary'!$A$79:$B$122,2,FALSE),VLOOKUP(E77,'Bracket Summary'!$B$43:$V$72,MATCH('Bracket Summary'!$V$43,'Bracket Summary'!$B$43:$V$43,0),FALSE))","v":133.12518584597089},"NA included in Lminaire",66.562592922985445,3.3281296461492724]
[null,10,"20 Fluorescent 1X20FL",null,"FL_1X20",20,1,"RLMIN",8,5.8131255188333348,0.58131255188333353,"NA included in Lamp cycle",0,"NA included in Lamp cycle",11.62625103766667,0.58131255188333353,4,{"$f":"'Old PL unit prices (2012-17) '!$I$19*G78","v":5.0459103989395935},1.0091820797879187,120.63745019920322,24.127490039840644,1.5362549800796814,502.73344239257125,25.136672119628564,20,{"$f":"'Old PL unit prices (2012-17) '!$K$19","v":253.55992440889494},267.95472429611652,521.5146487050115,{"$f":"IFERROR(AB78/$D$20,0)","v":26.075732435250575},72.437522043957671,null,null,null,0,0,40,{"$f":"IFERROR(VLOOKUP(E78,'Bracket Summary'!$A$79:$B$122,2,FALSE),VLOOKUP(E78,'Bracket Summary'!$B$43:$V$72,MATCH('Bracket Summary'!$V$43,'Bracket Summary'!$B$43:$V$43,0),FALSE))","v":133.12518584597089},"NA included in Lminaire",66.562592922985445,{"$f":"IFERROR(AM78/$D$20,0)","v":3.3281296461492724}]
[null,11,"2x40W Fluorescent","Fluorescent 2x40","FL_2X40",80,2,"RLMIN",8,5.8131255188333348,0.58131255188333353,"NA included in Lamp cycle",0,"NA included in Lamp cycle",11.62625103766667,0.58131255188333353,4,{"$f":"'Old PL unit prices (2012-17) '!$I$21*G79","v":10.747437926279691},2.1494875852559381,{"$f":"IF(LEFT($D79,3)=\"LED\",\"NA included in Lamp cycle\",IF($F79>=100,($J$48-$F$48),($J$47-$F$47)))","v":120.63745019920322},24.127490039840644,1.5362549800796814,525.53955250193167,26.276977625096585,{"$f":"$D$9","v":20},{"$f":"'Old PL unit prices (2012-17) '!$K$21","v":198.67540480279561},267.95472429611652,466.63012909891211,{"$f":"IFERROR(AB79/$D$20,0)","v":23.331506454945604},72.437522043957671,null,null,null,0,0,{"$f":"$D$10","v":40},{"$f":"IFERROR(VLOOKUP(E79,'Bracket Summary'!$A$79:$B$122,2,FALSE),VLOOKUP(E79,'Bracket Summary'!$B$43:$V$72,MATCH('Bracket Summary'!$V$43,'Bracket Summary'!$B$43:$V$43,0),FALSE))","v":133.12518584597089},"NA included in Lminaire",66.562592922985445,3.3281296461492724]
[null,12,"3x40W Fluorescent","Fluorescent 3x40","FL_3X40",120,3,{"$f":"IF(F80>=100,\"RLMAJ\",IF(LEFT($E80,6)=\"LED_14\",\"RLMAJ\",\"RLMIN\"))","v":"RLMAJ"},8,16.930974392480003,1.6930974392480003,"NA included in Lamp cycle",0,"NA included in Lamp cycle",33.861948784960006,1.6930974392480003,4,{"$f":"'Old PL unit prices (2012-17) '!$I$21*G80","v":16.121156889419538},3.2242313778839078,174.60683581463624,34.921367162927247,2.2235269448521704,762.91197081622317,38.145598540811157,20,{"$f":"'Old PL unit prices (2012-17) '!$K$21","v":198.67540480279561},{"$f":"IF($F80>=100,($J$40-$F$40),($J$43-$F$43))","v":421.74525866906089},620.42066347185653,31.021033173592826,111.15138592750534,null,null,null,0,0,40,{"$f":"IFERROR(VLOOKUP(E80,'Bracket Summary'!$A$79:$B$122,2,FALSE),VLOOKUP(E80,'Bracket Summary'!$B$43:$V$72,MATCH('Bracket Summary'!$V$43,'Bracket Summary'!$B$43:$V$43,0),FALSE))","v":133.12518584597089},"NA included in Lminaire",66.562592922985445,3.3281296461492724]
[null,13,"4x20 Fluorescent","Fluorescent 4x20","FL_4X20",80,4,"RLMIN",8,5.8131255188333348,0.58131255188333353,"NA included in Lamp cycle",0,"NA included in Lamp cycle",11.62625103766667,0.58131255188333353,4,{"$f":"'Old PL unit prices (2012-17) '!$I$19*G81","v":20.183641595758374},4.036728319151675,120.63745019920322,24.127490039840644,1.5362549800796814,563.28436717984641,28.164218358992322,20,{"$f":"'Old PL unit prices (2012-17) '!$K$19","v":253.55992440889494},267.95472429611652,521.5146487050115,26.075732435250575,72.437522043957671,null,null,null,0,0,40,{"$f":"IFERROR(VLOOKUP(E81,'Bracket Summary'!$A$79:$B$122,2,FALSE),VLOOKUP(E81,'Bracket Summary'!$B$43:$V$72,MATCH('Bracket Summary'!$V$43,'Bracket Summary'!$B$43:$V$43,0),FALSE))","v":133.12518584597089},"NA included in Lminaire",66.562592922985445,3.3281296461492724]
[null,14,"4x40W Fluorescent","Fluorescent 4x40","FL_4X40",160,4,"RLMAJ",8,16.930974392480003,1.6930974392480003,"NA included in Lamp cycle",0,"NA included in Lamp cycle",33.861948784960006,1.6930974392480003,4,{"$f":"'Old PL unit prices (2012-17) '!$I$21*G82","v":21.494875852559382},4.2989751705118762,174.60683581463624,34.921367162927247,2.2235269448521704,784.40684666878246,39.22034233343912,20,{"$f":"'Old PL unit prices (2012-17) '!$K$19","v":253.55992440889494},421.74525866906089,675.3051830779558,33.765259153897787,111.15138592750534,null,null,null,0,0,40,{"$f":"IFERROR(VLOOKUP(E82,'Bracket Summary'!$A$79:$B$122,2,FALSE),VLOOKUP(E82,'Bracket Summary'!$B$43:$V$72,MATCH('Bracket Summary'!$V$43,'Bracket Summary'!$B$43:$V$43,0),FALSE))","v":133.12518584597089},"NA included in Lminaire",66.562592922985445,3.3281296461492724]
[null,15,"100W Sodium Vapour","High Pressure Sodium (elliptical) 100","HPS_100_E",100,1,"RLMAJ",8,16.930974392480003,1.6930974392480003,"NA included in Lamp cycle",0,"NA included in Lamp cycle",33.861948784960006,1.6930974392480003,4,{"$f":"'Warehouse Pricing'!$Y$40*G83","v":18.267007986299998},3.6534015972599994,174.60683581463624,34.921367162927247,2.2235269448521704,771.49537520374497,38.574768760187247,20,{"$f":"'Warehouse Pricing'!$Y$14","v":154.95463481311108},421.74525866906089,576.699893482172,28.8349946741086,111.15138592750534,null,null,null,0,0,40,{"$f":"IFERROR(VLOOKUP(E83,'Bracket Summary'!$A$79:$B$122,2,FALSE),VLOOKUP(E83,'Bracket Summary'!$B$43:$V$72,MATCH('Bracket Summary'!$V$43,'Bracket Summary'!$B$43:$V$43,0),FALSE))","v":120.7732757406451},"NA included in Lminaire",60.386637870322552,3.0193318935161275]
[null,"",null,"High Pressure Sodium (tubular) 100","HPS_100_T",100,1,"RLMAJ",8,16.930974392480003,1.6930974392480003,"NA included in Lamp cycle",0,"NA included in Lamp cycle",33.861948784960006,1.6930974392480003,4,{"$f":"'Warehouse Pricing'!$Y$40*G84","v":18.267007986299998},3.6534015972599994,174.60683581463624,34.921367162927247,2.2235269448521704,771.49537520374497,38.574768760187247,20,{"$f":"'Warehouse Pricing'!$Y$14","v":154.95463481311108},421.74525866906089,576.699893482172,28.8349946741086,111.15138592750534,null,null,null,0,0,40,{"$f":"IFERROR(VLOOKUP(E84,'Bracket Summary'!$A$79:$B$122,2,FALSE),VLOOKUP(E84,'Bracket Summary'!$B$43:$V$72,MATCH('Bracket Summary'!$V$43,'Bracket Summary'!$B$43:$V$43,0),FALSE))","v":120.7732757406451},"NA included in Lminaire",60.386637870322552,3.0193318935161275]
[null,16,"150W Sodium Vapour","High Pressure Sodium (elliptical) 150","HPS_150_E",150,1,"RLMAJ",8,16.930974392480003,1.6930974392480003,"NA included in Lamp cycle",0,"NA included in Lamp cycle",33.861948784960006,1.6930974392480003,4,{"$f":"'Warehouse Pricing'!$Y$41*G85","v":18.197841645381001},3.6395683290762002,174.60683581463624,34.921367162927247,2.2235269448521704,771.21870984006898,38.560935492003452,20,{"$f":"'Warehouse Pricing'!$Y$16","v":216.87186514812163},421.74525866906089,638.61712381718257,31.930856190859128,111.15138592750534,null,null,null,0,0,40,{"$f":"IFERROR(VLOOKUP(E85,'Bracket Summary'!$A$79:$B$122,2,FALSE),VLOOKUP(E85,'Bracket Summary'!$B$43:$V$72,MATCH('Bracket Summary'!$V$43,'Bracket Summary'!$B$43:$V$43,0),FALSE))","v":207.89721127739688},"NA included in Lminaire",103.94860563869844,5.1974302819349223]
[null,"",null,"High Pressure Sodium (tubular) 150","HPS_150_T",150,1,"RLMAJ",8,16.930974392480003,1.6930974392480003,"NA included in Lamp cycle",0,"NA included in Lamp cycle",33.861948784960006,1.6930974392480003,4,{"$f":"'Warehouse Pricing'!$Y$41*G86","v":18.197841645381001},3.6395683290762002,174.60683581463624,34.921367162927247,2.2235269448521704,771.21870984006898,38.560935492003452,20,{"$f":"'Warehouse Pricing'!$Y$16","v":216.87186514812163},421.74525866906089,638.61712381718257,31.930856190859128,111.15138592750534,null,null,null,0,0,40,{"$f":"IFERROR(VLOOKUP(E86,'Bracket Summary'!$A$79:$B$122,2,FALSE),VLOOKUP(E86,'Bracket Summary'!$B$43:$V$72,MATCH('Bracket Summary'!$V$43,'Bracket Summary'!$B$43:$V$43,0),FALSE))","v":207.89721127739688},"NA included in Lminaire",103.94860563869844,5.1974302819349223]
[null,"",null,"High Pres Sodium (tubular - dbl arc) 150","HPS_150_TDA",150,1,"RLMAJ",8,16.930974392480003,1.6930974392480003,"NA included in Lamp cycle",0,"NA included in Lamp cycle",33.861948784960006,1.6930974392480003,4,{"$f":"'Warehouse Pricing'!$Y$41*G87","v":18.197841645381001},3.6395683290762002,174.60683581463624,34.921367162927247,2.2235269448521704,771.21870984006898,38.560935492003452,20,{"$f":"'Warehouse Pricing'!$Y$16","v":216.87186514812163},421.74525866906089,638.61712381718257,31.930856190859128,111.15138592750534,null,null,null,0,0,40,{"$f":"IFERROR(VLOOKUP(E87,'Bracket Summary'!$A$79:$B$122,2,FALSE),VLOOKUP(E87,'Bracket Summary'!$B$43:$V$72,MATCH('Bracket Summary'!$V$43,'Bracket Summary'!$B$43:$V$43,0),FALSE))","v":207.89721127739688},"NA included in Lminaire",103.94860563869844,5.1974302819349223]
[null,"",null,"High Pres Sodium (tubular - self ig) 150","HPS_150_TSI",150,1,"RLMAJ",8,16.930974392480003,1.6930974392480003,"NA included in Lamp cycle",0,"NA included in Lamp cycle",33.861948784960006,1.6930974392480003,4,{"$f":"'Warehouse Pricing'!$Y$41*G88","v":18.197841645381001},3.6395683290762002,174.60683581463624,34.921367162927247,2.2235269448521704,771.21870984006898,38.560935492003452,20,{"$f":"'Warehouse Pricing'!$Y$16","v":216.87186514812163},421.74525866906089,638.61712381718257,31.930856190859128,111.15138592750534,null,null,null,0,0,40,{"$f":"IFERROR(VLOOKUP(E88,'Bracket Summary'!$A$79:$B$122,2,FALSE),VLOOKUP(E88,'Bracket Summary'!$B$43:$V$72,MATCH('Bracket Summary'!$V$43,'Bracket Summary'!$B$43:$V$43,0),FALSE))","v":207.89721127739688},"NA included in Lminaire",103.94860563869844,5.1974302819349223]
[null,17,"250W Sodium Vapour","High Pressure Sodium (elliptical) 250","HPS_250_E",250,1,"RLMAJ",8,16.930974392480003,1.6930974392480003,"NA included in Lamp cycle",0,"NA included in Lamp cycle",33.861948784960006,1.6930974392480003,4,{"$f":"'Warehouse Pricing'!$Y$42*G89","v":20.464221641092252},4.0928443282184501,174.60683581463624,34.921367162927247,2.2235269448521704,780.28422982291397,39.014211491145701,20,{"$f":"'Warehouse Pricing'!$Z$19","v":231.9979734325857},421.74525866906089,653.74323210164653,32.687161605082323,111.15138592750534,null,null,null,0,0,40,{"$f":"IFERROR(VLOOKUP(E89,'Bracket Summary'!$A$79:$B$122,2,FALSE),VLOOKUP(E89,'Bracket Summary'!$B$43:$V$72,MATCH('Bracket Summary'!$V$43,'Bracket Summary'!$B$43:$V$43,0),FALSE))","v":266.77935340982498},"NA included in Lminaire",133.38967670491249,6.6694838352456243]
[null,"",null,"High Pressure Sodium (tubular) 250","HPS_250_T",250,1,"RLMAJ",8,16.930974392480003,1.6930974392480003,"NA included in Lamp cycle",0,"NA included in Lamp cycle",33.861948784960006,1.6930974392480003,4,{"$f":"'Warehouse Pricing'!$Y$42*G90","v":20.464221641092252},4.0928443282184501,174.60683581463624,34.921367162927247,2.2235269448521704,780.28422982291397,39.014211491145701,20,{"$f":"'Warehouse Pricing'!$Z$19","v":231.9979734325857},421.74525866906089,653.74323210164653,32.687161605082323,111.15138592750534,null,null,null,0,0,40,{"$f":"IFERROR(VLOOKUP(E90,'Bracket Summary'!$A$79:$B$122,2,FALSE),VLOOKUP(E90,'Bracket Summary'!$B$43:$V$72,MATCH('Bracket Summary'!$V$43,'Bracket Summary'!$B$43:$V$43,0),FALSE))","v":266.77935340982498},"NA included in Lminaire",133.38967670491249,6.6694838352456243]
[null,"",null,"High Pres Sodium (tubular - dbl arc) 250","HPS_250_TDA",250,1,"RLMAJ",8,16.930974392480003,1.6930974392480003,"NA included in Lamp cycle",0,"NA included in Lamp cycle",33.861948784960006,1.6930974392480003,4,{"$f":"'Warehouse Pricing'!$Y$42*G91","v":20.464221641092252},4.0928443282184501,174.60683581463624,34.921367162927247,2.2235269448521704,780.28422982291397,39.014211491145701,20,{"$f":"'Warehouse Pricing'!$Z$19","v":231.9979734325857},421.74525866906089,653.74323210164653,32.687161605082323,111.15138592750534,null,null,null,0,0,40,{"$f":"IFERROR(VLOOKUP(E91,'Bracket Summary'!$A$79:$B$122,2,FALSE),VLOOKUP(E91,'Bracket Summary'!$B$43:$V$72,MATCH('Bracket Summary'!$V$43,'Bracket Summary'!$B$43:$V$43,0),FALSE))","v":266.77935340982498},"NA included in Lminaire",133.38967670491249,6.6694838352456243]
[null,"",null,"High Pres Sodium (tubular - self ig) 250","HPS_250_TSI",250,1,"RLMAJ",8,16.930974392480003,1.6930974392480003,"NA included in Lamp cycle",{"$f":"IFERROR((ROUNDDOWN((($D$20-0.1)/I92),0)*SUM(L92))/$D$20,0)","v":0},"NA included in Lamp cycle",33.861948784960006,1.6930974392480003,4,{"$f":"'Warehouse Pricing'!$Y$42*G92","v":20.464221641092252},4.0928443282184501,174.60683581463624,34.921367162927247,2.2235269448521704,780.28422982291397,39.014211491145701,20,{"$f":"'Warehouse Pricing'!$Z$19","v":231.9979734325857},421.74525866906089,653.74323210164653,32.687161605082323,111.15138592750534,null,null,null,0,0,40,{"$f":"IFERROR(VLOOKUP(E92,'Bracket Summary'!$A$79:$B$122,2,FALSE),VLOOKUP(E92,'Bracket Summary'!$B$43:$V$72,MATCH('Bracket Summary'!$V$43,'Bracket Summary'!$B$43:$V$43,0),FALSE))","v":266.77935340982498},"NA included in Lminaire",133.38967670491249,6.6694838352456243]
[null,{"$f":"IF(C93=\"\",\"\",IF(C92=\"\",IF(C91=\"\",IF(C90=\"\",IF(C89=\"\",\"Error\",B89+1),B90+1),B91+1),B92+1))","v":18},"250W Sodium Vapour - Flood Light",null,"HPS_250_FL",250,1,"RLMAJ",8,16.930974392480003,1.6930974392480003,"NA included in Lamp cycle",0,"NA included in Lamp cycle",33.861948784960006,1.6930974392480003,4,{"$f":"'Warehouse Pricing'!$Y$42*G93","v":20.464221641092252},4.0928443282184501,174.60683581463624,34.921367162927247,2.2235269448521704,780.28422982291397,39.014211491145701,20,{"$f":"'Warehouse Pricing'!Y30","v":418.87977485833363},421.74525866906089,840.62503352739452,42.031251676369727,111.15138592750534,null,null,null,0,0,40,{"$f":"IFERROR(VLOOKUP(E93,'Bracket Summary'!$A$79:$B$122,2,FALSE),VLOOKUP(E93,'Bracket Summary'!$B$43:$V$72,MATCH('Bracket Summary'!$V$43,'Bracket Summary'!$B$43:$V$43,0),FALSE))","v":266.77935340982498},"NA included in Lminaire",133.38967670491249,6.6694838352456243]
[null,{"$f":"IF(C94=\"\",\"\",IF(C93=\"\",IF(C92=\"\",IF(C91=\"\",IF(C90=\"\",\"Error\",B90+1),B91+1),B92+1),B93+1))","v":19},"400W Sodium Vapour","High Pressure Sodium (tubular) 400","HPS_400_T",400,1,"RLMAJ",8,16.930974392480003,1.6930974392480003,"NA included in Lamp cycle",0,"NA included in Lamp cycle",33.861948784960006,1.6930974392480003,4,{"$f":"'Warehouse Pricing'!$Y$43*G94","v":21.232440957538749},4.2464881915077495,174.60683581463624,34.921367162927247,2.2235269448521704,783.35710708869999,39.167855354434998,{"$f":"$D$9","v":20},{"$f":"'Warehouse Pricing'!$Z$21","v":308.13100043947838},421.74525866906089,729.87625910853922,{"$f":"IFERROR(AB94/$D$20,0)","v":36.493812955426961},111.15138592750534,null,null,null,0,0,{"$f":"$D$10","v":40},{"$f":"IFERROR(VLOOKUP(E94,'Bracket Summary'!$A$79:$B$122,2,FALSE),VLOOKUP(E94,'Bracket Summary'!$B$43:$V$72,MATCH('Bracket Summary'!$V$43,'Bracket Summary'!$B$43:$V$43,0),FALSE))","v":192.45518881950642},"NA included in Lminaire",96.227594409753209,4.8113797204876603]
[null,"",null,"High Pres Sodium (tubular - dbl arc) 400","HPS_400_TDA",400,1,"RLMAJ",8,16.930974392480003,1.6930974392480003,"NA included in Lamp cycle",0,"NA included in Lamp cycle",33.861948784960006,1.6930974392480003,4,{"$f":"'Warehouse Pricing'!$Y$43*G95","v":21.232440957538749},4.2464881915077495,174.60683581463624,34.921367162927247,2.2235269448521704,783.35710708869999,39.167855354434998,{"$f":"$D$9","v":20},{"$f":"'Warehouse Pricing'!$Z$21","v":308.13100043947838},421.74525866906089,729.87625910853922,{"$f":"IFERROR(AB95/$D$20,0)","v":36.493812955426961},111.15138592750534,null,null,null,0,0,{"$f":"$D$10","v":40},{"$f":"IFERROR(VLOOKUP(E95,'Bracket Summary'!$A$79:$B$122,2,FALSE),VLOOKUP(E95,'Bracket Summary'!$B$43:$V$72,MATCH('Bracket Summary'!$V$43,'Bracket Summary'!$B$43:$V$43,0),FALSE))","v":192.45518881950642},"NA included in Lminaire",96.227594409753209,4.8113797204876603]
[null,20,"400W Sodium Vapour - Flood Light",null,"HPS_400_FL",400,1,"RLMAJ",8,16.930974392480003,1.6930974392480003,"NA included in Lamp cycle",0,"NA included in Lamp cycle",33.861948784960006,1.6930974392480003,4,{"$f":"'Warehouse Pricing'!$Y$43*G96","v":21.232440957538749},4.2464881915077495,174.60683581463624,34.921367162927247,2.2235269448521704,783.35710708869999,39.167855354434998,20,{"$f":"'Warehouse Pricing'!Y31","v":431.38642868220484},421.74525866906089,853.13168735126578,{"$f":"IFERROR(AB96/$D$20,0)","v":42.656584367563291},111.15138592750534,null,null,null,0,0,40,{"$f":"IFERROR(VLOOKUP(E96,'Bracket Summary'!$A$79:$B$122,2,FALSE),VLOOKUP(E96,'Bracket Summary'!$B$43:$V$72,MATCH('Bracket Summary'!$V$43,'Bracket Summary'!$B$43:$V$43,0),FALSE))","v":192.45518881950642},"NA included in Lminaire",96.227594409753209,4.8113797204876603]
[null,21,"70W Sodium Vapour","High Pressure Sodium (elliptical) 70","HPS_70_E",70,1,{"$f":"IF(F97>=100,\"RLMAJ\",IF(LEFT($E97,6)=\"LED_14\",\"RLMAJ\",\"RLMIN\"))","v":"RLMIN"},8,5.8131255188333348,0.58131255188333353,"NA included in Lamp cycle",0,"NA included in Lamp cycle",11.62625103766667,0.58131255188333353,4,{"$f":"'Warehouse Pricing'!$Y$39*G97","v":9.1046846844337512},1.8209369368867503,120.63745019920322,24.127490039840644,1.5362549800796814,518.96853953454786,25.948426976727394,{"$f":"$D$9","v":20},{"$f":"'Warehouse Pricing'!$Z$13","v":161.14461304191406},267.95472429611652,429.09933733803058,{"$f":"IFERROR(AB97/$D$20,0)","v":21.454966866901529},72.437522043957671,null,null,null,0,0,{"$f":"$D$10","v":40},{"$f":"IFERROR(VLOOKUP(E97,'Bracket Summary'!$A$79:$B$122,2,FALSE),VLOOKUP(E97,'Bracket Summary'!$B$43:$V$72,MATCH('Bracket Summary'!$V$43,'Bracket Summary'!$B$43:$V$43,0),FALSE))","v":116.77074041034791},"NA included in Lminaire",58.385370205173956,2.9192685102586977]
[null,"",null,"High Pressure Sodium (tubular) 70","HPS_70_T",70,1,"RLMIN",8,5.8131255188333348,0.58131255188333353,"NA included in Lamp cycle",0,"NA included in Lamp cycle",11.62625103766667,0.58131255188333353,4,{"$f":"'Warehouse Pricing'!$Y$39*G98","v":9.1046846844337512},1.8209369368867503,{"$f":"IF(LEFT($D98,3)=\"LED\",\"NA included in Lamp cycle\",IF($F98>=100,($J$48-$F$48),($J$47-$F$47)))","v":120.63745019920322},24.127490039840644,1.5362549800796814,518.96853953454786,25.948426976727394,20,{"$f":"'Warehouse Pricing'!$Z$13","v":161.14461304191406},267.95472429611652,429.09933733803058,21.454966866901529,72.437522043957671,null,null,null,0,0,40,{"$f":"IFERROR(VLOOKUP(E98,'Bracket Summary'!$A$79:$B$122,2,FALSE),VLOOKUP(E98,'Bracket Summary'!$B$43:$V$72,MATCH('Bracket Summary'!$V$43,'Bracket Summary'!$B$43:$V$43,0),FALSE))","v":116.77074041034791},"NA included in Lminaire",58.385370205173956,2.9192685102586977]
[null,22,"100W Incandescent","Incandescent 100","INC_100",100,1,"RLMAJ",8,16.930974392480003,1.6930974392480003,"NA included in Lamp cycle",0,"NA included in Lamp cycle",33.861948784960006,1.6930974392480003,4,{"$f":"'Old PL unit prices (2012-17) '!$I$27*G99","v":2.1541705647445135},0.43083411294890273,174.60683581463624,34.921367162927247,2.2235269448521704,707.04402551752298,35.352201275876148,20,{"$f":"'Old PL unit prices (2012-17) '!$K$27","v":55.856237849978655},421.74525866906089,477.60149651903953,23.880074825951976,111.15138592750534,null,null,null,0,0,40,{"$f":"IFERROR(VLOOKUP(E99,'Bracket Summary'!$A$79:$B$122,2,FALSE),VLOOKUP(E99,'Bracket Summary'!$B$43:$V$72,MATCH('Bracket Summary'!$V$43,'Bracket Summary'!$B$43:$V$43,0),FALSE))","v":86.837198929527219},"NA included in Lminaire",43.418599464763609,2.1709299732381804]
[null,23,"60W Incandescent","Incandescent 60","INC_60",60,1,{"$f":"IF(F100>=100,\"RLMAJ\",IF(LEFT($E100,6)=\"LED_14\",\"RLMAJ\",\"RLMIN\"))","v":"RLMIN"},8,5.8131255188333348,0.58131255188333353,{"$f":"IF(LEFT($D100,3)=\"LED\",IF($F100>=100,($J$48-$F$48),($J$47-$F$47)),\"NA included in Lamp cycle\")","v":"NA included in Lamp cycle"},0,"NA included in Lamp cycle",11.62625103766667,0.58131255188333353,4,{"$f":"'Old PL unit prices (2012-17) '!$I$26*G100","v":2.1541705647445135},0.43083411294890273,120.63745019920322,24.127490039840644,1.5362549800796814,491.16648305579093,24.558324152789545,20,{"$f":"'Old PL unit prices (2012-17) '!$K$26","v":55.856237849978655},267.95472429611652,323.81096214609516,16.190548107304757,72.437522043957671,null,null,null,0,0,40,{"$f":"IFERROR(VLOOKUP(E100,'Bracket Summary'!$A$79:$B$122,2,FALSE),VLOOKUP(E100,'Bracket Summary'!$B$43:$V$72,MATCH('Bracket Summary'!$V$43,'Bracket Summary'!$B$43:$V$43,0),FALSE))","v":86.837198929527219},"NA included in Lminaire",43.418599464763609,2.1709299732381804]
[null,24,"18W LED","LED 18","LED_18",18,1,"RLMIN",{"$f":"IF(LEFT($D101,3)=\"LED\",$D$12,$D$13)","v":10},5.8131255188333348,0.29065627594166676,{"$f":"IF(LEFT($D101,3)=\"LED\",IF($F101>=100,($J$48-$F$48),($J$47-$F$47)),\"NA included in Lamp cycle\")","v":120.63745019920322},{"$f":"IFERROR((ROUNDDOWN((($D$20-0.1)/I101),0)*SUM(L101))/$D$20,0)","v":6.0318725099601611},0.38406374501992036,{"$f":"IFERROR(ROUNDDOWN((($D$20-0.1)/I101),0)*SUM(J101,L101),0)","v":126.45057571803655},{"$f":"IFERROR(O101/$D$20,0)","v":6.3225287859018273},{"$f":"IF(LEFT($D101,3)=\"LED\",$D$17,$D$18)","v":20},0,0,{"$f":"IF(LEFT($D101,3)=\"LED\",\"NA included in Lamp cycle\",IF($F101>=100,($J$48-$F$48),($J$47-$F$47)))","v":"NA included in Lamp cycle"},0,"NA included in Lamp cycle",0,0,20,{"$f":"'Warehouse Pricing'!$Z$60","v":365.71600000000001},267.95472429611652,633.67072429611653,31.683536214805827,72.437522043957671,null,null,null,0,0,40,{"$f":"IFERROR(VLOOKUP(E101,'Bracket Summary'!$A$79:$B$122,2,FALSE),VLOOKUP(E101,'Bracket Summary'!$B$43:$V$72,MATCH('Bracket Summary'!$V$43,'Bracket Summary'!$B$43:$V$43,0),FALSE))","v":99.640221589821721},"NA included in Lminaire",49.82011079491086,2.4910055397455428]
[null,25,"18W LED Decorative - Bottom Pole Entry","LED 18","LED_18",18,1,"RLMIN",10,5.8131255188333348,0.29065627594166676,{"$f":"IF(LEFT($D102,3)=\"LED\",IF($F102>=100,($J$48-$F$48),($J$47-$F$47)),\"NA included in Lamp cycle\")","v":120.63745019920322},{"$f":"IFERROR((ROUNDDOWN((($D$20-0.1)/I102),0)*SUM(L102))/$D$20,0)","v":6.0318725099601611},0.38406374501992036,126.45057571803655,6.3225287859018273,{"$f":"IF(LEFT($D102,3)=\"LED\",$D$17,$D$18)","v":20},0,0,"NA included in Lamp cycle",0,"NA included in Lamp cycle",0,0,20,{"$f":"'Warehouse Pricing'!$K$107","v":1023.3892953128},267.95472429611652,1291.3440196089164,64.567200980445818,72.437522043957671,null,null,null,0,0,40,{"$f":"IFERROR(VLOOKUP(E102,'Bracket Summary'!$A$79:$B$122,2,FALSE),VLOOKUP(E102,'Bracket Summary'!$B$43:$V$72,MATCH('Bracket Summary'!$V$43,'Bracket Summary'!$B$43:$V$43,0),FALSE))","v":99.640221589821721},"NA included in Lminaire",49.82011079491086,2.4910055397455428]
[null,26,"18W LED Decorative - Side Entry","LED 18","LED_18",18,1,"RLMIN",10,5.8131255188333348,0.29065627594166676,{"$f":"IF(LEFT($D103,3)=\"LED\",IF($F103>=100,($J$48-$F$48),($J$47-$F$47)),\"NA included in Lamp cycle\")","v":120.63745019920322},6.0318725099601611,0.38406374501992036,126.45057571803655,6.3225287859018273,20,0,0,"NA included in Lamp cycle",0,"NA included in Lamp cycle",0,0,20,{"$f":"'Warehouse Pricing'!$K$107","v":1023.3892953128},{"$f":"IF($F103>=100,($J$40-$F$40),($J$43-$F$43))","v":267.95472429611652},1291.3440196089164,64.567200980445818,72.437522043957671,null,null,null,0,0,40,{"$f":"IFERROR(VLOOKUP(E103,'Bracket Summary'!$A$79:$B$122,2,FALSE),VLOOKUP(E103,'Bracket Summary'!$B$43:$V$72,MATCH('Bracket Summary'!$V$43,'Bracket Summary'!$B$43:$V$43,0),FALSE))","v":99.640221589821721},"NA included in Lminaire",49.82011079491086,2.4910055397455428]
[null,27,"18W LED Decorative - Top Entry","LED 18","LED_18",18,1,"RLMIN",{"$f":"IF(LEFT($D104,3)=\"LED\",$D$12,$D$13)","v":10},{"$f":"VLOOKUP(H104,$B$61:$D$62,3,FALSE)","v":5.8131255188333348},0.29065627594166676,120.63745019920322,6.0318725099601611,0.38406374501992036,126.45057571803655,6.3225287859018273,20,0,0,"NA included in Lamp cycle",0,"NA included in Lamp cycle",0,0,20,{"$f":"'Warehouse Pricing'!$K$107","v":1023.3892953128},267.95472429611652,1291.3440196089164,64.567200980445818,72.437522043957671,null,null,null,0,0,40,{"$f":"IFERROR(VLOOKUP(E104,'Bracket Summary'!$A$79:$B$122,2,FALSE),VLOOKUP(E104,'Bracket Summary'!$B$43:$V$72,MATCH('Bracket Summary'!$V$43,'Bracket Summary'!$B$43:$V$43,0),FALSE))","v":99.640221589821721},"NA included in Lminaire",49.82011079491086,2.4910055397455428]
[null,28,"25W LED","LED 25","LED_25",25,1,"RLMIN",10,5.8131255188333348,0.29065627594166676,120.63745019920322,6.0318725099601611,0.38406374501992036,126.45057571803655,{"$f":"IFERROR(O105/$D$20,0)","v":6.3225287859018273},20,0,0,"NA included in Lamp cycle",0,"NA included in Lamp cycle",0,0,20,{"$f":"'Warehouse Pricing'!$Z$60","v":365.71600000000001},267.95472429611652,{"$f":"IFERROR(($D$20/Y105)*SUM(Z105:AA105),0)","v":633.67072429611653},31.683536214805827,72.437522043957671,null,null,null,0,0,40,{"$f":"IFERROR(VLOOKUP(E105,'Bracket Summary'!$A$79:$B$122,2,FALSE),VLOOKUP(E105,'Bracket Summary'!$B$43:$V$72,MATCH('Bracket Summary'!$V$43,'Bracket Summary'!$B$43:$V$43,0),FALSE))","v":117.07266863377478},"NA included in Lminaire",58.536334316887391,2.9268167158443696]
[null,29,"25W LED Decorative - Bottom Pole Entry","LED 25","LED_25",25,1,"RLMIN",10,5.8131255188333348,0.29065627594166676,120.63745019920322,6.0318725099601611,0.38406374501992036,126.45057571803655,{"$f":"IFERROR(O106/$D$20,0)","v":6.3225287859018273},20,0,0,"NA included in Lamp cycle",0,"NA included in Lamp cycle",0,0,20,{"$f":"'Warehouse Pricing'!$K$107","v":1023.3892953128},267.95472429611652,1291.3440196089164,64.567200980445818,72.437522043957671,null,null,null,0,0,40,{"$f":"IFERROR(VLOOKUP(E106,'Bracket Summary'!$A$79:$B$122,2,FALSE),VLOOKUP(E106,'Bracket Summary'!$B$43:$V$72,MATCH('Bracket Summary'!$V$43,'Bracket Summary'!$B$43:$V$43,0),FALSE))","v":117.07266863377478},"NA included in Lminaire",58.536334316887391,2.9268167158443696]
[null,30,"25W LED Decorative - Side Entry","LED 25","LED_25",25,1,"RLMIN",10,5.8131255188333348,{"$f":"IFERROR((ROUNDDOWN((($D$20-0.1)/I107),0)*SUM(J107))/$D$20,0)","v":0.29065627594166676},120.63745019920322,6.0318725099601611,{"$f":"IF(LEFT($D107,3)=\"LED\",IF($F107>=100,($E$48/$J$50)*M107,($E$47/$J$49)*M107),\"NA included in Lamp cycle\")","v":0.38406374501992036},126.45057571803655,6.3225287859018273,20,0,0,"NA included in Lamp cycle",0,"NA included in Lamp cycle",0,0,20,{"$f":"'Warehouse Pricing'!$K$107","v":1023.3892953128},267.95472429611652,1291.3440196089164,64.567200980445818,72.437522043957671,null,null,null,0,0,40,{"$f":"IFERROR(VLOOKUP(E107,'Bracket Summary'!$A$79:$B$122,2,FALSE),VLOOKUP(E107,'Bracket Summary'!$B$43:$V$72,MATCH('Bracket Summary'!$V$43,'Bracket Summary'!$B$43:$V$43,0),FALSE))","v":117.07266863377478},"NA included in Lminaire",58.536334316887391,2.9268167158443696]
[null,31,"25W LED Decorative - Top Entry","LED 25","LED_25",25,1,"RLMIN",10,5.8131255188333348,0.29065627594166676,120.63745019920322,6.0318725099601611,0.38406374501992036,126.45057571803655,6.3225287859018273,20,0,0,"NA included in Lamp cycle",0,"NA included in Lamp cycle",0,0,20,{"$f":"'Warehouse Pricing'!$K$107","v":1023.3892953128},267.95472429611652,1291.3440196089164,64.567200980445818,72.437522043957671,null,null,null,0,0,40,{"$f":"IFERROR(VLOOKUP(E108,'Bracket Summary'!$A$79:$B$122,2,FALSE),VLOOKUP(E108,'Bracket Summary'!$B$43:$V$72,MATCH('Bracket Summary'!$V$43,'Bracket Summary'!$B$43:$V$43,0),FALSE))","v":117.07266863377478},"NA included in Lminaire",58.536334316887391,2.9268167158443696]
[null,32,"30W LED","LED 30","LED_30",30,1,{"$f":"IF(F109>=100,\"RLMAJ\",IF(LEFT($E109,6)=\"LED_14\",\"RLMAJ\",\"RLMIN\"))","v":"RLMIN"},10,5.8131255188333348,0.29065627594166676,120.63745019920322,6.0318725099601611,0.38406374501992036,126.45057571803655,6.3225287859018273,20,0,0,"NA included in Lamp cycle",0,"NA included in Lamp cycle",0,0,20,{"$f":"'Warehouse Pricing'!$Z$60","v":365.71600000000001},267.95472429611652,633.67072429611653,31.683536214805827,72.437522043957671,null,null,null,0,0,40,{"$f":"IFERROR(VLOOKUP(E109,'Bracket Summary'!$A$79:$B$122,2,FALSE),VLOOKUP(E109,'Bracket Summary'!$B$43:$V$72,MATCH('Bracket Summary'!$V$43,'Bracket Summary'!$B$43:$V$43,0),FALSE))","v":117.07266863377478},"NA included in Lminaire",58.536334316887391,2.9268167158443696]
[null,33,"88 LED Light","LED 88","LED_88",88,1,"RLMIN",10,5.8131255188333348,0.29065627594166676,120.63745019920322,6.0318725099601611,0.38406374501992036,126.45057571803655,6.3225287859018273,20,0,0,"NA included in Lamp cycle",0,"NA included in Lamp cycle",0,0,20,{"$f":"'Warehouse Pricing'!$Z$60","v":365.71600000000001},267.95472429611652,633.67072429611653,{"$f":"IFERROR(AB110/$D$20,0)","v":31.683536214805827},72.437522043957671,null,null,null,0,0,40,{"$f":"IFERROR(VLOOKUP(E110,'Bracket Summary'!$A$79:$B$122,2,FALSE),VLOOKUP(E110,'Bracket Summary'!$B$43:$V$72,MATCH('Bracket Summary'!$V$43,'Bracket Summary'!$B$43:$V$43,0),FALSE))","v":117.07266863377478},"NA included in Lminaire",58.536334316887391,2.9268167158443696]
[null,34,"100W Metal Halide","Metal Halide (elliptical) 100","MH_100_E",100,1,"RLMAJ",8,16.930974392480003,1.6930974392480003,"NA included in Lamp cycle",0,"NA included in Lamp cycle",33.861948784960006,1.6930974392480003,4,{"$f":"'Warehouse Pricing'!$Y$45*G111","v":18.207891455599999},3.6415782911199996,174.60683581463624,34.921367162927247,2.2235269448521704,771.25890908094493,38.562945454047245,{"$f":"$D$9","v":20},{"$f":"'Warehouse Pricing'!$Z$23","v":162.17518363940306},421.74525866906089,583.92044230846398,{"$f":"IFERROR(AB111/$D$20,0)","v":29.196022115423197},111.15138592750534,null,null,null,0,0,{"$f":"$D$10","v":40},{"$f":"IFERROR(VLOOKUP(E111,'Bracket Summary'!$A$79:$B$122,2,FALSE),VLOOKUP(E111,'Bracket Summary'!$B$43:$V$72,MATCH('Bracket Summary'!$V$43,'Bracket Summary'!$B$43:$V$43,0),FALSE))","v":120.7732757406451},"NA included in Lminaire",60.386637870322552,3.0193318935161275]
[null,35,"150W Metal Halide","Metal Halide (elliptical) 150","MH_150_E",150,1,"RLMAJ",8,16.930974392480003,1.6930974392480003,"NA included in Lamp cycle",0,"NA included in Lamp cycle",33.861948784960006,1.6930974392480003,4,{"$f":"'Warehouse Pricing'!Y92*G112","v":20.719483090000001},4.1438966180000003,174.60683581463624,34.921367162927247,2.2235269448521704,781.30527561854501,39.065263780927253,20,{"$f":"'Warehouse Pricing'!$Z$25","v":236.57737538145497},421.74525866906089,658.32263405051583,32.916131702525789,111.15138592750534,null,null,null,0,0,40,{"$f":"IFERROR(VLOOKUP(E112,'Bracket Summary'!$A$79:$B$122,2,FALSE),VLOOKUP(E112,'Bracket Summary'!$B$43:$V$72,MATCH('Bracket Summary'!$V$43,'Bracket Summary'!$B$43:$V$43,0),FALSE))","v":207.89721127739688},"NA included in Lminaire",103.94860563869844,5.1974302819349223]
[null,36,"250W Metal Halide","Metal Halide (tubular) 250","MH_250_T",250,1,"RLMAJ",8,16.930974392480003,1.6930974392480003,"NA included in Lamp cycle",0,"NA included in Lamp cycle",33.861948784960006,1.6930974392480003,4,{"$f":"'Warehouse Pricing'!$Y$93*G113","v":20.719483090000001},4.1438966180000003,174.60683581463624,34.921367162927247,2.2235269448521704,781.30527561854501,39.065263780927253,20,{"$f":"'Warehouse Pricing'!$Z$27","v":245.07571166325397},421.74525866906089,666.8209703323148,33.341048516615743,111.15138592750534,null,null,null,0,0,40,{"$f":"IFERROR(VLOOKUP(E113,'Bracket Summary'!$A$79:$B$122,2,FALSE),VLOOKUP(E113,'Bracket Summary'!$B$43:$V$72,MATCH('Bracket Summary'!$V$43,'Bracket Summary'!$B$43:$V$43,0),FALSE))","v":266.77935340982498},"NA included in Lminaire",133.38967670491249,6.6694838352456243]
[null,37,"400W Metal Halide","Metal Halide (tubular) 400","MH_400_T",400,1,"RLMAJ",8,16.930974392480003,1.6930974392480003,"NA included in Lamp cycle",0,"NA included in Lamp cycle",33.861948784960006,1.6930974392480003,4,{"$f":"'Warehouse Pricing'!$Y$94*G114","v":32.714973299999997},6.5429946599999997,174.60683581463624,34.921367162927247,2.2235269448521704,829.28723645854495,41.464361822927245,20,{"$f":"'Warehouse Pricing'!$Z$29","v":497.78229817542456},421.74525866906089,919.52755684448539,45.976377842224267,111.15138592750534,null,null,null,0,0,40,{"$f":"IFERROR(VLOOKUP(E114,'Bracket Summary'!$A$79:$B$122,2,FALSE),VLOOKUP(E114,'Bracket Summary'!$B$43:$V$72,MATCH('Bracket Summary'!$V$43,'Bracket Summary'!$B$43:$V$43,0),FALSE))","v":192.45518881950642},"NA included in Lminaire",96.227594409753209,4.8113797204876603]
[null,38,"70W Metal Halide","Metal Halide (elliptical) 70","MH_70_E",70,1,"RLMIN",8,5.8131255188333348,0.58131255188333353,"NA included in Lamp cycle",0,"NA included in Lamp cycle",11.62625103766667,0.58131255188333353,4,{"$f":"'Warehouse Pricing'!$Y$44*G115","v":17.882750536749999},3.5765501073499997,120.63745019920322,24.127490039840644,1.5362549800796814,554.08080294381284,27.704040147190643,20,85.799932042648379,267.95472429611652,353.7546563387649,17.687732816938244,72.437522043957671,null,null,null,0,0,40,{"$f":"IFERROR(VLOOKUP(E115,'Bracket Summary'!$A$79:$B$122,2,FALSE),VLOOKUP(E115,'Bracket Summary'!$B$43:$V$72,MATCH('Bracket Summary'!$V$43,'Bracket Summary'!$B$43:$V$43,0),FALSE))","v":120.7732757406451},"NA included in Lminaire",60.386637870322552,3.0193318935161275]
[null,39,"250W Metal Halide - Flood Light","Metal Halide (tubular) 250","MH_250_T",250,1,"RLMAJ",8,16.930974392480003,1.6930974392480003,"NA included in Lamp cycle",0,"NA included in Lamp cycle",33.861948784960006,1.6930974392480003,4,{"$f":"'Warehouse Pricing'!$Y$93*G116","v":20.719483090000001},4.1438966180000003,174.60683581463624,34.921367162927247,2.2235269448521704,781.30527561854501,39.065263780927253,20,{"$f":"'Warehouse Pricing'!$Z$29","v":497.78229817542456},421.74525866906089,919.52755684448539,45.976377842224267,111.15138592750534,null,null,null,0,0,40,{"$f":"IFERROR(VLOOKUP(E116,'Bracket Summary'!$A$79:$B$122,2,FALSE),VLOOKUP(E116,'Bracket Summary'!$B$43:$V$72,MATCH('Bracket Summary'!$V$43,'Bracket Summary'!$B$43:$V$43,0),FALSE))","v":266.77935340982498},"NA included in Lminaire",133.38967670491249,6.6694838352456243]
[null,40,"400W Metal Halide - Flood Light","Metal Halide (tubular) 400","MH_400_T",400,1,{"$f":"IF(F117>=100,\"RLMAJ\",IF(LEFT($E117,6)=\"LED_14\",\"RLMAJ\",\"RLMIN\"))","v":"RLMAJ"},8,16.930974392480003,1.6930974392480003,"NA included in Lamp cycle",0,"NA included in Lamp cycle",33.861948784960006,1.6930974392480003,4,{"$f":"'Warehouse Pricing'!$Y$94*G117","v":32.714973299999997},6.5429946599999997,174.60683581463624,34.921367162927247,2.2235269448521704,829.28723645854495,41.464361822927245,20,{"$f":"'Warehouse Pricing'!$Z$29","v":497.78229817542456},421.74525866906089,919.52755684448539,45.976377842224267,111.15138592750534,null,null,null,0,0,40,{"$f":"IFERROR(VLOOKUP(E117,'Bracket Summary'!$A$79:$B$122,2,FALSE),VLOOKUP(E117,'Bracket Summary'!$B$43:$V$72,MATCH('Bracket Summary'!$V$43,'Bracket Summary'!$B$43:$V$43,0),FALSE))","v":192.45518881950642},"NA included in Lminaire",96.227594409753209,4.8113797204876603]
[null,41,"125W Mercury Vapour","Mercury Vapour (elliptical) 125","MV_125_E",125,1,"RLMAJ",8,16.930974392480003,1.6930974392480003,"NA included in Lamp cycle",0,"NA included in Lamp cycle",33.861948784960006,1.6930974392480003,4,{"$f":"'Warehouse Pricing'!$Y$85*G118","v":2.726247775},0.54524955500000005,174.60683581463624,34.921367162927247,2.2235269448521704,709.33233435854493,35.466616717927245,20,{"$f":"'Old PL unit prices (2012-17) '!$K$8","v":143.07673082468855},421.74525866906089,564.82198949374947,28.241099474687474,111.15138592750534,null,null,null,0,0,40,{"$f":"IFERROR(VLOOKUP(E118,'Bracket Summary'!$A$79:$B$122,2,FALSE),VLOOKUP(E118,'Bracket Summary'!$B$43:$V$72,MATCH('Bracket Summary'!$V$43,'Bracket Summary'!$B$43:$V$43,0),FALSE))","v":216.85866656323935},"NA included in Lminaire",108.42933328161968,5.4214666640809837]
[null,42,"250W Mercury Vapour","Mercury Vapour (elliptical) 250","MV_250_E",250,1,"RLMAJ",8,16.930974392480003,1.6930974392480003,"NA included in Lamp cycle",0,"NA included in Lamp cycle",33.861948784960006,1.6930974392480003,4,{"$f":"'Warehouse Pricing'!$Y$85*G119","v":2.726247775},0.54524955500000005,174.60683581463624,34.921367162927247,2.2235269448521704,709.33233435854493,35.466616717927245,20,{"$f":"'Old PL unit prices (2012-17) '!$K$9","v":165.26234615181278},421.74525866906089,587.00760482087367,29.350380241043684,111.15138592750534,null,null,null,0,0,40,{"$f":"IFERROR(VLOOKUP(E119,'Bracket Summary'!$A$79:$B$122,2,FALSE),VLOOKUP(E119,'Bracket Summary'!$B$43:$V$72,MATCH('Bracket Summary'!$V$43,'Bracket Summary'!$B$43:$V$43,0),FALSE))","v":216.85866656323935},"NA included in Lminaire",108.42933328161968,5.4214666640809837]
[null,"",null,"Mercury Vapour (tubular) 250","MV_250_T",250,1,"RLMAJ",8,16.930974392480003,1.6930974392480003,"NA included in Lamp cycle",0,"NA included in Lamp cycle",33.861948784960006,1.6930974392480003,4,{"$f":"'Warehouse Pricing'!$Y$85*G120","v":2.726247775},0.54524955500000005,174.60683581463624,34.921367162927247,2.2235269448521704,709.33233435854493,35.466616717927245,20,{"$f":"'Old PL unit prices (2012-17) '!$K$9","v":165.26234615181278},421.74525866906089,587.00760482087367,29.350380241043684,111.15138592750534,null,null,null,0,0,40,{"$f":"IFERROR(VLOOKUP(E120,'Bracket Summary'!$A$79:$B$122,2,FALSE),VLOOKUP(E120,'Bracket Summary'!$B$43:$V$72,MATCH('Bracket Summary'!$V$43,'Bracket Summary'!$B$43:$V$43,0),FALSE))","v":216.85866656323935},"NA included in Lminaire",108.42933328161968,5.4214666640809837]
[null,43,"400W Mercury Vapour","Mercury Vapour (elliptical) 400","MV_400_E",400,1,"RLMAJ",8,16.930974392480003,1.6930974392480003,"NA included in Lamp cycle",0,"NA included in Lamp cycle",33.861948784960006,1.6930974392480003,4,{"$f":"'Warehouse Pricing'!$Y$86*G121","v":5.3434456390000014},1.0686891278000004,174.60683581463624,34.921367162927247,2.2235269448521704,719.801125814545,35.990056290727253,20,247.9693577012184,421.74525866906089,669.71461637027926,33.485730818513964,111.15138592750534,null,null,null,0,0,40,{"$f":"IFERROR(VLOOKUP(E121,'Bracket Summary'!$A$79:$B$122,2,FALSE),VLOOKUP(E121,'Bracket Summary'!$B$43:$V$72,MATCH('Bracket Summary'!$V$43,'Bracket Summary'!$B$43:$V$43,0),FALSE))","v":197.8300605371557},"NA included in Lminaire",98.915030268577851,4.9457515134288927]
[null,44,"50W Mercury Vapour","Mercury Vapour (elliptical) 50","MV_50_E",50,1,{"$f":"IF(F122>=100,\"RLMAJ\",IF(LEFT($E122,6)=\"LED_14\",\"RLMAJ\",\"RLMIN\"))","v":"RLMIN"},{"$f":"IF(LEFT($D122,3)=\"LED\",$D$12,$D$13)","v":8},{"$f":"VLOOKUP(H122,$B$61:$D$62,3,FALSE)","v":5.8131255188333348},0.58131255188333353,"NA included in Lamp cycle",0,"NA included in Lamp cycle",11.62625103766667,{"$f":"IFERROR(O122/$D$20,0)","v":0.58131255188333353},4,{"$f":"'Warehouse Pricing'!$Y$35*G122","v":3.2106187823170007},0.64212375646340014,120.63745019920322,24.127490039840644,1.5362549800796814,495.39227592608086,24.769613796304043,20,86.311661259602545,267.95472429611652,354.26638555571907,17.713319277785953,72.437522043957671,null,null,null,0,0,40,{"$f":"IFERROR(VLOOKUP(E122,'Bracket Summary'!$A$79:$B$122,2,FALSE),VLOOKUP(E122,'Bracket Summary'!$B$43:$V$72,MATCH('Bracket Summary'!$V$43,'Bracket Summary'!$B$43:$V$43,0),FALSE))","v":72.970104296491868},"NA included in Lminaire",36.485052148245934,1.8242526074122967]
[null,45,"80W Mercury Vapour Art decorative","Mercury Vapour (elliptical) 80","MV_80_E",80,1,"RLMIN",8,{"$f":"VLOOKUP(H123,$B$61:$D$62,3,FALSE)","v":5.8131255188333348},{"$f":"IFERROR((ROUNDDOWN((($D$20-0.1)/I123),0)*SUM(J123))/$D$20,0)","v":0.58131255188333353},"NA included in Lamp cycle",{"$f":"IFERROR((ROUNDDOWN((($D$20-0.1)/I123),0)*SUM(L123))/$D$20,0)","v":0},"NA included in Lamp cycle",{"$f":"IFERROR(ROUNDDOWN((($D$20-0.1)/I123),0)*SUM(J123,L123),0)","v":11.62625103766667},{"$f":"IFERROR(O123/$D$20,0)","v":0.58131255188333353},4,{"$f":"'Warehouse Pricing'!$Y$36*G123","v":2.6704414830457499},{"$f":"IFERROR((ROUNDDOWN((($D$20-0.1)/Q123),0)*SUM(R123))/$D$20,0)","v":0.53408829660915003},120.63745019920322,{"$f":"IFERROR((ROUNDDOWN((($D$20-0.1)/Q123),0)*SUM(T123))/$D$20,0)","v":24.127490039840644},1.5362549800796814,493.23156672899586,{"$f":"IFERROR(W123/$D$20,0)","v":24.661578336449793},20,909.9032838604063,267.95472429611652,{"$f":"IFERROR(($D$20/Y123)*SUM(Z123:AA123),0)","v":1177.8580081565228},{"$f":"IFERROR(AB123/$D$20,0)","v":58.89290040782614},72.437522043957671,null,null,null,{"$f":"IFERROR(($D$20/AE123)*SUM(AF123:AG123),0)","v":0},{"$f":"IFERROR(AH123/$D$20,0)","v":0},40,{"$f":"IFERROR(VLOOKUP(E123,'Bracket Summary'!$A$79:$B$122,2,FALSE),VLOOKUP(E123,'Bracket Summary'!$B$43:$V$72,MATCH('Bracket Summary'!$V$43,'Bracket Summary'!$B$43:$V$43,0),FALSE))","v":75.866327288399177},"NA included in Lminaire",{"$f":"IFERROR(($D$20/AJ123)*SUM(AK123:AL123),0)","v":37.933163644199588},{"$f":"IFERROR(AM123/$D$20,0)","v":1.8966581822099795}]
[null,46,"80W Mercury Vapour","Mercury Vapour (elliptical) 80","MV_80_E",80,1,{"$f":"IF(F124>=100,\"RLMAJ\",IF(LEFT($E124,6)=\"LED_14\",\"RLMAJ\",\"RLMIN\"))","v":"RLMIN"},8,5.8131255188333348,0.58131255188333353,"NA included in Lamp cycle",0,"NA included in Lamp cycle",11.62625103766667,0.58131255188333353,4,{"$f":"'Warehouse Pricing'!$Y$36*G124","v":2.6704414830457499},0.53408829660915003,120.63745019920322,24.127490039840644,1.5362549800796814,493.23156672899586,24.661578336449793,20,85.799932042648379,267.95472429611652,353.7546563387649,17.687732816938244,72.437522043957671,null,null,null,0,0,40,{"$f":"IFERROR(VLOOKUP(E124,'Bracket Summary'!$A$79:$B$122,2,FALSE),VLOOKUP(E124,'Bracket Summary'!$B$43:$V$72,MATCH('Bracket Summary'!$V$43,'Bracket Summary'!$B$43:$V$43,0),FALSE))","v":75.866327288399177},"NA included in Lminaire",37.933163644199588,1.8966581822099795]
[null,47,"14W LED","LED 14","LED_14_1",14,1,{"$f":"IF(F125>=100,\"RLMAJ\",IF(LEFT($E125,6)=\"LED_14\",\"RLMAJ\",\"RLMIN\"))","v":"RLMAJ"},10,{"$f":"VLOOKUP(H125,$B$61:$D$62,3,FALSE)","v":16.930974392480003},{"$f":"IFERROR((ROUNDDOWN((($D$20-0.1)/I125),0)*SUM(J125))/$D$20,0)","v":0.84654871962400013},120.63745019920322,{"$f":"IFERROR((ROUNDDOWN((($D$20-0.1)/I125),0)*SUM(L125))/$D$20,0)","v":6.0318725099601611},0.38406374501992036,{"$f":"IFERROR(ROUNDDOWN((($D$20-0.1)/I125),0)*SUM(J125,L125),0)","v":137.56842459168323},6.8784212295841609,20,0,{"$f":"IFERROR((ROUNDDOWN((($D$20-0.1)/Q125),0)*SUM(R125))/$D$20,0)","v":0},{"$f":"IF(LEFT($D125,3)=\"LED\",\"NA included in Lamp cycle\",IF($F125>=100,($J$48-$F$48),($J$47-$F$47)))","v":"NA included in Lamp cycle"},0,"NA included in Lamp cycle",0,{"$f":"IFERROR(W125/$D$20,0)","v":0},20,{"$f":"'Warehouse Pricing'!$Z$69","v":270.5},267.95472429611652,{"$f":"IFERROR(($D$20/Y125)*SUM(Z125:AA125),0)","v":538.45472429611652},{"$f":"IFERROR(AB125/$D$20,0)","v":26.922736214805827},72.437522043957671,null,null,null,{"$f":"IFERROR(($D$20/AE125)*SUM(AF125:AG125),0)","v":0},{"$f":"IFERROR(AH125/$D$20,0)","v":0},40,{"$f":"IFERROR(VLOOKUP(E125,'Bracket Summary'!$A$79:$B$122,2,FALSE),VLOOKUP(E125,'Bracket Summary'!$B$43:$V$72,MATCH('Bracket Summary'!$V$43,'Bracket Summary'!$B$43:$V$43,0),FALSE))","v":90.686403656938197},"NA included in Lminaire",{"$f":"IFERROR(($D$20/AJ125)*SUM(AK125:AL125),0)","v":45.343201828469098},{"$f":"IFERROR(AM125/$D$20,0)","v":2.2671600914234551}]
[null,48,"New technology - Minor","LED 14","LED_14_1",14,1,{"$f":"IF(F126>=100,\"RLMAJ\",IF(LEFT($E126,6)=\"LED_14\",\"RLMAJ\",\"RLMIN\"))","v":"RLMAJ"},10,{"$f":"VLOOKUP(H126,$B$61:$D$62,3,FALSE)","v":16.930974392480003},{"$f":"IFERROR((ROUNDDOWN((($D$20-0.1)/I126),0)*SUM(J126))/$D$20,0)","v":0.84654871962400013},120.63745019920322,{"$f":"IFERROR((ROUNDDOWN((($D$20-0.1)/I126),0)*SUM(L126))/$D$20,0)","v":6.0318725099601611},0.38406374501992036,{"$f":"IFERROR(ROUNDDOWN((($D$20-0.1)/I126),0)*SUM(J126,L126),0)","v":137.56842459168323},{"$f":"IFERROR(O126/$D$20,0)","v":6.8784212295841609},20,0,{"$f":"IFERROR((ROUNDDOWN((($D$20-0.1)/Q126),0)*SUM(R126))/$D$20,0)","v":0},"NA included in Lamp cycle",{"$f":"IFERROR((ROUNDDOWN((($D$20-0.1)/Q126),0)*SUM(T126))/$D$20,0)","v":0},"NA included in Lamp cycle",0,{"$f":"IFERROR(W126/$D$20,0)","v":0},20,{"$f":"'Warehouse Pricing'!$Z$69","v":270.5},267.95472429611652,{"$f":"IFERROR(($D$20/Y126)*SUM(Z126:AA126),0)","v":538.45472429611652},{"$f":"IFERROR(AB126/$D$20,0)","v":26.922736214805827},72.437522043957671,null,null,null,{"$f":"IFERROR(($D$20/AE126)*SUM(AF126:AG126),0)","v":0},{"$f":"IFERROR(AH126/$D$20,0)","v":0},40,{"$f":"IFERROR(VLOOKUP(E126,'Bracket Summary'!$A$79:$B$122,2,FALSE),VLOOKUP(E126,'Bracket Summary'!$B$43:$V$72,MATCH('Bracket Summary'!$V$43,'Bracket Summary'!$B$43:$V$43,0),FALSE))","v":90.686403656938197},"NA included in Lminaire",{"$f":"IFERROR(($D$20/AJ126)*SUM(AK126:AL126),0)","v":45.343201828469098},{"$f":"IFERROR(AM126/$D$20,0)","v":2.2671600914234551}]
[null,49,"New technology - Major","LEDNEW- Major","LEDNEWMAJ",120,1,{"$f":"IF(F127>=100,\"RLMAJ\",IF(LEFT($E127,6)=\"LED_14\",\"RLMAJ\",\"RLMIN\"))","v":"RLMAJ"},{"$f":"IF(LEFT($D127,3)=\"LED\",$D$12,$D$13)","v":10},16.930974392480003,0.84654871962400013,174.60683581463624,{"$f":"IFERROR((ROUNDDOWN((($D$20-0.1)/I127),0)*SUM(L127))/$D$20,0)","v":8.7303417907318117},0.5558817362130426,{"$f":"IFERROR(ROUNDDOWN((($D$20-0.1)/I127),0)*SUM(J127,L127),0)","v":191.53781020711625},{"$f":"IFERROR(O127/$D$20,0)","v":9.5768905103558133},20,0,{"$f":"IFERROR((ROUNDDOWN((($D$20-0.1)/Q127),0)*SUM(R127))/$D$20,0)","v":0},"NA included in Lamp cycle",{"$f":"IFERROR((ROUNDDOWN((($D$20-0.1)/Q127),0)*SUM(T127))/$D$20,0)","v":0},"NA included in Lamp cycle",0,{"$f":"IFERROR(W127/$D$20,0)","v":0},20,{"$f":"'Warehouse Pricing'!$Z$70","v":600.51},{"$f":"IF($F127>=100,($J$40-$F$40),($J$43-$F$43))","v":421.74525866906089},{"$f":"IFERROR(($D$20/Y127)*SUM(Z127:AA127),0)","v":1022.2552586690608},{"$f":"IFERROR(AB127/$D$20,0)","v":51.112762933453041},111.15138592750534,null,null,null,{"$f":"IFERROR(($D$20/AE127)*SUM(AF127:AG127),0)","v":0},{"$f":"IFERROR(AH127/$D$20,0)","v":0},40,{"$f":"IFERROR(VLOOKUP(E127,'Bracket Summary'!$A$79:$B$122,2,FALSE),VLOOKUP(E127,'Bracket Summary'!$B$43:$V$72,MATCH('Bracket Summary'!$V$43,'Bracket Summary'!$B$43:$V$43,0),FALSE))","v":207.89721127739688},"NA included in Lminaire",{"$f":"IFERROR(($D$20/AJ127)*SUM(AK127:AL127),0)","v":103.94860563869844},{"$f":"IFERROR(AM127/$D$20,0)","v":5.1974302819349223}]
[null,"",null,null,null,null,null,null,null,null,null,null,null,null,null,null,null,null,null,null,null,0]
[]
[]
[]
[null,null,"LIST "]
[null,null,"Offered / No Longer Offered / NA"]
[null,null,"Offered"]
[null,null,"Obsolete, no new Connections"]
[null,null,"Abolished"]
[null,null,"Not Offered"]
[null,null,"NA"]
[]
[]
[]
[null,null,"250W Metal Halide - Flood Light"]
[null,null,"400W Metal Halide - Flood Light"]
[null,null,"External Links","Description"]
[null,null,"Service Classification","Opex Base step trend - Corp OH"]
[null,null,0,"Capex OH allocation"]
[null,null,0,"POW data, Opex and Capex (Direct costs)"]
[null,null,0,"PTRM outputs for RAB Revenue calculations"]
[null,null,0,"Volume data"]
[null,null,0,"Street lighting RFM"]
[]
[null,null,0,"Flat POW for Chart"]
[null,null,"Cost data Inputs","old Aurora prices"]

{"sheet":"Master Data","index":16,"n_rows":58,"n_cols":20,"rows_kept":58,"cut":false,"hidden":false,"merged":[[49,0,49,2]]}
["Previous Year",{"$f":"EOMONTH($B$2,-12)","v":"2014-06-30"},null,{"$f":"TEXT(B1,\"YY\")","v":"14"},{"$f":"TEXT(B1,\"YYy\")","v":"2014"},{"$f":"TEXT(B1,\"mmm\")","v":"Jun"},{"$f":"TEXT(B1,\"mmmm\")","v":"June"}]
["Current Year",{"$f":"EOMONTH($B$3,-1)","v":"2015-06-30"},null,{"$f":"TEXT(B2,\"YY\")","v":"15"},{"$f":"TEXT(B2,\"YYy\")","v":"2015"},{"$f":"TEXT(B2,\"mmm\")","v":"Jun"},{"$f":"TEXT(B2,\"mmmm\")","v":"June"},{"$f":"E1&\"-\"&D2","v":"2014-15"}]
["Year Start","2015-07-01",2015,{"$f":"TEXT(B3,\"YY\")","v":"15"},{"$f":"TEXT(B3,\"YYy\")","v":"2015"},{"$f":"TEXT(B3,\"mmm\")","v":"Jul"},{"$f":"TEXT(B3,\"mmmm\")","v":"July"}]
["Year 1",{"$f":"EOMONTH($B$3,11)","v":"2016-06-30"},null,{"$f":"TEXT(B4,\"YY\")","v":"16"},{"$f":"TEXT(B4,\"YYy\")","v":"2016"},{"$f":"TEXT(B4,\"mmm\")","v":"Jun"},{"$f":"TEXT(B4,\"mmmm\")","v":"June"},{"$f":"E3&\"-\"&D4","v":"2015-16"}]
["Year 2",{"$f":"EOMONTH($B$3,23)","v":"2017-06-30"},null,{"$f":"TEXT(B5,\"YY\")","v":"17"},{"$f":"TEXT(B5,\"YYy\")","v":"2017"},{"$f":"TEXT(B5,\"mmm\")","v":"Jun"},{"$f":"TEXT(B5,\"mmmm\")","v":"June"},{"$f":"E4&\"-\"&D5","v":"2016-17"}]
["Year 3",{"$f":"EOMONTH($B$3,35)","v":"2018-06-30"},null,"18","2018","Jun","June","2017-18"]
["Year 4",{"$f":"EOMONTH($B$3,47)","v":"2019-06-30"},null,"19","2019","Jun","June","2018-19"]
["Year 5",{"$f":"EOMONTH($B$3,59)","v":"2020-06-30"},null,"20","2020","Jun","June","2019-20"]
["Year 6",{"$f":"EOMONTH($B$3,71)","v":"2021-06-30"},null,"21","2021","Jun","June","2020-21"]
["Year 7",{"$f":"EOMONTH($B$3,83)","v":"2022-06-30"},null,"22","2022","Jun","June","2021-22"]
["Year 8",{"$f":"EOMONTH($B$3,95)","v":"2023-06-30"},null,"23","2023","Jun","June","2022-23"]
["Year 9",{"$f":"EOMONTH($B$3,107)","v":"2024-06-30"},null,"24","2024","Jun","June","2023-24"]
["Year 10",{"$f":"EOMONTH($B$3,119)","v":"2025-06-30"},null,"25","2025","Jun","June","2024-25"]
["Year 11",{"$f":"EOMONTH($B$3,131)","v":"2026-06-30"},null,"26","2026",{"$f":"TEXT(B14,\"mmm\")","v":"Jun"},{"$f":"TEXT(B14,\"mmmm\")","v":"June"},{"$f":"E13&\"-\"&D14","v":"2025-26"}]
["Year 12",{"$f":"EOMONTH($B$3,143)","v":"2027-06-30"},null,"27","2027","Jun","June","2026-27"]
["Year 13",{"$f":"EOMONTH($B$3,155)","v":"2028-06-30"},null,"28","2028","Jun","June","2027-28"]
["Year 14",{"$f":"EOMONTH($B$3,167)","v":"2029-06-30"},null,"29","2029","Jun","June","2028-29"]
[]
[]
[]
[]
[]
["Year",null,null,null,null,"Current",{"$f":"A4","v":"Year 1"},{"$f":"A5","v":"Year 2"},{"$f":"A6","v":"Year 3"},{"$f":"A7","v":"Year 4"},{"$f":"A8","v":"Year 5"},{"$f":"A9","v":"Year 6"},{"$f":"A10","v":"Year 7"},{"$f":"A11","v":"Year 8"},{"$f":"A12","v":"Year 9"},{"$f":"A13","v":"Year 10"},{"$f":"$A14","v":"Year 11"},{"$f":"$A15","v":"Year 12"},{"$f":"$A16","v":"Year 13"},{"$f":"$A17","v":"Year 14"}]
[null,null,null,null,null,{"$f":"C3","v":2015},{"$f":"F24+1","v":2016},{"$f":"G24+1","v":2017},2018,2019,2020,2021,2022,2023,2024,{"$f":"O24+1","v":2025},{"$f":"P24+1","v":2026},{"$f":"Q24+1","v":2027},2028,2029]
[null,"2010-11","2011-12","2012-13","2013-14",{"$f":"H2","v":"2014-15"},{"$f":"H4","v":"2015-16"},{"$f":"H5","v":"2016-17"},{"$f":"H6","v":"2017-18"},{"$f":"H7","v":"2018-19"},{"$f":"H8","v":"2019-20"},{"$f":"H9","v":"2020-21"},{"$f":"H10","v":"2021-22"},{"$f":"H11","v":"2022-23"},{"$f":"H12","v":"2023-24"},{"$f":"H13","v":"2024-25"},{"$f":"H14","v":"2025-26"},{"$f":"H15","v":"2026-27"},{"$f":"H16","v":"2027-28"},{"$f":"H17","v":"2028-29"}]
[]
[null,{"$f":"EOMONTH(C27,-12)","v":"2011-06-30"},"2012-06-30","2013-06-30",{"$f":"EOMONTH(F27,-12)","v":"2014-06-30"},{"$f":"B2","v":"2015-06-30"},{"$f":"B4","v":"2016-06-30"},{"$f":"B5","v":"2017-06-30"},{"$f":"B6","v":"2018-06-30"},{"$f":"B7","v":"2019-06-30"},{"$f":"B8","v":"2020-06-30"},{"$f":"B9","v":"2021-06-30"},{"$f":"B10","v":"2022-06-30"},{"$f":"B11","v":"2023-06-30"},{"$f":"B12","v":"2024-06-30"},{"$f":"B13","v":"2025-06-30"},{"$f":"B14","v":"2026-06-30"},{"$f":"B15","v":"2027-06-30"},{"$f":"B16","v":"2028-06-30"},{"$f":"B17","v":"2029-06-30"}]
["Days in the year",null,{"$f":"C27-B27","v":366},365,365,365,{"$f":"G27-F27","v":366},{"$f":"H27-G27","v":365},{"$f":"I27-H27","v":365},365,366,365,365,365,366]
[]
[]
["AER Inputs"]
[]
[null,"Year -4","Year -3","Year -2","Year -1","Current","Year 1","Year 2","Year 3","Year 4","Year 5","Year 6","Year 7","Year 8","Year 9","Year 10","Year 11","Year 12","Year 13","Year 14"]
[null,"2010-11","2011-12","2012-13","2013-14",{"$f":"F25","v":"2014-15"},"2015-16","2016-17","2017-18","2018-19","2019-20","2020-21","2021-22","2022-23","2023-24","2024-25",{"$f":"Q25","v":"2025-26"},"2026-27","2027-28","2028-29"]
["CPI    (consistent with AER RFM)",2.6548672566371723E-2,3.1034482758620641E-2,2.5000000000000001E-2,2.93E-2,1.3299999999999999E-2,1.3100000000000001E-2,2.1299999999999999E-2,{"$f":"112.1/110-1","v":1.9090909090909047E-2},2.44988990361477E-2,{"$f":"B44","v":2.44995114800401E-2},{"$f":"B44","v":2.44995114800401E-2},{"$f":"B44","v":2.44995114800401E-2},{"$f":"B44","v":2.44995114800401E-2},{"$f":"B44","v":2.44995114800401E-2}]
["Cumulative CPI",{"$f":"C36-(C36*B35)","v":0.89271371910283803},{"$f":"D36-(D36*C35)","v":0.9170604568965518},{"$f":"E36-(E36*D35)","v":0.94643250000000001},{"$f":"F36-(F36*E35)","v":0.97070000000000001},1,{"$f":"F36*(1+G$35)","v":1.0131000000000001},{"$f":"G36*(1+H$35)","v":1.0346790300000002},1.0544319933000001,1.0802644162443409,1.106730366711598,1.1338447200361579,1.1616233617712666,1.1900825666584645,1.2192390081625091]
[null,{"$f":"C37-(C37*B35)","v":0.86930161442980236},0.89300984027788788,0.92161157893447498,0.94524264506099998,0.97377422999999996,{"$f":"H37-(H37*G35)","v":0.9869},1,1.019090909090909,{"$f":"I37*(1+J$35)","v":1.0440575143813831},1.0696364134407919,{"$f":"K37*(1+L$35)","v":1.0958419830313535},{"$f":"L37*(1+M$35)","v":1.12268957627494},1.1501949224374093,1.1783741361439484]
[null,null,null,null,null,null,null,null,null,null,1,{"$f":"K38*(1+L$35)","v":1.0244995114800401},{"$f":"L38*(1+M$35)","v":1.049599249022841},{"$f":"M38*(1+N$35)","v":1.0753139178737177},{"$f":"N38*(1+O$35)","v":1.1016585835493118}]
[null,{"$f":"C39-(C39*B35)","v":0.83454322159618266},0.85730349127607863,0.88476161021374655,0.90744780534743241,0.93483857561289008,0.94743952124545461,{"$f":"I39-(I39*H35)","v":0.96001572727272733},{"$f":"J39-(J39*I35)","v":0.98090909090909095},1,{"$f":"J39*(1+K$35)","v":1.0244995114800401},1.049599249022841,1.0753139178737177,1.1016585835493118,1.128648680664063]
["Labour Real $ escalator",null,null,null,null,null,null,null,null,null,2.9999999999999997E-4,2.3E-3,3.5000000000000001E-3,4.3E-3,5.0000000000000001E-3]
["Labour Real $ escalator - cummulative",null,null,null,null,null,null,null,null,null,1,{"$f":"K41*(1+L$40)","v":1.0023},{"$f":"L41*(1+M$40)","v":1.00580805},1.010133024615,1.0151836897380748]
["Labour Real $ escalator - cummulative",null,null,null,null,null,null,null,null,null,{"$f":"K41-1","v":0},{"$f":"L41-1","v":2.2999999999999687E-3},{"$f":"M41-1","v":5.8080499999999535E-3},1.0133024614999986E-2,1.5183689738074824E-2]
[]
["Forecast CPI",2.44995114800401E-2]
["Nominal Vanilla WACC",5.5090486958922144E-2]
["Pre-tax Real WACC Rate",3.4310452188433649E-2]
[]
[]
[]
["CPI - Weighted Av of 8 Capital Cities"]
[null,"CPI","Annual Δ in CPI"]
["2017-03-31",110.5,{"$f":"ROUND(B52/B53-1,4)","v":2.1299999999999999E-2}]
["2016-03-31",108.2,1.3100000000000001E-2]
["2015-03-31",106.8,1.3299999999999999E-2]
["2014-03-31",105.4,2.93E-2]
["2013-03-31",102.4,2.5000000000000001E-2]
["2012-03-31",99.9,1.6299999999999999E-2]
["2011-03-31",98.3]

{"sheet":"Volumes","index":17,"n_rows":94,"n_cols":16,"rows_kept":94,"cut":false,"hidden":false,"merged":[[1,3,1,7]]}
[]
[]
[null,null,null,"2019-20\nRegulatory Year","2020-21\nRegulatory Year","2021-22\nRegulatory Year","2022-23\nRegulatory Year","2023-24\nRegulatory Year","2024-25\nRegulatory Year","2025-26\nRegulatory Year","2026-27\nRegulatory Year","2027-28\nRegulatory Year","2028-29\nRegulatory Year"]
["Private Contract Lights","Light Description","Dbill code",{"$f":"'Master Data'!K$25","v":"2019-20"},{"$f":"'Master Data'!L$25","v":"2020-21"},{"$f":"'Master Data'!M$25","v":"2021-22"},{"$f":"'Master Data'!N$25","v":"2022-23"},{"$f":"'Master Data'!O$25","v":"2023-24"},{"$f":"'Master Data'!P$25","v":"2024-25"},{"$f":"'Master Data'!Q$25","v":"2025-26"},{"$f":"'Master Data'!R$25","v":"2026-27"},{"$f":"'Master Data'!S$25","v":"2027-28"},{"$f":"'Master Data'!T$25","v":"2028-29"},null,null,"Check to Unsmoothed Prices"]
[{"$f":"$A$4","v":"Private Contract Lights"},"50W Mercury Vapour","MV_50_E",141,130,127,115,108,null,null,null,null,null,"2% decrease per FY - No new PCL lights; Reduction estimated on customer removing PCL.",null,{"$f":"VLOOKUP(B5,'Unsmoothed Prices'!$B$10:$B$68,1,FALSE)","v":"50W Mercury Vapour"}]
[{"$f":"$A$4","v":"Private Contract Lights"},"80W Mercury Vapour","MV_80_E",280,260,240,230,220,null,null,null,null,null,"2% decrease per FY - No new PCL lights; Reduction estimated on customer removing PCL.",null,{"$f":"VLOOKUP(B6,'Unsmoothed Prices'!$B$10:$B$68,1,FALSE)","v":"80W Mercury Vapour"}]
["Private Contract Lights","125W Mercury Vapour","MV_125_E",314,307,301,295,289,null,null,null,null,null,"2% decrease per FY - No new PCL lights; Reduction estimated on customer removing PCL.",null,{"$f":"VLOOKUP(B7,'Unsmoothed Prices'!$B$10:$B$68,1,FALSE)","v":"125W Mercury Vapour"}]
["Private Contract Lights","250W Mercury Vapour","MV_250_E",27,27,26,26,25,null,null,null,null,null,"2% decrease per FY - No new PCL lights; Reduction estimated on customer removing PCL.",null,{"$f":"VLOOKUP(B8,'Unsmoothed Prices'!$B$10:$B$68,1,FALSE)","v":"250W Mercury Vapour"}]
["Private Contract Lights","400W Mercury Vapour","MV_400_E",21,20,20,20,19,null,null,null,null,null,"2% decrease per FY - No new PCL lights; Reduction estimated on customer removing PCL.",null,{"$f":"VLOOKUP(B9,'Unsmoothed Prices'!$B$10:$B$68,1,FALSE)","v":"400W Mercury Vapour"}]
["Private Contract Lights","70W Sodium Vapour","HPS_70_E",73,73,73,73,73,null,null,null,null,null,"Steady - No new PCLs",null,{"$f":"VLOOKUP(B10,'Unsmoothed Prices'!$B$10:$B$68,1,FALSE)","v":"70W Sodium Vapour"}]
["Private Contract Lights","100W Sodium Vapour","HPS_100_E",5,5,5,5,5,null,null,null,null,null,null,null,{"$f":"VLOOKUP(B11,'Unsmoothed Prices'!$B$10:$B$68,1,FALSE)","v":"100W Sodium Vapour"}]
["Private Contract Lights","150W Sodium Vapour","HPS_150_E",163,163,163,163,163,null,null,null,null,null,"Steady - No new PCLs",null,{"$f":"VLOOKUP(B12,'Unsmoothed Prices'!$B$10:$B$68,1,FALSE)","v":"150W Sodium Vapour"}]
["Private Contract Lights","250W Sodium Vapour","HPS_250_E",165,165,165,165,165,null,null,null,null,null,"Steady - No new PCLs",null,{"$f":"VLOOKUP(B13,'Unsmoothed Prices'!$B$10:$B$68,1,FALSE)","v":"250W Sodium Vapour"}]
["Private Contract Lights","400W Sodium Vapour","HPS_400_T",104,104,104,104,104,null,null,null,null,null,"Steady - No new PCLs",null,{"$f":"VLOOKUP(B14,'Unsmoothed Prices'!$B$10:$B$68,1,FALSE)","v":"400W Sodium Vapour"}]
["Private Contract Lights","100W Metal Halide","MH_100_E",5,5,5,5,5,null,null,null,null,null,null,null,{"$f":"VLOOKUP(B15,'Unsmoothed Prices'!$B$10:$B$68,1,FALSE)","v":"100W Metal Halide"}]
["Private Contract Lights","150W Metal Halide","MH_150_E",27,27,27,27,27,null,null,null,null,null,"Steady - No new PCLs",null,{"$f":"VLOOKUP(B16,'Unsmoothed Prices'!$B$10:$B$68,1,FALSE)","v":"150W Metal Halide"}]
["Private Contract Lights","250W Metal Halide","MH_250_T",40,40,40,40,40,null,null,null,null,null,"Steady - No new PCLs",null,{"$f":"VLOOKUP(B17,'Unsmoothed Prices'!$B$10:$B$68,1,FALSE)","v":"250W Metal Halide"}]
["Private Contract Lights","400W Metal Halide","MH_400_T",9,9,9,9,9,null,null,null,null,null,"Steady - No new PCLs",null,{"$f":"VLOOKUP(B18,'Unsmoothed Prices'!$B$10:$B$68,1,FALSE)","v":"400W Metal Halide"}]
["Private Contract Lights","1x20W Fluorescent","FL_1X20",0,0,0,0,0,null,null,null,null,null,"Plan to remove all these lights types by 2017-18",null,{"$f":"VLOOKUP(B19,'Unsmoothed Prices'!$B$10:$B$68,1,FALSE)","v":"1x20W Fluorescent"}]
["Private Contract Lights","2x20W Fluorescent","FL_2X20",0,0,0,0,0,null,null,null,null,null,"Plan to remove all these lights types by 2017-18",null,{"$f":"VLOOKUP(B20,'Unsmoothed Prices'!$B$10:$B$68,1,FALSE)","v":"2x20W Fluorescent"}]
["Private Contract Lights","1x40W Fluorescent","FL_1X40",0,0,0,0,0,null,null,null,null,null,"Plan to remove all these lights types by 2017-18",null,{"$f":"VLOOKUP(B21,'Unsmoothed Prices'!$B$10:$B$68,1,FALSE)","v":"1x40W Fluorescent"}]
["Private Contract Lights","2x40W Fluorescent","FL_2X40",0,0,0,0,0,null,null,null,null,null,"Plan to remove all these lights types by 2017-18",null,{"$f":"VLOOKUP(B22,'Unsmoothed Prices'!$B$10:$B$68,1,FALSE)","v":"2x40W Fluorescent"}]
["Private Contract Lights","3x40W Fluorescent","FL_3X40",0,0,0,0,0,null,null,null,null,null,"Plan to remove all these lights types by 2017-18",null,{"$f":"VLOOKUP(B23,'Unsmoothed Prices'!$B$10:$B$68,1,FALSE)","v":"3x40W Fluorescent"}]
["Private Contract Lights","4x40W Fluorescent","FL_4X40",0,0,0,0,0,null,null,null,null,null,"Plan to remove all these lights types by 2017-18",null,{"$f":"VLOOKUP(B24,'Unsmoothed Prices'!$B$10:$B$68,1,FALSE)","v":"4x40W Fluorescent"}]
["Private Contract Lights","60W Incandescent","INC_60",0,0,0,0,0,null,null,null,null,null,"Plan to remove all these lights types by 2017-18",null,{"$f":"VLOOKUP(B25,'Unsmoothed Prices'!$B$10:$B$68,1,FALSE)","v":"60W Incandescent"}]
["Private Contract Lights","100W Incandescent","INC_100",0,0,0,0,0,null,null,null,null,null,"Plan to remove all these lights types by 2017-18",null,{"$f":"VLOOKUP(B26,'Unsmoothed Prices'!$B$10:$B$68,1,FALSE)","v":"100W Incandescent"}]
["Private Contract Lights","Fluorescent 4x20","FL_4X20",0,0,0,0,0,null,null,null,null,null,"Plan to remove all these lights types by 2017-18",null,{"$f":"VLOOKUP(B27,'Unsmoothed Prices'!$B$10:$B$68,1,FALSE)","v":{"$error":"#N/A"}}]
[{"$f":"$A$4","v":"Private Contract Lights"},"18W LED","LED_18",4980,4980,4980,4980,4980,null,null,null,null,null,"New Light type; HCC/GCC Project Energy Efficient Project; ",null,{"$f":"VLOOKUP(B28,'Unsmoothed Prices'!$B$10:$B$68,1,FALSE)","v":"18W LED"}]
["Private Contract Lights","25W LED","LED_25",29,29,29,29,29,null,null,null,null,null,"Trial Lights",null,{"$f":"VLOOKUP(B29,'Unsmoothed Prices'!$B$10:$B$68,1,FALSE)","v":"25W LED"}]
["Private Contract Lights","30W LED","LED_30",32,32,32,32,32,null,null,null,null,null,"Trial Lights",null,{"$f":"VLOOKUP(B30,'Unsmoothed Prices'!$B$10:$B$68,1,FALSE)","v":"30W LED"}]
["Private Contract Lights","14W LED","LED_14_1",13129,14029,14059,14089,14129,null,null,null,null,null,"New streetlight standard for minor lights. Councils doing accelerated rollouts.",null,{"$f":"VLOOKUP(B31,'Unsmoothed Prices'!$B$10:$B$68,1,FALSE)","v":"14W LED"}]
["Private Contract Lights","42W Compact Fluorescent","CFL_42",28,28,28,28,28,null,null,null,null,null,null,null,{"$f":"VLOOKUP(B32,'Unsmoothed Prices'!$B$10:$B$68,1,FALSE)","v":"42W Compact Fluorescent"}]
[null,null,null,null,null,null,null,null,null,null,null,null,null,null,null,{"$f":"VLOOKUP(B33,'Unsmoothed Prices'!$B$10:$B$68,1,FALSE)","v":0}]
[null,"Total Private",null,{"$f":"SUM(D5:D33)","v":19572},20433,20433,20435,20450,0,0,0,0,0]
[null,"Change",null,null,{"$f":"E34-D34","v":861},{"$f":"F34-E34","v":0},2,15]
[]
[]
[]
["Public Road Lights","Light Description",null,{"$f":"'Master Data'!K$25","v":"2019-20"},{"$f":"'Master Data'!L$25","v":"2020-21"},{"$f":"'Master Data'!M$25","v":"2021-22"},{"$f":"'Master Data'!N$25","v":"2022-23"},{"$f":"'Master Data'!O$25","v":"2023-24"},{"$f":"'Master Data'!P$25","v":"2024-25"},{"$f":"'Master Data'!Q$25","v":"2025-26"},{"$f":"'Master Data'!R$25","v":"2026-27"},{"$f":"'Master Data'!S$25","v":"2027-28"},{"$f":"'Master Data'!T$25","v":"2028-29"},null,null,"Check to Unsmoothed Prices"]
["Mercury Vapour","50W Mercury Vapour","MV_50_E",0,0,0,0,0,null,null,null,null,null,"Plan to remove all these lights types by 2017-18",null,{"$f":"VLOOKUP(B40,'Unsmoothed Prices'!$B$73:$B$131,1,FALSE)","v":"50W Mercury Vapour"}]
["Mercury Vapour","80W Mercury Vapour","MV_80_E",3200,0,0,0,0,null,null,null,null,null,"Reduction in 15-16 due to HCC/GCC Project Energy Efficient Project/4 year replacement program 17-18",null,{"$f":"VLOOKUP(B41,'Unsmoothed Prices'!$B$73:$B$131,1,FALSE)","v":"80W Mercury Vapour"}]
["Mercury Vapour","80W Mercury Vapour Art decorative","MV_80_E",40,40,40,40,40,null,null,null,null,null,"Steady",null,{"$f":"VLOOKUP(B42,'Unsmoothed Prices'!$B$73:$B$131,1,FALSE)","v":"80W Mercury Vapour Art decorative"}]
["Mercury Vapour","125W Mercury Vapour","MV_125_E",0,0,0,0,0,null,null,null,null,null,"Plan to remove all these lights types by 2017-18",null,{"$f":"VLOOKUP(B43,'Unsmoothed Prices'!$B$73:$B$131,1,FALSE)","v":"125W Mercury Vapour"}]
["Mercury Vapour","250W Mercury Vapour","MV_250_E",386,356,301,248,231,null,null,null,null,null,"5% decrease per FY",null,{"$f":"VLOOKUP(B44,'Unsmoothed Prices'!$B$73:$B$131,1,FALSE)","v":"250W Mercury Vapour"}]
["Mercury Vapour","400W Mercury Vapour","MV_400_E",29,27,23,20,17,null,null,null,null,null,"5% decrease per FY",null,{"$f":"VLOOKUP(B45,'Unsmoothed Prices'!$B$73:$B$131,1,FALSE)","v":"400W Mercury Vapour"}]
["Sodium Vapour","70W Sodium Vapour","HPS_70_E",236,248,260,272,286,null,null,null,null,null,"5% increase per FY",null,{"$f":"VLOOKUP(B46,'Unsmoothed Prices'!$B$73:$B$131,1,FALSE)","v":"70W Sodium Vapour"}]
["Sodium Vapour","100W Sodium Vapour","HPS_100_E",444,466,490,514,540,null,null,null,null,null,"5% increase per FY",null,{"$f":"VLOOKUP(B47,'Unsmoothed Prices'!$B$73:$B$131,1,FALSE)","v":"100W Sodium Vapour"}]
["Sodium Vapour","150W Sodium Vapour","HPS_150_E",5322,5588,5762,6008,6328,null,null,null,null,null,"5% increase per FY",null,{"$f":"VLOOKUP(B48,'Unsmoothed Prices'!$B$73:$B$131,1,FALSE)","v":"150W Sodium Vapour"}]
["Sodium Vapour","250W Sodium Vapour","HPS_250_E",6615,6946,7293,7654,8040,null,null,null,null,null,"5% increase per FY",null,{"$f":"VLOOKUP(B49,'Unsmoothed Prices'!$B$73:$B$131,1,FALSE)","v":"250W Sodium Vapour"}]
["Sodium Vapour","400W Sodium Vapour","HPS_400_T",674,708,733,764,806,null,null,null,null,null,"5% increase per FY",null,{"$f":"VLOOKUP(B50,'Unsmoothed Prices'!$B$73:$B$131,1,FALSE)","v":"400W Sodium Vapour"}]
["Sodium Vapour","250W Sodium Vapour - Flood Light","HPS_250_FL",36,38,40,42,44,null,null,null,null,null,"5% increase per FY",null,{"$f":"VLOOKUP(B51,'Unsmoothed Prices'!$B$73:$B$131,1,FALSE)","v":"250W Sodium Vapour - Flood Light"}]
["Sodium Vapour","400W Sodium Vapour - Flood Light","HPS_400_FL",36,38,40,42,44,null,null,null,null,null,"5% increase per FY",null,{"$f":"VLOOKUP(B52,'Unsmoothed Prices'!$B$73:$B$131,1,FALSE)","v":"400W Sodium Vapour - Flood Light"}]
["Fluorescent","20 Fluorescent 1X20FL","FL_1X20",0,0,0,0,0,null,null,null,null,null,"Plan to remove all these lights types by 2017-18",null,{"$f":"VLOOKUP(B53,'Unsmoothed Prices'!$B$73:$B$131,1,FALSE)","v":"20 Fluorescent 1X20FL"}]
["Fluorescent","1x40W Fluorescent","FL_1X40",0,0,0,0,0,null,null,null,null,null,"Plan to remove all these lights types by 2017-18",null,{"$f":"VLOOKUP(B54,'Unsmoothed Prices'!$B$73:$B$131,1,FALSE)","v":"1x40W Fluorescent"}]
["Fluorescent","2x20W Fluorescent","FL_2X20",0,0,0,0,0,null,null,null,null,null,"Plan to remove all these lights types by 2017-18",null,{"$f":"VLOOKUP(B55,'Unsmoothed Prices'!$B$73:$B$131,1,FALSE)","v":"2x20W Fluorescent"}]
["Fluorescent","2x40W Fluorescent","FL_2X40",0,0,0,0,0,null,null,null,null,null,"Plan to remove all these lights types by 2017-18",null,{"$f":"VLOOKUP(B56,'Unsmoothed Prices'!$B$73:$B$131,1,FALSE)","v":"2x40W Fluorescent"}]
["Fluorescent","T5 Fluorescent 2 x 24W","FL_2X24",83,83,83,83,83,null,null,null,null,null,"Install 43 in 16/17",null,{"$f":"VLOOKUP(B57,'Unsmoothed Prices'!$B$73:$B$131,1,FALSE)","v":"T5 Fluorescent 2 x 24W"}]
["Fluorescent","4x20 Fluorescent","FL_4X20",0,0,0,0,0,null,null,null,null,null,"Plan to remove all these lights types by 2017-18",null,{"$f":"VLOOKUP(B58,'Unsmoothed Prices'!$B$73:$B$131,1,FALSE)","v":"4x20 Fluorescent"}]
["Fluorescent","4x40W Fluorescent","FL_4X40",0,0,0,0,0,null,null,null,null,null,"Plan to remove all these lights types by 2017-18",null,{"$f":"VLOOKUP(B59,'Unsmoothed Prices'!$B$73:$B$131,1,FALSE)","v":"4x40W Fluorescent"}]
["Fluorescent","42W Compact Fluorescent - Bottom Pole Entry","CFL_42",204,204,204,204,204,null,null,null,null,null,"204 Rexel Bathurst Fittings will be replaced with these fittings",null,{"$f":"VLOOKUP(B60,'Unsmoothed Prices'!$B$73:$B$131,1,FALSE)","v":"42W Compact Fluorescent - Bottom Pole Entry"}]
["Fluorescent","42W Compact Fluorescent","CFL_42",3513,3470,3270,3110,2890,null,null,null,null,null,"No new 42W CFL from 15-16 onwards; number will decrease due to fault",null,{"$f":"VLOOKUP(B61,'Unsmoothed Prices'!$B$73:$B$131,1,FALSE)","v":"42W Compact Fluorescent"}]
["Incandescent","60W Incandescent","INC_60",0,0,0,0,0,null,null,null,null,null,"Plan to remove all these lights types by 2017-18",null,{"$f":"VLOOKUP(B62,'Unsmoothed Prices'!$B$73:$B$131,1,FALSE)","v":"60W Incandescent"}]
["Incandescent","100W Incandescent","INC_100",0,0,0,0,0,null,null,null,null,null,"Plan to remove all these lights types by 2017-18",null,{"$f":"VLOOKUP(B63,'Unsmoothed Prices'!$B$73:$B$131,1,FALSE)","v":"100W Incandescent"}]
["Metal Halide","100W Metal Halide","MH_100_E",18,19,20,21,22,null,null,null,null,null,"5% increase per FY",null,{"$f":"VLOOKUP(B64,'Unsmoothed Prices'!$B$73:$B$131,1,FALSE)","v":"100W Metal Halide"}]
["Metal Halide","150W Metal Halide","MH_150_E",15,15,15,16,16,null,null,null,null,null,"2% increase per FY",null,{"$f":"VLOOKUP(B65,'Unsmoothed Prices'!$B$73:$B$131,1,FALSE)","v":"150W Metal Halide"}]
["Metal Halide","250W Metal Halide","MH_250_T",91,93,95,97,99,null,null,null,null,null,"2% increase per FY",null,{"$f":"VLOOKUP(B66,'Unsmoothed Prices'!$B$73:$B$131,1,FALSE)","v":"250W Metal Halide"}]
["Metal Halide","400W Metal Halide","MH_400_T",18,19,20,21,22,null,null,null,null,null,"5% increase per FY",null,{"$f":"VLOOKUP(B67,'Unsmoothed Prices'!$B$73:$B$131,1,FALSE)","v":"400W Metal Halide"}]
["LED","18W LED Decorative - Bottom Pole Entry","LED_18",36,38,40,42,44,null,null,null,null,null,"5% increase per FY",null,{"$f":"VLOOKUP(B68,'Unsmoothed Prices'!$B$73:$B$131,1,FALSE)","v":"18W LED Decorative - Bottom Pole Entry"}]
["LED","18W LED Decorative - Side Entry","LED_18",36,38,40,42,44,null,null,null,null,null,"5% increase per FY",null,{"$f":"VLOOKUP(B69,'Unsmoothed Prices'!$B$73:$B$131,1,FALSE)","v":"18W LED Decorative - Side Entry"}]
["LED","18W LED Decorative - Top Entry","LED_18",36,38,40,42,44,null,null,null,null,null,"5% increase per FY",null,{"$f":"VLOOKUP(B70,'Unsmoothed Prices'!$B$73:$B$131,1,FALSE)","v":"18W LED Decorative - Top Entry"}]
["LED","18W LED","LED_18",360,360,360,360,360,null,null,null,null,null,"new standard is now LED 14W not LED 18W",null,{"$f":"VLOOKUP(B71,'Unsmoothed Prices'!$B$73:$B$131,1,FALSE)","v":"18W LED"}]
["LED","25W LED Decorative - Bottom Pole Entry","LED_25",36,38,40,42,44,null,null,null,null,null,"5% increase per FY",null,{"$f":"VLOOKUP(B72,'Unsmoothed Prices'!$B$73:$B$131,1,FALSE)","v":"25W LED Decorative - Bottom Pole Entry"}]
["LED","25W LED Decorative - Side Entry","LED_25",36,38,40,42,44,null,null,null,null,null,"5% increase per FY",null,{"$f":"VLOOKUP(B73,'Unsmoothed Prices'!$B$73:$B$131,1,FALSE)","v":"25W LED Decorative - Side Entry"}]
["LED","25W LED Decorative - Top Entry","LED_25",36,38,40,42,44,null,null,null,null,null,"5% increase per FY",null,{"$f":"VLOOKUP(B74,'Unsmoothed Prices'!$B$73:$B$131,1,FALSE)","v":"25W LED Decorative - Top Entry"}]
["LED","25W LED","LED_25",21,21,21,21,21,null,null,null,null,null,"Use up of 25W StreetLED Stock",null,{"$f":"VLOOKUP(B75,'Unsmoothed Prices'!$B$73:$B$131,1,FALSE)","v":"25W LED"}]
["LED","88 LED Light","LED_88",0,0,0,0,0,null,null,null,null,null,"None on the network",null,{"$f":"VLOOKUP(B76,'Unsmoothed Prices'!$B$73:$B$131,1,FALSE)","v":"88 LED Light"}]
["Metal Halide","250W Metal Halide - Flood Light","MH_250_T",36,38,40,42,44,null,null,null,null,null,"5% increase per FY",null,{"$f":"VLOOKUP(B77,'Unsmoothed Prices'!$B$73:$B$131,1,FALSE)","v":"250W Metal Halide - Flood Light"}]
["Metal Halide","400W Metal Halide - Flood Light","MH_400_T",36,38,40,42,44,null,null,null,null,null,"5% increase per FY",null,{"$f":"VLOOKUP(B78,'Unsmoothed Prices'!$B$73:$B$131,1,FALSE)","v":"400W Metal Halide - Flood Light"}]
[null,"14W LED","LED_14_1",10871,12681,12761,12841,12876,null,null,null,null,null,"LED 14 W  new stardard for minor lights",null,{"$f":"VLOOKUP(B79,'Unsmoothed Prices'!$B$73:$B$131,1,FALSE)","v":"14W LED"}]
[null,null,null,null,null,null,null,null,null,null,null,null,null,null,null,{"$f":"VLOOKUP(B80,'Unsmoothed Prices'!$B$73:$B$131,1,FALSE)","v":0}]
[null,null,null,null,null,null,null,null,null,null,null,null,null,null,null,{"$f":"VLOOKUP(B81,'Unsmoothed Prices'!$B$73:$B$131,1,FALSE)","v":0}]
[null,"Total Public Lighting",null,{"$f":"SUM(D40:D81)","v":32500},31724,32151,32714,33321,{"$f":"SUM(I40:I81)","v":0},0,0,0,0]
[null,"Movement",null,null,{"$f":"E82-D82","v":-776},{"$f":"F82-E82","v":427},563,607,null,{"$f":"J82-I82","v":0},{"$f":"K82-J82","v":0},{"$f":"L82-K82","v":0},{"$f":"M82-L82","v":0}]
[]
[]
[null,"Total Lights",null,{"$f":"D34+D82","v":52072},52157,52584,53149,53771,{"$f":"I34+I82","v":0},0,0,0,0]
[null,"% movement",null,null,{"$f":"(E86-D86)/D86","v":1.632355200491627E-3},{"$f":"(F86-E86)/E86","v":8.1868205609985228E-3},1.0744713220751559E-2,1.1702948315114113E-2]
[]
["Duplicates"]
["Duplicates"]
["Duplicates"]
["Duplicates"]
["Duplicates"]
["Duplicates"]

{"sheet":"Warehouse Pricing","index":18,"n_rows":112,"n_cols":26,"rows_kept":112,"cut":false,"hidden":false,"merged":[]}
["Received from Contract Manager (Tendering and Contracts). These are the current contracted prices for various lighting materials."]
[]
[]
[]
["TasNetworks "]
["Supplier:   XXX"]
[null,null,null,null,null,null,null,null,null,null,null,null,null,null,null,null,null,null,null,null,null,null,0]
["CONTRACT ITEM NO.","TENDER ITEM NO.","S.I. NO.","ITEM NAME","DESCRIPTION","SAMPLE REQUIRED","ESTIMATED ANNUAL VOLUME REQUIRED ","MANUFACTURER","BRAND AND/OR CATALOGUE NO.","COUNTRY OF ORIGIN","MIN ORDER QUANTITY","STANDARD PACK QUANTITY","LEAD TIME FOR DELIVERY TO AURORA WAREHOUSE FOR AMC (CALENDAR DAYS)","NETT TENDERED RATE CIP CAMBRIDGE    YEAR 1                         1/04/2013 - 31/03/2014                ($ EACH)","NETT TENDERED RATE CIP CAMBRIDGE    YEAR 2                         1/04/2014 - 31/03/2015                ($ EACH)","NETT TENDERED RATE CIP CAMBRIDGE    YEAR 3                         1/04/2015 - 31/03/2016                ($ EACH)","NETT TENDERED RATE CIP CAMBRIDGE    YEAR 3                         1/04/2015 - 31/03/2016                ($ EACH)","NETT TENDERED RATE CIP CAMBRIDGE    YEAR 3                         1/04/2015 - 31/03/2016                ($ EACH)","NETT TENDERED RATE CIP CAMBRIDGE    \nYEAR 4                         1/04/2016 - 31/03/2017                ($ EACH)","NETT TENDERED RATE CIP CAMBRIDGE    \nYear 5 (3 months)                        1/04/2017 - 30/06/2017                ($ EACH)",null,null,"Contract Increase","Warehouse ",{"$f":"'Master Data'!H34","v":"2016-17"}]
[1,1,null,null,null,null,null,null,null,null,null,null,null,159.775251206897,null,null,"N/A",null,174.59073092555894,179.82845285332573,null,null,{"$f":"S9*(1+$W$7)","v":174.59073092555894},{"$f":"W9*(Inputs!$D$6)","v":14.316439935895835},{"$f":"SUM(W9:X9)","v":188.90717086145477}]
[2,2,null,null,null,null,null,null,null,null,null,null,null,205.11142000000001,null,null,"N/A",null,224.13078664234001,230.85471024161021,null,null,{"$f":"S10*(1+$W$7)","v":224.13078664234001},{"$f":"W10*(Inputs!$D$6)","v":18.378724504671883},{"$f":"SUM(W10:X10)","v":242.50951114701189}]
[3,17,null,null,null,null,null,null,null,null,null,null,null,310.89975000000004,null,null,"N/A",null,339.7285511182501,349.92040765179763,null,null,339.7285511182501,{"$f":"W11*(Inputs!$D$6)","v":27.857741191696508},367.5862923099466]
[4,14,null,null,null,null,null,null,null,null,null,null,null,157.84351666666666,null,null,"N/A",null,172.47987243661669,177.65426860971519,null,null,172.47987243661669,{"$f":"W12*(Inputs!$D$6)","v":14.143349539802569},186.62322197641925]
[5,15,null,null,null,null,null,null,null,null,null,null,null,114.74455833333333,null,null,"N/A",null,125.38447699390835,129.1460113037256,null,null,125.38447699390835,{"$f":"W13*(Inputs!$D$6)","v":10.281527113500486},135.66600410740884,{"$f":"AVERAGE(Y12:Y13)","v":161.14461304191406}]
[6,16,null,null,null,null,null,null,null,null,null,null,null,131.05863366666665,null,null,"N/A",null,143.21130759067569,147.50764681839595,null,null,143.21130759067569,{"$f":"W14*(Inputs!$D$6)","v":11.743327222435408},154.95463481311108]
[7,18,null,null,null,null,null,null,null,null,null,null,null,148.59800333333334,null,null,"N/A",null,162.37705038842336,167.24836190007605,null,null,162.37705038842336,{"$f":"W15*(Inputs!$D$6)","v":13.314918131850716},175.69196852027406]
[8,8,null,null,null,null,null,null,null,null,null,null,null,183.42742933333335,null,null,"N/A",null,200.43610457312536,206.44918771031914,null,null,200.43610457312536,{"$f":"W16*(Inputs!$D$6)","v":16.43576057499628},216.87186514812163]
[9,19,null,null,null,null,null,null,null,null,null,null,null,210.64196433333333,null,null,"N/A",null,230.17416176007035,237.07938661287247,null,null,230.17416176007035,{"$f":"W17*(Inputs!$D$6)","v":18.87428126432577},249.04844302439611]
[10,10,null,null,null,null,null,null,null,null,null,null,null,191.43187933333334,null,null,"N/A",null,209.18278320827534,215.4582667045236,null,null,209.18278320827534,{"$f":"W18*(Inputs!$D$6)","v":17.15298822307858},226.33577143135392]
[11,21,null,null,null,null,null,null,null,null,null,null,null,201.00991433333334,null,null,"N/A",null,219.64896065972039,226.23842947951201,null,null,219.64896065972039,{"$f":"W19*(Inputs!$D$6)","v":18.011214774097073},237.66017543381747,{"$f":"AVERAGE(Y18:Y19)","v":231.9979734325857}]
[12,12,null,null,null,null,null,null,null,null,null,null,null,277.97571266666665,null,null,"N/A",null,303.75156657510871,312.86411357236199,null,null,303.75156657510871,{"$f":"W20*(Inputs!$D$6)","v":24.907628459158914},328.65919503426761]
[13,23,null,null,null,null,null,null,null,null,null,null,null,243.25074766666665,null,null,"N/A",null,265.8066597455537,273.78085953792032,null,null,265.8066597455537,{"$f":"W21*(Inputs!$D$6)","v":21.796146099135406},287.6028058446891,{"$f":"AVERAGE(Y20:Y21)","v":308.13100043947838}]
[14,25,null,null,null,null,null,null,null,null,null,null,null,116.22262500000001,null,null,"N/A",null,126.99960034837503,130.80958835882629,null,null,126.99960034837503,{"$f":"W22*(Inputs!$D$6)","v":10.413967228566753},137.41356757694177]
[15,26,null,null,null,null,null,null,null,null,null,null,null,158.10873666666669,null,null,"N/A",null,172.76968549155669,177.95277605630338,null,null,172.76968549155669,{"$f":"W23*(Inputs!$D$6)","v":14.167114210307648},186.93679970186435,{"$f":"AVERAGE(Y22:Y23)","v":162.17518363940306}]
[16,27,null,null,null,null,null,null,null,null,null,null,null,183.42742933333335,null,null,"N/A",null,200.43610457312536,206.44918771031914,null,null,200.43610457312536,{"$f":"W24*(Inputs!$D$6)","v":16.43576057499628},216.87186514812163]
[17,28,null,null,null,null,null,null,null,null,null,null,null,216.76076266666666,null,null,"N/A",null,236.86033790645868,243.96614804365245,null,null,236.86033790645868,{"$f":"W25*(Inputs!$D$6)","v":19.422547708329613},256.28288561478831,{"$f":"AVERAGE(Y24:Y25)","v":236.57737538145497}]
[18,30,null,null,null,null,null,null,null,null,null,null,null,190.61521266666668,null,null,"N/A",null,208.29038949160869,214.53910117635695,null,null,208.29038949160869,{"$f":"W26*(Inputs!$D$6)","v":17.079811938311913},225.3702014299206]
[19,31,null,null,null,null,null,null,null,null,null,null,null,223.94854600000002,null,null,"N/A",null,244.71462282494207,252.05606150969032,null,null,244.71462282494207,{"$f":"W27*(Inputs!$D$6)","v":20.06659907164525},264.78122189658734,{"$f":"AVERAGE(Y26:Y27)","v":245.07571166325397}]
[20,33,null,null,null,null,null,null,null,null,null,null,null,598.7849609264706,null,null,"NA",null,654.30849399829947,673.93774881824845,null,null,654.30849399829947,{"$f":"W28*(Inputs!$D$6)","v":53.65329650786056},707.96179050616001]
[21,34,null,null,null,null,null,null,null,null,null,null,null,243.25074766666665,null,null,"N/A",null,265.8066597455537,273.78085953792032,null,null,265.8066597455537,{"$f":"W29*(Inputs!$D$6)","v":21.796146099135406},287.6028058446891,{"$f":"AVERAGE(Y28:Y29)","v":497.78229817542456}]
[22,38,null,null,null,null,null,null,null,null,null,null,null,354.28311666666667,null,null,"N/A",null,387.13472722581668,398.74876904259116,null,null,387.13472722581668,{"$f":"W30*(Inputs!$D$6)","v":31.745047632516968},418.87977485833363]
[23,39,null,null,null,null,null,null,null,null,null,null,null,364.86108333333328,null,null,"N/A",null,398.69355700758302,410.65436371781101,null,null,{"$f":"S31*(1+$W$7)","v":398.69355700758302},{"$f":"W31*(Inputs!$D$6)","v":32.692871674621813},431.38642868220484]
[24,40,null,null,null,null,null,null,null,null,null,null,null,307.60145,null,null,"N/A",null,336.12440965415004,346.20814194377454,null,null,336.12440965415004,{"$f":"W32*(Inputs!$D$6)","v":27.562201591640303},363.68661124579035]
[25,41,null,null,null,null,null,null,null,null,null,null,null,348.17028333333337,null,null,"N/A",null,380.45506919598336,391.86872127186285,null,null,380.45506919598336,{"$f":"W33*(Inputs!$D$6)","v":31.197315674070637},411.65238487005399]
[26,49,null,null,null,null,null,null,null,null,null,null,null,7.7472499999999993,null,null,"USD",null,8.4656292507500002,8.4656292507500002,null,null,8.4656292507500002,{"$f":"W34*(Inputs!$D$6)","v":0.69418159856150008},9.1598108493114996]
[27,51,null,null,null,null,null,null,null,null,null,null,null,2.7155,null,null,"USD",null,2.9673001685000004,2.9673001685000004,null,null,2.9673001685000004,{"$f":"W35*(Inputs!$D$6)","v":0.24331861381700004},3.2106187823170007]
[28,52,null,null,null,null,null,null,null,null,null,null,null,2.2586249999999999,null,null,"USD",null,2.4680605203749999,2.4680605203749999,null,null,2.4680605203749999,{"$f":"W36*(Inputs!$D$6)","v":0.20238096267075001},2.6704414830457499]
[29,53,null,null,null,null,null,null,null,null,null,null,null,2.296125,null,null,"USD",null,2.5090377828750001,2.5090377828750001,null,null,2.5090377828750001,{"$f":"W37*(Inputs!$D$6)","v":0.20574109819575001},2.71477888107075]
[30,58,null,null,null,null,null,null,null,null,null,null,null,8.4723749999999995,null,null,"Euro",null,9.2579929166250015,9.2579929166250015,null,null,9.2579929166250015,{"$f":"W38*(Inputs!$D$6)","v":0.75915541916325013},10.017148335788251]
[31,60,null,null,null,null,null,null,null,null,null,null,null,7.7006249999999996,null,null,"USD",null,8.4146808543750016,8.4146808543750016,null,null,8.4146808543750016,{"$f":"W39*(Inputs!$D$6)","v":0.69000383005875021},9.1046846844337512]
[32,61,null,null,null,null,null,null,null,null,null,null,null,15.45,null,null,"Euro",null,16.882632149999999,16.882632149999999,null,null,16.882632149999999,{"$f":"W40*(Inputs!$D$6)","v":1.3843758363000001},{"$f":"SUM(W40:X40)","v":18.267007986299998}]
[33,66,null,null,null,null,null,null,null,null,null,null,null,15.391499999999999,null,null,"USD",null,16.8187076205,16.8187076205,null,null,16.8187076205,{"$f":"W41*(Inputs!$D$6)","v":1.379134024881},18.197841645381001]
[34,67,null,null,null,null,null,null,null,null,null,null,null,17.308374999999998,null,null,"USD",null,18.913328688625,18.913328688625,null,null,18.913328688625,{"$f":"W42*(Inputs!$D$6)","v":1.5508929524672501},20.464221641092252]
[35,68,null,null,null,null,null,null,null,null,null,null,null,17.958124999999999,null,null,"USD",null,19.623328056875,19.623328056875,null,null,19.623328056875,{"$f":"W43*(Inputs!$D$6)","v":1.6091129006637501},21.232440957538749]
[36,69,null,null,null,null,null,null,null,null,null,null,null,15.124999999999998,null,null,"USD",null,16.527495875,16.527495875,null,null,16.527495875,{"$f":"W44*(Inputs!$D$6)","v":1.3552546617500001},17.882750536749999]
[37,70,null,null,null,null,null,null,null,null,null,null,null,15.4,null,null,"USD",null,16.8279958,16.8279958,null,null,16.8279958,{"$f":"W45*(Inputs!$D$6)","v":1.3798956556000002},18.207891455599999]
[38,74,null,null,null,null,null,null,null,null,null,null,null,4.6453333333333333,null,null,"USD",null,5.0760811573333333,5.0760811573333333,null,null,5.0760811573333333,{"$f":"W46*(Inputs!$D$6)","v":0.41623865490133333},5.4923198122346664]
[39,75,null,null,null,null,null,null,null,null,null,null,null,3.0385,null,null,"Euro",null,3.3202509895000003,3.3202509895000003,null,null,3.3202509895000003,{"$f":"W47*(Inputs!$D$6)","v":0.27226058113900004},3.5925115706390005]
[40,76,null,null,null,null,null,null,null,null,null,null,null,31.902926829268299,null,null,"N/A",null,34.861189525365859,35.907025211126836,null,null,34.861189525365859,{"$f":"W48*(Inputs!$D$6)","v":2.8586175410800005},37.71980706644586]
[41,77,null,null,null,null,null,null,null,null,null,null,null,31.922800000000002,null,null,"N/A",null,34.882905475600005,35.929392639868006,null,null,34.882905475600005,{"$f":"W49*(Inputs!$D$6)","v":2.8603982489992004},37.743303724599208]
[42,78,null,null,null,null,null,null,null,null,null,null,null,138.58000000000001,null,null,"N/A",null,151.43010766000003,155.97301088980004,null,null,{"$f":"S50*(1+$W$7)","v":151.43010766000003},{"$f":"W50*(Inputs!$D$6)","v":12.417268828120003},163.84737648812003]
[43,62,null,null,null,null,null,null,null,null,null,null,null,48.729272727272729,null,null,"N/A",null,53.247791999454556,54.845225759438193,null,null,53.247791999454556,{"$f":"W51*(Inputs!$D$6)","v":4.3663189439552736},57.614110943409827]
[44,63,null,null,null,null,null,null,null,null,null,null,null,53.303428571428569,null,null,"N/A",null,58.246095592571429,59.993478460348577,null,null,58.246095592571429,{"$f":"W52*(Inputs!$D$6)","v":4.7761798385908572},63.022275431162285]
[45,64,null,null,null,null,null,null,null,null,null,null,null,4.5555555555555554,null,null,"N/A",null,4.9779785555555556,4.9779785555555556,null,null,4.9779785555555556,{"$f":"W53*(Inputs!$D$6)","v":0.40819424155555556},5.3861727971111115]
[46,65,null,null,null,null,null,null,null,null,null,null,null,8.3047499999999985,null,null,"N/A",null,9.1773000000000007,9.4526190000000003,null,null,9.1773000000000007,{"$f":"W54*(Inputs!$D$6)","v":0.75253860000000006},9.9298386000000001]
[47,67,null,null,null,null,null,null,null,null,null,null,null,14.32,null,null,"USD",null,15.647850640000001,15.647850640000001,null,null,15.647850640000001,{"$f":"W55*(Inputs!$D$6)","v":1.2831237524800001},16.930974392480003]
[48,68,null,null,null,null,null,null,null,null,null,null,null,4.916666666666667,null,null,"USD",null,5.3725744166666676,5.3725744166666676,null,null,5.3725744166666676,{"$f":"W56*(Inputs!$D$6)","v":0.44055110216666676},5.8131255188333339]
[]
["Additions:","Addendum"]
[null,null,null,null,null,null,null,null,null,null,null,null,null,null,69.95,null,null,"NA",74.211500000000001,76.437844999999996,null,null,{"$f":"S59*(1+$W$7)","v":74.211500000000001},{"$f":"W59*(Inputs!$D$6)","v":6.0853429999999999},{"$f":"SUM(W59:X59)","v":80.296842999999996}]
[70,2,null,null,null,null,null,null,null,null,null,null,null,null,325,338,"TBA","TBA",338,338,null,null,{"$f":"S60*(1+$W$7)","v":338},{"$f":"W60*(Inputs!$D$6)","v":27.716000000000001},365.71600000000001,{"$f":"AVERAGE(Y60)","v":365.71600000000001}]
[73,5,null,null,null,null,null,null,null,null,null,null,null,null,null,348,"TBA","TBA",338,338,null,null,338,{"$f":"W61*(Inputs!$D$6)","v":27.716000000000001},365.71600000000001]
[76,8,null,null,null,null,null,null,null,null,null,null,null,null,50,51.5,"NA","NA",53.045000000000002,54.63635,null,null,53.045000000000002,{"$f":"W62*(Inputs!$D$6)","v":4.3496900000000007},57.394690000000004]
[null,null,null,null,null,null,null,null,null,null,null,null,null,null,74,76.22,"NA","NA",78.506600000000006,80.861798000000007,null,null,78.506600000000006,{"$f":"W63*(Inputs!$D$6)","v":6.437541200000001},84.944141200000004]
[null,null,null,null,null,null,null,null,null,null,null,null,null,null,65,66.95,"NA","NA",68.958500000000001,71.027254999999997,null,null,68.958500000000001,{"$f":"W64*(Inputs!$D$6)","v":5.6545969999999999},74.613096999999996]
[null,null,null,null,null,null,null,null,null,null,null,null,null,null,null,85,null,null,87.55,90.176500000000004,null,null,87.55,{"$f":"W65*(Inputs!$D$6)","v":7.1791},94.729100000000003]
[null,null,null,null,null,null,null,null,null,null,null,null,null,null,90,92.7,"NA","NA",95.481000000000009,98.345430000000007,null,null,95.481000000000009,{"$f":"W66*(Inputs!$D$6)","v":7.8294420000000011},103.31044200000001]
[null,null,null,null,null,null,null,null,null,null,null,null,null,null,null,76.22,null,null,78.506600000000006,80.861798000000007,null,null,78.506600000000006,{"$f":"W67*(Inputs!$D$6)","v":6.437541200000001},84.944141200000004]
[79,11,null,null,null,null,null,null,null,null,null,null,null,null,16.579999999999998,17.239999999999998,"TBA","TBA",17.757199999999997,17.757199999999997,null,null,17.757199999999997,{"$f":"W68*(Inputs!$D$6)","v":1.4560903999999999},19.213290399999998]
[null,null,null,null,null,null,null,null,null,null,null,null,null,null,null,null,null,null,null,null,null,null,250,{"$f":"W69*(Inputs!$D$6)","v":20.5},270.5,{"$f":"Y69","v":270.5}]
[null,null,null,null,null,null,null,null,null,null,null,null,null,null,null,null,null,null,null,null,null,null,555,{"$f":"W70*(Inputs!$D$6)","v":45.510000000000005},600.51,{"$f":"Y70","v":600.51}]
[]
[]
[]
[]
[]
[]
[]
[]
[]
[]
[]
[]
["Contract SOR"]
["CONTRACT ITEM NO.","TENDER ITEM NO.","S.I. NO.","ITEM NAME","DESCRIPTION","ESTIMATED ANNUAL VOLUME REQUIRED ","ESTIMATED ANNUAL VOLUME REQUIRED ","MANUFACTURER","BRAND AND/OR CATALOGUE NO.","COUNTRY OF ORIGIN","MIN ORDER QUANTITY","STANDARD PACK QUANTITY","LEAD TIME FOR DELIVERY TO TASNETWORKS WAREHOUSE FOR AMC (CALENDAR DAYS)","NETT TENDERED RATE CIP CAMBRIDGE          YEAR 1        (01/10/2013 to 30/09/2014)                  ($ EACH ex. gst)","NETT TENDERED RATE CIP CAMBRIDGE          YEAR 2        (01/10/2014 to 30/09/2015)                  ($ EACH ex. gst)","2015-16","2016-17"]
[1,54,null,"LAMP",null,null,null,null,null,null,null,null,null,2.375,2.375,{"$f":"O85*1.03","v":2.44625},{"$f":"P85*1.03","v":2.5196375},null,null,null,null,null,{"$f":"Q85*(1+$W$7)","v":2.5196375},{"$f":"W85*(Inputs!$D$6)","v":0.20661027500000001},{"$f":"SUM(W85:X85)","v":2.726247775}]
[2,56,null,"LAMP",null,null,null,null,null,null,null,null,null,4.6550000000000002,4.6550000000000002,{"$f":"O86*1.03","v":4.7946500000000007},{"$f":"P86*1.03","v":4.9384895000000011},null,null,null,null,null,{"$f":"Q86*(1+$W$7)","v":4.9384895000000011},{"$f":"W86*(Inputs!$D$6)","v":0.4049561390000001},{"$f":"SUM(W86:X86)","v":5.3434456390000014}]
[3,59,null,"LAMP",null,null,null,null,null,null,null,null,null,15.2,15.2,15.655999999999999,16.125679999999999,null,null,null,null,null,16.125679999999999,{"$f":"W87*(Inputs!$D$6)","v":1.3223057599999999},17.447985759999998]
[4,62,null,"LAMP",null,null,null,null,null,null,null,null,null,15.2,15.2,15.655999999999999,16.125679999999999,null,null,null,null,null,16.125679999999999,{"$f":"W88*(Inputs!$D$6)","v":1.3223057599999999},17.447985759999998]
[5,63,null,"LAMP",null,null,null,null,null,null,null,null,null,15.2,15.2,15.655999999999999,16.125679999999999,null,null,null,null,null,16.125679999999999,{"$f":"W89*(Inputs!$D$6)","v":1.3223057599999999},17.447985759999998]
[6,64,null,"LAMP",null,null,null,null,null,null,null,null,null,15.2,15.2,15.655999999999999,16.125679999999999,null,null,null,null,null,16.125679999999999,{"$f":"W90*(Inputs!$D$6)","v":1.3223057599999999},17.447985759999998]
[7,65,null,"LAMP",null,null,null,null,null,null,null,null,null,15.2,15.2,15.655999999999999,16.125679999999999,null,null,null,null,null,16.125679999999999,{"$f":"W91*(Inputs!$D$6)","v":1.3223057599999999},17.447985759999998]
[8,71,null,"LAMP",null,null,null,null,null,null,null,null,null,18.05,18.05,18.5915,19.149245000000001,null,null,null,null,null,19.149245000000001,{"$f":"W92*(Inputs!$D$6)","v":1.5702380900000001},20.719483090000001]
[9,72,null,"LAMP",null,null,null,null,null,null,null,null,null,18.05,18.05,18.5915,19.149245000000001,null,null,null,null,null,19.149245000000001,{"$f":"W93*(Inputs!$D$6)","v":1.5702380900000001},20.719483090000001]
[10,73,null,"LAMP",null,null,null,null,null,null,null,null,null,28.5,28.5,29.355,30.23565,null,null,null,null,null,30.23565,{"$f":"W94*(Inputs!$D$6)","v":2.4793232999999999},32.714973299999997]
[11,80,null,"RE-PACK CHARGE",null,null,null,null,null,null,null,null,null,30,30,30.900000000000002,31.827000000000002,null,null,null,null,null,31.827000000000002,{"$f":"W95*(Inputs!$D$6)","v":2.6098140000000001},34.436813999999998]
[]
[]
[]
[]
[]
[]
[]
[]
["still to update"]
[null,null,null,null,null,null,"2014-15 Prices","Average","Index to 2016-17","Plus Warehouse","2017-18"]
["Manufacturer","Model Abbreviation","PL Tariff description","Power Comsumption (input wattage)","Work Category","Asset Life (years)","Luminaire UNIT price",null,1.0346790300000002]
["Sylvania","Kensington 18W LED","18W LED Decorative - Bottom Pole Entry",21.9,"RLMIN",20,1085.53,{"$f":"AVERAGE(G107:G109)","v":914.13},{"$f":"H107*I106","v":945.83114169390012},77.558153618899809,{"$f":"SUM(I107:J107)","v":1023.3892953128}]
["Sylvania","Bourke Hill 18W LED Top","18W LED Decorative - Side Entry",21.9,"RLMIN",20,828.43]
["Sylvania","Bourke Hill 18W LED Side","18W LED Decorative - Top Entry",21.9,"RLMIN",20,828.43]
["Sylvania","Kensington 25W LED","25W LED Decorative - Bottom Pole Entry",29,"RLMIN",20,1085.53,{"$f":"AVERAGE(G110:G112)","v":914.13},{"$f":"H110*I106","v":945.83114169390012},77.558153618899809,{"$f":"SUM(I110:J110)","v":1023.3892953128}]
["Sylvania","Bourke Hill 25W LED Top","25W LED Decorative - Side Entry",29,"RLMIN",20,828.43]
["Sylvania","Bourke Hill 25W LED Side","25W LED Decorative - Top Entry",29,"RLMIN",20,828.43]

{"sheet":"Old PL unit prices (2012-17) ","index":19,"n_rows":27,"n_cols":15,"rows_kept":27,"cut":false,"hidden":false,"merged":[]}
["Link to file"]
[null,"Extract information from TasNetworks (Aurora Energy) - Determination 2012-17 'Public lIghting Annuity Model"]
[null,"Public Lighting Replacement Cost (Unit Rate Material Component) ($2009/10)"]
[null,"Light Description","Work\nCategory\nCode","Bracket\n(Material Cost)","Lamp Price\n(Material Cost)","Luminaire Price\n(Material Cost)","Energy Rating \n(watts)",null,"Lamp Price\nIndex to 2016/17 prices","Luminaire Price\nIndex to 2016/17 prices","Combined",null,null,null,1]
[null,"50W Mercury Vapour","RLMIN",184.84,2.35,68.489999999999995,65,null,{"$f":"E5*$O$11","v":2.7512504495378294},{"$f":"F5*$O$11","v":80.184316293125931},{"$f":"SUM(I5:J5)","v":82.935566742663767},null,1,{"$f":"'Master Data'!B35","v":2.6548672566371723E-2},{"$f":"O4*(1+N5)","v":1.0265486725663717}]
[null,"80W Mercury Vapour","RLMIN",184.84,1.93,68.489999999999995,95.8,null,2.2595376032374515,80.184316293125931,{"$f":"SUM(I6:J6)","v":82.443853896363379},null,2,{"$f":"'Master Data'!C$35","v":3.1034482758620641E-2},{"$f":"O5*(1+N6)","v":1.0584070796460177}]
[null,"80W Mercury Vapour Art decorative","RLMIN",184.84,1.93,744.87,95.8,null,2.2595376032374515,872.05273291372043,874.31227051695794,null,3,{"$f":"'Master Data'!D$35","v":2.5000000000000001E-2},{"$f":"O6*(1+N7)","v":1.084867256637168}]
[null,"125W Mercury Vapour","RLMAJ",184.84,2.41,119.8,142,null,2.8214951418664551,140.2552356828221,143.07673082468855,null,4,{"$f":"'Master Data'!E$35","v":2.93E-2},1.1166538672566371]
[null,"250W Mercury Vapour","RLMAJ",184.84,5.05,136.11000000000001,270,null,5.9122616043259741,159.3500845474868,165.26234615181278,null,5,{"$f":"'Master Data'!F$35","v":1.3299999999999999E-2},1.1315053636911505]
[null,"400W Mercury Vapour","RLMAJ",184.84,7.05,294.23,440,null,8.2537513486134877,344.4682637308577,352.72201507947119,null,6,{"$f":"'Master Data'!G$35","v":1.3100000000000001E-2},1.1463280839555048]
[null,"70W Sodium Vapour","RLMIN",184.84,9.1199999999999992,148.03,86,null,10.677193233951066,173.30536342344038,183.98255665739146,null,7,{"$f":"'Master Data'!H$35","v":2.1299999999999999E-2},1.1707448721437572]
[null,"100W Sodium Vapour","RLMIN",184.84,33.18,119.8,120,null,38.845314857729868,140.2552356828221,179.10055054055198]
[null,"150W Sodium Vapour","RLMAJ",184.84,28.35,162.01,173,null,33.190617125275516,189.67237673601011,222.86299386128562]
[null,"250W Sodium Vapour","RLMAJ",184.84,27.15,166.45,273,null,31.785723278703006,194.87048396832839,226.6562072470314]
[null,"400W Sodium Vapour","RLMAJ",184.84,29.84,173.68,440,null,34.935026984769713,203.33496939392776,238.26999637869747]
[null,"150W Metal Halide","RLMAJ",184.84,28.35,162.01,168,null,33.190617125275516,189.67237673601011,222.86299386128562]
[null,"250W Metal Halide","RLMAJ",184.84,27.15,166.45,268,null,31.785723278703006,194.87048396832839,226.6562072470314]
[null,"400W Metal Halide","RLMAJ",184.84,27.15,166.45,268,null,31.785723278703006,194.87048396832839,226.6562072470314]
[null,"1x20W Fluorescent","RLMIN",184.84,4.3099999999999996,212.27,23.5,null,5.0459103989395935,248.51401400995536,253.55992440889494]
[null,"2x20W Fluorescent","RLMIN",184.84,8.6199999999999992,212.27,47,null,10.091820797879187,248.51401400995536,258.60583480783453]
[null,"1x40W Fluorescent","RLMIN",184.84,4.59,165.11,50,null,5.3737189631398454,193.30168583965576,198.67540480279561]
[null,"2x40W Fluorescent","RLMIN",184.84,9.18,165.11,100,null,10.747437926279691,193.30168583965576,204.04912376593546]
[null,"3x40W Fluorescent","RLMIN",184.84,13.77,165.11,150,null,16.121156889419538,193.30168583965576,209.42284272907528]
[null,"4x40W Fluorescent","RLMIN",184.84,44.04,229.33,200,null,51.55960416921107,268.48692152872786,320.04652569793893]
[null,"42W Compact Fluorescent","RLMIN",184.84,12.93,145.91,46.4,null,15.13773119681878,170.82338429449561,185.96111549131439]
[null,"60W Incandescent","RLMIN",184.84,1.84,45.87,60,null,2.1541705647445135,53.702067285234143,55.856237849978655]
[null,"100W Incandescent","RLMIN",184.84,1.84,45.87,100,null,2.1541705647445135,53.702067285234143,55.856237849978655]

{"sheet":"Bracket Summary","index":20,"n_rows":120,"n_cols":22,"rows_kept":120,"cut":false,"hidden":false,"merged":[[41,1,41,10],[41,11,41,21]]}
["Data from the Bracket database sample. These workings have been completed by Senior Asset Strategy Engineer which represents a sample of 10,000 brackets and what light is attached to that type."]
[]
["Count of OutreachArmType","Column Labels"]
["Row Labels","T1","T2","T3","T4","T5","TA","TB","TC","Grand Total"]
["CFL_32",null,null,null,4,null,null,null,null,4]
["CFL_42",1,null,39,972,12,1,12,2,1039]
["FL_1X20",null,null,null,null,1,null,null,null,1,null,null,"OUTREACHARM","OUTREACHARM$DESC"]
["FL_1X40",null,null,1,null,null,null,null,null,1,null,"Outreach Arm Type","NA","Not Applicable"]
["FL_2X24",null,null,null,1,null,null,null,null,1,null,"Outreach Arm Type","OTHER","Other"]
["HPS_100_E",null,null,2,1,null,null,null,null,3,null,"Outreach Arm Type","R1","Roadlighting Pole - outreach arm 0.6m"]
["HPS_100_T",null,null,7,13,11,null,null,4,35,null,"Outreach Arm Type","R2","Roadlighting Pole - outreach arm 1m"]
["HPS_150_E",2,null,3,1,null,null,null,null,6,null,"Outreach Arm Type","R3","Roadlighting Pole - outreach arm 1.25m"]
["HPS_150_T",91,6,32,124,100,2,4,1,360,null,"Outreach Arm Type","R4","Roadlighting Pole - outreach arm 1.5m"]
["HPS_150_TDA",null,null,1,null,null,null,null,null,1,null,"Outreach Arm Type","R5","Roadlighting Pole - outreach arm 2m"]
["HPS_250_E",3,null,1,null,2,null,null,null,6,null,"Outreach Arm Type","R6","Roadlighting Pole - outreach arm 3m"]
["HPS_250_T",118,6,22,55,77,1,null,2,281,null,"Outreach Arm Type","R7","Roadlighting Pole - outreach arm 4.5m"]
["HPS_250_TDA",2,null,null,1,null,null,null,null,3,null,"Outreach Arm Type","T1","Uplift Bracket - Type 1 (uplift 4.3m)"]
["HPS_400_T",7,null,2,2,6,5,4,2,28,null,"Outreach Arm Type","T2","Uplift Bracket - Type 2  (uplift 2.8m)"]
["HPS_400_TDA",null,2,null,null,null,null,null,null,2,null,"Outreach Arm Type","T3","Bracket - Type 3 (2m)"]
["HPS_70_E",null,null,1,1,null,null,null,null,2,null,"Outreach Arm Type","T4","Bracket - Type 4 (1.5m)"]
["INC_60",null,null,null,5,null,null,1,null,6,null,"Outreach Arm Type","T5","Bracket - Type 5 (3m)"]
["LED_18",null,null,502,3385,41,2,82,1,4013,null,"Outreach Arm Type","TA","Mounting Bracket - Type A (0.3m) (Vert. Mtd 25 NB)"]
["LED_18_1",null,null,null,5,null,null,null,null,5,null,"Outreach Arm Type","TB","Mounting Bracket - Type B (0.3m) (Horiz. Mtd 25 NB)"]
["LED_25",null,null,10,14,2,null,null,null,26,null,"Outreach Arm Type","TC","Mounting Bracket - Type C (0.3m) (Horiz. Mtd 32 NB)"]
["MV_250_E",5,2,4,6,2,null,1,null,20]
["MV_250_T",1,null,null,2,null,null,null,null,3]
["MV_400_E",4,3,3,1,3,1,null,null,15]
["MV_50_E",null,null,null,8,null,null,null,null,8]
["MV_80_E",4,null,277,4146,61,12,16,4,4520]
["Grand Total",238,19,907,8747,318,24,120,16,10389]
[]
["Unit Cost",444,347,142,96,169,58,50.97,49]
[null,238,19,907,8747,318,24,120,16,{"$f":"SUM(B33:I33)","v":10389}]
["% of Known Types",{"$f":"B33/$J$33","v":2.2908845894696314E-2},1.8288574453749157E-3,8.7303879102897289E-2,0.84194821445759938,3.0609298296274907E-2,2.310135720473578E-3,1.155067860236789E-2,1.5400904803157184E-3,{"$f":"SUM(B34:I34)","v":1}]
[null,{"$f":"B32*B33","v":105672},{"$f":"C32*C33","v":6593},{"$f":"D32*D33","v":128794},839712,53742,1392,6116.4,784,{"$f":"SUM(B35:I35)","v":1142805.3999999999}]
[]
[null,null,null,null,null,null,null,null,null,{"$f":"J35/J30","v":110.0014823370873}]
[]
[]
[]
[]
[null,"Static of Pivot data above",null,null,null,null,null,null,null,null,null,"Weighting of costs using the unit cost above"]
[null,"Row Labels","T1","T2","T3","T4","T5","TA","TB","TC","Grand Total",{"$f":"C43&\" Cost\"","v":"T1 Cost"},{"$f":"D43&\" Cost\"","v":"T2 Cost"},"T3 Cost","T4 Cost","T5 Cost","TA Cost","TB Cost","TC Cost",null,"Weightd Bracket Cost","Weightd Bracket Cost net bracketless"]
[{"$f":"VLOOKUP(B44,Inputs!$E$69:$F$129,2,FALSE)","v":32},"CFL_32",null,null,null,4,null,null,null,null,4,{"$f":"IFERROR(C44*C$75,0)","v":0},{"$f":"IFERROR(D44*D$75,0)","v":0},{"$f":"IFERROR(E44*E$75,0)","v":0},{"$f":"IFERROR(F44*F$75,0)","v":376.80642283675292},{"$f":"IFERROR(G44*G$75,0)","v":0},{"$f":"IFERROR(H44*H$75,0)","v":0},{"$f":"IFERROR(I44*I$75,0)","v":0},{"$f":"IFERROR(J44*J$75,0)","v":0},null,{"$f":"SUM(L44:S44)/K44","v":94.201605709188229},{"$f":"U44*$I$81","v":72.970104296491868}]
[{"$f":"VLOOKUP(B45,Inputs!$E$69:$F$129,2,FALSE)","v":42},"CFL_42",1,null,39,972,12,1,12,2,1039,435.68242640499557,0,5434.2551293487959,{"$f":"IFERROR(F45*F$75,0)","v":91563.96074933096},1990.0089206066014,56.91347011596789,600.1819803746655,96.164139161462984,{"$f":"SUM(L44:S45)/SUM(K44:K45)","v":96.408411541879389},{"$f":"SUM(L45:S45)/K45","v":96.416907425739595},{"$f":"U45*$I$81","v":74.686113233791573}]
[{"$f":"VLOOKUP(B46,Inputs!$E$69:$F$129,2,FALSE)","v":20},"FL_1X20",null,null,null,null,1,null,null,null,1,0,0,0,0,165.83407671721679,0,0,0,null,165.83407671721679,128.45778777194923]
[{"$f":"VLOOKUP(B47,Inputs!$E$69:$F$129,2,FALSE)","v":40},"FL_1X40",null,null,1,null,null,null,null,null,1,0,0,139.33987511150758,0,0,0,0,0,null,139.33987511150758,107.93494593856087]
[{"$f":"VLOOKUP(B48,Inputs!$E$69:$F$129,2,FALSE)","v":48},"FL_2X24",null,null,null,1,null,null,null,null,1,0,0,0,94.201605709188229,0,0,0,0,{"$f":"SUM(L46:S48)/SUM(K46:K48)","v":133.12518584597089},94.201605709188229,72.970104296491868]
[{"$f":"VLOOKUP(B49,Inputs!$E$69:$F$129,2,FALSE)","v":100},"HPS_100_E",null,null,2,1,null,null,null,null,3,0,0,278.67975022301516,94.201605709188229,0,0,0,0,null,124.29378531073446,96.279998724537876]
[{"$f":"VLOOKUP(B50,Inputs!$E$69:$F$129,2,FALSE)","v":100},"HPS_100_T",null,null,7,13,11,null,null,4,35,0,0,975.37912578055307,1224.6208742194469,1824.1748438893846,0,0,192.32827832292597,{"$f":"SUM(L49:S50)/SUM(K49:K50)","v":120.7732757406451},120.4715177774946,93.319207786317122]
[{"$f":"VLOOKUP(B51,Inputs!$E$69:$F$129,2,FALSE)","v":150},"HPS_150_E",2,null,3,1,null,null,null,null,6,871.36485280999113,0,418.01962533452274,94.201605709188229,0,0,0,0,null,230.59768064228368,178.62473447578736]
[{"$f":"VLOOKUP(B52,Inputs!$E$69:$F$129,2,FALSE)","v":150},"HPS_150_T",91,6,32,124,100,2,4,1,360,39647.100802854598,2042.9973238180196,4458.8760035682426,11680.99910793934,16583.407671721678,113.82694023193578,200.0606601248885,48.082069580731492,null,207.7093071662207,160.89502607908145]
[{"$f":"VLOOKUP(B53,Inputs!$E$69:$F$129,2,FALSE)","v":150},"HPS_150_TDA",null,null,1,null,null,null,null,null,1,0,0,139.33987511150758,0,0,0,0,0,{"$f":"SUM(L51:S53)/SUM(K51:K53)","v":207.89721127739688},139.33987511150758,107.93494593856087]
[{"$f":"VLOOKUP(B54,Inputs!$E$69:$F$129,2,FALSE)","v":250},"HPS_250_E",3,null,1,null,2,null,null,null,6,1307.0472792149867,0,139.33987511150758,0,331.66815343443358,0,0,0,null,296.34255129348799,229.55178643271398]
[{"$f":"VLOOKUP(B55,Inputs!$E$69:$F$129,2,FALSE)","v":250},"HPS_250_T",118,6,22,55,77,1,null,2,281,51410.526315789481,2042.9973238180196,3065.4772524531668,5181.0883140053529,12769.223907225693,56.91347011596789,0,96.164139161462984,null,265.56010933298631,205.7072034933021]
[{"$f":"VLOOKUP(B56,Inputs!$E$69:$F$129,2,FALSE)","v":250},"HPS_250_TDA",2,null,null,1,null,null,null,null,3,871.36485280999113,0,0,94.201605709188229,0,0,0,0,{"$f":"SUM(L54:S56)/SUM(K54:K56)","v":266.77935340982498},321.85548617305977,249.31452301301385]
[{"$f":"VLOOKUP(B57,Inputs!$E$69:$F$129,2,FALSE)","v":400},"HPS_400_T",7,null,2,2,6,5,4,2,28,3049.776984834969,0,278.67975022301516,188.40321141837646,995.00446030330068,284.56735057983946,200.0606601248885,96.164139161462984,null,181.88059130878042,140.88768038924002]
[{"$f":"VLOOKUP(B58,Inputs!$E$69:$F$129,2,FALSE)","v":400},"HPS_400_TDA",null,2,null,null,null,null,null,null,2,0,680.99910793933986,0,0,0,0,0,0,{"$f":"SUM(L57:S58)/SUM(K57:K58)","v":192.45518881950642},340.49955396966993,263.75652282169455]
[{"$f":"VLOOKUP(B59,Inputs!$E$69:$F$129,2,FALSE)","v":70},"HPS_70_E",null,null,1,1,null,null,null,null,2,0,0,139.33987511150758,94.201605709188229,0,0,0,0,{"$f":"SUM(L59:S59)/SUM(K59)","v":116.77074041034791},116.77074041034791,90.452525117526378]
[{"$f":"VLOOKUP(B60,Inputs!$E$69:$F$129,2,FALSE)","v":60},"INC_60",null,null,null,5,null,null,1,null,6,0,0,0,471.00802854594116,0,0,50.015165031222125,0,{"$f":"SUM(L60:S60)/SUM(K60)","v":86.837198929527219},86.837198929527219,67.265514372062995]
[{"$f":"VLOOKUP(B61,Inputs!$E$69:$F$129,2,FALSE)","v":18},"LED_18",null,null,502,3385,41,2,82,1,4013,0,0,69948.617305976804,318872.43532560213,6799.1971454058885,113.82694023193578,4101.2435325602146,48.082069580731492,null,99.646997836869602,77.188194089131656]
[{"$f":"A61","v":18},"LED_18_1",null,null,null,5,null,null,null,null,5,0,0,0,471.00802854594116,0,0,0,0,{"$f":"SUM(L61:S62)/SUM(K61:K62)","v":99.640221589821721},94.201605709188229,72.970104296491868]
[{"$f":"VLOOKUP(B63,Inputs!$E$69:$F$129,2,FALSE)","v":25},"LED_25",null,null,10,14,2,null,null,null,26,0,0,1393.3987511150758,1318.8224799286352,331.66815343443358,0,0,0,{"$f":"SUM(L63:S63)/SUM(K63)","v":117.07266863377478},117.07266863377478,90.686403656938197]
[{"$f":"VLOOKUP(B64,Inputs!$E$69:$F$129,2,FALSE)","v":250},"MV_250_E",5,2,4,6,2,null,1,null,20,2178.4121320249778,680.99910793933986,557.35950044603032,565.20963425512934,331.66815343443358,0,50.015165031222125,0,null,218.18318465655665,169.00826286633875]
[{"$f":"VLOOKUP(B65,Inputs!$E$69:$F$129,2,FALSE)","v":250},"MV_250_T",1,null,null,2,null,null,null,null,3,435.68242640499557,0,0,188.40321141837646,0,0,0,0,{"$f":"SUM(L64:S65)/SUM(K64:K65)","v":216.85866656323935},208.02854594112401,161.14231365475285]
[{"$f":"VLOOKUP(B66,Inputs!$E$69:$F$129,2,FALSE)","v":400},"MV_400_E",4,3,3,1,3,1,null,null,15,1742.7297056199823,1021.4986619090098,418.01962533452274,94.201605709188229,497.50223015165034,56.91347011596789,0,0,null,255.39101992268809,197.8300605371557]
[{"$f":"VLOOKUP(B67,Inputs!$E$69:$F$129,2,FALSE)","v":50},"MV_50_E",null,null,null,8,null,null,null,null,8,0,0,0,753.61284567350583,0,0,0,0,null,94.201605709188229,72.970104296491868]
[{"$f":"VLOOKUP(B68,Inputs!$E$69:$F$129,2,FALSE)","v":80},"MV_80_E",4,null,277,4146,61,12,16,4,4520,{"$f":"IFERROR(C68*C$75,0)","v":1742.7297056199823},{"$f":"IFERROR(D68*D$75,0)","v":0},{"$f":"IFERROR(E68*E$75,0)","v":38597.145405887597},{"$f":"IFERROR(F68*F$75,0)","v":390559.85727029439},{"$f":"IFERROR(G68*G$75,0)","v":10115.878679750223},{"$f":"IFERROR(H68*H$75,0)","v":682.96164139161465},{"$f":"IFERROR(I68*I$75,0)","v":800.242640499554},{"$f":"IFERROR(J68*J$75,0)","v":192.32827832292597},null,97.94051850039078,75.866327288399177]
[{"$f":"VLOOKUP(B69,Inputs!$E$69:$F$129,2,FALSE)","v":14},"LED_14_1",null,null,10,14,2,null,null,null,26,0,0,1393.3987511150758,1318.8224799286352,331.66815343443358,0,0,0,{"$f":"SUM(L69:S69)/SUM(K69)","v":117.07266863377478},117.07266863377478,90.686403656938197]
[120,"LEDNEWMAJ ",2,null,3,1,null,null,null,null,6,871.36485280999113,0,418.01962533452274,94.201605709188229,0,0,0,0,null,{"$f":"SUM(L70:S70)/K70","v":230.59768064228368},178.62473447578736]
[120,"LEDNEWMAJ ",91,6,32,124,100,2,4,1,360,39647.100802854598,2042.9973238180196,4458.8760035682426,11680.99910793934,16583.407671721678,113.82694023193578,200.0606601248885,48.082069580731492,null,{"$f":"SUM(L71:S71)/K71","v":207.7093071662207},160.89502607908145]
[120,"LEDNEWMAJ ",null,null,1,null,null,null,null,null,1,0,0,139.33987511150758,0,0,0,0,0,{"$f":"SUM(L70:S72)/SUM(K70:K72)","v":207.89721127739688},139.33987511150758,107.93494593856087]
[null,"Grand Total",238,19,907,8747,318,24,120,16,10389,103692.41748438895,6469.4915254237285,126381.26672613737,823981.44513826945,52735.236396074935,1365.9232827832293,6001.8198037466555,769.31311329170387,null,107.94079444317222,83.612704571937186]
[]
[null,"Unit Cost  (2016-17 dollars)",{"$f":"C76/(1+'Master Data'!$I$35)","v":435.68242640499557},{"$f":"D76/(1+'Master Data'!$I$35)","v":340.49955396966993},{"$f":"E76/(1+'Master Data'!$I$35)","v":139.33987511150758},{"$f":"F76/(1+'Master Data'!$I$35)","v":94.201605709188229},{"$f":"G76/(1+'Master Data'!$I$35)","v":165.83407671721679},{"$f":"H76/(1+'Master Data'!$I$35)","v":56.91347011596789},{"$f":"I76/(1+'Master Data'!$I$35)","v":50.015165031222125},{"$f":"J76/(1+'Master Data'!$I$35)","v":48.082069580731492}]
[null,"Unit Cost  (2017-18 dollars)",444,347,142,96,169,58,50.97,49]
[]
["If no direct data use average of light type"]
["Annomily overrides","Weighted for lights without Brackets",null,null,null,null,null,null,"Not all lights have a bracket therefore the average cost per bracket needs to be lowered to not over recover"]
["FL_1X20",{"$f":"$T$48","v":133.12518584597089},"Average of all Fluorecent ",null,null,null,null,null,null,42878,"Total Public Lights 2015/16"]
["FL_1X40",133.12518584597089,null,null,null,null,null,null,{"$f":"J81/$J$83","v":0.77461635337469104},{"$f":"J80-J82","v":33214},"Total Brackets (2015/16 Asset Management Plan)"]
["FL_2X20",133.12518584597089,null,null,null,null,null,null,{"$f":"J82/$J$83","v":0.22538364662530902},{"$f":"J80-K95","v":9664},"Total public poles for private lights (bracketless)",null,null,null,"still to review"]
["FL_2X24",133.12518584597089,null,null,null,null,null,null,{"$f":"SUM(I81:I82)","v":1},{"$f":"SUM(J81:J82)","v":42878},"Total"]
["FL_2X40",133.12518584597089,null,null,null,null,null,null,null,{"$f":"J83=J80","v":true}]
["FL_3X40",133.12518584597089,null,null,null,null,null,null,null,"AS per the management plan"]
["FL_4X20",133.12518584597089,null,null,null,null,null,null,null,"Bracket type","Number Installed"]
["FL_4X40",133.12518584597089,null,null,null,null,null,null,null,"Type 1 (uplift 4.3m)",761]
["HPS_100_E",{"$f":"$T$50","v":120.7732757406451},null,null,null,null,null,null,null,"Type 2  (uplift 2.8m)",61]
["HPS_100_T",{"$f":"$T$50","v":120.7732757406451},null,null,null,null,null,null,null,"Type 3 (2m)",2900]
["HPS_150_E",{"$f":"$T$53","v":207.89721127739688},null,null,null,null,null,null,null,"Type 4 (1.5m)",27964]
["HPS_150_T",{"$f":"$T$53","v":207.89721127739688},null,null,null,null,null,null,null,"Type 5 (3m)",1017]
["HPS_150_TSI",{"$f":"$T$53","v":207.89721127739688},null,null,null,null,null,null,null,"Type A (0.3m) (Vert. Mtd 25 NB)",77]
["HPS_150_TDA",{"$f":"$T$53","v":207.89721127739688},null,null,null,null,null,null,null,"Type B (0.3m) (Horiz. Mtd 25 NB)",384]
["HPS_250_E",{"$f":"$T$56","v":266.77935340982498},null,null,null,null,null,null,null,"Type C (0.3m) (Horiz. Mtd 32 NB)",51]
["HPS_250_T",{"$f":"$T$56","v":266.77935340982498},null,null,null,null,null,null,null,"Total",33214]
["HPS_250_TDA",{"$f":"$T$56","v":266.77935340982498}]
["HPS_250_FL",{"$f":"$T$56","v":266.77935340982498}]
["HPS_250_TSI",{"$f":"$T$56","v":266.77935340982498}]
["HPS_400_T",{"$f":"$T$58","v":192.45518881950642}]
["HPS_400_FL",{"$f":"$T$58","v":192.45518881950642}]
["HPS_400_TDA",{"$f":"$T$58","v":192.45518881950642}]
["HPS_2X400_T","Ask Darryl"]
["HPS_70_E",{"$f":"$T$59","v":116.77074041034791}]
["HPS_70_T",{"$f":"$T$59","v":116.77074041034791}]
["INC_100",{"$f":"$T$60","v":86.837198929527219}]
["INC_60",{"$f":"$T$60","v":86.837198929527219}]
["LED_18",{"$f":"T62","v":99.640221589821721}]
["LED_25",{"$f":"T63","v":117.07266863377478}]
["LED_30",{"$f":"B108","v":117.07266863377478}]
["LED_88",{"$f":"B109","v":117.07266863377478}]
["CFL_24x2",{"$f":"T45","v":96.408411541879389}]
["MV_250_E",{"$f":"$T$65","v":216.85866656323935}]
["MV_250_T",{"$f":"$T$65","v":216.85866656323935}]
["MV_125_E",{"$f":"B113","v":216.85866656323935}]
["MH_70_E",{"$f":"$T$50","v":120.7732757406451}]
["MH_100_E",{"$f":"$T$50","v":120.7732757406451}]
["MH_150_E",{"$f":"$T$53","v":207.89721127739688}]
["MH_250_T",{"$f":"$T$56","v":266.77935340982498}]
["MH_400_T",{"$f":"$T$58","v":192.45518881950642}]
["LEDNEWMAJ",{"$f":"T72","v":207.89721127739688}]

{"sheet":"Bracket Data","index":21,"n_rows":24539,"n_cols":84,"rows_kept":1125,"cut":true,"hidden":false,"merged":[],"bounds":{"rows_first":500,"rows_last":125,"rows_between":500,"halvings":2}}
["Received from the metering team Leader, Team Leader. These are the current lighting/bracket combinations of what has been replaced to help align what weighting of capex to alloate"]
[]
[]
["ServiceOrderId","NMI","SOType","SOSubType","SOrderStatus","SORequestInstructions","Number","Street","StreetType","Locality","PostCode","Suburb","CreatedOn","TVDCommentsfromField","TVDRequestItemID","TVDRequestAssetID","TVDRequestPoleTagNum","TVDRequestPoleNum","ReqAssetID","ReqControlGear","ReqFuseMake","ReqOutreachArmType","TVDRequestFixtureID","ReqUMSPhase","ReqAccessRequirements","ReqManufactureYear","ReqSwitchLocation","ReqLastFaultType","ReqContractType","ReqCommFibrePilot","TVDRequestSupportType","TVDRequestSwitchMethod","ReqAdditionalDetails","ReqTrafficControl","ReqMissingPoleTag","ReqRepirInDaylight","ReqPrivateProperty","ReqOffPole","TVDRequestLumID","TVDRequestLampMake","ReqPoleOwner","ReqPoleHeight","ReqPoleType","ReqPoleMaterial","####","TVDResponseItemID","TVDResponseAssetID","TVDResponsePoleTagNum","TVDResponsePoleNumber","AssetID","ControlGear","FuseMake","OutreachArmType","TVDResponseFixtureID","UMSPhase","AccessRequirements","ManufactureYear","SwitchLocation","FaultType","ContractType","CommFibrePilot","TVDResponseSupportType","TVDResponseSwitchMethod","TongTestAmps","AdditionalInformation","RequireTrafficControl","MissingPoleTag","RepairInDaylight","PrivateProperty","OffPole","TVDResponseLumID","TVDResponseLampMake","PoleOwner","PoleHeight","PoleType","PoleMaterial","GeneralMaintenance","DiffuserCleaned","RemovedUMSItem","InstalledChangedSwitch","InstalledChangedLuminarire","InstalledChangedLamp","InstalledChangedFuse","InstalledChangedControlGear"]
[5000001,null,null,null,null,null,null,null,null,null,null,null,null,null,null,null,null,null,null,null,null,null,null,null,null,null,null,null,null,null,null,null,null,null,null,null,null,null,null,null,null,null,null,null,null,null,null,null,null,null,null,null,null,"CFL_42"]
[5002164,null,null,null,null,null,null,null,null,null,null,null,null,null,null,null,null,null,null,null,null,null,null,null,null,null,null,null,null,null,null,null,null,null,null,null,null,null,null,null,null,null,null,null,null,null,null,null,null,null,null,null,"T4","MV_50_E"]
[5002166,null,null,null,null,null,null,null,null,null,null,null,null,null,null,null,null,null,null,null,null,null,null,null,null,null,null,null,null,null,null,null,null,null,null,null,null,null,null,null,null,null,null,null,null,null,null,null,null,null,null,null,"R4","HPS_150_T"]
[5002167,null,null,null,null,null,null,null,null,null,null,null,null,null,null,null,null,null,null,null,null,null,null,null,null,null,null,null,null,null,null,null,null,null,null,null,null,null,null,null,null,null,null,null,null,null,null,null,null,null,null,null,"R4","MV_80_E"]
[5002168,null,null,null,null,null,null,null,null,null,null,null,null,null,null,null,null,null,null,null,null,null,null,null,null,null,null,null,null,null,null,null,null,null,null,null,null,null,null,null,null,null,null,null,null,null,null,null,null,null,null,null,"T4","MV_80_E"]
[5002169,null,null,null,null,null,null,null,null,null,null,null,null,null,null,null,null,null,null,null,null,null,null,null,null,null,null,null,null,null,null,null,null,null,null,null,null,null,null,null,null,null,null,null,null,null,null,null,null,null,null,null,"R4","MV_80_E"]
[5002170,null,null,null,null,null,null,null,null,null,null,null,null,null,null,null,null,null,null,null,null,null,null,null,null,null,null,null,null,null,null,null,null,null,null,null,null,null,null,null,null,null,null,null,null,null,null,null,null,null,null,null,"R4","CFL_42"]
[5002171,null,null,null,null,null,null,null,null,null,null,null,null,null,null,null,null,null,null,null,null,null,null,null,null,null,null,null,null,null,null,null,null,null,null,null,null,null,null,null,null,null,null,null,null,null,null,null,null,null,null,null,null,"MV_80_E"]
[5002172,null,null,null,null,null,null,null,null,null,null,null,null,null,null,null,null,null,null,null,null,null,null,null,null,null,null,null,null,null,null,null,null,null,null,null,null,null,null,null,null,null,null,null,null,null,null,null,null,null,null,null,"R4","MV_80_E"]
[5002173,null,null,null,null,null,null,null,null,null,null,null,null,null,null,null,null,null,null,null,null,null,null,null,null,null,null,null,null,null,null,null,null,null,null,null,null,null,null,null,null,null,null,null,null,null,null,null,null,null,null,null,"R4","MV_80_E"]
[5002174,null,null,null,null,null,null,null,null,null,null,null,null,null,null,null,null,null,null,null,null,null,null,null,null,null,null,null,null,null,null,null,null,null,null,null,null,null,null,null,null,null,null,null,null,null,null,null,null,null,null,null,"R5","CFL_42"]
[5002175,null,null,null,null,null,null,null,null,null,null,null,null,null,null,null,null,null,null,null,null,null,null,null,null,null,null,null,null,null,null,null,null,null,null,null,null,null,null,null,null,null,null,null,null,null,null,null,null,null,null,null,"R5","MV_80_E"]
[5002176,null,null,null,null,null,null,null,null,null,null,null,null,null,null,null,null,null,null,null,null,null,null,null,null,null,null,null,null,null,null,null,null,null,null,null,null,null,null,null,null,null,null,null,null,null,null,null,null,null,null,null,"T4","MV_80_E"]
[5002177,null,null,null,null,null,null,null,null,null,null,null,null,null,null,null,null,null,null,null,null,null,null,null,null,null,null,null,null,null,null,null,null,null,null,null,null,null,null,null,null,null,null,null,null,null,null,null,null,null,null,null,"T4","MV_80_E"]
[5002178,null,null,null,null,null,null,null,null,null,null,null,null,null,null,null,null,null,null,null,null,null,null,null,null,null,null,null,null,null,null,null,null,null,null,null,null,null,null,null,null,null,null,null,null,null,null,null,null,null,null,null,"T4","MV_80_E"]
[5002179,null,null,null,null,null,null,null,null,null,null,null,null,null,null,null,null,null,null,null,null,null,null,null,null,null,null,null,null,null,null,null,null,null,null,null,null,null,null,null,null,null,null,null,null,null,null,null,null,null,null,null,"R4","MV_80_E"]
[5002180,null,null,null,null,null,null,null,null,null,null,null,null,null,null,null,null,null,null,null,null,null,null,null,null,null,null,null,null,null,null,null,null,null,null,null,null,null,null,null,null,null,null,null,null,null,null,null,null,null,null,null,"R4","HPS_150_T"]
[5002181,null,null,null,null,null,null,null,null,null,null,null,null,null,null,null,null,null,null,null,null,null,null,null,null,null,null,null,null,null,null,null,null,null,null,null,null,null,null,null,null,null,null,null,null,null,null,null,null,null,null,null,"R4","MV_80_E"]
[5002182,null,null,null,null,null,null,null,null,null,null,null,null,null,null,null,null,null,null,null,null,null,null,null,null,null,null,null,null,null,null,null,null,null,null,null,null,null,null,null,null,null,null,null,null,null,null,null,null,null,null,null,"NA","MV_80_E"]
[5002183,null,null,null,null,null,null,null,null,null,null,null,null,null,null,null,null,null,null,null,null,null,null,null,null,null,null,null,null,null,null,null,null,null,null,null,null,null,null,null,null,null,null,null,null,null,null,null,null,null,null,null,"T4","MV_80_E"]
[5002184,null,null,null,null,null,null,null,null,null,null,null,null,null,null,null,null,null,null,null,null,null,null,null,null,null,null,null,null,null,null,null,null,null,null,null,null,null,null,null,null,null,null,null,null,null,null,null,null,null,null,null,"R1","MV_80_E"]
[5002185,null,null,null,null,null,null,null,null,null,null,null,null,null,null,null,null,null,null,null,null,null,null,null,null,null,null,null,null,null,null,null,null,null,null,null,null,null,null,null,null,null,null,null,null,null,null,null,null,null,null,null,"T4","MV_80_E"]
[5002186,null,null,null,null,null,null,null,null,null,null,null,null,null,null,null,null,null,null,null,null,null,null,null,null,null,null,null,null,null,null,null,null,null,null,null,null,null,null,null,null,null,null,null,null,null,null,null,null,null,null,null,"T4","MV_80_E"]
[5002187,null,null,null,null,null,null,null,null,null,null,null,null,null,null,null,null,null,null,null,null,null,null,null,null,null,null,null,null,null,null,null,null,null,null,null,null,null,null,null,null,null,null,null,null,null,null,null,null,null,null,null,"R4","MV_80_E"]
[5002188,null,null,null,null,null,null,null,null,null,null,null,null,null,null,null,null,null,null,null,null,null,null,null,null,null,null,null,null,null,null,null,null,null,null,null,null,null,null,null,null,null,null,null,null,null,null,null,null,null,null,null,"R4","MV_80_E"]
[5002189,null,null,null,null,null,null,null,null,null,null,null,null,null,null,null,null,null,null,null,null,null,null,null,null,null,null,null,null,null,null,null,null,null,null,null,null,null,null,null,null,null,null,null,null,null,null,null,null,null,null,null,"T4","MV_80_E"]
[5002190,null,null,null,null,null,null,null,null,null,null,null,null,null,null,null,null,null,null,null,null,null,null,null,null,null,null,null,null,null,null,null,null,null,null,null,null,null,null,null,null,null,null,null,null,null,null,null,null,null,null,null,"R4","MV_80_E"]
[5002191,null,null,null,null,null,null,null,null,null,null,null,null,null,null,null,null,null,null,null,null,null,null,null,null,null,null,null,null,null,null,null,null,null,null,null,null,null,null,null,null,null,null,null,null,null,null,null,null,null,null,null,"R4","MV_80_E"]
[5002192,null,null,null,null,null,null,null,null,null,null,null,null,null,null,null,null,null,null,null,null,null,null,null,null,null,null,null,null,null,null,null,null,null,null,null,null,null,null,null,null,null,null,null,null,null,null,null,null,null,null,null,"R4","MV_80_E"]
[5002193,null,null,null,null,null,null,null,null,null,null,null,null,null,null,null,null,null,null,null,null,null,null,null,null,null,null,null,null,null,null,null,null,null,null,null,null,null,null,null,null,null,null,null,null,null,null,null,null,null,null,null,"R1","MV_80_E"]
[5002194,null,null,null,null,null,null,null,null,null,null,null,null,null,null,null,null,null,null,null,null,null,null,null,null,null,null,null,null,null,null,null,null,null,null,null,null,null,null,null,null,null,null,null,null,null,null,null,null,null,null,null,"T4","MV_80_E"]
[5002195,null,null,null,null,null,null,null,null,null,null,null,null,null,null,null,null,null,null,null,null,null,null,null,null,null,null,null,null,null,null,null,null,null,null,null,null,null,null,null,null,null,null,null,null,null,null,null,null,null,null,null,null,"MV_80_E"]
[5002196,null,null,null,null,null,null,null,null,null,null,null,null,null,null,null,null,null,null,null,null,null,null,null,null,null,null,null,null,null,null,null,null,null,null,null,null,null,null,null,null,null,null,null,null,null,null,null,null,null,null,null,"R4","MV_80_E"]
[5002197,null,null,null,null,null,null,null,null,null,null,null,null,null,null,null,null,null,null,null,null,null,null,null,null,null,null,null,null,null,null,null,null,null,null,null,null,null,null,null,null,null,null,null,null,null,null,null,null,null,null,null,"T4","MV_80_E"]
[5002198,null,null,null,null,null,null,null,null,null,null,null,null,null,null,null,null,null,null,null,null,null,null,null,null,null,null,null,null,null,null,null,null,null,null,null,null,null,null,null,null,null,null,null,null,null,null,null,null,null,null,null,"T4","MV_80_E"]
[5002199,null,null,null,null,null,null,null,null,null,null,null,null,null,null,null,null,null,null,null,null,null,null,null,null,null,null,null,null,null,null,null,null,null,null,null,null,null,null,null,null,null,null,null,null,null,null,null,null,null,null,null,"R4","MV_80_E"]
[5002200,null,null,null,null,null,null,null,null,null,null,null,null,null,null,null,null,null,null,null,null,null,null,null,null,null,null,null,null,null,null,null,null,null,null,null,null,null,null,null,null,null,null,null,null,null,null,null,null,null,null,null,"T4","MV_80_E"]
[5002201,null,null,null,null,null,null,null,null,null,null,null,null,null,null,null,null,null,null,null,null,null,null,null,null,null,null,null,null,null,null,null,null,null,null,null,null,null,null,null,null,null,null,null,null,null,null,null,null,null,null,null,"R4","CFL_42"]
[5002202,null,null,null,null,null,null,null,null,null,null,null,null,null,null,null,null,null,null,null,null,null,null,null,null,null,null,null,null,null,null,null,null,null,null,null,null,null,null,null,null,null,null,null,null,null,null,null,null,null,null,null,"T3","MV_80_E"]
[5002203,null,null,null,null,null,null,null,null,null,null,null,null,null,null,null,null,null,null,null,null,null,null,null,null,null,null,null,null,null,null,null,null,null,null,null,null,null,null,null,null,null,null,null,null,null,null,null,null,null,null,null,"R4","MV_80_E"]
[5002204,null,null,null,null,null,null,null,null,null,null,null,null,null,null,null,null,null,null,null,null,null,null,null,null,null,null,null,null,null,null,null,null,null,null,null,null,null,null,null,null,null,null,null,null,null,null,null,null,null,null,null,"T4","MV_80_E"]
[5002205,null,null,null,null,null,null,null,null,null,null,null,null,null,null,null,null,null,null,null,null,null,null,null,null,null,null,null,null,null,null,null,null,null,null,null,null,null,null,null,null,null,null,null,null,null,null,null,null,null,null,null,"T3","MV_80_E"]
[5002206,null,null,null,null,null,null,null,null,null,null,null,null,null,null,null,null,null,null,null,null,null,null,null,null,null,null,null,null,null,null,null,null,null,null,null,null,null,null,null,null,null,null,null,null,null,null,null,null,null,null,null,"R4","MV_80_E"]
[5002207,null,null,null,null,null,null,null,null,null,null,null,null,null,null,null,null,null,null,null,null,null,null,null,null,null,null,null,null,null,null,null,null,null,null,null,null,null,null,null,null,null,null,null,null,null,null,null,null,null,null,null,"R4","MV_80_E"]
[5002208,null,null,null,null,null,null,null,null,null,null,null,null,null,null,null,null,null,null,null,null,null,null,null,null,null,null,null,null,null,null,null,null,null,null,null,null,null,null,null,null,null,null,null,null,null,null,null,null,null,null,null,"R4","MV_80_E"]
[5002209,null,null,null,null,null,null,null,null,null,null,null,null,null,null,null,null,null,null,null,null,null,null,null,null,null,null,null,null,null,null,null,null,null,null,null,null,null,null,null,null,null,null,null,null,null,null,null,null,null,null,null,"T4","CFL_42"]
[5002210,null,null,null,null,null,null,null,null,null,null,null,null,null,null,null,null,null,null,null,null,null,null,null,null,null,null,null,null,null,null,null,null,null,null,null,null,null,null,null,null,null,null,null,null,null,null,null,null,null,null,null,"R4","MV_80_E"]
[5002211,null,null,null,null,null,null,null,null,null,null,null,null,null,null,null,null,null,null,null,null,null,null,null,null,null,null,null,null,null,null,null,null,null,null,null,null,null,null,null,null,null,null,null,null,null,null,null,null,null,null,null,"R4","MV_80_E"]
[5002212,null,null,null,null,null,null,null,null,null,null,null,null,null,null,null,null,null,null,null,null,null,null,null,null,null,null,null,null,null,null,null,null,null,null,null,null,null,null,null,null,null,null,null,null,null,null,null,null,null,null,null,"NA","MV_80_E"]
[5002213,null,null,null,null,null,null,null,null,null,null,null,null,null,null,null,null,null,null,null,null,null,null,null,null,null,null,null,null,null,null,null,null,null,null,null,null,null,null,null,null,null,null,null,null,null,null,null,null,null,null,null,"R4","MV_80_E"]
[5002214,null,null,null,null,null,null,null,null,null,null,null,null,null,null,null,null,null,null,null,null,null,null,null,null,null,null,null,null,null,null,null,null,null,null,null,null,null,null,null,null,null,null,null,null,null,null,null,null,null,null,null,"T4","MV_80_E"]
[5002215,null,null,null,null,null,null,null,null,null,null,null,null,null,null,null,null,null,null,null,null,null,null,null,null,null,null,null,null,null,null,null,null,null,null,null,null,null,null,null,null,null,null,null,null,null,null,null,null,null,null,null,"T4","CFL_42"]
[5002216,null,null,null,null,null,null,null,null,null,null,null,null,null,null,null,null,null,null,null,null,null,null,null,null,null,null,null,null,null,null,null,null,null,null,null,null,null,null,null,null,null,null,null,null,null,null,null,null,null,null,null,"T4","CFL_42"]
[5002217,null,null,null,null,null,null,null,null,null,null,null,null,null,null,null,null,null,null,null,null,null,null,null,null,null,null,null,null,null,null,null,null,null,null,null,null,null,null,null,null,null,null,null,null,null,null,null,null,null,null,null,"T4","MV_80_E"]
[5002218,null,null,null,null,null,null,null,null,null,null,null,null,null,null,null,null,null,null,null,null,null,null,null,null,null,null,null,null,null,null,null,null,null,null,null,null,null,null,null,null,null,null,null,null,null,null,null,null,null,null,null,"R4","MV_80_E"]
[5002219,null,null,null,null,null,null,null,null,null,null,null,null,null,null,null,null,null,null,null,null,null,null,null,null,null,null,null,null,null,null,null,null,null,null,null,null,null,null,null,null,null,null,null,null,null,null,null,null,null,null,null,"R4","MV_80_E"]
[5002220,null,null,null,null,null,null,null,null,null,null,null,null,null,null,null,null,null,null,null,null,null,null,null,null,null,null,null,null,null,null,null,null,null,null,null,null,null,null,null,null,null,null,null,null,null,null,null,null,null,null,null,"R4","MV_80_E"]
[5002221,null,null,null,null,null,null,null,null,null,null,null,null,null,null,null,null,null,null,null,null,null,null,null,null,null,null,null,null,null,null,null,null,null,null,null,null,null,null,null,null,null,null,null,null,null,null,null,null,null,null,null,"T4","MV_80_E"]
[5002222,null,null,null,null,null,null,null,null,null,null,null,null,null,null,null,null,null,null,null,null,null,null,null,null,null,null,null,null,null,null,null,null,null,null,null,null,null,null,null,null,null,null,null,null,null,null,null,null,null,null,null,"R4","CFL_42"]
[5002223,null,null,null,null,null,null,null,null,null,null,null,null,null,null,null,null,null,null,null,null,null,null,null,null,null,null,null,null,null,null,null,null,null,null,null,null,null,null,null,null,null,null,null,null,null,null,null,null,null,null,null,"R4","MV_80_E"]
[5002224,null,null,null,null,null,null,null,null,null,null,null,null,null,null,null,null,null,null,null,null,null,null,null,null,null,null,null,null,null,null,null,null,null,null,null,null,null,null,null,null,null,null,null,null,null,null,null,null,null,null,null,"T4","MV_80_E"]
[5002225,null,null,null,null,null,null,null,null,null,null,null,null,null,null,null,null,null,null,null,null,null,null,null,null,null,null,null,null,null,null,null,null,null,null,null,null,null,null,null,null,null,null,null,null,null,null,null,null,null,null,null,"T4","MV_80_E"]
[5002226,null,null,null,null,null,null,null,null,null,null,null,null,null,null,null,null,null,null,null,null,null,null,null,null,null,null,null,null,null,null,null,null,null,null,null,null,null,null,null,null,null,null,null,null,null,null,null,null,null,null,null,"T4","MV_80_E"]
[5002227,null,null,null,null,null,null,null,null,null,null,null,null,null,null,null,null,null,null,null,null,null,null,null,null,null,null,null,null,null,null,null,null,null,null,null,null,null,null,null,null,null,null,null,null,null,null,null,null,null,null,null,"T4","CFL_42"]
[5002228,null,null,null,null,null,null,null,null,null,null,null,null,null,null,null,null,null,null,null,null,null,null,null,null,null,null,null,null,null,null,null,null,null,null,null,null,null,null,null,null,null,null,null,null,null,null,null,null,null,null,null,"T4","MV_80_E"]
[5002229,null,null,null,null,null,null,null,null,null,null,null,null,null,null,null,null,null,null,null,null,null,null,null,null,null,null,null,null,null,null,null,null,null,null,null,null,null,null,null,null,null,null,null,null,null,null,null,null,null,null,null,"R4","MV_80_E"]
[5002230,null,null,null,null,null,null,null,null,null,null,null,null,null,null,null,null,null,null,null,null,null,null,null,null,null,null,null,null,null,null,null,null,null,null,null,null,null,null,null,null,null,null,null,null,null,null,null,null,null,null,null,"R4","MV_80_E"]
[5002231,null,null,null,null,null,null,null,null,null,null,null,null,null,null,null,null,null,null,null,null,null,null,null,null,null,null,null,null,null,null,null,null,null,null,null,null,null,null,null,null,null,null,null,null,null,null,null,null,null,null,null,"R3","MV_80_E"]
[5002232,null,null,null,null,null,null,null,null,null,null,null,null,null,null,null,null,null,null,null,null,null,null,null,null,null,null,null,null,null,null,null,null,null,null,null,null,null,null,null,null,null,null,null,null,null,null,null,null,null,null,null,"R4","MV_80_E"]
[5002233,null,null,null,null,null,null,null,null,null,null,null,null,null,null,null,null,null,null,null,null,null,null,null,null,null,null,null,null,null,null,null,null,null,null,null,null,null,null,null,null,null,null,null,null,null,null,null,null,null,null,null,"T4","MV_80_E"]
[5002234,null,null,null,null,null,null,null,null,null,null,null,null,null,null,null,null,null,null,null,null,null,null,null,null,null,null,null,null,null,null,null,null,null,null,null,null,null,null,null,null,null,null,null,null,null,null,null,null,null,null,null,"T4","MV_80_E"]
[5002235,null,null,null,null,null,null,null,null,null,null,null,null,null,null,null,null,null,null,null,null,null,null,null,null,null,null,null,null,null,null,null,null,null,null,null,null,null,null,null,null,null,null,null,null,null,null,null,null,null,null,null,"T3","MV_80_E"]
[5002236,null,null,null,null,null,null,null,null,null,null,null,null,null,null,null,null,null,null,null,null,null,null,null,null,null,null,null,null,null,null,null,null,null,null,null,null,null,null,null,null,null,null,null,null,null,null,null,null,null,null,null,"T4","MV_80_E"]
[5002237,null,null,null,null,null,null,null,null,null,null,null,null,null,null,null,null,null,null,null,null,null,null,null,null,null,null,null,null,null,null,null,null,null,null,null,null,null,null,null,null,null,null,null,null,null,null,null,null,null,null,null,"T4","MV_80_E"]
[5002238,null,null,null,null,null,null,null,null,null,null,null,null,null,null,null,null,null,null,null,null,null,null,null,null,null,null,null,null,null,null,null,null,null,null,null,null,null,null,null,null,null,null,null,null,null,null,null,null,null,null,null,"T4","MV_80_E"]
[5002239,null,null,null,null,null,null,null,null,null,null,null,null,null,null,null,null,null,null,null,null,null,null,null,null,null,null,null,null,null,null,null,null,null,null,null,null,null,null,null,null,null,null,null,null,null,null,null,null,null,null,null,"T4","MV_80_E"]
[5002240,null,null,null,null,null,null,null,null,null,null,null,null,null,null,null,null,null,null,null,null,null,null,null,null,null,null,null,null,null,null,null,null,null,null,null,null,null,null,null,null,null,null,null,null,null,null,null,null,null,null,null,"T3","MV_250_E"]
[5002241,null,null,null,null,null,null,null,null,null,null,null,null,null,null,null,null,null,null,null,null,null,null,null,null,null,null,null,null,null,null,null,null,null,null,null,null,null,null,null,null,null,null,null,null,null,null,null,null,null,null,null,"R4","MV_80_E"]
[5002242,null,null,null,null,null,null,null,null,null,null,null,null,null,null,null,null,null,null,null,null,null,null,null,null,null,null,null,null,null,null,null,null,null,null,null,null,null,null,null,null,null,null,null,null,null,null,null,null,null,null,null,"R4","MV_80_E"]
[5002243,null,null,null,null,null,null,null,null,null,null,null,null,null,null,null,null,null,null,null,null,null,null,null,null,null,null,null,null,null,null,null,null,null,null,null,null,null,null,null,null,null,null,null,null,null,null,null,null,null,null,null,"T4","MV_80_E"]
[5002244,null,null,null,null,null,null,null,null,null,null,null,null,null,null,null,null,null,null,null,null,null,null,null,null,null,null,null,null,null,null,null,null,null,null,null,null,null,null,null,null,null,null,null,null,null,null,null,null,null,null,null,"R4","MV_80_E"]
[5002245,null,null,null,null,null,null,null,null,null,null,null,null,null,null,null,null,null,null,null,null,null,null,null,null,null,null,null,null,null,null,null,null,null,null,null,null,null,null,null,null,null,null,null,null,null,null,null,null,null,null,null,"R4","MV_80_E"]
[5002246,null,null,null,null,null,null,null,null,null,null,null,null,null,null,null,null,null,null,null,null,null,null,null,null,null,null,null,null,null,null,null,null,null,null,null,null,null,null,null,null,null,null,null,null,null,null,null,null,null,null,null,"R4","MV_80_E"]
[5002247,null,null,null,null,null,null,null,null,null,null,null,null,null,null,null,null,null,null,null,null,null,null,null,null,null,null,null,null,null,null,null,null,null,null,null,null,null,null,null,null,null,null,null,null,null,null,null,null,null,null,null,"R4","MV_80_E"]
[5002248,null,null,null,null,null,null,null,null,null,null,null,null,null,null,null,null,null,null,null,null,null,null,null,null,null,null,null,null,null,null,null,null,null,null,null,null,null,null,null,null,null,null,null,null,null,null,null,null,null,null,null,"R4","MV_80_E"]
[5002249,null,null,null,null,null,null,null,null,null,null,null,null,null,null,null,null,null,null,null,null,null,null,null,null,null,null,null,null,null,null,null,null,null,null,null,null,null,null,null,null,null,null,null,null,null,null,null,null,null,null,null,"T4","MV_80_E"]
[5002250,null,null,null,null,null,null,null,null,null,null,null,null,null,null,null,null,null,null,null,null,null,null,null,null,null,null,null,null,null,null,null,null,null,null,null,null,null,null,null,null,null,null,null,null,null,null,null,null,null,null,null,"R4","MV_80_E"]
[5002251,null,null,null,null,null,null,null,null,null,null,null,null,null,null,null,null,null,null,null,null,null,null,null,null,null,null,null,null,null,null,null,null,null,null,null,null,null,null,null,null,null,null,null,null,null,null,null,null,null,null,null,"R4","MV_80_E"]
[5002252,null,null,null,null,null,null,null,null,null,null,null,null,null,null,null,null,null,null,null,null,null,null,null,null,null,null,null,null,null,null,null,null,null,null,null,null,null,null,null,null,null,null,null,null,null,null,null,null,null,null,null,"R4","HPS_150_T"]
[5002253,null,null,null,null,null,null,null,null,null,null,null,null,null,null,null,null,null,null,null,null,null,null,null,null,null,null,null,null,null,null,null,null,null,null,null,null,null,null,null,null,null,null,null,null,null,null,null,null,null,null,null,null,"MV_80_E"]
[5002254,null,null,null,null,null,null,null,null,null,null,null,null,null,null,null,null,null,null,null,null,null,null,null,null,null,null,null,null,null,null,null,null,null,null,null,null,null,null,null,null,null,null,null,null,null,null,null,null,null,null,null,"R4","CFL_42"]
[5002255,null,null,null,null,null,null,null,null,null,null,null,null,null,null,null,null,null,null,null,null,null,null,null,null,null,null,null,null,null,null,null,null,null,null,null,null,null,null,null,null,null,null,null,null,null,null,null,null,null,null,null,"R4","MV_80_E"]
[5002256,null,null,null,null,null,null,null,null,null,null,null,null,null,null,null,null,null,null,null,null,null,null,null,null,null,null,null,null,null,null,null,null,null,null,null,null,null,null,null,null,null,null,null,null,null,null,null,null,null,null,null,"R1","MV_80_E"]
[5002257,null,null,null,null,null,null,null,null,null,null,null,null,null,null,null,null,null,null,null,null,null,null,null,null,null,null,null,null,null,null,null,null,null,null,null,null,null,null,null,null,null,null,null,null,null,null,null,null,null,null,null,"T4","MV_80_E"]
[5002258,null,null,null,null,null,null,null,null,null,null,null,null,null,null,null,null,null,null,null,null,null,null,null,null,null,null,null,null,null,null,null,null,null,null,null,null,null,null,null,null,null,null,null,null,null,null,null,null,null,null,null,"R4","MV_80_E"]
[5002259,null,null,null,null,null,null,null,null,null,null,null,null,null,null,null,null,null,null,null,null,null,null,null,null,null,null,null,null,null,null,null,null,null,null,null,null,null,null,null,null,null,null,null,null,null,null,null,null,null,null,null,"R5","MV_80_E"]
[5002260,null,null,null,null,null,null,null,null,null,null,null,null,null,null,null,null,null,null,null,null,null,null,null,null,null,null,null,null,null,null,null,null,null,null,null,null,null,null,null,null,null,null,null,null,null,null,null,null,null,null,null,"R4","MV_80_E"]
[5002261,null,null,null,null,null,null,null,null,null,null,null,null,null,null,null,null,null,null,null,null,null,null,null,null,null,null,null,null,null,null,null,null,null,null,null,null,null,null,null,null,null,null,null,null,null,null,null,null,null,null,null,"R4","MV_80_E"]
[5002262,null,null,null,null,null,null,null,null,null,null,null,null,null,null,null,null,null,null,null,null,null,null,null,null,null,null,null,null,null,null,null,null,null,null,null,null,null,null,null,null,null,null,null,null,null,null,null,null,null,null,null,"T4","MV_80_E"]
[5002263,null,null,null,null,null,null,null,null,null,null,null,null,null,null,null,null,null,null,null,null,null,null,null,null,null,null,null,null,null,null,null,null,null,null,null,null,null,null,null,null,null,null,null,null,null,null,null,null,null,null,null,"T4","MV_80_E"]
[5002264,null,null,null,null,null,null,null,null,null,null,null,null,null,null,null,null,null,null,null,null,null,null,null,null,null,null,null,null,null,null,null,null,null,null,null,null,null,null,null,null,null,null,null,null,null,null,null,null,null,null,null,"T4","HPS_400_T"]
[5002265,null,null,null,null,null,null,null,null,null,null,null,null,null,null,null,null,null,null,null,null,null,null,null,null,null,null,null,null,null,null,null,null,null,null,null,null,null,null,null,null,null,null,null,null,null,null,null,null,null,null,null,"NA","MV_80_E"]
[5002266,null,null,null,null,null,null,null,null,null,null,null,null,null,null,null,null,null,null,null,null,null,null,null,null,null,null,null,null,null,null,null,null,null,null,null,null,null,null,null,null,null,null,null,null,null,null,null,null,null,null,null,"R4","MV_80_E"]
[5002267,null,null,null,null,null,null,null,null,null,null,null,null,null,null,null,null,null,null,null,null,null,null,null,null,null,null,null,null,null,null,null,null,null,null,null,null,null,null,null,null,null,null,null,null,null,null,null,null,null,null,null,"T4","MV_80_E"]
[5002268,null,null,null,null,null,null,null,null,null,null,null,null,null,null,null,null,null,null,null,null,null,null,null,null,null,null,null,null,null,null,null,null,null,null,null,null,null,null,null,null,null,null,null,null,null,null,null,null,null,null,null,"T4","MV_80_E"]
[5002269,null,null,null,null,null,null,null,null,null,null,null,null,null,null,null,null,null,null,null,null,null,null,null,null,null,null,null,null,null,null,null,null,null,null,null,null,null,null,null,null,null,null,null,null,null,null,null,null,null,null,null,"T5","HPS_250_T"]
[5002270,null,null,null,null,null,null,null,null,null,null,null,null,null,null,null,null,null,null,null,null,null,null,null,null,null,null,null,null,null,null,null,null,null,null,null,null,null,null,null,null,null,null,null,null,null,null,null,null,null,null,null,"R4","CFL_42"]
[5002271,null,null,null,null,null,null,null,null,null,null,null,null,null,null,null,null,null,null,null,null,null,null,null,null,null,null,null,null,null,null,null,null,null,null,null,null,null,null,null,null,null,null,null,null,null,null,null,null,null,null,null,"NA","MV_80_E"]
[5002272,null,null,null,null,null,null,null,null,null,null,null,null,null,null,null,null,null,null,null,null,null,null,null,null,null,null,null,null,null,null,null,null,null,null,null,null,null,null,null,null,null,null,null,null,null,null,null,null,null,null,null,"NA","MV_80_E"]
[5002273,null,null,null,null,null,null,null,null,null,null,null,null,null,null,null,null,null,null,null,null,null,null,null,null,null,null,null,null,null,null,null,null,null,null,null,null,null,null,null,null,null,null,null,null,null,null,null,null,null,null,null,"NA","MV_80_E"]
[5002274,null,null,null,null,null,null,null,null,null,null,null,null,null,null,null,null,null,null,null,null,null,null,null,null,null,null,null,null,null,null,null,null,null,null,null,null,null,null,null,null,null,null,null,null,null,null,null,null,null,null,null,"R3","MV_80_E"]
[5002275,null,null,null,null,null,null,null,null,null,null,null,null,null,null,null,null,null,null,null,null,null,null,null,null,null,null,null,null,null,null,null,null,null,null,null,null,null,null,null,null,null,null,null,null,null,null,null,null,null,null,null,"R1","MV_80_E"]
[5002276,null,null,null,null,null,null,null,null,null,null,null,null,null,null,null,null,null,null,null,null,null,null,null,null,null,null,null,null,null,null,null,null,null,null,null,null,null,null,null,null,null,null,null,null,null,null,null,null,null,null,null,"R1","MV_80_E"]
[5002277,null,null,null,null,null,null,null,null,null,null,null,null,null,null,null,null,null,null,null,null,null,null,null,null,null,null,null,null,null,null,null,null,null,null,null,null,null,null,null,null,null,null,null,null,null,null,null,null,null,null,null,"R4","MV_80_E"]
[5002278,null,null,null,null,null,null,null,null,null,null,null,null,null,null,null,null,null,null,null,null,null,null,null,null,null,null,null,null,null,null,null,null,null,null,null,null,null,null,null,null,null,null,null,null,null,null,null,null,null,null,null,"NA","MV_80_E"]
[5002279,null,null,null,null,null,null,null,null,null,null,null,null,null,null,null,null,null,null,null,null,null,null,null,null,null,null,null,null,null,null,null,null,null,null,null,null,null,null,null,null,null,null,null,null,null,null,null,null,null,null,null,"NA","MV_80_E"]
[5002280,null,null,null,null,null,null,null,null,null,null,null,null,null,null,null,null,null,null,null,null,null,null,null,null,null,null,null,null,null,null,null,null,null,null,null,null,null,null,null,null,null,null,null,null,null,null,null,null,null,null,null,"T3","MV_80_E"]
[5002281,null,null,null,null,null,null,null,null,null,null,null,null,null,null,null,null,null,null,null,null,null,null,null,null,null,null,null,null,null,null,null,null,null,null,null,null,null,null,null,null,null,null,null,null,null,null,null,null,null,null,null,"T4","MV_80_E"]
[5002282,null,null,null,null,null,null,null,null,null,null,null,null,null,null,null,null,null,null,null,null,null,null,null,null,null,null,null,null,null,null,null,null,null,null,null,null,null,null,null,null,null,null,null,null,null,null,null,null,null,null,null,"R4","MV_80_E"]
[5002283,null,null,null,null,null,null,null,null,null,null,null,null,null,null,null,null,null,null,null,null,null,null,null,null,null,null,null,null,null,null,null,null,null,null,null,null,null,null,null,null,null,null,null,null,null,null,null,null,null,null,null,"TA","MV_80_E"]
[5002284,null,null,null,null,null,null,null,null,null,null,null,null,null,null,null,null,null,null,null,null,null,null,null,null,null,null,null,null,null,null,null,null,null,null,null,null,null,null,null,null,null,null,null,null,null,null,null,null,null,null,null,"R4","HPS_150_T"]
[5002285,null,null,null,null,null,null,null,null,null,null,null,null,null,null,null,null,null,null,null,null,null,null,null,null,null,null,null,null,null,null,null,null,null,null,null,null,null,null,null,null,null,null,null,null,null,null,null,null,null,null,null,"R4","HPS_150_T"]
[5002286,null,null,null,null,null,null,null,null,null,null,null,null,null,null,null,null,null,null,null,null,null,null,null,null,null,null,null,null,null,null,null,null,null,null,null,null,null,null,null,null,null,null,null,null,null,null,null,null,null,null,null,"T4","CFL_42"]
[5002287,null,null,null,null,null,null,null,null,null,null,null,null,null,null,null,null,null,null,null,null,null,null,null,null,null,null,null,null,null,null,null,null,null,null,null,null,null,null,null,null,null,null,null,null,null,null,null,null,null,null,null,"T4","MV_80_E"]
[5002288,null,null,null,null,null,null,null,null,null,null,null,null,null,null,null,null,null,null,null,null,null,null,null,null,null,null,null,null,null,null,null,null,null,null,null,null,null,null,null,null,null,null,null,null,null,null,null,null,null,null,null,"T4","MV_80_E"]
[5002289,null,null,null,null,null,null,null,null,null,null,null,null,null,null,null,null,null,null,null,null,null,null,null,null,null,null,null,null,null,null,null,null,null,null,null,null,null,null,null,null,null,null,null,null,null,null,null,null,null,null,null,"R4","MV_80_E"]
[5002290,null,null,null,null,null,null,null,null,null,null,null,null,null,null,null,null,null,null,null,null,null,null,null,null,null,null,null,null,null,null,null,null,null,null,null,null,null,null,null,null,null,null,null,null,null,null,null,null,null,null,null,"T4","MV_80_E"]
[5002291,null,null,null,null,null,null,null,null,null,null,null,null,null,null,null,null,null,null,null,null,null,null,null,null,null,null,null,null,null,null,null,null,null,null,null,null,null,null,null,null,null,null,null,null,null,null,null,null,null,null,null,"R5","MV_80_E"]
[5002292,null,null,null,null,null,null,null,null,null,null,null,null,null,null,null,null,null,null,null,null,null,null,null,null,null,null,null,null,null,null,null,null,null,null,null,null,null,null,null,null,null,null,null,null,null,null,null,null,null,null,null,"R4","HPS_150_T"]
[5002293,null,null,null,null,null,null,null,null,null,null,null,null,null,null,null,null,null,null,null,null,null,null,null,null,null,null,null,null,null,null,null,null,null,null,null,null,null,null,null,null,null,null,null,null,null,null,null,null,null,null,null,"NA","MV_80_E"]
[5002294,null,null,null,null,null,null,null,null,null,null,null,null,null,null,null,null,null,null,null,null,null,null,null,null,null,null,null,null,null,null,null,null,null,null,null,null,null,null,null,null,null,null,null,null,null,null,null,null,null,null,null,"T4","MV_80_E"]
[5002295,null,null,null,null,null,null,null,null,null,null,null,null,null,null,null,null,null,null,null,null,null,null,null,null,null,null,null,null,null,null,null,null,null,null,null,null,null,null,null,null,null,null,null,null,null,null,null,null,null,null,null,"R5","MV_80_E"]
[5002296,null,null,null,null,null,null,null,null,null,null,null,null,null,null,null,null,null,null,null,null,null,null,null,null,null,null,null,null,null,null,null,null,null,null,null,null,null,null,null,null,null,null,null,null,null,null,null,null,null,null,null,"T4","MV_80_E"]
[5002297,null,null,null,null,null,null,null,null,null,null,null,null,null,null,null,null,null,null,null,null,null,null,null,null,null,null,null,null,null,null,null,null,null,null,null,null,null,null,null,null,null,null,null,null,null,null,null,null,null,null,null,"T4","MV_80_E"]
[5002298,null,null,null,null,null,null,null,null,null,null,null,null,null,null,null,null,null,null,null,null,null,null,null,null,null,null,null,null,null,null,null,null,null,null,null,null,null,null,null,null,null,null,null,null,null,null,null,null,null,null,null,"T4","MV_80_E"]
[5002299,null,null,null,null,null,null,null,null,null,null,null,null,null,null,null,null,null,null,null,null,null,null,null,null,null,null,null,null,null,null,null,null,null,null,null,null,null,null,null,null,null,null,null,null,null,null,null,null,null,null,null,"T3","MV_80_E"]
[5002300,null,null,null,null,null,null,null,null,null,null,null,null,null,null,null,null,null,null,null,null,null,null,null,null,null,null,null,null,null,null,null,null,null,null,null,null,null,null,null,null,null,null,null,null,null,null,null,null,null,null,null,null,"MV_80_E"]
[5002301,null,null,null,null,null,null,null,null,null,null,null,null,null,null,null,null,null,null,null,null,null,null,null,null,null,null,null,null,null,null,null,null,null,null,null,null,null,null,null,null,null,null,null,null,null,null,null,null,null,null,null,null,"MV_80_E"]
[5002302,null,null,null,null,null,null,null,null,null,null,null,null,null,null,null,null,null,null,null,null,null,null,null,null,null,null,null,null,null,null,null,null,null,null,null,null,null,null,null,null,null,null,null,null,null,null,null,null,null,null,null,"T4","MV_80_E"]
[5002303,null,null,null,null,null,null,null,null,null,null,null,null,null,null,null,null,null,null,null,null,null,null,null,null,null,null,null,null,null,null,null,null,null,null,null,null,null,null,null,null,null,null,null,null,null,null,null,null,null,null,null,"T4","MV_80_E"]
[5002304,null,null,null,null,null,null,null,null,null,null,null,null,null,null,null,null,null,null,null,null,null,null,null,null,null,null,null,null,null,null,null,null,null,null,null,null,null,null,null,null,null,null,null,null,null,null,null,null,null,null,null,null,"MV_80_E"]
[5002305,null,null,null,null,null,null,null,null,null,null,null,null,null,null,null,null,null,null,null,null,null,null,null,null,null,null,null,null,null,null,null,null,null,null,null,null,null,null,null,null,null,null,null,null,null,null,null,null,null,null,null,"T4","MV_80_E"]
[5002306,null,null,null,null,null,null,null,null,null,null,null,null,null,null,null,null,null,null,null,null,null,null,null,null,null,null,null,null,null,null,null,null,null,null,null,null,null,null,null,null,null,null,null,null,null,null,null,null,null,null,null,"R4","MV_80_E"]
[5002307,null,null,null,null,null,null,null,null,null,null,null,null,null,null,null,null,null,null,null,null,null,null,null,null,null,null,null,null,null,null,null,null,null,null,null,null,null,null,null,null,null,null,null,null,null,null,null,null,null,null,null,null,"MV_80_E"]
[5002308,null,null,null,null,null,null,null,null,null,null,null,null,null,null,null,null,null,null,null,null,null,null,null,null,null,null,null,null,null,null,null,null,null,null,null,null,null,null,null,null,null,null,null,null,null,null,null,null,null,null,null,"T4","MV_80_E"]
[5002309,null,null,null,null,null,null,null,null,null,null,null,null,null,null,null,null,null,null,null,null,null,null,null,null,null,null,null,null,null,null,null,null,null,null,null,null,null,null,null,null,null,null,null,null,null,null,null,null,null,null,null,"R4","MV_80_E"]
[5002310,null,null,null,null,null,null,null,null,null,null,null,null,null,null,null,null,null,null,null,null,null,null,null,null,null,null,null,null,null,null,null,null,null,null,null,null,null,null,null,null,null,null,null,null,null,null,null,null,null,null,null,"R4","MV_80_E"]
[5002311,null,null,null,null,null,null,null,null,null,null,null,null,null,null,null,null,null,null,null,null,null,null,null,null,null,null,null,null,null,null,null,null,null,null,null,null,null,null,null,null,null,null,null,null,null,null,null,null,null,null,null,"R1","MV_80_E"]
[5002312,null,null,null,null,null,null,null,null,null,null,null,null,null,null,null,null,null,null,null,null,null,null,null,null,null,null,null,null,null,null,null,null,null,null,null,null,null,null,null,null,null,null,null,null,null,null,null,null,null,null,null,"R1","MV_80_E"]
[5002313,null,null,null,null,null,null,null,null,null,null,null,null,null,null,null,null,null,null,null,null,null,null,null,null,null,null,null,null,null,null,null,null,null,null,null,null,null,null,null,null,null,null,null,null,null,null,null,null,null,null,null,"R1","MV_80_E"]
[5002314,null,null,null,null,null,null,null,null,null,null,null,null,null,null,null,null,null,null,null,null,null,null,null,null,null,null,null,null,null,null,null,null,null,null,null,null,null,null,null,null,null,null,null,null,null,null,null,null,null,null,null,"R1","MV_80_E"]
[5002316,null,null,null,null,null,null,null,null,null,null,null,null,null,null,null,null,null,null,null,null,null,null,null,null,null,null,null,null,null,null,null,null,null,null,null,null,null,null,null,null,null,null,null,null,null,null,null,null,null,null,null,"R1","MV_80_E"]
[5002319,null,null,null,null,null,null,null,null,null,null,null,null,null,null,null,null,null,null,null,null,null,null,null,null,null,null,null,null,null,null,null,null,null,null,null,null,null,null,null,null,null,null,null,null,null,null,null,null,null,null,null,"R1","MV_80_E"]
[5002320,null,null,null,null,null,null,null,null,null,null,null,null,null,null,null,null,null,null,null,null,null,null,null,null,null,null,null,null,null,null,null,null,null,null,null,null,null,null,null,null,null,null,null,null,null,null,null,null,null,null,null,"R1","MV_80_E"]
[5002321,null,null,null,null,null,null,null,null,null,null,null,null,null,null,null,null,null,null,null,null,null,null,null,null,null,null,null,null,null,null,null,null,null,null,null,null,null,null,null,null,null,null,null,null,null,null,null,null,null,null,null,"R1","MV_80_E"]
[5002322,null,null,null,null,null,null,null,null,null,null,null,null,null,null,null,null,null,null,null,null,null,null,null,null,null,null,null,null,null,null,null,null,null,null,null,null,null,null,null,null,null,null,null,null,null,null,null,null,null,null,null,"R1","MV_80_E"]
[5002323,null,null,null,null,null,null,null,null,null,null,null,null,null,null,null,null,null,null,null,null,null,null,null,null,null,null,null,null,null,null,null,null,null,null,null,null,null,null,null,null,null,null,null,null,null,null,null,null,null,null,null,null,"MV_80_E"]
[5002324,null,null,null,null,null,null,null,null,null,null,null,null,null,null,null,null,null,null,null,null,null,null,null,null,null,null,null,null,null,null,null,null,null,null,null,null,null,null,null,null,null,null,null,null,null,null,null,null,null,null,null,"R1","MV_80_E"]
[5002325,null,null,null,null,null,null,null,null,null,null,null,null,null,null,null,null,null,null,null,null,null,null,null,null,null,null,null,null,null,null,null,null,null,null,null,null,null,null,null,null,null,null,null,null,null,null,null,null,null,null,null,"R1","MV_80_E"]
[5002326,null,null,null,null,null,null,null,null,null,null,null,null,null,null,null,null,null,null,null,null,null,null,null,null,null,null,null,null,null,null,null,null,null,null,null,null,null,null,null,null,null,null,null,null,null,null,null,null,null,null,null,"R1","MV_80_E"]
[5002327,null,null,null,null,null,null,null,null,null,null,null,null,null,null,null,null,null,null,null,null,null,null,null,null,null,null,null,null,null,null,null,null,null,null,null,null,null,null,null,null,null,null,null,null,null,null,null,null,null,null,null,"R1","MV_80_E"]
[5002328,null,null,null,null,null,null,null,null,null,null,null,null,null,null,null,null,null,null,null,null,null,null,null,null,null,null,null,null,null,null,null,null,null,null,null,null,null,null,null,null,null,null,null,null,null,null,null,null,null,null,null,"R1","MV_80_E"]
[5002329,null,null,null,null,null,null,null,null,null,null,null,null,null,null,null,null,null,null,null,null,null,null,null,null,null,null,null,null,null,null,null,null,null,null,null,null,null,null,null,null,null,null,null,null,null,null,null,null,null,null,null,"R1","MV_80_E"]
[5002330,null,null,null,null,null,null,null,null,null,null,null,null,null,null,null,null,null,null,null,null,null,null,null,null,null,null,null,null,null,null,null,null,null,null,null,null,null,null,null,null,null,null,null,null,null,null,null,null,null,null,null,"R1","MV_80_E"]
[5002331,null,null,null,null,null,null,null,null,null,null,null,null,null,null,null,null,null,null,null,null,null,null,null,null,null,null,null,null,null,null,null,null,null,null,null,null,null,null,null,null,null,null,null,null,null,null,null,null,null,null,null,"R1","MV_80_E"]
[5002332,null,null,null,null,null,null,null,null,null,null,null,null,null,null,null,null,null,null,null,null,null,null,null,null,null,null,null,null,null,null,null,null,null,null,null,null,null,null,null,null,null,null,null,null,null,null,null,null,null,null,null,"R1","MV_80_E"]
[5002333,null,null,null,null,null,null,null,null,null,null,null,null,null,null,null,null,null,null,null,null,null,null,null,null,null,null,null,null,null,null,null,null,null,null,null,null,null,null,null,null,null,null,null,null,null,null,null,null,null,null,null,"R1","MV_80_E"]
[5002334,null,null,null,null,null,null,null,null,null,null,null,null,null,null,null,null,null,null,null,null,null,null,null,null,null,null,null,null,null,null,null,null,null,null,null,null,null,null,null,null,null,null,null,null,null,null,null,null,null,null,null,"R1","MV_80_E"]
[5002335,null,null,null,null,null,null,null,null,null,null,null,null,null,null,null,null,null,null,null,null,null,null,null,null,null,null,null,null,null,null,null,null,null,null,null,null,null,null,null,null,null,null,null,null,null,null,null,null,null,null,null,"R1","MV_80_E"]
[5002336,null,null,null,null,null,null,null,null,null,null,null,null,null,null,null,null,null,null,null,null,null,null,null,null,null,null,null,null,null,null,null,null,null,null,null,null,null,null,null,null,null,null,null,null,null,null,null,null,null,null,null,"R1","MV_80_E"]
[5002337,null,null,null,null,null,null,null,null,null,null,null,null,null,null,null,null,null,null,null,null,null,null,null,null,null,null,null,null,null,null,null,null,null,null,null,null,null,null,null,null,null,null,null,null,null,null,null,null,null,null,null,"R1","MV_80_E"]
[5002338,null,null,null,null,null,null,null,null,null,null,null,null,null,null,null,null,null,null,null,null,null,null,null,null,null,null,null,null,null,null,null,null,null,null,null,null,null,null,null,null,null,null,null,null,null,null,null,null,null,null,null,"R4","MV_80_E"]
[5002339,null,null,null,null,null,null,null,null,null,null,null,null,null,null,null,null,null,null,null,null,null,null,null,null,null,null,null,null,null,null,null,null,null,null,null,null,null,null,null,null,null,null,null,null,null,null,null,null,null,null,null,"R5","MV_80_E"]
[5002340,null,null,null,null,null,null,null,null,null,null,null,null,null,null,null,null,null,null,null,null,null,null,null,null,null,null,null,null,null,null,null,null,null,null,null,null,null,null,null,null,null,null,null,null,null,null,null,null,null,null,null,"R4","MV_80_E"]
[5002341,null,null,null,null,null,null,null,null,null,null,null,null,null,null,null,null,null,null,null,null,null,null,null,null,null,null,null,null,null,null,null,null,null,null,null,null,null,null,null,null,null,null,null,null,null,null,null,null,null,null,null,"T4","MV_80_E"]
[5002342,null,null,null,null,null,null,null,null,null,null,null,null,null,null,null,null,null,null,null,null,null,null,null,null,null,null,null,null,null,null,null,null,null,null,null,null,null,null,null,null,null,null,null,null,null,null,null,null,null,null,null,"R4","MV_80_E"]
[5002343,null,null,null,null,null,null,null,null,null,null,null,null,null,null,null,null,null,null,null,null,null,null,null,null,null,null,null,null,null,null,null,null,null,null,null,null,null,null,null,null,null,null,null,null,null,null,null,null,null,null,null,"R4","MV_80_E"]
[5002344,null,null,null,null,null,null,null,null,null,null,null,null,null,null,null,null,null,null,null,null,null,null,null,null,null,null,null,null,null,null,null,null,null,null,null,null,null,null,null,null,null,null,null,null,null,null,null,null,null,null,null,"R4","MV_80_E"]
[5002345,null,null,null,null,null,null,null,null,null,null,null,null,null,null,null,null,null,null,null,null,null,null,null,null,null,null,null,null,null,null,null,null,null,null,null,null,null,null,null,null,null,null,null,null,null,null,null,null,null,null,null,"R4","MV_80_E"]
[5002346,null,null,null,null,null,null,null,null,null,null,null,null,null,null,null,null,null,null,null,null,null,null,null,null,null,null,null,null,null,null,null,null,null,null,null,null,null,null,null,null,null,null,null,null,null,null,null,null,null,null,null,"R4","MV_80_E"]
[5002347,null,null,null,null,null,null,null,null,null,null,null,null,null,null,null,null,null,null,null,null,null,null,null,null,null,null,null,null,null,null,null,null,null,null,null,null,null,null,null,null,null,null,null,null,null,null,null,null,null,null,null,"R4","MV_80_E"]
[5002348,null,null,null,null,null,null,null,null,null,null,null,null,null,null,null,null,null,null,null,null,null,null,null,null,null,null,null,null,null,null,null,null,null,null,null,null,null,null,null,null,null,null,null,null,null,null,null,null,null,null,null,"R4","MV_80_E"]
[5002349,null,null,null,null,null,null,null,null,null,null,null,null,null,null,null,null,null,null,null,null,null,null,null,null,null,null,null,null,null,null,null,null,null,null,null,null,null,null,null,null,null,null,null,null,null,null,null,null,null,null,null,"R4","MV_80_E"]
[5002350,null,null,null,null,null,null,null,null,null,null,null,null,null,null,null,null,null,null,null,null,null,null,null,null,null,null,null,null,null,null,null,null,null,null,null,null,null,null,null,null,null,null,null,null,null,null,null,null,null,null,null,"T5","HPS_100_T"]
[5002351,null,null,null,null,null,null,null,null,null,null,null,null,null,null,null,null,null,null,null,null,null,null,null,null,null,null,null,null,null,null,null,null,null,null,null,null,null,null,null,null,null,null,null,null,null,null,null,null,null,null,null,"T5","HPS_100_T"]
[5002352,null,null,null,null,null,null,null,null,null,null,null,null,null,null,null,null,null,null,null,null,null,null,null,null,null,null,null,null,null,null,null,null,null,null,null,null,null,null,null,null,null,null,null,null,null,null,null,null,null,null,null,"T5","HPS_100_T"]
[5002353,null,null,null,null,null,null,null,null,null,null,null,null,null,null,null,null,null,null,null,null,null,null,null,null,null,null,null,null,null,null,null,null,null,null,null,null,null,null,null,null,null,null,null,null,null,null,null,null,null,null,null,"T5","HPS_100_T"]
[5002354,null,null,null,null,null,null,null,null,null,null,null,null,null,null,null,null,null,null,null,null,null,null,null,null,null,null,null,null,null,null,null,null,null,null,null,null,null,null,null,null,null,null,null,null,null,null,null,null,null,null,null,"R4","HPS_100_T"]
[5002355,null,null,null,null,null,null,null,null,null,null,null,null,null,null,null,null,null,null,null,null,null,null,null,null,null,null,null,null,null,null,null,null,null,null,null,null,null,null,null,null,null,null,null,null,null,null,null,null,null,null,null,"T4","MV_80_E"]
[5002356,null,null,null,null,null,null,null,null,null,null,null,null,null,null,null,null,null,null,null,null,null,null,null,null,null,null,null,null,null,null,null,null,null,null,null,null,null,null,null,null,null,null,null,null,null,null,null,null,null,null,null,"R6","HPS_100_T"]
[5002357,null,null,null,null,null,null,null,null,null,null,null,null,null,null,null,null,null,null,null,null,null,null,null,null,null,null,null,null,null,null,null,null,null,null,null,null,null,null,null,null,null,null,null,null,null,null,null,null,null,null,null,"R4","HPS_100_T"]
[5002358,null,null,null,null,null,null,null,null,null,null,null,null,null,null,null,null,null,null,null,null,null,null,null,null,null,null,null,null,null,null,null,null,null,null,null,null,null,null,null,null,null,null,null,null,null,null,null,null,null,null,null,"R4","HPS_100_T"]
[5002359,null,null,null,null,null,null,null,null,null,null,null,null,null,null,null,null,null,null,null,null,null,null,null,null,null,null,null,null,null,null,null,null,null,null,null,null,null,null,null,null,null,null,null,null,null,null,null,null,null,null,null,"T4","HPS_150_T"]
[5002360,null,null,null,null,null,null,null,null,null,null,null,null,null,null,null,null,null,null,null,null,null,null,null,null,null,null,null,null,null,null,null,null,null,null,null,null,null,null,null,null,null,null,null,null,null,null,null,null,null,null,null,"T4","HPS_250_T"]
[5002361,null,null,null,null,null,null,null,null,null,null,null,null,null,null,null,null,null,null,null,null,null,null,null,null,null,null,null,null,null,null,null,null,null,null,null,null,null,null,null,null,null,null,null,null,null,null,null,null,null,null,null,"R4","HPS_100_T"]
[5002362,null,null,null,null,null,null,null,null,null,null,null,null,null,null,null,null,null,null,null,null,null,null,null,null,null,null,null,null,null,null,null,null,null,null,null,null,null,null,null,null,null,null,null,null,null,null,null,null,null,null,null,"R4","HPS_100_T"]
[5002363,null,null,null,null,null,null,null,null,null,null,null,null,null,null,null,null,null,null,null,null,null,null,null,null,null,null,null,null,null,null,null,null,null,null,null,null,null,null,null,null,null,null,null,null,null,null,null,null,null,null,null,null,"HPS_100_T"]
[5002364,null,null,null,null,null,null,null,null,null,null,null,null,null,null,null,null,null,null,null,null,null,null,null,null,null,null,null,null,null,null,null,null,null,null,null,null,null,null,null,null,null,null,null,null,null,null,null,null,null,null,null,"T3","HPS_100_T"]
[5002365,null,null,null,null,null,null,null,null,null,null,null,null,null,null,null,null,null,null,null,null,null,null,null,null,null,null,null,null,null,null,null,null,null,null,null,null,null,null,null,null,null,null,null,null,null,null,null,null,null,null,null,"TC","HPS_100_T"]
[5002366,null,null,null,null,null,null,null,null,null,null,null,null,null,null,null,null,null,null,null,null,null,null,null,null,null,null,null,null,null,null,null,null,null,null,null,null,null,null,null,null,null,null,null,null,null,null,null,null,null,null,null,"TC","HPS_100_T"]
[5002367,null,null,null,null,null,null,null,null,null,null,null,null,null,null,null,null,null,null,null,null,null,null,null,null,null,null,null,null,null,null,null,null,null,null,null,null,null,null,null,null,null,null,null,null,null,null,null,null,null,null,null,"R4","HPS_100_T"]
[5002368,null,null,null,null,null,null,null,null,null,null,null,null,null,null,null,null,null,null,null,null,null,null,null,null,null,null,null,null,null,null,null,null,null,null,null,null,null,null,null,null,null,null,null,null,null,null,null,null,null,null,null,"T5","HPS_100_T"]
[5002369,null,null,null,null,null,null,null,null,null,null,null,null,null,null,null,null,null,null,null,null,null,null,null,null,null,null,null,null,null,null,null,null,null,null,null,null,null,null,null,null,null,null,null,null,null,null,null,null,null,null,null,"R5","MV_80_E"]
[5002370,null,null,null,null,null,null,null,null,null,null,null,null,null,null,null,null,null,null,null,null,null,null,null,null,null,null,null,null,null,null,null,null,null,null,null,null,null,null,null,null,null,null,null,null,null,null,null,null,null,null,null,"R5","MV_80_E"]
[5002371,null,null,null,null,null,null,null,null,null,null,null,null,null,null,null,null,null,null,null,null,null,null,null,null,null,null,null,null,null,null,null,null,null,null,null,null,null,null,null,null,null,null,null,null,null,null,null,null,null,null,null,"R4","MV_80_E"]
[5002372,null,null,null,null,null,null,null,null,null,null,null,null,null,null,null,null,null,null,null,null,null,null,null,null,null,null,null,null,null,null,null,null,null,null,null,null,null,null,null,null,null,null,null,null,null,null,null,null,null,null,null,"R4","MV_80_E"]
[5002373,null,null,null,null,null,null,null,null,null,null,null,null,null,null,null,null,null,null,null,null,null,null,null,null,null,null,null,null,null,null,null,null,null,null,null,null,null,null,null,null,null,null,null,null,null,null,null,null,null,null,null,"OTHER","MV_80_E"]
[5002374,null,null,null,null,null,null,null,null,null,null,null,null,null,null,null,null,null,null,null,null,null,null,null,null,null,null,null,null,null,null,null,null,null,null,null,null,null,null,null,null,null,null,null,null,null,null,null,null,null,null,null,"OTHER","MV_80_E"]
[5002375,null,null,null,null,null,null,null,null,null,null,null,null,null,null,null,null,null,null,null,null,null,null,null,null,null,null,null,null,null,null,null,null,null,null,null,null,null,null,null,null,null,null,null,null,null,null,null,null,null,null,null,"T4","MV_80_E"]
[5002376,null,null,null,null,null,null,null,null,null,null,null,null,null,null,null,null,null,null,null,null,null,null,null,null,null,null,null,null,null,null,null,null,null,null,null,null,null,null,null,null,null,null,null,null,null,null,null,null,null,null,null,"R4","HPS_150_T"]
[5002377,null,null,null,null,null,null,null,null,null,null,null,null,null,null,null,null,null,null,null,null,null,null,null,null,null,null,null,null,null,null,null,null,null,null,null,null,null,null,null,null,null,null,null,null,null,null,null,null,null,null,null,"R4","HPS_150_T"]
[5002378,null,null,null,null,null,null,null,null,null,null,null,null,null,null,null,null,null,null,null,null,null,null,null,null,null,null,null,null,null,null,null,null,null,null,null,null,null,null,null,null,null,null,null,null,null,null,null,null,null,null,null,"NA","HPS_150_T"]
[5002379,null,null,null,null,null,null,null,null,null,null,null,null,null,null,null,null,null,null,null,null,null,null,null,null,null,null,null,null,null,null,null,null,null,null,null,null,null,null,null,null,null,null,null,null,null,null,null,null,null,null,null,"R4","HPS_150_E"]
[5002380,null,null,null,null,null,null,null,null,null,null,null,null,null,null,null,null,null,null,null,null,null,null,null,null,null,null,null,null,null,null,null,null,null,null,null,null,null,null,null,null,null,null,null,null,null,null,null,null,null,null,null,"R4","HPS_150_TSI"]
[5002381,null,null,null,null,null,null,null,null,null,null,null,null,null,null,null,null,null,null,null,null,null,null,null,null,null,null,null,null,null,null,null,null,null,null,null,null,null,null,null,null,null,null,null,null,null,null,null,null,null,null,null,"R4","HPS_150_T"]
[5002382,null,null,null,null,null,null,null,null,null,null,null,null,null,null,null,null,null,null,null,null,null,null,null,null,null,null,null,null,null,null,null,null,null,null,null,null,null,null,null,null,null,null,null,null,null,null,null,null,null,null,null,"R2","HPS_150_T"]
[5002383,null,null,null,null,null,null,null,null,null,null,null,null,null,null,null,null,null,null,null,null,null,null,null,null,null,null,null,null,null,null,null,null,null,null,null,null,null,null,null,null,null,null,null,null,null,null,null,null,null,null,null,"R4","HPS_150_T"]
[5002384,null,null,null,null,null,null,null,null,null,null,null,null,null,null,null,null,null,null,null,null,null,null,null,null,null,null,null,null,null,null,null,null,null,null,null,null,null,null,null,null,null,null,null,null,null,null,null,null,null,null,null,"R4","HPS_150_E"]
[5002385,null,null,null,null,null,null,null,null,null,null,null,null,null,null,null,null,null,null,null,null,null,null,null,null,null,null,null,null,null,null,null,null,null,null,null,null,null,null,null,null,null,null,null,null,null,null,null,null,null,null,null,"R4","HPS_150_T"]
[5002386,null,null,null,null,null,null,null,null,null,null,null,null,null,null,null,null,null,null,null,null,null,null,null,null,null,null,null,null,null,null,null,null,null,null,null,null,null,null,null,null,null,null,null,null,null,null,null,null,null,null,null,"R4","HPS_150_T"]
[5002387,null,null,null,null,null,null,null,null,null,null,null,null,null,null,null,null,null,null,null,null,null,null,null,null,null,null,null,null,null,null,null,null,null,null,null,null,null,null,null,null,null,null,null,null,null,null,null,null,null,null,null,"R4","HPS_150_T"]
[5002388,null,null,null,null,null,null,null,null,null,null,null,null,null,null,null,null,null,null,null,null,null,null,null,null,null,null,null,null,null,null,null,null,null,null,null,null,null,null,null,null,null,null,null,null,null,null,null,null,null,null,null,"R4","HPS_150_T"]
[5002389,null,null,null,null,null,null,null,null,null,null,null,null,null,null,null,null,null,null,null,null,null,null,null,null,null,null,null,null,null,null,null,null,null,null,null,null,null,null,null,null,null,null,null,null,null,null,null,null,null,null,null,"T4","MV_80_E"]
[5002390,null,null,null,null,null,null,null,null,null,null,null,null,null,null,null,null,null,null,null,null,null,null,null,null,null,null,null,null,null,null,null,null,null,null,null,null,null,null,null,null,null,null,null,null,null,null,null,null,null,null,null,"R4","MV_80_E"]
[5002391,null,null,null,null,null,null,null,null,null,null,null,null,null,null,null,null,null,null,null,null,null,null,null,null,null,null,null,null,null,null,null,null,null,null,null,null,null,null,null,null,null,null,null,null,null,null,null,null,null,null,null,null,"MV_80_E"]
[5002392,null,null,null,null,null,null,null,null,null,null,null,null,null,null,null,null,null,null,null,null,null,null,null,null,null,null,null,null,null,null,null,null,null,null,null,null,null,null,null,null,null,null,null,null,null,null,null,null,null,null,null,null,"MV_80_E"]
[5002393,null,null,null,null,null,null,null,null,null,null,null,null,null,null,null,null,null,null,null,null,null,null,null,null,null,null,null,null,null,null,null,null,null,null,null,null,null,null,null,null,null,null,null,null,null,null,null,null,null,null,null,"R4","MV_80_E"]
[5002394,null,null,null,null,null,null,null,null,null,null,null,null,null,null,null,null,null,null,null,null,null,null,null,null,null,null,null,null,null,null,null,null,null,null,null,null,null,null,null,null,null,null,null,null,null,null,null,null,null,null,null,"R4","MV_80_E"]
[5002395,null,null,null,null,null,null,null,null,null,null,null,null,null,null,null,null,null,null,null,null,null,null,null,null,null,null,null,null,null,null,null,null,null,null,null,null,null,null,null,null,null,null,null,null,null,null,null,null,null,null,null,"R4","MV_80_E"]
[5002396,null,null,null,null,null,null,null,null,null,null,null,null,null,null,null,null,null,null,null,null,null,null,null,null,null,null,null,null,null,null,null,null,null,null,null,null,null,null,null,null,null,null,null,null,null,null,null,null,null,null,null,null,"MV_80_E"]
[5002397,null,null,null,null,null,null,null,null,null,null,null,null,null,null,null,null,null,null,null,null,null,null,null,null,null,null,null,null,null,null,null,null,null,null,null,null,null,null,null,null,null,null,null,null,null,null,null,null,null,null,null,null,"MV_80_E"]
[5002398,null,null,null,null,null,null,null,null,null,null,null,null,null,null,null,null,null,null,null,null,null,null,null,null,null,null,null,null,null,null,null,null,null,null,null,null,null,null,null,null,null,null,null,null,null,null,null,null,null,null,null,"R4","MV_80_E"]
[5002399,null,null,null,null,null,null,null,null,null,null,null,null,null,null,null,null,null,null,null,null,null,null,null,null,null,null,null,null,null,null,null,null,null,null,null,null,null,null,null,null,null,null,null,null,null,null,null,null,null,null,null,"R4","MV_80_E"]
[5002400,null,null,null,null,null,null,null,null,null,null,null,null,null,null,null,null,null,null,null,null,null,null,null,null,null,null,null,null,null,null,null,null,null,null,null,null,null,null,null,null,null,null,null,null,null,null,null,null,null,null,null,"R4","MV_80_E"]
[5002401,null,null,null,null,null,null,null,null,null,null,null,null,null,null,null,null,null,null,null,null,null,null,null,null,null,null,null,null,null,null,null,null,null,null,null,null,null,null,null,null,null,null,null,null,null,null,null,null,null,null,null,"R4","MV_80_E"]
[5002402,null,null,null,null,null,null,null,null,null,null,null,null,null,null,null,null,null,null,null,null,null,null,null,null,null,null,null,null,null,null,null,null,null,null,null,null,null,null,null,null,null,null,null,null,null,null,null,null,null,null,null,"R4","MV_80_E"]
[5002403,null,null,null,null,null,null,null,null,null,null,null,null,null,null,null,null,null,null,null,null,null,null,null,null,null,null,null,null,null,null,null,null,null,null,null,null,null,null,null,null,null,null,null,null,null,null,null,null,null,null,null,"R4","MV_80_E"]
[5002404,null,null,null,null,null,null,null,null,null,null,null,null,null,null,null,null,null,null,null,null,null,null,null,null,null,null,null,null,null,null,null,null,null,null,null,null,null,null,null,null,null,null,null,null,null,null,null,null,null,null,null,"R4","MV_80_E"]
[5002405,null,null,null,null,null,null,null,null,null,null,null,null,null,null,null,null,null,null,null,null,null,null,null,null,null,null,null,null,null,null,null,null,null,null,null,null,null,null,null,null,null,null,null,null,null,null,null,null,null,null,null,"R4","CFL_42"]
[5002406,null,null,null,null,null,null,null,null,null,null,null,null,null,null,null,null,null,null,null,null,null,null,null,null,null,null,null,null,null,null,null,null,null,null,null,null,null,null,null,null,null,null,null,null,null,null,null,null,null,null,null,null,"MV_80_E"]
[5002407,null,null,null,null,null,null,null,null,null,null,null,null,null,null,null,null,null,null,null,null,null,null,null,null,null,null,null,null,null,null,null,null,null,null,null,null,null,null,null,null,null,null,null,null,null,null,null,null,null,null,null,"R4","MV_80_E"]
[5002408,null,null,null,null,null,null,null,null,null,null,null,null,null,null,null,null,null,null,null,null,null,null,null,null,null,null,null,null,null,null,null,null,null,null,null,null,null,null,null,null,null,null,null,null,null,null,null,null,null,null,null,"R4","MV_80_E"]
[5002409,null,null,null,null,null,null,null,null,null,null,null,null,null,null,null,null,null,null,null,null,null,null,null,null,null,null,null,null,null,null,null,null,null,null,null,null,null,null,null,null,null,null,null,null,null,null,null,null,null,null,null,"T4","MV_80_E"]
[5002410,null,null,null,null,null,null,null,null,null,null,null,null,null,null,null,null,null,null,null,null,null,null,null,null,null,null,null,null,null,null,null,null,null,null,null,null,null,null,null,null,null,null,null,null,null,null,null,null,null,null,null,"R4","CFL_42"]
[5002411,null,null,null,null,null,null,null,null,null,null,null,null,null,null,null,null,null,null,null,null,null,null,null,null,null,null,null,null,null,null,null,null,null,null,null,null,null,null,null,null,null,null,null,null,null,null,null,null,null,null,null,"R4","CFL_42"]
[5002412,null,null,null,null,null,null,null,null,null,null,null,null,null,null,null,null,null,null,null,null,null,null,null,null,null,null,null,null,null,null,null,null,null,null,null,null,null,null,null,null,null,null,null,null,null,null,null,null,null,null,null,"R4","MV_80_E"]
[5002413,null,null,null,null,null,null,null,null,null,null,null,null,null,null,null,null,null,null,null,null,null,null,null,null,null,null,null,null,null,null,null,null,null,null,null,null,null,null,null,null,null,null,null,null,null,null,null,null,null,null,null,null,"CFL_42"]
[5002414,null,null,null,null,null,null,null,null,null,null,null,null,null,null,null,null,null,null,null,null,null,null,null,null,null,null,null,null,null,null,null,null,null,null,null,null,null,null,null,null,null,null,null,null,null,null,null,null,null,null,null,"R4","CFL_42"]
[5002415,null,null,null,null,null,null,null,null,null,null,null,null,null,null,null,null,null,null,null,null,null,null,null,null,null,null,null,null,null,null,null,null,null,null,null,null,null,null,null,null,null,null,null,null,null,null,null,null,null,null,null,"R4","CFL_42"]
[5002416,null,null,null,null,null,null,null,null,null,null,null,null,null,null,null,null,null,null,null,null,null,null,null,null,null,null,null,null,null,null,null,null,null,null,null,null,null,null,null,null,null,null,null,null,null,null,null,null,null,null,null,"R4","HPS_100_T"]
[5002417,null,null,null,null,null,null,null,null,null,null,null,null,null,null,null,null,null,null,null,null,null,null,null,null,null,null,null,null,null,null,null,null,null,null,null,null,null,null,null,null,null,null,null,null,null,null,null,null,null,null,null,"R4","HPS_100_T"]
[5002418,null,null,null,null,null,null,null,null,null,null,null,null,null,null,null,null,null,null,null,null,null,null,null,null,null,null,null,null,null,null,null,null,null,null,null,null,null,null,null,null,null,null,null,null,null,null,null,null,null,null,null,"R4","HPS_100_T"]
[5002419,null,null,null,null,null,null,null,null,null,null,null,null,null,null,null,null,null,null,null,null,null,null,null,null,null,null,null,null,null,null,null,null,null,null,null,null,null,null,null,null,null,null,null,null,null,null,null,null,null,null,null,"R4","HPS_100_T"]
[5002420,null,null,null,null,null,null,null,null,null,null,null,null,null,null,null,null,null,null,null,null,null,null,null,null,null,null,null,null,null,null,null,null,null,null,null,null,null,null,null,null,null,null,null,null,null,null,null,null,null,null,null,null,"CFL_42"]
[5002421,null,null,null,null,null,null,null,null,null,null,null,null,null,null,null,null,null,null,null,null,null,null,null,null,null,null,null,null,null,null,null,null,null,null,null,null,null,null,null,null,null,null,null,null,null,null,null,null,null,null,null,"R4","CFL_42"]
[5002422,null,null,null,null,null,null,null,null,null,null,null,null,null,null,null,null,null,null,null,null,null,null,null,null,null,null,null,null,null,null,null,null,null,null,null,null,null,null,null,null,null,null,null,null,null,null,null,null,null,null,null,"R4","HPS_150_T"]
[5002423,null,null,null,null,null,null,null,null,null,null,null,null,null,null,null,null,null,null,null,null,null,null,null,null,null,null,null,null,null,null,null,null,null,null,null,null,null,null,null,null,null,null,null,null,null,null,null,null,null,null,null,"NA","HPS_150_T"]
[5002424,null,null,null,null,null,null,null,null,null,null,null,null,null,null,null,null,null,null,null,null,null,null,null,null,null,null,null,null,null,null,null,null,null,null,null,null,null,null,null,null,null,null,null,null,null,null,null,null,null,null,null,null,"HPS_150_T"]
[5002425,null,null,null,null,null,null,null,null,null,null,null,null,null,null,null,null,null,null,null,null,null,null,null,null,null,null,null,null,null,null,null,null,null,null,null,null,null,null,null,null,null,null,null,null,null,null,null,null,null,null,null,"R4","HPS_250_T"]
[5002426,null,null,null,null,null,null,null,null,null,null,null,null,null,null,null,null,null,null,null,null,null,null,null,null,null,null,null,null,null,null,null,null,null,null,null,null,null,null,null,null,null,null,null,null,null,null,null,null,null,null,null,"T4","MV_80_E"]
[5002427,null,null,null,null,null,null,null,null,null,null,null,null,null,null,null,null,null,null,null,null,null,null,null,null,null,null,null,null,null,null,null,null,null,null,null,null,null,null,null,null,null,null,null,null,null,null,null,null,null,null,null,"R4","MV_80_E"]
[5002428,null,null,null,null,null,null,null,null,null,null,null,null,null,null,null,null,null,null,null,null,null,null,null,null,null,null,null,null,null,null,null,null,null,null,null,null,null,null,null,null,null,null,null,null,null,null,null,null,null,null,null,"R4","MV_80_E"]
[5002429,null,null,null,null,null,null,null,null,null,null,null,null,null,null,null,null,null,null,null,null,null,null,null,null,null,null,null,null,null,null,null,null,null,null,null,null,null,null,null,null,null,null,null,null,null,null,null,null,null,null,null,"T4","MV_80_E"]
[5002430,null,null,null,null,null,null,null,null,null,null,null,null,null,null,null,null,null,null,null,null,null,null,null,null,null,null,null,null,null,null,null,null,null,null,null,null,null,null,null,null,null,null,null,null,null,null,null,null,null,null,null,"T4","MV_80_E"]
[5002431,null,null,null,null,null,null,null,null,null,null,null,null,null,null,null,null,null,null,null,null,null,null,null,null,null,null,null,null,null,null,null,null,null,null,null,null,null,null,null,null,null,null,null,null,null,null,null,null,null,null,null,"T4","MV_80_E"]
[5002432,null,null,null,null,null,null,null,null,null,null,null,null,null,null,null,null,null,null,null,null,null,null,null,null,null,null,null,null,null,null,null,null,null,null,null,null,null,null,null,null,null,null,null,null,null,null,null,null,null,null,null,"T4","MV_80_E"]
[5002433,null,null,null,null,null,null,null,null,null,null,null,null,null,null,null,null,null,null,null,null,null,null,null,null,null,null,null,null,null,null,null,null,null,null,null,null,null,null,null,null,null,null,null,null,null,null,null,null,null,null,null,"T4","MV_80_E"]
[5002434,null,null,null,null,null,null,null,null,null,null,null,null,null,null,null,null,null,null,null,null,null,null,null,null,null,null,null,null,null,null,null,null,null,null,null,null,null,null,null,null,null,null,null,null,null,null,null,null,null,null,null,"T4","MV_80_E"]
[5002435,null,null,null,null,null,null,null,null,null,null,null,null,null,null,null,null,null,null,null,null,null,null,null,null,null,null,null,null,null,null,null,null,null,null,null,null,null,null,null,null,null,null,null,null,null,null,null,null,null,null,null,"T4","MV_80_E"]
[5002436,null,null,null,null,null,null,null,null,null,null,null,null,null,null,null,null,null,null,null,null,null,null,null,null,null,null,null,null,null,null,null,null,null,null,null,null,null,null,null,null,null,null,null,null,null,null,null,null,null,null,null,"T4","MV_80_E"]
[5002437,null,null,null,null,null,null,null,null,null,null,null,null,null,null,null,null,null,null,null,null,null,null,null,null,null,null,null,null,null,null,null,null,null,null,null,null,null,null,null,null,null,null,null,null,null,null,null,null,null,null,null,"T4","MV_80_E"]
[5002438,null,null,null,null,null,null,null,null,null,null,null,null,null,null,null,null,null,null,null,null,null,null,null,null,null,null,null,null,null,null,null,null,null,null,null,null,null,null,null,null,null,null,null,null,null,null,null,null,null,null,null,"T4","MV_80_E"]
[5002439,null,null,null,null,null,null,null,null,null,null,null,null,null,null,null,null,null,null,null,null,null,null,null,null,null,null,null,null,null,null,null,null,null,null,null,null,null,null,null,null,null,null,null,null,null,null,null,null,null,null,null,"T4","MV_80_E"]
[5002440,null,null,null,null,null,null,null,null,null,null,null,null,null,null,null,null,null,null,null,null,null,null,null,null,null,null,null,null,null,null,null,null,null,null,null,null,null,null,null,null,null,null,null,null,null,null,null,null,null,null,null,"T4","MV_80_E"]
[5002441,null,null,null,null,null,null,null,null,null,null,null,null,null,null,null,null,null,null,null,null,null,null,null,null,null,null,null,null,null,null,null,null,null,null,null,null,null,null,null,null,null,null,null,null,null,null,null,null,null,null,null,"R4","MV_80_E"]
[5002442,null,null,null,null,null,null,null,null,null,null,null,null,null,null,null,null,null,null,null,null,null,null,null,null,null,null,null,null,null,null,null,null,null,null,null,null,null,null,null,null,null,null,null,null,null,null,null,null,null,null,null,"R4","MV_80_E"]
[5002443,null,null,null,null,null,null,null,null,null,null,null,null,null,null,null,null,null,null,null,null,null,null,null,null,null,null,null,null,null,null,null,null,null,null,null,null,null,null,null,null,null,null,null,null,null,null,null,null,null,null,null,"R4","MV_80_E"]
[5002444,null,null,null,null,null,null,null,null,null,null,null,null,null,null,null,null,null,null,null,null,null,null,null,null,null,null,null,null,null,null,null,null,null,null,null,null,null,null,null,null,null,null,null,null,null,null,null,null,null,null,null,"R4","MV_80_E"]
[5002445,null,null,null,null,null,null,null,null,null,null,null,null,null,null,null,null,null,null,null,null,null,null,null,null,null,null,null,null,null,null,null,null,null,null,null,null,null,null,null,null,null,null,null,null,null,null,null,null,null,null,null,"R4","MV_80_E"]
[5002446,null,null,null,null,null,null,null,null,null,null,null,null,null,null,null,null,null,null,null,null,null,null,null,null,null,null,null,null,null,null,null,null,null,null,null,null,null,null,null,null,null,null,null,null,null,null,null,null,null,null,null,"R4","MV_80_E"]
[5002447,null,null,null,null,null,null,null,null,null,null,null,null,null,null,null,null,null,null,null,null,null,null,null,null,null,null,null,null,null,null,null,null,null,null,null,null,null,null,null,null,null,null,null,null,null,null,null,null,null,null,null,"T3","MV_80_E"]
[5002448,null,null,null,null,null,null,null,null,null,null,null,null,null,null,null,null,null,null,null,null,null,null,null,null,null,null,null,null,null,null,null,null,null,null,null,null,null,null,null,null,null,null,null,null,null,null,null,null,null,null,null,null,"MV_80_E"]
[5002450,null,null,null,null,null,null,null,null,null,null,null,null,null,null,null,null,null,null,null,null,null,null,null,null,null,null,null,null,null,null,null,null,null,null,null,null,null,null,null,null,null,null,null,null,null,null,null,null,null,null,null,"T4","MV_80_E"]
[5002451,null,null,null,null,null,null,null,null,null,null,null,null,null,null,null,null,null,null,null,null,null,null,null,null,null,null,null,null,null,null,null,null,null,null,null,null,null,null,null,null,null,null,null,null,null,null,null,null,null,null,null,null,"MV_80_E"]
[5002452,null,null,null,null,null,null,null,null,null,null,null,null,null,null,null,null,null,null,null,null,null,null,null,null,null,null,null,null,null,null,null,null,null,null,null,null,null,null,null,null,null,null,null,null,null,null,null,null,null,null,null,"T4","MV_80_E"]
[5002453,null,null,null,null,null,null,null,null,null,null,null,null,null,null,null,null,null,null,null,null,null,null,null,null,null,null,null,null,null,null,null,null,null,null,null,null,null,null,null,null,null,null,null,null,null,null,null,null,null,null,null,"T4","MV_80_E"]
[5002454,null,null,null,null,null,null,null,null,null,null,null,null,null,null,null,null,null,null,null,null,null,null,null,null,null,null,null,null,null,null,null,null,null,null,null,null,null,null,null,null,null,null,null,null,null,null,null,null,null,null,null,"T4","MV_80_E"]
[5002455,null,null,null,null,null,null,null,null,null,null,null,null,null,null,null,null,null,null,null,null,null,null,null,null,null,null,null,null,null,null,null,null,null,null,null,null,null,null,null,null,null,null,null,null,null,null,null,null,null,null,null,"R6","HPS_100_T"]
[5002456,null,null,null,null,null,null,null,null,null,null,null,null,null,null,null,null,null,null,null,null,null,null,null,null,null,null,null,null,null,null,null,null,null,null,null,null,null,null,null,null,null,null,null,null,null,null,null,null,null,null,null,"R4","MV_80_E"]
[5002457,null,null,null,null,null,null,null,null,null,null,null,null,null,null,null,null,null,null,null,null,null,null,null,null,null,null,null,null,null,null,null,null,null,null,null,null,null,null,null,null,null,null,null,null,null,null,null,null,null,null,null,"R4","MV_80_E"]
[5002458,null,null,null,null,null,null,null,null,null,null,null,null,null,null,null,null,null,null,null,null,null,null,null,null,null,null,null,null,null,null,null,null,null,null,null,null,null,null,null,null,null,null,null,null,null,null,null,null,null,null,null,"R4","MV_80_E"]
[5002459,null,null,null,null,null,null,null,null,null,null,null,null,null,null,null,null,null,null,null,null,null,null,null,null,null,null,null,null,null,null,null,null,null,null,null,null,null,null,null,null,null,null,null,null,null,null,null,null,null,null,null,"R4","MV_80_E"]
[5002460,null,null,null,null,null,null,null,null,null,null,null,null,null,null,null,null,null,null,null,null,null,null,null,null,null,null,null,null,null,null,null,null,null,null,null,null,null,null,null,null,null,null,null,null,null,null,null,null,null,null,null,"T4","MV_80_E"]
[5002461,null,null,null,null,null,null,null,null,null,null,null,null,null,null,null,null,null,null,null,null,null,null,null,null,null,null,null,null,null,null,null,null,null,null,null,null,null,null,null,null,null,null,null,null,null,null,null,null,null,null,null,"T4","MV_80_E"]
[5002462,null,null,null,null,null,null,null,null,null,null,null,null,null,null,null,null,null,null,null,null,null,null,null,null,null,null,null,null,null,null,null,null,null,null,null,null,null,null,null,null,null,null,null,null,null,null,null,null,null,null,null,"T4","MV_80_E"]
[5002463,null,null,null,null,null,null,null,null,null,null,null,null,null,null,null,null,null,null,null,null,null,null,null,null,null,null,null,null,null,null,null,null,null,null,null,null,null,null,null,null,null,null,null,null,null,null,null,null,null,null,null,"T4","MV_80_E"]
[5002464,null,null,null,null,null,null,null,null,null,null,null,null,null,null,null,null,null,null,null,null,null,null,null,null,null,null,null,null,null,null,null,null,null,null,null,null,null,null,null,null,null,null,null,null,null,null,null,null,null,null,null,"T4","MV_80_E"]
[5002465,null,null,null,null,null,null,null,null,null,null,null,null,null,null,null,null,null,null,null,null,null,null,null,null,null,null,null,null,null,null,null,null,null,null,null,null,null,null,null,null,null,null,null,null,null,null,null,null,null,null,null,"T4","MV_80_E"]
[5002466,null,null,null,null,null,null,null,null,null,null,null,null,null,null,null,null,null,null,null,null,null,null,null,null,null,null,null,null,null,null,null,null,null,null,null,null,null,null,null,null,null,null,null,null,null,null,null,null,null,null,null,"T4","MV_80_E"]
[5002467,null,null,null,null,null,null,null,null,null,null,null,null,null,null,null,null,null,null,null,null,null,null,null,null,null,null,null,null,null,null,null,null,null,null,null,null,null,null,null,null,null,null,null,null,null,null,null,null,null,null,null,"T4","MV_80_E"]
[5002468,null,null,null,null,null,null,null,null,null,null,null,null,null,null,null,null,null,null,null,null,null,null,null,null,null,null,null,null,null,null,null,null,null,null,null,null,null,null,null,null,null,null,null,null,null,null,null,null,null,null,null,"R4","MV_80_E"]
[5002469,null,null,null,null,null,null,null,null,null,null,null,null,null,null,null,null,null,null,null,null,null,null,null,null,null,null,null,null,null,null,null,null,null,null,null,null,null,null,null,null,null,null,null,null,null,null,null,null,null,null,null,"R4","MV_80_E"]
[5002470,null,null,null,null,null,null,null,null,null,null,null,null,null,null,null,null,null,null,null,null,null,null,null,null,null,null,null,null,null,null,null,null,null,null,null,null,null,null,null,null,null,null,null,null,null,null,null,null,null,null,null,"R4","HPS_150_T"]
[5002471,null,null,null,null,null,null,null,null,null,null,null,null,null,null,null,null,null,null,null,null,null,null,null,null,null,null,null,null,null,null,null,null,null,null,null,null,null,null,null,null,null,null,null,null,null,null,null,null,null,null,null,"R5","HPS_150_T"]
[5002472,null,null,null,null,null,null,null,null,null,null,null,null,null,null,null,null,null,null,null,null,null,null,null,null,null,null,null,null,null,null,null,null,null,null,null,null,null,null,null,null,null,null,null,null,null,null,null,null,null,null,null,"T3","HPS_400_T"]
[5002473,null,null,null,null,null,null,null,null,null,null,null,null,null,null,null,null,null,null,null,null,null,null,null,null,null,null,null,null,null,null,null,null,null,null,null,null,null,null,null,null,null,null,null,null,null,null,null,null,null,null,null,"T4","CFL_42"]
[5002474,null,null,null,null,null,null,null,null,null,null,null,null,null,null,null,null,null,null,null,null,null,null,null,null,null,null,null,null,null,null,null,null,null,null,null,null,null,null,null,null,null,null,null,null,null,null,null,null,null,null,null,"R4","CFL_42"]
[5002475,null,null,null,null,null,null,null,null,null,null,null,null,null,null,null,null,null,null,null,null,null,null,null,null,null,null,null,null,null,null,null,null,null,null,null,null,null,null,null,null,null,null,null,null,null,null,null,null,null,null,null,"T4","CFL_42"]
[5002476,null,null,null,null,null,null,null,null,null,null,null,null,null,null,null,null,null,null,null,null,null,null,null,null,null,null,null,null,null,null,null,null,null,null,null,null,null,null,null,null,null,null,null,null,null,null,null,null,null,null,null,null,"HPS_150_T"]
[5002477,null,null,null,null,null,null,null,null,null,null,null,null,null,null,null,null,null,null,null,null,null,null,null,null,null,null,null,null,null,null,null,null,null,null,null,null,null,null,null,null,null,null,null,null,null,null,null,null,null,null,null,"R5","CFL_42"]
[5002478,null,null,null,null,null,null,null,null,null,null,null,null,null,null,null,null,null,null,null,null,null,null,null,null,null,null,null,null,null,null,null,null,null,null,null,null,null,null,null,null,null,null,null,null,null,null,null,null,null,null,null,"NULL","CFL_42"]
[5002479,null,null,null,null,null,null,null,null,null,null,null,null,null,null,null,null,null,null,null,null,null,null,null,null,null,null,null,null,null,null,null,null,null,null,null,null,null,null,null,null,null,null,null,null,null,null,null,null,null,null,null,null,"HPS_250_T"]
[5002480,null,null,null,null,null,null,null,null,null,null,null,null,null,null,null,null,null,null,null,null,null,null,null,null,null,null,null,null,null,null,null,null,null,null,null,null,null,null,null,null,null,null,null,null,null,null,null,null,null,null,null,null,"HPS_250_T"]
[5002481,null,null,null,null,null,null,null,null,null,null,null,null,null,null,null,null,null,null,null,null,null,null,null,null,null,null,null,null,null,null,null,null,null,null,null,null,null,null,null,null,null,null,null,null,null,null,null,null,null,null,null,null,"HPS_250_T"]
[5002482,null,null,null,null,null,null,null,null,null,null,null,null,null,null,null,null,null,null,null,null,null,null,null,null,null,null,null,null,null,null,null,null,null,null,null,null,null,null,null,null,null,null,null,null,null,null,null,null,null,null,null,null,"HPS_250_T"]
[5002483,null,null,null,null,null,null,null,null,null,null,null,null,null,null,null,null,null,null,null,null,null,null,null,null,null,null,null,null,null,null,null,null,null,null,null,null,null,null,null,null,null,null,null,null,null,null,null,null,null,null,null,null,"HPS_250_T"]
[5002484,null,null,null,null,null,null,null,null,null,null,null,null,null,null,null,null,null,null,null,null,null,null,null,null,null,null,null,null,null,null,null,null,null,null,null,null,null,null,null,null,null,null,null,null,null,null,null,null,null,null,null,null,"HPS_250_T"]
[5002485,null,null,null,null,null,null,null,null,null,null,null,null,null,null,null,null,null,null,null,null,null,null,null,null,null,null,null,null,null,null,null,null,null,null,null,null,null,null,null,null,null,null,null,null,null,null,null,null,null,null,null,null,"HPS_250_T"]
[5002486,null,null,null,null,null,null,null,null,null,null,null,null,null,null,null,null,null,null,null,null,null,null,null,null,null,null,null,null,null,null,null,null,null,null,null,null,null,null,null,null,null,null,null,null,null,null,null,null,null,null,null,null,"HPS_250_T"]
[5002487,null,null,null,null,null,null,null,null,null,null,null,null,null,null,null,null,null,null,null,null,null,null,null,null,null,null,null,null,null,null,null,null,null,null,null,null,null,null,null,null,null,null,null,null,null,null,null,null,null,null,null,null,"HPS_250_T"]
[5002488,null,null,null,null,null,null,null,null,null,null,null,null,null,null,null,null,null,null,null,null,null,null,null,null,null,null,null,null,null,null,null,null,null,null,null,null,null,null,null,null,null,null,null,null,null,null,null,null,null,null,null,null,"HPS_250_T"]
[5002489,null,null,null,null,null,null,null,null,null,null,null,null,null,null,null,null,null,null,null,null,null,null,null,null,null,null,null,null,null,null,null,null,null,null,null,null,null,null,null,null,null,null,null,null,null,null,null,null,null,null,null,null,"HPS_250_T"]
[5002490,null,null,null,null,null,null,null,null,null,null,null,null,null,null,null,null,null,null,null,null,null,null,null,null,null,null,null,null,null,null,null,null,null,null,null,null,null,null,null,null,null,null,null,null,null,null,null,null,null,null,null,null,"HPS_250_T"]
[5002491,null,null,null,null,null,null,null,null,null,null,null,null,null,null,null,null,null,null,null,null,null,null,null,null,null,null,null,null,null,null,null,null,null,null,null,null,null,null,null,null,null,null,null,null,null,null,null,null,null,null,null,"R5","HPS_400_T"]
[5002492,null,null,null,null,null,null,null,null,null,null,null,null,null,null,null,null,null,null,null,null,null,null,null,null,null,null,null,null,null,null,null,null,null,null,null,null,null,null,null,null,null,null,null,null,null,null,null,null,null,null,null,"R5","HPS_400_T"]
[5002493,null,null,null,null,null,null,null,null,null,null,null,null,null,null,null,null,null,null,null,null,null,null,null,null,null,null,null,null,null,null,null,null,null,null,null,null,null,null,null,null,null,null,null,null,null,null,null,null,null,null,null,"R6","HPS_400_T"]
[5002494,null,null,null,null,null,null,null,null,null,null,null,null,null,null,null,null,null,null,null,null,null,null,null,null,null,null,null,null,null,null,null,null,null,null,null,null,null,null,null,null,null,null,null,null,null,null,null,null,null,null,null,"R6","HPS_400_T"]
[5002495,null,null,null,null,null,null,null,null,null,null,null,null,null,null,null,null,null,null,null,null,null,null,null,null,null,null,null,null,null,null,null,null,null,null,null,null,null,null,null,null,null,null,null,null,null,null,null,null,null,null,null,null,"HPS_400_T"]
[5002496,null,null,null,null,null,null,null,null,null,null,null,null,null,null,null,null,null,null,null,null,null,null,null,null,null,null,null,null,null,null,null,null,null,null,null,null,null,null,null,null,null,null,null,null,null,null,null,null,null,null,null,"R5","HPS_400_T"]
[5002497,null,null,null,null,null,null,null,null,null,null,null,null,null,null,null,null,null,null,null,null,null,null,null,null,null,null,null,null,null,null,null,null,null,null,null,null,null,null,null,null,null,null,null,null,null,null,null,null,null,null,null,"T1","HPS_400_T"]
[5002498,null,null,null,null,null,null,null,null,null,null,null,null,null,null,null,null,null,null,null,null,null,null,null,null,null,null,null,null,null,null,null,null,null,null,null,null,null,null,null,null,null,null,null,null,null,null,null,null,null,null,null,"R7","HPS_250_T"]
[5002499,null,null,null,null,null,null,null,null,null,null,null,null,null,null,null,null,null,null,null,null,null,null,null,null,null,null,null,null,null,null,null,null,null,null,null,null,null,null,null,null,null,null,null,null,null,null,null,null,null,null,null,"R7","HPS_250_T"]
[5002550,null,null,null,null,null,null,null,null,null,null,null,null,null,null,null,null,null,null,null,null,null,null,null,null,null,null,null,null,null,null,null,null,null,null,null,null,null,null,null,null,null,null,null,null,null,null,null,null,null,null,null,"OTHER","MV_80_E"]
[5002551,null,null,null,null,null,null,null,null,null,null,null,null,null,null,null,null,null,null,null,null,null,null,null,null,null,null,null,null,null,null,null,null,null,null,null,null,null,null,null,null,null,null,null,null,null,null,null,null,null,null,null,null,"MV_80_E"]
[5002552,null,null,null,null,null,null,null,null,null,null,null,null,null,null,null,null,null,null,null,null,null,null,null,null,null,null,null,null,null,null,null,null,null,null,null,null,null,null,null,null,null,null,null,null,null,null,null,null,null,null,null,"T4","MV_80_E"]
[5002553,null,null,null,null,null,null,null,null,null,null,null,null,null,null,null,null,null,null,null,null,null,null,null,null,null,null,null,null,null,null,null,null,null,null,null,null,null,null,null,null,null,null,null,null,null,null,null,null,null,null,null,null,"MV_80_E"]
[5002554,null,null,null,null,null,null,null,null,null,null,null,null,null,null,null,null,null,null,null,null,null,null,null,null,null,null,null,null,null,null,null,null,null,null,null,null,null,null,null,null,null,null,null,null,null,null,null,null,null,null,null,"T4","MV_80_E"]
[5002555,null,null,null,null,null,null,null,null,null,null,null,null,null,null,null,null,null,null,null,null,null,null,null,null,null,null,null,null,null,null,null,null,null,null,null,null,null,null,null,null,null,null,null,null,null,null,null,null,null,null,null,"T4","MV_80_E"]
[5002556,null,null,null,null,null,null,null,null,null,null,null,null,null,null,null,null,null,null,null,null,null,null,null,null,null,null,null,null,null,null,null,null,null,null,null,null,null,null,null,null,null,null,null,null,null,null,null,null,null,null,null,"T4","MV_80_E"]
[5002557,null,null,null,null,null,null,null,null,null,null,null,null,null,null,null,null,null,null,null,null,null,null,null,null,null,null,null,null,null,null,null,null,null,null,null,null,null,null,null,null,null,null,null,null,null,null,null,null,null,null,null,"T4","MV_80_E"]
[5002558,null,null,null,null,null,null,null,null,null,null,null,null,null,null,null,null,null,null,null,null,null,null,null,null,null,null,null,null,null,null,null,null,null,null,null,null,null,null,null,null,null,null,null,null,null,null,null,null,null,null,null,"T4","MV_80_E"]
[5002559,null,null,null,null,null,null,null,null,null,null,null,null,null,null,null,null,null,null,null,null,null,null,null,null,null,null,null,null,null,null,null,null,null,null,null,null,null,null,null,null,null,null,null,null,null,null,null,null,null,null,null,"T3","HPS_150_T"]
[5002560,null,null,null,null,null,null,null,null,null,null,null,null,null,null,null,null,null,null,null,null,null,null,null,null,null,null,null,null,null,null,null,null,null,null,null,null,null,null,null,null,null,null,null,null,null,null,null,null,null,null,null,"T4","MV_80_E"]
[5002561,null,null,null,null,null,null,null,null,null,null,null,null,null,null,null,null,null,null,null,null,null,null,null,null,null,null,null,null,null,null,null,null,null,null,null,null,null,null,null,null,null,null,null,null,null,null,null,null,null,null,null,"T4","MV_80_E"]
[5002562,null,null,null,null,null,null,null,null,null,null,null,null,null,null,null,null,null,null,null,null,null,null,null,null,null,null,null,null,null,null,null,null,null,null,null,null,null,null,null,null,null,null,null,null,null,null,null,null,null,null,null,"T4","MV_80_E"]
[5002563,null,null,null,null,null,null,null,null,null,null,null,null,null,null,null,null,null,null,null,null,null,null,null,null,null,null,null,null,null,null,null,null,null,null,null,null,null,null,null,null,null,null,null,null,null,null,null,null,null,null,null,"T4","MV_80_E"]
[5002564,null,null,null,null,null,null,null,null,null,null,null,null,null,null,null,null,null,null,null,null,null,null,null,null,null,null,null,null,null,null,null,null,null,null,null,null,null,null,null,null,null,null,null,null,null,null,null,null,null,null,null,"T4","MV_80_E"]
[5002565,null,null,null,null,null,null,null,null,null,null,null,null,null,null,null,null,null,null,null,null,null,null,null,null,null,null,null,null,null,null,null,null,null,null,null,null,null,null,null,null,null,null,null,null,null,null,null,null,null,null,null,null,"MV_80_E"]
[5002566,null,null,null,null,null,null,null,null,null,null,null,null,null,null,null,null,null,null,null,null,null,null,null,null,null,null,null,null,null,null,null,null,null,null,null,null,null,null,null,null,null,null,null,null,null,null,null,null,null,null,null,"T4","MV_80_E"]
[5002567,null,null,null,null,null,null,null,null,null,null,null,null,null,null,null,null,null,null,null,null,null,null,null,null,null,null,null,null,null,null,null,null,null,null,null,null,null,null,null,null,null,null,null,null,null,null,null,null,null,null,null,null,"CFL_42"]
[5002568,null,null,null,null,null,null,null,null,null,null,null,null,null,null,null,null,null,null,null,null,null,null,null,null,null,null,null,null,null,null,null,null,null,null,null,null,null,null,null,null,null,null,null,null,null,null,null,null,null,null,null,null,"MV_80_E"]
[5002569,null,null,null,null,null,null,null,null,null,null,null,null,null,null,null,null,null,null,null,null,null,null,null,null,null,null,null,null,null,null,null,null,null,null,null,null,null,null,null,null,null,null,null,null,null,null,null,null,null,null,null,"T4","MV_80_E"]
[5002570,null,null,null,null,null,null,null,null,null,null,null,null,null,null,null,null,null,null,null,null,null,null,null,null,null,null,null,null,null,null,null,null,null,null,null,null,null,null,null,null,null,null,null,null,null,null,null,null,null,null,null,"T4","MV_80_E"]
[5002571,null,null,null,null,null,null,null,null,null,null,null,null,null,null,null,null,null,null,null,null,null,null,null,null,null,null,null,null,null,null,null,null,null,null,null,null,null,null,null,null,null,null,null,null,null,null,null,null,null,null,null,"T4","CFL_42"]
[5002572,null,null,null,null,null,null,null,null,null,null,null,null,null,null,null,null,null,null,null,null,null,null,null,null,null,null,null,null,null,null,null,null,null,null,null,null,null,null,null,null,null,null,null,null,null,null,null,null,null,null,null,"T4","MV_80_E"]
[5002573,null,null,null,null,null,null,null,null,null,null,null,null,null,null,null,null,null,null,null,null,null,null,null,null,null,null,null,null,null,null,null,null,null,null,null,null,null,null,null,null,null,null,null,null,null,null,null,null,null,null,null,null,"CFL_42"]
[5002574,null,null,null,null,null,null,null,null,null,null,null,null,null,null,null,null,null,null,null,null,null,null,null,null,null,null,null,null,null,null,null,null,null,null,null,null,null,null,null,null,null,null,null,null,null,null,null,null,null,null,null,"T4","CFL_42"]
[5002575,null,null,null,null,null,null,null,null,null,null,null,null,null,null,null,null,null,null,null,null,null,null,null,null,null,null,null,null,null,null,null,null,null,null,null,null,null,null,null,null,null,null,null,null,null,null,null,null,null,null,null,"T4","MV_80_E"]
[5002576,null,null,null,null,null,null,null,null,null,null,null,null,null,null,null,null,null,null,null,null,null,null,null,null,null,null,null,null,null,null,null,null,null,null,null,null,null,null,null,null,null,null,null,null,null,null,null,null,null,null,null,"T4","MV_80_E"]
[5002578,null,null,null,null,null,null,null,null,null,null,null,null,null,null,null,null,null,null,null,null,null,null,null,null,null,null,null,null,null,null,null,null,null,null,null,null,null,null,null,null,null,null,null,null,null,null,null,null,null,null,null,null,"MV_80_E"]
[5002580,null,null,null,null,null,null,null,null,null,null,null,null,null,null,null,null,null,null,null,null,null,null,null,null,null,null,null,null,null,null,null,null,null,null,null,null,null,null,null,null,null,null,null,null,null,null,null,null,null,null,null,null,"MV_80_E"]
[5002581,null,null,null,null,null,null,null,null,null,null,null,null,null,null,null,null,null,null,null,null,null,null,null,null,null,null,null,null,null,null,null,null,null,null,null,null,null,null,null,null,null,null,null,null,null,null,null,null,null,null,null,"T4","MV_80_E"]
[5002582,null,null,null,null,null,null,null,null,null,null,null,null,null,null,null,null,null,null,null,null,null,null,null,null,null,null,null,null,null,null,null,null,null,null,null,null,null,null,null,null,null,null,null,null,null,null,null,null,null,null,null,null,"MV_80_E"]
[5002583,null,null,null,null,null,null,null,null,null,null,null,null,null,null,null,null,null,null,null,null,null,null,null,null,null,null,null,null,null,null,null,null,null,null,null,null,null,null,null,null,null,null,null,null,null,null,null,null,null,null,null,"T4","MV_80_E"]
[5002584,null,null,null,null,null,null,null,null,null,null,null,null,null,null,null,null,null,null,null,null,null,null,null,null,null,null,null,null,null,null,null,null,null,null,null,null,null,null,null,null,null,null,null,null,null,null,null,null,null,null,null,null,"CFL_42"]
[5002585,null,null,null,null,null,null,null,null,null,null,null,null,null,null,null,null,null,null,null,null,null,null,null,null,null,null,null,null,null,null,null,null,null,null,null,null,null,null,null,null,null,null,null,null,null,null,null,null,null,null,null,null,"MV_80_E"]
[5002586,null,null,null,null,null,null,null,null,null,null,null,null,null,null,null,null,null,null,null,null,null,null,null,null,null,null,null,null,null,null,null,null,null,null,null,null,null,null,null,null,null,null,null,null,null,null,null,null,null,null,null,"T4","MV_80_E"]
[5002587,null,null,null,null,null,null,null,null,null,null,null,null,null,null,null,null,null,null,null,null,null,null,null,null,null,null,null,null,null,null,null,null,null,null,null,null,null,null,null,null,null,null,null,null,null,null,null,null,null,null,null,"T4","MV_80_E"]
[5002588,null,null,null,null,null,null,null,null,null,null,null,null,null,null,null,null,null,null,null,null,null,null,null,null,null,null,null,null,null,null,null,null,null,null,null,null,null,null,null,null,null,null,null,null,null,null,null,null,null,null,null,"T4","MV_80_E"]
[5002589,null,null,null,null,null,null,null,null,null,null,null,null,null,null,null,null,null,null,null,null,null,null,null,null,null,null,null,null,null,null,null,null,null,null,null,null,null,null,null,null,null,null,null,null,null,null,null,null,null,null,null,"T3","MV_80_E"]
[5002590,null,null,null,null,null,null,null,null,null,null,null,null,null,null,null,null,null,null,null,null,null,null,null,null,null,null,null,null,null,null,null,null,null,null,null,null,null,null,null,null,null,null,null,null,null,null,null,null,null,null,null,"T4","MV_80_E"]
[5002591,null,null,null,null,null,null,null,null,null,null,null,null,null,null,null,null,null,null,null,null,null,null,null,null,null,null,null,null,null,null,null,null,null,null,null,null,null,null,null,null,null,null,null,null,null,null,null,null,null,null,null,"T4","MV_80_E"]
[5002592,null,null,null,null,null,null,null,null,null,null,null,null,null,null,null,null,null,null,null,null,null,null,null,null,null,null,null,null,null,null,null,null,null,null,null,null,null,null,null,null,null,null,null,null,null,null,null,null,null,null,null,"T4","MV_80_E"]
[5002593,null,null,null,null,null,null,null,null,null,null,null,null,null,null,null,null,null,null,null,null,null,null,null,null,null,null,null,null,null,null,null,null,null,null,null,null,null,null,null,null,null,null,null,null,null,null,null,null,null,null,null,"OTHER","MV_80_E"]
[5002594,null,null,null,null,null,null,null,null,null,null,null,null,null,null,null,null,null,null,null,null,null,null,null,null,null,null,null,null,null,null,null,null,null,null,null,null,null,null,null,null,null,null,null,null,null,null,null,null,null,null,null,null,"MV_80_E"]
[5002595,null,null,null,null,null,null,null,null,null,null,null,null,null,null,null,null,null,null,null,null,null,null,null,null,null,null,null,null,null,null,null,null,null,null,null,null,null,null,null,null,null,null,null,null,null,null,null,null,null,null,null,"T4","MV_80_E"]
[5002596,null,null,null,null,null,null,null,null,null,null,null,null,null,null,null,null,null,null,null,null,null,null,null,null,null,null,null,null,null,null,null,null,null,null,null,null,null,null,null,null,null,null,null,null,null,null,null,null,null,null,null,null,"MV_80_E"]
[5002597,null,null,null,null,null,null,null,null,null,null,null,null,null,null,null,null,null,null,null,null,null,null,null,null,null,null,null,null,null,null,null,null,null,null,null,null,null,null,null,null,null,null,null,null,null,null,null,null,null,null,null,"T4","MV_80_E"]
[5002598,null,null,null,null,null,null,null,null,null,null,null,null,null,null,null,null,null,null,null,null,null,null,null,null,null,null,null,null,null,null,null,null,null,null,null,null,null,null,null,null,null,null,null,null,null,null,null,null,null,null,null,"T4","CFL_42"]
[5002599,null,null,null,null,null,null,null,null,null,null,null,null,null,null,null,null,null,null,null,null,null,null,null,null,null,null,null,null,null,null,null,null,null,null,null,null,null,null,null,null,null,null,null,null,null,null,null,null,null,null,null,"T4","MV_80_E"]
[5002600,null,null,null,null,null,null,null,null,null,null,null,null,null,null,null,null,null,null,null,null,null,null,null,null,null,null,null,null,null,null,null,null,null,null,null,null,null,null,null,null,null,null,null,null,null,null,null,null,null,null,null,"T4","MV_80_E"]
[5002601,null,null,null,null,null,null,null,null,null,null,null,null,null,null,null,null,null,null,null,null,null,null,null,null,null,null,null,null,null,null,null,null,null,null,null,null,null,null,null,null,null,null,null,null,null,null,null,null,null,null,null,"T4","MV_80_E"]
[5002602,null,null,null,null,null,null,null,null,null,null,null,null,null,null,null,null,null,null,null,null,null,null,null,null,null,null,null,null,null,null,null,null,null,null,null,null,null,null,null,null,null,null,null,null,null,null,null,null,null,null,null,"T4","HPS_150_T"]
[5002603,null,null,null,null,null,null,null,null,null,null,null,null,null,null,null,null,null,null,null,null,null,null,null,null,null,null,null,null,null,null,null,null,null,null,null,null,null,null,null,null,null,null,null,null,null,null,null,null,null,null,null,"T4","MV_80_E"]
[5002604,null,null,null,null,null,null,null,null,null,null,null,null,null,null,null,null,null,null,null,null,null,null,null,null,null,null,null,null,null,null,null,null,null,null,null,null,null,null,null,null,null,null,null,null,null,null,null,null,null,null,null,"T4","MV_80_E"]
[5002605,null,null,null,null,null,null,null,null,null,null,null,null,null,null,null,null,null,null,null,null,null,null,null,null,null,null,null,null,null,null,null,null,null,null,null,null,null,null,null,null,null,null,null,null,null,null,null,null,null,null,null,"T4","CFL_42"]
[5002606,null,null,null,null,null,null,null,null,null,null,null,null,null,null,null,null,null,null,null,null,null,null,null,null,null,null,null,null,null,null,null,null,null,null,null,null,null,null,null,null,null,null,null,null,null,null,null,null,null,null,null,"T4","MV_80_E"]
[5002607,null,null,null,null,null,null,null,null,null,null,null,null,null,null,null,null,null,null,null,null,null,null,null,null,null,null,null,null,null,null,null,null,null,null,null,null,null,null,null,null,null,null,null,null,null,null,null,null,null,null,null,null,"MV_80_E"]
[5002608,null,null,null,null,null,null,null,null,null,null,null,null,null,null,null,null,null,null,null,null,null,null,null,null,null,null,null,null,null,null,null,null,null,null,null,null,null,null,null,null,null,null,null,null,null,null,null,null,null,null,null,"T4","MV_80_E"]
[5002609,null,null,null,null,null,null,null,null,null,null,null,null,null,null,null,null,null,null,null,null,null,null,null,null,null,null,null,null,null,null,null,null,null,null,null,null,null,null,null,null,null,null,null,null,null,null,null,null,null,null,null,"T4","CFL_42"]
[5002610,null,null,null,null,null,null,null,null,null,null,null,null,null,null,null,null,null,null,null,null,null,null,null,null,null,null,null,null,null,null,null,null,null,null,null,null,null,null,null,null,null,null,null,null,null,null,null,null,null,null,null,null,"MV_80_E"]
[5002611,null,null,null,null,null,null,null,null,null,null,null,null,null,null,null,null,null,null,null,null,null,null,null,null,null,null,null,null,null,null,null,null,null,null,null,null,null,null,null,null,null,null,null,null,null,null,null,null,null,null,null,"T4","CFL_42"]
[5002612,null,null,null,null,null,null,null,null,null,null,null,null,null,null,null,null,null,null,null,null,null,null,null,null,null,null,null,null,null,null,null,null,null,null,null,null,null,null,null,null,null,null,null,null,null,null,null,null,null,null,null,"T4","MV_80_E"]
[5002613,null,null,null,null,null,null,null,null,null,null,null,null,null,null,null,null,null,null,null,null,null,null,null,null,null,null,null,null,null,null,null,null,null,null,null,null,null,null,null,null,null,null,null,null,null,null,null,null,null,null,null,null,"MV_80_E"]
[5002614,null,null,null,null,null,null,null,null,null,null,null,null,null,null,null,null,null,null,null,null,null,null,null,null,null,null,null,null,null,null,null,null,null,null,null,null,null,null,null,null,null,null,null,null,null,null,null,null,null,null,null,"T4","MV_80_E"]
[5002615,null,null,null,null,null,null,null,null,null,null,null,null,null,null,null,null,null,null,null,null,null,null,null,null,null,null,null,null,null,null,null,null,null,null,null,null,null,null,null,null,null,null,null,null,null,null,null,null,null,null,null,"T4","MV_80_E"]
[5002616,null,null,null,null,null,null,null,null,null,null,null,null,null,null,null,null,null,null,null,null,null,null,null,null,null,null,null,null,null,null,null,null,null,null,null,null,null,null,null,null,null,null,null,null,null,null,null,null,null,null,null,"T4","MV_80_E"]
[5002617,null,null,null,null,null,null,null,null,null,null,null,null,null,null,null,null,null,null,null,null,null,null,null,null,null,null,null,null,null,null,null,null,null,null,null,null,null,null,null,null,null,null,null,null,null,null,null,null,null,null,null,"T4","MV_80_E"]
[5002618,null,null,null,null,null,null,null,null,null,null,null,null,null,null,null,null,null,null,null,null,null,null,null,null,null,null,null,null,null,null,null,null,null,null,null,null,null,null,null,null,null,null,null,null,null,null,null,null,null,null,null,"T4","MV_80_E"]
[5002619,null,null,null,null,null,null,null,null,null,null,null,null,null,null,null,null,null,null,null,null,null,null,null,null,null,null,null,null,null,null,null,null,null,null,null,null,null,null,null,null,null,null,null,null,null,null,null,null,null,null,null,"T4","MV_80_E"]
[5002620,null,null,null,null,null,null,null,null,null,null,null,null,null,null,null,null,null,null,null,null,null,null,null,null,null,null,null,null,null,null,null,null,null,null,null,null,null,null,null,null,null,null,null,null,null,null,null,null,null,null,null,"T4","MV_80_E"]
[5002621,null,null,null,null,null,null,null,null,null,null,null,null,null,null,null,null,null,null,null,null,null,null,null,null,null,null,null,null,null,null,null,null,null,null,null,null,null,null,null,null,null,null,null,null,null,null,null,null,null,null,null,"T4","MV_80_E"]
[5002622,null,null,null,null,null,null,null,null,null,null,null,null,null,null,null,null,null,null,null,null,null,null,null,null,null,null,null,null,null,null,null,null,null,null,null,null,null,null,null,null,null,null,null,null,null,null,null,null,null,null,null,null,"MV_80_E"]
[5002623,null,null,null,null,null,null,null,null,null,null,null,null,null,null,null,null,null,null,null,null,null,null,null,null,null,null,null,null,null,null,null,null,null,null,null,null,null,null,null,null,null,null,null,null,null,null,null,null,null,null,null,"T4","MV_80_E"]
[5002624,null,null,null,null,null,null,null,null,null,null,null,null,null,null,null,null,null,null,null,null,null,null,null,null,null,null,null,null,null,null,null,null,null,null,null,null,null,null,null,null,null,null,null,null,null,null,null,null,null,null,null,"T4","MV_80_E"]
[5002625,null,null,null,null,null,null,null,null,null,null,null,null,null,null,null,null,null,null,null,null,null,null,null,null,null,null,null,null,null,null,null,null,null,null,null,null,null,null,null,null,null,null,null,null,null,null,null,null,null,null,null,"T4","CFL_42"]
[5002626,null,null,null,null,null,null,null,null,null,null,null,null,null,null,null,null,null,null,null,null,null,null,null,null,null,null,null,null,null,null,null,null,null,null,null,null,null,null,null,null,null,null,null,null,null,null,null,null,null,null,null,"T4","MV_80_E"]
[5002627,null,null,null,null,null,null,null,null,null,null,null,null,null,null,null,null,null,null,null,null,null,null,null,null,null,null,null,null,null,null,null,null,null,null,null,null,null,null,null,null,null,null,null,null,null,null,null,null,null,null,null,"T3","MV_80_E"]
[5002628,null,null,null,null,null,null,null,null,null,null,null,null,null,null,null,null,null,null,null,null,null,null,null,null,null,null,null,null,null,null,null,null,null,null,null,null,null,null,null,null,null,null,null,null,null,null,null,null,null,null,null,"T3","HPS_250_E"]
[5002629,null,null,null,null,null,null,null,null,null,null,null,null,null,null,null,null,null,null,null,null,null,null,null,null,null,null,null,null,null,null,null,null,null,null,null,null,null,null,null,null,null,null,null,null,null,null,null,null,null,null,null,"T4","MV_80_E"]
[5002630,null,null,null,null,null,null,null,null,null,null,null,null,null,null,null,null,null,null,null,null,null,null,null,null,null,null,null,null,null,null,null,null,null,null,null,null,null,null,null,null,null,null,null,null,null,null,null,null,null,null,null,"T4","MV_80_E"]
[5002631,null,null,null,null,null,null,null,null,null,null,null,null,null,null,null,null,null,null,null,null,null,null,null,null,null,null,null,null,null,null,null,null,null,null,null,null,null,null,null,null,null,null,null,null,null,null,null,null,null,null,null,"T4","MV_80_E"]
[5002632,null,null,null,null,null,null,null,null,null,null,null,null,null,null,null,null,null,null,null,null,null,null,null,null,null,null,null,null,null,null,null,null,null,null,null,null,null,null,null,null,null,null,null,null,null,null,null,null,null,null,null,"T4","CFL_42"]
[5002633,null,null,null,null,null,null,null,null,null,null,null,null,null,null,null,null,null,null,null,null,null,null,null,null,null,null,null,null,null,null,null,null,null,null,null,null,null,null,null,null,null,null,null,null,null,null,null,null,null,null,null,"T4","MV_80_E"]
[5002634,null,null,null,null,null,null,null,null,null,null,null,null,null,null,null,null,null,null,null,null,null,null,null,null,null,null,null,null,null,null,null,null,null,null,null,null,null,null,null,null,null,null,null,null,null,null,null,null,null,null,null,"T4","MV_80_E"]
[5002635,null,null,null,null,null,null,null,null,null,null,null,null,null,null,null,null,null,null,null,null,null,null,null,null,null,null,null,null,null,null,null,null,null,null,null,null,null,null,null,null,null,null,null,null,null,null,null,null,null,null,null,"T4","MV_80_E"]
[5002636,null,null,null,null,null,null,null,null,null,null,null,null,null,null,null,null,null,null,null,null,null,null,null,null,null,null,null,null,null,null,null,null,null,null,null,null,null,null,null,null,null,null,null,null,null,null,null,null,null,null,null,"T4","MV_80_E"]
[5002637,null,null,null,null,null,null,null,null,null,null,null,null,null,null,null,null,null,null,null,null,null,null,null,null,null,null,null,null,null,null,null,null,null,null,null,null,null,null,null,null,null,null,null,null,null,null,null,null,null,null,null,"T4","CFL_42"]
[5002638,null,null,null,null,null,null,null,null,null,null,null,null,null,null,null,null,null,null,null,null,null,null,null,null,null,null,null,null,null,null,null,null,null,null,null,null,null,null,null,null,null,null,null,null,null,null,null,null,null,null,null,"T4","MV_80_E"]
[5002639,null,null,null,null,null,null,null,null,null,null,null,null,null,null,null,null,null,null,null,null,null,null,null,null,null,null,null,null,null,null,null,null,null,null,null,null,null,null,null,null,null,null,null,null,null,null,null,null,null,null,null,null,"MV_80_E"]
[5002640,null,null,null,null,null,null,null,null,null,null,null,null,null,null,null,null,null,null,null,null,null,null,null,null,null,null,null,null,null,null,null,null,null,null,null,null,null,null,null,null,null,null,null,null,null,null,null,null,null,null,null,null,"MV_80_E"]
[5002641,null,null,null,null,null,null,null,null,null,null,null,null,null,null,null,null,null,null,null,null,null,null,null,null,null,null,null,null,null,null,null,null,null,null,null,null,null,null,null,null,null,null,null,null,null,null,null,null,null,null,null,"T4","MV_80_E"]
[5002642,null,null,null,null,null,null,null,null,null,null,null,null,null,null,null,null,null,null,null,null,null,null,null,null,null,null,null,null,null,null,null,null,null,null,null,null,null,null,null,null,null,null,null,null,null,null,null,null,null,null,null,"T4","MV_80_E"]
[5002643,null,null,null,null,null,null,null,null,null,null,null,null,null,null,null,null,null,null,null,null,null,null,null,null,null,null,null,null,null,null,null,null,null,null,null,null,null,null,null,null,null,null,null,null,null,null,null,null,null,null,null,"T4","MV_80_E"]
[5002644,null,null,null,null,null,null,null,null,null,null,null,null,null,null,null,null,null,null,null,null,null,null,null,null,null,null,null,null,null,null,null,null,null,null,null,null,null,null,null,null,null,null,null,null,null,null,null,null,null,null,null,"NA","MV_80_E"]
[5002645,null,null,null,null,null,null,null,null,null,null,null,null,null,null,null,null,null,null,null,null,null,null,null,null,null,null,null,null,null,null,null,null,null,null,null,null,null,null,null,null,null,null,null,null,null,null,null,null,null,null,null,"T4","MV_80_E"]
[5002646,null,null,null,null,null,null,null,null,null,null,null,null,null,null,null,null,null,null,null,null,null,null,null,null,null,null,null,null,null,null,null,null,null,null,null,null,null,null,null,null,null,null,null,null,null,null,null,null,null,null,null,"T4","MV_80_E"]
[5002647,null,null,null,null,null,null,null,null,null,null,null,null,null,null,null,null,null,null,null,null,null,null,null,null,null,null,null,null,null,null,null,null,null,null,null,null,null,null,null,null,null,null,null,null,null,null,null,null,null,null,null,"T4","MV_80_E"]
[5002648,null,null,null,null,null,null,null,null,null,null,null,null,null,null,null,null,null,null,null,null,null,null,null,null,null,null,null,null,null,null,null,null,null,null,null,null,null,null,null,null,null,null,null,null,null,null,null,null,null,null,null,"T4","MV_80_E"]
[5002649,null,null,null,null,null,null,null,null,null,null,null,null,null,null,null,null,null,null,null,null,null,null,null,null,null,null,null,null,null,null,null,null,null,null,null,null,null,null,null,null,null,null,null,null,null,null,null,null,null,null,null,"T4","MV_80_E"]
[5002650,null,null,null,null,null,null,null,null,null,null,null,null,null,null,null,null,null,null,null,null,null,null,null,null,null,null,null,null,null,null,null,null,null,null,null,null,null,null,null,null,null,null,null,null,null,null,null,null,null,null,null,"T4","MV_80_E"]
[5002651,null,null,null,null,null,null,null,null,null,null,null,null,null,null,null,null,null,null,null,null,null,null,null,null,null,null,null,null,null,null,null,null,null,null,null,null,null,null,null,null,null,null,null,null,null,null,null,null,null,null,null,"T4","MV_80_E"]
[5002652,null,null,null,null,null,null,null,null,null,null,null,null,null,null,null,null,null,null,null,null,null,null,null,null,null,null,null,null,null,null,null,null,null,null,null,null,null,null,null,null,null,null,null,null,null,null,null,null,null,null,null,"T4","CFL_42"]
[5002653,null,null,null,null,null,null,null,null,null,null,null,null,null,null,null,null,null,null,null,null,null,null,null,null,null,null,null,null,null,null,null,null,null,null,null,null,null,null,null,null,null,null,null,null,null,null,null,null,null,null,null,"T4","MV_80_E"]
[5002654,null,null,null,null,null,null,null,null,null,null,null,null,null,null,null,null,null,null,null,null,null,null,null,null,null,null,null,null,null,null,null,null,null,null,null,null,null,null,null,null,null,null,null,null,null,null,null,null,null,null,null,"T4","MV_80_E"]
[5002655,null,null,null,null,null,null,null,null,null,null,null,null,null,null,null,null,null,null,null,null,null,null,null,null,null,null,null,null,null,null,null,null,null,null,null,null,null,null,null,null,null,null,null,null,null,null,null,null,null,null,null,"T4","MV_80_E"]
[5002656,null,null,null,null,null,null,null,null,null,null,null,null,null,null,null,null,null,null,null,null,null,null,null,null,null,null,null,null,null,null,null,null,null,null,null,null,null,null,null,null,null,null,null,null,null,null,null,null,null,null,null,"T4","MV_80_E"]
[5002657,null,null,null,null,null,null,null,null,null,null,null,null,null,null,null,null,null,null,null,null,null,null,null,null,null,null,null,null,null,null,null,null,null,null,null,null,null,null,null,null,null,null,null,null,null,null,null,null,null,null,null,"T4","MV_80_E"]
[5002658,null,null,null,null,null,null,null,null,null,null,null,null,null,null,null,null,null,null,null,null,null,null,null,null,null,null,null,null,null,null,null,null,null,null,null,null,null,null,null,null,null,null,null,null,null,null,null,null,null,null,null,null,"MV_80_E"]
[5002659,null,null,null,null,null,null,null,null,null,null,null,null,null,null,null,null,null,null,null,null,null,null,null,null,null,null,null,null,null,null,null,null,null,null,null,null,null,null,null,null,null,null,null,null,null,null,null,null,null,null,null,"T4","MV_80_E"]
[5002660,null,null,null,null,null,null,null,null,null,null,null,null,null,null,null,null,null,null,null,null,null,null,null,null,null,null,null,null,null,null,null,null,null,null,null,null,null,null,null,null,null,null,null,null,null,null,null,null,null,null,null,"T4","CFL_42"]
[5002661,null,null,null,null,null,null,null,null,null,null,null,null,null,null,null,null,null,null,null,null,null,null,null,null,null,null,null,null,null,null,null,null,null,null,null,null,null,null,null,null,null,null,null,null,null,null,null,null,null,null,null,"T4","MV_80_E"]
[5002662,null,null,null,null,null,null,null,null,null,null,null,null,null,null,null,null,null,null,null,null,null,null,null,null,null,null,null,null,null,null,null,null,null,null,null,null,null,null,null,null,null,null,null,null,null,null,null,null,null,null,null,"T4","MV_80_E"]
[5002663,null,null,null,null,null,null,null,null,null,null,null,null,null,null,null,null,null,null,null,null,null,null,null,null,null,null,null,null,null,null,null,null,null,null,null,null,null,null,null,null,null,null,null,null,null,null,null,null,null,null,null,"T4","MV_80_E"]
[5002664,null,null,null,null,null,null,null,null,null,null,null,null,null,null,null,null,null,null,null,null,null,null,null,null,null,null,null,null,null,null,null,null,null,null,null,null,null,null,null,null,null,null,null,null,null,null,null,null,null,null,null,null,"MV_80_E"]
[5002665,null,null,null,null,null,null,null,null,null,null,null,null,null,null,null,null,null,null,null,null,null,null,null,null,null,null,null,null,null,null,null,null,null,null,null,null,null,null,null,null,null,null,null,null,null,null,null,null,null,null,null,"T4","MV_80_E"]
[5002666,null,null,null,null,null,null,null,null,null,null,null,null,null,null,null,null,null,null,null,null,null,null,null,null,null,null,null,null,null,null,null,null,null,null,null,null,null,null,null,null,null,null,null,null,null,null,null,null,null,null,null,"T4","CFL_42"]
[5002667,null,null,null,null,null,null,null,null,null,null,null,null,null,null,null,null,null,null,null,null,null,null,null,null,null,null,null,null,null,null,null,null,null,null,null,null,null,null,null,null,null,null,null,null,null,null,null,null,null,null,null,"T4","MV_80_E"]
[5002668,null,null,null,null,null,null,null,null,null,null,null,null,null,null,null,null,null,null,null,null,null,null,null,null,null,null,null,null,null,null,null,null,null,null,null,null,null,null,null,null,null,null,null,null,null,null,null,null,null,null,null,"T4","MV_80_E"]
[5002669,null,null,null,null,null,null,null,null,null,null,null,null,null,null,null,null,null,null,null,null,null,null,null,null,null,null,null,null,null,null,null,null,null,null,null,null,null,null,null,null,null,null,null,null,null,null,null,null,null,null,null,"T4","MV_80_E"]
[5002670,null,null,null,null,null,null,null,null,null,null,null,null,null,null,null,null,null,null,null,null,null,null,null,null,null,null,null,null,null,null,null,null,null,null,null,null,null,null,null,null,null,null,null,null,null,null,null,null,null,null,null,null,"MV_80_E"]
[5002671,null,null,null,null,null,null,null,null,null,null,null,null,null,null,null,null,null,null,null,null,null,null,null,null,null,null,null,null,null,null,null,null,null,null,null,null,null,null,null,null,null,null,null,null,null,null,null,null,null,null,null,null,"MV_80_E"]
[5002672,null,null,null,null,null,null,null,null,null,null,null,null,null,null,null,null,null,null,null,null,null,null,null,null,null,null,null,null,null,null,null,null,null,null,null,null,null,null,null,null,null,null,null,null,null,null,null,null,null,null,null,null,"MV_80_E"]
[5002673,null,null,null,null,null,null,null,null,null,null,null,null,null,null,null,null,null,null,null,null,null,null,null,null,null,null,null,null,null,null,null,null,null,null,null,null,null,null,null,null,null,null,null,null,null,null,null,null,null,null,null,null,"MV_80_E"]
[5002674,null,null,null,null,null,null,null,null,null,null,null,null,null,null,null,null,null,null,null,null,null,null,null,null,null,null,null,null,null,null,null,null,null,null,null,null,null,null,null,null,null,null,null,null,null,null,null,null,null,null,null,null,"MV_80_E"]
[5002675,null,null,null,null,null,null,null,null,null,null,null,null,null,null,null,null,null,null,null,null,null,null,null,null,null,null,null,null,null,null,null,null,null,null,null,null,null,null,null,null,null,null,null,null,null,null,null,null,null,null,null,"T4","MV_80_E"]
[5002676,null,null,null,null,null,null,null,null,null,null,null,null,null,null,null,null,null,null,null,null,null,null,null,null,null,null,null,null,null,null,null,null,null,null,null,null,null,null,null,null,null,null,null,null,null,null,null,null,null,null,null,"T4","MV_80_E"]
[5002677,null,null,null,null,null,null,null,null,null,null,null,null,null,null,null,null,null,null,null,null,null,null,null,null,null,null,null,null,null,null,null,null,null,null,null,null,null,null,null,null,null,null,null,null,null,null,null,null,null,null,null,null,"MV_80_E"]
[5002678,null,null,null,null,null,null,null,null,null,null,null,null,null,null,null,null,null,null,null,null,null,null,null,null,null,null,null,null,null,null,null,null,null,null,null,null,null,null,null,null,null,null,null,null,null,null,null,null,null,null,null,"T4","MV_80_E"]
[5002679,null,null,null,null,null,null,null,null,null,null,null,null,null,null,null,null,null,null,null,null,null,null,null,null,null,null,null,null,null,null,null,null,null,null,null,null,null,null,null,null,null,null,null,null,null,null,null,null,null,null,null,"T4","MV_80_E"]
[5002680,null,null,null,null,null,null,null,null,null,null,null,null,null,null,null,null,null,null,null,null,null,null,null,null,null,null,null,null,null,null,null,null,null,null,null,null,null,null,null,null,null,null,null,null,null,null,null,null,null,null,null,"T4","MV_80_E"]
[5002681,null,null,null,null,null,null,null,null,null,null,null,null,null,null,null,null,null,null,null,null,null,null,null,null,null,null,null,null,null,null,null,null,null,null,null,null,null,null,null,null,null,null,null,null,null,null,null,null,null,null,null,"T4","CFL_42"]
[5002682,null,null,null,null,null,null,null,null,null,null,null,null,null,null,null,null,null,null,null,null,null,null,null,null,null,null,null,null,null,null,null,null,null,null,null,null,null,null,null,null,null,null,null,null,null,null,null,null,null,null,null,"T4","CFL_42"]
[5002683,null,null,null,null,null,null,null,null,null,null,null,null,null,null,null,null,null,null,null,null,null,null,null,null,null,null,null,null,null,null,null,null,null,null,null,null,null,null,null,null,null,null,null,null,null,null,null,null,null,null,null,null,"MV_80_E"]
[5002684,null,null,null,null,null,null,null,null,null,null,null,null,null,null,null,null,null,null,null,null,null,null,null,null,null,null,null,null,null,null,null,null,null,null,null,null,null,null,null,null,null,null,null,null,null,null,null,null,null,null,null,"T4","MV_80_E"]
[5002685,null,null,null,null,null,null,null,null,null,null,null,null,null,null,null,null,null,null,null,null,null,null,null,null,null,null,null,null,null,null,null,null,null,null,null,null,null,null,null,null,null,null,null,null,null,null,null,null,null,null,null,"T4","MV_80_E"]
[5002686,null,null,null,null,null,null,null,null,null,null,null,null,null,null,null,null,null,null,null,null,null,null,null,null,null,null,null,null,null,null,null,null,null,null,null,null,null,null,null,null,null,null,null,null,null,null,null,null,null,null,null,"T5","MV_80_E"]
[5002687,null,null,null,null,null,null,null,null,null,null,null,null,null,null,null,null,null,null,null,null,null,null,null,null,null,null,null,null,null,null,null,null,null,null,null,null,null,null,null,null,null,null,null,null,null,null,null,null,null,null,null,"T4","MV_80_E"]
[5002688,null,null,null,null,null,null,null,null,null,null,null,null,null,null,null,null,null,null,null,null,null,null,null,null,null,null,null,null,null,null,null,null,null,null,null,null,null,null,null,null,null,null,null,null,null,null,null,null,null,null,null,"T4","MV_80_E"]
[5002689,null,null,null,null,null,null,null,null,null,null,null,null,null,null,null,null,null,null,null,null,null,null,null,null,null,null,null,null,null,null,null,null,null,null,null,null,null,null,null,null,null,null,null,null,null,null,null,null,null,null,null,"T4","MV_80_E"]
[5002690,null,null,null,null,null,null,null,null,null,null,null,null,null,null,null,null,null,null,null,null,null,null,null,null,null,null,null,null,null,null,null,null,null,null,null,null,null,null,null,null,null,null,null,null,null,null,null,null,null,null,null,"T4","MV_80_E"]
[5002691,null,null,null,null,null,null,null,null,null,null,null,null,null,null,null,null,null,null,null,null,null,null,null,null,null,null,null,null,null,null,null,null,null,null,null,null,null,null,null,null,null,null,null,null,null,null,null,null,null,null,null,"T4","MV_80_E"]
[5002692,null,null,null,null,null,null,null,null,null,null,null,null,null,null,null,null,null,null,null,null,null,null,null,null,null,null,null,null,null,null,null,null,null,null,null,null,null,null,null,null,null,null,null,null,null,null,null,null,null,null,null,"T4","MV_80_E"]
[5002693,null,null,null,null,null,null,null,null,null,null,null,null,null,null,null,null,null,null,null,null,null,null,null,null,null,null,null,null,null,null,null,null,null,null,null,null,null,null,null,null,null,null,null,null,null,null,null,null,null,null,null,"T4","MV_80_E"]
[5002694,null,null,null,null,null,null,null,null,null,null,null,null,null,null,null,null,null,null,null,null,null,null,null,null,null,null,null,null,null,null,null,null,null,null,null,null,null,null,null,null,null,null,null,null,null,null,null,null,null,null,null,"T4","MV_80_E"]
[5002695,null,null,null,null,null,null,null,null,null,null,null,null,null,null,null,null,null,null,null,null,null,null,null,null,null,null,null,null,null,null,null,null,null,null,null,null,null,null,null,null,null,null,null,null,null,null,null,null,null,null,null,"T5","MV_80_E"]
[5002696,null,null,null,null,null,null,null,null,null,null,null,null,null,null,null,null,null,null,null,null,null,null,null,null,null,null,null,null,null,null,null,null,null,null,null,null,null,null,null,null,null,null,null,null,null,null,null,null,null,null,null,"T4","MV_80_E"]
[5002697,null,null,null,null,null,null,null,null,null,null,null,null,null,null,null,null,null,null,null,null,null,null,null,null,null,null,null,null,null,null,null,null,null,null,null,null,null,null,null,null,null,null,null,null,null,null,null,null,null,null,null,"T4","MV_80_E"]
[5002698,null,null,null,null,null,null,null,null,null,null,null,null,null,null,null,null,null,null,null,null,null,null,null,null,null,null,null,null,null,null,null,null,null,null,null,null,null,null,null,null,null,null,null,null,null,null,null,null,null,null,null,"T4","MV_80_E"]
[5002699,null,null,null,null,null,null,null,null,null,null,null,null,null,null,null,null,null,null,null,null,null,null,null,null,null,null,null,null,null,null,null,null,null,null,null,null,null,null,null,null,null,null,null,null,null,null,null,null,null,null,null,"T4","MV_80_E"]
[5002700,null,null,null,null,null,null,null,null,null,null,null,null,null,null,null,null,null,null,null,null,null,null,null,null,null,null,null,null,null,null,null,null,null,null,null,null,null,null,null,null,null,null,null,null,null,null,null,null,null,null,null,"T4","MV_80_E"]
[5002701,null,null,null,null,null,null,null,null,null,null,null,null,null,null,null,null,null,null,null,null,null,null,null,null,null,null,null,null,null,null,null,null,null,null,null,null,null,null,null,null,null,null,null,null,null,null,null,null,null,null,null,"T4","MV_80_E"]
[5002702,null,null,null,null,null,null,null,null,null,null,null,null,null,null,null,null,null,null,null,null,null,null,null,null,null,null,null,null,null,null,null,null,null,null,null,null,null,null,null,null,null,null,null,null,null,null,null,null,null,null,null,"T4","MV_80_E"]
[5002703,null,null,null,null,null,null,null,null,null,null,null,null,null,null,null,null,null,null,null,null,null,null,null,null,null,null,null,null,null,null,null,null,null,null,null,null,null,null,null,null,null,null,null,null,null,null,null,null,null,null,null,"T4","MV_80_E"]
[5002704,null,null,null,null,null,null,null,null,null,null,null,null,null,null,null,null,null,null,null,null,null,null,null,null,null,null,null,null,null,null,null,null,null,null,null,null,null,null,null,null,null,null,null,null,null,null,null,null,null,null,null,"T4","MV_80_E"]
[5002705,null,null,null,null,null,null,null,null,null,null,null,null,null,null,null,null,null,null,null,null,null,null,null,null,null,null,null,null,null,null,null,null,null,null,null,null,null,null,null,null,null,null,null,null,null,null,null,null,null,null,null,"T4","MV_80_E"]
[5002706,null,null,null,null,null,null,null,null,null,null,null,null,null,null,null,null,null,null,null,null,null,null,null,null,null,null,null,null,null,null,null,null,null,null,null,null,null,null,null,null,null,null,null,null,null,null,null,null,null,null,null,"T4","MV_80_E"]
[5002707,null,null,null,null,null,null,null,null,null,null,null,null,null,null,null,null,null,null,null,null,null,null,null,null,null,null,null,null,null,null,null,null,null,null,null,null,null,null,null,null,null,null,null,null,null,null,null,null,null,null,null,"T4","MV_80_E"]
[5002708,null,null,null,null,null,null,null,null,null,null,null,null,null,null,null,null,null,null,null,null,null,null,null,null,null,null,null,null,null,null,null,null,null,null,null,null,null,null,null,null,null,null,null,null,null,null,null,null,null,null,null,"T4","MV_80_E"]
[5002709,null,null,null,null,null,null,null,null,null,null,null,null,null,null,null,null,null,null,null,null,null,null,null,null,null,null,null,null,null,null,null,null,null,null,null,null,null,null,null,null,null,null,null,null,null,null,null,null,null,null,null,"T4","MV_80_E"]
[5002710,null,null,null,null,null,null,null,null,null,null,null,null,null,null,null,null,null,null,null,null,null,null,null,null,null,null,null,null,null,null,null,null,null,null,null,null,null,null,null,null,null,null,null,null,null,null,null,null,null,null,null,"T4","MV_80_E"]
[5002711,null,null,null,null,null,null,null,null,null,null,null,null,null,null,null,null,null,null,null,null,null,null,null,null,null,null,null,null,null,null,null,null,null,null,null,null,null,null,null,null,null,null,null,null,null,null,null,null,null,null,null,"T4","MV_80_E"]
[5002712,null,null,null,null,null,null,null,null,null,null,null,null,null,null,null,null,null,null,null,null,null,null,null,null,null,null,null,null,null,null,null,null,null,null,null,null,null,null,null,null,null,null,null,null,null,null,null,null,null,null,null,"T4","MV_80_E"]
[5002714,null,null,null,null,null,null,null,null,null,null,null,null,null,null,null,null,null,null,null,null,null,null,null,null,null,null,null,null,null,null,null,null,null,null,null,null,null,null,null,null,null,null,null,null,null,null,null,null,null,null,null,"T4","MV_80_E"]
[5002715,null,null,null,null,null,null,null,null,null,null,null,null,null,null,null,null,null,null,null,null,null,null,null,null,null,null,null,null,null,null,null,null,null,null,null,null,null,null,null,null,null,null,null,null,null,null,null,null,null,null,null,"T4","MV_80_E"]
[5002717,null,null,null,null,null,null,null,null,null,null,null,null,null,null,null,null,null,null,null,null,null,null,null,null,null,null,null,null,null,null,null,null,null,null,null,null,null,null,null,null,null,null,null,null,null,null,null,null,null,null,null,"T4","MV_80_E"]
[5002750,null,null,null,null,null,null,null,null,null,null,null,null,null,null,null,null,null,null,null,null,null,null,null,null,null,null,null,null,null,null,null,null,null,null,null,null,null,null,null,null,null,null,null,null,null,null,null,null,null,null,null,"T4","MV_80_E"]
[5002776,null,null,null,null,null,null,null,null,null,null,null,null,null,null,null,null,null,null,null,null,null,null,null,null,null,null,null,null,null,null,null,null,null,null,null,null,null,null,null,null,null,null,null,null,null,null,null,null,null,null,null,"T3","MV_80_E"]
[5002978,null,null,null,null,null,null,null,null,null,null,null,null,null,null,null,null,null,null,null,null,null,null,null,null,null,null,null,null,null,null,null,null,null,null,null,null,null,null,null,null,null,null,null,null,null,null,null,null,null,null,null,null,"MV_80_E"]
[5003029,null,null,null,null,null,null,null,null,null,null,null,null,null,null,null,null,null,null,null,null,null,null,null,null,null,null,null,null,null,null,null,null,null,null,null,null,null,null,null,null,null,null,null,null,null,null,null,null,null,null,null,null,"MV_80_E"]
[5003063,null,null,null,null,null,null,null,null,null,null,null,null,null,null,null,null,null,null,null,null,null,null,null,null,null,null,null,null,null,null,null,null,null,null,null,null,null,null,null,null,null,null,null,null,null,null,null,null,null,null,null,null,"MV_80_E"]
[5003085,null,null,null,null,null,null,null,null,null,null,null,null,null,null,null,null,null,null,null,null,null,null,null,null,null,null,null,null,null,null,null,null,null,null,null,null,null,null,null,null,null,null,null,null,null,null,null,null,null,null,null,null,"MV_80_E"]
[5003144,null,null,null,null,null,null,null,null,null,null,null,null,null,null,null,null,null,null,null,null,null,null,null,null,null,null,null,null,null,null,null,null,null,null,null,null,null,null,null,null,null,null,null,null,null,null,null,null,null,null,null,null,"MV_80_E"]
[5003178,null,null,null,null,null,null,null,null,null,null,null,null,null,null,null,null,null,null,null,null,null,null,null,null,null,null,null,null,null,null,null,null,null,null,null,null,null,null,null,null,null,null,null,null,null,null,null,null,null,null,null,null,"CFL_42"]
[5003227,null,null,null,null,null,null,null,null,null,null,null,null,null,null,null,null,null,null,null,null,null,null,null,null,null,null,null,null,null,null,null,null,null,null,null,null,null,null,null,null,null,null,null,null,null,null,null,null,null,null,null,null,"MV_80_E"]
[5015878,null,null,null,null,null,null,null,null,null,null,null,null,null,null,null,null,null,null,null,null,null,null,null,null,null,null,null,null,null,null,null,null,null,null,null,null,null,null,null,null,null,null,null,null,null,null,null,null,null,null,null,"T4","CFL_42"]
[5015911,null,null,null,null,null,null,null,null,null,null,null,null,null,null,null,null,null,null,null,null,null,null,null,null,null,null,null,null,null,null,null,null,null,null,null,null,null,null,null,null,null,null,null,null,null,null,null,null,null,null,null,"T4","CFL_42"]
[5015955,null,null,null,null,null,null,null,null,null,null,null,null,null,null,null,null,null,null,null,null,null,null,null,null,null,null,null,null,null,null,null,null,null,null,null,null,null,null,null,null,null,null,null,null,null,null,null,null,null,null,null,"T4","CFL_42"]
[5016003,null,null,null,null,null,null,null,null,null,null,null,null,null,null,null,null,null,null,null,null,null,null,null,null,null,null,null,null,null,null,null,null,null,null,null,null,null,null,null,null,null,null,null,null,null,null,null,null,null,null,null,null,"MV_80_E"]
[5016088,null,null,null,null,null,null,null,null,null,null,null,null,null,null,null,null,null,null,null,null,null,null,null,null,null,null,null,null,null,null,null,null,null,null,null,null,null,null,null,null,null,null,null,null,null,null,null,null,null,null,null,null,"CFL_42"]
[5016138,null,null,null,null,null,null,null,null,null,null,null,null,null,null,null,null,null,null,null,null,null,null,null,null,null,null,null,null,null,null,null,null,null,null,null,null,null,null,null,null,null,null,null,null,null,null,null,null,null,null,null,"T4","MV_80_E"]
[5016171,null,null,null,null,null,null,null,null,null,null,null,null,null,null,null,null,null,null,null,null,null,null,null,null,null,null,null,null,null,null,null,null,null,null,null,null,null,null,null,null,null,null,null,null,null,null,null,null,null,null,null,"T1","HPS_250_T"]
[5016220,null,null,null,null,null,null,null,null,null,null,null,null,null,null,null,null,null,null,null,null,null,null,null,null,null,null,null,null,null,null,null,null,null,null,null,null,null,null,null,null,null,null,null,null,null,null,null,null,null,null,null,null,"HPS_250_T"]
[5016253,null,null,null,null,null,null,null,null,null,null,null,null,null,null,null,null,null,null,null,null,null,null,null,null,null,null,null,null,null,null,null,null,null,null,null,null,null,null,null,null,null,null,null,null,null,null,null,null,null,null,null,null,"HPS_70_E"]
[5020628,null,null,null,null,null,null,null,null,null,null,null,null,null,null,null,null,null,null,null,null,null,null,null,null,null,null,null,null,null,null,null,null,null,null,null,null,null,null,null,null,null,null,null,null,null,null,null,null,null,null,null,"T5","HPS_250_T"]
[5020768,null,null,null,null,null,null,null,null,null,null,null,null,null,null,null,null,null,null,null,null,null,null,null,null,null,null,null,null,null,null,null,null,null,null,null,null,null,null,null,null,null,null,null,null,null,null,null,null,null,null,null,"R4","MV_80_E"]
[5020801,null,null,null,null,null,null,null,null,null,null,null,null,null,null,null,null,null,null,null,null,null,null,null,null,null,null,null,null,null,null,null,null,null,null,null,null,null,null,null,null,null,null,null,null,null,null,null,null,null,null,null,"R4","MV_80_E"]
[5020888,null,null,null,null,null,null,null,null,null,null,null,null,null,null,null,null,null,null,null,null,null,null,null,null,null,null,null,null,null,null,null,null,null,null,null,null,null,null,null,null,null,null,null,null,null,null,null,null,null,null,null,null,"CFL_42"]
[5020928,null,null,null,null,null,null,null,null,null,null,null,null,null,null,null,null,null,null,null,null,null,null,null,null,null,null,null,null,null,null,null,null,null,null,null,null,null,null,null,null,null,null,null,null,null,null,null,null,null,null,null,"T4","MV_80_E"]
[5020983,null,null,null,null,null,null,null,null,null,null,null,null,null,null,null,null,null,null,null,null,null,null,null,null,null,null,null,null,null,null,null,null,null,null,null,null,null,null,null,null,null,null,null,null,null,null,null,null,null,null,null,"R4","MV_80_E"]
[5021023,null,null,null,null,null,null,null,null,null,null,null,null,null,null,null,null,null,null,null,null,null,null,null,null,null,null,null,null,null,null,null,null,null,null,null,null,null,null,null,null,null,null,null,null,null,null,null,null,null,null,null,null,"HPS_150_T"]
[5023042,null,null,null,null,null,null,null,null,null,null,null,null,null,null,null,null,null,null,null,null,null,null,null,null,null,null,null,null,null,null,null,null,null,null,null,null,null,null,null,null,null,null,null,null,null,null,null,null,null,null,null,"R4","HPS_150_T"]
[5023419,null,null,null,null,null,null,null,null,null,null,null,null,null,null,null,null,null,null,null,null,null,null,null,null,null,null,null,null,null,null,null,null,null,null,null,null,null,null,null,null,null,null,null,null,null,null,null,null,null,null,null,"T1","HPS_150_T"]
[5023478,null,null,null,null,null,null,null,null,null,null,null,null,null,null,null,null,null,null,null,null,null,null,null,null,null,null,null,null,null,null,null,null,null,null,null,null,null,null,null,null,null,null,null,null,null,null,null,null,null,null,null,"T4","MV_80_E"]
[5023515,null,null,null,null,null,null,null,null,null,null,null,null,null,null,null,null,null,null,null,null,null,null,null,null,null,null,null,null,null,null,null,null,null,null,null,null,null,null,null,null,null,null,null,null,null,null,null,null,null,null,null,"T4","MV_80_E"]
[5023600,null,null,null,null,null,null,null,null,null,null,null,null,null,null,null,null,null,null,null,null,null,null,null,null,null,null,null,null,null,null,null,null,null,null,null,null,null,null,null,null,null,null,null,null,null,null,null,null,null,null,null,"T4","CFL_42"]
[5023836,null,null,null,null,null,null,null,null,null,null,null,null,null,null,null,null,null,null,null,null,null,null,null,null,null,null,null,null,null,null,null,null,null,null,null,null,null,null,null,null,null,null,null,null,null,null,null,null,null,null,null,"R4","CFL_42"]
[5023876,null,null,null,null,null,null,null,null,null,null,null,null,null,null,null,null,null,null,null,null,null,null,null,null,null,null,null,null,null,null,null,null,null,null,null,null,null,null,null,null,null,null,null,null,null,null,null,null,null,null,null,"T4","MV_80_E"]
[5025565,null,null,null,null,null,null,null,null,null,null,null,null,null,null,null,null,null,null,null,null,null,null,null,null,null,null,null,null,null,null,null,null,null,null,null,null,null,null,null,null,null,null,null,null,null,null,null,null,null,null,null,"NULL","MH_250_T"]
[5025673,null,null,null,null,null,null,null,null,null,null,null,null,null,null,null,null,null,null,null,null,null,null,null,null,null,null,null,null,null,null,null,null,null,null,null,null,null,null,null,null,null,null,null,null,null,null,null,null,null,null,null,null,"MV_80_E"]
[5025868,null,null,null,null,null,null,null,null,null,null,null,null,null,null,null,null,null,null,null,null,null,null,null,null,null,null,null,null,null,null,null,null,null,null,null,null,null,null,null,null,null,null,null,null,null,null,null,null,null,null,null,null,"MV_80_E"]
[5025926,null,null,null,null,null,null,null,null,null,null,null,null,null,null,null,null,null,null,null,null,null,null,null,null,null,null,null,null,null,null,null,null,null,null,null,null,null,null,null,null,null,null,null,null,null,null,null,null,null,null,null,null,"MV_80_E"]
[5025961,null,null,null,null,null,null,null,null,null,null,null,null,null,null,null,null,null,null,null,null,null,null,null,null,null,null,null,null,null,null,null,null,null,null,null,null,null,null,null,null,null,null,null,null,null,null,null,null,null,null,null,"T4","MV_80_E"]
[5026013,null,null,null,null,null,null,null,null,null,null,null,null,null,null,null,null,null,null,null,null,null,null,null,null,null,null,null,null,null,null,null,null,null,null,null,null,null,null,null,null,null,null,null,null,null,null,null,null,null,null,null,null,"MV_80_E"]
[5026047,null,null,null,null,null,null,null,null,null,null,null,null,null,null,null,null,null,null,null,null,null,null,null,null,null,null,null,null,null,null,null,null,null,null,null,null,null,null,null,null,null,null,null,null,null,null,null,null,null,null,null,null,"MV_80_E"]
[5026465,null,null,null,null,null,null,null,null,null,null,null,null,null,null,null,null,null,null,null,null,null,null,null,null,null,null,null,null,null,null,null,null,null,null,null,null,null,null,null,null,null,null,null,null,null,null,null,null,null,null,null,"T4","MV_80_E"]
[5027003,null,null,null,null,null,null,null,null,null,null,null,null,null,null,null,null,null,null,null,null,null,null,null,null,null,null,null,null,null,null,null,null,null,null,null,null,null,null,null,null,null,null,null,null,null,null,null,null,null,null,null,null,"HPS_400_T"]
[5027066,null,null,null,null,null,null,null,null,null,null,null,null,null,null,null,null,null,null,null,null,null,null,null,null,null,null,null,null,null,null,null,null,null,null,null,null,null,null,null,null,null,null,null,null,null,null,null,null,null,null,null,null,"HPS_250_T"]
[5027159,null,null,null,null,null,null,null,null,null,null,null,null,null,null,null,null,null,null,null,null,null,null,null,null,null,null,null,null,null,null,null,null,null,null,null,null,null,null,null,null,null,null,null,null,null,null,null,null,null,null,null,"T4","MV_80_E"]
[5027212,null,null,null,null,null,null,null,null,null,null,null,null,null,null,null,null,null,null,null,null,null,null,null,null,null,null,null,null,null,null,null,null,null,null,null,null,null,null,null,null,null,null,null,null,null,null,null,null,null,null,null,"T4","MV_80_E"]
[5027262,null,null,null,null,null,null,null,null,null,null,null,null,null,null,null,null,null,null,null,null,null,null,null,null,null,null,null,null,null,null,null,null,null,null,null,null,null,null,null,null,null,null,null,null,null,null,null,null,null,null,null,"T4","HPS_250_T"]
[5027327,null,null,null,null,null,null,null,null,null,null,null,null,null,null,null,null,null,null,null,null,null,null,null,null,null,null,null,null,null,null,null,null,null,null,null,null,null,null,null,null,null,null,null,null,null,null,null,null,null,null,null,null,"HPS_400_T"]
[5027385,null,null,null,null,null,null,null,null,null,null,null,null,null,null,null,null,null,null,null,null,null,null,null,null,null,null,null,null,null,null,null,null,null,null,null,null,null,null,null,null,null,null,null,null,null,null,null,null,null,null,null,null,"HPS_250_T"]
[5028690,null,null,null,null,null,null,null,null,null,null,null,null,null,null,null,null,null,null,null,null,null,null,null,null,null,null,null,null,null,null,null,null,null,null,null,null,null,null,null,null,null,null,null,null,null,null,null,null,null,null,null,"OTHER","MV_80_E"]
[5028750,null,null,null,null,null,null,null,null,null,null,null,null,null,null,null,null,null,null,null,null,null,null,null,null,null,null,null,null,null,null,null,null,null,null,null,null,null,null,null,null,null,null,null,null,null,null,null,null,null,null,null,"R4","CFL_42"]
[5028797,null,null,null,null,null,null,null,null,null,null,null,null,null,null,null,null,null,null,null,null,null,null,null,null,null,null,null,null,null,null,null,null,null,null,null,null,null,null,null,null,null,null,null,null,null,null,null,null,null,null,null,null,"MV_80_E"]
[5028862,null,null,null,null,null,null,null,null,null,null,null,null,null,null,null,null,null,null,null,null,null,null,null,null,null,null,null,null,null,null,null,null,null,null,null,null,null,null,null,null,null,null,null,null,null,null,null,null,null,null,null,"T4","MV_80_E"]
[5031681,null,null,null,null,null,null,null,null,null,null,null,null,null,null,null,null,null,null,null,null,null,null,null,null,null,null,null,null,null,null,null,null,null,null,null,null,null,null,null,null,null,null,null,null,null,null,null,null,null,null,null,"T4","MV_80_E"]
[5031692,null,null,null,null,null,null,null,null,null,null,null,null,null,null,null,null,null,null,null,null,null,null,null,null,null,null,null,null,null,null,null,null,null,null,null,null,null,null,null,null,null,null,null,null,null,null,null,null,null,null,null,"T4","MV_80_E"]
[5031762,null,null,null,null,null,null,null,null,null,null,null,null,null,null,null,null,null,null,null,null,null,null,null,null,null,null,null,null,null,null,null,null,null,null,null,null,null,null,null,null,null,null,null,null,null,null,null,null,null,null,null,"T4","MV_80_E"]
[5031832,null,null,null,null,null,null,null,null,null,null,null,null,null,null,null,null,null,null,null,null,null,null,null,null,null,null,null,null,null,null,null,null,null,null,null,null,null,null,null,null,null,null,null,null,null,null,null,null,null,null,null,"T4","MV_80_E"]
[5033701,null,null,null,null,null,null,null,null,null,null,null,null,null,null,null,null,null,null,null,null,null,null,null,null,null,null,null,null,null,null,null,null,null,null,null,null,null,null,null,null,null,null,null,null,null,null,null,null,null,null,null,"T4","MV_80_E"]
[5033734,null,null,null,null,null,null,null,null,null,null,null,null,null,null,null,null,null,null,null,null,null,null,null,null,null,null,null,null,null,null,null,null,null,null,null,null,null,null,null,null,null,null,null,null,null,null,null,null,null,null,null,"T4","MV_80_E"]
[5033824,null,null,null,null,null,null,null,null,null,null,null,null,null,null,null,null,null,null,null,null,null,null,null,null,null,null,null,null,null,null,null,null,null,null,null,null,null,null,null,null,null,null,null,null,null,null,null,null,null,null,null,"T1","HPS_150_E"]
[5033853,null,null,null,null,null,null,null,null,null,null,null,null,null,null,null,null,null,null,null,null,null,null,null,null,null,null,null,null,null,null,null,null,null,null,null,null,null,null,null,null,null,null,null,null,null,null,null,null,null,null,null,"T4","CFL_42"]
[5033912,null,null,null,null,null,null,null,null,null,null,null,null,null,null,null,null,null,null,null,null,null,null,null,null,null,null,null,null,null,null,null,null,null,null,null,null,null,null,null,null,null,null,null,null,null,null,null,null,null,null,null,null,"MV_80_E"]
[5033949,null,null,null,null,null,null,null,null,null,null,null,null,null,null,null,null,null,null,null,null,null,null,null,null,null,null,null,null,null,null,null,null,null,null,null,null,null,null,null,null,null,null,null,null,null,null,null,null,null,null,null,"T4","MV_80_E"]
[5033999,null,null,null,null,null,null,null,null,null,null,null,null,null,null,null,null,null,null,null,null,null,null,null,null,null,null,null,null,null,null,null,null,null,null,null,null,null,null,null,null,null,null,null,null,null,null,null,null,null,null,null,"T4","HPS_150_T"]
[5034245,null,null,null,null,null,null,null,null,null,null,null,null,null,null,null,null,null,null,null,null,null,null,null,null,null,null,null,null,null,null,null,null,null,null,null,null,null,null,null,null,null,null,null,null,null,null,null,null,null,null,null,"T1","HPS_150_T"]
[5034282,null,null,null,null,null,null,null,null,null,null,null,null,null,null,null,null,null,null,null,null,null,null,null,null,null,null,null,null,null,null,null,null,null,null,null,null,null,null,null,null,null,null,null,null,null,null,null,null,null,null,null,null,"HPS_250_T"]
[5034332,null,null,null,null,null,null,null,null,null,null,null,null,null,null,null,null,null,null,null,null,null,null,null,null,null,null,null,null,null,null,null,null,null,null,null,null,null,null,null,null,null,null,null,null,null,null,null,null,null,null,null,null,"CFL_42"]
[5034365,null,null,null,null,null,null,null,null,null,null,null,null,null,null,null,null,null,null,null,null,null,null,null,null,null,null,null,null,null,null,null,null,null,null,null,null,null,null,null,null,null,null,null,null,null,null,null,null,null,null,null,null,"CFL_42"]
[5034416,null,null,null,null,null,null,null,null,null,null,null,null,null,null,null,null,null,null,null,null,null,null,null,null,null,null,null,null,null,null,null,null,null,null,null,null,null,null,null,null,null,null,null,null,null,null,null,null,null,null,null,null,"MV_80_E"]
[5034502,null,null,null,null,null,null,null,null,null,null,null,null,null,null,null,null,null,null,null,null,null,null,null,null,null,null,null,null,null,null,null,null,null,null,null,null,null,null,null,null,null,null,null,null,null,null,null,null,null,null,null,"T4","MV_80_E"]
[5034535,null,null,null,null,null,null,null,null,null,null,null,null,null,null,null,null,null,null,null,null,null,null,null,null,null,null,null,null,null,null,null,null,null,null,null,null,null,null,null,null,null,null,null,null,null,null,null,null,null,null,null,"T4","MV_80_E"]
[5034591,null,null,null,null,null,null,null,null,null,null,null,null,null,null,null,null,null,null,null,null,null,null,null,null,null,null,null,null,null,null,null,null,null,null,null,null,null,null,null,null,null,null,null,null,null,null,null,null,null,null,null,null,"MV_80_E"]
[5034620,null,null,null,null,null,null,null,null,null,null,null,null,null,null,null,null,null,null,null,null,null,null,null,null,null,null,null,null,null,null,null,null,null,null,null,null,null,null,null,null,null,null,null,null,null,null,null,null,null,null,null,"T4","MV_80_E"]
[5034669,null,null,null,null,null,null,null,null,null,null,null,null,null,null,null,null,null,null,null,null,null,null,null,null,null,null,null,null,null,null,null,null,null,null,null,null,null,null,null,null,null,null,null,null,null,null,null,null,null,null,null,"T3","MV_80_E"]
[5034704,null,null,null,null,null,null,null,null,null,null,null,null,null,null,null,null,null,null,null,null,null,null,null,null,null,null,null,null,null,null,null,null,null,null,null,null,null,null,null,null,null,null,null,null,null,null,null,null,null,null,null,null,"HPS_250_T"]
[5034794,null,null,null,null,null,null,null,null,null,null,null,null,null,null,null,null,null,null,null,null,null,null,null,null,null,null,null,null,null,null,null,null,null,null,null,null,null,null,null,null,null,null,null,null,null,null,null,null,null,null,null,"T1","MV_400_E"]
[5034853,null,null,null,null,null,null,null,null,null,null,null,null,null,null,null,null,null,null,null,null,null,null,null,null,null,null,null,null,null,null,null,null,null,null,null,null,null,null,null,null,null,null,null,null,null,null,null,null,null,null,null,"T4","MV_80_E"]
[5034905,null,null,null,null,null,null,null,null,null,null,null,null,null,null,null,null,null,null,null,null,null,null,null,null,null,null,null,null,null,null,null,null,null,null,null,null,null,null,null,null,null,null,null,null,null,null,null,null,null,null,null,"R4","CFL_42"]
[5034964,null,null,null,null,null,null,null,null,null,null,null,null,null,null,null,null,null,null,null,null,null,null,null,null,null,null,null,null,null,null,null,null,null,null,null,null,null,null,null,null,null,null,null,null,null,null,null,null,null,null,null,"T4","MV_80_E"]
[5034997,null,null,null,null,null,null,null,null,null,null,null,null,null,null,null,null,null,null,null,null,null,null,null,null,null,null,null,null,null,null,null,null,null,null,null,null,null,null,null,null,null,null,null,null,null,null,null,null,null,null,null,"T5","MV_80_E"]
[5035081,null,null,null,null,null,null,null,null,null,null,null,null,null,null,null,null,null,null,null,null,null,null,null,null,null,null,null,null,null,null,null,null,null,null,null,null,null,null,null,null,null,null,null,null,null,null,null,null,null,null,null,"T4","MV_80_E"]
[5035130,null,null,null,null,null,null,null,null,null,null,null,null,null,null,null,null,null,null,null,null,null,null,null,null,null,null,null,null,null,null,null,null,null,null,null,null,null,null,null,null,null,null,null,null,null,null,null,null,null,null,null,"T4","MV_80_E"]
[5035503,null,null,null,null,null,null,null,null,null,null,null,null,null,null,null,null,null,null,null,null,null,null,null,null,null,null,null,null,null,null,null,null,null,null,null,null,null,null,null,null,null,null,null,null,null,null,null,null,null,null,null,null,"HPS_150_T"]
[5035574,null,null,null,null,null,null,null,null,null,null,null,null,null,null,null,null,null,null,null,null,null,null,null,null,null,null,null,null,null,null,null,null,null,null,null,null,null,null,null,null,null,null,null,null,null,null,null,null,null,null,null,null,"MV_80_E"]
[5035587,null,null,null,null,null,null,null,null,null,null,null,null,null,null,null,null,null,null,null,null,null,null,null,null,null,null,null,null,null,null,null,null,null,null,null,null,null,null,null,null,null,null,null,null,null,null,null,null,null,null,null,null,"CFL_42"]
[5035670,null,null,null,null,null,null,null,null,null,null,null,null,null,null,null,null,null,null,null,null,null,null,null,null,null,null,null,null,null,null,null,null,null,null,null,null,null,null,null,null,null,null,null,null,null,null,null,null,null,null,null,"T3","MV_80_E"]
[5035719,null,null,null,null,null,null,null,null,null,null,null,null,null,null,null,null,null,null,null,null,null,null,null,null,null,null,null,null,null,null,null,null,null,null,null,null,null,null,null,null,null,null,null,null,null,null,null,null,null,null,null,null,"MV_80_E"]
[5035755,null,null,null,null,null,null,null,null,null,null,null,null,null,null,null,null,null,null,null,null,null,null,null,null,null,null,null,null,null,null,null,null,null,null,null,null,null,null,null,null,null,null,null,null,null,null,null,null,null,null,null,"T4","MV_80_E"]
[5035788,null,null,null,null,null,null,null,null,null,null,null,null,null,null,null,null,null,null,null,null,null,null,null,null,null,null,null,null,null,null,null,null,null,null,null,null,null,null,null,null,null,null,null,null,null,null,null,null,null,null,null,null,"MV_80_E"]
[5035874,null,null,null,null,null,null,null,null,null,null,null,null,null,null,null,null,null,null,null,null,null,null,null,null,null,null,null,null,null,null,null,null,null,null,null,null,null,null,null,null,null,null,null,null,null,null,null,null,null,null,null,"T4","MV_80_E"]
[5035876,null,null,null,null,null,null,null,null,null,null,null,null,null,null,null,null,null,null,null,null,null,null,null,null,null,null,null,null,null,null,null,null,null,null,null,null,null,null,null,null,null,null,null,null,null,null,null,null,null,null,null,"T4","MV_80_E"]
[5035961,null,null,null,null,null,null,null,null,null,null,null,null,null,null,null,null,null,null,null,null,null,null,null,null,null,null,null,null,null,null,null,null,null,null,null,null,null,null,null,null,null,null,null,null,null,null,null,null,null,null,null,null,"HPS_250_T"]
[5036188,null,null,null,null,null,null,null,null,null,null,null,null,null,null,null,null,null,null,null,null,null,null,null,null,null,null,null,null,null,null,null,null,null,null,null,null,null,null,null,null,null,null,null,null,null,null,null,null,null,null,null,"T4","MV_80_E"]
[5036221,null,null,null,null,null,null,null,null,null,null,null,null,null,null,null,null,null,null,null,null,null,null,null,null,null,null,null,null,null,null,null,null,null,null,null,null,null,null,null,null,null,null,null,null,null,null,null,null,null,null,null,null,"MV_80_E"]
[5036270,null,null,null,null,null,null,null,null,null,null,null,null,null,null,null,null,null,null,null,null,null,null,null,null,null,null,null,null,null,null,null,null,null,null,null,null,null,null,null,null,null,null,null,null,null,null,null,null,null,null,null,null,"MV_80_E"]
[5036303,null,null,null,null,null,null,null,null,null,null,null,null,null,null,null,null,null,null,null,null,null,null,null,null,null,null,null,null,null,null,null,null,null,null,null,null,null,null,null,null,null,null,null,null,null,null,null,null,null,null,null,"T4","MV_80_E"]
[5036394,null,null,null,null,null,null,null,null,null,null,null,null,null,null,null,null,null,null,null,null,null,null,null,null,null,null,null,null,null,null,null,null,null,null,null,null,null,null,null,null,null,null,null,null,null,null,null,null,null,null,null,null,"HPS_250_T"]
[5036451,null,null,null,null,null,null,null,null,null,null,null,null,null,null,null,null,null,null,null,null,null,null,null,null,null,null,null,null,null,null,null,null,null,null,null,null,null,null,null,null,null,null,null,null,null,null,null,null,null,null,null,null,"MV_80_E"]
[5036484,null,null,null,null,null,null,null,null,null,null,null,null,null,null,null,null,null,null,null,null,null,null,null,null,null,null,null,null,null,null,null,null,null,null,null,null,null,null,null,null,null,null,null,null,null,null,null,null,null,null,null,null,"MV_80_E"]
[5036533,null,null,null,null,null,null,null,null,null,null,null,null,null,null,null,null,null,null,null,null,null,null,null,null,null,null,null,null,null,null,null,null,null,null,null,null,null,null,null,null,null,null,null,null,null,null,null,null,null,null,null,"T4","CFL_42"]
[5036579,null,null,null,null,null,null,null,null,null,null,null,null,null,null,null,null,null,null,null,null,null,null,null,null,null,null,null,null,null,null,null,null,null,null,null,null,null,null,null,null,null,null,null,null,null,null,null,null,null,null,null,"T4","MV_80_E"]
[5036692,null,null,null,null,null,null,null,null,null,null,null,null,null,null,null,null,null,null,null,null,null,null,null,null,null,null,null,null,null,null,null,null,null,null,null,null,null,null,null,null,null,null,null,null,null,null,null,null,null,null,null,"T1","HPS_250_T"]
[5036751,null,null,null,null,null,null,null,null,null,null,null,null,null,null,null,null,null,null,null,null,null,null,null,null,null,null,null,null,null,null,null,null,null,null,null,null,null,null,null,null,null,null,null,null,null,null,null,null,null,null,null,"T4","CFL_42"]
[5036784,null,null,null,null,null,null,null,null,null,null,null,null,null,null,null,null,null,null,null,null,null,null,null,null,null,null,null,null,null,null,null,null,null,null,null,null,null,null,null,null,null,null,null,null,null,null,null,null,null,null,null,"T4","MV_80_E"]
[5036817,null,null,null,null,null,null,null,null,null,null,null,null,null,null,null,null,null,null,null,null,null,null,null,null,null,null,null,null,null,null,null,null,null,null,null,null,null,null,null,null,null,null,null,null,null,null,null,null,null,null,null,null,"MV_80_E"]
[5036866,null,null,null,null,null,null,null,null,null,null,null,null,null,null,null,null,null,null,null,null,null,null,null,null,null,null,null,null,null,null,null,null,null,null,null,null,null,null,null,null,null,null,null,null,null,null,null,null,null,null,null,null,"MV_80_E"]
[5036931,null,null,null,null,null,null,null,null,null,null,null,null,null,null,null,null,null,null,null,null,null,null,null,null,null,null,null,null,null,null,null,null,null,null,null,null,null,null,null,null,null,null,null,null,null,null,null,null,null,null,null,null,"MV_80_E"]
[5036950,null,null,null,null,null,null,null,null,null,null,null,null,null,null,null,null,null,null,null,null,null,null,null,null,null,null,null,null,null,null,null,null,null,null,null,null,null,null,null,null,null,null,null,null,null,null,null,null,null,null,null,"T4","MV_80_E"]
[5037031,null,null,null,null,null,null,null,null,null,null,null,null,null,null,null,null,null,null,null,null,null,null,null,null,null,null,null,null,null,null,null,null,null,null,null,null,null,null,null,null,null,null,null,null,null,null,null,null,null,null,null,null,"MV_80_E"]
[5037079,null,null,null,null,null,null,null,null,null,null,null,null,null,null,null,null,null,null,null,null,null,null,null,null,null,null,null,null,null,null,null,null,null,null,null,null,null,null,null,null,null,null,null,null,null,null,null,null,null,null,null,"T4","MV_80_E"]
[5037128,null,null,null,null,null,null,null,null,null,null,null,null,null,null,null,null,null,null,null,null,null,null,null,null,null,null,null,null,null,null,null,null,null,null,null,null,null,null,null,null,null,null,null,null,null,null,null,null,null,null,null,"T4","MV_80_E"]
[5037161,null,null,null,null,null,null,null,null,null,null,null,null,null,null,null,null,null,null,null,null,null,null,null,null,null,null,null,null,null,null,null,null,null,null,null,null,null,null,null,null,null,null,null,null,null,null,null,null,null,null,null,null,"MV_80_E"]
[5037238,null,null,null,null,null,null,null,null,null,null,null,null,null,null,null,null,null,null,null,null,null,null,null,null,null,null,null,null,null,null,null,null,null,null,null,null,null,null,null,null,null,null,null,null,null,null,null,null,null,null,null,"T4","MV_80_E"]
[5037294,null,null,null,null,null,null,null,null,null,null,null,null,null,null,null,null,null,null,null,null,null,null,null,null,null,null,null,null,null,null,null,null,null,null,null,null,null,null,null,null,null,null,null,null,null,null,null,null,null,null,null,"T4","MV_80_E"]
[5037355,null,null,null,null,null,null,null,null,null,null,null,null,null,null,null,null,null,null,null,null,null,null,null,null,null,null,null,null,null,null,null,null,null,null,null,null,null,null,null,null,null,null,null,null,null,null,null,null,null,null,null,"T4","MV_80_E"]
[5037404,null,null,null,null,null,null,null,null,null,null,null,null,null,null,null,null,null,null,null,null,null,null,null,null,null,null,null,null,null,null,null,null,null,null,null,null,null,null,null,null,null,null,null,null,null,null,null,null,null,null,null,"T4","MV_80_E"]
[5037438,null,null,null,null,null,null,null,null,null,null,null,null,null,null,null,null,null,null,null,null,null,null,null,null,null,null,null,null,null,null,null,null,null,null,null,null,null,null,null,null,null,null,null,null,null,null,null,null,null,null,null,"T4","MV_80_E"]
[5037526,null,null,null,null,null,null,null,null,null,null,null,null,null,null,null,null,null,null,null,null,null,null,null,null,null,null,null,null,null,null,null,null,null,null,null,null,null,null,null,null,null,null,null,null,null,null,null,null,null,null,null,"T4","MV_80_E"]
[5037567,null,null,null,null,null,null,null,null,null,null,null,null,null,null,null,null,null,null,null,null,null,null,null,null,null,null,null,null,null,null,null,null,null,null,null,null,null,null,null,null,null,null,null,null,null,null,null,null,null,null,null,"T4","MV_80_E"]
[5037607,null,null,null,null,null,null,null,null,null,null,null,null,null,null,null,null,null,null,null,null,null,null,null,null,null,null,null,null,null,null,null,null,null,null,null,null,null,null,null,null,null,null,null,null,null,null,null,null,null,null,null,null,"CFL_42"]
[5037667,null,null,null,null,null,null,null,null,null,null,null,null,null,null,null,null,null,null,null,null,null,null,null,null,null,null,null,null,null,null,null,null,null,null,null,null,null,null,null,null,null,null,null,null,null,null,null,null,null,null,null,null,"CFL_42"]
[5037700,null,null,null,null,null,null,null,null,null,null,null,null,null,null,null,null,null,null,null,null,null,null,null,null,null,null,null,null,null,null,null,null,null,null,null,null,null,null,null,null,null,null,null,null,null,null,null,null,null,null,null,null,"MV_80_E"]
[5037733,null,null,null,null,null,null,null,null,null,null,null,null,null,null,null,null,null,null,null,null,null,null,null,null,null,null,null,null,null,null,null,null,null,null,null,null,null,null,null,null,null,null,null,null,null,null,null,null,null,null,null,null,"CFL_42"]
[5037782,null,null,null,null,null,null,null,null,null,null,null,null,null,null,null,null,null,null,null,null,null,null,null,null,null,null,null,null,null,null,null,null,null,null,null,null,null,null,null,null,null,null,null,null,null,null,null,null,null,null,null,null,"MV_80_E"]
[5037908,null,null,null,null,null,null,null,null,null,null,null,null,null,null,null,null,null,null,null,null,null,null,null,null,null,null,null,null,null,null,null,null,null,null,null,null,null,null,null,null,null,null,null,null,null,null,null,null,null,null,null,null,"MV_80_E"]
[5037932,null,null,null,null,null,null,null,null,null,null,null,null,null,null,null,null,null,null,null,null,null,null,null,null,null,null,null,null,null,null,null,null,null,null,null,null,null,null,null,null,null,null,null,null,null,null,null,null,null,null,null,"T4","MV_80_E"]
[5037985,null,null,null,null,null,null,null,null,null,null,null,null,null,null,null,null,null,null,null,null,null,null,null,null,null,null,null,null,null,null,null,null,null,null,null,null,null,null,null,null,null,null,null,null,null,null,null,null,null,null,null,null,"HPS_250_T"]
[5038018,null,null,null,null,null,null,null,null,null,null,null,null,null,null,null,null,null,null,null,null,null,null,null,null,null,null,null,null,null,null,null,null,null,null,null,null,null,null,null,null,null,null,null,null,null,null,null,null,null,null,null,null,"HPS_250_T"]
[5042171,null,null,null,null,null,null,null,null,null,null,null,null,null,null,null,null,null,null,null,null,null,null,null,null,null,null,null,null,null,null,null,null,null,null,null,null,null,null,null,null,null,null,null,null,null,null,null,null,null,null,null,null,"HPS_250_T"]
[5045532,null,null,null,null,null,null,null,null,null,null,null,null,null,null,null,null,null,null,null,null,null,null,null,null,null,null,null,null,null,null,null,null,null,null,null,null,null,null,null,null,null,null,null,null,null,null,null,null,null,null,null,null,"HPS_250_T"]
[5045592,null,null,null,null,null,null,null,null,null,null,null,null,null,null,null,null,null,null,null,null,null,null,null,null,null,null,null,null,null,null,null,null,null,null,null,null,null,null,null,null,null,null,null,null,null,null,null,null,null,null,null,null,"MV_80_E"]
[5045643,null,null,null,null,null,null,null,null,null,null,null,null,null,null,null,null,null,null,null,null,null,null,null,null,null,null,null,null,null,null,null,null,null,null,null,null,null,null,null,null,null,null,null,null,null,null,null,null,null,null,null,null,"MV_80_E"]
[5045676,null,null,null,null,null,null,null,null,null,null,null,null,null,null,null,null,null,null,null,null,null,null,null,null,null,null,null,null,null,null,null,null,null,null,null,null,null,null,null,null,null,null,null,null,null,null,null,null,null,null,null,null,"MV_80_E"]
[5045725,null,null,null,null,null,null,null,null,null,null,null,null,null,null,null,null,null,null,null,null,null,null,null,null,null,null,null,null,null,null,null,null,null,null,null,null,null,null,null,null,null,null,null,null,null,null,null,null,null,null,null,null,"MV_80_E"]
[5045806,null,null,null,null,null,null,null,null,null,null,null,null,null,null,null,null,null,null,null,null,null,null,null,null,null,null,null,null,null,null,null,null,null,null,null,null,null,null,null,null,null,null,null,null,null,null,null,null,null,null,null,null,"CFL_42"]
[5045830,null,null,null,null,null,null,null,null,null,null,null,null,null,null,null,null,null,null,null,null,null,null,null,null,null,null,null,null,null,null,null,null,null,null,null,null,null,null,null,null,null,null,null,null,null,null,null,null,null,null,null,null,"MV_80_E"]
[5045888,null,null,null,null,null,null,null,null,null,null,null,null,null,null,null,null,null,null,null,null,null,null,null,null,null,null,null,null,null,null,null,null,null,null,null,null,null,null,null,null,null,null,null,null,null,null,null,null,null,null,null,null,"MV_80_E"]
[5045921,null,null,null,null,null,null,null,null,null,null,null,null,null,null,null,null,null,null,null,null,null,null,null,null,null,null,null,null,null,null,null,null,null,null,null,null,null,null,null,null,null,null,null,null,null,null,null,null,null,null,null,null,"MV_80_E"]
[5045954,null,null,null,null,null,null,null,null,null,null,null,null,null,null,null,null,null,null,null,null,null,null,null,null,null,null,null,null,null,null,null,null,null,null,null,null,null,null,null,null,null,null,null,null,null,null,null,null,null,null,null,null,"CFL_42"]
[5046007,null,null,null,null,null,null,null,null,null,null,null,null,null,null,null,null,null,null,null,null,null,null,null,null,null,null,null,null,null,null,null,null,null,null,null,null,null,null,null,null,null,null,null,null,null,null,null,null,null,null,null,null,"CFL_42"]
[5046088,null,null,null,null,null,null,null,null,null,null,null,null,null,null,null,null,null,null,null,null,null,null,null,null,null,null,null,null,null,null,null,null,null,null,null,null,null,null,null,null,null,null,null,null,null,null,null,null,null,null,null,null,"MV_80_E"]
[5046123,null,null,null,null,null,null,null,null,null,null,null,null,null,null,null,null,null,null,null,null,null,null,null,null,null,null,null,null,null,null,null,null,null,null,null,null,null,null,null,null,null,null,null,null,null,null,null,null,null,null,null,null,"MV_80_E"]
[5046169,null,null,null,null,null,null,null,null,null,null,null,null,null,null,null,null,null,null,null,null,null,null,null,null,null,null,null,null,null,null,null,null,null,null,null,null,null,null,null,null,null,null,null,null,null,null,null,null,null,null,null,null,"MV_80_E"]
[5046202,null,null,null,null,null,null,null,null,null,null,null,null,null,null,null,null,null,null,null,null,null,null,null,null,null,null,null,null,null,null,null,null,null,null,null,null,null,null,null,null,null,null,null,null,null,null,null,null,null,null,null,null,"MV_80_E"]
[5046251,null,null,null,null,null,null,null,null,null,null,null,null,null,null,null,null,null,null,null,null,null,null,null,null,null,null,null,null,null,null,null,null,null,null,null,null,null,null,null,null,null,null,null,null,null,null,null,null,null,null,null,null,"MV_80_E"]
[5059790,null,null,null,null,null,null,null,null,null,null,null,null,null,null,null,null,null,null,null,null,null,null,null,null,null,null,null,null,null,null,null,null,null,null,null,null,null,null,null,null,null,null,null,null,null,null,null,null,null,null,null,"T4","MV_80_E"]
[5059840,null,null,null,null,null,null,null,null,null,null,null,null,null,null,null,null,null,null,null,null,null,null,null,null,null,null,null,null,null,null,null,null,null,null,null,null,null,null,null,null,null,null,null,null,null,null,null,null,null,null,null,"NA","MV_80_E"]
[5059875,null,null,null,null,null,null,null,null,null,null,null,null,null,null,null,null,null,null,null,null,null,null,null,null,null,null,null,null,null,null,null,null,null,null,null,null,null,null,null,null,null,null,null,null,null,null,null,null,null,null,null,"R4","MV_80_E"]
[5059905,null,null,null,null,null,null,null,null,null,null,null,null,null,null,null,null,null,null,null,null,null,null,null,null,null,null,null,null,null,null,null,null,null,null,null,null,null,null,null,null,null,null,null,null,null,null,null,null,null,null,null,"T4","MV_80_E"]
[5059956,null,null,null,null,null,null,null,null,null,null,null,null,null,null,null,null,null,null,null,null,null,null,null,null,null,null,null,null,null,null,null,null,null,null,null,null,null,null,null,null,null,null,null,null,null,null,null,null,null,null,null,"R5","HPS_150_T"]
[5060043,null,null,null,null,null,null,null,null,null,null,null,null,null,null,null,null,null,null,null,null,null,null,null,null,null,null,null,null,null,null,null,null,null,null,null,null,null,null,null,null,null,null,null,null,null,null,null,null,null,null,null,"R4","MV_80_E"]
[5060076,null,null,null,null,null,null,null,null,null,null,null,null,null,null,null,null,null,null,null,null,null,null,null,null,null,null,null,null,null,null,null,null,null,null,null,null,null,null,null,null,null,null,null,null,null,null,null,null,null,null,null,"R4","MV_80_E"]
[5060125,null,null,null,null,null,null,null,null,null,null,null,null,null,null,null,null,null,null,null,null,null,null,null,null,null,null,null,null,null,null,null,null,null,null,null,null,null,null,null,null,null,null,null,null,null,null,null,null,null,null,null,"T4","MV_80_E"]
[5060184,null,null,null,null,null,null,null,null,null,null,null,null,null,null,null,null,null,null,null,null,null,null,null,null,null,null,null,null,null,null,null,null,null,null,null,null,null,null,null,null,null,null,null,null,null,null,null,null,null,null,null,"T4","CFL_42"]
[5060214,null,null,null,null,null,null,null,null,null,null,null,null,null,null,null,null,null,null,null,null,null,null,null,null,null,null,null,null,null,null,null,null,null,null,null,null,null,null,null,null,null,null,null,null,null,null,null,null,null,null,null,"T3","MV_80_E"]
[5060248,null,null,null,null,null,null,null,null,null,null,null,null,null,null,null,null,null,null,null,null,null,null,null,null,null,null,null,null,null,null,null,null,null,null,null,null,null,null,null,null,null,null,null,null,null,null,null,null,null,null,null,"R4","MV_80_E"]
[5060330,null,null,null,null,null,null,null,null,null,null,null,null,null,null,null,null,null,null,null,null,null,null,null,null,null,null,null,null,null,null,null,null,null,null,null,null,null,null,null,null,null,null,null,null,null,null,null,null,null,null,null,"R4","CFL_42"]
[5060379,null,null,null,null,null,null,null,null,null,null,null,null,null,null,null,null,null,null,null,null,null,null,null,null,null,null,null,null,null,null,null,null,null,null,null,null,null,null,null,null,null,null,null,null,null,null,null,null,null,null,null,null,"MV_80_E"]
[5060397,null,null,null,null,null,null,null,null,null,null,null,null,null,null,null,null,null,null,null,null,null,null,null,null,null,null,null,null,null,null,null,null,null,null,null,null,null,null,null,null,null,null,null,null,null,null,null,null,null,null,null,null,"MV_80_E"]
[5060444,null,null,null,null,null,null,null,null,null,null,null,null,null,null,null,null,null,null,null,null,null,null,null,null,null,null,null,null,null,null,null,null,null,null,null,null,null,null,null,null,null,null,null,null,null,null,null,null,null,null,null,"R4","MV_80_E"]
[5069878,null,null,null,null,null,null,null,null,null,null,null,null,null,null,null,null,null,null,null,null,null,null,null,null,null,null,null,null,null,null,null,null,null,null,null,null,null,null,null,null,null,null,null,null,null,null,null,null,null,null,null,null,"MV_80_E"]
[5069963,null,null,null,null,null,null,null,null,null,null,null,null,null,null,null,null,null,null,null,null,null,null,null,null,null,null,null,null,null,null,null,null,null,null,null,null,null,null,null,null,null,null,null,null,null,null,null,null,null,null,null,null,"MV_80_E"]
[5070018,null,null,null,null,null,null,null,null,null,null,null,null,null,null,null,null,null,null,null,null,null,null,null,null,null,null,null,null,null,null,null,null,null,null,null,null,null,null,null,null,null,null,null,null,null,null,null,null,null,null,null,null,"CFL_42"]
[5070060,null,null,null,null,null,null,null,null,null,null,null,null,null,null,null,null,null,null,null,null,null,null,null,null,null,null,null,null,null,null,null,null,null,null,null,null,null,null,null,null,null,null,null,null,null,null,null,null,null,null,null,null,"MV_80_E"]
[5070098,null,null,null,null,null,null,null,null,null,null,null,null,null,null,null,null,null,null,null,null,null,null,null,null,null,null,null,null,null,null,null,null,null,null,null,null,null,null,null,null,null,null,null,null,null,null,null,null,null,null,null,null,"MV_80_E"]
[5070535,null,null,null,null,null,null,null,null,null,null,null,null,null,null,null,null,null,null,null,null,null,null,null,null,null,null,null,null,null,null,null,null,null,null,null,null,null,null,null,null,null,null,null,null,null,null,null,null,null,null,null,null,"HPS_250_T"]
[5070629,null,null,null,null,null,null,null,null,null,null,null,null,null,null,null,null,null,null,null,null,null,null,null,null,null,null,null,null,null,null,null,null,null,null,null,null,null,null,null,null,null,null,null,null,null,null,null,null,null,null,null,null,"MV_80_E"]
[5070678,null,null,null,null,null,null,null,null,null,null,null,null,null,null,null,null,null,null,null,null,null,null,null,null,null,null,null,null,null,null,null,null,null,null,null,null,null,null,null,null,null,null,null,null,null,null,null,null,null,null,null,"T4","MV_80_E"]
[5070712,null,null,null,null,null,null,null,null,null,null,null,null,null,null,null,null,null,null,null,null,null,null,null,null,null,null,null,null,null,null,null,null,null,null,null,null,null,null,null,null,null,null,null,null,null,null,null,null,null,null,null,"T4","MV_80_E"]
[5070745,null,null,null,null,null,null,null,null,null,null,null,null,null,null,null,null,null,null,null,null,null,null,null,null,null,null,null,null,null,null,null,null,null,null,null,null,null,null,null,null,null,null,null,null,null,null,null,null,null,null,null,"T4","MV_80_E"]
[5070791,null,null,null,null,null,null,null,null,null,null,null,null,null,null,null,null,null,null,null,null,null,null,null,null,null,null,null,null,null,null,null,null,null,null,null,null,null,null,null,null,null,null,null,null,null,null,null,null,null,null,null,null,"MV_80_E"]
[5070834,null,null,null,null,null,null,null,null,null,null,null,null,null,null,null,null,null,null,null,null,null,null,null,null,null,null,null,null,null,null,null,null,null,null,null,null,null,null,null,null,null,null,null,null,null,null,null,null,null,null,null,null,"CFL_42"]
[5070916,null,null,null,null,null,null,null,null,null,null,null,null,null,null,null,null,null,null,null,null,null,null,null,null,null,null,null,null,null,null,null,null,null,null,null,null,null,null,null,null,null,null,null,null,null,null,null,null,null,null,null,null,"MV_80_E"]
[5070971,null,null,null,null,null,null,null,null,null,null,null,null,null,null,null,null,null,null,null,null,null,null,null,null,null,null,null,null,null,null,null,null,null,null,null,null,null,null,null,null,null,null,null,null,null,null,null,null,null,null,null,null,"HPS_150_T"]
[5071009,null,null,null,null,null,null,null,null,null,null,null,null,null,null,null,null,null,null,null,null,null,null,null,null,null,null,null,null,null,null,null,null,null,null,null,null,null,null,null,null,null,null,null,null,null,null,null,null,null,null,null,null,"MV_80_E"]
[5071058,null,null,null,null,null,null,null,null,null,null,null,null,null,null,null,null,null,null,null,null,null,null,null,null,null,null,null,null,null,null,null,null,null,null,null,null,null,null,null,null,null,null,null,null,null,null,null,null,null,null,null,null,"CFL_42"]
[5071103,null,null,null,null,null,null,null,null,null,null,null,null,null,null,null,null,null,null,null,null,null,null,null,null,null,null,null,null,null,null,null,null,null,null,null,null,null,null,null,null,null,null,null,null,null,null,null,null,null,null,null,null,"MV_80_E"]
[5071171,null,null,null,null,null,null,null,null,null,null,null,null,null,null,null,null,null,null,null,null,null,null,null,null,null,null,null,null,null,null,null,null,null,null,null,null,null,null,null,null,null,null,null,null,null,null,null,null,null,null,null,"T4","CFL_42"]
[5071229,null,null,null,null,null,null,null,null,null,null,null,null,null,null,null,null,null,null,null,null,null,null,null,null,null,null,null,null,null,null,null,null,null,null,null,null,null,null,null,null,null,null,null,null,null,null,null,null,null,null,null,null,"HPS_250_T"]
[5071262,null,null,null,null,null,null,null,null,null,null,null,null,null,null,null,null,null,null,null,null,null,null,null,null,null,null,null,null,null,null,null,null,null,null,null,null,null,null,null,null,null,null,null,null,null,null,null,null,null,null,null,null,"HPS_150_T"]
[5071308,null,null,null,null,null,null,null,null,null,null,null,null,null,null,null,null,null,null,null,null,null,null,null,null,null,null,null,null,null,null,null,null,null,null,null,null,null,null,null,null,null,null,null,null,null,null,null,null,null,null,null,null,"MV_80_E"]
[5071357,null,null,null,null,null,null,null,null,null,null,null,null,null,null,null,null,null,null,null,null,null,null,null,null,null,null,null,null,null,null,null,null,null,null,null,null,null,null,null,null,null,null,null,null,null,null,null,null,null,null,null,null,"MV_80_E"]
[5071418,null,null,null,null,null,null,null,null,null,null,null,null,null,null,null,null,null,null,null,null,null,null,null,null,null,null,null,null,null,null,null,null,null,null,null,null,null,null,null,null,null,null,null,null,null,null,null,null,null,null,null,null,"MV_80_E"]
[5071848,null,null,null,null,null,null,null,null,null,null,null,null,null,null,null,null,null,null,null,null,null,null,null,null,null,null,null,null,null,null,null,null,null,null,null,null,null,null,null,null,null,null,null,null,null,null,null,null,null,null,null,null,"MV_80_E"]
[5071893,null,null,null,null,null,null,null,null,null,null,null,null,null,null,null,null,null,null,null,null,null,null,null,null,null,null,null,null,null,null,null,null,null,null,null,null,null,null,null,null,null,null,null,null,null,null,null,null,null,null,null,null,"MV_80_E"]
[5071930,null,null,null,null,null,null,null,null,null,null,null,null,null,null,null,null,null,null,null,null,null,null,null,null,null,null,null,null,null,null,null,null,null,null,null,null,null,null,null,null,null,null,null,null,null,null,null,null,null,null,null,null,"HPS_150_T"]
[5071985,null,null,null,null,null,null,null,null,null,null,null,null,null,null,null,null,null,null,null,null,null,null,null,null,null,null,null,null,null,null,null,null,null,null,null,null,null,null,null,null,null,null,null,null,null,null,null,null,null,null,null,null,"HPS_150_T"]
[5072021,null,null,null,null,null,null,null,null,null,null,null,null,null,null,null,null,null,null,null,null,null,null,null,null,null,null,null,null,null,null,null,null,null,null,null,null,null,null,null,null,null,null,null,null,null,null,null,null,null,null,null,null,"HPS_150_T"]
[5072148,null,null,null,null,null,null,null,null,null,null,null,null,null,null,null,null,null,null,null,null,null,null,null,null,null,null,null,null,null,null,null,null,null,null,null,null,null,null,null,null,null,null,null,null,null,null,null,null,null,null,null,null,"MV_80_E"]
[5072211,null,null,null,null,null,null,null,null,null,null,null,null,null,null,null,null,null,null,null,null,null,null,null,null,null,null,null,null,null,null,null,null,null,null,null,null,null,null,null,null,null,null,null,null,null,null,null,null,null,null,null,null,"MV_80_E"]
[5072248,null,null,null,null,null,null,null,null,null,null,null,null,null,null,null,null,null,null,null,null,null,null,null,null,null,null,null,null,null,null,null,null,null,null,null,null,null,null,null,null,null,null,null,null,null,null,null,null,null,null,null,null,"HPS_400_T"]
[5072297,null,null,null,null,null,null,null,null,null,null,null,null,null,null,null,null,null,null,null,null,null,null,null,null,null,null,null,null,null,null,null,null,null,null,null,null,null,null,null,null,null,null,null,null,null,null,null,null,null,null,null,null,"HPS_150_T"]
[5072332,null,null,null,null,null,null,null,null,null,null,null,null,null,null,null,null,null,null,null,null,null,null,null,null,null,null,null,null,null,null,null,null,null,null,null,null,null,null,null,null,null,null,null,null,null,null,null,null,null,null,null,"T4","MV_80_E"]
[5072376,null,null,null,null,null,null,null,null,null,null,null,null,null,null,null,null,null,null,null,null,null,null,null,null,null,null,null,null,null,null,null,null,null,null,null,null,null,null,null,null,null,null,null,null,null,null,null,null,null,null,null,null,"MV_80_E"]
[5072462,null,null,null,null,null,null,null,null,null,null,null,null,null,null,null,null,null,null,null,null,null,null,null,null,null,null,null,null,null,null,null,null,null,null,null,null,null,null,null,null,null,null,null,null,null,null,null,null,null,null,null,"T4","MV_80_E"]
[5072495,null,null,null,null,null,null,null,null,null,null,null,null,null,null,null,null,null,null,null,null,null,null,null,null,null,null,null,null,null,null,null,null,null,null,null,null,null,null,null,null,null,null,null,null,null,null,null,null,null,null,null,"T4","CFL_42"]
[5072545,null,null,null,null,null,null,null,null,null,null,null,null,null,null,null,null,null,null,null,null,null,null,null,null,null,null,null,null,null,null,null,null,null,null,null,null,null,null,null,null,null,null,null,null,null,null,null,null,null,null,null,null,"MV_80_E"]
[5072587,null,null,null,null,null,null,null,null,null,null,null,null,null,null,null,null,null,null,null,null,null,null,null,null,null,null,null,null,null,null,null,null,null,null,null,null,null,null,null,null,null,null,null,null,null,null,null,null,null,null,null,null,"MV_80_E"]
[5072669,null,null,null,null,null,null,null,null,null,null,null,null,null,null,null,null,null,null,null,null,null,null,null,null,null,null,null,null,null,null,null,null,null,null,null,null,null,null,null,null,null,null,null,null,null,null,null,null,null,null,null,null,"MV_80_E"]
[5072676,null,null,null,null,null,null,null,null,null,null,null,null,null,null,null,null,null,null,null,null,null,null,null,null,null,null,null,null,null,null,null,null,null,null,null,null,null,null,null,null,null,null,null,null,null,null,null,null,null,null,null,null,"MV_80_E"]
[5072750,null,null,null,null,null,null,null,null,null,null,null,null,null,null,null,null,null,null,null,null,null,null,null,null,null,null,null,null,null,null,null,null,null,null,null,null,null,null,null,null,null,null,null,null,null,null,null,null,null,null,null,null,"MV_80_E"]
[5072801,null,null,null,null,null,null,null,null,null,null,null,null,null,null,null,null,null,null,null,null,null,null,null,null,null,null,null,null,null,null,null,null,null,null,null,null,null,null,null,null,null,null,null,null,null,null,null,null,null,null,null,null,"MV_80_E"]
[5072862,null,null,null,null,null,null,null,null,null,null,null,null,null,null,null,null,null,null,null,null,null,null,null,null,null,null,null,null,null,null,null,null,null,null,null,null,null,null,null,null,null,null,null,null,null,null,null,null,null,null,null,null,"HPS_250_T"]
[5072897,null,null,null,null,null,null,null,null,null,null,null,null,null,null,null,null,null,null,null,null,null,null,null,null,null,null,null,null,null,null,null,null,null,null,null,null,null,null,null,null,null,null,null,null,null,null,null,null,null,null,null,null,"HPS_150_T"]
[5072950,null,null,null,null,null,null,null,null,null,null,null,null,null,null,null,null,null,null,null,null,null,null,null,null,null,null,null,null,null,null,null,null,null,null,null,null,null,null,null,null,null,null,null,null,null,null,null,null,null,null,null,null,"CFL_42"]
[5073006,null,null,null,null,null,null,null,null,null,null,null,null,null,null,null,null,null,null,null,null,null,null,null,null,null,null,null,null,null,null,null,null,null,null,null,null,null,null,null,null,null,null,null,null,null,null,null,null,null,null,null,null,"CFL_42"]
[5073064,null,null,null,null,null,null,null,null,null,null,null,null,null,null,null,null,null,null,null,null,null,null,null,null,null,null,null,null,null,null,null,null,null,null,null,null,null,null,null,null,null,null,null,null,null,null,null,null,null,null,null,null,"MV_80_E"]
[5073117,null,null,null,null,null,null,null,null,null,null,null,null,null,null,null,null,null,null,null,null,null,null,null,null,null,null,null,null,null,null,null,null,null,null,null,null,null,null,null,null,null,null,null,null,null,null,null,null,null,null,null,null,"MV_80_E"]
[5073150,null,null,null,null,null,null,null,null,null,null,null,null,null,null,null,null,null,null,null,null,null,null,null,null,null,null,null,null,null,null,null,null,null,null,null,null,null,null,null,null,null,null,null,null,null,null,null,null,null,null,null,null,"MV_80_E"]
[5073217,null,null,null,null,null,null,null,null,null,null,null,null,null,null,null,null,null,null,null,null,null,null,null,null,null,null,null,null,null,null,null,null,null,null,null,null,null,null,null,null,null,null,null,null,null,null,null,null,null,null,null,"T4","CFL_42"]
[5073316,null,null,null,null,null,null,null,null,null,null,null,null,null,null,null,null,null,null,null,null,null,null,null,null,null,null,null,null,null,null,null,null,null,null,null,null,null,null,null,null,null,null,null,null,null,null,null,null,null,null,null,"TB","MV_80_E"]
[5073339,null,null,null,null,null,null,null,null,null,null,null,null,null,null,null,null,null,null,null,null,null,null,null,null,null,null,null,null,null,null,null,null,null,null,null,null,null,null,null,null,null,null,null,null,null,null,null,null,null,null,null,"T4","CFL_42"]
[5073397,null,null,null,null,null,null,null,null,null,null,null,null,null,null,null,null,null,null,null,null,null,null,null,null,null,null,null,null,null,null,null,null,null,null,null,null,null,null,null,null,null,null,null,null,null,null,null,null,null,null,null,"T4","MV_80_E"]
[5073430,null,null,null,null,null,null,null,null,null,null,null,null,null,null,null,null,null,null,null,null,null,null,null,null,null,null,null,null,null,null,null,null,null,null,null,null,null,null,null,null,null,null,null,null,null,null,null,null,null,null,null,"T4","MV_80_E"]
[5073522,null,null,null,null,null,null,null,null,null,null,null,null,null,null,null,null,null,null,null,null,null,null,null,null,null,null,null,null,null,null,null,null,null,null,null,null,null,null,null,null,null,null,null,null,null,null,null,null,null,null,null,null,"CFL_42"]
[5073609,null,null,null,null,null,null,null,null,null,null,null,null,null,null,null,null,null,null,null,null,null,null,null,null,null,null,null,null,null,null,null,null,null,null,null,null,null,null,null,null,null,null,null,null,null,null,null,null,null,null,null,null,"MV_80_E"]
[5073688,null,null,null,null,null,null,null,null,null,null,null,null,null,null,null,null,null,null,null,null,null,null,null,null,null,null,null,null,null,null,null,null,null,null,null,null,null,null,null,null,null,null,null,null,null,null,null,null,null,null,null,"T5","HPS_150_T"]
[5073723,null,null,null,null,null,null,null,null,null,null,null,null,null,null,null,null,null,null,null,null,null,null,null,null,null,null,null,null,null,null,null,null,null,null,null,null,null,null,null,null,null,null,null,null,null,null,null,null,null,null,null,"R6","HPS_250_T"]
[5073791,null,null,null,null,null,null,null,null,null,null,null,null,null,null,null,null,null,null,null,null,null,null,null,null,null,null,null,null,null,null,null,null,null,null,null,null,null,null,null,null,null,null,null,null,null,null,null,null,null,null,null,null,"HPS_150_T"]
[5073829,null,null,null,null,null,null,null,null,null,null,null,null,null,null,null,null,null,null,null,null,null,null,null,null,null,null,null,null,null,null,null,null,null,null,null,null,null,null,null,null,null,null,null,null,null,null,null,null,null,null,null,null,"MV_80_E"]
[5073879,null,null,null,null,null,null,null,null,null,null,null,null,null,null,null,null,null,null,null,null,null,null,null,null,null,null,null,null,null,null,null,null,null,null,null,null,null,null,null,null,null,null,null,null,null,null,null,null,null,null,null,null,"MV_80_E"]
[5073960,null,null,null,null,null,null,null,null,null,null,null,null,null,null,null,null,null,null,null,null,null,null,null,null,null,null,null,null,null,null,null,null,null,null,null,null,null,null,null,null,null,null,null,null,null,null,null,null,null,null,null,"T3","CFL_42"]
[5074008,null,null,null,null,null,null,null,null,null,null,null,null,null,null,null,null,null,null,null,null,null,null,null,null,null,null,null,null,null,null,null,null,null,null,null,null,null,null,null,null,null,null,null,null,null,null,null,null,null,null,null,null,"MV_80_E"]
[5074046,null,null,null,null,null,null,null,null,null,null,null,null,null,null,null,null,null,null,null,null,null,null,null,null,null,null,null,null,null,null,null,null,null,null,null,null,null,null,null,null,null,null,null,null,null,null,null,null,null,null,null,null,"CFL_42"]
[5074079,null,null,null,null,null,null,null,null,null,null,null,null,null,null,null,null,null,null,null,null,null,null,null,null,null,null,null,null,null,null,null,null,null,null,null,null,null,null,null,null,null,null,null,null,null,null,null,null,null,null,null,null,"MV_80_E"]
[5074129,null,null,null,null,null,null,null,null,null,null,null,null,null,null,null,null,null,null,null,null,null,null,null,null,null,null,null,null,null,null,null,null,null,null,null,null,null,null,null,null,null,null,null,null,null,null,null,null,null,null,null,null,"MV_80_E"]
[5074211,null,null,null,null,null,null,null,null,null,null,null,null,null,null,null,null,null,null,null,null,null,null,null,null,null,null,null,null,null,null,null,null,null,null,null,null,null,null,null,null,null,null,null,null,null,null,null,null,null,null,null,null,"CFL_42"]
[5074244,null,null,null,null,null,null,null,null,null,null,null,null,null,null,null,null,null,null,null,null,null,null,null,null,null,null,null,null,null,null,null,null,null,null,null,null,null,null,null,null,null,null,null,null,null,null,null,null,null,null,null,null,"MV_80_E"]
[5074320,null,null,null,null,null,null,null,null,null,null,null,null,null,null,null,null,null,null,null,null,null,null,null,null,null,null,null,null,null,null,null,null,null,null,null,null,null,null,null,null,null,null,null,null,null,null,null,null,null,null,null,"T4","HPS_250_T"]
[5074356,null,null,null,null,null,null,null,null,null,null,null,null,null,null,null,null,null,null,null,null,null,null,null,null,null,null,null,null,null,null,null,null,null,null,null,null,null,null,null,null,null,null,null,null,null,null,null,null,null,null,null,"T5","HPS_150_T"]
[5074470,null,null,null,null,null,null,null,null,null,null,null,null,null,null,null,null,null,null,null,null,null,null,null,null,null,null,null,null,null,null,null,null,null,null,null,null,null,null,null,null,null,null,null,null,null,null,null,null,null,null,null,"T4","CFL_42"]
[5074573,null,null,null,null,null,null,null,null,null,null,null,null,null,null,null,null,null,null,null,null,null,null,null,null,null,null,null,null,null,null,null,null,null,null,null,null,null,null,null,null,null,null,null,null,null,null,null,null,null,null,null,null,"HPS_150_T"]
[5074606,null,null,null,null,null,null,null,null,null,null,null,null,null,null,null,null,null,null,null,null,null,null,null,null,null,null,null,null,null,null,null,null,null,null,null,null,null,null,null,null,null,null,null,null,null,null,null,null,null,null,null,null,"HPS_250_T"]
[5074656,null,null,null,null,null,null,null,null,null,null,null,null,null,null,null,null,null,null,null,null,null,null,null,null,null,null,null,null,null,null,null,null,null,null,null,null,null,null,null,null,null,null,null,null,null,null,null,null,null,null,null,null,"HPS_150_T"]
[5074673,null,null,null,null,null,null,null,null,null,null,null,null,null,null,null,null,null,null,null,null,null,null,null,null,null,null,null,null,null,null,null,null,null,null,null,null,null,null,null,null,null,null,null,null,null,null,null,null,null,null,null,null,"HPS_250_T"]
[5075892,null,null,null,null,null,null,null,null,null,null,null,null,null,null,null,null,null,null,null,null,null,null,null,null,null,null,null,null,null,null,null,null,null,null,null,null,null,null,null,null,null,null,null,null,null,null,null,null,null,null,null,"T5","HPS_250_T"]
[5075942,null,null,null,null,null,null,null,null,null,null,null,null,null,null,null,null,null,null,null,null,null,null,null,null,null,null,null,null,null,null,null,null,null,null,null,null,null,null,null,null,null,null,null,null,null,null,null,null,null,null,null,"R6","HPS_250_T"]
[5076025,null,null,null,null,null,null,null,null,null,null,null,null,null,null,null,null,null,null,null,null,null,null,null,null,null,null,null,null,null,null,null,null,null,null,null,null,null,null,null,null,null,null,null,null,null,null,null,null,null,null,null,"T3","HPS_250_T"]
[5076139,null,null,null,null,null,null,null,null,null,null,null,null,null,null,null,null,null,null,null,null,null,null,null,null,null,null,null,null,null,null,null,null,null,null,null,null,null,null,null,null,null,null,null,null,null,null,null,null,null,null,null,"T4","MV_80_E"]
[5076185,null,null,null,null,null,null,null,null,null,null,null,null,null,null,null,null,null,null,null,null,null,null,null,null,null,null,null,null,null,null,null,null,null,null,null,null,null,null,null,null,null,null,null,null,null,null,null,null,null,null,null,null,"MV_80_E"]
[5076224,null,null,null,null,null,null,null,null,null,null,null,null,null,null,null,null,null,null,null,null,null,null,null,null,null,null,null,null,null,null,null,null,null,null,null,null,null,null,null,null,null,null,null,null,null,null,null,null,null,null,null,"T4","MV_80_E"]
[5076290,null,null,null,null,null,null,null,null,null,null,null,null,null,null,null,null,null,null,null,null,null,null,null,null,null,null,null,null,null,null,null,null,null,null,null,null,null,null,null,null,null,null,null,null,null,null,null,null,null,null,null,"T4","MV_80_E"]
[5076371,null,null,null,null,null,null,null,null,null,null,null,null,null,null,null,null,null,null,null,null,null,null,null,null,null,null,null,null,null,null,null,null,null,null,null,null,null,null,null,null,null,null,null,null,null,null,null,null,null,null,null,"T4","MV_80_E"]
[5076420,null,null,null,null,null,null,null,null,null,null,null,null,null,null,null,null,null,null,null,null,null,null,null,null,null,null,null,null,null,null,null,null,null,null,null,null,null,null,null,null,null,null,null,null,null,null,null,null,null,null,null,"T4","MV_80_E"]
[5076453,null,null,null,null,null,null,null,null,null,null,null,null,null,null,null,null,null,null,null,null,null,null,null,null,null,null,null,null,null,null,null,null,null,null,null,null,null,null,null,null,null,null,null,null,null,null,null,null,null,null,null,"T4","MV_80_E"]
[5076486,null,null,null,null,null,null,null,null,null,null,null,null,null,null,null,null,null,null,null,null,null,null,null,null,null,null,null,null,null,null,null,null,null,null,null,null,null,null,null,null,null,null,null,null,null,null,null,null,null,null,null,"T4","CFL_42"]
[5076532,null,null,null,null,null,null,null,null,null,null,null,null,null,null,null,null,null,null,null,null,null,null,null,null,null,null,null,null,null,null,null,null,null,null,null,null,null,null,null,null,null,null,null,null,null,null,null,null,null,null,null,"T4","MV_80_E"]
[5076618,null,null,null,null,null,null,null,null,null,null,null,null,null,null,null,null,null,null,null,null,null,null,null,null,null,null,null,null,null,null,null,null,null,null,null,null,null,null,null,null,null,null,null,null,null,null,null,null,null,null,null,"T4","MV_80_E"]
[5076653,null,null,null,null,null,null,null,null,null,null,null,null,null,null,null,null,null,null,null,null,null,null,null,null,null,null,null,null,null,null,null,null,null,null,null,null,null,null,null,null,null,null,null,null,null,null,null,null,null,null,null,"T4","MV_80_E"]
[5076703,null,null,null,null,null,null,null,null,null,null,null,null,null,null,null,null,null,null,null,null,null,null,null,null,null,null,null,null,null,null,null,null,null,null,null,null,null,null,null,null,null,null,null,null,null,null,null,null,null,null,null,"T3","MV_80_E"]
[5076736,null,null,null,null,null,null,null,null,null,null,null,null,null,null,null,null,null,null,null,null,null,null,null,null,null,null,null,null,null,null,null,null,null,null,null,null,null,null,null,null,null,null,null,null,null,null,null,null,null,null,null,"T4","MV_80_E"]
[5076785,null,null,null,null,null,null,null,null,null,null,null,null,null,null,null,null,null,null,null,null,null,null,null,null,null,null,null,null,null,null,null,null,null,null,null,null,null,null,null,null,null,null,null,null,null,null,null,null,null,null,null,"T4","MV_80_E"]
[5076829,null,null,null,null,null,null,null,null,null,null,null,null,null,null,null,null,null,null,null,null,null,null,null,null,null,null,null,null,null,null,null,null,null,null,null,null,null,null,null,null,null,null,null,null,null,null,null,null,null,null,null,"T4","MV_80_E"]
[5076898,null,null,null,null,null,null,null,null,null,null,null,null,null,null,null,null,null,null,null,null,null,null,null,null,null,null,null,null,null,null,null,null,null,null,null,null,null,null,null,null,null,null,null,null,null,null,null,null,null,null,null,null,"MV_80_E"]
[5076947,null,null,null,null,null,null,null,null,null,null,null,null,null,null,null,null,null,null,null,null,null,null,null,null,null,null,null,null,null,null,null,null,null,null,null,null,null,null,null,null,null,null,null,null,null,null,null,null,null,null,null,null,"MV_80_E"]
[5076980,null,null,null,null,null,null,null,null,null,null,null,null,null,null,null,null,null,null,null,null,null,null,null,null,null,null,null,null,null,null,null,null,null,null,null,null,null,null,null,null,null,null,null,null,null,null,null,null,null,null,null,null,"MV_80_E"]
[5077029,null,null,null,null,null,null,null,null,null,null,null,null,null,null,null,null,null,null,null,null,null,null,null,null,null,null,null,null,null,null,null,null,null,null,null,null,null,null,null,null,null,null,null,null,null,null,null,null,null,null,null,null,"CFL_42"]
[5084233,null,null,null,null,null,null,null,null,null,null,null,null,null,null,null,null,null,null,null,null,null,null,null,null,null,null,null,null,null,null,null,null,null,null,null,null,null,null,null,null,null,null,null,null,null,null,null,null,null,null,null,"T4","MV_80_E"]
[5084288,null,null,null,null,null,null,null,null,null,null,null,null,null,null,null,null,null,null,null,null,null,null,null,null,null,null,null,null,null,null,null,null,null,null,null,null,null,null,null,null,null,null,null,null,null,null,null,null,null,null,null,"T4","MV_80_E"]
[5084344,null,null,null,null,null,null,null,null,null,null,null,null,null,null,null,null,null,null,null,null,null,null,null,null,null,null,null,null,null,null,null,null,null,null,null,null,null,null,null,null,null,null,null,null,null,null,null,null,null,null,null,null,"HPS_150_T"]
[5084377,null,null,null,null,null,null,null,null,null,null,null,null,null,null,null,null,null,null,null,null,null,null,null,null,null,null,null,null,null,null,null,null,null,null,null,null,null,null,null,null,null,null,null,null,null,null,null,null,null,null,null,null,"HPS_150_T"]
[5084410,null,null,null,null,null,null,null,null,null,null,null,null,null,null,null,null,null,null,null,null,null,null,null,null,null,null,null,null,null,null,null,null,null,null,null,null,null,null,null,null,null,null,null,null,null,null,null,null,null,null,null,"T4","MV_80_E"]
[5087536,null,null,null,null,null,null,null,null,null,null,null,null,null,null,null,null,null,null,null,null,null,null,null,null,null,null,null,null,null,null,null,null,null,null,null,null,null,null,null,null,null,null,null,null,null,null,null,null,null,null,null,null,"HPS_150_T"]
[5087650,null,null,null,null,null,null,null,null,null,null,null,null,null,null,null,null,null,null,null,null,null,null,null,null,null,null,null,null,null,null,null,null,null,null,null,null,null,null,null,null,null,null,null,null,null,null,null,null,null,null,null,null,"MV_80_E"]
[5087801,null,null,null,null,null,null,null,null,null,null,null,null,null,null,null,null,null,null,null,null,null,null,null,null,null,null,null,null,null,null,null,null,null,null,null,null,null,null,null,null,null,null,null,null,null,null,null,null,null,null,null,null,"MV_80_E"]
[5087839,null,null,null,null,null,null,null,null,null,null,null,null,null,null,null,null,null,null,null,null,null,null,null,null,null,null,null,null,null,null,null,null,null,null,null,null,null,null,null,null,null,null,null,null,null,null,null,null,null,null,null,null,"MV_80_E"]
[5087873,null,null,null,null,null,null,null,null,null,null,null,null,null,null,null,null,null,null,null,null,null,null,null,null,null,null,null,null,null,null,null,null,null,null,null,null,null,null,null,null,null,null,null,null,null,null,null,null,null,null,null,null,"MV_80_E"]
[5087999,null,null,null,null,null,null,null,null,null,null,null,null,null,null,null,null,null,null,null,null,null,null,null,null,null,null,null,null,null,null,null,null,null,null,null,null,null,null,null,null,null,null,null,null,null,null,null,null,null,null,null,null,"MV_80_E"]
[5088032,null,null,null,null,null,null,null,null,null,null,null,null,null,null,null,null,null,null,null,null,null,null,null,null,null,null,null,null,null,null,null,null,null,null,null,null,null,null,null,null,null,null,null,null,null,null,null,null,null,null,null,null,"CFL_42"]
[5088124,null,null,null,null,null,null,null,null,null,null,null,null,null,null,null,null,null,null,null,null,null,null,null,null,null,null,null,null,null,null,null,null,null,null,null,null,null,null,null,null,null,null,null,null,null,null,null,null,null,null,null,null,"MV_80_E"]
[5088576,null,null,null,null,null,null,null,null,null,null,null,null,null,null,null,null,null,null,null,null,null,null,null,null,null,null,null,null,null,null,null,null,null,null,null,null,null,null,null,null,null,null,null,null,null,null,null,null,null,null,null,null,"MV_80_E"]
[5088609,null,null,null,null,null,null,null,null,null,null,null,null,null,null,null,null,null,null,null,null,null,null,null,null,null,null,null,null,null,null,null,null,null,null,null,null,null,null,null,null,null,null,null,null,null,null,null,null,null,null,null,null,"MV_80_E"]
[5088662,null,null,null,null,null,null,null,null,null,null,null,null,null,null,null,null,null,null,null,null,null,null,null,null,null,null,null,null,null,null,null,null,null,null,null,null,null,null,null,null,null,null,null,null,null,null,null,null,null,null,null,null,"MV_80_E"]
[5088695,null,null,null,null,null,null,null,null,null,null,null,null,null,null,null,null,null,null,null,null,null,null,null,null,null,null,null,null,null,null,null,null,null,null,null,null,null,null,null,null,null,null,null,null,null,null,null,null,null,null,null,null,"MV_80_E"]
[5113951,null,null,null,null,null,null,null,null,null,null,null,null,null,null,null,null,null,null,null,null,null,null,null,null,null,null,null,null,null,null,null,null,null,null,null,null,null,null,null,null,null,null,null,null,null,null,null,null,null,null,null,null,"MV_80_E"]
[5114004,null,null,null,null,null,null,null,null,null,null,null,null,null,null,null,null,null,null,null,null,null,null,null,null,null,null,null,null,null,null,null,null,null,null,null,null,null,null,null,null,null,null,null,null,null,null,null,null,null,null,null,"T4","LED_18"]
[5114032,null,null,null,null,null,null,null,null,null,null,null,null,null,null,null,null,null,null,null,null,null,null,null,null,null,null,null,null,null,null,null,null,null,null,null,null,null,null,null,null,null,null,null,null,null,null,null,null,null,null,null,"T4","LED_18"]
[5114081,null,null,null,null,null,null,null,null,null,null,null,null,null,null,null,null,null,null,null,null,null,null,null,null,null,null,null,null,null,null,null,null,null,null,null,null,null,null,null,null,null,null,null,null,null,null,null,null,null,null,null,"T4","LED_18"]
[5115876,null,null,null,null,null,null,null,null,null,null,null,null,null,null,null,null,null,null,null,null,null,null,null,null,null,null,null,null,null,null,null,null,null,null,null,null,null,null,null,null,null,null,null,null,null,null,null,null,null,null,null,null,"HPS_100_T"]
[5115964,null,null,null,null,null,null,null,null,null,null,null,null,null,null,null,null,null,null,null,null,null,null,null,null,null,null,null,null,null,null,null,null,null,null,null,null,null,null,null,null,null,null,null,null,null,null,null,null,null,null,null,null,"MV_80_E"]
[5116014,null,null,null,null,null,null,null,null,null,null,null,null,null,null,null,null,null,null,null,null,null,null,null,null,null,null,null,null,null,null,null,null,null,null,null,null,null,null,null,null,null,null,null,null,null,null,null,null,null,null,null,"T4","MV_80_E"]
[5116020,null,null,null,null,null,null,null,null,null,null,null,null,null,null,null,null,null,null,null,null,null,null,null,null,null,null,null,null,null,null,null,null,null,null,null,null,null,null,null,null,null,null,null,null,null,null,null,null,null,null,null,"T4","MV_80_E"]
[5116079,null,null,null,null,null,null,null,null,null,null,null,null,null,null,null,null,null,null,null,null,null,null,null,null,null,null,null,null,null,null,null,null,null,null,null,null,null,null,null,null,null,null,null,null,null,null,null,null,null,null,null,"T4","MV_80_E"]
[5116128,null,null,null,null,null,null,null,null,null,null,null,null,null,null,null,null,null,null,null,null,null,null,null,null,null,null,null,null,null,null,null,null,null,null,null,null,null,null,null,null,null,null,null,null,null,null,null,null,null,null,null,"T4","CFL_42"]
[5116165,null,null,null,null,null,null,null,null,null,null,null,null,null,null,null,null,null,null,null,null,null,null,null,null,null,null,null,null,null,null,null,null,null,null,null,null,null,null,null,null,null,null,null,null,null,null,null,null,null,null,null,null,"CFL_42"]
[5116214,null,null,null,null,null,null,null,null,null,null,null,null,null,null,null,null,null,null,null,null,null,null,null,null,null,null,null,null,null,null,null,null,null,null,null,null,null,null,null,null,null,null,null,null,null,null,null,null,null,null,null,"T4","CFL_42"]
[5116282,null,null,null,null,null,null,null,null,null,null,null,null,null,null,null,null,null,null,null,null,null,null,null,null,null,null,null,null,null,null,null,null,null,null,null,null,null,null,null,null,null,null,null,null,null,null,null,null,null,null,null,"T4","CFL_42"]
[5116330,null,null,null,null,null,null,null,null,null,null,null,null,null,null,null,null,null,null,null,null,null,null,null,null,null,null,null,null,null,null,null,null,null,null,null,null,null,null,null,null,null,null,null,null,null,null,null,null,null,null,null,null,"MV_80_E"]
[5116383,null,null,null,null,null,null,null,null,null,null,null,null,null,null,null,null,null,null,null,null,null,null,null,null,null,null,null,null,null,null,null,null,null,null,null,null,null,null,null,null,null,null,null,null,null,null,null,null,null,null,null,null,"MV_80_E"]
[5116437,null,null,null,null,null,null,null,null,null,null,null,null,null,null,null,null,null,null,null,null,null,null,null,null,null,null,null,null,null,null,null,null,null,null,null,null,null,null,null,null,null,null,null,null,null,null,null,null,null,null,null,null,"MV_80_E"]
[5116504,null,null,null,null,null,null,null,null,null,null,null,null,null,null,null,null,null,null,null,null,null,null,null,null,null,null,null,null,null,null,null,null,null,null,null,null,null,null,null,null,null,null,null,null,null,null,null,null,null,null,null,null,"MV_80_E"]
[5116632,null,null,null,null,null,null,null,null,null,null,null,null,null,null,null,null,null,null,null,null,null,null,null,null,null,null,null,null,null,null,null,null,null,null,null,null,null,null,null,null,null,null,null,null,null,null,null,null,null,null,null,null,"MV_80_E"]
[5116668,null,null,null,null,null,null,null,null,null,null,null,null,null,null,null,null,null,null,null,null,null,null,null,null,null,null,null,null,null,null,null,null,null,null,null,null,null,null,null,null,null,null,null,null,null,null,null,null,null,null,null,null,"MV_80_E"]
[5116713,null,null,null,null,null,null,null,null,null,null,null,null,null,null,null,null,null,null,null,null,null,null,null,null,null,null,null,null,null,null,null,null,null,null,null,null,null,null,null,null,null,null,null,null,null,null,null,null,null,null,null,null,"MV_80_E"]
[5116748,null,null,null,null,null,null,null,null,null,null,null,null,null,null,null,null,null,null,null,null,null,null,null,null,null,null,null,null,null,null,null,null,null,null,null,null,null,null,null,null,null,null,null,null,null,null,null,null,null,null,null,null,"MV_80_E"]
[5119156,null,null,null,null,null,null,null,null,null,null,null,null,null,null,null,null,null,null,null,null,null,null,null,null,null,null,null,null,null,null,null,null,null,null,null,null,null,null,null,null,null,null,null,null,null,null,null,null,null,null,null,"T4","LED_18"]
[5119211,null,null,null,null,null,null,null,null,null,null,null,null,null,null,null,null,null,null,null,null,null,null,null,null,null,null,null,null,null,null,null,null,null,null,null,null,null,null,null,null,null,null,null,null,null,null,null,null,null,null,null,"T4","LED_18"]
[5119244,null,null,null,null,null,null,null,null,null,null,null,null,null,null,null,null,null,null,null,null,null,null,null,null,null,null,null,null,null,null,null,null,null,null,null,null,null,null,null,null,null,null,null,null,null,null,null,null,null,null,null,"T4","LED_18"]
[5119292,null,null,null,null,null,null,null,null,null,null,null,null,null,null,null,null,null,null,null,null,null,null,null,null,null,null,null,null,null,null,null,null,null,null,null,null,null,null,null,null,null,null,null,null,null,null,null,null,null,null,null,null,"LED_18"]
[5119326,null,null,null,null,null,null,null,null,null,null,null,null,null,null,null,null,null,null,null,null,null,null,null,null,null,null,null,null,null,null,null,null,null,null,null,null,null,null,null,null,null,null,null,null,null,null,null,null,null,null,null,"T4","LED_18"]
[5119359,null,null,null,null,null,null,null,null,null,null,null,null,null,null,null,null,null,null,null,null,null,null,null,null,null,null,null,null,null,null,null,null,null,null,null,null,null,null,null,null,null,null,null,null,null,null,null,null,null,null,null,"T5","LED_18"]
[5119412,null,null,null,null,null,null,null,null,null,null,null,null,null,null,null,null,null,null,null,null,null,null,null,null,null,null,null,null,null,null,null,null,null,null,null,null,null,null,null,null,null,null,null,null,null,null,null,null,null,null,null,"T4","LED_18"]
[5119494,null,null,null,null,null,null,null,null,null,null,null,null,null,null,null,null,null,null,null,null,null,null,null,null,null,null,null,null,null,null,null,null,null,null,null,null,null,null,null,null,null,null,null,null,null,null,null,null,null,null,null,"T4","LED_18"]
[5119533,null,null,null,null,null,null,null,null,null,null,null,null,null,null,null,null,null,null,null,null,null,null,null,null,null,null,null,null,null,null,null,null,null,null,null,null,null,null,null,null,null,null,null,null,null,null,null,null,null,null,null,null,"MV_80_E"]
[5119596,null,null,null,null,null,null,null,null,null,null,null,null,null,null,null,null,null,null,null,null,null,null,null,null,null,null,null,null,null,null,null,null,null,null,null,null,null,null,null,null,null,null,null,null,null,null,null,null,null,null,null,null,"LED_18"]
[5119614,null,null,null,null,null,null,null,null,null,null,null,null,null,null,null,null,null,null,null,null,null,null,null,null,null,null,null,null,null,null,null,null,null,null,null,null,null,null,null,null,null,null,null,null,null,null,null,null,null,null,null,null,"LED_18"]
[5122110,null,null,null,null,null,null,null,null,null,null,null,null,null,null,null,null,null,null,null,null,null,null,null,null,null,null,null,null,null,null,null,null,null,null,null,null,null,null,null,null,null,null,null,null,null,null,null,null,null,null,null,"T4","LED_18"]
[5122204,null,null,null,null,null,null,null,null,null,null,null,null,null,null,null,null,null,null,null,null,null,null,null,null,null,null,null,null,null,null,null,null,null,null,null,null,null,null,null,null,null,null,null,null,null,null,null,null,null,null,null,"T4","LED_18"]
[5122237,null,null,null,null,null,null,null,null,null,null,null,null,null,null,null,null,null,null,null,null,null,null,null,null,null,null,null,null,null,null,null,null,null,null,null,null,null,null,null,null,null,null,null,null,null,null,null,null,null,null,null,"T4","LED_18"]
[5122286,null,null,null,null,null,null,null,null,null,null,null,null,null,null,null,null,null,null,null,null,null,null,null,null,null,null,null,null,null,null,null,null,null,null,null,null,null,null,null,null,null,null,null,null,null,null,null,null,null,null,null,"T4","LED_18"]
[5122388,null,null,null,null,null,null,null,null,null,null,null,null,null,null,null,null,null,null,null,null,null,null,null,null,null,null,null,null,null,null,null,null,null,null,null,null,null,null,null,null,null,null,null,null,null,null,null,null,null,null,null,"T4","LED_18"]
[5122406,null,null,null,null,null,null,null,null,null,null,null,null,null,null,null,null,null,null,null,null,null,null,null,null,null,null,null,null,null,null,null,null,null,null,null,null,null,null,null,null,null,null,null,null,null,null,null,null,null,null,null,"T4","LED_18"]
[5122487,null,null,null,null,null,null,null,null,null,null,null,null,null,null,null,null,null,null,null,null,null,null,null,null,null,null,null,null,null,null,null,null,null,null,null,null,null,null,null,null,null,null,null,null,null,null,null,null,null,null,null,null,"LED_18"]
[5122520,null,null,null,null,null,null,null,null,null,null,null,null,null,null,null,null,null,null,null,null,null,null,null,null,null,null,null,null,null,null,null,null,null,null,null,null,null,null,null,null,null,null,null,null,null,null,null,null,null,null,null,"T4","LED_18"]
[5122569,null,null,null,null,null,null,null,null,null,null,null,null,null,null,null,null,null,null,null,null,null,null,null,null,null,null,null,null,null,null,null,null,null,null,null,null,null,null,null,null,null,null,null,null,null,null,null,null,null,null,null,"T4","LED_18"]
[5122599,null,null,null,null,null,null,null,null,null,null,null,null,null,null,null,null,null,null,null,null,null,null,null,null,null,null,null,null,null,null,null,null,null,null,null,null,null,null,null,null,null,null,null,null,null,null,null,null,null,null,null,"T4","LED_18"]
[5122634,null,null,null,null,null,null,null,null,null,null,null,null,null,null,null,null,null,null,null,null,null,null,null,null,null,null,null,null,null,null,null,null,null,null,null,null,null,null,null,null,null,null,null,null,null,null,null,null,null,null,null,"T4","LED_18"]
[5122683,null,null,null,null,null,null,null,null,null,null,null,null,null,null,null,null,null,null,null,null,null,null,null,null,null,null,null,null,null,null,null,null,null,null,null,null,null,null,null,null,null,null,null,null,null,null,null,null,null,null,null,"TB","LED_18"]
[5122764,null,null,null,null,null,null,null,null,null,null,null,null,null,null,null,null,null,null,null,null,null,null,null,null,null,null,null,null,null,null,null,null,null,null,null,null,null,null,null,null,null,null,null,null,null,null,null,null,null,null,null,"T4","LED_18"]
[5122813,null,null,null,null,null,null,null,null,null,null,null,null,null,null,null,null,null,null,null,null,null,null,null,null,null,null,null,null,null,null,null,null,null,null,null,null,null,null,null,null,null,null,null,null,null,null,null,null,null,null,null,"T4","LED_18"]
[5122846,null,null,null,null,null,null,null,null,null,null,null,null,null,null,null,null,null,null,null,null,null,null,null,null,null,null,null,null,null,null,null,null,null,null,null,null,null,null,null,null,null,null,null,null,null,null,null,null,null,null,null,"T4","LED_18"]
[5122892,null,null,null,null,null,null,null,null,null,null,null,null,null,null,null,null,null,null,null,null,null,null,null,null,null,null,null,null,null,null,null,null,null,null,null,null,null,null,null,null,null,null,null,null,null,null,null,null,null,null,null,"T4","LED_18"]
[5122927,null,null,null,null,null,null,null,null,null,null,null,null,null,null,null,null,null,null,null,null,null,null,null,null,null,null,null,null,null,null,null,null,null,null,null,null,null,null,null,null,null,null,null,null,null,null,null,null,null,null,null,"T4","LED_18"]
[5123008,null,null,null,null,null,null,null,null,null,null,null,null,null,null,null,null,null,null,null,null,null,null,null,null,null,null,null,null,null,null,null,null,null,null,null,null,null,null,null,null,null,null,null,null,null,null,null,null,null,null,null,"T4","LED_18"]
[5123041,null,null,null,null,null,null,null,null,null,null,null,null,null,null,null,null,null,null,null,null,null,null,null,null,null,null,null,null,null,null,null,null,null,null,null,null,null,null,null,null,null,null,null,null,null,null,null,null,null,null,null,null,"LED_18"]
[5123090,null,null,null,null,null,null,null,null,null,null,null,null,null,null,null,null,null,null,null,null,null,null,null,null,null,null,null,null,null,null,null,null,null,null,null,null,null,null,null,null,null,null,null,null,null,null,null,null,null,null,null,"T4","LED_18"]
[5123123,null,null,null,null,null,null,null,null,null,null,null,null,null,null,null,null,null,null,null,null,null,null,null,null,null,null,null,null,null,null,null,null,null,null,null,null,null,null,null,null,null,null,null,null,null,null,null,null,null,null,null,null,"LED_18"]
[5127336,null,null,null,null,null,null,null,null,null,null,null,null,null,null,null,null,null,null,null,null,null,null,null,null,null,null,null,null,null,null,null,null,null,null,null,null,null,null,null,null,null,null,null,null,null,null,null,null,null,null,null,"T4","LED_18"]
[5127412,null,null,null,null,null,null,null,null,null,null,null,null,null,null,null,null,null,null,null,null,null,null,null,null,null,null,null,null,null,null,null,null,null,null,null,null,null,null,null,null,null,null,null,null,null,null,null,null,null,null,null,"T4","LED_18"]
[5127450,null,null,null,null,null,null,null,null,null,null,null,null,null,null,null,null,null,null,null,null,null,null,null,null,null,null,null,null,null,null,null,null,null,null,null,null,null,null,null,null,null,null,null,null,null,null,null,null,null,null,null,"T4","LED_18"]
[5127514,null,null,null,null,null,null,null,null,null,null,null,null,null,null,null,null,null,null,null,null,null,null,null,null,null,null,null,null,null,null,null,null,null,null,null,null,null,null,null,null,null,null,null,null,null,null,null,null,null,null,null,null,"LED_18"]
[5127547,null,null,null,null,null,null,null,null,null,null,null,null,null,null,null,null,null,null,null,null,null,null,null,null,null,null,null,null,null,null,null,null,null,null,null,null,null,null,null,null,null,null,null,null,null,null,null,null,null,null,null,"T4","LED_18"]
[5127596,null,null,null,null,null,null,null,null,null,null,null,null,null,null,null,null,null,null,null,null,null,null,null,null,null,null,null,null,null,null,null,null,null,null,null,null,null,null,null,null,null,null,null,null,null,null,null,null,null,null,null,"T4","LED_18"]
[5127670,null,null,null,null,null,null,null,null,null,null,null,null,null,null,null,null,null,null,null,null,null,null,null,null,null,null,null,null,null,null,null,null,null,null,null,null,null,null,null,null,null,null,null,null,null,null,null,null,null,null,null,null,"LED_18"]
[5127733,null,null,null,null,null,null,null,null,null,null,null,null,null,null,null,null,null,null,null,null,null,null,null,null,null,null,null,null,null,null,null,null,null,null,null,null,null,null,null,null,null,null,null,null,null,null,null,null,null,null,null,"T4","LED_18"]
[5127782,null,null,null,null,null,null,null,null,null,null,null,null,null,null,null,null,null,null,null,null,null,null,null,null,null,null,null,null,null,null,null,null,null,null,null,null,null,null,null,null,null,null,null,null,null,null,null,null,null,null,null,"T4","LED_18"]
[5127815,null,null,null,null,null,null,null,null,null,null,null,null,null,null,null,null,null,null,null,null,null,null,null,null,null,null,null,null,null,null,null,null,null,null,null,null,null,null,null,null,null,null,null,null,null,null,null,null,null,null,null,"T4","LED_18"]
[5127850,null,null,null,null,null,null,null,null,null,null,null,null,null,null,null,null,null,null,null,null,null,null,null,null,null,null,null,null,null,null,null,null,null,null,null,null,null,null,null,null,null,null,null,null,null,null,null,null,null,null,null,"T4","LED_18"]
[5127912,null,null,null,null,null,null,null,null,null,null,null,null,null,null,null,null,null,null,null,null,null,null,null,null,null,null,null,null,null,null,null,null,null,null,null,null,null,null,null,null,null,null,null,null,null,null,null,null,null,null,null,"R5","LED_18"]
[5127985,null,null,null,null,null,null,null,null,null,null,null,null,null,null,null,null,null,null,null,null,null,null,null,null,null,null,null,null,null,null,null,null,null,null,null,null,null,null,null,null,null,null,null,null,null,null,null,null,null,null,null,"T4","LED_18"]
[5128054,null,null,null,null,null,null,null,null,null,null,null,null,null,null,null,null,null,null,null,null,null,null,null,null,null,null,null,null,null,null,null,null,null,null,null,null,null,null,null,null,null,null,null,null,null,null,null,null,null,null,null,"T4","LED_18"]
[5128087,null,null,null,null,null,null,null,null,null,null,null,null,null,null,null,null,null,null,null,null,null,null,null,null,null,null,null,null,null,null,null,null,null,null,null,null,null,null,null,null,null,null,null,null,null,null,null,null,null,null,null,"T4","LED_18"]
[5128120,null,null,null,null,null,null,null,null,null,null,null,null,null,null,null,null,null,null,null,null,null,null,null,null,null,null,null,null,null,null,null,null,null,null,null,null,null,null,null,null,null,null,null,null,null,null,null,null,null,null,null,"T4","LED_18"]
[5128169,null,null,null,null,null,null,null,null,null,null,null,null,null,null,null,null,null,null,null,null,null,null,null,null,null,null,null,null,null,null,null,null,null,null,null,null,null,null,null,null,null,null,null,null,null,null,null,null,null,null,null,"T4","LED_18"]
[5128250,null,null,null,null,null,null,null,null,null,null,null,null,null,null,null,null,null,null,null,null,null,null,null,null,null,null,null,null,null,null,null,null,null,null,null,null,null,null,null,null,null,null,null,null,null,null,null,null,null,null,null,"T4","LED_18"]
[5128325,null,null,null,null,null,null,null,null,null,null,null,null,null,null,null,null,null,null,null,null,null,null,null,null,null,null,null,null,null,null,null,null,null,null,null,null,null,null,null,null,null,null,null,null,null,null,null,null,null,null,null,"T4","LED_18"]
[5128370,null,null,null,null,null,null,null,null,null,null,null,null,null,null,null,null,null,null,null,null,null,null,null,null,null,null,null,null,null,null,null,null,null,null,null,null,null,null,null,null,null,null,null,null,null,null,null,null,null,null,null,"T3","LED_18"]
[5128403,null,null,null,null,null,null,null,null,null,null,null,null,null,null,null,null,null,null,null,null,null,null,null,null,null,null,null,null,null,null,null,null,null,null,null,null,null,null,null,null,null,null,null,null,null,null,null,null,null,null,null,"T4","LED_18"]
[5128452,null,null,null,null,null,null,null,null,null,null,null,null,null,null,null,null,null,null,null,null,null,null,null,null,null,null,null,null,null,null,null,null,null,null,null,null,null,null,null,null,null,null,null,null,null,null,null,null,null,null,null,"R4","LED_18"]
[5128485,null,null,null,null,null,null,null,null,null,null,null,null,null,null,null,null,null,null,null,null,null,null,null,null,null,null,null,null,null,null,null,null,null,null,null,null,null,null,null,null,null,null,null,null,null,null,null,null,null,null,null,"T4","LED_18"]
[5128546,null,null,null,null,null,null,null,null,null,null,null,null,null,null,null,null,null,null,null,null,null,null,null,null,null,null,null,null,null,null,null,null,null,null,null,null,null,null,null,null,null,null,null,null,null,null,null,null,null,null,null,"T3","LED_18"]
[5128619,null,null,null,null,null,null,null,null,null,null,null,null,null,null,null,null,null,null,null,null,null,null,null,null,null,null,null,null,null,null,null,null,null,null,null,null,null,null,null,null,null,null,null,null,null,null,null,null,null,null,null,"T3","LED_18"]
[5128652,null,null,null,null,null,null,null,null,null,null,null,null,null,null,null,null,null,null,null,null,null,null,null,null,null,null,null,null,null,null,null,null,null,null,null,null,null,null,null,null,null,null,null,null,null,null,null,null,null,null,null,"T3","LED_18"]
[5128701,null,null,null,null,null,null,null,null,null,null,null,null,null,null,null,null,null,null,null,null,null,null,null,null,null,null,null,null,null,null,null,null,null,null,null,null,null,null,null,null,null,null,null,null,null,null,null,null,null,null,null,"T3","LED_18"]
[5132816,null,null,null,null,null,null,null,null,null,null,null,null,null,null,null,null,null,null,null,null,null,null,null,null,null,null,null,null,null,null,null,null,null,null,null,null,null,null,null,null,null,null,null,null,null,null,null,null,null,null,null,"T4","LED_18"]
[5132906,null,null,null,null,null,null,null,null,null,null,null,null,null,null,null,null,null,null,null,null,null,null,null,null,null,null,null,null,null,null,null,null,null,null,null,null,null,null,null,null,null,null,null,null,null,null,null,null,null,null,null,"T4","LED_18"]
[5132925,null,null,null,null,null,null,null,null,null,null,null,null,null,null,null,null,null,null,null,null,null,null,null,null,null,null,null,null,null,null,null,null,null,null,null,null,null,null,null,null,null,null,null,null,null,null,null,null,null,null,null,"T5","LED_18"]
[5132988,null,null,null,null,null,null,null,null,null,null,null,null,null,null,null,null,null,null,null,null,null,null,null,null,null,null,null,null,null,null,null,null,null,null,null,null,null,null,null,null,null,null,null,null,null,null,null,null,null,null,null,"T4","LED_18"]
[5133021,null,null,null,null,null,null,null,null,null,null,null,null,null,null,null,null,null,null,null,null,null,null,null,null,null,null,null,null,null,null,null,null,null,null,null,null,null,null,null,null,null,null,null,null,null,null,null,null,null,null,null,"T4","LED_18"]
[5133070,null,null,null,null,null,null,null,null,null,null,null,null,null,null,null,null,null,null,null,null,null,null,null,null,null,null,null,null,null,null,null,null,null,null,null,null,null,null,null,null,null,null,null,null,null,null,null,null,null,null,null,"T3","LED_18"]
[5133216,null,null,null,null,null,null,null,null,null,null,null,null,null,null,null,null,null,null,null,null,null,null,null,null,null,null,null,null,null,null,null,null,null,null,null,null,null,null,null,null,null,null,null,null,null,null,null,null,null,null,null,"T4","LED_18"]
[5133217,null,null,null,null,null,null,null,null,null,null,null,null,null,null,null,null,null,null,null,null,null,null,null,null,null,null,null,null,null,null,null,null,null,null,null,null,null,null,null,null,null,null,null,null,null,null,null,null,null,null,null,"T4","LED_18"]
[5133284,null,null,null,null,null,null,null,null,null,null,null,null,null,null,null,null,null,null,null,null,null,null,null,null,null,null,null,null,null,null,null,null,null,null,null,null,null,null,null,null,null,null,null,null,null,null,null,null,null,null,null,"T4","LED_18"]
[5133344,null,null,null,null,null,null,null,null,null,null,null,null,null,null,null,null,null,null,null,null,null,null,null,null,null,null,null,null,null,null,null,null,null,null,null,null,null,null,null,null,null,null,null,null,null,null,null,null,null,null,null,"T4","LED_18"]
[5133395,null,null,null,null,null,null,null,null,null,null,null,null,null,null,null,null,null,null,null,null,null,null,null,null,null,null,null,null,null,null,null,null,null,null,null,null,null,null,null,null,null,null,null,null,null,null,null,null,null,null,null,"T4","LED_18"]
[5133493,null,null,null,null,null,null,null,null,null,null,null,null,null,null,null,null,null,null,null,null,null,null,null,null,null,null,null,null,null,null,null,null,null,null,null,null,null,null,null,null,null,null,null,null,null,null,null,null,null,null,null,null,"LED_18"]
[5133542,null,null,null,null,null,null,null,null,null,null,null,null,null,null,null,null,null,null,null,null,null,null,null,null,null,null,null,null,null,null,null,null,null,null,null,null,null,null,null,null,null,null,null,null,null,null,null,null,null,null,null,"T4","LED_18"]
[5133634,null,null,null,null,null,null,null,null,null,null,null,null,null,null,null,null,null,null,null,null,null,null,null,null,null,null,null,null,null,null,null,null,null,null,null,null,null,null,null,null,null,null,null,null,null,null,null,null,null,null,null,"T4","LED_18"]
[5133669,null,null,null,null,null,null,null,null,null,null,null,null,null,null,null,null,null,null,null,null,null,null,null,null,null,null,null,null,null,null,null,null,null,null,null,null,null,null,null,null,null,null,null,null,null,null,null,null,null,null,null,"T4","MV_80_E"]
[5133716,null,null,null,null,null,null,null,null,null,null,null,null,null,null,null,null,null,null,null,null,null,null,null,null,null,null,null,null,null,null,null,null,null,null,null,null,null,null,null,null,null,null,null,null,null,null,null,null,null,null,null,"T4","LED_18"]
[5133761,null,null,null,null,null,null,null,null,null,null,null,null,null,null,null,null,null,null,null,null,null,null,null,null,null,null,null,null,null,null,null,null,null,null,null,null,null,null,null,null,null,null,null,null,null,null,null,null,null,null,null,"T4","LED_18"]
[5133854,null,null,null,null,null,null,null,null,null,null,null,null,null,null,null,null,null,null,null,null,null,null,null,null,null,null,null,null,null,null,null,null,null,null,null,null,null,null,null,null,null,null,null,null,null,null,null,null,null,null,null,"T3","LED_18"]
[5133904,null,null,null,null,null,null,null,null,null,null,null,null,null,null,null,null,null,null,null,null,null,null,null,null,null,null,null,null,null,null,null,null,null,null,null,null,null,null,null,null,null,null,null,null,null,null,null,null,null,null,null,null,"MV_80_E"]
[5133951,null,null,null,null,null,null,null,null,null,null,null,null,null,null,null,null,null,null,null,null,null,null,null,null,null,null,null,null,null,null,null,null,null,null,null,null,null,null,null,null,null,null,null,null,null,null,null,null,null,null,null,"T4","LED_18"]
[5133997,null,null,null,null,null,null,null,null,null,null,null,null,null,null,null,null,null,null,null,null,null,null,null,null,null,null,null,null,null,null,null,null,null,null,null,null,null,null,null,null,null,null,null,null,null,null,null,null,null,null,null,null,"MV_80_E"]
[5134043,null,null,null,null,null,null,null,null,null,null,null,null,null,null,null,null,null,null,null,null,null,null,null,null,null,null,null,null,null,null,null,null,null,null,null,null,null,null,null,null,null,null,null,null,null,null,null,null,null,null,null,"T4","LED_18"]
[5134130,null,null,null,null,null,null,null,null,null,null,null,null,null,null,null,null,null,null,null,null,null,null,null,null,null,null,null,null,null,null,null,null,null,null,null,null,null,null,null,null,null,null,null,null,null,null,null,null,null,null,null,"T4","LED_18"]
[5134131,null,null,null,null,null,null,null,null,null,null,null,null,null,null,null,null,null,null,null,null,null,null,null,null,null,null,null,null,null,null,null,null,null,null,null,null,null,null,null,null,null,null,null,null,null,null,null,null,null,null,null,"T4","LED_18"]
[5134216,null,null,null,null,null,null,null,null,null,null,null,null,null,null,null,null,null,null,null,null,null,null,null,null,null,null,null,null,null,null,null,null,null,null,null,null,null,null,null,null,null,null,null,null,null,null,null,null,null,null,null,"T4","LED_18"]
[5134276,null,null,null,null,null,null,null,null,null,null,null,null,null,null,null,null,null,null,null,null,null,null,null,null,null,null,null,null,null,null,null,null,null,null,null,null,null,null,null,null,null,null,null,null,null,null,null,null,null,null,null,"T4","LED_18"]
[5134298,null,null,null,null,null,null,null,null,null,null,null,null,null,null,null,null,null,null,null,null,null,null,null,null,null,null,null,null,null,null,null,null,null,null,null,null,null,null,null,null,null,null,null,null,null,null,null,null,null,null,null,"T4","LED_18"]
[5134340,null,null,null,null,null,null,null,null,null,null,null,null,null,null,null,null,null,null,null,null,null,null,null,null,null,null,null,null,null,null,null,null,null,null,null,null,null,null,null,null,null,null,null,null,null,null,null,null,null,null,null,"T4","LED_18"]
[5134390,null,null,null,null,null,null,null,null,null,null,null,null,null,null,null,null,null,null,null,null,null,null,null,null,null,null,null,null,null,null,null,null,null,null,null,null,null,null,null,null,null,null,null,null,null,null,null,null,null,null,null,"T4","LED_18"]
[5134478,null,null,null,null,null,null,null,null,null,null,null,null,null,null,null,null,null,null,null,null,null,null,null,null,null,null,null,null,null,null,null,null,null,null,null,null,null,null,null,null,null,null,null,null,null,null,null,null,null,null,null,"T3","LED_18"]
[5134511,null,null,null,null,null,null,null,null,null,null,null,null,null,null,null,null,null,null,null,null,null,null,null,null,null,null,null,null,null,null,null,null,null,null,null,null,null,null,null,null,null,null,null,null,null,null,null,null,null,null,null,"T3","LED_18"]
[5134540,null,null,null,null,null,null,null,null,null,null,null,null,null,null,null,null,null,null,null,null,null,null,null,null,null,null,null,null,null,null,null,null,null,null,null,null,null,null,null,null,null,null,null,null,null,null,null,null,null,null,null,null,"LED_18"]
[5137538,null,null,null,null,null,null,null,null,null,null,null,null,null,null,null,null,null,null,null,null,null,null,null,null,null,null,null,null,null,null,null,null,null,null,null,null,null,null,null,null,null,null,null,null,null,null,null,null,null,null,null,null,"HPS_150_T"]
[5137622,null,null,null,null,null,null,null,null,null,null,null,null,null,null,null,null,null,null,null,null,null,null,null,null,null,null,null,null,null,null,null,null,null,null,null,null,null,null,null,null,null,null,null,null,null,null,null,null,null,null,null,"T4","CFL_42"]
[5137801,null,null,null,null,null,null,null,null,null,null,null,null,null,null,null,null,null,null,null,null,null,null,null,null,null,null,null,null,null,null,null,null,null,null,null,null,null,null,null,null,null,null,null,null,null,null,null,null,null,null,null,"T4","MV_80_E"]
[5137834,null,null,null,null,null,null,null,null,null,null,null,null,null,null,null,null,null,null,null,null,null,null,null,null,null,null,null,null,null,null,null,null,null,null,null,null,null,null,null,null,null,null,null,null,null,null,null,null,null,null,null,"T4","CFL_42"]
[5137883,null,null,null,null,null,null,null,null,null,null,null,null,null,null,null,null,null,null,null,null,null,null,null,null,null,null,null,null,null,null,null,null,null,null,null,null,null,null,null,null,null,null,null,null,null,null,null,null,null,null,null,null,"MV_80_E"]
[5137912,null,null,null,null,null,null,null,null,null,null,null,null,null,null,null,null,null,null,null,null,null,null,null,null,null,null,null,null,null,null,null,null,null,null,null,null,null,null,null,null,null,null,null,null,null,null,null,null,null,null,null,null,"MV_80_E"]
[5138001,null,null,null,null,null,null,null,null,null,null,null,null,null,null,null,null,null,null,null,null,null,null,null,null,null,null,null,null,null,null,null,null,null,null,null,null,null,null,null,null,null,null,null,null,null,null,null,null,null,null,null,"T4","MV_80_E"]
[5138002,null,null,null,null,null,null,null,null,null,null,null,null,null,null,null,null,null,null,null,null,null,null,null,null,null,null,null,null,null,null,null,null,null,null,null,null,null,null,null,null,null,null,null,null,null,null,null,null,null,null,null,"T4","MV_80_E"]
[5138084,null,null,null,null,null,null,null,null,null,null,null,null,null,null,null,null,null,null,null,null,null,null,null,null,null,null,null,null,null,null,null,null,null,null,null,null,null,null,null,null,null,null,null,null,null,null,null,null,null,null,null,"T4","MV_80_E"]
[5138138,null,null,null,null,null,null,null,null,null,null,null,null,null,null,null,null,null,null,null,null,null,null,null,null,null,null,null,null,null,null,null,null,null,null,null,null,null,null,null,null,null,null,null,null,null,null,null,null,null,null,null,"OTHER","HPS_400_T"]
[5138173,null,null,null,null,null,null,null,null,null,null,null,null,null,null,null,null,null,null,null,null,null,null,null,null,null,null,null,null,null,null,null,null,null,null,null,null,null,null,null,null,null,null,null,null,null,null,null,null,null,null,null,"T1","HPS_150_T"]
[5138225,null,null,null,null,null,null,null,null,null,null,null,null,null,null,null,null,null,null,null,null,null,null,null,null,null,null,null,null,null,null,null,null,null,null,null,null,null,null,null,null,null,null,null,null,null,null,null,null,null,null,null,"R7","HPS_150_T"]
[5138274,null,null,null,null,null,null,null,null,null,null,null,null,null,null,null,null,null,null,null,null,null,null,null,null,null,null,null,null,null,null,null,null,null,null,null,null,null,null,null,null,null,null,null,null,null,null,null,null,null,null,null,null,"MV_80_E"]
[5138357,null,null,null,null,null,null,null,null,null,null,null,null,null,null,null,null,null,null,null,null,null,null,null,null,null,null,null,null,null,null,null,null,null,null,null,null,null,null,null,null,null,null,null,null,null,null,null,null,null,null,null,"R4","MV_80_E"]
[5138406,null,null,null,null,null,null,null,null,null,null,null,null,null,null,null,null,null,null,null,null,null,null,null,null,null,null,null,null,null,null,null,null,null,null,null,null,null,null,null,null,null,null,null,null,null,null,null,null,null,null,null,null,"MV_80_E"]
[5138544,null,null,null,null,null,null,null,null,null,null,null,null,null,null,null,null,null,null,null,null,null,null,null,null,null,null,null,null,null,null,null,null,null,null,null,null,null,null,null,null,null,null,null,null,null,null,null,null,null,null,null,null,"MV_80_E"]
[5138603,null,null,null,null,null,null,null,null,null,null,null,null,null,null,null,null,null,null,null,null,null,null,null,null,null,null,null,null,null,null,null,null,null,null,null,null,null,null,null,null,null,null,null,null,null,null,null,null,null,null,null,null,"CFL_42"]
[5144969,null,null,null,null,null,null,null,null,null,null,null,null,null,null,null,null,null,null,null,null,null,null,null,null,null,null,null,null,null,null,null,null,null,null,null,null,null,null,null,null,null,null,null,null,null,null,null,null,null,null,null,"T4","LED_18"]
[5145042,null,null,null,null,null,null,null,null,null,null,null,null,null,null,null,null,null,null,null,null,null,null,null,null,null,null,null,null,null,null,null,null,null,null,null,null,null,null,null,null,null,null,null,null,null,null,null,null,null,null,null,"T3","LED_18"]
[5145075,null,null,null,null,null,null,null,null,null,null,null,null,null,null,null,null,null,null,null,null,null,null,null,null,null,null,null,null,null,null,null,null,null,null,null,null,null,null,null,null,null,null,null,null,null,null,null,null,null,null,null,"T3","LED_18"]
[5145124,null,null,null,null,null,null,null,null,null,null,null,null,null,null,null,null,null,null,null,null,null,null,null,null,null,null,null,null,null,null,null,null,null,null,null,null,null,null,null,null,null,null,null,null,null,null,null,null,null,null,null,"T4","LED_18"]
[5145157,null,null,null,null,null,null,null,null,null,null,null,null,null,null,null,null,null,null,null,null,null,null,null,null,null,null,null,null,null,null,null,null,null,null,null,null,null,null,null,null,null,null,null,null,null,null,null,null,null,null,null,"T4","LED_18"]
[5145227,null,null,null,null,null,null,null,null,null,null,null,null,null,null,null,null,null,null,null,null,null,null,null,null,null,null,null,null,null,null,null,null,null,null,null,null,null,null,null,null,null,null,null,null,null,null,null,null,null,null,null,"T5","LED_18"]
[5145238,null,null,null,null,null,null,null,null,null,null,null,null,null,null,null,null,null,null,null,null,null,null,null,null,null,null,null,null,null,null,null,null,null,null,null,null,null,null,null,null,null,null,null,null,null,null,null,null,null,null,null,null,"MV_80_E"]
[5158725,null,null,null,null,null,null,null,null,null,null,null,null,null,null,null,null,null,null,null,null,null,null,null,null,null,null,null,null,null,null,null,null,null,null,null,null,null,null,null,null,null,null,null,null,null,null,null,null,null,null,null,null,"MV_80_E"]
[5158794,null,null,null,null,null,null,null,null,null,null,null,null,null,null,null,null,null,null,null,null,null,null,null,null,null,null,null,null,null,null,null,null,null,null,null,null,null,null,null,null,null,null,null,null,null,null,null,null,null,null,null,"R4","MV_80_E"]
[5158986,null,null,null,null,null,null,null,null,null,null,null,null,null,null,null,null,null,null,null,null,null,null,null,null,null,null,null,null,null,null,null,null,null,null,null,null,null,null,null,null,null,null,null,null,null,null,null,null,null,null,null,null,"MV_80_E"]
[5159062,null,null,null,null,null,null,null,null,null,null,null,null,null,null,null,null,null,null,null,null,null,null,null,null,null,null,null,null,null,null,null,null,null,null,null,null,null,null,null,null,null,null,null,null,null,null,null,null,null,null,null,null,"MV_80_E"]
[5171158,null,null,null,null,null,null,null,null,null,null,null,null,null,null,null,null,null,null,null,null,null,null,null,null,null,null,null,null,null,null,null,null,null,null,null,null,null,null,null,null,null,null,null,null,null,null,null,null,null,null,null,null,"MV_80_E"]
[5006812,null,null,null,null,null,null,null,null,null,null,null,null,null,null,null,null,null,null,null,null,null,null,null,null,null,null,null,null,null,null,null,null,null,null,null,null,null,null,null,null,null,null,null,null,null,null,null,null,null,null,null,null,"MV_80_E"]
[5010599,null,null,null,null,null,null,null,null,null,null,null,null,null,null,null,null,null,null,null,null,null,null,null,null,null,null,null,null,null,null,null,null,null,null,null,null,null,null,null,null,null,null,null,null,null,null,null,null,null,null,null,"T4","CFL_42"]
[5012804,null,null,null,null,null,null,null,null,null,null,null,null,null,null,null,null,null,null,null,null,null,null,null,null,null,null,null,null,null,null,null,null,null,null,null,null,null,null,null,null,null,null,null,null,null,null,null,null,null,null,null,null,"HPS_400_T"]
[5013419,null,null,null,null,null,null,null,null,null,null,null,null,null,null,null,null,null,null,null,null,null,null,null,null,null,null,null,null,null,null,null,null,null,null,null,null,null,null,null,null,null,null,null,null,null,null,null,null,null,null,null,"T4","CFL_42"]
[5015284,null,null,null,null,null,null,null,null,null,null,null,null,null,null,null,null,null,null,null,null,null,null,null,null,null,null,null,null,null,null,null,null,null,null,null,null,null,null,null,null,null,null,null,null,null,null,null,null,null,null,null,"NULL","HPS_150_T"]
[5017768,null,null,null,null,null,null,null,null,null,null,null,null,null,null,null,null,null,null,null,null,null,null,null,null,null,null,null,null,null,null,null,null,null,null,null,null,null,null,null,null,null,null,null,null,null,null,null,null,null,null,null,null,"HPS_250_T"]
[5022229,null,null,null,null,null,null,null,null,null,null,null,null,null,null,null,null,null,null,null,null,null,null,null,null,null,null,null,null,null,null,null,null,null,null,null,null,null,null,null,null,null,null,null,null,null,null,null,null,null,null,null,"T4","MV_80_E"]
[5023993,null,null,null,null,null,null,null,null,null,null,null,null,null,null,null,null,null,null,null,null,null,null,null,null,null,null,null,null,null,null,null,null,null,null,null,null,null,null,null,null,null,null,null,null,null,null,null,null,null,null,null,"STANGER_BROWN","T4"]
[5024774,null,null,null,null,null,null,null,null,null,null,null,null,null,null,null,null,null,null,null,null,null,null,null,null,null,null,null,null,null,null,null,null,null,null,null,null,null,null,null,null,null,null,null,null,null,null,null,null,null,null,null,null,"MV_80_E"]
[5026131,null,null,null,null,null,null,null,null,null,null,null,null,null,null,null,null,null,null,null,null,null,null,null,null,null,null,null,null,null,null,null,null,null,null,null,null,null,null,null,null,null,null,null,null,null,null,null,null,null,null,null,"T4","MV_80_E"]
[5026943,null,null,null,null,null,null,null,null,null,null,null,null,null,null,null,null,null,null,null,null,null,null,null,null,null,null,null,null,null,null,null,null,null,null,null,null,null,null,null,null,null,null,null,null,null,null,null,null,null,null,null,null,"MV_80_E"]
[5029602,null,null,null,null,null,null,null,null,null,null,null,null,null,null,null,null,null,null,null,null,null,null,null,null,null,null,null,null,null,null,null,null,null,null,null,null,null,null,null,null,null,null,null,null,null,null,null,null,null,null,null,null,"HPS_150_T"]
[5032518,null,null,null,null,null,null,null,null,null,null,null,null,null,null,null,null,null,null,null,null,null,null,null,null,null,null,null,null,null,null,null,null,null,null,null,null,null,null,null,null,null,null,null,null,null,null,null,null,null,null,null,null,"MV_80_E"]
[5033041,null,null,null,null,null,null,null,null,null,null,null,null,null,null,null,null,null,null,null,null,null,null,null,null,null,null,null,null,null,null,null,null,null,null,null,null,null,null,null,null,null,null,null,null,null,null,null,null,null,null,null,null,"MV_80_E"]
[5033518,null,null,null,null,null,null,null,null,null,null,null,null,null,null,null,null,null,null,null,null,null,null,null,null,null,null,null,null,null,null,null,null,null,null,null,null,null,null,null,null,null,null,null,null,null,null,null,null,null,null,null,"T4","CFL_42"]
[5035253,null,null,null,null,null,null,null,null,null,null,null,null,null,null,null,null,null,null,null,null,null,null,null,null,null,null,null,null,null,null,null,null,null,null,null,null,null,null,null,null,null,null,null,null,null,null,null,null,null,null,null,"NULL","HPS_400_T"]
[5039206,null,null,null,null,null,null,null,null,null,null,null,null,null,null,null,null,null,null,null,null,null,null,null,null,null,null,null,null,null,null,null,null,null,null,null,null,null,null,null,null,null,null,null,null,null,null,null,null,null,null,null,null,"CFL_42"]
[5039366,null,null,null,null,null,null,null,null,null,null,null,null,null,null,null,null,null,null,null,null,null,null,null,null,null,null,null,null,null,null,null,null,null,null,null,null,null,null,null,null,null,null,null,null,null,null,null,null,null,null,null,null,"HPS_250_T"]
[5040904,null,null,null,null,null,null,null,null,null,null,null,null,null,null,null,null,null,null,null,null,null,null,null,null,null,null,null,null,null,null,null,null,null,null,null,null,null,null,null,null,null,null,null,null,null,null,null,null,null,null,null,null,"MV_80_E"]
[5042112,null,null,null,null,null,null,null,null,null,null,null,null,null,null,null,null,null,null,null,null,null,null,null,null,null,null,null,null,null,null,null,null,null,null,null,null,null,null,null,null,null,null,null,null,null,null,null,null,null,null,null,null,"HPS_250_E"]
[5043527,null,null,null,null,null,null,null,null,null,null,null,null,null,null,null,null,null,null,null,null,null,null,null,null,null,null,null,null,null,null,null,null,null,null,null,null,null,null,null,null,null,null,null,null,null,null,null,null,null,null,null,null,"MV_80_E"]
[5045389,null,null,null,null,null,null,null,null,null,null,null,null,null,null,null,null,null,null,null,null,null,null,null,null,null,null,null,null,null,null,null,null,null,null,null,null,null,null,null,null,null,null,null,null,null,null,null,null,null,null,null,null,"HPS_400_T"]
[5047747,null,null,null,null,null,null,null,null,null,null,null,null,null,null,null,null,null,null,null,null,null,null,null,null,null,null,null,null,null,null,null,null,null,null,null,null,null,null,null,null,null,null,null,null,null,null,null,null,null,null,null,"T4","MV_80_E"]
[5048532,null,null,null,null,null,null,null,null,null,null,null,null,null,null,null,null,null,null,null,null,null,null,null,null,null,null,null,null,null,null,null,null,null,null,null,null,null,null,null,null,null,null,null,null,null,null,null,null,null,null,null,null,"MV_80_E"]
[5049407,null,null,null,null,null,null,null,null,null,null,null,null,null,null,null,null,null,null,null,null,null,null,null,null,null,null,null,null,null,null,null,null,null,null,null,null,null,null,null,null,null,null,null,null,null,null,null,null,null,null,null,null,"CFL_42"]
[5050124,null,null,null,null,null,null,null,null,null,null,null,null,null,null,null,null,null,null,null,null,null,null,null,null,null,null,null,null,null,null,null,null,null,null,null,null,null,null,null,null,null,null,null,null,null,null,null,null,null,null,null,"NULL","MV_80_E"]
[5050990,null,null,null,null,null,null,null,null,null,null,null,null,null,null,null,null,null,null,null,null,null,null,null,null,null,null,null,null,null,null,null,null,null,null,null,null,null,null,null,null,null,null,null,null,null,null,null,null,null,null,null,null,"MV_80_E"]
[5052045,null,null,null,null,null,null,null,null,null,null,null,null,null,null,null,null,null,null,null,null,null,null,null,null,null,null,null,null,null,null,null,null,null,null,null,null,null,null,null,null,null,null,null,null,null,null,null,null,null,null,null,"R4","MV_80_E"]
[5053685,null,null,null,null,null,null,null,null,null,null,null,null,null,null,null,null,null,null,null,null,null,null,null,null,null,null,null,null,null,null,null,null,null,null,null,null,null,null,null,null,null,null,null,null,null,null,null,null,null,null,null,null,"HPS_250_T"]
[5054791,null,null,null,null,null,null,null,null,null,null,null,null,null,null,null,null,null,null,null,null,null,null,null,null,null,null,null,null,null,null,null,null,null,null,null,null,null,null,null,null,null,null,null,null,null,null,null,null,null,null,null,null,"MV_250_E"]
[5055288,null,null,null,null,null,null,null,null,null,null,null,null,null,null,null,null,null,null,null,null,null,null,null,null,null,null,null,null,null,null,null,null,null,null,null,null,null,null,null,null,null,null,null,null,null,null,null,null,null,null,null,null,"MV_80_E"]
[5057879,null,null,null,null,null,null,null,null,null,null,null,null,null,null,null,null,null,null,null,null,null,null,null,null,null,null,null,null,null,null,null,null,null,null,null,null,null,null,null,null,null,null,null,null,null,null,null,null,null,null,null,null,"MV_80_E"]
[5060704,null,null,null,null,null,null,null,null,null,null,null,null,null,null,null,null,null,null,null,null,null,null,null,null,null,null,null,null,null,null,null,null,null,null,null,null,null,null,null,null,null,null,null,null,null,null,null,null,null,null,null,"R3","MV_80_E"]
[5062045,null,null,null,null,null,null,null,null,null,null,null,null,null,null,null,null,null,null,null,null,null,null,null,null,null,null,null,null,null,null,null,null,null,null,null,null,null,null,null,null,null,null,null,null,null,null,null,null,null,null,null,null,"MV_80_E"]
[5063979,null,null,null,null,null,null,null,null,null,null,null,null,null,null,null,null,null,null,null,null,null,null,null,null,null,null,null,null,null,null,null,null,null,null,null,null,null,null,null,null,null,null,null,null,null,null,null,null,null,null,null,null,"MV_80_E"]
[5064904,null,null,null,null,null,null,null,null,null,null,null,null,null,null,null,null,null,null,null,null,null,null,null,null,null,null,null,null,null,null,null,null,null,null,null,null,null,null,null,null,null,null,null,null,null,null,null,null,null,null,null,"T4","MV_80_E"]
[5065309,null,null,null,null,null,null,null,null,null,null,null,null,null,null,null,null,null,null,null,null,null,null,null,null,null,null,null,null,null,null,null,null,null,null,null,null,null,null,null,null,null,null,null,null,null,null,null,null,null,null,null,"NULL","CFL_42"]
[5066609,null,null,null,null,null,null,null,null,null,null,null,null,null,null,null,null,null,null,null,null,null,null,null,null,null,null,null,null,null,null,null,null,null,null,null,null,null,null,null,null,null,null,null,null,null,null,null,null,null,null,null,null,"HPS_70_E"]
[5067998,null,null,null,null,null,null,null,null,null,null,null,null,null,null,null,null,null,null,null,null,null,null,null,null,null,null,null,null,null,null,null,null,null,null,null,null,null,null,null,null,null,null,null,null,null,null,null,null,null,null,null,"T3","HPS_150_T"]
[5069335,null,null,null,null,null,null,null,null,null,null,null,null,null,null,null,null,null,null,null,null,null,null,null,null,null,null,null,null,null,null,null,null,null,null,null,null,null,null,null,null,null,null,null,null,null,null,null,null,null,null,null,null,"MV_80_E"]
[5075323,null,null,null,null,null,null,null,null,null,null,null,null,null,null,null,null,null,null,null,null,null,null,null,null,null,null,null,null,null,null,null,null,null,null,null,null,null,null,null,null,null,null,null,null,null,null,null,null,null,null,null,"T4","MV_80_E"]
[5077613,null,null,null,null,null,null,null,null,null,null,null,null,null,null,null,null,null,null,null,null,null,null,null,null,null,null,null,null,null,null,null,null,null,null,null,null,null,null,null,null,null,null,null,null,null,null,null,null,null,null,null,null,"HPS_250_T"]
[5080225,null,null,null,null,null,null,null,null,null,null,null,null,null,null,null,null,null,null,null,null,null,null,null,null,null,null,null,null,null,null,null,null,null,null,null,null,null,null,null,null,null,null,null,null,null,null,null,null,null,null,null,"T4","MV_80_E"]
[5083431,null,null,null,null,null,null,null,null,null,null,null,null,null,null,null,null,null,null,null,null,null,null,null,null,null,null,null,null,null,null,null,null,null,null,null,null,null,null,null,null,null,null,null,null,null,null,null,null,null,null,null,"T4","CFL_42"]
[5086505,null,null,null,null,null,null,null,null,null,null,null,null,null,null,null,null,null,null,null,null,null,null,null,null,null,null,null,null,null,null,null,null,null,null,null,null,null,null,null,null,null,null,null,null,null,null,null,null,null,null,null,null,"MV_80_E"]
[5088536,null,null,null,null,null,null,null,null,null,null,null,null,null,null,null,null,null,null,null,null,null,null,null,null,null,null,null,null,null,null,null,null,null,null,null,null,null,null,null,null,null,null,null,null,null,null,null,null,null,null,null,null,"MV_80_E"]
[5092553,null,null,null,null,null,null,null,null,null,null,null,null,null,null,null,null,null,null,null,null,null,null,null,null,null,null,null,null,null,null,null,null,null,null,null,null,null,null,null,null,null,null,null,null,null,null,null,null,null,null,null,"T3","CFL_42"]
[5092660,null,null,null,null,null,null,null,null,null,null,null,null,null,null,null,null,null,null,null,null,null,null,null,null,null,null,null,null,null,null,null,null,null,null,null,null,null,null,null,null,null,null,null,null,null,null,null,null,null,null,null,"R4","CFL_42"]
[5097241,null,null,null,null,null,null,null,null,null,null,null,null,null,null,null,null,null,null,null,null,null,null,null,null,null,null,null,null,null,null,null,null,null,null,null,null,null,null,null,null,null,null,null,null,null,null,null,null,null,null,null,null,"HPS_150_T"]
[5102909,null,null,null,null,null,null,null,null,null,null,null,null,null,null,null,null,null,null,null,null,null,null,null,null,null,null,null,null,null,null,null,null,null,null,null,null,null,null,null,null,null,null,null,null,null,null,null,null,null,null,null,null,"CFL_42"]
[5105718,null,null,null,null,null,null,null,null,null,null,null,null,null,null,null,null,null,null,null,null,null,null,null,null,null,null,null,null,null,null,null,null,null,null,null,null,null,null,null,null,null,null,null,null,null,null,null,null,null,null,null,null,"HPS_150_T"]
[5109890,null,null,null,null,null,null,null,null,null,null,null,null,null,null,null,null,null,null,null,null,null,null,null,null,null,null,null,null,null,null,null,null,null,null,null,null,null,null,null,null,null,null,null,null,null,null,null,null,null,null,null,null,"MV_50_E"]
[5111031,null,null,null,null,null,null,null,null,null,null,null,null,null,null,null,null,null,null,null,null,null,null,null,null,null,null,null,null,null,null,null,null,null,null,null,null,null,null,null,null,null,null,null,null,null,null,null,null,null,null,null,"NA","CFL_42"]
[5117727,null,null,null,null,null,null,null,null,null,null,null,null,null,null,null,null,null,null,null,null,null,null,null,null,null,null,null,null,null,null,null,null,null,null,null,null,null,null,null,null,null,null,null,null,null,null,null,null,null,null,null,"T4","MV_80_E"]
[5123141,null,null,null,null,null,null,null,null,null,null,null,null,null,null,null,null,null,null,null,null,null,null,null,null,null,null,null,null,null,null,null,null,null,null,null,null,null,null,null,null,null,null,null,null,null,null,null,null,null,null,null,null,"HPS_250_T"]
[5124532,null,null,null,null,null,null,null,null,null,null,null,null,null,null,null,null,null,null,null,null,null,null,null,null,null,null,null,null,null,null,null,null,null,null,null,null,null,null,null,null,null,null,null,null,null,null,null,null,null,null,null,null,"MV_80_E"]
[5126682,null,null,null,null,null,null,null,null,null,null,null,null,null,null,null,null,null,null,null,null,null,null,null,null,null,null,null,null,null,null,null,null,null,null,null,null,null,null,null,null,null,null,null,null,null,null,null,null,null,null,null,"T4","MV_80_E"]
[5131168,null,null,null,null,null,null,null,null,null,null,null,null,null,null,null,null,null,null,null,null,null,null,null,null,null,null,null,null,null,null,null,null,null,null,null,null,null,null,null,null,null,null,null,null,null,null,null,null,null,null,null,null,"CFL_42"]
[5132136,null,null,null,null,null,null,null,null,null,null,null,null,null,null,null,null,null,null,null,null,null,null,null,null,null,null,null,null,null,null,null,null,null,null,null,null,null,null,null,null,null,null,null,null,null,null,null,null,null,null,null,null,"CFL_42"]
[5136394,null,null,null,null,null,null,null,null,null,null,null,null,null,null,null,null,null,null,null,null,null,null,null,null,null,null,null,null,null,null,null,null,null,null,null,null,null,null,null,null,null,null,null,null,null,null,null,null,null,null,null,"T4","MV_80_E"]
[5142740,null,null,null,null,null,null,null,null,null,null,null,null,null,null,null,null,null,null,null,null,null,null,null,null,null,null,null,null,null,null,null,null,null,null,null,null,null,null,null,null,null,null,null,null,null,null,null,null,null,null,null,null,"MV_80_E"]
[5144774,null,null,null,null,null,null,null,null,null,null,null,null,null,null,null,null,null,null,null,null,null,null,null,null,null,null,null,null,null,null,null,null,null,null,null,null,null,null,null,null,null,null,null,null,null,null,null,null,null,null,null,"T3","MV_80_E"]
[5145918,null,null,null,null,null,null,null,null,null,null,null,null,null,null,null,null,null,null,null,null,null,null,null,null,null,null,null,null,null,null,null,null,null,null,null,null,null,null,null,null,null,null,null,null,null,null,null,null,null,null,null,"NULL","HPS_250_T"]
[5148238,null,null,null,null,null,null,null,null,null,null,null,null,null,null,null,null,null,null,null,null,null,null,null,null,null,null,null,null,null,null,null,null,null,null,null,null,null,null,null,null,null,null,null,null,null,null,null,null,null,null,null,null,"MV_80_E"]
[5148445,null,null,null,null,null,null,null,null,null,null,null,null,null,null,null,null,null,null,null,null,null,null,null,null,null,null,null,null,null,null,null,null,null,null,null,null,null,null,null,null,null,null,null,null,null,null,null,null,null,null,null,null,"HPS_150_T"]
[5151246,null,null,null,null,null,null,null,null,null,null,null,null,null,null,null,null,null,null,null,null,null,null,null,null,null,null,null,null,null,null,null,null,null,null,null,null,null,null,null,null,null,null,null,null,null,null,null,null,null,null,null,null,"MV_250_E"]
[5151303,null,null,null,null,null,null,null,null,null,null,null,null,null,null,null,null,null,null,null,null,null,null,null,null,null,null,null,null,null,null,null,null,null,null,null,null,null,null,null,null,null,null,null,null,null,null,null,null,null,null,null,null,"HPS_400_T"]
[5151899,null,null,null,null,null,null,null,null,null,null,null,null,null,null,null,null,null,null,null,null,null,null,null,null,null,null,null,null,null,null,null,null,null,null,null,null,null,null,null,null,null,null,null,null,null,null,null,null,null,null,null,null,"MV_80_E"]
[5152996,null,null,null,null,null,null,null,null,null,null,null,null,null,null,null,null,null,null,null,null,null,null,null,null,null,null,null,null,null,null,null,null,null,null,null,null,null,null,null,null,null,null,null,null,null,null,null,null,null,null,null,null,"HPS_150_T"]
[5154392,null,null,null,null,null,null,null,null,null,null,null,null,null,null,null,null,null,null,null,null,null,null,null,null,null,null,null,null,null,null,null,null,null,null,null,null,null,null,null,null,null,null,null,null,null,null,null,null,null,null,null,"R4","MV_80_E"]
[5155449,null,null,null,null,null,null,null,null,null,null,null,null,null,null,null,null,null,null,null,null,null,null,null,null,null,null,null,null,null,null,null,null,null,null,null,null,null,null,null,null,null,null,null,null,null,null,null,null,null,null,null,null,"HPS_150_T"]
[5156401,null,null,null,null,null,null,null,null,null,null,null,null,null,null,null,null,null,null,null,null,null,null,null,null,null,null,null,null,null,null,null,null,null,null,null,null,null,null,null,null,null,null,null,null,null,null,null,null,null,null,null,null,"MV_80_E"]
[5157203,null,null,null,null,null,null,null,null,null,null,null,null,null,null,null,null,null,null,null,null,null,null,null,null,null,null,null,null,null,null,null,null,null,null,null,null,null,null,null,null,null,null,null,null,null,null,null,null,null,null,null,null,"HPS_150_T"]
[5157295,null,null,null,null,null,null,null,null,null,null,null,null,null,null,null,null,null,null,null,null,null,null,null,null,null,null,null,null,null,null,null,null,null,null,null,null,null,null,null,null,null,null,null,null,null,null,null,null,null,null,null,null,"MV_80_E"]
[5158033,null,null,null,null,null,null,null,null,null,null,null,null,null,null,null,null,null,null,null,null,null,null,null,null,null,null,null,null,null,null,null,null,null,null,null,null,null,null,null,null,null,null,null,null,null,null,null,null,null,null,null,null,"HPS_70_E"]
[5160218,null,null,null,null,null,null,null,null,null,null,null,null,null,null,null,null,null,null,null,null,null,null,null,null,null,null,null,null,null,null,null,null,null,null,null,null,null,null,null,null,null,null,null,null,null,null,null,null,null,null,null,null,"MV_80_E"]
[5161770,null,null,null,null,null,null,null,null,null,null,null,null,null,null,null,null,null,null,null,null,null,null,null,null,null,null,null,null,null,null,null,null,null,null,null,null,null,null,null,null,null,null,null,null,null,null,null,null,null,null,null,"R5","MV_250_E"]
[5163094,null,null,null,null,null,null,null,null,null,null,null,null,null,null,null,null,null,null,null,null,null,null,null,null,null,null,null,null,null,null,null,null,null,null,null,null,null,null,null,null,null,null,null,null,null,null,null,null,null,null,null,null,"MV_80_E"]
[5163408,null,null,null,null,null,null,null,null,null,null,null,null,null,null,null,null,null,null,null,null,null,null,null,null,null,null,null,null,null,null,null,null,null,null,null,null,null,null,null,null,null,null,null,null,null,null,null,null,null,null,null,null,"HPS_150_T"]
[5163747,null,null,null,null,null,null,null,null,null,null,null,null,null,null,null,null,null,null,null,null,null,null,null,null,null,null,null,null,null,null,null,null,null,null,null,null,null,null,null,null,null,null,null,null,null,null,null,null,null,null,null,null,"MV_80_E"]
[5164697,null,null,null,null,null,null,null,null,null,null,null,null,null,null,null,null,null,null,null,null,null,null,null,null,null,null,null,null,null,null,null,null,null,null,null,null,null,null,null,null,null,null,null,null,null,null,null,null,null,null,null,"T3","HPS_250_T"]
[5167320,null,null,null,null,null,null,null,null,null,null,null,null,null,null,null,null,null,null,null,null,null,null,null,null,null,null,null,null,null,null,null,null,null,null,null,null,null,null,null,null,null,null,null,null,null,null,null,null,null,null,null,null,"CFL_42"]
[5168169,null,null,null,null,null,null,null,null,null,null,null,null,null,null,null,null,null,null,null,null,null,null,null,null,null,null,null,null,null,null,null,null,null,null,null,null,null,null,null,null,null,null,null,null,null,null,null,null,null,null,null,"T4","LED_18"]
[5169048,null,null,null,null,null,null,null,null,null,null,null,null,null,null,null,null,null,null,null,null,null,null,null,null,null,null,null,null,null,null,null,null,null,null,null,null,null,null,null,null,null,null,null,null,null,null,null,null,null,null,null,null,"MV_80_E"]
[5170202,null,null,null,null,null,null,null,null,null,null,null,null,null,null,null,null,null,null,null,null,null,null,null,null,null,null,null,null,null,null,null,null,null,null,null,null,null,null,null,null,null,null,null,null,null,null,null,null,null,null,null,"R4","MV_80_E"]
[5173577,null,null,null,null,null,null,null,null,null,null,null,null,null,null,null,null,null,null,null,null,null,null,null,null,null,null,null,null,null,null,null,null,null,null,null,null,null,null,null,null,null,null,null,null,null,null,null,null,null,null,null,null,"MV_50_E"]
[5176865,null,null,null,null,null,null,null,null,null,null,null,null,null,null,null,null,null,null,null,null,null,null,null,null,null,null,null,null,null,null,null,null,null,null,null,null,null,null,null,null,null,null,null,null,null,null,null,null,null,null,null,"T4","MV_80_E"]
[5176871,null,null,null,null,null,null,null,null,null,null,null,null,null,null,null,null,null,null,null,null,null,null,null,null,null,null,null,null,null,null,null,null,null,null,null,null,null,null,null,null,null,null,null,null,null,null,null,null,null,null,null,"T4","MV_80_E"]
[5176919,null,null,null,null,null,null,null,null,null,null,null,null,null,null,null,null,null,null,null,null,null,null,null,null,null,null,null,null,null,null,null,null,null,null,null,null,null,null,null,null,null,null,null,null,null,null,null,null,null,null,null,null,"MV_80_E"]
[5177025,null,null,null,null,null,null,null,null,null,null,null,null,null,null,null,null,null,null,null,null,null,null,null,null,null,null,null,null,null,null,null,null,null,null,null,null,null,null,null,null,null,null,null,null,null,null,null,null,null,null,null,null,"MV_80_E"]
[5177085,null,null,null,null,null,null,null,null,null,null,null,null,null,null,null,null,null,null,null,null,null,null,null,null,null,null,null,null,null,null,null,null,null,null,null,null,null,null,null,null,null,null,null,null,null,null,null,null,null,null,null,null,"HPS_400_T"]
[5177112,null,null,null,null,null,null,null,null,null,null,null,null,null,null,null,null,null,null,null,null,null,null,null,null,null,null,null,null,null,null,null,null,null,null,null,null,null,null,null,null,null,null,null,null,null,null,null,null,null,null,null,null,"HPS_400_T"]
[5177116,null,null,null,null,null,null,null,null,null,null,null,null,null,null,null,null,null,null,null,null,null,null,null,null,null,null,null,null,null,null,null,null,null,null,null,null,null,null,null,null,null,null,null,null,null,null,null,null,null,null,null,null,"HPS_70_E"]
[5177172,null,null,null,null,null,null,null,null,null,null,null,null,null,null,null,null,null,null,null,null,null,null,null,null,null,null,null,null,null,null,null,null,null,null,null,null,null,null,null,null,null,null,null,null,null,null,null,null,null,null,null,null,"MV_80_E"]
[5177180,null,null,null,null,null,null,null,null,null,null,null,null,null,null,null,null,null,null,null,null,null,null,null,null,null,null,null,null,null,null,null,null,null,null,null,null,null,null,null,null,null,null,null,null,null,null,null,null,null,null,null,"T4","CFL_42"]
[5177185,null,null,null,null,null,null,null,null,null,null,null,null,null,null,null,null,null,null,null,null,null,null,null,null,null,null,null,null,null,null,null,null,null,null,null,null,null,null,null,null,null,null,null,null,null,null,null,null,null,null,null,null,"MV_80_E"]
[5177211,null,null,null,null,null,null,null,null,null,null,null,null,null,null,null,null,null,null,null,null,null,null,null,null,null,null,null,null,null,null,null,null,null,null,null,null,null,null,null,null,null,null,null,null,null,null,null,null,null,null,null,"T4","MV_80_E"]
[5177215,null,null,null,null,null,null,null,null,null,null,null,null,null,null,null,null,null,null,null,null,null,null,null,null,null,null,null,null,null,null,null,null,null,null,null,null,null,null,null,null,null,null,null,null,null,null,null,null,null,null,null,"T4","CFL_42"]
[5177235,null,null,null,null,null,null,null,null,null,null,null,null,null,null,null,null,null,null,null,null,null,null,null,null,null,null,null,null,null,null,null,null,null,null,null,null,null,null,null,null,null,null,null,null,null,null,null,null,null,null,null,"T3","HPS_150_T"]
[5177236,null,null,null,null,null,null,null,null,null,null,null,null,null,null,null,null,null,null,null,null,null,null,null,null,null,null,null,null,null,null,null,null,null,null,null,null,null,null,null,null,null,null,null,null,null,null,null,null,null,null,null,null,"CFL_42"]
[5177237,null,null,null,null,null,null,null,null,null,null,null,null,null,null,null,null,null,null,null,null,null,null,null,null,null,null,null,null,null,null,null,null,null,null,null,null,null,null,null,null,null,null,null,null,null,null,null,null,null,null,null,"T4","CFL_42"]
[5177333,null,null,null,null,null,null,null,null,null,null,null,null,null,null,null,null,null,null,null,null,null,null,null,null,null,null,null,null,null,null,null,null,null,null,null,null,null,null,null,null,null,null,null,null,null,null,null,null,null,null,null,null,"MV_80_E"]
[5177335,null,null,null,null,null,null,null,null,null,null,null,null,null,null,null,null,null,null,null,null,null,null,null,null,null,null,null,null,null,null,null,null,null,null,null,null,null,null,null,null,null,null,null,null,null,null,null,null,null,null,null,null,"MV_80_E"]
[5177364,null,null,null,null,null,null,null,null,null,null,null,null,null,null,null,null,null,null,null,null,null,null,null,null,null,null,null,null,null,null,null,null,null,null,null,null,null,null,null,null,null,null,null,null,null,null,null,null,null,null,null,null,"HPS_150_T"]
[5177368,null,null,null,null,null,null,null,null,null,null,null,null,null,null,null,null,null,null,null,null,null,null,null,null,null,null,null,null,null,null,null,null,null,null,null,null,null,null,null,null,null,null,null,null,null,null,null,null,null,null,null,"T4","CFL_42"]
[5177380,null,null,null,null,null,null,null,null,null,null,null,null,null,null,null,null,null,null,null,null,null,null,null,null,null,null,null,null,null,null,null,null,null,null,null,null,null,null,null,null,null,null,null,null,null,null,null,null,null,null,null,"T4","LED_18"]
[5177412,null,null,null,null,null,null,null,null,null,null,null,null,null,null,null,null,null,null,null,null,null,null,null,null,null,null,null,null,null,null,null,null,null,null,null,null,null,null,null,null,null,null,null,null,null,null,null,null,null,null,null,"T4","MV_80_E"]
[5177463,null,null,null,null,null,null,null,null,null,null,null,null,null,null,null,null,null,null,null,null,null,null,null,null,null,null,null,null,null,null,null,null,null,null,null,null,null,null,null,null,null,null,null,null,null,null,null,null,null,null,null,null,"MV_80_E"]
[5177529,null,null,null,null,null,null,null,null,null,null,null,null,null,null,null,null,null,null,null,null,null,null,null,null,null,null,null,null,null,null,null,null,null,null,null,null,null,null,null,null,null,null,null,null,null,null,null,null,null,null,null,null,"MV_80_E"]
[5177568,null,null,null,null,null,null,null,null,null,null,null,null,null,null,null,null,null,null,null,null,null,null,null,null,null,null,null,null,null,null,null,null,null,null,null,null,null,null,null,null,null,null,null,null,null,null,null,null,null,null,null,"T1","HPS_250_TDA"]
[5177572,null,null,null,null,null,null,null,null,null,null,null,null,null,null,null,null,null,null,null,null,null,null,null,null,null,null,null,null,null,null,null,null,null,null,null,null,null,null,null,null,null,null,null,null,null,null,null,null,null,null,null,"T4","LED_18_1"]
[5177592,null,null,null,null,null,null,null,null,null,null,null,null,null,null,null,null,null,null,null,null,null,null,null,null,null,null,null,null,null,null,null,null,null,null,null,null,null,null,null,null,null,null,null,null,null,null,null,null,null,null,null,null,"MH_250_T"]
[5177708,null,null,null,null,null,null,null,null,null,null,null,null,null,null,null,null,null,null,null,null,null,null,null,null,null,null,null,null,null,null,null,null,null,null,null,null,null,null,null,null,null,null,null,null,null,null,null,null,null,null,null,null,"MV_80_E"]
[5177709,null,null,null,null,null,null,null,null,null,null,null,null,null,null,null,null,null,null,null,null,null,null,null,null,null,null,null,null,null,null,null,null,null,null,null,null,null,null,null,null,null,null,null,null,null,null,null,null,null,null,null,null,"MV_80_E"]
[5177711,null,null,null,null,null,null,null,null,null,null,null,null,null,null,null,null,null,null,null,null,null,null,null,null,null,null,null,null,null,null,null,null,null,null,null,null,null,null,null,null,null,null,null,null,null,null,null,null,null,null,null,"T4","MV_80_E"]
[5177733,null,null,null,null,null,null,null,null,null,null,null,null,null,null,null,null,null,null,null,null,null,null,null,null,null,null,null,null,null,null,null,null,null,null,null,null,null,null,null,null,null,null,null,null,null,null,null,null,null,null,null,"T2","MV_250_E"]
[5177734,null,null,null,null,null,null,null,null,null,null,null,null,null,null,null,null,null,null,null,null,null,null,null,null,null,null,null,null,null,null,null,null,null,null,null,null,null,null,null,null,null,null,null,null,null,null,null,null,null,null,null,null,"MV_80_E"]
[5177737,null,null,null,null,null,null,null,null,null,null,null,null,null,null,null,null,null,null,null,null,null,null,null,null,null,null,null,null,null,null,null,null,null,null,null,null,null,null,null,null,null,null,null,null,null,null,null,null,null,null,null,null,"MV_80_E"]
[5177749,null,null,null,null,null,null,null,null,null,null,null,null,null,null,null,null,null,null,null,null,null,null,null,null,null,null,null,null,null,null,null,null,null,null,null,null,null,null,null,null,null,null,null,null,null,null,null,null,null,null,null,"TA","HPS_400_T"]
[5177767,null,null,null,null,null,null,null,null,null,null,null,null,null,null,null,null,null,null,null,null,null,null,null,null,null,null,null,null,null,null,null,null,null,null,null,null,null,null,null,null,null,null,null,null,null,null,null,null,null,null,null,null,"HPS_150_T"]
[5177785,null,null,null,null,null,null,null,null,null,null,null,null,null,null,null,null,null,null,null,null,null,null,null,null,null,null,null,null,null,null,null,null,null,null,null,null,null,null,null,null,null,null,null,null,null,null,null,null,null,null,null,"T4","LED_18"]
[5177808,null,null,null,null,null,null,null,null,null,null,null,null,null,null,null,null,null,null,null,null,null,null,null,null,null,null,null,null,null,null,null,null,null,null,null,null,null,null,null,null,null,null,null,null,null,null,null,null,null,null,null,"T4","MV_80_E"]
[5177813,null,null,null,null,null,null,null,null,null,null,null,null,null,null,null,null,null,null,null,null,null,null,null,null,null,null,null,null,null,null,null,null,null,null,null,null,null,null,null,null,null,null,null,null,null,null,null,null,null,null,null,null,"CFL_42"]
[5177931,null,null,null,null,null,null,null,null,null,null,null,null,null,null,null,null,null,null,null,null,null,null,null,null,null,null,null,null,null,null,null,null,null,null,null,null,null,null,null,null,null,null,null,null,null,null,null,null,null,null,null,null,"HPS_150_T"]
[5178044,null,null,null,null,null,null,null,null,null,null,null,null,null,null,null,null,null,null,null,null,null,null,null,null,null,null,null,null,null,null,null,null,null,null,null,null,null,null,null,null,null,null,null,null,null,null,null,null,null,null,null,"T3","CFL_42"]
[5178393,null,null,null,null,null,null,null,null,null,null,null,null,null,null,null,null,null,null,null,null,null,null,null,null,null,null,null,null,null,null,null,null,null,null,null,null,null,null,null,null,null,null,null,null,null,null,null,null,null,null,null,null,"LED_30"]
[5178501,null,null,null,null,null,null,null,null,null,null,null,null,null,null,null,null,null,null,null,null,null,null,null,null,null,null,null,null,null,null,null,null,null,null,null,null,null,null,null,null,null,null,null,null,null,null,null,null,null,null,null,"T3","CFL_42"]
[5178508,null,null,null,null,null,null,null,null,null,null,null,null,null,null,null,null,null,null,null,null,null,null,null,null,null,null,null,null,null,null,null,null,null,null,null,null,null,null,null,null,null,null,null,null,null,null,null,null,null,null,null,null,"MV_80_E"]
[5178510,null,null,null,null,null,null,null,null,null,null,null,null,null,null,null,null,null,null,null,null,null,null,null,null,null,null,null,null,null,null,null,null,null,null,null,null,null,null,null,null,null,null,null,null,null,null,null,null,null,null,null,null,"MV_80_E"]
[5178512,null,null,null,null,null,null,null,null,null,null,null,null,null,null,null,null,null,null,null,null,null,null,null,null,null,null,null,null,null,null,null,null,null,null,null,null,null,null,null,null,null,null,null,null,null,null,null,null,null,null,null,null,"MV_80_E"]
[5178514,null,null,null,null,null,null,null,null,null,null,null,null,null,null,null,null,null,null,null,null,null,null,null,null,null,null,null,null,null,null,null,null,null,null,null,null,null,null,null,null,null,null,null,null,null,null,null,null,null,null,null,"OTHER","MV_80_E"]
[5178580,null,null,null,null,null,null,null,null,null,null,null,null,null,null,null,null,null,null,null,null,null,null,null,null,null,null,null,null,null,null,null,null,null,null,null,null,null,null,null,null,null,null,null,null,null,null,null,null,null,null,null,"T3","HPS_100_T"]
[5178581,null,null,null,null,null,null,null,null,null,null,null,null,null,null,null,null,null,null,null,null,null,null,null,null,null,null,null,null,null,null,null,null,null,null,null,null,null,null,null,null,null,null,null,null,null,null,null,null,null,null,null,null,"HPS_150_T"]
[5178599,null,null,null,null,null,null,null,null,null,null,null,null,null,null,null,null,null,null,null,null,null,null,null,null,null,null,null,null,null,null,null,null,null,null,null,null,null,null,null,null,null,null,null,null,null,null,null,null,null,null,null,"R1","CFL_42"]
[5178729,null,null,null,null,null,null,null,null,null,null,null,null,null,null,null,null,null,null,null,null,null,null,null,null,null,null,null,null,null,null,null,null,null,null,null,null,null,null,null,null,null,null,null,null,null,null,null,null,null,null,null,"T4","MV_80_E"]
[5178767,null,null,null,null,null,null,null,null,null,null,null,null,null,null,null,null,null,null,null,null,null,null,null,null,null,null,null,null,null,null,null,null,null,null,null,null,null,null,null,null,null,null,null,null,null,null,null,null,null,null,null,null,"CFL_42"]
[5178865,null,null,null,null,null,null,null,null,null,null,null,null,null,null,null,null,null,null,null,null,null,null,null,null,null,null,null,null,null,null,null,null,null,null,null,null,null,null,null,null,null,null,null,null,null,null,null,null,null,null,null,null,"CFL_42"]
[5178915,null,null,null,null,null,null,null,null,null,null,null,null,null,null,null,null,null,null,null,null,null,null,null,null,null,null,null,null,null,null,null,null,null,null,null,null,null,null,null,null,null,null,null,null,null,null,null,null,null,null,null,"T4","CFL_42"]
[5179083,null,null,null,null,null,null,null,null,null,null,null,null,null,null,null,null,null,null,null,null,null,null,null,null,null,null,null,null,null,null,null,null,null,null,null,null,null,null,null,null,null,null,null,null,null,null,null,null,null,null,null,null,"MV_80_E"]
[5179121,null,null,null,null,null,null,null,null,null,null,null,null,null,null,null,null,null,null,null,null,null,null,null,null,null,null,null,null,null,null,null,null,null,null,null,null,null,null,null,null,null,null,null,null,null,null,null,null,null,null,null,"T5","MV_80_E"]
[5179154,null,null,null,null,null,null,null,null,null,null,null,null,null,null,null,null,null,null,null,null,null,null,null,null,null,null,null,null,null,null,null,null,null,null,null,null,null,null,null,null,null,null,null,null,null,null,null,null,null,null,null,null,"CFL_42"]
[5179207,null,null,null,null,null,null,null,null,null,null,null,null,null,null,null,null,null,null,null,null,null,null,null,null,null,null,null,null,null,null,null,null,null,null,null,null,null,null,null,null,null,null,null,null,null,null,null,null,null,null,null,"T4","MV_80_E"]
[5179222,null,null,null,null,null,null,null,null,null,null,null,null,null,null,null,null,null,null,null,null,null,null,null,null,null,null,null,null,null,null,null,null,null,null,null,null,null,null,null,null,null,null,null,null,null,null,null,null,null,null,null,"T4","MV_80_E"]
[5179676,null,null,null,null,null,null,null,null,null,null,null,null,null,null,null,null,null,null,null,null,null,null,null,null,null,null,null,null,null,null,null,null,null,null,null,null,null,null,null,null,null,null,null,null,null,null,null,null,null,null,null,null,"MV_80_E"]
[5179677,null,null,null,null,null,null,null,null,null,null,null,null,null,null,null,null,null,null,null,null,null,null,null,null,null,null,null,null,null,null,null,null,null,null,null,null,null,null,null,null,null,null,null,null,null,null,null,null,null,null,null,"T4","MV_80_E"]
[5179680,null,null,null,null,null,null,null,null,null,null,null,null,null,null,null,null,null,null,null,null,null,null,null,null,null,null,null,null,null,null,null,null,null,null,null,null,null,null,null,null,null,null,null,null,null,null,null,null,null,null,null,"T4","MV_80_E"]
[5179681,null,null,null,null,null,null,null,null,null,null,null,null,null,null,null,null,null,null,null,null,null,null,null,null,null,null,null,null,null,null,null,null,null,null,null,null,null,null,null,null,null,null,null,null,null,null,null,null,null,null,null,"T4","MV_80_E"]
[5179688,null,null,null,null,null,null,null,null,null,null,null,null,null,null,null,null,null,null,null,null,null,null,null,null,null,null,null,null,null,null,null,null,null,null,null,null,null,null,null,null,null,null,null,null,null,null,null,null,null,null,null,"T4","CFL_42"]
[5179696,null,null,null,null,null,null,null,null,null,null,null,null,null,null,null,null,null,null,null,null,null,null,null,null,null,null,null,null,null,null,null,null,null,null,null,null,null,null,null,null,null,null,null,null,null,null,null,null,null,null,null,null,"MV_80_E"]
[5179701,null,null,null,null,null,null,null,null,null,null,null,null,null,null,null,null,null,null,null,null,null,null,null,null,null,null,null,null,null,null,null,null,null,null,null,null,null,null,null,null,null,null,null,null,null,null,null,null,null,null,null,"R4","MV_80_E"]
[5179752,null,null,null,null,null,null,null,null,null,null,null,null,null,null,null,null,null,null,null,null,null,null,null,null,null,null,null,null,null,null,null,null,null,null,null,null,null,null,null,null,null,null,null,null,null,null,null,null,null,null,null,null,"MV_80_E"]
[5179783,null,null,null,null,null,null,null,null,null,null,null,null,null,null,null,null,null,null,null,null,null,null,null,null,null,null,null,null,null,null,null,null,null,null,null,null,null,null,null,null,null,null,null,null,null,null,null,null,null,null,null,"T4","CFL_42"]
[5180233,null,null,null,null,null,null,null,null,null,null,null,null,null,null,null,null,null,null,null,null,null,null,null,null,null,null,null,null,null,null,null,null,null,null,null,null,null,null,null,null,null,null,null,null,null,null,null,null,null,null,null,"T3","CFL_42"]
[5180253,null,null,null,null,null,null,null,null,null,null,null,null,null,null,null,null,null,null,null,null,null,null,null,null,null,null,null,null,null,null,null,null,null,null,null,null,null,null,null,null,null,null,null,null,null,null,null,null,null,null,null,"T3","MV_80_E"]
[5180299,null,null,null,null,null,null,null,null,null,null,null,null,null,null,null,null,null,null,null,null,null,null,null,null,null,null,null,null,null,null,null,null,null,null,null,null,null,null,null,null,null,null,null,null,null,null,null,null,null,null,null,"T4","MV_80_E"]
[5180313,null,null,null,null,null,null,null,null,null,null,null,null,null,null,null,null,null,null,null,null,null,null,null,null,null,null,null,null,null,null,null,null,null,null,null,null,null,null,null,null,null,null,null,null,null,null,null,null,null,null,null,null,"HPS_150_T"]
[5180317,null,null,null,null,null,null,null,null,null,null,null,null,null,null,null,null,null,null,null,null,null,null,null,null,null,null,null,null,null,null,null,null,null,null,null,null,null,null,null,null,null,null,null,null,null,null,null,null,null,null,null,null,"MV_80_E"]
[5180335,null,null,null,null,null,null,null,null,null,null,null,null,null,null,null,null,null,null,null,null,null,null,null,null,null,null,null,null,null,null,null,null,null,null,null,null,null,null,null,null,null,null,null,null,null,null,null,null,null,null,null,"T4","LED_18"]
[5180352,null,null,null,null,null,null,null,null,null,null,null,null,null,null,null,null,null,null,null,null,null,null,null,null,null,null,null,null,null,null,null,null,null,null,null,null,null,null,null,null,null,null,null,null,null,null,null,null,null,null,null,null,"MV_80_E"]
[5180354,null,null,null,null,null,null,null,null,null,null,null,null,null,null,null,null,null,null,null,null,null,null,null,null,null,null,null,null,null,null,null,null,null,null,null,null,null,null,null,null,null,null,null,null,null,null,null,null,null,null,null,null,"MV_80_E"]
[5180360,null,null,null,null,null,null,null,null,null,null,null,null,null,null,null,null,null,null,null,null,null,null,null,null,null,null,null,null,null,null,null,null,null,null,null,null,null,null,null,null,null,null,null,null,null,null,null,null,null,null,null,"T4","CFL_42"]
[5180361,null,null,null,null,null,null,null,null,null,null,null,null,null,null,null,null,null,null,null,null,null,null,null,null,null,null,null,null,null,null,null,null,null,null,null,null,null,null,null,null,null,null,null,null,null,null,null,null,null,null,null,"T4","CFL_42"]
[5180365,null,null,null,null,null,null,null,null,null,null,null,null,null,null,null,null,null,null,null,null,null,null,null,null,null,null,null,null,null,null,null,null,null,null,null,null,null,null,null,null,null,null,null,null,null,null,null,null,null,null,null,null,"MV_80_E"]
[5180377,null,null,null,null,null,null,null,null,null,null,null,null,null,null,null,null,null,null,null,null,null,null,null,null,null,null,null,null,null,null,null,null,null,null,null,null,null,null,null,null,null,null,null,null,null,null,null,null,null,null,null,"T4","CFL_42"]
[5180380,null,null,null,null,null,null,null,null,null,null,null,null,null,null,null,null,null,null,null,null,null,null,null,null,null,null,null,null,null,null,null,null,null,null,null,null,null,null,null,null,null,null,null,null,null,null,null,null,null,null,null,null,"MV_80_E"]
[5180382,null,null,null,null,null,null,null,null,null,null,null,null,null,null,null,null,null,null,null,null,null,null,null,null,null,null,null,null,null,null,null,null,null,null,null,null,null,null,null,null,null,null,null,null,null,null,null,null,null,null,null,"T4","MV_80_E"]
[5180433,null,null,null,null,null,null,null,null,null,null,null,null,null,null,null,null,null,null,null,null,null,null,null,null,null,null,null,null,null,null,null,null,null,null,null,null,null,null,null,null,null,null,null,null,null,null,null,null,null,null,null,"T4","CFL_42"]
[5180467,null,null,null,null,null,null,null,null,null,null,null,null,null,null,null,null,null,null,null,null,null,null,null,null,null,null,null,null,null,null,null,null,null,null,null,null,null,null,null,null,null,null,null,null,null,null,null,null,null,null,null,"R6","HPS_250_T"]
[5180469,null,null,null,null,null,null,null,null,null,null,null,null,null,null,null,null,null,null,null,null,null,null,null,null,null,null,null,null,null,null,null,null,null,null,null,null,null,null,null,null,null,null,null,null,null,null,null,null,null,null,null,null,"HPS_250_T"]
[5180501,null,null,null,null,null,null,null,null,null,null,null,null,null,null,null,null,null,null,null,null,null,null,null,null,null,null,null,null,null,null,null,null,null,null,null,null,null,null,null,null,null,null,null,null,null,null,null,null,null,null,null,null,"MV_125_E"]
[5180537,null,null,null,null,null,null,null,null,null,null,null,null,null,null,null,null,null,null,null,null,null,null,null,null,null,null,null,null,null,null,null,null,null,null,null,null,null,null,null,null,null,null,null,null,null,null,null,null,null,null,null,null,"CFL_42"]
[5180538,null,null,null,null,null,null,null,null,null,null,null,null,null,null,null,null,null,null,null,null,null,null,null,null,null,null,null,null,null,null,null,null,null,null,null,null,null,null,null,null,null,null,null,null,null,null,null,null,null,null,null,null,"CFL_42"]
[5180653,null,null,null,null,null,null,null,null,null,null,null,null,null,null,null,null,null,null,null,null,null,null,null,null,null,null,null,null,null,null,null,null,null,null,null,null,null,null,null,null,null,null,null,null,null,null,null,null,null,null,null,"T4","CFL_42"]
[5180659,null,null,null,null,null,null,null,null,null,null,null,null,null,null,null,null,null,null,null,null,null,null,null,null,null,null,null,null,null,null,null,null,null,null,null,null,null,null,null,null,null,null,null,null,null,null,null,null,null,null,null,"T4","CFL_42"]
[5180660,null,null,null,null,null,null,null,null,null,null,null,null,null,null,null,null,null,null,null,null,null,null,null,null,null,null,null,null,null,null,null,null,null,null,null,null,null,null,null,null,null,null,null,null,null,null,null,null,null,null,null,null,"MV_80_E"]
[5180662,null,null,null,null,null,null,null,null,null,null,null,null,null,null,null,null,null,null,null,null,null,null,null,null,null,null,null,null,null,null,null,null,null,null,null,null,null,null,null,null,null,null,null,null,null,null,null,null,null,null,null,null,"MV_80_E"]
[5180664,null,null,null,null,null,null,null,null,null,null,null,null,null,null,null,null,null,null,null,null,null,null,null,null,null,null,null,null,null,null,null,null,null,null,null,null,null,null,null,null,null,null,null,null,null,null,null,null,null,null,null,null,"MV_80_E"]
[5180669,null,null,null,null,null,null,null,null,null,null,null,null,null,null,null,null,null,null,null,null,null,null,null,null,null,null,null,null,null,null,null,null,null,null,null,null,null,null,null,null,null,null,null,null,null,null,null,null,null,null,null,null,"MV_80_E"]
[5180733,null,null,null,null,null,null,null,null,null,null,null,null,null,null,null,null,null,null,null,null,null,null,null,null,null,null,null,null,null,null,null,null,null,null,null,null,null,null,null,null,null,null,null,null,null,null,null,null,null,null,null,"R4","CFL_42"]
[5180753,null,null,null,null,null,null,null,null,null,null,null,null,null,null,null,null,null,null,null,null,null,null,null,null,null,null,null,null,null,null,null,null,null,null,null,null,null,null,null,null,null,null,null,null,null,null,null,null,null,null,null,"T4","CFL_42"]
[5181420,null,null,null,null,null,null,null,null,null,null,null,null,null,null,null,null,null,null,null,null,null,null,null,null,null,null,null,null,null,null,null,null,null,null,null,null,null,null,null,null,null,null,null,null,null,null,null,null,null,null,null,"R1","MV_80_E"]
[5181425,null,null,null,null,null,null,null,null,null,null,null,null,null,null,null,null,null,null,null,null,null,null,null,null,null,null,null,null,null,null,null,null,null,null,null,null,null,null,null,null,null,null,null,null,null,null,null,null,null,null,null,null,"HPS_250_T"]
[5181473,null,null,null,null,null,null,null,null,null,null,null,null,null,null,null,null,null,null,null,null,null,null,null,null,null,null,null,null,null,null,null,null,null,null,null,null,null,null,null,null,null,null,null,null,null,null,null,null,null,null,null,null,"MV_80_E"]
[5181497,null,null,null,null,null,null,null,null,null,null,null,null,null,null,null,null,null,null,null,null,null,null,null,null,null,null,null,null,null,null,null,null,null,null,null,null,null,null,null,null,null,null,null,null,null,null,null,null,null,null,null,null,"MV_80_E"]
[5181621,null,null,null,null,null,null,null,null,null,null,null,null,null,null,null,null,null,null,null,null,null,null,null,null,null,null,null,null,null,null,null,null,null,null,null,null,null,null,null,null,null,null,null,null,null,null,null,null,null,null,null,"T4","LED_18"]
[5181741,null,null,null,null,null,null,null,null,null,null,null,null,null,null,null,null,null,null,null,null,null,null,null,null,null,null,null,null,null,null,null,null,null,null,null,null,null,null,null,null,null,null,null,null,null,null,null,null,null,null,null,null,"HPS_150_T"]
[5181773,null,null,null,null,null,null,null,null,null,null,null,null,null,null,null,null,null,null,null,null,null,null,null,null,null,null,null,null,null,null,null,null,null,null,null,null,null,null,null,null,null,null,null,null,null,null,null,null,null,null,null,null,"MV_80_E"]
[5181788,null,null,null,null,null,null,null,null,null,null,null,null,null,null,null,null,null,null,null,null,null,null,null,null,null,null,null,null,null,null,null,null,null,null,null,null,null,null,null,null,null,null,null,null,null,null,null,null,null,null,null,null,"CFL_42"]
[5181804,null,null,null,null,null,null,null,null,null,null,null,null,null,null,null,null,null,null,null,null,null,null,null,null,null,null,null,null,null,null,null,null,null,null,null,null,null,null,null,null,null,null,null,null,null,null,null,null,null,null,null,null,"MV_80_E"]
[5182348,null,null,null,null,null,null,null,null,null,null,null,null,null,null,null,null,null,null,null,null,null,null,null,null,null,null,null,null,null,null,null,null,null,null,null,null,null,null,null,null,null,null,null,null,null,null,null,null,null,null,null,"T4","LED_18"]
[5182377,null,null,null,null,null,null,null,null,null,null,null,null,null,null,null,null,null,null,null,null,null,null,null,null,null,null,null,null,null,null,null,null,null,null,null,null,null,null,null,null,null,null,null,null,null,null,null,null,null,null,null,null,"MV_80_E"]
[5182562,null,null,null,null,null,null,null,null,null,null,null,null,null,null,null,null,null,null,null,null,null,null,null,null,null,null,null,null,null,null,null,null,null,null,null,null,null,null,null,null,null,null,null,null,null,null,null,null,null,null,null,"T4","MV_80_E"]
[5182568,null,null,null,null,null,null,null,null,null,null,null,null,null,null,null,null,null,null,null,null,null,null,null,null,null,null,null,null,null,null,null,null,null,null,null,null,null,null,null,null,null,null,null,null,null,null,null,null,null,null,null,"T4","LED_18"]
[5182572,null,null,null,null,null,null,null,null,null,null,null,null,null,null,null,null,null,null,null,null,null,null,null,null,null,null,null,null,null,null,null,null,null,null,null,null,null,null,null,null,null,null,null,null,null,null,null,null,null,null,null,"T4","LED_18"]
[5182586,null,null,null,null,null,null,null,null,null,null,null,null,null,null,null,null,null,null,null,null,null,null,null,null,null,null,null,null,null,null,null,null,null,null,null,null,null,null,null,null,null,null,null,null,null,null,null,null,null,null,null,null,"MV_80_E"]
[5182589,null,null,null,null,null,null,null,null,null,null,null,null,null,null,null,null,null,null,null,null,null,null,null,null,null,null,null,null,null,null,null,null,null,null,null,null,null,null,null,null,null,null,null,null,null,null,null,null,null,null,null,null,"MV_80_E"]
[5182924,null,null,null,null,null,null,null,null,null,null,null,null,null,null,null,null,null,null,null,null,null,null,null,null,null,null,null,null,null,null,null,null,null,null,null,null,null,null,null,null,null,null,null,null,null,null,null,null,null,null,null,null,"CFL_42"]
[5182929,null,null,null,null,null,null,null,null,null,null,null,null,null,null,null,null,null,null,null,null,null,null,null,null,null,null,null,null,null,null,null,null,null,null,null,null,null,null,null,null,null,null,null,null,null,null,null,null,null,null,null,null,"HPS_250_T"]
[5183380,null,null,null,null,null,null,null,null,null,null,null,null,null,null,null,null,null,null,null,null,null,null,null,null,null,null,null,null,null,null,null,null,null,null,null,null,null,null,null,null,null,null,null,null,null,null,null,null,null,null,null,"T4","MV_80_E"]
[5183422,null,null,null,null,null,null,null,null,null,null,null,null,null,null,null,null,null,null,null,null,null,null,null,null,null,null,null,null,null,null,null,null,null,null,null,null,null,null,null,null,null,null,null,null,null,null,null,null,null,null,null,null,"MV_80_E"]
[5183444,null,null,null,null,null,null,null,null,null,null,null,null,null,null,null,null,null,null,null,null,null,null,null,null,null,null,null,null,null,null,null,null,null,null,null,null,null,null,null,null,null,null,null,null,null,null,null,null,null,null,null,"T4","LED_25"]
[5183479,null,null,null,null,null,null,null,null,null,null,null,null,null,null,null,null,null,null,null,null,null,null,null,null,null,null,null,null,null,null,null,null,null,null,null,null,null,null,null,null,null,null,null,null,null,null,null,null,null,null,null,null,"CFL_42"]
[5183530,null,null,null,null,null,null,null,null,null,null,null,null,null,null,null,null,null,null,null,null,null,null,null,null,null,null,null,null,null,null,null,null,null,null,null,null,null,null,null,null,null,null,null,null,null,null,null,null,null,null,null,null,"HPS_150_T"]
[5183555,null,null,null,null,null,null,null,null,null,null,null,null,null,null,null,null,null,null,null,null,null,null,null,null,null,null,null,null,null,null,null,null,null,null,null,null,null,null,null,null,null,null,null,null,null,null,null,null,null,null,null,null,"MV_80_E"]
[5183559,null,null,null,null,null,null,null,null,null,null,null,null,null,null,null,null,null,null,null,null,null,null,null,null,null,null,null,null,null,null,null,null,null,null,null,null,null,null,null,null,null,null,null,null,null,null,null,null,null,null,null,null,"MV_80_E"]
[5183646,null,null,null,null,null,null,null,null,null,null,null,null,null,null,null,null,null,null,null,null,null,null,null,null,null,null,null,null,null,null,null,null,null,null,null,null,null,null,null,null,null,null,null,null,null,null,null,null,null,null,null,"T4","CFL_42"]
[5183707,null,null,null,null,null,null,null,null,null,null,null,null,null,null,null,null,null,null,null,null,null,null,null,null,null,null,null,null,null,null,null,null,null,null,null,null,null,null,null,null,null,null,null,null,null,null,null,null,null,null,null,null,"HPS_250_T"]
[5183883,null,null,null,null,null,null,null,null,null,null,null,null,null,null,null,null,null,null,null,null,null,null,null,null,null,null,null,null,null,null,null,null,null,null,null,null,null,null,null,null,null,null,null,null,null,null,null,null,null,null,null,"T4","MV_80_E"]
[5183885,null,null,null,null,null,null,null,null,null,null,null,null,null,null,null,null,null,null,null,null,null,null,null,null,null,null,null,null,null,null,null,null,null,null,null,null,null,null,null,null,null,null,null,null,null,null,null,null,null,null,null,"R4","MV_80_E"]
[5184029,null,null,null,null,null,null,null,null,null,null,null,null,null,null,null,null,null,null,null,null,null,null,null,null,null,null,null,null,null,null,null,null,null,null,null,null,null,null,null,null,null,null,null,null,null,null,null,null,null,null,null,"NULL","MV_50_E"]
[5184347,null,null,null,null,null,null,null,null,null,null,null,null,null,null,null,null,null,null,null,null,null,null,null,null,null,null,null,null,null,null,null,null,null,null,null,null,null,null,null,null,null,null,null,null,null,null,null,null,null,null,null,"T4","HPS_100_T"]
[5184424,null,null,null,null,null,null,null,null,null,null,null,null,null,null,null,null,null,null,null,null,null,null,null,null,null,null,null,null,null,null,null,null,null,null,null,null,null,null,null,null,null,null,null,null,null,null,null,null,null,null,null,null,"HPS_250_T"]